{"text_format":"1","workbook":"xlsx","n_sheets":30,"sheets":["README","DAC1a_E","DAC1b_E","CRSDATA","DATES","TOSSD","TOSSDKEEP","Mobilisation","MOB_validation","Validation table","type_of_finance","tossd codelist","type_of_aid","donor_agency","Type of blended finance","Mobilisation codes","PSI","Marker","Currency","IncomeGroup","Repayment","ChannelDiscountGroup","purpose_code","SDG_focus","channel_codes","type_of_flow","Bi_Multi","recipient_country","nature_of_submission","Donor"],"not_rendered":{"charts":0,"images":0,"macros":1,"external_links":2,"defined_names":637,"comments":0,"pivot_tables":0},"unopened":[],"bounds":{"document_bytes":16777216,"sheet_cells":100000,"rows_first":2000,"rows_last":500,"rows_between":2000,"halvings":0,"cell_chars":16384,"cell_head_chars":4096},"cells_cut":0,"cells_raw":0,"read":"whole","date_system":"1900"}

{"sheet":"README","index":0,"n_rows":11,"n_cols":24,"rows_kept":11,"cut":false,"hidden":false,"merged":[[7,1,7,15],[1,1,1,15],[3,1,3,15],[4,1,4,15],[5,1,5,15],[6,1,6,15],[27,1,27,15],[8,1,8,15],[9,1,9,15],[10,1,10,15],[11,1,11,15],[13,1,13,15],[14,1,14,15],[15,1,15,15],[16,1,16,15],[17,1,17,15],[18,1,18,15],[19,1,19,15],[47,1,47,15],[30,1,30,15],[34,1,34,15],[36,1,36,15],[38,1,38,15],[39,1,39,15],[40,1,40,15],[42,1,42,15],[43,1,43,15],[44,1,44,15],[45,1,45,15],[46,1,46,15],[54,1,54,15],[55,1,55,15],[56,1,56,15],[48,1,48,15],[49,1,49,15],[50,1,50,15],[51,1,51,15],[52,1,52,15],[53,1,53,15]]}
[]
[]
[]
[]
[]
[]
[]
[]
[]
[]
[null,null,null,null,null,null,null,null,null,null,null,null,null,null,null,null,null,null,null,null,null,null,null,0]

{"sheet":"DAC1a_E","index":1,"n_rows":27,"n_cols":3,"rows_kept":27,"cut":false,"hidden":false,"merged":[[26,0,26,2]]}
["TABLE DAC 1a","Reporting country:","???"]
["ODA GRANT EQUIVALENT MEASURE","Period:",2024]
["2025 edition","Date:","???"]
[]
["KEY INDICATORS"]
["GNI","001"]
["ODA GRANT EQUIVALENT % GNI","002"]
["POPULATION (millions)","004"]
["I. OFFICIAL DEVELOPMENT ASSISTANCE (I.A + I.B) *","1010",{"$f":"C10+C24","v":0}]
[" I.A ODA, bilateral total *","1015",{"$f":"C11+C12+C17+C18+C22","v":0}]
[" I.A.1 ODA bilateral grants",11016]
[" I.A.2 ODA grant equivalents of bilateral loans","11017",{"$f":"C13+C14+C15+C16","v":0}]
["    1. Loans to LDCs and other LICs","11019"]
["    2. Loans to LMICs","11020"]
["    3. Loans to UMICs","11021"]
["    4. Loans for multi-country agreements","11022"]
[" I.A.3 ODA, grant equivalents of debt relief",1600]
["I.A.4 ODA, Grant equivalents of private sector instruments (PSI)",11040,{"$f":"C19+C20+C21","v":0}]
["    1. Institutional approach, capital increases of ODA-eligible PSI vehicles","11041"]
["    2. Instrument approach, grant equivalents of individual PSI activities",11042]
["    3. Decapitalisations and dividends paid to the government",11044]
[" I.A.4 ODA, other bilateral, net flows *",11018,{"$f":"C23","v":0}]
["    1. Private sector instruments - instrument approach *",11024]
[" I.B ODA, multilateral total ",2000,{"$f":"C25+C26","v":0}]
[" I.B.1 ODA, multilateral grants and capital subscriptions",12100]
[" I.B.2 ODA grant equivalents of multilateral loans",12110]
["* Used under the instrument approach if using a transition period for implementing the revised methods for PSI."]

{"sheet":"DAC1b_E","index":2,"n_rows":145,"n_cols":11,"rows_kept":145,"cut":false,"hidden":false,"merged":[[4,3,4,7],[4,8,4,10],[6,3,6,5],[6,6,7,6],[6,7,7,7],[6,10,7,10]]}
["TABLE DAC 1b",null,null,null,null,null,null,null,"Reporting country:",null,"???"]
["DISBURSEMENTS AND COMMITMENTS OF OFFICIAL AND PRIVATE FLOWS",null,null,null,null,null,null,null,"Period:",null,2024]
["2025 edition",null,null,null,null,null,null,null,"Date:",null,"???"]
[]
[null,null,null,"D I S B U R S E M E N T S",null,null,null,null,"COMMITMENTS"]
[null,null,"1160",1121,1122,1120,1130,1140,1151,1152,1150]
["Million US dollars",null,null,"-------- Amounts extended --------",null,null,"Amounts received      (-) \nNon grants (2)","NET AMOUNTS",null,null,"Total commitments"]
[null,null,"Grant equivalents *","Grants (1)","Non grants","Total amounts extended",null,null,"Grants (1)","Non grants"]
["KEY INDICATORS",null,null,"/","/","/","/","/","/","/","/"]
["TOTAL FLOWS % GNI","003",null,"/","/","/","/",null,"/","/","/"]
["TOTAL OFFICIAL AND PRIVATE FLOWS (I+II+III+IV+V)","005","/",{"$f":"D12+D91+D124+D137","v":0},{"$f":"E12+E91+E120+E124","v":0},{"$f":"D11+E11","v":0},{"$f":"G12+G91+G120+G124+G137","v":0},{"$f":"F11+G11","v":0},"/","/","/"]
["I. OFFICIAL DEVELOPMENT ASSISTANCE (I.A + I.B) *","1010",{"$f":"C13+C73","v":0},{"$f":"D13+D73","v":0},{"$f":"E13+E73","v":0},{"$f":"D12+E12","v":0},{"$f":"G13+G73","v":0},0,{"$f":"I13+I73","v":0},{"$f":"J13+J73","v":0},{"$f":"I12+J12","v":0}]
["I.A. Bilateral Official Development Assistance by types of aid \n      (1+2+3+4+5+6+7+8+9+10+11) *","1015",{"$f":"C14+C17+C25+C30+C33+C36+C50+C51+C54+C55+C56","v":0},{"$f":"D14+D17+D25+D30+D33+D36+D50+D51","v":0},{"$f":"E14+E17+E25+E36","v":0},{"$f":"D13+E13","v":0},{"$f":"G14+G17+G25+G36+G54+G55","v":0},{"$f":"F13+G13","v":0},{"$f":"I14+I17+I25+I30+I33+I36+I50+I51+I54","v":0},{"$f":"J14+J17+J25+J36+J54","v":0},{"$f":"I13+J13","v":0}]
["1.  Budget support","1100",{"$f":"SUM(C15:C16)","v":0},{"$f":"SUM(D15:D16)","v":0},{"$f":"SUM(E15:E16)","v":0},0,0,0,0,0,0]
["  1.1 General budget support","1110",null,null,null,0,null,0,null,null,0]
["  1.2 Sector budget support","1120",null,null,null,0,null,0,null,null,0]
["2.  Bilateral core support & pooled programmes & funds","1200",{"$f":"C18+C23+C24","v":0},{"$f":"D18+D23+D24","v":0},{"$f":"E18+E23+E24","v":0},0,{"$f":"G18+G23+G24","v":0},0,{"$f":"I18+I23+I24","v":0},{"$f":"J18+J23+J24","v":0},0]
["  2.1 Core support to NGOs and civil society, PPPs & research institutes","1210",{"$f":"SUM(C19:C22)","v":0},{"$f":"SUM(D19:D22)","v":0},{"$f":"E21+E22","v":0},{"$f":"D18+E18","v":0},{"$f":"G21+G22","v":0},0,{"$f":"SUM(I19:I22)","v":0},{"$f":"J21+J22","v":0},0]
["       a) Core support to donor country-based NGOs & civil society","1211",null,null,"/",{"$f":"D19","v":0},"/",{"$f":"F19","v":0},null,"/",{"$f":"I19","v":0}]
["       b) Core support to international NGOs","1212",null,null,"/",{"$f":"D20","v":0},"/",{"$f":"F20","v":0},null,"/",{"$f":"I20","v":0}]
["       c) Core support to Public-Private Partnerships (including networks)","1213",null,null,null,{"$f":"D21+E21","v":0},null,{"$f":"F21+G21","v":0},null,null,{"$f":"I21+J21","v":0}]
["       d) Other","1214",null,null,null,{"$f":"D22+E22","v":0},null,0,null,null,0]
["  2.2 Specific-purpose programmes & funds managed by implementing partners","1220",null,null,null,{"$f":"D23+E23","v":0},null,0,null,null,0]
["  2.3 Basket funds/pooled funding","1230",null,null,null,{"$f":"D24+E24","v":0},null,0,null,null,0]
["3.  Project-type interventions","1300",{"$f":"C26+C27","v":0},{"$f":"D26+D27","v":0},{"$f":"E26+E27","v":0},{"$f":"D25+E25","v":0},{"$f":"G26+G27","v":0},0,{"$f":"I26+I27","v":0},{"$f":"J26+J27","v":0},0]
["  3.1 Investment projects","1310",null,null,null,0,null,0,null,null,0]
["  3.2 Other projects","1320",null,null,null,0,null,0,null,null,{"$f":"I27+J27","v":0}]
[" Memo:  Projects qualifying as programme-based approaches","1330",null,null,null,0,null,0,null,null,{"$f":"I28+J28","v":0}]
[" Memo:  Cost of donor experts incl. in project-type interventions (optional)","1301",null,null,null,0,null,0,null,null,{"$f":"I29+J29","v":0}]
["4.  Experts and other technical assistance","1400",{"$f":"SUM(C31:C32)","v":0},{"$f":"SUM(D31:D32)","v":0},"/",{"$f":"D30","v":0},"/",{"$f":"F30","v":0},{"$f":"SUM(I31:I32)","v":0},"/",{"$f":"I30","v":0}]
["  4.1 Donor country personnel","1410",null,null,"/",0,"/",0,null,"/",0]
["  4.2 Other technical assistance","1420",null,null,"/",0,"/",0,null,"/",0]
["5.  Scholarships and student costs in donor countries","1500",{"$f":"SUM(C34:C35)","v":0},{"$f":"SUM(D34:D35)","v":0},"/",0,"/",0,{"$f":"SUM(I34:I35)","v":0},"/",0]
["  5.1 Scholarships/training in donor country","1510",null,null,"/",0,"/",0,null,"/",0]
["  5.2 Imputed student costs","1520",null,null,"/",0,"/",0,null,"/",0]
["6.  Debt relief ","1600",{"$f":"C37+C43+C48","v":0},{"$f":"D37+D43","v":0},{"$f":"E37","v":0},0,{"$f":"G37+G48","v":0},{"$f":"F36+G36","v":0},{"$f":"I37+I43","v":0},{"$f":"J37","v":0},{"$f":"I36+J36","v":0}]
["   6.1 Debt forgiveness and debt rescheduling ","1610",{"$f":"SUM(C38:C41)","v":0},{"$f":"SUM(D38:D41)","v":0},{"$f":"SUM(E38:E40)","v":0},0,{"$f":"SUM(G38:G40)","v":0},{"$f":"F37+G37","v":0},{"$f":"SUM(I38:I41)","v":0},{"$f":"SUM(J38:J40)","v":0},{"$f":"I37+J37","v":0}]
["       a) ODA claims (for rescheduling, only capitalised interest) ","1611",null,null,null,0,null,{"$f":"F38+G38","v":0},null,null,{"$f":"I38+J38","v":0}]
["       b) OOF claims ","1615",null,null,null,0,null,{"$f":"F39+G39","v":0},null,null,{"$f":"I39+J39","v":0}]
["       c) Claims of officially supported export credits ","1616",null,null,null,0,null,{"$f":"F40+G40","v":0},null,null,{"$f":"I40+J40","v":0}]
["       d) Private claims ","1617",null,null,"/",{"$f":"D41","v":0},"/",{"$f":"F41","v":0},null,"/",{"$f":"I41","v":0}]
["   Memo:   Grants for debt service reduction ","1614",null,null,"/",0,"/",0,null,"/",0]
["   6.2 Other action on debt ","1620",{"$f":"SUM(C44:C47)","v":0},{"$f":"SUM(D44:D47)","v":0},"/",{"$f":"D43","v":0},"/",0,{"$f":"SUM(I44:I47)","v":0},"/",{"$f":"I43","v":0}]
["       a) Service payments to third parties ","1621",null,null,"/",0,"/",0,null,"/",0]
["       b) Debt conversion ","1622",null,null,"/",0,"/",0,null,"/",0]
["       c) Debt buybacks ","1623",null,null,"/",0,"/",0,null,"/",0]
["       d) Other ","1624",null,null,"/",0,"/",0,null,"/",0]
["   6.3 Offsetting entry for debt forgiveness (ODA claims, principal) ","1630",null,"/","/","/",null,{"$f":"G48","v":0},"/","/","/"]
["   Memo:  Offsetting entry for forgiven interest (ODA claims, interest) ","1640",null,"/","/","/",null,{"$f":"G49","v":0},"/","/","/"]
["7.  Administrative costs not included elsewhere","1700",null,null,"/",{"$f":"D50","v":0},"/",{"$f":"F50","v":0},null,"/",{"$f":"I50","v":0}]
["8.  Other in-donor expenditures","1800",{"$f":"SUM(C52:C53)","v":0},{"$f":"SUM(D52:D53)","v":0},"/",{"$f":"D51","v":0},"/",{"$f":"F51","v":0},{"$f":"SUM(I52:I53)","v":0},"/",{"$f":"I51","v":0}]
["  8.1 Development awareness","1810",null,null,"/",{"$f":"D52","v":0},"/",{"$f":"F52","v":0},null,"/",{"$f":"I52","v":0}]
["  8.2 Refugees in donor countries","1820",null,null,"/",{"$f":"D53","v":0},"/",{"$f":"F53","v":0},null,"/",{"$f":"I53","v":0}]
["9. Recoveries on bilateral ODA grants and negative commitments","1900",null,"/","/","/",null,{"$f":"G54","v":0},null,null,{"$f":"I54+J54","v":0}]
["10. Other loans repayments","1999",null,"/","/","/",null,{"$f":"G55","v":0},"/","/","/"]
["11. ODA, Grant equivalents of private sector instruments (PSI) ","11040",{"$f":"SUM(C57:C60)","v":0},"/","/","/","/","/","/","/","/"]
["  11.1 Institutional approach, capital increases of ODA-eligible PSI vehicles","11041",null,"/","/","/","/","/","/","/","/"]
["  11.2 Instrument approach, grant equivalents of individual PSI activities","11042",null,"/","/","/","/","/","/","/","/"]
["  11.3 Decapitalisations and dividends paid to the government","11044",null,"/","/","/","/","/","/","/","/"]
["  11.4  Instrument approach, net flows *","11024",null,"/","/","/","/","/","/","/","/"]
["Memo items for PSI:"]
["      Institutional approach, grant equivalents of individual PSI activities",1041,null,"/","/","/","/","/","/","/","/"]
["      Instrument approach, capital increases of ODAeligible PSI vehicles",1042,null,"/","/","/","/","/","/","/","/"]
["      Decapitalisations and dividends paid to the government ",1045,null,"/","/","/","/","/","/","/","/"]
["      Outstanding ODA equities upon transition to grant equivalent measurement ex ante",1044,null,"/","/","/","/","/","/","/","/"]
["Other memo items:"]
["  Programme-based approaches (PBAs)","1901",null,null,null,{"$f":"D67+E67","v":0},null,{"$f":"F67+G67","v":0},null,null,{"$f":"I67+J67","v":0}]
["  Free-standing technical co-operation (FTC)","1902",null,null,null,{"$f":"D68+E68","v":0},null,{"$f":"F68+G68","v":0},null,null,{"$f":"I68+J68","v":0}]
["  ODA channelled through private entities (as distinct from support to private sources)","1903",null,null,null,0,null,0,null,null,{"$f":"I69+J69","v":0}]
["  ODA channelled through multilateral organisations","1904",null,null,null,0,null,0,null,null,0]
["  Participation in international peacekeeping operations","1905",null,null,null,0,null,0,null,null,0]
["  Relief food aid","1906",null,null,null,0,null,0,null,null,0]
["I.B. Multilateral Official Development Assistance (capital subscriptions are included with grants)","2000",{"$f":"C74+C82","v":0},{"$f":"D74","v":0},{"$f":"E74","v":0},0,{"$f":"G74+G82","v":0},0,{"$f":"I74+I82","v":0},{"$f":"J74+J82","v":0},0]
["1. Multilateral contributions to:  ","2100",{"$f":"SUM(C75:C81)","v":0},{"$f":"SUM(D75:D81)","v":0},{"$f":"SUM(E75:E81)","v":0},0,{"$f":"SUM(G75:G81)","v":0},0,{"$f":"SUM(I75:I81)","v":0},{"$f":"SUM(J75:J81)","v":0},0]
["                                  1.1 UN agencies","2101",null,null,null,{"$f":"D75+E75","v":0},null,0,null,null,0]
["                                  1.2 European Union","2102",null,null,null,0,null,0,null,null,0]
["                                  1.3 IDA","2103",null,null,null,0,null,0,null,null,0]
["                                  1.4 Other World Bank (AMCs, IBRD,IFC,MIGA)","2104",null,null,null,0,null,0,null,null,0]
["                                  1.5 Regional development banks","2105",null,null,null,{"$f":"D79+E79","v":0},null,0,null,null,0]
["                                  1.6 Global Environment Facility","2106",null,null,null,0,null,0,null,null,0]
["                                  1.7 Other agencies","2108",null,null,null,0,null,0,null,null,{"$f":"I81+J81","v":0}]
["2. Recoveries on multilateral ODA grants and capital subscriptions and negative commitments","2110",null,"/","/","/",null,{"$f":"G82","v":0},null,null,{"$f":"I82+J82","v":0}]
["Memo (bilat. + multilat.):  "]
["               - HIPC Initiative","2901",null,null,"/",{"$f":"D84","v":0},"/",{"$f":"F84","v":0},"/","/","/"]
["              - IDA Debt Reduction Facility","2902",null,null,"/",{"$f":"D85","v":0},"/",{"$f":"F85","v":0},"/","/","/"]
["II.  PRIVATE SECTOR INSTRUMENTS (PSI) FLOWS","3400","/",{"$f":"D87+D88+D89+D90","v":0},{"$f":"E87+E88+E89+E90","v":0},{"$f":"D86+E86","v":0},{"$f":"G87+G88+G89+G90","v":0},{"$f":"F86+G86","v":0},"/","/","/"]
["  1. Grants","3401","/",null,null,0,null,{"$f":"F87+G87","v":0},"/","/","/"]
["  2. Debt instruments","3402","/",null,null,0,null,{"$f":"F88+G88","v":0},"/","/","/"]
["  3. Equities and shares in collective investment vehicles","3403","/",null,null,0,null,{"$f":"F89+G89","v":0},"/","/","/"]
["  4.  Mezzanine finance instruments","3404","/",null,null,0,null,{"$f":"F90+G90","v":0},"/","/","/"]
["III. OTHER OFFICIAL FLOWS","200","/",{"$f":"D92+D108","v":0},{"$f":"E92+E108","v":0},0,{"$f":"G92+G108","v":0},{"$f":"F91+G91","v":0},{"$f":"I92+I108","v":0},{"$f":"J92+J108","v":0},{"$f":"I91+J91","v":0}]
["III.A. Other Official Bilateral Flows ","210","/",{"$f":"D93+D106","v":0},{"$f":"E93+E94+E100+E106","v":0},0,{"$f":"G93+G94+G100+G106+G107","v":0},{"$f":"F92+G92","v":0},{"$f":"I93+I106","v":0},{"$f":"J93+J94+J100+J106","v":0},{"$f":"I92+J92","v":0}]
["1.  Budget Support","2210","/",null,null,0,null,0,null,null,{"$f":"I93+J93","v":0}]
["2.  Investment-related transactions","2220","/","/",{"$f":"E95+E96+E98","v":0},{"$f":"F95+F96+F98","v":0},{"$f":"G95+G96+G98","v":0},{"$f":"H95+H96+H98","v":0},"/",{"$f":"J95+J96+J98","v":0},{"$f":"K95+K96+K98","v":0}]
["  2.1 Through debt","2221","/","/",null,{"$f":"E95","v":0},null,{"$f":"F95+G95","v":0},"/",null,{"$f":"J95","v":0}]
["  2.2 Through equity investments","2222","/","/",null,{"$f":"E96","v":0},null,{"$f":"F96+G96","v":0},"/",null,{"$f":"J96","v":0}]
["            of which shares in CIVs","2223","/","/",null,{"$f":"E97","v":0},null,{"$f":"F97+G97","v":0},"/",null,{"$f":"J97","v":0}]
["  2.3 Through mezzanine finance","2224","/","/",null,{"$f":"E98","v":0},null,{"$f":"F98+G98","v":0},"/",null,{"$f":"J98","v":0}]
[" Memo:  Investment-related transactions, of which to the private sector","2225","/","/",null,{"$f":"E99","v":0},null,{"$f":"F99+G99","v":0},"/",null,{"$f":"J99","v":0}]
["3.  Debt rescheduling","300","/","/",{"$f":"E101+E105","v":0},{"$f":"E100","v":0},{"$f":"G101+G105","v":0},0,"/",{"$f":"J101+J105","v":0},{"$f":"J100","v":0}]
["  3.1 Non-concessional rescheduling","301","/","/",{"$f":"SUM(E102:E104)","v":0},0,{"$f":"SUM(G102:G104)","v":0},0,"/",{"$f":"SUM(J102:J104)","v":0},0]
["        a) OOF claims (capitalised interest)","304","/","/",null,0,null,0,"/",null,0]
["        b) Claims of officially supported export credits","305","/","/",null,0,null,0,"/",null,0]
["        c) Private claims","306","/","/",null,0,null,0,"/",null,0]
["  3.2 OOF component of debt service reduction","303","/","/",null,0,null,0,"/",null,0]
["4.  Other claims and grants","298","/"]
["5.  Offsetting entry for debt relief (claims of OOF, principal)","1020","/","/","/","/",null,{"$f":"G107","v":0},"/","/","/"]
["III.B. Transactions with Multilateral Agencies at Market Terms","325","/",{"$f":"D110","v":0},{"$f":"SUM(E109:E110)","v":0},{"$f":"D108+E108","v":0},{"$f":"SUM(G109:G110)","v":0},0,{"$f":"I110","v":0},{"$f":"SUM(J109:J110)","v":0},{"$f":"I108+J108","v":0}]
["1.  Purchase of securities from issuing agencies","326","/","/",null,{"$f":"E109","v":0},null,0,"/",null,{"$f":"J109","v":0}]
["2.  Other transactions","327","/",null,null,{"$f":"D110+E110","v":0},null,0,null,null,{"$f":"I110+J110","v":0}]
["Memo:  - Interest received on OOF, total (bilat.+multilat.)","7950","/","/","/","/",{"$f":"SUM(G112:G113)","v":0},{"$f":"G111","v":0},"/","/","/"]
["                      - Bilateral","8000","/","/","/","/",null,{"$f":"G112","v":0},"/","/","/"]
["                      - Multilateral    ","805","/","/","/","/",null,{"$f":"G113","v":0},"/","/","/"]
["              - Offsetting entry for forgiven interest (claims of OOF, interest) ","7860","/","/","/","/",null,{"$f":"G114","v":0},"/","/","/"]
["Memo items on development finance interventions (I. ODA + II. PSI flows + III. OOF): ",null,"/","/","/","/"]
["               1. Development finance in blended finance packages","2231","/","/",null,null,null,{"$f":"F116+G116","v":0}]
["                    of which through funds and facilities","2232","/","/",null,null,null,0]
["               2. Amounts mobilised from the private sector","2233","/","/",null,null,null,0]
["                    of which through guarantees","2234","/","/",null,null,null,0]
["IV. OFFICIALLY SUPPORTED EXPORT CREDITS","3000","/","/",{"$f":"E121+E122","v":0},{"$f":"E120","v":0},{"$f":"G121+G122+G123","v":0},0,"/","/","/"]
["IV.A. Official direct export credits","3100","/","/",null,{"$f":"E121","v":0},null,0,"/","/","/"]
["IV.B. Officially guaranteed or insured export credits ","3200","/","/",null,{"$f":"E122","v":0},null,0,"/","/","/"]
["IV.C.  Offsetting entry for debt relief (export credit claims, principal)","3102","/","/","/","/",null,{"$f":"G123","v":0},"/","/","/"]
["V. PRIVATE FLOWS AT MARKET TERMS","3300","/",{"$f":"D136","v":0},{"$f":"E125+E136","v":0},{"$f":"E124+D124","v":0},{"$f":"G125+G136","v":0},{"$f":"F124+G124","v":0},"/","/","/"]
["V.A. Bilateral Private Flows","3320","/","/",{"$f":"E126+E128","v":0},{"$f":"E125","v":0},{"$f":"G126+G128+G135","v":0},{"$f":"F125+G125","v":0},"/","/","/"]
["1.  Direct Investment","340","/","/",null,{"$f":"E126","v":0},null,{"$f":"F126+G126","v":0},"/","/","/"]
["     of which:   New capital outflows","345","/","/",null,{"$f":"E127","v":0},null,{"$f":"F127+G127","v":0},"/","/","/"]
["2.  Other securities and claims","3530","/","/",{"$f":"E129+E132","v":0},0,{"$f":"G129+G132","v":0},0,"/","/","/"]
["   2.1 Total banks (long-term)","3840","/","/",{"$f":"E130+E131","v":0},0,{"$f":"SUM(G130:G131)","v":0},0,"/","/","/"]
["        a) Bonds","751","/","/",null,0,null,0,"/","/","/"]
["        b) Other bank","7530","/","/",null,0,null,0,"/","/","/"]
["   2.2 Non-banks","3860","/","/",{"$f":"SUM(E133:E134)","v":0},0,{"$f":"SUM(G133:G134)","v":0},{"$f":"F132+G132","v":0},"/","/","/"]
["        a) Bonds","388","/","/",null,0,null,0,"/","/","/"]
["        b) Other securities (incl. equities)","3890","/","/",null,0,null,0,"/","/","/"]
["3.  Offsetting entry for debt relief (other private claims, principal)","1030","/","/","/","/",null,{"$f":"G135","v":0},"/","/","/"]
["V.B. Multilateral Private Flows","359","/",null,null,{"$f":"D136+E136","v":0},null,{"$f":"F136+G136","v":0},"/","/","/"]
["VI. NET PRIVATE GRANTS","415","/",{"$f":"D138","v":0},"/",{"$f":"D137","v":0},{"$f":"G139","v":0},{"$f":"F137+G137","v":0},"/","/","/"]
["derived as:  1.  Gross outflow from private sources, less","425","/",null,"/",{"$f":"D138","v":0},"/",{"$f":"F138","v":0},"/","/","/"]
["                    2.  Support received from official sector","420","/","/","/","/",null,{"$f":"G139","v":0},"/","/","/"]
["VII. ITEM ONLY PARTLY COVERED IN DAC RESOURCE FLOW STATISTICS",null,"/","/","/","/","/","/","/","/","/"]
["1.  Total participation in peacebuilding operations (incl. non-ODA)","207","/",null,null,{"$f":"D141+E141","v":0},null,{"$f":"F141+G141","v":0},"/","/","/"]
[]
["(1) Also includes capital subscriptions to multilateral agencies."]
["(2) Also includes total recoveries on grants and capital subscriptions (codes 1900 and 2110)."]
["* Used under the instrument approach if using a transition period for implementing the revised methods for PSI."]

{"sheet":"CRSDATA","index":3,"n_rows":3,"n_cols":75,"rows_kept":3,"cut":false,"hidden":false,"merged":[]}
["A. Identification data",null,null,null,null,null,null,"B.Basic data",null,null,null,null,null,15,null,null,"C. Supplementary data",null,null,null,null,null,"Asterisk (*) means that reporting in the field is optional",null,null,null,null,null,null,null,null,null,null,null,null,null,null,null,null,"D. Volume data",null,null,null,null,null,null,null,null,null,null,null,null,null,null,null,"E. For non-grant instruments",null,null,null,null,null,null,null,null,null,null,null,"F. For PSI ",null,null,null,null,"FOR OECD USE ONLY (not to be filled)","FOR OECD USE ONLY (not to be filled)","FOR OECD USE ONLY (not to be filled)"]
["Reporting year","Commitment date (dd-mm-yyyy)","Reporting country / organisation","Extending agency","CRS Identification N°","Donor project N°","Nature of submission","Recipient code","Channel of delivery name","Channel code","Bi/Multi","Type of flow (main DAC 1 category)","Type of finance","Co-operation modality (replaces the type of aid)","Short description / Project title","Sector / Purpose code and corresponding shares","Geographical target area","Regional aid to LDCs (codes 1-5)","Expected starting date ","Expected completion date","Description","External link *","SDG focus*","Keywords*","Gender equality","Aid to environment","DIG","RMNCH","Disaster Risk Reduction","Nutrition*","Inclusion and empowerment of persons with disabilities*","FTC","PBA","Investment","Type of blended finance (codes 1-4) ","Biodiversity","Climate change - mitigation","Climate change - adaptation","Desertification","Currency","Commitments","Capital Expenditure %*","Amounts extended","ODA grant equivalent"," Amounts received (for loans:principal only)","Amount untied","Amount partially untied","Amount tied","Amount of IRTC","If project type, amount of experts-commitments*","If project type, amount of experts-extended*","Amount of export credit","Leveraging mechanism and role/position","Amounts mobilised from the private sector","Origin of the funds mobilised","Type or repayment \nor type of fee payment","Number of repayment \nor fee payment per annum","Interest rate /\n Fee rate /\nExpected return per annum","Second interest rate","First repayment date /\nExposure reduction starting date \n(dd-mm-yyyy)","Final repayment date / \nGuarantee maturity date / \nExpected maturity \n(dd-mm-yyyy)","Interest received / \nGuarantee fee received / \nDividends received per annum","Principal disbursed and still outstanding / \nEquity disbursed and still held","Arrears of principal (included in the item 62)","Arrears of interest / \nArrears of guarantee fee","Guaranteed amount","Average use of portfolio guarantee %","PSI flag","Additionality type","Additionality description","Additionality – development objective","IATI identifier","Income Group ","Discount Rate","Grant Element"]
[1,2,3,4,5,6,7,8,9,10,11,12,13,14,15,16,17,18,19,20,21,"21b",22,23,24,25,26,27,28,29,30,31,32,33,34,35,36,37,38,39,40,41,42,43,44,45,46,47,48,49,50,51,52,53,54,55,56,57,58,59,60,61,62,63,64,65,66,67,68,69,70,71,{"$f":"IFERROR(IF(#REF!=60,VLOOKUP(VALUE(TEXT(YEAR(#REF!),\"@\")&TEXT(#REF!,\"@\")),IncomeGroup!$C$2:$E$50000,4,FALSE),VLOOKUP(VALUE(TEXT(YEAR(#REF!),\"@\")&TEXT(#REF!,\"@\")),IncomeGroup!$C$2:$E$50000,3,FALSE)),\"\")","v":""},72]

{"sheet":"DATES","index":4,"n_rows":78,"n_cols":24,"rows_kept":78,"cut":false,"hidden":true,"merged":[]}
["Copy dates format DATE","DD","MM","YYYY","DD-MM-YYYY","check","FORMAT text",null,null,null,null,"Column A  format is Date ",null,null,null,null,null,"Copy dates format GENERAL ","DD","MM","YYYY","DD-MM-YYYY","check","FORMAT text"]
["2025-11-24",{"$f":"DAY(A2)","v":24},{"$f":"MONTH(A2)","v":11},{"$f":"YEAR(A2)","v":2025},{"$f":"TEXT(B2,\"00\")&\"-\" &TEXT(C2,\"00\") & \"-\" &TEXT(D2,\"0000\")","v":"24-11-2025"},{"$f":"IF(AND(B2<13,C2<13), \"please check date\",\"-\")","v":"-"},"24-11-2025",null,null,null,null,"Format Date is linked to the Regional Settings ",null,null,null,null,null,"24-11-2025",{"$f":"DAY(R2)","v":24},{"$f":"MONTH(R2)","v":11},{"$f":"YEAR(R2)","v":2025},{"$f":"TEXT(S2,\"00\")&\"-\" &TEXT(T2,\"00\") & \"-\" &TEXT(U2,\"0000\")","v":"24-11-2025"},{"$f":"IF(AND(S2<13,T2<13), \"please check date\",\"-\")","v":"-"}]
["2025-11-24",{"$f":"DAY(A3)","v":24},{"$f":"MONTH(A3)","v":11},{"$f":"YEAR(A3)","v":2025},{"$f":"TEXT(B3,\"00\")&\"-\" &TEXT(C3,\"00\") & \"-\" &TEXT(D3,\"0000\")","v":"24-11-2025"},{"$f":"IF(AND(B3<13,C3<13), \"please check date\",\"-\")","v":"-"},"24-11-2025",null,null,null,null,"Copy paste as value in a column formatted as TEXT (G) ",null,null,null,null,null,"24-11-2025",{"$f":"DAY(R3)","v":24},{"$f":"MONTH(R3)","v":11},{"$f":"YEAR(R3)","v":2025},{"$f":"TEXT(S3,\"00\")&\"-\" &TEXT(T3,\"00\") & \"-\" &TEXT(U3,\"0000\")","v":"24-11-2025"},{"$f":"IF(AND(S3<13,T3<13), \"please check date\",\"-\")","v":"-"}]
["2025-11-24",24,11,2025,"24-11-2025","-","24-11-2025",null,null,null,null,null,null,null,null,null,null,"24-11-2025",24,11,2025,"24-11-2025","-"]
["2026-12-31",31,12,2026,"31-12-2026","-","31-12-2026",null,null,null,null,null,null,null,null,null,null,"2026-12-31",31,12,2026,"31-12-2026","-"]
["2026-12-31",31,12,2026,"31-12-2026","-","31-12-2026",null,null,null,null,null,null,null,null,null,null,"31-12-2026",31,12,2026,"31-12-2026","-"]
["2026-09-30",30,9,2026,"30-09-2026","-","30-09-2026",null,null,null,null,null,null,null,null,null,null,"30-09-2026",30,9,2026,"30-09-2026","-"]
["2029-03-31",31,3,2029,"31-03-2029","-","31-03-2029",null,null,null,null,null,null,null,null,null,null,"31-03-2029",31,3,2029,"31-03-2029","-"]
["2025-12-31",31,12,2025,"31-12-2025","-","31-12-2025",null,null,null,null,null,null,null,null,null,null,"31-12-2025",31,12,2025,"31-12-2025","-"]
["2029-07-30",30,7,2029,"30-07-2029","-","30-07-2029",null,null,null,null,null,null,null,null,null,null,"30-07-2029",30,7,2029,"30-07-2029","-"]
["2027-06-30",30,6,2027,"30-06-2027","-","30-06-2027",null,null,null,null,null,null,null,null,null,null,"30-06-2027",30,6,2027,"30-06-2027","-"]
["2025-12-31",31,12,2025,"31-12-2025","-","31-12-2025",null,null,null,null,null,null,null,null,null,null,"31-12-2025",31,12,2025,"31-12-2025","-"]
["2024-09-30",30,9,2024,"30-09-2024","-","30-09-2024",null,null,null,null,null,null,null,null,null,null,"30-09-2024",30,9,2024,"30-09-2024","-"]
["2024-09-30",30,9,2024,"30-09-2024","-","30-09-2024",null,null,null,null,null,null,null,null,null,null,"30-09-2024",30,9,2024,"30-09-2024","-"]
["2027-06-30",30,6,2027,"30-06-2027","-","30-06-2027",null,null,null,null,null,null,null,null,null,null,"30-06-2027",30,6,2027,"30-06-2027","-"]
["2027-06-30",30,6,2027,"30-06-2027","-","30-06-2027",null,null,null,null,null,null,null,null,null,null,"30-06-2027",30,6,2027,"30-06-2027","-"]
["2025-12-31",31,12,2025,"31-12-2025","-","31-12-2025",null,null,null,null,null,null,null,null,null,null,"31-12-2025",31,12,2025,"31-12-2025","-"]
["2025-06-30",30,6,2025,"30-06-2025","-","30-06-2025",null,null,null,null,null,null,null,null,null,null,"30-06-2025",30,6,2025,"30-06-2025","-"]
["2027-09-30",30,9,2027,"30-09-2027","-","30-09-2027",null,null,null,null,null,null,null,null,null,null,"30-09-2027",30,9,2027,"30-09-2027","-"]
["2029-10-26",26,10,2029,"26-10-2029","-","26-10-2029",null,null,null,null,null,null,null,null,null,null,"26-10-2029",26,10,2029,"26-10-2029","-"]
["2026-12-31",31,12,2026,"31-12-2026","-","31-12-2026",null,null,null,null,null,null,null,null,null,null,"31-12-2026",31,12,2026,"31-12-2026","-"]
["2031-12-31",31,12,2031,"31-12-2031","-","31-12-2031",null,null,null,null,null,null,null,null,null,null,"31-12-2031",31,12,2031,"31-12-2031","-"]
["2026-09-22",22,9,2026,"22-09-2026","-","22-09-2026",null,null,null,null,null,null,null,null,null,null,"22-09-2026",22,9,2026,"22-09-2026","-"]
["2030-03-31",31,3,2030,"31-03-2030","-","31-03-2030",null,null,null,null,null,null,null,null,null,null,"31-03-2030",31,3,2030,"31-03-2030","-"]
["2026-12-31",31,12,2026,"31-12-2026","-","31-12-2026",null,null,null,null,null,null,null,null,null,null,"31-12-2026",31,12,2026,"31-12-2026","-"]
["2030-09-30",30,9,2030,"30-09-2030","-","30-09-2030",null,null,null,null,null,null,null,null,null,null,"30-09-2030",30,9,2030,"30-09-2030","-"]
["2029-09-30",30,9,2029,"30-09-2029","-","30-09-2029",null,null,null,null,null,null,null,null,null,null,"30-09-2029",30,9,2029,"30-09-2029","-"]
["2029-06-30",30,6,2029,"30-06-2029","-","30-06-2029",null,null,null,null,null,null,null,null,null,null,"30-06-2029",30,6,2029,"30-06-2029","-"]
["2033-06-30",30,6,2033,"30-06-2033","-","30-06-2033",null,null,null,null,null,null,null,null,null,null,"30-06-2033",30,6,2033,"30-06-2033","-"]
["2028-12-31",31,12,2028,"31-12-2028","-","31-12-2028",null,null,null,null,null,null,null,null,null,null,"31-12-2028",31,12,2028,"31-12-2028","-"]
["2034-01-27",27,1,2034,"27-01-2034","-","27-01-2034",null,null,null,null,null,null,null,null,null,null,"27-01-2034",27,1,2034,"27-01-2034","-"]
["2029-11-30",30,11,2029,"30-11-2029","-","30-11-2029",null,null,null,null,null,null,null,null,null,null,"30-11-2029",30,11,2029,"30-11-2029","-"]
["2031-12-31",31,12,2031,"31-12-2031","-","31-12-2031",null,null,null,null,null,null,null,null,null,null,"31-12-2031",31,12,2031,"31-12-2031","-"]
["2024-12-18",18,12,2024,"18-12-2024","-","18-12-2024",null,null,null,null,null,null,null,null,null,null,"18-12-2024",18,12,2024,"18-12-2024","-"]
["2026-01-30",30,1,2026,"30-01-2026","-","30-01-2026",null,null,null,null,null,null,null,null,null,null,"30-01-2026",30,1,2026,"30-01-2026","-"]
["2025-12-31",31,12,2025,"31-12-2025","-","31-12-2025",null,null,null,null,null,null,null,null,null,null,"31-12-2025",31,12,2025,"31-12-2025","-"]
["2027-12-31",31,12,2027,"31-12-2027","-","31-12-2027",null,null,null,null,null,null,null,null,null,null,"31-12-2027",31,12,2027,"31-12-2027","-"]
["2028-08-31",31,8,2028,"31-08-2028","-","31-08-2028",null,null,null,null,null,null,null,null,null,null,"31-08-2028",31,8,2028,"31-08-2028","-"]
["2025-12-31",31,12,2025,"31-12-2025","-","31-12-2025",null,null,null,null,null,null,null,null,null,null,"31-12-2025",31,12,2025,"31-12-2025","-"]
["2026-12-31",31,12,2026,"31-12-2026","-","31-12-2026",null,null,null,null,null,null,null,null,null,null,"31-12-2026",31,12,2026,"31-12-2026","-"]
["2028-03-31",31,3,2028,"31-03-2028","-","31-03-2028",null,null,null,null,null,null,null,null,null,null,"31-03-2028",31,3,2028,"31-03-2028","-"]
["2028-03-31",31,3,2028,"31-03-2028","-","31-03-2028",null,null,null,null,null,null,null,null,null,null,"31-03-2028",31,3,2028,"31-03-2028","-"]
["2027-09-30",30,9,2027,"30-09-2027","-","30-09-2027",null,null,null,null,null,null,null,null,null,null,"30-09-2027",30,9,2027,"30-09-2027","-"]
["2024-10-02",2,10,2024,"02-10-2024","please check date","02-10-2024",null,null,null,null,null,null,null,null,null,null,"2024-10-02",2,10,2024,"02-10-2024","please check date"]
["2026-09-30",30,9,2026,"30-09-2026","-","30-09-2026",null,null,null,null,null,null,null,null,null,null,"30-09-2026",30,9,2026,"30-09-2026","-"]
["2026-06-30",30,6,2026,"30-06-2026","-","30-06-2026",null,null,null,null,null,null,null,null,null,null,"30-06-2026",30,6,2026,"30-06-2026","-"]
["2027-06-30",30,6,2027,"30-06-2027","-","30-06-2027",null,null,null,null,null,null,null,null,null,null,"30-06-2027",30,6,2027,"30-06-2027","-"]
["2026-09-30",30,9,2026,"30-09-2026","-","30-09-2026",null,null,null,null,null,null,null,null,null,null,"30-09-2026",30,9,2026,"30-09-2026","-"]
["2028-12-31",31,12,2028,"31-12-2028","-","31-12-2028",null,null,null,null,null,null,null,null,null,null,"31-12-2028",31,12,2028,"31-12-2028","-"]
["2027-03-31",31,3,2027,"31-03-2027","-","31-03-2027",null,null,null,null,null,null,null,null,null,null,"31-03-2027",31,3,2027,"31-03-2027","-"]
["2026-12-31",31,12,2026,"31-12-2026","-","31-12-2026",null,null,null,null,null,null,null,null,null,null,"31-12-2026",31,12,2026,"31-12-2026","-"]
["31-9-2027",{"$error":"#VALUE!"},{"$error":"#VALUE!"},{"$error":"#VALUE!"},{"$error":"#VALUE!"},{"$error":"#VALUE!"},{"$error":"#VALUE!"},null,null,null,null,null,null,null,null,null,null,{"$error":"#VALUE!"},{"$error":"#VALUE!"},{"$error":"#VALUE!"},{"$error":"#VALUE!"},{"$error":"#VALUE!"},{"$error":"#VALUE!"}]
["2028-12-31",31,12,2028,"31-12-2028","-","31-12-2028",null,null,null,null,null,null,null,null,null,null,"31-12-2028",31,12,2028,"31-12-2028","-"]
["2024-08-20",20,8,2024,"20-08-2024","-","20-08-2024",null,null,null,null,null,null,null,null,null,null,"20-08-2024",20,8,2024,"20-08-2024","-"]
["2026-12-31",31,12,2026,"31-12-2026","-","31-12-2026",null,null,null,null,null,null,null,null,null,null,"31-12-2026",31,12,2026,"31-12-2026","-"]
["2027-03-31",31,3,2027,"31-03-2027","-","31-03-2027",null,null,null,null,null,null,null,null,null,null,"31-03-2027",31,3,2027,"31-03-2027","-"]
["2028-12-31",31,12,2028,"31-12-2028","-","31-12-2028",null,null,null,null,null,null,null,null,null,null,"31-12-2028",31,12,2028,"31-12-2028","-"]
["2029-12-31",31,12,2029,"31-12-2029","-","31-12-2029",null,null,null,null,null,null,null,null,null,null,"31-12-2029",31,12,2029,"31-12-2029","-"]
["2028-03-31",31,3,2028,"31-03-2028","-","31-03-2028",null,null,null,null,null,null,null,null,null,null,"31-03-2028",31,3,2028,"31-03-2028","-"]
["2028-12-31",31,12,2028,"31-12-2028","-","31-12-2028",null,null,null,null,null,null,null,null,null,null,"31-12-2028",31,12,2028,"31-12-2028","-"]
["2031-09-30",30,9,2031,"30-09-2031","-","30-09-2031",null,null,null,null,null,null,null,null,null,null,"30-09-2031",30,9,2031,"30-09-2031","-"]
["2028-09-30",30,9,2028,"30-09-2028","-","30-09-2028",null,null,null,null,null,null,null,null,null,null,"30-09-2028",30,9,2028,"30-09-2028","-"]
["2030-03-31",31,3,2030,"31-03-2030","-","31-03-2030",null,null,null,null,null,null,null,null,null,null,"31-03-2030",31,3,2030,"31-03-2030","-"]
["2029-03-31",31,3,2029,"31-03-2029","-","31-03-2029",null,null,null,null,null,null,null,null,null,null,"31-03-2029",31,3,2029,"31-03-2029","-"]
["2030-06-30",30,6,2030,"30-06-2030","-","30-06-2030",null,null,null,null,null,null,null,null,null,null,"30-06-2030",30,6,2030,"30-06-2030","-"]
["2024-11-06",6,11,2024,"06-11-2024","please check date","06-11-2024",null,null,null,null,null,null,null,null,null,null,"06-11-2024",6,11,2024,"06-11-2024","please check date"]
["2023-11-30",{"$f":"DAY(A67)","v":30},{"$f":"MONTH(A67)","v":11},{"$f":"YEAR(A67)","v":2023},{"$f":"TEXT(B67,\"00\")&\"-\" &TEXT(C67,\"00\") & \"-\" &TEXT(D67,\"0000\")","v":"30-11-2023"},{"$f":"IF(AND(B67<13,C67<13), \"please check date\",\"-\")","v":"-"},"30-11-2023",null,null,null,null,null,null,null,null,null,null,"30-11-2023",{"$f":"DAY(R67)","v":30},{"$f":"MONTH(R67)","v":11},{"$f":"YEAR(R67)","v":2023},{"$f":"TEXT(S67,\"00\")&\"-\" &TEXT(T67,\"00\") & \"-\" &TEXT(U67,\"0000\")","v":"30-11-2023"},{"$f":"IF(AND(S67<13,T67<13), \"please check date\",\"-\")","v":"-"}]
["2023-05-15",15,5,2023,"15-05-2023","-","15-05-2023",null,null,null,null,null,null,null,null,null,null,"15-05-2023",15,5,2023,"15-05-2023","-"]
["2025-04-30",30,4,2025,"30-04-2025","-","30-04-2025",null,null,null,null,null,null,null,null,null,null,"30-04-2025",30,4,2025,"30-04-2025","-"]
["2025-12-31",31,12,2025,"31-12-2025","-","31-12-2025",null,null,null,null,null,null,null,null,null,null,"31-12-2025",31,12,2025,"31-12-2025","-"]
["2024-09-26",26,9,2024,"26-09-2024","-","26-09-2024",null,null,null,null,null,null,null,null,null,null,"26-09-2024",26,9,2024,"26-09-2024","-"]
["2025-05-31",31,5,2025,"31-05-2025","-","31-05-2025",null,null,null,null,null,null,null,null,null,null,"31-05-2025",31,5,2025,"31-05-2025","-"]
["2024-05-21",21,5,2024,"21-05-2024","-","21-05-2024",null,null,null,null,null,null,null,null,null,null,"21-05-2024",21,5,2024,"21-05-2024","-"]
["2025-08-15",15,8,2025,"15-08-2025","-","15-08-2025",null,null,null,null,null,null,null,null,null,null,"15-08-2025",15,8,2025,"15-08-2025","-"]
["2026-02-01",1,2,2026,"01-02-2026","please check date","01-02-2026",null,null,null,null,null,null,null,null,null,null,"01-02-2026",1,2,2026,"01-02-2026","please check date"]
["2025-03-31",31,3,2025,"31-03-2025","-","31-03-2025",null,null,null,null,null,null,null,null,null,null,"31-03-2025",31,3,2025,"31-03-2025","-"]
["2025-03-31",31,3,2025,"31-03-2025","-","31-03-2025",null,null,null,null,null,null,null,null,null,null,"31-03-2025",31,3,2025,"31-03-2025","-"]
["2026-01-25",25,1,2026,"25-01-2026","-","25-01-2026",null,null,null,null,null,null,null,null,null,null,"25-01-2026",25,1,2026,"25-01-2026","-"]

{"sheet":"TOSSD","index":5,"n_rows":2735,"n_cols":33,"rows_kept":2735,"cut":false,"hidden":false,"merged":[]}
["A Identification data",null,null,null,null,"B Basic data",null,null,null,null,null,null,null,null,null,null,null,null,null,null,"C. Volume data",null,null,null,null,"For in-kind technical co-operation","For loans only",null,"For mobilisation only"]
["1.Reporting year","2.Provider country/institution","3.Provider agency","4.Provider project number","5.TOSSD ID Number","6.TOSSD recipient","7.Project title","8.Description","9.External link","10a.SDG focus","10b. Keywords","11.Sector","12.Channelcode","13.Channel name","13.b.OtherPartners","14.Modality","15.Financial instrument","16. Financing arrangement","17. Framework of collaboration","18. TOSSD pillar","19. Currency","20.   Amount committed (thousand)","21.   Amount disbursed (thousand)","22.   Reflows to the provider (thousand)","23.Amount mobilised  (thousand)","24. Salary cost (thousand)","25. Concessionality","26.Maturity (in months)","27.Leveraging mechanism","28.Origin of the funds mobilised","29. IATI identifier","For reference: category of flows","Notes"]
[1,2,3,4,5,6,7,8,9,"10a","10b",11,12,13,"13.b",14,15,16,17,18,19,20,21,22,23,24,25,26,27,28]
[{"$f":"CRSDATA!A4","v":0},{"$f":"CRSDATA!C4","v":0},{"$f":"CRSDATA!D4","v":0},{"$f":"CRSDATA!F4","v":0},{"$f":"CRSDATA!E4","v":0},{"$f":"IF(CRSDATA!H4=3000,998,CRSDATA!H4)","v":0},{"$f":"CRSDATA!O4","v":0},{"$f":"CRSDATA!U4","v":0},{"$f":"IF(CRSDATA!V4=\"\",\"\",CRSDATA!V4)","v":""},{"$f":"IF(CRSDATA!W4=\"\",\"\",CRSDATA!W4)","v":""},{"$f":"key_row(CRSDATA!X4,CRSDATA!Y4,CRSDATA!AL4,CRSDATA!AK4,CRSDATA!AJ4,CRSDATA!AM4,CRSDATA!P4,CRSDATA!V4)","v":""},{"$f":"CRSDATA!P4","v":0},{"$f":"CRSDATA!J4","v":0},{"$f":"CRSDATA!I4","v":0},null,{"$f":"IF(LEFT(CRSDATA!N4,2)=\"A0\",\"A00\",IF(LEFT(CRSDATA!N4,3)=\"B02\",\"B02\",IF(LEFT(CRSDATA!N4,3)=\"B03\",\"B03\",IF(CRSDATA!N4=\"B04\",\"C01\",IF(CRSDATA!N4=\"H01\",\"H00\",IF(OR(CRSDATA!N4=\"H02\",CRSDATA!N4=\"H03\",CRSDATA!N4=\"H04\",CRSDATA!N4=\"H05\",CRSDATA!N4=\"H06\"),\"I01\",IF(CRSDATA!N4=\"\",\"\",CRSDATA!N4)))))))","v":""},{"$f":"IF(AND(LEN(CRSDATA!M4)=4,LEFT(CRSDATA!M4,3)=\"110\"),1100,IF(AND(LEN(CRSDATA!M4)=4,LEFT(CRSDATA!M4,3)=\"422\"),422,CRSDATA!M4))","v":0},{"$f":"IF(CRSDATA!L4=22,\"FA04\",\"\")","v":""},{"$f":"IF(CRSDATA!K4=8,\"FC02\",\"\")","v":""},{"$f":"_xlfn.IFS(OR(P4=\"A00\",P4=\"E01\",P4=\"F01\",AND(P4=\"\",A4<>0),Q4=510,Q4=520,AF4=60),1,P4=\"G01\",IF(AF4=10,21,22),OR(M4=41203,M4=41204),22,OR(AND(OR(P4=\"B02\",P4=\"B03\"),M4=41310),OR(P4=\"E02\",P4=\"I01\")),21,AND(OR(P4=\"B01\",P4=\"B03\",P4=\"C01\"),M4<>41310),IF(VLOOKUP(F4,recipient_country!AB:AD,3,FALSE)=10024,\"\",1),AND(P4=\"B02\",M4<>41310),IF(VLOOKUP(M4,channel_codes!J:P,7,FALSE)=0,\"\",VLOOKUP(M4,channel_codes!J:P,7,FALSE)),ISNUMBER(MATCH(P4,{\"D01\",\"D02\"},0)),IF(VLOOKUP(M4,channel_codes!J:P,7,FALSE)=1,1,IF(VLOOKUP(F4,recipient_country!AB:AD,3,FALSE)=10024,\"\",1)),OR(P4=\"H01\",AND(OR(ISNUMBER(SEARCH(\"41010\", L4)),ISNUMBER(SEARCH(\"41020\", L4)),ISNUMBER(SEARCH(\"41030\", L4)),ISNUMBER(SEARCH(\"41040\", L4)),ISNUMBER(SEARCH(\"41081\", L4))),F4=998)),22,F4=998,22,TRUE,\"\")","v":""},{"$f":"CRSDATA!AN4","v":0},{"$f":"CRSDATA!AO4","v":0},{"$f":"CRSDATA!AQ4","v":0},{"$f":"CRSDATA!AS4","v":0},{"$f":"CRSDATA!BB4","v":0},null,{"$f":"IF(R4=\"FA04\",0,\"\")","v":""},{"$f":"IF(AND(AND(CRSDATA!C4<>\"\",CRSDATA!BK4<>\"\"),OR(CRSDATA!N4=421,CRSDATA!N4=422,CRSDATA!N4=4221,CRSDATA!N4=4222,CRSDATA!N4=423,CRSDATA!N4=424,CRSDATA!N4=425,CRSDATA!N4=431,CRSDATA!N4=433,CRSDATA!N4=434)),DATEDIF(CRSDATA!C4,CRSDATA!BK4,\"m\"),\"\")","v":""},{"$f":"CRSDATA!BA4","v":0},{"$f":"CRSDATA!BC4","v":0},{"$f":"IF(CRSDATA!BT4=\"\",\"\",CRSDATA!BT4)","v":""},{"$f":"CRSDATA!L4","v":0}]
[{"$f":"CRSDATA!A5","v":0},{"$f":"CRSDATA!C5","v":0},{"$f":"CRSDATA!D5","v":0},{"$f":"CRSDATA!F5","v":0},{"$f":"CRSDATA!E5","v":0},{"$f":"IF(CRSDATA!H5=3000,998,CRSDATA!H5)","v":0},{"$f":"CRSDATA!O5","v":0},{"$f":"CRSDATA!U5","v":0},{"$f":"IF(CRSDATA!V5=\"\",\"\",CRSDATA!V5)","v":""},{"$f":"IF(CRSDATA!W5=\"\",\"\",CRSDATA!W5)","v":""},{"$f":"key_row(CRSDATA!X5,CRSDATA!Y5,CRSDATA!AL5,CRSDATA!AK5,CRSDATA!AJ5,CRSDATA!AM5,CRSDATA!P5,CRSDATA!V5)","v":""},{"$f":"CRSDATA!P5","v":0},{"$f":"CRSDATA!J5","v":0},{"$f":"CRSDATA!I5","v":0},null,{"$f":"IF(LEFT(CRSDATA!N5,2)=\"A0\",\"A00\",IF(LEFT(CRSDATA!N5,3)=\"B02\",\"B02\",IF(LEFT(CRSDATA!N5,3)=\"B03\",\"B03\",IF(CRSDATA!N5=\"B04\",\"C01\",IF(CRSDATA!N5=\"H01\",\"H00\",IF(OR(CRSDATA!N5=\"H02\",CRSDATA!N5=\"H03\",CRSDATA!N5=\"H04\",CRSDATA!N5=\"H05\",CRSDATA!N5=\"H06\"),\"I01\",IF(CRSDATA!N5=\"\",\"\",CRSDATA!N5)))))))","v":""},{"$f":"IF(AND(LEN(CRSDATA!M5)=4,LEFT(CRSDATA!M5,3)=\"110\"),1100,IF(AND(LEN(CRSDATA!M5)=4,LEFT(CRSDATA!M5,3)=\"422\"),422,CRSDATA!M5))","v":0},{"$f":"IF(CRSDATA!L5=22,\"FA04\",\"\")","v":""},{"$f":"IF(CRSDATA!K5=8,\"FC02\",\"\")","v":""},{"$f":"_xlfn.IFS(OR(P5=\"A00\",P5=\"E01\",P5=\"F01\",AND(P5=\"\",A5<>0),Q5=510,Q5=520,AF5=60),1,P5=\"G01\",IF(AF5=10,21,22),OR(M5=41203,M5=41204),22,OR(AND(OR(P5=\"B02\",P5=\"B03\"),M5=41310),OR(P5=\"E02\",P5=\"I01\")),21,AND(OR(P5=\"B01\",P5=\"B03\",P5=\"C01\"),M5<>41310),IF(VLOOKUP(F5,recipient_country!AB:AD,3,FALSE)=10024,\"\",1),AND(P5=\"B02\",M5<>41310),IF(VLOOKUP(M5,channel_codes!J:P,7,FALSE)=0,\"\",VLOOKUP(M5,channel_codes!J:P,7,FALSE)),ISNUMBER(MATCH(P5,{\"D01\",\"D02\"},0)),IF(VLOOKUP(M5,channel_codes!J:P,7,FALSE)=1,1,IF(VLOOKUP(F5,recipient_country!AB:AD,3,FALSE)=10024,\"\",1)),OR(P5=\"H01\",AND(OR(ISNUMBER(SEARCH(\"41010\", L5)),ISNUMBER(SEARCH(\"41020\", L5)),ISNUMBER(SEARCH(\"41030\", L5)),ISNUMBER(SEARCH(\"41040\", L5)),ISNUMBER(SEARCH(\"41081\", L5))),F5=998)),22,F5=998,22,TRUE,\"\")","v":""},{"$f":"CRSDATA!AN5","v":0},{"$f":"CRSDATA!AO5","v":0},{"$f":"CRSDATA!AQ5","v":0},{"$f":"CRSDATA!AS5","v":0},{"$f":"CRSDATA!BB5","v":0},null,{"$f":"IF(R5=\"FA04\",0,\"\")","v":""},{"$f":"IF(AND(AND(CRSDATA!C5<>\"\",CRSDATA!BK5<>\"\"),OR(CRSDATA!N5=421,CRSDATA!N5=422,CRSDATA!N5=4221,CRSDATA!N5=4222,CRSDATA!N5=423,CRSDATA!N5=424,CRSDATA!N5=425,CRSDATA!N5=431,CRSDATA!N5=433,CRSDATA!N5=434)),DATEDIF(CRSDATA!C5,CRSDATA!BK5,\"m\"),\"\")","v":""},{"$f":"CRSDATA!BA5","v":0},{"$f":"CRSDATA!BC5","v":0},{"$f":"IF(CRSDATA!BT5=\"\",\"\",CRSDATA!BT5)","v":""},{"$f":"CRSDATA!L5","v":0}]
[{"$f":"CRSDATA!A6","v":0},{"$f":"CRSDATA!C6","v":0},{"$f":"CRSDATA!D6","v":0},{"$f":"CRSDATA!F6","v":0},{"$f":"CRSDATA!E6","v":0},{"$f":"IF(CRSDATA!H6=3000,998,CRSDATA!H6)","v":0},{"$f":"CRSDATA!O6","v":0},{"$f":"CRSDATA!U6","v":0},{"$f":"IF(CRSDATA!V6=\"\",\"\",CRSDATA!V6)","v":""},{"$f":"IF(CRSDATA!W6=\"\",\"\",CRSDATA!W6)","v":""},{"$f":"key_row(CRSDATA!X6,CRSDATA!Y6,CRSDATA!AL6,CRSDATA!AK6,CRSDATA!AJ6,CRSDATA!AM6,CRSDATA!P6,CRSDATA!V6)","v":""},{"$f":"CRSDATA!P6","v":0},{"$f":"CRSDATA!J6","v":0},{"$f":"CRSDATA!I6","v":0},null,{"$f":"IF(LEFT(CRSDATA!N6,2)=\"A0\",\"A00\",IF(LEFT(CRSDATA!N6,3)=\"B02\",\"B02\",IF(LEFT(CRSDATA!N6,3)=\"B03\",\"B03\",IF(CRSDATA!N6=\"B04\",\"C01\",IF(CRSDATA!N6=\"H01\",\"H00\",IF(OR(CRSDATA!N6=\"H02\",CRSDATA!N6=\"H03\",CRSDATA!N6=\"H04\",CRSDATA!N6=\"H05\",CRSDATA!N6=\"H06\"),\"I01\",IF(CRSDATA!N6=\"\",\"\",CRSDATA!N6)))))))","v":""},{"$f":"IF(AND(LEN(CRSDATA!M6)=4,LEFT(CRSDATA!M6,3)=\"110\"),1100,IF(AND(LEN(CRSDATA!M6)=4,LEFT(CRSDATA!M6,3)=\"422\"),422,CRSDATA!M6))","v":0},{"$f":"IF(CRSDATA!L6=22,\"FA04\",\"\")","v":""},{"$f":"IF(CRSDATA!K6=8,\"FC02\",\"\")","v":""},{"$f":"_xlfn.IFS(OR(P6=\"A00\",P6=\"E01\",P6=\"F01\",AND(P6=\"\",A6<>0),Q6=510,Q6=520,AF6=60),1,P6=\"G01\",IF(AF6=10,21,22),OR(M6=41203,M6=41204),22,OR(AND(OR(P6=\"B02\",P6=\"B03\"),M6=41310),OR(P6=\"E02\",P6=\"I01\")),21,AND(OR(P6=\"B01\",P6=\"B03\",P6=\"C01\"),M6<>41310),IF(VLOOKUP(F6,recipient_country!AB:AD,3,FALSE)=10024,\"\",1),AND(P6=\"B02\",M6<>41310),IF(VLOOKUP(M6,channel_codes!J:P,7,FALSE)=0,\"\",VLOOKUP(M6,channel_codes!J:P,7,FALSE)),ISNUMBER(MATCH(P6,{\"D01\",\"D02\"},0)),IF(VLOOKUP(M6,channel_codes!J:P,7,FALSE)=1,1,IF(VLOOKUP(F6,recipient_country!AB:AD,3,FALSE)=10024,\"\",1)),OR(P6=\"H01\",AND(OR(ISNUMBER(SEARCH(\"41010\", L6)),ISNUMBER(SEARCH(\"41020\", L6)),ISNUMBER(SEARCH(\"41030\", L6)),ISNUMBER(SEARCH(\"41040\", L6)),ISNUMBER(SEARCH(\"41081\", L6))),F6=998)),22,F6=998,22,TRUE,\"\")","v":""},{"$f":"CRSDATA!AN6","v":0},{"$f":"CRSDATA!AO6","v":0},{"$f":"CRSDATA!AQ6","v":0},{"$f":"CRSDATA!AS6","v":0},{"$f":"CRSDATA!BB6","v":0},null,"",{"$f":"IF(AND(AND(CRSDATA!C6<>\"\",CRSDATA!BK6<>\"\"),OR(CRSDATA!N6=421,CRSDATA!N6=422,CRSDATA!N6=4221,CRSDATA!N6=4222,CRSDATA!N6=423,CRSDATA!N6=424,CRSDATA!N6=425,CRSDATA!N6=431,CRSDATA!N6=433,CRSDATA!N6=434)),DATEDIF(CRSDATA!C6,CRSDATA!BK6,\"m\"),\"\")","v":""},{"$f":"CRSDATA!BA6","v":0},{"$f":"CRSDATA!BC6","v":0},{"$f":"IF(CRSDATA!BT6=\"\",\"\",CRSDATA!BT6)","v":""},{"$f":"CRSDATA!L6","v":0}]
[{"$f":"CRSDATA!A7","v":0},{"$f":"CRSDATA!C7","v":0},{"$f":"CRSDATA!D7","v":0},{"$f":"CRSDATA!F7","v":0},{"$f":"CRSDATA!E7","v":0},{"$f":"IF(CRSDATA!H7=3000,998,CRSDATA!H7)","v":0},{"$f":"CRSDATA!O7","v":0},{"$f":"CRSDATA!U7","v":0},{"$f":"IF(CRSDATA!V7=\"\",\"\",CRSDATA!V7)","v":""},{"$f":"IF(CRSDATA!W7=\"\",\"\",CRSDATA!W7)","v":""},{"$f":"key_row(CRSDATA!X7,CRSDATA!Y7,CRSDATA!AL7,CRSDATA!AK7,CRSDATA!AJ7,CRSDATA!AM7,CRSDATA!P7,CRSDATA!V7)","v":""},{"$f":"CRSDATA!P7","v":0},{"$f":"CRSDATA!J7","v":0},{"$f":"CRSDATA!I7","v":0},null,{"$f":"IF(LEFT(CRSDATA!N7,2)=\"A0\",\"A00\",IF(LEFT(CRSDATA!N7,3)=\"B02\",\"B02\",IF(LEFT(CRSDATA!N7,3)=\"B03\",\"B03\",IF(CRSDATA!N7=\"B04\",\"C01\",IF(CRSDATA!N7=\"H01\",\"H00\",IF(OR(CRSDATA!N7=\"H02\",CRSDATA!N7=\"H03\",CRSDATA!N7=\"H04\",CRSDATA!N7=\"H05\",CRSDATA!N7=\"H06\"),\"I01\",IF(CRSDATA!N7=\"\",\"\",CRSDATA!N7)))))))","v":""},{"$f":"IF(AND(LEN(CRSDATA!M7)=4,LEFT(CRSDATA!M7,3)=\"110\"),1100,IF(AND(LEN(CRSDATA!M7)=4,LEFT(CRSDATA!M7,3)=\"422\"),422,CRSDATA!M7))","v":0},{"$f":"IF(CRSDATA!L7=22,\"FA04\",\"\")","v":""},{"$f":"IF(CRSDATA!K7=8,\"FC02\",\"\")","v":""},{"$f":"_xlfn.IFS(OR(P7=\"A00\",P7=\"E01\",P7=\"F01\",AND(P7=\"\",A7<>0),Q7=510,Q7=520,AF7=60),1,P7=\"G01\",IF(AF7=10,21,22),OR(M7=41203,M7=41204),22,OR(AND(OR(P7=\"B02\",P7=\"B03\"),M7=41310),OR(P7=\"E02\",P7=\"I01\")),21,AND(OR(P7=\"B01\",P7=\"B03\",P7=\"C01\"),M7<>41310),IF(VLOOKUP(F7,recipient_country!AB:AD,3,FALSE)=10024,\"\",1),AND(P7=\"B02\",M7<>41310),IF(VLOOKUP(M7,channel_codes!J:P,7,FALSE)=0,\"\",VLOOKUP(M7,channel_codes!J:P,7,FALSE)),ISNUMBER(MATCH(P7,{\"D01\",\"D02\"},0)),IF(VLOOKUP(M7,channel_codes!J:P,7,FALSE)=1,1,IF(VLOOKUP(F7,recipient_country!AB:AD,3,FALSE)=10024,\"\",1)),OR(P7=\"H01\",AND(OR(ISNUMBER(SEARCH(\"41010\", L7)),ISNUMBER(SEARCH(\"41020\", L7)),ISNUMBER(SEARCH(\"41030\", L7)),ISNUMBER(SEARCH(\"41040\", L7)),ISNUMBER(SEARCH(\"41081\", L7))),F7=998)),22,F7=998,22,TRUE,\"\")","v":""},{"$f":"CRSDATA!AN7","v":0},{"$f":"CRSDATA!AO7","v":0},{"$f":"CRSDATA!AQ7","v":0},{"$f":"CRSDATA!AS7","v":0},{"$f":"CRSDATA!BB7","v":0},null,"",{"$f":"IF(AND(AND(CRSDATA!C7<>\"\",CRSDATA!BK7<>\"\"),OR(CRSDATA!N7=421,CRSDATA!N7=422,CRSDATA!N7=4221,CRSDATA!N7=4222,CRSDATA!N7=423,CRSDATA!N7=424,CRSDATA!N7=425,CRSDATA!N7=431,CRSDATA!N7=433,CRSDATA!N7=434)),DATEDIF(CRSDATA!C7,CRSDATA!BK7,\"m\"),\"\")","v":""},{"$f":"CRSDATA!BA7","v":0},{"$f":"CRSDATA!BC7","v":0},{"$f":"IF(CRSDATA!BT7=\"\",\"\",CRSDATA!BT7)","v":""},{"$f":"CRSDATA!L7","v":0}]
[{"$f":"CRSDATA!A8","v":0},{"$f":"CRSDATA!C8","v":0},{"$f":"CRSDATA!D8","v":0},{"$f":"CRSDATA!F8","v":0},{"$f":"CRSDATA!E8","v":0},{"$f":"IF(CRSDATA!H8=3000,998,CRSDATA!H8)","v":0},{"$f":"CRSDATA!O8","v":0},{"$f":"CRSDATA!U8","v":0},{"$f":"IF(CRSDATA!V8=\"\",\"\",CRSDATA!V8)","v":""},{"$f":"IF(CRSDATA!W8=\"\",\"\",CRSDATA!W8)","v":""},{"$f":"key_row(CRSDATA!X8,CRSDATA!Y8,CRSDATA!AL8,CRSDATA!AK8,CRSDATA!AJ8,CRSDATA!AM8,CRSDATA!P8,CRSDATA!V8)","v":""},{"$f":"CRSDATA!P8","v":0},{"$f":"CRSDATA!J8","v":0},{"$f":"CRSDATA!I8","v":0},null,{"$f":"IF(LEFT(CRSDATA!N8,2)=\"A0\",\"A00\",IF(LEFT(CRSDATA!N8,3)=\"B02\",\"B02\",IF(LEFT(CRSDATA!N8,3)=\"B03\",\"B03\",IF(CRSDATA!N8=\"B04\",\"C01\",IF(CRSDATA!N8=\"H01\",\"H00\",IF(OR(CRSDATA!N8=\"H02\",CRSDATA!N8=\"H03\",CRSDATA!N8=\"H04\",CRSDATA!N8=\"H05\",CRSDATA!N8=\"H06\"),\"I01\",IF(CRSDATA!N8=\"\",\"\",CRSDATA!N8)))))))","v":""},{"$f":"IF(AND(LEN(CRSDATA!M8)=4,LEFT(CRSDATA!M8,3)=\"110\"),1100,IF(AND(LEN(CRSDATA!M8)=4,LEFT(CRSDATA!M8,3)=\"422\"),422,CRSDATA!M8))","v":0},{"$f":"IF(CRSDATA!L8=22,\"FA04\",\"\")","v":""},{"$f":"IF(CRSDATA!K8=8,\"FC02\",\"\")","v":""},{"$f":"_xlfn.IFS(OR(P8=\"A00\",P8=\"E01\",P8=\"F01\",AND(P8=\"\",A8<>0),Q8=510,Q8=520,AF8=60),1,P8=\"G01\",IF(AF8=10,21,22),OR(M8=41203,M8=41204),22,OR(AND(OR(P8=\"B02\",P8=\"B03\"),M8=41310),OR(P8=\"E02\",P8=\"I01\")),21,AND(OR(P8=\"B01\",P8=\"B03\",P8=\"C01\"),M8<>41310),IF(VLOOKUP(F8,recipient_country!AB:AD,3,FALSE)=10024,\"\",1),AND(P8=\"B02\",M8<>41310),IF(VLOOKUP(M8,channel_codes!J:P,7,FALSE)=0,\"\",VLOOKUP(M8,channel_codes!J:P,7,FALSE)),ISNUMBER(MATCH(P8,{\"D01\",\"D02\"},0)),IF(VLOOKUP(M8,channel_codes!J:P,7,FALSE)=1,1,IF(VLOOKUP(F8,recipient_country!AB:AD,3,FALSE)=10024,\"\",1)),OR(P8=\"H01\",AND(OR(ISNUMBER(SEARCH(\"41010\", L8)),ISNUMBER(SEARCH(\"41020\", L8)),ISNUMBER(SEARCH(\"41030\", L8)),ISNUMBER(SEARCH(\"41040\", L8)),ISNUMBER(SEARCH(\"41081\", L8))),F8=998)),22,F8=998,22,TRUE,\"\")","v":""},{"$f":"CRSDATA!AN8","v":0},{"$f":"CRSDATA!AO8","v":0},{"$f":"CRSDATA!AQ8","v":0},{"$f":"CRSDATA!AS8","v":0},{"$f":"CRSDATA!BB8","v":0},null,"",{"$f":"IF(AND(AND(CRSDATA!C8<>\"\",CRSDATA!BK8<>\"\"),OR(CRSDATA!N8=421,CRSDATA!N8=422,CRSDATA!N8=4221,CRSDATA!N8=4222,CRSDATA!N8=423,CRSDATA!N8=424,CRSDATA!N8=425,CRSDATA!N8=431,CRSDATA!N8=433,CRSDATA!N8=434)),DATEDIF(CRSDATA!C8,CRSDATA!BK8,\"m\"),\"\")","v":""},{"$f":"CRSDATA!BA8","v":0},{"$f":"CRSDATA!BC8","v":0},{"$f":"IF(CRSDATA!BT8=\"\",\"\",CRSDATA!BT8)","v":""},{"$f":"CRSDATA!L8","v":0}]
[{"$f":"CRSDATA!A9","v":0},{"$f":"CRSDATA!C9","v":0},{"$f":"CRSDATA!D9","v":0},{"$f":"CRSDATA!F9","v":0},{"$f":"CRSDATA!E9","v":0},{"$f":"IF(CRSDATA!H9=3000,998,CRSDATA!H9)","v":0},{"$f":"CRSDATA!O9","v":0},{"$f":"CRSDATA!U9","v":0},{"$f":"IF(CRSDATA!V9=\"\",\"\",CRSDATA!V9)","v":""},{"$f":"IF(CRSDATA!W9=\"\",\"\",CRSDATA!W9)","v":""},{"$f":"key_row(CRSDATA!X9,CRSDATA!Y9,CRSDATA!AL9,CRSDATA!AK9,CRSDATA!AJ9,CRSDATA!AM9,CRSDATA!P9,CRSDATA!V9)","v":""},{"$f":"CRSDATA!P9","v":0},{"$f":"CRSDATA!J9","v":0},{"$f":"CRSDATA!I9","v":0},null,{"$f":"IF(LEFT(CRSDATA!N9,2)=\"A0\",\"A00\",IF(LEFT(CRSDATA!N9,3)=\"B02\",\"B02\",IF(LEFT(CRSDATA!N9,3)=\"B03\",\"B03\",IF(CRSDATA!N9=\"B04\",\"C01\",IF(CRSDATA!N9=\"H01\",\"H00\",IF(OR(CRSDATA!N9=\"H02\",CRSDATA!N9=\"H03\",CRSDATA!N9=\"H04\",CRSDATA!N9=\"H05\",CRSDATA!N9=\"H06\"),\"I01\",IF(CRSDATA!N9=\"\",\"\",CRSDATA!N9)))))))","v":""},{"$f":"IF(AND(LEN(CRSDATA!M9)=4,LEFT(CRSDATA!M9,3)=\"110\"),1100,IF(AND(LEN(CRSDATA!M9)=4,LEFT(CRSDATA!M9,3)=\"422\"),422,CRSDATA!M9))","v":0},{"$f":"IF(CRSDATA!L9=22,\"FA04\",\"\")","v":""},{"$f":"IF(CRSDATA!K9=8,\"FC02\",\"\")","v":""},{"$f":"_xlfn.IFS(OR(P9=\"A00\",P9=\"E01\",P9=\"F01\",AND(P9=\"\",A9<>0),Q9=510,Q9=520,AF9=60),1,P9=\"G01\",IF(AF9=10,21,22),OR(M9=41203,M9=41204),22,OR(AND(OR(P9=\"B02\",P9=\"B03\"),M9=41310),OR(P9=\"E02\",P9=\"I01\")),21,AND(OR(P9=\"B01\",P9=\"B03\",P9=\"C01\"),M9<>41310),IF(VLOOKUP(F9,recipient_country!AB:AD,3,FALSE)=10024,\"\",1),AND(P9=\"B02\",M9<>41310),IF(VLOOKUP(M9,channel_codes!J:P,7,FALSE)=0,\"\",VLOOKUP(M9,channel_codes!J:P,7,FALSE)),ISNUMBER(MATCH(P9,{\"D01\",\"D02\"},0)),IF(VLOOKUP(M9,channel_codes!J:P,7,FALSE)=1,1,IF(VLOOKUP(F9,recipient_country!AB:AD,3,FALSE)=10024,\"\",1)),OR(P9=\"H01\",AND(OR(ISNUMBER(SEARCH(\"41010\", L9)),ISNUMBER(SEARCH(\"41020\", L9)),ISNUMBER(SEARCH(\"41030\", L9)),ISNUMBER(SEARCH(\"41040\", L9)),ISNUMBER(SEARCH(\"41081\", L9))),F9=998)),22,F9=998,22,TRUE,\"\")","v":""},{"$f":"CRSDATA!AN9","v":0},{"$f":"CRSDATA!AO9","v":0},{"$f":"CRSDATA!AQ9","v":0},{"$f":"CRSDATA!AS9","v":0},{"$f":"CRSDATA!BB9","v":0},null,"",{"$f":"IF(AND(AND(CRSDATA!C9<>\"\",CRSDATA!BK9<>\"\"),OR(CRSDATA!N9=421,CRSDATA!N9=422,CRSDATA!N9=4221,CRSDATA!N9=4222,CRSDATA!N9=423,CRSDATA!N9=424,CRSDATA!N9=425,CRSDATA!N9=431,CRSDATA!N9=433,CRSDATA!N9=434)),DATEDIF(CRSDATA!C9,CRSDATA!BK9,\"m\"),\"\")","v":""},{"$f":"CRSDATA!BA9","v":0},{"$f":"CRSDATA!BC9","v":0},{"$f":"IF(CRSDATA!BT9=\"\",\"\",CRSDATA!BT9)","v":""},{"$f":"CRSDATA!L9","v":0}]
[{"$f":"CRSDATA!A10","v":0},{"$f":"CRSDATA!C10","v":0},{"$f":"CRSDATA!D10","v":0},{"$f":"CRSDATA!F10","v":0},{"$f":"CRSDATA!E10","v":0},{"$f":"IF(CRSDATA!H10=3000,998,CRSDATA!H10)","v":0},{"$f":"CRSDATA!O10","v":0},{"$f":"CRSDATA!U10","v":0},{"$f":"IF(CRSDATA!V10=\"\",\"\",CRSDATA!V10)","v":""},{"$f":"IF(CRSDATA!W10=\"\",\"\",CRSDATA!W10)","v":""},{"$f":"key_row(CRSDATA!X10,CRSDATA!Y10,CRSDATA!AL10,CRSDATA!AK10,CRSDATA!AJ10,CRSDATA!AM10,CRSDATA!P10,CRSDATA!V10)","v":""},{"$f":"CRSDATA!P10","v":0},{"$f":"CRSDATA!J10","v":0},{"$f":"CRSDATA!I10","v":0},null,{"$f":"IF(LEFT(CRSDATA!N10,2)=\"A0\",\"A00\",IF(LEFT(CRSDATA!N10,3)=\"B02\",\"B02\",IF(LEFT(CRSDATA!N10,3)=\"B03\",\"B03\",IF(CRSDATA!N10=\"B04\",\"C01\",IF(CRSDATA!N10=\"H01\",\"H00\",IF(OR(CRSDATA!N10=\"H02\",CRSDATA!N10=\"H03\",CRSDATA!N10=\"H04\",CRSDATA!N10=\"H05\",CRSDATA!N10=\"H06\"),\"I01\",IF(CRSDATA!N10=\"\",\"\",CRSDATA!N10)))))))","v":""},{"$f":"IF(AND(LEN(CRSDATA!M10)=4,LEFT(CRSDATA!M10,3)=\"110\"),1100,IF(AND(LEN(CRSDATA!M10)=4,LEFT(CRSDATA!M10,3)=\"422\"),422,CRSDATA!M10))","v":0},{"$f":"IF(CRSDATA!L10=22,\"FA04\",\"\")","v":""},{"$f":"IF(CRSDATA!K10=8,\"FC02\",\"\")","v":""},{"$f":"_xlfn.IFS(OR(P10=\"A00\",P10=\"E01\",P10=\"F01\",AND(P10=\"\",A10<>0),Q10=510,Q10=520,AF10=60),1,P10=\"G01\",IF(AF10=10,21,22),OR(M10=41203,M10=41204),22,OR(AND(OR(P10=\"B02\",P10=\"B03\"),M10=41310),OR(P10=\"E02\",P10=\"I01\")),21,AND(OR(P10=\"B01\",P10=\"B03\",P10=\"C01\"),M10<>41310),IF(VLOOKUP(F10,recipient_country!AB:AD,3,FALSE)=10024,\"\",1),AND(P10=\"B02\",M10<>41310),IF(VLOOKUP(M10,channel_codes!J:P,7,FALSE)=0,\"\",VLOOKUP(M10,channel_codes!J:P,7,FALSE)),ISNUMBER(MATCH(P10,{\"D01\",\"D02\"},0)),IF(VLOOKUP(M10,channel_codes!J:P,7,FALSE)=1,1,IF(VLOOKUP(F10,recipient_country!AB:AD,3,FALSE)=10024,\"\",1)),OR(P10=\"H01\",AND(OR(ISNUMBER(SEARCH(\"41010\", L10)),ISNUMBER(SEARCH(\"41020\", L10)),ISNUMBER(SEARCH(\"41030\", L10)),ISNUMBER(SEARCH(\"41040\", L10)),ISNUMBER(SEARCH(\"41081\", L10))),F10=998)),22,F10=998,22,TRUE,\"\")","v":""},{"$f":"CRSDATA!AN10","v":0},{"$f":"CRSDATA!AO10","v":0},{"$f":"CRSDATA!AQ10","v":0},{"$f":"CRSDATA!AS10","v":0},{"$f":"CRSDATA!BB10","v":0},null,"",{"$f":"IF(AND(AND(CRSDATA!C10<>\"\",CRSDATA!BK10<>\"\"),OR(CRSDATA!N10=421,CRSDATA!N10=422,CRSDATA!N10=4221,CRSDATA!N10=4222,CRSDATA!N10=423,CRSDATA!N10=424,CRSDATA!N10=425,CRSDATA!N10=431,CRSDATA!N10=433,CRSDATA!N10=434)),DATEDIF(CRSDATA!C10,CRSDATA!BK10,\"m\"),\"\")","v":""},{"$f":"CRSDATA!BA10","v":0},{"$f":"CRSDATA!BC10","v":0},{"$f":"IF(CRSDATA!BT10=\"\",\"\",CRSDATA!BT10)","v":""},{"$f":"CRSDATA!L10","v":0}]
[{"$f":"CRSDATA!A11","v":0},{"$f":"CRSDATA!C11","v":0},{"$f":"CRSDATA!D11","v":0},{"$f":"CRSDATA!F11","v":0},{"$f":"CRSDATA!E11","v":0},{"$f":"IF(CRSDATA!H11=3000,998,CRSDATA!H11)","v":0},{"$f":"CRSDATA!O11","v":0},{"$f":"CRSDATA!U11","v":0},{"$f":"IF(CRSDATA!V11=\"\",\"\",CRSDATA!V11)","v":""},{"$f":"IF(CRSDATA!W11=\"\",\"\",CRSDATA!W11)","v":""},{"$f":"key_row(CRSDATA!X11,CRSDATA!Y11,CRSDATA!AL11,CRSDATA!AK11,CRSDATA!AJ11,CRSDATA!AM11,CRSDATA!P11,CRSDATA!V11)","v":""},{"$f":"CRSDATA!P11","v":0},{"$f":"CRSDATA!J11","v":0},{"$f":"CRSDATA!I11","v":0},null,{"$f":"IF(LEFT(CRSDATA!N11,2)=\"A0\",\"A00\",IF(LEFT(CRSDATA!N11,3)=\"B02\",\"B02\",IF(LEFT(CRSDATA!N11,3)=\"B03\",\"B03\",IF(CRSDATA!N11=\"B04\",\"C01\",IF(CRSDATA!N11=\"H01\",\"H00\",IF(OR(CRSDATA!N11=\"H02\",CRSDATA!N11=\"H03\",CRSDATA!N11=\"H04\",CRSDATA!N11=\"H05\",CRSDATA!N11=\"H06\"),\"I01\",IF(CRSDATA!N11=\"\",\"\",CRSDATA!N11)))))))","v":""},{"$f":"IF(AND(LEN(CRSDATA!M11)=4,LEFT(CRSDATA!M11,3)=\"110\"),1100,IF(AND(LEN(CRSDATA!M11)=4,LEFT(CRSDATA!M11,3)=\"422\"),422,CRSDATA!M11))","v":0},{"$f":"IF(CRSDATA!L11=22,\"FA04\",\"\")","v":""},{"$f":"IF(CRSDATA!K11=8,\"FC02\",\"\")","v":""},{"$f":"_xlfn.IFS(OR(P11=\"A00\",P11=\"E01\",P11=\"F01\",AND(P11=\"\",A11<>0),Q11=510,Q11=520,AF11=60),1,P11=\"G01\",IF(AF11=10,21,22),OR(M11=41203,M11=41204),22,OR(AND(OR(P11=\"B02\",P11=\"B03\"),M11=41310),OR(P11=\"E02\",P11=\"I01\")),21,AND(OR(P11=\"B01\",P11=\"B03\",P11=\"C01\"),M11<>41310),IF(VLOOKUP(F11,recipient_country!AB:AD,3,FALSE)=10024,\"\",1),AND(P11=\"B02\",M11<>41310),IF(VLOOKUP(M11,channel_codes!J:P,7,FALSE)=0,\"\",VLOOKUP(M11,channel_codes!J:P,7,FALSE)),ISNUMBER(MATCH(P11,{\"D01\",\"D02\"},0)),IF(VLOOKUP(M11,channel_codes!J:P,7,FALSE)=1,1,IF(VLOOKUP(F11,recipient_country!AB:AD,3,FALSE)=10024,\"\",1)),OR(P11=\"H01\",AND(OR(ISNUMBER(SEARCH(\"41010\", L11)),ISNUMBER(SEARCH(\"41020\", L11)),ISNUMBER(SEARCH(\"41030\", L11)),ISNUMBER(SEARCH(\"41040\", L11)),ISNUMBER(SEARCH(\"41081\", L11))),F11=998)),22,F11=998,22,TRUE,\"\")","v":""},{"$f":"CRSDATA!AN11","v":0},{"$f":"CRSDATA!AO11","v":0},{"$f":"CRSDATA!AQ11","v":0},{"$f":"CRSDATA!AS11","v":0},{"$f":"CRSDATA!BB11","v":0},null,"",{"$f":"IF(AND(AND(CRSDATA!C11<>\"\",CRSDATA!BK11<>\"\"),OR(CRSDATA!N11=421,CRSDATA!N11=422,CRSDATA!N11=4221,CRSDATA!N11=4222,CRSDATA!N11=423,CRSDATA!N11=424,CRSDATA!N11=425,CRSDATA!N11=431,CRSDATA!N11=433,CRSDATA!N11=434)),DATEDIF(CRSDATA!C11,CRSDATA!BK11,\"m\"),\"\")","v":""},{"$f":"CRSDATA!BA11","v":0},{"$f":"CRSDATA!BC11","v":0},{"$f":"IF(CRSDATA!BT11=\"\",\"\",CRSDATA!BT11)","v":""},{"$f":"CRSDATA!L11","v":0}]
[{"$f":"CRSDATA!A12","v":0},{"$f":"CRSDATA!C12","v":0},{"$f":"CRSDATA!D12","v":0},{"$f":"CRSDATA!F12","v":0},{"$f":"CRSDATA!E12","v":0},{"$f":"IF(CRSDATA!H12=3000,998,CRSDATA!H12)","v":0},{"$f":"CRSDATA!O12","v":0},{"$f":"CRSDATA!U12","v":0},{"$f":"IF(CRSDATA!V12=\"\",\"\",CRSDATA!V12)","v":""},{"$f":"IF(CRSDATA!W12=\"\",\"\",CRSDATA!W12)","v":""},{"$f":"key_row(CRSDATA!X12,CRSDATA!Y12,CRSDATA!AL12,CRSDATA!AK12,CRSDATA!AJ12,CRSDATA!AM12,CRSDATA!P12,CRSDATA!V12)","v":""},{"$f":"CRSDATA!P12","v":0},{"$f":"CRSDATA!J12","v":0},{"$f":"CRSDATA!I12","v":0},null,{"$f":"IF(LEFT(CRSDATA!N12,2)=\"A0\",\"A00\",IF(LEFT(CRSDATA!N12,3)=\"B02\",\"B02\",IF(LEFT(CRSDATA!N12,3)=\"B03\",\"B03\",IF(CRSDATA!N12=\"B04\",\"C01\",IF(CRSDATA!N12=\"H01\",\"H00\",IF(OR(CRSDATA!N12=\"H02\",CRSDATA!N12=\"H03\",CRSDATA!N12=\"H04\",CRSDATA!N12=\"H05\",CRSDATA!N12=\"H06\"),\"I01\",IF(CRSDATA!N12=\"\",\"\",CRSDATA!N12)))))))","v":""},{"$f":"IF(AND(LEN(CRSDATA!M12)=4,LEFT(CRSDATA!M12,3)=\"110\"),1100,IF(AND(LEN(CRSDATA!M12)=4,LEFT(CRSDATA!M12,3)=\"422\"),422,CRSDATA!M12))","v":0},{"$f":"IF(CRSDATA!L12=22,\"FA04\",\"\")","v":""},{"$f":"IF(CRSDATA!K12=8,\"FC02\",\"\")","v":""},{"$f":"_xlfn.IFS(OR(P12=\"A00\",P12=\"E01\",P12=\"F01\",AND(P12=\"\",A12<>0),Q12=510,Q12=520,AF12=60),1,P12=\"G01\",IF(AF12=10,21,22),OR(M12=41203,M12=41204),22,OR(AND(OR(P12=\"B02\",P12=\"B03\"),M12=41310),OR(P12=\"E02\",P12=\"I01\")),21,AND(OR(P12=\"B01\",P12=\"B03\",P12=\"C01\"),M12<>41310),IF(VLOOKUP(F12,recipient_country!AB:AD,3,FALSE)=10024,\"\",1),AND(P12=\"B02\",M12<>41310),IF(VLOOKUP(M12,channel_codes!J:P,7,FALSE)=0,\"\",VLOOKUP(M12,channel_codes!J:P,7,FALSE)),ISNUMBER(MATCH(P12,{\"D01\",\"D02\"},0)),IF(VLOOKUP(M12,channel_codes!J:P,7,FALSE)=1,1,IF(VLOOKUP(F12,recipient_country!AB:AD,3,FALSE)=10024,\"\",1)),OR(P12=\"H01\",AND(OR(ISNUMBER(SEARCH(\"41010\", L12)),ISNUMBER(SEARCH(\"41020\", L12)),ISNUMBER(SEARCH(\"41030\", L12)),ISNUMBER(SEARCH(\"41040\", L12)),ISNUMBER(SEARCH(\"41081\", L12))),F12=998)),22,F12=998,22,TRUE,\"\")","v":""},{"$f":"CRSDATA!AN12","v":0},{"$f":"CRSDATA!AO12","v":0},{"$f":"CRSDATA!AQ12","v":0},{"$f":"CRSDATA!AS12","v":0},{"$f":"CRSDATA!BB12","v":0},null,"",{"$f":"IF(AND(AND(CRSDATA!C12<>\"\",CRSDATA!BK12<>\"\"),OR(CRSDATA!N12=421,CRSDATA!N12=422,CRSDATA!N12=4221,CRSDATA!N12=4222,CRSDATA!N12=423,CRSDATA!N12=424,CRSDATA!N12=425,CRSDATA!N12=431,CRSDATA!N12=433,CRSDATA!N12=434)),DATEDIF(CRSDATA!C12,CRSDATA!BK12,\"m\"),\"\")","v":""},{"$f":"CRSDATA!BA12","v":0},{"$f":"CRSDATA!BC12","v":0},{"$f":"IF(CRSDATA!BT12=\"\",\"\",CRSDATA!BT12)","v":""},{"$f":"CRSDATA!L12","v":0}]
[{"$f":"CRSDATA!A13","v":0},{"$f":"CRSDATA!C13","v":0},{"$f":"CRSDATA!D13","v":0},{"$f":"CRSDATA!F13","v":0},{"$f":"CRSDATA!E13","v":0},{"$f":"IF(CRSDATA!H13=3000,998,CRSDATA!H13)","v":0},{"$f":"CRSDATA!O13","v":0},{"$f":"CRSDATA!U13","v":0},{"$f":"IF(CRSDATA!V13=\"\",\"\",CRSDATA!V13)","v":""},{"$f":"IF(CRSDATA!W13=\"\",\"\",CRSDATA!W13)","v":""},{"$f":"key_row(CRSDATA!X13,CRSDATA!Y13,CRSDATA!AL13,CRSDATA!AK13,CRSDATA!AJ13,CRSDATA!AM13,CRSDATA!P13,CRSDATA!V13)","v":""},{"$f":"CRSDATA!P13","v":0},{"$f":"CRSDATA!J13","v":0},{"$f":"CRSDATA!I13","v":0},null,{"$f":"IF(LEFT(CRSDATA!N13,2)=\"A0\",\"A00\",IF(LEFT(CRSDATA!N13,3)=\"B02\",\"B02\",IF(LEFT(CRSDATA!N13,3)=\"B03\",\"B03\",IF(CRSDATA!N13=\"B04\",\"C01\",IF(CRSDATA!N13=\"H01\",\"H00\",IF(OR(CRSDATA!N13=\"H02\",CRSDATA!N13=\"H03\",CRSDATA!N13=\"H04\",CRSDATA!N13=\"H05\",CRSDATA!N13=\"H06\"),\"I01\",IF(CRSDATA!N13=\"\",\"\",CRSDATA!N13)))))))","v":""},{"$f":"IF(AND(LEN(CRSDATA!M13)=4,LEFT(CRSDATA!M13,3)=\"110\"),1100,IF(AND(LEN(CRSDATA!M13)=4,LEFT(CRSDATA!M13,3)=\"422\"),422,CRSDATA!M13))","v":0},{"$f":"IF(CRSDATA!L13=22,\"FA04\",\"\")","v":""},{"$f":"IF(CRSDATA!K13=8,\"FC02\",\"\")","v":""},{"$f":"_xlfn.IFS(OR(P13=\"A00\",P13=\"E01\",P13=\"F01\",AND(P13=\"\",A13<>0),Q13=510,Q13=520,AF13=60),1,P13=\"G01\",IF(AF13=10,21,22),OR(M13=41203,M13=41204),22,OR(AND(OR(P13=\"B02\",P13=\"B03\"),M13=41310),OR(P13=\"E02\",P13=\"I01\")),21,AND(OR(P13=\"B01\",P13=\"B03\",P13=\"C01\"),M13<>41310),IF(VLOOKUP(F13,recipient_country!AB:AD,3,FALSE)=10024,\"\",1),AND(P13=\"B02\",M13<>41310),IF(VLOOKUP(M13,channel_codes!J:P,7,FALSE)=0,\"\",VLOOKUP(M13,channel_codes!J:P,7,FALSE)),ISNUMBER(MATCH(P13,{\"D01\",\"D02\"},0)),IF(VLOOKUP(M13,channel_codes!J:P,7,FALSE)=1,1,IF(VLOOKUP(F13,recipient_country!AB:AD,3,FALSE)=10024,\"\",1)),OR(P13=\"H01\",AND(OR(ISNUMBER(SEARCH(\"41010\", L13)),ISNUMBER(SEARCH(\"41020\", L13)),ISNUMBER(SEARCH(\"41030\", L13)),ISNUMBER(SEARCH(\"41040\", L13)),ISNUMBER(SEARCH(\"41081\", L13))),F13=998)),22,F13=998,22,TRUE,\"\")","v":""},{"$f":"CRSDATA!AN13","v":0},{"$f":"CRSDATA!AO13","v":0},{"$f":"CRSDATA!AQ13","v":0},{"$f":"CRSDATA!AS13","v":0},{"$f":"CRSDATA!BB13","v":0},null,"",{"$f":"IF(AND(AND(CRSDATA!C13<>\"\",CRSDATA!BK13<>\"\"),OR(CRSDATA!N13=421,CRSDATA!N13=422,CRSDATA!N13=4221,CRSDATA!N13=4222,CRSDATA!N13=423,CRSDATA!N13=424,CRSDATA!N13=425,CRSDATA!N13=431,CRSDATA!N13=433,CRSDATA!N13=434)),DATEDIF(CRSDATA!C13,CRSDATA!BK13,\"m\"),\"\")","v":""},{"$f":"CRSDATA!BA13","v":0},{"$f":"CRSDATA!BC13","v":0},{"$f":"IF(CRSDATA!BT13=\"\",\"\",CRSDATA!BT13)","v":""},{"$f":"CRSDATA!L13","v":0}]
[{"$f":"CRSDATA!A14","v":0},{"$f":"CRSDATA!C14","v":0},{"$f":"CRSDATA!D14","v":0},{"$f":"CRSDATA!F14","v":0},{"$f":"CRSDATA!E14","v":0},{"$f":"IF(CRSDATA!H14=3000,998,CRSDATA!H14)","v":0},{"$f":"CRSDATA!O14","v":0},{"$f":"CRSDATA!U14","v":0},{"$f":"IF(CRSDATA!V14=\"\",\"\",CRSDATA!V14)","v":""},{"$f":"IF(CRSDATA!W14=\"\",\"\",CRSDATA!W14)","v":""},{"$f":"key_row(CRSDATA!X14,CRSDATA!Y14,CRSDATA!AL14,CRSDATA!AK14,CRSDATA!AJ14,CRSDATA!AM14,CRSDATA!P14,CRSDATA!V14)","v":""},{"$f":"CRSDATA!P14","v":0},{"$f":"CRSDATA!J14","v":0},{"$f":"CRSDATA!I14","v":0},null,{"$f":"IF(LEFT(CRSDATA!N14,2)=\"A0\",\"A00\",IF(LEFT(CRSDATA!N14,3)=\"B02\",\"B02\",IF(LEFT(CRSDATA!N14,3)=\"B03\",\"B03\",IF(CRSDATA!N14=\"B04\",\"C01\",IF(CRSDATA!N14=\"H01\",\"H00\",IF(OR(CRSDATA!N14=\"H02\",CRSDATA!N14=\"H03\",CRSDATA!N14=\"H04\",CRSDATA!N14=\"H05\",CRSDATA!N14=\"H06\"),\"I01\",IF(CRSDATA!N14=\"\",\"\",CRSDATA!N14)))))))","v":""},{"$f":"IF(AND(LEN(CRSDATA!M14)=4,LEFT(CRSDATA!M14,3)=\"110\"),1100,IF(AND(LEN(CRSDATA!M14)=4,LEFT(CRSDATA!M14,3)=\"422\"),422,CRSDATA!M14))","v":0},{"$f":"IF(CRSDATA!L14=22,\"FA04\",\"\")","v":""},{"$f":"IF(CRSDATA!K14=8,\"FC02\",\"\")","v":""},{"$f":"_xlfn.IFS(OR(P14=\"A00\",P14=\"E01\",P14=\"F01\",AND(P14=\"\",A14<>0),Q14=510,Q14=520,AF14=60),1,P14=\"G01\",IF(AF14=10,21,22),OR(M14=41203,M14=41204),22,OR(AND(OR(P14=\"B02\",P14=\"B03\"),M14=41310),OR(P14=\"E02\",P14=\"I01\")),21,AND(OR(P14=\"B01\",P14=\"B03\",P14=\"C01\"),M14<>41310),IF(VLOOKUP(F14,recipient_country!AB:AD,3,FALSE)=10024,\"\",1),AND(P14=\"B02\",M14<>41310),IF(VLOOKUP(M14,channel_codes!J:P,7,FALSE)=0,\"\",VLOOKUP(M14,channel_codes!J:P,7,FALSE)),ISNUMBER(MATCH(P14,{\"D01\",\"D02\"},0)),IF(VLOOKUP(M14,channel_codes!J:P,7,FALSE)=1,1,IF(VLOOKUP(F14,recipient_country!AB:AD,3,FALSE)=10024,\"\",1)),OR(P14=\"H01\",AND(OR(ISNUMBER(SEARCH(\"41010\", L14)),ISNUMBER(SEARCH(\"41020\", L14)),ISNUMBER(SEARCH(\"41030\", L14)),ISNUMBER(SEARCH(\"41040\", L14)),ISNUMBER(SEARCH(\"41081\", L14))),F14=998)),22,F14=998,22,TRUE,\"\")","v":""},{"$f":"CRSDATA!AN14","v":0},{"$f":"CRSDATA!AO14","v":0},{"$f":"CRSDATA!AQ14","v":0},{"$f":"CRSDATA!AS14","v":0},{"$f":"CRSDATA!BB14","v":0},null,"",{"$f":"IF(AND(AND(CRSDATA!C14<>\"\",CRSDATA!BK14<>\"\"),OR(CRSDATA!N14=421,CRSDATA!N14=422,CRSDATA!N14=4221,CRSDATA!N14=4222,CRSDATA!N14=423,CRSDATA!N14=424,CRSDATA!N14=425,CRSDATA!N14=431,CRSDATA!N14=433,CRSDATA!N14=434)),DATEDIF(CRSDATA!C14,CRSDATA!BK14,\"m\"),\"\")","v":""},{"$f":"CRSDATA!BA14","v":0},{"$f":"CRSDATA!BC14","v":0},{"$f":"IF(CRSDATA!BT14=\"\",\"\",CRSDATA!BT14)","v":""},{"$f":"CRSDATA!L14","v":0}]
[{"$f":"CRSDATA!A15","v":0},{"$f":"CRSDATA!C15","v":0},{"$f":"CRSDATA!D15","v":0},{"$f":"CRSDATA!F15","v":0},{"$f":"CRSDATA!E15","v":0},{"$f":"IF(CRSDATA!H15=3000,998,CRSDATA!H15)","v":0},{"$f":"CRSDATA!O15","v":0},{"$f":"CRSDATA!U15","v":0},{"$f":"IF(CRSDATA!V15=\"\",\"\",CRSDATA!V15)","v":""},{"$f":"IF(CRSDATA!W15=\"\",\"\",CRSDATA!W15)","v":""},{"$f":"key_row(CRSDATA!X15,CRSDATA!Y15,CRSDATA!AL15,CRSDATA!AK15,CRSDATA!AJ15,CRSDATA!AM15,CRSDATA!P15,CRSDATA!V15)","v":""},{"$f":"CRSDATA!P15","v":0},{"$f":"CRSDATA!J15","v":0},{"$f":"CRSDATA!I15","v":0},null,{"$f":"IF(LEFT(CRSDATA!N15,2)=\"A0\",\"A00\",IF(LEFT(CRSDATA!N15,3)=\"B02\",\"B02\",IF(LEFT(CRSDATA!N15,3)=\"B03\",\"B03\",IF(CRSDATA!N15=\"B04\",\"C01\",IF(CRSDATA!N15=\"H01\",\"H00\",IF(OR(CRSDATA!N15=\"H02\",CRSDATA!N15=\"H03\",CRSDATA!N15=\"H04\",CRSDATA!N15=\"H05\",CRSDATA!N15=\"H06\"),\"I01\",IF(CRSDATA!N15=\"\",\"\",CRSDATA!N15)))))))","v":""},{"$f":"IF(AND(LEN(CRSDATA!M15)=4,LEFT(CRSDATA!M15,3)=\"110\"),1100,IF(AND(LEN(CRSDATA!M15)=4,LEFT(CRSDATA!M15,3)=\"422\"),422,CRSDATA!M15))","v":0},{"$f":"IF(CRSDATA!L15=22,\"FA04\",\"\")","v":""},{"$f":"IF(CRSDATA!K15=8,\"FC02\",\"\")","v":""},{"$f":"_xlfn.IFS(OR(P15=\"A00\",P15=\"E01\",P15=\"F01\",AND(P15=\"\",A15<>0),Q15=510,Q15=520,AF15=60),1,P15=\"G01\",IF(AF15=10,21,22),OR(M15=41203,M15=41204),22,OR(AND(OR(P15=\"B02\",P15=\"B03\"),M15=41310),OR(P15=\"E02\",P15=\"I01\")),21,AND(OR(P15=\"B01\",P15=\"B03\",P15=\"C01\"),M15<>41310),IF(VLOOKUP(F15,recipient_country!AB:AD,3,FALSE)=10024,\"\",1),AND(P15=\"B02\",M15<>41310),IF(VLOOKUP(M15,channel_codes!J:P,7,FALSE)=0,\"\",VLOOKUP(M15,channel_codes!J:P,7,FALSE)),ISNUMBER(MATCH(P15,{\"D01\",\"D02\"},0)),IF(VLOOKUP(M15,channel_codes!J:P,7,FALSE)=1,1,IF(VLOOKUP(F15,recipient_country!AB:AD,3,FALSE)=10024,\"\",1)),OR(P15=\"H01\",AND(OR(ISNUMBER(SEARCH(\"41010\", L15)),ISNUMBER(SEARCH(\"41020\", L15)),ISNUMBER(SEARCH(\"41030\", L15)),ISNUMBER(SEARCH(\"41040\", L15)),ISNUMBER(SEARCH(\"41081\", L15))),F15=998)),22,F15=998,22,TRUE,\"\")","v":""},{"$f":"CRSDATA!AN15","v":0},{"$f":"CRSDATA!AO15","v":0},{"$f":"CRSDATA!AQ15","v":0},{"$f":"CRSDATA!AS15","v":0},{"$f":"CRSDATA!BB15","v":0},null,"",{"$f":"IF(AND(AND(CRSDATA!C15<>\"\",CRSDATA!BK15<>\"\"),OR(CRSDATA!N15=421,CRSDATA!N15=422,CRSDATA!N15=4221,CRSDATA!N15=4222,CRSDATA!N15=423,CRSDATA!N15=424,CRSDATA!N15=425,CRSDATA!N15=431,CRSDATA!N15=433,CRSDATA!N15=434)),DATEDIF(CRSDATA!C15,CRSDATA!BK15,\"m\"),\"\")","v":""},{"$f":"CRSDATA!BA15","v":0},{"$f":"CRSDATA!BC15","v":0},{"$f":"IF(CRSDATA!BT15=\"\",\"\",CRSDATA!BT15)","v":""},{"$f":"CRSDATA!L15","v":0}]
[{"$f":"CRSDATA!A16","v":0},{"$f":"CRSDATA!C16","v":0},{"$f":"CRSDATA!D16","v":0},{"$f":"CRSDATA!F16","v":0},{"$f":"CRSDATA!E16","v":0},{"$f":"IF(CRSDATA!H16=3000,998,CRSDATA!H16)","v":0},{"$f":"CRSDATA!O16","v":0},{"$f":"CRSDATA!U16","v":0},{"$f":"IF(CRSDATA!V16=\"\",\"\",CRSDATA!V16)","v":""},{"$f":"IF(CRSDATA!W16=\"\",\"\",CRSDATA!W16)","v":""},{"$f":"key_row(CRSDATA!X16,CRSDATA!Y16,CRSDATA!AL16,CRSDATA!AK16,CRSDATA!AJ16,CRSDATA!AM16,CRSDATA!P16,CRSDATA!V16)","v":""},{"$f":"CRSDATA!P16","v":0},{"$f":"CRSDATA!J16","v":0},{"$f":"CRSDATA!I16","v":0},null,{"$f":"IF(LEFT(CRSDATA!N16,2)=\"A0\",\"A00\",IF(LEFT(CRSDATA!N16,3)=\"B02\",\"B02\",IF(LEFT(CRSDATA!N16,3)=\"B03\",\"B03\",IF(CRSDATA!N16=\"B04\",\"C01\",IF(CRSDATA!N16=\"H01\",\"H00\",IF(OR(CRSDATA!N16=\"H02\",CRSDATA!N16=\"H03\",CRSDATA!N16=\"H04\",CRSDATA!N16=\"H05\",CRSDATA!N16=\"H06\"),\"I01\",IF(CRSDATA!N16=\"\",\"\",CRSDATA!N16)))))))","v":""},{"$f":"IF(AND(LEN(CRSDATA!M16)=4,LEFT(CRSDATA!M16,3)=\"110\"),1100,IF(AND(LEN(CRSDATA!M16)=4,LEFT(CRSDATA!M16,3)=\"422\"),422,CRSDATA!M16))","v":0},{"$f":"IF(CRSDATA!L16=22,\"FA04\",\"\")","v":""},{"$f":"IF(CRSDATA!K16=8,\"FC02\",\"\")","v":""},{"$f":"_xlfn.IFS(OR(P16=\"A00\",P16=\"E01\",P16=\"F01\",AND(P16=\"\",A16<>0),Q16=510,Q16=520,AF16=60),1,P16=\"G01\",IF(AF16=10,21,22),OR(M16=41203,M16=41204),22,OR(AND(OR(P16=\"B02\",P16=\"B03\"),M16=41310),OR(P16=\"E02\",P16=\"I01\")),21,AND(OR(P16=\"B01\",P16=\"B03\",P16=\"C01\"),M16<>41310),IF(VLOOKUP(F16,recipient_country!AB:AD,3,FALSE)=10024,\"\",1),AND(P16=\"B02\",M16<>41310),IF(VLOOKUP(M16,channel_codes!J:P,7,FALSE)=0,\"\",VLOOKUP(M16,channel_codes!J:P,7,FALSE)),ISNUMBER(MATCH(P16,{\"D01\",\"D02\"},0)),IF(VLOOKUP(M16,channel_codes!J:P,7,FALSE)=1,1,IF(VLOOKUP(F16,recipient_country!AB:AD,3,FALSE)=10024,\"\",1)),OR(P16=\"H01\",AND(OR(ISNUMBER(SEARCH(\"41010\", L16)),ISNUMBER(SEARCH(\"41020\", L16)),ISNUMBER(SEARCH(\"41030\", L16)),ISNUMBER(SEARCH(\"41040\", L16)),ISNUMBER(SEARCH(\"41081\", L16))),F16=998)),22,F16=998,22,TRUE,\"\")","v":""},{"$f":"CRSDATA!AN16","v":0},{"$f":"CRSDATA!AO16","v":0},{"$f":"CRSDATA!AQ16","v":0},{"$f":"CRSDATA!AS16","v":0},{"$f":"CRSDATA!BB16","v":0},null,"",{"$f":"IF(AND(AND(CRSDATA!C16<>\"\",CRSDATA!BK16<>\"\"),OR(CRSDATA!N16=421,CRSDATA!N16=422,CRSDATA!N16=4221,CRSDATA!N16=4222,CRSDATA!N16=423,CRSDATA!N16=424,CRSDATA!N16=425,CRSDATA!N16=431,CRSDATA!N16=433,CRSDATA!N16=434)),DATEDIF(CRSDATA!C16,CRSDATA!BK16,\"m\"),\"\")","v":""},{"$f":"CRSDATA!BA16","v":0},{"$f":"CRSDATA!BC16","v":0},{"$f":"IF(CRSDATA!BT16=\"\",\"\",CRSDATA!BT16)","v":""},{"$f":"CRSDATA!L16","v":0}]
[{"$f":"CRSDATA!A17","v":0},{"$f":"CRSDATA!C17","v":0},{"$f":"CRSDATA!D17","v":0},{"$f":"CRSDATA!F17","v":0},{"$f":"CRSDATA!E17","v":0},{"$f":"IF(CRSDATA!H17=3000,998,CRSDATA!H17)","v":0},{"$f":"CRSDATA!O17","v":0},{"$f":"CRSDATA!U17","v":0},{"$f":"IF(CRSDATA!V17=\"\",\"\",CRSDATA!V17)","v":""},{"$f":"IF(CRSDATA!W17=\"\",\"\",CRSDATA!W17)","v":""},{"$f":"key_row(CRSDATA!X17,CRSDATA!Y17,CRSDATA!AL17,CRSDATA!AK17,CRSDATA!AJ17,CRSDATA!AM17,CRSDATA!P17,CRSDATA!V17)","v":""},{"$f":"CRSDATA!P17","v":0},{"$f":"CRSDATA!J17","v":0},{"$f":"CRSDATA!I17","v":0},null,{"$f":"IF(LEFT(CRSDATA!N17,2)=\"A0\",\"A00\",IF(LEFT(CRSDATA!N17,3)=\"B02\",\"B02\",IF(LEFT(CRSDATA!N17,3)=\"B03\",\"B03\",IF(CRSDATA!N17=\"B04\",\"C01\",IF(CRSDATA!N17=\"H01\",\"H00\",IF(OR(CRSDATA!N17=\"H02\",CRSDATA!N17=\"H03\",CRSDATA!N17=\"H04\",CRSDATA!N17=\"H05\",CRSDATA!N17=\"H06\"),\"I01\",IF(CRSDATA!N17=\"\",\"\",CRSDATA!N17)))))))","v":""},{"$f":"IF(AND(LEN(CRSDATA!M17)=4,LEFT(CRSDATA!M17,3)=\"110\"),1100,IF(AND(LEN(CRSDATA!M17)=4,LEFT(CRSDATA!M17,3)=\"422\"),422,CRSDATA!M17))","v":0},{"$f":"IF(CRSDATA!L17=22,\"FA04\",\"\")","v":""},{"$f":"IF(CRSDATA!K17=8,\"FC02\",\"\")","v":""},{"$f":"_xlfn.IFS(OR(P17=\"A00\",P17=\"E01\",P17=\"F01\",AND(P17=\"\",A17<>0),Q17=510,Q17=520,AF17=60),1,P17=\"G01\",IF(AF17=10,21,22),OR(M17=41203,M17=41204),22,OR(AND(OR(P17=\"B02\",P17=\"B03\"),M17=41310),OR(P17=\"E02\",P17=\"I01\")),21,AND(OR(P17=\"B01\",P17=\"B03\",P17=\"C01\"),M17<>41310),IF(VLOOKUP(F17,recipient_country!AB:AD,3,FALSE)=10024,\"\",1),AND(P17=\"B02\",M17<>41310),IF(VLOOKUP(M17,channel_codes!J:P,7,FALSE)=0,\"\",VLOOKUP(M17,channel_codes!J:P,7,FALSE)),ISNUMBER(MATCH(P17,{\"D01\",\"D02\"},0)),IF(VLOOKUP(M17,channel_codes!J:P,7,FALSE)=1,1,IF(VLOOKUP(F17,recipient_country!AB:AD,3,FALSE)=10024,\"\",1)),OR(P17=\"H01\",AND(OR(ISNUMBER(SEARCH(\"41010\", L17)),ISNUMBER(SEARCH(\"41020\", L17)),ISNUMBER(SEARCH(\"41030\", L17)),ISNUMBER(SEARCH(\"41040\", L17)),ISNUMBER(SEARCH(\"41081\", L17))),F17=998)),22,F17=998,22,TRUE,\"\")","v":""},{"$f":"CRSDATA!AN17","v":0},{"$f":"CRSDATA!AO17","v":0},{"$f":"CRSDATA!AQ17","v":0},{"$f":"CRSDATA!AS17","v":0},{"$f":"CRSDATA!BB17","v":0},null,"",{"$f":"IF(AND(AND(CRSDATA!C17<>\"\",CRSDATA!BK17<>\"\"),OR(CRSDATA!N17=421,CRSDATA!N17=422,CRSDATA!N17=4221,CRSDATA!N17=4222,CRSDATA!N17=423,CRSDATA!N17=424,CRSDATA!N17=425,CRSDATA!N17=431,CRSDATA!N17=433,CRSDATA!N17=434)),DATEDIF(CRSDATA!C17,CRSDATA!BK17,\"m\"),\"\")","v":""},{"$f":"CRSDATA!BA17","v":0},{"$f":"CRSDATA!BC17","v":0},{"$f":"IF(CRSDATA!BT17=\"\",\"\",CRSDATA!BT17)","v":""},{"$f":"CRSDATA!L17","v":0}]
[{"$f":"CRSDATA!A18","v":0},{"$f":"CRSDATA!C18","v":0},{"$f":"CRSDATA!D18","v":0},{"$f":"CRSDATA!F18","v":0},{"$f":"CRSDATA!E18","v":0},{"$f":"IF(CRSDATA!H18=3000,998,CRSDATA!H18)","v":0},{"$f":"CRSDATA!O18","v":0},{"$f":"CRSDATA!U18","v":0},{"$f":"IF(CRSDATA!V18=\"\",\"\",CRSDATA!V18)","v":""},{"$f":"IF(CRSDATA!W18=\"\",\"\",CRSDATA!W18)","v":""},{"$f":"key_row(CRSDATA!X18,CRSDATA!Y18,CRSDATA!AL18,CRSDATA!AK18,CRSDATA!AJ18,CRSDATA!AM18,CRSDATA!P18,CRSDATA!V18)","v":""},{"$f":"CRSDATA!P18","v":0},{"$f":"CRSDATA!J18","v":0},{"$f":"CRSDATA!I18","v":0},null,{"$f":"IF(LEFT(CRSDATA!N18,2)=\"A0\",\"A00\",IF(LEFT(CRSDATA!N18,3)=\"B02\",\"B02\",IF(LEFT(CRSDATA!N18,3)=\"B03\",\"B03\",IF(CRSDATA!N18=\"B04\",\"C01\",IF(CRSDATA!N18=\"H01\",\"H00\",IF(OR(CRSDATA!N18=\"H02\",CRSDATA!N18=\"H03\",CRSDATA!N18=\"H04\",CRSDATA!N18=\"H05\",CRSDATA!N18=\"H06\"),\"I01\",IF(CRSDATA!N18=\"\",\"\",CRSDATA!N18)))))))","v":""},{"$f":"IF(AND(LEN(CRSDATA!M18)=4,LEFT(CRSDATA!M18,3)=\"110\"),1100,IF(AND(LEN(CRSDATA!M18)=4,LEFT(CRSDATA!M18,3)=\"422\"),422,CRSDATA!M18))","v":0},{"$f":"IF(CRSDATA!L18=22,\"FA04\",\"\")","v":""},{"$f":"IF(CRSDATA!K18=8,\"FC02\",\"\")","v":""},{"$f":"_xlfn.IFS(OR(P18=\"A00\",P18=\"E01\",P18=\"F01\",AND(P18=\"\",A18<>0),Q18=510,Q18=520,AF18=60),1,P18=\"G01\",IF(AF18=10,21,22),OR(M18=41203,M18=41204),22,OR(AND(OR(P18=\"B02\",P18=\"B03\"),M18=41310),OR(P18=\"E02\",P18=\"I01\")),21,AND(OR(P18=\"B01\",P18=\"B03\",P18=\"C01\"),M18<>41310),IF(VLOOKUP(F18,recipient_country!AB:AD,3,FALSE)=10024,\"\",1),AND(P18=\"B02\",M18<>41310),IF(VLOOKUP(M18,channel_codes!J:P,7,FALSE)=0,\"\",VLOOKUP(M18,channel_codes!J:P,7,FALSE)),ISNUMBER(MATCH(P18,{\"D01\",\"D02\"},0)),IF(VLOOKUP(M18,channel_codes!J:P,7,FALSE)=1,1,IF(VLOOKUP(F18,recipient_country!AB:AD,3,FALSE)=10024,\"\",1)),OR(P18=\"H01\",AND(OR(ISNUMBER(SEARCH(\"41010\", L18)),ISNUMBER(SEARCH(\"41020\", L18)),ISNUMBER(SEARCH(\"41030\", L18)),ISNUMBER(SEARCH(\"41040\", L18)),ISNUMBER(SEARCH(\"41081\", L18))),F18=998)),22,F18=998,22,TRUE,\"\")","v":""},{"$f":"CRSDATA!AN18","v":0},{"$f":"CRSDATA!AO18","v":0},{"$f":"CRSDATA!AQ18","v":0},{"$f":"CRSDATA!AS18","v":0},{"$f":"CRSDATA!BB18","v":0},null,"",{"$f":"IF(AND(AND(CRSDATA!C18<>\"\",CRSDATA!BK18<>\"\"),OR(CRSDATA!N18=421,CRSDATA!N18=422,CRSDATA!N18=4221,CRSDATA!N18=4222,CRSDATA!N18=423,CRSDATA!N18=424,CRSDATA!N18=425,CRSDATA!N18=431,CRSDATA!N18=433,CRSDATA!N18=434)),DATEDIF(CRSDATA!C18,CRSDATA!BK18,\"m\"),\"\")","v":""},{"$f":"CRSDATA!BA18","v":0},{"$f":"CRSDATA!BC18","v":0},{"$f":"IF(CRSDATA!BT18=\"\",\"\",CRSDATA!BT18)","v":""},{"$f":"CRSDATA!L18","v":0}]
[{"$f":"CRSDATA!A19","v":0},{"$f":"CRSDATA!C19","v":0},{"$f":"CRSDATA!D19","v":0},{"$f":"CRSDATA!F19","v":0},{"$f":"CRSDATA!E19","v":0},{"$f":"IF(CRSDATA!H19=3000,998,CRSDATA!H19)","v":0},{"$f":"CRSDATA!O19","v":0},{"$f":"CRSDATA!U19","v":0},{"$f":"IF(CRSDATA!V19=\"\",\"\",CRSDATA!V19)","v":""},{"$f":"IF(CRSDATA!W19=\"\",\"\",CRSDATA!W19)","v":""},{"$f":"key_row(CRSDATA!X19,CRSDATA!Y19,CRSDATA!AL19,CRSDATA!AK19,CRSDATA!AJ19,CRSDATA!AM19,CRSDATA!P19,CRSDATA!V19)","v":""},{"$f":"CRSDATA!P19","v":0},{"$f":"CRSDATA!J19","v":0},{"$f":"CRSDATA!I19","v":0},null,{"$f":"IF(LEFT(CRSDATA!N19,2)=\"A0\",\"A00\",IF(LEFT(CRSDATA!N19,3)=\"B02\",\"B02\",IF(LEFT(CRSDATA!N19,3)=\"B03\",\"B03\",IF(CRSDATA!N19=\"B04\",\"C01\",IF(CRSDATA!N19=\"H01\",\"H00\",IF(OR(CRSDATA!N19=\"H02\",CRSDATA!N19=\"H03\",CRSDATA!N19=\"H04\",CRSDATA!N19=\"H05\",CRSDATA!N19=\"H06\"),\"I01\",IF(CRSDATA!N19=\"\",\"\",CRSDATA!N19)))))))","v":""},{"$f":"IF(AND(LEN(CRSDATA!M19)=4,LEFT(CRSDATA!M19,3)=\"110\"),1100,IF(AND(LEN(CRSDATA!M19)=4,LEFT(CRSDATA!M19,3)=\"422\"),422,CRSDATA!M19))","v":0},{"$f":"IF(CRSDATA!L19=22,\"FA04\",\"\")","v":""},{"$f":"IF(CRSDATA!K19=8,\"FC02\",\"\")","v":""},{"$f":"_xlfn.IFS(OR(P19=\"A00\",P19=\"E01\",P19=\"F01\",AND(P19=\"\",A19<>0),Q19=510,Q19=520,AF19=60),1,P19=\"G01\",IF(AF19=10,21,22),OR(M19=41203,M19=41204),22,OR(AND(OR(P19=\"B02\",P19=\"B03\"),M19=41310),OR(P19=\"E02\",P19=\"I01\")),21,AND(OR(P19=\"B01\",P19=\"B03\",P19=\"C01\"),M19<>41310),IF(VLOOKUP(F19,recipient_country!AB:AD,3,FALSE)=10024,\"\",1),AND(P19=\"B02\",M19<>41310),IF(VLOOKUP(M19,channel_codes!J:P,7,FALSE)=0,\"\",VLOOKUP(M19,channel_codes!J:P,7,FALSE)),ISNUMBER(MATCH(P19,{\"D01\",\"D02\"},0)),IF(VLOOKUP(M19,channel_codes!J:P,7,FALSE)=1,1,IF(VLOOKUP(F19,recipient_country!AB:AD,3,FALSE)=10024,\"\",1)),OR(P19=\"H01\",AND(OR(ISNUMBER(SEARCH(\"41010\", L19)),ISNUMBER(SEARCH(\"41020\", L19)),ISNUMBER(SEARCH(\"41030\", L19)),ISNUMBER(SEARCH(\"41040\", L19)),ISNUMBER(SEARCH(\"41081\", L19))),F19=998)),22,F19=998,22,TRUE,\"\")","v":""},{"$f":"CRSDATA!AN19","v":0},{"$f":"CRSDATA!AO19","v":0},{"$f":"CRSDATA!AQ19","v":0},{"$f":"CRSDATA!AS19","v":0},{"$f":"CRSDATA!BB19","v":0},null,"",{"$f":"IF(AND(AND(CRSDATA!C19<>\"\",CRSDATA!BK19<>\"\"),OR(CRSDATA!N19=421,CRSDATA!N19=422,CRSDATA!N19=4221,CRSDATA!N19=4222,CRSDATA!N19=423,CRSDATA!N19=424,CRSDATA!N19=425,CRSDATA!N19=431,CRSDATA!N19=433,CRSDATA!N19=434)),DATEDIF(CRSDATA!C19,CRSDATA!BK19,\"m\"),\"\")","v":""},{"$f":"CRSDATA!BA19","v":0},{"$f":"CRSDATA!BC19","v":0},{"$f":"IF(CRSDATA!BT19=\"\",\"\",CRSDATA!BT19)","v":""},{"$f":"CRSDATA!L19","v":0}]
[{"$f":"CRSDATA!A20","v":0},{"$f":"CRSDATA!C20","v":0},{"$f":"CRSDATA!D20","v":0},{"$f":"CRSDATA!F20","v":0},{"$f":"CRSDATA!E20","v":0},{"$f":"IF(CRSDATA!H20=3000,998,CRSDATA!H20)","v":0},{"$f":"CRSDATA!O20","v":0},{"$f":"CRSDATA!U20","v":0},{"$f":"IF(CRSDATA!V20=\"\",\"\",CRSDATA!V20)","v":""},{"$f":"IF(CRSDATA!W20=\"\",\"\",CRSDATA!W20)","v":""},{"$f":"key_row(CRSDATA!X20,CRSDATA!Y20,CRSDATA!AL20,CRSDATA!AK20,CRSDATA!AJ20,CRSDATA!AM20,CRSDATA!P20,CRSDATA!V20)","v":""},{"$f":"CRSDATA!P20","v":0},{"$f":"CRSDATA!J20","v":0},{"$f":"CRSDATA!I20","v":0},null,{"$f":"IF(LEFT(CRSDATA!N20,2)=\"A0\",\"A00\",IF(LEFT(CRSDATA!N20,3)=\"B02\",\"B02\",IF(LEFT(CRSDATA!N20,3)=\"B03\",\"B03\",IF(CRSDATA!N20=\"B04\",\"C01\",IF(CRSDATA!N20=\"H01\",\"H00\",IF(OR(CRSDATA!N20=\"H02\",CRSDATA!N20=\"H03\",CRSDATA!N20=\"H04\",CRSDATA!N20=\"H05\",CRSDATA!N20=\"H06\"),\"I01\",IF(CRSDATA!N20=\"\",\"\",CRSDATA!N20)))))))","v":""},{"$f":"IF(AND(LEN(CRSDATA!M20)=4,LEFT(CRSDATA!M20,3)=\"110\"),1100,IF(AND(LEN(CRSDATA!M20)=4,LEFT(CRSDATA!M20,3)=\"422\"),422,CRSDATA!M20))","v":0},{"$f":"IF(CRSDATA!L20=22,\"FA04\",\"\")","v":""},{"$f":"IF(CRSDATA!K20=8,\"FC02\",\"\")","v":""},{"$f":"_xlfn.IFS(OR(P20=\"A00\",P20=\"E01\",P20=\"F01\",AND(P20=\"\",A20<>0),Q20=510,Q20=520,AF20=60),1,P20=\"G01\",IF(AF20=10,21,22),OR(M20=41203,M20=41204),22,OR(AND(OR(P20=\"B02\",P20=\"B03\"),M20=41310),OR(P20=\"E02\",P20=\"I01\")),21,AND(OR(P20=\"B01\",P20=\"B03\",P20=\"C01\"),M20<>41310),IF(VLOOKUP(F20,recipient_country!AB:AD,3,FALSE)=10024,\"\",1),AND(P20=\"B02\",M20<>41310),IF(VLOOKUP(M20,channel_codes!J:P,7,FALSE)=0,\"\",VLOOKUP(M20,channel_codes!J:P,7,FALSE)),ISNUMBER(MATCH(P20,{\"D01\",\"D02\"},0)),IF(VLOOKUP(M20,channel_codes!J:P,7,FALSE)=1,1,IF(VLOOKUP(F20,recipient_country!AB:AD,3,FALSE)=10024,\"\",1)),OR(P20=\"H01\",AND(OR(ISNUMBER(SEARCH(\"41010\", L20)),ISNUMBER(SEARCH(\"41020\", L20)),ISNUMBER(SEARCH(\"41030\", L20)),ISNUMBER(SEARCH(\"41040\", L20)),ISNUMBER(SEARCH(\"41081\", L20))),F20=998)),22,F20=998,22,TRUE,\"\")","v":""},{"$f":"CRSDATA!AN20","v":0},{"$f":"CRSDATA!AO20","v":0},{"$f":"CRSDATA!AQ20","v":0},{"$f":"CRSDATA!AS20","v":0},{"$f":"CRSDATA!BB20","v":0},null,"",{"$f":"IF(AND(AND(CRSDATA!C20<>\"\",CRSDATA!BK20<>\"\"),OR(CRSDATA!N20=421,CRSDATA!N20=422,CRSDATA!N20=4221,CRSDATA!N20=4222,CRSDATA!N20=423,CRSDATA!N20=424,CRSDATA!N20=425,CRSDATA!N20=431,CRSDATA!N20=433,CRSDATA!N20=434)),DATEDIF(CRSDATA!C20,CRSDATA!BK20,\"m\"),\"\")","v":""},{"$f":"CRSDATA!BA20","v":0},{"$f":"CRSDATA!BC20","v":0},{"$f":"IF(CRSDATA!BT20=\"\",\"\",CRSDATA!BT20)","v":""},{"$f":"CRSDATA!L20","v":0}]
[{"$f":"CRSDATA!A21","v":0},{"$f":"CRSDATA!C21","v":0},{"$f":"CRSDATA!D21","v":0},{"$f":"CRSDATA!F21","v":0},{"$f":"CRSDATA!E21","v":0},{"$f":"IF(CRSDATA!H21=3000,998,CRSDATA!H21)","v":0},{"$f":"CRSDATA!O21","v":0},{"$f":"CRSDATA!U21","v":0},{"$f":"IF(CRSDATA!V21=\"\",\"\",CRSDATA!V21)","v":""},{"$f":"IF(CRSDATA!W21=\"\",\"\",CRSDATA!W21)","v":""},{"$f":"key_row(CRSDATA!X21,CRSDATA!Y21,CRSDATA!AL21,CRSDATA!AK21,CRSDATA!AJ21,CRSDATA!AM21,CRSDATA!P21,CRSDATA!V21)","v":""},{"$f":"CRSDATA!P21","v":0},{"$f":"CRSDATA!J21","v":0},{"$f":"CRSDATA!I21","v":0},null,{"$f":"IF(LEFT(CRSDATA!N21,2)=\"A0\",\"A00\",IF(LEFT(CRSDATA!N21,3)=\"B02\",\"B02\",IF(LEFT(CRSDATA!N21,3)=\"B03\",\"B03\",IF(CRSDATA!N21=\"B04\",\"C01\",IF(CRSDATA!N21=\"H01\",\"H00\",IF(OR(CRSDATA!N21=\"H02\",CRSDATA!N21=\"H03\",CRSDATA!N21=\"H04\",CRSDATA!N21=\"H05\",CRSDATA!N21=\"H06\"),\"I01\",IF(CRSDATA!N21=\"\",\"\",CRSDATA!N21)))))))","v":""},{"$f":"IF(AND(LEN(CRSDATA!M21)=4,LEFT(CRSDATA!M21,3)=\"110\"),1100,IF(AND(LEN(CRSDATA!M21)=4,LEFT(CRSDATA!M21,3)=\"422\"),422,CRSDATA!M21))","v":0},{"$f":"IF(CRSDATA!L21=22,\"FA04\",\"\")","v":""},{"$f":"IF(CRSDATA!K21=8,\"FC02\",\"\")","v":""},{"$f":"_xlfn.IFS(OR(P21=\"A00\",P21=\"E01\",P21=\"F01\",AND(P21=\"\",A21<>0),Q21=510,Q21=520,AF21=60),1,P21=\"G01\",IF(AF21=10,21,22),OR(M21=41203,M21=41204),22,OR(AND(OR(P21=\"B02\",P21=\"B03\"),M21=41310),OR(P21=\"E02\",P21=\"I01\")),21,AND(OR(P21=\"B01\",P21=\"B03\",P21=\"C01\"),M21<>41310),IF(VLOOKUP(F21,recipient_country!AB:AD,3,FALSE)=10024,\"\",1),AND(P21=\"B02\",M21<>41310),IF(VLOOKUP(M21,channel_codes!J:P,7,FALSE)=0,\"\",VLOOKUP(M21,channel_codes!J:P,7,FALSE)),ISNUMBER(MATCH(P21,{\"D01\",\"D02\"},0)),IF(VLOOKUP(M21,channel_codes!J:P,7,FALSE)=1,1,IF(VLOOKUP(F21,recipient_country!AB:AD,3,FALSE)=10024,\"\",1)),OR(P21=\"H01\",AND(OR(ISNUMBER(SEARCH(\"41010\", L21)),ISNUMBER(SEARCH(\"41020\", L21)),ISNUMBER(SEARCH(\"41030\", L21)),ISNUMBER(SEARCH(\"41040\", L21)),ISNUMBER(SEARCH(\"41081\", L21))),F21=998)),22,F21=998,22,TRUE,\"\")","v":""},{"$f":"CRSDATA!AN21","v":0},{"$f":"CRSDATA!AO21","v":0},{"$f":"CRSDATA!AQ21","v":0},{"$f":"CRSDATA!AS21","v":0},{"$f":"CRSDATA!BB21","v":0},null,"",{"$f":"IF(AND(AND(CRSDATA!C21<>\"\",CRSDATA!BK21<>\"\"),OR(CRSDATA!N21=421,CRSDATA!N21=422,CRSDATA!N21=4221,CRSDATA!N21=4222,CRSDATA!N21=423,CRSDATA!N21=424,CRSDATA!N21=425,CRSDATA!N21=431,CRSDATA!N21=433,CRSDATA!N21=434)),DATEDIF(CRSDATA!C21,CRSDATA!BK21,\"m\"),\"\")","v":""},{"$f":"CRSDATA!BA21","v":0},{"$f":"CRSDATA!BC21","v":0},{"$f":"IF(CRSDATA!BT21=\"\",\"\",CRSDATA!BT21)","v":""},{"$f":"CRSDATA!L21","v":0}]
[{"$f":"CRSDATA!A22","v":0},{"$f":"CRSDATA!C22","v":0},{"$f":"CRSDATA!D22","v":0},{"$f":"CRSDATA!F22","v":0},{"$f":"CRSDATA!E22","v":0},{"$f":"IF(CRSDATA!H22=3000,998,CRSDATA!H22)","v":0},{"$f":"CRSDATA!O22","v":0},{"$f":"CRSDATA!U22","v":0},{"$f":"IF(CRSDATA!V22=\"\",\"\",CRSDATA!V22)","v":""},{"$f":"IF(CRSDATA!W22=\"\",\"\",CRSDATA!W22)","v":""},{"$f":"key_row(CRSDATA!X22,CRSDATA!Y22,CRSDATA!AL22,CRSDATA!AK22,CRSDATA!AJ22,CRSDATA!AM22,CRSDATA!P22,CRSDATA!V22)","v":""},{"$f":"CRSDATA!P22","v":0},{"$f":"CRSDATA!J22","v":0},{"$f":"CRSDATA!I22","v":0},null,{"$f":"IF(LEFT(CRSDATA!N22,2)=\"A0\",\"A00\",IF(LEFT(CRSDATA!N22,3)=\"B02\",\"B02\",IF(LEFT(CRSDATA!N22,3)=\"B03\",\"B03\",IF(CRSDATA!N22=\"B04\",\"C01\",IF(CRSDATA!N22=\"H01\",\"H00\",IF(OR(CRSDATA!N22=\"H02\",CRSDATA!N22=\"H03\",CRSDATA!N22=\"H04\",CRSDATA!N22=\"H05\",CRSDATA!N22=\"H06\"),\"I01\",IF(CRSDATA!N22=\"\",\"\",CRSDATA!N22)))))))","v":""},{"$f":"IF(AND(LEN(CRSDATA!M22)=4,LEFT(CRSDATA!M22,3)=\"110\"),1100,IF(AND(LEN(CRSDATA!M22)=4,LEFT(CRSDATA!M22,3)=\"422\"),422,CRSDATA!M22))","v":0},{"$f":"IF(CRSDATA!L22=22,\"FA04\",\"\")","v":""},{"$f":"IF(CRSDATA!K22=8,\"FC02\",\"\")","v":""},{"$f":"_xlfn.IFS(OR(P22=\"A00\",P22=\"E01\",P22=\"F01\",AND(P22=\"\",A22<>0),Q22=510,Q22=520,AF22=60),1,P22=\"G01\",IF(AF22=10,21,22),OR(M22=41203,M22=41204),22,OR(AND(OR(P22=\"B02\",P22=\"B03\"),M22=41310),OR(P22=\"E02\",P22=\"I01\")),21,AND(OR(P22=\"B01\",P22=\"B03\",P22=\"C01\"),M22<>41310),IF(VLOOKUP(F22,recipient_country!AB:AD,3,FALSE)=10024,\"\",1),AND(P22=\"B02\",M22<>41310),IF(VLOOKUP(M22,channel_codes!J:P,7,FALSE)=0,\"\",VLOOKUP(M22,channel_codes!J:P,7,FALSE)),ISNUMBER(MATCH(P22,{\"D01\",\"D02\"},0)),IF(VLOOKUP(M22,channel_codes!J:P,7,FALSE)=1,1,IF(VLOOKUP(F22,recipient_country!AB:AD,3,FALSE)=10024,\"\",1)),OR(P22=\"H01\",AND(OR(ISNUMBER(SEARCH(\"41010\", L22)),ISNUMBER(SEARCH(\"41020\", L22)),ISNUMBER(SEARCH(\"41030\", L22)),ISNUMBER(SEARCH(\"41040\", L22)),ISNUMBER(SEARCH(\"41081\", L22))),F22=998)),22,F22=998,22,TRUE,\"\")","v":""},{"$f":"CRSDATA!AN22","v":0},{"$f":"CRSDATA!AO22","v":0},{"$f":"CRSDATA!AQ22","v":0},{"$f":"CRSDATA!AS22","v":0},{"$f":"CRSDATA!BB22","v":0},null,"",{"$f":"IF(AND(AND(CRSDATA!C22<>\"\",CRSDATA!BK22<>\"\"),OR(CRSDATA!N22=421,CRSDATA!N22=422,CRSDATA!N22=4221,CRSDATA!N22=4222,CRSDATA!N22=423,CRSDATA!N22=424,CRSDATA!N22=425,CRSDATA!N22=431,CRSDATA!N22=433,CRSDATA!N22=434)),DATEDIF(CRSDATA!C22,CRSDATA!BK22,\"m\"),\"\")","v":""},{"$f":"CRSDATA!BA22","v":0},{"$f":"CRSDATA!BC22","v":0},{"$f":"IF(CRSDATA!BT22=\"\",\"\",CRSDATA!BT22)","v":""},{"$f":"CRSDATA!L22","v":0}]
[{"$f":"CRSDATA!A23","v":0},{"$f":"CRSDATA!C23","v":0},{"$f":"CRSDATA!D23","v":0},{"$f":"CRSDATA!F23","v":0},{"$f":"CRSDATA!E23","v":0},{"$f":"IF(CRSDATA!H23=3000,998,CRSDATA!H23)","v":0},{"$f":"CRSDATA!O23","v":0},{"$f":"CRSDATA!U23","v":0},{"$f":"IF(CRSDATA!V23=\"\",\"\",CRSDATA!V23)","v":""},{"$f":"IF(CRSDATA!W23=\"\",\"\",CRSDATA!W23)","v":""},{"$f":"key_row(CRSDATA!X23,CRSDATA!Y23,CRSDATA!AL23,CRSDATA!AK23,CRSDATA!AJ23,CRSDATA!AM23,CRSDATA!P23,CRSDATA!V23)","v":""},{"$f":"CRSDATA!P23","v":0},{"$f":"CRSDATA!J23","v":0},{"$f":"CRSDATA!I23","v":0},null,{"$f":"IF(LEFT(CRSDATA!N23,2)=\"A0\",\"A00\",IF(LEFT(CRSDATA!N23,3)=\"B02\",\"B02\",IF(LEFT(CRSDATA!N23,3)=\"B03\",\"B03\",IF(CRSDATA!N23=\"B04\",\"C01\",IF(CRSDATA!N23=\"H01\",\"H00\",IF(OR(CRSDATA!N23=\"H02\",CRSDATA!N23=\"H03\",CRSDATA!N23=\"H04\",CRSDATA!N23=\"H05\",CRSDATA!N23=\"H06\"),\"I01\",IF(CRSDATA!N23=\"\",\"\",CRSDATA!N23)))))))","v":""},{"$f":"IF(AND(LEN(CRSDATA!M23)=4,LEFT(CRSDATA!M23,3)=\"110\"),1100,IF(AND(LEN(CRSDATA!M23)=4,LEFT(CRSDATA!M23,3)=\"422\"),422,CRSDATA!M23))","v":0},{"$f":"IF(CRSDATA!L23=22,\"FA04\",\"\")","v":""},{"$f":"IF(CRSDATA!K23=8,\"FC02\",\"\")","v":""},{"$f":"_xlfn.IFS(OR(P23=\"A00\",P23=\"E01\",P23=\"F01\",AND(P23=\"\",A23<>0),Q23=510,Q23=520,AF23=60),1,P23=\"G01\",IF(AF23=10,21,22),OR(M23=41203,M23=41204),22,OR(AND(OR(P23=\"B02\",P23=\"B03\"),M23=41310),OR(P23=\"E02\",P23=\"I01\")),21,AND(OR(P23=\"B01\",P23=\"B03\",P23=\"C01\"),M23<>41310),IF(VLOOKUP(F23,recipient_country!AB:AD,3,FALSE)=10024,\"\",1),AND(P23=\"B02\",M23<>41310),IF(VLOOKUP(M23,channel_codes!J:P,7,FALSE)=0,\"\",VLOOKUP(M23,channel_codes!J:P,7,FALSE)),ISNUMBER(MATCH(P23,{\"D01\",\"D02\"},0)),IF(VLOOKUP(M23,channel_codes!J:P,7,FALSE)=1,1,IF(VLOOKUP(F23,recipient_country!AB:AD,3,FALSE)=10024,\"\",1)),OR(P23=\"H01\",AND(OR(ISNUMBER(SEARCH(\"41010\", L23)),ISNUMBER(SEARCH(\"41020\", L23)),ISNUMBER(SEARCH(\"41030\", L23)),ISNUMBER(SEARCH(\"41040\", L23)),ISNUMBER(SEARCH(\"41081\", L23))),F23=998)),22,F23=998,22,TRUE,\"\")","v":""},{"$f":"CRSDATA!AN23","v":0},{"$f":"CRSDATA!AO23","v":0},{"$f":"CRSDATA!AQ23","v":0},{"$f":"CRSDATA!AS23","v":0},{"$f":"CRSDATA!BB23","v":0},null,"",{"$f":"IF(AND(AND(CRSDATA!C23<>\"\",CRSDATA!BK23<>\"\"),OR(CRSDATA!N23=421,CRSDATA!N23=422,CRSDATA!N23=4221,CRSDATA!N23=4222,CRSDATA!N23=423,CRSDATA!N23=424,CRSDATA!N23=425,CRSDATA!N23=431,CRSDATA!N23=433,CRSDATA!N23=434)),DATEDIF(CRSDATA!C23,CRSDATA!BK23,\"m\"),\"\")","v":""},{"$f":"CRSDATA!BA23","v":0},{"$f":"CRSDATA!BC23","v":0},{"$f":"IF(CRSDATA!BT23=\"\",\"\",CRSDATA!BT23)","v":""},{"$f":"CRSDATA!L23","v":0}]
[{"$f":"CRSDATA!A24","v":0},{"$f":"CRSDATA!C24","v":0},{"$f":"CRSDATA!D24","v":0},{"$f":"CRSDATA!F24","v":0},{"$f":"CRSDATA!E24","v":0},{"$f":"IF(CRSDATA!H24=3000,998,CRSDATA!H24)","v":0},{"$f":"CRSDATA!O24","v":0},{"$f":"CRSDATA!U24","v":0},{"$f":"IF(CRSDATA!V24=\"\",\"\",CRSDATA!V24)","v":""},{"$f":"IF(CRSDATA!W24=\"\",\"\",CRSDATA!W24)","v":""},{"$f":"key_row(CRSDATA!X24,CRSDATA!Y24,CRSDATA!AL24,CRSDATA!AK24,CRSDATA!AJ24,CRSDATA!AM24,CRSDATA!P24,CRSDATA!V24)","v":""},{"$f":"CRSDATA!P24","v":0},{"$f":"CRSDATA!J24","v":0},{"$f":"CRSDATA!I24","v":0},null,{"$f":"IF(LEFT(CRSDATA!N24,2)=\"A0\",\"A00\",IF(LEFT(CRSDATA!N24,3)=\"B02\",\"B02\",IF(LEFT(CRSDATA!N24,3)=\"B03\",\"B03\",IF(CRSDATA!N24=\"B04\",\"C01\",IF(CRSDATA!N24=\"H01\",\"H00\",IF(OR(CRSDATA!N24=\"H02\",CRSDATA!N24=\"H03\",CRSDATA!N24=\"H04\",CRSDATA!N24=\"H05\",CRSDATA!N24=\"H06\"),\"I01\",IF(CRSDATA!N24=\"\",\"\",CRSDATA!N24)))))))","v":""},{"$f":"IF(AND(LEN(CRSDATA!M24)=4,LEFT(CRSDATA!M24,3)=\"110\"),1100,IF(AND(LEN(CRSDATA!M24)=4,LEFT(CRSDATA!M24,3)=\"422\"),422,CRSDATA!M24))","v":0},{"$f":"IF(CRSDATA!L24=22,\"FA04\",\"\")","v":""},{"$f":"IF(CRSDATA!K24=8,\"FC02\",\"\")","v":""},{"$f":"_xlfn.IFS(OR(P24=\"A00\",P24=\"E01\",P24=\"F01\",AND(P24=\"\",A24<>0),Q24=510,Q24=520,AF24=60),1,P24=\"G01\",IF(AF24=10,21,22),OR(M24=41203,M24=41204),22,OR(AND(OR(P24=\"B02\",P24=\"B03\"),M24=41310),OR(P24=\"E02\",P24=\"I01\")),21,AND(OR(P24=\"B01\",P24=\"B03\",P24=\"C01\"),M24<>41310),IF(VLOOKUP(F24,recipient_country!AB:AD,3,FALSE)=10024,\"\",1),AND(P24=\"B02\",M24<>41310),IF(VLOOKUP(M24,channel_codes!J:P,7,FALSE)=0,\"\",VLOOKUP(M24,channel_codes!J:P,7,FALSE)),ISNUMBER(MATCH(P24,{\"D01\",\"D02\"},0)),IF(VLOOKUP(M24,channel_codes!J:P,7,FALSE)=1,1,IF(VLOOKUP(F24,recipient_country!AB:AD,3,FALSE)=10024,\"\",1)),OR(P24=\"H01\",AND(OR(ISNUMBER(SEARCH(\"41010\", L24)),ISNUMBER(SEARCH(\"41020\", L24)),ISNUMBER(SEARCH(\"41030\", L24)),ISNUMBER(SEARCH(\"41040\", L24)),ISNUMBER(SEARCH(\"41081\", L24))),F24=998)),22,F24=998,22,TRUE,\"\")","v":""},{"$f":"CRSDATA!AN24","v":0},{"$f":"CRSDATA!AO24","v":0},{"$f":"CRSDATA!AQ24","v":0},{"$f":"CRSDATA!AS24","v":0},{"$f":"CRSDATA!BB24","v":0},null,"",{"$f":"IF(AND(AND(CRSDATA!C24<>\"\",CRSDATA!BK24<>\"\"),OR(CRSDATA!N24=421,CRSDATA!N24=422,CRSDATA!N24=4221,CRSDATA!N24=4222,CRSDATA!N24=423,CRSDATA!N24=424,CRSDATA!N24=425,CRSDATA!N24=431,CRSDATA!N24=433,CRSDATA!N24=434)),DATEDIF(CRSDATA!C24,CRSDATA!BK24,\"m\"),\"\")","v":""},{"$f":"CRSDATA!BA24","v":0},{"$f":"CRSDATA!BC24","v":0},{"$f":"IF(CRSDATA!BT24=\"\",\"\",CRSDATA!BT24)","v":""},{"$f":"CRSDATA!L24","v":0}]
[{"$f":"CRSDATA!A25","v":0},{"$f":"CRSDATA!C25","v":0},{"$f":"CRSDATA!D25","v":0},{"$f":"CRSDATA!F25","v":0},{"$f":"CRSDATA!E25","v":0},{"$f":"IF(CRSDATA!H25=3000,998,CRSDATA!H25)","v":0},{"$f":"CRSDATA!O25","v":0},{"$f":"CRSDATA!U25","v":0},{"$f":"IF(CRSDATA!V25=\"\",\"\",CRSDATA!V25)","v":""},{"$f":"IF(CRSDATA!W25=\"\",\"\",CRSDATA!W25)","v":""},{"$f":"key_row(CRSDATA!X25,CRSDATA!Y25,CRSDATA!AL25,CRSDATA!AK25,CRSDATA!AJ25,CRSDATA!AM25,CRSDATA!P25,CRSDATA!V25)","v":""},{"$f":"CRSDATA!P25","v":0},{"$f":"CRSDATA!J25","v":0},{"$f":"CRSDATA!I25","v":0},null,{"$f":"IF(LEFT(CRSDATA!N25,2)=\"A0\",\"A00\",IF(LEFT(CRSDATA!N25,3)=\"B02\",\"B02\",IF(LEFT(CRSDATA!N25,3)=\"B03\",\"B03\",IF(CRSDATA!N25=\"B04\",\"C01\",IF(CRSDATA!N25=\"H01\",\"H00\",IF(OR(CRSDATA!N25=\"H02\",CRSDATA!N25=\"H03\",CRSDATA!N25=\"H04\",CRSDATA!N25=\"H05\",CRSDATA!N25=\"H06\"),\"I01\",IF(CRSDATA!N25=\"\",\"\",CRSDATA!N25)))))))","v":""},{"$f":"IF(AND(LEN(CRSDATA!M25)=4,LEFT(CRSDATA!M25,3)=\"110\"),1100,IF(AND(LEN(CRSDATA!M25)=4,LEFT(CRSDATA!M25,3)=\"422\"),422,CRSDATA!M25))","v":0},{"$f":"IF(CRSDATA!L25=22,\"FA04\",\"\")","v":""},{"$f":"IF(CRSDATA!K25=8,\"FC02\",\"\")","v":""},{"$f":"_xlfn.IFS(OR(P25=\"A00\",P25=\"E01\",P25=\"F01\",AND(P25=\"\",A25<>0),Q25=510,Q25=520,AF25=60),1,P25=\"G01\",IF(AF25=10,21,22),OR(M25=41203,M25=41204),22,OR(AND(OR(P25=\"B02\",P25=\"B03\"),M25=41310),OR(P25=\"E02\",P25=\"I01\")),21,AND(OR(P25=\"B01\",P25=\"B03\",P25=\"C01\"),M25<>41310),IF(VLOOKUP(F25,recipient_country!AB:AD,3,FALSE)=10024,\"\",1),AND(P25=\"B02\",M25<>41310),IF(VLOOKUP(M25,channel_codes!J:P,7,FALSE)=0,\"\",VLOOKUP(M25,channel_codes!J:P,7,FALSE)),ISNUMBER(MATCH(P25,{\"D01\",\"D02\"},0)),IF(VLOOKUP(M25,channel_codes!J:P,7,FALSE)=1,1,IF(VLOOKUP(F25,recipient_country!AB:AD,3,FALSE)=10024,\"\",1)),OR(P25=\"H01\",AND(OR(ISNUMBER(SEARCH(\"41010\", L25)),ISNUMBER(SEARCH(\"41020\", L25)),ISNUMBER(SEARCH(\"41030\", L25)),ISNUMBER(SEARCH(\"41040\", L25)),ISNUMBER(SEARCH(\"41081\", L25))),F25=998)),22,F25=998,22,TRUE,\"\")","v":""},{"$f":"CRSDATA!AN25","v":0},{"$f":"CRSDATA!AO25","v":0},{"$f":"CRSDATA!AQ25","v":0},{"$f":"CRSDATA!AS25","v":0},{"$f":"CRSDATA!BB25","v":0},null,"",{"$f":"IF(AND(AND(CRSDATA!C25<>\"\",CRSDATA!BK25<>\"\"),OR(CRSDATA!N25=421,CRSDATA!N25=422,CRSDATA!N25=4221,CRSDATA!N25=4222,CRSDATA!N25=423,CRSDATA!N25=424,CRSDATA!N25=425,CRSDATA!N25=431,CRSDATA!N25=433,CRSDATA!N25=434)),DATEDIF(CRSDATA!C25,CRSDATA!BK25,\"m\"),\"\")","v":""},{"$f":"CRSDATA!BA25","v":0},{"$f":"CRSDATA!BC25","v":0},{"$f":"IF(CRSDATA!BT25=\"\",\"\",CRSDATA!BT25)","v":""},{"$f":"CRSDATA!L25","v":0}]
[{"$f":"CRSDATA!A26","v":0},{"$f":"CRSDATA!C26","v":0},{"$f":"CRSDATA!D26","v":0},{"$f":"CRSDATA!F26","v":0},{"$f":"CRSDATA!E26","v":0},{"$f":"IF(CRSDATA!H26=3000,998,CRSDATA!H26)","v":0},{"$f":"CRSDATA!O26","v":0},{"$f":"CRSDATA!U26","v":0},{"$f":"IF(CRSDATA!V26=\"\",\"\",CRSDATA!V26)","v":""},{"$f":"IF(CRSDATA!W26=\"\",\"\",CRSDATA!W26)","v":""},{"$f":"key_row(CRSDATA!X26,CRSDATA!Y26,CRSDATA!AL26,CRSDATA!AK26,CRSDATA!AJ26,CRSDATA!AM26,CRSDATA!P26,CRSDATA!V26)","v":""},{"$f":"CRSDATA!P26","v":0},{"$f":"CRSDATA!J26","v":0},{"$f":"CRSDATA!I26","v":0},null,{"$f":"IF(LEFT(CRSDATA!N26,2)=\"A0\",\"A00\",IF(LEFT(CRSDATA!N26,3)=\"B02\",\"B02\",IF(LEFT(CRSDATA!N26,3)=\"B03\",\"B03\",IF(CRSDATA!N26=\"B04\",\"C01\",IF(CRSDATA!N26=\"H01\",\"H00\",IF(OR(CRSDATA!N26=\"H02\",CRSDATA!N26=\"H03\",CRSDATA!N26=\"H04\",CRSDATA!N26=\"H05\",CRSDATA!N26=\"H06\"),\"I01\",IF(CRSDATA!N26=\"\",\"\",CRSDATA!N26)))))))","v":""},{"$f":"IF(AND(LEN(CRSDATA!M26)=4,LEFT(CRSDATA!M26,3)=\"110\"),1100,IF(AND(LEN(CRSDATA!M26)=4,LEFT(CRSDATA!M26,3)=\"422\"),422,CRSDATA!M26))","v":0},{"$f":"IF(CRSDATA!L26=22,\"FA04\",\"\")","v":""},{"$f":"IF(CRSDATA!K26=8,\"FC02\",\"\")","v":""},{"$f":"_xlfn.IFS(OR(P26=\"A00\",P26=\"E01\",P26=\"F01\",AND(P26=\"\",A26<>0),Q26=510,Q26=520,AF26=60),1,P26=\"G01\",IF(AF26=10,21,22),OR(M26=41203,M26=41204),22,OR(AND(OR(P26=\"B02\",P26=\"B03\"),M26=41310),OR(P26=\"E02\",P26=\"I01\")),21,AND(OR(P26=\"B01\",P26=\"B03\",P26=\"C01\"),M26<>41310),IF(VLOOKUP(F26,recipient_country!AB:AD,3,FALSE)=10024,\"\",1),AND(P26=\"B02\",M26<>41310),IF(VLOOKUP(M26,channel_codes!J:P,7,FALSE)=0,\"\",VLOOKUP(M26,channel_codes!J:P,7,FALSE)),ISNUMBER(MATCH(P26,{\"D01\",\"D02\"},0)),IF(VLOOKUP(M26,channel_codes!J:P,7,FALSE)=1,1,IF(VLOOKUP(F26,recipient_country!AB:AD,3,FALSE)=10024,\"\",1)),OR(P26=\"H01\",AND(OR(ISNUMBER(SEARCH(\"41010\", L26)),ISNUMBER(SEARCH(\"41020\", L26)),ISNUMBER(SEARCH(\"41030\", L26)),ISNUMBER(SEARCH(\"41040\", L26)),ISNUMBER(SEARCH(\"41081\", L26))),F26=998)),22,F26=998,22,TRUE,\"\")","v":""},{"$f":"CRSDATA!AN26","v":0},{"$f":"CRSDATA!AO26","v":0},{"$f":"CRSDATA!AQ26","v":0},{"$f":"CRSDATA!AS26","v":0},{"$f":"CRSDATA!BB26","v":0},null,"",{"$f":"IF(AND(AND(CRSDATA!C26<>\"\",CRSDATA!BK26<>\"\"),OR(CRSDATA!N26=421,CRSDATA!N26=422,CRSDATA!N26=4221,CRSDATA!N26=4222,CRSDATA!N26=423,CRSDATA!N26=424,CRSDATA!N26=425,CRSDATA!N26=431,CRSDATA!N26=433,CRSDATA!N26=434)),DATEDIF(CRSDATA!C26,CRSDATA!BK26,\"m\"),\"\")","v":""},{"$f":"CRSDATA!BA26","v":0},{"$f":"CRSDATA!BC26","v":0},{"$f":"IF(CRSDATA!BT26=\"\",\"\",CRSDATA!BT26)","v":""},{"$f":"CRSDATA!L26","v":0}]
[{"$f":"CRSDATA!A27","v":0},{"$f":"CRSDATA!C27","v":0},{"$f":"CRSDATA!D27","v":0},{"$f":"CRSDATA!F27","v":0},{"$f":"CRSDATA!E27","v":0},{"$f":"IF(CRSDATA!H27=3000,998,CRSDATA!H27)","v":0},{"$f":"CRSDATA!O27","v":0},{"$f":"CRSDATA!U27","v":0},{"$f":"IF(CRSDATA!V27=\"\",\"\",CRSDATA!V27)","v":""},{"$f":"IF(CRSDATA!W27=\"\",\"\",CRSDATA!W27)","v":""},{"$f":"key_row(CRSDATA!X27,CRSDATA!Y27,CRSDATA!AL27,CRSDATA!AK27,CRSDATA!AJ27,CRSDATA!AM27,CRSDATA!P27,CRSDATA!V27)","v":""},{"$f":"CRSDATA!P27","v":0},{"$f":"CRSDATA!J27","v":0},{"$f":"CRSDATA!I27","v":0},null,{"$f":"IF(LEFT(CRSDATA!N27,2)=\"A0\",\"A00\",IF(LEFT(CRSDATA!N27,3)=\"B02\",\"B02\",IF(LEFT(CRSDATA!N27,3)=\"B03\",\"B03\",IF(CRSDATA!N27=\"B04\",\"C01\",IF(CRSDATA!N27=\"H01\",\"H00\",IF(OR(CRSDATA!N27=\"H02\",CRSDATA!N27=\"H03\",CRSDATA!N27=\"H04\",CRSDATA!N27=\"H05\",CRSDATA!N27=\"H06\"),\"I01\",IF(CRSDATA!N27=\"\",\"\",CRSDATA!N27)))))))","v":""},{"$f":"IF(AND(LEN(CRSDATA!M27)=4,LEFT(CRSDATA!M27,3)=\"110\"),1100,IF(AND(LEN(CRSDATA!M27)=4,LEFT(CRSDATA!M27,3)=\"422\"),422,CRSDATA!M27))","v":0},{"$f":"IF(CRSDATA!L27=22,\"FA04\",\"\")","v":""},{"$f":"IF(CRSDATA!K27=8,\"FC02\",\"\")","v":""},{"$f":"_xlfn.IFS(OR(P27=\"A00\",P27=\"E01\",P27=\"F01\",AND(P27=\"\",A27<>0),Q27=510,Q27=520,AF27=60),1,P27=\"G01\",IF(AF27=10,21,22),OR(M27=41203,M27=41204),22,OR(AND(OR(P27=\"B02\",P27=\"B03\"),M27=41310),OR(P27=\"E02\",P27=\"I01\")),21,AND(OR(P27=\"B01\",P27=\"B03\",P27=\"C01\"),M27<>41310),IF(VLOOKUP(F27,recipient_country!AB:AD,3,FALSE)=10024,\"\",1),AND(P27=\"B02\",M27<>41310),IF(VLOOKUP(M27,channel_codes!J:P,7,FALSE)=0,\"\",VLOOKUP(M27,channel_codes!J:P,7,FALSE)),ISNUMBER(MATCH(P27,{\"D01\",\"D02\"},0)),IF(VLOOKUP(M27,channel_codes!J:P,7,FALSE)=1,1,IF(VLOOKUP(F27,recipient_country!AB:AD,3,FALSE)=10024,\"\",1)),OR(P27=\"H01\",AND(OR(ISNUMBER(SEARCH(\"41010\", L27)),ISNUMBER(SEARCH(\"41020\", L27)),ISNUMBER(SEARCH(\"41030\", L27)),ISNUMBER(SEARCH(\"41040\", L27)),ISNUMBER(SEARCH(\"41081\", L27))),F27=998)),22,F27=998,22,TRUE,\"\")","v":""},{"$f":"CRSDATA!AN27","v":0},{"$f":"CRSDATA!AO27","v":0},{"$f":"CRSDATA!AQ27","v":0},{"$f":"CRSDATA!AS27","v":0},{"$f":"CRSDATA!BB27","v":0},null,"",{"$f":"IF(AND(AND(CRSDATA!C27<>\"\",CRSDATA!BK27<>\"\"),OR(CRSDATA!N27=421,CRSDATA!N27=422,CRSDATA!N27=4221,CRSDATA!N27=4222,CRSDATA!N27=423,CRSDATA!N27=424,CRSDATA!N27=425,CRSDATA!N27=431,CRSDATA!N27=433,CRSDATA!N27=434)),DATEDIF(CRSDATA!C27,CRSDATA!BK27,\"m\"),\"\")","v":""},{"$f":"CRSDATA!BA27","v":0},{"$f":"CRSDATA!BC27","v":0},{"$f":"IF(CRSDATA!BT27=\"\",\"\",CRSDATA!BT27)","v":""},{"$f":"CRSDATA!L27","v":0}]
[{"$f":"CRSDATA!A28","v":0},{"$f":"CRSDATA!C28","v":0},{"$f":"CRSDATA!D28","v":0},{"$f":"CRSDATA!F28","v":0},{"$f":"CRSDATA!E28","v":0},{"$f":"IF(CRSDATA!H28=3000,998,CRSDATA!H28)","v":0},{"$f":"CRSDATA!O28","v":0},{"$f":"CRSDATA!U28","v":0},{"$f":"IF(CRSDATA!V28=\"\",\"\",CRSDATA!V28)","v":""},{"$f":"IF(CRSDATA!W28=\"\",\"\",CRSDATA!W28)","v":""},{"$f":"key_row(CRSDATA!X28,CRSDATA!Y28,CRSDATA!AL28,CRSDATA!AK28,CRSDATA!AJ28,CRSDATA!AM28,CRSDATA!P28,CRSDATA!V28)","v":""},{"$f":"CRSDATA!P28","v":0},{"$f":"CRSDATA!J28","v":0},{"$f":"CRSDATA!I28","v":0},null,{"$f":"IF(LEFT(CRSDATA!N28,2)=\"A0\",\"A00\",IF(LEFT(CRSDATA!N28,3)=\"B02\",\"B02\",IF(LEFT(CRSDATA!N28,3)=\"B03\",\"B03\",IF(CRSDATA!N28=\"B04\",\"C01\",IF(CRSDATA!N28=\"H01\",\"H00\",IF(OR(CRSDATA!N28=\"H02\",CRSDATA!N28=\"H03\",CRSDATA!N28=\"H04\",CRSDATA!N28=\"H05\",CRSDATA!N28=\"H06\"),\"I01\",IF(CRSDATA!N28=\"\",\"\",CRSDATA!N28)))))))","v":""},{"$f":"IF(AND(LEN(CRSDATA!M28)=4,LEFT(CRSDATA!M28,3)=\"110\"),1100,IF(AND(LEN(CRSDATA!M28)=4,LEFT(CRSDATA!M28,3)=\"422\"),422,CRSDATA!M28))","v":0},{"$f":"IF(CRSDATA!L28=22,\"FA04\",\"\")","v":""},{"$f":"IF(CRSDATA!K28=8,\"FC02\",\"\")","v":""},{"$f":"_xlfn.IFS(OR(P28=\"A00\",P28=\"E01\",P28=\"F01\",AND(P28=\"\",A28<>0),Q28=510,Q28=520,AF28=60),1,P28=\"G01\",IF(AF28=10,21,22),OR(M28=41203,M28=41204),22,OR(AND(OR(P28=\"B02\",P28=\"B03\"),M28=41310),OR(P28=\"E02\",P28=\"I01\")),21,AND(OR(P28=\"B01\",P28=\"B03\",P28=\"C01\"),M28<>41310),IF(VLOOKUP(F28,recipient_country!AB:AD,3,FALSE)=10024,\"\",1),AND(P28=\"B02\",M28<>41310),IF(VLOOKUP(M28,channel_codes!J:P,7,FALSE)=0,\"\",VLOOKUP(M28,channel_codes!J:P,7,FALSE)),ISNUMBER(MATCH(P28,{\"D01\",\"D02\"},0)),IF(VLOOKUP(M28,channel_codes!J:P,7,FALSE)=1,1,IF(VLOOKUP(F28,recipient_country!AB:AD,3,FALSE)=10024,\"\",1)),OR(P28=\"H01\",AND(OR(ISNUMBER(SEARCH(\"41010\", L28)),ISNUMBER(SEARCH(\"41020\", L28)),ISNUMBER(SEARCH(\"41030\", L28)),ISNUMBER(SEARCH(\"41040\", L28)),ISNUMBER(SEARCH(\"41081\", L28))),F28=998)),22,F28=998,22,TRUE,\"\")","v":""},{"$f":"CRSDATA!AN28","v":0},{"$f":"CRSDATA!AO28","v":0},{"$f":"CRSDATA!AQ28","v":0},{"$f":"CRSDATA!AS28","v":0},{"$f":"CRSDATA!BB28","v":0},null,"",{"$f":"IF(AND(AND(CRSDATA!C28<>\"\",CRSDATA!BK28<>\"\"),OR(CRSDATA!N28=421,CRSDATA!N28=422,CRSDATA!N28=4221,CRSDATA!N28=4222,CRSDATA!N28=423,CRSDATA!N28=424,CRSDATA!N28=425,CRSDATA!N28=431,CRSDATA!N28=433,CRSDATA!N28=434)),DATEDIF(CRSDATA!C28,CRSDATA!BK28,\"m\"),\"\")","v":""},{"$f":"CRSDATA!BA28","v":0},{"$f":"CRSDATA!BC28","v":0},{"$f":"IF(CRSDATA!BT28=\"\",\"\",CRSDATA!BT28)","v":""},{"$f":"CRSDATA!L28","v":0}]
[{"$f":"CRSDATA!A29","v":0},{"$f":"CRSDATA!C29","v":0},{"$f":"CRSDATA!D29","v":0},{"$f":"CRSDATA!F29","v":0},{"$f":"CRSDATA!E29","v":0},{"$f":"IF(CRSDATA!H29=3000,998,CRSDATA!H29)","v":0},{"$f":"CRSDATA!O29","v":0},{"$f":"CRSDATA!U29","v":0},{"$f":"IF(CRSDATA!V29=\"\",\"\",CRSDATA!V29)","v":""},{"$f":"IF(CRSDATA!W29=\"\",\"\",CRSDATA!W29)","v":""},{"$f":"key_row(CRSDATA!X29,CRSDATA!Y29,CRSDATA!AL29,CRSDATA!AK29,CRSDATA!AJ29,CRSDATA!AM29,CRSDATA!P29,CRSDATA!V29)","v":""},{"$f":"CRSDATA!P29","v":0},{"$f":"CRSDATA!J29","v":0},{"$f":"CRSDATA!I29","v":0},null,{"$f":"IF(LEFT(CRSDATA!N29,2)=\"A0\",\"A00\",IF(LEFT(CRSDATA!N29,3)=\"B02\",\"B02\",IF(LEFT(CRSDATA!N29,3)=\"B03\",\"B03\",IF(CRSDATA!N29=\"B04\",\"C01\",IF(CRSDATA!N29=\"H01\",\"H00\",IF(OR(CRSDATA!N29=\"H02\",CRSDATA!N29=\"H03\",CRSDATA!N29=\"H04\",CRSDATA!N29=\"H05\",CRSDATA!N29=\"H06\"),\"I01\",IF(CRSDATA!N29=\"\",\"\",CRSDATA!N29)))))))","v":""},{"$f":"IF(AND(LEN(CRSDATA!M29)=4,LEFT(CRSDATA!M29,3)=\"110\"),1100,IF(AND(LEN(CRSDATA!M29)=4,LEFT(CRSDATA!M29,3)=\"422\"),422,CRSDATA!M29))","v":0},{"$f":"IF(CRSDATA!L29=22,\"FA04\",\"\")","v":""},{"$f":"IF(CRSDATA!K29=8,\"FC02\",\"\")","v":""},{"$f":"_xlfn.IFS(OR(P29=\"A00\",P29=\"E01\",P29=\"F01\",AND(P29=\"\",A29<>0),Q29=510,Q29=520,AF29=60),1,P29=\"G01\",IF(AF29=10,21,22),OR(M29=41203,M29=41204),22,OR(AND(OR(P29=\"B02\",P29=\"B03\"),M29=41310),OR(P29=\"E02\",P29=\"I01\")),21,AND(OR(P29=\"B01\",P29=\"B03\",P29=\"C01\"),M29<>41310),IF(VLOOKUP(F29,recipient_country!AB:AD,3,FALSE)=10024,\"\",1),AND(P29=\"B02\",M29<>41310),IF(VLOOKUP(M29,channel_codes!J:P,7,FALSE)=0,\"\",VLOOKUP(M29,channel_codes!J:P,7,FALSE)),ISNUMBER(MATCH(P29,{\"D01\",\"D02\"},0)),IF(VLOOKUP(M29,channel_codes!J:P,7,FALSE)=1,1,IF(VLOOKUP(F29,recipient_country!AB:AD,3,FALSE)=10024,\"\",1)),OR(P29=\"H01\",AND(OR(ISNUMBER(SEARCH(\"41010\", L29)),ISNUMBER(SEARCH(\"41020\", L29)),ISNUMBER(SEARCH(\"41030\", L29)),ISNUMBER(SEARCH(\"41040\", L29)),ISNUMBER(SEARCH(\"41081\", L29))),F29=998)),22,F29=998,22,TRUE,\"\")","v":""},{"$f":"CRSDATA!AN29","v":0},{"$f":"CRSDATA!AO29","v":0},{"$f":"CRSDATA!AQ29","v":0},{"$f":"CRSDATA!AS29","v":0},{"$f":"CRSDATA!BB29","v":0},null,"",{"$f":"IF(AND(AND(CRSDATA!C29<>\"\",CRSDATA!BK29<>\"\"),OR(CRSDATA!N29=421,CRSDATA!N29=422,CRSDATA!N29=4221,CRSDATA!N29=4222,CRSDATA!N29=423,CRSDATA!N29=424,CRSDATA!N29=425,CRSDATA!N29=431,CRSDATA!N29=433,CRSDATA!N29=434)),DATEDIF(CRSDATA!C29,CRSDATA!BK29,\"m\"),\"\")","v":""},{"$f":"CRSDATA!BA29","v":0},{"$f":"CRSDATA!BC29","v":0},{"$f":"IF(CRSDATA!BT29=\"\",\"\",CRSDATA!BT29)","v":""},{"$f":"CRSDATA!L29","v":0}]
[{"$f":"CRSDATA!A30","v":0},{"$f":"CRSDATA!C30","v":0},{"$f":"CRSDATA!D30","v":0},{"$f":"CRSDATA!F30","v":0},{"$f":"CRSDATA!E30","v":0},{"$f":"IF(CRSDATA!H30=3000,998,CRSDATA!H30)","v":0},{"$f":"CRSDATA!O30","v":0},{"$f":"CRSDATA!U30","v":0},{"$f":"IF(CRSDATA!V30=\"\",\"\",CRSDATA!V30)","v":""},{"$f":"IF(CRSDATA!W30=\"\",\"\",CRSDATA!W30)","v":""},{"$f":"key_row(CRSDATA!X30,CRSDATA!Y30,CRSDATA!AL30,CRSDATA!AK30,CRSDATA!AJ30,CRSDATA!AM30,CRSDATA!P30,CRSDATA!V30)","v":""},{"$f":"CRSDATA!P30","v":0},{"$f":"CRSDATA!J30","v":0},{"$f":"CRSDATA!I30","v":0},null,{"$f":"IF(LEFT(CRSDATA!N30,2)=\"A0\",\"A00\",IF(LEFT(CRSDATA!N30,3)=\"B02\",\"B02\",IF(LEFT(CRSDATA!N30,3)=\"B03\",\"B03\",IF(CRSDATA!N30=\"B04\",\"C01\",IF(CRSDATA!N30=\"H01\",\"H00\",IF(OR(CRSDATA!N30=\"H02\",CRSDATA!N30=\"H03\",CRSDATA!N30=\"H04\",CRSDATA!N30=\"H05\",CRSDATA!N30=\"H06\"),\"I01\",IF(CRSDATA!N30=\"\",\"\",CRSDATA!N30)))))))","v":""},{"$f":"IF(AND(LEN(CRSDATA!M30)=4,LEFT(CRSDATA!M30,3)=\"110\"),1100,IF(AND(LEN(CRSDATA!M30)=4,LEFT(CRSDATA!M30,3)=\"422\"),422,CRSDATA!M30))","v":0},{"$f":"IF(CRSDATA!L30=22,\"FA04\",\"\")","v":""},{"$f":"IF(CRSDATA!K30=8,\"FC02\",\"\")","v":""},{"$f":"_xlfn.IFS(OR(P30=\"A00\",P30=\"E01\",P30=\"F01\",AND(P30=\"\",A30<>0),Q30=510,Q30=520,AF30=60),1,P30=\"G01\",IF(AF30=10,21,22),OR(M30=41203,M30=41204),22,OR(AND(OR(P30=\"B02\",P30=\"B03\"),M30=41310),OR(P30=\"E02\",P30=\"I01\")),21,AND(OR(P30=\"B01\",P30=\"B03\",P30=\"C01\"),M30<>41310),IF(VLOOKUP(F30,recipient_country!AB:AD,3,FALSE)=10024,\"\",1),AND(P30=\"B02\",M30<>41310),IF(VLOOKUP(M30,channel_codes!J:P,7,FALSE)=0,\"\",VLOOKUP(M30,channel_codes!J:P,7,FALSE)),ISNUMBER(MATCH(P30,{\"D01\",\"D02\"},0)),IF(VLOOKUP(M30,channel_codes!J:P,7,FALSE)=1,1,IF(VLOOKUP(F30,recipient_country!AB:AD,3,FALSE)=10024,\"\",1)),OR(P30=\"H01\",AND(OR(ISNUMBER(SEARCH(\"41010\", L30)),ISNUMBER(SEARCH(\"41020\", L30)),ISNUMBER(SEARCH(\"41030\", L30)),ISNUMBER(SEARCH(\"41040\", L30)),ISNUMBER(SEARCH(\"41081\", L30))),F30=998)),22,F30=998,22,TRUE,\"\")","v":""},{"$f":"CRSDATA!AN30","v":0},{"$f":"CRSDATA!AO30","v":0},{"$f":"CRSDATA!AQ30","v":0},{"$f":"CRSDATA!AS30","v":0},{"$f":"CRSDATA!BB30","v":0},null,"",{"$f":"IF(AND(AND(CRSDATA!C30<>\"\",CRSDATA!BK30<>\"\"),OR(CRSDATA!N30=421,CRSDATA!N30=422,CRSDATA!N30=4221,CRSDATA!N30=4222,CRSDATA!N30=423,CRSDATA!N30=424,CRSDATA!N30=425,CRSDATA!N30=431,CRSDATA!N30=433,CRSDATA!N30=434)),DATEDIF(CRSDATA!C30,CRSDATA!BK30,\"m\"),\"\")","v":""},{"$f":"CRSDATA!BA30","v":0},{"$f":"CRSDATA!BC30","v":0},{"$f":"IF(CRSDATA!BT30=\"\",\"\",CRSDATA!BT30)","v":""},{"$f":"CRSDATA!L30","v":0}]
[{"$f":"CRSDATA!A31","v":0},{"$f":"CRSDATA!C31","v":0},{"$f":"CRSDATA!D31","v":0},{"$f":"CRSDATA!F31","v":0},{"$f":"CRSDATA!E31","v":0},{"$f":"IF(CRSDATA!H31=3000,998,CRSDATA!H31)","v":0},{"$f":"CRSDATA!O31","v":0},{"$f":"CRSDATA!U31","v":0},{"$f":"IF(CRSDATA!V31=\"\",\"\",CRSDATA!V31)","v":""},{"$f":"IF(CRSDATA!W31=\"\",\"\",CRSDATA!W31)","v":""},{"$f":"key_row(CRSDATA!X31,CRSDATA!Y31,CRSDATA!AL31,CRSDATA!AK31,CRSDATA!AJ31,CRSDATA!AM31,CRSDATA!P31,CRSDATA!V31)","v":""},{"$f":"CRSDATA!P31","v":0},{"$f":"CRSDATA!J31","v":0},{"$f":"CRSDATA!I31","v":0},null,{"$f":"IF(LEFT(CRSDATA!N31,2)=\"A0\",\"A00\",IF(LEFT(CRSDATA!N31,3)=\"B02\",\"B02\",IF(LEFT(CRSDATA!N31,3)=\"B03\",\"B03\",IF(CRSDATA!N31=\"B04\",\"C01\",IF(CRSDATA!N31=\"H01\",\"H00\",IF(OR(CRSDATA!N31=\"H02\",CRSDATA!N31=\"H03\",CRSDATA!N31=\"H04\",CRSDATA!N31=\"H05\",CRSDATA!N31=\"H06\"),\"I01\",IF(CRSDATA!N31=\"\",\"\",CRSDATA!N31)))))))","v":""},{"$f":"IF(AND(LEN(CRSDATA!M31)=4,LEFT(CRSDATA!M31,3)=\"110\"),1100,IF(AND(LEN(CRSDATA!M31)=4,LEFT(CRSDATA!M31,3)=\"422\"),422,CRSDATA!M31))","v":0},{"$f":"IF(CRSDATA!L31=22,\"FA04\",\"\")","v":""},{"$f":"IF(CRSDATA!K31=8,\"FC02\",\"\")","v":""},{"$f":"_xlfn.IFS(OR(P31=\"A00\",P31=\"E01\",P31=\"F01\",AND(P31=\"\",A31<>0),Q31=510,Q31=520,AF31=60),1,P31=\"G01\",IF(AF31=10,21,22),OR(M31=41203,M31=41204),22,OR(AND(OR(P31=\"B02\",P31=\"B03\"),M31=41310),OR(P31=\"E02\",P31=\"I01\")),21,AND(OR(P31=\"B01\",P31=\"B03\",P31=\"C01\"),M31<>41310),IF(VLOOKUP(F31,recipient_country!AB:AD,3,FALSE)=10024,\"\",1),AND(P31=\"B02\",M31<>41310),IF(VLOOKUP(M31,channel_codes!J:P,7,FALSE)=0,\"\",VLOOKUP(M31,channel_codes!J:P,7,FALSE)),ISNUMBER(MATCH(P31,{\"D01\",\"D02\"},0)),IF(VLOOKUP(M31,channel_codes!J:P,7,FALSE)=1,1,IF(VLOOKUP(F31,recipient_country!AB:AD,3,FALSE)=10024,\"\",1)),OR(P31=\"H01\",AND(OR(ISNUMBER(SEARCH(\"41010\", L31)),ISNUMBER(SEARCH(\"41020\", L31)),ISNUMBER(SEARCH(\"41030\", L31)),ISNUMBER(SEARCH(\"41040\", L31)),ISNUMBER(SEARCH(\"41081\", L31))),F31=998)),22,F31=998,22,TRUE,\"\")","v":""},{"$f":"CRSDATA!AN31","v":0},{"$f":"CRSDATA!AO31","v":0},{"$f":"CRSDATA!AQ31","v":0},{"$f":"CRSDATA!AS31","v":0},{"$f":"CRSDATA!BB31","v":0},null,"",{"$f":"IF(AND(AND(CRSDATA!C31<>\"\",CRSDATA!BK31<>\"\"),OR(CRSDATA!N31=421,CRSDATA!N31=422,CRSDATA!N31=4221,CRSDATA!N31=4222,CRSDATA!N31=423,CRSDATA!N31=424,CRSDATA!N31=425,CRSDATA!N31=431,CRSDATA!N31=433,CRSDATA!N31=434)),DATEDIF(CRSDATA!C31,CRSDATA!BK31,\"m\"),\"\")","v":""},{"$f":"CRSDATA!BA31","v":0},{"$f":"CRSDATA!BC31","v":0},{"$f":"IF(CRSDATA!BT31=\"\",\"\",CRSDATA!BT31)","v":""},{"$f":"CRSDATA!L31","v":0}]
[{"$f":"CRSDATA!A32","v":0},{"$f":"CRSDATA!C32","v":0},{"$f":"CRSDATA!D32","v":0},{"$f":"CRSDATA!F32","v":0},{"$f":"CRSDATA!E32","v":0},{"$f":"IF(CRSDATA!H32=3000,998,CRSDATA!H32)","v":0},{"$f":"CRSDATA!O32","v":0},{"$f":"CRSDATA!U32","v":0},{"$f":"IF(CRSDATA!V32=\"\",\"\",CRSDATA!V32)","v":""},{"$f":"IF(CRSDATA!W32=\"\",\"\",CRSDATA!W32)","v":""},{"$f":"key_row(CRSDATA!X32,CRSDATA!Y32,CRSDATA!AL32,CRSDATA!AK32,CRSDATA!AJ32,CRSDATA!AM32,CRSDATA!P32,CRSDATA!V32)","v":""},{"$f":"CRSDATA!P32","v":0},{"$f":"CRSDATA!J32","v":0},{"$f":"CRSDATA!I32","v":0},null,{"$f":"IF(LEFT(CRSDATA!N32,2)=\"A0\",\"A00\",IF(LEFT(CRSDATA!N32,3)=\"B02\",\"B02\",IF(LEFT(CRSDATA!N32,3)=\"B03\",\"B03\",IF(CRSDATA!N32=\"B04\",\"C01\",IF(CRSDATA!N32=\"H01\",\"H00\",IF(OR(CRSDATA!N32=\"H02\",CRSDATA!N32=\"H03\",CRSDATA!N32=\"H04\",CRSDATA!N32=\"H05\",CRSDATA!N32=\"H06\"),\"I01\",IF(CRSDATA!N32=\"\",\"\",CRSDATA!N32)))))))","v":""},{"$f":"IF(AND(LEN(CRSDATA!M32)=4,LEFT(CRSDATA!M32,3)=\"110\"),1100,IF(AND(LEN(CRSDATA!M32)=4,LEFT(CRSDATA!M32,3)=\"422\"),422,CRSDATA!M32))","v":0},{"$f":"IF(CRSDATA!L32=22,\"FA04\",\"\")","v":""},{"$f":"IF(CRSDATA!K32=8,\"FC02\",\"\")","v":""},{"$f":"_xlfn.IFS(OR(P32=\"A00\",P32=\"E01\",P32=\"F01\",AND(P32=\"\",A32<>0),Q32=510,Q32=520,AF32=60),1,P32=\"G01\",IF(AF32=10,21,22),OR(M32=41203,M32=41204),22,OR(AND(OR(P32=\"B02\",P32=\"B03\"),M32=41310),OR(P32=\"E02\",P32=\"I01\")),21,AND(OR(P32=\"B01\",P32=\"B03\",P32=\"C01\"),M32<>41310),IF(VLOOKUP(F32,recipient_country!AB:AD,3,FALSE)=10024,\"\",1),AND(P32=\"B02\",M32<>41310),IF(VLOOKUP(M32,channel_codes!J:P,7,FALSE)=0,\"\",VLOOKUP(M32,channel_codes!J:P,7,FALSE)),ISNUMBER(MATCH(P32,{\"D01\",\"D02\"},0)),IF(VLOOKUP(M32,channel_codes!J:P,7,FALSE)=1,1,IF(VLOOKUP(F32,recipient_country!AB:AD,3,FALSE)=10024,\"\",1)),OR(P32=\"H01\",AND(OR(ISNUMBER(SEARCH(\"41010\", L32)),ISNUMBER(SEARCH(\"41020\", L32)),ISNUMBER(SEARCH(\"41030\", L32)),ISNUMBER(SEARCH(\"41040\", L32)),ISNUMBER(SEARCH(\"41081\", L32))),F32=998)),22,F32=998,22,TRUE,\"\")","v":""},{"$f":"CRSDATA!AN32","v":0},{"$f":"CRSDATA!AO32","v":0},{"$f":"CRSDATA!AQ32","v":0},{"$f":"CRSDATA!AS32","v":0},{"$f":"CRSDATA!BB32","v":0},null,"",{"$f":"IF(AND(AND(CRSDATA!C32<>\"\",CRSDATA!BK32<>\"\"),OR(CRSDATA!N32=421,CRSDATA!N32=422,CRSDATA!N32=4221,CRSDATA!N32=4222,CRSDATA!N32=423,CRSDATA!N32=424,CRSDATA!N32=425,CRSDATA!N32=431,CRSDATA!N32=433,CRSDATA!N32=434)),DATEDIF(CRSDATA!C32,CRSDATA!BK32,\"m\"),\"\")","v":""},{"$f":"CRSDATA!BA32","v":0},{"$f":"CRSDATA!BC32","v":0},{"$f":"IF(CRSDATA!BT32=\"\",\"\",CRSDATA!BT32)","v":""},{"$f":"CRSDATA!L32","v":0}]
[{"$f":"CRSDATA!A33","v":0},{"$f":"CRSDATA!C33","v":0},{"$f":"CRSDATA!D33","v":0},{"$f":"CRSDATA!F33","v":0},{"$f":"CRSDATA!E33","v":0},{"$f":"IF(CRSDATA!H33=3000,998,CRSDATA!H33)","v":0},{"$f":"CRSDATA!O33","v":0},{"$f":"CRSDATA!U33","v":0},{"$f":"IF(CRSDATA!V33=\"\",\"\",CRSDATA!V33)","v":""},{"$f":"IF(CRSDATA!W33=\"\",\"\",CRSDATA!W33)","v":""},{"$f":"key_row(CRSDATA!X33,CRSDATA!Y33,CRSDATA!AL33,CRSDATA!AK33,CRSDATA!AJ33,CRSDATA!AM33,CRSDATA!P33,CRSDATA!V33)","v":""},{"$f":"CRSDATA!P33","v":0},{"$f":"CRSDATA!J33","v":0},{"$f":"CRSDATA!I33","v":0},null,{"$f":"IF(LEFT(CRSDATA!N33,2)=\"A0\",\"A00\",IF(LEFT(CRSDATA!N33,3)=\"B02\",\"B02\",IF(LEFT(CRSDATA!N33,3)=\"B03\",\"B03\",IF(CRSDATA!N33=\"B04\",\"C01\",IF(CRSDATA!N33=\"H01\",\"H00\",IF(OR(CRSDATA!N33=\"H02\",CRSDATA!N33=\"H03\",CRSDATA!N33=\"H04\",CRSDATA!N33=\"H05\",CRSDATA!N33=\"H06\"),\"I01\",IF(CRSDATA!N33=\"\",\"\",CRSDATA!N33)))))))","v":""},{"$f":"IF(AND(LEN(CRSDATA!M33)=4,LEFT(CRSDATA!M33,3)=\"110\"),1100,IF(AND(LEN(CRSDATA!M33)=4,LEFT(CRSDATA!M33,3)=\"422\"),422,CRSDATA!M33))","v":0},{"$f":"IF(CRSDATA!L33=22,\"FA04\",\"\")","v":""},{"$f":"IF(CRSDATA!K33=8,\"FC02\",\"\")","v":""},{"$f":"_xlfn.IFS(OR(P33=\"A00\",P33=\"E01\",P33=\"F01\",AND(P33=\"\",A33<>0),Q33=510,Q33=520,AF33=60),1,P33=\"G01\",IF(AF33=10,21,22),OR(M33=41203,M33=41204),22,OR(AND(OR(P33=\"B02\",P33=\"B03\"),M33=41310),OR(P33=\"E02\",P33=\"I01\")),21,AND(OR(P33=\"B01\",P33=\"B03\",P33=\"C01\"),M33<>41310),IF(VLOOKUP(F33,recipient_country!AB:AD,3,FALSE)=10024,\"\",1),AND(P33=\"B02\",M33<>41310),IF(VLOOKUP(M33,channel_codes!J:P,7,FALSE)=0,\"\",VLOOKUP(M33,channel_codes!J:P,7,FALSE)),ISNUMBER(MATCH(P33,{\"D01\",\"D02\"},0)),IF(VLOOKUP(M33,channel_codes!J:P,7,FALSE)=1,1,IF(VLOOKUP(F33,recipient_country!AB:AD,3,FALSE)=10024,\"\",1)),OR(P33=\"H01\",AND(OR(ISNUMBER(SEARCH(\"41010\", L33)),ISNUMBER(SEARCH(\"41020\", L33)),ISNUMBER(SEARCH(\"41030\", L33)),ISNUMBER(SEARCH(\"41040\", L33)),ISNUMBER(SEARCH(\"41081\", L33))),F33=998)),22,F33=998,22,TRUE,\"\")","v":""},{"$f":"CRSDATA!AN33","v":0},{"$f":"CRSDATA!AO33","v":0},{"$f":"CRSDATA!AQ33","v":0},{"$f":"CRSDATA!AS33","v":0},{"$f":"CRSDATA!BB33","v":0},null,"",{"$f":"IF(AND(AND(CRSDATA!C33<>\"\",CRSDATA!BK33<>\"\"),OR(CRSDATA!N33=421,CRSDATA!N33=422,CRSDATA!N33=4221,CRSDATA!N33=4222,CRSDATA!N33=423,CRSDATA!N33=424,CRSDATA!N33=425,CRSDATA!N33=431,CRSDATA!N33=433,CRSDATA!N33=434)),DATEDIF(CRSDATA!C33,CRSDATA!BK33,\"m\"),\"\")","v":""},{"$f":"CRSDATA!BA33","v":0},{"$f":"CRSDATA!BC33","v":0},{"$f":"IF(CRSDATA!BT33=\"\",\"\",CRSDATA!BT33)","v":""},{"$f":"CRSDATA!L33","v":0}]
[{"$f":"CRSDATA!A34","v":0},{"$f":"CRSDATA!C34","v":0},{"$f":"CRSDATA!D34","v":0},{"$f":"CRSDATA!F34","v":0},{"$f":"CRSDATA!E34","v":0},{"$f":"IF(CRSDATA!H34=3000,998,CRSDATA!H34)","v":0},{"$f":"CRSDATA!O34","v":0},{"$f":"CRSDATA!U34","v":0},{"$f":"IF(CRSDATA!V34=\"\",\"\",CRSDATA!V34)","v":""},{"$f":"IF(CRSDATA!W34=\"\",\"\",CRSDATA!W34)","v":""},{"$f":"key_row(CRSDATA!X34,CRSDATA!Y34,CRSDATA!AL34,CRSDATA!AK34,CRSDATA!AJ34,CRSDATA!AM34,CRSDATA!P34,CRSDATA!V34)","v":""},{"$f":"CRSDATA!P34","v":0},{"$f":"CRSDATA!J34","v":0},{"$f":"CRSDATA!I34","v":0},null,{"$f":"IF(LEFT(CRSDATA!N34,2)=\"A0\",\"A00\",IF(LEFT(CRSDATA!N34,3)=\"B02\",\"B02\",IF(LEFT(CRSDATA!N34,3)=\"B03\",\"B03\",IF(CRSDATA!N34=\"B04\",\"C01\",IF(CRSDATA!N34=\"H01\",\"H00\",IF(OR(CRSDATA!N34=\"H02\",CRSDATA!N34=\"H03\",CRSDATA!N34=\"H04\",CRSDATA!N34=\"H05\",CRSDATA!N34=\"H06\"),\"I01\",IF(CRSDATA!N34=\"\",\"\",CRSDATA!N34)))))))","v":""},{"$f":"IF(AND(LEN(CRSDATA!M34)=4,LEFT(CRSDATA!M34,3)=\"110\"),1100,IF(AND(LEN(CRSDATA!M34)=4,LEFT(CRSDATA!M34,3)=\"422\"),422,CRSDATA!M34))","v":0},{"$f":"IF(CRSDATA!L34=22,\"FA04\",\"\")","v":""},{"$f":"IF(CRSDATA!K34=8,\"FC02\",\"\")","v":""},{"$f":"_xlfn.IFS(OR(P34=\"A00\",P34=\"E01\",P34=\"F01\",AND(P34=\"\",A34<>0),Q34=510,Q34=520,AF34=60),1,P34=\"G01\",IF(AF34=10,21,22),OR(M34=41203,M34=41204),22,OR(AND(OR(P34=\"B02\",P34=\"B03\"),M34=41310),OR(P34=\"E02\",P34=\"I01\")),21,AND(OR(P34=\"B01\",P34=\"B03\",P34=\"C01\"),M34<>41310),IF(VLOOKUP(F34,recipient_country!AB:AD,3,FALSE)=10024,\"\",1),AND(P34=\"B02\",M34<>41310),IF(VLOOKUP(M34,channel_codes!J:P,7,FALSE)=0,\"\",VLOOKUP(M34,channel_codes!J:P,7,FALSE)),ISNUMBER(MATCH(P34,{\"D01\",\"D02\"},0)),IF(VLOOKUP(M34,channel_codes!J:P,7,FALSE)=1,1,IF(VLOOKUP(F34,recipient_country!AB:AD,3,FALSE)=10024,\"\",1)),OR(P34=\"H01\",AND(OR(ISNUMBER(SEARCH(\"41010\", L34)),ISNUMBER(SEARCH(\"41020\", L34)),ISNUMBER(SEARCH(\"41030\", L34)),ISNUMBER(SEARCH(\"41040\", L34)),ISNUMBER(SEARCH(\"41081\", L34))),F34=998)),22,F34=998,22,TRUE,\"\")","v":""},{"$f":"CRSDATA!AN34","v":0},{"$f":"CRSDATA!AO34","v":0},{"$f":"CRSDATA!AQ34","v":0},{"$f":"CRSDATA!AS34","v":0},{"$f":"CRSDATA!BB34","v":0},null,"",{"$f":"IF(AND(AND(CRSDATA!C34<>\"\",CRSDATA!BK34<>\"\"),OR(CRSDATA!N34=421,CRSDATA!N34=422,CRSDATA!N34=4221,CRSDATA!N34=4222,CRSDATA!N34=423,CRSDATA!N34=424,CRSDATA!N34=425,CRSDATA!N34=431,CRSDATA!N34=433,CRSDATA!N34=434)),DATEDIF(CRSDATA!C34,CRSDATA!BK34,\"m\"),\"\")","v":""},{"$f":"CRSDATA!BA34","v":0},{"$f":"CRSDATA!BC34","v":0},{"$f":"IF(CRSDATA!BT34=\"\",\"\",CRSDATA!BT34)","v":""},{"$f":"CRSDATA!L34","v":0}]
[{"$f":"CRSDATA!A35","v":0},{"$f":"CRSDATA!C35","v":0},{"$f":"CRSDATA!D35","v":0},{"$f":"CRSDATA!F35","v":0},{"$f":"CRSDATA!E35","v":0},{"$f":"IF(CRSDATA!H35=3000,998,CRSDATA!H35)","v":0},{"$f":"CRSDATA!O35","v":0},{"$f":"CRSDATA!U35","v":0},{"$f":"IF(CRSDATA!V35=\"\",\"\",CRSDATA!V35)","v":""},{"$f":"IF(CRSDATA!W35=\"\",\"\",CRSDATA!W35)","v":""},{"$f":"key_row(CRSDATA!X35,CRSDATA!Y35,CRSDATA!AL35,CRSDATA!AK35,CRSDATA!AJ35,CRSDATA!AM35,CRSDATA!P35,CRSDATA!V35)","v":""},{"$f":"CRSDATA!P35","v":0},{"$f":"CRSDATA!J35","v":0},{"$f":"CRSDATA!I35","v":0},null,{"$f":"IF(LEFT(CRSDATA!N35,2)=\"A0\",\"A00\",IF(LEFT(CRSDATA!N35,3)=\"B02\",\"B02\",IF(LEFT(CRSDATA!N35,3)=\"B03\",\"B03\",IF(CRSDATA!N35=\"B04\",\"C01\",IF(CRSDATA!N35=\"H01\",\"H00\",IF(OR(CRSDATA!N35=\"H02\",CRSDATA!N35=\"H03\",CRSDATA!N35=\"H04\",CRSDATA!N35=\"H05\",CRSDATA!N35=\"H06\"),\"I01\",IF(CRSDATA!N35=\"\",\"\",CRSDATA!N35)))))))","v":""},{"$f":"IF(AND(LEN(CRSDATA!M35)=4,LEFT(CRSDATA!M35,3)=\"110\"),1100,IF(AND(LEN(CRSDATA!M35)=4,LEFT(CRSDATA!M35,3)=\"422\"),422,CRSDATA!M35))","v":0},{"$f":"IF(CRSDATA!L35=22,\"FA04\",\"\")","v":""},{"$f":"IF(CRSDATA!K35=8,\"FC02\",\"\")","v":""},{"$f":"_xlfn.IFS(OR(P35=\"A00\",P35=\"E01\",P35=\"F01\",AND(P35=\"\",A35<>0),Q35=510,Q35=520,AF35=60),1,P35=\"G01\",IF(AF35=10,21,22),OR(M35=41203,M35=41204),22,OR(AND(OR(P35=\"B02\",P35=\"B03\"),M35=41310),OR(P35=\"E02\",P35=\"I01\")),21,AND(OR(P35=\"B01\",P35=\"B03\",P35=\"C01\"),M35<>41310),IF(VLOOKUP(F35,recipient_country!AB:AD,3,FALSE)=10024,\"\",1),AND(P35=\"B02\",M35<>41310),IF(VLOOKUP(M35,channel_codes!J:P,7,FALSE)=0,\"\",VLOOKUP(M35,channel_codes!J:P,7,FALSE)),ISNUMBER(MATCH(P35,{\"D01\",\"D02\"},0)),IF(VLOOKUP(M35,channel_codes!J:P,7,FALSE)=1,1,IF(VLOOKUP(F35,recipient_country!AB:AD,3,FALSE)=10024,\"\",1)),OR(P35=\"H01\",AND(OR(ISNUMBER(SEARCH(\"41010\", L35)),ISNUMBER(SEARCH(\"41020\", L35)),ISNUMBER(SEARCH(\"41030\", L35)),ISNUMBER(SEARCH(\"41040\", L35)),ISNUMBER(SEARCH(\"41081\", L35))),F35=998)),22,F35=998,22,TRUE,\"\")","v":""},{"$f":"CRSDATA!AN35","v":0},{"$f":"CRSDATA!AO35","v":0},{"$f":"CRSDATA!AQ35","v":0},{"$f":"CRSDATA!AS35","v":0},{"$f":"CRSDATA!BB35","v":0},null,"",{"$f":"IF(AND(AND(CRSDATA!C35<>\"\",CRSDATA!BK35<>\"\"),OR(CRSDATA!N35=421,CRSDATA!N35=422,CRSDATA!N35=4221,CRSDATA!N35=4222,CRSDATA!N35=423,CRSDATA!N35=424,CRSDATA!N35=425,CRSDATA!N35=431,CRSDATA!N35=433,CRSDATA!N35=434)),DATEDIF(CRSDATA!C35,CRSDATA!BK35,\"m\"),\"\")","v":""},{"$f":"CRSDATA!BA35","v":0},{"$f":"CRSDATA!BC35","v":0},{"$f":"IF(CRSDATA!BT35=\"\",\"\",CRSDATA!BT35)","v":""},{"$f":"CRSDATA!L35","v":0}]
[{"$f":"CRSDATA!A36","v":0},{"$f":"CRSDATA!C36","v":0},{"$f":"CRSDATA!D36","v":0},{"$f":"CRSDATA!F36","v":0},{"$f":"CRSDATA!E36","v":0},{"$f":"IF(CRSDATA!H36=3000,998,CRSDATA!H36)","v":0},{"$f":"CRSDATA!O36","v":0},{"$f":"CRSDATA!U36","v":0},{"$f":"IF(CRSDATA!V36=\"\",\"\",CRSDATA!V36)","v":""},{"$f":"IF(CRSDATA!W36=\"\",\"\",CRSDATA!W36)","v":""},{"$f":"key_row(CRSDATA!X36,CRSDATA!Y36,CRSDATA!AL36,CRSDATA!AK36,CRSDATA!AJ36,CRSDATA!AM36,CRSDATA!P36,CRSDATA!V36)","v":""},{"$f":"CRSDATA!P36","v":0},{"$f":"CRSDATA!J36","v":0},{"$f":"CRSDATA!I36","v":0},null,{"$f":"IF(LEFT(CRSDATA!N36,2)=\"A0\",\"A00\",IF(LEFT(CRSDATA!N36,3)=\"B02\",\"B02\",IF(LEFT(CRSDATA!N36,3)=\"B03\",\"B03\",IF(CRSDATA!N36=\"B04\",\"C01\",IF(CRSDATA!N36=\"H01\",\"H00\",IF(OR(CRSDATA!N36=\"H02\",CRSDATA!N36=\"H03\",CRSDATA!N36=\"H04\",CRSDATA!N36=\"H05\",CRSDATA!N36=\"H06\"),\"I01\",IF(CRSDATA!N36=\"\",\"\",CRSDATA!N36)))))))","v":""},{"$f":"IF(AND(LEN(CRSDATA!M36)=4,LEFT(CRSDATA!M36,3)=\"110\"),1100,IF(AND(LEN(CRSDATA!M36)=4,LEFT(CRSDATA!M36,3)=\"422\"),422,CRSDATA!M36))","v":0},{"$f":"IF(CRSDATA!L36=22,\"FA04\",\"\")","v":""},{"$f":"IF(CRSDATA!K36=8,\"FC02\",\"\")","v":""},{"$f":"_xlfn.IFS(OR(P36=\"A00\",P36=\"E01\",P36=\"F01\",AND(P36=\"\",A36<>0),Q36=510,Q36=520,AF36=60),1,P36=\"G01\",IF(AF36=10,21,22),OR(M36=41203,M36=41204),22,OR(AND(OR(P36=\"B02\",P36=\"B03\"),M36=41310),OR(P36=\"E02\",P36=\"I01\")),21,AND(OR(P36=\"B01\",P36=\"B03\",P36=\"C01\"),M36<>41310),IF(VLOOKUP(F36,recipient_country!AB:AD,3,FALSE)=10024,\"\",1),AND(P36=\"B02\",M36<>41310),IF(VLOOKUP(M36,channel_codes!J:P,7,FALSE)=0,\"\",VLOOKUP(M36,channel_codes!J:P,7,FALSE)),ISNUMBER(MATCH(P36,{\"D01\",\"D02\"},0)),IF(VLOOKUP(M36,channel_codes!J:P,7,FALSE)=1,1,IF(VLOOKUP(F36,recipient_country!AB:AD,3,FALSE)=10024,\"\",1)),OR(P36=\"H01\",AND(OR(ISNUMBER(SEARCH(\"41010\", L36)),ISNUMBER(SEARCH(\"41020\", L36)),ISNUMBER(SEARCH(\"41030\", L36)),ISNUMBER(SEARCH(\"41040\", L36)),ISNUMBER(SEARCH(\"41081\", L36))),F36=998)),22,F36=998,22,TRUE,\"\")","v":""},{"$f":"CRSDATA!AN36","v":0},{"$f":"CRSDATA!AO36","v":0},{"$f":"CRSDATA!AQ36","v":0},{"$f":"CRSDATA!AS36","v":0},{"$f":"CRSDATA!BB36","v":0},null,"",{"$f":"IF(AND(AND(CRSDATA!C36<>\"\",CRSDATA!BK36<>\"\"),OR(CRSDATA!N36=421,CRSDATA!N36=422,CRSDATA!N36=4221,CRSDATA!N36=4222,CRSDATA!N36=423,CRSDATA!N36=424,CRSDATA!N36=425,CRSDATA!N36=431,CRSDATA!N36=433,CRSDATA!N36=434)),DATEDIF(CRSDATA!C36,CRSDATA!BK36,\"m\"),\"\")","v":""},{"$f":"CRSDATA!BA36","v":0},{"$f":"CRSDATA!BC36","v":0},{"$f":"IF(CRSDATA!BT36=\"\",\"\",CRSDATA!BT36)","v":""},{"$f":"CRSDATA!L36","v":0}]
[{"$f":"CRSDATA!A37","v":0},{"$f":"CRSDATA!C37","v":0},{"$f":"CRSDATA!D37","v":0},{"$f":"CRSDATA!F37","v":0},{"$f":"CRSDATA!E37","v":0},{"$f":"IF(CRSDATA!H37=3000,998,CRSDATA!H37)","v":0},{"$f":"CRSDATA!O37","v":0},{"$f":"CRSDATA!U37","v":0},{"$f":"IF(CRSDATA!V37=\"\",\"\",CRSDATA!V37)","v":""},{"$f":"IF(CRSDATA!W37=\"\",\"\",CRSDATA!W37)","v":""},{"$f":"key_row(CRSDATA!X37,CRSDATA!Y37,CRSDATA!AL37,CRSDATA!AK37,CRSDATA!AJ37,CRSDATA!AM37,CRSDATA!P37,CRSDATA!V37)","v":""},{"$f":"CRSDATA!P37","v":0},{"$f":"CRSDATA!J37","v":0},{"$f":"CRSDATA!I37","v":0},null,{"$f":"IF(LEFT(CRSDATA!N37,2)=\"A0\",\"A00\",IF(LEFT(CRSDATA!N37,3)=\"B02\",\"B02\",IF(LEFT(CRSDATA!N37,3)=\"B03\",\"B03\",IF(CRSDATA!N37=\"B04\",\"C01\",IF(CRSDATA!N37=\"H01\",\"H00\",IF(OR(CRSDATA!N37=\"H02\",CRSDATA!N37=\"H03\",CRSDATA!N37=\"H04\",CRSDATA!N37=\"H05\",CRSDATA!N37=\"H06\"),\"I01\",IF(CRSDATA!N37=\"\",\"\",CRSDATA!N37)))))))","v":""},{"$f":"IF(AND(LEN(CRSDATA!M37)=4,LEFT(CRSDATA!M37,3)=\"110\"),1100,IF(AND(LEN(CRSDATA!M37)=4,LEFT(CRSDATA!M37,3)=\"422\"),422,CRSDATA!M37))","v":0},{"$f":"IF(CRSDATA!L37=22,\"FA04\",\"\")","v":""},{"$f":"IF(CRSDATA!K37=8,\"FC02\",\"\")","v":""},{"$f":"_xlfn.IFS(OR(P37=\"A00\",P37=\"E01\",P37=\"F01\",AND(P37=\"\",A37<>0),Q37=510,Q37=520,AF37=60),1,P37=\"G01\",IF(AF37=10,21,22),OR(M37=41203,M37=41204),22,OR(AND(OR(P37=\"B02\",P37=\"B03\"),M37=41310),OR(P37=\"E02\",P37=\"I01\")),21,AND(OR(P37=\"B01\",P37=\"B03\",P37=\"C01\"),M37<>41310),IF(VLOOKUP(F37,recipient_country!AB:AD,3,FALSE)=10024,\"\",1),AND(P37=\"B02\",M37<>41310),IF(VLOOKUP(M37,channel_codes!J:P,7,FALSE)=0,\"\",VLOOKUP(M37,channel_codes!J:P,7,FALSE)),ISNUMBER(MATCH(P37,{\"D01\",\"D02\"},0)),IF(VLOOKUP(M37,channel_codes!J:P,7,FALSE)=1,1,IF(VLOOKUP(F37,recipient_country!AB:AD,3,FALSE)=10024,\"\",1)),OR(P37=\"H01\",AND(OR(ISNUMBER(SEARCH(\"41010\", L37)),ISNUMBER(SEARCH(\"41020\", L37)),ISNUMBER(SEARCH(\"41030\", L37)),ISNUMBER(SEARCH(\"41040\", L37)),ISNUMBER(SEARCH(\"41081\", L37))),F37=998)),22,F37=998,22,TRUE,\"\")","v":""},{"$f":"CRSDATA!AN37","v":0},{"$f":"CRSDATA!AO37","v":0},{"$f":"CRSDATA!AQ37","v":0},{"$f":"CRSDATA!AS37","v":0},{"$f":"CRSDATA!BB37","v":0},null,"",{"$f":"IF(AND(AND(CRSDATA!C37<>\"\",CRSDATA!BK37<>\"\"),OR(CRSDATA!N37=421,CRSDATA!N37=422,CRSDATA!N37=4221,CRSDATA!N37=4222,CRSDATA!N37=423,CRSDATA!N37=424,CRSDATA!N37=425,CRSDATA!N37=431,CRSDATA!N37=433,CRSDATA!N37=434)),DATEDIF(CRSDATA!C37,CRSDATA!BK37,\"m\"),\"\")","v":""},{"$f":"CRSDATA!BA37","v":0},{"$f":"CRSDATA!BC37","v":0},{"$f":"IF(CRSDATA!BT37=\"\",\"\",CRSDATA!BT37)","v":""},{"$f":"CRSDATA!L37","v":0}]
[{"$f":"CRSDATA!A38","v":0},{"$f":"CRSDATA!C38","v":0},{"$f":"CRSDATA!D38","v":0},{"$f":"CRSDATA!F38","v":0},{"$f":"CRSDATA!E38","v":0},{"$f":"IF(CRSDATA!H38=3000,998,CRSDATA!H38)","v":0},{"$f":"CRSDATA!O38","v":0},{"$f":"CRSDATA!U38","v":0},{"$f":"IF(CRSDATA!V38=\"\",\"\",CRSDATA!V38)","v":""},{"$f":"IF(CRSDATA!W38=\"\",\"\",CRSDATA!W38)","v":""},{"$f":"key_row(CRSDATA!X38,CRSDATA!Y38,CRSDATA!AL38,CRSDATA!AK38,CRSDATA!AJ38,CRSDATA!AM38,CRSDATA!P38,CRSDATA!V38)","v":""},{"$f":"CRSDATA!P38","v":0},{"$f":"CRSDATA!J38","v":0},{"$f":"CRSDATA!I38","v":0},null,{"$f":"IF(LEFT(CRSDATA!N38,2)=\"A0\",\"A00\",IF(LEFT(CRSDATA!N38,3)=\"B02\",\"B02\",IF(LEFT(CRSDATA!N38,3)=\"B03\",\"B03\",IF(CRSDATA!N38=\"B04\",\"C01\",IF(CRSDATA!N38=\"H01\",\"H00\",IF(OR(CRSDATA!N38=\"H02\",CRSDATA!N38=\"H03\",CRSDATA!N38=\"H04\",CRSDATA!N38=\"H05\",CRSDATA!N38=\"H06\"),\"I01\",IF(CRSDATA!N38=\"\",\"\",CRSDATA!N38)))))))","v":""},{"$f":"IF(AND(LEN(CRSDATA!M38)=4,LEFT(CRSDATA!M38,3)=\"110\"),1100,IF(AND(LEN(CRSDATA!M38)=4,LEFT(CRSDATA!M38,3)=\"422\"),422,CRSDATA!M38))","v":0},{"$f":"IF(CRSDATA!L38=22,\"FA04\",\"\")","v":""},{"$f":"IF(CRSDATA!K38=8,\"FC02\",\"\")","v":""},{"$f":"_xlfn.IFS(OR(P38=\"A00\",P38=\"E01\",P38=\"F01\",AND(P38=\"\",A38<>0),Q38=510,Q38=520,AF38=60),1,P38=\"G01\",IF(AF38=10,21,22),OR(M38=41203,M38=41204),22,OR(AND(OR(P38=\"B02\",P38=\"B03\"),M38=41310),OR(P38=\"E02\",P38=\"I01\")),21,AND(OR(P38=\"B01\",P38=\"B03\",P38=\"C01\"),M38<>41310),IF(VLOOKUP(F38,recipient_country!AB:AD,3,FALSE)=10024,\"\",1),AND(P38=\"B02\",M38<>41310),IF(VLOOKUP(M38,channel_codes!J:P,7,FALSE)=0,\"\",VLOOKUP(M38,channel_codes!J:P,7,FALSE)),ISNUMBER(MATCH(P38,{\"D01\",\"D02\"},0)),IF(VLOOKUP(M38,channel_codes!J:P,7,FALSE)=1,1,IF(VLOOKUP(F38,recipient_country!AB:AD,3,FALSE)=10024,\"\",1)),OR(P38=\"H01\",AND(OR(ISNUMBER(SEARCH(\"41010\", L38)),ISNUMBER(SEARCH(\"41020\", L38)),ISNUMBER(SEARCH(\"41030\", L38)),ISNUMBER(SEARCH(\"41040\", L38)),ISNUMBER(SEARCH(\"41081\", L38))),F38=998)),22,F38=998,22,TRUE,\"\")","v":""},{"$f":"CRSDATA!AN38","v":0},{"$f":"CRSDATA!AO38","v":0},{"$f":"CRSDATA!AQ38","v":0},{"$f":"CRSDATA!AS38","v":0},{"$f":"CRSDATA!BB38","v":0},null,"",{"$f":"IF(AND(AND(CRSDATA!C38<>\"\",CRSDATA!BK38<>\"\"),OR(CRSDATA!N38=421,CRSDATA!N38=422,CRSDATA!N38=4221,CRSDATA!N38=4222,CRSDATA!N38=423,CRSDATA!N38=424,CRSDATA!N38=425,CRSDATA!N38=431,CRSDATA!N38=433,CRSDATA!N38=434)),DATEDIF(CRSDATA!C38,CRSDATA!BK38,\"m\"),\"\")","v":""},{"$f":"CRSDATA!BA38","v":0},{"$f":"CRSDATA!BC38","v":0},{"$f":"IF(CRSDATA!BT38=\"\",\"\",CRSDATA!BT38)","v":""},{"$f":"CRSDATA!L38","v":0}]
[{"$f":"CRSDATA!A39","v":0},{"$f":"CRSDATA!C39","v":0},{"$f":"CRSDATA!D39","v":0},{"$f":"CRSDATA!F39","v":0},{"$f":"CRSDATA!E39","v":0},{"$f":"IF(CRSDATA!H39=3000,998,CRSDATA!H39)","v":0},{"$f":"CRSDATA!O39","v":0},{"$f":"CRSDATA!U39","v":0},{"$f":"IF(CRSDATA!V39=\"\",\"\",CRSDATA!V39)","v":""},{"$f":"IF(CRSDATA!W39=\"\",\"\",CRSDATA!W39)","v":""},{"$f":"key_row(CRSDATA!X39,CRSDATA!Y39,CRSDATA!AL39,CRSDATA!AK39,CRSDATA!AJ39,CRSDATA!AM39,CRSDATA!P39,CRSDATA!V39)","v":""},{"$f":"CRSDATA!P39","v":0},{"$f":"CRSDATA!J39","v":0},{"$f":"CRSDATA!I39","v":0},null,{"$f":"IF(LEFT(CRSDATA!N39,2)=\"A0\",\"A00\",IF(LEFT(CRSDATA!N39,3)=\"B02\",\"B02\",IF(LEFT(CRSDATA!N39,3)=\"B03\",\"B03\",IF(CRSDATA!N39=\"B04\",\"C01\",IF(CRSDATA!N39=\"H01\",\"H00\",IF(OR(CRSDATA!N39=\"H02\",CRSDATA!N39=\"H03\",CRSDATA!N39=\"H04\",CRSDATA!N39=\"H05\",CRSDATA!N39=\"H06\"),\"I01\",IF(CRSDATA!N39=\"\",\"\",CRSDATA!N39)))))))","v":""},{"$f":"IF(AND(LEN(CRSDATA!M39)=4,LEFT(CRSDATA!M39,3)=\"110\"),1100,IF(AND(LEN(CRSDATA!M39)=4,LEFT(CRSDATA!M39,3)=\"422\"),422,CRSDATA!M39))","v":0},{"$f":"IF(CRSDATA!L39=22,\"FA04\",\"\")","v":""},{"$f":"IF(CRSDATA!K39=8,\"FC02\",\"\")","v":""},{"$f":"_xlfn.IFS(OR(P39=\"A00\",P39=\"E01\",P39=\"F01\",AND(P39=\"\",A39<>0),Q39=510,Q39=520,AF39=60),1,P39=\"G01\",IF(AF39=10,21,22),OR(M39=41203,M39=41204),22,OR(AND(OR(P39=\"B02\",P39=\"B03\"),M39=41310),OR(P39=\"E02\",P39=\"I01\")),21,AND(OR(P39=\"B01\",P39=\"B03\",P39=\"C01\"),M39<>41310),IF(VLOOKUP(F39,recipient_country!AB:AD,3,FALSE)=10024,\"\",1),AND(P39=\"B02\",M39<>41310),IF(VLOOKUP(M39,channel_codes!J:P,7,FALSE)=0,\"\",VLOOKUP(M39,channel_codes!J:P,7,FALSE)),ISNUMBER(MATCH(P39,{\"D01\",\"D02\"},0)),IF(VLOOKUP(M39,channel_codes!J:P,7,FALSE)=1,1,IF(VLOOKUP(F39,recipient_country!AB:AD,3,FALSE)=10024,\"\",1)),OR(P39=\"H01\",AND(OR(ISNUMBER(SEARCH(\"41010\", L39)),ISNUMBER(SEARCH(\"41020\", L39)),ISNUMBER(SEARCH(\"41030\", L39)),ISNUMBER(SEARCH(\"41040\", L39)),ISNUMBER(SEARCH(\"41081\", L39))),F39=998)),22,F39=998,22,TRUE,\"\")","v":""},{"$f":"CRSDATA!AN39","v":0},{"$f":"CRSDATA!AO39","v":0},{"$f":"CRSDATA!AQ39","v":0},{"$f":"CRSDATA!AS39","v":0},{"$f":"CRSDATA!BB39","v":0},null,"",{"$f":"IF(AND(AND(CRSDATA!C39<>\"\",CRSDATA!BK39<>\"\"),OR(CRSDATA!N39=421,CRSDATA!N39=422,CRSDATA!N39=4221,CRSDATA!N39=4222,CRSDATA!N39=423,CRSDATA!N39=424,CRSDATA!N39=425,CRSDATA!N39=431,CRSDATA!N39=433,CRSDATA!N39=434)),DATEDIF(CRSDATA!C39,CRSDATA!BK39,\"m\"),\"\")","v":""},{"$f":"CRSDATA!BA39","v":0},{"$f":"CRSDATA!BC39","v":0},{"$f":"IF(CRSDATA!BT39=\"\",\"\",CRSDATA!BT39)","v":""},{"$f":"CRSDATA!L39","v":0}]
[{"$f":"CRSDATA!A40","v":0},{"$f":"CRSDATA!C40","v":0},{"$f":"CRSDATA!D40","v":0},{"$f":"CRSDATA!F40","v":0},{"$f":"CRSDATA!E40","v":0},{"$f":"IF(CRSDATA!H40=3000,998,CRSDATA!H40)","v":0},{"$f":"CRSDATA!O40","v":0},{"$f":"CRSDATA!U40","v":0},{"$f":"IF(CRSDATA!V40=\"\",\"\",CRSDATA!V40)","v":""},{"$f":"IF(CRSDATA!W40=\"\",\"\",CRSDATA!W40)","v":""},{"$f":"key_row(CRSDATA!X40,CRSDATA!Y40,CRSDATA!AL40,CRSDATA!AK40,CRSDATA!AJ40,CRSDATA!AM40,CRSDATA!P40,CRSDATA!V40)","v":""},{"$f":"CRSDATA!P40","v":0},{"$f":"CRSDATA!J40","v":0},{"$f":"CRSDATA!I40","v":0},null,{"$f":"IF(LEFT(CRSDATA!N40,2)=\"A0\",\"A00\",IF(LEFT(CRSDATA!N40,3)=\"B02\",\"B02\",IF(LEFT(CRSDATA!N40,3)=\"B03\",\"B03\",IF(CRSDATA!N40=\"B04\",\"C01\",IF(CRSDATA!N40=\"H01\",\"H00\",IF(OR(CRSDATA!N40=\"H02\",CRSDATA!N40=\"H03\",CRSDATA!N40=\"H04\",CRSDATA!N40=\"H05\",CRSDATA!N40=\"H06\"),\"I01\",IF(CRSDATA!N40=\"\",\"\",CRSDATA!N40)))))))","v":""},{"$f":"IF(AND(LEN(CRSDATA!M40)=4,LEFT(CRSDATA!M40,3)=\"110\"),1100,IF(AND(LEN(CRSDATA!M40)=4,LEFT(CRSDATA!M40,3)=\"422\"),422,CRSDATA!M40))","v":0},{"$f":"IF(CRSDATA!L40=22,\"FA04\",\"\")","v":""},{"$f":"IF(CRSDATA!K40=8,\"FC02\",\"\")","v":""},{"$f":"_xlfn.IFS(OR(P40=\"A00\",P40=\"E01\",P40=\"F01\",AND(P40=\"\",A40<>0),Q40=510,Q40=520,AF40=60),1,P40=\"G01\",IF(AF40=10,21,22),OR(M40=41203,M40=41204),22,OR(AND(OR(P40=\"B02\",P40=\"B03\"),M40=41310),OR(P40=\"E02\",P40=\"I01\")),21,AND(OR(P40=\"B01\",P40=\"B03\",P40=\"C01\"),M40<>41310),IF(VLOOKUP(F40,recipient_country!AB:AD,3,FALSE)=10024,\"\",1),AND(P40=\"B02\",M40<>41310),IF(VLOOKUP(M40,channel_codes!J:P,7,FALSE)=0,\"\",VLOOKUP(M40,channel_codes!J:P,7,FALSE)),ISNUMBER(MATCH(P40,{\"D01\",\"D02\"},0)),IF(VLOOKUP(M40,channel_codes!J:P,7,FALSE)=1,1,IF(VLOOKUP(F40,recipient_country!AB:AD,3,FALSE)=10024,\"\",1)),OR(P40=\"H01\",AND(OR(ISNUMBER(SEARCH(\"41010\", L40)),ISNUMBER(SEARCH(\"41020\", L40)),ISNUMBER(SEARCH(\"41030\", L40)),ISNUMBER(SEARCH(\"41040\", L40)),ISNUMBER(SEARCH(\"41081\", L40))),F40=998)),22,F40=998,22,TRUE,\"\")","v":""},{"$f":"CRSDATA!AN40","v":0},{"$f":"CRSDATA!AO40","v":0},{"$f":"CRSDATA!AQ40","v":0},{"$f":"CRSDATA!AS40","v":0},{"$f":"CRSDATA!BB40","v":0},null,"",{"$f":"IF(AND(AND(CRSDATA!C40<>\"\",CRSDATA!BK40<>\"\"),OR(CRSDATA!N40=421,CRSDATA!N40=422,CRSDATA!N40=4221,CRSDATA!N40=4222,CRSDATA!N40=423,CRSDATA!N40=424,CRSDATA!N40=425,CRSDATA!N40=431,CRSDATA!N40=433,CRSDATA!N40=434)),DATEDIF(CRSDATA!C40,CRSDATA!BK40,\"m\"),\"\")","v":""},{"$f":"CRSDATA!BA40","v":0},{"$f":"CRSDATA!BC40","v":0},{"$f":"IF(CRSDATA!BT40=\"\",\"\",CRSDATA!BT40)","v":""},{"$f":"CRSDATA!L40","v":0}]
[{"$f":"CRSDATA!A41","v":0},{"$f":"CRSDATA!C41","v":0},{"$f":"CRSDATA!D41","v":0},{"$f":"CRSDATA!F41","v":0},{"$f":"CRSDATA!E41","v":0},{"$f":"IF(CRSDATA!H41=3000,998,CRSDATA!H41)","v":0},{"$f":"CRSDATA!O41","v":0},{"$f":"CRSDATA!U41","v":0},{"$f":"IF(CRSDATA!V41=\"\",\"\",CRSDATA!V41)","v":""},{"$f":"IF(CRSDATA!W41=\"\",\"\",CRSDATA!W41)","v":""},{"$f":"key_row(CRSDATA!X41,CRSDATA!Y41,CRSDATA!AL41,CRSDATA!AK41,CRSDATA!AJ41,CRSDATA!AM41,CRSDATA!P41,CRSDATA!V41)","v":""},{"$f":"CRSDATA!P41","v":0},{"$f":"CRSDATA!J41","v":0},{"$f":"CRSDATA!I41","v":0},null,{"$f":"IF(LEFT(CRSDATA!N41,2)=\"A0\",\"A00\",IF(LEFT(CRSDATA!N41,3)=\"B02\",\"B02\",IF(LEFT(CRSDATA!N41,3)=\"B03\",\"B03\",IF(CRSDATA!N41=\"B04\",\"C01\",IF(CRSDATA!N41=\"H01\",\"H00\",IF(OR(CRSDATA!N41=\"H02\",CRSDATA!N41=\"H03\",CRSDATA!N41=\"H04\",CRSDATA!N41=\"H05\",CRSDATA!N41=\"H06\"),\"I01\",IF(CRSDATA!N41=\"\",\"\",CRSDATA!N41)))))))","v":""},{"$f":"IF(AND(LEN(CRSDATA!M41)=4,LEFT(CRSDATA!M41,3)=\"110\"),1100,IF(AND(LEN(CRSDATA!M41)=4,LEFT(CRSDATA!M41,3)=\"422\"),422,CRSDATA!M41))","v":0},{"$f":"IF(CRSDATA!L41=22,\"FA04\",\"\")","v":""},{"$f":"IF(CRSDATA!K41=8,\"FC02\",\"\")","v":""},{"$f":"_xlfn.IFS(OR(P41=\"A00\",P41=\"E01\",P41=\"F01\",AND(P41=\"\",A41<>0),Q41=510,Q41=520,AF41=60),1,P41=\"G01\",IF(AF41=10,21,22),OR(M41=41203,M41=41204),22,OR(AND(OR(P41=\"B02\",P41=\"B03\"),M41=41310),OR(P41=\"E02\",P41=\"I01\")),21,AND(OR(P41=\"B01\",P41=\"B03\",P41=\"C01\"),M41<>41310),IF(VLOOKUP(F41,recipient_country!AB:AD,3,FALSE)=10024,\"\",1),AND(P41=\"B02\",M41<>41310),IF(VLOOKUP(M41,channel_codes!J:P,7,FALSE)=0,\"\",VLOOKUP(M41,channel_codes!J:P,7,FALSE)),ISNUMBER(MATCH(P41,{\"D01\",\"D02\"},0)),IF(VLOOKUP(M41,channel_codes!J:P,7,FALSE)=1,1,IF(VLOOKUP(F41,recipient_country!AB:AD,3,FALSE)=10024,\"\",1)),OR(P41=\"H01\",AND(OR(ISNUMBER(SEARCH(\"41010\", L41)),ISNUMBER(SEARCH(\"41020\", L41)),ISNUMBER(SEARCH(\"41030\", L41)),ISNUMBER(SEARCH(\"41040\", L41)),ISNUMBER(SEARCH(\"41081\", L41))),F41=998)),22,F41=998,22,TRUE,\"\")","v":""},{"$f":"CRSDATA!AN41","v":0},{"$f":"CRSDATA!AO41","v":0},{"$f":"CRSDATA!AQ41","v":0},{"$f":"CRSDATA!AS41","v":0},{"$f":"CRSDATA!BB41","v":0},null,"",{"$f":"IF(AND(AND(CRSDATA!C41<>\"\",CRSDATA!BK41<>\"\"),OR(CRSDATA!N41=421,CRSDATA!N41=422,CRSDATA!N41=4221,CRSDATA!N41=4222,CRSDATA!N41=423,CRSDATA!N41=424,CRSDATA!N41=425,CRSDATA!N41=431,CRSDATA!N41=433,CRSDATA!N41=434)),DATEDIF(CRSDATA!C41,CRSDATA!BK41,\"m\"),\"\")","v":""},{"$f":"CRSDATA!BA41","v":0},{"$f":"CRSDATA!BC41","v":0},{"$f":"IF(CRSDATA!BT41=\"\",\"\",CRSDATA!BT41)","v":""},{"$f":"CRSDATA!L41","v":0}]
[{"$f":"CRSDATA!A42","v":0},{"$f":"CRSDATA!C42","v":0},{"$f":"CRSDATA!D42","v":0},{"$f":"CRSDATA!F42","v":0},{"$f":"CRSDATA!E42","v":0},{"$f":"IF(CRSDATA!H42=3000,998,CRSDATA!H42)","v":0},{"$f":"CRSDATA!O42","v":0},{"$f":"CRSDATA!U42","v":0},{"$f":"IF(CRSDATA!V42=\"\",\"\",CRSDATA!V42)","v":""},{"$f":"IF(CRSDATA!W42=\"\",\"\",CRSDATA!W42)","v":""},{"$f":"key_row(CRSDATA!X42,CRSDATA!Y42,CRSDATA!AL42,CRSDATA!AK42,CRSDATA!AJ42,CRSDATA!AM42,CRSDATA!P42,CRSDATA!V42)","v":""},{"$f":"CRSDATA!P42","v":0},{"$f":"CRSDATA!J42","v":0},{"$f":"CRSDATA!I42","v":0},null,{"$f":"IF(LEFT(CRSDATA!N42,2)=\"A0\",\"A00\",IF(LEFT(CRSDATA!N42,3)=\"B02\",\"B02\",IF(LEFT(CRSDATA!N42,3)=\"B03\",\"B03\",IF(CRSDATA!N42=\"B04\",\"C01\",IF(CRSDATA!N42=\"H01\",\"H00\",IF(OR(CRSDATA!N42=\"H02\",CRSDATA!N42=\"H03\",CRSDATA!N42=\"H04\",CRSDATA!N42=\"H05\",CRSDATA!N42=\"H06\"),\"I01\",IF(CRSDATA!N42=\"\",\"\",CRSDATA!N42)))))))","v":""},{"$f":"IF(AND(LEN(CRSDATA!M42)=4,LEFT(CRSDATA!M42,3)=\"110\"),1100,IF(AND(LEN(CRSDATA!M42)=4,LEFT(CRSDATA!M42,3)=\"422\"),422,CRSDATA!M42))","v":0},{"$f":"IF(CRSDATA!L42=22,\"FA04\",\"\")","v":""},{"$f":"IF(CRSDATA!K42=8,\"FC02\",\"\")","v":""},{"$f":"_xlfn.IFS(OR(P42=\"A00\",P42=\"E01\",P42=\"F01\",AND(P42=\"\",A42<>0),Q42=510,Q42=520,AF42=60),1,P42=\"G01\",IF(AF42=10,21,22),OR(M42=41203,M42=41204),22,OR(AND(OR(P42=\"B02\",P42=\"B03\"),M42=41310),OR(P42=\"E02\",P42=\"I01\")),21,AND(OR(P42=\"B01\",P42=\"B03\",P42=\"C01\"),M42<>41310),IF(VLOOKUP(F42,recipient_country!AB:AD,3,FALSE)=10024,\"\",1),AND(P42=\"B02\",M42<>41310),IF(VLOOKUP(M42,channel_codes!J:P,7,FALSE)=0,\"\",VLOOKUP(M42,channel_codes!J:P,7,FALSE)),ISNUMBER(MATCH(P42,{\"D01\",\"D02\"},0)),IF(VLOOKUP(M42,channel_codes!J:P,7,FALSE)=1,1,IF(VLOOKUP(F42,recipient_country!AB:AD,3,FALSE)=10024,\"\",1)),OR(P42=\"H01\",AND(OR(ISNUMBER(SEARCH(\"41010\", L42)),ISNUMBER(SEARCH(\"41020\", L42)),ISNUMBER(SEARCH(\"41030\", L42)),ISNUMBER(SEARCH(\"41040\", L42)),ISNUMBER(SEARCH(\"41081\", L42))),F42=998)),22,F42=998,22,TRUE,\"\")","v":""},{"$f":"CRSDATA!AN42","v":0},{"$f":"CRSDATA!AO42","v":0},{"$f":"CRSDATA!AQ42","v":0},{"$f":"CRSDATA!AS42","v":0},{"$f":"CRSDATA!BB42","v":0},null,"",{"$f":"IF(AND(AND(CRSDATA!C42<>\"\",CRSDATA!BK42<>\"\"),OR(CRSDATA!N42=421,CRSDATA!N42=422,CRSDATA!N42=4221,CRSDATA!N42=4222,CRSDATA!N42=423,CRSDATA!N42=424,CRSDATA!N42=425,CRSDATA!N42=431,CRSDATA!N42=433,CRSDATA!N42=434)),DATEDIF(CRSDATA!C42,CRSDATA!BK42,\"m\"),\"\")","v":""},{"$f":"CRSDATA!BA42","v":0},{"$f":"CRSDATA!BC42","v":0},{"$f":"IF(CRSDATA!BT42=\"\",\"\",CRSDATA!BT42)","v":""},{"$f":"CRSDATA!L42","v":0}]
[{"$f":"CRSDATA!A43","v":0},{"$f":"CRSDATA!C43","v":0},{"$f":"CRSDATA!D43","v":0},{"$f":"CRSDATA!F43","v":0},{"$f":"CRSDATA!E43","v":0},{"$f":"IF(CRSDATA!H43=3000,998,CRSDATA!H43)","v":0},{"$f":"CRSDATA!O43","v":0},{"$f":"CRSDATA!U43","v":0},{"$f":"IF(CRSDATA!V43=\"\",\"\",CRSDATA!V43)","v":""},{"$f":"IF(CRSDATA!W43=\"\",\"\",CRSDATA!W43)","v":""},{"$f":"key_row(CRSDATA!X43,CRSDATA!Y43,CRSDATA!AL43,CRSDATA!AK43,CRSDATA!AJ43,CRSDATA!AM43,CRSDATA!P43,CRSDATA!V43)","v":""},{"$f":"CRSDATA!P43","v":0},{"$f":"CRSDATA!J43","v":0},{"$f":"CRSDATA!I43","v":0},null,{"$f":"IF(LEFT(CRSDATA!N43,2)=\"A0\",\"A00\",IF(LEFT(CRSDATA!N43,3)=\"B02\",\"B02\",IF(LEFT(CRSDATA!N43,3)=\"B03\",\"B03\",IF(CRSDATA!N43=\"B04\",\"C01\",IF(CRSDATA!N43=\"H01\",\"H00\",IF(OR(CRSDATA!N43=\"H02\",CRSDATA!N43=\"H03\",CRSDATA!N43=\"H04\",CRSDATA!N43=\"H05\",CRSDATA!N43=\"H06\"),\"I01\",IF(CRSDATA!N43=\"\",\"\",CRSDATA!N43)))))))","v":""},{"$f":"IF(AND(LEN(CRSDATA!M43)=4,LEFT(CRSDATA!M43,3)=\"110\"),1100,IF(AND(LEN(CRSDATA!M43)=4,LEFT(CRSDATA!M43,3)=\"422\"),422,CRSDATA!M43))","v":0},{"$f":"IF(CRSDATA!L43=22,\"FA04\",\"\")","v":""},{"$f":"IF(CRSDATA!K43=8,\"FC02\",\"\")","v":""},{"$f":"_xlfn.IFS(OR(P43=\"A00\",P43=\"E01\",P43=\"F01\",AND(P43=\"\",A43<>0),Q43=510,Q43=520,AF43=60),1,P43=\"G01\",IF(AF43=10,21,22),OR(M43=41203,M43=41204),22,OR(AND(OR(P43=\"B02\",P43=\"B03\"),M43=41310),OR(P43=\"E02\",P43=\"I01\")),21,AND(OR(P43=\"B01\",P43=\"B03\",P43=\"C01\"),M43<>41310),IF(VLOOKUP(F43,recipient_country!AB:AD,3,FALSE)=10024,\"\",1),AND(P43=\"B02\",M43<>41310),IF(VLOOKUP(M43,channel_codes!J:P,7,FALSE)=0,\"\",VLOOKUP(M43,channel_codes!J:P,7,FALSE)),ISNUMBER(MATCH(P43,{\"D01\",\"D02\"},0)),IF(VLOOKUP(M43,channel_codes!J:P,7,FALSE)=1,1,IF(VLOOKUP(F43,recipient_country!AB:AD,3,FALSE)=10024,\"\",1)),OR(P43=\"H01\",AND(OR(ISNUMBER(SEARCH(\"41010\", L43)),ISNUMBER(SEARCH(\"41020\", L43)),ISNUMBER(SEARCH(\"41030\", L43)),ISNUMBER(SEARCH(\"41040\", L43)),ISNUMBER(SEARCH(\"41081\", L43))),F43=998)),22,F43=998,22,TRUE,\"\")","v":""},{"$f":"CRSDATA!AN43","v":0},{"$f":"CRSDATA!AO43","v":0},{"$f":"CRSDATA!AQ43","v":0},{"$f":"CRSDATA!AS43","v":0},{"$f":"CRSDATA!BB43","v":0},null,"",{"$f":"IF(AND(AND(CRSDATA!C43<>\"\",CRSDATA!BK43<>\"\"),OR(CRSDATA!N43=421,CRSDATA!N43=422,CRSDATA!N43=4221,CRSDATA!N43=4222,CRSDATA!N43=423,CRSDATA!N43=424,CRSDATA!N43=425,CRSDATA!N43=431,CRSDATA!N43=433,CRSDATA!N43=434)),DATEDIF(CRSDATA!C43,CRSDATA!BK43,\"m\"),\"\")","v":""},{"$f":"CRSDATA!BA43","v":0},{"$f":"CRSDATA!BC43","v":0},{"$f":"IF(CRSDATA!BT43=\"\",\"\",CRSDATA!BT43)","v":""},{"$f":"CRSDATA!L43","v":0}]
[{"$f":"CRSDATA!A44","v":0},{"$f":"CRSDATA!C44","v":0},{"$f":"CRSDATA!D44","v":0},{"$f":"CRSDATA!F44","v":0},{"$f":"CRSDATA!E44","v":0},{"$f":"IF(CRSDATA!H44=3000,998,CRSDATA!H44)","v":0},{"$f":"CRSDATA!O44","v":0},{"$f":"CRSDATA!U44","v":0},{"$f":"IF(CRSDATA!V44=\"\",\"\",CRSDATA!V44)","v":""},{"$f":"IF(CRSDATA!W44=\"\",\"\",CRSDATA!W44)","v":""},{"$f":"key_row(CRSDATA!X44,CRSDATA!Y44,CRSDATA!AL44,CRSDATA!AK44,CRSDATA!AJ44,CRSDATA!AM44,CRSDATA!P44,CRSDATA!V44)","v":""},{"$f":"CRSDATA!P44","v":0},{"$f":"CRSDATA!J44","v":0},{"$f":"CRSDATA!I44","v":0},null,{"$f":"IF(LEFT(CRSDATA!N44,2)=\"A0\",\"A00\",IF(LEFT(CRSDATA!N44,3)=\"B02\",\"B02\",IF(LEFT(CRSDATA!N44,3)=\"B03\",\"B03\",IF(CRSDATA!N44=\"B04\",\"C01\",IF(CRSDATA!N44=\"H01\",\"H00\",IF(OR(CRSDATA!N44=\"H02\",CRSDATA!N44=\"H03\",CRSDATA!N44=\"H04\",CRSDATA!N44=\"H05\",CRSDATA!N44=\"H06\"),\"I01\",IF(CRSDATA!N44=\"\",\"\",CRSDATA!N44)))))))","v":""},{"$f":"IF(AND(LEN(CRSDATA!M44)=4,LEFT(CRSDATA!M44,3)=\"110\"),1100,IF(AND(LEN(CRSDATA!M44)=4,LEFT(CRSDATA!M44,3)=\"422\"),422,CRSDATA!M44))","v":0},{"$f":"IF(CRSDATA!L44=22,\"FA04\",\"\")","v":""},{"$f":"IF(CRSDATA!K44=8,\"FC02\",\"\")","v":""},{"$f":"_xlfn.IFS(OR(P44=\"A00\",P44=\"E01\",P44=\"F01\",AND(P44=\"\",A44<>0),Q44=510,Q44=520,AF44=60),1,P44=\"G01\",IF(AF44=10,21,22),OR(M44=41203,M44=41204),22,OR(AND(OR(P44=\"B02\",P44=\"B03\"),M44=41310),OR(P44=\"E02\",P44=\"I01\")),21,AND(OR(P44=\"B01\",P44=\"B03\",P44=\"C01\"),M44<>41310),IF(VLOOKUP(F44,recipient_country!AB:AD,3,FALSE)=10024,\"\",1),AND(P44=\"B02\",M44<>41310),IF(VLOOKUP(M44,channel_codes!J:P,7,FALSE)=0,\"\",VLOOKUP(M44,channel_codes!J:P,7,FALSE)),ISNUMBER(MATCH(P44,{\"D01\",\"D02\"},0)),IF(VLOOKUP(M44,channel_codes!J:P,7,FALSE)=1,1,IF(VLOOKUP(F44,recipient_country!AB:AD,3,FALSE)=10024,\"\",1)),OR(P44=\"H01\",AND(OR(ISNUMBER(SEARCH(\"41010\", L44)),ISNUMBER(SEARCH(\"41020\", L44)),ISNUMBER(SEARCH(\"41030\", L44)),ISNUMBER(SEARCH(\"41040\", L44)),ISNUMBER(SEARCH(\"41081\", L44))),F44=998)),22,F44=998,22,TRUE,\"\")","v":""},{"$f":"CRSDATA!AN44","v":0},{"$f":"CRSDATA!AO44","v":0},{"$f":"CRSDATA!AQ44","v":0},{"$f":"CRSDATA!AS44","v":0},{"$f":"CRSDATA!BB44","v":0},null,"",{"$f":"IF(AND(AND(CRSDATA!C44<>\"\",CRSDATA!BK44<>\"\"),OR(CRSDATA!N44=421,CRSDATA!N44=422,CRSDATA!N44=4221,CRSDATA!N44=4222,CRSDATA!N44=423,CRSDATA!N44=424,CRSDATA!N44=425,CRSDATA!N44=431,CRSDATA!N44=433,CRSDATA!N44=434)),DATEDIF(CRSDATA!C44,CRSDATA!BK44,\"m\"),\"\")","v":""},{"$f":"CRSDATA!BA44","v":0},{"$f":"CRSDATA!BC44","v":0},{"$f":"IF(CRSDATA!BT44=\"\",\"\",CRSDATA!BT44)","v":""},{"$f":"CRSDATA!L44","v":0}]
[{"$f":"CRSDATA!A45","v":0},{"$f":"CRSDATA!C45","v":0},{"$f":"CRSDATA!D45","v":0},{"$f":"CRSDATA!F45","v":0},{"$f":"CRSDATA!E45","v":0},{"$f":"IF(CRSDATA!H45=3000,998,CRSDATA!H45)","v":0},{"$f":"CRSDATA!O45","v":0},{"$f":"CRSDATA!U45","v":0},{"$f":"IF(CRSDATA!V45=\"\",\"\",CRSDATA!V45)","v":""},{"$f":"IF(CRSDATA!W45=\"\",\"\",CRSDATA!W45)","v":""},{"$f":"key_row(CRSDATA!X45,CRSDATA!Y45,CRSDATA!AL45,CRSDATA!AK45,CRSDATA!AJ45,CRSDATA!AM45,CRSDATA!P45,CRSDATA!V45)","v":""},{"$f":"CRSDATA!P45","v":0},{"$f":"CRSDATA!J45","v":0},{"$f":"CRSDATA!I45","v":0},null,{"$f":"IF(LEFT(CRSDATA!N45,2)=\"A0\",\"A00\",IF(LEFT(CRSDATA!N45,3)=\"B02\",\"B02\",IF(LEFT(CRSDATA!N45,3)=\"B03\",\"B03\",IF(CRSDATA!N45=\"B04\",\"C01\",IF(CRSDATA!N45=\"H01\",\"H00\",IF(OR(CRSDATA!N45=\"H02\",CRSDATA!N45=\"H03\",CRSDATA!N45=\"H04\",CRSDATA!N45=\"H05\",CRSDATA!N45=\"H06\"),\"I01\",IF(CRSDATA!N45=\"\",\"\",CRSDATA!N45)))))))","v":""},{"$f":"IF(AND(LEN(CRSDATA!M45)=4,LEFT(CRSDATA!M45,3)=\"110\"),1100,IF(AND(LEN(CRSDATA!M45)=4,LEFT(CRSDATA!M45,3)=\"422\"),422,CRSDATA!M45))","v":0},{"$f":"IF(CRSDATA!L45=22,\"FA04\",\"\")","v":""},{"$f":"IF(CRSDATA!K45=8,\"FC02\",\"\")","v":""},{"$f":"_xlfn.IFS(OR(P45=\"A00\",P45=\"E01\",P45=\"F01\",AND(P45=\"\",A45<>0),Q45=510,Q45=520,AF45=60),1,P45=\"G01\",IF(AF45=10,21,22),OR(M45=41203,M45=41204),22,OR(AND(OR(P45=\"B02\",P45=\"B03\"),M45=41310),OR(P45=\"E02\",P45=\"I01\")),21,AND(OR(P45=\"B01\",P45=\"B03\",P45=\"C01\"),M45<>41310),IF(VLOOKUP(F45,recipient_country!AB:AD,3,FALSE)=10024,\"\",1),AND(P45=\"B02\",M45<>41310),IF(VLOOKUP(M45,channel_codes!J:P,7,FALSE)=0,\"\",VLOOKUP(M45,channel_codes!J:P,7,FALSE)),ISNUMBER(MATCH(P45,{\"D01\",\"D02\"},0)),IF(VLOOKUP(M45,channel_codes!J:P,7,FALSE)=1,1,IF(VLOOKUP(F45,recipient_country!AB:AD,3,FALSE)=10024,\"\",1)),OR(P45=\"H01\",AND(OR(ISNUMBER(SEARCH(\"41010\", L45)),ISNUMBER(SEARCH(\"41020\", L45)),ISNUMBER(SEARCH(\"41030\", L45)),ISNUMBER(SEARCH(\"41040\", L45)),ISNUMBER(SEARCH(\"41081\", L45))),F45=998)),22,F45=998,22,TRUE,\"\")","v":""},{"$f":"CRSDATA!AN45","v":0},{"$f":"CRSDATA!AO45","v":0},{"$f":"CRSDATA!AQ45","v":0},{"$f":"CRSDATA!AS45","v":0},{"$f":"CRSDATA!BB45","v":0},null,"",{"$f":"IF(AND(AND(CRSDATA!C45<>\"\",CRSDATA!BK45<>\"\"),OR(CRSDATA!N45=421,CRSDATA!N45=422,CRSDATA!N45=4221,CRSDATA!N45=4222,CRSDATA!N45=423,CRSDATA!N45=424,CRSDATA!N45=425,CRSDATA!N45=431,CRSDATA!N45=433,CRSDATA!N45=434)),DATEDIF(CRSDATA!C45,CRSDATA!BK45,\"m\"),\"\")","v":""},{"$f":"CRSDATA!BA45","v":0},{"$f":"CRSDATA!BC45","v":0},{"$f":"IF(CRSDATA!BT45=\"\",\"\",CRSDATA!BT45)","v":""},{"$f":"CRSDATA!L45","v":0}]
[{"$f":"CRSDATA!A46","v":0},{"$f":"CRSDATA!C46","v":0},{"$f":"CRSDATA!D46","v":0},{"$f":"CRSDATA!F46","v":0},{"$f":"CRSDATA!E46","v":0},{"$f":"IF(CRSDATA!H46=3000,998,CRSDATA!H46)","v":0},{"$f":"CRSDATA!O46","v":0},{"$f":"CRSDATA!U46","v":0},{"$f":"IF(CRSDATA!V46=\"\",\"\",CRSDATA!V46)","v":""},{"$f":"IF(CRSDATA!W46=\"\",\"\",CRSDATA!W46)","v":""},{"$f":"key_row(CRSDATA!X46,CRSDATA!Y46,CRSDATA!AL46,CRSDATA!AK46,CRSDATA!AJ46,CRSDATA!AM46,CRSDATA!P46,CRSDATA!V46)","v":""},{"$f":"CRSDATA!P46","v":0},{"$f":"CRSDATA!J46","v":0},{"$f":"CRSDATA!I46","v":0},null,{"$f":"IF(LEFT(CRSDATA!N46,2)=\"A0\",\"A00\",IF(LEFT(CRSDATA!N46,3)=\"B02\",\"B02\",IF(LEFT(CRSDATA!N46,3)=\"B03\",\"B03\",IF(CRSDATA!N46=\"B04\",\"C01\",IF(CRSDATA!N46=\"H01\",\"H00\",IF(OR(CRSDATA!N46=\"H02\",CRSDATA!N46=\"H03\",CRSDATA!N46=\"H04\",CRSDATA!N46=\"H05\",CRSDATA!N46=\"H06\"),\"I01\",IF(CRSDATA!N46=\"\",\"\",CRSDATA!N46)))))))","v":""},{"$f":"IF(AND(LEN(CRSDATA!M46)=4,LEFT(CRSDATA!M46,3)=\"110\"),1100,IF(AND(LEN(CRSDATA!M46)=4,LEFT(CRSDATA!M46,3)=\"422\"),422,CRSDATA!M46))","v":0},{"$f":"IF(CRSDATA!L46=22,\"FA04\",\"\")","v":""},{"$f":"IF(CRSDATA!K46=8,\"FC02\",\"\")","v":""},{"$f":"_xlfn.IFS(OR(P46=\"A00\",P46=\"E01\",P46=\"F01\",AND(P46=\"\",A46<>0),Q46=510,Q46=520,AF46=60),1,P46=\"G01\",IF(AF46=10,21,22),OR(M46=41203,M46=41204),22,OR(AND(OR(P46=\"B02\",P46=\"B03\"),M46=41310),OR(P46=\"E02\",P46=\"I01\")),21,AND(OR(P46=\"B01\",P46=\"B03\",P46=\"C01\"),M46<>41310),IF(VLOOKUP(F46,recipient_country!AB:AD,3,FALSE)=10024,\"\",1),AND(P46=\"B02\",M46<>41310),IF(VLOOKUP(M46,channel_codes!J:P,7,FALSE)=0,\"\",VLOOKUP(M46,channel_codes!J:P,7,FALSE)),ISNUMBER(MATCH(P46,{\"D01\",\"D02\"},0)),IF(VLOOKUP(M46,channel_codes!J:P,7,FALSE)=1,1,IF(VLOOKUP(F46,recipient_country!AB:AD,3,FALSE)=10024,\"\",1)),OR(P46=\"H01\",AND(OR(ISNUMBER(SEARCH(\"41010\", L46)),ISNUMBER(SEARCH(\"41020\", L46)),ISNUMBER(SEARCH(\"41030\", L46)),ISNUMBER(SEARCH(\"41040\", L46)),ISNUMBER(SEARCH(\"41081\", L46))),F46=998)),22,F46=998,22,TRUE,\"\")","v":""},{"$f":"CRSDATA!AN46","v":0},{"$f":"CRSDATA!AO46","v":0},{"$f":"CRSDATA!AQ46","v":0},{"$f":"CRSDATA!AS46","v":0},{"$f":"CRSDATA!BB46","v":0},null,"",{"$f":"IF(AND(AND(CRSDATA!C46<>\"\",CRSDATA!BK46<>\"\"),OR(CRSDATA!N46=421,CRSDATA!N46=422,CRSDATA!N46=4221,CRSDATA!N46=4222,CRSDATA!N46=423,CRSDATA!N46=424,CRSDATA!N46=425,CRSDATA!N46=431,CRSDATA!N46=433,CRSDATA!N46=434)),DATEDIF(CRSDATA!C46,CRSDATA!BK46,\"m\"),\"\")","v":""},{"$f":"CRSDATA!BA46","v":0},{"$f":"CRSDATA!BC46","v":0},{"$f":"IF(CRSDATA!BT46=\"\",\"\",CRSDATA!BT46)","v":""},{"$f":"CRSDATA!L46","v":0}]
[{"$f":"CRSDATA!A47","v":0},{"$f":"CRSDATA!C47","v":0},{"$f":"CRSDATA!D47","v":0},{"$f":"CRSDATA!F47","v":0},{"$f":"CRSDATA!E47","v":0},{"$f":"IF(CRSDATA!H47=3000,998,CRSDATA!H47)","v":0},{"$f":"CRSDATA!O47","v":0},{"$f":"CRSDATA!U47","v":0},{"$f":"IF(CRSDATA!V47=\"\",\"\",CRSDATA!V47)","v":""},{"$f":"IF(CRSDATA!W47=\"\",\"\",CRSDATA!W47)","v":""},{"$f":"key_row(CRSDATA!X47,CRSDATA!Y47,CRSDATA!AL47,CRSDATA!AK47,CRSDATA!AJ47,CRSDATA!AM47,CRSDATA!P47,CRSDATA!V47)","v":""},{"$f":"CRSDATA!P47","v":0},{"$f":"CRSDATA!J47","v":0},{"$f":"CRSDATA!I47","v":0},null,{"$f":"IF(LEFT(CRSDATA!N47,2)=\"A0\",\"A00\",IF(LEFT(CRSDATA!N47,3)=\"B02\",\"B02\",IF(LEFT(CRSDATA!N47,3)=\"B03\",\"B03\",IF(CRSDATA!N47=\"B04\",\"C01\",IF(CRSDATA!N47=\"H01\",\"H00\",IF(OR(CRSDATA!N47=\"H02\",CRSDATA!N47=\"H03\",CRSDATA!N47=\"H04\",CRSDATA!N47=\"H05\",CRSDATA!N47=\"H06\"),\"I01\",IF(CRSDATA!N47=\"\",\"\",CRSDATA!N47)))))))","v":""},{"$f":"IF(AND(LEN(CRSDATA!M47)=4,LEFT(CRSDATA!M47,3)=\"110\"),1100,IF(AND(LEN(CRSDATA!M47)=4,LEFT(CRSDATA!M47,3)=\"422\"),422,CRSDATA!M47))","v":0},{"$f":"IF(CRSDATA!L47=22,\"FA04\",\"\")","v":""},{"$f":"IF(CRSDATA!K47=8,\"FC02\",\"\")","v":""},{"$f":"_xlfn.IFS(OR(P47=\"A00\",P47=\"E01\",P47=\"F01\",AND(P47=\"\",A47<>0),Q47=510,Q47=520,AF47=60),1,P47=\"G01\",IF(AF47=10,21,22),OR(M47=41203,M47=41204),22,OR(AND(OR(P47=\"B02\",P47=\"B03\"),M47=41310),OR(P47=\"E02\",P47=\"I01\")),21,AND(OR(P47=\"B01\",P47=\"B03\",P47=\"C01\"),M47<>41310),IF(VLOOKUP(F47,recipient_country!AB:AD,3,FALSE)=10024,\"\",1),AND(P47=\"B02\",M47<>41310),IF(VLOOKUP(M47,channel_codes!J:P,7,FALSE)=0,\"\",VLOOKUP(M47,channel_codes!J:P,7,FALSE)),ISNUMBER(MATCH(P47,{\"D01\",\"D02\"},0)),IF(VLOOKUP(M47,channel_codes!J:P,7,FALSE)=1,1,IF(VLOOKUP(F47,recipient_country!AB:AD,3,FALSE)=10024,\"\",1)),OR(P47=\"H01\",AND(OR(ISNUMBER(SEARCH(\"41010\", L47)),ISNUMBER(SEARCH(\"41020\", L47)),ISNUMBER(SEARCH(\"41030\", L47)),ISNUMBER(SEARCH(\"41040\", L47)),ISNUMBER(SEARCH(\"41081\", L47))),F47=998)),22,F47=998,22,TRUE,\"\")","v":""},{"$f":"CRSDATA!AN47","v":0},{"$f":"CRSDATA!AO47","v":0},{"$f":"CRSDATA!AQ47","v":0},{"$f":"CRSDATA!AS47","v":0},{"$f":"CRSDATA!BB47","v":0},null,"",{"$f":"IF(AND(AND(CRSDATA!C47<>\"\",CRSDATA!BK47<>\"\"),OR(CRSDATA!N47=421,CRSDATA!N47=422,CRSDATA!N47=4221,CRSDATA!N47=4222,CRSDATA!N47=423,CRSDATA!N47=424,CRSDATA!N47=425,CRSDATA!N47=431,CRSDATA!N47=433,CRSDATA!N47=434)),DATEDIF(CRSDATA!C47,CRSDATA!BK47,\"m\"),\"\")","v":""},{"$f":"CRSDATA!BA47","v":0},{"$f":"CRSDATA!BC47","v":0},{"$f":"IF(CRSDATA!BT47=\"\",\"\",CRSDATA!BT47)","v":""},{"$f":"CRSDATA!L47","v":0}]
[{"$f":"CRSDATA!A48","v":0},{"$f":"CRSDATA!C48","v":0},{"$f":"CRSDATA!D48","v":0},{"$f":"CRSDATA!F48","v":0},{"$f":"CRSDATA!E48","v":0},{"$f":"IF(CRSDATA!H48=3000,998,CRSDATA!H48)","v":0},{"$f":"CRSDATA!O48","v":0},{"$f":"CRSDATA!U48","v":0},{"$f":"IF(CRSDATA!V48=\"\",\"\",CRSDATA!V48)","v":""},{"$f":"IF(CRSDATA!W48=\"\",\"\",CRSDATA!W48)","v":""},{"$f":"key_row(CRSDATA!X48,CRSDATA!Y48,CRSDATA!AL48,CRSDATA!AK48,CRSDATA!AJ48,CRSDATA!AM48,CRSDATA!P48,CRSDATA!V48)","v":""},{"$f":"CRSDATA!P48","v":0},{"$f":"CRSDATA!J48","v":0},{"$f":"CRSDATA!I48","v":0},null,{"$f":"IF(LEFT(CRSDATA!N48,2)=\"A0\",\"A00\",IF(LEFT(CRSDATA!N48,3)=\"B02\",\"B02\",IF(LEFT(CRSDATA!N48,3)=\"B03\",\"B03\",IF(CRSDATA!N48=\"B04\",\"C01\",IF(CRSDATA!N48=\"H01\",\"H00\",IF(OR(CRSDATA!N48=\"H02\",CRSDATA!N48=\"H03\",CRSDATA!N48=\"H04\",CRSDATA!N48=\"H05\",CRSDATA!N48=\"H06\"),\"I01\",IF(CRSDATA!N48=\"\",\"\",CRSDATA!N48)))))))","v":""},{"$f":"IF(AND(LEN(CRSDATA!M48)=4,LEFT(CRSDATA!M48,3)=\"110\"),1100,IF(AND(LEN(CRSDATA!M48)=4,LEFT(CRSDATA!M48,3)=\"422\"),422,CRSDATA!M48))","v":0},{"$f":"IF(CRSDATA!L48=22,\"FA04\",\"\")","v":""},{"$f":"IF(CRSDATA!K48=8,\"FC02\",\"\")","v":""},{"$f":"_xlfn.IFS(OR(P48=\"A00\",P48=\"E01\",P48=\"F01\",AND(P48=\"\",A48<>0),Q48=510,Q48=520,AF48=60),1,P48=\"G01\",IF(AF48=10,21,22),OR(M48=41203,M48=41204),22,OR(AND(OR(P48=\"B02\",P48=\"B03\"),M48=41310),OR(P48=\"E02\",P48=\"I01\")),21,AND(OR(P48=\"B01\",P48=\"B03\",P48=\"C01\"),M48<>41310),IF(VLOOKUP(F48,recipient_country!AB:AD,3,FALSE)=10024,\"\",1),AND(P48=\"B02\",M48<>41310),IF(VLOOKUP(M48,channel_codes!J:P,7,FALSE)=0,\"\",VLOOKUP(M48,channel_codes!J:P,7,FALSE)),ISNUMBER(MATCH(P48,{\"D01\",\"D02\"},0)),IF(VLOOKUP(M48,channel_codes!J:P,7,FALSE)=1,1,IF(VLOOKUP(F48,recipient_country!AB:AD,3,FALSE)=10024,\"\",1)),OR(P48=\"H01\",AND(OR(ISNUMBER(SEARCH(\"41010\", L48)),ISNUMBER(SEARCH(\"41020\", L48)),ISNUMBER(SEARCH(\"41030\", L48)),ISNUMBER(SEARCH(\"41040\", L48)),ISNUMBER(SEARCH(\"41081\", L48))),F48=998)),22,F48=998,22,TRUE,\"\")","v":""},{"$f":"CRSDATA!AN48","v":0},{"$f":"CRSDATA!AO48","v":0},{"$f":"CRSDATA!AQ48","v":0},{"$f":"CRSDATA!AS48","v":0},{"$f":"CRSDATA!BB48","v":0},null,"",{"$f":"IF(AND(AND(CRSDATA!C48<>\"\",CRSDATA!BK48<>\"\"),OR(CRSDATA!N48=421,CRSDATA!N48=422,CRSDATA!N48=4221,CRSDATA!N48=4222,CRSDATA!N48=423,CRSDATA!N48=424,CRSDATA!N48=425,CRSDATA!N48=431,CRSDATA!N48=433,CRSDATA!N48=434)),DATEDIF(CRSDATA!C48,CRSDATA!BK48,\"m\"),\"\")","v":""},{"$f":"CRSDATA!BA48","v":0},{"$f":"CRSDATA!BC48","v":0},{"$f":"IF(CRSDATA!BT48=\"\",\"\",CRSDATA!BT48)","v":""},{"$f":"CRSDATA!L48","v":0}]
[{"$f":"CRSDATA!A49","v":0},{"$f":"CRSDATA!C49","v":0},{"$f":"CRSDATA!D49","v":0},{"$f":"CRSDATA!F49","v":0},{"$f":"CRSDATA!E49","v":0},{"$f":"IF(CRSDATA!H49=3000,998,CRSDATA!H49)","v":0},{"$f":"CRSDATA!O49","v":0},{"$f":"CRSDATA!U49","v":0},{"$f":"IF(CRSDATA!V49=\"\",\"\",CRSDATA!V49)","v":""},{"$f":"IF(CRSDATA!W49=\"\",\"\",CRSDATA!W49)","v":""},{"$f":"key_row(CRSDATA!X49,CRSDATA!Y49,CRSDATA!AL49,CRSDATA!AK49,CRSDATA!AJ49,CRSDATA!AM49,CRSDATA!P49,CRSDATA!V49)","v":""},{"$f":"CRSDATA!P49","v":0},{"$f":"CRSDATA!J49","v":0},{"$f":"CRSDATA!I49","v":0},null,{"$f":"IF(LEFT(CRSDATA!N49,2)=\"A0\",\"A00\",IF(LEFT(CRSDATA!N49,3)=\"B02\",\"B02\",IF(LEFT(CRSDATA!N49,3)=\"B03\",\"B03\",IF(CRSDATA!N49=\"B04\",\"C01\",IF(CRSDATA!N49=\"H01\",\"H00\",IF(OR(CRSDATA!N49=\"H02\",CRSDATA!N49=\"H03\",CRSDATA!N49=\"H04\",CRSDATA!N49=\"H05\",CRSDATA!N49=\"H06\"),\"I01\",IF(CRSDATA!N49=\"\",\"\",CRSDATA!N49)))))))","v":""},{"$f":"IF(AND(LEN(CRSDATA!M49)=4,LEFT(CRSDATA!M49,3)=\"110\"),1100,IF(AND(LEN(CRSDATA!M49)=4,LEFT(CRSDATA!M49,3)=\"422\"),422,CRSDATA!M49))","v":0},{"$f":"IF(CRSDATA!L49=22,\"FA04\",\"\")","v":""},{"$f":"IF(CRSDATA!K49=8,\"FC02\",\"\")","v":""},{"$f":"_xlfn.IFS(OR(P49=\"A00\",P49=\"E01\",P49=\"F01\",AND(P49=\"\",A49<>0),Q49=510,Q49=520,AF49=60),1,P49=\"G01\",IF(AF49=10,21,22),OR(M49=41203,M49=41204),22,OR(AND(OR(P49=\"B02\",P49=\"B03\"),M49=41310),OR(P49=\"E02\",P49=\"I01\")),21,AND(OR(P49=\"B01\",P49=\"B03\",P49=\"C01\"),M49<>41310),IF(VLOOKUP(F49,recipient_country!AB:AD,3,FALSE)=10024,\"\",1),AND(P49=\"B02\",M49<>41310),IF(VLOOKUP(M49,channel_codes!J:P,7,FALSE)=0,\"\",VLOOKUP(M49,channel_codes!J:P,7,FALSE)),ISNUMBER(MATCH(P49,{\"D01\",\"D02\"},0)),IF(VLOOKUP(M49,channel_codes!J:P,7,FALSE)=1,1,IF(VLOOKUP(F49,recipient_country!AB:AD,3,FALSE)=10024,\"\",1)),OR(P49=\"H01\",AND(OR(ISNUMBER(SEARCH(\"41010\", L49)),ISNUMBER(SEARCH(\"41020\", L49)),ISNUMBER(SEARCH(\"41030\", L49)),ISNUMBER(SEARCH(\"41040\", L49)),ISNUMBER(SEARCH(\"41081\", L49))),F49=998)),22,F49=998,22,TRUE,\"\")","v":""},{"$f":"CRSDATA!AN49","v":0},{"$f":"CRSDATA!AO49","v":0},{"$f":"CRSDATA!AQ49","v":0},{"$f":"CRSDATA!AS49","v":0},{"$f":"CRSDATA!BB49","v":0},null,"",{"$f":"IF(AND(AND(CRSDATA!C49<>\"\",CRSDATA!BK49<>\"\"),OR(CRSDATA!N49=421,CRSDATA!N49=422,CRSDATA!N49=4221,CRSDATA!N49=4222,CRSDATA!N49=423,CRSDATA!N49=424,CRSDATA!N49=425,CRSDATA!N49=431,CRSDATA!N49=433,CRSDATA!N49=434)),DATEDIF(CRSDATA!C49,CRSDATA!BK49,\"m\"),\"\")","v":""},{"$f":"CRSDATA!BA49","v":0},{"$f":"CRSDATA!BC49","v":0},{"$f":"IF(CRSDATA!BT49=\"\",\"\",CRSDATA!BT49)","v":""},{"$f":"CRSDATA!L49","v":0}]
[{"$f":"CRSDATA!A50","v":0},{"$f":"CRSDATA!C50","v":0},{"$f":"CRSDATA!D50","v":0},{"$f":"CRSDATA!F50","v":0},{"$f":"CRSDATA!E50","v":0},{"$f":"IF(CRSDATA!H50=3000,998,CRSDATA!H50)","v":0},{"$f":"CRSDATA!O50","v":0},{"$f":"CRSDATA!U50","v":0},{"$f":"IF(CRSDATA!V50=\"\",\"\",CRSDATA!V50)","v":""},{"$f":"IF(CRSDATA!W50=\"\",\"\",CRSDATA!W50)","v":""},{"$f":"key_row(CRSDATA!X50,CRSDATA!Y50,CRSDATA!AL50,CRSDATA!AK50,CRSDATA!AJ50,CRSDATA!AM50,CRSDATA!P50,CRSDATA!V50)","v":""},{"$f":"CRSDATA!P50","v":0},{"$f":"CRSDATA!J50","v":0},{"$f":"CRSDATA!I50","v":0},null,{"$f":"IF(LEFT(CRSDATA!N50,2)=\"A0\",\"A00\",IF(LEFT(CRSDATA!N50,3)=\"B02\",\"B02\",IF(LEFT(CRSDATA!N50,3)=\"B03\",\"B03\",IF(CRSDATA!N50=\"B04\",\"C01\",IF(CRSDATA!N50=\"H01\",\"H00\",IF(OR(CRSDATA!N50=\"H02\",CRSDATA!N50=\"H03\",CRSDATA!N50=\"H04\",CRSDATA!N50=\"H05\",CRSDATA!N50=\"H06\"),\"I01\",IF(CRSDATA!N50=\"\",\"\",CRSDATA!N50)))))))","v":""},{"$f":"IF(AND(LEN(CRSDATA!M50)=4,LEFT(CRSDATA!M50,3)=\"110\"),1100,IF(AND(LEN(CRSDATA!M50)=4,LEFT(CRSDATA!M50,3)=\"422\"),422,CRSDATA!M50))","v":0},{"$f":"IF(CRSDATA!L50=22,\"FA04\",\"\")","v":""},{"$f":"IF(CRSDATA!K50=8,\"FC02\",\"\")","v":""},{"$f":"_xlfn.IFS(OR(P50=\"A00\",P50=\"E01\",P50=\"F01\",AND(P50=\"\",A50<>0),Q50=510,Q50=520,AF50=60),1,P50=\"G01\",IF(AF50=10,21,22),OR(M50=41203,M50=41204),22,OR(AND(OR(P50=\"B02\",P50=\"B03\"),M50=41310),OR(P50=\"E02\",P50=\"I01\")),21,AND(OR(P50=\"B01\",P50=\"B03\",P50=\"C01\"),M50<>41310),IF(VLOOKUP(F50,recipient_country!AB:AD,3,FALSE)=10024,\"\",1),AND(P50=\"B02\",M50<>41310),IF(VLOOKUP(M50,channel_codes!J:P,7,FALSE)=0,\"\",VLOOKUP(M50,channel_codes!J:P,7,FALSE)),ISNUMBER(MATCH(P50,{\"D01\",\"D02\"},0)),IF(VLOOKUP(M50,channel_codes!J:P,7,FALSE)=1,1,IF(VLOOKUP(F50,recipient_country!AB:AD,3,FALSE)=10024,\"\",1)),OR(P50=\"H01\",AND(OR(ISNUMBER(SEARCH(\"41010\", L50)),ISNUMBER(SEARCH(\"41020\", L50)),ISNUMBER(SEARCH(\"41030\", L50)),ISNUMBER(SEARCH(\"41040\", L50)),ISNUMBER(SEARCH(\"41081\", L50))),F50=998)),22,F50=998,22,TRUE,\"\")","v":""},{"$f":"CRSDATA!AN50","v":0},{"$f":"CRSDATA!AO50","v":0},{"$f":"CRSDATA!AQ50","v":0},{"$f":"CRSDATA!AS50","v":0},{"$f":"CRSDATA!BB50","v":0},null,"",{"$f":"IF(AND(AND(CRSDATA!C50<>\"\",CRSDATA!BK50<>\"\"),OR(CRSDATA!N50=421,CRSDATA!N50=422,CRSDATA!N50=4221,CRSDATA!N50=4222,CRSDATA!N50=423,CRSDATA!N50=424,CRSDATA!N50=425,CRSDATA!N50=431,CRSDATA!N50=433,CRSDATA!N50=434)),DATEDIF(CRSDATA!C50,CRSDATA!BK50,\"m\"),\"\")","v":""},{"$f":"CRSDATA!BA50","v":0},{"$f":"CRSDATA!BC50","v":0},{"$f":"IF(CRSDATA!BT50=\"\",\"\",CRSDATA!BT50)","v":""},{"$f":"CRSDATA!L50","v":0}]
[{"$f":"CRSDATA!A51","v":0},{"$f":"CRSDATA!C51","v":0},{"$f":"CRSDATA!D51","v":0},{"$f":"CRSDATA!F51","v":0},{"$f":"CRSDATA!E51","v":0},{"$f":"IF(CRSDATA!H51=3000,998,CRSDATA!H51)","v":0},{"$f":"CRSDATA!O51","v":0},{"$f":"CRSDATA!U51","v":0},{"$f":"IF(CRSDATA!V51=\"\",\"\",CRSDATA!V51)","v":""},{"$f":"IF(CRSDATA!W51=\"\",\"\",CRSDATA!W51)","v":""},{"$f":"key_row(CRSDATA!X51,CRSDATA!Y51,CRSDATA!AL51,CRSDATA!AK51,CRSDATA!AJ51,CRSDATA!AM51,CRSDATA!P51,CRSDATA!V51)","v":""},{"$f":"CRSDATA!P51","v":0},{"$f":"CRSDATA!J51","v":0},{"$f":"CRSDATA!I51","v":0},null,{"$f":"IF(LEFT(CRSDATA!N51,2)=\"A0\",\"A00\",IF(LEFT(CRSDATA!N51,3)=\"B02\",\"B02\",IF(LEFT(CRSDATA!N51,3)=\"B03\",\"B03\",IF(CRSDATA!N51=\"B04\",\"C01\",IF(CRSDATA!N51=\"H01\",\"H00\",IF(OR(CRSDATA!N51=\"H02\",CRSDATA!N51=\"H03\",CRSDATA!N51=\"H04\",CRSDATA!N51=\"H05\",CRSDATA!N51=\"H06\"),\"I01\",IF(CRSDATA!N51=\"\",\"\",CRSDATA!N51)))))))","v":""},{"$f":"IF(AND(LEN(CRSDATA!M51)=4,LEFT(CRSDATA!M51,3)=\"110\"),1100,IF(AND(LEN(CRSDATA!M51)=4,LEFT(CRSDATA!M51,3)=\"422\"),422,CRSDATA!M51))","v":0},{"$f":"IF(CRSDATA!L51=22,\"FA04\",\"\")","v":""},{"$f":"IF(CRSDATA!K51=8,\"FC02\",\"\")","v":""},{"$f":"_xlfn.IFS(OR(P51=\"A00\",P51=\"E01\",P51=\"F01\",AND(P51=\"\",A51<>0),Q51=510,Q51=520,AF51=60),1,P51=\"G01\",IF(AF51=10,21,22),OR(M51=41203,M51=41204),22,OR(AND(OR(P51=\"B02\",P51=\"B03\"),M51=41310),OR(P51=\"E02\",P51=\"I01\")),21,AND(OR(P51=\"B01\",P51=\"B03\",P51=\"C01\"),M51<>41310),IF(VLOOKUP(F51,recipient_country!AB:AD,3,FALSE)=10024,\"\",1),AND(P51=\"B02\",M51<>41310),IF(VLOOKUP(M51,channel_codes!J:P,7,FALSE)=0,\"\",VLOOKUP(M51,channel_codes!J:P,7,FALSE)),ISNUMBER(MATCH(P51,{\"D01\",\"D02\"},0)),IF(VLOOKUP(M51,channel_codes!J:P,7,FALSE)=1,1,IF(VLOOKUP(F51,recipient_country!AB:AD,3,FALSE)=10024,\"\",1)),OR(P51=\"H01\",AND(OR(ISNUMBER(SEARCH(\"41010\", L51)),ISNUMBER(SEARCH(\"41020\", L51)),ISNUMBER(SEARCH(\"41030\", L51)),ISNUMBER(SEARCH(\"41040\", L51)),ISNUMBER(SEARCH(\"41081\", L51))),F51=998)),22,F51=998,22,TRUE,\"\")","v":""},{"$f":"CRSDATA!AN51","v":0},{"$f":"CRSDATA!AO51","v":0},{"$f":"CRSDATA!AQ51","v":0},{"$f":"CRSDATA!AS51","v":0},{"$f":"CRSDATA!BB51","v":0},null,"",{"$f":"IF(AND(AND(CRSDATA!C51<>\"\",CRSDATA!BK51<>\"\"),OR(CRSDATA!N51=421,CRSDATA!N51=422,CRSDATA!N51=4221,CRSDATA!N51=4222,CRSDATA!N51=423,CRSDATA!N51=424,CRSDATA!N51=425,CRSDATA!N51=431,CRSDATA!N51=433,CRSDATA!N51=434)),DATEDIF(CRSDATA!C51,CRSDATA!BK51,\"m\"),\"\")","v":""},{"$f":"CRSDATA!BA51","v":0},{"$f":"CRSDATA!BC51","v":0},{"$f":"IF(CRSDATA!BT51=\"\",\"\",CRSDATA!BT51)","v":""},{"$f":"CRSDATA!L51","v":0}]
[{"$f":"CRSDATA!A52","v":0},{"$f":"CRSDATA!C52","v":0},{"$f":"CRSDATA!D52","v":0},{"$f":"CRSDATA!F52","v":0},{"$f":"CRSDATA!E52","v":0},{"$f":"IF(CRSDATA!H52=3000,998,CRSDATA!H52)","v":0},{"$f":"CRSDATA!O52","v":0},{"$f":"CRSDATA!U52","v":0},{"$f":"IF(CRSDATA!V52=\"\",\"\",CRSDATA!V52)","v":""},{"$f":"IF(CRSDATA!W52=\"\",\"\",CRSDATA!W52)","v":""},{"$f":"key_row(CRSDATA!X52,CRSDATA!Y52,CRSDATA!AL52,CRSDATA!AK52,CRSDATA!AJ52,CRSDATA!AM52,CRSDATA!P52,CRSDATA!V52)","v":""},{"$f":"CRSDATA!P52","v":0},{"$f":"CRSDATA!J52","v":0},{"$f":"CRSDATA!I52","v":0},null,{"$f":"IF(LEFT(CRSDATA!N52,2)=\"A0\",\"A00\",IF(LEFT(CRSDATA!N52,3)=\"B02\",\"B02\",IF(LEFT(CRSDATA!N52,3)=\"B03\",\"B03\",IF(CRSDATA!N52=\"B04\",\"C01\",IF(CRSDATA!N52=\"H01\",\"H00\",IF(OR(CRSDATA!N52=\"H02\",CRSDATA!N52=\"H03\",CRSDATA!N52=\"H04\",CRSDATA!N52=\"H05\",CRSDATA!N52=\"H06\"),\"I01\",IF(CRSDATA!N52=\"\",\"\",CRSDATA!N52)))))))","v":""},{"$f":"IF(AND(LEN(CRSDATA!M52)=4,LEFT(CRSDATA!M52,3)=\"110\"),1100,IF(AND(LEN(CRSDATA!M52)=4,LEFT(CRSDATA!M52,3)=\"422\"),422,CRSDATA!M52))","v":0},{"$f":"IF(CRSDATA!L52=22,\"FA04\",\"\")","v":""},{"$f":"IF(CRSDATA!K52=8,\"FC02\",\"\")","v":""},{"$f":"_xlfn.IFS(OR(P52=\"A00\",P52=\"E01\",P52=\"F01\",AND(P52=\"\",A52<>0),Q52=510,Q52=520,AF52=60),1,P52=\"G01\",IF(AF52=10,21,22),OR(M52=41203,M52=41204),22,OR(AND(OR(P52=\"B02\",P52=\"B03\"),M52=41310),OR(P52=\"E02\",P52=\"I01\")),21,AND(OR(P52=\"B01\",P52=\"B03\",P52=\"C01\"),M52<>41310),IF(VLOOKUP(F52,recipient_country!AB:AD,3,FALSE)=10024,\"\",1),AND(P52=\"B02\",M52<>41310),IF(VLOOKUP(M52,channel_codes!J:P,7,FALSE)=0,\"\",VLOOKUP(M52,channel_codes!J:P,7,FALSE)),ISNUMBER(MATCH(P52,{\"D01\",\"D02\"},0)),IF(VLOOKUP(M52,channel_codes!J:P,7,FALSE)=1,1,IF(VLOOKUP(F52,recipient_country!AB:AD,3,FALSE)=10024,\"\",1)),OR(P52=\"H01\",AND(OR(ISNUMBER(SEARCH(\"41010\", L52)),ISNUMBER(SEARCH(\"41020\", L52)),ISNUMBER(SEARCH(\"41030\", L52)),ISNUMBER(SEARCH(\"41040\", L52)),ISNUMBER(SEARCH(\"41081\", L52))),F52=998)),22,F52=998,22,TRUE,\"\")","v":""},{"$f":"CRSDATA!AN52","v":0},{"$f":"CRSDATA!AO52","v":0},{"$f":"CRSDATA!AQ52","v":0},{"$f":"CRSDATA!AS52","v":0},{"$f":"CRSDATA!BB52","v":0},null,"",{"$f":"IF(AND(AND(CRSDATA!C52<>\"\",CRSDATA!BK52<>\"\"),OR(CRSDATA!N52=421,CRSDATA!N52=422,CRSDATA!N52=4221,CRSDATA!N52=4222,CRSDATA!N52=423,CRSDATA!N52=424,CRSDATA!N52=425,CRSDATA!N52=431,CRSDATA!N52=433,CRSDATA!N52=434)),DATEDIF(CRSDATA!C52,CRSDATA!BK52,\"m\"),\"\")","v":""},{"$f":"CRSDATA!BA52","v":0},{"$f":"CRSDATA!BC52","v":0},{"$f":"IF(CRSDATA!BT52=\"\",\"\",CRSDATA!BT52)","v":""},{"$f":"CRSDATA!L52","v":0}]
[{"$f":"CRSDATA!A53","v":0},{"$f":"CRSDATA!C53","v":0},{"$f":"CRSDATA!D53","v":0},{"$f":"CRSDATA!F53","v":0},{"$f":"CRSDATA!E53","v":0},{"$f":"IF(CRSDATA!H53=3000,998,CRSDATA!H53)","v":0},{"$f":"CRSDATA!O53","v":0},{"$f":"CRSDATA!U53","v":0},{"$f":"IF(CRSDATA!V53=\"\",\"\",CRSDATA!V53)","v":""},{"$f":"IF(CRSDATA!W53=\"\",\"\",CRSDATA!W53)","v":""},{"$f":"key_row(CRSDATA!X53,CRSDATA!Y53,CRSDATA!AL53,CRSDATA!AK53,CRSDATA!AJ53,CRSDATA!AM53,CRSDATA!P53,CRSDATA!V53)","v":""},{"$f":"CRSDATA!P53","v":0},{"$f":"CRSDATA!J53","v":0},{"$f":"CRSDATA!I53","v":0},null,{"$f":"IF(LEFT(CRSDATA!N53,2)=\"A0\",\"A00\",IF(LEFT(CRSDATA!N53,3)=\"B02\",\"B02\",IF(LEFT(CRSDATA!N53,3)=\"B03\",\"B03\",IF(CRSDATA!N53=\"B04\",\"C01\",IF(CRSDATA!N53=\"H01\",\"H00\",IF(OR(CRSDATA!N53=\"H02\",CRSDATA!N53=\"H03\",CRSDATA!N53=\"H04\",CRSDATA!N53=\"H05\",CRSDATA!N53=\"H06\"),\"I01\",IF(CRSDATA!N53=\"\",\"\",CRSDATA!N53)))))))","v":""},{"$f":"IF(AND(LEN(CRSDATA!M53)=4,LEFT(CRSDATA!M53,3)=\"110\"),1100,IF(AND(LEN(CRSDATA!M53)=4,LEFT(CRSDATA!M53,3)=\"422\"),422,CRSDATA!M53))","v":0},{"$f":"IF(CRSDATA!L53=22,\"FA04\",\"\")","v":""},{"$f":"IF(CRSDATA!K53=8,\"FC02\",\"\")","v":""},{"$f":"_xlfn.IFS(OR(P53=\"A00\",P53=\"E01\",P53=\"F01\",AND(P53=\"\",A53<>0),Q53=510,Q53=520,AF53=60),1,P53=\"G01\",IF(AF53=10,21,22),OR(M53=41203,M53=41204),22,OR(AND(OR(P53=\"B02\",P53=\"B03\"),M53=41310),OR(P53=\"E02\",P53=\"I01\")),21,AND(OR(P53=\"B01\",P53=\"B03\",P53=\"C01\"),M53<>41310),IF(VLOOKUP(F53,recipient_country!AB:AD,3,FALSE)=10024,\"\",1),AND(P53=\"B02\",M53<>41310),IF(VLOOKUP(M53,channel_codes!J:P,7,FALSE)=0,\"\",VLOOKUP(M53,channel_codes!J:P,7,FALSE)),ISNUMBER(MATCH(P53,{\"D01\",\"D02\"},0)),IF(VLOOKUP(M53,channel_codes!J:P,7,FALSE)=1,1,IF(VLOOKUP(F53,recipient_country!AB:AD,3,FALSE)=10024,\"\",1)),OR(P53=\"H01\",AND(OR(ISNUMBER(SEARCH(\"41010\", L53)),ISNUMBER(SEARCH(\"41020\", L53)),ISNUMBER(SEARCH(\"41030\", L53)),ISNUMBER(SEARCH(\"41040\", L53)),ISNUMBER(SEARCH(\"41081\", L53))),F53=998)),22,F53=998,22,TRUE,\"\")","v":""},{"$f":"CRSDATA!AN53","v":0},{"$f":"CRSDATA!AO53","v":0},{"$f":"CRSDATA!AQ53","v":0},{"$f":"CRSDATA!AS53","v":0},{"$f":"CRSDATA!BB53","v":0},null,"",{"$f":"IF(AND(AND(CRSDATA!C53<>\"\",CRSDATA!BK53<>\"\"),OR(CRSDATA!N53=421,CRSDATA!N53=422,CRSDATA!N53=4221,CRSDATA!N53=4222,CRSDATA!N53=423,CRSDATA!N53=424,CRSDATA!N53=425,CRSDATA!N53=431,CRSDATA!N53=433,CRSDATA!N53=434)),DATEDIF(CRSDATA!C53,CRSDATA!BK53,\"m\"),\"\")","v":""},{"$f":"CRSDATA!BA53","v":0},{"$f":"CRSDATA!BC53","v":0},{"$f":"IF(CRSDATA!BT53=\"\",\"\",CRSDATA!BT53)","v":""},{"$f":"CRSDATA!L53","v":0}]
[{"$f":"CRSDATA!A54","v":0},{"$f":"CRSDATA!C54","v":0},{"$f":"CRSDATA!D54","v":0},{"$f":"CRSDATA!F54","v":0},{"$f":"CRSDATA!E54","v":0},{"$f":"IF(CRSDATA!H54=3000,998,CRSDATA!H54)","v":0},{"$f":"CRSDATA!O54","v":0},{"$f":"CRSDATA!U54","v":0},{"$f":"IF(CRSDATA!V54=\"\",\"\",CRSDATA!V54)","v":""},{"$f":"IF(CRSDATA!W54=\"\",\"\",CRSDATA!W54)","v":""},{"$f":"key_row(CRSDATA!X54,CRSDATA!Y54,CRSDATA!AL54,CRSDATA!AK54,CRSDATA!AJ54,CRSDATA!AM54,CRSDATA!P54,CRSDATA!V54)","v":""},{"$f":"CRSDATA!P54","v":0},{"$f":"CRSDATA!J54","v":0},{"$f":"CRSDATA!I54","v":0},null,{"$f":"IF(LEFT(CRSDATA!N54,2)=\"A0\",\"A00\",IF(LEFT(CRSDATA!N54,3)=\"B02\",\"B02\",IF(LEFT(CRSDATA!N54,3)=\"B03\",\"B03\",IF(CRSDATA!N54=\"B04\",\"C01\",IF(CRSDATA!N54=\"H01\",\"H00\",IF(OR(CRSDATA!N54=\"H02\",CRSDATA!N54=\"H03\",CRSDATA!N54=\"H04\",CRSDATA!N54=\"H05\",CRSDATA!N54=\"H06\"),\"I01\",IF(CRSDATA!N54=\"\",\"\",CRSDATA!N54)))))))","v":""},{"$f":"IF(AND(LEN(CRSDATA!M54)=4,LEFT(CRSDATA!M54,3)=\"110\"),1100,IF(AND(LEN(CRSDATA!M54)=4,LEFT(CRSDATA!M54,3)=\"422\"),422,CRSDATA!M54))","v":0},{"$f":"IF(CRSDATA!L54=22,\"FA04\",\"\")","v":""},{"$f":"IF(CRSDATA!K54=8,\"FC02\",\"\")","v":""},{"$f":"_xlfn.IFS(OR(P54=\"A00\",P54=\"E01\",P54=\"F01\",AND(P54=\"\",A54<>0),Q54=510,Q54=520,AF54=60),1,P54=\"G01\",IF(AF54=10,21,22),OR(M54=41203,M54=41204),22,OR(AND(OR(P54=\"B02\",P54=\"B03\"),M54=41310),OR(P54=\"E02\",P54=\"I01\")),21,AND(OR(P54=\"B01\",P54=\"B03\",P54=\"C01\"),M54<>41310),IF(VLOOKUP(F54,recipient_country!AB:AD,3,FALSE)=10024,\"\",1),AND(P54=\"B02\",M54<>41310),IF(VLOOKUP(M54,channel_codes!J:P,7,FALSE)=0,\"\",VLOOKUP(M54,channel_codes!J:P,7,FALSE)),ISNUMBER(MATCH(P54,{\"D01\",\"D02\"},0)),IF(VLOOKUP(M54,channel_codes!J:P,7,FALSE)=1,1,IF(VLOOKUP(F54,recipient_country!AB:AD,3,FALSE)=10024,\"\",1)),OR(P54=\"H01\",AND(OR(ISNUMBER(SEARCH(\"41010\", L54)),ISNUMBER(SEARCH(\"41020\", L54)),ISNUMBER(SEARCH(\"41030\", L54)),ISNUMBER(SEARCH(\"41040\", L54)),ISNUMBER(SEARCH(\"41081\", L54))),F54=998)),22,F54=998,22,TRUE,\"\")","v":""},{"$f":"CRSDATA!AN54","v":0},{"$f":"CRSDATA!AO54","v":0},{"$f":"CRSDATA!AQ54","v":0},{"$f":"CRSDATA!AS54","v":0},{"$f":"CRSDATA!BB54","v":0},null,"",{"$f":"IF(AND(AND(CRSDATA!C54<>\"\",CRSDATA!BK54<>\"\"),OR(CRSDATA!N54=421,CRSDATA!N54=422,CRSDATA!N54=4221,CRSDATA!N54=4222,CRSDATA!N54=423,CRSDATA!N54=424,CRSDATA!N54=425,CRSDATA!N54=431,CRSDATA!N54=433,CRSDATA!N54=434)),DATEDIF(CRSDATA!C54,CRSDATA!BK54,\"m\"),\"\")","v":""},{"$f":"CRSDATA!BA54","v":0},{"$f":"CRSDATA!BC54","v":0},{"$f":"IF(CRSDATA!BT54=\"\",\"\",CRSDATA!BT54)","v":""},{"$f":"CRSDATA!L54","v":0}]
[{"$f":"CRSDATA!A55","v":0},{"$f":"CRSDATA!C55","v":0},{"$f":"CRSDATA!D55","v":0},{"$f":"CRSDATA!F55","v":0},{"$f":"CRSDATA!E55","v":0},{"$f":"IF(CRSDATA!H55=3000,998,CRSDATA!H55)","v":0},{"$f":"CRSDATA!O55","v":0},{"$f":"CRSDATA!U55","v":0},{"$f":"IF(CRSDATA!V55=\"\",\"\",CRSDATA!V55)","v":""},{"$f":"IF(CRSDATA!W55=\"\",\"\",CRSDATA!W55)","v":""},{"$f":"key_row(CRSDATA!X55,CRSDATA!Y55,CRSDATA!AL55,CRSDATA!AK55,CRSDATA!AJ55,CRSDATA!AM55,CRSDATA!P55,CRSDATA!V55)","v":""},{"$f":"CRSDATA!P55","v":0},{"$f":"CRSDATA!J55","v":0},{"$f":"CRSDATA!I55","v":0},null,{"$f":"IF(LEFT(CRSDATA!N55,2)=\"A0\",\"A00\",IF(LEFT(CRSDATA!N55,3)=\"B02\",\"B02\",IF(LEFT(CRSDATA!N55,3)=\"B03\",\"B03\",IF(CRSDATA!N55=\"B04\",\"C01\",IF(CRSDATA!N55=\"H01\",\"H00\",IF(OR(CRSDATA!N55=\"H02\",CRSDATA!N55=\"H03\",CRSDATA!N55=\"H04\",CRSDATA!N55=\"H05\",CRSDATA!N55=\"H06\"),\"I01\",IF(CRSDATA!N55=\"\",\"\",CRSDATA!N55)))))))","v":""},{"$f":"IF(AND(LEN(CRSDATA!M55)=4,LEFT(CRSDATA!M55,3)=\"110\"),1100,IF(AND(LEN(CRSDATA!M55)=4,LEFT(CRSDATA!M55,3)=\"422\"),422,CRSDATA!M55))","v":0},{"$f":"IF(CRSDATA!L55=22,\"FA04\",\"\")","v":""},{"$f":"IF(CRSDATA!K55=8,\"FC02\",\"\")","v":""},{"$f":"_xlfn.IFS(OR(P55=\"A00\",P55=\"E01\",P55=\"F01\",AND(P55=\"\",A55<>0),Q55=510,Q55=520,AF55=60),1,P55=\"G01\",IF(AF55=10,21,22),OR(M55=41203,M55=41204),22,OR(AND(OR(P55=\"B02\",P55=\"B03\"),M55=41310),OR(P55=\"E02\",P55=\"I01\")),21,AND(OR(P55=\"B01\",P55=\"B03\",P55=\"C01\"),M55<>41310),IF(VLOOKUP(F55,recipient_country!AB:AD,3,FALSE)=10024,\"\",1),AND(P55=\"B02\",M55<>41310),IF(VLOOKUP(M55,channel_codes!J:P,7,FALSE)=0,\"\",VLOOKUP(M55,channel_codes!J:P,7,FALSE)),ISNUMBER(MATCH(P55,{\"D01\",\"D02\"},0)),IF(VLOOKUP(M55,channel_codes!J:P,7,FALSE)=1,1,IF(VLOOKUP(F55,recipient_country!AB:AD,3,FALSE)=10024,\"\",1)),OR(P55=\"H01\",AND(OR(ISNUMBER(SEARCH(\"41010\", L55)),ISNUMBER(SEARCH(\"41020\", L55)),ISNUMBER(SEARCH(\"41030\", L55)),ISNUMBER(SEARCH(\"41040\", L55)),ISNUMBER(SEARCH(\"41081\", L55))),F55=998)),22,F55=998,22,TRUE,\"\")","v":""},{"$f":"CRSDATA!AN55","v":0},{"$f":"CRSDATA!AO55","v":0},{"$f":"CRSDATA!AQ55","v":0},{"$f":"CRSDATA!AS55","v":0},{"$f":"CRSDATA!BB55","v":0},null,"",{"$f":"IF(AND(AND(CRSDATA!C55<>\"\",CRSDATA!BK55<>\"\"),OR(CRSDATA!N55=421,CRSDATA!N55=422,CRSDATA!N55=4221,CRSDATA!N55=4222,CRSDATA!N55=423,CRSDATA!N55=424,CRSDATA!N55=425,CRSDATA!N55=431,CRSDATA!N55=433,CRSDATA!N55=434)),DATEDIF(CRSDATA!C55,CRSDATA!BK55,\"m\"),\"\")","v":""},{"$f":"CRSDATA!BA55","v":0},{"$f":"CRSDATA!BC55","v":0},{"$f":"IF(CRSDATA!BT55=\"\",\"\",CRSDATA!BT55)","v":""},{"$f":"CRSDATA!L55","v":0}]
[{"$f":"CRSDATA!A56","v":0},{"$f":"CRSDATA!C56","v":0},{"$f":"CRSDATA!D56","v":0},{"$f":"CRSDATA!F56","v":0},{"$f":"CRSDATA!E56","v":0},{"$f":"IF(CRSDATA!H56=3000,998,CRSDATA!H56)","v":0},{"$f":"CRSDATA!O56","v":0},{"$f":"CRSDATA!U56","v":0},{"$f":"IF(CRSDATA!V56=\"\",\"\",CRSDATA!V56)","v":""},{"$f":"IF(CRSDATA!W56=\"\",\"\",CRSDATA!W56)","v":""},{"$f":"key_row(CRSDATA!X56,CRSDATA!Y56,CRSDATA!AL56,CRSDATA!AK56,CRSDATA!AJ56,CRSDATA!AM56,CRSDATA!P56,CRSDATA!V56)","v":""},{"$f":"CRSDATA!P56","v":0},{"$f":"CRSDATA!J56","v":0},{"$f":"CRSDATA!I56","v":0},null,{"$f":"IF(LEFT(CRSDATA!N56,2)=\"A0\",\"A00\",IF(LEFT(CRSDATA!N56,3)=\"B02\",\"B02\",IF(LEFT(CRSDATA!N56,3)=\"B03\",\"B03\",IF(CRSDATA!N56=\"B04\",\"C01\",IF(CRSDATA!N56=\"H01\",\"H00\",IF(OR(CRSDATA!N56=\"H02\",CRSDATA!N56=\"H03\",CRSDATA!N56=\"H04\",CRSDATA!N56=\"H05\",CRSDATA!N56=\"H06\"),\"I01\",IF(CRSDATA!N56=\"\",\"\",CRSDATA!N56)))))))","v":""},{"$f":"IF(AND(LEN(CRSDATA!M56)=4,LEFT(CRSDATA!M56,3)=\"110\"),1100,IF(AND(LEN(CRSDATA!M56)=4,LEFT(CRSDATA!M56,3)=\"422\"),422,CRSDATA!M56))","v":0},{"$f":"IF(CRSDATA!L56=22,\"FA04\",\"\")","v":""},{"$f":"IF(CRSDATA!K56=8,\"FC02\",\"\")","v":""},{"$f":"_xlfn.IFS(OR(P56=\"A00\",P56=\"E01\",P56=\"F01\",AND(P56=\"\",A56<>0),Q56=510,Q56=520,AF56=60),1,P56=\"G01\",IF(AF56=10,21,22),OR(M56=41203,M56=41204),22,OR(AND(OR(P56=\"B02\",P56=\"B03\"),M56=41310),OR(P56=\"E02\",P56=\"I01\")),21,AND(OR(P56=\"B01\",P56=\"B03\",P56=\"C01\"),M56<>41310),IF(VLOOKUP(F56,recipient_country!AB:AD,3,FALSE)=10024,\"\",1),AND(P56=\"B02\",M56<>41310),IF(VLOOKUP(M56,channel_codes!J:P,7,FALSE)=0,\"\",VLOOKUP(M56,channel_codes!J:P,7,FALSE)),ISNUMBER(MATCH(P56,{\"D01\",\"D02\"},0)),IF(VLOOKUP(M56,channel_codes!J:P,7,FALSE)=1,1,IF(VLOOKUP(F56,recipient_country!AB:AD,3,FALSE)=10024,\"\",1)),OR(P56=\"H01\",AND(OR(ISNUMBER(SEARCH(\"41010\", L56)),ISNUMBER(SEARCH(\"41020\", L56)),ISNUMBER(SEARCH(\"41030\", L56)),ISNUMBER(SEARCH(\"41040\", L56)),ISNUMBER(SEARCH(\"41081\", L56))),F56=998)),22,F56=998,22,TRUE,\"\")","v":""},{"$f":"CRSDATA!AN56","v":0},{"$f":"CRSDATA!AO56","v":0},{"$f":"CRSDATA!AQ56","v":0},{"$f":"CRSDATA!AS56","v":0},{"$f":"CRSDATA!BB56","v":0},null,"",{"$f":"IF(AND(AND(CRSDATA!C56<>\"\",CRSDATA!BK56<>\"\"),OR(CRSDATA!N56=421,CRSDATA!N56=422,CRSDATA!N56=4221,CRSDATA!N56=4222,CRSDATA!N56=423,CRSDATA!N56=424,CRSDATA!N56=425,CRSDATA!N56=431,CRSDATA!N56=433,CRSDATA!N56=434)),DATEDIF(CRSDATA!C56,CRSDATA!BK56,\"m\"),\"\")","v":""},{"$f":"CRSDATA!BA56","v":0},{"$f":"CRSDATA!BC56","v":0},{"$f":"IF(CRSDATA!BT56=\"\",\"\",CRSDATA!BT56)","v":""},{"$f":"CRSDATA!L56","v":0}]
[{"$f":"CRSDATA!A57","v":0},{"$f":"CRSDATA!C57","v":0},{"$f":"CRSDATA!D57","v":0},{"$f":"CRSDATA!F57","v":0},{"$f":"CRSDATA!E57","v":0},{"$f":"IF(CRSDATA!H57=3000,998,CRSDATA!H57)","v":0},{"$f":"CRSDATA!O57","v":0},{"$f":"CRSDATA!U57","v":0},{"$f":"IF(CRSDATA!V57=\"\",\"\",CRSDATA!V57)","v":""},{"$f":"IF(CRSDATA!W57=\"\",\"\",CRSDATA!W57)","v":""},{"$f":"key_row(CRSDATA!X57,CRSDATA!Y57,CRSDATA!AL57,CRSDATA!AK57,CRSDATA!AJ57,CRSDATA!AM57,CRSDATA!P57,CRSDATA!V57)","v":""},{"$f":"CRSDATA!P57","v":0},{"$f":"CRSDATA!J57","v":0},{"$f":"CRSDATA!I57","v":0},null,{"$f":"IF(LEFT(CRSDATA!N57,2)=\"A0\",\"A00\",IF(LEFT(CRSDATA!N57,3)=\"B02\",\"B02\",IF(LEFT(CRSDATA!N57,3)=\"B03\",\"B03\",IF(CRSDATA!N57=\"B04\",\"C01\",IF(CRSDATA!N57=\"H01\",\"H00\",IF(OR(CRSDATA!N57=\"H02\",CRSDATA!N57=\"H03\",CRSDATA!N57=\"H04\",CRSDATA!N57=\"H05\",CRSDATA!N57=\"H06\"),\"I01\",IF(CRSDATA!N57=\"\",\"\",CRSDATA!N57)))))))","v":""},{"$f":"IF(AND(LEN(CRSDATA!M57)=4,LEFT(CRSDATA!M57,3)=\"110\"),1100,IF(AND(LEN(CRSDATA!M57)=4,LEFT(CRSDATA!M57,3)=\"422\"),422,CRSDATA!M57))","v":0},{"$f":"IF(CRSDATA!L57=22,\"FA04\",\"\")","v":""},{"$f":"IF(CRSDATA!K57=8,\"FC02\",\"\")","v":""},{"$f":"_xlfn.IFS(OR(P57=\"A00\",P57=\"E01\",P57=\"F01\",AND(P57=\"\",A57<>0),Q57=510,Q57=520,AF57=60),1,P57=\"G01\",IF(AF57=10,21,22),OR(M57=41203,M57=41204),22,OR(AND(OR(P57=\"B02\",P57=\"B03\"),M57=41310),OR(P57=\"E02\",P57=\"I01\")),21,AND(OR(P57=\"B01\",P57=\"B03\",P57=\"C01\"),M57<>41310),IF(VLOOKUP(F57,recipient_country!AB:AD,3,FALSE)=10024,\"\",1),AND(P57=\"B02\",M57<>41310),IF(VLOOKUP(M57,channel_codes!J:P,7,FALSE)=0,\"\",VLOOKUP(M57,channel_codes!J:P,7,FALSE)),ISNUMBER(MATCH(P57,{\"D01\",\"D02\"},0)),IF(VLOOKUP(M57,channel_codes!J:P,7,FALSE)=1,1,IF(VLOOKUP(F57,recipient_country!AB:AD,3,FALSE)=10024,\"\",1)),OR(P57=\"H01\",AND(OR(ISNUMBER(SEARCH(\"41010\", L57)),ISNUMBER(SEARCH(\"41020\", L57)),ISNUMBER(SEARCH(\"41030\", L57)),ISNUMBER(SEARCH(\"41040\", L57)),ISNUMBER(SEARCH(\"41081\", L57))),F57=998)),22,F57=998,22,TRUE,\"\")","v":""},{"$f":"CRSDATA!AN57","v":0},{"$f":"CRSDATA!AO57","v":0},{"$f":"CRSDATA!AQ57","v":0},{"$f":"CRSDATA!AS57","v":0},{"$f":"CRSDATA!BB57","v":0},null,"",{"$f":"IF(AND(AND(CRSDATA!C57<>\"\",CRSDATA!BK57<>\"\"),OR(CRSDATA!N57=421,CRSDATA!N57=422,CRSDATA!N57=4221,CRSDATA!N57=4222,CRSDATA!N57=423,CRSDATA!N57=424,CRSDATA!N57=425,CRSDATA!N57=431,CRSDATA!N57=433,CRSDATA!N57=434)),DATEDIF(CRSDATA!C57,CRSDATA!BK57,\"m\"),\"\")","v":""},{"$f":"CRSDATA!BA57","v":0},{"$f":"CRSDATA!BC57","v":0},{"$f":"IF(CRSDATA!BT57=\"\",\"\",CRSDATA!BT57)","v":""},{"$f":"CRSDATA!L57","v":0}]
[{"$f":"CRSDATA!A58","v":0},{"$f":"CRSDATA!C58","v":0},{"$f":"CRSDATA!D58","v":0},{"$f":"CRSDATA!F58","v":0},{"$f":"CRSDATA!E58","v":0},{"$f":"IF(CRSDATA!H58=3000,998,CRSDATA!H58)","v":0},{"$f":"CRSDATA!O58","v":0},{"$f":"CRSDATA!U58","v":0},{"$f":"IF(CRSDATA!V58=\"\",\"\",CRSDATA!V58)","v":""},{"$f":"IF(CRSDATA!W58=\"\",\"\",CRSDATA!W58)","v":""},{"$f":"key_row(CRSDATA!X58,CRSDATA!Y58,CRSDATA!AL58,CRSDATA!AK58,CRSDATA!AJ58,CRSDATA!AM58,CRSDATA!P58,CRSDATA!V58)","v":""},{"$f":"CRSDATA!P58","v":0},{"$f":"CRSDATA!J58","v":0},{"$f":"CRSDATA!I58","v":0},null,{"$f":"IF(LEFT(CRSDATA!N58,2)=\"A0\",\"A00\",IF(LEFT(CRSDATA!N58,3)=\"B02\",\"B02\",IF(LEFT(CRSDATA!N58,3)=\"B03\",\"B03\",IF(CRSDATA!N58=\"B04\",\"C01\",IF(CRSDATA!N58=\"H01\",\"H00\",IF(OR(CRSDATA!N58=\"H02\",CRSDATA!N58=\"H03\",CRSDATA!N58=\"H04\",CRSDATA!N58=\"H05\",CRSDATA!N58=\"H06\"),\"I01\",IF(CRSDATA!N58=\"\",\"\",CRSDATA!N58)))))))","v":""},{"$f":"IF(AND(LEN(CRSDATA!M58)=4,LEFT(CRSDATA!M58,3)=\"110\"),1100,IF(AND(LEN(CRSDATA!M58)=4,LEFT(CRSDATA!M58,3)=\"422\"),422,CRSDATA!M58))","v":0},{"$f":"IF(CRSDATA!L58=22,\"FA04\",\"\")","v":""},{"$f":"IF(CRSDATA!K58=8,\"FC02\",\"\")","v":""},{"$f":"_xlfn.IFS(OR(P58=\"A00\",P58=\"E01\",P58=\"F01\",AND(P58=\"\",A58<>0),Q58=510,Q58=520,AF58=60),1,P58=\"G01\",IF(AF58=10,21,22),OR(M58=41203,M58=41204),22,OR(AND(OR(P58=\"B02\",P58=\"B03\"),M58=41310),OR(P58=\"E02\",P58=\"I01\")),21,AND(OR(P58=\"B01\",P58=\"B03\",P58=\"C01\"),M58<>41310),IF(VLOOKUP(F58,recipient_country!AB:AD,3,FALSE)=10024,\"\",1),AND(P58=\"B02\",M58<>41310),IF(VLOOKUP(M58,channel_codes!J:P,7,FALSE)=0,\"\",VLOOKUP(M58,channel_codes!J:P,7,FALSE)),ISNUMBER(MATCH(P58,{\"D01\",\"D02\"},0)),IF(VLOOKUP(M58,channel_codes!J:P,7,FALSE)=1,1,IF(VLOOKUP(F58,recipient_country!AB:AD,3,FALSE)=10024,\"\",1)),OR(P58=\"H01\",AND(OR(ISNUMBER(SEARCH(\"41010\", L58)),ISNUMBER(SEARCH(\"41020\", L58)),ISNUMBER(SEARCH(\"41030\", L58)),ISNUMBER(SEARCH(\"41040\", L58)),ISNUMBER(SEARCH(\"41081\", L58))),F58=998)),22,F58=998,22,TRUE,\"\")","v":""},{"$f":"CRSDATA!AN58","v":0},{"$f":"CRSDATA!AO58","v":0},{"$f":"CRSDATA!AQ58","v":0},{"$f":"CRSDATA!AS58","v":0},{"$f":"CRSDATA!BB58","v":0},null,"",{"$f":"IF(AND(AND(CRSDATA!C58<>\"\",CRSDATA!BK58<>\"\"),OR(CRSDATA!N58=421,CRSDATA!N58=422,CRSDATA!N58=4221,CRSDATA!N58=4222,CRSDATA!N58=423,CRSDATA!N58=424,CRSDATA!N58=425,CRSDATA!N58=431,CRSDATA!N58=433,CRSDATA!N58=434)),DATEDIF(CRSDATA!C58,CRSDATA!BK58,\"m\"),\"\")","v":""},{"$f":"CRSDATA!BA58","v":0},{"$f":"CRSDATA!BC58","v":0},{"$f":"IF(CRSDATA!BT58=\"\",\"\",CRSDATA!BT58)","v":""},{"$f":"CRSDATA!L58","v":0}]
[{"$f":"CRSDATA!A59","v":0},{"$f":"CRSDATA!C59","v":0},{"$f":"CRSDATA!D59","v":0},{"$f":"CRSDATA!F59","v":0},{"$f":"CRSDATA!E59","v":0},{"$f":"IF(CRSDATA!H59=3000,998,CRSDATA!H59)","v":0},{"$f":"CRSDATA!O59","v":0},{"$f":"CRSDATA!U59","v":0},{"$f":"IF(CRSDATA!V59=\"\",\"\",CRSDATA!V59)","v":""},{"$f":"IF(CRSDATA!W59=\"\",\"\",CRSDATA!W59)","v":""},{"$f":"key_row(CRSDATA!X59,CRSDATA!Y59,CRSDATA!AL59,CRSDATA!AK59,CRSDATA!AJ59,CRSDATA!AM59,CRSDATA!P59,CRSDATA!V59)","v":""},{"$f":"CRSDATA!P59","v":0},{"$f":"CRSDATA!J59","v":0},{"$f":"CRSDATA!I59","v":0},null,{"$f":"IF(LEFT(CRSDATA!N59,2)=\"A0\",\"A00\",IF(LEFT(CRSDATA!N59,3)=\"B02\",\"B02\",IF(LEFT(CRSDATA!N59,3)=\"B03\",\"B03\",IF(CRSDATA!N59=\"B04\",\"C01\",IF(CRSDATA!N59=\"H01\",\"H00\",IF(OR(CRSDATA!N59=\"H02\",CRSDATA!N59=\"H03\",CRSDATA!N59=\"H04\",CRSDATA!N59=\"H05\",CRSDATA!N59=\"H06\"),\"I01\",IF(CRSDATA!N59=\"\",\"\",CRSDATA!N59)))))))","v":""},{"$f":"IF(AND(LEN(CRSDATA!M59)=4,LEFT(CRSDATA!M59,3)=\"110\"),1100,IF(AND(LEN(CRSDATA!M59)=4,LEFT(CRSDATA!M59,3)=\"422\"),422,CRSDATA!M59))","v":0},{"$f":"IF(CRSDATA!L59=22,\"FA04\",\"\")","v":""},{"$f":"IF(CRSDATA!K59=8,\"FC02\",\"\")","v":""},{"$f":"_xlfn.IFS(OR(P59=\"A00\",P59=\"E01\",P59=\"F01\",AND(P59=\"\",A59<>0),Q59=510,Q59=520,AF59=60),1,P59=\"G01\",IF(AF59=10,21,22),OR(M59=41203,M59=41204),22,OR(AND(OR(P59=\"B02\",P59=\"B03\"),M59=41310),OR(P59=\"E02\",P59=\"I01\")),21,AND(OR(P59=\"B01\",P59=\"B03\",P59=\"C01\"),M59<>41310),IF(VLOOKUP(F59,recipient_country!AB:AD,3,FALSE)=10024,\"\",1),AND(P59=\"B02\",M59<>41310),IF(VLOOKUP(M59,channel_codes!J:P,7,FALSE)=0,\"\",VLOOKUP(M59,channel_codes!J:P,7,FALSE)),ISNUMBER(MATCH(P59,{\"D01\",\"D02\"},0)),IF(VLOOKUP(M59,channel_codes!J:P,7,FALSE)=1,1,IF(VLOOKUP(F59,recipient_country!AB:AD,3,FALSE)=10024,\"\",1)),OR(P59=\"H01\",AND(OR(ISNUMBER(SEARCH(\"41010\", L59)),ISNUMBER(SEARCH(\"41020\", L59)),ISNUMBER(SEARCH(\"41030\", L59)),ISNUMBER(SEARCH(\"41040\", L59)),ISNUMBER(SEARCH(\"41081\", L59))),F59=998)),22,F59=998,22,TRUE,\"\")","v":""},{"$f":"CRSDATA!AN59","v":0},{"$f":"CRSDATA!AO59","v":0},{"$f":"CRSDATA!AQ59","v":0},{"$f":"CRSDATA!AS59","v":0},{"$f":"CRSDATA!BB59","v":0},null,"",{"$f":"IF(AND(AND(CRSDATA!C59<>\"\",CRSDATA!BK59<>\"\"),OR(CRSDATA!N59=421,CRSDATA!N59=422,CRSDATA!N59=4221,CRSDATA!N59=4222,CRSDATA!N59=423,CRSDATA!N59=424,CRSDATA!N59=425,CRSDATA!N59=431,CRSDATA!N59=433,CRSDATA!N59=434)),DATEDIF(CRSDATA!C59,CRSDATA!BK59,\"m\"),\"\")","v":""},{"$f":"CRSDATA!BA59","v":0},{"$f":"CRSDATA!BC59","v":0},{"$f":"IF(CRSDATA!BT59=\"\",\"\",CRSDATA!BT59)","v":""},{"$f":"CRSDATA!L59","v":0}]
[{"$f":"CRSDATA!A60","v":0},{"$f":"CRSDATA!C60","v":0},{"$f":"CRSDATA!D60","v":0},{"$f":"CRSDATA!F60","v":0},{"$f":"CRSDATA!E60","v":0},{"$f":"IF(CRSDATA!H60=3000,998,CRSDATA!H60)","v":0},{"$f":"CRSDATA!O60","v":0},{"$f":"CRSDATA!U60","v":0},{"$f":"IF(CRSDATA!V60=\"\",\"\",CRSDATA!V60)","v":""},{"$f":"IF(CRSDATA!W60=\"\",\"\",CRSDATA!W60)","v":""},{"$f":"key_row(CRSDATA!X60,CRSDATA!Y60,CRSDATA!AL60,CRSDATA!AK60,CRSDATA!AJ60,CRSDATA!AM60,CRSDATA!P60,CRSDATA!V60)","v":""},{"$f":"CRSDATA!P60","v":0},{"$f":"CRSDATA!J60","v":0},{"$f":"CRSDATA!I60","v":0},null,{"$f":"IF(LEFT(CRSDATA!N60,2)=\"A0\",\"A00\",IF(LEFT(CRSDATA!N60,3)=\"B02\",\"B02\",IF(LEFT(CRSDATA!N60,3)=\"B03\",\"B03\",IF(CRSDATA!N60=\"B04\",\"C01\",IF(CRSDATA!N60=\"H01\",\"H00\",IF(OR(CRSDATA!N60=\"H02\",CRSDATA!N60=\"H03\",CRSDATA!N60=\"H04\",CRSDATA!N60=\"H05\",CRSDATA!N60=\"H06\"),\"I01\",IF(CRSDATA!N60=\"\",\"\",CRSDATA!N60)))))))","v":""},{"$f":"IF(AND(LEN(CRSDATA!M60)=4,LEFT(CRSDATA!M60,3)=\"110\"),1100,IF(AND(LEN(CRSDATA!M60)=4,LEFT(CRSDATA!M60,3)=\"422\"),422,CRSDATA!M60))","v":0},{"$f":"IF(CRSDATA!L60=22,\"FA04\",\"\")","v":""},{"$f":"IF(CRSDATA!K60=8,\"FC02\",\"\")","v":""},{"$f":"_xlfn.IFS(OR(P60=\"A00\",P60=\"E01\",P60=\"F01\",AND(P60=\"\",A60<>0),Q60=510,Q60=520,AF60=60),1,P60=\"G01\",IF(AF60=10,21,22),OR(M60=41203,M60=41204),22,OR(AND(OR(P60=\"B02\",P60=\"B03\"),M60=41310),OR(P60=\"E02\",P60=\"I01\")),21,AND(OR(P60=\"B01\",P60=\"B03\",P60=\"C01\"),M60<>41310),IF(VLOOKUP(F60,recipient_country!AB:AD,3,FALSE)=10024,\"\",1),AND(P60=\"B02\",M60<>41310),IF(VLOOKUP(M60,channel_codes!J:P,7,FALSE)=0,\"\",VLOOKUP(M60,channel_codes!J:P,7,FALSE)),ISNUMBER(MATCH(P60,{\"D01\",\"D02\"},0)),IF(VLOOKUP(M60,channel_codes!J:P,7,FALSE)=1,1,IF(VLOOKUP(F60,recipient_country!AB:AD,3,FALSE)=10024,\"\",1)),OR(P60=\"H01\",AND(OR(ISNUMBER(SEARCH(\"41010\", L60)),ISNUMBER(SEARCH(\"41020\", L60)),ISNUMBER(SEARCH(\"41030\", L60)),ISNUMBER(SEARCH(\"41040\", L60)),ISNUMBER(SEARCH(\"41081\", L60))),F60=998)),22,F60=998,22,TRUE,\"\")","v":""},{"$f":"CRSDATA!AN60","v":0},{"$f":"CRSDATA!AO60","v":0},{"$f":"CRSDATA!AQ60","v":0},{"$f":"CRSDATA!AS60","v":0},{"$f":"CRSDATA!BB60","v":0},null,"",{"$f":"IF(AND(AND(CRSDATA!C60<>\"\",CRSDATA!BK60<>\"\"),OR(CRSDATA!N60=421,CRSDATA!N60=422,CRSDATA!N60=4221,CRSDATA!N60=4222,CRSDATA!N60=423,CRSDATA!N60=424,CRSDATA!N60=425,CRSDATA!N60=431,CRSDATA!N60=433,CRSDATA!N60=434)),DATEDIF(CRSDATA!C60,CRSDATA!BK60,\"m\"),\"\")","v":""},{"$f":"CRSDATA!BA60","v":0},{"$f":"CRSDATA!BC60","v":0},{"$f":"IF(CRSDATA!BT60=\"\",\"\",CRSDATA!BT60)","v":""},{"$f":"CRSDATA!L60","v":0}]
[{"$f":"CRSDATA!A61","v":0},{"$f":"CRSDATA!C61","v":0},{"$f":"CRSDATA!D61","v":0},{"$f":"CRSDATA!F61","v":0},{"$f":"CRSDATA!E61","v":0},{"$f":"IF(CRSDATA!H61=3000,998,CRSDATA!H61)","v":0},{"$f":"CRSDATA!O61","v":0},{"$f":"CRSDATA!U61","v":0},{"$f":"IF(CRSDATA!V61=\"\",\"\",CRSDATA!V61)","v":""},{"$f":"IF(CRSDATA!W61=\"\",\"\",CRSDATA!W61)","v":""},{"$f":"key_row(CRSDATA!X61,CRSDATA!Y61,CRSDATA!AL61,CRSDATA!AK61,CRSDATA!AJ61,CRSDATA!AM61,CRSDATA!P61,CRSDATA!V61)","v":""},{"$f":"CRSDATA!P61","v":0},{"$f":"CRSDATA!J61","v":0},{"$f":"CRSDATA!I61","v":0},null,{"$f":"IF(LEFT(CRSDATA!N61,2)=\"A0\",\"A00\",IF(LEFT(CRSDATA!N61,3)=\"B02\",\"B02\",IF(LEFT(CRSDATA!N61,3)=\"B03\",\"B03\",IF(CRSDATA!N61=\"B04\",\"C01\",IF(CRSDATA!N61=\"H01\",\"H00\",IF(OR(CRSDATA!N61=\"H02\",CRSDATA!N61=\"H03\",CRSDATA!N61=\"H04\",CRSDATA!N61=\"H05\",CRSDATA!N61=\"H06\"),\"I01\",IF(CRSDATA!N61=\"\",\"\",CRSDATA!N61)))))))","v":""},{"$f":"IF(AND(LEN(CRSDATA!M61)=4,LEFT(CRSDATA!M61,3)=\"110\"),1100,IF(AND(LEN(CRSDATA!M61)=4,LEFT(CRSDATA!M61,3)=\"422\"),422,CRSDATA!M61))","v":0},{"$f":"IF(CRSDATA!L61=22,\"FA04\",\"\")","v":""},{"$f":"IF(CRSDATA!K61=8,\"FC02\",\"\")","v":""},{"$f":"_xlfn.IFS(OR(P61=\"A00\",P61=\"E01\",P61=\"F01\",AND(P61=\"\",A61<>0),Q61=510,Q61=520,AF61=60),1,P61=\"G01\",IF(AF61=10,21,22),OR(M61=41203,M61=41204),22,OR(AND(OR(P61=\"B02\",P61=\"B03\"),M61=41310),OR(P61=\"E02\",P61=\"I01\")),21,AND(OR(P61=\"B01\",P61=\"B03\",P61=\"C01\"),M61<>41310),IF(VLOOKUP(F61,recipient_country!AB:AD,3,FALSE)=10024,\"\",1),AND(P61=\"B02\",M61<>41310),IF(VLOOKUP(M61,channel_codes!J:P,7,FALSE)=0,\"\",VLOOKUP(M61,channel_codes!J:P,7,FALSE)),ISNUMBER(MATCH(P61,{\"D01\",\"D02\"},0)),IF(VLOOKUP(M61,channel_codes!J:P,7,FALSE)=1,1,IF(VLOOKUP(F61,recipient_country!AB:AD,3,FALSE)=10024,\"\",1)),OR(P61=\"H01\",AND(OR(ISNUMBER(SEARCH(\"41010\", L61)),ISNUMBER(SEARCH(\"41020\", L61)),ISNUMBER(SEARCH(\"41030\", L61)),ISNUMBER(SEARCH(\"41040\", L61)),ISNUMBER(SEARCH(\"41081\", L61))),F61=998)),22,F61=998,22,TRUE,\"\")","v":""},{"$f":"CRSDATA!AN61","v":0},{"$f":"CRSDATA!AO61","v":0},{"$f":"CRSDATA!AQ61","v":0},{"$f":"CRSDATA!AS61","v":0},{"$f":"CRSDATA!BB61","v":0},null,"",{"$f":"IF(AND(AND(CRSDATA!C61<>\"\",CRSDATA!BK61<>\"\"),OR(CRSDATA!N61=421,CRSDATA!N61=422,CRSDATA!N61=4221,CRSDATA!N61=4222,CRSDATA!N61=423,CRSDATA!N61=424,CRSDATA!N61=425,CRSDATA!N61=431,CRSDATA!N61=433,CRSDATA!N61=434)),DATEDIF(CRSDATA!C61,CRSDATA!BK61,\"m\"),\"\")","v":""},{"$f":"CRSDATA!BA61","v":0},{"$f":"CRSDATA!BC61","v":0},{"$f":"IF(CRSDATA!BT61=\"\",\"\",CRSDATA!BT61)","v":""},{"$f":"CRSDATA!L61","v":0}]
[{"$f":"CRSDATA!A62","v":0},{"$f":"CRSDATA!C62","v":0},{"$f":"CRSDATA!D62","v":0},{"$f":"CRSDATA!F62","v":0},{"$f":"CRSDATA!E62","v":0},{"$f":"IF(CRSDATA!H62=3000,998,CRSDATA!H62)","v":0},{"$f":"CRSDATA!O62","v":0},{"$f":"CRSDATA!U62","v":0},{"$f":"IF(CRSDATA!V62=\"\",\"\",CRSDATA!V62)","v":""},{"$f":"IF(CRSDATA!W62=\"\",\"\",CRSDATA!W62)","v":""},{"$f":"key_row(CRSDATA!X62,CRSDATA!Y62,CRSDATA!AL62,CRSDATA!AK62,CRSDATA!AJ62,CRSDATA!AM62,CRSDATA!P62,CRSDATA!V62)","v":""},{"$f":"CRSDATA!P62","v":0},{"$f":"CRSDATA!J62","v":0},{"$f":"CRSDATA!I62","v":0},null,{"$f":"IF(LEFT(CRSDATA!N62,2)=\"A0\",\"A00\",IF(LEFT(CRSDATA!N62,3)=\"B02\",\"B02\",IF(LEFT(CRSDATA!N62,3)=\"B03\",\"B03\",IF(CRSDATA!N62=\"B04\",\"C01\",IF(CRSDATA!N62=\"H01\",\"H00\",IF(OR(CRSDATA!N62=\"H02\",CRSDATA!N62=\"H03\",CRSDATA!N62=\"H04\",CRSDATA!N62=\"H05\",CRSDATA!N62=\"H06\"),\"I01\",IF(CRSDATA!N62=\"\",\"\",CRSDATA!N62)))))))","v":""},{"$f":"IF(AND(LEN(CRSDATA!M62)=4,LEFT(CRSDATA!M62,3)=\"110\"),1100,IF(AND(LEN(CRSDATA!M62)=4,LEFT(CRSDATA!M62,3)=\"422\"),422,CRSDATA!M62))","v":0},{"$f":"IF(CRSDATA!L62=22,\"FA04\",\"\")","v":""},{"$f":"IF(CRSDATA!K62=8,\"FC02\",\"\")","v":""},{"$f":"_xlfn.IFS(OR(P62=\"A00\",P62=\"E01\",P62=\"F01\",AND(P62=\"\",A62<>0),Q62=510,Q62=520,AF62=60),1,P62=\"G01\",IF(AF62=10,21,22),OR(M62=41203,M62=41204),22,OR(AND(OR(P62=\"B02\",P62=\"B03\"),M62=41310),OR(P62=\"E02\",P62=\"I01\")),21,AND(OR(P62=\"B01\",P62=\"B03\",P62=\"C01\"),M62<>41310),IF(VLOOKUP(F62,recipient_country!AB:AD,3,FALSE)=10024,\"\",1),AND(P62=\"B02\",M62<>41310),IF(VLOOKUP(M62,channel_codes!J:P,7,FALSE)=0,\"\",VLOOKUP(M62,channel_codes!J:P,7,FALSE)),ISNUMBER(MATCH(P62,{\"D01\",\"D02\"},0)),IF(VLOOKUP(M62,channel_codes!J:P,7,FALSE)=1,1,IF(VLOOKUP(F62,recipient_country!AB:AD,3,FALSE)=10024,\"\",1)),OR(P62=\"H01\",AND(OR(ISNUMBER(SEARCH(\"41010\", L62)),ISNUMBER(SEARCH(\"41020\", L62)),ISNUMBER(SEARCH(\"41030\", L62)),ISNUMBER(SEARCH(\"41040\", L62)),ISNUMBER(SEARCH(\"41081\", L62))),F62=998)),22,F62=998,22,TRUE,\"\")","v":""},{"$f":"CRSDATA!AN62","v":0},{"$f":"CRSDATA!AO62","v":0},{"$f":"CRSDATA!AQ62","v":0},{"$f":"CRSDATA!AS62","v":0},{"$f":"CRSDATA!BB62","v":0},null,"",{"$f":"IF(AND(AND(CRSDATA!C62<>\"\",CRSDATA!BK62<>\"\"),OR(CRSDATA!N62=421,CRSDATA!N62=422,CRSDATA!N62=4221,CRSDATA!N62=4222,CRSDATA!N62=423,CRSDATA!N62=424,CRSDATA!N62=425,CRSDATA!N62=431,CRSDATA!N62=433,CRSDATA!N62=434)),DATEDIF(CRSDATA!C62,CRSDATA!BK62,\"m\"),\"\")","v":""},{"$f":"CRSDATA!BA62","v":0},{"$f":"CRSDATA!BC62","v":0},{"$f":"IF(CRSDATA!BT62=\"\",\"\",CRSDATA!BT62)","v":""},{"$f":"CRSDATA!L62","v":0}]
[{"$f":"CRSDATA!A63","v":0},{"$f":"CRSDATA!C63","v":0},{"$f":"CRSDATA!D63","v":0},{"$f":"CRSDATA!F63","v":0},{"$f":"CRSDATA!E63","v":0},{"$f":"IF(CRSDATA!H63=3000,998,CRSDATA!H63)","v":0},{"$f":"CRSDATA!O63","v":0},{"$f":"CRSDATA!U63","v":0},{"$f":"IF(CRSDATA!V63=\"\",\"\",CRSDATA!V63)","v":""},{"$f":"IF(CRSDATA!W63=\"\",\"\",CRSDATA!W63)","v":""},{"$f":"key_row(CRSDATA!X63,CRSDATA!Y63,CRSDATA!AL63,CRSDATA!AK63,CRSDATA!AJ63,CRSDATA!AM63,CRSDATA!P63,CRSDATA!V63)","v":""},{"$f":"CRSDATA!P63","v":0},{"$f":"CRSDATA!J63","v":0},{"$f":"CRSDATA!I63","v":0},null,{"$f":"IF(LEFT(CRSDATA!N63,2)=\"A0\",\"A00\",IF(LEFT(CRSDATA!N63,3)=\"B02\",\"B02\",IF(LEFT(CRSDATA!N63,3)=\"B03\",\"B03\",IF(CRSDATA!N63=\"B04\",\"C01\",IF(CRSDATA!N63=\"H01\",\"H00\",IF(OR(CRSDATA!N63=\"H02\",CRSDATA!N63=\"H03\",CRSDATA!N63=\"H04\",CRSDATA!N63=\"H05\",CRSDATA!N63=\"H06\"),\"I01\",IF(CRSDATA!N63=\"\",\"\",CRSDATA!N63)))))))","v":""},{"$f":"IF(AND(LEN(CRSDATA!M63)=4,LEFT(CRSDATA!M63,3)=\"110\"),1100,IF(AND(LEN(CRSDATA!M63)=4,LEFT(CRSDATA!M63,3)=\"422\"),422,CRSDATA!M63))","v":0},{"$f":"IF(CRSDATA!L63=22,\"FA04\",\"\")","v":""},{"$f":"IF(CRSDATA!K63=8,\"FC02\",\"\")","v":""},{"$f":"_xlfn.IFS(OR(P63=\"A00\",P63=\"E01\",P63=\"F01\",AND(P63=\"\",A63<>0),Q63=510,Q63=520,AF63=60),1,P63=\"G01\",IF(AF63=10,21,22),OR(M63=41203,M63=41204),22,OR(AND(OR(P63=\"B02\",P63=\"B03\"),M63=41310),OR(P63=\"E02\",P63=\"I01\")),21,AND(OR(P63=\"B01\",P63=\"B03\",P63=\"C01\"),M63<>41310),IF(VLOOKUP(F63,recipient_country!AB:AD,3,FALSE)=10024,\"\",1),AND(P63=\"B02\",M63<>41310),IF(VLOOKUP(M63,channel_codes!J:P,7,FALSE)=0,\"\",VLOOKUP(M63,channel_codes!J:P,7,FALSE)),ISNUMBER(MATCH(P63,{\"D01\",\"D02\"},0)),IF(VLOOKUP(M63,channel_codes!J:P,7,FALSE)=1,1,IF(VLOOKUP(F63,recipient_country!AB:AD,3,FALSE)=10024,\"\",1)),OR(P63=\"H01\",AND(OR(ISNUMBER(SEARCH(\"41010\", L63)),ISNUMBER(SEARCH(\"41020\", L63)),ISNUMBER(SEARCH(\"41030\", L63)),ISNUMBER(SEARCH(\"41040\", L63)),ISNUMBER(SEARCH(\"41081\", L63))),F63=998)),22,F63=998,22,TRUE,\"\")","v":""},{"$f":"CRSDATA!AN63","v":0},{"$f":"CRSDATA!AO63","v":0},{"$f":"CRSDATA!AQ63","v":0},{"$f":"CRSDATA!AS63","v":0},{"$f":"CRSDATA!BB63","v":0},null,"",{"$f":"IF(AND(AND(CRSDATA!C63<>\"\",CRSDATA!BK63<>\"\"),OR(CRSDATA!N63=421,CRSDATA!N63=422,CRSDATA!N63=4221,CRSDATA!N63=4222,CRSDATA!N63=423,CRSDATA!N63=424,CRSDATA!N63=425,CRSDATA!N63=431,CRSDATA!N63=433,CRSDATA!N63=434)),DATEDIF(CRSDATA!C63,CRSDATA!BK63,\"m\"),\"\")","v":""},{"$f":"CRSDATA!BA63","v":0},{"$f":"CRSDATA!BC63","v":0},{"$f":"IF(CRSDATA!BT63=\"\",\"\",CRSDATA!BT63)","v":""},{"$f":"CRSDATA!L63","v":0}]
[{"$f":"CRSDATA!A64","v":0},{"$f":"CRSDATA!C64","v":0},{"$f":"CRSDATA!D64","v":0},{"$f":"CRSDATA!F64","v":0},{"$f":"CRSDATA!E64","v":0},{"$f":"IF(CRSDATA!H64=3000,998,CRSDATA!H64)","v":0},{"$f":"CRSDATA!O64","v":0},{"$f":"CRSDATA!U64","v":0},{"$f":"IF(CRSDATA!V64=\"\",\"\",CRSDATA!V64)","v":""},{"$f":"IF(CRSDATA!W64=\"\",\"\",CRSDATA!W64)","v":""},{"$f":"key_row(CRSDATA!X64,CRSDATA!Y64,CRSDATA!AL64,CRSDATA!AK64,CRSDATA!AJ64,CRSDATA!AM64,CRSDATA!P64,CRSDATA!V64)","v":""},{"$f":"CRSDATA!P64","v":0},{"$f":"CRSDATA!J64","v":0},{"$f":"CRSDATA!I64","v":0},null,{"$f":"IF(LEFT(CRSDATA!N64,2)=\"A0\",\"A00\",IF(LEFT(CRSDATA!N64,3)=\"B02\",\"B02\",IF(LEFT(CRSDATA!N64,3)=\"B03\",\"B03\",IF(CRSDATA!N64=\"B04\",\"C01\",IF(CRSDATA!N64=\"H01\",\"H00\",IF(OR(CRSDATA!N64=\"H02\",CRSDATA!N64=\"H03\",CRSDATA!N64=\"H04\",CRSDATA!N64=\"H05\",CRSDATA!N64=\"H06\"),\"I01\",IF(CRSDATA!N64=\"\",\"\",CRSDATA!N64)))))))","v":""},{"$f":"IF(AND(LEN(CRSDATA!M64)=4,LEFT(CRSDATA!M64,3)=\"110\"),1100,IF(AND(LEN(CRSDATA!M64)=4,LEFT(CRSDATA!M64,3)=\"422\"),422,CRSDATA!M64))","v":0},{"$f":"IF(CRSDATA!L64=22,\"FA04\",\"\")","v":""},{"$f":"IF(CRSDATA!K64=8,\"FC02\",\"\")","v":""},{"$f":"_xlfn.IFS(OR(P64=\"A00\",P64=\"E01\",P64=\"F01\",AND(P64=\"\",A64<>0),Q64=510,Q64=520,AF64=60),1,P64=\"G01\",IF(AF64=10,21,22),OR(M64=41203,M64=41204),22,OR(AND(OR(P64=\"B02\",P64=\"B03\"),M64=41310),OR(P64=\"E02\",P64=\"I01\")),21,AND(OR(P64=\"B01\",P64=\"B03\",P64=\"C01\"),M64<>41310),IF(VLOOKUP(F64,recipient_country!AB:AD,3,FALSE)=10024,\"\",1),AND(P64=\"B02\",M64<>41310),IF(VLOOKUP(M64,channel_codes!J:P,7,FALSE)=0,\"\",VLOOKUP(M64,channel_codes!J:P,7,FALSE)),ISNUMBER(MATCH(P64,{\"D01\",\"D02\"},0)),IF(VLOOKUP(M64,channel_codes!J:P,7,FALSE)=1,1,IF(VLOOKUP(F64,recipient_country!AB:AD,3,FALSE)=10024,\"\",1)),OR(P64=\"H01\",AND(OR(ISNUMBER(SEARCH(\"41010\", L64)),ISNUMBER(SEARCH(\"41020\", L64)),ISNUMBER(SEARCH(\"41030\", L64)),ISNUMBER(SEARCH(\"41040\", L64)),ISNUMBER(SEARCH(\"41081\", L64))),F64=998)),22,F64=998,22,TRUE,\"\")","v":""},{"$f":"CRSDATA!AN64","v":0},{"$f":"CRSDATA!AO64","v":0},{"$f":"CRSDATA!AQ64","v":0},{"$f":"CRSDATA!AS64","v":0},{"$f":"CRSDATA!BB64","v":0},null,"",{"$f":"IF(AND(AND(CRSDATA!C64<>\"\",CRSDATA!BK64<>\"\"),OR(CRSDATA!N64=421,CRSDATA!N64=422,CRSDATA!N64=4221,CRSDATA!N64=4222,CRSDATA!N64=423,CRSDATA!N64=424,CRSDATA!N64=425,CRSDATA!N64=431,CRSDATA!N64=433,CRSDATA!N64=434)),DATEDIF(CRSDATA!C64,CRSDATA!BK64,\"m\"),\"\")","v":""},{"$f":"CRSDATA!BA64","v":0},{"$f":"CRSDATA!BC64","v":0},{"$f":"IF(CRSDATA!BT64=\"\",\"\",CRSDATA!BT64)","v":""},{"$f":"CRSDATA!L64","v":0}]
[{"$f":"CRSDATA!A65","v":0},{"$f":"CRSDATA!C65","v":0},{"$f":"CRSDATA!D65","v":0},{"$f":"CRSDATA!F65","v":0},{"$f":"CRSDATA!E65","v":0},{"$f":"IF(CRSDATA!H65=3000,998,CRSDATA!H65)","v":0},{"$f":"CRSDATA!O65","v":0},{"$f":"CRSDATA!U65","v":0},{"$f":"IF(CRSDATA!V65=\"\",\"\",CRSDATA!V65)","v":""},{"$f":"IF(CRSDATA!W65=\"\",\"\",CRSDATA!W65)","v":""},{"$f":"key_row(CRSDATA!X65,CRSDATA!Y65,CRSDATA!AL65,CRSDATA!AK65,CRSDATA!AJ65,CRSDATA!AM65,CRSDATA!P65,CRSDATA!V65)","v":""},{"$f":"CRSDATA!P65","v":0},{"$f":"CRSDATA!J65","v":0},{"$f":"CRSDATA!I65","v":0},null,{"$f":"IF(LEFT(CRSDATA!N65,2)=\"A0\",\"A00\",IF(LEFT(CRSDATA!N65,3)=\"B02\",\"B02\",IF(LEFT(CRSDATA!N65,3)=\"B03\",\"B03\",IF(CRSDATA!N65=\"B04\",\"C01\",IF(CRSDATA!N65=\"H01\",\"H00\",IF(OR(CRSDATA!N65=\"H02\",CRSDATA!N65=\"H03\",CRSDATA!N65=\"H04\",CRSDATA!N65=\"H05\",CRSDATA!N65=\"H06\"),\"I01\",IF(CRSDATA!N65=\"\",\"\",CRSDATA!N65)))))))","v":""},{"$f":"IF(AND(LEN(CRSDATA!M65)=4,LEFT(CRSDATA!M65,3)=\"110\"),1100,IF(AND(LEN(CRSDATA!M65)=4,LEFT(CRSDATA!M65,3)=\"422\"),422,CRSDATA!M65))","v":0},{"$f":"IF(CRSDATA!L65=22,\"FA04\",\"\")","v":""},{"$f":"IF(CRSDATA!K65=8,\"FC02\",\"\")","v":""},{"$f":"_xlfn.IFS(OR(P65=\"A00\",P65=\"E01\",P65=\"F01\",AND(P65=\"\",A65<>0),Q65=510,Q65=520,AF65=60),1,P65=\"G01\",IF(AF65=10,21,22),OR(M65=41203,M65=41204),22,OR(AND(OR(P65=\"B02\",P65=\"B03\"),M65=41310),OR(P65=\"E02\",P65=\"I01\")),21,AND(OR(P65=\"B01\",P65=\"B03\",P65=\"C01\"),M65<>41310),IF(VLOOKUP(F65,recipient_country!AB:AD,3,FALSE)=10024,\"\",1),AND(P65=\"B02\",M65<>41310),IF(VLOOKUP(M65,channel_codes!J:P,7,FALSE)=0,\"\",VLOOKUP(M65,channel_codes!J:P,7,FALSE)),ISNUMBER(MATCH(P65,{\"D01\",\"D02\"},0)),IF(VLOOKUP(M65,channel_codes!J:P,7,FALSE)=1,1,IF(VLOOKUP(F65,recipient_country!AB:AD,3,FALSE)=10024,\"\",1)),OR(P65=\"H01\",AND(OR(ISNUMBER(SEARCH(\"41010\", L65)),ISNUMBER(SEARCH(\"41020\", L65)),ISNUMBER(SEARCH(\"41030\", L65)),ISNUMBER(SEARCH(\"41040\", L65)),ISNUMBER(SEARCH(\"41081\", L65))),F65=998)),22,F65=998,22,TRUE,\"\")","v":""},{"$f":"CRSDATA!AN65","v":0},{"$f":"CRSDATA!AO65","v":0},{"$f":"CRSDATA!AQ65","v":0},{"$f":"CRSDATA!AS65","v":0},{"$f":"CRSDATA!BB65","v":0},null,"",{"$f":"IF(AND(AND(CRSDATA!C65<>\"\",CRSDATA!BK65<>\"\"),OR(CRSDATA!N65=421,CRSDATA!N65=422,CRSDATA!N65=4221,CRSDATA!N65=4222,CRSDATA!N65=423,CRSDATA!N65=424,CRSDATA!N65=425,CRSDATA!N65=431,CRSDATA!N65=433,CRSDATA!N65=434)),DATEDIF(CRSDATA!C65,CRSDATA!BK65,\"m\"),\"\")","v":""},{"$f":"CRSDATA!BA65","v":0},{"$f":"CRSDATA!BC65","v":0},{"$f":"IF(CRSDATA!BT65=\"\",\"\",CRSDATA!BT65)","v":""},{"$f":"CRSDATA!L65","v":0}]
[{"$f":"CRSDATA!A66","v":0},{"$f":"CRSDATA!C66","v":0},{"$f":"CRSDATA!D66","v":0},{"$f":"CRSDATA!F66","v":0},{"$f":"CRSDATA!E66","v":0},{"$f":"IF(CRSDATA!H66=3000,998,CRSDATA!H66)","v":0},{"$f":"CRSDATA!O66","v":0},{"$f":"CRSDATA!U66","v":0},{"$f":"IF(CRSDATA!V66=\"\",\"\",CRSDATA!V66)","v":""},{"$f":"IF(CRSDATA!W66=\"\",\"\",CRSDATA!W66)","v":""},{"$f":"key_row(CRSDATA!X66,CRSDATA!Y66,CRSDATA!AL66,CRSDATA!AK66,CRSDATA!AJ66,CRSDATA!AM66,CRSDATA!P66,CRSDATA!V66)","v":""},{"$f":"CRSDATA!P66","v":0},{"$f":"CRSDATA!J66","v":0},{"$f":"CRSDATA!I66","v":0},null,{"$f":"IF(LEFT(CRSDATA!N66,2)=\"A0\",\"A00\",IF(LEFT(CRSDATA!N66,3)=\"B02\",\"B02\",IF(LEFT(CRSDATA!N66,3)=\"B03\",\"B03\",IF(CRSDATA!N66=\"B04\",\"C01\",IF(CRSDATA!N66=\"H01\",\"H00\",IF(OR(CRSDATA!N66=\"H02\",CRSDATA!N66=\"H03\",CRSDATA!N66=\"H04\",CRSDATA!N66=\"H05\",CRSDATA!N66=\"H06\"),\"I01\",IF(CRSDATA!N66=\"\",\"\",CRSDATA!N66)))))))","v":""},{"$f":"IF(AND(LEN(CRSDATA!M66)=4,LEFT(CRSDATA!M66,3)=\"110\"),1100,IF(AND(LEN(CRSDATA!M66)=4,LEFT(CRSDATA!M66,3)=\"422\"),422,CRSDATA!M66))","v":0},{"$f":"IF(CRSDATA!L66=22,\"FA04\",\"\")","v":""},{"$f":"IF(CRSDATA!K66=8,\"FC02\",\"\")","v":""},{"$f":"_xlfn.IFS(OR(P66=\"A00\",P66=\"E01\",P66=\"F01\",AND(P66=\"\",A66<>0),Q66=510,Q66=520,AF66=60),1,P66=\"G01\",IF(AF66=10,21,22),OR(M66=41203,M66=41204),22,OR(AND(OR(P66=\"B02\",P66=\"B03\"),M66=41310),OR(P66=\"E02\",P66=\"I01\")),21,AND(OR(P66=\"B01\",P66=\"B03\",P66=\"C01\"),M66<>41310),IF(VLOOKUP(F66,recipient_country!AB:AD,3,FALSE)=10024,\"\",1),AND(P66=\"B02\",M66<>41310),IF(VLOOKUP(M66,channel_codes!J:P,7,FALSE)=0,\"\",VLOOKUP(M66,channel_codes!J:P,7,FALSE)),ISNUMBER(MATCH(P66,{\"D01\",\"D02\"},0)),IF(VLOOKUP(M66,channel_codes!J:P,7,FALSE)=1,1,IF(VLOOKUP(F66,recipient_country!AB:AD,3,FALSE)=10024,\"\",1)),OR(P66=\"H01\",AND(OR(ISNUMBER(SEARCH(\"41010\", L66)),ISNUMBER(SEARCH(\"41020\", L66)),ISNUMBER(SEARCH(\"41030\", L66)),ISNUMBER(SEARCH(\"41040\", L66)),ISNUMBER(SEARCH(\"41081\", L66))),F66=998)),22,F66=998,22,TRUE,\"\")","v":""},{"$f":"CRSDATA!AN66","v":0},{"$f":"CRSDATA!AO66","v":0},{"$f":"CRSDATA!AQ66","v":0},{"$f":"CRSDATA!AS66","v":0},{"$f":"CRSDATA!BB66","v":0},null,"",{"$f":"IF(AND(AND(CRSDATA!C66<>\"\",CRSDATA!BK66<>\"\"),OR(CRSDATA!N66=421,CRSDATA!N66=422,CRSDATA!N66=4221,CRSDATA!N66=4222,CRSDATA!N66=423,CRSDATA!N66=424,CRSDATA!N66=425,CRSDATA!N66=431,CRSDATA!N66=433,CRSDATA!N66=434)),DATEDIF(CRSDATA!C66,CRSDATA!BK66,\"m\"),\"\")","v":""},{"$f":"CRSDATA!BA66","v":0},{"$f":"CRSDATA!BC66","v":0},{"$f":"IF(CRSDATA!BT66=\"\",\"\",CRSDATA!BT66)","v":""},{"$f":"CRSDATA!L66","v":0}]
[{"$f":"CRSDATA!A67","v":0},{"$f":"CRSDATA!C67","v":0},{"$f":"CRSDATA!D67","v":0},{"$f":"CRSDATA!F67","v":0},{"$f":"CRSDATA!E67","v":0},{"$f":"IF(CRSDATA!H67=3000,998,CRSDATA!H67)","v":0},{"$f":"CRSDATA!O67","v":0},{"$f":"CRSDATA!U67","v":0},{"$f":"IF(CRSDATA!V67=\"\",\"\",CRSDATA!V67)","v":""},{"$f":"IF(CRSDATA!W67=\"\",\"\",CRSDATA!W67)","v":""},{"$f":"key_row(CRSDATA!X67,CRSDATA!Y67,CRSDATA!AL67,CRSDATA!AK67,CRSDATA!AJ67,CRSDATA!AM67,CRSDATA!P67,CRSDATA!V67)","v":""},{"$f":"CRSDATA!P67","v":0},{"$f":"CRSDATA!J67","v":0},{"$f":"CRSDATA!I67","v":0},null,{"$f":"IF(LEFT(CRSDATA!N67,2)=\"A0\",\"A00\",IF(LEFT(CRSDATA!N67,3)=\"B02\",\"B02\",IF(LEFT(CRSDATA!N67,3)=\"B03\",\"B03\",IF(CRSDATA!N67=\"B04\",\"C01\",IF(CRSDATA!N67=\"H01\",\"H00\",IF(OR(CRSDATA!N67=\"H02\",CRSDATA!N67=\"H03\",CRSDATA!N67=\"H04\",CRSDATA!N67=\"H05\",CRSDATA!N67=\"H06\"),\"I01\",IF(CRSDATA!N67=\"\",\"\",CRSDATA!N67)))))))","v":""},{"$f":"IF(AND(LEN(CRSDATA!M67)=4,LEFT(CRSDATA!M67,3)=\"110\"),1100,IF(AND(LEN(CRSDATA!M67)=4,LEFT(CRSDATA!M67,3)=\"422\"),422,CRSDATA!M67))","v":0},{"$f":"IF(CRSDATA!L67=22,\"FA04\",\"\")","v":""},{"$f":"IF(CRSDATA!K67=8,\"FC02\",\"\")","v":""},{"$f":"_xlfn.IFS(OR(P67=\"A00\",P67=\"E01\",P67=\"F01\",AND(P67=\"\",A67<>0),Q67=510,Q67=520,AF67=60),1,P67=\"G01\",IF(AF67=10,21,22),OR(M67=41203,M67=41204),22,OR(AND(OR(P67=\"B02\",P67=\"B03\"),M67=41310),OR(P67=\"E02\",P67=\"I01\")),21,AND(OR(P67=\"B01\",P67=\"B03\",P67=\"C01\"),M67<>41310),IF(VLOOKUP(F67,recipient_country!AB:AD,3,FALSE)=10024,\"\",1),AND(P67=\"B02\",M67<>41310),IF(VLOOKUP(M67,channel_codes!J:P,7,FALSE)=0,\"\",VLOOKUP(M67,channel_codes!J:P,7,FALSE)),ISNUMBER(MATCH(P67,{\"D01\",\"D02\"},0)),IF(VLOOKUP(M67,channel_codes!J:P,7,FALSE)=1,1,IF(VLOOKUP(F67,recipient_country!AB:AD,3,FALSE)=10024,\"\",1)),OR(P67=\"H01\",AND(OR(ISNUMBER(SEARCH(\"41010\", L67)),ISNUMBER(SEARCH(\"41020\", L67)),ISNUMBER(SEARCH(\"41030\", L67)),ISNUMBER(SEARCH(\"41040\", L67)),ISNUMBER(SEARCH(\"41081\", L67))),F67=998)),22,F67=998,22,TRUE,\"\")","v":""},{"$f":"CRSDATA!AN67","v":0},{"$f":"CRSDATA!AO67","v":0},{"$f":"CRSDATA!AQ67","v":0},{"$f":"CRSDATA!AS67","v":0},{"$f":"CRSDATA!BB67","v":0},null,"",{"$f":"IF(AND(AND(CRSDATA!C67<>\"\",CRSDATA!BK67<>\"\"),OR(CRSDATA!N67=421,CRSDATA!N67=422,CRSDATA!N67=4221,CRSDATA!N67=4222,CRSDATA!N67=423,CRSDATA!N67=424,CRSDATA!N67=425,CRSDATA!N67=431,CRSDATA!N67=433,CRSDATA!N67=434)),DATEDIF(CRSDATA!C67,CRSDATA!BK67,\"m\"),\"\")","v":""},{"$f":"CRSDATA!BA67","v":0},{"$f":"CRSDATA!BC67","v":0},{"$f":"IF(CRSDATA!BT67=\"\",\"\",CRSDATA!BT67)","v":""},{"$f":"CRSDATA!L67","v":0}]
[{"$f":"CRSDATA!A68","v":0},{"$f":"CRSDATA!C68","v":0},{"$f":"CRSDATA!D68","v":0},{"$f":"CRSDATA!F68","v":0},{"$f":"CRSDATA!E68","v":0},{"$f":"IF(CRSDATA!H68=3000,998,CRSDATA!H68)","v":0},{"$f":"CRSDATA!O68","v":0},{"$f":"CRSDATA!U68","v":0},{"$f":"IF(CRSDATA!V68=\"\",\"\",CRSDATA!V68)","v":""},{"$f":"IF(CRSDATA!W68=\"\",\"\",CRSDATA!W68)","v":""},{"$f":"key_row(CRSDATA!X68,CRSDATA!Y68,CRSDATA!AL68,CRSDATA!AK68,CRSDATA!AJ68,CRSDATA!AM68,CRSDATA!P68,CRSDATA!V68)","v":""},{"$f":"CRSDATA!P68","v":0},{"$f":"CRSDATA!J68","v":0},{"$f":"CRSDATA!I68","v":0},null,{"$f":"IF(LEFT(CRSDATA!N68,2)=\"A0\",\"A00\",IF(LEFT(CRSDATA!N68,3)=\"B02\",\"B02\",IF(LEFT(CRSDATA!N68,3)=\"B03\",\"B03\",IF(CRSDATA!N68=\"B04\",\"C01\",IF(CRSDATA!N68=\"H01\",\"H00\",IF(OR(CRSDATA!N68=\"H02\",CRSDATA!N68=\"H03\",CRSDATA!N68=\"H04\",CRSDATA!N68=\"H05\",CRSDATA!N68=\"H06\"),\"I01\",IF(CRSDATA!N68=\"\",\"\",CRSDATA!N68)))))))","v":""},{"$f":"IF(AND(LEN(CRSDATA!M68)=4,LEFT(CRSDATA!M68,3)=\"110\"),1100,IF(AND(LEN(CRSDATA!M68)=4,LEFT(CRSDATA!M68,3)=\"422\"),422,CRSDATA!M68))","v":0},{"$f":"IF(CRSDATA!L68=22,\"FA04\",\"\")","v":""},{"$f":"IF(CRSDATA!K68=8,\"FC02\",\"\")","v":""},{"$f":"_xlfn.IFS(OR(P68=\"A00\",P68=\"E01\",P68=\"F01\",AND(P68=\"\",A68<>0),Q68=510,Q68=520,AF68=60),1,P68=\"G01\",IF(AF68=10,21,22),OR(M68=41203,M68=41204),22,OR(AND(OR(P68=\"B02\",P68=\"B03\"),M68=41310),OR(P68=\"E02\",P68=\"I01\")),21,AND(OR(P68=\"B01\",P68=\"B03\",P68=\"C01\"),M68<>41310),IF(VLOOKUP(F68,recipient_country!AB:AD,3,FALSE)=10024,\"\",1),AND(P68=\"B02\",M68<>41310),IF(VLOOKUP(M68,channel_codes!J:P,7,FALSE)=0,\"\",VLOOKUP(M68,channel_codes!J:P,7,FALSE)),ISNUMBER(MATCH(P68,{\"D01\",\"D02\"},0)),IF(VLOOKUP(M68,channel_codes!J:P,7,FALSE)=1,1,IF(VLOOKUP(F68,recipient_country!AB:AD,3,FALSE)=10024,\"\",1)),OR(P68=\"H01\",AND(OR(ISNUMBER(SEARCH(\"41010\", L68)),ISNUMBER(SEARCH(\"41020\", L68)),ISNUMBER(SEARCH(\"41030\", L68)),ISNUMBER(SEARCH(\"41040\", L68)),ISNUMBER(SEARCH(\"41081\", L68))),F68=998)),22,F68=998,22,TRUE,\"\")","v":""},{"$f":"CRSDATA!AN68","v":0},{"$f":"CRSDATA!AO68","v":0},{"$f":"CRSDATA!AQ68","v":0},{"$f":"CRSDATA!AS68","v":0},{"$f":"CRSDATA!BB68","v":0},null,"",{"$f":"IF(AND(AND(CRSDATA!C68<>\"\",CRSDATA!BK68<>\"\"),OR(CRSDATA!N68=421,CRSDATA!N68=422,CRSDATA!N68=4221,CRSDATA!N68=4222,CRSDATA!N68=423,CRSDATA!N68=424,CRSDATA!N68=425,CRSDATA!N68=431,CRSDATA!N68=433,CRSDATA!N68=434)),DATEDIF(CRSDATA!C68,CRSDATA!BK68,\"m\"),\"\")","v":""},{"$f":"CRSDATA!BA68","v":0},{"$f":"CRSDATA!BC68","v":0},{"$f":"IF(CRSDATA!BT68=\"\",\"\",CRSDATA!BT68)","v":""},{"$f":"CRSDATA!L68","v":0}]
[{"$f":"CRSDATA!A69","v":0},{"$f":"CRSDATA!C69","v":0},{"$f":"CRSDATA!D69","v":0},{"$f":"CRSDATA!F69","v":0},{"$f":"CRSDATA!E69","v":0},{"$f":"IF(CRSDATA!H69=3000,998,CRSDATA!H69)","v":0},{"$f":"CRSDATA!O69","v":0},{"$f":"CRSDATA!U69","v":0},{"$f":"IF(CRSDATA!V69=\"\",\"\",CRSDATA!V69)","v":""},{"$f":"IF(CRSDATA!W69=\"\",\"\",CRSDATA!W69)","v":""},{"$f":"key_row(CRSDATA!X69,CRSDATA!Y69,CRSDATA!AL69,CRSDATA!AK69,CRSDATA!AJ69,CRSDATA!AM69,CRSDATA!P69,CRSDATA!V69)","v":""},{"$f":"CRSDATA!P69","v":0},{"$f":"CRSDATA!J69","v":0},{"$f":"CRSDATA!I69","v":0},null,{"$f":"IF(LEFT(CRSDATA!N69,2)=\"A0\",\"A00\",IF(LEFT(CRSDATA!N69,3)=\"B02\",\"B02\",IF(LEFT(CRSDATA!N69,3)=\"B03\",\"B03\",IF(CRSDATA!N69=\"B04\",\"C01\",IF(CRSDATA!N69=\"H01\",\"H00\",IF(OR(CRSDATA!N69=\"H02\",CRSDATA!N69=\"H03\",CRSDATA!N69=\"H04\",CRSDATA!N69=\"H05\",CRSDATA!N69=\"H06\"),\"I01\",IF(CRSDATA!N69=\"\",\"\",CRSDATA!N69)))))))","v":""},{"$f":"IF(AND(LEN(CRSDATA!M69)=4,LEFT(CRSDATA!M69,3)=\"110\"),1100,IF(AND(LEN(CRSDATA!M69)=4,LEFT(CRSDATA!M69,3)=\"422\"),422,CRSDATA!M69))","v":0},{"$f":"IF(CRSDATA!L69=22,\"FA04\",\"\")","v":""},{"$f":"IF(CRSDATA!K69=8,\"FC02\",\"\")","v":""},{"$f":"_xlfn.IFS(OR(P69=\"A00\",P69=\"E01\",P69=\"F01\",AND(P69=\"\",A69<>0),Q69=510,Q69=520,AF69=60),1,P69=\"G01\",IF(AF69=10,21,22),OR(M69=41203,M69=41204),22,OR(AND(OR(P69=\"B02\",P69=\"B03\"),M69=41310),OR(P69=\"E02\",P69=\"I01\")),21,AND(OR(P69=\"B01\",P69=\"B03\",P69=\"C01\"),M69<>41310),IF(VLOOKUP(F69,recipient_country!AB:AD,3,FALSE)=10024,\"\",1),AND(P69=\"B02\",M69<>41310),IF(VLOOKUP(M69,channel_codes!J:P,7,FALSE)=0,\"\",VLOOKUP(M69,channel_codes!J:P,7,FALSE)),ISNUMBER(MATCH(P69,{\"D01\",\"D02\"},0)),IF(VLOOKUP(M69,channel_codes!J:P,7,FALSE)=1,1,IF(VLOOKUP(F69,recipient_country!AB:AD,3,FALSE)=10024,\"\",1)),OR(P69=\"H01\",AND(OR(ISNUMBER(SEARCH(\"41010\", L69)),ISNUMBER(SEARCH(\"41020\", L69)),ISNUMBER(SEARCH(\"41030\", L69)),ISNUMBER(SEARCH(\"41040\", L69)),ISNUMBER(SEARCH(\"41081\", L69))),F69=998)),22,F69=998,22,TRUE,\"\")","v":""},{"$f":"CRSDATA!AN69","v":0},{"$f":"CRSDATA!AO69","v":0},{"$f":"CRSDATA!AQ69","v":0},{"$f":"CRSDATA!AS69","v":0},{"$f":"CRSDATA!BB69","v":0},null,{"$f":"IF(R69=\"FA04\",0,\"\")","v":""},{"$f":"IF(AND(AND(CRSDATA!C69<>\"\",CRSDATA!BK69<>\"\"),OR(CRSDATA!N69=421,CRSDATA!N69=422,CRSDATA!N69=4221,CRSDATA!N69=4222,CRSDATA!N69=423,CRSDATA!N69=424,CRSDATA!N69=425,CRSDATA!N69=431,CRSDATA!N69=433,CRSDATA!N69=434)),DATEDIF(CRSDATA!C69,CRSDATA!BK69,\"m\"),\"\")","v":""},{"$f":"CRSDATA!BA69","v":0},{"$f":"CRSDATA!BC69","v":0},{"$f":"IF(CRSDATA!BT69=\"\",\"\",CRSDATA!BT69)","v":""},{"$f":"CRSDATA!L69","v":0}]
[{"$f":"CRSDATA!A70","v":0},{"$f":"CRSDATA!C70","v":0},{"$f":"CRSDATA!D70","v":0},{"$f":"CRSDATA!F70","v":0},{"$f":"CRSDATA!E70","v":0},{"$f":"IF(CRSDATA!H70=3000,998,CRSDATA!H70)","v":0},{"$f":"CRSDATA!O70","v":0},{"$f":"CRSDATA!U70","v":0},{"$f":"IF(CRSDATA!V70=\"\",\"\",CRSDATA!V70)","v":""},{"$f":"IF(CRSDATA!W70=\"\",\"\",CRSDATA!W70)","v":""},{"$f":"key_row(CRSDATA!X70,CRSDATA!Y70,CRSDATA!AL70,CRSDATA!AK70,CRSDATA!AJ70,CRSDATA!AM70,CRSDATA!P70,CRSDATA!V70)","v":""},{"$f":"CRSDATA!P70","v":0},{"$f":"CRSDATA!J70","v":0},{"$f":"CRSDATA!I70","v":0},null,{"$f":"IF(LEFT(CRSDATA!N70,2)=\"A0\",\"A00\",IF(LEFT(CRSDATA!N70,3)=\"B02\",\"B02\",IF(LEFT(CRSDATA!N70,3)=\"B03\",\"B03\",IF(CRSDATA!N70=\"B04\",\"C01\",IF(CRSDATA!N70=\"H01\",\"H00\",IF(OR(CRSDATA!N70=\"H02\",CRSDATA!N70=\"H03\",CRSDATA!N70=\"H04\",CRSDATA!N70=\"H05\",CRSDATA!N70=\"H06\"),\"I01\",IF(CRSDATA!N70=\"\",\"\",CRSDATA!N70)))))))","v":""},{"$f":"IF(AND(LEN(CRSDATA!M70)=4,LEFT(CRSDATA!M70,3)=\"110\"),1100,IF(AND(LEN(CRSDATA!M70)=4,LEFT(CRSDATA!M70,3)=\"422\"),422,CRSDATA!M70))","v":0},{"$f":"IF(CRSDATA!L70=22,\"FA04\",\"\")","v":""},{"$f":"IF(CRSDATA!K70=8,\"FC02\",\"\")","v":""},{"$f":"_xlfn.IFS(OR(P70=\"A00\",P70=\"E01\",P70=\"F01\",AND(P70=\"\",A70<>0),Q70=510,Q70=520,AF70=60),1,P70=\"G01\",IF(AF70=10,21,22),OR(M70=41203,M70=41204),22,OR(AND(OR(P70=\"B02\",P70=\"B03\"),M70=41310),OR(P70=\"E02\",P70=\"I01\")),21,AND(OR(P70=\"B01\",P70=\"B03\",P70=\"C01\"),M70<>41310),IF(VLOOKUP(F70,recipient_country!AB:AD,3,FALSE)=10024,\"\",1),AND(P70=\"B02\",M70<>41310),IF(VLOOKUP(M70,channel_codes!J:P,7,FALSE)=0,\"\",VLOOKUP(M70,channel_codes!J:P,7,FALSE)),ISNUMBER(MATCH(P70,{\"D01\",\"D02\"},0)),IF(VLOOKUP(M70,channel_codes!J:P,7,FALSE)=1,1,IF(VLOOKUP(F70,recipient_country!AB:AD,3,FALSE)=10024,\"\",1)),OR(P70=\"H01\",AND(OR(ISNUMBER(SEARCH(\"41010\", L70)),ISNUMBER(SEARCH(\"41020\", L70)),ISNUMBER(SEARCH(\"41030\", L70)),ISNUMBER(SEARCH(\"41040\", L70)),ISNUMBER(SEARCH(\"41081\", L70))),F70=998)),22,F70=998,22,TRUE,\"\")","v":""},{"$f":"CRSDATA!AN70","v":0},{"$f":"CRSDATA!AO70","v":0},{"$f":"CRSDATA!AQ70","v":0},{"$f":"CRSDATA!AS70","v":0},{"$f":"CRSDATA!BB70","v":0},null,"",{"$f":"IF(AND(AND(CRSDATA!C70<>\"\",CRSDATA!BK70<>\"\"),OR(CRSDATA!N70=421,CRSDATA!N70=422,CRSDATA!N70=4221,CRSDATA!N70=4222,CRSDATA!N70=423,CRSDATA!N70=424,CRSDATA!N70=425,CRSDATA!N70=431,CRSDATA!N70=433,CRSDATA!N70=434)),DATEDIF(CRSDATA!C70,CRSDATA!BK70,\"m\"),\"\")","v":""},{"$f":"CRSDATA!BA70","v":0},{"$f":"CRSDATA!BC70","v":0},{"$f":"IF(CRSDATA!BT70=\"\",\"\",CRSDATA!BT70)","v":""},{"$f":"CRSDATA!L70","v":0}]
[{"$f":"CRSDATA!A71","v":0},{"$f":"CRSDATA!C71","v":0},{"$f":"CRSDATA!D71","v":0},{"$f":"CRSDATA!F71","v":0},{"$f":"CRSDATA!E71","v":0},{"$f":"IF(CRSDATA!H71=3000,998,CRSDATA!H71)","v":0},{"$f":"CRSDATA!O71","v":0},{"$f":"CRSDATA!U71","v":0},{"$f":"IF(CRSDATA!V71=\"\",\"\",CRSDATA!V71)","v":""},{"$f":"IF(CRSDATA!W71=\"\",\"\",CRSDATA!W71)","v":""},{"$f":"key_row(CRSDATA!X71,CRSDATA!Y71,CRSDATA!AL71,CRSDATA!AK71,CRSDATA!AJ71,CRSDATA!AM71,CRSDATA!P71,CRSDATA!V71)","v":""},{"$f":"CRSDATA!P71","v":0},{"$f":"CRSDATA!J71","v":0},{"$f":"CRSDATA!I71","v":0},null,{"$f":"IF(LEFT(CRSDATA!N71,2)=\"A0\",\"A00\",IF(LEFT(CRSDATA!N71,3)=\"B02\",\"B02\",IF(LEFT(CRSDATA!N71,3)=\"B03\",\"B03\",IF(CRSDATA!N71=\"B04\",\"C01\",IF(CRSDATA!N71=\"H01\",\"H00\",IF(OR(CRSDATA!N71=\"H02\",CRSDATA!N71=\"H03\",CRSDATA!N71=\"H04\",CRSDATA!N71=\"H05\",CRSDATA!N71=\"H06\"),\"I01\",IF(CRSDATA!N71=\"\",\"\",CRSDATA!N71)))))))","v":""},{"$f":"IF(AND(LEN(CRSDATA!M71)=4,LEFT(CRSDATA!M71,3)=\"110\"),1100,IF(AND(LEN(CRSDATA!M71)=4,LEFT(CRSDATA!M71,3)=\"422\"),422,CRSDATA!M71))","v":0},{"$f":"IF(CRSDATA!L71=22,\"FA04\",\"\")","v":""},{"$f":"IF(CRSDATA!K71=8,\"FC02\",\"\")","v":""},{"$f":"_xlfn.IFS(OR(P71=\"A00\",P71=\"E01\",P71=\"F01\",AND(P71=\"\",A71<>0),Q71=510,Q71=520,AF71=60),1,P71=\"G01\",IF(AF71=10,21,22),OR(M71=41203,M71=41204),22,OR(AND(OR(P71=\"B02\",P71=\"B03\"),M71=41310),OR(P71=\"E02\",P71=\"I01\")),21,AND(OR(P71=\"B01\",P71=\"B03\",P71=\"C01\"),M71<>41310),IF(VLOOKUP(F71,recipient_country!AB:AD,3,FALSE)=10024,\"\",1),AND(P71=\"B02\",M71<>41310),IF(VLOOKUP(M71,channel_codes!J:P,7,FALSE)=0,\"\",VLOOKUP(M71,channel_codes!J:P,7,FALSE)),ISNUMBER(MATCH(P71,{\"D01\",\"D02\"},0)),IF(VLOOKUP(M71,channel_codes!J:P,7,FALSE)=1,1,IF(VLOOKUP(F71,recipient_country!AB:AD,3,FALSE)=10024,\"\",1)),OR(P71=\"H01\",AND(OR(ISNUMBER(SEARCH(\"41010\", L71)),ISNUMBER(SEARCH(\"41020\", L71)),ISNUMBER(SEARCH(\"41030\", L71)),ISNUMBER(SEARCH(\"41040\", L71)),ISNUMBER(SEARCH(\"41081\", L71))),F71=998)),22,F71=998,22,TRUE,\"\")","v":""},{"$f":"CRSDATA!AN71","v":0},{"$f":"CRSDATA!AO71","v":0},{"$f":"CRSDATA!AQ71","v":0},{"$f":"CRSDATA!AS71","v":0},{"$f":"CRSDATA!BB71","v":0},null,"",{"$f":"IF(AND(AND(CRSDATA!C71<>\"\",CRSDATA!BK71<>\"\"),OR(CRSDATA!N71=421,CRSDATA!N71=422,CRSDATA!N71=4221,CRSDATA!N71=4222,CRSDATA!N71=423,CRSDATA!N71=424,CRSDATA!N71=425,CRSDATA!N71=431,CRSDATA!N71=433,CRSDATA!N71=434)),DATEDIF(CRSDATA!C71,CRSDATA!BK71,\"m\"),\"\")","v":""},{"$f":"CRSDATA!BA71","v":0},{"$f":"CRSDATA!BC71","v":0},{"$f":"IF(CRSDATA!BT71=\"\",\"\",CRSDATA!BT71)","v":""},{"$f":"CRSDATA!L71","v":0}]
[{"$f":"CRSDATA!A72","v":0},{"$f":"CRSDATA!C72","v":0},{"$f":"CRSDATA!D72","v":0},{"$f":"CRSDATA!F72","v":0},{"$f":"CRSDATA!E72","v":0},{"$f":"IF(CRSDATA!H72=3000,998,CRSDATA!H72)","v":0},{"$f":"CRSDATA!O72","v":0},{"$f":"CRSDATA!U72","v":0},{"$f":"IF(CRSDATA!V72=\"\",\"\",CRSDATA!V72)","v":""},{"$f":"IF(CRSDATA!W72=\"\",\"\",CRSDATA!W72)","v":""},{"$f":"key_row(CRSDATA!X72,CRSDATA!Y72,CRSDATA!AL72,CRSDATA!AK72,CRSDATA!AJ72,CRSDATA!AM72,CRSDATA!P72,CRSDATA!V72)","v":""},{"$f":"CRSDATA!P72","v":0},{"$f":"CRSDATA!J72","v":0},{"$f":"CRSDATA!I72","v":0},null,{"$f":"IF(LEFT(CRSDATA!N72,2)=\"A0\",\"A00\",IF(LEFT(CRSDATA!N72,3)=\"B02\",\"B02\",IF(LEFT(CRSDATA!N72,3)=\"B03\",\"B03\",IF(CRSDATA!N72=\"B04\",\"C01\",IF(CRSDATA!N72=\"H01\",\"H00\",IF(OR(CRSDATA!N72=\"H02\",CRSDATA!N72=\"H03\",CRSDATA!N72=\"H04\",CRSDATA!N72=\"H05\",CRSDATA!N72=\"H06\"),\"I01\",IF(CRSDATA!N72=\"\",\"\",CRSDATA!N72)))))))","v":""},{"$f":"IF(AND(LEN(CRSDATA!M72)=4,LEFT(CRSDATA!M72,3)=\"110\"),1100,IF(AND(LEN(CRSDATA!M72)=4,LEFT(CRSDATA!M72,3)=\"422\"),422,CRSDATA!M72))","v":0},{"$f":"IF(CRSDATA!L72=22,\"FA04\",\"\")","v":""},{"$f":"IF(CRSDATA!K72=8,\"FC02\",\"\")","v":""},{"$f":"_xlfn.IFS(OR(P72=\"A00\",P72=\"E01\",P72=\"F01\",AND(P72=\"\",A72<>0),Q72=510,Q72=520,AF72=60),1,P72=\"G01\",IF(AF72=10,21,22),OR(M72=41203,M72=41204),22,OR(AND(OR(P72=\"B02\",P72=\"B03\"),M72=41310),OR(P72=\"E02\",P72=\"I01\")),21,AND(OR(P72=\"B01\",P72=\"B03\",P72=\"C01\"),M72<>41310),IF(VLOOKUP(F72,recipient_country!AB:AD,3,FALSE)=10024,\"\",1),AND(P72=\"B02\",M72<>41310),IF(VLOOKUP(M72,channel_codes!J:P,7,FALSE)=0,\"\",VLOOKUP(M72,channel_codes!J:P,7,FALSE)),ISNUMBER(MATCH(P72,{\"D01\",\"D02\"},0)),IF(VLOOKUP(M72,channel_codes!J:P,7,FALSE)=1,1,IF(VLOOKUP(F72,recipient_country!AB:AD,3,FALSE)=10024,\"\",1)),OR(P72=\"H01\",AND(OR(ISNUMBER(SEARCH(\"41010\", L72)),ISNUMBER(SEARCH(\"41020\", L72)),ISNUMBER(SEARCH(\"41030\", L72)),ISNUMBER(SEARCH(\"41040\", L72)),ISNUMBER(SEARCH(\"41081\", L72))),F72=998)),22,F72=998,22,TRUE,\"\")","v":""},{"$f":"CRSDATA!AN72","v":0},{"$f":"CRSDATA!AO72","v":0},{"$f":"CRSDATA!AQ72","v":0},{"$f":"CRSDATA!AS72","v":0},{"$f":"CRSDATA!BB72","v":0},null,"",{"$f":"IF(AND(AND(CRSDATA!C72<>\"\",CRSDATA!BK72<>\"\"),OR(CRSDATA!N72=421,CRSDATA!N72=422,CRSDATA!N72=4221,CRSDATA!N72=4222,CRSDATA!N72=423,CRSDATA!N72=424,CRSDATA!N72=425,CRSDATA!N72=431,CRSDATA!N72=433,CRSDATA!N72=434)),DATEDIF(CRSDATA!C72,CRSDATA!BK72,\"m\"),\"\")","v":""},{"$f":"CRSDATA!BA72","v":0},{"$f":"CRSDATA!BC72","v":0},{"$f":"IF(CRSDATA!BT72=\"\",\"\",CRSDATA!BT72)","v":""},{"$f":"CRSDATA!L72","v":0}]
[{"$f":"CRSDATA!A73","v":0},{"$f":"CRSDATA!C73","v":0},{"$f":"CRSDATA!D73","v":0},{"$f":"CRSDATA!F73","v":0},{"$f":"CRSDATA!E73","v":0},{"$f":"IF(CRSDATA!H73=3000,998,CRSDATA!H73)","v":0},{"$f":"CRSDATA!O73","v":0},{"$f":"CRSDATA!U73","v":0},{"$f":"IF(CRSDATA!V73=\"\",\"\",CRSDATA!V73)","v":""},{"$f":"IF(CRSDATA!W73=\"\",\"\",CRSDATA!W73)","v":""},{"$f":"key_row(CRSDATA!X73,CRSDATA!Y73,CRSDATA!AL73,CRSDATA!AK73,CRSDATA!AJ73,CRSDATA!AM73,CRSDATA!P73,CRSDATA!V73)","v":""},{"$f":"CRSDATA!P73","v":0},{"$f":"CRSDATA!J73","v":0},{"$f":"CRSDATA!I73","v":0},null,{"$f":"IF(LEFT(CRSDATA!N73,2)=\"A0\",\"A00\",IF(LEFT(CRSDATA!N73,3)=\"B02\",\"B02\",IF(LEFT(CRSDATA!N73,3)=\"B03\",\"B03\",IF(CRSDATA!N73=\"B04\",\"C01\",IF(CRSDATA!N73=\"H01\",\"H00\",IF(OR(CRSDATA!N73=\"H02\",CRSDATA!N73=\"H03\",CRSDATA!N73=\"H04\",CRSDATA!N73=\"H05\",CRSDATA!N73=\"H06\"),\"I01\",IF(CRSDATA!N73=\"\",\"\",CRSDATA!N73)))))))","v":""},{"$f":"IF(AND(LEN(CRSDATA!M73)=4,LEFT(CRSDATA!M73,3)=\"110\"),1100,IF(AND(LEN(CRSDATA!M73)=4,LEFT(CRSDATA!M73,3)=\"422\"),422,CRSDATA!M73))","v":0},{"$f":"IF(CRSDATA!L73=22,\"FA04\",\"\")","v":""},{"$f":"IF(CRSDATA!K73=8,\"FC02\",\"\")","v":""},{"$f":"_xlfn.IFS(OR(P73=\"A00\",P73=\"E01\",P73=\"F01\",AND(P73=\"\",A73<>0),Q73=510,Q73=520,AF73=60),1,P73=\"G01\",IF(AF73=10,21,22),OR(M73=41203,M73=41204),22,OR(AND(OR(P73=\"B02\",P73=\"B03\"),M73=41310),OR(P73=\"E02\",P73=\"I01\")),21,AND(OR(P73=\"B01\",P73=\"B03\",P73=\"C01\"),M73<>41310),IF(VLOOKUP(F73,recipient_country!AB:AD,3,FALSE)=10024,\"\",1),AND(P73=\"B02\",M73<>41310),IF(VLOOKUP(M73,channel_codes!J:P,7,FALSE)=0,\"\",VLOOKUP(M73,channel_codes!J:P,7,FALSE)),ISNUMBER(MATCH(P73,{\"D01\",\"D02\"},0)),IF(VLOOKUP(M73,channel_codes!J:P,7,FALSE)=1,1,IF(VLOOKUP(F73,recipient_country!AB:AD,3,FALSE)=10024,\"\",1)),OR(P73=\"H01\",AND(OR(ISNUMBER(SEARCH(\"41010\", L73)),ISNUMBER(SEARCH(\"41020\", L73)),ISNUMBER(SEARCH(\"41030\", L73)),ISNUMBER(SEARCH(\"41040\", L73)),ISNUMBER(SEARCH(\"41081\", L73))),F73=998)),22,F73=998,22,TRUE,\"\")","v":""},{"$f":"CRSDATA!AN73","v":0},{"$f":"CRSDATA!AO73","v":0},{"$f":"CRSDATA!AQ73","v":0},{"$f":"CRSDATA!AS73","v":0},{"$f":"CRSDATA!BB73","v":0},null,"",{"$f":"IF(AND(AND(CRSDATA!C73<>\"\",CRSDATA!BK73<>\"\"),OR(CRSDATA!N73=421,CRSDATA!N73=422,CRSDATA!N73=4221,CRSDATA!N73=4222,CRSDATA!N73=423,CRSDATA!N73=424,CRSDATA!N73=425,CRSDATA!N73=431,CRSDATA!N73=433,CRSDATA!N73=434)),DATEDIF(CRSDATA!C73,CRSDATA!BK73,\"m\"),\"\")","v":""},{"$f":"CRSDATA!BA73","v":0},{"$f":"CRSDATA!BC73","v":0},{"$f":"IF(CRSDATA!BT73=\"\",\"\",CRSDATA!BT73)","v":""},{"$f":"CRSDATA!L73","v":0}]
[{"$f":"CRSDATA!A74","v":0},{"$f":"CRSDATA!C74","v":0},{"$f":"CRSDATA!D74","v":0},{"$f":"CRSDATA!F74","v":0},{"$f":"CRSDATA!E74","v":0},{"$f":"IF(CRSDATA!H74=3000,998,CRSDATA!H74)","v":0},{"$f":"CRSDATA!O74","v":0},{"$f":"CRSDATA!U74","v":0},{"$f":"IF(CRSDATA!V74=\"\",\"\",CRSDATA!V74)","v":""},{"$f":"IF(CRSDATA!W74=\"\",\"\",CRSDATA!W74)","v":""},{"$f":"key_row(CRSDATA!X74,CRSDATA!Y74,CRSDATA!AL74,CRSDATA!AK74,CRSDATA!AJ74,CRSDATA!AM74,CRSDATA!P74,CRSDATA!V74)","v":""},{"$f":"CRSDATA!P74","v":0},{"$f":"CRSDATA!J74","v":0},{"$f":"CRSDATA!I74","v":0},null,{"$f":"IF(LEFT(CRSDATA!N74,2)=\"A0\",\"A00\",IF(LEFT(CRSDATA!N74,3)=\"B02\",\"B02\",IF(LEFT(CRSDATA!N74,3)=\"B03\",\"B03\",IF(CRSDATA!N74=\"B04\",\"C01\",IF(CRSDATA!N74=\"H01\",\"H00\",IF(OR(CRSDATA!N74=\"H02\",CRSDATA!N74=\"H03\",CRSDATA!N74=\"H04\",CRSDATA!N74=\"H05\",CRSDATA!N74=\"H06\"),\"I01\",IF(CRSDATA!N74=\"\",\"\",CRSDATA!N74)))))))","v":""},{"$f":"IF(AND(LEN(CRSDATA!M74)=4,LEFT(CRSDATA!M74,3)=\"110\"),1100,IF(AND(LEN(CRSDATA!M74)=4,LEFT(CRSDATA!M74,3)=\"422\"),422,CRSDATA!M74))","v":0},{"$f":"IF(CRSDATA!L74=22,\"FA04\",\"\")","v":""},{"$f":"IF(CRSDATA!K74=8,\"FC02\",\"\")","v":""},{"$f":"_xlfn.IFS(OR(P74=\"A00\",P74=\"E01\",P74=\"F01\",AND(P74=\"\",A74<>0),Q74=510,Q74=520,AF74=60),1,P74=\"G01\",IF(AF74=10,21,22),OR(M74=41203,M74=41204),22,OR(AND(OR(P74=\"B02\",P74=\"B03\"),M74=41310),OR(P74=\"E02\",P74=\"I01\")),21,AND(OR(P74=\"B01\",P74=\"B03\",P74=\"C01\"),M74<>41310),IF(VLOOKUP(F74,recipient_country!AB:AD,3,FALSE)=10024,\"\",1),AND(P74=\"B02\",M74<>41310),IF(VLOOKUP(M74,channel_codes!J:P,7,FALSE)=0,\"\",VLOOKUP(M74,channel_codes!J:P,7,FALSE)),ISNUMBER(MATCH(P74,{\"D01\",\"D02\"},0)),IF(VLOOKUP(M74,channel_codes!J:P,7,FALSE)=1,1,IF(VLOOKUP(F74,recipient_country!AB:AD,3,FALSE)=10024,\"\",1)),OR(P74=\"H01\",AND(OR(ISNUMBER(SEARCH(\"41010\", L74)),ISNUMBER(SEARCH(\"41020\", L74)),ISNUMBER(SEARCH(\"41030\", L74)),ISNUMBER(SEARCH(\"41040\", L74)),ISNUMBER(SEARCH(\"41081\", L74))),F74=998)),22,F74=998,22,TRUE,\"\")","v":""},{"$f":"CRSDATA!AN74","v":0},{"$f":"CRSDATA!AO74","v":0},{"$f":"CRSDATA!AQ74","v":0},{"$f":"CRSDATA!AS74","v":0},{"$f":"CRSDATA!BB74","v":0},null,"",{"$f":"IF(AND(AND(CRSDATA!C74<>\"\",CRSDATA!BK74<>\"\"),OR(CRSDATA!N74=421,CRSDATA!N74=422,CRSDATA!N74=4221,CRSDATA!N74=4222,CRSDATA!N74=423,CRSDATA!N74=424,CRSDATA!N74=425,CRSDATA!N74=431,CRSDATA!N74=433,CRSDATA!N74=434)),DATEDIF(CRSDATA!C74,CRSDATA!BK74,\"m\"),\"\")","v":""},{"$f":"CRSDATA!BA74","v":0},{"$f":"CRSDATA!BC74","v":0},{"$f":"IF(CRSDATA!BT74=\"\",\"\",CRSDATA!BT74)","v":""},{"$f":"CRSDATA!L74","v":0}]
[{"$f":"CRSDATA!A75","v":0},{"$f":"CRSDATA!C75","v":0},{"$f":"CRSDATA!D75","v":0},{"$f":"CRSDATA!F75","v":0},{"$f":"CRSDATA!E75","v":0},{"$f":"IF(CRSDATA!H75=3000,998,CRSDATA!H75)","v":0},{"$f":"CRSDATA!O75","v":0},{"$f":"CRSDATA!U75","v":0},{"$f":"IF(CRSDATA!V75=\"\",\"\",CRSDATA!V75)","v":""},{"$f":"IF(CRSDATA!W75=\"\",\"\",CRSDATA!W75)","v":""},{"$f":"key_row(CRSDATA!X75,CRSDATA!Y75,CRSDATA!AL75,CRSDATA!AK75,CRSDATA!AJ75,CRSDATA!AM75,CRSDATA!P75,CRSDATA!V75)","v":""},{"$f":"CRSDATA!P75","v":0},{"$f":"CRSDATA!J75","v":0},{"$f":"CRSDATA!I75","v":0},null,{"$f":"IF(LEFT(CRSDATA!N75,2)=\"A0\",\"A00\",IF(LEFT(CRSDATA!N75,3)=\"B02\",\"B02\",IF(LEFT(CRSDATA!N75,3)=\"B03\",\"B03\",IF(CRSDATA!N75=\"B04\",\"C01\",IF(CRSDATA!N75=\"H01\",\"H00\",IF(OR(CRSDATA!N75=\"H02\",CRSDATA!N75=\"H03\",CRSDATA!N75=\"H04\",CRSDATA!N75=\"H05\",CRSDATA!N75=\"H06\"),\"I01\",IF(CRSDATA!N75=\"\",\"\",CRSDATA!N75)))))))","v":""},{"$f":"IF(AND(LEN(CRSDATA!M75)=4,LEFT(CRSDATA!M75,3)=\"110\"),1100,IF(AND(LEN(CRSDATA!M75)=4,LEFT(CRSDATA!M75,3)=\"422\"),422,CRSDATA!M75))","v":0},{"$f":"IF(CRSDATA!L75=22,\"FA04\",\"\")","v":""},{"$f":"IF(CRSDATA!K75=8,\"FC02\",\"\")","v":""},{"$f":"_xlfn.IFS(OR(P75=\"A00\",P75=\"E01\",P75=\"F01\",AND(P75=\"\",A75<>0),Q75=510,Q75=520,AF75=60),1,P75=\"G01\",IF(AF75=10,21,22),OR(M75=41203,M75=41204),22,OR(AND(OR(P75=\"B02\",P75=\"B03\"),M75=41310),OR(P75=\"E02\",P75=\"I01\")),21,AND(OR(P75=\"B01\",P75=\"B03\",P75=\"C01\"),M75<>41310),IF(VLOOKUP(F75,recipient_country!AB:AD,3,FALSE)=10024,\"\",1),AND(P75=\"B02\",M75<>41310),IF(VLOOKUP(M75,channel_codes!J:P,7,FALSE)=0,\"\",VLOOKUP(M75,channel_codes!J:P,7,FALSE)),ISNUMBER(MATCH(P75,{\"D01\",\"D02\"},0)),IF(VLOOKUP(M75,channel_codes!J:P,7,FALSE)=1,1,IF(VLOOKUP(F75,recipient_country!AB:AD,3,FALSE)=10024,\"\",1)),OR(P75=\"H01\",AND(OR(ISNUMBER(SEARCH(\"41010\", L75)),ISNUMBER(SEARCH(\"41020\", L75)),ISNUMBER(SEARCH(\"41030\", L75)),ISNUMBER(SEARCH(\"41040\", L75)),ISNUMBER(SEARCH(\"41081\", L75))),F75=998)),22,F75=998,22,TRUE,\"\")","v":""},{"$f":"CRSDATA!AN75","v":0},{"$f":"CRSDATA!AO75","v":0},{"$f":"CRSDATA!AQ75","v":0},{"$f":"CRSDATA!AS75","v":0},{"$f":"CRSDATA!BB75","v":0},null,"",{"$f":"IF(AND(AND(CRSDATA!C75<>\"\",CRSDATA!BK75<>\"\"),OR(CRSDATA!N75=421,CRSDATA!N75=422,CRSDATA!N75=4221,CRSDATA!N75=4222,CRSDATA!N75=423,CRSDATA!N75=424,CRSDATA!N75=425,CRSDATA!N75=431,CRSDATA!N75=433,CRSDATA!N75=434)),DATEDIF(CRSDATA!C75,CRSDATA!BK75,\"m\"),\"\")","v":""},{"$f":"CRSDATA!BA75","v":0},{"$f":"CRSDATA!BC75","v":0},{"$f":"IF(CRSDATA!BT75=\"\",\"\",CRSDATA!BT75)","v":""},{"$f":"CRSDATA!L75","v":0}]
[{"$f":"CRSDATA!A76","v":0},{"$f":"CRSDATA!C76","v":0},{"$f":"CRSDATA!D76","v":0},{"$f":"CRSDATA!F76","v":0},{"$f":"CRSDATA!E76","v":0},{"$f":"IF(CRSDATA!H76=3000,998,CRSDATA!H76)","v":0},{"$f":"CRSDATA!O76","v":0},{"$f":"CRSDATA!U76","v":0},{"$f":"IF(CRSDATA!V76=\"\",\"\",CRSDATA!V76)","v":""},{"$f":"IF(CRSDATA!W76=\"\",\"\",CRSDATA!W76)","v":""},{"$f":"key_row(CRSDATA!X76,CRSDATA!Y76,CRSDATA!AL76,CRSDATA!AK76,CRSDATA!AJ76,CRSDATA!AM76,CRSDATA!P76,CRSDATA!V76)","v":""},{"$f":"CRSDATA!P76","v":0},{"$f":"CRSDATA!J76","v":0},{"$f":"CRSDATA!I76","v":0},null,{"$f":"IF(LEFT(CRSDATA!N76,2)=\"A0\",\"A00\",IF(LEFT(CRSDATA!N76,3)=\"B02\",\"B02\",IF(LEFT(CRSDATA!N76,3)=\"B03\",\"B03\",IF(CRSDATA!N76=\"B04\",\"C01\",IF(CRSDATA!N76=\"H01\",\"H00\",IF(OR(CRSDATA!N76=\"H02\",CRSDATA!N76=\"H03\",CRSDATA!N76=\"H04\",CRSDATA!N76=\"H05\",CRSDATA!N76=\"H06\"),\"I01\",IF(CRSDATA!N76=\"\",\"\",CRSDATA!N76)))))))","v":""},{"$f":"IF(AND(LEN(CRSDATA!M76)=4,LEFT(CRSDATA!M76,3)=\"110\"),1100,IF(AND(LEN(CRSDATA!M76)=4,LEFT(CRSDATA!M76,3)=\"422\"),422,CRSDATA!M76))","v":0},{"$f":"IF(CRSDATA!L76=22,\"FA04\",\"\")","v":""},{"$f":"IF(CRSDATA!K76=8,\"FC02\",\"\")","v":""},{"$f":"_xlfn.IFS(OR(P76=\"A00\",P76=\"E01\",P76=\"F01\",AND(P76=\"\",A76<>0),Q76=510,Q76=520,AF76=60),1,P76=\"G01\",IF(AF76=10,21,22),OR(M76=41203,M76=41204),22,OR(AND(OR(P76=\"B02\",P76=\"B03\"),M76=41310),OR(P76=\"E02\",P76=\"I01\")),21,AND(OR(P76=\"B01\",P76=\"B03\",P76=\"C01\"),M76<>41310),IF(VLOOKUP(F76,recipient_country!AB:AD,3,FALSE)=10024,\"\",1),AND(P76=\"B02\",M76<>41310),IF(VLOOKUP(M76,channel_codes!J:P,7,FALSE)=0,\"\",VLOOKUP(M76,channel_codes!J:P,7,FALSE)),ISNUMBER(MATCH(P76,{\"D01\",\"D02\"},0)),IF(VLOOKUP(M76,channel_codes!J:P,7,FALSE)=1,1,IF(VLOOKUP(F76,recipient_country!AB:AD,3,FALSE)=10024,\"\",1)),OR(P76=\"H01\",AND(OR(ISNUMBER(SEARCH(\"41010\", L76)),ISNUMBER(SEARCH(\"41020\", L76)),ISNUMBER(SEARCH(\"41030\", L76)),ISNUMBER(SEARCH(\"41040\", L76)),ISNUMBER(SEARCH(\"41081\", L76))),F76=998)),22,F76=998,22,TRUE,\"\")","v":""},{"$f":"CRSDATA!AN76","v":0},{"$f":"CRSDATA!AO76","v":0},{"$f":"CRSDATA!AQ76","v":0},{"$f":"CRSDATA!AS76","v":0},{"$f":"CRSDATA!BB76","v":0},null,"",{"$f":"IF(AND(AND(CRSDATA!C76<>\"\",CRSDATA!BK76<>\"\"),OR(CRSDATA!N76=421,CRSDATA!N76=422,CRSDATA!N76=4221,CRSDATA!N76=4222,CRSDATA!N76=423,CRSDATA!N76=424,CRSDATA!N76=425,CRSDATA!N76=431,CRSDATA!N76=433,CRSDATA!N76=434)),DATEDIF(CRSDATA!C76,CRSDATA!BK76,\"m\"),\"\")","v":""},{"$f":"CRSDATA!BA76","v":0},{"$f":"CRSDATA!BC76","v":0},{"$f":"IF(CRSDATA!BT76=\"\",\"\",CRSDATA!BT76)","v":""},{"$f":"CRSDATA!L76","v":0}]
[{"$f":"CRSDATA!A77","v":0},{"$f":"CRSDATA!C77","v":0},{"$f":"CRSDATA!D77","v":0},{"$f":"CRSDATA!F77","v":0},{"$f":"CRSDATA!E77","v":0},{"$f":"IF(CRSDATA!H77=3000,998,CRSDATA!H77)","v":0},{"$f":"CRSDATA!O77","v":0},{"$f":"CRSDATA!U77","v":0},{"$f":"IF(CRSDATA!V77=\"\",\"\",CRSDATA!V77)","v":""},{"$f":"IF(CRSDATA!W77=\"\",\"\",CRSDATA!W77)","v":""},{"$f":"key_row(CRSDATA!X77,CRSDATA!Y77,CRSDATA!AL77,CRSDATA!AK77,CRSDATA!AJ77,CRSDATA!AM77,CRSDATA!P77,CRSDATA!V77)","v":""},{"$f":"CRSDATA!P77","v":0},{"$f":"CRSDATA!J77","v":0},{"$f":"CRSDATA!I77","v":0},null,{"$f":"IF(LEFT(CRSDATA!N77,2)=\"A0\",\"A00\",IF(LEFT(CRSDATA!N77,3)=\"B02\",\"B02\",IF(LEFT(CRSDATA!N77,3)=\"B03\",\"B03\",IF(CRSDATA!N77=\"B04\",\"C01\",IF(CRSDATA!N77=\"H01\",\"H00\",IF(OR(CRSDATA!N77=\"H02\",CRSDATA!N77=\"H03\",CRSDATA!N77=\"H04\",CRSDATA!N77=\"H05\",CRSDATA!N77=\"H06\"),\"I01\",IF(CRSDATA!N77=\"\",\"\",CRSDATA!N77)))))))","v":""},{"$f":"IF(AND(LEN(CRSDATA!M77)=4,LEFT(CRSDATA!M77,3)=\"110\"),1100,IF(AND(LEN(CRSDATA!M77)=4,LEFT(CRSDATA!M77,3)=\"422\"),422,CRSDATA!M77))","v":0},{"$f":"IF(CRSDATA!L77=22,\"FA04\",\"\")","v":""},{"$f":"IF(CRSDATA!K77=8,\"FC02\",\"\")","v":""},{"$f":"_xlfn.IFS(OR(P77=\"A00\",P77=\"E01\",P77=\"F01\",AND(P77=\"\",A77<>0),Q77=510,Q77=520,AF77=60),1,P77=\"G01\",IF(AF77=10,21,22),OR(M77=41203,M77=41204),22,OR(AND(OR(P77=\"B02\",P77=\"B03\"),M77=41310),OR(P77=\"E02\",P77=\"I01\")),21,AND(OR(P77=\"B01\",P77=\"B03\",P77=\"C01\"),M77<>41310),IF(VLOOKUP(F77,recipient_country!AB:AD,3,FALSE)=10024,\"\",1),AND(P77=\"B02\",M77<>41310),IF(VLOOKUP(M77,channel_codes!J:P,7,FALSE)=0,\"\",VLOOKUP(M77,channel_codes!J:P,7,FALSE)),ISNUMBER(MATCH(P77,{\"D01\",\"D02\"},0)),IF(VLOOKUP(M77,channel_codes!J:P,7,FALSE)=1,1,IF(VLOOKUP(F77,recipient_country!AB:AD,3,FALSE)=10024,\"\",1)),OR(P77=\"H01\",AND(OR(ISNUMBER(SEARCH(\"41010\", L77)),ISNUMBER(SEARCH(\"41020\", L77)),ISNUMBER(SEARCH(\"41030\", L77)),ISNUMBER(SEARCH(\"41040\", L77)),ISNUMBER(SEARCH(\"41081\", L77))),F77=998)),22,F77=998,22,TRUE,\"\")","v":""},{"$f":"CRSDATA!AN77","v":0},{"$f":"CRSDATA!AO77","v":0},{"$f":"CRSDATA!AQ77","v":0},{"$f":"CRSDATA!AS77","v":0},{"$f":"CRSDATA!BB77","v":0},null,"",{"$f":"IF(AND(AND(CRSDATA!C77<>\"\",CRSDATA!BK77<>\"\"),OR(CRSDATA!N77=421,CRSDATA!N77=422,CRSDATA!N77=4221,CRSDATA!N77=4222,CRSDATA!N77=423,CRSDATA!N77=424,CRSDATA!N77=425,CRSDATA!N77=431,CRSDATA!N77=433,CRSDATA!N77=434)),DATEDIF(CRSDATA!C77,CRSDATA!BK77,\"m\"),\"\")","v":""},{"$f":"CRSDATA!BA77","v":0},{"$f":"CRSDATA!BC77","v":0},{"$f":"IF(CRSDATA!BT77=\"\",\"\",CRSDATA!BT77)","v":""},{"$f":"CRSDATA!L77","v":0}]
[{"$f":"CRSDATA!A78","v":0},{"$f":"CRSDATA!C78","v":0},{"$f":"CRSDATA!D78","v":0},{"$f":"CRSDATA!F78","v":0},{"$f":"CRSDATA!E78","v":0},{"$f":"IF(CRSDATA!H78=3000,998,CRSDATA!H78)","v":0},{"$f":"CRSDATA!O78","v":0},{"$f":"CRSDATA!U78","v":0},{"$f":"IF(CRSDATA!V78=\"\",\"\",CRSDATA!V78)","v":""},{"$f":"IF(CRSDATA!W78=\"\",\"\",CRSDATA!W78)","v":""},{"$f":"key_row(CRSDATA!X78,CRSDATA!Y78,CRSDATA!AL78,CRSDATA!AK78,CRSDATA!AJ78,CRSDATA!AM78,CRSDATA!P78,CRSDATA!V78)","v":""},{"$f":"CRSDATA!P78","v":0},{"$f":"CRSDATA!J78","v":0},{"$f":"CRSDATA!I78","v":0},null,{"$f":"IF(LEFT(CRSDATA!N78,2)=\"A0\",\"A00\",IF(LEFT(CRSDATA!N78,3)=\"B02\",\"B02\",IF(LEFT(CRSDATA!N78,3)=\"B03\",\"B03\",IF(CRSDATA!N78=\"B04\",\"C01\",IF(CRSDATA!N78=\"H01\",\"H00\",IF(OR(CRSDATA!N78=\"H02\",CRSDATA!N78=\"H03\",CRSDATA!N78=\"H04\",CRSDATA!N78=\"H05\",CRSDATA!N78=\"H06\"),\"I01\",IF(CRSDATA!N78=\"\",\"\",CRSDATA!N78)))))))","v":""},{"$f":"IF(AND(LEN(CRSDATA!M78)=4,LEFT(CRSDATA!M78,3)=\"110\"),1100,IF(AND(LEN(CRSDATA!M78)=4,LEFT(CRSDATA!M78,3)=\"422\"),422,CRSDATA!M78))","v":0},{"$f":"IF(CRSDATA!L78=22,\"FA04\",\"\")","v":""},{"$f":"IF(CRSDATA!K78=8,\"FC02\",\"\")","v":""},{"$f":"_xlfn.IFS(OR(P78=\"A00\",P78=\"E01\",P78=\"F01\",AND(P78=\"\",A78<>0),Q78=510,Q78=520,AF78=60),1,P78=\"G01\",IF(AF78=10,21,22),OR(M78=41203,M78=41204),22,OR(AND(OR(P78=\"B02\",P78=\"B03\"),M78=41310),OR(P78=\"E02\",P78=\"I01\")),21,AND(OR(P78=\"B01\",P78=\"B03\",P78=\"C01\"),M78<>41310),IF(VLOOKUP(F78,recipient_country!AB:AD,3,FALSE)=10024,\"\",1),AND(P78=\"B02\",M78<>41310),IF(VLOOKUP(M78,channel_codes!J:P,7,FALSE)=0,\"\",VLOOKUP(M78,channel_codes!J:P,7,FALSE)),ISNUMBER(MATCH(P78,{\"D01\",\"D02\"},0)),IF(VLOOKUP(M78,channel_codes!J:P,7,FALSE)=1,1,IF(VLOOKUP(F78,recipient_country!AB:AD,3,FALSE)=10024,\"\",1)),OR(P78=\"H01\",AND(OR(ISNUMBER(SEARCH(\"41010\", L78)),ISNUMBER(SEARCH(\"41020\", L78)),ISNUMBER(SEARCH(\"41030\", L78)),ISNUMBER(SEARCH(\"41040\", L78)),ISNUMBER(SEARCH(\"41081\", L78))),F78=998)),22,F78=998,22,TRUE,\"\")","v":""},{"$f":"CRSDATA!AN78","v":0},{"$f":"CRSDATA!AO78","v":0},{"$f":"CRSDATA!AQ78","v":0},{"$f":"CRSDATA!AS78","v":0},{"$f":"CRSDATA!BB78","v":0},null,"",{"$f":"IF(AND(AND(CRSDATA!C78<>\"\",CRSDATA!BK78<>\"\"),OR(CRSDATA!N78=421,CRSDATA!N78=422,CRSDATA!N78=4221,CRSDATA!N78=4222,CRSDATA!N78=423,CRSDATA!N78=424,CRSDATA!N78=425,CRSDATA!N78=431,CRSDATA!N78=433,CRSDATA!N78=434)),DATEDIF(CRSDATA!C78,CRSDATA!BK78,\"m\"),\"\")","v":""},{"$f":"CRSDATA!BA78","v":0},{"$f":"CRSDATA!BC78","v":0},{"$f":"IF(CRSDATA!BT78=\"\",\"\",CRSDATA!BT78)","v":""},{"$f":"CRSDATA!L78","v":0}]
[{"$f":"CRSDATA!A79","v":0},{"$f":"CRSDATA!C79","v":0},{"$f":"CRSDATA!D79","v":0},{"$f":"CRSDATA!F79","v":0},{"$f":"CRSDATA!E79","v":0},{"$f":"IF(CRSDATA!H79=3000,998,CRSDATA!H79)","v":0},{"$f":"CRSDATA!O79","v":0},{"$f":"CRSDATA!U79","v":0},{"$f":"IF(CRSDATA!V79=\"\",\"\",CRSDATA!V79)","v":""},{"$f":"IF(CRSDATA!W79=\"\",\"\",CRSDATA!W79)","v":""},{"$f":"key_row(CRSDATA!X79,CRSDATA!Y79,CRSDATA!AL79,CRSDATA!AK79,CRSDATA!AJ79,CRSDATA!AM79,CRSDATA!P79,CRSDATA!V79)","v":""},{"$f":"CRSDATA!P79","v":0},{"$f":"CRSDATA!J79","v":0},{"$f":"CRSDATA!I79","v":0},null,{"$f":"IF(LEFT(CRSDATA!N79,2)=\"A0\",\"A00\",IF(LEFT(CRSDATA!N79,3)=\"B02\",\"B02\",IF(LEFT(CRSDATA!N79,3)=\"B03\",\"B03\",IF(CRSDATA!N79=\"B04\",\"C01\",IF(CRSDATA!N79=\"H01\",\"H00\",IF(OR(CRSDATA!N79=\"H02\",CRSDATA!N79=\"H03\",CRSDATA!N79=\"H04\",CRSDATA!N79=\"H05\",CRSDATA!N79=\"H06\"),\"I01\",IF(CRSDATA!N79=\"\",\"\",CRSDATA!N79)))))))","v":""},{"$f":"IF(AND(LEN(CRSDATA!M79)=4,LEFT(CRSDATA!M79,3)=\"110\"),1100,IF(AND(LEN(CRSDATA!M79)=4,LEFT(CRSDATA!M79,3)=\"422\"),422,CRSDATA!M79))","v":0},{"$f":"IF(CRSDATA!L79=22,\"FA04\",\"\")","v":""},{"$f":"IF(CRSDATA!K79=8,\"FC02\",\"\")","v":""},{"$f":"_xlfn.IFS(OR(P79=\"A00\",P79=\"E01\",P79=\"F01\",AND(P79=\"\",A79<>0),Q79=510,Q79=520,AF79=60),1,P79=\"G01\",IF(AF79=10,21,22),OR(M79=41203,M79=41204),22,OR(AND(OR(P79=\"B02\",P79=\"B03\"),M79=41310),OR(P79=\"E02\",P79=\"I01\")),21,AND(OR(P79=\"B01\",P79=\"B03\",P79=\"C01\"),M79<>41310),IF(VLOOKUP(F79,recipient_country!AB:AD,3,FALSE)=10024,\"\",1),AND(P79=\"B02\",M79<>41310),IF(VLOOKUP(M79,channel_codes!J:P,7,FALSE)=0,\"\",VLOOKUP(M79,channel_codes!J:P,7,FALSE)),ISNUMBER(MATCH(P79,{\"D01\",\"D02\"},0)),IF(VLOOKUP(M79,channel_codes!J:P,7,FALSE)=1,1,IF(VLOOKUP(F79,recipient_country!AB:AD,3,FALSE)=10024,\"\",1)),OR(P79=\"H01\",AND(OR(ISNUMBER(SEARCH(\"41010\", L79)),ISNUMBER(SEARCH(\"41020\", L79)),ISNUMBER(SEARCH(\"41030\", L79)),ISNUMBER(SEARCH(\"41040\", L79)),ISNUMBER(SEARCH(\"41081\", L79))),F79=998)),22,F79=998,22,TRUE,\"\")","v":""},{"$f":"CRSDATA!AN79","v":0},{"$f":"CRSDATA!AO79","v":0},{"$f":"CRSDATA!AQ79","v":0},{"$f":"CRSDATA!AS79","v":0},{"$f":"CRSDATA!BB79","v":0},null,"",{"$f":"IF(AND(AND(CRSDATA!C79<>\"\",CRSDATA!BK79<>\"\"),OR(CRSDATA!N79=421,CRSDATA!N79=422,CRSDATA!N79=4221,CRSDATA!N79=4222,CRSDATA!N79=423,CRSDATA!N79=424,CRSDATA!N79=425,CRSDATA!N79=431,CRSDATA!N79=433,CRSDATA!N79=434)),DATEDIF(CRSDATA!C79,CRSDATA!BK79,\"m\"),\"\")","v":""},{"$f":"CRSDATA!BA79","v":0},{"$f":"CRSDATA!BC79","v":0},{"$f":"IF(CRSDATA!BT79=\"\",\"\",CRSDATA!BT79)","v":""},{"$f":"CRSDATA!L79","v":0}]
[{"$f":"CRSDATA!A80","v":0},{"$f":"CRSDATA!C80","v":0},{"$f":"CRSDATA!D80","v":0},{"$f":"CRSDATA!F80","v":0},{"$f":"CRSDATA!E80","v":0},{"$f":"IF(CRSDATA!H80=3000,998,CRSDATA!H80)","v":0},{"$f":"CRSDATA!O80","v":0},{"$f":"CRSDATA!U80","v":0},{"$f":"IF(CRSDATA!V80=\"\",\"\",CRSDATA!V80)","v":""},{"$f":"IF(CRSDATA!W80=\"\",\"\",CRSDATA!W80)","v":""},{"$f":"key_row(CRSDATA!X80,CRSDATA!Y80,CRSDATA!AL80,CRSDATA!AK80,CRSDATA!AJ80,CRSDATA!AM80,CRSDATA!P80,CRSDATA!V80)","v":""},{"$f":"CRSDATA!P80","v":0},{"$f":"CRSDATA!J80","v":0},{"$f":"CRSDATA!I80","v":0},null,{"$f":"IF(LEFT(CRSDATA!N80,2)=\"A0\",\"A00\",IF(LEFT(CRSDATA!N80,3)=\"B02\",\"B02\",IF(LEFT(CRSDATA!N80,3)=\"B03\",\"B03\",IF(CRSDATA!N80=\"B04\",\"C01\",IF(CRSDATA!N80=\"H01\",\"H00\",IF(OR(CRSDATA!N80=\"H02\",CRSDATA!N80=\"H03\",CRSDATA!N80=\"H04\",CRSDATA!N80=\"H05\",CRSDATA!N80=\"H06\"),\"I01\",IF(CRSDATA!N80=\"\",\"\",CRSDATA!N80)))))))","v":""},{"$f":"IF(AND(LEN(CRSDATA!M80)=4,LEFT(CRSDATA!M80,3)=\"110\"),1100,IF(AND(LEN(CRSDATA!M80)=4,LEFT(CRSDATA!M80,3)=\"422\"),422,CRSDATA!M80))","v":0},{"$f":"IF(CRSDATA!L80=22,\"FA04\",\"\")","v":""},{"$f":"IF(CRSDATA!K80=8,\"FC02\",\"\")","v":""},{"$f":"_xlfn.IFS(OR(P80=\"A00\",P80=\"E01\",P80=\"F01\",AND(P80=\"\",A80<>0),Q80=510,Q80=520,AF80=60),1,P80=\"G01\",IF(AF80=10,21,22),OR(M80=41203,M80=41204),22,OR(AND(OR(P80=\"B02\",P80=\"B03\"),M80=41310),OR(P80=\"E02\",P80=\"I01\")),21,AND(OR(P80=\"B01\",P80=\"B03\",P80=\"C01\"),M80<>41310),IF(VLOOKUP(F80,recipient_country!AB:AD,3,FALSE)=10024,\"\",1),AND(P80=\"B02\",M80<>41310),IF(VLOOKUP(M80,channel_codes!J:P,7,FALSE)=0,\"\",VLOOKUP(M80,channel_codes!J:P,7,FALSE)),ISNUMBER(MATCH(P80,{\"D01\",\"D02\"},0)),IF(VLOOKUP(M80,channel_codes!J:P,7,FALSE)=1,1,IF(VLOOKUP(F80,recipient_country!AB:AD,3,FALSE)=10024,\"\",1)),OR(P80=\"H01\",AND(OR(ISNUMBER(SEARCH(\"41010\", L80)),ISNUMBER(SEARCH(\"41020\", L80)),ISNUMBER(SEARCH(\"41030\", L80)),ISNUMBER(SEARCH(\"41040\", L80)),ISNUMBER(SEARCH(\"41081\", L80))),F80=998)),22,F80=998,22,TRUE,\"\")","v":""},{"$f":"CRSDATA!AN80","v":0},{"$f":"CRSDATA!AO80","v":0},{"$f":"CRSDATA!AQ80","v":0},{"$f":"CRSDATA!AS80","v":0},{"$f":"CRSDATA!BB80","v":0},null,"",{"$f":"IF(AND(AND(CRSDATA!C80<>\"\",CRSDATA!BK80<>\"\"),OR(CRSDATA!N80=421,CRSDATA!N80=422,CRSDATA!N80=4221,CRSDATA!N80=4222,CRSDATA!N80=423,CRSDATA!N80=424,CRSDATA!N80=425,CRSDATA!N80=431,CRSDATA!N80=433,CRSDATA!N80=434)),DATEDIF(CRSDATA!C80,CRSDATA!BK80,\"m\"),\"\")","v":""},{"$f":"CRSDATA!BA80","v":0},{"$f":"CRSDATA!BC80","v":0},{"$f":"IF(CRSDATA!BT80=\"\",\"\",CRSDATA!BT80)","v":""},{"$f":"CRSDATA!L80","v":0}]
[{"$f":"CRSDATA!A81","v":0},{"$f":"CRSDATA!C81","v":0},{"$f":"CRSDATA!D81","v":0},{"$f":"CRSDATA!F81","v":0},{"$f":"CRSDATA!E81","v":0},{"$f":"IF(CRSDATA!H81=3000,998,CRSDATA!H81)","v":0},{"$f":"CRSDATA!O81","v":0},{"$f":"CRSDATA!U81","v":0},{"$f":"IF(CRSDATA!V81=\"\",\"\",CRSDATA!V81)","v":""},{"$f":"IF(CRSDATA!W81=\"\",\"\",CRSDATA!W81)","v":""},{"$f":"key_row(CRSDATA!X81,CRSDATA!Y81,CRSDATA!AL81,CRSDATA!AK81,CRSDATA!AJ81,CRSDATA!AM81,CRSDATA!P81,CRSDATA!V81)","v":""},{"$f":"CRSDATA!P81","v":0},{"$f":"CRSDATA!J81","v":0},{"$f":"CRSDATA!I81","v":0},null,{"$f":"IF(LEFT(CRSDATA!N81,2)=\"A0\",\"A00\",IF(LEFT(CRSDATA!N81,3)=\"B02\",\"B02\",IF(LEFT(CRSDATA!N81,3)=\"B03\",\"B03\",IF(CRSDATA!N81=\"B04\",\"C01\",IF(CRSDATA!N81=\"H01\",\"H00\",IF(OR(CRSDATA!N81=\"H02\",CRSDATA!N81=\"H03\",CRSDATA!N81=\"H04\",CRSDATA!N81=\"H05\",CRSDATA!N81=\"H06\"),\"I01\",IF(CRSDATA!N81=\"\",\"\",CRSDATA!N81)))))))","v":""},{"$f":"IF(AND(LEN(CRSDATA!M81)=4,LEFT(CRSDATA!M81,3)=\"110\"),1100,IF(AND(LEN(CRSDATA!M81)=4,LEFT(CRSDATA!M81,3)=\"422\"),422,CRSDATA!M81))","v":0},{"$f":"IF(CRSDATA!L81=22,\"FA04\",\"\")","v":""},{"$f":"IF(CRSDATA!K81=8,\"FC02\",\"\")","v":""},{"$f":"_xlfn.IFS(OR(P81=\"A00\",P81=\"E01\",P81=\"F01\",AND(P81=\"\",A81<>0),Q81=510,Q81=520,AF81=60),1,P81=\"G01\",IF(AF81=10,21,22),OR(M81=41203,M81=41204),22,OR(AND(OR(P81=\"B02\",P81=\"B03\"),M81=41310),OR(P81=\"E02\",P81=\"I01\")),21,AND(OR(P81=\"B01\",P81=\"B03\",P81=\"C01\"),M81<>41310),IF(VLOOKUP(F81,recipient_country!AB:AD,3,FALSE)=10024,\"\",1),AND(P81=\"B02\",M81<>41310),IF(VLOOKUP(M81,channel_codes!J:P,7,FALSE)=0,\"\",VLOOKUP(M81,channel_codes!J:P,7,FALSE)),ISNUMBER(MATCH(P81,{\"D01\",\"D02\"},0)),IF(VLOOKUP(M81,channel_codes!J:P,7,FALSE)=1,1,IF(VLOOKUP(F81,recipient_country!AB:AD,3,FALSE)=10024,\"\",1)),OR(P81=\"H01\",AND(OR(ISNUMBER(SEARCH(\"41010\", L81)),ISNUMBER(SEARCH(\"41020\", L81)),ISNUMBER(SEARCH(\"41030\", L81)),ISNUMBER(SEARCH(\"41040\", L81)),ISNUMBER(SEARCH(\"41081\", L81))),F81=998)),22,F81=998,22,TRUE,\"\")","v":""},{"$f":"CRSDATA!AN81","v":0},{"$f":"CRSDATA!AO81","v":0},{"$f":"CRSDATA!AQ81","v":0},{"$f":"CRSDATA!AS81","v":0},{"$f":"CRSDATA!BB81","v":0},null,"",{"$f":"IF(AND(AND(CRSDATA!C81<>\"\",CRSDATA!BK81<>\"\"),OR(CRSDATA!N81=421,CRSDATA!N81=422,CRSDATA!N81=4221,CRSDATA!N81=4222,CRSDATA!N81=423,CRSDATA!N81=424,CRSDATA!N81=425,CRSDATA!N81=431,CRSDATA!N81=433,CRSDATA!N81=434)),DATEDIF(CRSDATA!C81,CRSDATA!BK81,\"m\"),\"\")","v":""},{"$f":"CRSDATA!BA81","v":0},{"$f":"CRSDATA!BC81","v":0},{"$f":"IF(CRSDATA!BT81=\"\",\"\",CRSDATA!BT81)","v":""},{"$f":"CRSDATA!L81","v":0}]
[{"$f":"CRSDATA!A82","v":0},{"$f":"CRSDATA!C82","v":0},{"$f":"CRSDATA!D82","v":0},{"$f":"CRSDATA!F82","v":0},{"$f":"CRSDATA!E82","v":0},{"$f":"IF(CRSDATA!H82=3000,998,CRSDATA!H82)","v":0},{"$f":"CRSDATA!O82","v":0},{"$f":"CRSDATA!U82","v":0},{"$f":"IF(CRSDATA!V82=\"\",\"\",CRSDATA!V82)","v":""},{"$f":"IF(CRSDATA!W82=\"\",\"\",CRSDATA!W82)","v":""},{"$f":"key_row(CRSDATA!X82,CRSDATA!Y82,CRSDATA!AL82,CRSDATA!AK82,CRSDATA!AJ82,CRSDATA!AM82,CRSDATA!P82,CRSDATA!V82)","v":""},{"$f":"CRSDATA!P82","v":0},{"$f":"CRSDATA!J82","v":0},{"$f":"CRSDATA!I82","v":0},null,{"$f":"IF(LEFT(CRSDATA!N82,2)=\"A0\",\"A00\",IF(LEFT(CRSDATA!N82,3)=\"B02\",\"B02\",IF(LEFT(CRSDATA!N82,3)=\"B03\",\"B03\",IF(CRSDATA!N82=\"B04\",\"C01\",IF(CRSDATA!N82=\"H01\",\"H00\",IF(OR(CRSDATA!N82=\"H02\",CRSDATA!N82=\"H03\",CRSDATA!N82=\"H04\",CRSDATA!N82=\"H05\",CRSDATA!N82=\"H06\"),\"I01\",IF(CRSDATA!N82=\"\",\"\",CRSDATA!N82)))))))","v":""},{"$f":"IF(AND(LEN(CRSDATA!M82)=4,LEFT(CRSDATA!M82,3)=\"110\"),1100,IF(AND(LEN(CRSDATA!M82)=4,LEFT(CRSDATA!M82,3)=\"422\"),422,CRSDATA!M82))","v":0},{"$f":"IF(CRSDATA!L82=22,\"FA04\",\"\")","v":""},{"$f":"IF(CRSDATA!K82=8,\"FC02\",\"\")","v":""},{"$f":"_xlfn.IFS(OR(P82=\"A00\",P82=\"E01\",P82=\"F01\",AND(P82=\"\",A82<>0),Q82=510,Q82=520,AF82=60),1,P82=\"G01\",IF(AF82=10,21,22),OR(M82=41203,M82=41204),22,OR(AND(OR(P82=\"B02\",P82=\"B03\"),M82=41310),OR(P82=\"E02\",P82=\"I01\")),21,AND(OR(P82=\"B01\",P82=\"B03\",P82=\"C01\"),M82<>41310),IF(VLOOKUP(F82,recipient_country!AB:AD,3,FALSE)=10024,\"\",1),AND(P82=\"B02\",M82<>41310),IF(VLOOKUP(M82,channel_codes!J:P,7,FALSE)=0,\"\",VLOOKUP(M82,channel_codes!J:P,7,FALSE)),ISNUMBER(MATCH(P82,{\"D01\",\"D02\"},0)),IF(VLOOKUP(M82,channel_codes!J:P,7,FALSE)=1,1,IF(VLOOKUP(F82,recipient_country!AB:AD,3,FALSE)=10024,\"\",1)),OR(P82=\"H01\",AND(OR(ISNUMBER(SEARCH(\"41010\", L82)),ISNUMBER(SEARCH(\"41020\", L82)),ISNUMBER(SEARCH(\"41030\", L82)),ISNUMBER(SEARCH(\"41040\", L82)),ISNUMBER(SEARCH(\"41081\", L82))),F82=998)),22,F82=998,22,TRUE,\"\")","v":""},{"$f":"CRSDATA!AN82","v":0},{"$f":"CRSDATA!AO82","v":0},{"$f":"CRSDATA!AQ82","v":0},{"$f":"CRSDATA!AS82","v":0},{"$f":"CRSDATA!BB82","v":0},null,"",{"$f":"IF(AND(AND(CRSDATA!C82<>\"\",CRSDATA!BK82<>\"\"),OR(CRSDATA!N82=421,CRSDATA!N82=422,CRSDATA!N82=4221,CRSDATA!N82=4222,CRSDATA!N82=423,CRSDATA!N82=424,CRSDATA!N82=425,CRSDATA!N82=431,CRSDATA!N82=433,CRSDATA!N82=434)),DATEDIF(CRSDATA!C82,CRSDATA!BK82,\"m\"),\"\")","v":""},{"$f":"CRSDATA!BA82","v":0},{"$f":"CRSDATA!BC82","v":0},{"$f":"IF(CRSDATA!BT82=\"\",\"\",CRSDATA!BT82)","v":""},{"$f":"CRSDATA!L82","v":0}]
[{"$f":"CRSDATA!A83","v":0},{"$f":"CRSDATA!C83","v":0},{"$f":"CRSDATA!D83","v":0},{"$f":"CRSDATA!F83","v":0},{"$f":"CRSDATA!E83","v":0},{"$f":"IF(CRSDATA!H83=3000,998,CRSDATA!H83)","v":0},{"$f":"CRSDATA!O83","v":0},{"$f":"CRSDATA!U83","v":0},{"$f":"IF(CRSDATA!V83=\"\",\"\",CRSDATA!V83)","v":""},{"$f":"IF(CRSDATA!W83=\"\",\"\",CRSDATA!W83)","v":""},{"$f":"key_row(CRSDATA!X83,CRSDATA!Y83,CRSDATA!AL83,CRSDATA!AK83,CRSDATA!AJ83,CRSDATA!AM83,CRSDATA!P83,CRSDATA!V83)","v":""},{"$f":"CRSDATA!P83","v":0},{"$f":"CRSDATA!J83","v":0},{"$f":"CRSDATA!I83","v":0},null,{"$f":"IF(LEFT(CRSDATA!N83,2)=\"A0\",\"A00\",IF(LEFT(CRSDATA!N83,3)=\"B02\",\"B02\",IF(LEFT(CRSDATA!N83,3)=\"B03\",\"B03\",IF(CRSDATA!N83=\"B04\",\"C01\",IF(CRSDATA!N83=\"H01\",\"H00\",IF(OR(CRSDATA!N83=\"H02\",CRSDATA!N83=\"H03\",CRSDATA!N83=\"H04\",CRSDATA!N83=\"H05\",CRSDATA!N83=\"H06\"),\"I01\",IF(CRSDATA!N83=\"\",\"\",CRSDATA!N83)))))))","v":""},{"$f":"IF(AND(LEN(CRSDATA!M83)=4,LEFT(CRSDATA!M83,3)=\"110\"),1100,IF(AND(LEN(CRSDATA!M83)=4,LEFT(CRSDATA!M83,3)=\"422\"),422,CRSDATA!M83))","v":0},{"$f":"IF(CRSDATA!L83=22,\"FA04\",\"\")","v":""},{"$f":"IF(CRSDATA!K83=8,\"FC02\",\"\")","v":""},{"$f":"_xlfn.IFS(OR(P83=\"A00\",P83=\"E01\",P83=\"F01\",AND(P83=\"\",A83<>0),Q83=510,Q83=520,AF83=60),1,P83=\"G01\",IF(AF83=10,21,22),OR(M83=41203,M83=41204),22,OR(AND(OR(P83=\"B02\",P83=\"B03\"),M83=41310),OR(P83=\"E02\",P83=\"I01\")),21,AND(OR(P83=\"B01\",P83=\"B03\",P83=\"C01\"),M83<>41310),IF(VLOOKUP(F83,recipient_country!AB:AD,3,FALSE)=10024,\"\",1),AND(P83=\"B02\",M83<>41310),IF(VLOOKUP(M83,channel_codes!J:P,7,FALSE)=0,\"\",VLOOKUP(M83,channel_codes!J:P,7,FALSE)),ISNUMBER(MATCH(P83,{\"D01\",\"D02\"},0)),IF(VLOOKUP(M83,channel_codes!J:P,7,FALSE)=1,1,IF(VLOOKUP(F83,recipient_country!AB:AD,3,FALSE)=10024,\"\",1)),OR(P83=\"H01\",AND(OR(ISNUMBER(SEARCH(\"41010\", L83)),ISNUMBER(SEARCH(\"41020\", L83)),ISNUMBER(SEARCH(\"41030\", L83)),ISNUMBER(SEARCH(\"41040\", L83)),ISNUMBER(SEARCH(\"41081\", L83))),F83=998)),22,F83=998,22,TRUE,\"\")","v":""},{"$f":"CRSDATA!AN83","v":0},{"$f":"CRSDATA!AO83","v":0},{"$f":"CRSDATA!AQ83","v":0},{"$f":"CRSDATA!AS83","v":0},{"$f":"CRSDATA!BB83","v":0},null,"",{"$f":"IF(AND(AND(CRSDATA!C83<>\"\",CRSDATA!BK83<>\"\"),OR(CRSDATA!N83=421,CRSDATA!N83=422,CRSDATA!N83=4221,CRSDATA!N83=4222,CRSDATA!N83=423,CRSDATA!N83=424,CRSDATA!N83=425,CRSDATA!N83=431,CRSDATA!N83=433,CRSDATA!N83=434)),DATEDIF(CRSDATA!C83,CRSDATA!BK83,\"m\"),\"\")","v":""},{"$f":"CRSDATA!BA83","v":0},{"$f":"CRSDATA!BC83","v":0},{"$f":"IF(CRSDATA!BT83=\"\",\"\",CRSDATA!BT83)","v":""},{"$f":"CRSDATA!L83","v":0}]
[{"$f":"CRSDATA!A84","v":0},{"$f":"CRSDATA!C84","v":0},{"$f":"CRSDATA!D84","v":0},{"$f":"CRSDATA!F84","v":0},{"$f":"CRSDATA!E84","v":0},{"$f":"IF(CRSDATA!H84=3000,998,CRSDATA!H84)","v":0},{"$f":"CRSDATA!O84","v":0},{"$f":"CRSDATA!U84","v":0},{"$f":"IF(CRSDATA!V84=\"\",\"\",CRSDATA!V84)","v":""},{"$f":"IF(CRSDATA!W84=\"\",\"\",CRSDATA!W84)","v":""},{"$f":"key_row(CRSDATA!X84,CRSDATA!Y84,CRSDATA!AL84,CRSDATA!AK84,CRSDATA!AJ84,CRSDATA!AM84,CRSDATA!P84,CRSDATA!V84)","v":""},{"$f":"CRSDATA!P84","v":0},{"$f":"CRSDATA!J84","v":0},{"$f":"CRSDATA!I84","v":0},null,{"$f":"IF(LEFT(CRSDATA!N84,2)=\"A0\",\"A00\",IF(LEFT(CRSDATA!N84,3)=\"B02\",\"B02\",IF(LEFT(CRSDATA!N84,3)=\"B03\",\"B03\",IF(CRSDATA!N84=\"B04\",\"C01\",IF(CRSDATA!N84=\"H01\",\"H00\",IF(OR(CRSDATA!N84=\"H02\",CRSDATA!N84=\"H03\",CRSDATA!N84=\"H04\",CRSDATA!N84=\"H05\",CRSDATA!N84=\"H06\"),\"I01\",IF(CRSDATA!N84=\"\",\"\",CRSDATA!N84)))))))","v":""},{"$f":"IF(AND(LEN(CRSDATA!M84)=4,LEFT(CRSDATA!M84,3)=\"110\"),1100,IF(AND(LEN(CRSDATA!M84)=4,LEFT(CRSDATA!M84,3)=\"422\"),422,CRSDATA!M84))","v":0},{"$f":"IF(CRSDATA!L84=22,\"FA04\",\"\")","v":""},{"$f":"IF(CRSDATA!K84=8,\"FC02\",\"\")","v":""},{"$f":"_xlfn.IFS(OR(P84=\"A00\",P84=\"E01\",P84=\"F01\",AND(P84=\"\",A84<>0),Q84=510,Q84=520,AF84=60),1,P84=\"G01\",IF(AF84=10,21,22),OR(M84=41203,M84=41204),22,OR(AND(OR(P84=\"B02\",P84=\"B03\"),M84=41310),OR(P84=\"E02\",P84=\"I01\")),21,AND(OR(P84=\"B01\",P84=\"B03\",P84=\"C01\"),M84<>41310),IF(VLOOKUP(F84,recipient_country!AB:AD,3,FALSE)=10024,\"\",1),AND(P84=\"B02\",M84<>41310),IF(VLOOKUP(M84,channel_codes!J:P,7,FALSE)=0,\"\",VLOOKUP(M84,channel_codes!J:P,7,FALSE)),ISNUMBER(MATCH(P84,{\"D01\",\"D02\"},0)),IF(VLOOKUP(M84,channel_codes!J:P,7,FALSE)=1,1,IF(VLOOKUP(F84,recipient_country!AB:AD,3,FALSE)=10024,\"\",1)),OR(P84=\"H01\",AND(OR(ISNUMBER(SEARCH(\"41010\", L84)),ISNUMBER(SEARCH(\"41020\", L84)),ISNUMBER(SEARCH(\"41030\", L84)),ISNUMBER(SEARCH(\"41040\", L84)),ISNUMBER(SEARCH(\"41081\", L84))),F84=998)),22,F84=998,22,TRUE,\"\")","v":""},{"$f":"CRSDATA!AN84","v":0},{"$f":"CRSDATA!AO84","v":0},{"$f":"CRSDATA!AQ84","v":0},{"$f":"CRSDATA!AS84","v":0},{"$f":"CRSDATA!BB84","v":0},null,"",{"$f":"IF(AND(AND(CRSDATA!C84<>\"\",CRSDATA!BK84<>\"\"),OR(CRSDATA!N84=421,CRSDATA!N84=422,CRSDATA!N84=4221,CRSDATA!N84=4222,CRSDATA!N84=423,CRSDATA!N84=424,CRSDATA!N84=425,CRSDATA!N84=431,CRSDATA!N84=433,CRSDATA!N84=434)),DATEDIF(CRSDATA!C84,CRSDATA!BK84,\"m\"),\"\")","v":""},{"$f":"CRSDATA!BA84","v":0},{"$f":"CRSDATA!BC84","v":0},{"$f":"IF(CRSDATA!BT84=\"\",\"\",CRSDATA!BT84)","v":""},{"$f":"CRSDATA!L84","v":0}]
[{"$f":"CRSDATA!A85","v":0},{"$f":"CRSDATA!C85","v":0},{"$f":"CRSDATA!D85","v":0},{"$f":"CRSDATA!F85","v":0},{"$f":"CRSDATA!E85","v":0},{"$f":"IF(CRSDATA!H85=3000,998,CRSDATA!H85)","v":0},{"$f":"CRSDATA!O85","v":0},{"$f":"CRSDATA!U85","v":0},{"$f":"IF(CRSDATA!V85=\"\",\"\",CRSDATA!V85)","v":""},{"$f":"IF(CRSDATA!W85=\"\",\"\",CRSDATA!W85)","v":""},{"$f":"key_row(CRSDATA!X85,CRSDATA!Y85,CRSDATA!AL85,CRSDATA!AK85,CRSDATA!AJ85,CRSDATA!AM85,CRSDATA!P85,CRSDATA!V85)","v":""},{"$f":"CRSDATA!P85","v":0},{"$f":"CRSDATA!J85","v":0},{"$f":"CRSDATA!I85","v":0},null,{"$f":"IF(LEFT(CRSDATA!N85,2)=\"A0\",\"A00\",IF(LEFT(CRSDATA!N85,3)=\"B02\",\"B02\",IF(LEFT(CRSDATA!N85,3)=\"B03\",\"B03\",IF(CRSDATA!N85=\"B04\",\"C01\",IF(CRSDATA!N85=\"H01\",\"H00\",IF(OR(CRSDATA!N85=\"H02\",CRSDATA!N85=\"H03\",CRSDATA!N85=\"H04\",CRSDATA!N85=\"H05\",CRSDATA!N85=\"H06\"),\"I01\",IF(CRSDATA!N85=\"\",\"\",CRSDATA!N85)))))))","v":""},{"$f":"IF(AND(LEN(CRSDATA!M85)=4,LEFT(CRSDATA!M85,3)=\"110\"),1100,IF(AND(LEN(CRSDATA!M85)=4,LEFT(CRSDATA!M85,3)=\"422\"),422,CRSDATA!M85))","v":0},{"$f":"IF(CRSDATA!L85=22,\"FA04\",\"\")","v":""},{"$f":"IF(CRSDATA!K85=8,\"FC02\",\"\")","v":""},{"$f":"_xlfn.IFS(OR(P85=\"A00\",P85=\"E01\",P85=\"F01\",AND(P85=\"\",A85<>0),Q85=510,Q85=520,AF85=60),1,P85=\"G01\",IF(AF85=10,21,22),OR(M85=41203,M85=41204),22,OR(AND(OR(P85=\"B02\",P85=\"B03\"),M85=41310),OR(P85=\"E02\",P85=\"I01\")),21,AND(OR(P85=\"B01\",P85=\"B03\",P85=\"C01\"),M85<>41310),IF(VLOOKUP(F85,recipient_country!AB:AD,3,FALSE)=10024,\"\",1),AND(P85=\"B02\",M85<>41310),IF(VLOOKUP(M85,channel_codes!J:P,7,FALSE)=0,\"\",VLOOKUP(M85,channel_codes!J:P,7,FALSE)),ISNUMBER(MATCH(P85,{\"D01\",\"D02\"},0)),IF(VLOOKUP(M85,channel_codes!J:P,7,FALSE)=1,1,IF(VLOOKUP(F85,recipient_country!AB:AD,3,FALSE)=10024,\"\",1)),OR(P85=\"H01\",AND(OR(ISNUMBER(SEARCH(\"41010\", L85)),ISNUMBER(SEARCH(\"41020\", L85)),ISNUMBER(SEARCH(\"41030\", L85)),ISNUMBER(SEARCH(\"41040\", L85)),ISNUMBER(SEARCH(\"41081\", L85))),F85=998)),22,F85=998,22,TRUE,\"\")","v":""},{"$f":"CRSDATA!AN85","v":0},{"$f":"CRSDATA!AO85","v":0},{"$f":"CRSDATA!AQ85","v":0},{"$f":"CRSDATA!AS85","v":0},{"$f":"CRSDATA!BB85","v":0},null,"",{"$f":"IF(AND(AND(CRSDATA!C85<>\"\",CRSDATA!BK85<>\"\"),OR(CRSDATA!N85=421,CRSDATA!N85=422,CRSDATA!N85=4221,CRSDATA!N85=4222,CRSDATA!N85=423,CRSDATA!N85=424,CRSDATA!N85=425,CRSDATA!N85=431,CRSDATA!N85=433,CRSDATA!N85=434)),DATEDIF(CRSDATA!C85,CRSDATA!BK85,\"m\"),\"\")","v":""},{"$f":"CRSDATA!BA85","v":0},{"$f":"CRSDATA!BC85","v":0},{"$f":"IF(CRSDATA!BT85=\"\",\"\",CRSDATA!BT85)","v":""},{"$f":"CRSDATA!L85","v":0}]
[{"$f":"CRSDATA!A86","v":0},{"$f":"CRSDATA!C86","v":0},{"$f":"CRSDATA!D86","v":0},{"$f":"CRSDATA!F86","v":0},{"$f":"CRSDATA!E86","v":0},{"$f":"IF(CRSDATA!H86=3000,998,CRSDATA!H86)","v":0},{"$f":"CRSDATA!O86","v":0},{"$f":"CRSDATA!U86","v":0},{"$f":"IF(CRSDATA!V86=\"\",\"\",CRSDATA!V86)","v":""},{"$f":"IF(CRSDATA!W86=\"\",\"\",CRSDATA!W86)","v":""},{"$f":"key_row(CRSDATA!X86,CRSDATA!Y86,CRSDATA!AL86,CRSDATA!AK86,CRSDATA!AJ86,CRSDATA!AM86,CRSDATA!P86,CRSDATA!V86)","v":""},{"$f":"CRSDATA!P86","v":0},{"$f":"CRSDATA!J86","v":0},{"$f":"CRSDATA!I86","v":0},null,{"$f":"IF(LEFT(CRSDATA!N86,2)=\"A0\",\"A00\",IF(LEFT(CRSDATA!N86,3)=\"B02\",\"B02\",IF(LEFT(CRSDATA!N86,3)=\"B03\",\"B03\",IF(CRSDATA!N86=\"B04\",\"C01\",IF(CRSDATA!N86=\"H01\",\"H00\",IF(OR(CRSDATA!N86=\"H02\",CRSDATA!N86=\"H03\",CRSDATA!N86=\"H04\",CRSDATA!N86=\"H05\",CRSDATA!N86=\"H06\"),\"I01\",IF(CRSDATA!N86=\"\",\"\",CRSDATA!N86)))))))","v":""},{"$f":"IF(AND(LEN(CRSDATA!M86)=4,LEFT(CRSDATA!M86,3)=\"110\"),1100,IF(AND(LEN(CRSDATA!M86)=4,LEFT(CRSDATA!M86,3)=\"422\"),422,CRSDATA!M86))","v":0},{"$f":"IF(CRSDATA!L86=22,\"FA04\",\"\")","v":""},{"$f":"IF(CRSDATA!K86=8,\"FC02\",\"\")","v":""},{"$f":"_xlfn.IFS(OR(P86=\"A00\",P86=\"E01\",P86=\"F01\",AND(P86=\"\",A86<>0),Q86=510,Q86=520,AF86=60),1,P86=\"G01\",IF(AF86=10,21,22),OR(M86=41203,M86=41204),22,OR(AND(OR(P86=\"B02\",P86=\"B03\"),M86=41310),OR(P86=\"E02\",P86=\"I01\")),21,AND(OR(P86=\"B01\",P86=\"B03\",P86=\"C01\"),M86<>41310),IF(VLOOKUP(F86,recipient_country!AB:AD,3,FALSE)=10024,\"\",1),AND(P86=\"B02\",M86<>41310),IF(VLOOKUP(M86,channel_codes!J:P,7,FALSE)=0,\"\",VLOOKUP(M86,channel_codes!J:P,7,FALSE)),ISNUMBER(MATCH(P86,{\"D01\",\"D02\"},0)),IF(VLOOKUP(M86,channel_codes!J:P,7,FALSE)=1,1,IF(VLOOKUP(F86,recipient_country!AB:AD,3,FALSE)=10024,\"\",1)),OR(P86=\"H01\",AND(OR(ISNUMBER(SEARCH(\"41010\", L86)),ISNUMBER(SEARCH(\"41020\", L86)),ISNUMBER(SEARCH(\"41030\", L86)),ISNUMBER(SEARCH(\"41040\", L86)),ISNUMBER(SEARCH(\"41081\", L86))),F86=998)),22,F86=998,22,TRUE,\"\")","v":""},{"$f":"CRSDATA!AN86","v":0},{"$f":"CRSDATA!AO86","v":0},{"$f":"CRSDATA!AQ86","v":0},{"$f":"CRSDATA!AS86","v":0},{"$f":"CRSDATA!BB86","v":0},null,"",{"$f":"IF(AND(AND(CRSDATA!C86<>\"\",CRSDATA!BK86<>\"\"),OR(CRSDATA!N86=421,CRSDATA!N86=422,CRSDATA!N86=4221,CRSDATA!N86=4222,CRSDATA!N86=423,CRSDATA!N86=424,CRSDATA!N86=425,CRSDATA!N86=431,CRSDATA!N86=433,CRSDATA!N86=434)),DATEDIF(CRSDATA!C86,CRSDATA!BK86,\"m\"),\"\")","v":""},{"$f":"CRSDATA!BA86","v":0},{"$f":"CRSDATA!BC86","v":0},{"$f":"IF(CRSDATA!BT86=\"\",\"\",CRSDATA!BT86)","v":""},{"$f":"CRSDATA!L86","v":0}]
[{"$f":"CRSDATA!A87","v":0},{"$f":"CRSDATA!C87","v":0},{"$f":"CRSDATA!D87","v":0},{"$f":"CRSDATA!F87","v":0},{"$f":"CRSDATA!E87","v":0},{"$f":"IF(CRSDATA!H87=3000,998,CRSDATA!H87)","v":0},{"$f":"CRSDATA!O87","v":0},{"$f":"CRSDATA!U87","v":0},{"$f":"IF(CRSDATA!V87=\"\",\"\",CRSDATA!V87)","v":""},{"$f":"IF(CRSDATA!W87=\"\",\"\",CRSDATA!W87)","v":""},{"$f":"key_row(CRSDATA!X87,CRSDATA!Y87,CRSDATA!AL87,CRSDATA!AK87,CRSDATA!AJ87,CRSDATA!AM87,CRSDATA!P87,CRSDATA!V87)","v":""},{"$f":"CRSDATA!P87","v":0},{"$f":"CRSDATA!J87","v":0},{"$f":"CRSDATA!I87","v":0},null,{"$f":"IF(LEFT(CRSDATA!N87,2)=\"A0\",\"A00\",IF(LEFT(CRSDATA!N87,3)=\"B02\",\"B02\",IF(LEFT(CRSDATA!N87,3)=\"B03\",\"B03\",IF(CRSDATA!N87=\"B04\",\"C01\",IF(CRSDATA!N87=\"H01\",\"H00\",IF(OR(CRSDATA!N87=\"H02\",CRSDATA!N87=\"H03\",CRSDATA!N87=\"H04\",CRSDATA!N87=\"H05\",CRSDATA!N87=\"H06\"),\"I01\",IF(CRSDATA!N87=\"\",\"\",CRSDATA!N87)))))))","v":""},{"$f":"IF(AND(LEN(CRSDATA!M87)=4,LEFT(CRSDATA!M87,3)=\"110\"),1100,IF(AND(LEN(CRSDATA!M87)=4,LEFT(CRSDATA!M87,3)=\"422\"),422,CRSDATA!M87))","v":0},{"$f":"IF(CRSDATA!L87=22,\"FA04\",\"\")","v":""},{"$f":"IF(CRSDATA!K87=8,\"FC02\",\"\")","v":""},{"$f":"_xlfn.IFS(OR(P87=\"A00\",P87=\"E01\",P87=\"F01\",AND(P87=\"\",A87<>0),Q87=510,Q87=520,AF87=60),1,P87=\"G01\",IF(AF87=10,21,22),OR(M87=41203,M87=41204),22,OR(AND(OR(P87=\"B02\",P87=\"B03\"),M87=41310),OR(P87=\"E02\",P87=\"I01\")),21,AND(OR(P87=\"B01\",P87=\"B03\",P87=\"C01\"),M87<>41310),IF(VLOOKUP(F87,recipient_country!AB:AD,3,FALSE)=10024,\"\",1),AND(P87=\"B02\",M87<>41310),IF(VLOOKUP(M87,channel_codes!J:P,7,FALSE)=0,\"\",VLOOKUP(M87,channel_codes!J:P,7,FALSE)),ISNUMBER(MATCH(P87,{\"D01\",\"D02\"},0)),IF(VLOOKUP(M87,channel_codes!J:P,7,FALSE)=1,1,IF(VLOOKUP(F87,recipient_country!AB:AD,3,FALSE)=10024,\"\",1)),OR(P87=\"H01\",AND(OR(ISNUMBER(SEARCH(\"41010\", L87)),ISNUMBER(SEARCH(\"41020\", L87)),ISNUMBER(SEARCH(\"41030\", L87)),ISNUMBER(SEARCH(\"41040\", L87)),ISNUMBER(SEARCH(\"41081\", L87))),F87=998)),22,F87=998,22,TRUE,\"\")","v":""},{"$f":"CRSDATA!AN87","v":0},{"$f":"CRSDATA!AO87","v":0},{"$f":"CRSDATA!AQ87","v":0},{"$f":"CRSDATA!AS87","v":0},{"$f":"CRSDATA!BB87","v":0},null,"",{"$f":"IF(AND(AND(CRSDATA!C87<>\"\",CRSDATA!BK87<>\"\"),OR(CRSDATA!N87=421,CRSDATA!N87=422,CRSDATA!N87=4221,CRSDATA!N87=4222,CRSDATA!N87=423,CRSDATA!N87=424,CRSDATA!N87=425,CRSDATA!N87=431,CRSDATA!N87=433,CRSDATA!N87=434)),DATEDIF(CRSDATA!C87,CRSDATA!BK87,\"m\"),\"\")","v":""},{"$f":"CRSDATA!BA87","v":0},{"$f":"CRSDATA!BC87","v":0},{"$f":"IF(CRSDATA!BT87=\"\",\"\",CRSDATA!BT87)","v":""},{"$f":"CRSDATA!L87","v":0}]
[{"$f":"CRSDATA!A88","v":0},{"$f":"CRSDATA!C88","v":0},{"$f":"CRSDATA!D88","v":0},{"$f":"CRSDATA!F88","v":0},{"$f":"CRSDATA!E88","v":0},{"$f":"IF(CRSDATA!H88=3000,998,CRSDATA!H88)","v":0},{"$f":"CRSDATA!O88","v":0},{"$f":"CRSDATA!U88","v":0},{"$f":"IF(CRSDATA!V88=\"\",\"\",CRSDATA!V88)","v":""},{"$f":"IF(CRSDATA!W88=\"\",\"\",CRSDATA!W88)","v":""},{"$f":"key_row(CRSDATA!X88,CRSDATA!Y88,CRSDATA!AL88,CRSDATA!AK88,CRSDATA!AJ88,CRSDATA!AM88,CRSDATA!P88,CRSDATA!V88)","v":""},{"$f":"CRSDATA!P88","v":0},{"$f":"CRSDATA!J88","v":0},{"$f":"CRSDATA!I88","v":0},null,{"$f":"IF(LEFT(CRSDATA!N88,2)=\"A0\",\"A00\",IF(LEFT(CRSDATA!N88,3)=\"B02\",\"B02\",IF(LEFT(CRSDATA!N88,3)=\"B03\",\"B03\",IF(CRSDATA!N88=\"B04\",\"C01\",IF(CRSDATA!N88=\"H01\",\"H00\",IF(OR(CRSDATA!N88=\"H02\",CRSDATA!N88=\"H03\",CRSDATA!N88=\"H04\",CRSDATA!N88=\"H05\",CRSDATA!N88=\"H06\"),\"I01\",IF(CRSDATA!N88=\"\",\"\",CRSDATA!N88)))))))","v":""},{"$f":"IF(AND(LEN(CRSDATA!M88)=4,LEFT(CRSDATA!M88,3)=\"110\"),1100,IF(AND(LEN(CRSDATA!M88)=4,LEFT(CRSDATA!M88,3)=\"422\"),422,CRSDATA!M88))","v":0},{"$f":"IF(CRSDATA!L88=22,\"FA04\",\"\")","v":""},{"$f":"IF(CRSDATA!K88=8,\"FC02\",\"\")","v":""},{"$f":"_xlfn.IFS(OR(P88=\"A00\",P88=\"E01\",P88=\"F01\",AND(P88=\"\",A88<>0),Q88=510,Q88=520,AF88=60),1,P88=\"G01\",IF(AF88=10,21,22),OR(M88=41203,M88=41204),22,OR(AND(OR(P88=\"B02\",P88=\"B03\"),M88=41310),OR(P88=\"E02\",P88=\"I01\")),21,AND(OR(P88=\"B01\",P88=\"B03\",P88=\"C01\"),M88<>41310),IF(VLOOKUP(F88,recipient_country!AB:AD,3,FALSE)=10024,\"\",1),AND(P88=\"B02\",M88<>41310),IF(VLOOKUP(M88,channel_codes!J:P,7,FALSE)=0,\"\",VLOOKUP(M88,channel_codes!J:P,7,FALSE)),ISNUMBER(MATCH(P88,{\"D01\",\"D02\"},0)),IF(VLOOKUP(M88,channel_codes!J:P,7,FALSE)=1,1,IF(VLOOKUP(F88,recipient_country!AB:AD,3,FALSE)=10024,\"\",1)),OR(P88=\"H01\",AND(OR(ISNUMBER(SEARCH(\"41010\", L88)),ISNUMBER(SEARCH(\"41020\", L88)),ISNUMBER(SEARCH(\"41030\", L88)),ISNUMBER(SEARCH(\"41040\", L88)),ISNUMBER(SEARCH(\"41081\", L88))),F88=998)),22,F88=998,22,TRUE,\"\")","v":""},{"$f":"CRSDATA!AN88","v":0},{"$f":"CRSDATA!AO88","v":0},{"$f":"CRSDATA!AQ88","v":0},{"$f":"CRSDATA!AS88","v":0},{"$f":"CRSDATA!BB88","v":0},null,"",{"$f":"IF(AND(AND(CRSDATA!C88<>\"\",CRSDATA!BK88<>\"\"),OR(CRSDATA!N88=421,CRSDATA!N88=422,CRSDATA!N88=4221,CRSDATA!N88=4222,CRSDATA!N88=423,CRSDATA!N88=424,CRSDATA!N88=425,CRSDATA!N88=431,CRSDATA!N88=433,CRSDATA!N88=434)),DATEDIF(CRSDATA!C88,CRSDATA!BK88,\"m\"),\"\")","v":""},{"$f":"CRSDATA!BA88","v":0},{"$f":"CRSDATA!BC88","v":0},{"$f":"IF(CRSDATA!BT88=\"\",\"\",CRSDATA!BT88)","v":""},{"$f":"CRSDATA!L88","v":0}]
[{"$f":"CRSDATA!A89","v":0},{"$f":"CRSDATA!C89","v":0},{"$f":"CRSDATA!D89","v":0},{"$f":"CRSDATA!F89","v":0},{"$f":"CRSDATA!E89","v":0},{"$f":"IF(CRSDATA!H89=3000,998,CRSDATA!H89)","v":0},{"$f":"CRSDATA!O89","v":0},{"$f":"CRSDATA!U89","v":0},{"$f":"IF(CRSDATA!V89=\"\",\"\",CRSDATA!V89)","v":""},{"$f":"IF(CRSDATA!W89=\"\",\"\",CRSDATA!W89)","v":""},{"$f":"key_row(CRSDATA!X89,CRSDATA!Y89,CRSDATA!AL89,CRSDATA!AK89,CRSDATA!AJ89,CRSDATA!AM89,CRSDATA!P89,CRSDATA!V89)","v":""},{"$f":"CRSDATA!P89","v":0},{"$f":"CRSDATA!J89","v":0},{"$f":"CRSDATA!I89","v":0},null,{"$f":"IF(LEFT(CRSDATA!N89,2)=\"A0\",\"A00\",IF(LEFT(CRSDATA!N89,3)=\"B02\",\"B02\",IF(LEFT(CRSDATA!N89,3)=\"B03\",\"B03\",IF(CRSDATA!N89=\"B04\",\"C01\",IF(CRSDATA!N89=\"H01\",\"H00\",IF(OR(CRSDATA!N89=\"H02\",CRSDATA!N89=\"H03\",CRSDATA!N89=\"H04\",CRSDATA!N89=\"H05\",CRSDATA!N89=\"H06\"),\"I01\",IF(CRSDATA!N89=\"\",\"\",CRSDATA!N89)))))))","v":""},{"$f":"IF(AND(LEN(CRSDATA!M89)=4,LEFT(CRSDATA!M89,3)=\"110\"),1100,IF(AND(LEN(CRSDATA!M89)=4,LEFT(CRSDATA!M89,3)=\"422\"),422,CRSDATA!M89))","v":0},{"$f":"IF(CRSDATA!L89=22,\"FA04\",\"\")","v":""},{"$f":"IF(CRSDATA!K89=8,\"FC02\",\"\")","v":""},{"$f":"_xlfn.IFS(OR(P89=\"A00\",P89=\"E01\",P89=\"F01\",AND(P89=\"\",A89<>0),Q89=510,Q89=520,AF89=60),1,P89=\"G01\",IF(AF89=10,21,22),OR(M89=41203,M89=41204),22,OR(AND(OR(P89=\"B02\",P89=\"B03\"),M89=41310),OR(P89=\"E02\",P89=\"I01\")),21,AND(OR(P89=\"B01\",P89=\"B03\",P89=\"C01\"),M89<>41310),IF(VLOOKUP(F89,recipient_country!AB:AD,3,FALSE)=10024,\"\",1),AND(P89=\"B02\",M89<>41310),IF(VLOOKUP(M89,channel_codes!J:P,7,FALSE)=0,\"\",VLOOKUP(M89,channel_codes!J:P,7,FALSE)),ISNUMBER(MATCH(P89,{\"D01\",\"D02\"},0)),IF(VLOOKUP(M89,channel_codes!J:P,7,FALSE)=1,1,IF(VLOOKUP(F89,recipient_country!AB:AD,3,FALSE)=10024,\"\",1)),OR(P89=\"H01\",AND(OR(ISNUMBER(SEARCH(\"41010\", L89)),ISNUMBER(SEARCH(\"41020\", L89)),ISNUMBER(SEARCH(\"41030\", L89)),ISNUMBER(SEARCH(\"41040\", L89)),ISNUMBER(SEARCH(\"41081\", L89))),F89=998)),22,F89=998,22,TRUE,\"\")","v":""},{"$f":"CRSDATA!AN89","v":0},{"$f":"CRSDATA!AO89","v":0},{"$f":"CRSDATA!AQ89","v":0},{"$f":"CRSDATA!AS89","v":0},{"$f":"CRSDATA!BB89","v":0},null,"",{"$f":"IF(AND(AND(CRSDATA!C89<>\"\",CRSDATA!BK89<>\"\"),OR(CRSDATA!N89=421,CRSDATA!N89=422,CRSDATA!N89=4221,CRSDATA!N89=4222,CRSDATA!N89=423,CRSDATA!N89=424,CRSDATA!N89=425,CRSDATA!N89=431,CRSDATA!N89=433,CRSDATA!N89=434)),DATEDIF(CRSDATA!C89,CRSDATA!BK89,\"m\"),\"\")","v":""},{"$f":"CRSDATA!BA89","v":0},{"$f":"CRSDATA!BC89","v":0},{"$f":"IF(CRSDATA!BT89=\"\",\"\",CRSDATA!BT89)","v":""},{"$f":"CRSDATA!L89","v":0}]
[{"$f":"CRSDATA!A90","v":0},{"$f":"CRSDATA!C90","v":0},{"$f":"CRSDATA!D90","v":0},{"$f":"CRSDATA!F90","v":0},{"$f":"CRSDATA!E90","v":0},{"$f":"IF(CRSDATA!H90=3000,998,CRSDATA!H90)","v":0},{"$f":"CRSDATA!O90","v":0},{"$f":"CRSDATA!U90","v":0},{"$f":"IF(CRSDATA!V90=\"\",\"\",CRSDATA!V90)","v":""},{"$f":"IF(CRSDATA!W90=\"\",\"\",CRSDATA!W90)","v":""},{"$f":"key_row(CRSDATA!X90,CRSDATA!Y90,CRSDATA!AL90,CRSDATA!AK90,CRSDATA!AJ90,CRSDATA!AM90,CRSDATA!P90,CRSDATA!V90)","v":""},{"$f":"CRSDATA!P90","v":0},{"$f":"CRSDATA!J90","v":0},{"$f":"CRSDATA!I90","v":0},null,{"$f":"IF(LEFT(CRSDATA!N90,2)=\"A0\",\"A00\",IF(LEFT(CRSDATA!N90,3)=\"B02\",\"B02\",IF(LEFT(CRSDATA!N90,3)=\"B03\",\"B03\",IF(CRSDATA!N90=\"B04\",\"C01\",IF(CRSDATA!N90=\"H01\",\"H00\",IF(OR(CRSDATA!N90=\"H02\",CRSDATA!N90=\"H03\",CRSDATA!N90=\"H04\",CRSDATA!N90=\"H05\",CRSDATA!N90=\"H06\"),\"I01\",IF(CRSDATA!N90=\"\",\"\",CRSDATA!N90)))))))","v":""},{"$f":"IF(AND(LEN(CRSDATA!M90)=4,LEFT(CRSDATA!M90,3)=\"110\"),1100,IF(AND(LEN(CRSDATA!M90)=4,LEFT(CRSDATA!M90,3)=\"422\"),422,CRSDATA!M90))","v":0},{"$f":"IF(CRSDATA!L90=22,\"FA04\",\"\")","v":""},{"$f":"IF(CRSDATA!K90=8,\"FC02\",\"\")","v":""},{"$f":"_xlfn.IFS(OR(P90=\"A00\",P90=\"E01\",P90=\"F01\",AND(P90=\"\",A90<>0),Q90=510,Q90=520,AF90=60),1,P90=\"G01\",IF(AF90=10,21,22),OR(M90=41203,M90=41204),22,OR(AND(OR(P90=\"B02\",P90=\"B03\"),M90=41310),OR(P90=\"E02\",P90=\"I01\")),21,AND(OR(P90=\"B01\",P90=\"B03\",P90=\"C01\"),M90<>41310),IF(VLOOKUP(F90,recipient_country!AB:AD,3,FALSE)=10024,\"\",1),AND(P90=\"B02\",M90<>41310),IF(VLOOKUP(M90,channel_codes!J:P,7,FALSE)=0,\"\",VLOOKUP(M90,channel_codes!J:P,7,FALSE)),ISNUMBER(MATCH(P90,{\"D01\",\"D02\"},0)),IF(VLOOKUP(M90,channel_codes!J:P,7,FALSE)=1,1,IF(VLOOKUP(F90,recipient_country!AB:AD,3,FALSE)=10024,\"\",1)),OR(P90=\"H01\",AND(OR(ISNUMBER(SEARCH(\"41010\", L90)),ISNUMBER(SEARCH(\"41020\", L90)),ISNUMBER(SEARCH(\"41030\", L90)),ISNUMBER(SEARCH(\"41040\", L90)),ISNUMBER(SEARCH(\"41081\", L90))),F90=998)),22,F90=998,22,TRUE,\"\")","v":""},{"$f":"CRSDATA!AN90","v":0},{"$f":"CRSDATA!AO90","v":0},{"$f":"CRSDATA!AQ90","v":0},{"$f":"CRSDATA!AS90","v":0},{"$f":"CRSDATA!BB90","v":0},null,"",{"$f":"IF(AND(AND(CRSDATA!C90<>\"\",CRSDATA!BK90<>\"\"),OR(CRSDATA!N90=421,CRSDATA!N90=422,CRSDATA!N90=4221,CRSDATA!N90=4222,CRSDATA!N90=423,CRSDATA!N90=424,CRSDATA!N90=425,CRSDATA!N90=431,CRSDATA!N90=433,CRSDATA!N90=434)),DATEDIF(CRSDATA!C90,CRSDATA!BK90,\"m\"),\"\")","v":""},{"$f":"CRSDATA!BA90","v":0},{"$f":"CRSDATA!BC90","v":0},{"$f":"IF(CRSDATA!BT90=\"\",\"\",CRSDATA!BT90)","v":""},{"$f":"CRSDATA!L90","v":0}]
[{"$f":"CRSDATA!A91","v":0},{"$f":"CRSDATA!C91","v":0},{"$f":"CRSDATA!D91","v":0},{"$f":"CRSDATA!F91","v":0},{"$f":"CRSDATA!E91","v":0},{"$f":"IF(CRSDATA!H91=3000,998,CRSDATA!H91)","v":0},{"$f":"CRSDATA!O91","v":0},{"$f":"CRSDATA!U91","v":0},{"$f":"IF(CRSDATA!V91=\"\",\"\",CRSDATA!V91)","v":""},{"$f":"IF(CRSDATA!W91=\"\",\"\",CRSDATA!W91)","v":""},{"$f":"key_row(CRSDATA!X91,CRSDATA!Y91,CRSDATA!AL91,CRSDATA!AK91,CRSDATA!AJ91,CRSDATA!AM91,CRSDATA!P91,CRSDATA!V91)","v":""},{"$f":"CRSDATA!P91","v":0},{"$f":"CRSDATA!J91","v":0},{"$f":"CRSDATA!I91","v":0},null,{"$f":"IF(LEFT(CRSDATA!N91,2)=\"A0\",\"A00\",IF(LEFT(CRSDATA!N91,3)=\"B02\",\"B02\",IF(LEFT(CRSDATA!N91,3)=\"B03\",\"B03\",IF(CRSDATA!N91=\"B04\",\"C01\",IF(CRSDATA!N91=\"H01\",\"H00\",IF(OR(CRSDATA!N91=\"H02\",CRSDATA!N91=\"H03\",CRSDATA!N91=\"H04\",CRSDATA!N91=\"H05\",CRSDATA!N91=\"H06\"),\"I01\",IF(CRSDATA!N91=\"\",\"\",CRSDATA!N91)))))))","v":""},{"$f":"IF(AND(LEN(CRSDATA!M91)=4,LEFT(CRSDATA!M91,3)=\"110\"),1100,IF(AND(LEN(CRSDATA!M91)=4,LEFT(CRSDATA!M91,3)=\"422\"),422,CRSDATA!M91))","v":0},{"$f":"IF(CRSDATA!L91=22,\"FA04\",\"\")","v":""},{"$f":"IF(CRSDATA!K91=8,\"FC02\",\"\")","v":""},{"$f":"_xlfn.IFS(OR(P91=\"A00\",P91=\"E01\",P91=\"F01\",AND(P91=\"\",A91<>0),Q91=510,Q91=520,AF91=60),1,P91=\"G01\",IF(AF91=10,21,22),OR(M91=41203,M91=41204),22,OR(AND(OR(P91=\"B02\",P91=\"B03\"),M91=41310),OR(P91=\"E02\",P91=\"I01\")),21,AND(OR(P91=\"B01\",P91=\"B03\",P91=\"C01\"),M91<>41310),IF(VLOOKUP(F91,recipient_country!AB:AD,3,FALSE)=10024,\"\",1),AND(P91=\"B02\",M91<>41310),IF(VLOOKUP(M91,channel_codes!J:P,7,FALSE)=0,\"\",VLOOKUP(M91,channel_codes!J:P,7,FALSE)),ISNUMBER(MATCH(P91,{\"D01\",\"D02\"},0)),IF(VLOOKUP(M91,channel_codes!J:P,7,FALSE)=1,1,IF(VLOOKUP(F91,recipient_country!AB:AD,3,FALSE)=10024,\"\",1)),OR(P91=\"H01\",AND(OR(ISNUMBER(SEARCH(\"41010\", L91)),ISNUMBER(SEARCH(\"41020\", L91)),ISNUMBER(SEARCH(\"41030\", L91)),ISNUMBER(SEARCH(\"41040\", L91)),ISNUMBER(SEARCH(\"41081\", L91))),F91=998)),22,F91=998,22,TRUE,\"\")","v":""},{"$f":"CRSDATA!AN91","v":0},{"$f":"CRSDATA!AO91","v":0},{"$f":"CRSDATA!AQ91","v":0},{"$f":"CRSDATA!AS91","v":0},{"$f":"CRSDATA!BB91","v":0},null,"",{"$f":"IF(AND(AND(CRSDATA!C91<>\"\",CRSDATA!BK91<>\"\"),OR(CRSDATA!N91=421,CRSDATA!N91=422,CRSDATA!N91=4221,CRSDATA!N91=4222,CRSDATA!N91=423,CRSDATA!N91=424,CRSDATA!N91=425,CRSDATA!N91=431,CRSDATA!N91=433,CRSDATA!N91=434)),DATEDIF(CRSDATA!C91,CRSDATA!BK91,\"m\"),\"\")","v":""},{"$f":"CRSDATA!BA91","v":0},{"$f":"CRSDATA!BC91","v":0},{"$f":"IF(CRSDATA!BT91=\"\",\"\",CRSDATA!BT91)","v":""},{"$f":"CRSDATA!L91","v":0}]
[{"$f":"CRSDATA!A92","v":0},{"$f":"CRSDATA!C92","v":0},{"$f":"CRSDATA!D92","v":0},{"$f":"CRSDATA!F92","v":0},{"$f":"CRSDATA!E92","v":0},{"$f":"IF(CRSDATA!H92=3000,998,CRSDATA!H92)","v":0},{"$f":"CRSDATA!O92","v":0},{"$f":"CRSDATA!U92","v":0},{"$f":"IF(CRSDATA!V92=\"\",\"\",CRSDATA!V92)","v":""},{"$f":"IF(CRSDATA!W92=\"\",\"\",CRSDATA!W92)","v":""},{"$f":"key_row(CRSDATA!X92,CRSDATA!Y92,CRSDATA!AL92,CRSDATA!AK92,CRSDATA!AJ92,CRSDATA!AM92,CRSDATA!P92,CRSDATA!V92)","v":""},{"$f":"CRSDATA!P92","v":0},{"$f":"CRSDATA!J92","v":0},{"$f":"CRSDATA!I92","v":0},null,{"$f":"IF(LEFT(CRSDATA!N92,2)=\"A0\",\"A00\",IF(LEFT(CRSDATA!N92,3)=\"B02\",\"B02\",IF(LEFT(CRSDATA!N92,3)=\"B03\",\"B03\",IF(CRSDATA!N92=\"B04\",\"C01\",IF(CRSDATA!N92=\"H01\",\"H00\",IF(OR(CRSDATA!N92=\"H02\",CRSDATA!N92=\"H03\",CRSDATA!N92=\"H04\",CRSDATA!N92=\"H05\",CRSDATA!N92=\"H06\"),\"I01\",IF(CRSDATA!N92=\"\",\"\",CRSDATA!N92)))))))","v":""},{"$f":"IF(AND(LEN(CRSDATA!M92)=4,LEFT(CRSDATA!M92,3)=\"110\"),1100,IF(AND(LEN(CRSDATA!M92)=4,LEFT(CRSDATA!M92,3)=\"422\"),422,CRSDATA!M92))","v":0},{"$f":"IF(CRSDATA!L92=22,\"FA04\",\"\")","v":""},{"$f":"IF(CRSDATA!K92=8,\"FC02\",\"\")","v":""},{"$f":"_xlfn.IFS(OR(P92=\"A00\",P92=\"E01\",P92=\"F01\",AND(P92=\"\",A92<>0),Q92=510,Q92=520,AF92=60),1,P92=\"G01\",IF(AF92=10,21,22),OR(M92=41203,M92=41204),22,OR(AND(OR(P92=\"B02\",P92=\"B03\"),M92=41310),OR(P92=\"E02\",P92=\"I01\")),21,AND(OR(P92=\"B01\",P92=\"B03\",P92=\"C01\"),M92<>41310),IF(VLOOKUP(F92,recipient_country!AB:AD,3,FALSE)=10024,\"\",1),AND(P92=\"B02\",M92<>41310),IF(VLOOKUP(M92,channel_codes!J:P,7,FALSE)=0,\"\",VLOOKUP(M92,channel_codes!J:P,7,FALSE)),ISNUMBER(MATCH(P92,{\"D01\",\"D02\"},0)),IF(VLOOKUP(M92,channel_codes!J:P,7,FALSE)=1,1,IF(VLOOKUP(F92,recipient_country!AB:AD,3,FALSE)=10024,\"\",1)),OR(P92=\"H01\",AND(OR(ISNUMBER(SEARCH(\"41010\", L92)),ISNUMBER(SEARCH(\"41020\", L92)),ISNUMBER(SEARCH(\"41030\", L92)),ISNUMBER(SEARCH(\"41040\", L92)),ISNUMBER(SEARCH(\"41081\", L92))),F92=998)),22,F92=998,22,TRUE,\"\")","v":""},{"$f":"CRSDATA!AN92","v":0},{"$f":"CRSDATA!AO92","v":0},{"$f":"CRSDATA!AQ92","v":0},{"$f":"CRSDATA!AS92","v":0},{"$f":"CRSDATA!BB92","v":0},null,"",{"$f":"IF(AND(AND(CRSDATA!C92<>\"\",CRSDATA!BK92<>\"\"),OR(CRSDATA!N92=421,CRSDATA!N92=422,CRSDATA!N92=4221,CRSDATA!N92=4222,CRSDATA!N92=423,CRSDATA!N92=424,CRSDATA!N92=425,CRSDATA!N92=431,CRSDATA!N92=433,CRSDATA!N92=434)),DATEDIF(CRSDATA!C92,CRSDATA!BK92,\"m\"),\"\")","v":""},{"$f":"CRSDATA!BA92","v":0},{"$f":"CRSDATA!BC92","v":0},{"$f":"IF(CRSDATA!BT92=\"\",\"\",CRSDATA!BT92)","v":""},{"$f":"CRSDATA!L92","v":0}]
[{"$f":"CRSDATA!A93","v":0},{"$f":"CRSDATA!C93","v":0},{"$f":"CRSDATA!D93","v":0},{"$f":"CRSDATA!F93","v":0},{"$f":"CRSDATA!E93","v":0},{"$f":"IF(CRSDATA!H93=3000,998,CRSDATA!H93)","v":0},{"$f":"CRSDATA!O93","v":0},{"$f":"CRSDATA!U93","v":0},{"$f":"IF(CRSDATA!V93=\"\",\"\",CRSDATA!V93)","v":""},{"$f":"IF(CRSDATA!W93=\"\",\"\",CRSDATA!W93)","v":""},{"$f":"key_row(CRSDATA!X93,CRSDATA!Y93,CRSDATA!AL93,CRSDATA!AK93,CRSDATA!AJ93,CRSDATA!AM93,CRSDATA!P93,CRSDATA!V93)","v":""},{"$f":"CRSDATA!P93","v":0},{"$f":"CRSDATA!J93","v":0},{"$f":"CRSDATA!I93","v":0},null,{"$f":"IF(LEFT(CRSDATA!N93,2)=\"A0\",\"A00\",IF(LEFT(CRSDATA!N93,3)=\"B02\",\"B02\",IF(LEFT(CRSDATA!N93,3)=\"B03\",\"B03\",IF(CRSDATA!N93=\"B04\",\"C01\",IF(CRSDATA!N93=\"H01\",\"H00\",IF(OR(CRSDATA!N93=\"H02\",CRSDATA!N93=\"H03\",CRSDATA!N93=\"H04\",CRSDATA!N93=\"H05\",CRSDATA!N93=\"H06\"),\"I01\",IF(CRSDATA!N93=\"\",\"\",CRSDATA!N93)))))))","v":""},{"$f":"IF(AND(LEN(CRSDATA!M93)=4,LEFT(CRSDATA!M93,3)=\"110\"),1100,IF(AND(LEN(CRSDATA!M93)=4,LEFT(CRSDATA!M93,3)=\"422\"),422,CRSDATA!M93))","v":0},{"$f":"IF(CRSDATA!L93=22,\"FA04\",\"\")","v":""},{"$f":"IF(CRSDATA!K93=8,\"FC02\",\"\")","v":""},{"$f":"_xlfn.IFS(OR(P93=\"A00\",P93=\"E01\",P93=\"F01\",AND(P93=\"\",A93<>0),Q93=510,Q93=520,AF93=60),1,P93=\"G01\",IF(AF93=10,21,22),OR(M93=41203,M93=41204),22,OR(AND(OR(P93=\"B02\",P93=\"B03\"),M93=41310),OR(P93=\"E02\",P93=\"I01\")),21,AND(OR(P93=\"B01\",P93=\"B03\",P93=\"C01\"),M93<>41310),IF(VLOOKUP(F93,recipient_country!AB:AD,3,FALSE)=10024,\"\",1),AND(P93=\"B02\",M93<>41310),IF(VLOOKUP(M93,channel_codes!J:P,7,FALSE)=0,\"\",VLOOKUP(M93,channel_codes!J:P,7,FALSE)),ISNUMBER(MATCH(P93,{\"D01\",\"D02\"},0)),IF(VLOOKUP(M93,channel_codes!J:P,7,FALSE)=1,1,IF(VLOOKUP(F93,recipient_country!AB:AD,3,FALSE)=10024,\"\",1)),OR(P93=\"H01\",AND(OR(ISNUMBER(SEARCH(\"41010\", L93)),ISNUMBER(SEARCH(\"41020\", L93)),ISNUMBER(SEARCH(\"41030\", L93)),ISNUMBER(SEARCH(\"41040\", L93)),ISNUMBER(SEARCH(\"41081\", L93))),F93=998)),22,F93=998,22,TRUE,\"\")","v":""},{"$f":"CRSDATA!AN93","v":0},{"$f":"CRSDATA!AO93","v":0},{"$f":"CRSDATA!AQ93","v":0},{"$f":"CRSDATA!AS93","v":0},{"$f":"CRSDATA!BB93","v":0},null,"",{"$f":"IF(AND(AND(CRSDATA!C93<>\"\",CRSDATA!BK93<>\"\"),OR(CRSDATA!N93=421,CRSDATA!N93=422,CRSDATA!N93=4221,CRSDATA!N93=4222,CRSDATA!N93=423,CRSDATA!N93=424,CRSDATA!N93=425,CRSDATA!N93=431,CRSDATA!N93=433,CRSDATA!N93=434)),DATEDIF(CRSDATA!C93,CRSDATA!BK93,\"m\"),\"\")","v":""},{"$f":"CRSDATA!BA93","v":0},{"$f":"CRSDATA!BC93","v":0},{"$f":"IF(CRSDATA!BT93=\"\",\"\",CRSDATA!BT93)","v":""},{"$f":"CRSDATA!L93","v":0}]
[{"$f":"CRSDATA!A94","v":0},{"$f":"CRSDATA!C94","v":0},{"$f":"CRSDATA!D94","v":0},{"$f":"CRSDATA!F94","v":0},{"$f":"CRSDATA!E94","v":0},{"$f":"IF(CRSDATA!H94=3000,998,CRSDATA!H94)","v":0},{"$f":"CRSDATA!O94","v":0},{"$f":"CRSDATA!U94","v":0},{"$f":"IF(CRSDATA!V94=\"\",\"\",CRSDATA!V94)","v":""},{"$f":"IF(CRSDATA!W94=\"\",\"\",CRSDATA!W94)","v":""},{"$f":"key_row(CRSDATA!X94,CRSDATA!Y94,CRSDATA!AL94,CRSDATA!AK94,CRSDATA!AJ94,CRSDATA!AM94,CRSDATA!P94,CRSDATA!V94)","v":""},{"$f":"CRSDATA!P94","v":0},{"$f":"CRSDATA!J94","v":0},{"$f":"CRSDATA!I94","v":0},null,{"$f":"IF(LEFT(CRSDATA!N94,2)=\"A0\",\"A00\",IF(LEFT(CRSDATA!N94,3)=\"B02\",\"B02\",IF(LEFT(CRSDATA!N94,3)=\"B03\",\"B03\",IF(CRSDATA!N94=\"B04\",\"C01\",IF(CRSDATA!N94=\"H01\",\"H00\",IF(OR(CRSDATA!N94=\"H02\",CRSDATA!N94=\"H03\",CRSDATA!N94=\"H04\",CRSDATA!N94=\"H05\",CRSDATA!N94=\"H06\"),\"I01\",IF(CRSDATA!N94=\"\",\"\",CRSDATA!N94)))))))","v":""},{"$f":"IF(AND(LEN(CRSDATA!M94)=4,LEFT(CRSDATA!M94,3)=\"110\"),1100,IF(AND(LEN(CRSDATA!M94)=4,LEFT(CRSDATA!M94,3)=\"422\"),422,CRSDATA!M94))","v":0},{"$f":"IF(CRSDATA!L94=22,\"FA04\",\"\")","v":""},{"$f":"IF(CRSDATA!K94=8,\"FC02\",\"\")","v":""},{"$f":"_xlfn.IFS(OR(P94=\"A00\",P94=\"E01\",P94=\"F01\",AND(P94=\"\",A94<>0),Q94=510,Q94=520,AF94=60),1,P94=\"G01\",IF(AF94=10,21,22),OR(M94=41203,M94=41204),22,OR(AND(OR(P94=\"B02\",P94=\"B03\"),M94=41310),OR(P94=\"E02\",P94=\"I01\")),21,AND(OR(P94=\"B01\",P94=\"B03\",P94=\"C01\"),M94<>41310),IF(VLOOKUP(F94,recipient_country!AB:AD,3,FALSE)=10024,\"\",1),AND(P94=\"B02\",M94<>41310),IF(VLOOKUP(M94,channel_codes!J:P,7,FALSE)=0,\"\",VLOOKUP(M94,channel_codes!J:P,7,FALSE)),ISNUMBER(MATCH(P94,{\"D01\",\"D02\"},0)),IF(VLOOKUP(M94,channel_codes!J:P,7,FALSE)=1,1,IF(VLOOKUP(F94,recipient_country!AB:AD,3,FALSE)=10024,\"\",1)),OR(P94=\"H01\",AND(OR(ISNUMBER(SEARCH(\"41010\", L94)),ISNUMBER(SEARCH(\"41020\", L94)),ISNUMBER(SEARCH(\"41030\", L94)),ISNUMBER(SEARCH(\"41040\", L94)),ISNUMBER(SEARCH(\"41081\", L94))),F94=998)),22,F94=998,22,TRUE,\"\")","v":""},{"$f":"CRSDATA!AN94","v":0},{"$f":"CRSDATA!AO94","v":0},{"$f":"CRSDATA!AQ94","v":0},{"$f":"CRSDATA!AS94","v":0},{"$f":"CRSDATA!BB94","v":0},null,"",{"$f":"IF(AND(AND(CRSDATA!C94<>\"\",CRSDATA!BK94<>\"\"),OR(CRSDATA!N94=421,CRSDATA!N94=422,CRSDATA!N94=4221,CRSDATA!N94=4222,CRSDATA!N94=423,CRSDATA!N94=424,CRSDATA!N94=425,CRSDATA!N94=431,CRSDATA!N94=433,CRSDATA!N94=434)),DATEDIF(CRSDATA!C94,CRSDATA!BK94,\"m\"),\"\")","v":""},{"$f":"CRSDATA!BA94","v":0},{"$f":"CRSDATA!BC94","v":0},{"$f":"IF(CRSDATA!BT94=\"\",\"\",CRSDATA!BT94)","v":""},{"$f":"CRSDATA!L94","v":0}]
[{"$f":"CRSDATA!A95","v":0},{"$f":"CRSDATA!C95","v":0},{"$f":"CRSDATA!D95","v":0},{"$f":"CRSDATA!F95","v":0},{"$f":"CRSDATA!E95","v":0},{"$f":"IF(CRSDATA!H95=3000,998,CRSDATA!H95)","v":0},{"$f":"CRSDATA!O95","v":0},{"$f":"CRSDATA!U95","v":0},{"$f":"IF(CRSDATA!V95=\"\",\"\",CRSDATA!V95)","v":""},{"$f":"IF(CRSDATA!W95=\"\",\"\",CRSDATA!W95)","v":""},{"$f":"key_row(CRSDATA!X95,CRSDATA!Y95,CRSDATA!AL95,CRSDATA!AK95,CRSDATA!AJ95,CRSDATA!AM95,CRSDATA!P95,CRSDATA!V95)","v":""},{"$f":"CRSDATA!P95","v":0},{"$f":"CRSDATA!J95","v":0},{"$f":"CRSDATA!I95","v":0},null,{"$f":"IF(LEFT(CRSDATA!N95,2)=\"A0\",\"A00\",IF(LEFT(CRSDATA!N95,3)=\"B02\",\"B02\",IF(LEFT(CRSDATA!N95,3)=\"B03\",\"B03\",IF(CRSDATA!N95=\"B04\",\"C01\",IF(CRSDATA!N95=\"H01\",\"H00\",IF(OR(CRSDATA!N95=\"H02\",CRSDATA!N95=\"H03\",CRSDATA!N95=\"H04\",CRSDATA!N95=\"H05\",CRSDATA!N95=\"H06\"),\"I01\",IF(CRSDATA!N95=\"\",\"\",CRSDATA!N95)))))))","v":""},{"$f":"IF(AND(LEN(CRSDATA!M95)=4,LEFT(CRSDATA!M95,3)=\"110\"),1100,IF(AND(LEN(CRSDATA!M95)=4,LEFT(CRSDATA!M95,3)=\"422\"),422,CRSDATA!M95))","v":0},{"$f":"IF(CRSDATA!L95=22,\"FA04\",\"\")","v":""},{"$f":"IF(CRSDATA!K95=8,\"FC02\",\"\")","v":""},{"$f":"_xlfn.IFS(OR(P95=\"A00\",P95=\"E01\",P95=\"F01\",AND(P95=\"\",A95<>0),Q95=510,Q95=520,AF95=60),1,P95=\"G01\",IF(AF95=10,21,22),OR(M95=41203,M95=41204),22,OR(AND(OR(P95=\"B02\",P95=\"B03\"),M95=41310),OR(P95=\"E02\",P95=\"I01\")),21,AND(OR(P95=\"B01\",P95=\"B03\",P95=\"C01\"),M95<>41310),IF(VLOOKUP(F95,recipient_country!AB:AD,3,FALSE)=10024,\"\",1),AND(P95=\"B02\",M95<>41310),IF(VLOOKUP(M95,channel_codes!J:P,7,FALSE)=0,\"\",VLOOKUP(M95,channel_codes!J:P,7,FALSE)),ISNUMBER(MATCH(P95,{\"D01\",\"D02\"},0)),IF(VLOOKUP(M95,channel_codes!J:P,7,FALSE)=1,1,IF(VLOOKUP(F95,recipient_country!AB:AD,3,FALSE)=10024,\"\",1)),OR(P95=\"H01\",AND(OR(ISNUMBER(SEARCH(\"41010\", L95)),ISNUMBER(SEARCH(\"41020\", L95)),ISNUMBER(SEARCH(\"41030\", L95)),ISNUMBER(SEARCH(\"41040\", L95)),ISNUMBER(SEARCH(\"41081\", L95))),F95=998)),22,F95=998,22,TRUE,\"\")","v":""},{"$f":"CRSDATA!AN95","v":0},{"$f":"CRSDATA!AO95","v":0},{"$f":"CRSDATA!AQ95","v":0},{"$f":"CRSDATA!AS95","v":0},{"$f":"CRSDATA!BB95","v":0},null,"",{"$f":"IF(AND(AND(CRSDATA!C95<>\"\",CRSDATA!BK95<>\"\"),OR(CRSDATA!N95=421,CRSDATA!N95=422,CRSDATA!N95=4221,CRSDATA!N95=4222,CRSDATA!N95=423,CRSDATA!N95=424,CRSDATA!N95=425,CRSDATA!N95=431,CRSDATA!N95=433,CRSDATA!N95=434)),DATEDIF(CRSDATA!C95,CRSDATA!BK95,\"m\"),\"\")","v":""},{"$f":"CRSDATA!BA95","v":0},{"$f":"CRSDATA!BC95","v":0},{"$f":"IF(CRSDATA!BT95=\"\",\"\",CRSDATA!BT95)","v":""},{"$f":"CRSDATA!L95","v":0}]
[{"$f":"CRSDATA!A96","v":0},{"$f":"CRSDATA!C96","v":0},{"$f":"CRSDATA!D96","v":0},{"$f":"CRSDATA!F96","v":0},{"$f":"CRSDATA!E96","v":0},{"$f":"IF(CRSDATA!H96=3000,998,CRSDATA!H96)","v":0},{"$f":"CRSDATA!O96","v":0},{"$f":"CRSDATA!U96","v":0},{"$f":"IF(CRSDATA!V96=\"\",\"\",CRSDATA!V96)","v":""},{"$f":"IF(CRSDATA!W96=\"\",\"\",CRSDATA!W96)","v":""},{"$f":"key_row(CRSDATA!X96,CRSDATA!Y96,CRSDATA!AL96,CRSDATA!AK96,CRSDATA!AJ96,CRSDATA!AM96,CRSDATA!P96,CRSDATA!V96)","v":""},{"$f":"CRSDATA!P96","v":0},{"$f":"CRSDATA!J96","v":0},{"$f":"CRSDATA!I96","v":0},null,{"$f":"IF(LEFT(CRSDATA!N96,2)=\"A0\",\"A00\",IF(LEFT(CRSDATA!N96,3)=\"B02\",\"B02\",IF(LEFT(CRSDATA!N96,3)=\"B03\",\"B03\",IF(CRSDATA!N96=\"B04\",\"C01\",IF(CRSDATA!N96=\"H01\",\"H00\",IF(OR(CRSDATA!N96=\"H02\",CRSDATA!N96=\"H03\",CRSDATA!N96=\"H04\",CRSDATA!N96=\"H05\",CRSDATA!N96=\"H06\"),\"I01\",IF(CRSDATA!N96=\"\",\"\",CRSDATA!N96)))))))","v":""},{"$f":"IF(AND(LEN(CRSDATA!M96)=4,LEFT(CRSDATA!M96,3)=\"110\"),1100,IF(AND(LEN(CRSDATA!M96)=4,LEFT(CRSDATA!M96,3)=\"422\"),422,CRSDATA!M96))","v":0},{"$f":"IF(CRSDATA!L96=22,\"FA04\",\"\")","v":""},{"$f":"IF(CRSDATA!K96=8,\"FC02\",\"\")","v":""},{"$f":"_xlfn.IFS(OR(P96=\"A00\",P96=\"E01\",P96=\"F01\",AND(P96=\"\",A96<>0),Q96=510,Q96=520,AF96=60),1,P96=\"G01\",IF(AF96=10,21,22),OR(M96=41203,M96=41204),22,OR(AND(OR(P96=\"B02\",P96=\"B03\"),M96=41310),OR(P96=\"E02\",P96=\"I01\")),21,AND(OR(P96=\"B01\",P96=\"B03\",P96=\"C01\"),M96<>41310),IF(VLOOKUP(F96,recipient_country!AB:AD,3,FALSE)=10024,\"\",1),AND(P96=\"B02\",M96<>41310),IF(VLOOKUP(M96,channel_codes!J:P,7,FALSE)=0,\"\",VLOOKUP(M96,channel_codes!J:P,7,FALSE)),ISNUMBER(MATCH(P96,{\"D01\",\"D02\"},0)),IF(VLOOKUP(M96,channel_codes!J:P,7,FALSE)=1,1,IF(VLOOKUP(F96,recipient_country!AB:AD,3,FALSE)=10024,\"\",1)),OR(P96=\"H01\",AND(OR(ISNUMBER(SEARCH(\"41010\", L96)),ISNUMBER(SEARCH(\"41020\", L96)),ISNUMBER(SEARCH(\"41030\", L96)),ISNUMBER(SEARCH(\"41040\", L96)),ISNUMBER(SEARCH(\"41081\", L96))),F96=998)),22,F96=998,22,TRUE,\"\")","v":""},{"$f":"CRSDATA!AN96","v":0},{"$f":"CRSDATA!AO96","v":0},{"$f":"CRSDATA!AQ96","v":0},{"$f":"CRSDATA!AS96","v":0},{"$f":"CRSDATA!BB96","v":0},null,"",{"$f":"IF(AND(AND(CRSDATA!C96<>\"\",CRSDATA!BK96<>\"\"),OR(CRSDATA!N96=421,CRSDATA!N96=422,CRSDATA!N96=4221,CRSDATA!N96=4222,CRSDATA!N96=423,CRSDATA!N96=424,CRSDATA!N96=425,CRSDATA!N96=431,CRSDATA!N96=433,CRSDATA!N96=434)),DATEDIF(CRSDATA!C96,CRSDATA!BK96,\"m\"),\"\")","v":""},{"$f":"CRSDATA!BA96","v":0},{"$f":"CRSDATA!BC96","v":0},{"$f":"IF(CRSDATA!BT96=\"\",\"\",CRSDATA!BT96)","v":""},{"$f":"CRSDATA!L96","v":0}]
[{"$f":"CRSDATA!A97","v":0},{"$f":"CRSDATA!C97","v":0},{"$f":"CRSDATA!D97","v":0},{"$f":"CRSDATA!F97","v":0},{"$f":"CRSDATA!E97","v":0},{"$f":"IF(CRSDATA!H97=3000,998,CRSDATA!H97)","v":0},{"$f":"CRSDATA!O97","v":0},{"$f":"CRSDATA!U97","v":0},{"$f":"IF(CRSDATA!V97=\"\",\"\",CRSDATA!V97)","v":""},{"$f":"IF(CRSDATA!W97=\"\",\"\",CRSDATA!W97)","v":""},{"$f":"key_row(CRSDATA!X97,CRSDATA!Y97,CRSDATA!AL97,CRSDATA!AK97,CRSDATA!AJ97,CRSDATA!AM97,CRSDATA!P97,CRSDATA!V97)","v":""},{"$f":"CRSDATA!P97","v":0},{"$f":"CRSDATA!J97","v":0},{"$f":"CRSDATA!I97","v":0},null,{"$f":"IF(LEFT(CRSDATA!N97,2)=\"A0\",\"A00\",IF(LEFT(CRSDATA!N97,3)=\"B02\",\"B02\",IF(LEFT(CRSDATA!N97,3)=\"B03\",\"B03\",IF(CRSDATA!N97=\"B04\",\"C01\",IF(CRSDATA!N97=\"H01\",\"H00\",IF(OR(CRSDATA!N97=\"H02\",CRSDATA!N97=\"H03\",CRSDATA!N97=\"H04\",CRSDATA!N97=\"H05\",CRSDATA!N97=\"H06\"),\"I01\",IF(CRSDATA!N97=\"\",\"\",CRSDATA!N97)))))))","v":""},{"$f":"IF(AND(LEN(CRSDATA!M97)=4,LEFT(CRSDATA!M97,3)=\"110\"),1100,IF(AND(LEN(CRSDATA!M97)=4,LEFT(CRSDATA!M97,3)=\"422\"),422,CRSDATA!M97))","v":0},{"$f":"IF(CRSDATA!L97=22,\"FA04\",\"\")","v":""},{"$f":"IF(CRSDATA!K97=8,\"FC02\",\"\")","v":""},{"$f":"_xlfn.IFS(OR(P97=\"A00\",P97=\"E01\",P97=\"F01\",AND(P97=\"\",A97<>0),Q97=510,Q97=520,AF97=60),1,P97=\"G01\",IF(AF97=10,21,22),OR(M97=41203,M97=41204),22,OR(AND(OR(P97=\"B02\",P97=\"B03\"),M97=41310),OR(P97=\"E02\",P97=\"I01\")),21,AND(OR(P97=\"B01\",P97=\"B03\",P97=\"C01\"),M97<>41310),IF(VLOOKUP(F97,recipient_country!AB:AD,3,FALSE)=10024,\"\",1),AND(P97=\"B02\",M97<>41310),IF(VLOOKUP(M97,channel_codes!J:P,7,FALSE)=0,\"\",VLOOKUP(M97,channel_codes!J:P,7,FALSE)),ISNUMBER(MATCH(P97,{\"D01\",\"D02\"},0)),IF(VLOOKUP(M97,channel_codes!J:P,7,FALSE)=1,1,IF(VLOOKUP(F97,recipient_country!AB:AD,3,FALSE)=10024,\"\",1)),OR(P97=\"H01\",AND(OR(ISNUMBER(SEARCH(\"41010\", L97)),ISNUMBER(SEARCH(\"41020\", L97)),ISNUMBER(SEARCH(\"41030\", L97)),ISNUMBER(SEARCH(\"41040\", L97)),ISNUMBER(SEARCH(\"41081\", L97))),F97=998)),22,F97=998,22,TRUE,\"\")","v":""},{"$f":"CRSDATA!AN97","v":0},{"$f":"CRSDATA!AO97","v":0},{"$f":"CRSDATA!AQ97","v":0},{"$f":"CRSDATA!AS97","v":0},{"$f":"CRSDATA!BB97","v":0},null,"",{"$f":"IF(AND(AND(CRSDATA!C97<>\"\",CRSDATA!BK97<>\"\"),OR(CRSDATA!N97=421,CRSDATA!N97=422,CRSDATA!N97=4221,CRSDATA!N97=4222,CRSDATA!N97=423,CRSDATA!N97=424,CRSDATA!N97=425,CRSDATA!N97=431,CRSDATA!N97=433,CRSDATA!N97=434)),DATEDIF(CRSDATA!C97,CRSDATA!BK97,\"m\"),\"\")","v":""},{"$f":"CRSDATA!BA97","v":0},{"$f":"CRSDATA!BC97","v":0},{"$f":"IF(CRSDATA!BT97=\"\",\"\",CRSDATA!BT97)","v":""},{"$f":"CRSDATA!L97","v":0}]
[{"$f":"CRSDATA!A98","v":0},{"$f":"CRSDATA!C98","v":0},{"$f":"CRSDATA!D98","v":0},{"$f":"CRSDATA!F98","v":0},{"$f":"CRSDATA!E98","v":0},{"$f":"IF(CRSDATA!H98=3000,998,CRSDATA!H98)","v":0},{"$f":"CRSDATA!O98","v":0},{"$f":"CRSDATA!U98","v":0},{"$f":"IF(CRSDATA!V98=\"\",\"\",CRSDATA!V98)","v":""},{"$f":"IF(CRSDATA!W98=\"\",\"\",CRSDATA!W98)","v":""},{"$f":"key_row(CRSDATA!X98,CRSDATA!Y98,CRSDATA!AL98,CRSDATA!AK98,CRSDATA!AJ98,CRSDATA!AM98,CRSDATA!P98,CRSDATA!V98)","v":""},{"$f":"CRSDATA!P98","v":0},{"$f":"CRSDATA!J98","v":0},{"$f":"CRSDATA!I98","v":0},null,{"$f":"IF(LEFT(CRSDATA!N98,2)=\"A0\",\"A00\",IF(LEFT(CRSDATA!N98,3)=\"B02\",\"B02\",IF(LEFT(CRSDATA!N98,3)=\"B03\",\"B03\",IF(CRSDATA!N98=\"B04\",\"C01\",IF(CRSDATA!N98=\"H01\",\"H00\",IF(OR(CRSDATA!N98=\"H02\",CRSDATA!N98=\"H03\",CRSDATA!N98=\"H04\",CRSDATA!N98=\"H05\",CRSDATA!N98=\"H06\"),\"I01\",IF(CRSDATA!N98=\"\",\"\",CRSDATA!N98)))))))","v":""},{"$f":"IF(AND(LEN(CRSDATA!M98)=4,LEFT(CRSDATA!M98,3)=\"110\"),1100,IF(AND(LEN(CRSDATA!M98)=4,LEFT(CRSDATA!M98,3)=\"422\"),422,CRSDATA!M98))","v":0},{"$f":"IF(CRSDATA!L98=22,\"FA04\",\"\")","v":""},{"$f":"IF(CRSDATA!K98=8,\"FC02\",\"\")","v":""},{"$f":"_xlfn.IFS(OR(P98=\"A00\",P98=\"E01\",P98=\"F01\",AND(P98=\"\",A98<>0),Q98=510,Q98=520,AF98=60),1,P98=\"G01\",IF(AF98=10,21,22),OR(M98=41203,M98=41204),22,OR(AND(OR(P98=\"B02\",P98=\"B03\"),M98=41310),OR(P98=\"E02\",P98=\"I01\")),21,AND(OR(P98=\"B01\",P98=\"B03\",P98=\"C01\"),M98<>41310),IF(VLOOKUP(F98,recipient_country!AB:AD,3,FALSE)=10024,\"\",1),AND(P98=\"B02\",M98<>41310),IF(VLOOKUP(M98,channel_codes!J:P,7,FALSE)=0,\"\",VLOOKUP(M98,channel_codes!J:P,7,FALSE)),ISNUMBER(MATCH(P98,{\"D01\",\"D02\"},0)),IF(VLOOKUP(M98,channel_codes!J:P,7,FALSE)=1,1,IF(VLOOKUP(F98,recipient_country!AB:AD,3,FALSE)=10024,\"\",1)),OR(P98=\"H01\",AND(OR(ISNUMBER(SEARCH(\"41010\", L98)),ISNUMBER(SEARCH(\"41020\", L98)),ISNUMBER(SEARCH(\"41030\", L98)),ISNUMBER(SEARCH(\"41040\", L98)),ISNUMBER(SEARCH(\"41081\", L98))),F98=998)),22,F98=998,22,TRUE,\"\")","v":""},{"$f":"CRSDATA!AN98","v":0},{"$f":"CRSDATA!AO98","v":0},{"$f":"CRSDATA!AQ98","v":0},{"$f":"CRSDATA!AS98","v":0},{"$f":"CRSDATA!BB98","v":0},null,"",{"$f":"IF(AND(AND(CRSDATA!C98<>\"\",CRSDATA!BK98<>\"\"),OR(CRSDATA!N98=421,CRSDATA!N98=422,CRSDATA!N98=4221,CRSDATA!N98=4222,CRSDATA!N98=423,CRSDATA!N98=424,CRSDATA!N98=425,CRSDATA!N98=431,CRSDATA!N98=433,CRSDATA!N98=434)),DATEDIF(CRSDATA!C98,CRSDATA!BK98,\"m\"),\"\")","v":""},{"$f":"CRSDATA!BA98","v":0},{"$f":"CRSDATA!BC98","v":0},{"$f":"IF(CRSDATA!BT98=\"\",\"\",CRSDATA!BT98)","v":""},{"$f":"CRSDATA!L98","v":0}]
[{"$f":"CRSDATA!A99","v":0},{"$f":"CRSDATA!C99","v":0},{"$f":"CRSDATA!D99","v":0},{"$f":"CRSDATA!F99","v":0},{"$f":"CRSDATA!E99","v":0},{"$f":"IF(CRSDATA!H99=3000,998,CRSDATA!H99)","v":0},{"$f":"CRSDATA!O99","v":0},{"$f":"CRSDATA!U99","v":0},{"$f":"IF(CRSDATA!V99=\"\",\"\",CRSDATA!V99)","v":""},{"$f":"IF(CRSDATA!W99=\"\",\"\",CRSDATA!W99)","v":""},{"$f":"key_row(CRSDATA!X99,CRSDATA!Y99,CRSDATA!AL99,CRSDATA!AK99,CRSDATA!AJ99,CRSDATA!AM99,CRSDATA!P99,CRSDATA!V99)","v":""},{"$f":"CRSDATA!P99","v":0},{"$f":"CRSDATA!J99","v":0},{"$f":"CRSDATA!I99","v":0},null,{"$f":"IF(LEFT(CRSDATA!N99,2)=\"A0\",\"A00\",IF(LEFT(CRSDATA!N99,3)=\"B02\",\"B02\",IF(LEFT(CRSDATA!N99,3)=\"B03\",\"B03\",IF(CRSDATA!N99=\"B04\",\"C01\",IF(CRSDATA!N99=\"H01\",\"H00\",IF(OR(CRSDATA!N99=\"H02\",CRSDATA!N99=\"H03\",CRSDATA!N99=\"H04\",CRSDATA!N99=\"H05\",CRSDATA!N99=\"H06\"),\"I01\",IF(CRSDATA!N99=\"\",\"\",CRSDATA!N99)))))))","v":""},{"$f":"IF(AND(LEN(CRSDATA!M99)=4,LEFT(CRSDATA!M99,3)=\"110\"),1100,IF(AND(LEN(CRSDATA!M99)=4,LEFT(CRSDATA!M99,3)=\"422\"),422,CRSDATA!M99))","v":0},{"$f":"IF(CRSDATA!L99=22,\"FA04\",\"\")","v":""},{"$f":"IF(CRSDATA!K99=8,\"FC02\",\"\")","v":""},{"$f":"_xlfn.IFS(OR(P99=\"A00\",P99=\"E01\",P99=\"F01\",AND(P99=\"\",A99<>0),Q99=510,Q99=520,AF99=60),1,P99=\"G01\",IF(AF99=10,21,22),OR(M99=41203,M99=41204),22,OR(AND(OR(P99=\"B02\",P99=\"B03\"),M99=41310),OR(P99=\"E02\",P99=\"I01\")),21,AND(OR(P99=\"B01\",P99=\"B03\",P99=\"C01\"),M99<>41310),IF(VLOOKUP(F99,recipient_country!AB:AD,3,FALSE)=10024,\"\",1),AND(P99=\"B02\",M99<>41310),IF(VLOOKUP(M99,channel_codes!J:P,7,FALSE)=0,\"\",VLOOKUP(M99,channel_codes!J:P,7,FALSE)),ISNUMBER(MATCH(P99,{\"D01\",\"D02\"},0)),IF(VLOOKUP(M99,channel_codes!J:P,7,FALSE)=1,1,IF(VLOOKUP(F99,recipient_country!AB:AD,3,FALSE)=10024,\"\",1)),OR(P99=\"H01\",AND(OR(ISNUMBER(SEARCH(\"41010\", L99)),ISNUMBER(SEARCH(\"41020\", L99)),ISNUMBER(SEARCH(\"41030\", L99)),ISNUMBER(SEARCH(\"41040\", L99)),ISNUMBER(SEARCH(\"41081\", L99))),F99=998)),22,F99=998,22,TRUE,\"\")","v":""},{"$f":"CRSDATA!AN99","v":0},{"$f":"CRSDATA!AO99","v":0},{"$f":"CRSDATA!AQ99","v":0},{"$f":"CRSDATA!AS99","v":0},{"$f":"CRSDATA!BB99","v":0},null,"",{"$f":"IF(AND(AND(CRSDATA!C99<>\"\",CRSDATA!BK99<>\"\"),OR(CRSDATA!N99=421,CRSDATA!N99=422,CRSDATA!N99=4221,CRSDATA!N99=4222,CRSDATA!N99=423,CRSDATA!N99=424,CRSDATA!N99=425,CRSDATA!N99=431,CRSDATA!N99=433,CRSDATA!N99=434)),DATEDIF(CRSDATA!C99,CRSDATA!BK99,\"m\"),\"\")","v":""},{"$f":"CRSDATA!BA99","v":0},{"$f":"CRSDATA!BC99","v":0},{"$f":"IF(CRSDATA!BT99=\"\",\"\",CRSDATA!BT99)","v":""},{"$f":"CRSDATA!L99","v":0}]
[{"$f":"CRSDATA!A100","v":0},{"$f":"CRSDATA!C100","v":0},{"$f":"CRSDATA!D100","v":0},{"$f":"CRSDATA!F100","v":0},{"$f":"CRSDATA!E100","v":0},{"$f":"IF(CRSDATA!H100=3000,998,CRSDATA!H100)","v":0},{"$f":"CRSDATA!O100","v":0},{"$f":"CRSDATA!U100","v":0},{"$f":"IF(CRSDATA!V100=\"\",\"\",CRSDATA!V100)","v":""},{"$f":"IF(CRSDATA!W100=\"\",\"\",CRSDATA!W100)","v":""},{"$f":"key_row(CRSDATA!X100,CRSDATA!Y100,CRSDATA!AL100,CRSDATA!AK100,CRSDATA!AJ100,CRSDATA!AM100,CRSDATA!P100,CRSDATA!V100)","v":""},{"$f":"CRSDATA!P100","v":0},{"$f":"CRSDATA!J100","v":0},{"$f":"CRSDATA!I100","v":0},null,{"$f":"IF(LEFT(CRSDATA!N100,2)=\"A0\",\"A00\",IF(LEFT(CRSDATA!N100,3)=\"B02\",\"B02\",IF(LEFT(CRSDATA!N100,3)=\"B03\",\"B03\",IF(CRSDATA!N100=\"B04\",\"C01\",IF(CRSDATA!N100=\"H01\",\"H00\",IF(OR(CRSDATA!N100=\"H02\",CRSDATA!N100=\"H03\",CRSDATA!N100=\"H04\",CRSDATA!N100=\"H05\",CRSDATA!N100=\"H06\"),\"I01\",IF(CRSDATA!N100=\"\",\"\",CRSDATA!N100)))))))","v":""},{"$f":"IF(AND(LEN(CRSDATA!M100)=4,LEFT(CRSDATA!M100,3)=\"110\"),1100,IF(AND(LEN(CRSDATA!M100)=4,LEFT(CRSDATA!M100,3)=\"422\"),422,CRSDATA!M100))","v":0},{"$f":"IF(CRSDATA!L100=22,\"FA04\",\"\")","v":""},{"$f":"IF(CRSDATA!K100=8,\"FC02\",\"\")","v":""},{"$f":"_xlfn.IFS(OR(P100=\"A00\",P100=\"E01\",P100=\"F01\",AND(P100=\"\",A100<>0),Q100=510,Q100=520,AF100=60),1,P100=\"G01\",IF(AF100=10,21,22),OR(M100=41203,M100=41204),22,OR(AND(OR(P100=\"B02\",P100=\"B03\"),M100=41310),OR(P100=\"E02\",P100=\"I01\")),21,AND(OR(P100=\"B01\",P100=\"B03\",P100=\"C01\"),M100<>41310),IF(VLOOKUP(F100,recipient_country!AB:AD,3,FALSE)=10024,\"\",1),AND(P100=\"B02\",M100<>41310),IF(VLOOKUP(M100,channel_codes!J:P,7,FALSE)=0,\"\",VLOOKUP(M100,channel_codes!J:P,7,FALSE)),ISNUMBER(MATCH(P100,{\"D01\",\"D02\"},0)),IF(VLOOKUP(M100,channel_codes!J:P,7,FALSE)=1,1,IF(VLOOKUP(F100,recipient_country!AB:AD,3,FALSE)=10024,\"\",1)),OR(P100=\"H01\",AND(OR(ISNUMBER(SEARCH(\"41010\", L100)),ISNUMBER(SEARCH(\"41020\", L100)),ISNUMBER(SEARCH(\"41030\", L100)),ISNUMBER(SEARCH(\"41040\", L100)),ISNUMBER(SEARCH(\"41081\", L100))),F100=998)),22,F100=998,22,TRUE,\"\")","v":""},{"$f":"CRSDATA!AN100","v":0},{"$f":"CRSDATA!AO100","v":0},{"$f":"CRSDATA!AQ100","v":0},{"$f":"CRSDATA!AS100","v":0},{"$f":"CRSDATA!BB100","v":0},null,"",{"$f":"IF(AND(AND(CRSDATA!C100<>\"\",CRSDATA!BK100<>\"\"),OR(CRSDATA!N100=421,CRSDATA!N100=422,CRSDATA!N100=4221,CRSDATA!N100=4222,CRSDATA!N100=423,CRSDATA!N100=424,CRSDATA!N100=425,CRSDATA!N100=431,CRSDATA!N100=433,CRSDATA!N100=434)),DATEDIF(CRSDATA!C100,CRSDATA!BK100,\"m\"),\"\")","v":""},{"$f":"CRSDATA!BA100","v":0},{"$f":"CRSDATA!BC100","v":0},{"$f":"IF(CRSDATA!BT100=\"\",\"\",CRSDATA!BT100)","v":""},{"$f":"CRSDATA!L100","v":0}]
[{"$f":"CRSDATA!A101","v":0},{"$f":"CRSDATA!C101","v":0},{"$f":"CRSDATA!D101","v":0},{"$f":"CRSDATA!F101","v":0},{"$f":"CRSDATA!E101","v":0},{"$f":"IF(CRSDATA!H101=3000,998,CRSDATA!H101)","v":0},{"$f":"CRSDATA!O101","v":0},{"$f":"CRSDATA!U101","v":0},{"$f":"IF(CRSDATA!V101=\"\",\"\",CRSDATA!V101)","v":""},{"$f":"IF(CRSDATA!W101=\"\",\"\",CRSDATA!W101)","v":""},{"$f":"key_row(CRSDATA!X101,CRSDATA!Y101,CRSDATA!AL101,CRSDATA!AK101,CRSDATA!AJ101,CRSDATA!AM101,CRSDATA!P101,CRSDATA!V101)","v":""},{"$f":"CRSDATA!P101","v":0},{"$f":"CRSDATA!J101","v":0},{"$f":"CRSDATA!I101","v":0},null,{"$f":"IF(LEFT(CRSDATA!N101,2)=\"A0\",\"A00\",IF(LEFT(CRSDATA!N101,3)=\"B02\",\"B02\",IF(LEFT(CRSDATA!N101,3)=\"B03\",\"B03\",IF(CRSDATA!N101=\"B04\",\"C01\",IF(CRSDATA!N101=\"H01\",\"H00\",IF(OR(CRSDATA!N101=\"H02\",CRSDATA!N101=\"H03\",CRSDATA!N101=\"H04\",CRSDATA!N101=\"H05\",CRSDATA!N101=\"H06\"),\"I01\",IF(CRSDATA!N101=\"\",\"\",CRSDATA!N101)))))))","v":""},{"$f":"IF(AND(LEN(CRSDATA!M101)=4,LEFT(CRSDATA!M101,3)=\"110\"),1100,IF(AND(LEN(CRSDATA!M101)=4,LEFT(CRSDATA!M101,3)=\"422\"),422,CRSDATA!M101))","v":0},{"$f":"IF(CRSDATA!L101=22,\"FA04\",\"\")","v":""},{"$f":"IF(CRSDATA!K101=8,\"FC02\",\"\")","v":""},{"$f":"_xlfn.IFS(OR(P101=\"A00\",P101=\"E01\",P101=\"F01\",AND(P101=\"\",A101<>0),Q101=510,Q101=520,AF101=60),1,P101=\"G01\",IF(AF101=10,21,22),OR(M101=41203,M101=41204),22,OR(AND(OR(P101=\"B02\",P101=\"B03\"),M101=41310),OR(P101=\"E02\",P101=\"I01\")),21,AND(OR(P101=\"B01\",P101=\"B03\",P101=\"C01\"),M101<>41310),IF(VLOOKUP(F101,recipient_country!AB:AD,3,FALSE)=10024,\"\",1),AND(P101=\"B02\",M101<>41310),IF(VLOOKUP(M101,channel_codes!J:P,7,FALSE)=0,\"\",VLOOKUP(M101,channel_codes!J:P,7,FALSE)),ISNUMBER(MATCH(P101,{\"D01\",\"D02\"},0)),IF(VLOOKUP(M101,channel_codes!J:P,7,FALSE)=1,1,IF(VLOOKUP(F101,recipient_country!AB:AD,3,FALSE)=10024,\"\",1)),OR(P101=\"H01\",AND(OR(ISNUMBER(SEARCH(\"41010\", L101)),ISNUMBER(SEARCH(\"41020\", L101)),ISNUMBER(SEARCH(\"41030\", L101)),ISNUMBER(SEARCH(\"41040\", L101)),ISNUMBER(SEARCH(\"41081\", L101))),F101=998)),22,F101=998,22,TRUE,\"\")","v":""},{"$f":"CRSDATA!AN101","v":0},{"$f":"CRSDATA!AO101","v":0},{"$f":"CRSDATA!AQ101","v":0},{"$f":"CRSDATA!AS101","v":0},{"$f":"CRSDATA!BB101","v":0},null,"",{"$f":"IF(AND(AND(CRSDATA!C101<>\"\",CRSDATA!BK101<>\"\"),OR(CRSDATA!N101=421,CRSDATA!N101=422,CRSDATA!N101=4221,CRSDATA!N101=4222,CRSDATA!N101=423,CRSDATA!N101=424,CRSDATA!N101=425,CRSDATA!N101=431,CRSDATA!N101=433,CRSDATA!N101=434)),DATEDIF(CRSDATA!C101,CRSDATA!BK101,\"m\"),\"\")","v":""},{"$f":"CRSDATA!BA101","v":0},{"$f":"CRSDATA!BC101","v":0},{"$f":"IF(CRSDATA!BT101=\"\",\"\",CRSDATA!BT101)","v":""},{"$f":"CRSDATA!L101","v":0}]
[{"$f":"CRSDATA!A102","v":0},{"$f":"CRSDATA!C102","v":0},{"$f":"CRSDATA!D102","v":0},{"$f":"CRSDATA!F102","v":0},{"$f":"CRSDATA!E102","v":0},{"$f":"IF(CRSDATA!H102=3000,998,CRSDATA!H102)","v":0},{"$f":"CRSDATA!O102","v":0},{"$f":"CRSDATA!U102","v":0},{"$f":"IF(CRSDATA!V102=\"\",\"\",CRSDATA!V102)","v":""},{"$f":"IF(CRSDATA!W102=\"\",\"\",CRSDATA!W102)","v":""},{"$f":"key_row(CRSDATA!X102,CRSDATA!Y102,CRSDATA!AL102,CRSDATA!AK102,CRSDATA!AJ102,CRSDATA!AM102,CRSDATA!P102,CRSDATA!V102)","v":""},{"$f":"CRSDATA!P102","v":0},{"$f":"CRSDATA!J102","v":0},{"$f":"CRSDATA!I102","v":0},null,{"$f":"IF(LEFT(CRSDATA!N102,2)=\"A0\",\"A00\",IF(LEFT(CRSDATA!N102,3)=\"B02\",\"B02\",IF(LEFT(CRSDATA!N102,3)=\"B03\",\"B03\",IF(CRSDATA!N102=\"B04\",\"C01\",IF(CRSDATA!N102=\"H01\",\"H00\",IF(OR(CRSDATA!N102=\"H02\",CRSDATA!N102=\"H03\",CRSDATA!N102=\"H04\",CRSDATA!N102=\"H05\",CRSDATA!N102=\"H06\"),\"I01\",IF(CRSDATA!N102=\"\",\"\",CRSDATA!N102)))))))","v":""},{"$f":"IF(AND(LEN(CRSDATA!M102)=4,LEFT(CRSDATA!M102,3)=\"110\"),1100,IF(AND(LEN(CRSDATA!M102)=4,LEFT(CRSDATA!M102,3)=\"422\"),422,CRSDATA!M102))","v":0},{"$f":"IF(CRSDATA!L102=22,\"FA04\",\"\")","v":""},{"$f":"IF(CRSDATA!K102=8,\"FC02\",\"\")","v":""},{"$f":"_xlfn.IFS(OR(P102=\"A00\",P102=\"E01\",P102=\"F01\",AND(P102=\"\",A102<>0),Q102=510,Q102=520,AF102=60),1,P102=\"G01\",IF(AF102=10,21,22),OR(M102=41203,M102=41204),22,OR(AND(OR(P102=\"B02\",P102=\"B03\"),M102=41310),OR(P102=\"E02\",P102=\"I01\")),21,AND(OR(P102=\"B01\",P102=\"B03\",P102=\"C01\"),M102<>41310),IF(VLOOKUP(F102,recipient_country!AB:AD,3,FALSE)=10024,\"\",1),AND(P102=\"B02\",M102<>41310),IF(VLOOKUP(M102,channel_codes!J:P,7,FALSE)=0,\"\",VLOOKUP(M102,channel_codes!J:P,7,FALSE)),ISNUMBER(MATCH(P102,{\"D01\",\"D02\"},0)),IF(VLOOKUP(M102,channel_codes!J:P,7,FALSE)=1,1,IF(VLOOKUP(F102,recipient_country!AB:AD,3,FALSE)=10024,\"\",1)),OR(P102=\"H01\",AND(OR(ISNUMBER(SEARCH(\"41010\", L102)),ISNUMBER(SEARCH(\"41020\", L102)),ISNUMBER(SEARCH(\"41030\", L102)),ISNUMBER(SEARCH(\"41040\", L102)),ISNUMBER(SEARCH(\"41081\", L102))),F102=998)),22,F102=998,22,TRUE,\"\")","v":""},{"$f":"CRSDATA!AN102","v":0},{"$f":"CRSDATA!AO102","v":0},{"$f":"CRSDATA!AQ102","v":0},{"$f":"CRSDATA!AS102","v":0},{"$f":"CRSDATA!BB102","v":0},null,"",{"$f":"IF(AND(AND(CRSDATA!C102<>\"\",CRSDATA!BK102<>\"\"),OR(CRSDATA!N102=421,CRSDATA!N102=422,CRSDATA!N102=4221,CRSDATA!N102=4222,CRSDATA!N102=423,CRSDATA!N102=424,CRSDATA!N102=425,CRSDATA!N102=431,CRSDATA!N102=433,CRSDATA!N102=434)),DATEDIF(CRSDATA!C102,CRSDATA!BK102,\"m\"),\"\")","v":""},{"$f":"CRSDATA!BA102","v":0},{"$f":"CRSDATA!BC102","v":0},{"$f":"IF(CRSDATA!BT102=\"\",\"\",CRSDATA!BT102)","v":""},{"$f":"CRSDATA!L102","v":0}]
[{"$f":"CRSDATA!A103","v":0},{"$f":"CRSDATA!C103","v":0},{"$f":"CRSDATA!D103","v":0},{"$f":"CRSDATA!F103","v":0},{"$f":"CRSDATA!E103","v":0},{"$f":"IF(CRSDATA!H103=3000,998,CRSDATA!H103)","v":0},{"$f":"CRSDATA!O103","v":0},{"$f":"CRSDATA!U103","v":0},{"$f":"IF(CRSDATA!V103=\"\",\"\",CRSDATA!V103)","v":""},{"$f":"IF(CRSDATA!W103=\"\",\"\",CRSDATA!W103)","v":""},{"$f":"key_row(CRSDATA!X103,CRSDATA!Y103,CRSDATA!AL103,CRSDATA!AK103,CRSDATA!AJ103,CRSDATA!AM103,CRSDATA!P103,CRSDATA!V103)","v":""},{"$f":"CRSDATA!P103","v":0},{"$f":"CRSDATA!J103","v":0},{"$f":"CRSDATA!I103","v":0},null,{"$f":"IF(LEFT(CRSDATA!N103,2)=\"A0\",\"A00\",IF(LEFT(CRSDATA!N103,3)=\"B02\",\"B02\",IF(LEFT(CRSDATA!N103,3)=\"B03\",\"B03\",IF(CRSDATA!N103=\"B04\",\"C01\",IF(CRSDATA!N103=\"H01\",\"H00\",IF(OR(CRSDATA!N103=\"H02\",CRSDATA!N103=\"H03\",CRSDATA!N103=\"H04\",CRSDATA!N103=\"H05\",CRSDATA!N103=\"H06\"),\"I01\",IF(CRSDATA!N103=\"\",\"\",CRSDATA!N103)))))))","v":""},{"$f":"IF(AND(LEN(CRSDATA!M103)=4,LEFT(CRSDATA!M103,3)=\"110\"),1100,IF(AND(LEN(CRSDATA!M103)=4,LEFT(CRSDATA!M103,3)=\"422\"),422,CRSDATA!M103))","v":0},{"$f":"IF(CRSDATA!L103=22,\"FA04\",\"\")","v":""},{"$f":"IF(CRSDATA!K103=8,\"FC02\",\"\")","v":""},{"$f":"_xlfn.IFS(OR(P103=\"A00\",P103=\"E01\",P103=\"F01\",AND(P103=\"\",A103<>0),Q103=510,Q103=520,AF103=60),1,P103=\"G01\",IF(AF103=10,21,22),OR(M103=41203,M103=41204),22,OR(AND(OR(P103=\"B02\",P103=\"B03\"),M103=41310),OR(P103=\"E02\",P103=\"I01\")),21,AND(OR(P103=\"B01\",P103=\"B03\",P103=\"C01\"),M103<>41310),IF(VLOOKUP(F103,recipient_country!AB:AD,3,FALSE)=10024,\"\",1),AND(P103=\"B02\",M103<>41310),IF(VLOOKUP(M103,channel_codes!J:P,7,FALSE)=0,\"\",VLOOKUP(M103,channel_codes!J:P,7,FALSE)),ISNUMBER(MATCH(P103,{\"D01\",\"D02\"},0)),IF(VLOOKUP(M103,channel_codes!J:P,7,FALSE)=1,1,IF(VLOOKUP(F103,recipient_country!AB:AD,3,FALSE)=10024,\"\",1)),OR(P103=\"H01\",AND(OR(ISNUMBER(SEARCH(\"41010\", L103)),ISNUMBER(SEARCH(\"41020\", L103)),ISNUMBER(SEARCH(\"41030\", L103)),ISNUMBER(SEARCH(\"41040\", L103)),ISNUMBER(SEARCH(\"41081\", L103))),F103=998)),22,F103=998,22,TRUE,\"\")","v":""},{"$f":"CRSDATA!AN103","v":0},{"$f":"CRSDATA!AO103","v":0},{"$f":"CRSDATA!AQ103","v":0},{"$f":"CRSDATA!AS103","v":0},{"$f":"CRSDATA!BB103","v":0},null,"",{"$f":"IF(AND(AND(CRSDATA!C103<>\"\",CRSDATA!BK103<>\"\"),OR(CRSDATA!N103=421,CRSDATA!N103=422,CRSDATA!N103=4221,CRSDATA!N103=4222,CRSDATA!N103=423,CRSDATA!N103=424,CRSDATA!N103=425,CRSDATA!N103=431,CRSDATA!N103=433,CRSDATA!N103=434)),DATEDIF(CRSDATA!C103,CRSDATA!BK103,\"m\"),\"\")","v":""},{"$f":"CRSDATA!BA103","v":0},{"$f":"CRSDATA!BC103","v":0},{"$f":"IF(CRSDATA!BT103=\"\",\"\",CRSDATA!BT103)","v":""},{"$f":"CRSDATA!L103","v":0}]
[{"$f":"CRSDATA!A104","v":0},{"$f":"CRSDATA!C104","v":0},{"$f":"CRSDATA!D104","v":0},{"$f":"CRSDATA!F104","v":0},{"$f":"CRSDATA!E104","v":0},{"$f":"IF(CRSDATA!H104=3000,998,CRSDATA!H104)","v":0},{"$f":"CRSDATA!O104","v":0},{"$f":"CRSDATA!U104","v":0},{"$f":"IF(CRSDATA!V104=\"\",\"\",CRSDATA!V104)","v":""},{"$f":"IF(CRSDATA!W104=\"\",\"\",CRSDATA!W104)","v":""},{"$f":"key_row(CRSDATA!X104,CRSDATA!Y104,CRSDATA!AL104,CRSDATA!AK104,CRSDATA!AJ104,CRSDATA!AM104,CRSDATA!P104,CRSDATA!V104)","v":""},{"$f":"CRSDATA!P104","v":0},{"$f":"CRSDATA!J104","v":0},{"$f":"CRSDATA!I104","v":0},null,{"$f":"IF(LEFT(CRSDATA!N104,2)=\"A0\",\"A00\",IF(LEFT(CRSDATA!N104,3)=\"B02\",\"B02\",IF(LEFT(CRSDATA!N104,3)=\"B03\",\"B03\",IF(CRSDATA!N104=\"B04\",\"C01\",IF(CRSDATA!N104=\"H01\",\"H00\",IF(OR(CRSDATA!N104=\"H02\",CRSDATA!N104=\"H03\",CRSDATA!N104=\"H04\",CRSDATA!N104=\"H05\",CRSDATA!N104=\"H06\"),\"I01\",IF(CRSDATA!N104=\"\",\"\",CRSDATA!N104)))))))","v":""},{"$f":"IF(AND(LEN(CRSDATA!M104)=4,LEFT(CRSDATA!M104,3)=\"110\"),1100,IF(AND(LEN(CRSDATA!M104)=4,LEFT(CRSDATA!M104,3)=\"422\"),422,CRSDATA!M104))","v":0},{"$f":"IF(CRSDATA!L104=22,\"FA04\",\"\")","v":""},{"$f":"IF(CRSDATA!K104=8,\"FC02\",\"\")","v":""},{"$f":"_xlfn.IFS(OR(P104=\"A00\",P104=\"E01\",P104=\"F01\",AND(P104=\"\",A104<>0),Q104=510,Q104=520,AF104=60),1,P104=\"G01\",IF(AF104=10,21,22),OR(M104=41203,M104=41204),22,OR(AND(OR(P104=\"B02\",P104=\"B03\"),M104=41310),OR(P104=\"E02\",P104=\"I01\")),21,AND(OR(P104=\"B01\",P104=\"B03\",P104=\"C01\"),M104<>41310),IF(VLOOKUP(F104,recipient_country!AB:AD,3,FALSE)=10024,\"\",1),AND(P104=\"B02\",M104<>41310),IF(VLOOKUP(M104,channel_codes!J:P,7,FALSE)=0,\"\",VLOOKUP(M104,channel_codes!J:P,7,FALSE)),ISNUMBER(MATCH(P104,{\"D01\",\"D02\"},0)),IF(VLOOKUP(M104,channel_codes!J:P,7,FALSE)=1,1,IF(VLOOKUP(F104,recipient_country!AB:AD,3,FALSE)=10024,\"\",1)),OR(P104=\"H01\",AND(OR(ISNUMBER(SEARCH(\"41010\", L104)),ISNUMBER(SEARCH(\"41020\", L104)),ISNUMBER(SEARCH(\"41030\", L104)),ISNUMBER(SEARCH(\"41040\", L104)),ISNUMBER(SEARCH(\"41081\", L104))),F104=998)),22,F104=998,22,TRUE,\"\")","v":""},{"$f":"CRSDATA!AN104","v":0},{"$f":"CRSDATA!AO104","v":0},{"$f":"CRSDATA!AQ104","v":0},{"$f":"CRSDATA!AS104","v":0},{"$f":"CRSDATA!BB104","v":0},null,"",{"$f":"IF(AND(AND(CRSDATA!C104<>\"\",CRSDATA!BK104<>\"\"),OR(CRSDATA!N104=421,CRSDATA!N104=422,CRSDATA!N104=4221,CRSDATA!N104=4222,CRSDATA!N104=423,CRSDATA!N104=424,CRSDATA!N104=425,CRSDATA!N104=431,CRSDATA!N104=433,CRSDATA!N104=434)),DATEDIF(CRSDATA!C104,CRSDATA!BK104,\"m\"),\"\")","v":""},{"$f":"CRSDATA!BA104","v":0},{"$f":"CRSDATA!BC104","v":0},{"$f":"IF(CRSDATA!BT104=\"\",\"\",CRSDATA!BT104)","v":""},{"$f":"CRSDATA!L104","v":0}]
[{"$f":"CRSDATA!A105","v":0},{"$f":"CRSDATA!C105","v":0},{"$f":"CRSDATA!D105","v":0},{"$f":"CRSDATA!F105","v":0},{"$f":"CRSDATA!E105","v":0},{"$f":"IF(CRSDATA!H105=3000,998,CRSDATA!H105)","v":0},{"$f":"CRSDATA!O105","v":0},{"$f":"CRSDATA!U105","v":0},{"$f":"IF(CRSDATA!V105=\"\",\"\",CRSDATA!V105)","v":""},{"$f":"IF(CRSDATA!W105=\"\",\"\",CRSDATA!W105)","v":""},{"$f":"key_row(CRSDATA!X105,CRSDATA!Y105,CRSDATA!AL105,CRSDATA!AK105,CRSDATA!AJ105,CRSDATA!AM105,CRSDATA!P105,CRSDATA!V105)","v":""},{"$f":"CRSDATA!P105","v":0},{"$f":"CRSDATA!J105","v":0},{"$f":"CRSDATA!I105","v":0},null,{"$f":"IF(LEFT(CRSDATA!N105,2)=\"A0\",\"A00\",IF(LEFT(CRSDATA!N105,3)=\"B02\",\"B02\",IF(LEFT(CRSDATA!N105,3)=\"B03\",\"B03\",IF(CRSDATA!N105=\"B04\",\"C01\",IF(CRSDATA!N105=\"H01\",\"H00\",IF(OR(CRSDATA!N105=\"H02\",CRSDATA!N105=\"H03\",CRSDATA!N105=\"H04\",CRSDATA!N105=\"H05\",CRSDATA!N105=\"H06\"),\"I01\",IF(CRSDATA!N105=\"\",\"\",CRSDATA!N105)))))))","v":""},{"$f":"IF(AND(LEN(CRSDATA!M105)=4,LEFT(CRSDATA!M105,3)=\"110\"),1100,IF(AND(LEN(CRSDATA!M105)=4,LEFT(CRSDATA!M105,3)=\"422\"),422,CRSDATA!M105))","v":0},{"$f":"IF(CRSDATA!L105=22,\"FA04\",\"\")","v":""},{"$f":"IF(CRSDATA!K105=8,\"FC02\",\"\")","v":""},{"$f":"_xlfn.IFS(OR(P105=\"A00\",P105=\"E01\",P105=\"F01\",AND(P105=\"\",A105<>0),Q105=510,Q105=520,AF105=60),1,P105=\"G01\",IF(AF105=10,21,22),OR(M105=41203,M105=41204),22,OR(AND(OR(P105=\"B02\",P105=\"B03\"),M105=41310),OR(P105=\"E02\",P105=\"I01\")),21,AND(OR(P105=\"B01\",P105=\"B03\",P105=\"C01\"),M105<>41310),IF(VLOOKUP(F105,recipient_country!AB:AD,3,FALSE)=10024,\"\",1),AND(P105=\"B02\",M105<>41310),IF(VLOOKUP(M105,channel_codes!J:P,7,FALSE)=0,\"\",VLOOKUP(M105,channel_codes!J:P,7,FALSE)),ISNUMBER(MATCH(P105,{\"D01\",\"D02\"},0)),IF(VLOOKUP(M105,channel_codes!J:P,7,FALSE)=1,1,IF(VLOOKUP(F105,recipient_country!AB:AD,3,FALSE)=10024,\"\",1)),OR(P105=\"H01\",AND(OR(ISNUMBER(SEARCH(\"41010\", L105)),ISNUMBER(SEARCH(\"41020\", L105)),ISNUMBER(SEARCH(\"41030\", L105)),ISNUMBER(SEARCH(\"41040\", L105)),ISNUMBER(SEARCH(\"41081\", L105))),F105=998)),22,F105=998,22,TRUE,\"\")","v":""},{"$f":"CRSDATA!AN105","v":0},{"$f":"CRSDATA!AO105","v":0},{"$f":"CRSDATA!AQ105","v":0},{"$f":"CRSDATA!AS105","v":0},{"$f":"CRSDATA!BB105","v":0},null,"",{"$f":"IF(AND(AND(CRSDATA!C105<>\"\",CRSDATA!BK105<>\"\"),OR(CRSDATA!N105=421,CRSDATA!N105=422,CRSDATA!N105=4221,CRSDATA!N105=4222,CRSDATA!N105=423,CRSDATA!N105=424,CRSDATA!N105=425,CRSDATA!N105=431,CRSDATA!N105=433,CRSDATA!N105=434)),DATEDIF(CRSDATA!C105,CRSDATA!BK105,\"m\"),\"\")","v":""},{"$f":"CRSDATA!BA105","v":0},{"$f":"CRSDATA!BC105","v":0},{"$f":"IF(CRSDATA!BT105=\"\",\"\",CRSDATA!BT105)","v":""},{"$f":"CRSDATA!L105","v":0}]
[{"$f":"CRSDATA!A106","v":0},{"$f":"CRSDATA!C106","v":0},{"$f":"CRSDATA!D106","v":0},{"$f":"CRSDATA!F106","v":0},{"$f":"CRSDATA!E106","v":0},{"$f":"IF(CRSDATA!H106=3000,998,CRSDATA!H106)","v":0},{"$f":"CRSDATA!O106","v":0},{"$f":"CRSDATA!U106","v":0},{"$f":"IF(CRSDATA!V106=\"\",\"\",CRSDATA!V106)","v":""},{"$f":"IF(CRSDATA!W106=\"\",\"\",CRSDATA!W106)","v":""},{"$f":"key_row(CRSDATA!X106,CRSDATA!Y106,CRSDATA!AL106,CRSDATA!AK106,CRSDATA!AJ106,CRSDATA!AM106,CRSDATA!P106,CRSDATA!V106)","v":""},{"$f":"CRSDATA!P106","v":0},{"$f":"CRSDATA!J106","v":0},{"$f":"CRSDATA!I106","v":0},null,{"$f":"IF(LEFT(CRSDATA!N106,2)=\"A0\",\"A00\",IF(LEFT(CRSDATA!N106,3)=\"B02\",\"B02\",IF(LEFT(CRSDATA!N106,3)=\"B03\",\"B03\",IF(CRSDATA!N106=\"B04\",\"C01\",IF(CRSDATA!N106=\"H01\",\"H00\",IF(OR(CRSDATA!N106=\"H02\",CRSDATA!N106=\"H03\",CRSDATA!N106=\"H04\",CRSDATA!N106=\"H05\",CRSDATA!N106=\"H06\"),\"I01\",IF(CRSDATA!N106=\"\",\"\",CRSDATA!N106)))))))","v":""},{"$f":"IF(AND(LEN(CRSDATA!M106)=4,LEFT(CRSDATA!M106,3)=\"110\"),1100,IF(AND(LEN(CRSDATA!M106)=4,LEFT(CRSDATA!M106,3)=\"422\"),422,CRSDATA!M106))","v":0},{"$f":"IF(CRSDATA!L106=22,\"FA04\",\"\")","v":""},{"$f":"IF(CRSDATA!K106=8,\"FC02\",\"\")","v":""},{"$f":"_xlfn.IFS(OR(P106=\"A00\",P106=\"E01\",P106=\"F01\",AND(P106=\"\",A106<>0),Q106=510,Q106=520,AF106=60),1,P106=\"G01\",IF(AF106=10,21,22),OR(M106=41203,M106=41204),22,OR(AND(OR(P106=\"B02\",P106=\"B03\"),M106=41310),OR(P106=\"E02\",P106=\"I01\")),21,AND(OR(P106=\"B01\",P106=\"B03\",P106=\"C01\"),M106<>41310),IF(VLOOKUP(F106,recipient_country!AB:AD,3,FALSE)=10024,\"\",1),AND(P106=\"B02\",M106<>41310),IF(VLOOKUP(M106,channel_codes!J:P,7,FALSE)=0,\"\",VLOOKUP(M106,channel_codes!J:P,7,FALSE)),ISNUMBER(MATCH(P106,{\"D01\",\"D02\"},0)),IF(VLOOKUP(M106,channel_codes!J:P,7,FALSE)=1,1,IF(VLOOKUP(F106,recipient_country!AB:AD,3,FALSE)=10024,\"\",1)),OR(P106=\"H01\",AND(OR(ISNUMBER(SEARCH(\"41010\", L106)),ISNUMBER(SEARCH(\"41020\", L106)),ISNUMBER(SEARCH(\"41030\", L106)),ISNUMBER(SEARCH(\"41040\", L106)),ISNUMBER(SEARCH(\"41081\", L106))),F106=998)),22,F106=998,22,TRUE,\"\")","v":""},{"$f":"CRSDATA!AN106","v":0},{"$f":"CRSDATA!AO106","v":0},{"$f":"CRSDATA!AQ106","v":0},{"$f":"CRSDATA!AS106","v":0},{"$f":"CRSDATA!BB106","v":0},null,"",{"$f":"IF(AND(AND(CRSDATA!C106<>\"\",CRSDATA!BK106<>\"\"),OR(CRSDATA!N106=421,CRSDATA!N106=422,CRSDATA!N106=4221,CRSDATA!N106=4222,CRSDATA!N106=423,CRSDATA!N106=424,CRSDATA!N106=425,CRSDATA!N106=431,CRSDATA!N106=433,CRSDATA!N106=434)),DATEDIF(CRSDATA!C106,CRSDATA!BK106,\"m\"),\"\")","v":""},{"$f":"CRSDATA!BA106","v":0},{"$f":"CRSDATA!BC106","v":0},{"$f":"IF(CRSDATA!BT106=\"\",\"\",CRSDATA!BT106)","v":""},{"$f":"CRSDATA!L106","v":0}]
[{"$f":"CRSDATA!A107","v":0},{"$f":"CRSDATA!C107","v":0},{"$f":"CRSDATA!D107","v":0},{"$f":"CRSDATA!F107","v":0},{"$f":"CRSDATA!E107","v":0},{"$f":"IF(CRSDATA!H107=3000,998,CRSDATA!H107)","v":0},{"$f":"CRSDATA!O107","v":0},{"$f":"CRSDATA!U107","v":0},{"$f":"IF(CRSDATA!V107=\"\",\"\",CRSDATA!V107)","v":""},{"$f":"IF(CRSDATA!W107=\"\",\"\",CRSDATA!W107)","v":""},{"$f":"key_row(CRSDATA!X107,CRSDATA!Y107,CRSDATA!AL107,CRSDATA!AK107,CRSDATA!AJ107,CRSDATA!AM107,CRSDATA!P107,CRSDATA!V107)","v":""},{"$f":"CRSDATA!P107","v":0},{"$f":"CRSDATA!J107","v":0},{"$f":"CRSDATA!I107","v":0},null,{"$f":"IF(LEFT(CRSDATA!N107,2)=\"A0\",\"A00\",IF(LEFT(CRSDATA!N107,3)=\"B02\",\"B02\",IF(LEFT(CRSDATA!N107,3)=\"B03\",\"B03\",IF(CRSDATA!N107=\"B04\",\"C01\",IF(CRSDATA!N107=\"H01\",\"H00\",IF(OR(CRSDATA!N107=\"H02\",CRSDATA!N107=\"H03\",CRSDATA!N107=\"H04\",CRSDATA!N107=\"H05\",CRSDATA!N107=\"H06\"),\"I01\",IF(CRSDATA!N107=\"\",\"\",CRSDATA!N107)))))))","v":""},{"$f":"IF(AND(LEN(CRSDATA!M107)=4,LEFT(CRSDATA!M107,3)=\"110\"),1100,IF(AND(LEN(CRSDATA!M107)=4,LEFT(CRSDATA!M107,3)=\"422\"),422,CRSDATA!M107))","v":0},{"$f":"IF(CRSDATA!L107=22,\"FA04\",\"\")","v":""},{"$f":"IF(CRSDATA!K107=8,\"FC02\",\"\")","v":""},{"$f":"_xlfn.IFS(OR(P107=\"A00\",P107=\"E01\",P107=\"F01\",AND(P107=\"\",A107<>0),Q107=510,Q107=520,AF107=60),1,P107=\"G01\",IF(AF107=10,21,22),OR(M107=41203,M107=41204),22,OR(AND(OR(P107=\"B02\",P107=\"B03\"),M107=41310),OR(P107=\"E02\",P107=\"I01\")),21,AND(OR(P107=\"B01\",P107=\"B03\",P107=\"C01\"),M107<>41310),IF(VLOOKUP(F107,recipient_country!AB:AD,3,FALSE)=10024,\"\",1),AND(P107=\"B02\",M107<>41310),IF(VLOOKUP(M107,channel_codes!J:P,7,FALSE)=0,\"\",VLOOKUP(M107,channel_codes!J:P,7,FALSE)),ISNUMBER(MATCH(P107,{\"D01\",\"D02\"},0)),IF(VLOOKUP(M107,channel_codes!J:P,7,FALSE)=1,1,IF(VLOOKUP(F107,recipient_country!AB:AD,3,FALSE)=10024,\"\",1)),OR(P107=\"H01\",AND(OR(ISNUMBER(SEARCH(\"41010\", L107)),ISNUMBER(SEARCH(\"41020\", L107)),ISNUMBER(SEARCH(\"41030\", L107)),ISNUMBER(SEARCH(\"41040\", L107)),ISNUMBER(SEARCH(\"41081\", L107))),F107=998)),22,F107=998,22,TRUE,\"\")","v":""},{"$f":"CRSDATA!AN107","v":0},{"$f":"CRSDATA!AO107","v":0},{"$f":"CRSDATA!AQ107","v":0},{"$f":"CRSDATA!AS107","v":0},{"$f":"CRSDATA!BB107","v":0},null,"",{"$f":"IF(AND(AND(CRSDATA!C107<>\"\",CRSDATA!BK107<>\"\"),OR(CRSDATA!N107=421,CRSDATA!N107=422,CRSDATA!N107=4221,CRSDATA!N107=4222,CRSDATA!N107=423,CRSDATA!N107=424,CRSDATA!N107=425,CRSDATA!N107=431,CRSDATA!N107=433,CRSDATA!N107=434)),DATEDIF(CRSDATA!C107,CRSDATA!BK107,\"m\"),\"\")","v":""},{"$f":"CRSDATA!BA107","v":0},{"$f":"CRSDATA!BC107","v":0},{"$f":"IF(CRSDATA!BT107=\"\",\"\",CRSDATA!BT107)","v":""},{"$f":"CRSDATA!L107","v":0}]
[{"$f":"CRSDATA!A108","v":0},{"$f":"CRSDATA!C108","v":0},{"$f":"CRSDATA!D108","v":0},{"$f":"CRSDATA!F108","v":0},{"$f":"CRSDATA!E108","v":0},{"$f":"IF(CRSDATA!H108=3000,998,CRSDATA!H108)","v":0},{"$f":"CRSDATA!O108","v":0},{"$f":"CRSDATA!U108","v":0},{"$f":"IF(CRSDATA!V108=\"\",\"\",CRSDATA!V108)","v":""},{"$f":"IF(CRSDATA!W108=\"\",\"\",CRSDATA!W108)","v":""},{"$f":"key_row(CRSDATA!X108,CRSDATA!Y108,CRSDATA!AL108,CRSDATA!AK108,CRSDATA!AJ108,CRSDATA!AM108,CRSDATA!P108,CRSDATA!V108)","v":""},{"$f":"CRSDATA!P108","v":0},{"$f":"CRSDATA!J108","v":0},{"$f":"CRSDATA!I108","v":0},null,{"$f":"IF(LEFT(CRSDATA!N108,2)=\"A0\",\"A00\",IF(LEFT(CRSDATA!N108,3)=\"B02\",\"B02\",IF(LEFT(CRSDATA!N108,3)=\"B03\",\"B03\",IF(CRSDATA!N108=\"B04\",\"C01\",IF(CRSDATA!N108=\"H01\",\"H00\",IF(OR(CRSDATA!N108=\"H02\",CRSDATA!N108=\"H03\",CRSDATA!N108=\"H04\",CRSDATA!N108=\"H05\",CRSDATA!N108=\"H06\"),\"I01\",IF(CRSDATA!N108=\"\",\"\",CRSDATA!N108)))))))","v":""},{"$f":"IF(AND(LEN(CRSDATA!M108)=4,LEFT(CRSDATA!M108,3)=\"110\"),1100,IF(AND(LEN(CRSDATA!M108)=4,LEFT(CRSDATA!M108,3)=\"422\"),422,CRSDATA!M108))","v":0},{"$f":"IF(CRSDATA!L108=22,\"FA04\",\"\")","v":""},{"$f":"IF(CRSDATA!K108=8,\"FC02\",\"\")","v":""},{"$f":"_xlfn.IFS(OR(P108=\"A00\",P108=\"E01\",P108=\"F01\",AND(P108=\"\",A108<>0),Q108=510,Q108=520,AF108=60),1,P108=\"G01\",IF(AF108=10,21,22),OR(M108=41203,M108=41204),22,OR(AND(OR(P108=\"B02\",P108=\"B03\"),M108=41310),OR(P108=\"E02\",P108=\"I01\")),21,AND(OR(P108=\"B01\",P108=\"B03\",P108=\"C01\"),M108<>41310),IF(VLOOKUP(F108,recipient_country!AB:AD,3,FALSE)=10024,\"\",1),AND(P108=\"B02\",M108<>41310),IF(VLOOKUP(M108,channel_codes!J:P,7,FALSE)=0,\"\",VLOOKUP(M108,channel_codes!J:P,7,FALSE)),ISNUMBER(MATCH(P108,{\"D01\",\"D02\"},0)),IF(VLOOKUP(M108,channel_codes!J:P,7,FALSE)=1,1,IF(VLOOKUP(F108,recipient_country!AB:AD,3,FALSE)=10024,\"\",1)),OR(P108=\"H01\",AND(OR(ISNUMBER(SEARCH(\"41010\", L108)),ISNUMBER(SEARCH(\"41020\", L108)),ISNUMBER(SEARCH(\"41030\", L108)),ISNUMBER(SEARCH(\"41040\", L108)),ISNUMBER(SEARCH(\"41081\", L108))),F108=998)),22,F108=998,22,TRUE,\"\")","v":""},{"$f":"CRSDATA!AN108","v":0},{"$f":"CRSDATA!AO108","v":0},{"$f":"CRSDATA!AQ108","v":0},{"$f":"CRSDATA!AS108","v":0},{"$f":"CRSDATA!BB108","v":0},null,"",{"$f":"IF(AND(AND(CRSDATA!C108<>\"\",CRSDATA!BK108<>\"\"),OR(CRSDATA!N108=421,CRSDATA!N108=422,CRSDATA!N108=4221,CRSDATA!N108=4222,CRSDATA!N108=423,CRSDATA!N108=424,CRSDATA!N108=425,CRSDATA!N108=431,CRSDATA!N108=433,CRSDATA!N108=434)),DATEDIF(CRSDATA!C108,CRSDATA!BK108,\"m\"),\"\")","v":""},{"$f":"CRSDATA!BA108","v":0},{"$f":"CRSDATA!BC108","v":0},{"$f":"IF(CRSDATA!BT108=\"\",\"\",CRSDATA!BT108)","v":""},{"$f":"CRSDATA!L108","v":0}]
[{"$f":"CRSDATA!A109","v":0},{"$f":"CRSDATA!C109","v":0},{"$f":"CRSDATA!D109","v":0},{"$f":"CRSDATA!F109","v":0},{"$f":"CRSDATA!E109","v":0},{"$f":"IF(CRSDATA!H109=3000,998,CRSDATA!H109)","v":0},{"$f":"CRSDATA!O109","v":0},{"$f":"CRSDATA!U109","v":0},{"$f":"IF(CRSDATA!V109=\"\",\"\",CRSDATA!V109)","v":""},{"$f":"IF(CRSDATA!W109=\"\",\"\",CRSDATA!W109)","v":""},{"$f":"key_row(CRSDATA!X109,CRSDATA!Y109,CRSDATA!AL109,CRSDATA!AK109,CRSDATA!AJ109,CRSDATA!AM109,CRSDATA!P109,CRSDATA!V109)","v":""},{"$f":"CRSDATA!P109","v":0},{"$f":"CRSDATA!J109","v":0},{"$f":"CRSDATA!I109","v":0},null,{"$f":"IF(LEFT(CRSDATA!N109,2)=\"A0\",\"A00\",IF(LEFT(CRSDATA!N109,3)=\"B02\",\"B02\",IF(LEFT(CRSDATA!N109,3)=\"B03\",\"B03\",IF(CRSDATA!N109=\"B04\",\"C01\",IF(CRSDATA!N109=\"H01\",\"H00\",IF(OR(CRSDATA!N109=\"H02\",CRSDATA!N109=\"H03\",CRSDATA!N109=\"H04\",CRSDATA!N109=\"H05\",CRSDATA!N109=\"H06\"),\"I01\",IF(CRSDATA!N109=\"\",\"\",CRSDATA!N109)))))))","v":""},{"$f":"IF(AND(LEN(CRSDATA!M109)=4,LEFT(CRSDATA!M109,3)=\"110\"),1100,IF(AND(LEN(CRSDATA!M109)=4,LEFT(CRSDATA!M109,3)=\"422\"),422,CRSDATA!M109))","v":0},{"$f":"IF(CRSDATA!L109=22,\"FA04\",\"\")","v":""},{"$f":"IF(CRSDATA!K109=8,\"FC02\",\"\")","v":""},{"$f":"_xlfn.IFS(OR(P109=\"A00\",P109=\"E01\",P109=\"F01\",AND(P109=\"\",A109<>0),Q109=510,Q109=520,AF109=60),1,P109=\"G01\",IF(AF109=10,21,22),OR(M109=41203,M109=41204),22,OR(AND(OR(P109=\"B02\",P109=\"B03\"),M109=41310),OR(P109=\"E02\",P109=\"I01\")),21,AND(OR(P109=\"B01\",P109=\"B03\",P109=\"C01\"),M109<>41310),IF(VLOOKUP(F109,recipient_country!AB:AD,3,FALSE)=10024,\"\",1),AND(P109=\"B02\",M109<>41310),IF(VLOOKUP(M109,channel_codes!J:P,7,FALSE)=0,\"\",VLOOKUP(M109,channel_codes!J:P,7,FALSE)),ISNUMBER(MATCH(P109,{\"D01\",\"D02\"},0)),IF(VLOOKUP(M109,channel_codes!J:P,7,FALSE)=1,1,IF(VLOOKUP(F109,recipient_country!AB:AD,3,FALSE)=10024,\"\",1)),OR(P109=\"H01\",AND(OR(ISNUMBER(SEARCH(\"41010\", L109)),ISNUMBER(SEARCH(\"41020\", L109)),ISNUMBER(SEARCH(\"41030\", L109)),ISNUMBER(SEARCH(\"41040\", L109)),ISNUMBER(SEARCH(\"41081\", L109))),F109=998)),22,F109=998,22,TRUE,\"\")","v":""},{"$f":"CRSDATA!AN109","v":0},{"$f":"CRSDATA!AO109","v":0},{"$f":"CRSDATA!AQ109","v":0},{"$f":"CRSDATA!AS109","v":0},{"$f":"CRSDATA!BB109","v":0},null,"",{"$f":"IF(AND(AND(CRSDATA!C109<>\"\",CRSDATA!BK109<>\"\"),OR(CRSDATA!N109=421,CRSDATA!N109=422,CRSDATA!N109=4221,CRSDATA!N109=4222,CRSDATA!N109=423,CRSDATA!N109=424,CRSDATA!N109=425,CRSDATA!N109=431,CRSDATA!N109=433,CRSDATA!N109=434)),DATEDIF(CRSDATA!C109,CRSDATA!BK109,\"m\"),\"\")","v":""},{"$f":"CRSDATA!BA109","v":0},{"$f":"CRSDATA!BC109","v":0},{"$f":"IF(CRSDATA!BT109=\"\",\"\",CRSDATA!BT109)","v":""},{"$f":"CRSDATA!L109","v":0}]
[{"$f":"CRSDATA!A110","v":0},{"$f":"CRSDATA!C110","v":0},{"$f":"CRSDATA!D110","v":0},{"$f":"CRSDATA!F110","v":0},{"$f":"CRSDATA!E110","v":0},{"$f":"IF(CRSDATA!H110=3000,998,CRSDATA!H110)","v":0},{"$f":"CRSDATA!O110","v":0},{"$f":"CRSDATA!U110","v":0},{"$f":"IF(CRSDATA!V110=\"\",\"\",CRSDATA!V110)","v":""},{"$f":"IF(CRSDATA!W110=\"\",\"\",CRSDATA!W110)","v":""},{"$f":"key_row(CRSDATA!X110,CRSDATA!Y110,CRSDATA!AL110,CRSDATA!AK110,CRSDATA!AJ110,CRSDATA!AM110,CRSDATA!P110,CRSDATA!V110)","v":""},{"$f":"CRSDATA!P110","v":0},{"$f":"CRSDATA!J110","v":0},{"$f":"CRSDATA!I110","v":0},null,{"$f":"IF(LEFT(CRSDATA!N110,2)=\"A0\",\"A00\",IF(LEFT(CRSDATA!N110,3)=\"B02\",\"B02\",IF(LEFT(CRSDATA!N110,3)=\"B03\",\"B03\",IF(CRSDATA!N110=\"B04\",\"C01\",IF(CRSDATA!N110=\"H01\",\"H00\",IF(OR(CRSDATA!N110=\"H02\",CRSDATA!N110=\"H03\",CRSDATA!N110=\"H04\",CRSDATA!N110=\"H05\",CRSDATA!N110=\"H06\"),\"I01\",IF(CRSDATA!N110=\"\",\"\",CRSDATA!N110)))))))","v":""},{"$f":"IF(AND(LEN(CRSDATA!M110)=4,LEFT(CRSDATA!M110,3)=\"110\"),1100,IF(AND(LEN(CRSDATA!M110)=4,LEFT(CRSDATA!M110,3)=\"422\"),422,CRSDATA!M110))","v":0},{"$f":"IF(CRSDATA!L110=22,\"FA04\",\"\")","v":""},{"$f":"IF(CRSDATA!K110=8,\"FC02\",\"\")","v":""},{"$f":"_xlfn.IFS(OR(P110=\"A00\",P110=\"E01\",P110=\"F01\",AND(P110=\"\",A110<>0),Q110=510,Q110=520,AF110=60),1,P110=\"G01\",IF(AF110=10,21,22),OR(M110=41203,M110=41204),22,OR(AND(OR(P110=\"B02\",P110=\"B03\"),M110=41310),OR(P110=\"E02\",P110=\"I01\")),21,AND(OR(P110=\"B01\",P110=\"B03\",P110=\"C01\"),M110<>41310),IF(VLOOKUP(F110,recipient_country!AB:AD,3,FALSE)=10024,\"\",1),AND(P110=\"B02\",M110<>41310),IF(VLOOKUP(M110,channel_codes!J:P,7,FALSE)=0,\"\",VLOOKUP(M110,channel_codes!J:P,7,FALSE)),ISNUMBER(MATCH(P110,{\"D01\",\"D02\"},0)),IF(VLOOKUP(M110,channel_codes!J:P,7,FALSE)=1,1,IF(VLOOKUP(F110,recipient_country!AB:AD,3,FALSE)=10024,\"\",1)),OR(P110=\"H01\",AND(OR(ISNUMBER(SEARCH(\"41010\", L110)),ISNUMBER(SEARCH(\"41020\", L110)),ISNUMBER(SEARCH(\"41030\", L110)),ISNUMBER(SEARCH(\"41040\", L110)),ISNUMBER(SEARCH(\"41081\", L110))),F110=998)),22,F110=998,22,TRUE,\"\")","v":""},{"$f":"CRSDATA!AN110","v":0},{"$f":"CRSDATA!AO110","v":0},{"$f":"CRSDATA!AQ110","v":0},{"$f":"CRSDATA!AS110","v":0},{"$f":"CRSDATA!BB110","v":0},null,"",{"$f":"IF(AND(AND(CRSDATA!C110<>\"\",CRSDATA!BK110<>\"\"),OR(CRSDATA!N110=421,CRSDATA!N110=422,CRSDATA!N110=4221,CRSDATA!N110=4222,CRSDATA!N110=423,CRSDATA!N110=424,CRSDATA!N110=425,CRSDATA!N110=431,CRSDATA!N110=433,CRSDATA!N110=434)),DATEDIF(CRSDATA!C110,CRSDATA!BK110,\"m\"),\"\")","v":""},{"$f":"CRSDATA!BA110","v":0},{"$f":"CRSDATA!BC110","v":0},{"$f":"IF(CRSDATA!BT110=\"\",\"\",CRSDATA!BT110)","v":""},{"$f":"CRSDATA!L110","v":0}]
[{"$f":"CRSDATA!A111","v":0},{"$f":"CRSDATA!C111","v":0},{"$f":"CRSDATA!D111","v":0},{"$f":"CRSDATA!F111","v":0},{"$f":"CRSDATA!E111","v":0},{"$f":"IF(CRSDATA!H111=3000,998,CRSDATA!H111)","v":0},{"$f":"CRSDATA!O111","v":0},{"$f":"CRSDATA!U111","v":0},{"$f":"IF(CRSDATA!V111=\"\",\"\",CRSDATA!V111)","v":""},{"$f":"IF(CRSDATA!W111=\"\",\"\",CRSDATA!W111)","v":""},{"$f":"key_row(CRSDATA!X111,CRSDATA!Y111,CRSDATA!AL111,CRSDATA!AK111,CRSDATA!AJ111,CRSDATA!AM111,CRSDATA!P111,CRSDATA!V111)","v":""},{"$f":"CRSDATA!P111","v":0},{"$f":"CRSDATA!J111","v":0},{"$f":"CRSDATA!I111","v":0},null,{"$f":"IF(LEFT(CRSDATA!N111,2)=\"A0\",\"A00\",IF(LEFT(CRSDATA!N111,3)=\"B02\",\"B02\",IF(LEFT(CRSDATA!N111,3)=\"B03\",\"B03\",IF(CRSDATA!N111=\"B04\",\"C01\",IF(CRSDATA!N111=\"H01\",\"H00\",IF(OR(CRSDATA!N111=\"H02\",CRSDATA!N111=\"H03\",CRSDATA!N111=\"H04\",CRSDATA!N111=\"H05\",CRSDATA!N111=\"H06\"),\"I01\",IF(CRSDATA!N111=\"\",\"\",CRSDATA!N111)))))))","v":""},{"$f":"IF(AND(LEN(CRSDATA!M111)=4,LEFT(CRSDATA!M111,3)=\"110\"),1100,IF(AND(LEN(CRSDATA!M111)=4,LEFT(CRSDATA!M111,3)=\"422\"),422,CRSDATA!M111))","v":0},{"$f":"IF(CRSDATA!L111=22,\"FA04\",\"\")","v":""},{"$f":"IF(CRSDATA!K111=8,\"FC02\",\"\")","v":""},{"$f":"_xlfn.IFS(OR(P111=\"A00\",P111=\"E01\",P111=\"F01\",AND(P111=\"\",A111<>0),Q111=510,Q111=520,AF111=60),1,P111=\"G01\",IF(AF111=10,21,22),OR(M111=41203,M111=41204),22,OR(AND(OR(P111=\"B02\",P111=\"B03\"),M111=41310),OR(P111=\"E02\",P111=\"I01\")),21,AND(OR(P111=\"B01\",P111=\"B03\",P111=\"C01\"),M111<>41310),IF(VLOOKUP(F111,recipient_country!AB:AD,3,FALSE)=10024,\"\",1),AND(P111=\"B02\",M111<>41310),IF(VLOOKUP(M111,channel_codes!J:P,7,FALSE)=0,\"\",VLOOKUP(M111,channel_codes!J:P,7,FALSE)),ISNUMBER(MATCH(P111,{\"D01\",\"D02\"},0)),IF(VLOOKUP(M111,channel_codes!J:P,7,FALSE)=1,1,IF(VLOOKUP(F111,recipient_country!AB:AD,3,FALSE)=10024,\"\",1)),OR(P111=\"H01\",AND(OR(ISNUMBER(SEARCH(\"41010\", L111)),ISNUMBER(SEARCH(\"41020\", L111)),ISNUMBER(SEARCH(\"41030\", L111)),ISNUMBER(SEARCH(\"41040\", L111)),ISNUMBER(SEARCH(\"41081\", L111))),F111=998)),22,F111=998,22,TRUE,\"\")","v":""},{"$f":"CRSDATA!AN111","v":0},{"$f":"CRSDATA!AO111","v":0},{"$f":"CRSDATA!AQ111","v":0},{"$f":"CRSDATA!AS111","v":0},{"$f":"CRSDATA!BB111","v":0},null,"",{"$f":"IF(AND(AND(CRSDATA!C111<>\"\",CRSDATA!BK111<>\"\"),OR(CRSDATA!N111=421,CRSDATA!N111=422,CRSDATA!N111=4221,CRSDATA!N111=4222,CRSDATA!N111=423,CRSDATA!N111=424,CRSDATA!N111=425,CRSDATA!N111=431,CRSDATA!N111=433,CRSDATA!N111=434)),DATEDIF(CRSDATA!C111,CRSDATA!BK111,\"m\"),\"\")","v":""},{"$f":"CRSDATA!BA111","v":0},{"$f":"CRSDATA!BC111","v":0},{"$f":"IF(CRSDATA!BT111=\"\",\"\",CRSDATA!BT111)","v":""},{"$f":"CRSDATA!L111","v":0}]
[{"$f":"CRSDATA!A112","v":0},{"$f":"CRSDATA!C112","v":0},{"$f":"CRSDATA!D112","v":0},{"$f":"CRSDATA!F112","v":0},{"$f":"CRSDATA!E112","v":0},{"$f":"IF(CRSDATA!H112=3000,998,CRSDATA!H112)","v":0},{"$f":"CRSDATA!O112","v":0},{"$f":"CRSDATA!U112","v":0},{"$f":"IF(CRSDATA!V112=\"\",\"\",CRSDATA!V112)","v":""},{"$f":"IF(CRSDATA!W112=\"\",\"\",CRSDATA!W112)","v":""},{"$f":"key_row(CRSDATA!X112,CRSDATA!Y112,CRSDATA!AL112,CRSDATA!AK112,CRSDATA!AJ112,CRSDATA!AM112,CRSDATA!P112,CRSDATA!V112)","v":""},{"$f":"CRSDATA!P112","v":0},{"$f":"CRSDATA!J112","v":0},{"$f":"CRSDATA!I112","v":0},null,{"$f":"IF(LEFT(CRSDATA!N112,2)=\"A0\",\"A00\",IF(LEFT(CRSDATA!N112,3)=\"B02\",\"B02\",IF(LEFT(CRSDATA!N112,3)=\"B03\",\"B03\",IF(CRSDATA!N112=\"B04\",\"C01\",IF(CRSDATA!N112=\"H01\",\"H00\",IF(OR(CRSDATA!N112=\"H02\",CRSDATA!N112=\"H03\",CRSDATA!N112=\"H04\",CRSDATA!N112=\"H05\",CRSDATA!N112=\"H06\"),\"I01\",IF(CRSDATA!N112=\"\",\"\",CRSDATA!N112)))))))","v":""},{"$f":"IF(AND(LEN(CRSDATA!M112)=4,LEFT(CRSDATA!M112,3)=\"110\"),1100,IF(AND(LEN(CRSDATA!M112)=4,LEFT(CRSDATA!M112,3)=\"422\"),422,CRSDATA!M112))","v":0},{"$f":"IF(CRSDATA!L112=22,\"FA04\",\"\")","v":""},{"$f":"IF(CRSDATA!K112=8,\"FC02\",\"\")","v":""},{"$f":"_xlfn.IFS(OR(P112=\"A00\",P112=\"E01\",P112=\"F01\",AND(P112=\"\",A112<>0),Q112=510,Q112=520,AF112=60),1,P112=\"G01\",IF(AF112=10,21,22),OR(M112=41203,M112=41204),22,OR(AND(OR(P112=\"B02\",P112=\"B03\"),M112=41310),OR(P112=\"E02\",P112=\"I01\")),21,AND(OR(P112=\"B01\",P112=\"B03\",P112=\"C01\"),M112<>41310),IF(VLOOKUP(F112,recipient_country!AB:AD,3,FALSE)=10024,\"\",1),AND(P112=\"B02\",M112<>41310),IF(VLOOKUP(M112,channel_codes!J:P,7,FALSE)=0,\"\",VLOOKUP(M112,channel_codes!J:P,7,FALSE)),ISNUMBER(MATCH(P112,{\"D01\",\"D02\"},0)),IF(VLOOKUP(M112,channel_codes!J:P,7,FALSE)=1,1,IF(VLOOKUP(F112,recipient_country!AB:AD,3,FALSE)=10024,\"\",1)),OR(P112=\"H01\",AND(OR(ISNUMBER(SEARCH(\"41010\", L112)),ISNUMBER(SEARCH(\"41020\", L112)),ISNUMBER(SEARCH(\"41030\", L112)),ISNUMBER(SEARCH(\"41040\", L112)),ISNUMBER(SEARCH(\"41081\", L112))),F112=998)),22,F112=998,22,TRUE,\"\")","v":""},{"$f":"CRSDATA!AN112","v":0},{"$f":"CRSDATA!AO112","v":0},{"$f":"CRSDATA!AQ112","v":0},{"$f":"CRSDATA!AS112","v":0},{"$f":"CRSDATA!BB112","v":0},null,"",{"$f":"IF(AND(AND(CRSDATA!C112<>\"\",CRSDATA!BK112<>\"\"),OR(CRSDATA!N112=421,CRSDATA!N112=422,CRSDATA!N112=4221,CRSDATA!N112=4222,CRSDATA!N112=423,CRSDATA!N112=424,CRSDATA!N112=425,CRSDATA!N112=431,CRSDATA!N112=433,CRSDATA!N112=434)),DATEDIF(CRSDATA!C112,CRSDATA!BK112,\"m\"),\"\")","v":""},{"$f":"CRSDATA!BA112","v":0},{"$f":"CRSDATA!BC112","v":0},{"$f":"IF(CRSDATA!BT112=\"\",\"\",CRSDATA!BT112)","v":""},{"$f":"CRSDATA!L112","v":0}]
[{"$f":"CRSDATA!A113","v":0},{"$f":"CRSDATA!C113","v":0},{"$f":"CRSDATA!D113","v":0},{"$f":"CRSDATA!F113","v":0},{"$f":"CRSDATA!E113","v":0},{"$f":"IF(CRSDATA!H113=3000,998,CRSDATA!H113)","v":0},{"$f":"CRSDATA!O113","v":0},{"$f":"CRSDATA!U113","v":0},{"$f":"IF(CRSDATA!V113=\"\",\"\",CRSDATA!V113)","v":""},{"$f":"IF(CRSDATA!W113=\"\",\"\",CRSDATA!W113)","v":""},{"$f":"key_row(CRSDATA!X113,CRSDATA!Y113,CRSDATA!AL113,CRSDATA!AK113,CRSDATA!AJ113,CRSDATA!AM113,CRSDATA!P113,CRSDATA!V113)","v":""},{"$f":"CRSDATA!P113","v":0},{"$f":"CRSDATA!J113","v":0},{"$f":"CRSDATA!I113","v":0},null,{"$f":"IF(LEFT(CRSDATA!N113,2)=\"A0\",\"A00\",IF(LEFT(CRSDATA!N113,3)=\"B02\",\"B02\",IF(LEFT(CRSDATA!N113,3)=\"B03\",\"B03\",IF(CRSDATA!N113=\"B04\",\"C01\",IF(CRSDATA!N113=\"H01\",\"H00\",IF(OR(CRSDATA!N113=\"H02\",CRSDATA!N113=\"H03\",CRSDATA!N113=\"H04\",CRSDATA!N113=\"H05\",CRSDATA!N113=\"H06\"),\"I01\",IF(CRSDATA!N113=\"\",\"\",CRSDATA!N113)))))))","v":""},{"$f":"IF(AND(LEN(CRSDATA!M113)=4,LEFT(CRSDATA!M113,3)=\"110\"),1100,IF(AND(LEN(CRSDATA!M113)=4,LEFT(CRSDATA!M113,3)=\"422\"),422,CRSDATA!M113))","v":0},{"$f":"IF(CRSDATA!L113=22,\"FA04\",\"\")","v":""},{"$f":"IF(CRSDATA!K113=8,\"FC02\",\"\")","v":""},{"$f":"_xlfn.IFS(OR(P113=\"A00\",P113=\"E01\",P113=\"F01\",AND(P113=\"\",A113<>0),Q113=510,Q113=520,AF113=60),1,P113=\"G01\",IF(AF113=10,21,22),OR(M113=41203,M113=41204),22,OR(AND(OR(P113=\"B02\",P113=\"B03\"),M113=41310),OR(P113=\"E02\",P113=\"I01\")),21,AND(OR(P113=\"B01\",P113=\"B03\",P113=\"C01\"),M113<>41310),IF(VLOOKUP(F113,recipient_country!AB:AD,3,FALSE)=10024,\"\",1),AND(P113=\"B02\",M113<>41310),IF(VLOOKUP(M113,channel_codes!J:P,7,FALSE)=0,\"\",VLOOKUP(M113,channel_codes!J:P,7,FALSE)),ISNUMBER(MATCH(P113,{\"D01\",\"D02\"},0)),IF(VLOOKUP(M113,channel_codes!J:P,7,FALSE)=1,1,IF(VLOOKUP(F113,recipient_country!AB:AD,3,FALSE)=10024,\"\",1)),OR(P113=\"H01\",AND(OR(ISNUMBER(SEARCH(\"41010\", L113)),ISNUMBER(SEARCH(\"41020\", L113)),ISNUMBER(SEARCH(\"41030\", L113)),ISNUMBER(SEARCH(\"41040\", L113)),ISNUMBER(SEARCH(\"41081\", L113))),F113=998)),22,F113=998,22,TRUE,\"\")","v":""},{"$f":"CRSDATA!AN113","v":0},{"$f":"CRSDATA!AO113","v":0},{"$f":"CRSDATA!AQ113","v":0},{"$f":"CRSDATA!AS113","v":0},{"$f":"CRSDATA!BB113","v":0},null,"",{"$f":"IF(AND(AND(CRSDATA!C113<>\"\",CRSDATA!BK113<>\"\"),OR(CRSDATA!N113=421,CRSDATA!N113=422,CRSDATA!N113=4221,CRSDATA!N113=4222,CRSDATA!N113=423,CRSDATA!N113=424,CRSDATA!N113=425,CRSDATA!N113=431,CRSDATA!N113=433,CRSDATA!N113=434)),DATEDIF(CRSDATA!C113,CRSDATA!BK113,\"m\"),\"\")","v":""},{"$f":"CRSDATA!BA113","v":0},{"$f":"CRSDATA!BC113","v":0},{"$f":"IF(CRSDATA!BT113=\"\",\"\",CRSDATA!BT113)","v":""},{"$f":"CRSDATA!L113","v":0}]
[{"$f":"CRSDATA!A114","v":0},{"$f":"CRSDATA!C114","v":0},{"$f":"CRSDATA!D114","v":0},{"$f":"CRSDATA!F114","v":0},{"$f":"CRSDATA!E114","v":0},{"$f":"IF(CRSDATA!H114=3000,998,CRSDATA!H114)","v":0},{"$f":"CRSDATA!O114","v":0},{"$f":"CRSDATA!U114","v":0},{"$f":"IF(CRSDATA!V114=\"\",\"\",CRSDATA!V114)","v":""},{"$f":"IF(CRSDATA!W114=\"\",\"\",CRSDATA!W114)","v":""},{"$f":"key_row(CRSDATA!X114,CRSDATA!Y114,CRSDATA!AL114,CRSDATA!AK114,CRSDATA!AJ114,CRSDATA!AM114,CRSDATA!P114,CRSDATA!V114)","v":""},{"$f":"CRSDATA!P114","v":0},{"$f":"CRSDATA!J114","v":0},{"$f":"CRSDATA!I114","v":0},null,{"$f":"IF(LEFT(CRSDATA!N114,2)=\"A0\",\"A00\",IF(LEFT(CRSDATA!N114,3)=\"B02\",\"B02\",IF(LEFT(CRSDATA!N114,3)=\"B03\",\"B03\",IF(CRSDATA!N114=\"B04\",\"C01\",IF(CRSDATA!N114=\"H01\",\"H00\",IF(OR(CRSDATA!N114=\"H02\",CRSDATA!N114=\"H03\",CRSDATA!N114=\"H04\",CRSDATA!N114=\"H05\",CRSDATA!N114=\"H06\"),\"I01\",IF(CRSDATA!N114=\"\",\"\",CRSDATA!N114)))))))","v":""},{"$f":"IF(AND(LEN(CRSDATA!M114)=4,LEFT(CRSDATA!M114,3)=\"110\"),1100,IF(AND(LEN(CRSDATA!M114)=4,LEFT(CRSDATA!M114,3)=\"422\"),422,CRSDATA!M114))","v":0},{"$f":"IF(CRSDATA!L114=22,\"FA04\",\"\")","v":""},{"$f":"IF(CRSDATA!K114=8,\"FC02\",\"\")","v":""},{"$f":"_xlfn.IFS(OR(P114=\"A00\",P114=\"E01\",P114=\"F01\",AND(P114=\"\",A114<>0),Q114=510,Q114=520,AF114=60),1,P114=\"G01\",IF(AF114=10,21,22),OR(M114=41203,M114=41204),22,OR(AND(OR(P114=\"B02\",P114=\"B03\"),M114=41310),OR(P114=\"E02\",P114=\"I01\")),21,AND(OR(P114=\"B01\",P114=\"B03\",P114=\"C01\"),M114<>41310),IF(VLOOKUP(F114,recipient_country!AB:AD,3,FALSE)=10024,\"\",1),AND(P114=\"B02\",M114<>41310),IF(VLOOKUP(M114,channel_codes!J:P,7,FALSE)=0,\"\",VLOOKUP(M114,channel_codes!J:P,7,FALSE)),ISNUMBER(MATCH(P114,{\"D01\",\"D02\"},0)),IF(VLOOKUP(M114,channel_codes!J:P,7,FALSE)=1,1,IF(VLOOKUP(F114,recipient_country!AB:AD,3,FALSE)=10024,\"\",1)),OR(P114=\"H01\",AND(OR(ISNUMBER(SEARCH(\"41010\", L114)),ISNUMBER(SEARCH(\"41020\", L114)),ISNUMBER(SEARCH(\"41030\", L114)),ISNUMBER(SEARCH(\"41040\", L114)),ISNUMBER(SEARCH(\"41081\", L114))),F114=998)),22,F114=998,22,TRUE,\"\")","v":""},{"$f":"CRSDATA!AN114","v":0},{"$f":"CRSDATA!AO114","v":0},{"$f":"CRSDATA!AQ114","v":0},{"$f":"CRSDATA!AS114","v":0},{"$f":"CRSDATA!BB114","v":0},null,"",{"$f":"IF(AND(AND(CRSDATA!C114<>\"\",CRSDATA!BK114<>\"\"),OR(CRSDATA!N114=421,CRSDATA!N114=422,CRSDATA!N114=4221,CRSDATA!N114=4222,CRSDATA!N114=423,CRSDATA!N114=424,CRSDATA!N114=425,CRSDATA!N114=431,CRSDATA!N114=433,CRSDATA!N114=434)),DATEDIF(CRSDATA!C114,CRSDATA!BK114,\"m\"),\"\")","v":""},{"$f":"CRSDATA!BA114","v":0},{"$f":"CRSDATA!BC114","v":0},{"$f":"IF(CRSDATA!BT114=\"\",\"\",CRSDATA!BT114)","v":""},{"$f":"CRSDATA!L114","v":0}]
[{"$f":"CRSDATA!A115","v":0},{"$f":"CRSDATA!C115","v":0},{"$f":"CRSDATA!D115","v":0},{"$f":"CRSDATA!F115","v":0},{"$f":"CRSDATA!E115","v":0},{"$f":"IF(CRSDATA!H115=3000,998,CRSDATA!H115)","v":0},{"$f":"CRSDATA!O115","v":0},{"$f":"CRSDATA!U115","v":0},{"$f":"IF(CRSDATA!V115=\"\",\"\",CRSDATA!V115)","v":""},{"$f":"IF(CRSDATA!W115=\"\",\"\",CRSDATA!W115)","v":""},{"$f":"key_row(CRSDATA!X115,CRSDATA!Y115,CRSDATA!AL115,CRSDATA!AK115,CRSDATA!AJ115,CRSDATA!AM115,CRSDATA!P115,CRSDATA!V115)","v":""},{"$f":"CRSDATA!P115","v":0},{"$f":"CRSDATA!J115","v":0},{"$f":"CRSDATA!I115","v":0},null,{"$f":"IF(LEFT(CRSDATA!N115,2)=\"A0\",\"A00\",IF(LEFT(CRSDATA!N115,3)=\"B02\",\"B02\",IF(LEFT(CRSDATA!N115,3)=\"B03\",\"B03\",IF(CRSDATA!N115=\"B04\",\"C01\",IF(CRSDATA!N115=\"H01\",\"H00\",IF(OR(CRSDATA!N115=\"H02\",CRSDATA!N115=\"H03\",CRSDATA!N115=\"H04\",CRSDATA!N115=\"H05\",CRSDATA!N115=\"H06\"),\"I01\",IF(CRSDATA!N115=\"\",\"\",CRSDATA!N115)))))))","v":""},{"$f":"IF(AND(LEN(CRSDATA!M115)=4,LEFT(CRSDATA!M115,3)=\"110\"),1100,IF(AND(LEN(CRSDATA!M115)=4,LEFT(CRSDATA!M115,3)=\"422\"),422,CRSDATA!M115))","v":0},{"$f":"IF(CRSDATA!L115=22,\"FA04\",\"\")","v":""},{"$f":"IF(CRSDATA!K115=8,\"FC02\",\"\")","v":""},{"$f":"_xlfn.IFS(OR(P115=\"A00\",P115=\"E01\",P115=\"F01\",AND(P115=\"\",A115<>0),Q115=510,Q115=520,AF115=60),1,P115=\"G01\",IF(AF115=10,21,22),OR(M115=41203,M115=41204),22,OR(AND(OR(P115=\"B02\",P115=\"B03\"),M115=41310),OR(P115=\"E02\",P115=\"I01\")),21,AND(OR(P115=\"B01\",P115=\"B03\",P115=\"C01\"),M115<>41310),IF(VLOOKUP(F115,recipient_country!AB:AD,3,FALSE)=10024,\"\",1),AND(P115=\"B02\",M115<>41310),IF(VLOOKUP(M115,channel_codes!J:P,7,FALSE)=0,\"\",VLOOKUP(M115,channel_codes!J:P,7,FALSE)),ISNUMBER(MATCH(P115,{\"D01\",\"D02\"},0)),IF(VLOOKUP(M115,channel_codes!J:P,7,FALSE)=1,1,IF(VLOOKUP(F115,recipient_country!AB:AD,3,FALSE)=10024,\"\",1)),OR(P115=\"H01\",AND(OR(ISNUMBER(SEARCH(\"41010\", L115)),ISNUMBER(SEARCH(\"41020\", L115)),ISNUMBER(SEARCH(\"41030\", L115)),ISNUMBER(SEARCH(\"41040\", L115)),ISNUMBER(SEARCH(\"41081\", L115))),F115=998)),22,F115=998,22,TRUE,\"\")","v":""},{"$f":"CRSDATA!AN115","v":0},{"$f":"CRSDATA!AO115","v":0},{"$f":"CRSDATA!AQ115","v":0},{"$f":"CRSDATA!AS115","v":0},{"$f":"CRSDATA!BB115","v":0},null,"",{"$f":"IF(AND(AND(CRSDATA!C115<>\"\",CRSDATA!BK115<>\"\"),OR(CRSDATA!N115=421,CRSDATA!N115=422,CRSDATA!N115=4221,CRSDATA!N115=4222,CRSDATA!N115=423,CRSDATA!N115=424,CRSDATA!N115=425,CRSDATA!N115=431,CRSDATA!N115=433,CRSDATA!N115=434)),DATEDIF(CRSDATA!C115,CRSDATA!BK115,\"m\"),\"\")","v":""},{"$f":"CRSDATA!BA115","v":0},{"$f":"CRSDATA!BC115","v":0},{"$f":"IF(CRSDATA!BT115=\"\",\"\",CRSDATA!BT115)","v":""},{"$f":"CRSDATA!L115","v":0}]
[{"$f":"CRSDATA!A116","v":0},{"$f":"CRSDATA!C116","v":0},{"$f":"CRSDATA!D116","v":0},{"$f":"CRSDATA!F116","v":0},{"$f":"CRSDATA!E116","v":0},{"$f":"IF(CRSDATA!H116=3000,998,CRSDATA!H116)","v":0},{"$f":"CRSDATA!O116","v":0},{"$f":"CRSDATA!U116","v":0},{"$f":"IF(CRSDATA!V116=\"\",\"\",CRSDATA!V116)","v":""},{"$f":"IF(CRSDATA!W116=\"\",\"\",CRSDATA!W116)","v":""},{"$f":"key_row(CRSDATA!X116,CRSDATA!Y116,CRSDATA!AL116,CRSDATA!AK116,CRSDATA!AJ116,CRSDATA!AM116,CRSDATA!P116,CRSDATA!V116)","v":""},{"$f":"CRSDATA!P116","v":0},{"$f":"CRSDATA!J116","v":0},{"$f":"CRSDATA!I116","v":0},null,{"$f":"IF(LEFT(CRSDATA!N116,2)=\"A0\",\"A00\",IF(LEFT(CRSDATA!N116,3)=\"B02\",\"B02\",IF(LEFT(CRSDATA!N116,3)=\"B03\",\"B03\",IF(CRSDATA!N116=\"B04\",\"C01\",IF(CRSDATA!N116=\"H01\",\"H00\",IF(OR(CRSDATA!N116=\"H02\",CRSDATA!N116=\"H03\",CRSDATA!N116=\"H04\",CRSDATA!N116=\"H05\",CRSDATA!N116=\"H06\"),\"I01\",IF(CRSDATA!N116=\"\",\"\",CRSDATA!N116)))))))","v":""},{"$f":"IF(AND(LEN(CRSDATA!M116)=4,LEFT(CRSDATA!M116,3)=\"110\"),1100,IF(AND(LEN(CRSDATA!M116)=4,LEFT(CRSDATA!M116,3)=\"422\"),422,CRSDATA!M116))","v":0},{"$f":"IF(CRSDATA!L116=22,\"FA04\",\"\")","v":""},{"$f":"IF(CRSDATA!K116=8,\"FC02\",\"\")","v":""},{"$f":"_xlfn.IFS(OR(P116=\"A00\",P116=\"E01\",P116=\"F01\",AND(P116=\"\",A116<>0),Q116=510,Q116=520,AF116=60),1,P116=\"G01\",IF(AF116=10,21,22),OR(M116=41203,M116=41204),22,OR(AND(OR(P116=\"B02\",P116=\"B03\"),M116=41310),OR(P116=\"E02\",P116=\"I01\")),21,AND(OR(P116=\"B01\",P116=\"B03\",P116=\"C01\"),M116<>41310),IF(VLOOKUP(F116,recipient_country!AB:AD,3,FALSE)=10024,\"\",1),AND(P116=\"B02\",M116<>41310),IF(VLOOKUP(M116,channel_codes!J:P,7,FALSE)=0,\"\",VLOOKUP(M116,channel_codes!J:P,7,FALSE)),ISNUMBER(MATCH(P116,{\"D01\",\"D02\"},0)),IF(VLOOKUP(M116,channel_codes!J:P,7,FALSE)=1,1,IF(VLOOKUP(F116,recipient_country!AB:AD,3,FALSE)=10024,\"\",1)),OR(P116=\"H01\",AND(OR(ISNUMBER(SEARCH(\"41010\", L116)),ISNUMBER(SEARCH(\"41020\", L116)),ISNUMBER(SEARCH(\"41030\", L116)),ISNUMBER(SEARCH(\"41040\", L116)),ISNUMBER(SEARCH(\"41081\", L116))),F116=998)),22,F116=998,22,TRUE,\"\")","v":""},{"$f":"CRSDATA!AN116","v":0},{"$f":"CRSDATA!AO116","v":0},{"$f":"CRSDATA!AQ116","v":0},{"$f":"CRSDATA!AS116","v":0},{"$f":"CRSDATA!BB116","v":0},null,"",{"$f":"IF(AND(AND(CRSDATA!C116<>\"\",CRSDATA!BK116<>\"\"),OR(CRSDATA!N116=421,CRSDATA!N116=422,CRSDATA!N116=4221,CRSDATA!N116=4222,CRSDATA!N116=423,CRSDATA!N116=424,CRSDATA!N116=425,CRSDATA!N116=431,CRSDATA!N116=433,CRSDATA!N116=434)),DATEDIF(CRSDATA!C116,CRSDATA!BK116,\"m\"),\"\")","v":""},{"$f":"CRSDATA!BA116","v":0},{"$f":"CRSDATA!BC116","v":0},{"$f":"IF(CRSDATA!BT116=\"\",\"\",CRSDATA!BT116)","v":""},{"$f":"CRSDATA!L116","v":0}]
[{"$f":"CRSDATA!A117","v":0},{"$f":"CRSDATA!C117","v":0},{"$f":"CRSDATA!D117","v":0},{"$f":"CRSDATA!F117","v":0},{"$f":"CRSDATA!E117","v":0},{"$f":"IF(CRSDATA!H117=3000,998,CRSDATA!H117)","v":0},{"$f":"CRSDATA!O117","v":0},{"$f":"CRSDATA!U117","v":0},{"$f":"IF(CRSDATA!V117=\"\",\"\",CRSDATA!V117)","v":""},{"$f":"IF(CRSDATA!W117=\"\",\"\",CRSDATA!W117)","v":""},{"$f":"key_row(CRSDATA!X117,CRSDATA!Y117,CRSDATA!AL117,CRSDATA!AK117,CRSDATA!AJ117,CRSDATA!AM117,CRSDATA!P117,CRSDATA!V117)","v":""},{"$f":"CRSDATA!P117","v":0},{"$f":"CRSDATA!J117","v":0},{"$f":"CRSDATA!I117","v":0},null,{"$f":"IF(LEFT(CRSDATA!N117,2)=\"A0\",\"A00\",IF(LEFT(CRSDATA!N117,3)=\"B02\",\"B02\",IF(LEFT(CRSDATA!N117,3)=\"B03\",\"B03\",IF(CRSDATA!N117=\"B04\",\"C01\",IF(CRSDATA!N117=\"H01\",\"H00\",IF(OR(CRSDATA!N117=\"H02\",CRSDATA!N117=\"H03\",CRSDATA!N117=\"H04\",CRSDATA!N117=\"H05\",CRSDATA!N117=\"H06\"),\"I01\",IF(CRSDATA!N117=\"\",\"\",CRSDATA!N117)))))))","v":""},{"$f":"IF(AND(LEN(CRSDATA!M117)=4,LEFT(CRSDATA!M117,3)=\"110\"),1100,IF(AND(LEN(CRSDATA!M117)=4,LEFT(CRSDATA!M117,3)=\"422\"),422,CRSDATA!M117))","v":0},{"$f":"IF(CRSDATA!L117=22,\"FA04\",\"\")","v":""},{"$f":"IF(CRSDATA!K117=8,\"FC02\",\"\")","v":""},{"$f":"_xlfn.IFS(OR(P117=\"A00\",P117=\"E01\",P117=\"F01\",AND(P117=\"\",A117<>0),Q117=510,Q117=520,AF117=60),1,P117=\"G01\",IF(AF117=10,21,22),OR(M117=41203,M117=41204),22,OR(AND(OR(P117=\"B02\",P117=\"B03\"),M117=41310),OR(P117=\"E02\",P117=\"I01\")),21,AND(OR(P117=\"B01\",P117=\"B03\",P117=\"C01\"),M117<>41310),IF(VLOOKUP(F117,recipient_country!AB:AD,3,FALSE)=10024,\"\",1),AND(P117=\"B02\",M117<>41310),IF(VLOOKUP(M117,channel_codes!J:P,7,FALSE)=0,\"\",VLOOKUP(M117,channel_codes!J:P,7,FALSE)),ISNUMBER(MATCH(P117,{\"D01\",\"D02\"},0)),IF(VLOOKUP(M117,channel_codes!J:P,7,FALSE)=1,1,IF(VLOOKUP(F117,recipient_country!AB:AD,3,FALSE)=10024,\"\",1)),OR(P117=\"H01\",AND(OR(ISNUMBER(SEARCH(\"41010\", L117)),ISNUMBER(SEARCH(\"41020\", L117)),ISNUMBER(SEARCH(\"41030\", L117)),ISNUMBER(SEARCH(\"41040\", L117)),ISNUMBER(SEARCH(\"41081\", L117))),F117=998)),22,F117=998,22,TRUE,\"\")","v":""},{"$f":"CRSDATA!AN117","v":0},{"$f":"CRSDATA!AO117","v":0},{"$f":"CRSDATA!AQ117","v":0},{"$f":"CRSDATA!AS117","v":0},{"$f":"CRSDATA!BB117","v":0},null,"",{"$f":"IF(AND(AND(CRSDATA!C117<>\"\",CRSDATA!BK117<>\"\"),OR(CRSDATA!N117=421,CRSDATA!N117=422,CRSDATA!N117=4221,CRSDATA!N117=4222,CRSDATA!N117=423,CRSDATA!N117=424,CRSDATA!N117=425,CRSDATA!N117=431,CRSDATA!N117=433,CRSDATA!N117=434)),DATEDIF(CRSDATA!C117,CRSDATA!BK117,\"m\"),\"\")","v":""},{"$f":"CRSDATA!BA117","v":0},{"$f":"CRSDATA!BC117","v":0},{"$f":"IF(CRSDATA!BT117=\"\",\"\",CRSDATA!BT117)","v":""},{"$f":"CRSDATA!L117","v":0}]
[{"$f":"CRSDATA!A118","v":0},{"$f":"CRSDATA!C118","v":0},{"$f":"CRSDATA!D118","v":0},{"$f":"CRSDATA!F118","v":0},{"$f":"CRSDATA!E118","v":0},{"$f":"IF(CRSDATA!H118=3000,998,CRSDATA!H118)","v":0},{"$f":"CRSDATA!O118","v":0},{"$f":"CRSDATA!U118","v":0},{"$f":"IF(CRSDATA!V118=\"\",\"\",CRSDATA!V118)","v":""},{"$f":"IF(CRSDATA!W118=\"\",\"\",CRSDATA!W118)","v":""},{"$f":"key_row(CRSDATA!X118,CRSDATA!Y118,CRSDATA!AL118,CRSDATA!AK118,CRSDATA!AJ118,CRSDATA!AM118,CRSDATA!P118,CRSDATA!V118)","v":""},{"$f":"CRSDATA!P118","v":0},{"$f":"CRSDATA!J118","v":0},{"$f":"CRSDATA!I118","v":0},null,{"$f":"IF(LEFT(CRSDATA!N118,2)=\"A0\",\"A00\",IF(LEFT(CRSDATA!N118,3)=\"B02\",\"B02\",IF(LEFT(CRSDATA!N118,3)=\"B03\",\"B03\",IF(CRSDATA!N118=\"B04\",\"C01\",IF(CRSDATA!N118=\"H01\",\"H00\",IF(OR(CRSDATA!N118=\"H02\",CRSDATA!N118=\"H03\",CRSDATA!N118=\"H04\",CRSDATA!N118=\"H05\",CRSDATA!N118=\"H06\"),\"I01\",IF(CRSDATA!N118=\"\",\"\",CRSDATA!N118)))))))","v":""},{"$f":"IF(AND(LEN(CRSDATA!M118)=4,LEFT(CRSDATA!M118,3)=\"110\"),1100,IF(AND(LEN(CRSDATA!M118)=4,LEFT(CRSDATA!M118,3)=\"422\"),422,CRSDATA!M118))","v":0},{"$f":"IF(CRSDATA!L118=22,\"FA04\",\"\")","v":""},{"$f":"IF(CRSDATA!K118=8,\"FC02\",\"\")","v":""},{"$f":"_xlfn.IFS(OR(P118=\"A00\",P118=\"E01\",P118=\"F01\",AND(P118=\"\",A118<>0),Q118=510,Q118=520,AF118=60),1,P118=\"G01\",IF(AF118=10,21,22),OR(M118=41203,M118=41204),22,OR(AND(OR(P118=\"B02\",P118=\"B03\"),M118=41310),OR(P118=\"E02\",P118=\"I01\")),21,AND(OR(P118=\"B01\",P118=\"B03\",P118=\"C01\"),M118<>41310),IF(VLOOKUP(F118,recipient_country!AB:AD,3,FALSE)=10024,\"\",1),AND(P118=\"B02\",M118<>41310),IF(VLOOKUP(M118,channel_codes!J:P,7,FALSE)=0,\"\",VLOOKUP(M118,channel_codes!J:P,7,FALSE)),ISNUMBER(MATCH(P118,{\"D01\",\"D02\"},0)),IF(VLOOKUP(M118,channel_codes!J:P,7,FALSE)=1,1,IF(VLOOKUP(F118,recipient_country!AB:AD,3,FALSE)=10024,\"\",1)),OR(P118=\"H01\",AND(OR(ISNUMBER(SEARCH(\"41010\", L118)),ISNUMBER(SEARCH(\"41020\", L118)),ISNUMBER(SEARCH(\"41030\", L118)),ISNUMBER(SEARCH(\"41040\", L118)),ISNUMBER(SEARCH(\"41081\", L118))),F118=998)),22,F118=998,22,TRUE,\"\")","v":""},{"$f":"CRSDATA!AN118","v":0},{"$f":"CRSDATA!AO118","v":0},{"$f":"CRSDATA!AQ118","v":0},{"$f":"CRSDATA!AS118","v":0},{"$f":"CRSDATA!BB118","v":0},null,"",{"$f":"IF(AND(AND(CRSDATA!C118<>\"\",CRSDATA!BK118<>\"\"),OR(CRSDATA!N118=421,CRSDATA!N118=422,CRSDATA!N118=4221,CRSDATA!N118=4222,CRSDATA!N118=423,CRSDATA!N118=424,CRSDATA!N118=425,CRSDATA!N118=431,CRSDATA!N118=433,CRSDATA!N118=434)),DATEDIF(CRSDATA!C118,CRSDATA!BK118,\"m\"),\"\")","v":""},{"$f":"CRSDATA!BA118","v":0},{"$f":"CRSDATA!BC118","v":0},{"$f":"IF(CRSDATA!BT118=\"\",\"\",CRSDATA!BT118)","v":""},{"$f":"CRSDATA!L118","v":0}]
[{"$f":"CRSDATA!A119","v":0},{"$f":"CRSDATA!C119","v":0},{"$f":"CRSDATA!D119","v":0},{"$f":"CRSDATA!F119","v":0},{"$f":"CRSDATA!E119","v":0},{"$f":"IF(CRSDATA!H119=3000,998,CRSDATA!H119)","v":0},{"$f":"CRSDATA!O119","v":0},{"$f":"CRSDATA!U119","v":0},{"$f":"IF(CRSDATA!V119=\"\",\"\",CRSDATA!V119)","v":""},{"$f":"IF(CRSDATA!W119=\"\",\"\",CRSDATA!W119)","v":""},{"$f":"key_row(CRSDATA!X119,CRSDATA!Y119,CRSDATA!AL119,CRSDATA!AK119,CRSDATA!AJ119,CRSDATA!AM119,CRSDATA!P119,CRSDATA!V119)","v":""},{"$f":"CRSDATA!P119","v":0},{"$f":"CRSDATA!J119","v":0},{"$f":"CRSDATA!I119","v":0},null,{"$f":"IF(LEFT(CRSDATA!N119,2)=\"A0\",\"A00\",IF(LEFT(CRSDATA!N119,3)=\"B02\",\"B02\",IF(LEFT(CRSDATA!N119,3)=\"B03\",\"B03\",IF(CRSDATA!N119=\"B04\",\"C01\",IF(CRSDATA!N119=\"H01\",\"H00\",IF(OR(CRSDATA!N119=\"H02\",CRSDATA!N119=\"H03\",CRSDATA!N119=\"H04\",CRSDATA!N119=\"H05\",CRSDATA!N119=\"H06\"),\"I01\",IF(CRSDATA!N119=\"\",\"\",CRSDATA!N119)))))))","v":""},{"$f":"IF(AND(LEN(CRSDATA!M119)=4,LEFT(CRSDATA!M119,3)=\"110\"),1100,IF(AND(LEN(CRSDATA!M119)=4,LEFT(CRSDATA!M119,3)=\"422\"),422,CRSDATA!M119))","v":0},{"$f":"IF(CRSDATA!L119=22,\"FA04\",\"\")","v":""},{"$f":"IF(CRSDATA!K119=8,\"FC02\",\"\")","v":""},{"$f":"_xlfn.IFS(OR(P119=\"A00\",P119=\"E01\",P119=\"F01\",AND(P119=\"\",A119<>0),Q119=510,Q119=520,AF119=60),1,P119=\"G01\",IF(AF119=10,21,22),OR(M119=41203,M119=41204),22,OR(AND(OR(P119=\"B02\",P119=\"B03\"),M119=41310),OR(P119=\"E02\",P119=\"I01\")),21,AND(OR(P119=\"B01\",P119=\"B03\",P119=\"C01\"),M119<>41310),IF(VLOOKUP(F119,recipient_country!AB:AD,3,FALSE)=10024,\"\",1),AND(P119=\"B02\",M119<>41310),IF(VLOOKUP(M119,channel_codes!J:P,7,FALSE)=0,\"\",VLOOKUP(M119,channel_codes!J:P,7,FALSE)),ISNUMBER(MATCH(P119,{\"D01\",\"D02\"},0)),IF(VLOOKUP(M119,channel_codes!J:P,7,FALSE)=1,1,IF(VLOOKUP(F119,recipient_country!AB:AD,3,FALSE)=10024,\"\",1)),OR(P119=\"H01\",AND(OR(ISNUMBER(SEARCH(\"41010\", L119)),ISNUMBER(SEARCH(\"41020\", L119)),ISNUMBER(SEARCH(\"41030\", L119)),ISNUMBER(SEARCH(\"41040\", L119)),ISNUMBER(SEARCH(\"41081\", L119))),F119=998)),22,F119=998,22,TRUE,\"\")","v":""},{"$f":"CRSDATA!AN119","v":0},{"$f":"CRSDATA!AO119","v":0},{"$f":"CRSDATA!AQ119","v":0},{"$f":"CRSDATA!AS119","v":0},{"$f":"CRSDATA!BB119","v":0},null,"",{"$f":"IF(AND(AND(CRSDATA!C119<>\"\",CRSDATA!BK119<>\"\"),OR(CRSDATA!N119=421,CRSDATA!N119=422,CRSDATA!N119=4221,CRSDATA!N119=4222,CRSDATA!N119=423,CRSDATA!N119=424,CRSDATA!N119=425,CRSDATA!N119=431,CRSDATA!N119=433,CRSDATA!N119=434)),DATEDIF(CRSDATA!C119,CRSDATA!BK119,\"m\"),\"\")","v":""},{"$f":"CRSDATA!BA119","v":0},{"$f":"CRSDATA!BC119","v":0},{"$f":"IF(CRSDATA!BT119=\"\",\"\",CRSDATA!BT119)","v":""},{"$f":"CRSDATA!L119","v":0}]
[{"$f":"CRSDATA!A120","v":0},{"$f":"CRSDATA!C120","v":0},{"$f":"CRSDATA!D120","v":0},{"$f":"CRSDATA!F120","v":0},{"$f":"CRSDATA!E120","v":0},{"$f":"IF(CRSDATA!H120=3000,998,CRSDATA!H120)","v":0},{"$f":"CRSDATA!O120","v":0},{"$f":"CRSDATA!U120","v":0},{"$f":"IF(CRSDATA!V120=\"\",\"\",CRSDATA!V120)","v":""},{"$f":"IF(CRSDATA!W120=\"\",\"\",CRSDATA!W120)","v":""},{"$f":"key_row(CRSDATA!X120,CRSDATA!Y120,CRSDATA!AL120,CRSDATA!AK120,CRSDATA!AJ120,CRSDATA!AM120,CRSDATA!P120,CRSDATA!V120)","v":""},{"$f":"CRSDATA!P120","v":0},{"$f":"CRSDATA!J120","v":0},{"$f":"CRSDATA!I120","v":0},null,{"$f":"IF(LEFT(CRSDATA!N120,2)=\"A0\",\"A00\",IF(LEFT(CRSDATA!N120,3)=\"B02\",\"B02\",IF(LEFT(CRSDATA!N120,3)=\"B03\",\"B03\",IF(CRSDATA!N120=\"B04\",\"C01\",IF(CRSDATA!N120=\"H01\",\"H00\",IF(OR(CRSDATA!N120=\"H02\",CRSDATA!N120=\"H03\",CRSDATA!N120=\"H04\",CRSDATA!N120=\"H05\",CRSDATA!N120=\"H06\"),\"I01\",IF(CRSDATA!N120=\"\",\"\",CRSDATA!N120)))))))","v":""},{"$f":"IF(AND(LEN(CRSDATA!M120)=4,LEFT(CRSDATA!M120,3)=\"110\"),1100,IF(AND(LEN(CRSDATA!M120)=4,LEFT(CRSDATA!M120,3)=\"422\"),422,CRSDATA!M120))","v":0},{"$f":"IF(CRSDATA!L120=22,\"FA04\",\"\")","v":""},{"$f":"IF(CRSDATA!K120=8,\"FC02\",\"\")","v":""},{"$f":"_xlfn.IFS(OR(P120=\"A00\",P120=\"E01\",P120=\"F01\",AND(P120=\"\",A120<>0),Q120=510,Q120=520,AF120=60),1,P120=\"G01\",IF(AF120=10,21,22),OR(M120=41203,M120=41204),22,OR(AND(OR(P120=\"B02\",P120=\"B03\"),M120=41310),OR(P120=\"E02\",P120=\"I01\")),21,AND(OR(P120=\"B01\",P120=\"B03\",P120=\"C01\"),M120<>41310),IF(VLOOKUP(F120,recipient_country!AB:AD,3,FALSE)=10024,\"\",1),AND(P120=\"B02\",M120<>41310),IF(VLOOKUP(M120,channel_codes!J:P,7,FALSE)=0,\"\",VLOOKUP(M120,channel_codes!J:P,7,FALSE)),ISNUMBER(MATCH(P120,{\"D01\",\"D02\"},0)),IF(VLOOKUP(M120,channel_codes!J:P,7,FALSE)=1,1,IF(VLOOKUP(F120,recipient_country!AB:AD,3,FALSE)=10024,\"\",1)),OR(P120=\"H01\",AND(OR(ISNUMBER(SEARCH(\"41010\", L120)),ISNUMBER(SEARCH(\"41020\", L120)),ISNUMBER(SEARCH(\"41030\", L120)),ISNUMBER(SEARCH(\"41040\", L120)),ISNUMBER(SEARCH(\"41081\", L120))),F120=998)),22,F120=998,22,TRUE,\"\")","v":""},{"$f":"CRSDATA!AN120","v":0},{"$f":"CRSDATA!AO120","v":0},{"$f":"CRSDATA!AQ120","v":0},{"$f":"CRSDATA!AS120","v":0},{"$f":"CRSDATA!BB120","v":0},null,"",{"$f":"IF(AND(AND(CRSDATA!C120<>\"\",CRSDATA!BK120<>\"\"),OR(CRSDATA!N120=421,CRSDATA!N120=422,CRSDATA!N120=4221,CRSDATA!N120=4222,CRSDATA!N120=423,CRSDATA!N120=424,CRSDATA!N120=425,CRSDATA!N120=431,CRSDATA!N120=433,CRSDATA!N120=434)),DATEDIF(CRSDATA!C120,CRSDATA!BK120,\"m\"),\"\")","v":""},{"$f":"CRSDATA!BA120","v":0},{"$f":"CRSDATA!BC120","v":0},{"$f":"IF(CRSDATA!BT120=\"\",\"\",CRSDATA!BT120)","v":""},{"$f":"CRSDATA!L120","v":0}]
[{"$f":"CRSDATA!A121","v":0},{"$f":"CRSDATA!C121","v":0},{"$f":"CRSDATA!D121","v":0},{"$f":"CRSDATA!F121","v":0},{"$f":"CRSDATA!E121","v":0},{"$f":"IF(CRSDATA!H121=3000,998,CRSDATA!H121)","v":0},{"$f":"CRSDATA!O121","v":0},{"$f":"CRSDATA!U121","v":0},{"$f":"IF(CRSDATA!V121=\"\",\"\",CRSDATA!V121)","v":""},{"$f":"IF(CRSDATA!W121=\"\",\"\",CRSDATA!W121)","v":""},{"$f":"key_row(CRSDATA!X121,CRSDATA!Y121,CRSDATA!AL121,CRSDATA!AK121,CRSDATA!AJ121,CRSDATA!AM121,CRSDATA!P121,CRSDATA!V121)","v":""},{"$f":"CRSDATA!P121","v":0},{"$f":"CRSDATA!J121","v":0},{"$f":"CRSDATA!I121","v":0},null,{"$f":"IF(LEFT(CRSDATA!N121,2)=\"A0\",\"A00\",IF(LEFT(CRSDATA!N121,3)=\"B02\",\"B02\",IF(LEFT(CRSDATA!N121,3)=\"B03\",\"B03\",IF(CRSDATA!N121=\"B04\",\"C01\",IF(CRSDATA!N121=\"H01\",\"H00\",IF(OR(CRSDATA!N121=\"H02\",CRSDATA!N121=\"H03\",CRSDATA!N121=\"H04\",CRSDATA!N121=\"H05\",CRSDATA!N121=\"H06\"),\"I01\",IF(CRSDATA!N121=\"\",\"\",CRSDATA!N121)))))))","v":""},{"$f":"IF(AND(LEN(CRSDATA!M121)=4,LEFT(CRSDATA!M121,3)=\"110\"),1100,IF(AND(LEN(CRSDATA!M121)=4,LEFT(CRSDATA!M121,3)=\"422\"),422,CRSDATA!M121))","v":0},{"$f":"IF(CRSDATA!L121=22,\"FA04\",\"\")","v":""},{"$f":"IF(CRSDATA!K121=8,\"FC02\",\"\")","v":""},{"$f":"_xlfn.IFS(OR(P121=\"A00\",P121=\"E01\",P121=\"F01\",AND(P121=\"\",A121<>0),Q121=510,Q121=520,AF121=60),1,P121=\"G01\",IF(AF121=10,21,22),OR(M121=41203,M121=41204),22,OR(AND(OR(P121=\"B02\",P121=\"B03\"),M121=41310),OR(P121=\"E02\",P121=\"I01\")),21,AND(OR(P121=\"B01\",P121=\"B03\",P121=\"C01\"),M121<>41310),IF(VLOOKUP(F121,recipient_country!AB:AD,3,FALSE)=10024,\"\",1),AND(P121=\"B02\",M121<>41310),IF(VLOOKUP(M121,channel_codes!J:P,7,FALSE)=0,\"\",VLOOKUP(M121,channel_codes!J:P,7,FALSE)),ISNUMBER(MATCH(P121,{\"D01\",\"D02\"},0)),IF(VLOOKUP(M121,channel_codes!J:P,7,FALSE)=1,1,IF(VLOOKUP(F121,recipient_country!AB:AD,3,FALSE)=10024,\"\",1)),OR(P121=\"H01\",AND(OR(ISNUMBER(SEARCH(\"41010\", L121)),ISNUMBER(SEARCH(\"41020\", L121)),ISNUMBER(SEARCH(\"41030\", L121)),ISNUMBER(SEARCH(\"41040\", L121)),ISNUMBER(SEARCH(\"41081\", L121))),F121=998)),22,F121=998,22,TRUE,\"\")","v":""},{"$f":"CRSDATA!AN121","v":0},{"$f":"CRSDATA!AO121","v":0},{"$f":"CRSDATA!AQ121","v":0},{"$f":"CRSDATA!AS121","v":0},{"$f":"CRSDATA!BB121","v":0},null,"",{"$f":"IF(AND(AND(CRSDATA!C121<>\"\",CRSDATA!BK121<>\"\"),OR(CRSDATA!N121=421,CRSDATA!N121=422,CRSDATA!N121=4221,CRSDATA!N121=4222,CRSDATA!N121=423,CRSDATA!N121=424,CRSDATA!N121=425,CRSDATA!N121=431,CRSDATA!N121=433,CRSDATA!N121=434)),DATEDIF(CRSDATA!C121,CRSDATA!BK121,\"m\"),\"\")","v":""},{"$f":"CRSDATA!BA121","v":0},{"$f":"CRSDATA!BC121","v":0},{"$f":"IF(CRSDATA!BT121=\"\",\"\",CRSDATA!BT121)","v":""},{"$f":"CRSDATA!L121","v":0}]
[{"$f":"CRSDATA!A122","v":0},{"$f":"CRSDATA!C122","v":0},{"$f":"CRSDATA!D122","v":0},{"$f":"CRSDATA!F122","v":0},{"$f":"CRSDATA!E122","v":0},{"$f":"IF(CRSDATA!H122=3000,998,CRSDATA!H122)","v":0},{"$f":"CRSDATA!O122","v":0},{"$f":"CRSDATA!U122","v":0},{"$f":"IF(CRSDATA!V122=\"\",\"\",CRSDATA!V122)","v":""},{"$f":"IF(CRSDATA!W122=\"\",\"\",CRSDATA!W122)","v":""},{"$f":"key_row(CRSDATA!X122,CRSDATA!Y122,CRSDATA!AL122,CRSDATA!AK122,CRSDATA!AJ122,CRSDATA!AM122,CRSDATA!P122,CRSDATA!V122)","v":""},{"$f":"CRSDATA!P122","v":0},{"$f":"CRSDATA!J122","v":0},{"$f":"CRSDATA!I122","v":0},null,{"$f":"IF(LEFT(CRSDATA!N122,2)=\"A0\",\"A00\",IF(LEFT(CRSDATA!N122,3)=\"B02\",\"B02\",IF(LEFT(CRSDATA!N122,3)=\"B03\",\"B03\",IF(CRSDATA!N122=\"B04\",\"C01\",IF(CRSDATA!N122=\"H01\",\"H00\",IF(OR(CRSDATA!N122=\"H02\",CRSDATA!N122=\"H03\",CRSDATA!N122=\"H04\",CRSDATA!N122=\"H05\",CRSDATA!N122=\"H06\"),\"I01\",IF(CRSDATA!N122=\"\",\"\",CRSDATA!N122)))))))","v":""},{"$f":"IF(AND(LEN(CRSDATA!M122)=4,LEFT(CRSDATA!M122,3)=\"110\"),1100,IF(AND(LEN(CRSDATA!M122)=4,LEFT(CRSDATA!M122,3)=\"422\"),422,CRSDATA!M122))","v":0},{"$f":"IF(CRSDATA!L122=22,\"FA04\",\"\")","v":""},{"$f":"IF(CRSDATA!K122=8,\"FC02\",\"\")","v":""},{"$f":"_xlfn.IFS(OR(P122=\"A00\",P122=\"E01\",P122=\"F01\",AND(P122=\"\",A122<>0),Q122=510,Q122=520,AF122=60),1,P122=\"G01\",IF(AF122=10,21,22),OR(M122=41203,M122=41204),22,OR(AND(OR(P122=\"B02\",P122=\"B03\"),M122=41310),OR(P122=\"E02\",P122=\"I01\")),21,AND(OR(P122=\"B01\",P122=\"B03\",P122=\"C01\"),M122<>41310),IF(VLOOKUP(F122,recipient_country!AB:AD,3,FALSE)=10024,\"\",1),AND(P122=\"B02\",M122<>41310),IF(VLOOKUP(M122,channel_codes!J:P,7,FALSE)=0,\"\",VLOOKUP(M122,channel_codes!J:P,7,FALSE)),ISNUMBER(MATCH(P122,{\"D01\",\"D02\"},0)),IF(VLOOKUP(M122,channel_codes!J:P,7,FALSE)=1,1,IF(VLOOKUP(F122,recipient_country!AB:AD,3,FALSE)=10024,\"\",1)),OR(P122=\"H01\",AND(OR(ISNUMBER(SEARCH(\"41010\", L122)),ISNUMBER(SEARCH(\"41020\", L122)),ISNUMBER(SEARCH(\"41030\", L122)),ISNUMBER(SEARCH(\"41040\", L122)),ISNUMBER(SEARCH(\"41081\", L122))),F122=998)),22,F122=998,22,TRUE,\"\")","v":""},{"$f":"CRSDATA!AN122","v":0},{"$f":"CRSDATA!AO122","v":0},{"$f":"CRSDATA!AQ122","v":0},{"$f":"CRSDATA!AS122","v":0},{"$f":"CRSDATA!BB122","v":0},null,"",{"$f":"IF(AND(AND(CRSDATA!C122<>\"\",CRSDATA!BK122<>\"\"),OR(CRSDATA!N122=421,CRSDATA!N122=422,CRSDATA!N122=4221,CRSDATA!N122=4222,CRSDATA!N122=423,CRSDATA!N122=424,CRSDATA!N122=425,CRSDATA!N122=431,CRSDATA!N122=433,CRSDATA!N122=434)),DATEDIF(CRSDATA!C122,CRSDATA!BK122,\"m\"),\"\")","v":""},{"$f":"CRSDATA!BA122","v":0},{"$f":"CRSDATA!BC122","v":0},{"$f":"IF(CRSDATA!BT122=\"\",\"\",CRSDATA!BT122)","v":""},{"$f":"CRSDATA!L122","v":0}]
[{"$f":"CRSDATA!A123","v":0},{"$f":"CRSDATA!C123","v":0},{"$f":"CRSDATA!D123","v":0},{"$f":"CRSDATA!F123","v":0},{"$f":"CRSDATA!E123","v":0},{"$f":"IF(CRSDATA!H123=3000,998,CRSDATA!H123)","v":0},{"$f":"CRSDATA!O123","v":0},{"$f":"CRSDATA!U123","v":0},{"$f":"IF(CRSDATA!V123=\"\",\"\",CRSDATA!V123)","v":""},{"$f":"IF(CRSDATA!W123=\"\",\"\",CRSDATA!W123)","v":""},{"$f":"key_row(CRSDATA!X123,CRSDATA!Y123,CRSDATA!AL123,CRSDATA!AK123,CRSDATA!AJ123,CRSDATA!AM123,CRSDATA!P123,CRSDATA!V123)","v":""},{"$f":"CRSDATA!P123","v":0},{"$f":"CRSDATA!J123","v":0},{"$f":"CRSDATA!I123","v":0},null,{"$f":"IF(LEFT(CRSDATA!N123,2)=\"A0\",\"A00\",IF(LEFT(CRSDATA!N123,3)=\"B02\",\"B02\",IF(LEFT(CRSDATA!N123,3)=\"B03\",\"B03\",IF(CRSDATA!N123=\"B04\",\"C01\",IF(CRSDATA!N123=\"H01\",\"H00\",IF(OR(CRSDATA!N123=\"H02\",CRSDATA!N123=\"H03\",CRSDATA!N123=\"H04\",CRSDATA!N123=\"H05\",CRSDATA!N123=\"H06\"),\"I01\",IF(CRSDATA!N123=\"\",\"\",CRSDATA!N123)))))))","v":""},{"$f":"IF(AND(LEN(CRSDATA!M123)=4,LEFT(CRSDATA!M123,3)=\"110\"),1100,IF(AND(LEN(CRSDATA!M123)=4,LEFT(CRSDATA!M123,3)=\"422\"),422,CRSDATA!M123))","v":0},{"$f":"IF(CRSDATA!L123=22,\"FA04\",\"\")","v":""},{"$f":"IF(CRSDATA!K123=8,\"FC02\",\"\")","v":""},{"$f":"_xlfn.IFS(OR(P123=\"A00\",P123=\"E01\",P123=\"F01\",AND(P123=\"\",A123<>0),Q123=510,Q123=520,AF123=60),1,P123=\"G01\",IF(AF123=10,21,22),OR(M123=41203,M123=41204),22,OR(AND(OR(P123=\"B02\",P123=\"B03\"),M123=41310),OR(P123=\"E02\",P123=\"I01\")),21,AND(OR(P123=\"B01\",P123=\"B03\",P123=\"C01\"),M123<>41310),IF(VLOOKUP(F123,recipient_country!AB:AD,3,FALSE)=10024,\"\",1),AND(P123=\"B02\",M123<>41310),IF(VLOOKUP(M123,channel_codes!J:P,7,FALSE)=0,\"\",VLOOKUP(M123,channel_codes!J:P,7,FALSE)),ISNUMBER(MATCH(P123,{\"D01\",\"D02\"},0)),IF(VLOOKUP(M123,channel_codes!J:P,7,FALSE)=1,1,IF(VLOOKUP(F123,recipient_country!AB:AD,3,FALSE)=10024,\"\",1)),OR(P123=\"H01\",AND(OR(ISNUMBER(SEARCH(\"41010\", L123)),ISNUMBER(SEARCH(\"41020\", L123)),ISNUMBER(SEARCH(\"41030\", L123)),ISNUMBER(SEARCH(\"41040\", L123)),ISNUMBER(SEARCH(\"41081\", L123))),F123=998)),22,F123=998,22,TRUE,\"\")","v":""},{"$f":"CRSDATA!AN123","v":0},{"$f":"CRSDATA!AO123","v":0},{"$f":"CRSDATA!AQ123","v":0},{"$f":"CRSDATA!AS123","v":0},{"$f":"CRSDATA!BB123","v":0},null,"",{"$f":"IF(AND(AND(CRSDATA!C123<>\"\",CRSDATA!BK123<>\"\"),OR(CRSDATA!N123=421,CRSDATA!N123=422,CRSDATA!N123=4221,CRSDATA!N123=4222,CRSDATA!N123=423,CRSDATA!N123=424,CRSDATA!N123=425,CRSDATA!N123=431,CRSDATA!N123=433,CRSDATA!N123=434)),DATEDIF(CRSDATA!C123,CRSDATA!BK123,\"m\"),\"\")","v":""},{"$f":"CRSDATA!BA123","v":0},{"$f":"CRSDATA!BC123","v":0},{"$f":"IF(CRSDATA!BT123=\"\",\"\",CRSDATA!BT123)","v":""},{"$f":"CRSDATA!L123","v":0}]
[{"$f":"CRSDATA!A124","v":0},{"$f":"CRSDATA!C124","v":0},{"$f":"CRSDATA!D124","v":0},{"$f":"CRSDATA!F124","v":0},{"$f":"CRSDATA!E124","v":0},{"$f":"IF(CRSDATA!H124=3000,998,CRSDATA!H124)","v":0},{"$f":"CRSDATA!O124","v":0},{"$f":"CRSDATA!U124","v":0},{"$f":"IF(CRSDATA!V124=\"\",\"\",CRSDATA!V124)","v":""},{"$f":"IF(CRSDATA!W124=\"\",\"\",CRSDATA!W124)","v":""},{"$f":"key_row(CRSDATA!X124,CRSDATA!Y124,CRSDATA!AL124,CRSDATA!AK124,CRSDATA!AJ124,CRSDATA!AM124,CRSDATA!P124,CRSDATA!V124)","v":""},{"$f":"CRSDATA!P124","v":0},{"$f":"CRSDATA!J124","v":0},{"$f":"CRSDATA!I124","v":0},null,{"$f":"IF(LEFT(CRSDATA!N124,2)=\"A0\",\"A00\",IF(LEFT(CRSDATA!N124,3)=\"B02\",\"B02\",IF(LEFT(CRSDATA!N124,3)=\"B03\",\"B03\",IF(CRSDATA!N124=\"B04\",\"C01\",IF(CRSDATA!N124=\"H01\",\"H00\",IF(OR(CRSDATA!N124=\"H02\",CRSDATA!N124=\"H03\",CRSDATA!N124=\"H04\",CRSDATA!N124=\"H05\",CRSDATA!N124=\"H06\"),\"I01\",IF(CRSDATA!N124=\"\",\"\",CRSDATA!N124)))))))","v":""},{"$f":"IF(AND(LEN(CRSDATA!M124)=4,LEFT(CRSDATA!M124,3)=\"110\"),1100,IF(AND(LEN(CRSDATA!M124)=4,LEFT(CRSDATA!M124,3)=\"422\"),422,CRSDATA!M124))","v":0},{"$f":"IF(CRSDATA!L124=22,\"FA04\",\"\")","v":""},{"$f":"IF(CRSDATA!K124=8,\"FC02\",\"\")","v":""},{"$f":"_xlfn.IFS(OR(P124=\"A00\",P124=\"E01\",P124=\"F01\",AND(P124=\"\",A124<>0),Q124=510,Q124=520,AF124=60),1,P124=\"G01\",IF(AF124=10,21,22),OR(M124=41203,M124=41204),22,OR(AND(OR(P124=\"B02\",P124=\"B03\"),M124=41310),OR(P124=\"E02\",P124=\"I01\")),21,AND(OR(P124=\"B01\",P124=\"B03\",P124=\"C01\"),M124<>41310),IF(VLOOKUP(F124,recipient_country!AB:AD,3,FALSE)=10024,\"\",1),AND(P124=\"B02\",M124<>41310),IF(VLOOKUP(M124,channel_codes!J:P,7,FALSE)=0,\"\",VLOOKUP(M124,channel_codes!J:P,7,FALSE)),ISNUMBER(MATCH(P124,{\"D01\",\"D02\"},0)),IF(VLOOKUP(M124,channel_codes!J:P,7,FALSE)=1,1,IF(VLOOKUP(F124,recipient_country!AB:AD,3,FALSE)=10024,\"\",1)),OR(P124=\"H01\",AND(OR(ISNUMBER(SEARCH(\"41010\", L124)),ISNUMBER(SEARCH(\"41020\", L124)),ISNUMBER(SEARCH(\"41030\", L124)),ISNUMBER(SEARCH(\"41040\", L124)),ISNUMBER(SEARCH(\"41081\", L124))),F124=998)),22,F124=998,22,TRUE,\"\")","v":""},{"$f":"CRSDATA!AN124","v":0},{"$f":"CRSDATA!AO124","v":0},{"$f":"CRSDATA!AQ124","v":0},{"$f":"CRSDATA!AS124","v":0},{"$f":"CRSDATA!BB124","v":0},null,"",{"$f":"IF(AND(AND(CRSDATA!C124<>\"\",CRSDATA!BK124<>\"\"),OR(CRSDATA!N124=421,CRSDATA!N124=422,CRSDATA!N124=4221,CRSDATA!N124=4222,CRSDATA!N124=423,CRSDATA!N124=424,CRSDATA!N124=425,CRSDATA!N124=431,CRSDATA!N124=433,CRSDATA!N124=434)),DATEDIF(CRSDATA!C124,CRSDATA!BK124,\"m\"),\"\")","v":""},{"$f":"CRSDATA!BA124","v":0},{"$f":"CRSDATA!BC124","v":0},{"$f":"IF(CRSDATA!BT124=\"\",\"\",CRSDATA!BT124)","v":""},{"$f":"CRSDATA!L124","v":0}]
[{"$f":"CRSDATA!A125","v":0},{"$f":"CRSDATA!C125","v":0},{"$f":"CRSDATA!D125","v":0},{"$f":"CRSDATA!F125","v":0},{"$f":"CRSDATA!E125","v":0},{"$f":"IF(CRSDATA!H125=3000,998,CRSDATA!H125)","v":0},{"$f":"CRSDATA!O125","v":0},{"$f":"CRSDATA!U125","v":0},{"$f":"IF(CRSDATA!V125=\"\",\"\",CRSDATA!V125)","v":""},{"$f":"IF(CRSDATA!W125=\"\",\"\",CRSDATA!W125)","v":""},{"$f":"key_row(CRSDATA!X125,CRSDATA!Y125,CRSDATA!AL125,CRSDATA!AK125,CRSDATA!AJ125,CRSDATA!AM125,CRSDATA!P125,CRSDATA!V125)","v":""},{"$f":"CRSDATA!P125","v":0},{"$f":"CRSDATA!J125","v":0},{"$f":"CRSDATA!I125","v":0},null,{"$f":"IF(LEFT(CRSDATA!N125,2)=\"A0\",\"A00\",IF(LEFT(CRSDATA!N125,3)=\"B02\",\"B02\",IF(LEFT(CRSDATA!N125,3)=\"B03\",\"B03\",IF(CRSDATA!N125=\"B04\",\"C01\",IF(CRSDATA!N125=\"H01\",\"H00\",IF(OR(CRSDATA!N125=\"H02\",CRSDATA!N125=\"H03\",CRSDATA!N125=\"H04\",CRSDATA!N125=\"H05\",CRSDATA!N125=\"H06\"),\"I01\",IF(CRSDATA!N125=\"\",\"\",CRSDATA!N125)))))))","v":""},{"$f":"IF(AND(LEN(CRSDATA!M125)=4,LEFT(CRSDATA!M125,3)=\"110\"),1100,IF(AND(LEN(CRSDATA!M125)=4,LEFT(CRSDATA!M125,3)=\"422\"),422,CRSDATA!M125))","v":0},{"$f":"IF(CRSDATA!L125=22,\"FA04\",\"\")","v":""},{"$f":"IF(CRSDATA!K125=8,\"FC02\",\"\")","v":""},{"$f":"_xlfn.IFS(OR(P125=\"A00\",P125=\"E01\",P125=\"F01\",AND(P125=\"\",A125<>0),Q125=510,Q125=520,AF125=60),1,P125=\"G01\",IF(AF125=10,21,22),OR(M125=41203,M125=41204),22,OR(AND(OR(P125=\"B02\",P125=\"B03\"),M125=41310),OR(P125=\"E02\",P125=\"I01\")),21,AND(OR(P125=\"B01\",P125=\"B03\",P125=\"C01\"),M125<>41310),IF(VLOOKUP(F125,recipient_country!AB:AD,3,FALSE)=10024,\"\",1),AND(P125=\"B02\",M125<>41310),IF(VLOOKUP(M125,channel_codes!J:P,7,FALSE)=0,\"\",VLOOKUP(M125,channel_codes!J:P,7,FALSE)),ISNUMBER(MATCH(P125,{\"D01\",\"D02\"},0)),IF(VLOOKUP(M125,channel_codes!J:P,7,FALSE)=1,1,IF(VLOOKUP(F125,recipient_country!AB:AD,3,FALSE)=10024,\"\",1)),OR(P125=\"H01\",AND(OR(ISNUMBER(SEARCH(\"41010\", L125)),ISNUMBER(SEARCH(\"41020\", L125)),ISNUMBER(SEARCH(\"41030\", L125)),ISNUMBER(SEARCH(\"41040\", L125)),ISNUMBER(SEARCH(\"41081\", L125))),F125=998)),22,F125=998,22,TRUE,\"\")","v":""},{"$f":"CRSDATA!AN125","v":0},{"$f":"CRSDATA!AO125","v":0},{"$f":"CRSDATA!AQ125","v":0},{"$f":"CRSDATA!AS125","v":0},{"$f":"CRSDATA!BB125","v":0},null,"",{"$f":"IF(AND(AND(CRSDATA!C125<>\"\",CRSDATA!BK125<>\"\"),OR(CRSDATA!N125=421,CRSDATA!N125=422,CRSDATA!N125=4221,CRSDATA!N125=4222,CRSDATA!N125=423,CRSDATA!N125=424,CRSDATA!N125=425,CRSDATA!N125=431,CRSDATA!N125=433,CRSDATA!N125=434)),DATEDIF(CRSDATA!C125,CRSDATA!BK125,\"m\"),\"\")","v":""},{"$f":"CRSDATA!BA125","v":0},{"$f":"CRSDATA!BC125","v":0},{"$f":"IF(CRSDATA!BT125=\"\",\"\",CRSDATA!BT125)","v":""},{"$f":"CRSDATA!L125","v":0}]
[{"$f":"CRSDATA!A126","v":0},{"$f":"CRSDATA!C126","v":0},{"$f":"CRSDATA!D126","v":0},{"$f":"CRSDATA!F126","v":0},{"$f":"CRSDATA!E126","v":0},{"$f":"IF(CRSDATA!H126=3000,998,CRSDATA!H126)","v":0},{"$f":"CRSDATA!O126","v":0},{"$f":"CRSDATA!U126","v":0},{"$f":"IF(CRSDATA!V126=\"\",\"\",CRSDATA!V126)","v":""},{"$f":"IF(CRSDATA!W126=\"\",\"\",CRSDATA!W126)","v":""},{"$f":"key_row(CRSDATA!X126,CRSDATA!Y126,CRSDATA!AL126,CRSDATA!AK126,CRSDATA!AJ126,CRSDATA!AM126,CRSDATA!P126,CRSDATA!V126)","v":""},{"$f":"CRSDATA!P126","v":0},{"$f":"CRSDATA!J126","v":0},{"$f":"CRSDATA!I126","v":0},null,{"$f":"IF(LEFT(CRSDATA!N126,2)=\"A0\",\"A00\",IF(LEFT(CRSDATA!N126,3)=\"B02\",\"B02\",IF(LEFT(CRSDATA!N126,3)=\"B03\",\"B03\",IF(CRSDATA!N126=\"B04\",\"C01\",IF(CRSDATA!N126=\"H01\",\"H00\",IF(OR(CRSDATA!N126=\"H02\",CRSDATA!N126=\"H03\",CRSDATA!N126=\"H04\",CRSDATA!N126=\"H05\",CRSDATA!N126=\"H06\"),\"I01\",IF(CRSDATA!N126=\"\",\"\",CRSDATA!N126)))))))","v":""},{"$f":"IF(AND(LEN(CRSDATA!M126)=4,LEFT(CRSDATA!M126,3)=\"110\"),1100,IF(AND(LEN(CRSDATA!M126)=4,LEFT(CRSDATA!M126,3)=\"422\"),422,CRSDATA!M126))","v":0},{"$f":"IF(CRSDATA!L126=22,\"FA04\",\"\")","v":""},{"$f":"IF(CRSDATA!K126=8,\"FC02\",\"\")","v":""},{"$f":"_xlfn.IFS(OR(P126=\"A00\",P126=\"E01\",P126=\"F01\",AND(P126=\"\",A126<>0),Q126=510,Q126=520,AF126=60),1,P126=\"G01\",IF(AF126=10,21,22),OR(M126=41203,M126=41204),22,OR(AND(OR(P126=\"B02\",P126=\"B03\"),M126=41310),OR(P126=\"E02\",P126=\"I01\")),21,AND(OR(P126=\"B01\",P126=\"B03\",P126=\"C01\"),M126<>41310),IF(VLOOKUP(F126,recipient_country!AB:AD,3,FALSE)=10024,\"\",1),AND(P126=\"B02\",M126<>41310),IF(VLOOKUP(M126,channel_codes!J:P,7,FALSE)=0,\"\",VLOOKUP(M126,channel_codes!J:P,7,FALSE)),ISNUMBER(MATCH(P126,{\"D01\",\"D02\"},0)),IF(VLOOKUP(M126,channel_codes!J:P,7,FALSE)=1,1,IF(VLOOKUP(F126,recipient_country!AB:AD,3,FALSE)=10024,\"\",1)),OR(P126=\"H01\",AND(OR(ISNUMBER(SEARCH(\"41010\", L126)),ISNUMBER(SEARCH(\"41020\", L126)),ISNUMBER(SEARCH(\"41030\", L126)),ISNUMBER(SEARCH(\"41040\", L126)),ISNUMBER(SEARCH(\"41081\", L126))),F126=998)),22,F126=998,22,TRUE,\"\")","v":""},{"$f":"CRSDATA!AN126","v":0},{"$f":"CRSDATA!AO126","v":0},{"$f":"CRSDATA!AQ126","v":0},{"$f":"CRSDATA!AS126","v":0},{"$f":"CRSDATA!BB126","v":0},null,"",{"$f":"IF(AND(AND(CRSDATA!C126<>\"\",CRSDATA!BK126<>\"\"),OR(CRSDATA!N126=421,CRSDATA!N126=422,CRSDATA!N126=4221,CRSDATA!N126=4222,CRSDATA!N126=423,CRSDATA!N126=424,CRSDATA!N126=425,CRSDATA!N126=431,CRSDATA!N126=433,CRSDATA!N126=434)),DATEDIF(CRSDATA!C126,CRSDATA!BK126,\"m\"),\"\")","v":""},{"$f":"CRSDATA!BA126","v":0},{"$f":"CRSDATA!BC126","v":0},{"$f":"IF(CRSDATA!BT126=\"\",\"\",CRSDATA!BT126)","v":""},{"$f":"CRSDATA!L126","v":0}]
[{"$f":"CRSDATA!A127","v":0},{"$f":"CRSDATA!C127","v":0},{"$f":"CRSDATA!D127","v":0},{"$f":"CRSDATA!F127","v":0},{"$f":"CRSDATA!E127","v":0},{"$f":"IF(CRSDATA!H127=3000,998,CRSDATA!H127)","v":0},{"$f":"CRSDATA!O127","v":0},{"$f":"CRSDATA!U127","v":0},{"$f":"IF(CRSDATA!V127=\"\",\"\",CRSDATA!V127)","v":""},{"$f":"IF(CRSDATA!W127=\"\",\"\",CRSDATA!W127)","v":""},{"$f":"key_row(CRSDATA!X127,CRSDATA!Y127,CRSDATA!AL127,CRSDATA!AK127,CRSDATA!AJ127,CRSDATA!AM127,CRSDATA!P127,CRSDATA!V127)","v":""},{"$f":"CRSDATA!P127","v":0},{"$f":"CRSDATA!J127","v":0},{"$f":"CRSDATA!I127","v":0},null,{"$f":"IF(LEFT(CRSDATA!N127,2)=\"A0\",\"A00\",IF(LEFT(CRSDATA!N127,3)=\"B02\",\"B02\",IF(LEFT(CRSDATA!N127,3)=\"B03\",\"B03\",IF(CRSDATA!N127=\"B04\",\"C01\",IF(CRSDATA!N127=\"H01\",\"H00\",IF(OR(CRSDATA!N127=\"H02\",CRSDATA!N127=\"H03\",CRSDATA!N127=\"H04\",CRSDATA!N127=\"H05\",CRSDATA!N127=\"H06\"),\"I01\",IF(CRSDATA!N127=\"\",\"\",CRSDATA!N127)))))))","v":""},{"$f":"IF(AND(LEN(CRSDATA!M127)=4,LEFT(CRSDATA!M127,3)=\"110\"),1100,IF(AND(LEN(CRSDATA!M127)=4,LEFT(CRSDATA!M127,3)=\"422\"),422,CRSDATA!M127))","v":0},{"$f":"IF(CRSDATA!L127=22,\"FA04\",\"\")","v":""},{"$f":"IF(CRSDATA!K127=8,\"FC02\",\"\")","v":""},{"$f":"_xlfn.IFS(OR(P127=\"A00\",P127=\"E01\",P127=\"F01\",AND(P127=\"\",A127<>0),Q127=510,Q127=520,AF127=60),1,P127=\"G01\",IF(AF127=10,21,22),OR(M127=41203,M127=41204),22,OR(AND(OR(P127=\"B02\",P127=\"B03\"),M127=41310),OR(P127=\"E02\",P127=\"I01\")),21,AND(OR(P127=\"B01\",P127=\"B03\",P127=\"C01\"),M127<>41310),IF(VLOOKUP(F127,recipient_country!AB:AD,3,FALSE)=10024,\"\",1),AND(P127=\"B02\",M127<>41310),IF(VLOOKUP(M127,channel_codes!J:P,7,FALSE)=0,\"\",VLOOKUP(M127,channel_codes!J:P,7,FALSE)),ISNUMBER(MATCH(P127,{\"D01\",\"D02\"},0)),IF(VLOOKUP(M127,channel_codes!J:P,7,FALSE)=1,1,IF(VLOOKUP(F127,recipient_country!AB:AD,3,FALSE)=10024,\"\",1)),OR(P127=\"H01\",AND(OR(ISNUMBER(SEARCH(\"41010\", L127)),ISNUMBER(SEARCH(\"41020\", L127)),ISNUMBER(SEARCH(\"41030\", L127)),ISNUMBER(SEARCH(\"41040\", L127)),ISNUMBER(SEARCH(\"41081\", L127))),F127=998)),22,F127=998,22,TRUE,\"\")","v":""},{"$f":"CRSDATA!AN127","v":0},{"$f":"CRSDATA!AO127","v":0},{"$f":"CRSDATA!AQ127","v":0},{"$f":"CRSDATA!AS127","v":0},{"$f":"CRSDATA!BB127","v":0},null,"",{"$f":"IF(AND(AND(CRSDATA!C127<>\"\",CRSDATA!BK127<>\"\"),OR(CRSDATA!N127=421,CRSDATA!N127=422,CRSDATA!N127=4221,CRSDATA!N127=4222,CRSDATA!N127=423,CRSDATA!N127=424,CRSDATA!N127=425,CRSDATA!N127=431,CRSDATA!N127=433,CRSDATA!N127=434)),DATEDIF(CRSDATA!C127,CRSDATA!BK127,\"m\"),\"\")","v":""},{"$f":"CRSDATA!BA127","v":0},{"$f":"CRSDATA!BC127","v":0},{"$f":"IF(CRSDATA!BT127=\"\",\"\",CRSDATA!BT127)","v":""},{"$f":"CRSDATA!L127","v":0}]
[{"$f":"CRSDATA!A128","v":0},{"$f":"CRSDATA!C128","v":0},{"$f":"CRSDATA!D128","v":0},{"$f":"CRSDATA!F128","v":0},{"$f":"CRSDATA!E128","v":0},{"$f":"IF(CRSDATA!H128=3000,998,CRSDATA!H128)","v":0},{"$f":"CRSDATA!O128","v":0},{"$f":"CRSDATA!U128","v":0},{"$f":"IF(CRSDATA!V128=\"\",\"\",CRSDATA!V128)","v":""},{"$f":"IF(CRSDATA!W128=\"\",\"\",CRSDATA!W128)","v":""},{"$f":"key_row(CRSDATA!X128,CRSDATA!Y128,CRSDATA!AL128,CRSDATA!AK128,CRSDATA!AJ128,CRSDATA!AM128,CRSDATA!P128,CRSDATA!V128)","v":""},{"$f":"CRSDATA!P128","v":0},{"$f":"CRSDATA!J128","v":0},{"$f":"CRSDATA!I128","v":0},null,{"$f":"IF(LEFT(CRSDATA!N128,2)=\"A0\",\"A00\",IF(LEFT(CRSDATA!N128,3)=\"B02\",\"B02\",IF(LEFT(CRSDATA!N128,3)=\"B03\",\"B03\",IF(CRSDATA!N128=\"B04\",\"C01\",IF(CRSDATA!N128=\"H01\",\"H00\",IF(OR(CRSDATA!N128=\"H02\",CRSDATA!N128=\"H03\",CRSDATA!N128=\"H04\",CRSDATA!N128=\"H05\",CRSDATA!N128=\"H06\"),\"I01\",IF(CRSDATA!N128=\"\",\"\",CRSDATA!N128)))))))","v":""},{"$f":"IF(AND(LEN(CRSDATA!M128)=4,LEFT(CRSDATA!M128,3)=\"110\"),1100,IF(AND(LEN(CRSDATA!M128)=4,LEFT(CRSDATA!M128,3)=\"422\"),422,CRSDATA!M128))","v":0},{"$f":"IF(CRSDATA!L128=22,\"FA04\",\"\")","v":""},{"$f":"IF(CRSDATA!K128=8,\"FC02\",\"\")","v":""},{"$f":"_xlfn.IFS(OR(P128=\"A00\",P128=\"E01\",P128=\"F01\",AND(P128=\"\",A128<>0),Q128=510,Q128=520,AF128=60),1,P128=\"G01\",IF(AF128=10,21,22),OR(M128=41203,M128=41204),22,OR(AND(OR(P128=\"B02\",P128=\"B03\"),M128=41310),OR(P128=\"E02\",P128=\"I01\")),21,AND(OR(P128=\"B01\",P128=\"B03\",P128=\"C01\"),M128<>41310),IF(VLOOKUP(F128,recipient_country!AB:AD,3,FALSE)=10024,\"\",1),AND(P128=\"B02\",M128<>41310),IF(VLOOKUP(M128,channel_codes!J:P,7,FALSE)=0,\"\",VLOOKUP(M128,channel_codes!J:P,7,FALSE)),ISNUMBER(MATCH(P128,{\"D01\",\"D02\"},0)),IF(VLOOKUP(M128,channel_codes!J:P,7,FALSE)=1,1,IF(VLOOKUP(F128,recipient_country!AB:AD,3,FALSE)=10024,\"\",1)),OR(P128=\"H01\",AND(OR(ISNUMBER(SEARCH(\"41010\", L128)),ISNUMBER(SEARCH(\"41020\", L128)),ISNUMBER(SEARCH(\"41030\", L128)),ISNUMBER(SEARCH(\"41040\", L128)),ISNUMBER(SEARCH(\"41081\", L128))),F128=998)),22,F128=998,22,TRUE,\"\")","v":""},{"$f":"CRSDATA!AN128","v":0},{"$f":"CRSDATA!AO128","v":0},{"$f":"CRSDATA!AQ128","v":0},{"$f":"CRSDATA!AS128","v":0},{"$f":"CRSDATA!BB128","v":0},null,"",{"$f":"IF(AND(AND(CRSDATA!C128<>\"\",CRSDATA!BK128<>\"\"),OR(CRSDATA!N128=421,CRSDATA!N128=422,CRSDATA!N128=4221,CRSDATA!N128=4222,CRSDATA!N128=423,CRSDATA!N128=424,CRSDATA!N128=425,CRSDATA!N128=431,CRSDATA!N128=433,CRSDATA!N128=434)),DATEDIF(CRSDATA!C128,CRSDATA!BK128,\"m\"),\"\")","v":""},{"$f":"CRSDATA!BA128","v":0},{"$f":"CRSDATA!BC128","v":0},{"$f":"IF(CRSDATA!BT128=\"\",\"\",CRSDATA!BT128)","v":""},{"$f":"CRSDATA!L128","v":0}]
[{"$f":"CRSDATA!A129","v":0},{"$f":"CRSDATA!C129","v":0},{"$f":"CRSDATA!D129","v":0},{"$f":"CRSDATA!F129","v":0},{"$f":"CRSDATA!E129","v":0},{"$f":"IF(CRSDATA!H129=3000,998,CRSDATA!H129)","v":0},{"$f":"CRSDATA!O129","v":0},{"$f":"CRSDATA!U129","v":0},{"$f":"IF(CRSDATA!V129=\"\",\"\",CRSDATA!V129)","v":""},{"$f":"IF(CRSDATA!W129=\"\",\"\",CRSDATA!W129)","v":""},{"$f":"key_row(CRSDATA!X129,CRSDATA!Y129,CRSDATA!AL129,CRSDATA!AK129,CRSDATA!AJ129,CRSDATA!AM129,CRSDATA!P129,CRSDATA!V129)","v":""},{"$f":"CRSDATA!P129","v":0},{"$f":"CRSDATA!J129","v":0},{"$f":"CRSDATA!I129","v":0},null,{"$f":"IF(LEFT(CRSDATA!N129,2)=\"A0\",\"A00\",IF(LEFT(CRSDATA!N129,3)=\"B02\",\"B02\",IF(LEFT(CRSDATA!N129,3)=\"B03\",\"B03\",IF(CRSDATA!N129=\"B04\",\"C01\",IF(CRSDATA!N129=\"H01\",\"H00\",IF(OR(CRSDATA!N129=\"H02\",CRSDATA!N129=\"H03\",CRSDATA!N129=\"H04\",CRSDATA!N129=\"H05\",CRSDATA!N129=\"H06\"),\"I01\",IF(CRSDATA!N129=\"\",\"\",CRSDATA!N129)))))))","v":""},{"$f":"IF(AND(LEN(CRSDATA!M129)=4,LEFT(CRSDATA!M129,3)=\"110\"),1100,IF(AND(LEN(CRSDATA!M129)=4,LEFT(CRSDATA!M129,3)=\"422\"),422,CRSDATA!M129))","v":0},{"$f":"IF(CRSDATA!L129=22,\"FA04\",\"\")","v":""},{"$f":"IF(CRSDATA!K129=8,\"FC02\",\"\")","v":""},{"$f":"_xlfn.IFS(OR(P129=\"A00\",P129=\"E01\",P129=\"F01\",AND(P129=\"\",A129<>0),Q129=510,Q129=520,AF129=60),1,P129=\"G01\",IF(AF129=10,21,22),OR(M129=41203,M129=41204),22,OR(AND(OR(P129=\"B02\",P129=\"B03\"),M129=41310),OR(P129=\"E02\",P129=\"I01\")),21,AND(OR(P129=\"B01\",P129=\"B03\",P129=\"C01\"),M129<>41310),IF(VLOOKUP(F129,recipient_country!AB:AD,3,FALSE)=10024,\"\",1),AND(P129=\"B02\",M129<>41310),IF(VLOOKUP(M129,channel_codes!J:P,7,FALSE)=0,\"\",VLOOKUP(M129,channel_codes!J:P,7,FALSE)),ISNUMBER(MATCH(P129,{\"D01\",\"D02\"},0)),IF(VLOOKUP(M129,channel_codes!J:P,7,FALSE)=1,1,IF(VLOOKUP(F129,recipient_country!AB:AD,3,FALSE)=10024,\"\",1)),OR(P129=\"H01\",AND(OR(ISNUMBER(SEARCH(\"41010\", L129)),ISNUMBER(SEARCH(\"41020\", L129)),ISNUMBER(SEARCH(\"41030\", L129)),ISNUMBER(SEARCH(\"41040\", L129)),ISNUMBER(SEARCH(\"41081\", L129))),F129=998)),22,F129=998,22,TRUE,\"\")","v":""},{"$f":"CRSDATA!AN129","v":0},{"$f":"CRSDATA!AO129","v":0},{"$f":"CRSDATA!AQ129","v":0},{"$f":"CRSDATA!AS129","v":0},{"$f":"CRSDATA!BB129","v":0},null,"",{"$f":"IF(AND(AND(CRSDATA!C129<>\"\",CRSDATA!BK129<>\"\"),OR(CRSDATA!N129=421,CRSDATA!N129=422,CRSDATA!N129=4221,CRSDATA!N129=4222,CRSDATA!N129=423,CRSDATA!N129=424,CRSDATA!N129=425,CRSDATA!N129=431,CRSDATA!N129=433,CRSDATA!N129=434)),DATEDIF(CRSDATA!C129,CRSDATA!BK129,\"m\"),\"\")","v":""},{"$f":"CRSDATA!BA129","v":0},{"$f":"CRSDATA!BC129","v":0},{"$f":"IF(CRSDATA!BT129=\"\",\"\",CRSDATA!BT129)","v":""},{"$f":"CRSDATA!L129","v":0}]
[{"$f":"CRSDATA!A130","v":0},{"$f":"CRSDATA!C130","v":0},{"$f":"CRSDATA!D130","v":0},{"$f":"CRSDATA!F130","v":0},{"$f":"CRSDATA!E130","v":0},{"$f":"IF(CRSDATA!H130=3000,998,CRSDATA!H130)","v":0},{"$f":"CRSDATA!O130","v":0},{"$f":"CRSDATA!U130","v":0},{"$f":"IF(CRSDATA!V130=\"\",\"\",CRSDATA!V130)","v":""},{"$f":"IF(CRSDATA!W130=\"\",\"\",CRSDATA!W130)","v":""},{"$f":"key_row(CRSDATA!X130,CRSDATA!Y130,CRSDATA!AL130,CRSDATA!AK130,CRSDATA!AJ130,CRSDATA!AM130,CRSDATA!P130,CRSDATA!V130)","v":""},{"$f":"CRSDATA!P130","v":0},{"$f":"CRSDATA!J130","v":0},{"$f":"CRSDATA!I130","v":0},null,{"$f":"IF(LEFT(CRSDATA!N130,2)=\"A0\",\"A00\",IF(LEFT(CRSDATA!N130,3)=\"B02\",\"B02\",IF(LEFT(CRSDATA!N130,3)=\"B03\",\"B03\",IF(CRSDATA!N130=\"B04\",\"C01\",IF(CRSDATA!N130=\"H01\",\"H00\",IF(OR(CRSDATA!N130=\"H02\",CRSDATA!N130=\"H03\",CRSDATA!N130=\"H04\",CRSDATA!N130=\"H05\",CRSDATA!N130=\"H06\"),\"I01\",IF(CRSDATA!N130=\"\",\"\",CRSDATA!N130)))))))","v":""},{"$f":"IF(AND(LEN(CRSDATA!M130)=4,LEFT(CRSDATA!M130,3)=\"110\"),1100,IF(AND(LEN(CRSDATA!M130)=4,LEFT(CRSDATA!M130,3)=\"422\"),422,CRSDATA!M130))","v":0},{"$f":"IF(CRSDATA!L130=22,\"FA04\",\"\")","v":""},{"$f":"IF(CRSDATA!K130=8,\"FC02\",\"\")","v":""},{"$f":"_xlfn.IFS(OR(P130=\"A00\",P130=\"E01\",P130=\"F01\",AND(P130=\"\",A130<>0),Q130=510,Q130=520,AF130=60),1,P130=\"G01\",IF(AF130=10,21,22),OR(M130=41203,M130=41204),22,OR(AND(OR(P130=\"B02\",P130=\"B03\"),M130=41310),OR(P130=\"E02\",P130=\"I01\")),21,AND(OR(P130=\"B01\",P130=\"B03\",P130=\"C01\"),M130<>41310),IF(VLOOKUP(F130,recipient_country!AB:AD,3,FALSE)=10024,\"\",1),AND(P130=\"B02\",M130<>41310),IF(VLOOKUP(M130,channel_codes!J:P,7,FALSE)=0,\"\",VLOOKUP(M130,channel_codes!J:P,7,FALSE)),ISNUMBER(MATCH(P130,{\"D01\",\"D02\"},0)),IF(VLOOKUP(M130,channel_codes!J:P,7,FALSE)=1,1,IF(VLOOKUP(F130,recipient_country!AB:AD,3,FALSE)=10024,\"\",1)),OR(P130=\"H01\",AND(OR(ISNUMBER(SEARCH(\"41010\", L130)),ISNUMBER(SEARCH(\"41020\", L130)),ISNUMBER(SEARCH(\"41030\", L130)),ISNUMBER(SEARCH(\"41040\", L130)),ISNUMBER(SEARCH(\"41081\", L130))),F130=998)),22,F130=998,22,TRUE,\"\")","v":""},{"$f":"CRSDATA!AN130","v":0},{"$f":"CRSDATA!AO130","v":0},{"$f":"CRSDATA!AQ130","v":0},{"$f":"CRSDATA!AS130","v":0},{"$f":"CRSDATA!BB130","v":0},null,"",{"$f":"IF(AND(AND(CRSDATA!C130<>\"\",CRSDATA!BK130<>\"\"),OR(CRSDATA!N130=421,CRSDATA!N130=422,CRSDATA!N130=4221,CRSDATA!N130=4222,CRSDATA!N130=423,CRSDATA!N130=424,CRSDATA!N130=425,CRSDATA!N130=431,CRSDATA!N130=433,CRSDATA!N130=434)),DATEDIF(CRSDATA!C130,CRSDATA!BK130,\"m\"),\"\")","v":""},{"$f":"CRSDATA!BA130","v":0},{"$f":"CRSDATA!BC130","v":0},{"$f":"IF(CRSDATA!BT130=\"\",\"\",CRSDATA!BT130)","v":""},{"$f":"CRSDATA!L130","v":0}]
[{"$f":"CRSDATA!A131","v":0},{"$f":"CRSDATA!C131","v":0},{"$f":"CRSDATA!D131","v":0},{"$f":"CRSDATA!F131","v":0},{"$f":"CRSDATA!E131","v":0},{"$f":"IF(CRSDATA!H131=3000,998,CRSDATA!H131)","v":0},{"$f":"CRSDATA!O131","v":0},{"$f":"CRSDATA!U131","v":0},{"$f":"IF(CRSDATA!V131=\"\",\"\",CRSDATA!V131)","v":""},{"$f":"IF(CRSDATA!W131=\"\",\"\",CRSDATA!W131)","v":""},{"$f":"key_row(CRSDATA!X131,CRSDATA!Y131,CRSDATA!AL131,CRSDATA!AK131,CRSDATA!AJ131,CRSDATA!AM131,CRSDATA!P131,CRSDATA!V131)","v":""},{"$f":"CRSDATA!P131","v":0},{"$f":"CRSDATA!J131","v":0},{"$f":"CRSDATA!I131","v":0},null,{"$f":"IF(LEFT(CRSDATA!N131,2)=\"A0\",\"A00\",IF(LEFT(CRSDATA!N131,3)=\"B02\",\"B02\",IF(LEFT(CRSDATA!N131,3)=\"B03\",\"B03\",IF(CRSDATA!N131=\"B04\",\"C01\",IF(CRSDATA!N131=\"H01\",\"H00\",IF(OR(CRSDATA!N131=\"H02\",CRSDATA!N131=\"H03\",CRSDATA!N131=\"H04\",CRSDATA!N131=\"H05\",CRSDATA!N131=\"H06\"),\"I01\",IF(CRSDATA!N131=\"\",\"\",CRSDATA!N131)))))))","v":""},{"$f":"IF(AND(LEN(CRSDATA!M131)=4,LEFT(CRSDATA!M131,3)=\"110\"),1100,IF(AND(LEN(CRSDATA!M131)=4,LEFT(CRSDATA!M131,3)=\"422\"),422,CRSDATA!M131))","v":0},{"$f":"IF(CRSDATA!L131=22,\"FA04\",\"\")","v":""},{"$f":"IF(CRSDATA!K131=8,\"FC02\",\"\")","v":""},{"$f":"_xlfn.IFS(OR(P131=\"A00\",P131=\"E01\",P131=\"F01\",AND(P131=\"\",A131<>0),Q131=510,Q131=520,AF131=60),1,P131=\"G01\",IF(AF131=10,21,22),OR(M131=41203,M131=41204),22,OR(AND(OR(P131=\"B02\",P131=\"B03\"),M131=41310),OR(P131=\"E02\",P131=\"I01\")),21,AND(OR(P131=\"B01\",P131=\"B03\",P131=\"C01\"),M131<>41310),IF(VLOOKUP(F131,recipient_country!AB:AD,3,FALSE)=10024,\"\",1),AND(P131=\"B02\",M131<>41310),IF(VLOOKUP(M131,channel_codes!J:P,7,FALSE)=0,\"\",VLOOKUP(M131,channel_codes!J:P,7,FALSE)),ISNUMBER(MATCH(P131,{\"D01\",\"D02\"},0)),IF(VLOOKUP(M131,channel_codes!J:P,7,FALSE)=1,1,IF(VLOOKUP(F131,recipient_country!AB:AD,3,FALSE)=10024,\"\",1)),OR(P131=\"H01\",AND(OR(ISNUMBER(SEARCH(\"41010\", L131)),ISNUMBER(SEARCH(\"41020\", L131)),ISNUMBER(SEARCH(\"41030\", L131)),ISNUMBER(SEARCH(\"41040\", L131)),ISNUMBER(SEARCH(\"41081\", L131))),F131=998)),22,F131=998,22,TRUE,\"\")","v":""},{"$f":"CRSDATA!AN131","v":0},{"$f":"CRSDATA!AO131","v":0},{"$f":"CRSDATA!AQ131","v":0},{"$f":"CRSDATA!AS131","v":0},{"$f":"CRSDATA!BB131","v":0},null,"",{"$f":"IF(AND(AND(CRSDATA!C131<>\"\",CRSDATA!BK131<>\"\"),OR(CRSDATA!N131=421,CRSDATA!N131=422,CRSDATA!N131=4221,CRSDATA!N131=4222,CRSDATA!N131=423,CRSDATA!N131=424,CRSDATA!N131=425,CRSDATA!N131=431,CRSDATA!N131=433,CRSDATA!N131=434)),DATEDIF(CRSDATA!C131,CRSDATA!BK131,\"m\"),\"\")","v":""},{"$f":"CRSDATA!BA131","v":0},{"$f":"CRSDATA!BC131","v":0},{"$f":"IF(CRSDATA!BT131=\"\",\"\",CRSDATA!BT131)","v":""},{"$f":"CRSDATA!L131","v":0}]
[{"$f":"CRSDATA!A132","v":0},{"$f":"CRSDATA!C132","v":0},{"$f":"CRSDATA!D132","v":0},{"$f":"CRSDATA!F132","v":0},{"$f":"CRSDATA!E132","v":0},{"$f":"IF(CRSDATA!H132=3000,998,CRSDATA!H132)","v":0},{"$f":"CRSDATA!O132","v":0},{"$f":"CRSDATA!U132","v":0},{"$f":"IF(CRSDATA!V132=\"\",\"\",CRSDATA!V132)","v":""},{"$f":"IF(CRSDATA!W132=\"\",\"\",CRSDATA!W132)","v":""},{"$f":"key_row(CRSDATA!X132,CRSDATA!Y132,CRSDATA!AL132,CRSDATA!AK132,CRSDATA!AJ132,CRSDATA!AM132,CRSDATA!P132,CRSDATA!V132)","v":""},{"$f":"CRSDATA!P132","v":0},{"$f":"CRSDATA!J132","v":0},{"$f":"CRSDATA!I132","v":0},null,{"$f":"IF(LEFT(CRSDATA!N132,2)=\"A0\",\"A00\",IF(LEFT(CRSDATA!N132,3)=\"B02\",\"B02\",IF(LEFT(CRSDATA!N132,3)=\"B03\",\"B03\",IF(CRSDATA!N132=\"B04\",\"C01\",IF(CRSDATA!N132=\"H01\",\"H00\",IF(OR(CRSDATA!N132=\"H02\",CRSDATA!N132=\"H03\",CRSDATA!N132=\"H04\",CRSDATA!N132=\"H05\",CRSDATA!N132=\"H06\"),\"I01\",IF(CRSDATA!N132=\"\",\"\",CRSDATA!N132)))))))","v":""},{"$f":"IF(AND(LEN(CRSDATA!M132)=4,LEFT(CRSDATA!M132,3)=\"110\"),1100,IF(AND(LEN(CRSDATA!M132)=4,LEFT(CRSDATA!M132,3)=\"422\"),422,CRSDATA!M132))","v":0},{"$f":"IF(CRSDATA!L132=22,\"FA04\",\"\")","v":""},{"$f":"IF(CRSDATA!K132=8,\"FC02\",\"\")","v":""},{"$f":"_xlfn.IFS(OR(P132=\"A00\",P132=\"E01\",P132=\"F01\",AND(P132=\"\",A132<>0),Q132=510,Q132=520,AF132=60),1,P132=\"G01\",IF(AF132=10,21,22),OR(M132=41203,M132=41204),22,OR(AND(OR(P132=\"B02\",P132=\"B03\"),M132=41310),OR(P132=\"E02\",P132=\"I01\")),21,AND(OR(P132=\"B01\",P132=\"B03\",P132=\"C01\"),M132<>41310),IF(VLOOKUP(F132,recipient_country!AB:AD,3,FALSE)=10024,\"\",1),AND(P132=\"B02\",M132<>41310),IF(VLOOKUP(M132,channel_codes!J:P,7,FALSE)=0,\"\",VLOOKUP(M132,channel_codes!J:P,7,FALSE)),ISNUMBER(MATCH(P132,{\"D01\",\"D02\"},0)),IF(VLOOKUP(M132,channel_codes!J:P,7,FALSE)=1,1,IF(VLOOKUP(F132,recipient_country!AB:AD,3,FALSE)=10024,\"\",1)),OR(P132=\"H01\",AND(OR(ISNUMBER(SEARCH(\"41010\", L132)),ISNUMBER(SEARCH(\"41020\", L132)),ISNUMBER(SEARCH(\"41030\", L132)),ISNUMBER(SEARCH(\"41040\", L132)),ISNUMBER(SEARCH(\"41081\", L132))),F132=998)),22,F132=998,22,TRUE,\"\")","v":""},{"$f":"CRSDATA!AN132","v":0},{"$f":"CRSDATA!AO132","v":0},{"$f":"CRSDATA!AQ132","v":0},{"$f":"CRSDATA!AS132","v":0},{"$f":"CRSDATA!BB132","v":0},null,"",{"$f":"IF(AND(AND(CRSDATA!C132<>\"\",CRSDATA!BK132<>\"\"),OR(CRSDATA!N132=421,CRSDATA!N132=422,CRSDATA!N132=4221,CRSDATA!N132=4222,CRSDATA!N132=423,CRSDATA!N132=424,CRSDATA!N132=425,CRSDATA!N132=431,CRSDATA!N132=433,CRSDATA!N132=434)),DATEDIF(CRSDATA!C132,CRSDATA!BK132,\"m\"),\"\")","v":""},{"$f":"CRSDATA!BA132","v":0},{"$f":"CRSDATA!BC132","v":0},{"$f":"IF(CRSDATA!BT132=\"\",\"\",CRSDATA!BT132)","v":""},{"$f":"CRSDATA!L132","v":0}]
[{"$f":"CRSDATA!A133","v":0},{"$f":"CRSDATA!C133","v":0},{"$f":"CRSDATA!D133","v":0},{"$f":"CRSDATA!F133","v":0},{"$f":"CRSDATA!E133","v":0},{"$f":"IF(CRSDATA!H133=3000,998,CRSDATA!H133)","v":0},{"$f":"CRSDATA!O133","v":0},{"$f":"CRSDATA!U133","v":0},{"$f":"IF(CRSDATA!V133=\"\",\"\",CRSDATA!V133)","v":""},{"$f":"IF(CRSDATA!W133=\"\",\"\",CRSDATA!W133)","v":""},{"$f":"key_row(CRSDATA!X133,CRSDATA!Y133,CRSDATA!AL133,CRSDATA!AK133,CRSDATA!AJ133,CRSDATA!AM133,CRSDATA!P133,CRSDATA!V133)","v":""},{"$f":"CRSDATA!P133","v":0},{"$f":"CRSDATA!J133","v":0},{"$f":"CRSDATA!I133","v":0},null,{"$f":"IF(LEFT(CRSDATA!N133,2)=\"A0\",\"A00\",IF(LEFT(CRSDATA!N133,3)=\"B02\",\"B02\",IF(LEFT(CRSDATA!N133,3)=\"B03\",\"B03\",IF(CRSDATA!N133=\"B04\",\"C01\",IF(CRSDATA!N133=\"H01\",\"H00\",IF(OR(CRSDATA!N133=\"H02\",CRSDATA!N133=\"H03\",CRSDATA!N133=\"H04\",CRSDATA!N133=\"H05\",CRSDATA!N133=\"H06\"),\"I01\",IF(CRSDATA!N133=\"\",\"\",CRSDATA!N133)))))))","v":""},{"$f":"IF(AND(LEN(CRSDATA!M133)=4,LEFT(CRSDATA!M133,3)=\"110\"),1100,IF(AND(LEN(CRSDATA!M133)=4,LEFT(CRSDATA!M133,3)=\"422\"),422,CRSDATA!M133))","v":0},{"$f":"IF(CRSDATA!L133=22,\"FA04\",\"\")","v":""},{"$f":"IF(CRSDATA!K133=8,\"FC02\",\"\")","v":""},{"$f":"_xlfn.IFS(OR(P133=\"A00\",P133=\"E01\",P133=\"F01\",AND(P133=\"\",A133<>0),Q133=510,Q133=520,AF133=60),1,P133=\"G01\",IF(AF133=10,21,22),OR(M133=41203,M133=41204),22,OR(AND(OR(P133=\"B02\",P133=\"B03\"),M133=41310),OR(P133=\"E02\",P133=\"I01\")),21,AND(OR(P133=\"B01\",P133=\"B03\",P133=\"C01\"),M133<>41310),IF(VLOOKUP(F133,recipient_country!AB:AD,3,FALSE)=10024,\"\",1),AND(P133=\"B02\",M133<>41310),IF(VLOOKUP(M133,channel_codes!J:P,7,FALSE)=0,\"\",VLOOKUP(M133,channel_codes!J:P,7,FALSE)),ISNUMBER(MATCH(P133,{\"D01\",\"D02\"},0)),IF(VLOOKUP(M133,channel_codes!J:P,7,FALSE)=1,1,IF(VLOOKUP(F133,recipient_country!AB:AD,3,FALSE)=10024,\"\",1)),OR(P133=\"H01\",AND(OR(ISNUMBER(SEARCH(\"41010\", L133)),ISNUMBER(SEARCH(\"41020\", L133)),ISNUMBER(SEARCH(\"41030\", L133)),ISNUMBER(SEARCH(\"41040\", L133)),ISNUMBER(SEARCH(\"41081\", L133))),F133=998)),22,F133=998,22,TRUE,\"\")","v":""},{"$f":"CRSDATA!AN133","v":0},{"$f":"CRSDATA!AO133","v":0},{"$f":"CRSDATA!AQ133","v":0},{"$f":"CRSDATA!AS133","v":0},{"$f":"CRSDATA!BB133","v":0},null,{"$f":"IF(R133=\"FA04\",0,\"\")","v":""},{"$f":"IF(AND(AND(CRSDATA!C133<>\"\",CRSDATA!BK133<>\"\"),OR(CRSDATA!N133=421,CRSDATA!N133=422,CRSDATA!N133=4221,CRSDATA!N133=4222,CRSDATA!N133=423,CRSDATA!N133=424,CRSDATA!N133=425,CRSDATA!N133=431,CRSDATA!N133=433,CRSDATA!N133=434)),DATEDIF(CRSDATA!C133,CRSDATA!BK133,\"m\"),\"\")","v":""},{"$f":"CRSDATA!BA133","v":0},{"$f":"CRSDATA!BC133","v":0},{"$f":"IF(CRSDATA!BT133=\"\",\"\",CRSDATA!BT133)","v":""},{"$f":"CRSDATA!L133","v":0}]
[{"$f":"CRSDATA!A134","v":0},{"$f":"CRSDATA!C134","v":0},{"$f":"CRSDATA!D134","v":0},{"$f":"CRSDATA!F134","v":0},{"$f":"CRSDATA!E134","v":0},{"$f":"IF(CRSDATA!H134=3000,998,CRSDATA!H134)","v":0},{"$f":"CRSDATA!O134","v":0},{"$f":"CRSDATA!U134","v":0},{"$f":"IF(CRSDATA!V134=\"\",\"\",CRSDATA!V134)","v":""},{"$f":"IF(CRSDATA!W134=\"\",\"\",CRSDATA!W134)","v":""},{"$f":"key_row(CRSDATA!X134,CRSDATA!Y134,CRSDATA!AL134,CRSDATA!AK134,CRSDATA!AJ134,CRSDATA!AM134,CRSDATA!P134,CRSDATA!V134)","v":""},{"$f":"CRSDATA!P134","v":0},{"$f":"CRSDATA!J134","v":0},{"$f":"CRSDATA!I134","v":0},null,{"$f":"IF(LEFT(CRSDATA!N134,2)=\"A0\",\"A00\",IF(LEFT(CRSDATA!N134,3)=\"B02\",\"B02\",IF(LEFT(CRSDATA!N134,3)=\"B03\",\"B03\",IF(CRSDATA!N134=\"B04\",\"C01\",IF(CRSDATA!N134=\"H01\",\"H00\",IF(OR(CRSDATA!N134=\"H02\",CRSDATA!N134=\"H03\",CRSDATA!N134=\"H04\",CRSDATA!N134=\"H05\",CRSDATA!N134=\"H06\"),\"I01\",IF(CRSDATA!N134=\"\",\"\",CRSDATA!N134)))))))","v":""},{"$f":"IF(AND(LEN(CRSDATA!M134)=4,LEFT(CRSDATA!M134,3)=\"110\"),1100,IF(AND(LEN(CRSDATA!M134)=4,LEFT(CRSDATA!M134,3)=\"422\"),422,CRSDATA!M134))","v":0},{"$f":"IF(CRSDATA!L134=22,\"FA04\",\"\")","v":""},{"$f":"IF(CRSDATA!K134=8,\"FC02\",\"\")","v":""},{"$f":"_xlfn.IFS(OR(P134=\"A00\",P134=\"E01\",P134=\"F01\",AND(P134=\"\",A134<>0),Q134=510,Q134=520,AF134=60),1,P134=\"G01\",IF(AF134=10,21,22),OR(M134=41203,M134=41204),22,OR(AND(OR(P134=\"B02\",P134=\"B03\"),M134=41310),OR(P134=\"E02\",P134=\"I01\")),21,AND(OR(P134=\"B01\",P134=\"B03\",P134=\"C01\"),M134<>41310),IF(VLOOKUP(F134,recipient_country!AB:AD,3,FALSE)=10024,\"\",1),AND(P134=\"B02\",M134<>41310),IF(VLOOKUP(M134,channel_codes!J:P,7,FALSE)=0,\"\",VLOOKUP(M134,channel_codes!J:P,7,FALSE)),ISNUMBER(MATCH(P134,{\"D01\",\"D02\"},0)),IF(VLOOKUP(M134,channel_codes!J:P,7,FALSE)=1,1,IF(VLOOKUP(F134,recipient_country!AB:AD,3,FALSE)=10024,\"\",1)),OR(P134=\"H01\",AND(OR(ISNUMBER(SEARCH(\"41010\", L134)),ISNUMBER(SEARCH(\"41020\", L134)),ISNUMBER(SEARCH(\"41030\", L134)),ISNUMBER(SEARCH(\"41040\", L134)),ISNUMBER(SEARCH(\"41081\", L134))),F134=998)),22,F134=998,22,TRUE,\"\")","v":""},{"$f":"CRSDATA!AN134","v":0},{"$f":"CRSDATA!AO134","v":0},{"$f":"CRSDATA!AQ134","v":0},{"$f":"CRSDATA!AS134","v":0},{"$f":"CRSDATA!BB134","v":0},null,"",{"$f":"IF(AND(AND(CRSDATA!C134<>\"\",CRSDATA!BK134<>\"\"),OR(CRSDATA!N134=421,CRSDATA!N134=422,CRSDATA!N134=4221,CRSDATA!N134=4222,CRSDATA!N134=423,CRSDATA!N134=424,CRSDATA!N134=425,CRSDATA!N134=431,CRSDATA!N134=433,CRSDATA!N134=434)),DATEDIF(CRSDATA!C134,CRSDATA!BK134,\"m\"),\"\")","v":""},{"$f":"CRSDATA!BA134","v":0},{"$f":"CRSDATA!BC134","v":0},{"$f":"IF(CRSDATA!BT134=\"\",\"\",CRSDATA!BT134)","v":""},{"$f":"CRSDATA!L134","v":0}]
[{"$f":"CRSDATA!A135","v":0},{"$f":"CRSDATA!C135","v":0},{"$f":"CRSDATA!D135","v":0},{"$f":"CRSDATA!F135","v":0},{"$f":"CRSDATA!E135","v":0},{"$f":"IF(CRSDATA!H135=3000,998,CRSDATA!H135)","v":0},{"$f":"CRSDATA!O135","v":0},{"$f":"CRSDATA!U135","v":0},{"$f":"IF(CRSDATA!V135=\"\",\"\",CRSDATA!V135)","v":""},{"$f":"IF(CRSDATA!W135=\"\",\"\",CRSDATA!W135)","v":""},{"$f":"key_row(CRSDATA!X135,CRSDATA!Y135,CRSDATA!AL135,CRSDATA!AK135,CRSDATA!AJ135,CRSDATA!AM135,CRSDATA!P135,CRSDATA!V135)","v":""},{"$f":"CRSDATA!P135","v":0},{"$f":"CRSDATA!J135","v":0},{"$f":"CRSDATA!I135","v":0},null,{"$f":"IF(LEFT(CRSDATA!N135,2)=\"A0\",\"A00\",IF(LEFT(CRSDATA!N135,3)=\"B02\",\"B02\",IF(LEFT(CRSDATA!N135,3)=\"B03\",\"B03\",IF(CRSDATA!N135=\"B04\",\"C01\",IF(CRSDATA!N135=\"H01\",\"H00\",IF(OR(CRSDATA!N135=\"H02\",CRSDATA!N135=\"H03\",CRSDATA!N135=\"H04\",CRSDATA!N135=\"H05\",CRSDATA!N135=\"H06\"),\"I01\",IF(CRSDATA!N135=\"\",\"\",CRSDATA!N135)))))))","v":""},{"$f":"IF(AND(LEN(CRSDATA!M135)=4,LEFT(CRSDATA!M135,3)=\"110\"),1100,IF(AND(LEN(CRSDATA!M135)=4,LEFT(CRSDATA!M135,3)=\"422\"),422,CRSDATA!M135))","v":0},{"$f":"IF(CRSDATA!L135=22,\"FA04\",\"\")","v":""},{"$f":"IF(CRSDATA!K135=8,\"FC02\",\"\")","v":""},{"$f":"_xlfn.IFS(OR(P135=\"A00\",P135=\"E01\",P135=\"F01\",AND(P135=\"\",A135<>0),Q135=510,Q135=520,AF135=60),1,P135=\"G01\",IF(AF135=10,21,22),OR(M135=41203,M135=41204),22,OR(AND(OR(P135=\"B02\",P135=\"B03\"),M135=41310),OR(P135=\"E02\",P135=\"I01\")),21,AND(OR(P135=\"B01\",P135=\"B03\",P135=\"C01\"),M135<>41310),IF(VLOOKUP(F135,recipient_country!AB:AD,3,FALSE)=10024,\"\",1),AND(P135=\"B02\",M135<>41310),IF(VLOOKUP(M135,channel_codes!J:P,7,FALSE)=0,\"\",VLOOKUP(M135,channel_codes!J:P,7,FALSE)),ISNUMBER(MATCH(P135,{\"D01\",\"D02\"},0)),IF(VLOOKUP(M135,channel_codes!J:P,7,FALSE)=1,1,IF(VLOOKUP(F135,recipient_country!AB:AD,3,FALSE)=10024,\"\",1)),OR(P135=\"H01\",AND(OR(ISNUMBER(SEARCH(\"41010\", L135)),ISNUMBER(SEARCH(\"41020\", L135)),ISNUMBER(SEARCH(\"41030\", L135)),ISNUMBER(SEARCH(\"41040\", L135)),ISNUMBER(SEARCH(\"41081\", L135))),F135=998)),22,F135=998,22,TRUE,\"\")","v":""},{"$f":"CRSDATA!AN135","v":0},{"$f":"CRSDATA!AO135","v":0},{"$f":"CRSDATA!AQ135","v":0},{"$f":"CRSDATA!AS135","v":0},{"$f":"CRSDATA!BB135","v":0},null,"",{"$f":"IF(AND(AND(CRSDATA!C135<>\"\",CRSDATA!BK135<>\"\"),OR(CRSDATA!N135=421,CRSDATA!N135=422,CRSDATA!N135=4221,CRSDATA!N135=4222,CRSDATA!N135=423,CRSDATA!N135=424,CRSDATA!N135=425,CRSDATA!N135=431,CRSDATA!N135=433,CRSDATA!N135=434)),DATEDIF(CRSDATA!C135,CRSDATA!BK135,\"m\"),\"\")","v":""},{"$f":"CRSDATA!BA135","v":0},{"$f":"CRSDATA!BC135","v":0},{"$f":"IF(CRSDATA!BT135=\"\",\"\",CRSDATA!BT135)","v":""},{"$f":"CRSDATA!L135","v":0}]
[{"$f":"CRSDATA!A136","v":0},{"$f":"CRSDATA!C136","v":0},{"$f":"CRSDATA!D136","v":0},{"$f":"CRSDATA!F136","v":0},{"$f":"CRSDATA!E136","v":0},{"$f":"IF(CRSDATA!H136=3000,998,CRSDATA!H136)","v":0},{"$f":"CRSDATA!O136","v":0},{"$f":"CRSDATA!U136","v":0},{"$f":"IF(CRSDATA!V136=\"\",\"\",CRSDATA!V136)","v":""},{"$f":"IF(CRSDATA!W136=\"\",\"\",CRSDATA!W136)","v":""},{"$f":"key_row(CRSDATA!X136,CRSDATA!Y136,CRSDATA!AL136,CRSDATA!AK136,CRSDATA!AJ136,CRSDATA!AM136,CRSDATA!P136,CRSDATA!V136)","v":""},{"$f":"CRSDATA!P136","v":0},{"$f":"CRSDATA!J136","v":0},{"$f":"CRSDATA!I136","v":0},null,{"$f":"IF(LEFT(CRSDATA!N136,2)=\"A0\",\"A00\",IF(LEFT(CRSDATA!N136,3)=\"B02\",\"B02\",IF(LEFT(CRSDATA!N136,3)=\"B03\",\"B03\",IF(CRSDATA!N136=\"B04\",\"C01\",IF(CRSDATA!N136=\"H01\",\"H00\",IF(OR(CRSDATA!N136=\"H02\",CRSDATA!N136=\"H03\",CRSDATA!N136=\"H04\",CRSDATA!N136=\"H05\",CRSDATA!N136=\"H06\"),\"I01\",IF(CRSDATA!N136=\"\",\"\",CRSDATA!N136)))))))","v":""},{"$f":"IF(AND(LEN(CRSDATA!M136)=4,LEFT(CRSDATA!M136,3)=\"110\"),1100,IF(AND(LEN(CRSDATA!M136)=4,LEFT(CRSDATA!M136,3)=\"422\"),422,CRSDATA!M136))","v":0},{"$f":"IF(CRSDATA!L136=22,\"FA04\",\"\")","v":""},{"$f":"IF(CRSDATA!K136=8,\"FC02\",\"\")","v":""},{"$f":"_xlfn.IFS(OR(P136=\"A00\",P136=\"E01\",P136=\"F01\",AND(P136=\"\",A136<>0),Q136=510,Q136=520,AF136=60),1,P136=\"G01\",IF(AF136=10,21,22),OR(M136=41203,M136=41204),22,OR(AND(OR(P136=\"B02\",P136=\"B03\"),M136=41310),OR(P136=\"E02\",P136=\"I01\")),21,AND(OR(P136=\"B01\",P136=\"B03\",P136=\"C01\"),M136<>41310),IF(VLOOKUP(F136,recipient_country!AB:AD,3,FALSE)=10024,\"\",1),AND(P136=\"B02\",M136<>41310),IF(VLOOKUP(M136,channel_codes!J:P,7,FALSE)=0,\"\",VLOOKUP(M136,channel_codes!J:P,7,FALSE)),ISNUMBER(MATCH(P136,{\"D01\",\"D02\"},0)),IF(VLOOKUP(M136,channel_codes!J:P,7,FALSE)=1,1,IF(VLOOKUP(F136,recipient_country!AB:AD,3,FALSE)=10024,\"\",1)),OR(P136=\"H01\",AND(OR(ISNUMBER(SEARCH(\"41010\", L136)),ISNUMBER(SEARCH(\"41020\", L136)),ISNUMBER(SEARCH(\"41030\", L136)),ISNUMBER(SEARCH(\"41040\", L136)),ISNUMBER(SEARCH(\"41081\", L136))),F136=998)),22,F136=998,22,TRUE,\"\")","v":""},{"$f":"CRSDATA!AN136","v":0},{"$f":"CRSDATA!AO136","v":0},{"$f":"CRSDATA!AQ136","v":0},{"$f":"CRSDATA!AS136","v":0},{"$f":"CRSDATA!BB136","v":0},null,"",{"$f":"IF(AND(AND(CRSDATA!C136<>\"\",CRSDATA!BK136<>\"\"),OR(CRSDATA!N136=421,CRSDATA!N136=422,CRSDATA!N136=4221,CRSDATA!N136=4222,CRSDATA!N136=423,CRSDATA!N136=424,CRSDATA!N136=425,CRSDATA!N136=431,CRSDATA!N136=433,CRSDATA!N136=434)),DATEDIF(CRSDATA!C136,CRSDATA!BK136,\"m\"),\"\")","v":""},{"$f":"CRSDATA!BA136","v":0},{"$f":"CRSDATA!BC136","v":0},{"$f":"IF(CRSDATA!BT136=\"\",\"\",CRSDATA!BT136)","v":""},{"$f":"CRSDATA!L136","v":0}]
[{"$f":"CRSDATA!A137","v":0},{"$f":"CRSDATA!C137","v":0},{"$f":"CRSDATA!D137","v":0},{"$f":"CRSDATA!F137","v":0},{"$f":"CRSDATA!E137","v":0},{"$f":"IF(CRSDATA!H137=3000,998,CRSDATA!H137)","v":0},{"$f":"CRSDATA!O137","v":0},{"$f":"CRSDATA!U137","v":0},{"$f":"IF(CRSDATA!V137=\"\",\"\",CRSDATA!V137)","v":""},{"$f":"IF(CRSDATA!W137=\"\",\"\",CRSDATA!W137)","v":""},{"$f":"key_row(CRSDATA!X137,CRSDATA!Y137,CRSDATA!AL137,CRSDATA!AK137,CRSDATA!AJ137,CRSDATA!AM137,CRSDATA!P137,CRSDATA!V137)","v":""},{"$f":"CRSDATA!P137","v":0},{"$f":"CRSDATA!J137","v":0},{"$f":"CRSDATA!I137","v":0},null,{"$f":"IF(LEFT(CRSDATA!N137,2)=\"A0\",\"A00\",IF(LEFT(CRSDATA!N137,3)=\"B02\",\"B02\",IF(LEFT(CRSDATA!N137,3)=\"B03\",\"B03\",IF(CRSDATA!N137=\"B04\",\"C01\",IF(CRSDATA!N137=\"H01\",\"H00\",IF(OR(CRSDATA!N137=\"H02\",CRSDATA!N137=\"H03\",CRSDATA!N137=\"H04\",CRSDATA!N137=\"H05\",CRSDATA!N137=\"H06\"),\"I01\",IF(CRSDATA!N137=\"\",\"\",CRSDATA!N137)))))))","v":""},{"$f":"IF(AND(LEN(CRSDATA!M137)=4,LEFT(CRSDATA!M137,3)=\"110\"),1100,IF(AND(LEN(CRSDATA!M137)=4,LEFT(CRSDATA!M137,3)=\"422\"),422,CRSDATA!M137))","v":0},{"$f":"IF(CRSDATA!L137=22,\"FA04\",\"\")","v":""},{"$f":"IF(CRSDATA!K137=8,\"FC02\",\"\")","v":""},{"$f":"_xlfn.IFS(OR(P137=\"A00\",P137=\"E01\",P137=\"F01\",AND(P137=\"\",A137<>0),Q137=510,Q137=520,AF137=60),1,P137=\"G01\",IF(AF137=10,21,22),OR(M137=41203,M137=41204),22,OR(AND(OR(P137=\"B02\",P137=\"B03\"),M137=41310),OR(P137=\"E02\",P137=\"I01\")),21,AND(OR(P137=\"B01\",P137=\"B03\",P137=\"C01\"),M137<>41310),IF(VLOOKUP(F137,recipient_country!AB:AD,3,FALSE)=10024,\"\",1),AND(P137=\"B02\",M137<>41310),IF(VLOOKUP(M137,channel_codes!J:P,7,FALSE)=0,\"\",VLOOKUP(M137,channel_codes!J:P,7,FALSE)),ISNUMBER(MATCH(P137,{\"D01\",\"D02\"},0)),IF(VLOOKUP(M137,channel_codes!J:P,7,FALSE)=1,1,IF(VLOOKUP(F137,recipient_country!AB:AD,3,FALSE)=10024,\"\",1)),OR(P137=\"H01\",AND(OR(ISNUMBER(SEARCH(\"41010\", L137)),ISNUMBER(SEARCH(\"41020\", L137)),ISNUMBER(SEARCH(\"41030\", L137)),ISNUMBER(SEARCH(\"41040\", L137)),ISNUMBER(SEARCH(\"41081\", L137))),F137=998)),22,F137=998,22,TRUE,\"\")","v":""},{"$f":"CRSDATA!AN137","v":0},{"$f":"CRSDATA!AO137","v":0},{"$f":"CRSDATA!AQ137","v":0},{"$f":"CRSDATA!AS137","v":0},{"$f":"CRSDATA!BB137","v":0},null,"",{"$f":"IF(AND(AND(CRSDATA!C137<>\"\",CRSDATA!BK137<>\"\"),OR(CRSDATA!N137=421,CRSDATA!N137=422,CRSDATA!N137=4221,CRSDATA!N137=4222,CRSDATA!N137=423,CRSDATA!N137=424,CRSDATA!N137=425,CRSDATA!N137=431,CRSDATA!N137=433,CRSDATA!N137=434)),DATEDIF(CRSDATA!C137,CRSDATA!BK137,\"m\"),\"\")","v":""},{"$f":"CRSDATA!BA137","v":0},{"$f":"CRSDATA!BC137","v":0},{"$f":"IF(CRSDATA!BT137=\"\",\"\",CRSDATA!BT137)","v":""},{"$f":"CRSDATA!L137","v":0}]
[{"$f":"CRSDATA!A138","v":0},{"$f":"CRSDATA!C138","v":0},{"$f":"CRSDATA!D138","v":0},{"$f":"CRSDATA!F138","v":0},{"$f":"CRSDATA!E138","v":0},{"$f":"IF(CRSDATA!H138=3000,998,CRSDATA!H138)","v":0},{"$f":"CRSDATA!O138","v":0},{"$f":"CRSDATA!U138","v":0},{"$f":"IF(CRSDATA!V138=\"\",\"\",CRSDATA!V138)","v":""},{"$f":"IF(CRSDATA!W138=\"\",\"\",CRSDATA!W138)","v":""},{"$f":"key_row(CRSDATA!X138,CRSDATA!Y138,CRSDATA!AL138,CRSDATA!AK138,CRSDATA!AJ138,CRSDATA!AM138,CRSDATA!P138,CRSDATA!V138)","v":""},{"$f":"CRSDATA!P138","v":0},{"$f":"CRSDATA!J138","v":0},{"$f":"CRSDATA!I138","v":0},null,{"$f":"IF(LEFT(CRSDATA!N138,2)=\"A0\",\"A00\",IF(LEFT(CRSDATA!N138,3)=\"B02\",\"B02\",IF(LEFT(CRSDATA!N138,3)=\"B03\",\"B03\",IF(CRSDATA!N138=\"B04\",\"C01\",IF(CRSDATA!N138=\"H01\",\"H00\",IF(OR(CRSDATA!N138=\"H02\",CRSDATA!N138=\"H03\",CRSDATA!N138=\"H04\",CRSDATA!N138=\"H05\",CRSDATA!N138=\"H06\"),\"I01\",IF(CRSDATA!N138=\"\",\"\",CRSDATA!N138)))))))","v":""},{"$f":"IF(AND(LEN(CRSDATA!M138)=4,LEFT(CRSDATA!M138,3)=\"110\"),1100,IF(AND(LEN(CRSDATA!M138)=4,LEFT(CRSDATA!M138,3)=\"422\"),422,CRSDATA!M138))","v":0},{"$f":"IF(CRSDATA!L138=22,\"FA04\",\"\")","v":""},{"$f":"IF(CRSDATA!K138=8,\"FC02\",\"\")","v":""},{"$f":"_xlfn.IFS(OR(P138=\"A00\",P138=\"E01\",P138=\"F01\",AND(P138=\"\",A138<>0),Q138=510,Q138=520,AF138=60),1,P138=\"G01\",IF(AF138=10,21,22),OR(M138=41203,M138=41204),22,OR(AND(OR(P138=\"B02\",P138=\"B03\"),M138=41310),OR(P138=\"E02\",P138=\"I01\")),21,AND(OR(P138=\"B01\",P138=\"B03\",P138=\"C01\"),M138<>41310),IF(VLOOKUP(F138,recipient_country!AB:AD,3,FALSE)=10024,\"\",1),AND(P138=\"B02\",M138<>41310),IF(VLOOKUP(M138,channel_codes!J:P,7,FALSE)=0,\"\",VLOOKUP(M138,channel_codes!J:P,7,FALSE)),ISNUMBER(MATCH(P138,{\"D01\",\"D02\"},0)),IF(VLOOKUP(M138,channel_codes!J:P,7,FALSE)=1,1,IF(VLOOKUP(F138,recipient_country!AB:AD,3,FALSE)=10024,\"\",1)),OR(P138=\"H01\",AND(OR(ISNUMBER(SEARCH(\"41010\", L138)),ISNUMBER(SEARCH(\"41020\", L138)),ISNUMBER(SEARCH(\"41030\", L138)),ISNUMBER(SEARCH(\"41040\", L138)),ISNUMBER(SEARCH(\"41081\", L138))),F138=998)),22,F138=998,22,TRUE,\"\")","v":""},{"$f":"CRSDATA!AN138","v":0},{"$f":"CRSDATA!AO138","v":0},{"$f":"CRSDATA!AQ138","v":0},{"$f":"CRSDATA!AS138","v":0},{"$f":"CRSDATA!BB138","v":0},null,"",{"$f":"IF(AND(AND(CRSDATA!C138<>\"\",CRSDATA!BK138<>\"\"),OR(CRSDATA!N138=421,CRSDATA!N138=422,CRSDATA!N138=4221,CRSDATA!N138=4222,CRSDATA!N138=423,CRSDATA!N138=424,CRSDATA!N138=425,CRSDATA!N138=431,CRSDATA!N138=433,CRSDATA!N138=434)),DATEDIF(CRSDATA!C138,CRSDATA!BK138,\"m\"),\"\")","v":""},{"$f":"CRSDATA!BA138","v":0},{"$f":"CRSDATA!BC138","v":0},{"$f":"IF(CRSDATA!BT138=\"\",\"\",CRSDATA!BT138)","v":""},{"$f":"CRSDATA!L138","v":0}]
[{"$f":"CRSDATA!A139","v":0},{"$f":"CRSDATA!C139","v":0},{"$f":"CRSDATA!D139","v":0},{"$f":"CRSDATA!F139","v":0},{"$f":"CRSDATA!E139","v":0},{"$f":"IF(CRSDATA!H139=3000,998,CRSDATA!H139)","v":0},{"$f":"CRSDATA!O139","v":0},{"$f":"CRSDATA!U139","v":0},{"$f":"IF(CRSDATA!V139=\"\",\"\",CRSDATA!V139)","v":""},{"$f":"IF(CRSDATA!W139=\"\",\"\",CRSDATA!W139)","v":""},{"$f":"key_row(CRSDATA!X139,CRSDATA!Y139,CRSDATA!AL139,CRSDATA!AK139,CRSDATA!AJ139,CRSDATA!AM139,CRSDATA!P139,CRSDATA!V139)","v":""},{"$f":"CRSDATA!P139","v":0},{"$f":"CRSDATA!J139","v":0},{"$f":"CRSDATA!I139","v":0},null,{"$f":"IF(LEFT(CRSDATA!N139,2)=\"A0\",\"A00\",IF(LEFT(CRSDATA!N139,3)=\"B02\",\"B02\",IF(LEFT(CRSDATA!N139,3)=\"B03\",\"B03\",IF(CRSDATA!N139=\"B04\",\"C01\",IF(CRSDATA!N139=\"H01\",\"H00\",IF(OR(CRSDATA!N139=\"H02\",CRSDATA!N139=\"H03\",CRSDATA!N139=\"H04\",CRSDATA!N139=\"H05\",CRSDATA!N139=\"H06\"),\"I01\",IF(CRSDATA!N139=\"\",\"\",CRSDATA!N139)))))))","v":""},{"$f":"IF(AND(LEN(CRSDATA!M139)=4,LEFT(CRSDATA!M139,3)=\"110\"),1100,IF(AND(LEN(CRSDATA!M139)=4,LEFT(CRSDATA!M139,3)=\"422\"),422,CRSDATA!M139))","v":0},{"$f":"IF(CRSDATA!L139=22,\"FA04\",\"\")","v":""},{"$f":"IF(CRSDATA!K139=8,\"FC02\",\"\")","v":""},{"$f":"_xlfn.IFS(OR(P139=\"A00\",P139=\"E01\",P139=\"F01\",AND(P139=\"\",A139<>0),Q139=510,Q139=520,AF139=60),1,P139=\"G01\",IF(AF139=10,21,22),OR(M139=41203,M139=41204),22,OR(AND(OR(P139=\"B02\",P139=\"B03\"),M139=41310),OR(P139=\"E02\",P139=\"I01\")),21,AND(OR(P139=\"B01\",P139=\"B03\",P139=\"C01\"),M139<>41310),IF(VLOOKUP(F139,recipient_country!AB:AD,3,FALSE)=10024,\"\",1),AND(P139=\"B02\",M139<>41310),IF(VLOOKUP(M139,channel_codes!J:P,7,FALSE)=0,\"\",VLOOKUP(M139,channel_codes!J:P,7,FALSE)),ISNUMBER(MATCH(P139,{\"D01\",\"D02\"},0)),IF(VLOOKUP(M139,channel_codes!J:P,7,FALSE)=1,1,IF(VLOOKUP(F139,recipient_country!AB:AD,3,FALSE)=10024,\"\",1)),OR(P139=\"H01\",AND(OR(ISNUMBER(SEARCH(\"41010\", L139)),ISNUMBER(SEARCH(\"41020\", L139)),ISNUMBER(SEARCH(\"41030\", L139)),ISNUMBER(SEARCH(\"41040\", L139)),ISNUMBER(SEARCH(\"41081\", L139))),F139=998)),22,F139=998,22,TRUE,\"\")","v":""},{"$f":"CRSDATA!AN139","v":0},{"$f":"CRSDATA!AO139","v":0},{"$f":"CRSDATA!AQ139","v":0},{"$f":"CRSDATA!AS139","v":0},{"$f":"CRSDATA!BB139","v":0},null,"",{"$f":"IF(AND(AND(CRSDATA!C139<>\"\",CRSDATA!BK139<>\"\"),OR(CRSDATA!N139=421,CRSDATA!N139=422,CRSDATA!N139=4221,CRSDATA!N139=4222,CRSDATA!N139=423,CRSDATA!N139=424,CRSDATA!N139=425,CRSDATA!N139=431,CRSDATA!N139=433,CRSDATA!N139=434)),DATEDIF(CRSDATA!C139,CRSDATA!BK139,\"m\"),\"\")","v":""},{"$f":"CRSDATA!BA139","v":0},{"$f":"CRSDATA!BC139","v":0},{"$f":"IF(CRSDATA!BT139=\"\",\"\",CRSDATA!BT139)","v":""},{"$f":"CRSDATA!L139","v":0}]
[{"$f":"CRSDATA!A140","v":0},{"$f":"CRSDATA!C140","v":0},{"$f":"CRSDATA!D140","v":0},{"$f":"CRSDATA!F140","v":0},{"$f":"CRSDATA!E140","v":0},{"$f":"IF(CRSDATA!H140=3000,998,CRSDATA!H140)","v":0},{"$f":"CRSDATA!O140","v":0},{"$f":"CRSDATA!U140","v":0},{"$f":"IF(CRSDATA!V140=\"\",\"\",CRSDATA!V140)","v":""},{"$f":"IF(CRSDATA!W140=\"\",\"\",CRSDATA!W140)","v":""},{"$f":"key_row(CRSDATA!X140,CRSDATA!Y140,CRSDATA!AL140,CRSDATA!AK140,CRSDATA!AJ140,CRSDATA!AM140,CRSDATA!P140,CRSDATA!V140)","v":""},{"$f":"CRSDATA!P140","v":0},{"$f":"CRSDATA!J140","v":0},{"$f":"CRSDATA!I140","v":0},null,{"$f":"IF(LEFT(CRSDATA!N140,2)=\"A0\",\"A00\",IF(LEFT(CRSDATA!N140,3)=\"B02\",\"B02\",IF(LEFT(CRSDATA!N140,3)=\"B03\",\"B03\",IF(CRSDATA!N140=\"B04\",\"C01\",IF(CRSDATA!N140=\"H01\",\"H00\",IF(OR(CRSDATA!N140=\"H02\",CRSDATA!N140=\"H03\",CRSDATA!N140=\"H04\",CRSDATA!N140=\"H05\",CRSDATA!N140=\"H06\"),\"I01\",IF(CRSDATA!N140=\"\",\"\",CRSDATA!N140)))))))","v":""},{"$f":"IF(AND(LEN(CRSDATA!M140)=4,LEFT(CRSDATA!M140,3)=\"110\"),1100,IF(AND(LEN(CRSDATA!M140)=4,LEFT(CRSDATA!M140,3)=\"422\"),422,CRSDATA!M140))","v":0},{"$f":"IF(CRSDATA!L140=22,\"FA04\",\"\")","v":""},{"$f":"IF(CRSDATA!K140=8,\"FC02\",\"\")","v":""},{"$f":"_xlfn.IFS(OR(P140=\"A00\",P140=\"E01\",P140=\"F01\",AND(P140=\"\",A140<>0),Q140=510,Q140=520,AF140=60),1,P140=\"G01\",IF(AF140=10,21,22),OR(M140=41203,M140=41204),22,OR(AND(OR(P140=\"B02\",P140=\"B03\"),M140=41310),OR(P140=\"E02\",P140=\"I01\")),21,AND(OR(P140=\"B01\",P140=\"B03\",P140=\"C01\"),M140<>41310),IF(VLOOKUP(F140,recipient_country!AB:AD,3,FALSE)=10024,\"\",1),AND(P140=\"B02\",M140<>41310),IF(VLOOKUP(M140,channel_codes!J:P,7,FALSE)=0,\"\",VLOOKUP(M140,channel_codes!J:P,7,FALSE)),ISNUMBER(MATCH(P140,{\"D01\",\"D02\"},0)),IF(VLOOKUP(M140,channel_codes!J:P,7,FALSE)=1,1,IF(VLOOKUP(F140,recipient_country!AB:AD,3,FALSE)=10024,\"\",1)),OR(P140=\"H01\",AND(OR(ISNUMBER(SEARCH(\"41010\", L140)),ISNUMBER(SEARCH(\"41020\", L140)),ISNUMBER(SEARCH(\"41030\", L140)),ISNUMBER(SEARCH(\"41040\", L140)),ISNUMBER(SEARCH(\"41081\", L140))),F140=998)),22,F140=998,22,TRUE,\"\")","v":""},{"$f":"CRSDATA!AN140","v":0},{"$f":"CRSDATA!AO140","v":0},{"$f":"CRSDATA!AQ140","v":0},{"$f":"CRSDATA!AS140","v":0},{"$f":"CRSDATA!BB140","v":0},null,"",{"$f":"IF(AND(AND(CRSDATA!C140<>\"\",CRSDATA!BK140<>\"\"),OR(CRSDATA!N140=421,CRSDATA!N140=422,CRSDATA!N140=4221,CRSDATA!N140=4222,CRSDATA!N140=423,CRSDATA!N140=424,CRSDATA!N140=425,CRSDATA!N140=431,CRSDATA!N140=433,CRSDATA!N140=434)),DATEDIF(CRSDATA!C140,CRSDATA!BK140,\"m\"),\"\")","v":""},{"$f":"CRSDATA!BA140","v":0},{"$f":"CRSDATA!BC140","v":0},{"$f":"IF(CRSDATA!BT140=\"\",\"\",CRSDATA!BT140)","v":""},{"$f":"CRSDATA!L140","v":0}]
[{"$f":"CRSDATA!A141","v":0},{"$f":"CRSDATA!C141","v":0},{"$f":"CRSDATA!D141","v":0},{"$f":"CRSDATA!F141","v":0},{"$f":"CRSDATA!E141","v":0},{"$f":"IF(CRSDATA!H141=3000,998,CRSDATA!H141)","v":0},{"$f":"CRSDATA!O141","v":0},{"$f":"CRSDATA!U141","v":0},{"$f":"IF(CRSDATA!V141=\"\",\"\",CRSDATA!V141)","v":""},{"$f":"IF(CRSDATA!W141=\"\",\"\",CRSDATA!W141)","v":""},{"$f":"key_row(CRSDATA!X141,CRSDATA!Y141,CRSDATA!AL141,CRSDATA!AK141,CRSDATA!AJ141,CRSDATA!AM141,CRSDATA!P141,CRSDATA!V141)","v":""},{"$f":"CRSDATA!P141","v":0},{"$f":"CRSDATA!J141","v":0},{"$f":"CRSDATA!I141","v":0},null,{"$f":"IF(LEFT(CRSDATA!N141,2)=\"A0\",\"A00\",IF(LEFT(CRSDATA!N141,3)=\"B02\",\"B02\",IF(LEFT(CRSDATA!N141,3)=\"B03\",\"B03\",IF(CRSDATA!N141=\"B04\",\"C01\",IF(CRSDATA!N141=\"H01\",\"H00\",IF(OR(CRSDATA!N141=\"H02\",CRSDATA!N141=\"H03\",CRSDATA!N141=\"H04\",CRSDATA!N141=\"H05\",CRSDATA!N141=\"H06\"),\"I01\",IF(CRSDATA!N141=\"\",\"\",CRSDATA!N141)))))))","v":""},{"$f":"IF(AND(LEN(CRSDATA!M141)=4,LEFT(CRSDATA!M141,3)=\"110\"),1100,IF(AND(LEN(CRSDATA!M141)=4,LEFT(CRSDATA!M141,3)=\"422\"),422,CRSDATA!M141))","v":0},{"$f":"IF(CRSDATA!L141=22,\"FA04\",\"\")","v":""},{"$f":"IF(CRSDATA!K141=8,\"FC02\",\"\")","v":""},{"$f":"_xlfn.IFS(OR(P141=\"A00\",P141=\"E01\",P141=\"F01\",AND(P141=\"\",A141<>0),Q141=510,Q141=520,AF141=60),1,P141=\"G01\",IF(AF141=10,21,22),OR(M141=41203,M141=41204),22,OR(AND(OR(P141=\"B02\",P141=\"B03\"),M141=41310),OR(P141=\"E02\",P141=\"I01\")),21,AND(OR(P141=\"B01\",P141=\"B03\",P141=\"C01\"),M141<>41310),IF(VLOOKUP(F141,recipient_country!AB:AD,3,FALSE)=10024,\"\",1),AND(P141=\"B02\",M141<>41310),IF(VLOOKUP(M141,channel_codes!J:P,7,FALSE)=0,\"\",VLOOKUP(M141,channel_codes!J:P,7,FALSE)),ISNUMBER(MATCH(P141,{\"D01\",\"D02\"},0)),IF(VLOOKUP(M141,channel_codes!J:P,7,FALSE)=1,1,IF(VLOOKUP(F141,recipient_country!AB:AD,3,FALSE)=10024,\"\",1)),OR(P141=\"H01\",AND(OR(ISNUMBER(SEARCH(\"41010\", L141)),ISNUMBER(SEARCH(\"41020\", L141)),ISNUMBER(SEARCH(\"41030\", L141)),ISNUMBER(SEARCH(\"41040\", L141)),ISNUMBER(SEARCH(\"41081\", L141))),F141=998)),22,F141=998,22,TRUE,\"\")","v":""},{"$f":"CRSDATA!AN141","v":0},{"$f":"CRSDATA!AO141","v":0},{"$f":"CRSDATA!AQ141","v":0},{"$f":"CRSDATA!AS141","v":0},{"$f":"CRSDATA!BB141","v":0},null,"",{"$f":"IF(AND(AND(CRSDATA!C141<>\"\",CRSDATA!BK141<>\"\"),OR(CRSDATA!N141=421,CRSDATA!N141=422,CRSDATA!N141=4221,CRSDATA!N141=4222,CRSDATA!N141=423,CRSDATA!N141=424,CRSDATA!N141=425,CRSDATA!N141=431,CRSDATA!N141=433,CRSDATA!N141=434)),DATEDIF(CRSDATA!C141,CRSDATA!BK141,\"m\"),\"\")","v":""},{"$f":"CRSDATA!BA141","v":0},{"$f":"CRSDATA!BC141","v":0},{"$f":"IF(CRSDATA!BT141=\"\",\"\",CRSDATA!BT141)","v":""},{"$f":"CRSDATA!L141","v":0}]
[{"$f":"CRSDATA!A142","v":0},{"$f":"CRSDATA!C142","v":0},{"$f":"CRSDATA!D142","v":0},{"$f":"CRSDATA!F142","v":0},{"$f":"CRSDATA!E142","v":0},{"$f":"IF(CRSDATA!H142=3000,998,CRSDATA!H142)","v":0},{"$f":"CRSDATA!O142","v":0},{"$f":"CRSDATA!U142","v":0},{"$f":"IF(CRSDATA!V142=\"\",\"\",CRSDATA!V142)","v":""},{"$f":"IF(CRSDATA!W142=\"\",\"\",CRSDATA!W142)","v":""},{"$f":"key_row(CRSDATA!X142,CRSDATA!Y142,CRSDATA!AL142,CRSDATA!AK142,CRSDATA!AJ142,CRSDATA!AM142,CRSDATA!P142,CRSDATA!V142)","v":""},{"$f":"CRSDATA!P142","v":0},{"$f":"CRSDATA!J142","v":0},{"$f":"CRSDATA!I142","v":0},null,{"$f":"IF(LEFT(CRSDATA!N142,2)=\"A0\",\"A00\",IF(LEFT(CRSDATA!N142,3)=\"B02\",\"B02\",IF(LEFT(CRSDATA!N142,3)=\"B03\",\"B03\",IF(CRSDATA!N142=\"B04\",\"C01\",IF(CRSDATA!N142=\"H01\",\"H00\",IF(OR(CRSDATA!N142=\"H02\",CRSDATA!N142=\"H03\",CRSDATA!N142=\"H04\",CRSDATA!N142=\"H05\",CRSDATA!N142=\"H06\"),\"I01\",IF(CRSDATA!N142=\"\",\"\",CRSDATA!N142)))))))","v":""},{"$f":"IF(AND(LEN(CRSDATA!M142)=4,LEFT(CRSDATA!M142,3)=\"110\"),1100,IF(AND(LEN(CRSDATA!M142)=4,LEFT(CRSDATA!M142,3)=\"422\"),422,CRSDATA!M142))","v":0},{"$f":"IF(CRSDATA!L142=22,\"FA04\",\"\")","v":""},{"$f":"IF(CRSDATA!K142=8,\"FC02\",\"\")","v":""},{"$f":"_xlfn.IFS(OR(P142=\"A00\",P142=\"E01\",P142=\"F01\",AND(P142=\"\",A142<>0),Q142=510,Q142=520,AF142=60),1,P142=\"G01\",IF(AF142=10,21,22),OR(M142=41203,M142=41204),22,OR(AND(OR(P142=\"B02\",P142=\"B03\"),M142=41310),OR(P142=\"E02\",P142=\"I01\")),21,AND(OR(P142=\"B01\",P142=\"B03\",P142=\"C01\"),M142<>41310),IF(VLOOKUP(F142,recipient_country!AB:AD,3,FALSE)=10024,\"\",1),AND(P142=\"B02\",M142<>41310),IF(VLOOKUP(M142,channel_codes!J:P,7,FALSE)=0,\"\",VLOOKUP(M142,channel_codes!J:P,7,FALSE)),ISNUMBER(MATCH(P142,{\"D01\",\"D02\"},0)),IF(VLOOKUP(M142,channel_codes!J:P,7,FALSE)=1,1,IF(VLOOKUP(F142,recipient_country!AB:AD,3,FALSE)=10024,\"\",1)),OR(P142=\"H01\",AND(OR(ISNUMBER(SEARCH(\"41010\", L142)),ISNUMBER(SEARCH(\"41020\", L142)),ISNUMBER(SEARCH(\"41030\", L142)),ISNUMBER(SEARCH(\"41040\", L142)),ISNUMBER(SEARCH(\"41081\", L142))),F142=998)),22,F142=998,22,TRUE,\"\")","v":""},{"$f":"CRSDATA!AN142","v":0},{"$f":"CRSDATA!AO142","v":0},{"$f":"CRSDATA!AQ142","v":0},{"$f":"CRSDATA!AS142","v":0},{"$f":"CRSDATA!BB142","v":0},null,"",{"$f":"IF(AND(AND(CRSDATA!C142<>\"\",CRSDATA!BK142<>\"\"),OR(CRSDATA!N142=421,CRSDATA!N142=422,CRSDATA!N142=4221,CRSDATA!N142=4222,CRSDATA!N142=423,CRSDATA!N142=424,CRSDATA!N142=425,CRSDATA!N142=431,CRSDATA!N142=433,CRSDATA!N142=434)),DATEDIF(CRSDATA!C142,CRSDATA!BK142,\"m\"),\"\")","v":""},{"$f":"CRSDATA!BA142","v":0},{"$f":"CRSDATA!BC142","v":0},{"$f":"IF(CRSDATA!BT142=\"\",\"\",CRSDATA!BT142)","v":""},{"$f":"CRSDATA!L142","v":0}]
[{"$f":"CRSDATA!A143","v":0},{"$f":"CRSDATA!C143","v":0},{"$f":"CRSDATA!D143","v":0},{"$f":"CRSDATA!F143","v":0},{"$f":"CRSDATA!E143","v":0},{"$f":"IF(CRSDATA!H143=3000,998,CRSDATA!H143)","v":0},{"$f":"CRSDATA!O143","v":0},{"$f":"CRSDATA!U143","v":0},{"$f":"IF(CRSDATA!V143=\"\",\"\",CRSDATA!V143)","v":""},{"$f":"IF(CRSDATA!W143=\"\",\"\",CRSDATA!W143)","v":""},{"$f":"key_row(CRSDATA!X143,CRSDATA!Y143,CRSDATA!AL143,CRSDATA!AK143,CRSDATA!AJ143,CRSDATA!AM143,CRSDATA!P143,CRSDATA!V143)","v":""},{"$f":"CRSDATA!P143","v":0},{"$f":"CRSDATA!J143","v":0},{"$f":"CRSDATA!I143","v":0},null,{"$f":"IF(LEFT(CRSDATA!N143,2)=\"A0\",\"A00\",IF(LEFT(CRSDATA!N143,3)=\"B02\",\"B02\",IF(LEFT(CRSDATA!N143,3)=\"B03\",\"B03\",IF(CRSDATA!N143=\"B04\",\"C01\",IF(CRSDATA!N143=\"H01\",\"H00\",IF(OR(CRSDATA!N143=\"H02\",CRSDATA!N143=\"H03\",CRSDATA!N143=\"H04\",CRSDATA!N143=\"H05\",CRSDATA!N143=\"H06\"),\"I01\",IF(CRSDATA!N143=\"\",\"\",CRSDATA!N143)))))))","v":""},{"$f":"IF(AND(LEN(CRSDATA!M143)=4,LEFT(CRSDATA!M143,3)=\"110\"),1100,IF(AND(LEN(CRSDATA!M143)=4,LEFT(CRSDATA!M143,3)=\"422\"),422,CRSDATA!M143))","v":0},{"$f":"IF(CRSDATA!L143=22,\"FA04\",\"\")","v":""},{"$f":"IF(CRSDATA!K143=8,\"FC02\",\"\")","v":""},{"$f":"_xlfn.IFS(OR(P143=\"A00\",P143=\"E01\",P143=\"F01\",AND(P143=\"\",A143<>0),Q143=510,Q143=520,AF143=60),1,P143=\"G01\",IF(AF143=10,21,22),OR(M143=41203,M143=41204),22,OR(AND(OR(P143=\"B02\",P143=\"B03\"),M143=41310),OR(P143=\"E02\",P143=\"I01\")),21,AND(OR(P143=\"B01\",P143=\"B03\",P143=\"C01\"),M143<>41310),IF(VLOOKUP(F143,recipient_country!AB:AD,3,FALSE)=10024,\"\",1),AND(P143=\"B02\",M143<>41310),IF(VLOOKUP(M143,channel_codes!J:P,7,FALSE)=0,\"\",VLOOKUP(M143,channel_codes!J:P,7,FALSE)),ISNUMBER(MATCH(P143,{\"D01\",\"D02\"},0)),IF(VLOOKUP(M143,channel_codes!J:P,7,FALSE)=1,1,IF(VLOOKUP(F143,recipient_country!AB:AD,3,FALSE)=10024,\"\",1)),OR(P143=\"H01\",AND(OR(ISNUMBER(SEARCH(\"41010\", L143)),ISNUMBER(SEARCH(\"41020\", L143)),ISNUMBER(SEARCH(\"41030\", L143)),ISNUMBER(SEARCH(\"41040\", L143)),ISNUMBER(SEARCH(\"41081\", L143))),F143=998)),22,F143=998,22,TRUE,\"\")","v":""},{"$f":"CRSDATA!AN143","v":0},{"$f":"CRSDATA!AO143","v":0},{"$f":"CRSDATA!AQ143","v":0},{"$f":"CRSDATA!AS143","v":0},{"$f":"CRSDATA!BB143","v":0},null,"",{"$f":"IF(AND(AND(CRSDATA!C143<>\"\",CRSDATA!BK143<>\"\"),OR(CRSDATA!N143=421,CRSDATA!N143=422,CRSDATA!N143=4221,CRSDATA!N143=4222,CRSDATA!N143=423,CRSDATA!N143=424,CRSDATA!N143=425,CRSDATA!N143=431,CRSDATA!N143=433,CRSDATA!N143=434)),DATEDIF(CRSDATA!C143,CRSDATA!BK143,\"m\"),\"\")","v":""},{"$f":"CRSDATA!BA143","v":0},{"$f":"CRSDATA!BC143","v":0},{"$f":"IF(CRSDATA!BT143=\"\",\"\",CRSDATA!BT143)","v":""},{"$f":"CRSDATA!L143","v":0}]
[{"$f":"CRSDATA!A144","v":0},{"$f":"CRSDATA!C144","v":0},{"$f":"CRSDATA!D144","v":0},{"$f":"CRSDATA!F144","v":0},{"$f":"CRSDATA!E144","v":0},{"$f":"IF(CRSDATA!H144=3000,998,CRSDATA!H144)","v":0},{"$f":"CRSDATA!O144","v":0},{"$f":"CRSDATA!U144","v":0},{"$f":"IF(CRSDATA!V144=\"\",\"\",CRSDATA!V144)","v":""},{"$f":"IF(CRSDATA!W144=\"\",\"\",CRSDATA!W144)","v":""},{"$f":"key_row(CRSDATA!X144,CRSDATA!Y144,CRSDATA!AL144,CRSDATA!AK144,CRSDATA!AJ144,CRSDATA!AM144,CRSDATA!P144,CRSDATA!V144)","v":""},{"$f":"CRSDATA!P144","v":0},{"$f":"CRSDATA!J144","v":0},{"$f":"CRSDATA!I144","v":0},null,{"$f":"IF(LEFT(CRSDATA!N144,2)=\"A0\",\"A00\",IF(LEFT(CRSDATA!N144,3)=\"B02\",\"B02\",IF(LEFT(CRSDATA!N144,3)=\"B03\",\"B03\",IF(CRSDATA!N144=\"B04\",\"C01\",IF(CRSDATA!N144=\"H01\",\"H00\",IF(OR(CRSDATA!N144=\"H02\",CRSDATA!N144=\"H03\",CRSDATA!N144=\"H04\",CRSDATA!N144=\"H05\",CRSDATA!N144=\"H06\"),\"I01\",IF(CRSDATA!N144=\"\",\"\",CRSDATA!N144)))))))","v":""},{"$f":"IF(AND(LEN(CRSDATA!M144)=4,LEFT(CRSDATA!M144,3)=\"110\"),1100,IF(AND(LEN(CRSDATA!M144)=4,LEFT(CRSDATA!M144,3)=\"422\"),422,CRSDATA!M144))","v":0},{"$f":"IF(CRSDATA!L144=22,\"FA04\",\"\")","v":""},{"$f":"IF(CRSDATA!K144=8,\"FC02\",\"\")","v":""},{"$f":"_xlfn.IFS(OR(P144=\"A00\",P144=\"E01\",P144=\"F01\",AND(P144=\"\",A144<>0),Q144=510,Q144=520,AF144=60),1,P144=\"G01\",IF(AF144=10,21,22),OR(M144=41203,M144=41204),22,OR(AND(OR(P144=\"B02\",P144=\"B03\"),M144=41310),OR(P144=\"E02\",P144=\"I01\")),21,AND(OR(P144=\"B01\",P144=\"B03\",P144=\"C01\"),M144<>41310),IF(VLOOKUP(F144,recipient_country!AB:AD,3,FALSE)=10024,\"\",1),AND(P144=\"B02\",M144<>41310),IF(VLOOKUP(M144,channel_codes!J:P,7,FALSE)=0,\"\",VLOOKUP(M144,channel_codes!J:P,7,FALSE)),ISNUMBER(MATCH(P144,{\"D01\",\"D02\"},0)),IF(VLOOKUP(M144,channel_codes!J:P,7,FALSE)=1,1,IF(VLOOKUP(F144,recipient_country!AB:AD,3,FALSE)=10024,\"\",1)),OR(P144=\"H01\",AND(OR(ISNUMBER(SEARCH(\"41010\", L144)),ISNUMBER(SEARCH(\"41020\", L144)),ISNUMBER(SEARCH(\"41030\", L144)),ISNUMBER(SEARCH(\"41040\", L144)),ISNUMBER(SEARCH(\"41081\", L144))),F144=998)),22,F144=998,22,TRUE,\"\")","v":""},{"$f":"CRSDATA!AN144","v":0},{"$f":"CRSDATA!AO144","v":0},{"$f":"CRSDATA!AQ144","v":0},{"$f":"CRSDATA!AS144","v":0},{"$f":"CRSDATA!BB144","v":0},null,"",{"$f":"IF(AND(AND(CRSDATA!C144<>\"\",CRSDATA!BK144<>\"\"),OR(CRSDATA!N144=421,CRSDATA!N144=422,CRSDATA!N144=4221,CRSDATA!N144=4222,CRSDATA!N144=423,CRSDATA!N144=424,CRSDATA!N144=425,CRSDATA!N144=431,CRSDATA!N144=433,CRSDATA!N144=434)),DATEDIF(CRSDATA!C144,CRSDATA!BK144,\"m\"),\"\")","v":""},{"$f":"CRSDATA!BA144","v":0},{"$f":"CRSDATA!BC144","v":0},{"$f":"IF(CRSDATA!BT144=\"\",\"\",CRSDATA!BT144)","v":""},{"$f":"CRSDATA!L144","v":0}]
[{"$f":"CRSDATA!A145","v":0},{"$f":"CRSDATA!C145","v":0},{"$f":"CRSDATA!D145","v":0},{"$f":"CRSDATA!F145","v":0},{"$f":"CRSDATA!E145","v":0},{"$f":"IF(CRSDATA!H145=3000,998,CRSDATA!H145)","v":0},{"$f":"CRSDATA!O145","v":0},{"$f":"CRSDATA!U145","v":0},{"$f":"IF(CRSDATA!V145=\"\",\"\",CRSDATA!V145)","v":""},{"$f":"IF(CRSDATA!W145=\"\",\"\",CRSDATA!W145)","v":""},{"$f":"key_row(CRSDATA!X145,CRSDATA!Y145,CRSDATA!AL145,CRSDATA!AK145,CRSDATA!AJ145,CRSDATA!AM145,CRSDATA!P145,CRSDATA!V145)","v":""},{"$f":"CRSDATA!P145","v":0},{"$f":"CRSDATA!J145","v":0},{"$f":"CRSDATA!I145","v":0},null,{"$f":"IF(LEFT(CRSDATA!N145,2)=\"A0\",\"A00\",IF(LEFT(CRSDATA!N145,3)=\"B02\",\"B02\",IF(LEFT(CRSDATA!N145,3)=\"B03\",\"B03\",IF(CRSDATA!N145=\"B04\",\"C01\",IF(CRSDATA!N145=\"H01\",\"H00\",IF(OR(CRSDATA!N145=\"H02\",CRSDATA!N145=\"H03\",CRSDATA!N145=\"H04\",CRSDATA!N145=\"H05\",CRSDATA!N145=\"H06\"),\"I01\",IF(CRSDATA!N145=\"\",\"\",CRSDATA!N145)))))))","v":""},{"$f":"IF(AND(LEN(CRSDATA!M145)=4,LEFT(CRSDATA!M145,3)=\"110\"),1100,IF(AND(LEN(CRSDATA!M145)=4,LEFT(CRSDATA!M145,3)=\"422\"),422,CRSDATA!M145))","v":0},{"$f":"IF(CRSDATA!L145=22,\"FA04\",\"\")","v":""},{"$f":"IF(CRSDATA!K145=8,\"FC02\",\"\")","v":""},{"$f":"_xlfn.IFS(OR(P145=\"A00\",P145=\"E01\",P145=\"F01\",AND(P145=\"\",A145<>0),Q145=510,Q145=520,AF145=60),1,P145=\"G01\",IF(AF145=10,21,22),OR(M145=41203,M145=41204),22,OR(AND(OR(P145=\"B02\",P145=\"B03\"),M145=41310),OR(P145=\"E02\",P145=\"I01\")),21,AND(OR(P145=\"B01\",P145=\"B03\",P145=\"C01\"),M145<>41310),IF(VLOOKUP(F145,recipient_country!AB:AD,3,FALSE)=10024,\"\",1),AND(P145=\"B02\",M145<>41310),IF(VLOOKUP(M145,channel_codes!J:P,7,FALSE)=0,\"\",VLOOKUP(M145,channel_codes!J:P,7,FALSE)),ISNUMBER(MATCH(P145,{\"D01\",\"D02\"},0)),IF(VLOOKUP(M145,channel_codes!J:P,7,FALSE)=1,1,IF(VLOOKUP(F145,recipient_country!AB:AD,3,FALSE)=10024,\"\",1)),OR(P145=\"H01\",AND(OR(ISNUMBER(SEARCH(\"41010\", L145)),ISNUMBER(SEARCH(\"41020\", L145)),ISNUMBER(SEARCH(\"41030\", L145)),ISNUMBER(SEARCH(\"41040\", L145)),ISNUMBER(SEARCH(\"41081\", L145))),F145=998)),22,F145=998,22,TRUE,\"\")","v":""},{"$f":"CRSDATA!AN145","v":0},{"$f":"CRSDATA!AO145","v":0},{"$f":"CRSDATA!AQ145","v":0},{"$f":"CRSDATA!AS145","v":0},{"$f":"CRSDATA!BB145","v":0},null,"",{"$f":"IF(AND(AND(CRSDATA!C145<>\"\",CRSDATA!BK145<>\"\"),OR(CRSDATA!N145=421,CRSDATA!N145=422,CRSDATA!N145=4221,CRSDATA!N145=4222,CRSDATA!N145=423,CRSDATA!N145=424,CRSDATA!N145=425,CRSDATA!N145=431,CRSDATA!N145=433,CRSDATA!N145=434)),DATEDIF(CRSDATA!C145,CRSDATA!BK145,\"m\"),\"\")","v":""},{"$f":"CRSDATA!BA145","v":0},{"$f":"CRSDATA!BC145","v":0},{"$f":"IF(CRSDATA!BT145=\"\",\"\",CRSDATA!BT145)","v":""},{"$f":"CRSDATA!L145","v":0}]
[{"$f":"CRSDATA!A146","v":0},{"$f":"CRSDATA!C146","v":0},{"$f":"CRSDATA!D146","v":0},{"$f":"CRSDATA!F146","v":0},{"$f":"CRSDATA!E146","v":0},{"$f":"IF(CRSDATA!H146=3000,998,CRSDATA!H146)","v":0},{"$f":"CRSDATA!O146","v":0},{"$f":"CRSDATA!U146","v":0},{"$f":"IF(CRSDATA!V146=\"\",\"\",CRSDATA!V146)","v":""},{"$f":"IF(CRSDATA!W146=\"\",\"\",CRSDATA!W146)","v":""},{"$f":"key_row(CRSDATA!X146,CRSDATA!Y146,CRSDATA!AL146,CRSDATA!AK146,CRSDATA!AJ146,CRSDATA!AM146,CRSDATA!P146,CRSDATA!V146)","v":""},{"$f":"CRSDATA!P146","v":0},{"$f":"CRSDATA!J146","v":0},{"$f":"CRSDATA!I146","v":0},null,{"$f":"IF(LEFT(CRSDATA!N146,2)=\"A0\",\"A00\",IF(LEFT(CRSDATA!N146,3)=\"B02\",\"B02\",IF(LEFT(CRSDATA!N146,3)=\"B03\",\"B03\",IF(CRSDATA!N146=\"B04\",\"C01\",IF(CRSDATA!N146=\"H01\",\"H00\",IF(OR(CRSDATA!N146=\"H02\",CRSDATA!N146=\"H03\",CRSDATA!N146=\"H04\",CRSDATA!N146=\"H05\",CRSDATA!N146=\"H06\"),\"I01\",IF(CRSDATA!N146=\"\",\"\",CRSDATA!N146)))))))","v":""},{"$f":"IF(AND(LEN(CRSDATA!M146)=4,LEFT(CRSDATA!M146,3)=\"110\"),1100,IF(AND(LEN(CRSDATA!M146)=4,LEFT(CRSDATA!M146,3)=\"422\"),422,CRSDATA!M146))","v":0},{"$f":"IF(CRSDATA!L146=22,\"FA04\",\"\")","v":""},{"$f":"IF(CRSDATA!K146=8,\"FC02\",\"\")","v":""},{"$f":"_xlfn.IFS(OR(P146=\"A00\",P146=\"E01\",P146=\"F01\",AND(P146=\"\",A146<>0),Q146=510,Q146=520,AF146=60),1,P146=\"G01\",IF(AF146=10,21,22),OR(M146=41203,M146=41204),22,OR(AND(OR(P146=\"B02\",P146=\"B03\"),M146=41310),OR(P146=\"E02\",P146=\"I01\")),21,AND(OR(P146=\"B01\",P146=\"B03\",P146=\"C01\"),M146<>41310),IF(VLOOKUP(F146,recipient_country!AB:AD,3,FALSE)=10024,\"\",1),AND(P146=\"B02\",M146<>41310),IF(VLOOKUP(M146,channel_codes!J:P,7,FALSE)=0,\"\",VLOOKUP(M146,channel_codes!J:P,7,FALSE)),ISNUMBER(MATCH(P146,{\"D01\",\"D02\"},0)),IF(VLOOKUP(M146,channel_codes!J:P,7,FALSE)=1,1,IF(VLOOKUP(F146,recipient_country!AB:AD,3,FALSE)=10024,\"\",1)),OR(P146=\"H01\",AND(OR(ISNUMBER(SEARCH(\"41010\", L146)),ISNUMBER(SEARCH(\"41020\", L146)),ISNUMBER(SEARCH(\"41030\", L146)),ISNUMBER(SEARCH(\"41040\", L146)),ISNUMBER(SEARCH(\"41081\", L146))),F146=998)),22,F146=998,22,TRUE,\"\")","v":""},{"$f":"CRSDATA!AN146","v":0},{"$f":"CRSDATA!AO146","v":0},{"$f":"CRSDATA!AQ146","v":0},{"$f":"CRSDATA!AS146","v":0},{"$f":"CRSDATA!BB146","v":0},null,"",{"$f":"IF(AND(AND(CRSDATA!C146<>\"\",CRSDATA!BK146<>\"\"),OR(CRSDATA!N146=421,CRSDATA!N146=422,CRSDATA!N146=4221,CRSDATA!N146=4222,CRSDATA!N146=423,CRSDATA!N146=424,CRSDATA!N146=425,CRSDATA!N146=431,CRSDATA!N146=433,CRSDATA!N146=434)),DATEDIF(CRSDATA!C146,CRSDATA!BK146,\"m\"),\"\")","v":""},{"$f":"CRSDATA!BA146","v":0},{"$f":"CRSDATA!BC146","v":0},{"$f":"IF(CRSDATA!BT146=\"\",\"\",CRSDATA!BT146)","v":""},{"$f":"CRSDATA!L146","v":0}]
[{"$f":"CRSDATA!A147","v":0},{"$f":"CRSDATA!C147","v":0},{"$f":"CRSDATA!D147","v":0},{"$f":"CRSDATA!F147","v":0},{"$f":"CRSDATA!E147","v":0},{"$f":"IF(CRSDATA!H147=3000,998,CRSDATA!H147)","v":0},{"$f":"CRSDATA!O147","v":0},{"$f":"CRSDATA!U147","v":0},{"$f":"IF(CRSDATA!V147=\"\",\"\",CRSDATA!V147)","v":""},{"$f":"IF(CRSDATA!W147=\"\",\"\",CRSDATA!W147)","v":""},{"$f":"key_row(CRSDATA!X147,CRSDATA!Y147,CRSDATA!AL147,CRSDATA!AK147,CRSDATA!AJ147,CRSDATA!AM147,CRSDATA!P147,CRSDATA!V147)","v":""},{"$f":"CRSDATA!P147","v":0},{"$f":"CRSDATA!J147","v":0},{"$f":"CRSDATA!I147","v":0},null,{"$f":"IF(LEFT(CRSDATA!N147,2)=\"A0\",\"A00\",IF(LEFT(CRSDATA!N147,3)=\"B02\",\"B02\",IF(LEFT(CRSDATA!N147,3)=\"B03\",\"B03\",IF(CRSDATA!N147=\"B04\",\"C01\",IF(CRSDATA!N147=\"H01\",\"H00\",IF(OR(CRSDATA!N147=\"H02\",CRSDATA!N147=\"H03\",CRSDATA!N147=\"H04\",CRSDATA!N147=\"H05\",CRSDATA!N147=\"H06\"),\"I01\",IF(CRSDATA!N147=\"\",\"\",CRSDATA!N147)))))))","v":""},{"$f":"IF(AND(LEN(CRSDATA!M147)=4,LEFT(CRSDATA!M147,3)=\"110\"),1100,IF(AND(LEN(CRSDATA!M147)=4,LEFT(CRSDATA!M147,3)=\"422\"),422,CRSDATA!M147))","v":0},{"$f":"IF(CRSDATA!L147=22,\"FA04\",\"\")","v":""},{"$f":"IF(CRSDATA!K147=8,\"FC02\",\"\")","v":""},{"$f":"_xlfn.IFS(OR(P147=\"A00\",P147=\"E01\",P147=\"F01\",AND(P147=\"\",A147<>0),Q147=510,Q147=520,AF147=60),1,P147=\"G01\",IF(AF147=10,21,22),OR(M147=41203,M147=41204),22,OR(AND(OR(P147=\"B02\",P147=\"B03\"),M147=41310),OR(P147=\"E02\",P147=\"I01\")),21,AND(OR(P147=\"B01\",P147=\"B03\",P147=\"C01\"),M147<>41310),IF(VLOOKUP(F147,recipient_country!AB:AD,3,FALSE)=10024,\"\",1),AND(P147=\"B02\",M147<>41310),IF(VLOOKUP(M147,channel_codes!J:P,7,FALSE)=0,\"\",VLOOKUP(M147,channel_codes!J:P,7,FALSE)),ISNUMBER(MATCH(P147,{\"D01\",\"D02\"},0)),IF(VLOOKUP(M147,channel_codes!J:P,7,FALSE)=1,1,IF(VLOOKUP(F147,recipient_country!AB:AD,3,FALSE)=10024,\"\",1)),OR(P147=\"H01\",AND(OR(ISNUMBER(SEARCH(\"41010\", L147)),ISNUMBER(SEARCH(\"41020\", L147)),ISNUMBER(SEARCH(\"41030\", L147)),ISNUMBER(SEARCH(\"41040\", L147)),ISNUMBER(SEARCH(\"41081\", L147))),F147=998)),22,F147=998,22,TRUE,\"\")","v":""},{"$f":"CRSDATA!AN147","v":0},{"$f":"CRSDATA!AO147","v":0},{"$f":"CRSDATA!AQ147","v":0},{"$f":"CRSDATA!AS147","v":0},{"$f":"CRSDATA!BB147","v":0},null,"",{"$f":"IF(AND(AND(CRSDATA!C147<>\"\",CRSDATA!BK147<>\"\"),OR(CRSDATA!N147=421,CRSDATA!N147=422,CRSDATA!N147=4221,CRSDATA!N147=4222,CRSDATA!N147=423,CRSDATA!N147=424,CRSDATA!N147=425,CRSDATA!N147=431,CRSDATA!N147=433,CRSDATA!N147=434)),DATEDIF(CRSDATA!C147,CRSDATA!BK147,\"m\"),\"\")","v":""},{"$f":"CRSDATA!BA147","v":0},{"$f":"CRSDATA!BC147","v":0},{"$f":"IF(CRSDATA!BT147=\"\",\"\",CRSDATA!BT147)","v":""},{"$f":"CRSDATA!L147","v":0}]
[{"$f":"CRSDATA!A148","v":0},{"$f":"CRSDATA!C148","v":0},{"$f":"CRSDATA!D148","v":0},{"$f":"CRSDATA!F148","v":0},{"$f":"CRSDATA!E148","v":0},{"$f":"IF(CRSDATA!H148=3000,998,CRSDATA!H148)","v":0},{"$f":"CRSDATA!O148","v":0},{"$f":"CRSDATA!U148","v":0},{"$f":"IF(CRSDATA!V148=\"\",\"\",CRSDATA!V148)","v":""},{"$f":"IF(CRSDATA!W148=\"\",\"\",CRSDATA!W148)","v":""},{"$f":"key_row(CRSDATA!X148,CRSDATA!Y148,CRSDATA!AL148,CRSDATA!AK148,CRSDATA!AJ148,CRSDATA!AM148,CRSDATA!P148,CRSDATA!V148)","v":""},{"$f":"CRSDATA!P148","v":0},{"$f":"CRSDATA!J148","v":0},{"$f":"CRSDATA!I148","v":0},null,{"$f":"IF(LEFT(CRSDATA!N148,2)=\"A0\",\"A00\",IF(LEFT(CRSDATA!N148,3)=\"B02\",\"B02\",IF(LEFT(CRSDATA!N148,3)=\"B03\",\"B03\",IF(CRSDATA!N148=\"B04\",\"C01\",IF(CRSDATA!N148=\"H01\",\"H00\",IF(OR(CRSDATA!N148=\"H02\",CRSDATA!N148=\"H03\",CRSDATA!N148=\"H04\",CRSDATA!N148=\"H05\",CRSDATA!N148=\"H06\"),\"I01\",IF(CRSDATA!N148=\"\",\"\",CRSDATA!N148)))))))","v":""},{"$f":"IF(AND(LEN(CRSDATA!M148)=4,LEFT(CRSDATA!M148,3)=\"110\"),1100,IF(AND(LEN(CRSDATA!M148)=4,LEFT(CRSDATA!M148,3)=\"422\"),422,CRSDATA!M148))","v":0},{"$f":"IF(CRSDATA!L148=22,\"FA04\",\"\")","v":""},{"$f":"IF(CRSDATA!K148=8,\"FC02\",\"\")","v":""},{"$f":"_xlfn.IFS(OR(P148=\"A00\",P148=\"E01\",P148=\"F01\",AND(P148=\"\",A148<>0),Q148=510,Q148=520,AF148=60),1,P148=\"G01\",IF(AF148=10,21,22),OR(M148=41203,M148=41204),22,OR(AND(OR(P148=\"B02\",P148=\"B03\"),M148=41310),OR(P148=\"E02\",P148=\"I01\")),21,AND(OR(P148=\"B01\",P148=\"B03\",P148=\"C01\"),M148<>41310),IF(VLOOKUP(F148,recipient_country!AB:AD,3,FALSE)=10024,\"\",1),AND(P148=\"B02\",M148<>41310),IF(VLOOKUP(M148,channel_codes!J:P,7,FALSE)=0,\"\",VLOOKUP(M148,channel_codes!J:P,7,FALSE)),ISNUMBER(MATCH(P148,{\"D01\",\"D02\"},0)),IF(VLOOKUP(M148,channel_codes!J:P,7,FALSE)=1,1,IF(VLOOKUP(F148,recipient_country!AB:AD,3,FALSE)=10024,\"\",1)),OR(P148=\"H01\",AND(OR(ISNUMBER(SEARCH(\"41010\", L148)),ISNUMBER(SEARCH(\"41020\", L148)),ISNUMBER(SEARCH(\"41030\", L148)),ISNUMBER(SEARCH(\"41040\", L148)),ISNUMBER(SEARCH(\"41081\", L148))),F148=998)),22,F148=998,22,TRUE,\"\")","v":""},{"$f":"CRSDATA!AN148","v":0},{"$f":"CRSDATA!AO148","v":0},{"$f":"CRSDATA!AQ148","v":0},{"$f":"CRSDATA!AS148","v":0},{"$f":"CRSDATA!BB148","v":0},null,"",{"$f":"IF(AND(AND(CRSDATA!C148<>\"\",CRSDATA!BK148<>\"\"),OR(CRSDATA!N148=421,CRSDATA!N148=422,CRSDATA!N148=4221,CRSDATA!N148=4222,CRSDATA!N148=423,CRSDATA!N148=424,CRSDATA!N148=425,CRSDATA!N148=431,CRSDATA!N148=433,CRSDATA!N148=434)),DATEDIF(CRSDATA!C148,CRSDATA!BK148,\"m\"),\"\")","v":""},{"$f":"CRSDATA!BA148","v":0},{"$f":"CRSDATA!BC148","v":0},{"$f":"IF(CRSDATA!BT148=\"\",\"\",CRSDATA!BT148)","v":""},{"$f":"CRSDATA!L148","v":0}]
[{"$f":"CRSDATA!A149","v":0},{"$f":"CRSDATA!C149","v":0},{"$f":"CRSDATA!D149","v":0},{"$f":"CRSDATA!F149","v":0},{"$f":"CRSDATA!E149","v":0},{"$f":"IF(CRSDATA!H149=3000,998,CRSDATA!H149)","v":0},{"$f":"CRSDATA!O149","v":0},{"$f":"CRSDATA!U149","v":0},{"$f":"IF(CRSDATA!V149=\"\",\"\",CRSDATA!V149)","v":""},{"$f":"IF(CRSDATA!W149=\"\",\"\",CRSDATA!W149)","v":""},{"$f":"key_row(CRSDATA!X149,CRSDATA!Y149,CRSDATA!AL149,CRSDATA!AK149,CRSDATA!AJ149,CRSDATA!AM149,CRSDATA!P149,CRSDATA!V149)","v":""},{"$f":"CRSDATA!P149","v":0},{"$f":"CRSDATA!J149","v":0},{"$f":"CRSDATA!I149","v":0},null,{"$f":"IF(LEFT(CRSDATA!N149,2)=\"A0\",\"A00\",IF(LEFT(CRSDATA!N149,3)=\"B02\",\"B02\",IF(LEFT(CRSDATA!N149,3)=\"B03\",\"B03\",IF(CRSDATA!N149=\"B04\",\"C01\",IF(CRSDATA!N149=\"H01\",\"H00\",IF(OR(CRSDATA!N149=\"H02\",CRSDATA!N149=\"H03\",CRSDATA!N149=\"H04\",CRSDATA!N149=\"H05\",CRSDATA!N149=\"H06\"),\"I01\",IF(CRSDATA!N149=\"\",\"\",CRSDATA!N149)))))))","v":""},{"$f":"IF(AND(LEN(CRSDATA!M149)=4,LEFT(CRSDATA!M149,3)=\"110\"),1100,IF(AND(LEN(CRSDATA!M149)=4,LEFT(CRSDATA!M149,3)=\"422\"),422,CRSDATA!M149))","v":0},{"$f":"IF(CRSDATA!L149=22,\"FA04\",\"\")","v":""},{"$f":"IF(CRSDATA!K149=8,\"FC02\",\"\")","v":""},{"$f":"_xlfn.IFS(OR(P149=\"A00\",P149=\"E01\",P149=\"F01\",AND(P149=\"\",A149<>0),Q149=510,Q149=520,AF149=60),1,P149=\"G01\",IF(AF149=10,21,22),OR(M149=41203,M149=41204),22,OR(AND(OR(P149=\"B02\",P149=\"B03\"),M149=41310),OR(P149=\"E02\",P149=\"I01\")),21,AND(OR(P149=\"B01\",P149=\"B03\",P149=\"C01\"),M149<>41310),IF(VLOOKUP(F149,recipient_country!AB:AD,3,FALSE)=10024,\"\",1),AND(P149=\"B02\",M149<>41310),IF(VLOOKUP(M149,channel_codes!J:P,7,FALSE)=0,\"\",VLOOKUP(M149,channel_codes!J:P,7,FALSE)),ISNUMBER(MATCH(P149,{\"D01\",\"D02\"},0)),IF(VLOOKUP(M149,channel_codes!J:P,7,FALSE)=1,1,IF(VLOOKUP(F149,recipient_country!AB:AD,3,FALSE)=10024,\"\",1)),OR(P149=\"H01\",AND(OR(ISNUMBER(SEARCH(\"41010\", L149)),ISNUMBER(SEARCH(\"41020\", L149)),ISNUMBER(SEARCH(\"41030\", L149)),ISNUMBER(SEARCH(\"41040\", L149)),ISNUMBER(SEARCH(\"41081\", L149))),F149=998)),22,F149=998,22,TRUE,\"\")","v":""},{"$f":"CRSDATA!AN149","v":0},{"$f":"CRSDATA!AO149","v":0},{"$f":"CRSDATA!AQ149","v":0},{"$f":"CRSDATA!AS149","v":0},{"$f":"CRSDATA!BB149","v":0},null,"",{"$f":"IF(AND(AND(CRSDATA!C149<>\"\",CRSDATA!BK149<>\"\"),OR(CRSDATA!N149=421,CRSDATA!N149=422,CRSDATA!N149=4221,CRSDATA!N149=4222,CRSDATA!N149=423,CRSDATA!N149=424,CRSDATA!N149=425,CRSDATA!N149=431,CRSDATA!N149=433,CRSDATA!N149=434)),DATEDIF(CRSDATA!C149,CRSDATA!BK149,\"m\"),\"\")","v":""},{"$f":"CRSDATA!BA149","v":0},{"$f":"CRSDATA!BC149","v":0},{"$f":"IF(CRSDATA!BT149=\"\",\"\",CRSDATA!BT149)","v":""},{"$f":"CRSDATA!L149","v":0}]
[{"$f":"CRSDATA!A150","v":0},{"$f":"CRSDATA!C150","v":0},{"$f":"CRSDATA!D150","v":0},{"$f":"CRSDATA!F150","v":0},{"$f":"CRSDATA!E150","v":0},{"$f":"IF(CRSDATA!H150=3000,998,CRSDATA!H150)","v":0},{"$f":"CRSDATA!O150","v":0},{"$f":"CRSDATA!U150","v":0},{"$f":"IF(CRSDATA!V150=\"\",\"\",CRSDATA!V150)","v":""},{"$f":"IF(CRSDATA!W150=\"\",\"\",CRSDATA!W150)","v":""},{"$f":"key_row(CRSDATA!X150,CRSDATA!Y150,CRSDATA!AL150,CRSDATA!AK150,CRSDATA!AJ150,CRSDATA!AM150,CRSDATA!P150,CRSDATA!V150)","v":""},{"$f":"CRSDATA!P150","v":0},{"$f":"CRSDATA!J150","v":0},{"$f":"CRSDATA!I150","v":0},null,{"$f":"IF(LEFT(CRSDATA!N150,2)=\"A0\",\"A00\",IF(LEFT(CRSDATA!N150,3)=\"B02\",\"B02\",IF(LEFT(CRSDATA!N150,3)=\"B03\",\"B03\",IF(CRSDATA!N150=\"B04\",\"C01\",IF(CRSDATA!N150=\"H01\",\"H00\",IF(OR(CRSDATA!N150=\"H02\",CRSDATA!N150=\"H03\",CRSDATA!N150=\"H04\",CRSDATA!N150=\"H05\",CRSDATA!N150=\"H06\"),\"I01\",IF(CRSDATA!N150=\"\",\"\",CRSDATA!N150)))))))","v":""},{"$f":"IF(AND(LEN(CRSDATA!M150)=4,LEFT(CRSDATA!M150,3)=\"110\"),1100,IF(AND(LEN(CRSDATA!M150)=4,LEFT(CRSDATA!M150,3)=\"422\"),422,CRSDATA!M150))","v":0},{"$f":"IF(CRSDATA!L150=22,\"FA04\",\"\")","v":""},{"$f":"IF(CRSDATA!K150=8,\"FC02\",\"\")","v":""},{"$f":"_xlfn.IFS(OR(P150=\"A00\",P150=\"E01\",P150=\"F01\",AND(P150=\"\",A150<>0),Q150=510,Q150=520,AF150=60),1,P150=\"G01\",IF(AF150=10,21,22),OR(M150=41203,M150=41204),22,OR(AND(OR(P150=\"B02\",P150=\"B03\"),M150=41310),OR(P150=\"E02\",P150=\"I01\")),21,AND(OR(P150=\"B01\",P150=\"B03\",P150=\"C01\"),M150<>41310),IF(VLOOKUP(F150,recipient_country!AB:AD,3,FALSE)=10024,\"\",1),AND(P150=\"B02\",M150<>41310),IF(VLOOKUP(M150,channel_codes!J:P,7,FALSE)=0,\"\",VLOOKUP(M150,channel_codes!J:P,7,FALSE)),ISNUMBER(MATCH(P150,{\"D01\",\"D02\"},0)),IF(VLOOKUP(M150,channel_codes!J:P,7,FALSE)=1,1,IF(VLOOKUP(F150,recipient_country!AB:AD,3,FALSE)=10024,\"\",1)),OR(P150=\"H01\",AND(OR(ISNUMBER(SEARCH(\"41010\", L150)),ISNUMBER(SEARCH(\"41020\", L150)),ISNUMBER(SEARCH(\"41030\", L150)),ISNUMBER(SEARCH(\"41040\", L150)),ISNUMBER(SEARCH(\"41081\", L150))),F150=998)),22,F150=998,22,TRUE,\"\")","v":""},{"$f":"CRSDATA!AN150","v":0},{"$f":"CRSDATA!AO150","v":0},{"$f":"CRSDATA!AQ150","v":0},{"$f":"CRSDATA!AS150","v":0},{"$f":"CRSDATA!BB150","v":0},null,"",{"$f":"IF(AND(AND(CRSDATA!C150<>\"\",CRSDATA!BK150<>\"\"),OR(CRSDATA!N150=421,CRSDATA!N150=422,CRSDATA!N150=4221,CRSDATA!N150=4222,CRSDATA!N150=423,CRSDATA!N150=424,CRSDATA!N150=425,CRSDATA!N150=431,CRSDATA!N150=433,CRSDATA!N150=434)),DATEDIF(CRSDATA!C150,CRSDATA!BK150,\"m\"),\"\")","v":""},{"$f":"CRSDATA!BA150","v":0},{"$f":"CRSDATA!BC150","v":0},{"$f":"IF(CRSDATA!BT150=\"\",\"\",CRSDATA!BT150)","v":""},{"$f":"CRSDATA!L150","v":0}]
[{"$f":"CRSDATA!A151","v":0},{"$f":"CRSDATA!C151","v":0},{"$f":"CRSDATA!D151","v":0},{"$f":"CRSDATA!F151","v":0},{"$f":"CRSDATA!E151","v":0},{"$f":"IF(CRSDATA!H151=3000,998,CRSDATA!H151)","v":0},{"$f":"CRSDATA!O151","v":0},{"$f":"CRSDATA!U151","v":0},{"$f":"IF(CRSDATA!V151=\"\",\"\",CRSDATA!V151)","v":""},{"$f":"IF(CRSDATA!W151=\"\",\"\",CRSDATA!W151)","v":""},{"$f":"key_row(CRSDATA!X151,CRSDATA!Y151,CRSDATA!AL151,CRSDATA!AK151,CRSDATA!AJ151,CRSDATA!AM151,CRSDATA!P151,CRSDATA!V151)","v":""},{"$f":"CRSDATA!P151","v":0},{"$f":"CRSDATA!J151","v":0},{"$f":"CRSDATA!I151","v":0},null,{"$f":"IF(LEFT(CRSDATA!N151,2)=\"A0\",\"A00\",IF(LEFT(CRSDATA!N151,3)=\"B02\",\"B02\",IF(LEFT(CRSDATA!N151,3)=\"B03\",\"B03\",IF(CRSDATA!N151=\"B04\",\"C01\",IF(CRSDATA!N151=\"H01\",\"H00\",IF(OR(CRSDATA!N151=\"H02\",CRSDATA!N151=\"H03\",CRSDATA!N151=\"H04\",CRSDATA!N151=\"H05\",CRSDATA!N151=\"H06\"),\"I01\",IF(CRSDATA!N151=\"\",\"\",CRSDATA!N151)))))))","v":""},{"$f":"IF(AND(LEN(CRSDATA!M151)=4,LEFT(CRSDATA!M151,3)=\"110\"),1100,IF(AND(LEN(CRSDATA!M151)=4,LEFT(CRSDATA!M151,3)=\"422\"),422,CRSDATA!M151))","v":0},{"$f":"IF(CRSDATA!L151=22,\"FA04\",\"\")","v":""},{"$f":"IF(CRSDATA!K151=8,\"FC02\",\"\")","v":""},{"$f":"_xlfn.IFS(OR(P151=\"A00\",P151=\"E01\",P151=\"F01\",AND(P151=\"\",A151<>0),Q151=510,Q151=520,AF151=60),1,P151=\"G01\",IF(AF151=10,21,22),OR(M151=41203,M151=41204),22,OR(AND(OR(P151=\"B02\",P151=\"B03\"),M151=41310),OR(P151=\"E02\",P151=\"I01\")),21,AND(OR(P151=\"B01\",P151=\"B03\",P151=\"C01\"),M151<>41310),IF(VLOOKUP(F151,recipient_country!AB:AD,3,FALSE)=10024,\"\",1),AND(P151=\"B02\",M151<>41310),IF(VLOOKUP(M151,channel_codes!J:P,7,FALSE)=0,\"\",VLOOKUP(M151,channel_codes!J:P,7,FALSE)),ISNUMBER(MATCH(P151,{\"D01\",\"D02\"},0)),IF(VLOOKUP(M151,channel_codes!J:P,7,FALSE)=1,1,IF(VLOOKUP(F151,recipient_country!AB:AD,3,FALSE)=10024,\"\",1)),OR(P151=\"H01\",AND(OR(ISNUMBER(SEARCH(\"41010\", L151)),ISNUMBER(SEARCH(\"41020\", L151)),ISNUMBER(SEARCH(\"41030\", L151)),ISNUMBER(SEARCH(\"41040\", L151)),ISNUMBER(SEARCH(\"41081\", L151))),F151=998)),22,F151=998,22,TRUE,\"\")","v":""},{"$f":"CRSDATA!AN151","v":0},{"$f":"CRSDATA!AO151","v":0},{"$f":"CRSDATA!AQ151","v":0},{"$f":"CRSDATA!AS151","v":0},{"$f":"CRSDATA!BB151","v":0},null,"",{"$f":"IF(AND(AND(CRSDATA!C151<>\"\",CRSDATA!BK151<>\"\"),OR(CRSDATA!N151=421,CRSDATA!N151=422,CRSDATA!N151=4221,CRSDATA!N151=4222,CRSDATA!N151=423,CRSDATA!N151=424,CRSDATA!N151=425,CRSDATA!N151=431,CRSDATA!N151=433,CRSDATA!N151=434)),DATEDIF(CRSDATA!C151,CRSDATA!BK151,\"m\"),\"\")","v":""},{"$f":"CRSDATA!BA151","v":0},{"$f":"CRSDATA!BC151","v":0},{"$f":"IF(CRSDATA!BT151=\"\",\"\",CRSDATA!BT151)","v":""},{"$f":"CRSDATA!L151","v":0}]
[{"$f":"CRSDATA!A152","v":0},{"$f":"CRSDATA!C152","v":0},{"$f":"CRSDATA!D152","v":0},{"$f":"CRSDATA!F152","v":0},{"$f":"CRSDATA!E152","v":0},{"$f":"IF(CRSDATA!H152=3000,998,CRSDATA!H152)","v":0},{"$f":"CRSDATA!O152","v":0},{"$f":"CRSDATA!U152","v":0},{"$f":"IF(CRSDATA!V152=\"\",\"\",CRSDATA!V152)","v":""},{"$f":"IF(CRSDATA!W152=\"\",\"\",CRSDATA!W152)","v":""},{"$f":"key_row(CRSDATA!X152,CRSDATA!Y152,CRSDATA!AL152,CRSDATA!AK152,CRSDATA!AJ152,CRSDATA!AM152,CRSDATA!P152,CRSDATA!V152)","v":""},{"$f":"CRSDATA!P152","v":0},{"$f":"CRSDATA!J152","v":0},{"$f":"CRSDATA!I152","v":0},null,{"$f":"IF(LEFT(CRSDATA!N152,2)=\"A0\",\"A00\",IF(LEFT(CRSDATA!N152,3)=\"B02\",\"B02\",IF(LEFT(CRSDATA!N152,3)=\"B03\",\"B03\",IF(CRSDATA!N152=\"B04\",\"C01\",IF(CRSDATA!N152=\"H01\",\"H00\",IF(OR(CRSDATA!N152=\"H02\",CRSDATA!N152=\"H03\",CRSDATA!N152=\"H04\",CRSDATA!N152=\"H05\",CRSDATA!N152=\"H06\"),\"I01\",IF(CRSDATA!N152=\"\",\"\",CRSDATA!N152)))))))","v":""},{"$f":"IF(AND(LEN(CRSDATA!M152)=4,LEFT(CRSDATA!M152,3)=\"110\"),1100,IF(AND(LEN(CRSDATA!M152)=4,LEFT(CRSDATA!M152,3)=\"422\"),422,CRSDATA!M152))","v":0},{"$f":"IF(CRSDATA!L152=22,\"FA04\",\"\")","v":""},{"$f":"IF(CRSDATA!K152=8,\"FC02\",\"\")","v":""},{"$f":"_xlfn.IFS(OR(P152=\"A00\",P152=\"E01\",P152=\"F01\",AND(P152=\"\",A152<>0),Q152=510,Q152=520,AF152=60),1,P152=\"G01\",IF(AF152=10,21,22),OR(M152=41203,M152=41204),22,OR(AND(OR(P152=\"B02\",P152=\"B03\"),M152=41310),OR(P152=\"E02\",P152=\"I01\")),21,AND(OR(P152=\"B01\",P152=\"B03\",P152=\"C01\"),M152<>41310),IF(VLOOKUP(F152,recipient_country!AB:AD,3,FALSE)=10024,\"\",1),AND(P152=\"B02\",M152<>41310),IF(VLOOKUP(M152,channel_codes!J:P,7,FALSE)=0,\"\",VLOOKUP(M152,channel_codes!J:P,7,FALSE)),ISNUMBER(MATCH(P152,{\"D01\",\"D02\"},0)),IF(VLOOKUP(M152,channel_codes!J:P,7,FALSE)=1,1,IF(VLOOKUP(F152,recipient_country!AB:AD,3,FALSE)=10024,\"\",1)),OR(P152=\"H01\",AND(OR(ISNUMBER(SEARCH(\"41010\", L152)),ISNUMBER(SEARCH(\"41020\", L152)),ISNUMBER(SEARCH(\"41030\", L152)),ISNUMBER(SEARCH(\"41040\", L152)),ISNUMBER(SEARCH(\"41081\", L152))),F152=998)),22,F152=998,22,TRUE,\"\")","v":""},{"$f":"CRSDATA!AN152","v":0},{"$f":"CRSDATA!AO152","v":0},{"$f":"CRSDATA!AQ152","v":0},{"$f":"CRSDATA!AS152","v":0},{"$f":"CRSDATA!BB152","v":0},null,"",{"$f":"IF(AND(AND(CRSDATA!C152<>\"\",CRSDATA!BK152<>\"\"),OR(CRSDATA!N152=421,CRSDATA!N152=422,CRSDATA!N152=4221,CRSDATA!N152=4222,CRSDATA!N152=423,CRSDATA!N152=424,CRSDATA!N152=425,CRSDATA!N152=431,CRSDATA!N152=433,CRSDATA!N152=434)),DATEDIF(CRSDATA!C152,CRSDATA!BK152,\"m\"),\"\")","v":""},{"$f":"CRSDATA!BA152","v":0},{"$f":"CRSDATA!BC152","v":0},{"$f":"IF(CRSDATA!BT152=\"\",\"\",CRSDATA!BT152)","v":""},{"$f":"CRSDATA!L152","v":0}]
[{"$f":"CRSDATA!A153","v":0},{"$f":"CRSDATA!C153","v":0},{"$f":"CRSDATA!D153","v":0},{"$f":"CRSDATA!F153","v":0},{"$f":"CRSDATA!E153","v":0},{"$f":"IF(CRSDATA!H153=3000,998,CRSDATA!H153)","v":0},{"$f":"CRSDATA!O153","v":0},{"$f":"CRSDATA!U153","v":0},{"$f":"IF(CRSDATA!V153=\"\",\"\",CRSDATA!V153)","v":""},{"$f":"IF(CRSDATA!W153=\"\",\"\",CRSDATA!W153)","v":""},{"$f":"key_row(CRSDATA!X153,CRSDATA!Y153,CRSDATA!AL153,CRSDATA!AK153,CRSDATA!AJ153,CRSDATA!AM153,CRSDATA!P153,CRSDATA!V153)","v":""},{"$f":"CRSDATA!P153","v":0},{"$f":"CRSDATA!J153","v":0},{"$f":"CRSDATA!I153","v":0},null,{"$f":"IF(LEFT(CRSDATA!N153,2)=\"A0\",\"A00\",IF(LEFT(CRSDATA!N153,3)=\"B02\",\"B02\",IF(LEFT(CRSDATA!N153,3)=\"B03\",\"B03\",IF(CRSDATA!N153=\"B04\",\"C01\",IF(CRSDATA!N153=\"H01\",\"H00\",IF(OR(CRSDATA!N153=\"H02\",CRSDATA!N153=\"H03\",CRSDATA!N153=\"H04\",CRSDATA!N153=\"H05\",CRSDATA!N153=\"H06\"),\"I01\",IF(CRSDATA!N153=\"\",\"\",CRSDATA!N153)))))))","v":""},{"$f":"IF(AND(LEN(CRSDATA!M153)=4,LEFT(CRSDATA!M153,3)=\"110\"),1100,IF(AND(LEN(CRSDATA!M153)=4,LEFT(CRSDATA!M153,3)=\"422\"),422,CRSDATA!M153))","v":0},{"$f":"IF(CRSDATA!L153=22,\"FA04\",\"\")","v":""},{"$f":"IF(CRSDATA!K153=8,\"FC02\",\"\")","v":""},{"$f":"_xlfn.IFS(OR(P153=\"A00\",P153=\"E01\",P153=\"F01\",AND(P153=\"\",A153<>0),Q153=510,Q153=520,AF153=60),1,P153=\"G01\",IF(AF153=10,21,22),OR(M153=41203,M153=41204),22,OR(AND(OR(P153=\"B02\",P153=\"B03\"),M153=41310),OR(P153=\"E02\",P153=\"I01\")),21,AND(OR(P153=\"B01\",P153=\"B03\",P153=\"C01\"),M153<>41310),IF(VLOOKUP(F153,recipient_country!AB:AD,3,FALSE)=10024,\"\",1),AND(P153=\"B02\",M153<>41310),IF(VLOOKUP(M153,channel_codes!J:P,7,FALSE)=0,\"\",VLOOKUP(M153,channel_codes!J:P,7,FALSE)),ISNUMBER(MATCH(P153,{\"D01\",\"D02\"},0)),IF(VLOOKUP(M153,channel_codes!J:P,7,FALSE)=1,1,IF(VLOOKUP(F153,recipient_country!AB:AD,3,FALSE)=10024,\"\",1)),OR(P153=\"H01\",AND(OR(ISNUMBER(SEARCH(\"41010\", L153)),ISNUMBER(SEARCH(\"41020\", L153)),ISNUMBER(SEARCH(\"41030\", L153)),ISNUMBER(SEARCH(\"41040\", L153)),ISNUMBER(SEARCH(\"41081\", L153))),F153=998)),22,F153=998,22,TRUE,\"\")","v":""},{"$f":"CRSDATA!AN153","v":0},{"$f":"CRSDATA!AO153","v":0},{"$f":"CRSDATA!AQ153","v":0},{"$f":"CRSDATA!AS153","v":0},{"$f":"CRSDATA!BB153","v":0},null,"",{"$f":"IF(AND(AND(CRSDATA!C153<>\"\",CRSDATA!BK153<>\"\"),OR(CRSDATA!N153=421,CRSDATA!N153=422,CRSDATA!N153=4221,CRSDATA!N153=4222,CRSDATA!N153=423,CRSDATA!N153=424,CRSDATA!N153=425,CRSDATA!N153=431,CRSDATA!N153=433,CRSDATA!N153=434)),DATEDIF(CRSDATA!C153,CRSDATA!BK153,\"m\"),\"\")","v":""},{"$f":"CRSDATA!BA153","v":0},{"$f":"CRSDATA!BC153","v":0},{"$f":"IF(CRSDATA!BT153=\"\",\"\",CRSDATA!BT153)","v":""},{"$f":"CRSDATA!L153","v":0}]
[{"$f":"CRSDATA!A154","v":0},{"$f":"CRSDATA!C154","v":0},{"$f":"CRSDATA!D154","v":0},{"$f":"CRSDATA!F154","v":0},{"$f":"CRSDATA!E154","v":0},{"$f":"IF(CRSDATA!H154=3000,998,CRSDATA!H154)","v":0},{"$f":"CRSDATA!O154","v":0},{"$f":"CRSDATA!U154","v":0},{"$f":"IF(CRSDATA!V154=\"\",\"\",CRSDATA!V154)","v":""},{"$f":"IF(CRSDATA!W154=\"\",\"\",CRSDATA!W154)","v":""},{"$f":"key_row(CRSDATA!X154,CRSDATA!Y154,CRSDATA!AL154,CRSDATA!AK154,CRSDATA!AJ154,CRSDATA!AM154,CRSDATA!P154,CRSDATA!V154)","v":""},{"$f":"CRSDATA!P154","v":0},{"$f":"CRSDATA!J154","v":0},{"$f":"CRSDATA!I154","v":0},null,{"$f":"IF(LEFT(CRSDATA!N154,2)=\"A0\",\"A00\",IF(LEFT(CRSDATA!N154,3)=\"B02\",\"B02\",IF(LEFT(CRSDATA!N154,3)=\"B03\",\"B03\",IF(CRSDATA!N154=\"B04\",\"C01\",IF(CRSDATA!N154=\"H01\",\"H00\",IF(OR(CRSDATA!N154=\"H02\",CRSDATA!N154=\"H03\",CRSDATA!N154=\"H04\",CRSDATA!N154=\"H05\",CRSDATA!N154=\"H06\"),\"I01\",IF(CRSDATA!N154=\"\",\"\",CRSDATA!N154)))))))","v":""},{"$f":"IF(AND(LEN(CRSDATA!M154)=4,LEFT(CRSDATA!M154,3)=\"110\"),1100,IF(AND(LEN(CRSDATA!M154)=4,LEFT(CRSDATA!M154,3)=\"422\"),422,CRSDATA!M154))","v":0},{"$f":"IF(CRSDATA!L154=22,\"FA04\",\"\")","v":""},{"$f":"IF(CRSDATA!K154=8,\"FC02\",\"\")","v":""},{"$f":"_xlfn.IFS(OR(P154=\"A00\",P154=\"E01\",P154=\"F01\",AND(P154=\"\",A154<>0),Q154=510,Q154=520,AF154=60),1,P154=\"G01\",IF(AF154=10,21,22),OR(M154=41203,M154=41204),22,OR(AND(OR(P154=\"B02\",P154=\"B03\"),M154=41310),OR(P154=\"E02\",P154=\"I01\")),21,AND(OR(P154=\"B01\",P154=\"B03\",P154=\"C01\"),M154<>41310),IF(VLOOKUP(F154,recipient_country!AB:AD,3,FALSE)=10024,\"\",1),AND(P154=\"B02\",M154<>41310),IF(VLOOKUP(M154,channel_codes!J:P,7,FALSE)=0,\"\",VLOOKUP(M154,channel_codes!J:P,7,FALSE)),ISNUMBER(MATCH(P154,{\"D01\",\"D02\"},0)),IF(VLOOKUP(M154,channel_codes!J:P,7,FALSE)=1,1,IF(VLOOKUP(F154,recipient_country!AB:AD,3,FALSE)=10024,\"\",1)),OR(P154=\"H01\",AND(OR(ISNUMBER(SEARCH(\"41010\", L154)),ISNUMBER(SEARCH(\"41020\", L154)),ISNUMBER(SEARCH(\"41030\", L154)),ISNUMBER(SEARCH(\"41040\", L154)),ISNUMBER(SEARCH(\"41081\", L154))),F154=998)),22,F154=998,22,TRUE,\"\")","v":""},{"$f":"CRSDATA!AN154","v":0},{"$f":"CRSDATA!AO154","v":0},{"$f":"CRSDATA!AQ154","v":0},{"$f":"CRSDATA!AS154","v":0},{"$f":"CRSDATA!BB154","v":0},null,"",{"$f":"IF(AND(AND(CRSDATA!C154<>\"\",CRSDATA!BK154<>\"\"),OR(CRSDATA!N154=421,CRSDATA!N154=422,CRSDATA!N154=4221,CRSDATA!N154=4222,CRSDATA!N154=423,CRSDATA!N154=424,CRSDATA!N154=425,CRSDATA!N154=431,CRSDATA!N154=433,CRSDATA!N154=434)),DATEDIF(CRSDATA!C154,CRSDATA!BK154,\"m\"),\"\")","v":""},{"$f":"CRSDATA!BA154","v":0},{"$f":"CRSDATA!BC154","v":0},{"$f":"IF(CRSDATA!BT154=\"\",\"\",CRSDATA!BT154)","v":""},{"$f":"CRSDATA!L154","v":0}]
[{"$f":"CRSDATA!A155","v":0},{"$f":"CRSDATA!C155","v":0},{"$f":"CRSDATA!D155","v":0},{"$f":"CRSDATA!F155","v":0},{"$f":"CRSDATA!E155","v":0},{"$f":"IF(CRSDATA!H155=3000,998,CRSDATA!H155)","v":0},{"$f":"CRSDATA!O155","v":0},{"$f":"CRSDATA!U155","v":0},{"$f":"IF(CRSDATA!V155=\"\",\"\",CRSDATA!V155)","v":""},{"$f":"IF(CRSDATA!W155=\"\",\"\",CRSDATA!W155)","v":""},{"$f":"key_row(CRSDATA!X155,CRSDATA!Y155,CRSDATA!AL155,CRSDATA!AK155,CRSDATA!AJ155,CRSDATA!AM155,CRSDATA!P155,CRSDATA!V155)","v":""},{"$f":"CRSDATA!P155","v":0},{"$f":"CRSDATA!J155","v":0},{"$f":"CRSDATA!I155","v":0},null,{"$f":"IF(LEFT(CRSDATA!N155,2)=\"A0\",\"A00\",IF(LEFT(CRSDATA!N155,3)=\"B02\",\"B02\",IF(LEFT(CRSDATA!N155,3)=\"B03\",\"B03\",IF(CRSDATA!N155=\"B04\",\"C01\",IF(CRSDATA!N155=\"H01\",\"H00\",IF(OR(CRSDATA!N155=\"H02\",CRSDATA!N155=\"H03\",CRSDATA!N155=\"H04\",CRSDATA!N155=\"H05\",CRSDATA!N155=\"H06\"),\"I01\",IF(CRSDATA!N155=\"\",\"\",CRSDATA!N155)))))))","v":""},{"$f":"IF(AND(LEN(CRSDATA!M155)=4,LEFT(CRSDATA!M155,3)=\"110\"),1100,IF(AND(LEN(CRSDATA!M155)=4,LEFT(CRSDATA!M155,3)=\"422\"),422,CRSDATA!M155))","v":0},{"$f":"IF(CRSDATA!L155=22,\"FA04\",\"\")","v":""},{"$f":"IF(CRSDATA!K155=8,\"FC02\",\"\")","v":""},{"$f":"_xlfn.IFS(OR(P155=\"A00\",P155=\"E01\",P155=\"F01\",AND(P155=\"\",A155<>0),Q155=510,Q155=520,AF155=60),1,P155=\"G01\",IF(AF155=10,21,22),OR(M155=41203,M155=41204),22,OR(AND(OR(P155=\"B02\",P155=\"B03\"),M155=41310),OR(P155=\"E02\",P155=\"I01\")),21,AND(OR(P155=\"B01\",P155=\"B03\",P155=\"C01\"),M155<>41310),IF(VLOOKUP(F155,recipient_country!AB:AD,3,FALSE)=10024,\"\",1),AND(P155=\"B02\",M155<>41310),IF(VLOOKUP(M155,channel_codes!J:P,7,FALSE)=0,\"\",VLOOKUP(M155,channel_codes!J:P,7,FALSE)),ISNUMBER(MATCH(P155,{\"D01\",\"D02\"},0)),IF(VLOOKUP(M155,channel_codes!J:P,7,FALSE)=1,1,IF(VLOOKUP(F155,recipient_country!AB:AD,3,FALSE)=10024,\"\",1)),OR(P155=\"H01\",AND(OR(ISNUMBER(SEARCH(\"41010\", L155)),ISNUMBER(SEARCH(\"41020\", L155)),ISNUMBER(SEARCH(\"41030\", L155)),ISNUMBER(SEARCH(\"41040\", L155)),ISNUMBER(SEARCH(\"41081\", L155))),F155=998)),22,F155=998,22,TRUE,\"\")","v":""},{"$f":"CRSDATA!AN155","v":0},{"$f":"CRSDATA!AO155","v":0},{"$f":"CRSDATA!AQ155","v":0},{"$f":"CRSDATA!AS155","v":0},{"$f":"CRSDATA!BB155","v":0},null,"",{"$f":"IF(AND(AND(CRSDATA!C155<>\"\",CRSDATA!BK155<>\"\"),OR(CRSDATA!N155=421,CRSDATA!N155=422,CRSDATA!N155=4221,CRSDATA!N155=4222,CRSDATA!N155=423,CRSDATA!N155=424,CRSDATA!N155=425,CRSDATA!N155=431,CRSDATA!N155=433,CRSDATA!N155=434)),DATEDIF(CRSDATA!C155,CRSDATA!BK155,\"m\"),\"\")","v":""},{"$f":"CRSDATA!BA155","v":0},{"$f":"CRSDATA!BC155","v":0},{"$f":"IF(CRSDATA!BT155=\"\",\"\",CRSDATA!BT155)","v":""},{"$f":"CRSDATA!L155","v":0}]
[{"$f":"CRSDATA!A156","v":0},{"$f":"CRSDATA!C156","v":0},{"$f":"CRSDATA!D156","v":0},{"$f":"CRSDATA!F156","v":0},{"$f":"CRSDATA!E156","v":0},{"$f":"IF(CRSDATA!H156=3000,998,CRSDATA!H156)","v":0},{"$f":"CRSDATA!O156","v":0},{"$f":"CRSDATA!U156","v":0},{"$f":"IF(CRSDATA!V156=\"\",\"\",CRSDATA!V156)","v":""},{"$f":"IF(CRSDATA!W156=\"\",\"\",CRSDATA!W156)","v":""},{"$f":"key_row(CRSDATA!X156,CRSDATA!Y156,CRSDATA!AL156,CRSDATA!AK156,CRSDATA!AJ156,CRSDATA!AM156,CRSDATA!P156,CRSDATA!V156)","v":""},{"$f":"CRSDATA!P156","v":0},{"$f":"CRSDATA!J156","v":0},{"$f":"CRSDATA!I156","v":0},null,{"$f":"IF(LEFT(CRSDATA!N156,2)=\"A0\",\"A00\",IF(LEFT(CRSDATA!N156,3)=\"B02\",\"B02\",IF(LEFT(CRSDATA!N156,3)=\"B03\",\"B03\",IF(CRSDATA!N156=\"B04\",\"C01\",IF(CRSDATA!N156=\"H01\",\"H00\",IF(OR(CRSDATA!N156=\"H02\",CRSDATA!N156=\"H03\",CRSDATA!N156=\"H04\",CRSDATA!N156=\"H05\",CRSDATA!N156=\"H06\"),\"I01\",IF(CRSDATA!N156=\"\",\"\",CRSDATA!N156)))))))","v":""},{"$f":"IF(AND(LEN(CRSDATA!M156)=4,LEFT(CRSDATA!M156,3)=\"110\"),1100,IF(AND(LEN(CRSDATA!M156)=4,LEFT(CRSDATA!M156,3)=\"422\"),422,CRSDATA!M156))","v":0},{"$f":"IF(CRSDATA!L156=22,\"FA04\",\"\")","v":""},{"$f":"IF(CRSDATA!K156=8,\"FC02\",\"\")","v":""},{"$f":"_xlfn.IFS(OR(P156=\"A00\",P156=\"E01\",P156=\"F01\",AND(P156=\"\",A156<>0),Q156=510,Q156=520,AF156=60),1,P156=\"G01\",IF(AF156=10,21,22),OR(M156=41203,M156=41204),22,OR(AND(OR(P156=\"B02\",P156=\"B03\"),M156=41310),OR(P156=\"E02\",P156=\"I01\")),21,AND(OR(P156=\"B01\",P156=\"B03\",P156=\"C01\"),M156<>41310),IF(VLOOKUP(F156,recipient_country!AB:AD,3,FALSE)=10024,\"\",1),AND(P156=\"B02\",M156<>41310),IF(VLOOKUP(M156,channel_codes!J:P,7,FALSE)=0,\"\",VLOOKUP(M156,channel_codes!J:P,7,FALSE)),ISNUMBER(MATCH(P156,{\"D01\",\"D02\"},0)),IF(VLOOKUP(M156,channel_codes!J:P,7,FALSE)=1,1,IF(VLOOKUP(F156,recipient_country!AB:AD,3,FALSE)=10024,\"\",1)),OR(P156=\"H01\",AND(OR(ISNUMBER(SEARCH(\"41010\", L156)),ISNUMBER(SEARCH(\"41020\", L156)),ISNUMBER(SEARCH(\"41030\", L156)),ISNUMBER(SEARCH(\"41040\", L156)),ISNUMBER(SEARCH(\"41081\", L156))),F156=998)),22,F156=998,22,TRUE,\"\")","v":""},{"$f":"CRSDATA!AN156","v":0},{"$f":"CRSDATA!AO156","v":0},{"$f":"CRSDATA!AQ156","v":0},{"$f":"CRSDATA!AS156","v":0},{"$f":"CRSDATA!BB156","v":0},null,"",{"$f":"IF(AND(AND(CRSDATA!C156<>\"\",CRSDATA!BK156<>\"\"),OR(CRSDATA!N156=421,CRSDATA!N156=422,CRSDATA!N156=4221,CRSDATA!N156=4222,CRSDATA!N156=423,CRSDATA!N156=424,CRSDATA!N156=425,CRSDATA!N156=431,CRSDATA!N156=433,CRSDATA!N156=434)),DATEDIF(CRSDATA!C156,CRSDATA!BK156,\"m\"),\"\")","v":""},{"$f":"CRSDATA!BA156","v":0},{"$f":"CRSDATA!BC156","v":0},{"$f":"IF(CRSDATA!BT156=\"\",\"\",CRSDATA!BT156)","v":""},{"$f":"CRSDATA!L156","v":0}]
[{"$f":"CRSDATA!A157","v":0},{"$f":"CRSDATA!C157","v":0},{"$f":"CRSDATA!D157","v":0},{"$f":"CRSDATA!F157","v":0},{"$f":"CRSDATA!E157","v":0},{"$f":"IF(CRSDATA!H157=3000,998,CRSDATA!H157)","v":0},{"$f":"CRSDATA!O157","v":0},{"$f":"CRSDATA!U157","v":0},{"$f":"IF(CRSDATA!V157=\"\",\"\",CRSDATA!V157)","v":""},{"$f":"IF(CRSDATA!W157=\"\",\"\",CRSDATA!W157)","v":""},{"$f":"key_row(CRSDATA!X157,CRSDATA!Y157,CRSDATA!AL157,CRSDATA!AK157,CRSDATA!AJ157,CRSDATA!AM157,CRSDATA!P157,CRSDATA!V157)","v":""},{"$f":"CRSDATA!P157","v":0},{"$f":"CRSDATA!J157","v":0},{"$f":"CRSDATA!I157","v":0},null,{"$f":"IF(LEFT(CRSDATA!N157,2)=\"A0\",\"A00\",IF(LEFT(CRSDATA!N157,3)=\"B02\",\"B02\",IF(LEFT(CRSDATA!N157,3)=\"B03\",\"B03\",IF(CRSDATA!N157=\"B04\",\"C01\",IF(CRSDATA!N157=\"H01\",\"H00\",IF(OR(CRSDATA!N157=\"H02\",CRSDATA!N157=\"H03\",CRSDATA!N157=\"H04\",CRSDATA!N157=\"H05\",CRSDATA!N157=\"H06\"),\"I01\",IF(CRSDATA!N157=\"\",\"\",CRSDATA!N157)))))))","v":""},{"$f":"IF(AND(LEN(CRSDATA!M157)=4,LEFT(CRSDATA!M157,3)=\"110\"),1100,IF(AND(LEN(CRSDATA!M157)=4,LEFT(CRSDATA!M157,3)=\"422\"),422,CRSDATA!M157))","v":0},{"$f":"IF(CRSDATA!L157=22,\"FA04\",\"\")","v":""},{"$f":"IF(CRSDATA!K157=8,\"FC02\",\"\")","v":""},{"$f":"_xlfn.IFS(OR(P157=\"A00\",P157=\"E01\",P157=\"F01\",AND(P157=\"\",A157<>0),Q157=510,Q157=520,AF157=60),1,P157=\"G01\",IF(AF157=10,21,22),OR(M157=41203,M157=41204),22,OR(AND(OR(P157=\"B02\",P157=\"B03\"),M157=41310),OR(P157=\"E02\",P157=\"I01\")),21,AND(OR(P157=\"B01\",P157=\"B03\",P157=\"C01\"),M157<>41310),IF(VLOOKUP(F157,recipient_country!AB:AD,3,FALSE)=10024,\"\",1),AND(P157=\"B02\",M157<>41310),IF(VLOOKUP(M157,channel_codes!J:P,7,FALSE)=0,\"\",VLOOKUP(M157,channel_codes!J:P,7,FALSE)),ISNUMBER(MATCH(P157,{\"D01\",\"D02\"},0)),IF(VLOOKUP(M157,channel_codes!J:P,7,FALSE)=1,1,IF(VLOOKUP(F157,recipient_country!AB:AD,3,FALSE)=10024,\"\",1)),OR(P157=\"H01\",AND(OR(ISNUMBER(SEARCH(\"41010\", L157)),ISNUMBER(SEARCH(\"41020\", L157)),ISNUMBER(SEARCH(\"41030\", L157)),ISNUMBER(SEARCH(\"41040\", L157)),ISNUMBER(SEARCH(\"41081\", L157))),F157=998)),22,F157=998,22,TRUE,\"\")","v":""},{"$f":"CRSDATA!AN157","v":0},{"$f":"CRSDATA!AO157","v":0},{"$f":"CRSDATA!AQ157","v":0},{"$f":"CRSDATA!AS157","v":0},{"$f":"CRSDATA!BB157","v":0},null,"",{"$f":"IF(AND(AND(CRSDATA!C157<>\"\",CRSDATA!BK157<>\"\"),OR(CRSDATA!N157=421,CRSDATA!N157=422,CRSDATA!N157=4221,CRSDATA!N157=4222,CRSDATA!N157=423,CRSDATA!N157=424,CRSDATA!N157=425,CRSDATA!N157=431,CRSDATA!N157=433,CRSDATA!N157=434)),DATEDIF(CRSDATA!C157,CRSDATA!BK157,\"m\"),\"\")","v":""},{"$f":"CRSDATA!BA157","v":0},{"$f":"CRSDATA!BC157","v":0},{"$f":"IF(CRSDATA!BT157=\"\",\"\",CRSDATA!BT157)","v":""},{"$f":"CRSDATA!L157","v":0}]
[{"$f":"CRSDATA!A158","v":0},{"$f":"CRSDATA!C158","v":0},{"$f":"CRSDATA!D158","v":0},{"$f":"CRSDATA!F158","v":0},{"$f":"CRSDATA!E158","v":0},{"$f":"IF(CRSDATA!H158=3000,998,CRSDATA!H158)","v":0},{"$f":"CRSDATA!O158","v":0},{"$f":"CRSDATA!U158","v":0},{"$f":"IF(CRSDATA!V158=\"\",\"\",CRSDATA!V158)","v":""},{"$f":"IF(CRSDATA!W158=\"\",\"\",CRSDATA!W158)","v":""},{"$f":"key_row(CRSDATA!X158,CRSDATA!Y158,CRSDATA!AL158,CRSDATA!AK158,CRSDATA!AJ158,CRSDATA!AM158,CRSDATA!P158,CRSDATA!V158)","v":""},{"$f":"CRSDATA!P158","v":0},{"$f":"CRSDATA!J158","v":0},{"$f":"CRSDATA!I158","v":0},null,{"$f":"IF(LEFT(CRSDATA!N158,2)=\"A0\",\"A00\",IF(LEFT(CRSDATA!N158,3)=\"B02\",\"B02\",IF(LEFT(CRSDATA!N158,3)=\"B03\",\"B03\",IF(CRSDATA!N158=\"B04\",\"C01\",IF(CRSDATA!N158=\"H01\",\"H00\",IF(OR(CRSDATA!N158=\"H02\",CRSDATA!N158=\"H03\",CRSDATA!N158=\"H04\",CRSDATA!N158=\"H05\",CRSDATA!N158=\"H06\"),\"I01\",IF(CRSDATA!N158=\"\",\"\",CRSDATA!N158)))))))","v":""},{"$f":"IF(AND(LEN(CRSDATA!M158)=4,LEFT(CRSDATA!M158,3)=\"110\"),1100,IF(AND(LEN(CRSDATA!M158)=4,LEFT(CRSDATA!M158,3)=\"422\"),422,CRSDATA!M158))","v":0},{"$f":"IF(CRSDATA!L158=22,\"FA04\",\"\")","v":""},{"$f":"IF(CRSDATA!K158=8,\"FC02\",\"\")","v":""},{"$f":"_xlfn.IFS(OR(P158=\"A00\",P158=\"E01\",P158=\"F01\",AND(P158=\"\",A158<>0),Q158=510,Q158=520,AF158=60),1,P158=\"G01\",IF(AF158=10,21,22),OR(M158=41203,M158=41204),22,OR(AND(OR(P158=\"B02\",P158=\"B03\"),M158=41310),OR(P158=\"E02\",P158=\"I01\")),21,AND(OR(P158=\"B01\",P158=\"B03\",P158=\"C01\"),M158<>41310),IF(VLOOKUP(F158,recipient_country!AB:AD,3,FALSE)=10024,\"\",1),AND(P158=\"B02\",M158<>41310),IF(VLOOKUP(M158,channel_codes!J:P,7,FALSE)=0,\"\",VLOOKUP(M158,channel_codes!J:P,7,FALSE)),ISNUMBER(MATCH(P158,{\"D01\",\"D02\"},0)),IF(VLOOKUP(M158,channel_codes!J:P,7,FALSE)=1,1,IF(VLOOKUP(F158,recipient_country!AB:AD,3,FALSE)=10024,\"\",1)),OR(P158=\"H01\",AND(OR(ISNUMBER(SEARCH(\"41010\", L158)),ISNUMBER(SEARCH(\"41020\", L158)),ISNUMBER(SEARCH(\"41030\", L158)),ISNUMBER(SEARCH(\"41040\", L158)),ISNUMBER(SEARCH(\"41081\", L158))),F158=998)),22,F158=998,22,TRUE,\"\")","v":""},{"$f":"CRSDATA!AN158","v":0},{"$f":"CRSDATA!AO158","v":0},{"$f":"CRSDATA!AQ158","v":0},{"$f":"CRSDATA!AS158","v":0},{"$f":"CRSDATA!BB158","v":0},null,"",{"$f":"IF(AND(AND(CRSDATA!C158<>\"\",CRSDATA!BK158<>\"\"),OR(CRSDATA!N158=421,CRSDATA!N158=422,CRSDATA!N158=4221,CRSDATA!N158=4222,CRSDATA!N158=423,CRSDATA!N158=424,CRSDATA!N158=425,CRSDATA!N158=431,CRSDATA!N158=433,CRSDATA!N158=434)),DATEDIF(CRSDATA!C158,CRSDATA!BK158,\"m\"),\"\")","v":""},{"$f":"CRSDATA!BA158","v":0},{"$f":"CRSDATA!BC158","v":0},{"$f":"IF(CRSDATA!BT158=\"\",\"\",CRSDATA!BT158)","v":""},{"$f":"CRSDATA!L158","v":0}]
[{"$f":"CRSDATA!A159","v":0},{"$f":"CRSDATA!C159","v":0},{"$f":"CRSDATA!D159","v":0},{"$f":"CRSDATA!F159","v":0},{"$f":"CRSDATA!E159","v":0},{"$f":"IF(CRSDATA!H159=3000,998,CRSDATA!H159)","v":0},{"$f":"CRSDATA!O159","v":0},{"$f":"CRSDATA!U159","v":0},{"$f":"IF(CRSDATA!V159=\"\",\"\",CRSDATA!V159)","v":""},{"$f":"IF(CRSDATA!W159=\"\",\"\",CRSDATA!W159)","v":""},{"$f":"key_row(CRSDATA!X159,CRSDATA!Y159,CRSDATA!AL159,CRSDATA!AK159,CRSDATA!AJ159,CRSDATA!AM159,CRSDATA!P159,CRSDATA!V159)","v":""},{"$f":"CRSDATA!P159","v":0},{"$f":"CRSDATA!J159","v":0},{"$f":"CRSDATA!I159","v":0},null,{"$f":"IF(LEFT(CRSDATA!N159,2)=\"A0\",\"A00\",IF(LEFT(CRSDATA!N159,3)=\"B02\",\"B02\",IF(LEFT(CRSDATA!N159,3)=\"B03\",\"B03\",IF(CRSDATA!N159=\"B04\",\"C01\",IF(CRSDATA!N159=\"H01\",\"H00\",IF(OR(CRSDATA!N159=\"H02\",CRSDATA!N159=\"H03\",CRSDATA!N159=\"H04\",CRSDATA!N159=\"H05\",CRSDATA!N159=\"H06\"),\"I01\",IF(CRSDATA!N159=\"\",\"\",CRSDATA!N159)))))))","v":""},{"$f":"IF(AND(LEN(CRSDATA!M159)=4,LEFT(CRSDATA!M159,3)=\"110\"),1100,IF(AND(LEN(CRSDATA!M159)=4,LEFT(CRSDATA!M159,3)=\"422\"),422,CRSDATA!M159))","v":0},{"$f":"IF(CRSDATA!L159=22,\"FA04\",\"\")","v":""},{"$f":"IF(CRSDATA!K159=8,\"FC02\",\"\")","v":""},{"$f":"_xlfn.IFS(OR(P159=\"A00\",P159=\"E01\",P159=\"F01\",AND(P159=\"\",A159<>0),Q159=510,Q159=520,AF159=60),1,P159=\"G01\",IF(AF159=10,21,22),OR(M159=41203,M159=41204),22,OR(AND(OR(P159=\"B02\",P159=\"B03\"),M159=41310),OR(P159=\"E02\",P159=\"I01\")),21,AND(OR(P159=\"B01\",P159=\"B03\",P159=\"C01\"),M159<>41310),IF(VLOOKUP(F159,recipient_country!AB:AD,3,FALSE)=10024,\"\",1),AND(P159=\"B02\",M159<>41310),IF(VLOOKUP(M159,channel_codes!J:P,7,FALSE)=0,\"\",VLOOKUP(M159,channel_codes!J:P,7,FALSE)),ISNUMBER(MATCH(P159,{\"D01\",\"D02\"},0)),IF(VLOOKUP(M159,channel_codes!J:P,7,FALSE)=1,1,IF(VLOOKUP(F159,recipient_country!AB:AD,3,FALSE)=10024,\"\",1)),OR(P159=\"H01\",AND(OR(ISNUMBER(SEARCH(\"41010\", L159)),ISNUMBER(SEARCH(\"41020\", L159)),ISNUMBER(SEARCH(\"41030\", L159)),ISNUMBER(SEARCH(\"41040\", L159)),ISNUMBER(SEARCH(\"41081\", L159))),F159=998)),22,F159=998,22,TRUE,\"\")","v":""},{"$f":"CRSDATA!AN159","v":0},{"$f":"CRSDATA!AO159","v":0},{"$f":"CRSDATA!AQ159","v":0},{"$f":"CRSDATA!AS159","v":0},{"$f":"CRSDATA!BB159","v":0},null,"",{"$f":"IF(AND(AND(CRSDATA!C159<>\"\",CRSDATA!BK159<>\"\"),OR(CRSDATA!N159=421,CRSDATA!N159=422,CRSDATA!N159=4221,CRSDATA!N159=4222,CRSDATA!N159=423,CRSDATA!N159=424,CRSDATA!N159=425,CRSDATA!N159=431,CRSDATA!N159=433,CRSDATA!N159=434)),DATEDIF(CRSDATA!C159,CRSDATA!BK159,\"m\"),\"\")","v":""},{"$f":"CRSDATA!BA159","v":0},{"$f":"CRSDATA!BC159","v":0},{"$f":"IF(CRSDATA!BT159=\"\",\"\",CRSDATA!BT159)","v":""},{"$f":"CRSDATA!L159","v":0}]
[{"$f":"CRSDATA!A160","v":0},{"$f":"CRSDATA!C160","v":0},{"$f":"CRSDATA!D160","v":0},{"$f":"CRSDATA!F160","v":0},{"$f":"CRSDATA!E160","v":0},{"$f":"IF(CRSDATA!H160=3000,998,CRSDATA!H160)","v":0},{"$f":"CRSDATA!O160","v":0},{"$f":"CRSDATA!U160","v":0},{"$f":"IF(CRSDATA!V160=\"\",\"\",CRSDATA!V160)","v":""},{"$f":"IF(CRSDATA!W160=\"\",\"\",CRSDATA!W160)","v":""},{"$f":"key_row(CRSDATA!X160,CRSDATA!Y160,CRSDATA!AL160,CRSDATA!AK160,CRSDATA!AJ160,CRSDATA!AM160,CRSDATA!P160,CRSDATA!V160)","v":""},{"$f":"CRSDATA!P160","v":0},{"$f":"CRSDATA!J160","v":0},{"$f":"CRSDATA!I160","v":0},null,{"$f":"IF(LEFT(CRSDATA!N160,2)=\"A0\",\"A00\",IF(LEFT(CRSDATA!N160,3)=\"B02\",\"B02\",IF(LEFT(CRSDATA!N160,3)=\"B03\",\"B03\",IF(CRSDATA!N160=\"B04\",\"C01\",IF(CRSDATA!N160=\"H01\",\"H00\",IF(OR(CRSDATA!N160=\"H02\",CRSDATA!N160=\"H03\",CRSDATA!N160=\"H04\",CRSDATA!N160=\"H05\",CRSDATA!N160=\"H06\"),\"I01\",IF(CRSDATA!N160=\"\",\"\",CRSDATA!N160)))))))","v":""},{"$f":"IF(AND(LEN(CRSDATA!M160)=4,LEFT(CRSDATA!M160,3)=\"110\"),1100,IF(AND(LEN(CRSDATA!M160)=4,LEFT(CRSDATA!M160,3)=\"422\"),422,CRSDATA!M160))","v":0},{"$f":"IF(CRSDATA!L160=22,\"FA04\",\"\")","v":""},{"$f":"IF(CRSDATA!K160=8,\"FC02\",\"\")","v":""},{"$f":"_xlfn.IFS(OR(P160=\"A00\",P160=\"E01\",P160=\"F01\",AND(P160=\"\",A160<>0),Q160=510,Q160=520,AF160=60),1,P160=\"G01\",IF(AF160=10,21,22),OR(M160=41203,M160=41204),22,OR(AND(OR(P160=\"B02\",P160=\"B03\"),M160=41310),OR(P160=\"E02\",P160=\"I01\")),21,AND(OR(P160=\"B01\",P160=\"B03\",P160=\"C01\"),M160<>41310),IF(VLOOKUP(F160,recipient_country!AB:AD,3,FALSE)=10024,\"\",1),AND(P160=\"B02\",M160<>41310),IF(VLOOKUP(M160,channel_codes!J:P,7,FALSE)=0,\"\",VLOOKUP(M160,channel_codes!J:P,7,FALSE)),ISNUMBER(MATCH(P160,{\"D01\",\"D02\"},0)),IF(VLOOKUP(M160,channel_codes!J:P,7,FALSE)=1,1,IF(VLOOKUP(F160,recipient_country!AB:AD,3,FALSE)=10024,\"\",1)),OR(P160=\"H01\",AND(OR(ISNUMBER(SEARCH(\"41010\", L160)),ISNUMBER(SEARCH(\"41020\", L160)),ISNUMBER(SEARCH(\"41030\", L160)),ISNUMBER(SEARCH(\"41040\", L160)),ISNUMBER(SEARCH(\"41081\", L160))),F160=998)),22,F160=998,22,TRUE,\"\")","v":""},{"$f":"CRSDATA!AN160","v":0},{"$f":"CRSDATA!AO160","v":0},{"$f":"CRSDATA!AQ160","v":0},{"$f":"CRSDATA!AS160","v":0},{"$f":"CRSDATA!BB160","v":0},null,"",{"$f":"IF(AND(AND(CRSDATA!C160<>\"\",CRSDATA!BK160<>\"\"),OR(CRSDATA!N160=421,CRSDATA!N160=422,CRSDATA!N160=4221,CRSDATA!N160=4222,CRSDATA!N160=423,CRSDATA!N160=424,CRSDATA!N160=425,CRSDATA!N160=431,CRSDATA!N160=433,CRSDATA!N160=434)),DATEDIF(CRSDATA!C160,CRSDATA!BK160,\"m\"),\"\")","v":""},{"$f":"CRSDATA!BA160","v":0},{"$f":"CRSDATA!BC160","v":0},{"$f":"IF(CRSDATA!BT160=\"\",\"\",CRSDATA!BT160)","v":""},{"$f":"CRSDATA!L160","v":0}]
[{"$f":"CRSDATA!A161","v":0},{"$f":"CRSDATA!C161","v":0},{"$f":"CRSDATA!D161","v":0},{"$f":"CRSDATA!F161","v":0},{"$f":"CRSDATA!E161","v":0},{"$f":"IF(CRSDATA!H161=3000,998,CRSDATA!H161)","v":0},{"$f":"CRSDATA!O161","v":0},{"$f":"CRSDATA!U161","v":0},{"$f":"IF(CRSDATA!V161=\"\",\"\",CRSDATA!V161)","v":""},{"$f":"IF(CRSDATA!W161=\"\",\"\",CRSDATA!W161)","v":""},{"$f":"key_row(CRSDATA!X161,CRSDATA!Y161,CRSDATA!AL161,CRSDATA!AK161,CRSDATA!AJ161,CRSDATA!AM161,CRSDATA!P161,CRSDATA!V161)","v":""},{"$f":"CRSDATA!P161","v":0},{"$f":"CRSDATA!J161","v":0},{"$f":"CRSDATA!I161","v":0},null,{"$f":"IF(LEFT(CRSDATA!N161,2)=\"A0\",\"A00\",IF(LEFT(CRSDATA!N161,3)=\"B02\",\"B02\",IF(LEFT(CRSDATA!N161,3)=\"B03\",\"B03\",IF(CRSDATA!N161=\"B04\",\"C01\",IF(CRSDATA!N161=\"H01\",\"H00\",IF(OR(CRSDATA!N161=\"H02\",CRSDATA!N161=\"H03\",CRSDATA!N161=\"H04\",CRSDATA!N161=\"H05\",CRSDATA!N161=\"H06\"),\"I01\",IF(CRSDATA!N161=\"\",\"\",CRSDATA!N161)))))))","v":""},{"$f":"IF(AND(LEN(CRSDATA!M161)=4,LEFT(CRSDATA!M161,3)=\"110\"),1100,IF(AND(LEN(CRSDATA!M161)=4,LEFT(CRSDATA!M161,3)=\"422\"),422,CRSDATA!M161))","v":0},{"$f":"IF(CRSDATA!L161=22,\"FA04\",\"\")","v":""},{"$f":"IF(CRSDATA!K161=8,\"FC02\",\"\")","v":""},{"$f":"_xlfn.IFS(OR(P161=\"A00\",P161=\"E01\",P161=\"F01\",AND(P161=\"\",A161<>0),Q161=510,Q161=520,AF161=60),1,P161=\"G01\",IF(AF161=10,21,22),OR(M161=41203,M161=41204),22,OR(AND(OR(P161=\"B02\",P161=\"B03\"),M161=41310),OR(P161=\"E02\",P161=\"I01\")),21,AND(OR(P161=\"B01\",P161=\"B03\",P161=\"C01\"),M161<>41310),IF(VLOOKUP(F161,recipient_country!AB:AD,3,FALSE)=10024,\"\",1),AND(P161=\"B02\",M161<>41310),IF(VLOOKUP(M161,channel_codes!J:P,7,FALSE)=0,\"\",VLOOKUP(M161,channel_codes!J:P,7,FALSE)),ISNUMBER(MATCH(P161,{\"D01\",\"D02\"},0)),IF(VLOOKUP(M161,channel_codes!J:P,7,FALSE)=1,1,IF(VLOOKUP(F161,recipient_country!AB:AD,3,FALSE)=10024,\"\",1)),OR(P161=\"H01\",AND(OR(ISNUMBER(SEARCH(\"41010\", L161)),ISNUMBER(SEARCH(\"41020\", L161)),ISNUMBER(SEARCH(\"41030\", L161)),ISNUMBER(SEARCH(\"41040\", L161)),ISNUMBER(SEARCH(\"41081\", L161))),F161=998)),22,F161=998,22,TRUE,\"\")","v":""},{"$f":"CRSDATA!AN161","v":0},{"$f":"CRSDATA!AO161","v":0},{"$f":"CRSDATA!AQ161","v":0},{"$f":"CRSDATA!AS161","v":0},{"$f":"CRSDATA!BB161","v":0},null,"",{"$f":"IF(AND(AND(CRSDATA!C161<>\"\",CRSDATA!BK161<>\"\"),OR(CRSDATA!N161=421,CRSDATA!N161=422,CRSDATA!N161=4221,CRSDATA!N161=4222,CRSDATA!N161=423,CRSDATA!N161=424,CRSDATA!N161=425,CRSDATA!N161=431,CRSDATA!N161=433,CRSDATA!N161=434)),DATEDIF(CRSDATA!C161,CRSDATA!BK161,\"m\"),\"\")","v":""},{"$f":"CRSDATA!BA161","v":0},{"$f":"CRSDATA!BC161","v":0},{"$f":"IF(CRSDATA!BT161=\"\",\"\",CRSDATA!BT161)","v":""},{"$f":"CRSDATA!L161","v":0}]
[{"$f":"CRSDATA!A162","v":0},{"$f":"CRSDATA!C162","v":0},{"$f":"CRSDATA!D162","v":0},{"$f":"CRSDATA!F162","v":0},{"$f":"CRSDATA!E162","v":0},{"$f":"IF(CRSDATA!H162=3000,998,CRSDATA!H162)","v":0},{"$f":"CRSDATA!O162","v":0},{"$f":"CRSDATA!U162","v":0},{"$f":"IF(CRSDATA!V162=\"\",\"\",CRSDATA!V162)","v":""},{"$f":"IF(CRSDATA!W162=\"\",\"\",CRSDATA!W162)","v":""},{"$f":"key_row(CRSDATA!X162,CRSDATA!Y162,CRSDATA!AL162,CRSDATA!AK162,CRSDATA!AJ162,CRSDATA!AM162,CRSDATA!P162,CRSDATA!V162)","v":""},{"$f":"CRSDATA!P162","v":0},{"$f":"CRSDATA!J162","v":0},{"$f":"CRSDATA!I162","v":0},null,{"$f":"IF(LEFT(CRSDATA!N162,2)=\"A0\",\"A00\",IF(LEFT(CRSDATA!N162,3)=\"B02\",\"B02\",IF(LEFT(CRSDATA!N162,3)=\"B03\",\"B03\",IF(CRSDATA!N162=\"B04\",\"C01\",IF(CRSDATA!N162=\"H01\",\"H00\",IF(OR(CRSDATA!N162=\"H02\",CRSDATA!N162=\"H03\",CRSDATA!N162=\"H04\",CRSDATA!N162=\"H05\",CRSDATA!N162=\"H06\"),\"I01\",IF(CRSDATA!N162=\"\",\"\",CRSDATA!N162)))))))","v":""},{"$f":"IF(AND(LEN(CRSDATA!M162)=4,LEFT(CRSDATA!M162,3)=\"110\"),1100,IF(AND(LEN(CRSDATA!M162)=4,LEFT(CRSDATA!M162,3)=\"422\"),422,CRSDATA!M162))","v":0},{"$f":"IF(CRSDATA!L162=22,\"FA04\",\"\")","v":""},{"$f":"IF(CRSDATA!K162=8,\"FC02\",\"\")","v":""},{"$f":"_xlfn.IFS(OR(P162=\"A00\",P162=\"E01\",P162=\"F01\",AND(P162=\"\",A162<>0),Q162=510,Q162=520,AF162=60),1,P162=\"G01\",IF(AF162=10,21,22),OR(M162=41203,M162=41204),22,OR(AND(OR(P162=\"B02\",P162=\"B03\"),M162=41310),OR(P162=\"E02\",P162=\"I01\")),21,AND(OR(P162=\"B01\",P162=\"B03\",P162=\"C01\"),M162<>41310),IF(VLOOKUP(F162,recipient_country!AB:AD,3,FALSE)=10024,\"\",1),AND(P162=\"B02\",M162<>41310),IF(VLOOKUP(M162,channel_codes!J:P,7,FALSE)=0,\"\",VLOOKUP(M162,channel_codes!J:P,7,FALSE)),ISNUMBER(MATCH(P162,{\"D01\",\"D02\"},0)),IF(VLOOKUP(M162,channel_codes!J:P,7,FALSE)=1,1,IF(VLOOKUP(F162,recipient_country!AB:AD,3,FALSE)=10024,\"\",1)),OR(P162=\"H01\",AND(OR(ISNUMBER(SEARCH(\"41010\", L162)),ISNUMBER(SEARCH(\"41020\", L162)),ISNUMBER(SEARCH(\"41030\", L162)),ISNUMBER(SEARCH(\"41040\", L162)),ISNUMBER(SEARCH(\"41081\", L162))),F162=998)),22,F162=998,22,TRUE,\"\")","v":""},{"$f":"CRSDATA!AN162","v":0},{"$f":"CRSDATA!AO162","v":0},{"$f":"CRSDATA!AQ162","v":0},{"$f":"CRSDATA!AS162","v":0},{"$f":"CRSDATA!BB162","v":0},null,"",{"$f":"IF(AND(AND(CRSDATA!C162<>\"\",CRSDATA!BK162<>\"\"),OR(CRSDATA!N162=421,CRSDATA!N162=422,CRSDATA!N162=4221,CRSDATA!N162=4222,CRSDATA!N162=423,CRSDATA!N162=424,CRSDATA!N162=425,CRSDATA!N162=431,CRSDATA!N162=433,CRSDATA!N162=434)),DATEDIF(CRSDATA!C162,CRSDATA!BK162,\"m\"),\"\")","v":""},{"$f":"CRSDATA!BA162","v":0},{"$f":"CRSDATA!BC162","v":0},{"$f":"IF(CRSDATA!BT162=\"\",\"\",CRSDATA!BT162)","v":""},{"$f":"CRSDATA!L162","v":0}]
[{"$f":"CRSDATA!A163","v":0},{"$f":"CRSDATA!C163","v":0},{"$f":"CRSDATA!D163","v":0},{"$f":"CRSDATA!F163","v":0},{"$f":"CRSDATA!E163","v":0},{"$f":"IF(CRSDATA!H163=3000,998,CRSDATA!H163)","v":0},{"$f":"CRSDATA!O163","v":0},{"$f":"CRSDATA!U163","v":0},{"$f":"IF(CRSDATA!V163=\"\",\"\",CRSDATA!V163)","v":""},{"$f":"IF(CRSDATA!W163=\"\",\"\",CRSDATA!W163)","v":""},{"$f":"key_row(CRSDATA!X163,CRSDATA!Y163,CRSDATA!AL163,CRSDATA!AK163,CRSDATA!AJ163,CRSDATA!AM163,CRSDATA!P163,CRSDATA!V163)","v":""},{"$f":"CRSDATA!P163","v":0},{"$f":"CRSDATA!J163","v":0},{"$f":"CRSDATA!I163","v":0},null,{"$f":"IF(LEFT(CRSDATA!N163,2)=\"A0\",\"A00\",IF(LEFT(CRSDATA!N163,3)=\"B02\",\"B02\",IF(LEFT(CRSDATA!N163,3)=\"B03\",\"B03\",IF(CRSDATA!N163=\"B04\",\"C01\",IF(CRSDATA!N163=\"H01\",\"H00\",IF(OR(CRSDATA!N163=\"H02\",CRSDATA!N163=\"H03\",CRSDATA!N163=\"H04\",CRSDATA!N163=\"H05\",CRSDATA!N163=\"H06\"),\"I01\",IF(CRSDATA!N163=\"\",\"\",CRSDATA!N163)))))))","v":""},{"$f":"IF(AND(LEN(CRSDATA!M163)=4,LEFT(CRSDATA!M163,3)=\"110\"),1100,IF(AND(LEN(CRSDATA!M163)=4,LEFT(CRSDATA!M163,3)=\"422\"),422,CRSDATA!M163))","v":0},{"$f":"IF(CRSDATA!L163=22,\"FA04\",\"\")","v":""},{"$f":"IF(CRSDATA!K163=8,\"FC02\",\"\")","v":""},{"$f":"_xlfn.IFS(OR(P163=\"A00\",P163=\"E01\",P163=\"F01\",AND(P163=\"\",A163<>0),Q163=510,Q163=520,AF163=60),1,P163=\"G01\",IF(AF163=10,21,22),OR(M163=41203,M163=41204),22,OR(AND(OR(P163=\"B02\",P163=\"B03\"),M163=41310),OR(P163=\"E02\",P163=\"I01\")),21,AND(OR(P163=\"B01\",P163=\"B03\",P163=\"C01\"),M163<>41310),IF(VLOOKUP(F163,recipient_country!AB:AD,3,FALSE)=10024,\"\",1),AND(P163=\"B02\",M163<>41310),IF(VLOOKUP(M163,channel_codes!J:P,7,FALSE)=0,\"\",VLOOKUP(M163,channel_codes!J:P,7,FALSE)),ISNUMBER(MATCH(P163,{\"D01\",\"D02\"},0)),IF(VLOOKUP(M163,channel_codes!J:P,7,FALSE)=1,1,IF(VLOOKUP(F163,recipient_country!AB:AD,3,FALSE)=10024,\"\",1)),OR(P163=\"H01\",AND(OR(ISNUMBER(SEARCH(\"41010\", L163)),ISNUMBER(SEARCH(\"41020\", L163)),ISNUMBER(SEARCH(\"41030\", L163)),ISNUMBER(SEARCH(\"41040\", L163)),ISNUMBER(SEARCH(\"41081\", L163))),F163=998)),22,F163=998,22,TRUE,\"\")","v":""},{"$f":"CRSDATA!AN163","v":0},{"$f":"CRSDATA!AO163","v":0},{"$f":"CRSDATA!AQ163","v":0},{"$f":"CRSDATA!AS163","v":0},{"$f":"CRSDATA!BB163","v":0},null,"",{"$f":"IF(AND(AND(CRSDATA!C163<>\"\",CRSDATA!BK163<>\"\"),OR(CRSDATA!N163=421,CRSDATA!N163=422,CRSDATA!N163=4221,CRSDATA!N163=4222,CRSDATA!N163=423,CRSDATA!N163=424,CRSDATA!N163=425,CRSDATA!N163=431,CRSDATA!N163=433,CRSDATA!N163=434)),DATEDIF(CRSDATA!C163,CRSDATA!BK163,\"m\"),\"\")","v":""},{"$f":"CRSDATA!BA163","v":0},{"$f":"CRSDATA!BC163","v":0},{"$f":"IF(CRSDATA!BT163=\"\",\"\",CRSDATA!BT163)","v":""},{"$f":"CRSDATA!L163","v":0}]
[{"$f":"CRSDATA!A164","v":0},{"$f":"CRSDATA!C164","v":0},{"$f":"CRSDATA!D164","v":0},{"$f":"CRSDATA!F164","v":0},{"$f":"CRSDATA!E164","v":0},{"$f":"IF(CRSDATA!H164=3000,998,CRSDATA!H164)","v":0},{"$f":"CRSDATA!O164","v":0},{"$f":"CRSDATA!U164","v":0},{"$f":"IF(CRSDATA!V164=\"\",\"\",CRSDATA!V164)","v":""},{"$f":"IF(CRSDATA!W164=\"\",\"\",CRSDATA!W164)","v":""},{"$f":"key_row(CRSDATA!X164,CRSDATA!Y164,CRSDATA!AL164,CRSDATA!AK164,CRSDATA!AJ164,CRSDATA!AM164,CRSDATA!P164,CRSDATA!V164)","v":""},{"$f":"CRSDATA!P164","v":0},{"$f":"CRSDATA!J164","v":0},{"$f":"CRSDATA!I164","v":0},null,{"$f":"IF(LEFT(CRSDATA!N164,2)=\"A0\",\"A00\",IF(LEFT(CRSDATA!N164,3)=\"B02\",\"B02\",IF(LEFT(CRSDATA!N164,3)=\"B03\",\"B03\",IF(CRSDATA!N164=\"B04\",\"C01\",IF(CRSDATA!N164=\"H01\",\"H00\",IF(OR(CRSDATA!N164=\"H02\",CRSDATA!N164=\"H03\",CRSDATA!N164=\"H04\",CRSDATA!N164=\"H05\",CRSDATA!N164=\"H06\"),\"I01\",IF(CRSDATA!N164=\"\",\"\",CRSDATA!N164)))))))","v":""},{"$f":"IF(AND(LEN(CRSDATA!M164)=4,LEFT(CRSDATA!M164,3)=\"110\"),1100,IF(AND(LEN(CRSDATA!M164)=4,LEFT(CRSDATA!M164,3)=\"422\"),422,CRSDATA!M164))","v":0},{"$f":"IF(CRSDATA!L164=22,\"FA04\",\"\")","v":""},{"$f":"IF(CRSDATA!K164=8,\"FC02\",\"\")","v":""},{"$f":"_xlfn.IFS(OR(P164=\"A00\",P164=\"E01\",P164=\"F01\",AND(P164=\"\",A164<>0),Q164=510,Q164=520,AF164=60),1,P164=\"G01\",IF(AF164=10,21,22),OR(M164=41203,M164=41204),22,OR(AND(OR(P164=\"B02\",P164=\"B03\"),M164=41310),OR(P164=\"E02\",P164=\"I01\")),21,AND(OR(P164=\"B01\",P164=\"B03\",P164=\"C01\"),M164<>41310),IF(VLOOKUP(F164,recipient_country!AB:AD,3,FALSE)=10024,\"\",1),AND(P164=\"B02\",M164<>41310),IF(VLOOKUP(M164,channel_codes!J:P,7,FALSE)=0,\"\",VLOOKUP(M164,channel_codes!J:P,7,FALSE)),ISNUMBER(MATCH(P164,{\"D01\",\"D02\"},0)),IF(VLOOKUP(M164,channel_codes!J:P,7,FALSE)=1,1,IF(VLOOKUP(F164,recipient_country!AB:AD,3,FALSE)=10024,\"\",1)),OR(P164=\"H01\",AND(OR(ISNUMBER(SEARCH(\"41010\", L164)),ISNUMBER(SEARCH(\"41020\", L164)),ISNUMBER(SEARCH(\"41030\", L164)),ISNUMBER(SEARCH(\"41040\", L164)),ISNUMBER(SEARCH(\"41081\", L164))),F164=998)),22,F164=998,22,TRUE,\"\")","v":""},{"$f":"CRSDATA!AN164","v":0},{"$f":"CRSDATA!AO164","v":0},{"$f":"CRSDATA!AQ164","v":0},{"$f":"CRSDATA!AS164","v":0},{"$f":"CRSDATA!BB164","v":0},null,"",{"$f":"IF(AND(AND(CRSDATA!C164<>\"\",CRSDATA!BK164<>\"\"),OR(CRSDATA!N164=421,CRSDATA!N164=422,CRSDATA!N164=4221,CRSDATA!N164=4222,CRSDATA!N164=423,CRSDATA!N164=424,CRSDATA!N164=425,CRSDATA!N164=431,CRSDATA!N164=433,CRSDATA!N164=434)),DATEDIF(CRSDATA!C164,CRSDATA!BK164,\"m\"),\"\")","v":""},{"$f":"CRSDATA!BA164","v":0},{"$f":"CRSDATA!BC164","v":0},{"$f":"IF(CRSDATA!BT164=\"\",\"\",CRSDATA!BT164)","v":""},{"$f":"CRSDATA!L164","v":0}]
[{"$f":"CRSDATA!A165","v":0},{"$f":"CRSDATA!C165","v":0},{"$f":"CRSDATA!D165","v":0},{"$f":"CRSDATA!F165","v":0},{"$f":"CRSDATA!E165","v":0},{"$f":"IF(CRSDATA!H165=3000,998,CRSDATA!H165)","v":0},{"$f":"CRSDATA!O165","v":0},{"$f":"CRSDATA!U165","v":0},{"$f":"IF(CRSDATA!V165=\"\",\"\",CRSDATA!V165)","v":""},{"$f":"IF(CRSDATA!W165=\"\",\"\",CRSDATA!W165)","v":""},{"$f":"key_row(CRSDATA!X165,CRSDATA!Y165,CRSDATA!AL165,CRSDATA!AK165,CRSDATA!AJ165,CRSDATA!AM165,CRSDATA!P165,CRSDATA!V165)","v":""},{"$f":"CRSDATA!P165","v":0},{"$f":"CRSDATA!J165","v":0},{"$f":"CRSDATA!I165","v":0},null,{"$f":"IF(LEFT(CRSDATA!N165,2)=\"A0\",\"A00\",IF(LEFT(CRSDATA!N165,3)=\"B02\",\"B02\",IF(LEFT(CRSDATA!N165,3)=\"B03\",\"B03\",IF(CRSDATA!N165=\"B04\",\"C01\",IF(CRSDATA!N165=\"H01\",\"H00\",IF(OR(CRSDATA!N165=\"H02\",CRSDATA!N165=\"H03\",CRSDATA!N165=\"H04\",CRSDATA!N165=\"H05\",CRSDATA!N165=\"H06\"),\"I01\",IF(CRSDATA!N165=\"\",\"\",CRSDATA!N165)))))))","v":""},{"$f":"IF(AND(LEN(CRSDATA!M165)=4,LEFT(CRSDATA!M165,3)=\"110\"),1100,IF(AND(LEN(CRSDATA!M165)=4,LEFT(CRSDATA!M165,3)=\"422\"),422,CRSDATA!M165))","v":0},{"$f":"IF(CRSDATA!L165=22,\"FA04\",\"\")","v":""},{"$f":"IF(CRSDATA!K165=8,\"FC02\",\"\")","v":""},{"$f":"_xlfn.IFS(OR(P165=\"A00\",P165=\"E01\",P165=\"F01\",AND(P165=\"\",A165<>0),Q165=510,Q165=520,AF165=60),1,P165=\"G01\",IF(AF165=10,21,22),OR(M165=41203,M165=41204),22,OR(AND(OR(P165=\"B02\",P165=\"B03\"),M165=41310),OR(P165=\"E02\",P165=\"I01\")),21,AND(OR(P165=\"B01\",P165=\"B03\",P165=\"C01\"),M165<>41310),IF(VLOOKUP(F165,recipient_country!AB:AD,3,FALSE)=10024,\"\",1),AND(P165=\"B02\",M165<>41310),IF(VLOOKUP(M165,channel_codes!J:P,7,FALSE)=0,\"\",VLOOKUP(M165,channel_codes!J:P,7,FALSE)),ISNUMBER(MATCH(P165,{\"D01\",\"D02\"},0)),IF(VLOOKUP(M165,channel_codes!J:P,7,FALSE)=1,1,IF(VLOOKUP(F165,recipient_country!AB:AD,3,FALSE)=10024,\"\",1)),OR(P165=\"H01\",AND(OR(ISNUMBER(SEARCH(\"41010\", L165)),ISNUMBER(SEARCH(\"41020\", L165)),ISNUMBER(SEARCH(\"41030\", L165)),ISNUMBER(SEARCH(\"41040\", L165)),ISNUMBER(SEARCH(\"41081\", L165))),F165=998)),22,F165=998,22,TRUE,\"\")","v":""},{"$f":"CRSDATA!AN165","v":0},{"$f":"CRSDATA!AO165","v":0},{"$f":"CRSDATA!AQ165","v":0},{"$f":"CRSDATA!AS165","v":0},{"$f":"CRSDATA!BB165","v":0},null,"",{"$f":"IF(AND(AND(CRSDATA!C165<>\"\",CRSDATA!BK165<>\"\"),OR(CRSDATA!N165=421,CRSDATA!N165=422,CRSDATA!N165=4221,CRSDATA!N165=4222,CRSDATA!N165=423,CRSDATA!N165=424,CRSDATA!N165=425,CRSDATA!N165=431,CRSDATA!N165=433,CRSDATA!N165=434)),DATEDIF(CRSDATA!C165,CRSDATA!BK165,\"m\"),\"\")","v":""},{"$f":"CRSDATA!BA165","v":0},{"$f":"CRSDATA!BC165","v":0},{"$f":"IF(CRSDATA!BT165=\"\",\"\",CRSDATA!BT165)","v":""},{"$f":"CRSDATA!L165","v":0}]
[{"$f":"CRSDATA!A166","v":0},{"$f":"CRSDATA!C166","v":0},{"$f":"CRSDATA!D166","v":0},{"$f":"CRSDATA!F166","v":0},{"$f":"CRSDATA!E166","v":0},{"$f":"IF(CRSDATA!H166=3000,998,CRSDATA!H166)","v":0},{"$f":"CRSDATA!O166","v":0},{"$f":"CRSDATA!U166","v":0},{"$f":"IF(CRSDATA!V166=\"\",\"\",CRSDATA!V166)","v":""},{"$f":"IF(CRSDATA!W166=\"\",\"\",CRSDATA!W166)","v":""},{"$f":"key_row(CRSDATA!X166,CRSDATA!Y166,CRSDATA!AL166,CRSDATA!AK166,CRSDATA!AJ166,CRSDATA!AM166,CRSDATA!P166,CRSDATA!V166)","v":""},{"$f":"CRSDATA!P166","v":0},{"$f":"CRSDATA!J166","v":0},{"$f":"CRSDATA!I166","v":0},null,{"$f":"IF(LEFT(CRSDATA!N166,2)=\"A0\",\"A00\",IF(LEFT(CRSDATA!N166,3)=\"B02\",\"B02\",IF(LEFT(CRSDATA!N166,3)=\"B03\",\"B03\",IF(CRSDATA!N166=\"B04\",\"C01\",IF(CRSDATA!N166=\"H01\",\"H00\",IF(OR(CRSDATA!N166=\"H02\",CRSDATA!N166=\"H03\",CRSDATA!N166=\"H04\",CRSDATA!N166=\"H05\",CRSDATA!N166=\"H06\"),\"I01\",IF(CRSDATA!N166=\"\",\"\",CRSDATA!N166)))))))","v":""},{"$f":"IF(AND(LEN(CRSDATA!M166)=4,LEFT(CRSDATA!M166,3)=\"110\"),1100,IF(AND(LEN(CRSDATA!M166)=4,LEFT(CRSDATA!M166,3)=\"422\"),422,CRSDATA!M166))","v":0},{"$f":"IF(CRSDATA!L166=22,\"FA04\",\"\")","v":""},{"$f":"IF(CRSDATA!K166=8,\"FC02\",\"\")","v":""},{"$f":"_xlfn.IFS(OR(P166=\"A00\",P166=\"E01\",P166=\"F01\",AND(P166=\"\",A166<>0),Q166=510,Q166=520,AF166=60),1,P166=\"G01\",IF(AF166=10,21,22),OR(M166=41203,M166=41204),22,OR(AND(OR(P166=\"B02\",P166=\"B03\"),M166=41310),OR(P166=\"E02\",P166=\"I01\")),21,AND(OR(P166=\"B01\",P166=\"B03\",P166=\"C01\"),M166<>41310),IF(VLOOKUP(F166,recipient_country!AB:AD,3,FALSE)=10024,\"\",1),AND(P166=\"B02\",M166<>41310),IF(VLOOKUP(M166,channel_codes!J:P,7,FALSE)=0,\"\",VLOOKUP(M166,channel_codes!J:P,7,FALSE)),ISNUMBER(MATCH(P166,{\"D01\",\"D02\"},0)),IF(VLOOKUP(M166,channel_codes!J:P,7,FALSE)=1,1,IF(VLOOKUP(F166,recipient_country!AB:AD,3,FALSE)=10024,\"\",1)),OR(P166=\"H01\",AND(OR(ISNUMBER(SEARCH(\"41010\", L166)),ISNUMBER(SEARCH(\"41020\", L166)),ISNUMBER(SEARCH(\"41030\", L166)),ISNUMBER(SEARCH(\"41040\", L166)),ISNUMBER(SEARCH(\"41081\", L166))),F166=998)),22,F166=998,22,TRUE,\"\")","v":""},{"$f":"CRSDATA!AN166","v":0},{"$f":"CRSDATA!AO166","v":0},{"$f":"CRSDATA!AQ166","v":0},{"$f":"CRSDATA!AS166","v":0},{"$f":"CRSDATA!BB166","v":0},null,"",{"$f":"IF(AND(AND(CRSDATA!C166<>\"\",CRSDATA!BK166<>\"\"),OR(CRSDATA!N166=421,CRSDATA!N166=422,CRSDATA!N166=4221,CRSDATA!N166=4222,CRSDATA!N166=423,CRSDATA!N166=424,CRSDATA!N166=425,CRSDATA!N166=431,CRSDATA!N166=433,CRSDATA!N166=434)),DATEDIF(CRSDATA!C166,CRSDATA!BK166,\"m\"),\"\")","v":""},{"$f":"CRSDATA!BA166","v":0},{"$f":"CRSDATA!BC166","v":0},{"$f":"IF(CRSDATA!BT166=\"\",\"\",CRSDATA!BT166)","v":""},{"$f":"CRSDATA!L166","v":0}]
[{"$f":"CRSDATA!A167","v":0},{"$f":"CRSDATA!C167","v":0},{"$f":"CRSDATA!D167","v":0},{"$f":"CRSDATA!F167","v":0},{"$f":"CRSDATA!E167","v":0},{"$f":"IF(CRSDATA!H167=3000,998,CRSDATA!H167)","v":0},{"$f":"CRSDATA!O167","v":0},{"$f":"CRSDATA!U167","v":0},{"$f":"IF(CRSDATA!V167=\"\",\"\",CRSDATA!V167)","v":""},{"$f":"IF(CRSDATA!W167=\"\",\"\",CRSDATA!W167)","v":""},{"$f":"key_row(CRSDATA!X167,CRSDATA!Y167,CRSDATA!AL167,CRSDATA!AK167,CRSDATA!AJ167,CRSDATA!AM167,CRSDATA!P167,CRSDATA!V167)","v":""},{"$f":"CRSDATA!P167","v":0},{"$f":"CRSDATA!J167","v":0},{"$f":"CRSDATA!I167","v":0},null,{"$f":"IF(LEFT(CRSDATA!N167,2)=\"A0\",\"A00\",IF(LEFT(CRSDATA!N167,3)=\"B02\",\"B02\",IF(LEFT(CRSDATA!N167,3)=\"B03\",\"B03\",IF(CRSDATA!N167=\"B04\",\"C01\",IF(CRSDATA!N167=\"H01\",\"H00\",IF(OR(CRSDATA!N167=\"H02\",CRSDATA!N167=\"H03\",CRSDATA!N167=\"H04\",CRSDATA!N167=\"H05\",CRSDATA!N167=\"H06\"),\"I01\",IF(CRSDATA!N167=\"\",\"\",CRSDATA!N167)))))))","v":""},{"$f":"IF(AND(LEN(CRSDATA!M167)=4,LEFT(CRSDATA!M167,3)=\"110\"),1100,IF(AND(LEN(CRSDATA!M167)=4,LEFT(CRSDATA!M167,3)=\"422\"),422,CRSDATA!M167))","v":0},{"$f":"IF(CRSDATA!L167=22,\"FA04\",\"\")","v":""},{"$f":"IF(CRSDATA!K167=8,\"FC02\",\"\")","v":""},{"$f":"_xlfn.IFS(OR(P167=\"A00\",P167=\"E01\",P167=\"F01\",AND(P167=\"\",A167<>0),Q167=510,Q167=520,AF167=60),1,P167=\"G01\",IF(AF167=10,21,22),OR(M167=41203,M167=41204),22,OR(AND(OR(P167=\"B02\",P167=\"B03\"),M167=41310),OR(P167=\"E02\",P167=\"I01\")),21,AND(OR(P167=\"B01\",P167=\"B03\",P167=\"C01\"),M167<>41310),IF(VLOOKUP(F167,recipient_country!AB:AD,3,FALSE)=10024,\"\",1),AND(P167=\"B02\",M167<>41310),IF(VLOOKUP(M167,channel_codes!J:P,7,FALSE)=0,\"\",VLOOKUP(M167,channel_codes!J:P,7,FALSE)),ISNUMBER(MATCH(P167,{\"D01\",\"D02\"},0)),IF(VLOOKUP(M167,channel_codes!J:P,7,FALSE)=1,1,IF(VLOOKUP(F167,recipient_country!AB:AD,3,FALSE)=10024,\"\",1)),OR(P167=\"H01\",AND(OR(ISNUMBER(SEARCH(\"41010\", L167)),ISNUMBER(SEARCH(\"41020\", L167)),ISNUMBER(SEARCH(\"41030\", L167)),ISNUMBER(SEARCH(\"41040\", L167)),ISNUMBER(SEARCH(\"41081\", L167))),F167=998)),22,F167=998,22,TRUE,\"\")","v":""},{"$f":"CRSDATA!AN167","v":0},{"$f":"CRSDATA!AO167","v":0},{"$f":"CRSDATA!AQ167","v":0},{"$f":"CRSDATA!AS167","v":0},{"$f":"CRSDATA!BB167","v":0},null,"",{"$f":"IF(AND(AND(CRSDATA!C167<>\"\",CRSDATA!BK167<>\"\"),OR(CRSDATA!N167=421,CRSDATA!N167=422,CRSDATA!N167=4221,CRSDATA!N167=4222,CRSDATA!N167=423,CRSDATA!N167=424,CRSDATA!N167=425,CRSDATA!N167=431,CRSDATA!N167=433,CRSDATA!N167=434)),DATEDIF(CRSDATA!C167,CRSDATA!BK167,\"m\"),\"\")","v":""},{"$f":"CRSDATA!BA167","v":0},{"$f":"CRSDATA!BC167","v":0},{"$f":"IF(CRSDATA!BT167=\"\",\"\",CRSDATA!BT167)","v":""},{"$f":"CRSDATA!L167","v":0}]
[{"$f":"CRSDATA!A168","v":0},{"$f":"CRSDATA!C168","v":0},{"$f":"CRSDATA!D168","v":0},{"$f":"CRSDATA!F168","v":0},{"$f":"CRSDATA!E168","v":0},{"$f":"IF(CRSDATA!H168=3000,998,CRSDATA!H168)","v":0},{"$f":"CRSDATA!O168","v":0},{"$f":"CRSDATA!U168","v":0},{"$f":"IF(CRSDATA!V168=\"\",\"\",CRSDATA!V168)","v":""},{"$f":"IF(CRSDATA!W168=\"\",\"\",CRSDATA!W168)","v":""},{"$f":"key_row(CRSDATA!X168,CRSDATA!Y168,CRSDATA!AL168,CRSDATA!AK168,CRSDATA!AJ168,CRSDATA!AM168,CRSDATA!P168,CRSDATA!V168)","v":""},{"$f":"CRSDATA!P168","v":0},{"$f":"CRSDATA!J168","v":0},{"$f":"CRSDATA!I168","v":0},null,{"$f":"IF(LEFT(CRSDATA!N168,2)=\"A0\",\"A00\",IF(LEFT(CRSDATA!N168,3)=\"B02\",\"B02\",IF(LEFT(CRSDATA!N168,3)=\"B03\",\"B03\",IF(CRSDATA!N168=\"B04\",\"C01\",IF(CRSDATA!N168=\"H01\",\"H00\",IF(OR(CRSDATA!N168=\"H02\",CRSDATA!N168=\"H03\",CRSDATA!N168=\"H04\",CRSDATA!N168=\"H05\",CRSDATA!N168=\"H06\"),\"I01\",IF(CRSDATA!N168=\"\",\"\",CRSDATA!N168)))))))","v":""},{"$f":"IF(AND(LEN(CRSDATA!M168)=4,LEFT(CRSDATA!M168,3)=\"110\"),1100,IF(AND(LEN(CRSDATA!M168)=4,LEFT(CRSDATA!M168,3)=\"422\"),422,CRSDATA!M168))","v":0},{"$f":"IF(CRSDATA!L168=22,\"FA04\",\"\")","v":""},{"$f":"IF(CRSDATA!K168=8,\"FC02\",\"\")","v":""},{"$f":"_xlfn.IFS(OR(P168=\"A00\",P168=\"E01\",P168=\"F01\",AND(P168=\"\",A168<>0),Q168=510,Q168=520,AF168=60),1,P168=\"G01\",IF(AF168=10,21,22),OR(M168=41203,M168=41204),22,OR(AND(OR(P168=\"B02\",P168=\"B03\"),M168=41310),OR(P168=\"E02\",P168=\"I01\")),21,AND(OR(P168=\"B01\",P168=\"B03\",P168=\"C01\"),M168<>41310),IF(VLOOKUP(F168,recipient_country!AB:AD,3,FALSE)=10024,\"\",1),AND(P168=\"B02\",M168<>41310),IF(VLOOKUP(M168,channel_codes!J:P,7,FALSE)=0,\"\",VLOOKUP(M168,channel_codes!J:P,7,FALSE)),ISNUMBER(MATCH(P168,{\"D01\",\"D02\"},0)),IF(VLOOKUP(M168,channel_codes!J:P,7,FALSE)=1,1,IF(VLOOKUP(F168,recipient_country!AB:AD,3,FALSE)=10024,\"\",1)),OR(P168=\"H01\",AND(OR(ISNUMBER(SEARCH(\"41010\", L168)),ISNUMBER(SEARCH(\"41020\", L168)),ISNUMBER(SEARCH(\"41030\", L168)),ISNUMBER(SEARCH(\"41040\", L168)),ISNUMBER(SEARCH(\"41081\", L168))),F168=998)),22,F168=998,22,TRUE,\"\")","v":""},{"$f":"CRSDATA!AN168","v":0},{"$f":"CRSDATA!AO168","v":0},{"$f":"CRSDATA!AQ168","v":0},{"$f":"CRSDATA!AS168","v":0},{"$f":"CRSDATA!BB168","v":0},null,"",{"$f":"IF(AND(AND(CRSDATA!C168<>\"\",CRSDATA!BK168<>\"\"),OR(CRSDATA!N168=421,CRSDATA!N168=422,CRSDATA!N168=4221,CRSDATA!N168=4222,CRSDATA!N168=423,CRSDATA!N168=424,CRSDATA!N168=425,CRSDATA!N168=431,CRSDATA!N168=433,CRSDATA!N168=434)),DATEDIF(CRSDATA!C168,CRSDATA!BK168,\"m\"),\"\")","v":""},{"$f":"CRSDATA!BA168","v":0},{"$f":"CRSDATA!BC168","v":0},{"$f":"IF(CRSDATA!BT168=\"\",\"\",CRSDATA!BT168)","v":""},{"$f":"CRSDATA!L168","v":0}]
[{"$f":"CRSDATA!A169","v":0},{"$f":"CRSDATA!C169","v":0},{"$f":"CRSDATA!D169","v":0},{"$f":"CRSDATA!F169","v":0},{"$f":"CRSDATA!E169","v":0},{"$f":"IF(CRSDATA!H169=3000,998,CRSDATA!H169)","v":0},{"$f":"CRSDATA!O169","v":0},{"$f":"CRSDATA!U169","v":0},{"$f":"IF(CRSDATA!V169=\"\",\"\",CRSDATA!V169)","v":""},{"$f":"IF(CRSDATA!W169=\"\",\"\",CRSDATA!W169)","v":""},{"$f":"key_row(CRSDATA!X169,CRSDATA!Y169,CRSDATA!AL169,CRSDATA!AK169,CRSDATA!AJ169,CRSDATA!AM169,CRSDATA!P169,CRSDATA!V169)","v":""},{"$f":"CRSDATA!P169","v":0},{"$f":"CRSDATA!J169","v":0},{"$f":"CRSDATA!I169","v":0},null,{"$f":"IF(LEFT(CRSDATA!N169,2)=\"A0\",\"A00\",IF(LEFT(CRSDATA!N169,3)=\"B02\",\"B02\",IF(LEFT(CRSDATA!N169,3)=\"B03\",\"B03\",IF(CRSDATA!N169=\"B04\",\"C01\",IF(CRSDATA!N169=\"H01\",\"H00\",IF(OR(CRSDATA!N169=\"H02\",CRSDATA!N169=\"H03\",CRSDATA!N169=\"H04\",CRSDATA!N169=\"H05\",CRSDATA!N169=\"H06\"),\"I01\",IF(CRSDATA!N169=\"\",\"\",CRSDATA!N169)))))))","v":""},{"$f":"IF(AND(LEN(CRSDATA!M169)=4,LEFT(CRSDATA!M169,3)=\"110\"),1100,IF(AND(LEN(CRSDATA!M169)=4,LEFT(CRSDATA!M169,3)=\"422\"),422,CRSDATA!M169))","v":0},{"$f":"IF(CRSDATA!L169=22,\"FA04\",\"\")","v":""},{"$f":"IF(CRSDATA!K169=8,\"FC02\",\"\")","v":""},{"$f":"_xlfn.IFS(OR(P169=\"A00\",P169=\"E01\",P169=\"F01\",AND(P169=\"\",A169<>0),Q169=510,Q169=520,AF169=60),1,P169=\"G01\",IF(AF169=10,21,22),OR(M169=41203,M169=41204),22,OR(AND(OR(P169=\"B02\",P169=\"B03\"),M169=41310),OR(P169=\"E02\",P169=\"I01\")),21,AND(OR(P169=\"B01\",P169=\"B03\",P169=\"C01\"),M169<>41310),IF(VLOOKUP(F169,recipient_country!AB:AD,3,FALSE)=10024,\"\",1),AND(P169=\"B02\",M169<>41310),IF(VLOOKUP(M169,channel_codes!J:P,7,FALSE)=0,\"\",VLOOKUP(M169,channel_codes!J:P,7,FALSE)),ISNUMBER(MATCH(P169,{\"D01\",\"D02\"},0)),IF(VLOOKUP(M169,channel_codes!J:P,7,FALSE)=1,1,IF(VLOOKUP(F169,recipient_country!AB:AD,3,FALSE)=10024,\"\",1)),OR(P169=\"H01\",AND(OR(ISNUMBER(SEARCH(\"41010\", L169)),ISNUMBER(SEARCH(\"41020\", L169)),ISNUMBER(SEARCH(\"41030\", L169)),ISNUMBER(SEARCH(\"41040\", L169)),ISNUMBER(SEARCH(\"41081\", L169))),F169=998)),22,F169=998,22,TRUE,\"\")","v":""},{"$f":"CRSDATA!AN169","v":0},{"$f":"CRSDATA!AO169","v":0},{"$f":"CRSDATA!AQ169","v":0},{"$f":"CRSDATA!AS169","v":0},{"$f":"CRSDATA!BB169","v":0},null,"",{"$f":"IF(AND(AND(CRSDATA!C169<>\"\",CRSDATA!BK169<>\"\"),OR(CRSDATA!N169=421,CRSDATA!N169=422,CRSDATA!N169=4221,CRSDATA!N169=4222,CRSDATA!N169=423,CRSDATA!N169=424,CRSDATA!N169=425,CRSDATA!N169=431,CRSDATA!N169=433,CRSDATA!N169=434)),DATEDIF(CRSDATA!C169,CRSDATA!BK169,\"m\"),\"\")","v":""},{"$f":"CRSDATA!BA169","v":0},{"$f":"CRSDATA!BC169","v":0},{"$f":"IF(CRSDATA!BT169=\"\",\"\",CRSDATA!BT169)","v":""},{"$f":"CRSDATA!L169","v":0}]
[{"$f":"CRSDATA!A170","v":0},{"$f":"CRSDATA!C170","v":0},{"$f":"CRSDATA!D170","v":0},{"$f":"CRSDATA!F170","v":0},{"$f":"CRSDATA!E170","v":0},{"$f":"IF(CRSDATA!H170=3000,998,CRSDATA!H170)","v":0},{"$f":"CRSDATA!O170","v":0},{"$f":"CRSDATA!U170","v":0},{"$f":"IF(CRSDATA!V170=\"\",\"\",CRSDATA!V170)","v":""},{"$f":"IF(CRSDATA!W170=\"\",\"\",CRSDATA!W170)","v":""},{"$f":"key_row(CRSDATA!X170,CRSDATA!Y170,CRSDATA!AL170,CRSDATA!AK170,CRSDATA!AJ170,CRSDATA!AM170,CRSDATA!P170,CRSDATA!V170)","v":""},{"$f":"CRSDATA!P170","v":0},{"$f":"CRSDATA!J170","v":0},{"$f":"CRSDATA!I170","v":0},null,{"$f":"IF(LEFT(CRSDATA!N170,2)=\"A0\",\"A00\",IF(LEFT(CRSDATA!N170,3)=\"B02\",\"B02\",IF(LEFT(CRSDATA!N170,3)=\"B03\",\"B03\",IF(CRSDATA!N170=\"B04\",\"C01\",IF(CRSDATA!N170=\"H01\",\"H00\",IF(OR(CRSDATA!N170=\"H02\",CRSDATA!N170=\"H03\",CRSDATA!N170=\"H04\",CRSDATA!N170=\"H05\",CRSDATA!N170=\"H06\"),\"I01\",IF(CRSDATA!N170=\"\",\"\",CRSDATA!N170)))))))","v":""},{"$f":"IF(AND(LEN(CRSDATA!M170)=4,LEFT(CRSDATA!M170,3)=\"110\"),1100,IF(AND(LEN(CRSDATA!M170)=4,LEFT(CRSDATA!M170,3)=\"422\"),422,CRSDATA!M170))","v":0},{"$f":"IF(CRSDATA!L170=22,\"FA04\",\"\")","v":""},{"$f":"IF(CRSDATA!K170=8,\"FC02\",\"\")","v":""},{"$f":"_xlfn.IFS(OR(P170=\"A00\",P170=\"E01\",P170=\"F01\",AND(P170=\"\",A170<>0),Q170=510,Q170=520,AF170=60),1,P170=\"G01\",IF(AF170=10,21,22),OR(M170=41203,M170=41204),22,OR(AND(OR(P170=\"B02\",P170=\"B03\"),M170=41310),OR(P170=\"E02\",P170=\"I01\")),21,AND(OR(P170=\"B01\",P170=\"B03\",P170=\"C01\"),M170<>41310),IF(VLOOKUP(F170,recipient_country!AB:AD,3,FALSE)=10024,\"\",1),AND(P170=\"B02\",M170<>41310),IF(VLOOKUP(M170,channel_codes!J:P,7,FALSE)=0,\"\",VLOOKUP(M170,channel_codes!J:P,7,FALSE)),ISNUMBER(MATCH(P170,{\"D01\",\"D02\"},0)),IF(VLOOKUP(M170,channel_codes!J:P,7,FALSE)=1,1,IF(VLOOKUP(F170,recipient_country!AB:AD,3,FALSE)=10024,\"\",1)),OR(P170=\"H01\",AND(OR(ISNUMBER(SEARCH(\"41010\", L170)),ISNUMBER(SEARCH(\"41020\", L170)),ISNUMBER(SEARCH(\"41030\", L170)),ISNUMBER(SEARCH(\"41040\", L170)),ISNUMBER(SEARCH(\"41081\", L170))),F170=998)),22,F170=998,22,TRUE,\"\")","v":""},{"$f":"CRSDATA!AN170","v":0},{"$f":"CRSDATA!AO170","v":0},{"$f":"CRSDATA!AQ170","v":0},{"$f":"CRSDATA!AS170","v":0},{"$f":"CRSDATA!BB170","v":0},null,"",{"$f":"IF(AND(AND(CRSDATA!C170<>\"\",CRSDATA!BK170<>\"\"),OR(CRSDATA!N170=421,CRSDATA!N170=422,CRSDATA!N170=4221,CRSDATA!N170=4222,CRSDATA!N170=423,CRSDATA!N170=424,CRSDATA!N170=425,CRSDATA!N170=431,CRSDATA!N170=433,CRSDATA!N170=434)),DATEDIF(CRSDATA!C170,CRSDATA!BK170,\"m\"),\"\")","v":""},{"$f":"CRSDATA!BA170","v":0},{"$f":"CRSDATA!BC170","v":0},{"$f":"IF(CRSDATA!BT170=\"\",\"\",CRSDATA!BT170)","v":""},{"$f":"CRSDATA!L170","v":0}]
[{"$f":"CRSDATA!A171","v":0},{"$f":"CRSDATA!C171","v":0},{"$f":"CRSDATA!D171","v":0},{"$f":"CRSDATA!F171","v":0},{"$f":"CRSDATA!E171","v":0},{"$f":"IF(CRSDATA!H171=3000,998,CRSDATA!H171)","v":0},{"$f":"CRSDATA!O171","v":0},{"$f":"CRSDATA!U171","v":0},{"$f":"IF(CRSDATA!V171=\"\",\"\",CRSDATA!V171)","v":""},{"$f":"IF(CRSDATA!W171=\"\",\"\",CRSDATA!W171)","v":""},{"$f":"key_row(CRSDATA!X171,CRSDATA!Y171,CRSDATA!AL171,CRSDATA!AK171,CRSDATA!AJ171,CRSDATA!AM171,CRSDATA!P171,CRSDATA!V171)","v":""},{"$f":"CRSDATA!P171","v":0},{"$f":"CRSDATA!J171","v":0},{"$f":"CRSDATA!I171","v":0},null,{"$f":"IF(LEFT(CRSDATA!N171,2)=\"A0\",\"A00\",IF(LEFT(CRSDATA!N171,3)=\"B02\",\"B02\",IF(LEFT(CRSDATA!N171,3)=\"B03\",\"B03\",IF(CRSDATA!N171=\"B04\",\"C01\",IF(CRSDATA!N171=\"H01\",\"H00\",IF(OR(CRSDATA!N171=\"H02\",CRSDATA!N171=\"H03\",CRSDATA!N171=\"H04\",CRSDATA!N171=\"H05\",CRSDATA!N171=\"H06\"),\"I01\",IF(CRSDATA!N171=\"\",\"\",CRSDATA!N171)))))))","v":""},{"$f":"IF(AND(LEN(CRSDATA!M171)=4,LEFT(CRSDATA!M171,3)=\"110\"),1100,IF(AND(LEN(CRSDATA!M171)=4,LEFT(CRSDATA!M171,3)=\"422\"),422,CRSDATA!M171))","v":0},{"$f":"IF(CRSDATA!L171=22,\"FA04\",\"\")","v":""},{"$f":"IF(CRSDATA!K171=8,\"FC02\",\"\")","v":""},{"$f":"_xlfn.IFS(OR(P171=\"A00\",P171=\"E01\",P171=\"F01\",AND(P171=\"\",A171<>0),Q171=510,Q171=520,AF171=60),1,P171=\"G01\",IF(AF171=10,21,22),OR(M171=41203,M171=41204),22,OR(AND(OR(P171=\"B02\",P171=\"B03\"),M171=41310),OR(P171=\"E02\",P171=\"I01\")),21,AND(OR(P171=\"B01\",P171=\"B03\",P171=\"C01\"),M171<>41310),IF(VLOOKUP(F171,recipient_country!AB:AD,3,FALSE)=10024,\"\",1),AND(P171=\"B02\",M171<>41310),IF(VLOOKUP(M171,channel_codes!J:P,7,FALSE)=0,\"\",VLOOKUP(M171,channel_codes!J:P,7,FALSE)),ISNUMBER(MATCH(P171,{\"D01\",\"D02\"},0)),IF(VLOOKUP(M171,channel_codes!J:P,7,FALSE)=1,1,IF(VLOOKUP(F171,recipient_country!AB:AD,3,FALSE)=10024,\"\",1)),OR(P171=\"H01\",AND(OR(ISNUMBER(SEARCH(\"41010\", L171)),ISNUMBER(SEARCH(\"41020\", L171)),ISNUMBER(SEARCH(\"41030\", L171)),ISNUMBER(SEARCH(\"41040\", L171)),ISNUMBER(SEARCH(\"41081\", L171))),F171=998)),22,F171=998,22,TRUE,\"\")","v":""},{"$f":"CRSDATA!AN171","v":0},{"$f":"CRSDATA!AO171","v":0},{"$f":"CRSDATA!AQ171","v":0},{"$f":"CRSDATA!AS171","v":0},{"$f":"CRSDATA!BB171","v":0},null,"",{"$f":"IF(AND(AND(CRSDATA!C171<>\"\",CRSDATA!BK171<>\"\"),OR(CRSDATA!N171=421,CRSDATA!N171=422,CRSDATA!N171=4221,CRSDATA!N171=4222,CRSDATA!N171=423,CRSDATA!N171=424,CRSDATA!N171=425,CRSDATA!N171=431,CRSDATA!N171=433,CRSDATA!N171=434)),DATEDIF(CRSDATA!C171,CRSDATA!BK171,\"m\"),\"\")","v":""},{"$f":"CRSDATA!BA171","v":0},{"$f":"CRSDATA!BC171","v":0},{"$f":"IF(CRSDATA!BT171=\"\",\"\",CRSDATA!BT171)","v":""},{"$f":"CRSDATA!L171","v":0}]
[{"$f":"CRSDATA!A172","v":0},{"$f":"CRSDATA!C172","v":0},{"$f":"CRSDATA!D172","v":0},{"$f":"CRSDATA!F172","v":0},{"$f":"CRSDATA!E172","v":0},{"$f":"IF(CRSDATA!H172=3000,998,CRSDATA!H172)","v":0},{"$f":"CRSDATA!O172","v":0},{"$f":"CRSDATA!U172","v":0},{"$f":"IF(CRSDATA!V172=\"\",\"\",CRSDATA!V172)","v":""},{"$f":"IF(CRSDATA!W172=\"\",\"\",CRSDATA!W172)","v":""},{"$f":"key_row(CRSDATA!X172,CRSDATA!Y172,CRSDATA!AL172,CRSDATA!AK172,CRSDATA!AJ172,CRSDATA!AM172,CRSDATA!P172,CRSDATA!V172)","v":""},{"$f":"CRSDATA!P172","v":0},{"$f":"CRSDATA!J172","v":0},{"$f":"CRSDATA!I172","v":0},null,{"$f":"IF(LEFT(CRSDATA!N172,2)=\"A0\",\"A00\",IF(LEFT(CRSDATA!N172,3)=\"B02\",\"B02\",IF(LEFT(CRSDATA!N172,3)=\"B03\",\"B03\",IF(CRSDATA!N172=\"B04\",\"C01\",IF(CRSDATA!N172=\"H01\",\"H00\",IF(OR(CRSDATA!N172=\"H02\",CRSDATA!N172=\"H03\",CRSDATA!N172=\"H04\",CRSDATA!N172=\"H05\",CRSDATA!N172=\"H06\"),\"I01\",IF(CRSDATA!N172=\"\",\"\",CRSDATA!N172)))))))","v":""},{"$f":"IF(AND(LEN(CRSDATA!M172)=4,LEFT(CRSDATA!M172,3)=\"110\"),1100,IF(AND(LEN(CRSDATA!M172)=4,LEFT(CRSDATA!M172,3)=\"422\"),422,CRSDATA!M172))","v":0},{"$f":"IF(CRSDATA!L172=22,\"FA04\",\"\")","v":""},{"$f":"IF(CRSDATA!K172=8,\"FC02\",\"\")","v":""},{"$f":"_xlfn.IFS(OR(P172=\"A00\",P172=\"E01\",P172=\"F01\",AND(P172=\"\",A172<>0),Q172=510,Q172=520,AF172=60),1,P172=\"G01\",IF(AF172=10,21,22),OR(M172=41203,M172=41204),22,OR(AND(OR(P172=\"B02\",P172=\"B03\"),M172=41310),OR(P172=\"E02\",P172=\"I01\")),21,AND(OR(P172=\"B01\",P172=\"B03\",P172=\"C01\"),M172<>41310),IF(VLOOKUP(F172,recipient_country!AB:AD,3,FALSE)=10024,\"\",1),AND(P172=\"B02\",M172<>41310),IF(VLOOKUP(M172,channel_codes!J:P,7,FALSE)=0,\"\",VLOOKUP(M172,channel_codes!J:P,7,FALSE)),ISNUMBER(MATCH(P172,{\"D01\",\"D02\"},0)),IF(VLOOKUP(M172,channel_codes!J:P,7,FALSE)=1,1,IF(VLOOKUP(F172,recipient_country!AB:AD,3,FALSE)=10024,\"\",1)),OR(P172=\"H01\",AND(OR(ISNUMBER(SEARCH(\"41010\", L172)),ISNUMBER(SEARCH(\"41020\", L172)),ISNUMBER(SEARCH(\"41030\", L172)),ISNUMBER(SEARCH(\"41040\", L172)),ISNUMBER(SEARCH(\"41081\", L172))),F172=998)),22,F172=998,22,TRUE,\"\")","v":""},{"$f":"CRSDATA!AN172","v":0},{"$f":"CRSDATA!AO172","v":0},{"$f":"CRSDATA!AQ172","v":0},{"$f":"CRSDATA!AS172","v":0},{"$f":"CRSDATA!BB172","v":0},null,"",{"$f":"IF(AND(AND(CRSDATA!C172<>\"\",CRSDATA!BK172<>\"\"),OR(CRSDATA!N172=421,CRSDATA!N172=422,CRSDATA!N172=4221,CRSDATA!N172=4222,CRSDATA!N172=423,CRSDATA!N172=424,CRSDATA!N172=425,CRSDATA!N172=431,CRSDATA!N172=433,CRSDATA!N172=434)),DATEDIF(CRSDATA!C172,CRSDATA!BK172,\"m\"),\"\")","v":""},{"$f":"CRSDATA!BA172","v":0},{"$f":"CRSDATA!BC172","v":0},{"$f":"IF(CRSDATA!BT172=\"\",\"\",CRSDATA!BT172)","v":""},{"$f":"CRSDATA!L172","v":0}]
[{"$f":"CRSDATA!A173","v":0},{"$f":"CRSDATA!C173","v":0},{"$f":"CRSDATA!D173","v":0},{"$f":"CRSDATA!F173","v":0},{"$f":"CRSDATA!E173","v":0},{"$f":"IF(CRSDATA!H173=3000,998,CRSDATA!H173)","v":0},{"$f":"CRSDATA!O173","v":0},{"$f":"CRSDATA!U173","v":0},{"$f":"IF(CRSDATA!V173=\"\",\"\",CRSDATA!V173)","v":""},{"$f":"IF(CRSDATA!W173=\"\",\"\",CRSDATA!W173)","v":""},{"$f":"key_row(CRSDATA!X173,CRSDATA!Y173,CRSDATA!AL173,CRSDATA!AK173,CRSDATA!AJ173,CRSDATA!AM173,CRSDATA!P173,CRSDATA!V173)","v":""},{"$f":"CRSDATA!P173","v":0},{"$f":"CRSDATA!J173","v":0},{"$f":"CRSDATA!I173","v":0},null,{"$f":"IF(LEFT(CRSDATA!N173,2)=\"A0\",\"A00\",IF(LEFT(CRSDATA!N173,3)=\"B02\",\"B02\",IF(LEFT(CRSDATA!N173,3)=\"B03\",\"B03\",IF(CRSDATA!N173=\"B04\",\"C01\",IF(CRSDATA!N173=\"H01\",\"H00\",IF(OR(CRSDATA!N173=\"H02\",CRSDATA!N173=\"H03\",CRSDATA!N173=\"H04\",CRSDATA!N173=\"H05\",CRSDATA!N173=\"H06\"),\"I01\",IF(CRSDATA!N173=\"\",\"\",CRSDATA!N173)))))))","v":""},{"$f":"IF(AND(LEN(CRSDATA!M173)=4,LEFT(CRSDATA!M173,3)=\"110\"),1100,IF(AND(LEN(CRSDATA!M173)=4,LEFT(CRSDATA!M173,3)=\"422\"),422,CRSDATA!M173))","v":0},{"$f":"IF(CRSDATA!L173=22,\"FA04\",\"\")","v":""},{"$f":"IF(CRSDATA!K173=8,\"FC02\",\"\")","v":""},{"$f":"_xlfn.IFS(OR(P173=\"A00\",P173=\"E01\",P173=\"F01\",AND(P173=\"\",A173<>0),Q173=510,Q173=520,AF173=60),1,P173=\"G01\",IF(AF173=10,21,22),OR(M173=41203,M173=41204),22,OR(AND(OR(P173=\"B02\",P173=\"B03\"),M173=41310),OR(P173=\"E02\",P173=\"I01\")),21,AND(OR(P173=\"B01\",P173=\"B03\",P173=\"C01\"),M173<>41310),IF(VLOOKUP(F173,recipient_country!AB:AD,3,FALSE)=10024,\"\",1),AND(P173=\"B02\",M173<>41310),IF(VLOOKUP(M173,channel_codes!J:P,7,FALSE)=0,\"\",VLOOKUP(M173,channel_codes!J:P,7,FALSE)),ISNUMBER(MATCH(P173,{\"D01\",\"D02\"},0)),IF(VLOOKUP(M173,channel_codes!J:P,7,FALSE)=1,1,IF(VLOOKUP(F173,recipient_country!AB:AD,3,FALSE)=10024,\"\",1)),OR(P173=\"H01\",AND(OR(ISNUMBER(SEARCH(\"41010\", L173)),ISNUMBER(SEARCH(\"41020\", L173)),ISNUMBER(SEARCH(\"41030\", L173)),ISNUMBER(SEARCH(\"41040\", L173)),ISNUMBER(SEARCH(\"41081\", L173))),F173=998)),22,F173=998,22,TRUE,\"\")","v":""},{"$f":"CRSDATA!AN173","v":0},{"$f":"CRSDATA!AO173","v":0},{"$f":"CRSDATA!AQ173","v":0},{"$f":"CRSDATA!AS173","v":0},{"$f":"CRSDATA!BB173","v":0},null,"",{"$f":"IF(AND(AND(CRSDATA!C173<>\"\",CRSDATA!BK173<>\"\"),OR(CRSDATA!N173=421,CRSDATA!N173=422,CRSDATA!N173=4221,CRSDATA!N173=4222,CRSDATA!N173=423,CRSDATA!N173=424,CRSDATA!N173=425,CRSDATA!N173=431,CRSDATA!N173=433,CRSDATA!N173=434)),DATEDIF(CRSDATA!C173,CRSDATA!BK173,\"m\"),\"\")","v":""},{"$f":"CRSDATA!BA173","v":0},{"$f":"CRSDATA!BC173","v":0},{"$f":"IF(CRSDATA!BT173=\"\",\"\",CRSDATA!BT173)","v":""},{"$f":"CRSDATA!L173","v":0}]
[{"$f":"CRSDATA!A174","v":0},{"$f":"CRSDATA!C174","v":0},{"$f":"CRSDATA!D174","v":0},{"$f":"CRSDATA!F174","v":0},{"$f":"CRSDATA!E174","v":0},{"$f":"IF(CRSDATA!H174=3000,998,CRSDATA!H174)","v":0},{"$f":"CRSDATA!O174","v":0},{"$f":"CRSDATA!U174","v":0},{"$f":"IF(CRSDATA!V174=\"\",\"\",CRSDATA!V174)","v":""},{"$f":"IF(CRSDATA!W174=\"\",\"\",CRSDATA!W174)","v":""},{"$f":"key_row(CRSDATA!X174,CRSDATA!Y174,CRSDATA!AL174,CRSDATA!AK174,CRSDATA!AJ174,CRSDATA!AM174,CRSDATA!P174,CRSDATA!V174)","v":""},{"$f":"CRSDATA!P174","v":0},{"$f":"CRSDATA!J174","v":0},{"$f":"CRSDATA!I174","v":0},null,{"$f":"IF(LEFT(CRSDATA!N174,2)=\"A0\",\"A00\",IF(LEFT(CRSDATA!N174,3)=\"B02\",\"B02\",IF(LEFT(CRSDATA!N174,3)=\"B03\",\"B03\",IF(CRSDATA!N174=\"B04\",\"C01\",IF(CRSDATA!N174=\"H01\",\"H00\",IF(OR(CRSDATA!N174=\"H02\",CRSDATA!N174=\"H03\",CRSDATA!N174=\"H04\",CRSDATA!N174=\"H05\",CRSDATA!N174=\"H06\"),\"I01\",IF(CRSDATA!N174=\"\",\"\",CRSDATA!N174)))))))","v":""},{"$f":"IF(AND(LEN(CRSDATA!M174)=4,LEFT(CRSDATA!M174,3)=\"110\"),1100,IF(AND(LEN(CRSDATA!M174)=4,LEFT(CRSDATA!M174,3)=\"422\"),422,CRSDATA!M174))","v":0},{"$f":"IF(CRSDATA!L174=22,\"FA04\",\"\")","v":""},{"$f":"IF(CRSDATA!K174=8,\"FC02\",\"\")","v":""},{"$f":"_xlfn.IFS(OR(P174=\"A00\",P174=\"E01\",P174=\"F01\",AND(P174=\"\",A174<>0),Q174=510,Q174=520,AF174=60),1,P174=\"G01\",IF(AF174=10,21,22),OR(M174=41203,M174=41204),22,OR(AND(OR(P174=\"B02\",P174=\"B03\"),M174=41310),OR(P174=\"E02\",P174=\"I01\")),21,AND(OR(P174=\"B01\",P174=\"B03\",P174=\"C01\"),M174<>41310),IF(VLOOKUP(F174,recipient_country!AB:AD,3,FALSE)=10024,\"\",1),AND(P174=\"B02\",M174<>41310),IF(VLOOKUP(M174,channel_codes!J:P,7,FALSE)=0,\"\",VLOOKUP(M174,channel_codes!J:P,7,FALSE)),ISNUMBER(MATCH(P174,{\"D01\",\"D02\"},0)),IF(VLOOKUP(M174,channel_codes!J:P,7,FALSE)=1,1,IF(VLOOKUP(F174,recipient_country!AB:AD,3,FALSE)=10024,\"\",1)),OR(P174=\"H01\",AND(OR(ISNUMBER(SEARCH(\"41010\", L174)),ISNUMBER(SEARCH(\"41020\", L174)),ISNUMBER(SEARCH(\"41030\", L174)),ISNUMBER(SEARCH(\"41040\", L174)),ISNUMBER(SEARCH(\"41081\", L174))),F174=998)),22,F174=998,22,TRUE,\"\")","v":""},{"$f":"CRSDATA!AN174","v":0},{"$f":"CRSDATA!AO174","v":0},{"$f":"CRSDATA!AQ174","v":0},{"$f":"CRSDATA!AS174","v":0},{"$f":"CRSDATA!BB174","v":0},null,"",{"$f":"IF(AND(AND(CRSDATA!C174<>\"\",CRSDATA!BK174<>\"\"),OR(CRSDATA!N174=421,CRSDATA!N174=422,CRSDATA!N174=4221,CRSDATA!N174=4222,CRSDATA!N174=423,CRSDATA!N174=424,CRSDATA!N174=425,CRSDATA!N174=431,CRSDATA!N174=433,CRSDATA!N174=434)),DATEDIF(CRSDATA!C174,CRSDATA!BK174,\"m\"),\"\")","v":""},{"$f":"CRSDATA!BA174","v":0},{"$f":"CRSDATA!BC174","v":0},{"$f":"IF(CRSDATA!BT174=\"\",\"\",CRSDATA!BT174)","v":""},{"$f":"CRSDATA!L174","v":0}]
[{"$f":"CRSDATA!A175","v":0},{"$f":"CRSDATA!C175","v":0},{"$f":"CRSDATA!D175","v":0},{"$f":"CRSDATA!F175","v":0},{"$f":"CRSDATA!E175","v":0},{"$f":"IF(CRSDATA!H175=3000,998,CRSDATA!H175)","v":0},{"$f":"CRSDATA!O175","v":0},{"$f":"CRSDATA!U175","v":0},{"$f":"IF(CRSDATA!V175=\"\",\"\",CRSDATA!V175)","v":""},{"$f":"IF(CRSDATA!W175=\"\",\"\",CRSDATA!W175)","v":""},{"$f":"key_row(CRSDATA!X175,CRSDATA!Y175,CRSDATA!AL175,CRSDATA!AK175,CRSDATA!AJ175,CRSDATA!AM175,CRSDATA!P175,CRSDATA!V175)","v":""},{"$f":"CRSDATA!P175","v":0},{"$f":"CRSDATA!J175","v":0},{"$f":"CRSDATA!I175","v":0},null,{"$f":"IF(LEFT(CRSDATA!N175,2)=\"A0\",\"A00\",IF(LEFT(CRSDATA!N175,3)=\"B02\",\"B02\",IF(LEFT(CRSDATA!N175,3)=\"B03\",\"B03\",IF(CRSDATA!N175=\"B04\",\"C01\",IF(CRSDATA!N175=\"H01\",\"H00\",IF(OR(CRSDATA!N175=\"H02\",CRSDATA!N175=\"H03\",CRSDATA!N175=\"H04\",CRSDATA!N175=\"H05\",CRSDATA!N175=\"H06\"),\"I01\",IF(CRSDATA!N175=\"\",\"\",CRSDATA!N175)))))))","v":""},{"$f":"IF(AND(LEN(CRSDATA!M175)=4,LEFT(CRSDATA!M175,3)=\"110\"),1100,IF(AND(LEN(CRSDATA!M175)=4,LEFT(CRSDATA!M175,3)=\"422\"),422,CRSDATA!M175))","v":0},{"$f":"IF(CRSDATA!L175=22,\"FA04\",\"\")","v":""},{"$f":"IF(CRSDATA!K175=8,\"FC02\",\"\")","v":""},{"$f":"_xlfn.IFS(OR(P175=\"A00\",P175=\"E01\",P175=\"F01\",AND(P175=\"\",A175<>0),Q175=510,Q175=520,AF175=60),1,P175=\"G01\",IF(AF175=10,21,22),OR(M175=41203,M175=41204),22,OR(AND(OR(P175=\"B02\",P175=\"B03\"),M175=41310),OR(P175=\"E02\",P175=\"I01\")),21,AND(OR(P175=\"B01\",P175=\"B03\",P175=\"C01\"),M175<>41310),IF(VLOOKUP(F175,recipient_country!AB:AD,3,FALSE)=10024,\"\",1),AND(P175=\"B02\",M175<>41310),IF(VLOOKUP(M175,channel_codes!J:P,7,FALSE)=0,\"\",VLOOKUP(M175,channel_codes!J:P,7,FALSE)),ISNUMBER(MATCH(P175,{\"D01\",\"D02\"},0)),IF(VLOOKUP(M175,channel_codes!J:P,7,FALSE)=1,1,IF(VLOOKUP(F175,recipient_country!AB:AD,3,FALSE)=10024,\"\",1)),OR(P175=\"H01\",AND(OR(ISNUMBER(SEARCH(\"41010\", L175)),ISNUMBER(SEARCH(\"41020\", L175)),ISNUMBER(SEARCH(\"41030\", L175)),ISNUMBER(SEARCH(\"41040\", L175)),ISNUMBER(SEARCH(\"41081\", L175))),F175=998)),22,F175=998,22,TRUE,\"\")","v":""},{"$f":"CRSDATA!AN175","v":0},{"$f":"CRSDATA!AO175","v":0},{"$f":"CRSDATA!AQ175","v":0},{"$f":"CRSDATA!AS175","v":0},{"$f":"CRSDATA!BB175","v":0},null,"",{"$f":"IF(AND(AND(CRSDATA!C175<>\"\",CRSDATA!BK175<>\"\"),OR(CRSDATA!N175=421,CRSDATA!N175=422,CRSDATA!N175=4221,CRSDATA!N175=4222,CRSDATA!N175=423,CRSDATA!N175=424,CRSDATA!N175=425,CRSDATA!N175=431,CRSDATA!N175=433,CRSDATA!N175=434)),DATEDIF(CRSDATA!C175,CRSDATA!BK175,\"m\"),\"\")","v":""},{"$f":"CRSDATA!BA175","v":0},{"$f":"CRSDATA!BC175","v":0},{"$f":"IF(CRSDATA!BT175=\"\",\"\",CRSDATA!BT175)","v":""},{"$f":"CRSDATA!L175","v":0}]
[{"$f":"CRSDATA!A176","v":0},{"$f":"CRSDATA!C176","v":0},{"$f":"CRSDATA!D176","v":0},{"$f":"CRSDATA!F176","v":0},{"$f":"CRSDATA!E176","v":0},{"$f":"IF(CRSDATA!H176=3000,998,CRSDATA!H176)","v":0},{"$f":"CRSDATA!O176","v":0},{"$f":"CRSDATA!U176","v":0},{"$f":"IF(CRSDATA!V176=\"\",\"\",CRSDATA!V176)","v":""},{"$f":"IF(CRSDATA!W176=\"\",\"\",CRSDATA!W176)","v":""},{"$f":"key_row(CRSDATA!X176,CRSDATA!Y176,CRSDATA!AL176,CRSDATA!AK176,CRSDATA!AJ176,CRSDATA!AM176,CRSDATA!P176,CRSDATA!V176)","v":""},{"$f":"CRSDATA!P176","v":0},{"$f":"CRSDATA!J176","v":0},{"$f":"CRSDATA!I176","v":0},null,{"$f":"IF(LEFT(CRSDATA!N176,2)=\"A0\",\"A00\",IF(LEFT(CRSDATA!N176,3)=\"B02\",\"B02\",IF(LEFT(CRSDATA!N176,3)=\"B03\",\"B03\",IF(CRSDATA!N176=\"B04\",\"C01\",IF(CRSDATA!N176=\"H01\",\"H00\",IF(OR(CRSDATA!N176=\"H02\",CRSDATA!N176=\"H03\",CRSDATA!N176=\"H04\",CRSDATA!N176=\"H05\",CRSDATA!N176=\"H06\"),\"I01\",IF(CRSDATA!N176=\"\",\"\",CRSDATA!N176)))))))","v":""},{"$f":"IF(AND(LEN(CRSDATA!M176)=4,LEFT(CRSDATA!M176,3)=\"110\"),1100,IF(AND(LEN(CRSDATA!M176)=4,LEFT(CRSDATA!M176,3)=\"422\"),422,CRSDATA!M176))","v":0},{"$f":"IF(CRSDATA!L176=22,\"FA04\",\"\")","v":""},{"$f":"IF(CRSDATA!K176=8,\"FC02\",\"\")","v":""},{"$f":"_xlfn.IFS(OR(P176=\"A00\",P176=\"E01\",P176=\"F01\",AND(P176=\"\",A176<>0),Q176=510,Q176=520,AF176=60),1,P176=\"G01\",IF(AF176=10,21,22),OR(M176=41203,M176=41204),22,OR(AND(OR(P176=\"B02\",P176=\"B03\"),M176=41310),OR(P176=\"E02\",P176=\"I01\")),21,AND(OR(P176=\"B01\",P176=\"B03\",P176=\"C01\"),M176<>41310),IF(VLOOKUP(F176,recipient_country!AB:AD,3,FALSE)=10024,\"\",1),AND(P176=\"B02\",M176<>41310),IF(VLOOKUP(M176,channel_codes!J:P,7,FALSE)=0,\"\",VLOOKUP(M176,channel_codes!J:P,7,FALSE)),ISNUMBER(MATCH(P176,{\"D01\",\"D02\"},0)),IF(VLOOKUP(M176,channel_codes!J:P,7,FALSE)=1,1,IF(VLOOKUP(F176,recipient_country!AB:AD,3,FALSE)=10024,\"\",1)),OR(P176=\"H01\",AND(OR(ISNUMBER(SEARCH(\"41010\", L176)),ISNUMBER(SEARCH(\"41020\", L176)),ISNUMBER(SEARCH(\"41030\", L176)),ISNUMBER(SEARCH(\"41040\", L176)),ISNUMBER(SEARCH(\"41081\", L176))),F176=998)),22,F176=998,22,TRUE,\"\")","v":""},{"$f":"CRSDATA!AN176","v":0},{"$f":"CRSDATA!AO176","v":0},{"$f":"CRSDATA!AQ176","v":0},{"$f":"CRSDATA!AS176","v":0},{"$f":"CRSDATA!BB176","v":0},null,"",{"$f":"IF(AND(AND(CRSDATA!C176<>\"\",CRSDATA!BK176<>\"\"),OR(CRSDATA!N176=421,CRSDATA!N176=422,CRSDATA!N176=4221,CRSDATA!N176=4222,CRSDATA!N176=423,CRSDATA!N176=424,CRSDATA!N176=425,CRSDATA!N176=431,CRSDATA!N176=433,CRSDATA!N176=434)),DATEDIF(CRSDATA!C176,CRSDATA!BK176,\"m\"),\"\")","v":""},{"$f":"CRSDATA!BA176","v":0},{"$f":"CRSDATA!BC176","v":0},{"$f":"IF(CRSDATA!BT176=\"\",\"\",CRSDATA!BT176)","v":""},{"$f":"CRSDATA!L176","v":0}]
[{"$f":"CRSDATA!A177","v":0},{"$f":"CRSDATA!C177","v":0},{"$f":"CRSDATA!D177","v":0},{"$f":"CRSDATA!F177","v":0},{"$f":"CRSDATA!E177","v":0},{"$f":"IF(CRSDATA!H177=3000,998,CRSDATA!H177)","v":0},{"$f":"CRSDATA!O177","v":0},{"$f":"CRSDATA!U177","v":0},{"$f":"IF(CRSDATA!V177=\"\",\"\",CRSDATA!V177)","v":""},{"$f":"IF(CRSDATA!W177=\"\",\"\",CRSDATA!W177)","v":""},{"$f":"key_row(CRSDATA!X177,CRSDATA!Y177,CRSDATA!AL177,CRSDATA!AK177,CRSDATA!AJ177,CRSDATA!AM177,CRSDATA!P177,CRSDATA!V177)","v":""},{"$f":"CRSDATA!P177","v":0},{"$f":"CRSDATA!J177","v":0},{"$f":"CRSDATA!I177","v":0},null,{"$f":"IF(LEFT(CRSDATA!N177,2)=\"A0\",\"A00\",IF(LEFT(CRSDATA!N177,3)=\"B02\",\"B02\",IF(LEFT(CRSDATA!N177,3)=\"B03\",\"B03\",IF(CRSDATA!N177=\"B04\",\"C01\",IF(CRSDATA!N177=\"H01\",\"H00\",IF(OR(CRSDATA!N177=\"H02\",CRSDATA!N177=\"H03\",CRSDATA!N177=\"H04\",CRSDATA!N177=\"H05\",CRSDATA!N177=\"H06\"),\"I01\",IF(CRSDATA!N177=\"\",\"\",CRSDATA!N177)))))))","v":""},{"$f":"IF(AND(LEN(CRSDATA!M177)=4,LEFT(CRSDATA!M177,3)=\"110\"),1100,IF(AND(LEN(CRSDATA!M177)=4,LEFT(CRSDATA!M177,3)=\"422\"),422,CRSDATA!M177))","v":0},{"$f":"IF(CRSDATA!L177=22,\"FA04\",\"\")","v":""},{"$f":"IF(CRSDATA!K177=8,\"FC02\",\"\")","v":""},{"$f":"_xlfn.IFS(OR(P177=\"A00\",P177=\"E01\",P177=\"F01\",AND(P177=\"\",A177<>0),Q177=510,Q177=520,AF177=60),1,P177=\"G01\",IF(AF177=10,21,22),OR(M177=41203,M177=41204),22,OR(AND(OR(P177=\"B02\",P177=\"B03\"),M177=41310),OR(P177=\"E02\",P177=\"I01\")),21,AND(OR(P177=\"B01\",P177=\"B03\",P177=\"C01\"),M177<>41310),IF(VLOOKUP(F177,recipient_country!AB:AD,3,FALSE)=10024,\"\",1),AND(P177=\"B02\",M177<>41310),IF(VLOOKUP(M177,channel_codes!J:P,7,FALSE)=0,\"\",VLOOKUP(M177,channel_codes!J:P,7,FALSE)),ISNUMBER(MATCH(P177,{\"D01\",\"D02\"},0)),IF(VLOOKUP(M177,channel_codes!J:P,7,FALSE)=1,1,IF(VLOOKUP(F177,recipient_country!AB:AD,3,FALSE)=10024,\"\",1)),OR(P177=\"H01\",AND(OR(ISNUMBER(SEARCH(\"41010\", L177)),ISNUMBER(SEARCH(\"41020\", L177)),ISNUMBER(SEARCH(\"41030\", L177)),ISNUMBER(SEARCH(\"41040\", L177)),ISNUMBER(SEARCH(\"41081\", L177))),F177=998)),22,F177=998,22,TRUE,\"\")","v":""},{"$f":"CRSDATA!AN177","v":0},{"$f":"CRSDATA!AO177","v":0},{"$f":"CRSDATA!AQ177","v":0},{"$f":"CRSDATA!AS177","v":0},{"$f":"CRSDATA!BB177","v":0},null,"",{"$f":"IF(AND(AND(CRSDATA!C177<>\"\",CRSDATA!BK177<>\"\"),OR(CRSDATA!N177=421,CRSDATA!N177=422,CRSDATA!N177=4221,CRSDATA!N177=4222,CRSDATA!N177=423,CRSDATA!N177=424,CRSDATA!N177=425,CRSDATA!N177=431,CRSDATA!N177=433,CRSDATA!N177=434)),DATEDIF(CRSDATA!C177,CRSDATA!BK177,\"m\"),\"\")","v":""},{"$f":"CRSDATA!BA177","v":0},{"$f":"CRSDATA!BC177","v":0},{"$f":"IF(CRSDATA!BT177=\"\",\"\",CRSDATA!BT177)","v":""},{"$f":"CRSDATA!L177","v":0}]
[{"$f":"CRSDATA!A178","v":0},{"$f":"CRSDATA!C178","v":0},{"$f":"CRSDATA!D178","v":0},{"$f":"CRSDATA!F178","v":0},{"$f":"CRSDATA!E178","v":0},{"$f":"IF(CRSDATA!H178=3000,998,CRSDATA!H178)","v":0},{"$f":"CRSDATA!O178","v":0},{"$f":"CRSDATA!U178","v":0},{"$f":"IF(CRSDATA!V178=\"\",\"\",CRSDATA!V178)","v":""},{"$f":"IF(CRSDATA!W178=\"\",\"\",CRSDATA!W178)","v":""},{"$f":"key_row(CRSDATA!X178,CRSDATA!Y178,CRSDATA!AL178,CRSDATA!AK178,CRSDATA!AJ178,CRSDATA!AM178,CRSDATA!P178,CRSDATA!V178)","v":""},{"$f":"CRSDATA!P178","v":0},{"$f":"CRSDATA!J178","v":0},{"$f":"CRSDATA!I178","v":0},null,{"$f":"IF(LEFT(CRSDATA!N178,2)=\"A0\",\"A00\",IF(LEFT(CRSDATA!N178,3)=\"B02\",\"B02\",IF(LEFT(CRSDATA!N178,3)=\"B03\",\"B03\",IF(CRSDATA!N178=\"B04\",\"C01\",IF(CRSDATA!N178=\"H01\",\"H00\",IF(OR(CRSDATA!N178=\"H02\",CRSDATA!N178=\"H03\",CRSDATA!N178=\"H04\",CRSDATA!N178=\"H05\",CRSDATA!N178=\"H06\"),\"I01\",IF(CRSDATA!N178=\"\",\"\",CRSDATA!N178)))))))","v":""},{"$f":"IF(AND(LEN(CRSDATA!M178)=4,LEFT(CRSDATA!M178,3)=\"110\"),1100,IF(AND(LEN(CRSDATA!M178)=4,LEFT(CRSDATA!M178,3)=\"422\"),422,CRSDATA!M178))","v":0},{"$f":"IF(CRSDATA!L178=22,\"FA04\",\"\")","v":""},{"$f":"IF(CRSDATA!K178=8,\"FC02\",\"\")","v":""},{"$f":"_xlfn.IFS(OR(P178=\"A00\",P178=\"E01\",P178=\"F01\",AND(P178=\"\",A178<>0),Q178=510,Q178=520,AF178=60),1,P178=\"G01\",IF(AF178=10,21,22),OR(M178=41203,M178=41204),22,OR(AND(OR(P178=\"B02\",P178=\"B03\"),M178=41310),OR(P178=\"E02\",P178=\"I01\")),21,AND(OR(P178=\"B01\",P178=\"B03\",P178=\"C01\"),M178<>41310),IF(VLOOKUP(F178,recipient_country!AB:AD,3,FALSE)=10024,\"\",1),AND(P178=\"B02\",M178<>41310),IF(VLOOKUP(M178,channel_codes!J:P,7,FALSE)=0,\"\",VLOOKUP(M178,channel_codes!J:P,7,FALSE)),ISNUMBER(MATCH(P178,{\"D01\",\"D02\"},0)),IF(VLOOKUP(M178,channel_codes!J:P,7,FALSE)=1,1,IF(VLOOKUP(F178,recipient_country!AB:AD,3,FALSE)=10024,\"\",1)),OR(P178=\"H01\",AND(OR(ISNUMBER(SEARCH(\"41010\", L178)),ISNUMBER(SEARCH(\"41020\", L178)),ISNUMBER(SEARCH(\"41030\", L178)),ISNUMBER(SEARCH(\"41040\", L178)),ISNUMBER(SEARCH(\"41081\", L178))),F178=998)),22,F178=998,22,TRUE,\"\")","v":""},{"$f":"CRSDATA!AN178","v":0},{"$f":"CRSDATA!AO178","v":0},{"$f":"CRSDATA!AQ178","v":0},{"$f":"CRSDATA!AS178","v":0},{"$f":"CRSDATA!BB178","v":0},null,"",{"$f":"IF(AND(AND(CRSDATA!C178<>\"\",CRSDATA!BK178<>\"\"),OR(CRSDATA!N178=421,CRSDATA!N178=422,CRSDATA!N178=4221,CRSDATA!N178=4222,CRSDATA!N178=423,CRSDATA!N178=424,CRSDATA!N178=425,CRSDATA!N178=431,CRSDATA!N178=433,CRSDATA!N178=434)),DATEDIF(CRSDATA!C178,CRSDATA!BK178,\"m\"),\"\")","v":""},{"$f":"CRSDATA!BA178","v":0},{"$f":"CRSDATA!BC178","v":0},{"$f":"IF(CRSDATA!BT178=\"\",\"\",CRSDATA!BT178)","v":""},{"$f":"CRSDATA!L178","v":0}]
[{"$f":"CRSDATA!A179","v":0},{"$f":"CRSDATA!C179","v":0},{"$f":"CRSDATA!D179","v":0},{"$f":"CRSDATA!F179","v":0},{"$f":"CRSDATA!E179","v":0},{"$f":"IF(CRSDATA!H179=3000,998,CRSDATA!H179)","v":0},{"$f":"CRSDATA!O179","v":0},{"$f":"CRSDATA!U179","v":0},{"$f":"IF(CRSDATA!V179=\"\",\"\",CRSDATA!V179)","v":""},{"$f":"IF(CRSDATA!W179=\"\",\"\",CRSDATA!W179)","v":""},{"$f":"key_row(CRSDATA!X179,CRSDATA!Y179,CRSDATA!AL179,CRSDATA!AK179,CRSDATA!AJ179,CRSDATA!AM179,CRSDATA!P179,CRSDATA!V179)","v":""},{"$f":"CRSDATA!P179","v":0},{"$f":"CRSDATA!J179","v":0},{"$f":"CRSDATA!I179","v":0},null,{"$f":"IF(LEFT(CRSDATA!N179,2)=\"A0\",\"A00\",IF(LEFT(CRSDATA!N179,3)=\"B02\",\"B02\",IF(LEFT(CRSDATA!N179,3)=\"B03\",\"B03\",IF(CRSDATA!N179=\"B04\",\"C01\",IF(CRSDATA!N179=\"H01\",\"H00\",IF(OR(CRSDATA!N179=\"H02\",CRSDATA!N179=\"H03\",CRSDATA!N179=\"H04\",CRSDATA!N179=\"H05\",CRSDATA!N179=\"H06\"),\"I01\",IF(CRSDATA!N179=\"\",\"\",CRSDATA!N179)))))))","v":""},{"$f":"IF(AND(LEN(CRSDATA!M179)=4,LEFT(CRSDATA!M179,3)=\"110\"),1100,IF(AND(LEN(CRSDATA!M179)=4,LEFT(CRSDATA!M179,3)=\"422\"),422,CRSDATA!M179))","v":0},{"$f":"IF(CRSDATA!L179=22,\"FA04\",\"\")","v":""},{"$f":"IF(CRSDATA!K179=8,\"FC02\",\"\")","v":""},{"$f":"_xlfn.IFS(OR(P179=\"A00\",P179=\"E01\",P179=\"F01\",AND(P179=\"\",A179<>0),Q179=510,Q179=520,AF179=60),1,P179=\"G01\",IF(AF179=10,21,22),OR(M179=41203,M179=41204),22,OR(AND(OR(P179=\"B02\",P179=\"B03\"),M179=41310),OR(P179=\"E02\",P179=\"I01\")),21,AND(OR(P179=\"B01\",P179=\"B03\",P179=\"C01\"),M179<>41310),IF(VLOOKUP(F179,recipient_country!AB:AD,3,FALSE)=10024,\"\",1),AND(P179=\"B02\",M179<>41310),IF(VLOOKUP(M179,channel_codes!J:P,7,FALSE)=0,\"\",VLOOKUP(M179,channel_codes!J:P,7,FALSE)),ISNUMBER(MATCH(P179,{\"D01\",\"D02\"},0)),IF(VLOOKUP(M179,channel_codes!J:P,7,FALSE)=1,1,IF(VLOOKUP(F179,recipient_country!AB:AD,3,FALSE)=10024,\"\",1)),OR(P179=\"H01\",AND(OR(ISNUMBER(SEARCH(\"41010\", L179)),ISNUMBER(SEARCH(\"41020\", L179)),ISNUMBER(SEARCH(\"41030\", L179)),ISNUMBER(SEARCH(\"41040\", L179)),ISNUMBER(SEARCH(\"41081\", L179))),F179=998)),22,F179=998,22,TRUE,\"\")","v":""},{"$f":"CRSDATA!AN179","v":0},{"$f":"CRSDATA!AO179","v":0},{"$f":"CRSDATA!AQ179","v":0},{"$f":"CRSDATA!AS179","v":0},{"$f":"CRSDATA!BB179","v":0},null,"",{"$f":"IF(AND(AND(CRSDATA!C179<>\"\",CRSDATA!BK179<>\"\"),OR(CRSDATA!N179=421,CRSDATA!N179=422,CRSDATA!N179=4221,CRSDATA!N179=4222,CRSDATA!N179=423,CRSDATA!N179=424,CRSDATA!N179=425,CRSDATA!N179=431,CRSDATA!N179=433,CRSDATA!N179=434)),DATEDIF(CRSDATA!C179,CRSDATA!BK179,\"m\"),\"\")","v":""},{"$f":"CRSDATA!BA179","v":0},{"$f":"CRSDATA!BC179","v":0},{"$f":"IF(CRSDATA!BT179=\"\",\"\",CRSDATA!BT179)","v":""},{"$f":"CRSDATA!L179","v":0}]
[{"$f":"CRSDATA!A180","v":0},{"$f":"CRSDATA!C180","v":0},{"$f":"CRSDATA!D180","v":0},{"$f":"CRSDATA!F180","v":0},{"$f":"CRSDATA!E180","v":0},{"$f":"IF(CRSDATA!H180=3000,998,CRSDATA!H180)","v":0},{"$f":"CRSDATA!O180","v":0},{"$f":"CRSDATA!U180","v":0},{"$f":"IF(CRSDATA!V180=\"\",\"\",CRSDATA!V180)","v":""},{"$f":"IF(CRSDATA!W180=\"\",\"\",CRSDATA!W180)","v":""},{"$f":"key_row(CRSDATA!X180,CRSDATA!Y180,CRSDATA!AL180,CRSDATA!AK180,CRSDATA!AJ180,CRSDATA!AM180,CRSDATA!P180,CRSDATA!V180)","v":""},{"$f":"CRSDATA!P180","v":0},{"$f":"CRSDATA!J180","v":0},{"$f":"CRSDATA!I180","v":0},null,{"$f":"IF(LEFT(CRSDATA!N180,2)=\"A0\",\"A00\",IF(LEFT(CRSDATA!N180,3)=\"B02\",\"B02\",IF(LEFT(CRSDATA!N180,3)=\"B03\",\"B03\",IF(CRSDATA!N180=\"B04\",\"C01\",IF(CRSDATA!N180=\"H01\",\"H00\",IF(OR(CRSDATA!N180=\"H02\",CRSDATA!N180=\"H03\",CRSDATA!N180=\"H04\",CRSDATA!N180=\"H05\",CRSDATA!N180=\"H06\"),\"I01\",IF(CRSDATA!N180=\"\",\"\",CRSDATA!N180)))))))","v":""},{"$f":"IF(AND(LEN(CRSDATA!M180)=4,LEFT(CRSDATA!M180,3)=\"110\"),1100,IF(AND(LEN(CRSDATA!M180)=4,LEFT(CRSDATA!M180,3)=\"422\"),422,CRSDATA!M180))","v":0},{"$f":"IF(CRSDATA!L180=22,\"FA04\",\"\")","v":""},{"$f":"IF(CRSDATA!K180=8,\"FC02\",\"\")","v":""},{"$f":"_xlfn.IFS(OR(P180=\"A00\",P180=\"E01\",P180=\"F01\",AND(P180=\"\",A180<>0),Q180=510,Q180=520,AF180=60),1,P180=\"G01\",IF(AF180=10,21,22),OR(M180=41203,M180=41204),22,OR(AND(OR(P180=\"B02\",P180=\"B03\"),M180=41310),OR(P180=\"E02\",P180=\"I01\")),21,AND(OR(P180=\"B01\",P180=\"B03\",P180=\"C01\"),M180<>41310),IF(VLOOKUP(F180,recipient_country!AB:AD,3,FALSE)=10024,\"\",1),AND(P180=\"B02\",M180<>41310),IF(VLOOKUP(M180,channel_codes!J:P,7,FALSE)=0,\"\",VLOOKUP(M180,channel_codes!J:P,7,FALSE)),ISNUMBER(MATCH(P180,{\"D01\",\"D02\"},0)),IF(VLOOKUP(M180,channel_codes!J:P,7,FALSE)=1,1,IF(VLOOKUP(F180,recipient_country!AB:AD,3,FALSE)=10024,\"\",1)),OR(P180=\"H01\",AND(OR(ISNUMBER(SEARCH(\"41010\", L180)),ISNUMBER(SEARCH(\"41020\", L180)),ISNUMBER(SEARCH(\"41030\", L180)),ISNUMBER(SEARCH(\"41040\", L180)),ISNUMBER(SEARCH(\"41081\", L180))),F180=998)),22,F180=998,22,TRUE,\"\")","v":""},{"$f":"CRSDATA!AN180","v":0},{"$f":"CRSDATA!AO180","v":0},{"$f":"CRSDATA!AQ180","v":0},{"$f":"CRSDATA!AS180","v":0},{"$f":"CRSDATA!BB180","v":0},null,"",{"$f":"IF(AND(AND(CRSDATA!C180<>\"\",CRSDATA!BK180<>\"\"),OR(CRSDATA!N180=421,CRSDATA!N180=422,CRSDATA!N180=4221,CRSDATA!N180=4222,CRSDATA!N180=423,CRSDATA!N180=424,CRSDATA!N180=425,CRSDATA!N180=431,CRSDATA!N180=433,CRSDATA!N180=434)),DATEDIF(CRSDATA!C180,CRSDATA!BK180,\"m\"),\"\")","v":""},{"$f":"CRSDATA!BA180","v":0},{"$f":"CRSDATA!BC180","v":0},{"$f":"IF(CRSDATA!BT180=\"\",\"\",CRSDATA!BT180)","v":""},{"$f":"CRSDATA!L180","v":0}]
[{"$f":"CRSDATA!A181","v":0},{"$f":"CRSDATA!C181","v":0},{"$f":"CRSDATA!D181","v":0},{"$f":"CRSDATA!F181","v":0},{"$f":"CRSDATA!E181","v":0},{"$f":"IF(CRSDATA!H181=3000,998,CRSDATA!H181)","v":0},{"$f":"CRSDATA!O181","v":0},{"$f":"CRSDATA!U181","v":0},{"$f":"IF(CRSDATA!V181=\"\",\"\",CRSDATA!V181)","v":""},{"$f":"IF(CRSDATA!W181=\"\",\"\",CRSDATA!W181)","v":""},{"$f":"key_row(CRSDATA!X181,CRSDATA!Y181,CRSDATA!AL181,CRSDATA!AK181,CRSDATA!AJ181,CRSDATA!AM181,CRSDATA!P181,CRSDATA!V181)","v":""},{"$f":"CRSDATA!P181","v":0},{"$f":"CRSDATA!J181","v":0},{"$f":"CRSDATA!I181","v":0},null,{"$f":"IF(LEFT(CRSDATA!N181,2)=\"A0\",\"A00\",IF(LEFT(CRSDATA!N181,3)=\"B02\",\"B02\",IF(LEFT(CRSDATA!N181,3)=\"B03\",\"B03\",IF(CRSDATA!N181=\"B04\",\"C01\",IF(CRSDATA!N181=\"H01\",\"H00\",IF(OR(CRSDATA!N181=\"H02\",CRSDATA!N181=\"H03\",CRSDATA!N181=\"H04\",CRSDATA!N181=\"H05\",CRSDATA!N181=\"H06\"),\"I01\",IF(CRSDATA!N181=\"\",\"\",CRSDATA!N181)))))))","v":""},{"$f":"IF(AND(LEN(CRSDATA!M181)=4,LEFT(CRSDATA!M181,3)=\"110\"),1100,IF(AND(LEN(CRSDATA!M181)=4,LEFT(CRSDATA!M181,3)=\"422\"),422,CRSDATA!M181))","v":0},{"$f":"IF(CRSDATA!L181=22,\"FA04\",\"\")","v":""},{"$f":"IF(CRSDATA!K181=8,\"FC02\",\"\")","v":""},{"$f":"_xlfn.IFS(OR(P181=\"A00\",P181=\"E01\",P181=\"F01\",AND(P181=\"\",A181<>0),Q181=510,Q181=520,AF181=60),1,P181=\"G01\",IF(AF181=10,21,22),OR(M181=41203,M181=41204),22,OR(AND(OR(P181=\"B02\",P181=\"B03\"),M181=41310),OR(P181=\"E02\",P181=\"I01\")),21,AND(OR(P181=\"B01\",P181=\"B03\",P181=\"C01\"),M181<>41310),IF(VLOOKUP(F181,recipient_country!AB:AD,3,FALSE)=10024,\"\",1),AND(P181=\"B02\",M181<>41310),IF(VLOOKUP(M181,channel_codes!J:P,7,FALSE)=0,\"\",VLOOKUP(M181,channel_codes!J:P,7,FALSE)),ISNUMBER(MATCH(P181,{\"D01\",\"D02\"},0)),IF(VLOOKUP(M181,channel_codes!J:P,7,FALSE)=1,1,IF(VLOOKUP(F181,recipient_country!AB:AD,3,FALSE)=10024,\"\",1)),OR(P181=\"H01\",AND(OR(ISNUMBER(SEARCH(\"41010\", L181)),ISNUMBER(SEARCH(\"41020\", L181)),ISNUMBER(SEARCH(\"41030\", L181)),ISNUMBER(SEARCH(\"41040\", L181)),ISNUMBER(SEARCH(\"41081\", L181))),F181=998)),22,F181=998,22,TRUE,\"\")","v":""},{"$f":"CRSDATA!AN181","v":0},{"$f":"CRSDATA!AO181","v":0},{"$f":"CRSDATA!AQ181","v":0},{"$f":"CRSDATA!AS181","v":0},{"$f":"CRSDATA!BB181","v":0},null,"",{"$f":"IF(AND(AND(CRSDATA!C181<>\"\",CRSDATA!BK181<>\"\"),OR(CRSDATA!N181=421,CRSDATA!N181=422,CRSDATA!N181=4221,CRSDATA!N181=4222,CRSDATA!N181=423,CRSDATA!N181=424,CRSDATA!N181=425,CRSDATA!N181=431,CRSDATA!N181=433,CRSDATA!N181=434)),DATEDIF(CRSDATA!C181,CRSDATA!BK181,\"m\"),\"\")","v":""},{"$f":"CRSDATA!BA181","v":0},{"$f":"CRSDATA!BC181","v":0},{"$f":"IF(CRSDATA!BT181=\"\",\"\",CRSDATA!BT181)","v":""},{"$f":"CRSDATA!L181","v":0}]
[{"$f":"CRSDATA!A182","v":0},{"$f":"CRSDATA!C182","v":0},{"$f":"CRSDATA!D182","v":0},{"$f":"CRSDATA!F182","v":0},{"$f":"CRSDATA!E182","v":0},{"$f":"IF(CRSDATA!H182=3000,998,CRSDATA!H182)","v":0},{"$f":"CRSDATA!O182","v":0},{"$f":"CRSDATA!U182","v":0},{"$f":"IF(CRSDATA!V182=\"\",\"\",CRSDATA!V182)","v":""},{"$f":"IF(CRSDATA!W182=\"\",\"\",CRSDATA!W182)","v":""},{"$f":"key_row(CRSDATA!X182,CRSDATA!Y182,CRSDATA!AL182,CRSDATA!AK182,CRSDATA!AJ182,CRSDATA!AM182,CRSDATA!P182,CRSDATA!V182)","v":""},{"$f":"CRSDATA!P182","v":0},{"$f":"CRSDATA!J182","v":0},{"$f":"CRSDATA!I182","v":0},null,{"$f":"IF(LEFT(CRSDATA!N182,2)=\"A0\",\"A00\",IF(LEFT(CRSDATA!N182,3)=\"B02\",\"B02\",IF(LEFT(CRSDATA!N182,3)=\"B03\",\"B03\",IF(CRSDATA!N182=\"B04\",\"C01\",IF(CRSDATA!N182=\"H01\",\"H00\",IF(OR(CRSDATA!N182=\"H02\",CRSDATA!N182=\"H03\",CRSDATA!N182=\"H04\",CRSDATA!N182=\"H05\",CRSDATA!N182=\"H06\"),\"I01\",IF(CRSDATA!N182=\"\",\"\",CRSDATA!N182)))))))","v":""},{"$f":"IF(AND(LEN(CRSDATA!M182)=4,LEFT(CRSDATA!M182,3)=\"110\"),1100,IF(AND(LEN(CRSDATA!M182)=4,LEFT(CRSDATA!M182,3)=\"422\"),422,CRSDATA!M182))","v":0},{"$f":"IF(CRSDATA!L182=22,\"FA04\",\"\")","v":""},{"$f":"IF(CRSDATA!K182=8,\"FC02\",\"\")","v":""},{"$f":"_xlfn.IFS(OR(P182=\"A00\",P182=\"E01\",P182=\"F01\",AND(P182=\"\",A182<>0),Q182=510,Q182=520,AF182=60),1,P182=\"G01\",IF(AF182=10,21,22),OR(M182=41203,M182=41204),22,OR(AND(OR(P182=\"B02\",P182=\"B03\"),M182=41310),OR(P182=\"E02\",P182=\"I01\")),21,AND(OR(P182=\"B01\",P182=\"B03\",P182=\"C01\"),M182<>41310),IF(VLOOKUP(F182,recipient_country!AB:AD,3,FALSE)=10024,\"\",1),AND(P182=\"B02\",M182<>41310),IF(VLOOKUP(M182,channel_codes!J:P,7,FALSE)=0,\"\",VLOOKUP(M182,channel_codes!J:P,7,FALSE)),ISNUMBER(MATCH(P182,{\"D01\",\"D02\"},0)),IF(VLOOKUP(M182,channel_codes!J:P,7,FALSE)=1,1,IF(VLOOKUP(F182,recipient_country!AB:AD,3,FALSE)=10024,\"\",1)),OR(P182=\"H01\",AND(OR(ISNUMBER(SEARCH(\"41010\", L182)),ISNUMBER(SEARCH(\"41020\", L182)),ISNUMBER(SEARCH(\"41030\", L182)),ISNUMBER(SEARCH(\"41040\", L182)),ISNUMBER(SEARCH(\"41081\", L182))),F182=998)),22,F182=998,22,TRUE,\"\")","v":""},{"$f":"CRSDATA!AN182","v":0},{"$f":"CRSDATA!AO182","v":0},{"$f":"CRSDATA!AQ182","v":0},{"$f":"CRSDATA!AS182","v":0},{"$f":"CRSDATA!BB182","v":0},null,"",{"$f":"IF(AND(AND(CRSDATA!C182<>\"\",CRSDATA!BK182<>\"\"),OR(CRSDATA!N182=421,CRSDATA!N182=422,CRSDATA!N182=4221,CRSDATA!N182=4222,CRSDATA!N182=423,CRSDATA!N182=424,CRSDATA!N182=425,CRSDATA!N182=431,CRSDATA!N182=433,CRSDATA!N182=434)),DATEDIF(CRSDATA!C182,CRSDATA!BK182,\"m\"),\"\")","v":""},{"$f":"CRSDATA!BA182","v":0},{"$f":"CRSDATA!BC182","v":0},{"$f":"IF(CRSDATA!BT182=\"\",\"\",CRSDATA!BT182)","v":""},{"$f":"CRSDATA!L182","v":0}]
[{"$f":"CRSDATA!A183","v":0},{"$f":"CRSDATA!C183","v":0},{"$f":"CRSDATA!D183","v":0},{"$f":"CRSDATA!F183","v":0},{"$f":"CRSDATA!E183","v":0},{"$f":"IF(CRSDATA!H183=3000,998,CRSDATA!H183)","v":0},{"$f":"CRSDATA!O183","v":0},{"$f":"CRSDATA!U183","v":0},{"$f":"IF(CRSDATA!V183=\"\",\"\",CRSDATA!V183)","v":""},{"$f":"IF(CRSDATA!W183=\"\",\"\",CRSDATA!W183)","v":""},{"$f":"key_row(CRSDATA!X183,CRSDATA!Y183,CRSDATA!AL183,CRSDATA!AK183,CRSDATA!AJ183,CRSDATA!AM183,CRSDATA!P183,CRSDATA!V183)","v":""},{"$f":"CRSDATA!P183","v":0},{"$f":"CRSDATA!J183","v":0},{"$f":"CRSDATA!I183","v":0},null,{"$f":"IF(LEFT(CRSDATA!N183,2)=\"A0\",\"A00\",IF(LEFT(CRSDATA!N183,3)=\"B02\",\"B02\",IF(LEFT(CRSDATA!N183,3)=\"B03\",\"B03\",IF(CRSDATA!N183=\"B04\",\"C01\",IF(CRSDATA!N183=\"H01\",\"H00\",IF(OR(CRSDATA!N183=\"H02\",CRSDATA!N183=\"H03\",CRSDATA!N183=\"H04\",CRSDATA!N183=\"H05\",CRSDATA!N183=\"H06\"),\"I01\",IF(CRSDATA!N183=\"\",\"\",CRSDATA!N183)))))))","v":""},{"$f":"IF(AND(LEN(CRSDATA!M183)=4,LEFT(CRSDATA!M183,3)=\"110\"),1100,IF(AND(LEN(CRSDATA!M183)=4,LEFT(CRSDATA!M183,3)=\"422\"),422,CRSDATA!M183))","v":0},{"$f":"IF(CRSDATA!L183=22,\"FA04\",\"\")","v":""},{"$f":"IF(CRSDATA!K183=8,\"FC02\",\"\")","v":""},{"$f":"_xlfn.IFS(OR(P183=\"A00\",P183=\"E01\",P183=\"F01\",AND(P183=\"\",A183<>0),Q183=510,Q183=520,AF183=60),1,P183=\"G01\",IF(AF183=10,21,22),OR(M183=41203,M183=41204),22,OR(AND(OR(P183=\"B02\",P183=\"B03\"),M183=41310),OR(P183=\"E02\",P183=\"I01\")),21,AND(OR(P183=\"B01\",P183=\"B03\",P183=\"C01\"),M183<>41310),IF(VLOOKUP(F183,recipient_country!AB:AD,3,FALSE)=10024,\"\",1),AND(P183=\"B02\",M183<>41310),IF(VLOOKUP(M183,channel_codes!J:P,7,FALSE)=0,\"\",VLOOKUP(M183,channel_codes!J:P,7,FALSE)),ISNUMBER(MATCH(P183,{\"D01\",\"D02\"},0)),IF(VLOOKUP(M183,channel_codes!J:P,7,FALSE)=1,1,IF(VLOOKUP(F183,recipient_country!AB:AD,3,FALSE)=10024,\"\",1)),OR(P183=\"H01\",AND(OR(ISNUMBER(SEARCH(\"41010\", L183)),ISNUMBER(SEARCH(\"41020\", L183)),ISNUMBER(SEARCH(\"41030\", L183)),ISNUMBER(SEARCH(\"41040\", L183)),ISNUMBER(SEARCH(\"41081\", L183))),F183=998)),22,F183=998,22,TRUE,\"\")","v":""},{"$f":"CRSDATA!AN183","v":0},{"$f":"CRSDATA!AO183","v":0},{"$f":"CRSDATA!AQ183","v":0},{"$f":"CRSDATA!AS183","v":0},{"$f":"CRSDATA!BB183","v":0},null,"",{"$f":"IF(AND(AND(CRSDATA!C183<>\"\",CRSDATA!BK183<>\"\"),OR(CRSDATA!N183=421,CRSDATA!N183=422,CRSDATA!N183=4221,CRSDATA!N183=4222,CRSDATA!N183=423,CRSDATA!N183=424,CRSDATA!N183=425,CRSDATA!N183=431,CRSDATA!N183=433,CRSDATA!N183=434)),DATEDIF(CRSDATA!C183,CRSDATA!BK183,\"m\"),\"\")","v":""},{"$f":"CRSDATA!BA183","v":0},{"$f":"CRSDATA!BC183","v":0},{"$f":"IF(CRSDATA!BT183=\"\",\"\",CRSDATA!BT183)","v":""},{"$f":"CRSDATA!L183","v":0}]
[{"$f":"CRSDATA!A184","v":0},{"$f":"CRSDATA!C184","v":0},{"$f":"CRSDATA!D184","v":0},{"$f":"CRSDATA!F184","v":0},{"$f":"CRSDATA!E184","v":0},{"$f":"IF(CRSDATA!H184=3000,998,CRSDATA!H184)","v":0},{"$f":"CRSDATA!O184","v":0},{"$f":"CRSDATA!U184","v":0},{"$f":"IF(CRSDATA!V184=\"\",\"\",CRSDATA!V184)","v":""},{"$f":"IF(CRSDATA!W184=\"\",\"\",CRSDATA!W184)","v":""},{"$f":"key_row(CRSDATA!X184,CRSDATA!Y184,CRSDATA!AL184,CRSDATA!AK184,CRSDATA!AJ184,CRSDATA!AM184,CRSDATA!P184,CRSDATA!V184)","v":""},{"$f":"CRSDATA!P184","v":0},{"$f":"CRSDATA!J184","v":0},{"$f":"CRSDATA!I184","v":0},null,{"$f":"IF(LEFT(CRSDATA!N184,2)=\"A0\",\"A00\",IF(LEFT(CRSDATA!N184,3)=\"B02\",\"B02\",IF(LEFT(CRSDATA!N184,3)=\"B03\",\"B03\",IF(CRSDATA!N184=\"B04\",\"C01\",IF(CRSDATA!N184=\"H01\",\"H00\",IF(OR(CRSDATA!N184=\"H02\",CRSDATA!N184=\"H03\",CRSDATA!N184=\"H04\",CRSDATA!N184=\"H05\",CRSDATA!N184=\"H06\"),\"I01\",IF(CRSDATA!N184=\"\",\"\",CRSDATA!N184)))))))","v":""},{"$f":"IF(AND(LEN(CRSDATA!M184)=4,LEFT(CRSDATA!M184,3)=\"110\"),1100,IF(AND(LEN(CRSDATA!M184)=4,LEFT(CRSDATA!M184,3)=\"422\"),422,CRSDATA!M184))","v":0},{"$f":"IF(CRSDATA!L184=22,\"FA04\",\"\")","v":""},{"$f":"IF(CRSDATA!K184=8,\"FC02\",\"\")","v":""},{"$f":"_xlfn.IFS(OR(P184=\"A00\",P184=\"E01\",P184=\"F01\",AND(P184=\"\",A184<>0),Q184=510,Q184=520,AF184=60),1,P184=\"G01\",IF(AF184=10,21,22),OR(M184=41203,M184=41204),22,OR(AND(OR(P184=\"B02\",P184=\"B03\"),M184=41310),OR(P184=\"E02\",P184=\"I01\")),21,AND(OR(P184=\"B01\",P184=\"B03\",P184=\"C01\"),M184<>41310),IF(VLOOKUP(F184,recipient_country!AB:AD,3,FALSE)=10024,\"\",1),AND(P184=\"B02\",M184<>41310),IF(VLOOKUP(M184,channel_codes!J:P,7,FALSE)=0,\"\",VLOOKUP(M184,channel_codes!J:P,7,FALSE)),ISNUMBER(MATCH(P184,{\"D01\",\"D02\"},0)),IF(VLOOKUP(M184,channel_codes!J:P,7,FALSE)=1,1,IF(VLOOKUP(F184,recipient_country!AB:AD,3,FALSE)=10024,\"\",1)),OR(P184=\"H01\",AND(OR(ISNUMBER(SEARCH(\"41010\", L184)),ISNUMBER(SEARCH(\"41020\", L184)),ISNUMBER(SEARCH(\"41030\", L184)),ISNUMBER(SEARCH(\"41040\", L184)),ISNUMBER(SEARCH(\"41081\", L184))),F184=998)),22,F184=998,22,TRUE,\"\")","v":""},{"$f":"CRSDATA!AN184","v":0},{"$f":"CRSDATA!AO184","v":0},{"$f":"CRSDATA!AQ184","v":0},{"$f":"CRSDATA!AS184","v":0},{"$f":"CRSDATA!BB184","v":0},null,"",{"$f":"IF(AND(AND(CRSDATA!C184<>\"\",CRSDATA!BK184<>\"\"),OR(CRSDATA!N184=421,CRSDATA!N184=422,CRSDATA!N184=4221,CRSDATA!N184=4222,CRSDATA!N184=423,CRSDATA!N184=424,CRSDATA!N184=425,CRSDATA!N184=431,CRSDATA!N184=433,CRSDATA!N184=434)),DATEDIF(CRSDATA!C184,CRSDATA!BK184,\"m\"),\"\")","v":""},{"$f":"CRSDATA!BA184","v":0},{"$f":"CRSDATA!BC184","v":0},{"$f":"IF(CRSDATA!BT184=\"\",\"\",CRSDATA!BT184)","v":""},{"$f":"CRSDATA!L184","v":0}]
[{"$f":"CRSDATA!A185","v":0},{"$f":"CRSDATA!C185","v":0},{"$f":"CRSDATA!D185","v":0},{"$f":"CRSDATA!F185","v":0},{"$f":"CRSDATA!E185","v":0},{"$f":"IF(CRSDATA!H185=3000,998,CRSDATA!H185)","v":0},{"$f":"CRSDATA!O185","v":0},{"$f":"CRSDATA!U185","v":0},{"$f":"IF(CRSDATA!V185=\"\",\"\",CRSDATA!V185)","v":""},{"$f":"IF(CRSDATA!W185=\"\",\"\",CRSDATA!W185)","v":""},{"$f":"key_row(CRSDATA!X185,CRSDATA!Y185,CRSDATA!AL185,CRSDATA!AK185,CRSDATA!AJ185,CRSDATA!AM185,CRSDATA!P185,CRSDATA!V185)","v":""},{"$f":"CRSDATA!P185","v":0},{"$f":"CRSDATA!J185","v":0},{"$f":"CRSDATA!I185","v":0},null,{"$f":"IF(LEFT(CRSDATA!N185,2)=\"A0\",\"A00\",IF(LEFT(CRSDATA!N185,3)=\"B02\",\"B02\",IF(LEFT(CRSDATA!N185,3)=\"B03\",\"B03\",IF(CRSDATA!N185=\"B04\",\"C01\",IF(CRSDATA!N185=\"H01\",\"H00\",IF(OR(CRSDATA!N185=\"H02\",CRSDATA!N185=\"H03\",CRSDATA!N185=\"H04\",CRSDATA!N185=\"H05\",CRSDATA!N185=\"H06\"),\"I01\",IF(CRSDATA!N185=\"\",\"\",CRSDATA!N185)))))))","v":""},{"$f":"IF(AND(LEN(CRSDATA!M185)=4,LEFT(CRSDATA!M185,3)=\"110\"),1100,IF(AND(LEN(CRSDATA!M185)=4,LEFT(CRSDATA!M185,3)=\"422\"),422,CRSDATA!M185))","v":0},{"$f":"IF(CRSDATA!L185=22,\"FA04\",\"\")","v":""},{"$f":"IF(CRSDATA!K185=8,\"FC02\",\"\")","v":""},{"$f":"_xlfn.IFS(OR(P185=\"A00\",P185=\"E01\",P185=\"F01\",AND(P185=\"\",A185<>0),Q185=510,Q185=520,AF185=60),1,P185=\"G01\",IF(AF185=10,21,22),OR(M185=41203,M185=41204),22,OR(AND(OR(P185=\"B02\",P185=\"B03\"),M185=41310),OR(P185=\"E02\",P185=\"I01\")),21,AND(OR(P185=\"B01\",P185=\"B03\",P185=\"C01\"),M185<>41310),IF(VLOOKUP(F185,recipient_country!AB:AD,3,FALSE)=10024,\"\",1),AND(P185=\"B02\",M185<>41310),IF(VLOOKUP(M185,channel_codes!J:P,7,FALSE)=0,\"\",VLOOKUP(M185,channel_codes!J:P,7,FALSE)),ISNUMBER(MATCH(P185,{\"D01\",\"D02\"},0)),IF(VLOOKUP(M185,channel_codes!J:P,7,FALSE)=1,1,IF(VLOOKUP(F185,recipient_country!AB:AD,3,FALSE)=10024,\"\",1)),OR(P185=\"H01\",AND(OR(ISNUMBER(SEARCH(\"41010\", L185)),ISNUMBER(SEARCH(\"41020\", L185)),ISNUMBER(SEARCH(\"41030\", L185)),ISNUMBER(SEARCH(\"41040\", L185)),ISNUMBER(SEARCH(\"41081\", L185))),F185=998)),22,F185=998,22,TRUE,\"\")","v":""},{"$f":"CRSDATA!AN185","v":0},{"$f":"CRSDATA!AO185","v":0},{"$f":"CRSDATA!AQ185","v":0},{"$f":"CRSDATA!AS185","v":0},{"$f":"CRSDATA!BB185","v":0},null,"",{"$f":"IF(AND(AND(CRSDATA!C185<>\"\",CRSDATA!BK185<>\"\"),OR(CRSDATA!N185=421,CRSDATA!N185=422,CRSDATA!N185=4221,CRSDATA!N185=4222,CRSDATA!N185=423,CRSDATA!N185=424,CRSDATA!N185=425,CRSDATA!N185=431,CRSDATA!N185=433,CRSDATA!N185=434)),DATEDIF(CRSDATA!C185,CRSDATA!BK185,\"m\"),\"\")","v":""},{"$f":"CRSDATA!BA185","v":0},{"$f":"CRSDATA!BC185","v":0},{"$f":"IF(CRSDATA!BT185=\"\",\"\",CRSDATA!BT185)","v":""},{"$f":"CRSDATA!L185","v":0}]
[{"$f":"CRSDATA!A186","v":0},{"$f":"CRSDATA!C186","v":0},{"$f":"CRSDATA!D186","v":0},{"$f":"CRSDATA!F186","v":0},{"$f":"CRSDATA!E186","v":0},{"$f":"IF(CRSDATA!H186=3000,998,CRSDATA!H186)","v":0},{"$f":"CRSDATA!O186","v":0},{"$f":"CRSDATA!U186","v":0},{"$f":"IF(CRSDATA!V186=\"\",\"\",CRSDATA!V186)","v":""},{"$f":"IF(CRSDATA!W186=\"\",\"\",CRSDATA!W186)","v":""},{"$f":"key_row(CRSDATA!X186,CRSDATA!Y186,CRSDATA!AL186,CRSDATA!AK186,CRSDATA!AJ186,CRSDATA!AM186,CRSDATA!P186,CRSDATA!V186)","v":""},{"$f":"CRSDATA!P186","v":0},{"$f":"CRSDATA!J186","v":0},{"$f":"CRSDATA!I186","v":0},null,{"$f":"IF(LEFT(CRSDATA!N186,2)=\"A0\",\"A00\",IF(LEFT(CRSDATA!N186,3)=\"B02\",\"B02\",IF(LEFT(CRSDATA!N186,3)=\"B03\",\"B03\",IF(CRSDATA!N186=\"B04\",\"C01\",IF(CRSDATA!N186=\"H01\",\"H00\",IF(OR(CRSDATA!N186=\"H02\",CRSDATA!N186=\"H03\",CRSDATA!N186=\"H04\",CRSDATA!N186=\"H05\",CRSDATA!N186=\"H06\"),\"I01\",IF(CRSDATA!N186=\"\",\"\",CRSDATA!N186)))))))","v":""},{"$f":"IF(AND(LEN(CRSDATA!M186)=4,LEFT(CRSDATA!M186,3)=\"110\"),1100,IF(AND(LEN(CRSDATA!M186)=4,LEFT(CRSDATA!M186,3)=\"422\"),422,CRSDATA!M186))","v":0},{"$f":"IF(CRSDATA!L186=22,\"FA04\",\"\")","v":""},{"$f":"IF(CRSDATA!K186=8,\"FC02\",\"\")","v":""},{"$f":"_xlfn.IFS(OR(P186=\"A00\",P186=\"E01\",P186=\"F01\",AND(P186=\"\",A186<>0),Q186=510,Q186=520,AF186=60),1,P186=\"G01\",IF(AF186=10,21,22),OR(M186=41203,M186=41204),22,OR(AND(OR(P186=\"B02\",P186=\"B03\"),M186=41310),OR(P186=\"E02\",P186=\"I01\")),21,AND(OR(P186=\"B01\",P186=\"B03\",P186=\"C01\"),M186<>41310),IF(VLOOKUP(F186,recipient_country!AB:AD,3,FALSE)=10024,\"\",1),AND(P186=\"B02\",M186<>41310),IF(VLOOKUP(M186,channel_codes!J:P,7,FALSE)=0,\"\",VLOOKUP(M186,channel_codes!J:P,7,FALSE)),ISNUMBER(MATCH(P186,{\"D01\",\"D02\"},0)),IF(VLOOKUP(M186,channel_codes!J:P,7,FALSE)=1,1,IF(VLOOKUP(F186,recipient_country!AB:AD,3,FALSE)=10024,\"\",1)),OR(P186=\"H01\",AND(OR(ISNUMBER(SEARCH(\"41010\", L186)),ISNUMBER(SEARCH(\"41020\", L186)),ISNUMBER(SEARCH(\"41030\", L186)),ISNUMBER(SEARCH(\"41040\", L186)),ISNUMBER(SEARCH(\"41081\", L186))),F186=998)),22,F186=998,22,TRUE,\"\")","v":""},{"$f":"CRSDATA!AN186","v":0},{"$f":"CRSDATA!AO186","v":0},{"$f":"CRSDATA!AQ186","v":0},{"$f":"CRSDATA!AS186","v":0},{"$f":"CRSDATA!BB186","v":0},null,"",{"$f":"IF(AND(AND(CRSDATA!C186<>\"\",CRSDATA!BK186<>\"\"),OR(CRSDATA!N186=421,CRSDATA!N186=422,CRSDATA!N186=4221,CRSDATA!N186=4222,CRSDATA!N186=423,CRSDATA!N186=424,CRSDATA!N186=425,CRSDATA!N186=431,CRSDATA!N186=433,CRSDATA!N186=434)),DATEDIF(CRSDATA!C186,CRSDATA!BK186,\"m\"),\"\")","v":""},{"$f":"CRSDATA!BA186","v":0},{"$f":"CRSDATA!BC186","v":0},{"$f":"IF(CRSDATA!BT186=\"\",\"\",CRSDATA!BT186)","v":""},{"$f":"CRSDATA!L186","v":0}]
[{"$f":"CRSDATA!A187","v":0},{"$f":"CRSDATA!C187","v":0},{"$f":"CRSDATA!D187","v":0},{"$f":"CRSDATA!F187","v":0},{"$f":"CRSDATA!E187","v":0},{"$f":"IF(CRSDATA!H187=3000,998,CRSDATA!H187)","v":0},{"$f":"CRSDATA!O187","v":0},{"$f":"CRSDATA!U187","v":0},{"$f":"IF(CRSDATA!V187=\"\",\"\",CRSDATA!V187)","v":""},{"$f":"IF(CRSDATA!W187=\"\",\"\",CRSDATA!W187)","v":""},{"$f":"key_row(CRSDATA!X187,CRSDATA!Y187,CRSDATA!AL187,CRSDATA!AK187,CRSDATA!AJ187,CRSDATA!AM187,CRSDATA!P187,CRSDATA!V187)","v":""},{"$f":"CRSDATA!P187","v":0},{"$f":"CRSDATA!J187","v":0},{"$f":"CRSDATA!I187","v":0},null,{"$f":"IF(LEFT(CRSDATA!N187,2)=\"A0\",\"A00\",IF(LEFT(CRSDATA!N187,3)=\"B02\",\"B02\",IF(LEFT(CRSDATA!N187,3)=\"B03\",\"B03\",IF(CRSDATA!N187=\"B04\",\"C01\",IF(CRSDATA!N187=\"H01\",\"H00\",IF(OR(CRSDATA!N187=\"H02\",CRSDATA!N187=\"H03\",CRSDATA!N187=\"H04\",CRSDATA!N187=\"H05\",CRSDATA!N187=\"H06\"),\"I01\",IF(CRSDATA!N187=\"\",\"\",CRSDATA!N187)))))))","v":""},{"$f":"IF(AND(LEN(CRSDATA!M187)=4,LEFT(CRSDATA!M187,3)=\"110\"),1100,IF(AND(LEN(CRSDATA!M187)=4,LEFT(CRSDATA!M187,3)=\"422\"),422,CRSDATA!M187))","v":0},{"$f":"IF(CRSDATA!L187=22,\"FA04\",\"\")","v":""},{"$f":"IF(CRSDATA!K187=8,\"FC02\",\"\")","v":""},{"$f":"_xlfn.IFS(OR(P187=\"A00\",P187=\"E01\",P187=\"F01\",AND(P187=\"\",A187<>0),Q187=510,Q187=520,AF187=60),1,P187=\"G01\",IF(AF187=10,21,22),OR(M187=41203,M187=41204),22,OR(AND(OR(P187=\"B02\",P187=\"B03\"),M187=41310),OR(P187=\"E02\",P187=\"I01\")),21,AND(OR(P187=\"B01\",P187=\"B03\",P187=\"C01\"),M187<>41310),IF(VLOOKUP(F187,recipient_country!AB:AD,3,FALSE)=10024,\"\",1),AND(P187=\"B02\",M187<>41310),IF(VLOOKUP(M187,channel_codes!J:P,7,FALSE)=0,\"\",VLOOKUP(M187,channel_codes!J:P,7,FALSE)),ISNUMBER(MATCH(P187,{\"D01\",\"D02\"},0)),IF(VLOOKUP(M187,channel_codes!J:P,7,FALSE)=1,1,IF(VLOOKUP(F187,recipient_country!AB:AD,3,FALSE)=10024,\"\",1)),OR(P187=\"H01\",AND(OR(ISNUMBER(SEARCH(\"41010\", L187)),ISNUMBER(SEARCH(\"41020\", L187)),ISNUMBER(SEARCH(\"41030\", L187)),ISNUMBER(SEARCH(\"41040\", L187)),ISNUMBER(SEARCH(\"41081\", L187))),F187=998)),22,F187=998,22,TRUE,\"\")","v":""},{"$f":"CRSDATA!AN187","v":0},{"$f":"CRSDATA!AO187","v":0},{"$f":"CRSDATA!AQ187","v":0},{"$f":"CRSDATA!AS187","v":0},{"$f":"CRSDATA!BB187","v":0},null,"",{"$f":"IF(AND(AND(CRSDATA!C187<>\"\",CRSDATA!BK187<>\"\"),OR(CRSDATA!N187=421,CRSDATA!N187=422,CRSDATA!N187=4221,CRSDATA!N187=4222,CRSDATA!N187=423,CRSDATA!N187=424,CRSDATA!N187=425,CRSDATA!N187=431,CRSDATA!N187=433,CRSDATA!N187=434)),DATEDIF(CRSDATA!C187,CRSDATA!BK187,\"m\"),\"\")","v":""},{"$f":"CRSDATA!BA187","v":0},{"$f":"CRSDATA!BC187","v":0},{"$f":"IF(CRSDATA!BT187=\"\",\"\",CRSDATA!BT187)","v":""},{"$f":"CRSDATA!L187","v":0}]
[{"$f":"CRSDATA!A188","v":0},{"$f":"CRSDATA!C188","v":0},{"$f":"CRSDATA!D188","v":0},{"$f":"CRSDATA!F188","v":0},{"$f":"CRSDATA!E188","v":0},{"$f":"IF(CRSDATA!H188=3000,998,CRSDATA!H188)","v":0},{"$f":"CRSDATA!O188","v":0},{"$f":"CRSDATA!U188","v":0},{"$f":"IF(CRSDATA!V188=\"\",\"\",CRSDATA!V188)","v":""},{"$f":"IF(CRSDATA!W188=\"\",\"\",CRSDATA!W188)","v":""},{"$f":"key_row(CRSDATA!X188,CRSDATA!Y188,CRSDATA!AL188,CRSDATA!AK188,CRSDATA!AJ188,CRSDATA!AM188,CRSDATA!P188,CRSDATA!V188)","v":""},{"$f":"CRSDATA!P188","v":0},{"$f":"CRSDATA!J188","v":0},{"$f":"CRSDATA!I188","v":0},null,{"$f":"IF(LEFT(CRSDATA!N188,2)=\"A0\",\"A00\",IF(LEFT(CRSDATA!N188,3)=\"B02\",\"B02\",IF(LEFT(CRSDATA!N188,3)=\"B03\",\"B03\",IF(CRSDATA!N188=\"B04\",\"C01\",IF(CRSDATA!N188=\"H01\",\"H00\",IF(OR(CRSDATA!N188=\"H02\",CRSDATA!N188=\"H03\",CRSDATA!N188=\"H04\",CRSDATA!N188=\"H05\",CRSDATA!N188=\"H06\"),\"I01\",IF(CRSDATA!N188=\"\",\"\",CRSDATA!N188)))))))","v":""},{"$f":"IF(AND(LEN(CRSDATA!M188)=4,LEFT(CRSDATA!M188,3)=\"110\"),1100,IF(AND(LEN(CRSDATA!M188)=4,LEFT(CRSDATA!M188,3)=\"422\"),422,CRSDATA!M188))","v":0},{"$f":"IF(CRSDATA!L188=22,\"FA04\",\"\")","v":""},{"$f":"IF(CRSDATA!K188=8,\"FC02\",\"\")","v":""},{"$f":"_xlfn.IFS(OR(P188=\"A00\",P188=\"E01\",P188=\"F01\",AND(P188=\"\",A188<>0),Q188=510,Q188=520,AF188=60),1,P188=\"G01\",IF(AF188=10,21,22),OR(M188=41203,M188=41204),22,OR(AND(OR(P188=\"B02\",P188=\"B03\"),M188=41310),OR(P188=\"E02\",P188=\"I01\")),21,AND(OR(P188=\"B01\",P188=\"B03\",P188=\"C01\"),M188<>41310),IF(VLOOKUP(F188,recipient_country!AB:AD,3,FALSE)=10024,\"\",1),AND(P188=\"B02\",M188<>41310),IF(VLOOKUP(M188,channel_codes!J:P,7,FALSE)=0,\"\",VLOOKUP(M188,channel_codes!J:P,7,FALSE)),ISNUMBER(MATCH(P188,{\"D01\",\"D02\"},0)),IF(VLOOKUP(M188,channel_codes!J:P,7,FALSE)=1,1,IF(VLOOKUP(F188,recipient_country!AB:AD,3,FALSE)=10024,\"\",1)),OR(P188=\"H01\",AND(OR(ISNUMBER(SEARCH(\"41010\", L188)),ISNUMBER(SEARCH(\"41020\", L188)),ISNUMBER(SEARCH(\"41030\", L188)),ISNUMBER(SEARCH(\"41040\", L188)),ISNUMBER(SEARCH(\"41081\", L188))),F188=998)),22,F188=998,22,TRUE,\"\")","v":""},{"$f":"CRSDATA!AN188","v":0},{"$f":"CRSDATA!AO188","v":0},{"$f":"CRSDATA!AQ188","v":0},{"$f":"CRSDATA!AS188","v":0},{"$f":"CRSDATA!BB188","v":0},null,"",{"$f":"IF(AND(AND(CRSDATA!C188<>\"\",CRSDATA!BK188<>\"\"),OR(CRSDATA!N188=421,CRSDATA!N188=422,CRSDATA!N188=4221,CRSDATA!N188=4222,CRSDATA!N188=423,CRSDATA!N188=424,CRSDATA!N188=425,CRSDATA!N188=431,CRSDATA!N188=433,CRSDATA!N188=434)),DATEDIF(CRSDATA!C188,CRSDATA!BK188,\"m\"),\"\")","v":""},{"$f":"CRSDATA!BA188","v":0},{"$f":"CRSDATA!BC188","v":0},{"$f":"IF(CRSDATA!BT188=\"\",\"\",CRSDATA!BT188)","v":""},{"$f":"CRSDATA!L188","v":0}]
[{"$f":"CRSDATA!A189","v":0},{"$f":"CRSDATA!C189","v":0},{"$f":"CRSDATA!D189","v":0},{"$f":"CRSDATA!F189","v":0},{"$f":"CRSDATA!E189","v":0},{"$f":"IF(CRSDATA!H189=3000,998,CRSDATA!H189)","v":0},{"$f":"CRSDATA!O189","v":0},{"$f":"CRSDATA!U189","v":0},{"$f":"IF(CRSDATA!V189=\"\",\"\",CRSDATA!V189)","v":""},{"$f":"IF(CRSDATA!W189=\"\",\"\",CRSDATA!W189)","v":""},{"$f":"key_row(CRSDATA!X189,CRSDATA!Y189,CRSDATA!AL189,CRSDATA!AK189,CRSDATA!AJ189,CRSDATA!AM189,CRSDATA!P189,CRSDATA!V189)","v":""},{"$f":"CRSDATA!P189","v":0},{"$f":"CRSDATA!J189","v":0},{"$f":"CRSDATA!I189","v":0},null,{"$f":"IF(LEFT(CRSDATA!N189,2)=\"A0\",\"A00\",IF(LEFT(CRSDATA!N189,3)=\"B02\",\"B02\",IF(LEFT(CRSDATA!N189,3)=\"B03\",\"B03\",IF(CRSDATA!N189=\"B04\",\"C01\",IF(CRSDATA!N189=\"H01\",\"H00\",IF(OR(CRSDATA!N189=\"H02\",CRSDATA!N189=\"H03\",CRSDATA!N189=\"H04\",CRSDATA!N189=\"H05\",CRSDATA!N189=\"H06\"),\"I01\",IF(CRSDATA!N189=\"\",\"\",CRSDATA!N189)))))))","v":""},{"$f":"IF(AND(LEN(CRSDATA!M189)=4,LEFT(CRSDATA!M189,3)=\"110\"),1100,IF(AND(LEN(CRSDATA!M189)=4,LEFT(CRSDATA!M189,3)=\"422\"),422,CRSDATA!M189))","v":0},{"$f":"IF(CRSDATA!L189=22,\"FA04\",\"\")","v":""},{"$f":"IF(CRSDATA!K189=8,\"FC02\",\"\")","v":""},{"$f":"_xlfn.IFS(OR(P189=\"A00\",P189=\"E01\",P189=\"F01\",AND(P189=\"\",A189<>0),Q189=510,Q189=520,AF189=60),1,P189=\"G01\",IF(AF189=10,21,22),OR(M189=41203,M189=41204),22,OR(AND(OR(P189=\"B02\",P189=\"B03\"),M189=41310),OR(P189=\"E02\",P189=\"I01\")),21,AND(OR(P189=\"B01\",P189=\"B03\",P189=\"C01\"),M189<>41310),IF(VLOOKUP(F189,recipient_country!AB:AD,3,FALSE)=10024,\"\",1),AND(P189=\"B02\",M189<>41310),IF(VLOOKUP(M189,channel_codes!J:P,7,FALSE)=0,\"\",VLOOKUP(M189,channel_codes!J:P,7,FALSE)),ISNUMBER(MATCH(P189,{\"D01\",\"D02\"},0)),IF(VLOOKUP(M189,channel_codes!J:P,7,FALSE)=1,1,IF(VLOOKUP(F189,recipient_country!AB:AD,3,FALSE)=10024,\"\",1)),OR(P189=\"H01\",AND(OR(ISNUMBER(SEARCH(\"41010\", L189)),ISNUMBER(SEARCH(\"41020\", L189)),ISNUMBER(SEARCH(\"41030\", L189)),ISNUMBER(SEARCH(\"41040\", L189)),ISNUMBER(SEARCH(\"41081\", L189))),F189=998)),22,F189=998,22,TRUE,\"\")","v":""},{"$f":"CRSDATA!AN189","v":0},{"$f":"CRSDATA!AO189","v":0},{"$f":"CRSDATA!AQ189","v":0},{"$f":"CRSDATA!AS189","v":0},{"$f":"CRSDATA!BB189","v":0},null,"",{"$f":"IF(AND(AND(CRSDATA!C189<>\"\",CRSDATA!BK189<>\"\"),OR(CRSDATA!N189=421,CRSDATA!N189=422,CRSDATA!N189=4221,CRSDATA!N189=4222,CRSDATA!N189=423,CRSDATA!N189=424,CRSDATA!N189=425,CRSDATA!N189=431,CRSDATA!N189=433,CRSDATA!N189=434)),DATEDIF(CRSDATA!C189,CRSDATA!BK189,\"m\"),\"\")","v":""},{"$f":"CRSDATA!BA189","v":0},{"$f":"CRSDATA!BC189","v":0},{"$f":"IF(CRSDATA!BT189=\"\",\"\",CRSDATA!BT189)","v":""},{"$f":"CRSDATA!L189","v":0}]
[{"$f":"CRSDATA!A190","v":0},{"$f":"CRSDATA!C190","v":0},{"$f":"CRSDATA!D190","v":0},{"$f":"CRSDATA!F190","v":0},{"$f":"CRSDATA!E190","v":0},{"$f":"IF(CRSDATA!H190=3000,998,CRSDATA!H190)","v":0},{"$f":"CRSDATA!O190","v":0},{"$f":"CRSDATA!U190","v":0},{"$f":"IF(CRSDATA!V190=\"\",\"\",CRSDATA!V190)","v":""},{"$f":"IF(CRSDATA!W190=\"\",\"\",CRSDATA!W190)","v":""},{"$f":"key_row(CRSDATA!X190,CRSDATA!Y190,CRSDATA!AL190,CRSDATA!AK190,CRSDATA!AJ190,CRSDATA!AM190,CRSDATA!P190,CRSDATA!V190)","v":""},{"$f":"CRSDATA!P190","v":0},{"$f":"CRSDATA!J190","v":0},{"$f":"CRSDATA!I190","v":0},null,{"$f":"IF(LEFT(CRSDATA!N190,2)=\"A0\",\"A00\",IF(LEFT(CRSDATA!N190,3)=\"B02\",\"B02\",IF(LEFT(CRSDATA!N190,3)=\"B03\",\"B03\",IF(CRSDATA!N190=\"B04\",\"C01\",IF(CRSDATA!N190=\"H01\",\"H00\",IF(OR(CRSDATA!N190=\"H02\",CRSDATA!N190=\"H03\",CRSDATA!N190=\"H04\",CRSDATA!N190=\"H05\",CRSDATA!N190=\"H06\"),\"I01\",IF(CRSDATA!N190=\"\",\"\",CRSDATA!N190)))))))","v":""},{"$f":"IF(AND(LEN(CRSDATA!M190)=4,LEFT(CRSDATA!M190,3)=\"110\"),1100,IF(AND(LEN(CRSDATA!M190)=4,LEFT(CRSDATA!M190,3)=\"422\"),422,CRSDATA!M190))","v":0},{"$f":"IF(CRSDATA!L190=22,\"FA04\",\"\")","v":""},{"$f":"IF(CRSDATA!K190=8,\"FC02\",\"\")","v":""},{"$f":"_xlfn.IFS(OR(P190=\"A00\",P190=\"E01\",P190=\"F01\",AND(P190=\"\",A190<>0),Q190=510,Q190=520,AF190=60),1,P190=\"G01\",IF(AF190=10,21,22),OR(M190=41203,M190=41204),22,OR(AND(OR(P190=\"B02\",P190=\"B03\"),M190=41310),OR(P190=\"E02\",P190=\"I01\")),21,AND(OR(P190=\"B01\",P190=\"B03\",P190=\"C01\"),M190<>41310),IF(VLOOKUP(F190,recipient_country!AB:AD,3,FALSE)=10024,\"\",1),AND(P190=\"B02\",M190<>41310),IF(VLOOKUP(M190,channel_codes!J:P,7,FALSE)=0,\"\",VLOOKUP(M190,channel_codes!J:P,7,FALSE)),ISNUMBER(MATCH(P190,{\"D01\",\"D02\"},0)),IF(VLOOKUP(M190,channel_codes!J:P,7,FALSE)=1,1,IF(VLOOKUP(F190,recipient_country!AB:AD,3,FALSE)=10024,\"\",1)),OR(P190=\"H01\",AND(OR(ISNUMBER(SEARCH(\"41010\", L190)),ISNUMBER(SEARCH(\"41020\", L190)),ISNUMBER(SEARCH(\"41030\", L190)),ISNUMBER(SEARCH(\"41040\", L190)),ISNUMBER(SEARCH(\"41081\", L190))),F190=998)),22,F190=998,22,TRUE,\"\")","v":""},{"$f":"CRSDATA!AN190","v":0},{"$f":"CRSDATA!AO190","v":0},{"$f":"CRSDATA!AQ190","v":0},{"$f":"CRSDATA!AS190","v":0},{"$f":"CRSDATA!BB190","v":0},null,"",{"$f":"IF(AND(AND(CRSDATA!C190<>\"\",CRSDATA!BK190<>\"\"),OR(CRSDATA!N190=421,CRSDATA!N190=422,CRSDATA!N190=4221,CRSDATA!N190=4222,CRSDATA!N190=423,CRSDATA!N190=424,CRSDATA!N190=425,CRSDATA!N190=431,CRSDATA!N190=433,CRSDATA!N190=434)),DATEDIF(CRSDATA!C190,CRSDATA!BK190,\"m\"),\"\")","v":""},{"$f":"CRSDATA!BA190","v":0},{"$f":"CRSDATA!BC190","v":0},{"$f":"IF(CRSDATA!BT190=\"\",\"\",CRSDATA!BT190)","v":""},{"$f":"CRSDATA!L190","v":0}]
[{"$f":"CRSDATA!A191","v":0},{"$f":"CRSDATA!C191","v":0},{"$f":"CRSDATA!D191","v":0},{"$f":"CRSDATA!F191","v":0},{"$f":"CRSDATA!E191","v":0},{"$f":"IF(CRSDATA!H191=3000,998,CRSDATA!H191)","v":0},{"$f":"CRSDATA!O191","v":0},{"$f":"CRSDATA!U191","v":0},{"$f":"IF(CRSDATA!V191=\"\",\"\",CRSDATA!V191)","v":""},{"$f":"IF(CRSDATA!W191=\"\",\"\",CRSDATA!W191)","v":""},{"$f":"key_row(CRSDATA!X191,CRSDATA!Y191,CRSDATA!AL191,CRSDATA!AK191,CRSDATA!AJ191,CRSDATA!AM191,CRSDATA!P191,CRSDATA!V191)","v":""},{"$f":"CRSDATA!P191","v":0},{"$f":"CRSDATA!J191","v":0},{"$f":"CRSDATA!I191","v":0},null,{"$f":"IF(LEFT(CRSDATA!N191,2)=\"A0\",\"A00\",IF(LEFT(CRSDATA!N191,3)=\"B02\",\"B02\",IF(LEFT(CRSDATA!N191,3)=\"B03\",\"B03\",IF(CRSDATA!N191=\"B04\",\"C01\",IF(CRSDATA!N191=\"H01\",\"H00\",IF(OR(CRSDATA!N191=\"H02\",CRSDATA!N191=\"H03\",CRSDATA!N191=\"H04\",CRSDATA!N191=\"H05\",CRSDATA!N191=\"H06\"),\"I01\",IF(CRSDATA!N191=\"\",\"\",CRSDATA!N191)))))))","v":""},{"$f":"IF(AND(LEN(CRSDATA!M191)=4,LEFT(CRSDATA!M191,3)=\"110\"),1100,IF(AND(LEN(CRSDATA!M191)=4,LEFT(CRSDATA!M191,3)=\"422\"),422,CRSDATA!M191))","v":0},{"$f":"IF(CRSDATA!L191=22,\"FA04\",\"\")","v":""},{"$f":"IF(CRSDATA!K191=8,\"FC02\",\"\")","v":""},{"$f":"_xlfn.IFS(OR(P191=\"A00\",P191=\"E01\",P191=\"F01\",AND(P191=\"\",A191<>0),Q191=510,Q191=520,AF191=60),1,P191=\"G01\",IF(AF191=10,21,22),OR(M191=41203,M191=41204),22,OR(AND(OR(P191=\"B02\",P191=\"B03\"),M191=41310),OR(P191=\"E02\",P191=\"I01\")),21,AND(OR(P191=\"B01\",P191=\"B03\",P191=\"C01\"),M191<>41310),IF(VLOOKUP(F191,recipient_country!AB:AD,3,FALSE)=10024,\"\",1),AND(P191=\"B02\",M191<>41310),IF(VLOOKUP(M191,channel_codes!J:P,7,FALSE)=0,\"\",VLOOKUP(M191,channel_codes!J:P,7,FALSE)),ISNUMBER(MATCH(P191,{\"D01\",\"D02\"},0)),IF(VLOOKUP(M191,channel_codes!J:P,7,FALSE)=1,1,IF(VLOOKUP(F191,recipient_country!AB:AD,3,FALSE)=10024,\"\",1)),OR(P191=\"H01\",AND(OR(ISNUMBER(SEARCH(\"41010\", L191)),ISNUMBER(SEARCH(\"41020\", L191)),ISNUMBER(SEARCH(\"41030\", L191)),ISNUMBER(SEARCH(\"41040\", L191)),ISNUMBER(SEARCH(\"41081\", L191))),F191=998)),22,F191=998,22,TRUE,\"\")","v":""},{"$f":"CRSDATA!AN191","v":0},{"$f":"CRSDATA!AO191","v":0},{"$f":"CRSDATA!AQ191","v":0},{"$f":"CRSDATA!AS191","v":0},{"$f":"CRSDATA!BB191","v":0},null,"",{"$f":"IF(AND(AND(CRSDATA!C191<>\"\",CRSDATA!BK191<>\"\"),OR(CRSDATA!N191=421,CRSDATA!N191=422,CRSDATA!N191=4221,CRSDATA!N191=4222,CRSDATA!N191=423,CRSDATA!N191=424,CRSDATA!N191=425,CRSDATA!N191=431,CRSDATA!N191=433,CRSDATA!N191=434)),DATEDIF(CRSDATA!C191,CRSDATA!BK191,\"m\"),\"\")","v":""},{"$f":"CRSDATA!BA191","v":0},{"$f":"CRSDATA!BC191","v":0},{"$f":"IF(CRSDATA!BT191=\"\",\"\",CRSDATA!BT191)","v":""},{"$f":"CRSDATA!L191","v":0}]
[{"$f":"CRSDATA!A192","v":0},{"$f":"CRSDATA!C192","v":0},{"$f":"CRSDATA!D192","v":0},{"$f":"CRSDATA!F192","v":0},{"$f":"CRSDATA!E192","v":0},{"$f":"IF(CRSDATA!H192=3000,998,CRSDATA!H192)","v":0},{"$f":"CRSDATA!O192","v":0},{"$f":"CRSDATA!U192","v":0},{"$f":"IF(CRSDATA!V192=\"\",\"\",CRSDATA!V192)","v":""},{"$f":"IF(CRSDATA!W192=\"\",\"\",CRSDATA!W192)","v":""},{"$f":"key_row(CRSDATA!X192,CRSDATA!Y192,CRSDATA!AL192,CRSDATA!AK192,CRSDATA!AJ192,CRSDATA!AM192,CRSDATA!P192,CRSDATA!V192)","v":""},{"$f":"CRSDATA!P192","v":0},{"$f":"CRSDATA!J192","v":0},{"$f":"CRSDATA!I192","v":0},null,{"$f":"IF(LEFT(CRSDATA!N192,2)=\"A0\",\"A00\",IF(LEFT(CRSDATA!N192,3)=\"B02\",\"B02\",IF(LEFT(CRSDATA!N192,3)=\"B03\",\"B03\",IF(CRSDATA!N192=\"B04\",\"C01\",IF(CRSDATA!N192=\"H01\",\"H00\",IF(OR(CRSDATA!N192=\"H02\",CRSDATA!N192=\"H03\",CRSDATA!N192=\"H04\",CRSDATA!N192=\"H05\",CRSDATA!N192=\"H06\"),\"I01\",IF(CRSDATA!N192=\"\",\"\",CRSDATA!N192)))))))","v":""},{"$f":"IF(AND(LEN(CRSDATA!M192)=4,LEFT(CRSDATA!M192,3)=\"110\"),1100,IF(AND(LEN(CRSDATA!M192)=4,LEFT(CRSDATA!M192,3)=\"422\"),422,CRSDATA!M192))","v":0},{"$f":"IF(CRSDATA!L192=22,\"FA04\",\"\")","v":""},{"$f":"IF(CRSDATA!K192=8,\"FC02\",\"\")","v":""},{"$f":"_xlfn.IFS(OR(P192=\"A00\",P192=\"E01\",P192=\"F01\",AND(P192=\"\",A192<>0),Q192=510,Q192=520,AF192=60),1,P192=\"G01\",IF(AF192=10,21,22),OR(M192=41203,M192=41204),22,OR(AND(OR(P192=\"B02\",P192=\"B03\"),M192=41310),OR(P192=\"E02\",P192=\"I01\")),21,AND(OR(P192=\"B01\",P192=\"B03\",P192=\"C01\"),M192<>41310),IF(VLOOKUP(F192,recipient_country!AB:AD,3,FALSE)=10024,\"\",1),AND(P192=\"B02\",M192<>41310),IF(VLOOKUP(M192,channel_codes!J:P,7,FALSE)=0,\"\",VLOOKUP(M192,channel_codes!J:P,7,FALSE)),ISNUMBER(MATCH(P192,{\"D01\",\"D02\"},0)),IF(VLOOKUP(M192,channel_codes!J:P,7,FALSE)=1,1,IF(VLOOKUP(F192,recipient_country!AB:AD,3,FALSE)=10024,\"\",1)),OR(P192=\"H01\",AND(OR(ISNUMBER(SEARCH(\"41010\", L192)),ISNUMBER(SEARCH(\"41020\", L192)),ISNUMBER(SEARCH(\"41030\", L192)),ISNUMBER(SEARCH(\"41040\", L192)),ISNUMBER(SEARCH(\"41081\", L192))),F192=998)),22,F192=998,22,TRUE,\"\")","v":""},{"$f":"CRSDATA!AN192","v":0},{"$f":"CRSDATA!AO192","v":0},{"$f":"CRSDATA!AQ192","v":0},{"$f":"CRSDATA!AS192","v":0},{"$f":"CRSDATA!BB192","v":0},null,"",{"$f":"IF(AND(AND(CRSDATA!C192<>\"\",CRSDATA!BK192<>\"\"),OR(CRSDATA!N192=421,CRSDATA!N192=422,CRSDATA!N192=4221,CRSDATA!N192=4222,CRSDATA!N192=423,CRSDATA!N192=424,CRSDATA!N192=425,CRSDATA!N192=431,CRSDATA!N192=433,CRSDATA!N192=434)),DATEDIF(CRSDATA!C192,CRSDATA!BK192,\"m\"),\"\")","v":""},{"$f":"CRSDATA!BA192","v":0},{"$f":"CRSDATA!BC192","v":0},{"$f":"IF(CRSDATA!BT192=\"\",\"\",CRSDATA!BT192)","v":""},{"$f":"CRSDATA!L192","v":0}]
[{"$f":"CRSDATA!A193","v":0},{"$f":"CRSDATA!C193","v":0},{"$f":"CRSDATA!D193","v":0},{"$f":"CRSDATA!F193","v":0},{"$f":"CRSDATA!E193","v":0},{"$f":"IF(CRSDATA!H193=3000,998,CRSDATA!H193)","v":0},{"$f":"CRSDATA!O193","v":0},{"$f":"CRSDATA!U193","v":0},{"$f":"IF(CRSDATA!V193=\"\",\"\",CRSDATA!V193)","v":""},{"$f":"IF(CRSDATA!W193=\"\",\"\",CRSDATA!W193)","v":""},{"$f":"key_row(CRSDATA!X193,CRSDATA!Y193,CRSDATA!AL193,CRSDATA!AK193,CRSDATA!AJ193,CRSDATA!AM193,CRSDATA!P193,CRSDATA!V193)","v":""},{"$f":"CRSDATA!P193","v":0},{"$f":"CRSDATA!J193","v":0},{"$f":"CRSDATA!I193","v":0},null,{"$f":"IF(LEFT(CRSDATA!N193,2)=\"A0\",\"A00\",IF(LEFT(CRSDATA!N193,3)=\"B02\",\"B02\",IF(LEFT(CRSDATA!N193,3)=\"B03\",\"B03\",IF(CRSDATA!N193=\"B04\",\"C01\",IF(CRSDATA!N193=\"H01\",\"H00\",IF(OR(CRSDATA!N193=\"H02\",CRSDATA!N193=\"H03\",CRSDATA!N193=\"H04\",CRSDATA!N193=\"H05\",CRSDATA!N193=\"H06\"),\"I01\",IF(CRSDATA!N193=\"\",\"\",CRSDATA!N193)))))))","v":""},{"$f":"IF(AND(LEN(CRSDATA!M193)=4,LEFT(CRSDATA!M193,3)=\"110\"),1100,IF(AND(LEN(CRSDATA!M193)=4,LEFT(CRSDATA!M193,3)=\"422\"),422,CRSDATA!M193))","v":0},{"$f":"IF(CRSDATA!L193=22,\"FA04\",\"\")","v":""},{"$f":"IF(CRSDATA!K193=8,\"FC02\",\"\")","v":""},{"$f":"_xlfn.IFS(OR(P193=\"A00\",P193=\"E01\",P193=\"F01\",AND(P193=\"\",A193<>0),Q193=510,Q193=520,AF193=60),1,P193=\"G01\",IF(AF193=10,21,22),OR(M193=41203,M193=41204),22,OR(AND(OR(P193=\"B02\",P193=\"B03\"),M193=41310),OR(P193=\"E02\",P193=\"I01\")),21,AND(OR(P193=\"B01\",P193=\"B03\",P193=\"C01\"),M193<>41310),IF(VLOOKUP(F193,recipient_country!AB:AD,3,FALSE)=10024,\"\",1),AND(P193=\"B02\",M193<>41310),IF(VLOOKUP(M193,channel_codes!J:P,7,FALSE)=0,\"\",VLOOKUP(M193,channel_codes!J:P,7,FALSE)),ISNUMBER(MATCH(P193,{\"D01\",\"D02\"},0)),IF(VLOOKUP(M193,channel_codes!J:P,7,FALSE)=1,1,IF(VLOOKUP(F193,recipient_country!AB:AD,3,FALSE)=10024,\"\",1)),OR(P193=\"H01\",AND(OR(ISNUMBER(SEARCH(\"41010\", L193)),ISNUMBER(SEARCH(\"41020\", L193)),ISNUMBER(SEARCH(\"41030\", L193)),ISNUMBER(SEARCH(\"41040\", L193)),ISNUMBER(SEARCH(\"41081\", L193))),F193=998)),22,F193=998,22,TRUE,\"\")","v":""},{"$f":"CRSDATA!AN193","v":0},{"$f":"CRSDATA!AO193","v":0},{"$f":"CRSDATA!AQ193","v":0},{"$f":"CRSDATA!AS193","v":0},{"$f":"CRSDATA!BB193","v":0},null,"",{"$f":"IF(AND(AND(CRSDATA!C193<>\"\",CRSDATA!BK193<>\"\"),OR(CRSDATA!N193=421,CRSDATA!N193=422,CRSDATA!N193=4221,CRSDATA!N193=4222,CRSDATA!N193=423,CRSDATA!N193=424,CRSDATA!N193=425,CRSDATA!N193=431,CRSDATA!N193=433,CRSDATA!N193=434)),DATEDIF(CRSDATA!C193,CRSDATA!BK193,\"m\"),\"\")","v":""},{"$f":"CRSDATA!BA193","v":0},{"$f":"CRSDATA!BC193","v":0},{"$f":"IF(CRSDATA!BT193=\"\",\"\",CRSDATA!BT193)","v":""},{"$f":"CRSDATA!L193","v":0}]
[{"$f":"CRSDATA!A194","v":0},{"$f":"CRSDATA!C194","v":0},{"$f":"CRSDATA!D194","v":0},{"$f":"CRSDATA!F194","v":0},{"$f":"CRSDATA!E194","v":0},{"$f":"IF(CRSDATA!H194=3000,998,CRSDATA!H194)","v":0},{"$f":"CRSDATA!O194","v":0},{"$f":"CRSDATA!U194","v":0},{"$f":"IF(CRSDATA!V194=\"\",\"\",CRSDATA!V194)","v":""},{"$f":"IF(CRSDATA!W194=\"\",\"\",CRSDATA!W194)","v":""},{"$f":"key_row(CRSDATA!X194,CRSDATA!Y194,CRSDATA!AL194,CRSDATA!AK194,CRSDATA!AJ194,CRSDATA!AM194,CRSDATA!P194,CRSDATA!V194)","v":""},{"$f":"CRSDATA!P194","v":0},{"$f":"CRSDATA!J194","v":0},{"$f":"CRSDATA!I194","v":0},null,{"$f":"IF(LEFT(CRSDATA!N194,2)=\"A0\",\"A00\",IF(LEFT(CRSDATA!N194,3)=\"B02\",\"B02\",IF(LEFT(CRSDATA!N194,3)=\"B03\",\"B03\",IF(CRSDATA!N194=\"B04\",\"C01\",IF(CRSDATA!N194=\"H01\",\"H00\",IF(OR(CRSDATA!N194=\"H02\",CRSDATA!N194=\"H03\",CRSDATA!N194=\"H04\",CRSDATA!N194=\"H05\",CRSDATA!N194=\"H06\"),\"I01\",IF(CRSDATA!N194=\"\",\"\",CRSDATA!N194)))))))","v":""},{"$f":"IF(AND(LEN(CRSDATA!M194)=4,LEFT(CRSDATA!M194,3)=\"110\"),1100,IF(AND(LEN(CRSDATA!M194)=4,LEFT(CRSDATA!M194,3)=\"422\"),422,CRSDATA!M194))","v":0},{"$f":"IF(CRSDATA!L194=22,\"FA04\",\"\")","v":""},{"$f":"IF(CRSDATA!K194=8,\"FC02\",\"\")","v":""},{"$f":"_xlfn.IFS(OR(P194=\"A00\",P194=\"E01\",P194=\"F01\",AND(P194=\"\",A194<>0),Q194=510,Q194=520,AF194=60),1,P194=\"G01\",IF(AF194=10,21,22),OR(M194=41203,M194=41204),22,OR(AND(OR(P194=\"B02\",P194=\"B03\"),M194=41310),OR(P194=\"E02\",P194=\"I01\")),21,AND(OR(P194=\"B01\",P194=\"B03\",P194=\"C01\"),M194<>41310),IF(VLOOKUP(F194,recipient_country!AB:AD,3,FALSE)=10024,\"\",1),AND(P194=\"B02\",M194<>41310),IF(VLOOKUP(M194,channel_codes!J:P,7,FALSE)=0,\"\",VLOOKUP(M194,channel_codes!J:P,7,FALSE)),ISNUMBER(MATCH(P194,{\"D01\",\"D02\"},0)),IF(VLOOKUP(M194,channel_codes!J:P,7,FALSE)=1,1,IF(VLOOKUP(F194,recipient_country!AB:AD,3,FALSE)=10024,\"\",1)),OR(P194=\"H01\",AND(OR(ISNUMBER(SEARCH(\"41010\", L194)),ISNUMBER(SEARCH(\"41020\", L194)),ISNUMBER(SEARCH(\"41030\", L194)),ISNUMBER(SEARCH(\"41040\", L194)),ISNUMBER(SEARCH(\"41081\", L194))),F194=998)),22,F194=998,22,TRUE,\"\")","v":""},{"$f":"CRSDATA!AN194","v":0},{"$f":"CRSDATA!AO194","v":0},{"$f":"CRSDATA!AQ194","v":0},{"$f":"CRSDATA!AS194","v":0},{"$f":"CRSDATA!BB194","v":0},null,"",{"$f":"IF(AND(AND(CRSDATA!C194<>\"\",CRSDATA!BK194<>\"\"),OR(CRSDATA!N194=421,CRSDATA!N194=422,CRSDATA!N194=4221,CRSDATA!N194=4222,CRSDATA!N194=423,CRSDATA!N194=424,CRSDATA!N194=425,CRSDATA!N194=431,CRSDATA!N194=433,CRSDATA!N194=434)),DATEDIF(CRSDATA!C194,CRSDATA!BK194,\"m\"),\"\")","v":""},{"$f":"CRSDATA!BA194","v":0},{"$f":"CRSDATA!BC194","v":0},{"$f":"IF(CRSDATA!BT194=\"\",\"\",CRSDATA!BT194)","v":""},{"$f":"CRSDATA!L194","v":0}]
[{"$f":"CRSDATA!A195","v":0},{"$f":"CRSDATA!C195","v":0},{"$f":"CRSDATA!D195","v":0},{"$f":"CRSDATA!F195","v":0},{"$f":"CRSDATA!E195","v":0},{"$f":"IF(CRSDATA!H195=3000,998,CRSDATA!H195)","v":0},{"$f":"CRSDATA!O195","v":0},{"$f":"CRSDATA!U195","v":0},{"$f":"IF(CRSDATA!V195=\"\",\"\",CRSDATA!V195)","v":""},{"$f":"IF(CRSDATA!W195=\"\",\"\",CRSDATA!W195)","v":""},{"$f":"key_row(CRSDATA!X195,CRSDATA!Y195,CRSDATA!AL195,CRSDATA!AK195,CRSDATA!AJ195,CRSDATA!AM195,CRSDATA!P195,CRSDATA!V195)","v":""},{"$f":"CRSDATA!P195","v":0},{"$f":"CRSDATA!J195","v":0},{"$f":"CRSDATA!I195","v":0},null,{"$f":"IF(LEFT(CRSDATA!N195,2)=\"A0\",\"A00\",IF(LEFT(CRSDATA!N195,3)=\"B02\",\"B02\",IF(LEFT(CRSDATA!N195,3)=\"B03\",\"B03\",IF(CRSDATA!N195=\"B04\",\"C01\",IF(CRSDATA!N195=\"H01\",\"H00\",IF(OR(CRSDATA!N195=\"H02\",CRSDATA!N195=\"H03\",CRSDATA!N195=\"H04\",CRSDATA!N195=\"H05\",CRSDATA!N195=\"H06\"),\"I01\",IF(CRSDATA!N195=\"\",\"\",CRSDATA!N195)))))))","v":""},{"$f":"IF(AND(LEN(CRSDATA!M195)=4,LEFT(CRSDATA!M195,3)=\"110\"),1100,IF(AND(LEN(CRSDATA!M195)=4,LEFT(CRSDATA!M195,3)=\"422\"),422,CRSDATA!M195))","v":0},{"$f":"IF(CRSDATA!L195=22,\"FA04\",\"\")","v":""},{"$f":"IF(CRSDATA!K195=8,\"FC02\",\"\")","v":""},{"$f":"_xlfn.IFS(OR(P195=\"A00\",P195=\"E01\",P195=\"F01\",AND(P195=\"\",A195<>0),Q195=510,Q195=520,AF195=60),1,P195=\"G01\",IF(AF195=10,21,22),OR(M195=41203,M195=41204),22,OR(AND(OR(P195=\"B02\",P195=\"B03\"),M195=41310),OR(P195=\"E02\",P195=\"I01\")),21,AND(OR(P195=\"B01\",P195=\"B03\",P195=\"C01\"),M195<>41310),IF(VLOOKUP(F195,recipient_country!AB:AD,3,FALSE)=10024,\"\",1),AND(P195=\"B02\",M195<>41310),IF(VLOOKUP(M195,channel_codes!J:P,7,FALSE)=0,\"\",VLOOKUP(M195,channel_codes!J:P,7,FALSE)),ISNUMBER(MATCH(P195,{\"D01\",\"D02\"},0)),IF(VLOOKUP(M195,channel_codes!J:P,7,FALSE)=1,1,IF(VLOOKUP(F195,recipient_country!AB:AD,3,FALSE)=10024,\"\",1)),OR(P195=\"H01\",AND(OR(ISNUMBER(SEARCH(\"41010\", L195)),ISNUMBER(SEARCH(\"41020\", L195)),ISNUMBER(SEARCH(\"41030\", L195)),ISNUMBER(SEARCH(\"41040\", L195)),ISNUMBER(SEARCH(\"41081\", L195))),F195=998)),22,F195=998,22,TRUE,\"\")","v":""},{"$f":"CRSDATA!AN195","v":0},{"$f":"CRSDATA!AO195","v":0},{"$f":"CRSDATA!AQ195","v":0},{"$f":"CRSDATA!AS195","v":0},{"$f":"CRSDATA!BB195","v":0},null,"",{"$f":"IF(AND(AND(CRSDATA!C195<>\"\",CRSDATA!BK195<>\"\"),OR(CRSDATA!N195=421,CRSDATA!N195=422,CRSDATA!N195=4221,CRSDATA!N195=4222,CRSDATA!N195=423,CRSDATA!N195=424,CRSDATA!N195=425,CRSDATA!N195=431,CRSDATA!N195=433,CRSDATA!N195=434)),DATEDIF(CRSDATA!C195,CRSDATA!BK195,\"m\"),\"\")","v":""},{"$f":"CRSDATA!BA195","v":0},{"$f":"CRSDATA!BC195","v":0},{"$f":"IF(CRSDATA!BT195=\"\",\"\",CRSDATA!BT195)","v":""},{"$f":"CRSDATA!L195","v":0}]
[{"$f":"CRSDATA!A196","v":0},{"$f":"CRSDATA!C196","v":0},{"$f":"CRSDATA!D196","v":0},{"$f":"CRSDATA!F196","v":0},{"$f":"CRSDATA!E196","v":0},{"$f":"IF(CRSDATA!H196=3000,998,CRSDATA!H196)","v":0},{"$f":"CRSDATA!O196","v":0},{"$f":"CRSDATA!U196","v":0},{"$f":"IF(CRSDATA!V196=\"\",\"\",CRSDATA!V196)","v":""},{"$f":"IF(CRSDATA!W196=\"\",\"\",CRSDATA!W196)","v":""},{"$f":"key_row(CRSDATA!X196,CRSDATA!Y196,CRSDATA!AL196,CRSDATA!AK196,CRSDATA!AJ196,CRSDATA!AM196,CRSDATA!P196,CRSDATA!V196)","v":""},{"$f":"CRSDATA!P196","v":0},{"$f":"CRSDATA!J196","v":0},{"$f":"CRSDATA!I196","v":0},null,{"$f":"IF(LEFT(CRSDATA!N196,2)=\"A0\",\"A00\",IF(LEFT(CRSDATA!N196,3)=\"B02\",\"B02\",IF(LEFT(CRSDATA!N196,3)=\"B03\",\"B03\",IF(CRSDATA!N196=\"B04\",\"C01\",IF(CRSDATA!N196=\"H01\",\"H00\",IF(OR(CRSDATA!N196=\"H02\",CRSDATA!N196=\"H03\",CRSDATA!N196=\"H04\",CRSDATA!N196=\"H05\",CRSDATA!N196=\"H06\"),\"I01\",IF(CRSDATA!N196=\"\",\"\",CRSDATA!N196)))))))","v":""},{"$f":"IF(AND(LEN(CRSDATA!M196)=4,LEFT(CRSDATA!M196,3)=\"110\"),1100,IF(AND(LEN(CRSDATA!M196)=4,LEFT(CRSDATA!M196,3)=\"422\"),422,CRSDATA!M196))","v":0},{"$f":"IF(CRSDATA!L196=22,\"FA04\",\"\")","v":""},{"$f":"IF(CRSDATA!K196=8,\"FC02\",\"\")","v":""},{"$f":"_xlfn.IFS(OR(P196=\"A00\",P196=\"E01\",P196=\"F01\",AND(P196=\"\",A196<>0),Q196=510,Q196=520,AF196=60),1,P196=\"G01\",IF(AF196=10,21,22),OR(M196=41203,M196=41204),22,OR(AND(OR(P196=\"B02\",P196=\"B03\"),M196=41310),OR(P196=\"E02\",P196=\"I01\")),21,AND(OR(P196=\"B01\",P196=\"B03\",P196=\"C01\"),M196<>41310),IF(VLOOKUP(F196,recipient_country!AB:AD,3,FALSE)=10024,\"\",1),AND(P196=\"B02\",M196<>41310),IF(VLOOKUP(M196,channel_codes!J:P,7,FALSE)=0,\"\",VLOOKUP(M196,channel_codes!J:P,7,FALSE)),ISNUMBER(MATCH(P196,{\"D01\",\"D02\"},0)),IF(VLOOKUP(M196,channel_codes!J:P,7,FALSE)=1,1,IF(VLOOKUP(F196,recipient_country!AB:AD,3,FALSE)=10024,\"\",1)),OR(P196=\"H01\",AND(OR(ISNUMBER(SEARCH(\"41010\", L196)),ISNUMBER(SEARCH(\"41020\", L196)),ISNUMBER(SEARCH(\"41030\", L196)),ISNUMBER(SEARCH(\"41040\", L196)),ISNUMBER(SEARCH(\"41081\", L196))),F196=998)),22,F196=998,22,TRUE,\"\")","v":""},{"$f":"CRSDATA!AN196","v":0},{"$f":"CRSDATA!AO196","v":0},{"$f":"CRSDATA!AQ196","v":0},{"$f":"CRSDATA!AS196","v":0},{"$f":"CRSDATA!BB196","v":0},null,"",{"$f":"IF(AND(AND(CRSDATA!C196<>\"\",CRSDATA!BK196<>\"\"),OR(CRSDATA!N196=421,CRSDATA!N196=422,CRSDATA!N196=4221,CRSDATA!N196=4222,CRSDATA!N196=423,CRSDATA!N196=424,CRSDATA!N196=425,CRSDATA!N196=431,CRSDATA!N196=433,CRSDATA!N196=434)),DATEDIF(CRSDATA!C196,CRSDATA!BK196,\"m\"),\"\")","v":""},{"$f":"CRSDATA!BA196","v":0},{"$f":"CRSDATA!BC196","v":0},{"$f":"IF(CRSDATA!BT196=\"\",\"\",CRSDATA!BT196)","v":""},{"$f":"CRSDATA!L196","v":0}]
[{"$f":"CRSDATA!A197","v":0},{"$f":"CRSDATA!C197","v":0},{"$f":"CRSDATA!D197","v":0},{"$f":"CRSDATA!F197","v":0},{"$f":"CRSDATA!E197","v":0},{"$f":"IF(CRSDATA!H197=3000,998,CRSDATA!H197)","v":0},{"$f":"CRSDATA!O197","v":0},{"$f":"CRSDATA!U197","v":0},{"$f":"IF(CRSDATA!V197=\"\",\"\",CRSDATA!V197)","v":""},{"$f":"IF(CRSDATA!W197=\"\",\"\",CRSDATA!W197)","v":""},{"$f":"key_row(CRSDATA!X197,CRSDATA!Y197,CRSDATA!AL197,CRSDATA!AK197,CRSDATA!AJ197,CRSDATA!AM197,CRSDATA!P197,CRSDATA!V197)","v":""},{"$f":"CRSDATA!P197","v":0},{"$f":"CRSDATA!J197","v":0},{"$f":"CRSDATA!I197","v":0},null,{"$f":"IF(LEFT(CRSDATA!N197,2)=\"A0\",\"A00\",IF(LEFT(CRSDATA!N197,3)=\"B02\",\"B02\",IF(LEFT(CRSDATA!N197,3)=\"B03\",\"B03\",IF(CRSDATA!N197=\"B04\",\"C01\",IF(CRSDATA!N197=\"H01\",\"H00\",IF(OR(CRSDATA!N197=\"H02\",CRSDATA!N197=\"H03\",CRSDATA!N197=\"H04\",CRSDATA!N197=\"H05\",CRSDATA!N197=\"H06\"),\"I01\",IF(CRSDATA!N197=\"\",\"\",CRSDATA!N197)))))))","v":""},{"$f":"IF(AND(LEN(CRSDATA!M197)=4,LEFT(CRSDATA!M197,3)=\"110\"),1100,IF(AND(LEN(CRSDATA!M197)=4,LEFT(CRSDATA!M197,3)=\"422\"),422,CRSDATA!M197))","v":0},{"$f":"IF(CRSDATA!L197=22,\"FA04\",\"\")","v":""},{"$f":"IF(CRSDATA!K197=8,\"FC02\",\"\")","v":""},{"$f":"_xlfn.IFS(OR(P197=\"A00\",P197=\"E01\",P197=\"F01\",AND(P197=\"\",A197<>0),Q197=510,Q197=520,AF197=60),1,P197=\"G01\",IF(AF197=10,21,22),OR(M197=41203,M197=41204),22,OR(AND(OR(P197=\"B02\",P197=\"B03\"),M197=41310),OR(P197=\"E02\",P197=\"I01\")),21,AND(OR(P197=\"B01\",P197=\"B03\",P197=\"C01\"),M197<>41310),IF(VLOOKUP(F197,recipient_country!AB:AD,3,FALSE)=10024,\"\",1),AND(P197=\"B02\",M197<>41310),IF(VLOOKUP(M197,channel_codes!J:P,7,FALSE)=0,\"\",VLOOKUP(M197,channel_codes!J:P,7,FALSE)),ISNUMBER(MATCH(P197,{\"D01\",\"D02\"},0)),IF(VLOOKUP(M197,channel_codes!J:P,7,FALSE)=1,1,IF(VLOOKUP(F197,recipient_country!AB:AD,3,FALSE)=10024,\"\",1)),OR(P197=\"H01\",AND(OR(ISNUMBER(SEARCH(\"41010\", L197)),ISNUMBER(SEARCH(\"41020\", L197)),ISNUMBER(SEARCH(\"41030\", L197)),ISNUMBER(SEARCH(\"41040\", L197)),ISNUMBER(SEARCH(\"41081\", L197))),F197=998)),22,F197=998,22,TRUE,\"\")","v":""},{"$f":"CRSDATA!AN197","v":0},{"$f":"CRSDATA!AO197","v":0},{"$f":"CRSDATA!AQ197","v":0},{"$f":"CRSDATA!AS197","v":0},{"$f":"CRSDATA!BB197","v":0},null,{"$f":"IF(R197=\"FA04\",0,\"\")","v":""},{"$f":"IF(AND(AND(CRSDATA!C197<>\"\",CRSDATA!BK197<>\"\"),OR(CRSDATA!N197=421,CRSDATA!N197=422,CRSDATA!N197=4221,CRSDATA!N197=4222,CRSDATA!N197=423,CRSDATA!N197=424,CRSDATA!N197=425,CRSDATA!N197=431,CRSDATA!N197=433,CRSDATA!N197=434)),DATEDIF(CRSDATA!C197,CRSDATA!BK197,\"m\"),\"\")","v":""},{"$f":"CRSDATA!BA197","v":0},{"$f":"CRSDATA!BC197","v":0},{"$f":"IF(CRSDATA!BT197=\"\",\"\",CRSDATA!BT197)","v":""},{"$f":"CRSDATA!L197","v":0}]
[{"$f":"CRSDATA!A198","v":0},{"$f":"CRSDATA!C198","v":0},{"$f":"CRSDATA!D198","v":0},{"$f":"CRSDATA!F198","v":0},{"$f":"CRSDATA!E198","v":0},{"$f":"IF(CRSDATA!H198=3000,998,CRSDATA!H198)","v":0},{"$f":"CRSDATA!O198","v":0},{"$f":"CRSDATA!U198","v":0},{"$f":"IF(CRSDATA!V198=\"\",\"\",CRSDATA!V198)","v":""},{"$f":"IF(CRSDATA!W198=\"\",\"\",CRSDATA!W198)","v":""},{"$f":"key_row(CRSDATA!X198,CRSDATA!Y198,CRSDATA!AL198,CRSDATA!AK198,CRSDATA!AJ198,CRSDATA!AM198,CRSDATA!P198,CRSDATA!V198)","v":""},{"$f":"CRSDATA!P198","v":0},{"$f":"CRSDATA!J198","v":0},{"$f":"CRSDATA!I198","v":0},null,{"$f":"IF(LEFT(CRSDATA!N198,2)=\"A0\",\"A00\",IF(LEFT(CRSDATA!N198,3)=\"B02\",\"B02\",IF(LEFT(CRSDATA!N198,3)=\"B03\",\"B03\",IF(CRSDATA!N198=\"B04\",\"C01\",IF(CRSDATA!N198=\"H01\",\"H00\",IF(OR(CRSDATA!N198=\"H02\",CRSDATA!N198=\"H03\",CRSDATA!N198=\"H04\",CRSDATA!N198=\"H05\",CRSDATA!N198=\"H06\"),\"I01\",IF(CRSDATA!N198=\"\",\"\",CRSDATA!N198)))))))","v":""},{"$f":"IF(AND(LEN(CRSDATA!M198)=4,LEFT(CRSDATA!M198,3)=\"110\"),1100,IF(AND(LEN(CRSDATA!M198)=4,LEFT(CRSDATA!M198,3)=\"422\"),422,CRSDATA!M198))","v":0},{"$f":"IF(CRSDATA!L198=22,\"FA04\",\"\")","v":""},{"$f":"IF(CRSDATA!K198=8,\"FC02\",\"\")","v":""},{"$f":"_xlfn.IFS(OR(P198=\"A00\",P198=\"E01\",P198=\"F01\",AND(P198=\"\",A198<>0),Q198=510,Q198=520,AF198=60),1,P198=\"G01\",IF(AF198=10,21,22),OR(M198=41203,M198=41204),22,OR(AND(OR(P198=\"B02\",P198=\"B03\"),M198=41310),OR(P198=\"E02\",P198=\"I01\")),21,AND(OR(P198=\"B01\",P198=\"B03\",P198=\"C01\"),M198<>41310),IF(VLOOKUP(F198,recipient_country!AB:AD,3,FALSE)=10024,\"\",1),AND(P198=\"B02\",M198<>41310),IF(VLOOKUP(M198,channel_codes!J:P,7,FALSE)=0,\"\",VLOOKUP(M198,channel_codes!J:P,7,FALSE)),ISNUMBER(MATCH(P198,{\"D01\",\"D02\"},0)),IF(VLOOKUP(M198,channel_codes!J:P,7,FALSE)=1,1,IF(VLOOKUP(F198,recipient_country!AB:AD,3,FALSE)=10024,\"\",1)),OR(P198=\"H01\",AND(OR(ISNUMBER(SEARCH(\"41010\", L198)),ISNUMBER(SEARCH(\"41020\", L198)),ISNUMBER(SEARCH(\"41030\", L198)),ISNUMBER(SEARCH(\"41040\", L198)),ISNUMBER(SEARCH(\"41081\", L198))),F198=998)),22,F198=998,22,TRUE,\"\")","v":""},{"$f":"CRSDATA!AN198","v":0},{"$f":"CRSDATA!AO198","v":0},{"$f":"CRSDATA!AQ198","v":0},{"$f":"CRSDATA!AS198","v":0},{"$f":"CRSDATA!BB198","v":0},null,"",{"$f":"IF(AND(AND(CRSDATA!C198<>\"\",CRSDATA!BK198<>\"\"),OR(CRSDATA!N198=421,CRSDATA!N198=422,CRSDATA!N198=4221,CRSDATA!N198=4222,CRSDATA!N198=423,CRSDATA!N198=424,CRSDATA!N198=425,CRSDATA!N198=431,CRSDATA!N198=433,CRSDATA!N198=434)),DATEDIF(CRSDATA!C198,CRSDATA!BK198,\"m\"),\"\")","v":""},{"$f":"CRSDATA!BA198","v":0},{"$f":"CRSDATA!BC198","v":0},{"$f":"IF(CRSDATA!BT198=\"\",\"\",CRSDATA!BT198)","v":""},{"$f":"CRSDATA!L198","v":0}]
[{"$f":"CRSDATA!A199","v":0},{"$f":"CRSDATA!C199","v":0},{"$f":"CRSDATA!D199","v":0},{"$f":"CRSDATA!F199","v":0},{"$f":"CRSDATA!E199","v":0},{"$f":"IF(CRSDATA!H199=3000,998,CRSDATA!H199)","v":0},{"$f":"CRSDATA!O199","v":0},{"$f":"CRSDATA!U199","v":0},{"$f":"IF(CRSDATA!V199=\"\",\"\",CRSDATA!V199)","v":""},{"$f":"IF(CRSDATA!W199=\"\",\"\",CRSDATA!W199)","v":""},{"$f":"key_row(CRSDATA!X199,CRSDATA!Y199,CRSDATA!AL199,CRSDATA!AK199,CRSDATA!AJ199,CRSDATA!AM199,CRSDATA!P199,CRSDATA!V199)","v":""},{"$f":"CRSDATA!P199","v":0},{"$f":"CRSDATA!J199","v":0},{"$f":"CRSDATA!I199","v":0},null,{"$f":"IF(LEFT(CRSDATA!N199,2)=\"A0\",\"A00\",IF(LEFT(CRSDATA!N199,3)=\"B02\",\"B02\",IF(LEFT(CRSDATA!N199,3)=\"B03\",\"B03\",IF(CRSDATA!N199=\"B04\",\"C01\",IF(CRSDATA!N199=\"H01\",\"H00\",IF(OR(CRSDATA!N199=\"H02\",CRSDATA!N199=\"H03\",CRSDATA!N199=\"H04\",CRSDATA!N199=\"H05\",CRSDATA!N199=\"H06\"),\"I01\",IF(CRSDATA!N199=\"\",\"\",CRSDATA!N199)))))))","v":""},{"$f":"IF(AND(LEN(CRSDATA!M199)=4,LEFT(CRSDATA!M199,3)=\"110\"),1100,IF(AND(LEN(CRSDATA!M199)=4,LEFT(CRSDATA!M199,3)=\"422\"),422,CRSDATA!M199))","v":0},{"$f":"IF(CRSDATA!L199=22,\"FA04\",\"\")","v":""},{"$f":"IF(CRSDATA!K199=8,\"FC02\",\"\")","v":""},{"$f":"_xlfn.IFS(OR(P199=\"A00\",P199=\"E01\",P199=\"F01\",AND(P199=\"\",A199<>0),Q199=510,Q199=520,AF199=60),1,P199=\"G01\",IF(AF199=10,21,22),OR(M199=41203,M199=41204),22,OR(AND(OR(P199=\"B02\",P199=\"B03\"),M199=41310),OR(P199=\"E02\",P199=\"I01\")),21,AND(OR(P199=\"B01\",P199=\"B03\",P199=\"C01\"),M199<>41310),IF(VLOOKUP(F199,recipient_country!AB:AD,3,FALSE)=10024,\"\",1),AND(P199=\"B02\",M199<>41310),IF(VLOOKUP(M199,channel_codes!J:P,7,FALSE)=0,\"\",VLOOKUP(M199,channel_codes!J:P,7,FALSE)),ISNUMBER(MATCH(P199,{\"D01\",\"D02\"},0)),IF(VLOOKUP(M199,channel_codes!J:P,7,FALSE)=1,1,IF(VLOOKUP(F199,recipient_country!AB:AD,3,FALSE)=10024,\"\",1)),OR(P199=\"H01\",AND(OR(ISNUMBER(SEARCH(\"41010\", L199)),ISNUMBER(SEARCH(\"41020\", L199)),ISNUMBER(SEARCH(\"41030\", L199)),ISNUMBER(SEARCH(\"41040\", L199)),ISNUMBER(SEARCH(\"41081\", L199))),F199=998)),22,F199=998,22,TRUE,\"\")","v":""},{"$f":"CRSDATA!AN199","v":0},{"$f":"CRSDATA!AO199","v":0},{"$f":"CRSDATA!AQ199","v":0},{"$f":"CRSDATA!AS199","v":0},{"$f":"CRSDATA!BB199","v":0},null,"",{"$f":"IF(AND(AND(CRSDATA!C199<>\"\",CRSDATA!BK199<>\"\"),OR(CRSDATA!N199=421,CRSDATA!N199=422,CRSDATA!N199=4221,CRSDATA!N199=4222,CRSDATA!N199=423,CRSDATA!N199=424,CRSDATA!N199=425,CRSDATA!N199=431,CRSDATA!N199=433,CRSDATA!N199=434)),DATEDIF(CRSDATA!C199,CRSDATA!BK199,\"m\"),\"\")","v":""},{"$f":"CRSDATA!BA199","v":0},{"$f":"CRSDATA!BC199","v":0},{"$f":"IF(CRSDATA!BT199=\"\",\"\",CRSDATA!BT199)","v":""},{"$f":"CRSDATA!L199","v":0}]
[{"$f":"CRSDATA!A200","v":0},{"$f":"CRSDATA!C200","v":0},{"$f":"CRSDATA!D200","v":0},{"$f":"CRSDATA!F200","v":0},{"$f":"CRSDATA!E200","v":0},{"$f":"IF(CRSDATA!H200=3000,998,CRSDATA!H200)","v":0},{"$f":"CRSDATA!O200","v":0},{"$f":"CRSDATA!U200","v":0},{"$f":"IF(CRSDATA!V200=\"\",\"\",CRSDATA!V200)","v":""},{"$f":"IF(CRSDATA!W200=\"\",\"\",CRSDATA!W200)","v":""},{"$f":"key_row(CRSDATA!X200,CRSDATA!Y200,CRSDATA!AL200,CRSDATA!AK200,CRSDATA!AJ200,CRSDATA!AM200,CRSDATA!P200,CRSDATA!V200)","v":""},{"$f":"CRSDATA!P200","v":0},{"$f":"CRSDATA!J200","v":0},{"$f":"CRSDATA!I200","v":0},null,{"$f":"IF(LEFT(CRSDATA!N200,2)=\"A0\",\"A00\",IF(LEFT(CRSDATA!N200,3)=\"B02\",\"B02\",IF(LEFT(CRSDATA!N200,3)=\"B03\",\"B03\",IF(CRSDATA!N200=\"B04\",\"C01\",IF(CRSDATA!N200=\"H01\",\"H00\",IF(OR(CRSDATA!N200=\"H02\",CRSDATA!N200=\"H03\",CRSDATA!N200=\"H04\",CRSDATA!N200=\"H05\",CRSDATA!N200=\"H06\"),\"I01\",IF(CRSDATA!N200=\"\",\"\",CRSDATA!N200)))))))","v":""},{"$f":"IF(AND(LEN(CRSDATA!M200)=4,LEFT(CRSDATA!M200,3)=\"110\"),1100,IF(AND(LEN(CRSDATA!M200)=4,LEFT(CRSDATA!M200,3)=\"422\"),422,CRSDATA!M200))","v":0},{"$f":"IF(CRSDATA!L200=22,\"FA04\",\"\")","v":""},{"$f":"IF(CRSDATA!K200=8,\"FC02\",\"\")","v":""},{"$f":"_xlfn.IFS(OR(P200=\"A00\",P200=\"E01\",P200=\"F01\",AND(P200=\"\",A200<>0),Q200=510,Q200=520,AF200=60),1,P200=\"G01\",IF(AF200=10,21,22),OR(M200=41203,M200=41204),22,OR(AND(OR(P200=\"B02\",P200=\"B03\"),M200=41310),OR(P200=\"E02\",P200=\"I01\")),21,AND(OR(P200=\"B01\",P200=\"B03\",P200=\"C01\"),M200<>41310),IF(VLOOKUP(F200,recipient_country!AB:AD,3,FALSE)=10024,\"\",1),AND(P200=\"B02\",M200<>41310),IF(VLOOKUP(M200,channel_codes!J:P,7,FALSE)=0,\"\",VLOOKUP(M200,channel_codes!J:P,7,FALSE)),ISNUMBER(MATCH(P200,{\"D01\",\"D02\"},0)),IF(VLOOKUP(M200,channel_codes!J:P,7,FALSE)=1,1,IF(VLOOKUP(F200,recipient_country!AB:AD,3,FALSE)=10024,\"\",1)),OR(P200=\"H01\",AND(OR(ISNUMBER(SEARCH(\"41010\", L200)),ISNUMBER(SEARCH(\"41020\", L200)),ISNUMBER(SEARCH(\"41030\", L200)),ISNUMBER(SEARCH(\"41040\", L200)),ISNUMBER(SEARCH(\"41081\", L200))),F200=998)),22,F200=998,22,TRUE,\"\")","v":""},{"$f":"CRSDATA!AN200","v":0},{"$f":"CRSDATA!AO200","v":0},{"$f":"CRSDATA!AQ200","v":0},{"$f":"CRSDATA!AS200","v":0},{"$f":"CRSDATA!BB200","v":0},null,"",{"$f":"IF(AND(AND(CRSDATA!C200<>\"\",CRSDATA!BK200<>\"\"),OR(CRSDATA!N200=421,CRSDATA!N200=422,CRSDATA!N200=4221,CRSDATA!N200=4222,CRSDATA!N200=423,CRSDATA!N200=424,CRSDATA!N200=425,CRSDATA!N200=431,CRSDATA!N200=433,CRSDATA!N200=434)),DATEDIF(CRSDATA!C200,CRSDATA!BK200,\"m\"),\"\")","v":""},{"$f":"CRSDATA!BA200","v":0},{"$f":"CRSDATA!BC200","v":0},{"$f":"IF(CRSDATA!BT200=\"\",\"\",CRSDATA!BT200)","v":""},{"$f":"CRSDATA!L200","v":0}]
[{"$f":"CRSDATA!A201","v":0},{"$f":"CRSDATA!C201","v":0},{"$f":"CRSDATA!D201","v":0},{"$f":"CRSDATA!F201","v":0},{"$f":"CRSDATA!E201","v":0},{"$f":"IF(CRSDATA!H201=3000,998,CRSDATA!H201)","v":0},{"$f":"CRSDATA!O201","v":0},{"$f":"CRSDATA!U201","v":0},{"$f":"IF(CRSDATA!V201=\"\",\"\",CRSDATA!V201)","v":""},{"$f":"IF(CRSDATA!W201=\"\",\"\",CRSDATA!W201)","v":""},{"$f":"key_row(CRSDATA!X201,CRSDATA!Y201,CRSDATA!AL201,CRSDATA!AK201,CRSDATA!AJ201,CRSDATA!AM201,CRSDATA!P201,CRSDATA!V201)","v":""},{"$f":"CRSDATA!P201","v":0},{"$f":"CRSDATA!J201","v":0},{"$f":"CRSDATA!I201","v":0},null,{"$f":"IF(LEFT(CRSDATA!N201,2)=\"A0\",\"A00\",IF(LEFT(CRSDATA!N201,3)=\"B02\",\"B02\",IF(LEFT(CRSDATA!N201,3)=\"B03\",\"B03\",IF(CRSDATA!N201=\"B04\",\"C01\",IF(CRSDATA!N201=\"H01\",\"H00\",IF(OR(CRSDATA!N201=\"H02\",CRSDATA!N201=\"H03\",CRSDATA!N201=\"H04\",CRSDATA!N201=\"H05\",CRSDATA!N201=\"H06\"),\"I01\",IF(CRSDATA!N201=\"\",\"\",CRSDATA!N201)))))))","v":""},{"$f":"IF(AND(LEN(CRSDATA!M201)=4,LEFT(CRSDATA!M201,3)=\"110\"),1100,IF(AND(LEN(CRSDATA!M201)=4,LEFT(CRSDATA!M201,3)=\"422\"),422,CRSDATA!M201))","v":0},{"$f":"IF(CRSDATA!L201=22,\"FA04\",\"\")","v":""},{"$f":"IF(CRSDATA!K201=8,\"FC02\",\"\")","v":""},{"$f":"_xlfn.IFS(OR(P201=\"A00\",P201=\"E01\",P201=\"F01\",AND(P201=\"\",A201<>0),Q201=510,Q201=520,AF201=60),1,P201=\"G01\",IF(AF201=10,21,22),OR(M201=41203,M201=41204),22,OR(AND(OR(P201=\"B02\",P201=\"B03\"),M201=41310),OR(P201=\"E02\",P201=\"I01\")),21,AND(OR(P201=\"B01\",P201=\"B03\",P201=\"C01\"),M201<>41310),IF(VLOOKUP(F201,recipient_country!AB:AD,3,FALSE)=10024,\"\",1),AND(P201=\"B02\",M201<>41310),IF(VLOOKUP(M201,channel_codes!J:P,7,FALSE)=0,\"\",VLOOKUP(M201,channel_codes!J:P,7,FALSE)),ISNUMBER(MATCH(P201,{\"D01\",\"D02\"},0)),IF(VLOOKUP(M201,channel_codes!J:P,7,FALSE)=1,1,IF(VLOOKUP(F201,recipient_country!AB:AD,3,FALSE)=10024,\"\",1)),OR(P201=\"H01\",AND(OR(ISNUMBER(SEARCH(\"41010\", L201)),ISNUMBER(SEARCH(\"41020\", L201)),ISNUMBER(SEARCH(\"41030\", L201)),ISNUMBER(SEARCH(\"41040\", L201)),ISNUMBER(SEARCH(\"41081\", L201))),F201=998)),22,F201=998,22,TRUE,\"\")","v":""},{"$f":"CRSDATA!AN201","v":0},{"$f":"CRSDATA!AO201","v":0},{"$f":"CRSDATA!AQ201","v":0},{"$f":"CRSDATA!AS201","v":0},{"$f":"CRSDATA!BB201","v":0},null,"",{"$f":"IF(AND(AND(CRSDATA!C201<>\"\",CRSDATA!BK201<>\"\"),OR(CRSDATA!N201=421,CRSDATA!N201=422,CRSDATA!N201=4221,CRSDATA!N201=4222,CRSDATA!N201=423,CRSDATA!N201=424,CRSDATA!N201=425,CRSDATA!N201=431,CRSDATA!N201=433,CRSDATA!N201=434)),DATEDIF(CRSDATA!C201,CRSDATA!BK201,\"m\"),\"\")","v":""},{"$f":"CRSDATA!BA201","v":0},{"$f":"CRSDATA!BC201","v":0},{"$f":"IF(CRSDATA!BT201=\"\",\"\",CRSDATA!BT201)","v":""},{"$f":"CRSDATA!L201","v":0}]
[{"$f":"CRSDATA!A202","v":0},{"$f":"CRSDATA!C202","v":0},{"$f":"CRSDATA!D202","v":0},{"$f":"CRSDATA!F202","v":0},{"$f":"CRSDATA!E202","v":0},{"$f":"IF(CRSDATA!H202=3000,998,CRSDATA!H202)","v":0},{"$f":"CRSDATA!O202","v":0},{"$f":"CRSDATA!U202","v":0},{"$f":"IF(CRSDATA!V202=\"\",\"\",CRSDATA!V202)","v":""},{"$f":"IF(CRSDATA!W202=\"\",\"\",CRSDATA!W202)","v":""},{"$f":"key_row(CRSDATA!X202,CRSDATA!Y202,CRSDATA!AL202,CRSDATA!AK202,CRSDATA!AJ202,CRSDATA!AM202,CRSDATA!P202,CRSDATA!V202)","v":""},{"$f":"CRSDATA!P202","v":0},{"$f":"CRSDATA!J202","v":0},{"$f":"CRSDATA!I202","v":0},null,{"$f":"IF(LEFT(CRSDATA!N202,2)=\"A0\",\"A00\",IF(LEFT(CRSDATA!N202,3)=\"B02\",\"B02\",IF(LEFT(CRSDATA!N202,3)=\"B03\",\"B03\",IF(CRSDATA!N202=\"B04\",\"C01\",IF(CRSDATA!N202=\"H01\",\"H00\",IF(OR(CRSDATA!N202=\"H02\",CRSDATA!N202=\"H03\",CRSDATA!N202=\"H04\",CRSDATA!N202=\"H05\",CRSDATA!N202=\"H06\"),\"I01\",IF(CRSDATA!N202=\"\",\"\",CRSDATA!N202)))))))","v":""},{"$f":"IF(AND(LEN(CRSDATA!M202)=4,LEFT(CRSDATA!M202,3)=\"110\"),1100,IF(AND(LEN(CRSDATA!M202)=4,LEFT(CRSDATA!M202,3)=\"422\"),422,CRSDATA!M202))","v":0},{"$f":"IF(CRSDATA!L202=22,\"FA04\",\"\")","v":""},{"$f":"IF(CRSDATA!K202=8,\"FC02\",\"\")","v":""},{"$f":"_xlfn.IFS(OR(P202=\"A00\",P202=\"E01\",P202=\"F01\",AND(P202=\"\",A202<>0),Q202=510,Q202=520,AF202=60),1,P202=\"G01\",IF(AF202=10,21,22),OR(M202=41203,M202=41204),22,OR(AND(OR(P202=\"B02\",P202=\"B03\"),M202=41310),OR(P202=\"E02\",P202=\"I01\")),21,AND(OR(P202=\"B01\",P202=\"B03\",P202=\"C01\"),M202<>41310),IF(VLOOKUP(F202,recipient_country!AB:AD,3,FALSE)=10024,\"\",1),AND(P202=\"B02\",M202<>41310),IF(VLOOKUP(M202,channel_codes!J:P,7,FALSE)=0,\"\",VLOOKUP(M202,channel_codes!J:P,7,FALSE)),ISNUMBER(MATCH(P202,{\"D01\",\"D02\"},0)),IF(VLOOKUP(M202,channel_codes!J:P,7,FALSE)=1,1,IF(VLOOKUP(F202,recipient_country!AB:AD,3,FALSE)=10024,\"\",1)),OR(P202=\"H01\",AND(OR(ISNUMBER(SEARCH(\"41010\", L202)),ISNUMBER(SEARCH(\"41020\", L202)),ISNUMBER(SEARCH(\"41030\", L202)),ISNUMBER(SEARCH(\"41040\", L202)),ISNUMBER(SEARCH(\"41081\", L202))),F202=998)),22,F202=998,22,TRUE,\"\")","v":""},{"$f":"CRSDATA!AN202","v":0},{"$f":"CRSDATA!AO202","v":0},{"$f":"CRSDATA!AQ202","v":0},{"$f":"CRSDATA!AS202","v":0},{"$f":"CRSDATA!BB202","v":0},null,"",{"$f":"IF(AND(AND(CRSDATA!C202<>\"\",CRSDATA!BK202<>\"\"),OR(CRSDATA!N202=421,CRSDATA!N202=422,CRSDATA!N202=4221,CRSDATA!N202=4222,CRSDATA!N202=423,CRSDATA!N202=424,CRSDATA!N202=425,CRSDATA!N202=431,CRSDATA!N202=433,CRSDATA!N202=434)),DATEDIF(CRSDATA!C202,CRSDATA!BK202,\"m\"),\"\")","v":""},{"$f":"CRSDATA!BA202","v":0},{"$f":"CRSDATA!BC202","v":0},{"$f":"IF(CRSDATA!BT202=\"\",\"\",CRSDATA!BT202)","v":""},{"$f":"CRSDATA!L202","v":0}]
[{"$f":"CRSDATA!A203","v":0},{"$f":"CRSDATA!C203","v":0},{"$f":"CRSDATA!D203","v":0},{"$f":"CRSDATA!F203","v":0},{"$f":"CRSDATA!E203","v":0},{"$f":"IF(CRSDATA!H203=3000,998,CRSDATA!H203)","v":0},{"$f":"CRSDATA!O203","v":0},{"$f":"CRSDATA!U203","v":0},{"$f":"IF(CRSDATA!V203=\"\",\"\",CRSDATA!V203)","v":""},{"$f":"IF(CRSDATA!W203=\"\",\"\",CRSDATA!W203)","v":""},{"$f":"key_row(CRSDATA!X203,CRSDATA!Y203,CRSDATA!AL203,CRSDATA!AK203,CRSDATA!AJ203,CRSDATA!AM203,CRSDATA!P203,CRSDATA!V203)","v":""},{"$f":"CRSDATA!P203","v":0},{"$f":"CRSDATA!J203","v":0},{"$f":"CRSDATA!I203","v":0},null,{"$f":"IF(LEFT(CRSDATA!N203,2)=\"A0\",\"A00\",IF(LEFT(CRSDATA!N203,3)=\"B02\",\"B02\",IF(LEFT(CRSDATA!N203,3)=\"B03\",\"B03\",IF(CRSDATA!N203=\"B04\",\"C01\",IF(CRSDATA!N203=\"H01\",\"H00\",IF(OR(CRSDATA!N203=\"H02\",CRSDATA!N203=\"H03\",CRSDATA!N203=\"H04\",CRSDATA!N203=\"H05\",CRSDATA!N203=\"H06\"),\"I01\",IF(CRSDATA!N203=\"\",\"\",CRSDATA!N203)))))))","v":""},{"$f":"IF(AND(LEN(CRSDATA!M203)=4,LEFT(CRSDATA!M203,3)=\"110\"),1100,IF(AND(LEN(CRSDATA!M203)=4,LEFT(CRSDATA!M203,3)=\"422\"),422,CRSDATA!M203))","v":0},{"$f":"IF(CRSDATA!L203=22,\"FA04\",\"\")","v":""},{"$f":"IF(CRSDATA!K203=8,\"FC02\",\"\")","v":""},{"$f":"_xlfn.IFS(OR(P203=\"A00\",P203=\"E01\",P203=\"F01\",AND(P203=\"\",A203<>0),Q203=510,Q203=520,AF203=60),1,P203=\"G01\",IF(AF203=10,21,22),OR(M203=41203,M203=41204),22,OR(AND(OR(P203=\"B02\",P203=\"B03\"),M203=41310),OR(P203=\"E02\",P203=\"I01\")),21,AND(OR(P203=\"B01\",P203=\"B03\",P203=\"C01\"),M203<>41310),IF(VLOOKUP(F203,recipient_country!AB:AD,3,FALSE)=10024,\"\",1),AND(P203=\"B02\",M203<>41310),IF(VLOOKUP(M203,channel_codes!J:P,7,FALSE)=0,\"\",VLOOKUP(M203,channel_codes!J:P,7,FALSE)),ISNUMBER(MATCH(P203,{\"D01\",\"D02\"},0)),IF(VLOOKUP(M203,channel_codes!J:P,7,FALSE)=1,1,IF(VLOOKUP(F203,recipient_country!AB:AD,3,FALSE)=10024,\"\",1)),OR(P203=\"H01\",AND(OR(ISNUMBER(SEARCH(\"41010\", L203)),ISNUMBER(SEARCH(\"41020\", L203)),ISNUMBER(SEARCH(\"41030\", L203)),ISNUMBER(SEARCH(\"41040\", L203)),ISNUMBER(SEARCH(\"41081\", L203))),F203=998)),22,F203=998,22,TRUE,\"\")","v":""},{"$f":"CRSDATA!AN203","v":0},{"$f":"CRSDATA!AO203","v":0},{"$f":"CRSDATA!AQ203","v":0},{"$f":"CRSDATA!AS203","v":0},{"$f":"CRSDATA!BB203","v":0},null,"",{"$f":"IF(AND(AND(CRSDATA!C203<>\"\",CRSDATA!BK203<>\"\"),OR(CRSDATA!N203=421,CRSDATA!N203=422,CRSDATA!N203=4221,CRSDATA!N203=4222,CRSDATA!N203=423,CRSDATA!N203=424,CRSDATA!N203=425,CRSDATA!N203=431,CRSDATA!N203=433,CRSDATA!N203=434)),DATEDIF(CRSDATA!C203,CRSDATA!BK203,\"m\"),\"\")","v":""},{"$f":"CRSDATA!BA203","v":0},{"$f":"CRSDATA!BC203","v":0},{"$f":"IF(CRSDATA!BT203=\"\",\"\",CRSDATA!BT203)","v":""},{"$f":"CRSDATA!L203","v":0}]
[{"$f":"CRSDATA!A204","v":0},{"$f":"CRSDATA!C204","v":0},{"$f":"CRSDATA!D204","v":0},{"$f":"CRSDATA!F204","v":0},{"$f":"CRSDATA!E204","v":0},{"$f":"IF(CRSDATA!H204=3000,998,CRSDATA!H204)","v":0},{"$f":"CRSDATA!O204","v":0},{"$f":"CRSDATA!U204","v":0},{"$f":"IF(CRSDATA!V204=\"\",\"\",CRSDATA!V204)","v":""},{"$f":"IF(CRSDATA!W204=\"\",\"\",CRSDATA!W204)","v":""},{"$f":"key_row(CRSDATA!X204,CRSDATA!Y204,CRSDATA!AL204,CRSDATA!AK204,CRSDATA!AJ204,CRSDATA!AM204,CRSDATA!P204,CRSDATA!V204)","v":""},{"$f":"CRSDATA!P204","v":0},{"$f":"CRSDATA!J204","v":0},{"$f":"CRSDATA!I204","v":0},null,{"$f":"IF(LEFT(CRSDATA!N204,2)=\"A0\",\"A00\",IF(LEFT(CRSDATA!N204,3)=\"B02\",\"B02\",IF(LEFT(CRSDATA!N204,3)=\"B03\",\"B03\",IF(CRSDATA!N204=\"B04\",\"C01\",IF(CRSDATA!N204=\"H01\",\"H00\",IF(OR(CRSDATA!N204=\"H02\",CRSDATA!N204=\"H03\",CRSDATA!N204=\"H04\",CRSDATA!N204=\"H05\",CRSDATA!N204=\"H06\"),\"I01\",IF(CRSDATA!N204=\"\",\"\",CRSDATA!N204)))))))","v":""},{"$f":"IF(AND(LEN(CRSDATA!M204)=4,LEFT(CRSDATA!M204,3)=\"110\"),1100,IF(AND(LEN(CRSDATA!M204)=4,LEFT(CRSDATA!M204,3)=\"422\"),422,CRSDATA!M204))","v":0},{"$f":"IF(CRSDATA!L204=22,\"FA04\",\"\")","v":""},{"$f":"IF(CRSDATA!K204=8,\"FC02\",\"\")","v":""},{"$f":"_xlfn.IFS(OR(P204=\"A00\",P204=\"E01\",P204=\"F01\",AND(P204=\"\",A204<>0),Q204=510,Q204=520,AF204=60),1,P204=\"G01\",IF(AF204=10,21,22),OR(M204=41203,M204=41204),22,OR(AND(OR(P204=\"B02\",P204=\"B03\"),M204=41310),OR(P204=\"E02\",P204=\"I01\")),21,AND(OR(P204=\"B01\",P204=\"B03\",P204=\"C01\"),M204<>41310),IF(VLOOKUP(F204,recipient_country!AB:AD,3,FALSE)=10024,\"\",1),AND(P204=\"B02\",M204<>41310),IF(VLOOKUP(M204,channel_codes!J:P,7,FALSE)=0,\"\",VLOOKUP(M204,channel_codes!J:P,7,FALSE)),ISNUMBER(MATCH(P204,{\"D01\",\"D02\"},0)),IF(VLOOKUP(M204,channel_codes!J:P,7,FALSE)=1,1,IF(VLOOKUP(F204,recipient_country!AB:AD,3,FALSE)=10024,\"\",1)),OR(P204=\"H01\",AND(OR(ISNUMBER(SEARCH(\"41010\", L204)),ISNUMBER(SEARCH(\"41020\", L204)),ISNUMBER(SEARCH(\"41030\", L204)),ISNUMBER(SEARCH(\"41040\", L204)),ISNUMBER(SEARCH(\"41081\", L204))),F204=998)),22,F204=998,22,TRUE,\"\")","v":""},{"$f":"CRSDATA!AN204","v":0},{"$f":"CRSDATA!AO204","v":0},{"$f":"CRSDATA!AQ204","v":0},{"$f":"CRSDATA!AS204","v":0},{"$f":"CRSDATA!BB204","v":0},null,"",{"$f":"IF(AND(AND(CRSDATA!C204<>\"\",CRSDATA!BK204<>\"\"),OR(CRSDATA!N204=421,CRSDATA!N204=422,CRSDATA!N204=4221,CRSDATA!N204=4222,CRSDATA!N204=423,CRSDATA!N204=424,CRSDATA!N204=425,CRSDATA!N204=431,CRSDATA!N204=433,CRSDATA!N204=434)),DATEDIF(CRSDATA!C204,CRSDATA!BK204,\"m\"),\"\")","v":""},{"$f":"CRSDATA!BA204","v":0},{"$f":"CRSDATA!BC204","v":0},{"$f":"IF(CRSDATA!BT204=\"\",\"\",CRSDATA!BT204)","v":""},{"$f":"CRSDATA!L204","v":0}]
[{"$f":"CRSDATA!A205","v":0},{"$f":"CRSDATA!C205","v":0},{"$f":"CRSDATA!D205","v":0},{"$f":"CRSDATA!F205","v":0},{"$f":"CRSDATA!E205","v":0},{"$f":"IF(CRSDATA!H205=3000,998,CRSDATA!H205)","v":0},{"$f":"CRSDATA!O205","v":0},{"$f":"CRSDATA!U205","v":0},{"$f":"IF(CRSDATA!V205=\"\",\"\",CRSDATA!V205)","v":""},{"$f":"IF(CRSDATA!W205=\"\",\"\",CRSDATA!W205)","v":""},{"$f":"key_row(CRSDATA!X205,CRSDATA!Y205,CRSDATA!AL205,CRSDATA!AK205,CRSDATA!AJ205,CRSDATA!AM205,CRSDATA!P205,CRSDATA!V205)","v":""},{"$f":"CRSDATA!P205","v":0},{"$f":"CRSDATA!J205","v":0},{"$f":"CRSDATA!I205","v":0},null,{"$f":"IF(LEFT(CRSDATA!N205,2)=\"A0\",\"A00\",IF(LEFT(CRSDATA!N205,3)=\"B02\",\"B02\",IF(LEFT(CRSDATA!N205,3)=\"B03\",\"B03\",IF(CRSDATA!N205=\"B04\",\"C01\",IF(CRSDATA!N205=\"H01\",\"H00\",IF(OR(CRSDATA!N205=\"H02\",CRSDATA!N205=\"H03\",CRSDATA!N205=\"H04\",CRSDATA!N205=\"H05\",CRSDATA!N205=\"H06\"),\"I01\",IF(CRSDATA!N205=\"\",\"\",CRSDATA!N205)))))))","v":""},{"$f":"IF(AND(LEN(CRSDATA!M205)=4,LEFT(CRSDATA!M205,3)=\"110\"),1100,IF(AND(LEN(CRSDATA!M205)=4,LEFT(CRSDATA!M205,3)=\"422\"),422,CRSDATA!M205))","v":0},{"$f":"IF(CRSDATA!L205=22,\"FA04\",\"\")","v":""},{"$f":"IF(CRSDATA!K205=8,\"FC02\",\"\")","v":""},{"$f":"_xlfn.IFS(OR(P205=\"A00\",P205=\"E01\",P205=\"F01\",AND(P205=\"\",A205<>0),Q205=510,Q205=520,AF205=60),1,P205=\"G01\",IF(AF205=10,21,22),OR(M205=41203,M205=41204),22,OR(AND(OR(P205=\"B02\",P205=\"B03\"),M205=41310),OR(P205=\"E02\",P205=\"I01\")),21,AND(OR(P205=\"B01\",P205=\"B03\",P205=\"C01\"),M205<>41310),IF(VLOOKUP(F205,recipient_country!AB:AD,3,FALSE)=10024,\"\",1),AND(P205=\"B02\",M205<>41310),IF(VLOOKUP(M205,channel_codes!J:P,7,FALSE)=0,\"\",VLOOKUP(M205,channel_codes!J:P,7,FALSE)),ISNUMBER(MATCH(P205,{\"D01\",\"D02\"},0)),IF(VLOOKUP(M205,channel_codes!J:P,7,FALSE)=1,1,IF(VLOOKUP(F205,recipient_country!AB:AD,3,FALSE)=10024,\"\",1)),OR(P205=\"H01\",AND(OR(ISNUMBER(SEARCH(\"41010\", L205)),ISNUMBER(SEARCH(\"41020\", L205)),ISNUMBER(SEARCH(\"41030\", L205)),ISNUMBER(SEARCH(\"41040\", L205)),ISNUMBER(SEARCH(\"41081\", L205))),F205=998)),22,F205=998,22,TRUE,\"\")","v":""},{"$f":"CRSDATA!AN205","v":0},{"$f":"CRSDATA!AO205","v":0},{"$f":"CRSDATA!AQ205","v":0},{"$f":"CRSDATA!AS205","v":0},{"$f":"CRSDATA!BB205","v":0},null,"",{"$f":"IF(AND(AND(CRSDATA!C205<>\"\",CRSDATA!BK205<>\"\"),OR(CRSDATA!N205=421,CRSDATA!N205=422,CRSDATA!N205=4221,CRSDATA!N205=4222,CRSDATA!N205=423,CRSDATA!N205=424,CRSDATA!N205=425,CRSDATA!N205=431,CRSDATA!N205=433,CRSDATA!N205=434)),DATEDIF(CRSDATA!C205,CRSDATA!BK205,\"m\"),\"\")","v":""},{"$f":"CRSDATA!BA205","v":0},{"$f":"CRSDATA!BC205","v":0},{"$f":"IF(CRSDATA!BT205=\"\",\"\",CRSDATA!BT205)","v":""},{"$f":"CRSDATA!L205","v":0}]
[{"$f":"CRSDATA!A206","v":0},{"$f":"CRSDATA!C206","v":0},{"$f":"CRSDATA!D206","v":0},{"$f":"CRSDATA!F206","v":0},{"$f":"CRSDATA!E206","v":0},{"$f":"IF(CRSDATA!H206=3000,998,CRSDATA!H206)","v":0},{"$f":"CRSDATA!O206","v":0},{"$f":"CRSDATA!U206","v":0},{"$f":"IF(CRSDATA!V206=\"\",\"\",CRSDATA!V206)","v":""},{"$f":"IF(CRSDATA!W206=\"\",\"\",CRSDATA!W206)","v":""},{"$f":"key_row(CRSDATA!X206,CRSDATA!Y206,CRSDATA!AL206,CRSDATA!AK206,CRSDATA!AJ206,CRSDATA!AM206,CRSDATA!P206,CRSDATA!V206)","v":""},{"$f":"CRSDATA!P206","v":0},{"$f":"CRSDATA!J206","v":0},{"$f":"CRSDATA!I206","v":0},null,{"$f":"IF(LEFT(CRSDATA!N206,2)=\"A0\",\"A00\",IF(LEFT(CRSDATA!N206,3)=\"B02\",\"B02\",IF(LEFT(CRSDATA!N206,3)=\"B03\",\"B03\",IF(CRSDATA!N206=\"B04\",\"C01\",IF(CRSDATA!N206=\"H01\",\"H00\",IF(OR(CRSDATA!N206=\"H02\",CRSDATA!N206=\"H03\",CRSDATA!N206=\"H04\",CRSDATA!N206=\"H05\",CRSDATA!N206=\"H06\"),\"I01\",IF(CRSDATA!N206=\"\",\"\",CRSDATA!N206)))))))","v":""},{"$f":"IF(AND(LEN(CRSDATA!M206)=4,LEFT(CRSDATA!M206,3)=\"110\"),1100,IF(AND(LEN(CRSDATA!M206)=4,LEFT(CRSDATA!M206,3)=\"422\"),422,CRSDATA!M206))","v":0},{"$f":"IF(CRSDATA!L206=22,\"FA04\",\"\")","v":""},{"$f":"IF(CRSDATA!K206=8,\"FC02\",\"\")","v":""},{"$f":"_xlfn.IFS(OR(P206=\"A00\",P206=\"E01\",P206=\"F01\",AND(P206=\"\",A206<>0),Q206=510,Q206=520,AF206=60),1,P206=\"G01\",IF(AF206=10,21,22),OR(M206=41203,M206=41204),22,OR(AND(OR(P206=\"B02\",P206=\"B03\"),M206=41310),OR(P206=\"E02\",P206=\"I01\")),21,AND(OR(P206=\"B01\",P206=\"B03\",P206=\"C01\"),M206<>41310),IF(VLOOKUP(F206,recipient_country!AB:AD,3,FALSE)=10024,\"\",1),AND(P206=\"B02\",M206<>41310),IF(VLOOKUP(M206,channel_codes!J:P,7,FALSE)=0,\"\",VLOOKUP(M206,channel_codes!J:P,7,FALSE)),ISNUMBER(MATCH(P206,{\"D01\",\"D02\"},0)),IF(VLOOKUP(M206,channel_codes!J:P,7,FALSE)=1,1,IF(VLOOKUP(F206,recipient_country!AB:AD,3,FALSE)=10024,\"\",1)),OR(P206=\"H01\",AND(OR(ISNUMBER(SEARCH(\"41010\", L206)),ISNUMBER(SEARCH(\"41020\", L206)),ISNUMBER(SEARCH(\"41030\", L206)),ISNUMBER(SEARCH(\"41040\", L206)),ISNUMBER(SEARCH(\"41081\", L206))),F206=998)),22,F206=998,22,TRUE,\"\")","v":""},{"$f":"CRSDATA!AN206","v":0},{"$f":"CRSDATA!AO206","v":0},{"$f":"CRSDATA!AQ206","v":0},{"$f":"CRSDATA!AS206","v":0},{"$f":"CRSDATA!BB206","v":0},null,"",{"$f":"IF(AND(AND(CRSDATA!C206<>\"\",CRSDATA!BK206<>\"\"),OR(CRSDATA!N206=421,CRSDATA!N206=422,CRSDATA!N206=4221,CRSDATA!N206=4222,CRSDATA!N206=423,CRSDATA!N206=424,CRSDATA!N206=425,CRSDATA!N206=431,CRSDATA!N206=433,CRSDATA!N206=434)),DATEDIF(CRSDATA!C206,CRSDATA!BK206,\"m\"),\"\")","v":""},{"$f":"CRSDATA!BA206","v":0},{"$f":"CRSDATA!BC206","v":0},{"$f":"IF(CRSDATA!BT206=\"\",\"\",CRSDATA!BT206)","v":""},{"$f":"CRSDATA!L206","v":0}]
[{"$f":"CRSDATA!A207","v":0},{"$f":"CRSDATA!C207","v":0},{"$f":"CRSDATA!D207","v":0},{"$f":"CRSDATA!F207","v":0},{"$f":"CRSDATA!E207","v":0},{"$f":"IF(CRSDATA!H207=3000,998,CRSDATA!H207)","v":0},{"$f":"CRSDATA!O207","v":0},{"$f":"CRSDATA!U207","v":0},{"$f":"IF(CRSDATA!V207=\"\",\"\",CRSDATA!V207)","v":""},{"$f":"IF(CRSDATA!W207=\"\",\"\",CRSDATA!W207)","v":""},{"$f":"key_row(CRSDATA!X207,CRSDATA!Y207,CRSDATA!AL207,CRSDATA!AK207,CRSDATA!AJ207,CRSDATA!AM207,CRSDATA!P207,CRSDATA!V207)","v":""},{"$f":"CRSDATA!P207","v":0},{"$f":"CRSDATA!J207","v":0},{"$f":"CRSDATA!I207","v":0},null,{"$f":"IF(LEFT(CRSDATA!N207,2)=\"A0\",\"A00\",IF(LEFT(CRSDATA!N207,3)=\"B02\",\"B02\",IF(LEFT(CRSDATA!N207,3)=\"B03\",\"B03\",IF(CRSDATA!N207=\"B04\",\"C01\",IF(CRSDATA!N207=\"H01\",\"H00\",IF(OR(CRSDATA!N207=\"H02\",CRSDATA!N207=\"H03\",CRSDATA!N207=\"H04\",CRSDATA!N207=\"H05\",CRSDATA!N207=\"H06\"),\"I01\",IF(CRSDATA!N207=\"\",\"\",CRSDATA!N207)))))))","v":""},{"$f":"IF(AND(LEN(CRSDATA!M207)=4,LEFT(CRSDATA!M207,3)=\"110\"),1100,IF(AND(LEN(CRSDATA!M207)=4,LEFT(CRSDATA!M207,3)=\"422\"),422,CRSDATA!M207))","v":0},{"$f":"IF(CRSDATA!L207=22,\"FA04\",\"\")","v":""},{"$f":"IF(CRSDATA!K207=8,\"FC02\",\"\")","v":""},{"$f":"_xlfn.IFS(OR(P207=\"A00\",P207=\"E01\",P207=\"F01\",AND(P207=\"\",A207<>0),Q207=510,Q207=520,AF207=60),1,P207=\"G01\",IF(AF207=10,21,22),OR(M207=41203,M207=41204),22,OR(AND(OR(P207=\"B02\",P207=\"B03\"),M207=41310),OR(P207=\"E02\",P207=\"I01\")),21,AND(OR(P207=\"B01\",P207=\"B03\",P207=\"C01\"),M207<>41310),IF(VLOOKUP(F207,recipient_country!AB:AD,3,FALSE)=10024,\"\",1),AND(P207=\"B02\",M207<>41310),IF(VLOOKUP(M207,channel_codes!J:P,7,FALSE)=0,\"\",VLOOKUP(M207,channel_codes!J:P,7,FALSE)),ISNUMBER(MATCH(P207,{\"D01\",\"D02\"},0)),IF(VLOOKUP(M207,channel_codes!J:P,7,FALSE)=1,1,IF(VLOOKUP(F207,recipient_country!AB:AD,3,FALSE)=10024,\"\",1)),OR(P207=\"H01\",AND(OR(ISNUMBER(SEARCH(\"41010\", L207)),ISNUMBER(SEARCH(\"41020\", L207)),ISNUMBER(SEARCH(\"41030\", L207)),ISNUMBER(SEARCH(\"41040\", L207)),ISNUMBER(SEARCH(\"41081\", L207))),F207=998)),22,F207=998,22,TRUE,\"\")","v":""},{"$f":"CRSDATA!AN207","v":0},{"$f":"CRSDATA!AO207","v":0},{"$f":"CRSDATA!AQ207","v":0},{"$f":"CRSDATA!AS207","v":0},{"$f":"CRSDATA!BB207","v":0},null,"",{"$f":"IF(AND(AND(CRSDATA!C207<>\"\",CRSDATA!BK207<>\"\"),OR(CRSDATA!N207=421,CRSDATA!N207=422,CRSDATA!N207=4221,CRSDATA!N207=4222,CRSDATA!N207=423,CRSDATA!N207=424,CRSDATA!N207=425,CRSDATA!N207=431,CRSDATA!N207=433,CRSDATA!N207=434)),DATEDIF(CRSDATA!C207,CRSDATA!BK207,\"m\"),\"\")","v":""},{"$f":"CRSDATA!BA207","v":0},{"$f":"CRSDATA!BC207","v":0},{"$f":"IF(CRSDATA!BT207=\"\",\"\",CRSDATA!BT207)","v":""},{"$f":"CRSDATA!L207","v":0}]
[{"$f":"CRSDATA!A208","v":0},{"$f":"CRSDATA!C208","v":0},{"$f":"CRSDATA!D208","v":0},{"$f":"CRSDATA!F208","v":0},{"$f":"CRSDATA!E208","v":0},{"$f":"IF(CRSDATA!H208=3000,998,CRSDATA!H208)","v":0},{"$f":"CRSDATA!O208","v":0},{"$f":"CRSDATA!U208","v":0},{"$f":"IF(CRSDATA!V208=\"\",\"\",CRSDATA!V208)","v":""},{"$f":"IF(CRSDATA!W208=\"\",\"\",CRSDATA!W208)","v":""},{"$f":"key_row(CRSDATA!X208,CRSDATA!Y208,CRSDATA!AL208,CRSDATA!AK208,CRSDATA!AJ208,CRSDATA!AM208,CRSDATA!P208,CRSDATA!V208)","v":""},{"$f":"CRSDATA!P208","v":0},{"$f":"CRSDATA!J208","v":0},{"$f":"CRSDATA!I208","v":0},null,{"$f":"IF(LEFT(CRSDATA!N208,2)=\"A0\",\"A00\",IF(LEFT(CRSDATA!N208,3)=\"B02\",\"B02\",IF(LEFT(CRSDATA!N208,3)=\"B03\",\"B03\",IF(CRSDATA!N208=\"B04\",\"C01\",IF(CRSDATA!N208=\"H01\",\"H00\",IF(OR(CRSDATA!N208=\"H02\",CRSDATA!N208=\"H03\",CRSDATA!N208=\"H04\",CRSDATA!N208=\"H05\",CRSDATA!N208=\"H06\"),\"I01\",IF(CRSDATA!N208=\"\",\"\",CRSDATA!N208)))))))","v":""},{"$f":"IF(AND(LEN(CRSDATA!M208)=4,LEFT(CRSDATA!M208,3)=\"110\"),1100,IF(AND(LEN(CRSDATA!M208)=4,LEFT(CRSDATA!M208,3)=\"422\"),422,CRSDATA!M208))","v":0},{"$f":"IF(CRSDATA!L208=22,\"FA04\",\"\")","v":""},{"$f":"IF(CRSDATA!K208=8,\"FC02\",\"\")","v":""},{"$f":"_xlfn.IFS(OR(P208=\"A00\",P208=\"E01\",P208=\"F01\",AND(P208=\"\",A208<>0),Q208=510,Q208=520,AF208=60),1,P208=\"G01\",IF(AF208=10,21,22),OR(M208=41203,M208=41204),22,OR(AND(OR(P208=\"B02\",P208=\"B03\"),M208=41310),OR(P208=\"E02\",P208=\"I01\")),21,AND(OR(P208=\"B01\",P208=\"B03\",P208=\"C01\"),M208<>41310),IF(VLOOKUP(F208,recipient_country!AB:AD,3,FALSE)=10024,\"\",1),AND(P208=\"B02\",M208<>41310),IF(VLOOKUP(M208,channel_codes!J:P,7,FALSE)=0,\"\",VLOOKUP(M208,channel_codes!J:P,7,FALSE)),ISNUMBER(MATCH(P208,{\"D01\",\"D02\"},0)),IF(VLOOKUP(M208,channel_codes!J:P,7,FALSE)=1,1,IF(VLOOKUP(F208,recipient_country!AB:AD,3,FALSE)=10024,\"\",1)),OR(P208=\"H01\",AND(OR(ISNUMBER(SEARCH(\"41010\", L208)),ISNUMBER(SEARCH(\"41020\", L208)),ISNUMBER(SEARCH(\"41030\", L208)),ISNUMBER(SEARCH(\"41040\", L208)),ISNUMBER(SEARCH(\"41081\", L208))),F208=998)),22,F208=998,22,TRUE,\"\")","v":""},{"$f":"CRSDATA!AN208","v":0},{"$f":"CRSDATA!AO208","v":0},{"$f":"CRSDATA!AQ208","v":0},{"$f":"CRSDATA!AS208","v":0},{"$f":"CRSDATA!BB208","v":0},null,"",{"$f":"IF(AND(AND(CRSDATA!C208<>\"\",CRSDATA!BK208<>\"\"),OR(CRSDATA!N208=421,CRSDATA!N208=422,CRSDATA!N208=4221,CRSDATA!N208=4222,CRSDATA!N208=423,CRSDATA!N208=424,CRSDATA!N208=425,CRSDATA!N208=431,CRSDATA!N208=433,CRSDATA!N208=434)),DATEDIF(CRSDATA!C208,CRSDATA!BK208,\"m\"),\"\")","v":""},{"$f":"CRSDATA!BA208","v":0},{"$f":"CRSDATA!BC208","v":0},{"$f":"IF(CRSDATA!BT208=\"\",\"\",CRSDATA!BT208)","v":""},{"$f":"CRSDATA!L208","v":0}]
[{"$f":"CRSDATA!A209","v":0},{"$f":"CRSDATA!C209","v":0},{"$f":"CRSDATA!D209","v":0},{"$f":"CRSDATA!F209","v":0},{"$f":"CRSDATA!E209","v":0},{"$f":"IF(CRSDATA!H209=3000,998,CRSDATA!H209)","v":0},{"$f":"CRSDATA!O209","v":0},{"$f":"CRSDATA!U209","v":0},{"$f":"IF(CRSDATA!V209=\"\",\"\",CRSDATA!V209)","v":""},{"$f":"IF(CRSDATA!W209=\"\",\"\",CRSDATA!W209)","v":""},{"$f":"key_row(CRSDATA!X209,CRSDATA!Y209,CRSDATA!AL209,CRSDATA!AK209,CRSDATA!AJ209,CRSDATA!AM209,CRSDATA!P209,CRSDATA!V209)","v":""},{"$f":"CRSDATA!P209","v":0},{"$f":"CRSDATA!J209","v":0},{"$f":"CRSDATA!I209","v":0},null,{"$f":"IF(LEFT(CRSDATA!N209,2)=\"A0\",\"A00\",IF(LEFT(CRSDATA!N209,3)=\"B02\",\"B02\",IF(LEFT(CRSDATA!N209,3)=\"B03\",\"B03\",IF(CRSDATA!N209=\"B04\",\"C01\",IF(CRSDATA!N209=\"H01\",\"H00\",IF(OR(CRSDATA!N209=\"H02\",CRSDATA!N209=\"H03\",CRSDATA!N209=\"H04\",CRSDATA!N209=\"H05\",CRSDATA!N209=\"H06\"),\"I01\",IF(CRSDATA!N209=\"\",\"\",CRSDATA!N209)))))))","v":""},{"$f":"IF(AND(LEN(CRSDATA!M209)=4,LEFT(CRSDATA!M209,3)=\"110\"),1100,IF(AND(LEN(CRSDATA!M209)=4,LEFT(CRSDATA!M209,3)=\"422\"),422,CRSDATA!M209))","v":0},{"$f":"IF(CRSDATA!L209=22,\"FA04\",\"\")","v":""},{"$f":"IF(CRSDATA!K209=8,\"FC02\",\"\")","v":""},{"$f":"_xlfn.IFS(OR(P209=\"A00\",P209=\"E01\",P209=\"F01\",AND(P209=\"\",A209<>0),Q209=510,Q209=520,AF209=60),1,P209=\"G01\",IF(AF209=10,21,22),OR(M209=41203,M209=41204),22,OR(AND(OR(P209=\"B02\",P209=\"B03\"),M209=41310),OR(P209=\"E02\",P209=\"I01\")),21,AND(OR(P209=\"B01\",P209=\"B03\",P209=\"C01\"),M209<>41310),IF(VLOOKUP(F209,recipient_country!AB:AD,3,FALSE)=10024,\"\",1),AND(P209=\"B02\",M209<>41310),IF(VLOOKUP(M209,channel_codes!J:P,7,FALSE)=0,\"\",VLOOKUP(M209,channel_codes!J:P,7,FALSE)),ISNUMBER(MATCH(P209,{\"D01\",\"D02\"},0)),IF(VLOOKUP(M209,channel_codes!J:P,7,FALSE)=1,1,IF(VLOOKUP(F209,recipient_country!AB:AD,3,FALSE)=10024,\"\",1)),OR(P209=\"H01\",AND(OR(ISNUMBER(SEARCH(\"41010\", L209)),ISNUMBER(SEARCH(\"41020\", L209)),ISNUMBER(SEARCH(\"41030\", L209)),ISNUMBER(SEARCH(\"41040\", L209)),ISNUMBER(SEARCH(\"41081\", L209))),F209=998)),22,F209=998,22,TRUE,\"\")","v":""},{"$f":"CRSDATA!AN209","v":0},{"$f":"CRSDATA!AO209","v":0},{"$f":"CRSDATA!AQ209","v":0},{"$f":"CRSDATA!AS209","v":0},{"$f":"CRSDATA!BB209","v":0},null,"",{"$f":"IF(AND(AND(CRSDATA!C209<>\"\",CRSDATA!BK209<>\"\"),OR(CRSDATA!N209=421,CRSDATA!N209=422,CRSDATA!N209=4221,CRSDATA!N209=4222,CRSDATA!N209=423,CRSDATA!N209=424,CRSDATA!N209=425,CRSDATA!N209=431,CRSDATA!N209=433,CRSDATA!N209=434)),DATEDIF(CRSDATA!C209,CRSDATA!BK209,\"m\"),\"\")","v":""},{"$f":"CRSDATA!BA209","v":0},{"$f":"CRSDATA!BC209","v":0},{"$f":"IF(CRSDATA!BT209=\"\",\"\",CRSDATA!BT209)","v":""},{"$f":"CRSDATA!L209","v":0}]
[{"$f":"CRSDATA!A210","v":0},{"$f":"CRSDATA!C210","v":0},{"$f":"CRSDATA!D210","v":0},{"$f":"CRSDATA!F210","v":0},{"$f":"CRSDATA!E210","v":0},{"$f":"IF(CRSDATA!H210=3000,998,CRSDATA!H210)","v":0},{"$f":"CRSDATA!O210","v":0},{"$f":"CRSDATA!U210","v":0},{"$f":"IF(CRSDATA!V210=\"\",\"\",CRSDATA!V210)","v":""},{"$f":"IF(CRSDATA!W210=\"\",\"\",CRSDATA!W210)","v":""},{"$f":"key_row(CRSDATA!X210,CRSDATA!Y210,CRSDATA!AL210,CRSDATA!AK210,CRSDATA!AJ210,CRSDATA!AM210,CRSDATA!P210,CRSDATA!V210)","v":""},{"$f":"CRSDATA!P210","v":0},{"$f":"CRSDATA!J210","v":0},{"$f":"CRSDATA!I210","v":0},null,{"$f":"IF(LEFT(CRSDATA!N210,2)=\"A0\",\"A00\",IF(LEFT(CRSDATA!N210,3)=\"B02\",\"B02\",IF(LEFT(CRSDATA!N210,3)=\"B03\",\"B03\",IF(CRSDATA!N210=\"B04\",\"C01\",IF(CRSDATA!N210=\"H01\",\"H00\",IF(OR(CRSDATA!N210=\"H02\",CRSDATA!N210=\"H03\",CRSDATA!N210=\"H04\",CRSDATA!N210=\"H05\",CRSDATA!N210=\"H06\"),\"I01\",IF(CRSDATA!N210=\"\",\"\",CRSDATA!N210)))))))","v":""},{"$f":"IF(AND(LEN(CRSDATA!M210)=4,LEFT(CRSDATA!M210,3)=\"110\"),1100,IF(AND(LEN(CRSDATA!M210)=4,LEFT(CRSDATA!M210,3)=\"422\"),422,CRSDATA!M210))","v":0},{"$f":"IF(CRSDATA!L210=22,\"FA04\",\"\")","v":""},{"$f":"IF(CRSDATA!K210=8,\"FC02\",\"\")","v":""},{"$f":"_xlfn.IFS(OR(P210=\"A00\",P210=\"E01\",P210=\"F01\",AND(P210=\"\",A210<>0),Q210=510,Q210=520,AF210=60),1,P210=\"G01\",IF(AF210=10,21,22),OR(M210=41203,M210=41204),22,OR(AND(OR(P210=\"B02\",P210=\"B03\"),M210=41310),OR(P210=\"E02\",P210=\"I01\")),21,AND(OR(P210=\"B01\",P210=\"B03\",P210=\"C01\"),M210<>41310),IF(VLOOKUP(F210,recipient_country!AB:AD,3,FALSE)=10024,\"\",1),AND(P210=\"B02\",M210<>41310),IF(VLOOKUP(M210,channel_codes!J:P,7,FALSE)=0,\"\",VLOOKUP(M210,channel_codes!J:P,7,FALSE)),ISNUMBER(MATCH(P210,{\"D01\",\"D02\"},0)),IF(VLOOKUP(M210,channel_codes!J:P,7,FALSE)=1,1,IF(VLOOKUP(F210,recipient_country!AB:AD,3,FALSE)=10024,\"\",1)),OR(P210=\"H01\",AND(OR(ISNUMBER(SEARCH(\"41010\", L210)),ISNUMBER(SEARCH(\"41020\", L210)),ISNUMBER(SEARCH(\"41030\", L210)),ISNUMBER(SEARCH(\"41040\", L210)),ISNUMBER(SEARCH(\"41081\", L210))),F210=998)),22,F210=998,22,TRUE,\"\")","v":""},{"$f":"CRSDATA!AN210","v":0},{"$f":"CRSDATA!AO210","v":0},{"$f":"CRSDATA!AQ210","v":0},{"$f":"CRSDATA!AS210","v":0},{"$f":"CRSDATA!BB210","v":0},null,"",{"$f":"IF(AND(AND(CRSDATA!C210<>\"\",CRSDATA!BK210<>\"\"),OR(CRSDATA!N210=421,CRSDATA!N210=422,CRSDATA!N210=4221,CRSDATA!N210=4222,CRSDATA!N210=423,CRSDATA!N210=424,CRSDATA!N210=425,CRSDATA!N210=431,CRSDATA!N210=433,CRSDATA!N210=434)),DATEDIF(CRSDATA!C210,CRSDATA!BK210,\"m\"),\"\")","v":""},{"$f":"CRSDATA!BA210","v":0},{"$f":"CRSDATA!BC210","v":0},{"$f":"IF(CRSDATA!BT210=\"\",\"\",CRSDATA!BT210)","v":""},{"$f":"CRSDATA!L210","v":0}]
[{"$f":"CRSDATA!A211","v":0},{"$f":"CRSDATA!C211","v":0},{"$f":"CRSDATA!D211","v":0},{"$f":"CRSDATA!F211","v":0},{"$f":"CRSDATA!E211","v":0},{"$f":"IF(CRSDATA!H211=3000,998,CRSDATA!H211)","v":0},{"$f":"CRSDATA!O211","v":0},{"$f":"CRSDATA!U211","v":0},{"$f":"IF(CRSDATA!V211=\"\",\"\",CRSDATA!V211)","v":""},{"$f":"IF(CRSDATA!W211=\"\",\"\",CRSDATA!W211)","v":""},{"$f":"key_row(CRSDATA!X211,CRSDATA!Y211,CRSDATA!AL211,CRSDATA!AK211,CRSDATA!AJ211,CRSDATA!AM211,CRSDATA!P211,CRSDATA!V211)","v":""},{"$f":"CRSDATA!P211","v":0},{"$f":"CRSDATA!J211","v":0},{"$f":"CRSDATA!I211","v":0},null,{"$f":"IF(LEFT(CRSDATA!N211,2)=\"A0\",\"A00\",IF(LEFT(CRSDATA!N211,3)=\"B02\",\"B02\",IF(LEFT(CRSDATA!N211,3)=\"B03\",\"B03\",IF(CRSDATA!N211=\"B04\",\"C01\",IF(CRSDATA!N211=\"H01\",\"H00\",IF(OR(CRSDATA!N211=\"H02\",CRSDATA!N211=\"H03\",CRSDATA!N211=\"H04\",CRSDATA!N211=\"H05\",CRSDATA!N211=\"H06\"),\"I01\",IF(CRSDATA!N211=\"\",\"\",CRSDATA!N211)))))))","v":""},{"$f":"IF(AND(LEN(CRSDATA!M211)=4,LEFT(CRSDATA!M211,3)=\"110\"),1100,IF(AND(LEN(CRSDATA!M211)=4,LEFT(CRSDATA!M211,3)=\"422\"),422,CRSDATA!M211))","v":0},{"$f":"IF(CRSDATA!L211=22,\"FA04\",\"\")","v":""},{"$f":"IF(CRSDATA!K211=8,\"FC02\",\"\")","v":""},{"$f":"_xlfn.IFS(OR(P211=\"A00\",P211=\"E01\",P211=\"F01\",AND(P211=\"\",A211<>0),Q211=510,Q211=520,AF211=60),1,P211=\"G01\",IF(AF211=10,21,22),OR(M211=41203,M211=41204),22,OR(AND(OR(P211=\"B02\",P211=\"B03\"),M211=41310),OR(P211=\"E02\",P211=\"I01\")),21,AND(OR(P211=\"B01\",P211=\"B03\",P211=\"C01\"),M211<>41310),IF(VLOOKUP(F211,recipient_country!AB:AD,3,FALSE)=10024,\"\",1),AND(P211=\"B02\",M211<>41310),IF(VLOOKUP(M211,channel_codes!J:P,7,FALSE)=0,\"\",VLOOKUP(M211,channel_codes!J:P,7,FALSE)),ISNUMBER(MATCH(P211,{\"D01\",\"D02\"},0)),IF(VLOOKUP(M211,channel_codes!J:P,7,FALSE)=1,1,IF(VLOOKUP(F211,recipient_country!AB:AD,3,FALSE)=10024,\"\",1)),OR(P211=\"H01\",AND(OR(ISNUMBER(SEARCH(\"41010\", L211)),ISNUMBER(SEARCH(\"41020\", L211)),ISNUMBER(SEARCH(\"41030\", L211)),ISNUMBER(SEARCH(\"41040\", L211)),ISNUMBER(SEARCH(\"41081\", L211))),F211=998)),22,F211=998,22,TRUE,\"\")","v":""},{"$f":"CRSDATA!AN211","v":0},{"$f":"CRSDATA!AO211","v":0},{"$f":"CRSDATA!AQ211","v":0},{"$f":"CRSDATA!AS211","v":0},{"$f":"CRSDATA!BB211","v":0},null,"",{"$f":"IF(AND(AND(CRSDATA!C211<>\"\",CRSDATA!BK211<>\"\"),OR(CRSDATA!N211=421,CRSDATA!N211=422,CRSDATA!N211=4221,CRSDATA!N211=4222,CRSDATA!N211=423,CRSDATA!N211=424,CRSDATA!N211=425,CRSDATA!N211=431,CRSDATA!N211=433,CRSDATA!N211=434)),DATEDIF(CRSDATA!C211,CRSDATA!BK211,\"m\"),\"\")","v":""},{"$f":"CRSDATA!BA211","v":0},{"$f":"CRSDATA!BC211","v":0},{"$f":"IF(CRSDATA!BT211=\"\",\"\",CRSDATA!BT211)","v":""},{"$f":"CRSDATA!L211","v":0}]
[{"$f":"CRSDATA!A212","v":0},{"$f":"CRSDATA!C212","v":0},{"$f":"CRSDATA!D212","v":0},{"$f":"CRSDATA!F212","v":0},{"$f":"CRSDATA!E212","v":0},{"$f":"IF(CRSDATA!H212=3000,998,CRSDATA!H212)","v":0},{"$f":"CRSDATA!O212","v":0},{"$f":"CRSDATA!U212","v":0},{"$f":"IF(CRSDATA!V212=\"\",\"\",CRSDATA!V212)","v":""},{"$f":"IF(CRSDATA!W212=\"\",\"\",CRSDATA!W212)","v":""},{"$f":"key_row(CRSDATA!X212,CRSDATA!Y212,CRSDATA!AL212,CRSDATA!AK212,CRSDATA!AJ212,CRSDATA!AM212,CRSDATA!P212,CRSDATA!V212)","v":""},{"$f":"CRSDATA!P212","v":0},{"$f":"CRSDATA!J212","v":0},{"$f":"CRSDATA!I212","v":0},null,{"$f":"IF(LEFT(CRSDATA!N212,2)=\"A0\",\"A00\",IF(LEFT(CRSDATA!N212,3)=\"B02\",\"B02\",IF(LEFT(CRSDATA!N212,3)=\"B03\",\"B03\",IF(CRSDATA!N212=\"B04\",\"C01\",IF(CRSDATA!N212=\"H01\",\"H00\",IF(OR(CRSDATA!N212=\"H02\",CRSDATA!N212=\"H03\",CRSDATA!N212=\"H04\",CRSDATA!N212=\"H05\",CRSDATA!N212=\"H06\"),\"I01\",IF(CRSDATA!N212=\"\",\"\",CRSDATA!N212)))))))","v":""},{"$f":"IF(AND(LEN(CRSDATA!M212)=4,LEFT(CRSDATA!M212,3)=\"110\"),1100,IF(AND(LEN(CRSDATA!M212)=4,LEFT(CRSDATA!M212,3)=\"422\"),422,CRSDATA!M212))","v":0},{"$f":"IF(CRSDATA!L212=22,\"FA04\",\"\")","v":""},{"$f":"IF(CRSDATA!K212=8,\"FC02\",\"\")","v":""},{"$f":"_xlfn.IFS(OR(P212=\"A00\",P212=\"E01\",P212=\"F01\",AND(P212=\"\",A212<>0),Q212=510,Q212=520,AF212=60),1,P212=\"G01\",IF(AF212=10,21,22),OR(M212=41203,M212=41204),22,OR(AND(OR(P212=\"B02\",P212=\"B03\"),M212=41310),OR(P212=\"E02\",P212=\"I01\")),21,AND(OR(P212=\"B01\",P212=\"B03\",P212=\"C01\"),M212<>41310),IF(VLOOKUP(F212,recipient_country!AB:AD,3,FALSE)=10024,\"\",1),AND(P212=\"B02\",M212<>41310),IF(VLOOKUP(M212,channel_codes!J:P,7,FALSE)=0,\"\",VLOOKUP(M212,channel_codes!J:P,7,FALSE)),ISNUMBER(MATCH(P212,{\"D01\",\"D02\"},0)),IF(VLOOKUP(M212,channel_codes!J:P,7,FALSE)=1,1,IF(VLOOKUP(F212,recipient_country!AB:AD,3,FALSE)=10024,\"\",1)),OR(P212=\"H01\",AND(OR(ISNUMBER(SEARCH(\"41010\", L212)),ISNUMBER(SEARCH(\"41020\", L212)),ISNUMBER(SEARCH(\"41030\", L212)),ISNUMBER(SEARCH(\"41040\", L212)),ISNUMBER(SEARCH(\"41081\", L212))),F212=998)),22,F212=998,22,TRUE,\"\")","v":""},{"$f":"CRSDATA!AN212","v":0},{"$f":"CRSDATA!AO212","v":0},{"$f":"CRSDATA!AQ212","v":0},{"$f":"CRSDATA!AS212","v":0},{"$f":"CRSDATA!BB212","v":0},null,"",{"$f":"IF(AND(AND(CRSDATA!C212<>\"\",CRSDATA!BK212<>\"\"),OR(CRSDATA!N212=421,CRSDATA!N212=422,CRSDATA!N212=4221,CRSDATA!N212=4222,CRSDATA!N212=423,CRSDATA!N212=424,CRSDATA!N212=425,CRSDATA!N212=431,CRSDATA!N212=433,CRSDATA!N212=434)),DATEDIF(CRSDATA!C212,CRSDATA!BK212,\"m\"),\"\")","v":""},{"$f":"CRSDATA!BA212","v":0},{"$f":"CRSDATA!BC212","v":0},{"$f":"IF(CRSDATA!BT212=\"\",\"\",CRSDATA!BT212)","v":""},{"$f":"CRSDATA!L212","v":0}]
[{"$f":"CRSDATA!A213","v":0},{"$f":"CRSDATA!C213","v":0},{"$f":"CRSDATA!D213","v":0},{"$f":"CRSDATA!F213","v":0},{"$f":"CRSDATA!E213","v":0},{"$f":"IF(CRSDATA!H213=3000,998,CRSDATA!H213)","v":0},{"$f":"CRSDATA!O213","v":0},{"$f":"CRSDATA!U213","v":0},{"$f":"IF(CRSDATA!V213=\"\",\"\",CRSDATA!V213)","v":""},{"$f":"IF(CRSDATA!W213=\"\",\"\",CRSDATA!W213)","v":""},{"$f":"key_row(CRSDATA!X213,CRSDATA!Y213,CRSDATA!AL213,CRSDATA!AK213,CRSDATA!AJ213,CRSDATA!AM213,CRSDATA!P213,CRSDATA!V213)","v":""},{"$f":"CRSDATA!P213","v":0},{"$f":"CRSDATA!J213","v":0},{"$f":"CRSDATA!I213","v":0},null,{"$f":"IF(LEFT(CRSDATA!N213,2)=\"A0\",\"A00\",IF(LEFT(CRSDATA!N213,3)=\"B02\",\"B02\",IF(LEFT(CRSDATA!N213,3)=\"B03\",\"B03\",IF(CRSDATA!N213=\"B04\",\"C01\",IF(CRSDATA!N213=\"H01\",\"H00\",IF(OR(CRSDATA!N213=\"H02\",CRSDATA!N213=\"H03\",CRSDATA!N213=\"H04\",CRSDATA!N213=\"H05\",CRSDATA!N213=\"H06\"),\"I01\",IF(CRSDATA!N213=\"\",\"\",CRSDATA!N213)))))))","v":""},{"$f":"IF(AND(LEN(CRSDATA!M213)=4,LEFT(CRSDATA!M213,3)=\"110\"),1100,IF(AND(LEN(CRSDATA!M213)=4,LEFT(CRSDATA!M213,3)=\"422\"),422,CRSDATA!M213))","v":0},{"$f":"IF(CRSDATA!L213=22,\"FA04\",\"\")","v":""},{"$f":"IF(CRSDATA!K213=8,\"FC02\",\"\")","v":""},{"$f":"_xlfn.IFS(OR(P213=\"A00\",P213=\"E01\",P213=\"F01\",AND(P213=\"\",A213<>0),Q213=510,Q213=520,AF213=60),1,P213=\"G01\",IF(AF213=10,21,22),OR(M213=41203,M213=41204),22,OR(AND(OR(P213=\"B02\",P213=\"B03\"),M213=41310),OR(P213=\"E02\",P213=\"I01\")),21,AND(OR(P213=\"B01\",P213=\"B03\",P213=\"C01\"),M213<>41310),IF(VLOOKUP(F213,recipient_country!AB:AD,3,FALSE)=10024,\"\",1),AND(P213=\"B02\",M213<>41310),IF(VLOOKUP(M213,channel_codes!J:P,7,FALSE)=0,\"\",VLOOKUP(M213,channel_codes!J:P,7,FALSE)),ISNUMBER(MATCH(P213,{\"D01\",\"D02\"},0)),IF(VLOOKUP(M213,channel_codes!J:P,7,FALSE)=1,1,IF(VLOOKUP(F213,recipient_country!AB:AD,3,FALSE)=10024,\"\",1)),OR(P213=\"H01\",AND(OR(ISNUMBER(SEARCH(\"41010\", L213)),ISNUMBER(SEARCH(\"41020\", L213)),ISNUMBER(SEARCH(\"41030\", L213)),ISNUMBER(SEARCH(\"41040\", L213)),ISNUMBER(SEARCH(\"41081\", L213))),F213=998)),22,F213=998,22,TRUE,\"\")","v":""},{"$f":"CRSDATA!AN213","v":0},{"$f":"CRSDATA!AO213","v":0},{"$f":"CRSDATA!AQ213","v":0},{"$f":"CRSDATA!AS213","v":0},{"$f":"CRSDATA!BB213","v":0},null,"",{"$f":"IF(AND(AND(CRSDATA!C213<>\"\",CRSDATA!BK213<>\"\"),OR(CRSDATA!N213=421,CRSDATA!N213=422,CRSDATA!N213=4221,CRSDATA!N213=4222,CRSDATA!N213=423,CRSDATA!N213=424,CRSDATA!N213=425,CRSDATA!N213=431,CRSDATA!N213=433,CRSDATA!N213=434)),DATEDIF(CRSDATA!C213,CRSDATA!BK213,\"m\"),\"\")","v":""},{"$f":"CRSDATA!BA213","v":0},{"$f":"CRSDATA!BC213","v":0},{"$f":"IF(CRSDATA!BT213=\"\",\"\",CRSDATA!BT213)","v":""},{"$f":"CRSDATA!L213","v":0}]
[{"$f":"CRSDATA!A214","v":0},{"$f":"CRSDATA!C214","v":0},{"$f":"CRSDATA!D214","v":0},{"$f":"CRSDATA!F214","v":0},{"$f":"CRSDATA!E214","v":0},{"$f":"IF(CRSDATA!H214=3000,998,CRSDATA!H214)","v":0},{"$f":"CRSDATA!O214","v":0},{"$f":"CRSDATA!U214","v":0},{"$f":"IF(CRSDATA!V214=\"\",\"\",CRSDATA!V214)","v":""},{"$f":"IF(CRSDATA!W214=\"\",\"\",CRSDATA!W214)","v":""},{"$f":"key_row(CRSDATA!X214,CRSDATA!Y214,CRSDATA!AL214,CRSDATA!AK214,CRSDATA!AJ214,CRSDATA!AM214,CRSDATA!P214,CRSDATA!V214)","v":""},{"$f":"CRSDATA!P214","v":0},{"$f":"CRSDATA!J214","v":0},{"$f":"CRSDATA!I214","v":0},null,{"$f":"IF(LEFT(CRSDATA!N214,2)=\"A0\",\"A00\",IF(LEFT(CRSDATA!N214,3)=\"B02\",\"B02\",IF(LEFT(CRSDATA!N214,3)=\"B03\",\"B03\",IF(CRSDATA!N214=\"B04\",\"C01\",IF(CRSDATA!N214=\"H01\",\"H00\",IF(OR(CRSDATA!N214=\"H02\",CRSDATA!N214=\"H03\",CRSDATA!N214=\"H04\",CRSDATA!N214=\"H05\",CRSDATA!N214=\"H06\"),\"I01\",IF(CRSDATA!N214=\"\",\"\",CRSDATA!N214)))))))","v":""},{"$f":"IF(AND(LEN(CRSDATA!M214)=4,LEFT(CRSDATA!M214,3)=\"110\"),1100,IF(AND(LEN(CRSDATA!M214)=4,LEFT(CRSDATA!M214,3)=\"422\"),422,CRSDATA!M214))","v":0},{"$f":"IF(CRSDATA!L214=22,\"FA04\",\"\")","v":""},{"$f":"IF(CRSDATA!K214=8,\"FC02\",\"\")","v":""},{"$f":"_xlfn.IFS(OR(P214=\"A00\",P214=\"E01\",P214=\"F01\",AND(P214=\"\",A214<>0),Q214=510,Q214=520,AF214=60),1,P214=\"G01\",IF(AF214=10,21,22),OR(M214=41203,M214=41204),22,OR(AND(OR(P214=\"B02\",P214=\"B03\"),M214=41310),OR(P214=\"E02\",P214=\"I01\")),21,AND(OR(P214=\"B01\",P214=\"B03\",P214=\"C01\"),M214<>41310),IF(VLOOKUP(F214,recipient_country!AB:AD,3,FALSE)=10024,\"\",1),AND(P214=\"B02\",M214<>41310),IF(VLOOKUP(M214,channel_codes!J:P,7,FALSE)=0,\"\",VLOOKUP(M214,channel_codes!J:P,7,FALSE)),ISNUMBER(MATCH(P214,{\"D01\",\"D02\"},0)),IF(VLOOKUP(M214,channel_codes!J:P,7,FALSE)=1,1,IF(VLOOKUP(F214,recipient_country!AB:AD,3,FALSE)=10024,\"\",1)),OR(P214=\"H01\",AND(OR(ISNUMBER(SEARCH(\"41010\", L214)),ISNUMBER(SEARCH(\"41020\", L214)),ISNUMBER(SEARCH(\"41030\", L214)),ISNUMBER(SEARCH(\"41040\", L214)),ISNUMBER(SEARCH(\"41081\", L214))),F214=998)),22,F214=998,22,TRUE,\"\")","v":""},{"$f":"CRSDATA!AN214","v":0},{"$f":"CRSDATA!AO214","v":0},{"$f":"CRSDATA!AQ214","v":0},{"$f":"CRSDATA!AS214","v":0},{"$f":"CRSDATA!BB214","v":0},null,"",{"$f":"IF(AND(AND(CRSDATA!C214<>\"\",CRSDATA!BK214<>\"\"),OR(CRSDATA!N214=421,CRSDATA!N214=422,CRSDATA!N214=4221,CRSDATA!N214=4222,CRSDATA!N214=423,CRSDATA!N214=424,CRSDATA!N214=425,CRSDATA!N214=431,CRSDATA!N214=433,CRSDATA!N214=434)),DATEDIF(CRSDATA!C214,CRSDATA!BK214,\"m\"),\"\")","v":""},{"$f":"CRSDATA!BA214","v":0},{"$f":"CRSDATA!BC214","v":0},{"$f":"IF(CRSDATA!BT214=\"\",\"\",CRSDATA!BT214)","v":""},{"$f":"CRSDATA!L214","v":0}]
[{"$f":"CRSDATA!A215","v":0},{"$f":"CRSDATA!C215","v":0},{"$f":"CRSDATA!D215","v":0},{"$f":"CRSDATA!F215","v":0},{"$f":"CRSDATA!E215","v":0},{"$f":"IF(CRSDATA!H215=3000,998,CRSDATA!H215)","v":0},{"$f":"CRSDATA!O215","v":0},{"$f":"CRSDATA!U215","v":0},{"$f":"IF(CRSDATA!V215=\"\",\"\",CRSDATA!V215)","v":""},{"$f":"IF(CRSDATA!W215=\"\",\"\",CRSDATA!W215)","v":""},{"$f":"key_row(CRSDATA!X215,CRSDATA!Y215,CRSDATA!AL215,CRSDATA!AK215,CRSDATA!AJ215,CRSDATA!AM215,CRSDATA!P215,CRSDATA!V215)","v":""},{"$f":"CRSDATA!P215","v":0},{"$f":"CRSDATA!J215","v":0},{"$f":"CRSDATA!I215","v":0},null,{"$f":"IF(LEFT(CRSDATA!N215,2)=\"A0\",\"A00\",IF(LEFT(CRSDATA!N215,3)=\"B02\",\"B02\",IF(LEFT(CRSDATA!N215,3)=\"B03\",\"B03\",IF(CRSDATA!N215=\"B04\",\"C01\",IF(CRSDATA!N215=\"H01\",\"H00\",IF(OR(CRSDATA!N215=\"H02\",CRSDATA!N215=\"H03\",CRSDATA!N215=\"H04\",CRSDATA!N215=\"H05\",CRSDATA!N215=\"H06\"),\"I01\",IF(CRSDATA!N215=\"\",\"\",CRSDATA!N215)))))))","v":""},{"$f":"IF(AND(LEN(CRSDATA!M215)=4,LEFT(CRSDATA!M215,3)=\"110\"),1100,IF(AND(LEN(CRSDATA!M215)=4,LEFT(CRSDATA!M215,3)=\"422\"),422,CRSDATA!M215))","v":0},{"$f":"IF(CRSDATA!L215=22,\"FA04\",\"\")","v":""},{"$f":"IF(CRSDATA!K215=8,\"FC02\",\"\")","v":""},{"$f":"_xlfn.IFS(OR(P215=\"A00\",P215=\"E01\",P215=\"F01\",AND(P215=\"\",A215<>0),Q215=510,Q215=520,AF215=60),1,P215=\"G01\",IF(AF215=10,21,22),OR(M215=41203,M215=41204),22,OR(AND(OR(P215=\"B02\",P215=\"B03\"),M215=41310),OR(P215=\"E02\",P215=\"I01\")),21,AND(OR(P215=\"B01\",P215=\"B03\",P215=\"C01\"),M215<>41310),IF(VLOOKUP(F215,recipient_country!AB:AD,3,FALSE)=10024,\"\",1),AND(P215=\"B02\",M215<>41310),IF(VLOOKUP(M215,channel_codes!J:P,7,FALSE)=0,\"\",VLOOKUP(M215,channel_codes!J:P,7,FALSE)),ISNUMBER(MATCH(P215,{\"D01\",\"D02\"},0)),IF(VLOOKUP(M215,channel_codes!J:P,7,FALSE)=1,1,IF(VLOOKUP(F215,recipient_country!AB:AD,3,FALSE)=10024,\"\",1)),OR(P215=\"H01\",AND(OR(ISNUMBER(SEARCH(\"41010\", L215)),ISNUMBER(SEARCH(\"41020\", L215)),ISNUMBER(SEARCH(\"41030\", L215)),ISNUMBER(SEARCH(\"41040\", L215)),ISNUMBER(SEARCH(\"41081\", L215))),F215=998)),22,F215=998,22,TRUE,\"\")","v":""},{"$f":"CRSDATA!AN215","v":0},{"$f":"CRSDATA!AO215","v":0},{"$f":"CRSDATA!AQ215","v":0},{"$f":"CRSDATA!AS215","v":0},{"$f":"CRSDATA!BB215","v":0},null,"",{"$f":"IF(AND(AND(CRSDATA!C215<>\"\",CRSDATA!BK215<>\"\"),OR(CRSDATA!N215=421,CRSDATA!N215=422,CRSDATA!N215=4221,CRSDATA!N215=4222,CRSDATA!N215=423,CRSDATA!N215=424,CRSDATA!N215=425,CRSDATA!N215=431,CRSDATA!N215=433,CRSDATA!N215=434)),DATEDIF(CRSDATA!C215,CRSDATA!BK215,\"m\"),\"\")","v":""},{"$f":"CRSDATA!BA215","v":0},{"$f":"CRSDATA!BC215","v":0},{"$f":"IF(CRSDATA!BT215=\"\",\"\",CRSDATA!BT215)","v":""},{"$f":"CRSDATA!L215","v":0}]
[{"$f":"CRSDATA!A216","v":0},{"$f":"CRSDATA!C216","v":0},{"$f":"CRSDATA!D216","v":0},{"$f":"CRSDATA!F216","v":0},{"$f":"CRSDATA!E216","v":0},{"$f":"IF(CRSDATA!H216=3000,998,CRSDATA!H216)","v":0},{"$f":"CRSDATA!O216","v":0},{"$f":"CRSDATA!U216","v":0},{"$f":"IF(CRSDATA!V216=\"\",\"\",CRSDATA!V216)","v":""},{"$f":"IF(CRSDATA!W216=\"\",\"\",CRSDATA!W216)","v":""},{"$f":"key_row(CRSDATA!X216,CRSDATA!Y216,CRSDATA!AL216,CRSDATA!AK216,CRSDATA!AJ216,CRSDATA!AM216,CRSDATA!P216,CRSDATA!V216)","v":""},{"$f":"CRSDATA!P216","v":0},{"$f":"CRSDATA!J216","v":0},{"$f":"CRSDATA!I216","v":0},null,{"$f":"IF(LEFT(CRSDATA!N216,2)=\"A0\",\"A00\",IF(LEFT(CRSDATA!N216,3)=\"B02\",\"B02\",IF(LEFT(CRSDATA!N216,3)=\"B03\",\"B03\",IF(CRSDATA!N216=\"B04\",\"C01\",IF(CRSDATA!N216=\"H01\",\"H00\",IF(OR(CRSDATA!N216=\"H02\",CRSDATA!N216=\"H03\",CRSDATA!N216=\"H04\",CRSDATA!N216=\"H05\",CRSDATA!N216=\"H06\"),\"I01\",IF(CRSDATA!N216=\"\",\"\",CRSDATA!N216)))))))","v":""},{"$f":"IF(AND(LEN(CRSDATA!M216)=4,LEFT(CRSDATA!M216,3)=\"110\"),1100,IF(AND(LEN(CRSDATA!M216)=4,LEFT(CRSDATA!M216,3)=\"422\"),422,CRSDATA!M216))","v":0},{"$f":"IF(CRSDATA!L216=22,\"FA04\",\"\")","v":""},{"$f":"IF(CRSDATA!K216=8,\"FC02\",\"\")","v":""},{"$f":"_xlfn.IFS(OR(P216=\"A00\",P216=\"E01\",P216=\"F01\",AND(P216=\"\",A216<>0),Q216=510,Q216=520,AF216=60),1,P216=\"G01\",IF(AF216=10,21,22),OR(M216=41203,M216=41204),22,OR(AND(OR(P216=\"B02\",P216=\"B03\"),M216=41310),OR(P216=\"E02\",P216=\"I01\")),21,AND(OR(P216=\"B01\",P216=\"B03\",P216=\"C01\"),M216<>41310),IF(VLOOKUP(F216,recipient_country!AB:AD,3,FALSE)=10024,\"\",1),AND(P216=\"B02\",M216<>41310),IF(VLOOKUP(M216,channel_codes!J:P,7,FALSE)=0,\"\",VLOOKUP(M216,channel_codes!J:P,7,FALSE)),ISNUMBER(MATCH(P216,{\"D01\",\"D02\"},0)),IF(VLOOKUP(M216,channel_codes!J:P,7,FALSE)=1,1,IF(VLOOKUP(F216,recipient_country!AB:AD,3,FALSE)=10024,\"\",1)),OR(P216=\"H01\",AND(OR(ISNUMBER(SEARCH(\"41010\", L216)),ISNUMBER(SEARCH(\"41020\", L216)),ISNUMBER(SEARCH(\"41030\", L216)),ISNUMBER(SEARCH(\"41040\", L216)),ISNUMBER(SEARCH(\"41081\", L216))),F216=998)),22,F216=998,22,TRUE,\"\")","v":""},{"$f":"CRSDATA!AN216","v":0},{"$f":"CRSDATA!AO216","v":0},{"$f":"CRSDATA!AQ216","v":0},{"$f":"CRSDATA!AS216","v":0},{"$f":"CRSDATA!BB216","v":0},null,"",{"$f":"IF(AND(AND(CRSDATA!C216<>\"\",CRSDATA!BK216<>\"\"),OR(CRSDATA!N216=421,CRSDATA!N216=422,CRSDATA!N216=4221,CRSDATA!N216=4222,CRSDATA!N216=423,CRSDATA!N216=424,CRSDATA!N216=425,CRSDATA!N216=431,CRSDATA!N216=433,CRSDATA!N216=434)),DATEDIF(CRSDATA!C216,CRSDATA!BK216,\"m\"),\"\")","v":""},{"$f":"CRSDATA!BA216","v":0},{"$f":"CRSDATA!BC216","v":0},{"$f":"IF(CRSDATA!BT216=\"\",\"\",CRSDATA!BT216)","v":""},{"$f":"CRSDATA!L216","v":0}]
[{"$f":"CRSDATA!A217","v":0},{"$f":"CRSDATA!C217","v":0},{"$f":"CRSDATA!D217","v":0},{"$f":"CRSDATA!F217","v":0},{"$f":"CRSDATA!E217","v":0},{"$f":"IF(CRSDATA!H217=3000,998,CRSDATA!H217)","v":0},{"$f":"CRSDATA!O217","v":0},{"$f":"CRSDATA!U217","v":0},{"$f":"IF(CRSDATA!V217=\"\",\"\",CRSDATA!V217)","v":""},{"$f":"IF(CRSDATA!W217=\"\",\"\",CRSDATA!W217)","v":""},{"$f":"key_row(CRSDATA!X217,CRSDATA!Y217,CRSDATA!AL217,CRSDATA!AK217,CRSDATA!AJ217,CRSDATA!AM217,CRSDATA!P217,CRSDATA!V217)","v":""},{"$f":"CRSDATA!P217","v":0},{"$f":"CRSDATA!J217","v":0},{"$f":"CRSDATA!I217","v":0},null,{"$f":"IF(LEFT(CRSDATA!N217,2)=\"A0\",\"A00\",IF(LEFT(CRSDATA!N217,3)=\"B02\",\"B02\",IF(LEFT(CRSDATA!N217,3)=\"B03\",\"B03\",IF(CRSDATA!N217=\"B04\",\"C01\",IF(CRSDATA!N217=\"H01\",\"H00\",IF(OR(CRSDATA!N217=\"H02\",CRSDATA!N217=\"H03\",CRSDATA!N217=\"H04\",CRSDATA!N217=\"H05\",CRSDATA!N217=\"H06\"),\"I01\",IF(CRSDATA!N217=\"\",\"\",CRSDATA!N217)))))))","v":""},{"$f":"IF(AND(LEN(CRSDATA!M217)=4,LEFT(CRSDATA!M217,3)=\"110\"),1100,IF(AND(LEN(CRSDATA!M217)=4,LEFT(CRSDATA!M217,3)=\"422\"),422,CRSDATA!M217))","v":0},{"$f":"IF(CRSDATA!L217=22,\"FA04\",\"\")","v":""},{"$f":"IF(CRSDATA!K217=8,\"FC02\",\"\")","v":""},{"$f":"_xlfn.IFS(OR(P217=\"A00\",P217=\"E01\",P217=\"F01\",AND(P217=\"\",A217<>0),Q217=510,Q217=520,AF217=60),1,P217=\"G01\",IF(AF217=10,21,22),OR(M217=41203,M217=41204),22,OR(AND(OR(P217=\"B02\",P217=\"B03\"),M217=41310),OR(P217=\"E02\",P217=\"I01\")),21,AND(OR(P217=\"B01\",P217=\"B03\",P217=\"C01\"),M217<>41310),IF(VLOOKUP(F217,recipient_country!AB:AD,3,FALSE)=10024,\"\",1),AND(P217=\"B02\",M217<>41310),IF(VLOOKUP(M217,channel_codes!J:P,7,FALSE)=0,\"\",VLOOKUP(M217,channel_codes!J:P,7,FALSE)),ISNUMBER(MATCH(P217,{\"D01\",\"D02\"},0)),IF(VLOOKUP(M217,channel_codes!J:P,7,FALSE)=1,1,IF(VLOOKUP(F217,recipient_country!AB:AD,3,FALSE)=10024,\"\",1)),OR(P217=\"H01\",AND(OR(ISNUMBER(SEARCH(\"41010\", L217)),ISNUMBER(SEARCH(\"41020\", L217)),ISNUMBER(SEARCH(\"41030\", L217)),ISNUMBER(SEARCH(\"41040\", L217)),ISNUMBER(SEARCH(\"41081\", L217))),F217=998)),22,F217=998,22,TRUE,\"\")","v":""},{"$f":"CRSDATA!AN217","v":0},{"$f":"CRSDATA!AO217","v":0},{"$f":"CRSDATA!AQ217","v":0},{"$f":"CRSDATA!AS217","v":0},{"$f":"CRSDATA!BB217","v":0},null,"",{"$f":"IF(AND(AND(CRSDATA!C217<>\"\",CRSDATA!BK217<>\"\"),OR(CRSDATA!N217=421,CRSDATA!N217=422,CRSDATA!N217=4221,CRSDATA!N217=4222,CRSDATA!N217=423,CRSDATA!N217=424,CRSDATA!N217=425,CRSDATA!N217=431,CRSDATA!N217=433,CRSDATA!N217=434)),DATEDIF(CRSDATA!C217,CRSDATA!BK217,\"m\"),\"\")","v":""},{"$f":"CRSDATA!BA217","v":0},{"$f":"CRSDATA!BC217","v":0},{"$f":"IF(CRSDATA!BT217=\"\",\"\",CRSDATA!BT217)","v":""},{"$f":"CRSDATA!L217","v":0}]
[{"$f":"CRSDATA!A218","v":0},{"$f":"CRSDATA!C218","v":0},{"$f":"CRSDATA!D218","v":0},{"$f":"CRSDATA!F218","v":0},{"$f":"CRSDATA!E218","v":0},{"$f":"IF(CRSDATA!H218=3000,998,CRSDATA!H218)","v":0},{"$f":"CRSDATA!O218","v":0},{"$f":"CRSDATA!U218","v":0},{"$f":"IF(CRSDATA!V218=\"\",\"\",CRSDATA!V218)","v":""},{"$f":"IF(CRSDATA!W218=\"\",\"\",CRSDATA!W218)","v":""},{"$f":"key_row(CRSDATA!X218,CRSDATA!Y218,CRSDATA!AL218,CRSDATA!AK218,CRSDATA!AJ218,CRSDATA!AM218,CRSDATA!P218,CRSDATA!V218)","v":""},{"$f":"CRSDATA!P218","v":0},{"$f":"CRSDATA!J218","v":0},{"$f":"CRSDATA!I218","v":0},null,{"$f":"IF(LEFT(CRSDATA!N218,2)=\"A0\",\"A00\",IF(LEFT(CRSDATA!N218,3)=\"B02\",\"B02\",IF(LEFT(CRSDATA!N218,3)=\"B03\",\"B03\",IF(CRSDATA!N218=\"B04\",\"C01\",IF(CRSDATA!N218=\"H01\",\"H00\",IF(OR(CRSDATA!N218=\"H02\",CRSDATA!N218=\"H03\",CRSDATA!N218=\"H04\",CRSDATA!N218=\"H05\",CRSDATA!N218=\"H06\"),\"I01\",IF(CRSDATA!N218=\"\",\"\",CRSDATA!N218)))))))","v":""},{"$f":"IF(AND(LEN(CRSDATA!M218)=4,LEFT(CRSDATA!M218,3)=\"110\"),1100,IF(AND(LEN(CRSDATA!M218)=4,LEFT(CRSDATA!M218,3)=\"422\"),422,CRSDATA!M218))","v":0},{"$f":"IF(CRSDATA!L218=22,\"FA04\",\"\")","v":""},{"$f":"IF(CRSDATA!K218=8,\"FC02\",\"\")","v":""},{"$f":"_xlfn.IFS(OR(P218=\"A00\",P218=\"E01\",P218=\"F01\",AND(P218=\"\",A218<>0),Q218=510,Q218=520,AF218=60),1,P218=\"G01\",IF(AF218=10,21,22),OR(M218=41203,M218=41204),22,OR(AND(OR(P218=\"B02\",P218=\"B03\"),M218=41310),OR(P218=\"E02\",P218=\"I01\")),21,AND(OR(P218=\"B01\",P218=\"B03\",P218=\"C01\"),M218<>41310),IF(VLOOKUP(F218,recipient_country!AB:AD,3,FALSE)=10024,\"\",1),AND(P218=\"B02\",M218<>41310),IF(VLOOKUP(M218,channel_codes!J:P,7,FALSE)=0,\"\",VLOOKUP(M218,channel_codes!J:P,7,FALSE)),ISNUMBER(MATCH(P218,{\"D01\",\"D02\"},0)),IF(VLOOKUP(M218,channel_codes!J:P,7,FALSE)=1,1,IF(VLOOKUP(F218,recipient_country!AB:AD,3,FALSE)=10024,\"\",1)),OR(P218=\"H01\",AND(OR(ISNUMBER(SEARCH(\"41010\", L218)),ISNUMBER(SEARCH(\"41020\", L218)),ISNUMBER(SEARCH(\"41030\", L218)),ISNUMBER(SEARCH(\"41040\", L218)),ISNUMBER(SEARCH(\"41081\", L218))),F218=998)),22,F218=998,22,TRUE,\"\")","v":""},{"$f":"CRSDATA!AN218","v":0},{"$f":"CRSDATA!AO218","v":0},{"$f":"CRSDATA!AQ218","v":0},{"$f":"CRSDATA!AS218","v":0},{"$f":"CRSDATA!BB218","v":0},null,"",{"$f":"IF(AND(AND(CRSDATA!C218<>\"\",CRSDATA!BK218<>\"\"),OR(CRSDATA!N218=421,CRSDATA!N218=422,CRSDATA!N218=4221,CRSDATA!N218=4222,CRSDATA!N218=423,CRSDATA!N218=424,CRSDATA!N218=425,CRSDATA!N218=431,CRSDATA!N218=433,CRSDATA!N218=434)),DATEDIF(CRSDATA!C218,CRSDATA!BK218,\"m\"),\"\")","v":""},{"$f":"CRSDATA!BA218","v":0},{"$f":"CRSDATA!BC218","v":0},{"$f":"IF(CRSDATA!BT218=\"\",\"\",CRSDATA!BT218)","v":""},{"$f":"CRSDATA!L218","v":0}]
[{"$f":"CRSDATA!A219","v":0},{"$f":"CRSDATA!C219","v":0},{"$f":"CRSDATA!D219","v":0},{"$f":"CRSDATA!F219","v":0},{"$f":"CRSDATA!E219","v":0},{"$f":"IF(CRSDATA!H219=3000,998,CRSDATA!H219)","v":0},{"$f":"CRSDATA!O219","v":0},{"$f":"CRSDATA!U219","v":0},{"$f":"IF(CRSDATA!V219=\"\",\"\",CRSDATA!V219)","v":""},{"$f":"IF(CRSDATA!W219=\"\",\"\",CRSDATA!W219)","v":""},{"$f":"key_row(CRSDATA!X219,CRSDATA!Y219,CRSDATA!AL219,CRSDATA!AK219,CRSDATA!AJ219,CRSDATA!AM219,CRSDATA!P219,CRSDATA!V219)","v":""},{"$f":"CRSDATA!P219","v":0},{"$f":"CRSDATA!J219","v":0},{"$f":"CRSDATA!I219","v":0},null,{"$f":"IF(LEFT(CRSDATA!N219,2)=\"A0\",\"A00\",IF(LEFT(CRSDATA!N219,3)=\"B02\",\"B02\",IF(LEFT(CRSDATA!N219,3)=\"B03\",\"B03\",IF(CRSDATA!N219=\"B04\",\"C01\",IF(CRSDATA!N219=\"H01\",\"H00\",IF(OR(CRSDATA!N219=\"H02\",CRSDATA!N219=\"H03\",CRSDATA!N219=\"H04\",CRSDATA!N219=\"H05\",CRSDATA!N219=\"H06\"),\"I01\",IF(CRSDATA!N219=\"\",\"\",CRSDATA!N219)))))))","v":""},{"$f":"IF(AND(LEN(CRSDATA!M219)=4,LEFT(CRSDATA!M219,3)=\"110\"),1100,IF(AND(LEN(CRSDATA!M219)=4,LEFT(CRSDATA!M219,3)=\"422\"),422,CRSDATA!M219))","v":0},{"$f":"IF(CRSDATA!L219=22,\"FA04\",\"\")","v":""},{"$f":"IF(CRSDATA!K219=8,\"FC02\",\"\")","v":""},{"$f":"_xlfn.IFS(OR(P219=\"A00\",P219=\"E01\",P219=\"F01\",AND(P219=\"\",A219<>0),Q219=510,Q219=520,AF219=60),1,P219=\"G01\",IF(AF219=10,21,22),OR(M219=41203,M219=41204),22,OR(AND(OR(P219=\"B02\",P219=\"B03\"),M219=41310),OR(P219=\"E02\",P219=\"I01\")),21,AND(OR(P219=\"B01\",P219=\"B03\",P219=\"C01\"),M219<>41310),IF(VLOOKUP(F219,recipient_country!AB:AD,3,FALSE)=10024,\"\",1),AND(P219=\"B02\",M219<>41310),IF(VLOOKUP(M219,channel_codes!J:P,7,FALSE)=0,\"\",VLOOKUP(M219,channel_codes!J:P,7,FALSE)),ISNUMBER(MATCH(P219,{\"D01\",\"D02\"},0)),IF(VLOOKUP(M219,channel_codes!J:P,7,FALSE)=1,1,IF(VLOOKUP(F219,recipient_country!AB:AD,3,FALSE)=10024,\"\",1)),OR(P219=\"H01\",AND(OR(ISNUMBER(SEARCH(\"41010\", L219)),ISNUMBER(SEARCH(\"41020\", L219)),ISNUMBER(SEARCH(\"41030\", L219)),ISNUMBER(SEARCH(\"41040\", L219)),ISNUMBER(SEARCH(\"41081\", L219))),F219=998)),22,F219=998,22,TRUE,\"\")","v":""},{"$f":"CRSDATA!AN219","v":0},{"$f":"CRSDATA!AO219","v":0},{"$f":"CRSDATA!AQ219","v":0},{"$f":"CRSDATA!AS219","v":0},{"$f":"CRSDATA!BB219","v":0},null,"",{"$f":"IF(AND(AND(CRSDATA!C219<>\"\",CRSDATA!BK219<>\"\"),OR(CRSDATA!N219=421,CRSDATA!N219=422,CRSDATA!N219=4221,CRSDATA!N219=4222,CRSDATA!N219=423,CRSDATA!N219=424,CRSDATA!N219=425,CRSDATA!N219=431,CRSDATA!N219=433,CRSDATA!N219=434)),DATEDIF(CRSDATA!C219,CRSDATA!BK219,\"m\"),\"\")","v":""},{"$f":"CRSDATA!BA219","v":0},{"$f":"CRSDATA!BC219","v":0},{"$f":"IF(CRSDATA!BT219=\"\",\"\",CRSDATA!BT219)","v":""},{"$f":"CRSDATA!L219","v":0}]
[{"$f":"CRSDATA!A220","v":0},{"$f":"CRSDATA!C220","v":0},{"$f":"CRSDATA!D220","v":0},{"$f":"CRSDATA!F220","v":0},{"$f":"CRSDATA!E220","v":0},{"$f":"IF(CRSDATA!H220=3000,998,CRSDATA!H220)","v":0},{"$f":"CRSDATA!O220","v":0},{"$f":"CRSDATA!U220","v":0},{"$f":"IF(CRSDATA!V220=\"\",\"\",CRSDATA!V220)","v":""},{"$f":"IF(CRSDATA!W220=\"\",\"\",CRSDATA!W220)","v":""},{"$f":"key_row(CRSDATA!X220,CRSDATA!Y220,CRSDATA!AL220,CRSDATA!AK220,CRSDATA!AJ220,CRSDATA!AM220,CRSDATA!P220,CRSDATA!V220)","v":""},{"$f":"CRSDATA!P220","v":0},{"$f":"CRSDATA!J220","v":0},{"$f":"CRSDATA!I220","v":0},null,{"$f":"IF(LEFT(CRSDATA!N220,2)=\"A0\",\"A00\",IF(LEFT(CRSDATA!N220,3)=\"B02\",\"B02\",IF(LEFT(CRSDATA!N220,3)=\"B03\",\"B03\",IF(CRSDATA!N220=\"B04\",\"C01\",IF(CRSDATA!N220=\"H01\",\"H00\",IF(OR(CRSDATA!N220=\"H02\",CRSDATA!N220=\"H03\",CRSDATA!N220=\"H04\",CRSDATA!N220=\"H05\",CRSDATA!N220=\"H06\"),\"I01\",IF(CRSDATA!N220=\"\",\"\",CRSDATA!N220)))))))","v":""},{"$f":"IF(AND(LEN(CRSDATA!M220)=4,LEFT(CRSDATA!M220,3)=\"110\"),1100,IF(AND(LEN(CRSDATA!M220)=4,LEFT(CRSDATA!M220,3)=\"422\"),422,CRSDATA!M220))","v":0},{"$f":"IF(CRSDATA!L220=22,\"FA04\",\"\")","v":""},{"$f":"IF(CRSDATA!K220=8,\"FC02\",\"\")","v":""},{"$f":"_xlfn.IFS(OR(P220=\"A00\",P220=\"E01\",P220=\"F01\",AND(P220=\"\",A220<>0),Q220=510,Q220=520,AF220=60),1,P220=\"G01\",IF(AF220=10,21,22),OR(M220=41203,M220=41204),22,OR(AND(OR(P220=\"B02\",P220=\"B03\"),M220=41310),OR(P220=\"E02\",P220=\"I01\")),21,AND(OR(P220=\"B01\",P220=\"B03\",P220=\"C01\"),M220<>41310),IF(VLOOKUP(F220,recipient_country!AB:AD,3,FALSE)=10024,\"\",1),AND(P220=\"B02\",M220<>41310),IF(VLOOKUP(M220,channel_codes!J:P,7,FALSE)=0,\"\",VLOOKUP(M220,channel_codes!J:P,7,FALSE)),ISNUMBER(MATCH(P220,{\"D01\",\"D02\"},0)),IF(VLOOKUP(M220,channel_codes!J:P,7,FALSE)=1,1,IF(VLOOKUP(F220,recipient_country!AB:AD,3,FALSE)=10024,\"\",1)),OR(P220=\"H01\",AND(OR(ISNUMBER(SEARCH(\"41010\", L220)),ISNUMBER(SEARCH(\"41020\", L220)),ISNUMBER(SEARCH(\"41030\", L220)),ISNUMBER(SEARCH(\"41040\", L220)),ISNUMBER(SEARCH(\"41081\", L220))),F220=998)),22,F220=998,22,TRUE,\"\")","v":""},{"$f":"CRSDATA!AN220","v":0},{"$f":"CRSDATA!AO220","v":0},{"$f":"CRSDATA!AQ220","v":0},{"$f":"CRSDATA!AS220","v":0},{"$f":"CRSDATA!BB220","v":0},null,"",{"$f":"IF(AND(AND(CRSDATA!C220<>\"\",CRSDATA!BK220<>\"\"),OR(CRSDATA!N220=421,CRSDATA!N220=422,CRSDATA!N220=4221,CRSDATA!N220=4222,CRSDATA!N220=423,CRSDATA!N220=424,CRSDATA!N220=425,CRSDATA!N220=431,CRSDATA!N220=433,CRSDATA!N220=434)),DATEDIF(CRSDATA!C220,CRSDATA!BK220,\"m\"),\"\")","v":""},{"$f":"CRSDATA!BA220","v":0},{"$f":"CRSDATA!BC220","v":0},{"$f":"IF(CRSDATA!BT220=\"\",\"\",CRSDATA!BT220)","v":""},{"$f":"CRSDATA!L220","v":0}]
[{"$f":"CRSDATA!A221","v":0},{"$f":"CRSDATA!C221","v":0},{"$f":"CRSDATA!D221","v":0},{"$f":"CRSDATA!F221","v":0},{"$f":"CRSDATA!E221","v":0},{"$f":"IF(CRSDATA!H221=3000,998,CRSDATA!H221)","v":0},{"$f":"CRSDATA!O221","v":0},{"$f":"CRSDATA!U221","v":0},{"$f":"IF(CRSDATA!V221=\"\",\"\",CRSDATA!V221)","v":""},{"$f":"IF(CRSDATA!W221=\"\",\"\",CRSDATA!W221)","v":""},{"$f":"key_row(CRSDATA!X221,CRSDATA!Y221,CRSDATA!AL221,CRSDATA!AK221,CRSDATA!AJ221,CRSDATA!AM221,CRSDATA!P221,CRSDATA!V221)","v":""},{"$f":"CRSDATA!P221","v":0},{"$f":"CRSDATA!J221","v":0},{"$f":"CRSDATA!I221","v":0},null,{"$f":"IF(LEFT(CRSDATA!N221,2)=\"A0\",\"A00\",IF(LEFT(CRSDATA!N221,3)=\"B02\",\"B02\",IF(LEFT(CRSDATA!N221,3)=\"B03\",\"B03\",IF(CRSDATA!N221=\"B04\",\"C01\",IF(CRSDATA!N221=\"H01\",\"H00\",IF(OR(CRSDATA!N221=\"H02\",CRSDATA!N221=\"H03\",CRSDATA!N221=\"H04\",CRSDATA!N221=\"H05\",CRSDATA!N221=\"H06\"),\"I01\",IF(CRSDATA!N221=\"\",\"\",CRSDATA!N221)))))))","v":""},{"$f":"IF(AND(LEN(CRSDATA!M221)=4,LEFT(CRSDATA!M221,3)=\"110\"),1100,IF(AND(LEN(CRSDATA!M221)=4,LEFT(CRSDATA!M221,3)=\"422\"),422,CRSDATA!M221))","v":0},{"$f":"IF(CRSDATA!L221=22,\"FA04\",\"\")","v":""},{"$f":"IF(CRSDATA!K221=8,\"FC02\",\"\")","v":""},{"$f":"_xlfn.IFS(OR(P221=\"A00\",P221=\"E01\",P221=\"F01\",AND(P221=\"\",A221<>0),Q221=510,Q221=520,AF221=60),1,P221=\"G01\",IF(AF221=10,21,22),OR(M221=41203,M221=41204),22,OR(AND(OR(P221=\"B02\",P221=\"B03\"),M221=41310),OR(P221=\"E02\",P221=\"I01\")),21,AND(OR(P221=\"B01\",P221=\"B03\",P221=\"C01\"),M221<>41310),IF(VLOOKUP(F221,recipient_country!AB:AD,3,FALSE)=10024,\"\",1),AND(P221=\"B02\",M221<>41310),IF(VLOOKUP(M221,channel_codes!J:P,7,FALSE)=0,\"\",VLOOKUP(M221,channel_codes!J:P,7,FALSE)),ISNUMBER(MATCH(P221,{\"D01\",\"D02\"},0)),IF(VLOOKUP(M221,channel_codes!J:P,7,FALSE)=1,1,IF(VLOOKUP(F221,recipient_country!AB:AD,3,FALSE)=10024,\"\",1)),OR(P221=\"H01\",AND(OR(ISNUMBER(SEARCH(\"41010\", L221)),ISNUMBER(SEARCH(\"41020\", L221)),ISNUMBER(SEARCH(\"41030\", L221)),ISNUMBER(SEARCH(\"41040\", L221)),ISNUMBER(SEARCH(\"41081\", L221))),F221=998)),22,F221=998,22,TRUE,\"\")","v":""},{"$f":"CRSDATA!AN221","v":0},{"$f":"CRSDATA!AO221","v":0},{"$f":"CRSDATA!AQ221","v":0},{"$f":"CRSDATA!AS221","v":0},{"$f":"CRSDATA!BB221","v":0},null,"",{"$f":"IF(AND(AND(CRSDATA!C221<>\"\",CRSDATA!BK221<>\"\"),OR(CRSDATA!N221=421,CRSDATA!N221=422,CRSDATA!N221=4221,CRSDATA!N221=4222,CRSDATA!N221=423,CRSDATA!N221=424,CRSDATA!N221=425,CRSDATA!N221=431,CRSDATA!N221=433,CRSDATA!N221=434)),DATEDIF(CRSDATA!C221,CRSDATA!BK221,\"m\"),\"\")","v":""},{"$f":"CRSDATA!BA221","v":0},{"$f":"CRSDATA!BC221","v":0},{"$f":"IF(CRSDATA!BT221=\"\",\"\",CRSDATA!BT221)","v":""},{"$f":"CRSDATA!L221","v":0}]
[{"$f":"CRSDATA!A222","v":0},{"$f":"CRSDATA!C222","v":0},{"$f":"CRSDATA!D222","v":0},{"$f":"CRSDATA!F222","v":0},{"$f":"CRSDATA!E222","v":0},{"$f":"IF(CRSDATA!H222=3000,998,CRSDATA!H222)","v":0},{"$f":"CRSDATA!O222","v":0},{"$f":"CRSDATA!U222","v":0},{"$f":"IF(CRSDATA!V222=\"\",\"\",CRSDATA!V222)","v":""},{"$f":"IF(CRSDATA!W222=\"\",\"\",CRSDATA!W222)","v":""},{"$f":"key_row(CRSDATA!X222,CRSDATA!Y222,CRSDATA!AL222,CRSDATA!AK222,CRSDATA!AJ222,CRSDATA!AM222,CRSDATA!P222,CRSDATA!V222)","v":""},{"$f":"CRSDATA!P222","v":0},{"$f":"CRSDATA!J222","v":0},{"$f":"CRSDATA!I222","v":0},null,{"$f":"IF(LEFT(CRSDATA!N222,2)=\"A0\",\"A00\",IF(LEFT(CRSDATA!N222,3)=\"B02\",\"B02\",IF(LEFT(CRSDATA!N222,3)=\"B03\",\"B03\",IF(CRSDATA!N222=\"B04\",\"C01\",IF(CRSDATA!N222=\"H01\",\"H00\",IF(OR(CRSDATA!N222=\"H02\",CRSDATA!N222=\"H03\",CRSDATA!N222=\"H04\",CRSDATA!N222=\"H05\",CRSDATA!N222=\"H06\"),\"I01\",IF(CRSDATA!N222=\"\",\"\",CRSDATA!N222)))))))","v":""},{"$f":"IF(AND(LEN(CRSDATA!M222)=4,LEFT(CRSDATA!M222,3)=\"110\"),1100,IF(AND(LEN(CRSDATA!M222)=4,LEFT(CRSDATA!M222,3)=\"422\"),422,CRSDATA!M222))","v":0},{"$f":"IF(CRSDATA!L222=22,\"FA04\",\"\")","v":""},{"$f":"IF(CRSDATA!K222=8,\"FC02\",\"\")","v":""},{"$f":"_xlfn.IFS(OR(P222=\"A00\",P222=\"E01\",P222=\"F01\",AND(P222=\"\",A222<>0),Q222=510,Q222=520,AF222=60),1,P222=\"G01\",IF(AF222=10,21,22),OR(M222=41203,M222=41204),22,OR(AND(OR(P222=\"B02\",P222=\"B03\"),M222=41310),OR(P222=\"E02\",P222=\"I01\")),21,AND(OR(P222=\"B01\",P222=\"B03\",P222=\"C01\"),M222<>41310),IF(VLOOKUP(F222,recipient_country!AB:AD,3,FALSE)=10024,\"\",1),AND(P222=\"B02\",M222<>41310),IF(VLOOKUP(M222,channel_codes!J:P,7,FALSE)=0,\"\",VLOOKUP(M222,channel_codes!J:P,7,FALSE)),ISNUMBER(MATCH(P222,{\"D01\",\"D02\"},0)),IF(VLOOKUP(M222,channel_codes!J:P,7,FALSE)=1,1,IF(VLOOKUP(F222,recipient_country!AB:AD,3,FALSE)=10024,\"\",1)),OR(P222=\"H01\",AND(OR(ISNUMBER(SEARCH(\"41010\", L222)),ISNUMBER(SEARCH(\"41020\", L222)),ISNUMBER(SEARCH(\"41030\", L222)),ISNUMBER(SEARCH(\"41040\", L222)),ISNUMBER(SEARCH(\"41081\", L222))),F222=998)),22,F222=998,22,TRUE,\"\")","v":""},{"$f":"CRSDATA!AN222","v":0},{"$f":"CRSDATA!AO222","v":0},{"$f":"CRSDATA!AQ222","v":0},{"$f":"CRSDATA!AS222","v":0},{"$f":"CRSDATA!BB222","v":0},null,"",{"$f":"IF(AND(AND(CRSDATA!C222<>\"\",CRSDATA!BK222<>\"\"),OR(CRSDATA!N222=421,CRSDATA!N222=422,CRSDATA!N222=4221,CRSDATA!N222=4222,CRSDATA!N222=423,CRSDATA!N222=424,CRSDATA!N222=425,CRSDATA!N222=431,CRSDATA!N222=433,CRSDATA!N222=434)),DATEDIF(CRSDATA!C222,CRSDATA!BK222,\"m\"),\"\")","v":""},{"$f":"CRSDATA!BA222","v":0},{"$f":"CRSDATA!BC222","v":0},{"$f":"IF(CRSDATA!BT222=\"\",\"\",CRSDATA!BT222)","v":""},{"$f":"CRSDATA!L222","v":0}]
[{"$f":"CRSDATA!A223","v":0},{"$f":"CRSDATA!C223","v":0},{"$f":"CRSDATA!D223","v":0},{"$f":"CRSDATA!F223","v":0},{"$f":"CRSDATA!E223","v":0},{"$f":"IF(CRSDATA!H223=3000,998,CRSDATA!H223)","v":0},{"$f":"CRSDATA!O223","v":0},{"$f":"CRSDATA!U223","v":0},{"$f":"IF(CRSDATA!V223=\"\",\"\",CRSDATA!V223)","v":""},{"$f":"IF(CRSDATA!W223=\"\",\"\",CRSDATA!W223)","v":""},{"$f":"key_row(CRSDATA!X223,CRSDATA!Y223,CRSDATA!AL223,CRSDATA!AK223,CRSDATA!AJ223,CRSDATA!AM223,CRSDATA!P223,CRSDATA!V223)","v":""},{"$f":"CRSDATA!P223","v":0},{"$f":"CRSDATA!J223","v":0},{"$f":"CRSDATA!I223","v":0},null,{"$f":"IF(LEFT(CRSDATA!N223,2)=\"A0\",\"A00\",IF(LEFT(CRSDATA!N223,3)=\"B02\",\"B02\",IF(LEFT(CRSDATA!N223,3)=\"B03\",\"B03\",IF(CRSDATA!N223=\"B04\",\"C01\",IF(CRSDATA!N223=\"H01\",\"H00\",IF(OR(CRSDATA!N223=\"H02\",CRSDATA!N223=\"H03\",CRSDATA!N223=\"H04\",CRSDATA!N223=\"H05\",CRSDATA!N223=\"H06\"),\"I01\",IF(CRSDATA!N223=\"\",\"\",CRSDATA!N223)))))))","v":""},{"$f":"IF(AND(LEN(CRSDATA!M223)=4,LEFT(CRSDATA!M223,3)=\"110\"),1100,IF(AND(LEN(CRSDATA!M223)=4,LEFT(CRSDATA!M223,3)=\"422\"),422,CRSDATA!M223))","v":0},{"$f":"IF(CRSDATA!L223=22,\"FA04\",\"\")","v":""},{"$f":"IF(CRSDATA!K223=8,\"FC02\",\"\")","v":""},{"$f":"_xlfn.IFS(OR(P223=\"A00\",P223=\"E01\",P223=\"F01\",AND(P223=\"\",A223<>0),Q223=510,Q223=520,AF223=60),1,P223=\"G01\",IF(AF223=10,21,22),OR(M223=41203,M223=41204),22,OR(AND(OR(P223=\"B02\",P223=\"B03\"),M223=41310),OR(P223=\"E02\",P223=\"I01\")),21,AND(OR(P223=\"B01\",P223=\"B03\",P223=\"C01\"),M223<>41310),IF(VLOOKUP(F223,recipient_country!AB:AD,3,FALSE)=10024,\"\",1),AND(P223=\"B02\",M223<>41310),IF(VLOOKUP(M223,channel_codes!J:P,7,FALSE)=0,\"\",VLOOKUP(M223,channel_codes!J:P,7,FALSE)),ISNUMBER(MATCH(P223,{\"D01\",\"D02\"},0)),IF(VLOOKUP(M223,channel_codes!J:P,7,FALSE)=1,1,IF(VLOOKUP(F223,recipient_country!AB:AD,3,FALSE)=10024,\"\",1)),OR(P223=\"H01\",AND(OR(ISNUMBER(SEARCH(\"41010\", L223)),ISNUMBER(SEARCH(\"41020\", L223)),ISNUMBER(SEARCH(\"41030\", L223)),ISNUMBER(SEARCH(\"41040\", L223)),ISNUMBER(SEARCH(\"41081\", L223))),F223=998)),22,F223=998,22,TRUE,\"\")","v":""},{"$f":"CRSDATA!AN223","v":0},{"$f":"CRSDATA!AO223","v":0},{"$f":"CRSDATA!AQ223","v":0},{"$f":"CRSDATA!AS223","v":0},{"$f":"CRSDATA!BB223","v":0},null,"",{"$f":"IF(AND(AND(CRSDATA!C223<>\"\",CRSDATA!BK223<>\"\"),OR(CRSDATA!N223=421,CRSDATA!N223=422,CRSDATA!N223=4221,CRSDATA!N223=4222,CRSDATA!N223=423,CRSDATA!N223=424,CRSDATA!N223=425,CRSDATA!N223=431,CRSDATA!N223=433,CRSDATA!N223=434)),DATEDIF(CRSDATA!C223,CRSDATA!BK223,\"m\"),\"\")","v":""},{"$f":"CRSDATA!BA223","v":0},{"$f":"CRSDATA!BC223","v":0},{"$f":"IF(CRSDATA!BT223=\"\",\"\",CRSDATA!BT223)","v":""},{"$f":"CRSDATA!L223","v":0}]
[{"$f":"CRSDATA!A224","v":0},{"$f":"CRSDATA!C224","v":0},{"$f":"CRSDATA!D224","v":0},{"$f":"CRSDATA!F224","v":0},{"$f":"CRSDATA!E224","v":0},{"$f":"IF(CRSDATA!H224=3000,998,CRSDATA!H224)","v":0},{"$f":"CRSDATA!O224","v":0},{"$f":"CRSDATA!U224","v":0},{"$f":"IF(CRSDATA!V224=\"\",\"\",CRSDATA!V224)","v":""},{"$f":"IF(CRSDATA!W224=\"\",\"\",CRSDATA!W224)","v":""},{"$f":"key_row(CRSDATA!X224,CRSDATA!Y224,CRSDATA!AL224,CRSDATA!AK224,CRSDATA!AJ224,CRSDATA!AM224,CRSDATA!P224,CRSDATA!V224)","v":""},{"$f":"CRSDATA!P224","v":0},{"$f":"CRSDATA!J224","v":0},{"$f":"CRSDATA!I224","v":0},null,{"$f":"IF(LEFT(CRSDATA!N224,2)=\"A0\",\"A00\",IF(LEFT(CRSDATA!N224,3)=\"B02\",\"B02\",IF(LEFT(CRSDATA!N224,3)=\"B03\",\"B03\",IF(CRSDATA!N224=\"B04\",\"C01\",IF(CRSDATA!N224=\"H01\",\"H00\",IF(OR(CRSDATA!N224=\"H02\",CRSDATA!N224=\"H03\",CRSDATA!N224=\"H04\",CRSDATA!N224=\"H05\",CRSDATA!N224=\"H06\"),\"I01\",IF(CRSDATA!N224=\"\",\"\",CRSDATA!N224)))))))","v":""},{"$f":"IF(AND(LEN(CRSDATA!M224)=4,LEFT(CRSDATA!M224,3)=\"110\"),1100,IF(AND(LEN(CRSDATA!M224)=4,LEFT(CRSDATA!M224,3)=\"422\"),422,CRSDATA!M224))","v":0},{"$f":"IF(CRSDATA!L224=22,\"FA04\",\"\")","v":""},{"$f":"IF(CRSDATA!K224=8,\"FC02\",\"\")","v":""},{"$f":"_xlfn.IFS(OR(P224=\"A00\",P224=\"E01\",P224=\"F01\",AND(P224=\"\",A224<>0),Q224=510,Q224=520,AF224=60),1,P224=\"G01\",IF(AF224=10,21,22),OR(M224=41203,M224=41204),22,OR(AND(OR(P224=\"B02\",P224=\"B03\"),M224=41310),OR(P224=\"E02\",P224=\"I01\")),21,AND(OR(P224=\"B01\",P224=\"B03\",P224=\"C01\"),M224<>41310),IF(VLOOKUP(F224,recipient_country!AB:AD,3,FALSE)=10024,\"\",1),AND(P224=\"B02\",M224<>41310),IF(VLOOKUP(M224,channel_codes!J:P,7,FALSE)=0,\"\",VLOOKUP(M224,channel_codes!J:P,7,FALSE)),ISNUMBER(MATCH(P224,{\"D01\",\"D02\"},0)),IF(VLOOKUP(M224,channel_codes!J:P,7,FALSE)=1,1,IF(VLOOKUP(F224,recipient_country!AB:AD,3,FALSE)=10024,\"\",1)),OR(P224=\"H01\",AND(OR(ISNUMBER(SEARCH(\"41010\", L224)),ISNUMBER(SEARCH(\"41020\", L224)),ISNUMBER(SEARCH(\"41030\", L224)),ISNUMBER(SEARCH(\"41040\", L224)),ISNUMBER(SEARCH(\"41081\", L224))),F224=998)),22,F224=998,22,TRUE,\"\")","v":""},{"$f":"CRSDATA!AN224","v":0},{"$f":"CRSDATA!AO224","v":0},{"$f":"CRSDATA!AQ224","v":0},{"$f":"CRSDATA!AS224","v":0},{"$f":"CRSDATA!BB224","v":0},null,"",{"$f":"IF(AND(AND(CRSDATA!C224<>\"\",CRSDATA!BK224<>\"\"),OR(CRSDATA!N224=421,CRSDATA!N224=422,CRSDATA!N224=4221,CRSDATA!N224=4222,CRSDATA!N224=423,CRSDATA!N224=424,CRSDATA!N224=425,CRSDATA!N224=431,CRSDATA!N224=433,CRSDATA!N224=434)),DATEDIF(CRSDATA!C224,CRSDATA!BK224,\"m\"),\"\")","v":""},{"$f":"CRSDATA!BA224","v":0},{"$f":"CRSDATA!BC224","v":0},{"$f":"IF(CRSDATA!BT224=\"\",\"\",CRSDATA!BT224)","v":""},{"$f":"CRSDATA!L224","v":0}]
[{"$f":"CRSDATA!A225","v":0},{"$f":"CRSDATA!C225","v":0},{"$f":"CRSDATA!D225","v":0},{"$f":"CRSDATA!F225","v":0},{"$f":"CRSDATA!E225","v":0},{"$f":"IF(CRSDATA!H225=3000,998,CRSDATA!H225)","v":0},{"$f":"CRSDATA!O225","v":0},{"$f":"CRSDATA!U225","v":0},{"$f":"IF(CRSDATA!V225=\"\",\"\",CRSDATA!V225)","v":""},{"$f":"IF(CRSDATA!W225=\"\",\"\",CRSDATA!W225)","v":""},{"$f":"key_row(CRSDATA!X225,CRSDATA!Y225,CRSDATA!AL225,CRSDATA!AK225,CRSDATA!AJ225,CRSDATA!AM225,CRSDATA!P225,CRSDATA!V225)","v":""},{"$f":"CRSDATA!P225","v":0},{"$f":"CRSDATA!J225","v":0},{"$f":"CRSDATA!I225","v":0},null,{"$f":"IF(LEFT(CRSDATA!N225,2)=\"A0\",\"A00\",IF(LEFT(CRSDATA!N225,3)=\"B02\",\"B02\",IF(LEFT(CRSDATA!N225,3)=\"B03\",\"B03\",IF(CRSDATA!N225=\"B04\",\"C01\",IF(CRSDATA!N225=\"H01\",\"H00\",IF(OR(CRSDATA!N225=\"H02\",CRSDATA!N225=\"H03\",CRSDATA!N225=\"H04\",CRSDATA!N225=\"H05\",CRSDATA!N225=\"H06\"),\"I01\",IF(CRSDATA!N225=\"\",\"\",CRSDATA!N225)))))))","v":""},{"$f":"IF(AND(LEN(CRSDATA!M225)=4,LEFT(CRSDATA!M225,3)=\"110\"),1100,IF(AND(LEN(CRSDATA!M225)=4,LEFT(CRSDATA!M225,3)=\"422\"),422,CRSDATA!M225))","v":0},{"$f":"IF(CRSDATA!L225=22,\"FA04\",\"\")","v":""},{"$f":"IF(CRSDATA!K225=8,\"FC02\",\"\")","v":""},{"$f":"_xlfn.IFS(OR(P225=\"A00\",P225=\"E01\",P225=\"F01\",AND(P225=\"\",A225<>0),Q225=510,Q225=520,AF225=60),1,P225=\"G01\",IF(AF225=10,21,22),OR(M225=41203,M225=41204),22,OR(AND(OR(P225=\"B02\",P225=\"B03\"),M225=41310),OR(P225=\"E02\",P225=\"I01\")),21,AND(OR(P225=\"B01\",P225=\"B03\",P225=\"C01\"),M225<>41310),IF(VLOOKUP(F225,recipient_country!AB:AD,3,FALSE)=10024,\"\",1),AND(P225=\"B02\",M225<>41310),IF(VLOOKUP(M225,channel_codes!J:P,7,FALSE)=0,\"\",VLOOKUP(M225,channel_codes!J:P,7,FALSE)),ISNUMBER(MATCH(P225,{\"D01\",\"D02\"},0)),IF(VLOOKUP(M225,channel_codes!J:P,7,FALSE)=1,1,IF(VLOOKUP(F225,recipient_country!AB:AD,3,FALSE)=10024,\"\",1)),OR(P225=\"H01\",AND(OR(ISNUMBER(SEARCH(\"41010\", L225)),ISNUMBER(SEARCH(\"41020\", L225)),ISNUMBER(SEARCH(\"41030\", L225)),ISNUMBER(SEARCH(\"41040\", L225)),ISNUMBER(SEARCH(\"41081\", L225))),F225=998)),22,F225=998,22,TRUE,\"\")","v":""},{"$f":"CRSDATA!AN225","v":0},{"$f":"CRSDATA!AO225","v":0},{"$f":"CRSDATA!AQ225","v":0},{"$f":"CRSDATA!AS225","v":0},{"$f":"CRSDATA!BB225","v":0},null,"",{"$f":"IF(AND(AND(CRSDATA!C225<>\"\",CRSDATA!BK225<>\"\"),OR(CRSDATA!N225=421,CRSDATA!N225=422,CRSDATA!N225=4221,CRSDATA!N225=4222,CRSDATA!N225=423,CRSDATA!N225=424,CRSDATA!N225=425,CRSDATA!N225=431,CRSDATA!N225=433,CRSDATA!N225=434)),DATEDIF(CRSDATA!C225,CRSDATA!BK225,\"m\"),\"\")","v":""},{"$f":"CRSDATA!BA225","v":0},{"$f":"CRSDATA!BC225","v":0},{"$f":"IF(CRSDATA!BT225=\"\",\"\",CRSDATA!BT225)","v":""},{"$f":"CRSDATA!L225","v":0}]
[{"$f":"CRSDATA!A226","v":0},{"$f":"CRSDATA!C226","v":0},{"$f":"CRSDATA!D226","v":0},{"$f":"CRSDATA!F226","v":0},{"$f":"CRSDATA!E226","v":0},{"$f":"IF(CRSDATA!H226=3000,998,CRSDATA!H226)","v":0},{"$f":"CRSDATA!O226","v":0},{"$f":"CRSDATA!U226","v":0},{"$f":"IF(CRSDATA!V226=\"\",\"\",CRSDATA!V226)","v":""},{"$f":"IF(CRSDATA!W226=\"\",\"\",CRSDATA!W226)","v":""},{"$f":"key_row(CRSDATA!X226,CRSDATA!Y226,CRSDATA!AL226,CRSDATA!AK226,CRSDATA!AJ226,CRSDATA!AM226,CRSDATA!P226,CRSDATA!V226)","v":""},{"$f":"CRSDATA!P226","v":0},{"$f":"CRSDATA!J226","v":0},{"$f":"CRSDATA!I226","v":0},null,{"$f":"IF(LEFT(CRSDATA!N226,2)=\"A0\",\"A00\",IF(LEFT(CRSDATA!N226,3)=\"B02\",\"B02\",IF(LEFT(CRSDATA!N226,3)=\"B03\",\"B03\",IF(CRSDATA!N226=\"B04\",\"C01\",IF(CRSDATA!N226=\"H01\",\"H00\",IF(OR(CRSDATA!N226=\"H02\",CRSDATA!N226=\"H03\",CRSDATA!N226=\"H04\",CRSDATA!N226=\"H05\",CRSDATA!N226=\"H06\"),\"I01\",IF(CRSDATA!N226=\"\",\"\",CRSDATA!N226)))))))","v":""},{"$f":"IF(AND(LEN(CRSDATA!M226)=4,LEFT(CRSDATA!M226,3)=\"110\"),1100,IF(AND(LEN(CRSDATA!M226)=4,LEFT(CRSDATA!M226,3)=\"422\"),422,CRSDATA!M226))","v":0},{"$f":"IF(CRSDATA!L226=22,\"FA04\",\"\")","v":""},{"$f":"IF(CRSDATA!K226=8,\"FC02\",\"\")","v":""},{"$f":"_xlfn.IFS(OR(P226=\"A00\",P226=\"E01\",P226=\"F01\",AND(P226=\"\",A226<>0),Q226=510,Q226=520,AF226=60),1,P226=\"G01\",IF(AF226=10,21,22),OR(M226=41203,M226=41204),22,OR(AND(OR(P226=\"B02\",P226=\"B03\"),M226=41310),OR(P226=\"E02\",P226=\"I01\")),21,AND(OR(P226=\"B01\",P226=\"B03\",P226=\"C01\"),M226<>41310),IF(VLOOKUP(F226,recipient_country!AB:AD,3,FALSE)=10024,\"\",1),AND(P226=\"B02\",M226<>41310),IF(VLOOKUP(M226,channel_codes!J:P,7,FALSE)=0,\"\",VLOOKUP(M226,channel_codes!J:P,7,FALSE)),ISNUMBER(MATCH(P226,{\"D01\",\"D02\"},0)),IF(VLOOKUP(M226,channel_codes!J:P,7,FALSE)=1,1,IF(VLOOKUP(F226,recipient_country!AB:AD,3,FALSE)=10024,\"\",1)),OR(P226=\"H01\",AND(OR(ISNUMBER(SEARCH(\"41010\", L226)),ISNUMBER(SEARCH(\"41020\", L226)),ISNUMBER(SEARCH(\"41030\", L226)),ISNUMBER(SEARCH(\"41040\", L226)),ISNUMBER(SEARCH(\"41081\", L226))),F226=998)),22,F226=998,22,TRUE,\"\")","v":""},{"$f":"CRSDATA!AN226","v":0},{"$f":"CRSDATA!AO226","v":0},{"$f":"CRSDATA!AQ226","v":0},{"$f":"CRSDATA!AS226","v":0},{"$f":"CRSDATA!BB226","v":0},null,"",{"$f":"IF(AND(AND(CRSDATA!C226<>\"\",CRSDATA!BK226<>\"\"),OR(CRSDATA!N226=421,CRSDATA!N226=422,CRSDATA!N226=4221,CRSDATA!N226=4222,CRSDATA!N226=423,CRSDATA!N226=424,CRSDATA!N226=425,CRSDATA!N226=431,CRSDATA!N226=433,CRSDATA!N226=434)),DATEDIF(CRSDATA!C226,CRSDATA!BK226,\"m\"),\"\")","v":""},{"$f":"CRSDATA!BA226","v":0},{"$f":"CRSDATA!BC226","v":0},{"$f":"IF(CRSDATA!BT226=\"\",\"\",CRSDATA!BT226)","v":""},{"$f":"CRSDATA!L226","v":0}]
[{"$f":"CRSDATA!A227","v":0},{"$f":"CRSDATA!C227","v":0},{"$f":"CRSDATA!D227","v":0},{"$f":"CRSDATA!F227","v":0},{"$f":"CRSDATA!E227","v":0},{"$f":"IF(CRSDATA!H227=3000,998,CRSDATA!H227)","v":0},{"$f":"CRSDATA!O227","v":0},{"$f":"CRSDATA!U227","v":0},{"$f":"IF(CRSDATA!V227=\"\",\"\",CRSDATA!V227)","v":""},{"$f":"IF(CRSDATA!W227=\"\",\"\",CRSDATA!W227)","v":""},{"$f":"key_row(CRSDATA!X227,CRSDATA!Y227,CRSDATA!AL227,CRSDATA!AK227,CRSDATA!AJ227,CRSDATA!AM227,CRSDATA!P227,CRSDATA!V227)","v":""},{"$f":"CRSDATA!P227","v":0},{"$f":"CRSDATA!J227","v":0},{"$f":"CRSDATA!I227","v":0},null,{"$f":"IF(LEFT(CRSDATA!N227,2)=\"A0\",\"A00\",IF(LEFT(CRSDATA!N227,3)=\"B02\",\"B02\",IF(LEFT(CRSDATA!N227,3)=\"B03\",\"B03\",IF(CRSDATA!N227=\"B04\",\"C01\",IF(CRSDATA!N227=\"H01\",\"H00\",IF(OR(CRSDATA!N227=\"H02\",CRSDATA!N227=\"H03\",CRSDATA!N227=\"H04\",CRSDATA!N227=\"H05\",CRSDATA!N227=\"H06\"),\"I01\",IF(CRSDATA!N227=\"\",\"\",CRSDATA!N227)))))))","v":""},{"$f":"IF(AND(LEN(CRSDATA!M227)=4,LEFT(CRSDATA!M227,3)=\"110\"),1100,IF(AND(LEN(CRSDATA!M227)=4,LEFT(CRSDATA!M227,3)=\"422\"),422,CRSDATA!M227))","v":0},{"$f":"IF(CRSDATA!L227=22,\"FA04\",\"\")","v":""},{"$f":"IF(CRSDATA!K227=8,\"FC02\",\"\")","v":""},{"$f":"_xlfn.IFS(OR(P227=\"A00\",P227=\"E01\",P227=\"F01\",AND(P227=\"\",A227<>0),Q227=510,Q227=520,AF227=60),1,P227=\"G01\",IF(AF227=10,21,22),OR(M227=41203,M227=41204),22,OR(AND(OR(P227=\"B02\",P227=\"B03\"),M227=41310),OR(P227=\"E02\",P227=\"I01\")),21,AND(OR(P227=\"B01\",P227=\"B03\",P227=\"C01\"),M227<>41310),IF(VLOOKUP(F227,recipient_country!AB:AD,3,FALSE)=10024,\"\",1),AND(P227=\"B02\",M227<>41310),IF(VLOOKUP(M227,channel_codes!J:P,7,FALSE)=0,\"\",VLOOKUP(M227,channel_codes!J:P,7,FALSE)),ISNUMBER(MATCH(P227,{\"D01\",\"D02\"},0)),IF(VLOOKUP(M227,channel_codes!J:P,7,FALSE)=1,1,IF(VLOOKUP(F227,recipient_country!AB:AD,3,FALSE)=10024,\"\",1)),OR(P227=\"H01\",AND(OR(ISNUMBER(SEARCH(\"41010\", L227)),ISNUMBER(SEARCH(\"41020\", L227)),ISNUMBER(SEARCH(\"41030\", L227)),ISNUMBER(SEARCH(\"41040\", L227)),ISNUMBER(SEARCH(\"41081\", L227))),F227=998)),22,F227=998,22,TRUE,\"\")","v":""},{"$f":"CRSDATA!AN227","v":0},{"$f":"CRSDATA!AO227","v":0},{"$f":"CRSDATA!AQ227","v":0},{"$f":"CRSDATA!AS227","v":0},{"$f":"CRSDATA!BB227","v":0},null,"",{"$f":"IF(AND(AND(CRSDATA!C227<>\"\",CRSDATA!BK227<>\"\"),OR(CRSDATA!N227=421,CRSDATA!N227=422,CRSDATA!N227=4221,CRSDATA!N227=4222,CRSDATA!N227=423,CRSDATA!N227=424,CRSDATA!N227=425,CRSDATA!N227=431,CRSDATA!N227=433,CRSDATA!N227=434)),DATEDIF(CRSDATA!C227,CRSDATA!BK227,\"m\"),\"\")","v":""},{"$f":"CRSDATA!BA227","v":0},{"$f":"CRSDATA!BC227","v":0},{"$f":"IF(CRSDATA!BT227=\"\",\"\",CRSDATA!BT227)","v":""},{"$f":"CRSDATA!L227","v":0}]
[{"$f":"CRSDATA!A228","v":0},{"$f":"CRSDATA!C228","v":0},{"$f":"CRSDATA!D228","v":0},{"$f":"CRSDATA!F228","v":0},{"$f":"CRSDATA!E228","v":0},{"$f":"IF(CRSDATA!H228=3000,998,CRSDATA!H228)","v":0},{"$f":"CRSDATA!O228","v":0},{"$f":"CRSDATA!U228","v":0},{"$f":"IF(CRSDATA!V228=\"\",\"\",CRSDATA!V228)","v":""},{"$f":"IF(CRSDATA!W228=\"\",\"\",CRSDATA!W228)","v":""},{"$f":"key_row(CRSDATA!X228,CRSDATA!Y228,CRSDATA!AL228,CRSDATA!AK228,CRSDATA!AJ228,CRSDATA!AM228,CRSDATA!P228,CRSDATA!V228)","v":""},{"$f":"CRSDATA!P228","v":0},{"$f":"CRSDATA!J228","v":0},{"$f":"CRSDATA!I228","v":0},null,{"$f":"IF(LEFT(CRSDATA!N228,2)=\"A0\",\"A00\",IF(LEFT(CRSDATA!N228,3)=\"B02\",\"B02\",IF(LEFT(CRSDATA!N228,3)=\"B03\",\"B03\",IF(CRSDATA!N228=\"B04\",\"C01\",IF(CRSDATA!N228=\"H01\",\"H00\",IF(OR(CRSDATA!N228=\"H02\",CRSDATA!N228=\"H03\",CRSDATA!N228=\"H04\",CRSDATA!N228=\"H05\",CRSDATA!N228=\"H06\"),\"I01\",IF(CRSDATA!N228=\"\",\"\",CRSDATA!N228)))))))","v":""},{"$f":"IF(AND(LEN(CRSDATA!M228)=4,LEFT(CRSDATA!M228,3)=\"110\"),1100,IF(AND(LEN(CRSDATA!M228)=4,LEFT(CRSDATA!M228,3)=\"422\"),422,CRSDATA!M228))","v":0},{"$f":"IF(CRSDATA!L228=22,\"FA04\",\"\")","v":""},{"$f":"IF(CRSDATA!K228=8,\"FC02\",\"\")","v":""},{"$f":"_xlfn.IFS(OR(P228=\"A00\",P228=\"E01\",P228=\"F01\",AND(P228=\"\",A228<>0),Q228=510,Q228=520,AF228=60),1,P228=\"G01\",IF(AF228=10,21,22),OR(M228=41203,M228=41204),22,OR(AND(OR(P228=\"B02\",P228=\"B03\"),M228=41310),OR(P228=\"E02\",P228=\"I01\")),21,AND(OR(P228=\"B01\",P228=\"B03\",P228=\"C01\"),M228<>41310),IF(VLOOKUP(F228,recipient_country!AB:AD,3,FALSE)=10024,\"\",1),AND(P228=\"B02\",M228<>41310),IF(VLOOKUP(M228,channel_codes!J:P,7,FALSE)=0,\"\",VLOOKUP(M228,channel_codes!J:P,7,FALSE)),ISNUMBER(MATCH(P228,{\"D01\",\"D02\"},0)),IF(VLOOKUP(M228,channel_codes!J:P,7,FALSE)=1,1,IF(VLOOKUP(F228,recipient_country!AB:AD,3,FALSE)=10024,\"\",1)),OR(P228=\"H01\",AND(OR(ISNUMBER(SEARCH(\"41010\", L228)),ISNUMBER(SEARCH(\"41020\", L228)),ISNUMBER(SEARCH(\"41030\", L228)),ISNUMBER(SEARCH(\"41040\", L228)),ISNUMBER(SEARCH(\"41081\", L228))),F228=998)),22,F228=998,22,TRUE,\"\")","v":""},{"$f":"CRSDATA!AN228","v":0},{"$f":"CRSDATA!AO228","v":0},{"$f":"CRSDATA!AQ228","v":0},{"$f":"CRSDATA!AS228","v":0},{"$f":"CRSDATA!BB228","v":0},null,"",{"$f":"IF(AND(AND(CRSDATA!C228<>\"\",CRSDATA!BK228<>\"\"),OR(CRSDATA!N228=421,CRSDATA!N228=422,CRSDATA!N228=4221,CRSDATA!N228=4222,CRSDATA!N228=423,CRSDATA!N228=424,CRSDATA!N228=425,CRSDATA!N228=431,CRSDATA!N228=433,CRSDATA!N228=434)),DATEDIF(CRSDATA!C228,CRSDATA!BK228,\"m\"),\"\")","v":""},{"$f":"CRSDATA!BA228","v":0},{"$f":"CRSDATA!BC228","v":0},{"$f":"IF(CRSDATA!BT228=\"\",\"\",CRSDATA!BT228)","v":""},{"$f":"CRSDATA!L228","v":0}]
[{"$f":"CRSDATA!A229","v":0},{"$f":"CRSDATA!C229","v":0},{"$f":"CRSDATA!D229","v":0},{"$f":"CRSDATA!F229","v":0},{"$f":"CRSDATA!E229","v":0},{"$f":"IF(CRSDATA!H229=3000,998,CRSDATA!H229)","v":0},{"$f":"CRSDATA!O229","v":0},{"$f":"CRSDATA!U229","v":0},{"$f":"IF(CRSDATA!V229=\"\",\"\",CRSDATA!V229)","v":""},{"$f":"IF(CRSDATA!W229=\"\",\"\",CRSDATA!W229)","v":""},{"$f":"key_row(CRSDATA!X229,CRSDATA!Y229,CRSDATA!AL229,CRSDATA!AK229,CRSDATA!AJ229,CRSDATA!AM229,CRSDATA!P229,CRSDATA!V229)","v":""},{"$f":"CRSDATA!P229","v":0},{"$f":"CRSDATA!J229","v":0},{"$f":"CRSDATA!I229","v":0},null,{"$f":"IF(LEFT(CRSDATA!N229,2)=\"A0\",\"A00\",IF(LEFT(CRSDATA!N229,3)=\"B02\",\"B02\",IF(LEFT(CRSDATA!N229,3)=\"B03\",\"B03\",IF(CRSDATA!N229=\"B04\",\"C01\",IF(CRSDATA!N229=\"H01\",\"H00\",IF(OR(CRSDATA!N229=\"H02\",CRSDATA!N229=\"H03\",CRSDATA!N229=\"H04\",CRSDATA!N229=\"H05\",CRSDATA!N229=\"H06\"),\"I01\",IF(CRSDATA!N229=\"\",\"\",CRSDATA!N229)))))))","v":""},{"$f":"IF(AND(LEN(CRSDATA!M229)=4,LEFT(CRSDATA!M229,3)=\"110\"),1100,IF(AND(LEN(CRSDATA!M229)=4,LEFT(CRSDATA!M229,3)=\"422\"),422,CRSDATA!M229))","v":0},{"$f":"IF(CRSDATA!L229=22,\"FA04\",\"\")","v":""},{"$f":"IF(CRSDATA!K229=8,\"FC02\",\"\")","v":""},{"$f":"_xlfn.IFS(OR(P229=\"A00\",P229=\"E01\",P229=\"F01\",AND(P229=\"\",A229<>0),Q229=510,Q229=520,AF229=60),1,P229=\"G01\",IF(AF229=10,21,22),OR(M229=41203,M229=41204),22,OR(AND(OR(P229=\"B02\",P229=\"B03\"),M229=41310),OR(P229=\"E02\",P229=\"I01\")),21,AND(OR(P229=\"B01\",P229=\"B03\",P229=\"C01\"),M229<>41310),IF(VLOOKUP(F229,recipient_country!AB:AD,3,FALSE)=10024,\"\",1),AND(P229=\"B02\",M229<>41310),IF(VLOOKUP(M229,channel_codes!J:P,7,FALSE)=0,\"\",VLOOKUP(M229,channel_codes!J:P,7,FALSE)),ISNUMBER(MATCH(P229,{\"D01\",\"D02\"},0)),IF(VLOOKUP(M229,channel_codes!J:P,7,FALSE)=1,1,IF(VLOOKUP(F229,recipient_country!AB:AD,3,FALSE)=10024,\"\",1)),OR(P229=\"H01\",AND(OR(ISNUMBER(SEARCH(\"41010\", L229)),ISNUMBER(SEARCH(\"41020\", L229)),ISNUMBER(SEARCH(\"41030\", L229)),ISNUMBER(SEARCH(\"41040\", L229)),ISNUMBER(SEARCH(\"41081\", L229))),F229=998)),22,F229=998,22,TRUE,\"\")","v":""},{"$f":"CRSDATA!AN229","v":0},{"$f":"CRSDATA!AO229","v":0},{"$f":"CRSDATA!AQ229","v":0},{"$f":"CRSDATA!AS229","v":0},{"$f":"CRSDATA!BB229","v":0},null,"",{"$f":"IF(AND(AND(CRSDATA!C229<>\"\",CRSDATA!BK229<>\"\"),OR(CRSDATA!N229=421,CRSDATA!N229=422,CRSDATA!N229=4221,CRSDATA!N229=4222,CRSDATA!N229=423,CRSDATA!N229=424,CRSDATA!N229=425,CRSDATA!N229=431,CRSDATA!N229=433,CRSDATA!N229=434)),DATEDIF(CRSDATA!C229,CRSDATA!BK229,\"m\"),\"\")","v":""},{"$f":"CRSDATA!BA229","v":0},{"$f":"CRSDATA!BC229","v":0},{"$f":"IF(CRSDATA!BT229=\"\",\"\",CRSDATA!BT229)","v":""},{"$f":"CRSDATA!L229","v":0}]
[{"$f":"CRSDATA!A230","v":0},{"$f":"CRSDATA!C230","v":0},{"$f":"CRSDATA!D230","v":0},{"$f":"CRSDATA!F230","v":0},{"$f":"CRSDATA!E230","v":0},{"$f":"IF(CRSDATA!H230=3000,998,CRSDATA!H230)","v":0},{"$f":"CRSDATA!O230","v":0},{"$f":"CRSDATA!U230","v":0},{"$f":"IF(CRSDATA!V230=\"\",\"\",CRSDATA!V230)","v":""},{"$f":"IF(CRSDATA!W230=\"\",\"\",CRSDATA!W230)","v":""},{"$f":"key_row(CRSDATA!X230,CRSDATA!Y230,CRSDATA!AL230,CRSDATA!AK230,CRSDATA!AJ230,CRSDATA!AM230,CRSDATA!P230,CRSDATA!V230)","v":""},{"$f":"CRSDATA!P230","v":0},{"$f":"CRSDATA!J230","v":0},{"$f":"CRSDATA!I230","v":0},null,{"$f":"IF(LEFT(CRSDATA!N230,2)=\"A0\",\"A00\",IF(LEFT(CRSDATA!N230,3)=\"B02\",\"B02\",IF(LEFT(CRSDATA!N230,3)=\"B03\",\"B03\",IF(CRSDATA!N230=\"B04\",\"C01\",IF(CRSDATA!N230=\"H01\",\"H00\",IF(OR(CRSDATA!N230=\"H02\",CRSDATA!N230=\"H03\",CRSDATA!N230=\"H04\",CRSDATA!N230=\"H05\",CRSDATA!N230=\"H06\"),\"I01\",IF(CRSDATA!N230=\"\",\"\",CRSDATA!N230)))))))","v":""},{"$f":"IF(AND(LEN(CRSDATA!M230)=4,LEFT(CRSDATA!M230,3)=\"110\"),1100,IF(AND(LEN(CRSDATA!M230)=4,LEFT(CRSDATA!M230,3)=\"422\"),422,CRSDATA!M230))","v":0},{"$f":"IF(CRSDATA!L230=22,\"FA04\",\"\")","v":""},{"$f":"IF(CRSDATA!K230=8,\"FC02\",\"\")","v":""},{"$f":"_xlfn.IFS(OR(P230=\"A00\",P230=\"E01\",P230=\"F01\",AND(P230=\"\",A230<>0),Q230=510,Q230=520,AF230=60),1,P230=\"G01\",IF(AF230=10,21,22),OR(M230=41203,M230=41204),22,OR(AND(OR(P230=\"B02\",P230=\"B03\"),M230=41310),OR(P230=\"E02\",P230=\"I01\")),21,AND(OR(P230=\"B01\",P230=\"B03\",P230=\"C01\"),M230<>41310),IF(VLOOKUP(F230,recipient_country!AB:AD,3,FALSE)=10024,\"\",1),AND(P230=\"B02\",M230<>41310),IF(VLOOKUP(M230,channel_codes!J:P,7,FALSE)=0,\"\",VLOOKUP(M230,channel_codes!J:P,7,FALSE)),ISNUMBER(MATCH(P230,{\"D01\",\"D02\"},0)),IF(VLOOKUP(M230,channel_codes!J:P,7,FALSE)=1,1,IF(VLOOKUP(F230,recipient_country!AB:AD,3,FALSE)=10024,\"\",1)),OR(P230=\"H01\",AND(OR(ISNUMBER(SEARCH(\"41010\", L230)),ISNUMBER(SEARCH(\"41020\", L230)),ISNUMBER(SEARCH(\"41030\", L230)),ISNUMBER(SEARCH(\"41040\", L230)),ISNUMBER(SEARCH(\"41081\", L230))),F230=998)),22,F230=998,22,TRUE,\"\")","v":""},{"$f":"CRSDATA!AN230","v":0},{"$f":"CRSDATA!AO230","v":0},{"$f":"CRSDATA!AQ230","v":0},{"$f":"CRSDATA!AS230","v":0},{"$f":"CRSDATA!BB230","v":0},null,"",{"$f":"IF(AND(AND(CRSDATA!C230<>\"\",CRSDATA!BK230<>\"\"),OR(CRSDATA!N230=421,CRSDATA!N230=422,CRSDATA!N230=4221,CRSDATA!N230=4222,CRSDATA!N230=423,CRSDATA!N230=424,CRSDATA!N230=425,CRSDATA!N230=431,CRSDATA!N230=433,CRSDATA!N230=434)),DATEDIF(CRSDATA!C230,CRSDATA!BK230,\"m\"),\"\")","v":""},{"$f":"CRSDATA!BA230","v":0},{"$f":"CRSDATA!BC230","v":0},{"$f":"IF(CRSDATA!BT230=\"\",\"\",CRSDATA!BT230)","v":""},{"$f":"CRSDATA!L230","v":0}]
[{"$f":"CRSDATA!A231","v":0},{"$f":"CRSDATA!C231","v":0},{"$f":"CRSDATA!D231","v":0},{"$f":"CRSDATA!F231","v":0},{"$f":"CRSDATA!E231","v":0},{"$f":"IF(CRSDATA!H231=3000,998,CRSDATA!H231)","v":0},{"$f":"CRSDATA!O231","v":0},{"$f":"CRSDATA!U231","v":0},{"$f":"IF(CRSDATA!V231=\"\",\"\",CRSDATA!V231)","v":""},{"$f":"IF(CRSDATA!W231=\"\",\"\",CRSDATA!W231)","v":""},{"$f":"key_row(CRSDATA!X231,CRSDATA!Y231,CRSDATA!AL231,CRSDATA!AK231,CRSDATA!AJ231,CRSDATA!AM231,CRSDATA!P231,CRSDATA!V231)","v":""},{"$f":"CRSDATA!P231","v":0},{"$f":"CRSDATA!J231","v":0},{"$f":"CRSDATA!I231","v":0},null,{"$f":"IF(LEFT(CRSDATA!N231,2)=\"A0\",\"A00\",IF(LEFT(CRSDATA!N231,3)=\"B02\",\"B02\",IF(LEFT(CRSDATA!N231,3)=\"B03\",\"B03\",IF(CRSDATA!N231=\"B04\",\"C01\",IF(CRSDATA!N231=\"H01\",\"H00\",IF(OR(CRSDATA!N231=\"H02\",CRSDATA!N231=\"H03\",CRSDATA!N231=\"H04\",CRSDATA!N231=\"H05\",CRSDATA!N231=\"H06\"),\"I01\",IF(CRSDATA!N231=\"\",\"\",CRSDATA!N231)))))))","v":""},{"$f":"IF(AND(LEN(CRSDATA!M231)=4,LEFT(CRSDATA!M231,3)=\"110\"),1100,IF(AND(LEN(CRSDATA!M231)=4,LEFT(CRSDATA!M231,3)=\"422\"),422,CRSDATA!M231))","v":0},{"$f":"IF(CRSDATA!L231=22,\"FA04\",\"\")","v":""},{"$f":"IF(CRSDATA!K231=8,\"FC02\",\"\")","v":""},{"$f":"_xlfn.IFS(OR(P231=\"A00\",P231=\"E01\",P231=\"F01\",AND(P231=\"\",A231<>0),Q231=510,Q231=520,AF231=60),1,P231=\"G01\",IF(AF231=10,21,22),OR(M231=41203,M231=41204),22,OR(AND(OR(P231=\"B02\",P231=\"B03\"),M231=41310),OR(P231=\"E02\",P231=\"I01\")),21,AND(OR(P231=\"B01\",P231=\"B03\",P231=\"C01\"),M231<>41310),IF(VLOOKUP(F231,recipient_country!AB:AD,3,FALSE)=10024,\"\",1),AND(P231=\"B02\",M231<>41310),IF(VLOOKUP(M231,channel_codes!J:P,7,FALSE)=0,\"\",VLOOKUP(M231,channel_codes!J:P,7,FALSE)),ISNUMBER(MATCH(P231,{\"D01\",\"D02\"},0)),IF(VLOOKUP(M231,channel_codes!J:P,7,FALSE)=1,1,IF(VLOOKUP(F231,recipient_country!AB:AD,3,FALSE)=10024,\"\",1)),OR(P231=\"H01\",AND(OR(ISNUMBER(SEARCH(\"41010\", L231)),ISNUMBER(SEARCH(\"41020\", L231)),ISNUMBER(SEARCH(\"41030\", L231)),ISNUMBER(SEARCH(\"41040\", L231)),ISNUMBER(SEARCH(\"41081\", L231))),F231=998)),22,F231=998,22,TRUE,\"\")","v":""},{"$f":"CRSDATA!AN231","v":0},{"$f":"CRSDATA!AO231","v":0},{"$f":"CRSDATA!AQ231","v":0},{"$f":"CRSDATA!AS231","v":0},{"$f":"CRSDATA!BB231","v":0},null,"",{"$f":"IF(AND(AND(CRSDATA!C231<>\"\",CRSDATA!BK231<>\"\"),OR(CRSDATA!N231=421,CRSDATA!N231=422,CRSDATA!N231=4221,CRSDATA!N231=4222,CRSDATA!N231=423,CRSDATA!N231=424,CRSDATA!N231=425,CRSDATA!N231=431,CRSDATA!N231=433,CRSDATA!N231=434)),DATEDIF(CRSDATA!C231,CRSDATA!BK231,\"m\"),\"\")","v":""},{"$f":"CRSDATA!BA231","v":0},{"$f":"CRSDATA!BC231","v":0},{"$f":"IF(CRSDATA!BT231=\"\",\"\",CRSDATA!BT231)","v":""},{"$f":"CRSDATA!L231","v":0}]
[{"$f":"CRSDATA!A232","v":0},{"$f":"CRSDATA!C232","v":0},{"$f":"CRSDATA!D232","v":0},{"$f":"CRSDATA!F232","v":0},{"$f":"CRSDATA!E232","v":0},{"$f":"IF(CRSDATA!H232=3000,998,CRSDATA!H232)","v":0},{"$f":"CRSDATA!O232","v":0},{"$f":"CRSDATA!U232","v":0},{"$f":"IF(CRSDATA!V232=\"\",\"\",CRSDATA!V232)","v":""},{"$f":"IF(CRSDATA!W232=\"\",\"\",CRSDATA!W232)","v":""},{"$f":"key_row(CRSDATA!X232,CRSDATA!Y232,CRSDATA!AL232,CRSDATA!AK232,CRSDATA!AJ232,CRSDATA!AM232,CRSDATA!P232,CRSDATA!V232)","v":""},{"$f":"CRSDATA!P232","v":0},{"$f":"CRSDATA!J232","v":0},{"$f":"CRSDATA!I232","v":0},null,{"$f":"IF(LEFT(CRSDATA!N232,2)=\"A0\",\"A00\",IF(LEFT(CRSDATA!N232,3)=\"B02\",\"B02\",IF(LEFT(CRSDATA!N232,3)=\"B03\",\"B03\",IF(CRSDATA!N232=\"B04\",\"C01\",IF(CRSDATA!N232=\"H01\",\"H00\",IF(OR(CRSDATA!N232=\"H02\",CRSDATA!N232=\"H03\",CRSDATA!N232=\"H04\",CRSDATA!N232=\"H05\",CRSDATA!N232=\"H06\"),\"I01\",IF(CRSDATA!N232=\"\",\"\",CRSDATA!N232)))))))","v":""},{"$f":"IF(AND(LEN(CRSDATA!M232)=4,LEFT(CRSDATA!M232,3)=\"110\"),1100,IF(AND(LEN(CRSDATA!M232)=4,LEFT(CRSDATA!M232,3)=\"422\"),422,CRSDATA!M232))","v":0},{"$f":"IF(CRSDATA!L232=22,\"FA04\",\"\")","v":""},{"$f":"IF(CRSDATA!K232=8,\"FC02\",\"\")","v":""},{"$f":"_xlfn.IFS(OR(P232=\"A00\",P232=\"E01\",P232=\"F01\",AND(P232=\"\",A232<>0),Q232=510,Q232=520,AF232=60),1,P232=\"G01\",IF(AF232=10,21,22),OR(M232=41203,M232=41204),22,OR(AND(OR(P232=\"B02\",P232=\"B03\"),M232=41310),OR(P232=\"E02\",P232=\"I01\")),21,AND(OR(P232=\"B01\",P232=\"B03\",P232=\"C01\"),M232<>41310),IF(VLOOKUP(F232,recipient_country!AB:AD,3,FALSE)=10024,\"\",1),AND(P232=\"B02\",M232<>41310),IF(VLOOKUP(M232,channel_codes!J:P,7,FALSE)=0,\"\",VLOOKUP(M232,channel_codes!J:P,7,FALSE)),ISNUMBER(MATCH(P232,{\"D01\",\"D02\"},0)),IF(VLOOKUP(M232,channel_codes!J:P,7,FALSE)=1,1,IF(VLOOKUP(F232,recipient_country!AB:AD,3,FALSE)=10024,\"\",1)),OR(P232=\"H01\",AND(OR(ISNUMBER(SEARCH(\"41010\", L232)),ISNUMBER(SEARCH(\"41020\", L232)),ISNUMBER(SEARCH(\"41030\", L232)),ISNUMBER(SEARCH(\"41040\", L232)),ISNUMBER(SEARCH(\"41081\", L232))),F232=998)),22,F232=998,22,TRUE,\"\")","v":""},{"$f":"CRSDATA!AN232","v":0},{"$f":"CRSDATA!AO232","v":0},{"$f":"CRSDATA!AQ232","v":0},{"$f":"CRSDATA!AS232","v":0},{"$f":"CRSDATA!BB232","v":0},null,"",{"$f":"IF(AND(AND(CRSDATA!C232<>\"\",CRSDATA!BK232<>\"\"),OR(CRSDATA!N232=421,CRSDATA!N232=422,CRSDATA!N232=4221,CRSDATA!N232=4222,CRSDATA!N232=423,CRSDATA!N232=424,CRSDATA!N232=425,CRSDATA!N232=431,CRSDATA!N232=433,CRSDATA!N232=434)),DATEDIF(CRSDATA!C232,CRSDATA!BK232,\"m\"),\"\")","v":""},{"$f":"CRSDATA!BA232","v":0},{"$f":"CRSDATA!BC232","v":0},{"$f":"IF(CRSDATA!BT232=\"\",\"\",CRSDATA!BT232)","v":""},{"$f":"CRSDATA!L232","v":0}]
[{"$f":"CRSDATA!A233","v":0},{"$f":"CRSDATA!C233","v":0},{"$f":"CRSDATA!D233","v":0},{"$f":"CRSDATA!F233","v":0},{"$f":"CRSDATA!E233","v":0},{"$f":"IF(CRSDATA!H233=3000,998,CRSDATA!H233)","v":0},{"$f":"CRSDATA!O233","v":0},{"$f":"CRSDATA!U233","v":0},{"$f":"IF(CRSDATA!V233=\"\",\"\",CRSDATA!V233)","v":""},{"$f":"IF(CRSDATA!W233=\"\",\"\",CRSDATA!W233)","v":""},{"$f":"key_row(CRSDATA!X233,CRSDATA!Y233,CRSDATA!AL233,CRSDATA!AK233,CRSDATA!AJ233,CRSDATA!AM233,CRSDATA!P233,CRSDATA!V233)","v":""},{"$f":"CRSDATA!P233","v":0},{"$f":"CRSDATA!J233","v":0},{"$f":"CRSDATA!I233","v":0},null,{"$f":"IF(LEFT(CRSDATA!N233,2)=\"A0\",\"A00\",IF(LEFT(CRSDATA!N233,3)=\"B02\",\"B02\",IF(LEFT(CRSDATA!N233,3)=\"B03\",\"B03\",IF(CRSDATA!N233=\"B04\",\"C01\",IF(CRSDATA!N233=\"H01\",\"H00\",IF(OR(CRSDATA!N233=\"H02\",CRSDATA!N233=\"H03\",CRSDATA!N233=\"H04\",CRSDATA!N233=\"H05\",CRSDATA!N233=\"H06\"),\"I01\",IF(CRSDATA!N233=\"\",\"\",CRSDATA!N233)))))))","v":""},{"$f":"IF(AND(LEN(CRSDATA!M233)=4,LEFT(CRSDATA!M233,3)=\"110\"),1100,IF(AND(LEN(CRSDATA!M233)=4,LEFT(CRSDATA!M233,3)=\"422\"),422,CRSDATA!M233))","v":0},{"$f":"IF(CRSDATA!L233=22,\"FA04\",\"\")","v":""},{"$f":"IF(CRSDATA!K233=8,\"FC02\",\"\")","v":""},{"$f":"_xlfn.IFS(OR(P233=\"A00\",P233=\"E01\",P233=\"F01\",AND(P233=\"\",A233<>0),Q233=510,Q233=520,AF233=60),1,P233=\"G01\",IF(AF233=10,21,22),OR(M233=41203,M233=41204),22,OR(AND(OR(P233=\"B02\",P233=\"B03\"),M233=41310),OR(P233=\"E02\",P233=\"I01\")),21,AND(OR(P233=\"B01\",P233=\"B03\",P233=\"C01\"),M233<>41310),IF(VLOOKUP(F233,recipient_country!AB:AD,3,FALSE)=10024,\"\",1),AND(P233=\"B02\",M233<>41310),IF(VLOOKUP(M233,channel_codes!J:P,7,FALSE)=0,\"\",VLOOKUP(M233,channel_codes!J:P,7,FALSE)),ISNUMBER(MATCH(P233,{\"D01\",\"D02\"},0)),IF(VLOOKUP(M233,channel_codes!J:P,7,FALSE)=1,1,IF(VLOOKUP(F233,recipient_country!AB:AD,3,FALSE)=10024,\"\",1)),OR(P233=\"H01\",AND(OR(ISNUMBER(SEARCH(\"41010\", L233)),ISNUMBER(SEARCH(\"41020\", L233)),ISNUMBER(SEARCH(\"41030\", L233)),ISNUMBER(SEARCH(\"41040\", L233)),ISNUMBER(SEARCH(\"41081\", L233))),F233=998)),22,F233=998,22,TRUE,\"\")","v":""},{"$f":"CRSDATA!AN233","v":0},{"$f":"CRSDATA!AO233","v":0},{"$f":"CRSDATA!AQ233","v":0},{"$f":"CRSDATA!AS233","v":0},{"$f":"CRSDATA!BB233","v":0},null,"",{"$f":"IF(AND(AND(CRSDATA!C233<>\"\",CRSDATA!BK233<>\"\"),OR(CRSDATA!N233=421,CRSDATA!N233=422,CRSDATA!N233=4221,CRSDATA!N233=4222,CRSDATA!N233=423,CRSDATA!N233=424,CRSDATA!N233=425,CRSDATA!N233=431,CRSDATA!N233=433,CRSDATA!N233=434)),DATEDIF(CRSDATA!C233,CRSDATA!BK233,\"m\"),\"\")","v":""},{"$f":"CRSDATA!BA233","v":0},{"$f":"CRSDATA!BC233","v":0},{"$f":"IF(CRSDATA!BT233=\"\",\"\",CRSDATA!BT233)","v":""},{"$f":"CRSDATA!L233","v":0}]
[{"$f":"CRSDATA!A234","v":0},{"$f":"CRSDATA!C234","v":0},{"$f":"CRSDATA!D234","v":0},{"$f":"CRSDATA!F234","v":0},{"$f":"CRSDATA!E234","v":0},{"$f":"IF(CRSDATA!H234=3000,998,CRSDATA!H234)","v":0},{"$f":"CRSDATA!O234","v":0},{"$f":"CRSDATA!U234","v":0},{"$f":"IF(CRSDATA!V234=\"\",\"\",CRSDATA!V234)","v":""},{"$f":"IF(CRSDATA!W234=\"\",\"\",CRSDATA!W234)","v":""},{"$f":"key_row(CRSDATA!X234,CRSDATA!Y234,CRSDATA!AL234,CRSDATA!AK234,CRSDATA!AJ234,CRSDATA!AM234,CRSDATA!P234,CRSDATA!V234)","v":""},{"$f":"CRSDATA!P234","v":0},{"$f":"CRSDATA!J234","v":0},{"$f":"CRSDATA!I234","v":0},null,{"$f":"IF(LEFT(CRSDATA!N234,2)=\"A0\",\"A00\",IF(LEFT(CRSDATA!N234,3)=\"B02\",\"B02\",IF(LEFT(CRSDATA!N234,3)=\"B03\",\"B03\",IF(CRSDATA!N234=\"B04\",\"C01\",IF(CRSDATA!N234=\"H01\",\"H00\",IF(OR(CRSDATA!N234=\"H02\",CRSDATA!N234=\"H03\",CRSDATA!N234=\"H04\",CRSDATA!N234=\"H05\",CRSDATA!N234=\"H06\"),\"I01\",IF(CRSDATA!N234=\"\",\"\",CRSDATA!N234)))))))","v":""},{"$f":"IF(AND(LEN(CRSDATA!M234)=4,LEFT(CRSDATA!M234,3)=\"110\"),1100,IF(AND(LEN(CRSDATA!M234)=4,LEFT(CRSDATA!M234,3)=\"422\"),422,CRSDATA!M234))","v":0},{"$f":"IF(CRSDATA!L234=22,\"FA04\",\"\")","v":""},{"$f":"IF(CRSDATA!K234=8,\"FC02\",\"\")","v":""},{"$f":"_xlfn.IFS(OR(P234=\"A00\",P234=\"E01\",P234=\"F01\",AND(P234=\"\",A234<>0),Q234=510,Q234=520,AF234=60),1,P234=\"G01\",IF(AF234=10,21,22),OR(M234=41203,M234=41204),22,OR(AND(OR(P234=\"B02\",P234=\"B03\"),M234=41310),OR(P234=\"E02\",P234=\"I01\")),21,AND(OR(P234=\"B01\",P234=\"B03\",P234=\"C01\"),M234<>41310),IF(VLOOKUP(F234,recipient_country!AB:AD,3,FALSE)=10024,\"\",1),AND(P234=\"B02\",M234<>41310),IF(VLOOKUP(M234,channel_codes!J:P,7,FALSE)=0,\"\",VLOOKUP(M234,channel_codes!J:P,7,FALSE)),ISNUMBER(MATCH(P234,{\"D01\",\"D02\"},0)),IF(VLOOKUP(M234,channel_codes!J:P,7,FALSE)=1,1,IF(VLOOKUP(F234,recipient_country!AB:AD,3,FALSE)=10024,\"\",1)),OR(P234=\"H01\",AND(OR(ISNUMBER(SEARCH(\"41010\", L234)),ISNUMBER(SEARCH(\"41020\", L234)),ISNUMBER(SEARCH(\"41030\", L234)),ISNUMBER(SEARCH(\"41040\", L234)),ISNUMBER(SEARCH(\"41081\", L234))),F234=998)),22,F234=998,22,TRUE,\"\")","v":""},{"$f":"CRSDATA!AN234","v":0},{"$f":"CRSDATA!AO234","v":0},{"$f":"CRSDATA!AQ234","v":0},{"$f":"CRSDATA!AS234","v":0},{"$f":"CRSDATA!BB234","v":0},null,"",{"$f":"IF(AND(AND(CRSDATA!C234<>\"\",CRSDATA!BK234<>\"\"),OR(CRSDATA!N234=421,CRSDATA!N234=422,CRSDATA!N234=4221,CRSDATA!N234=4222,CRSDATA!N234=423,CRSDATA!N234=424,CRSDATA!N234=425,CRSDATA!N234=431,CRSDATA!N234=433,CRSDATA!N234=434)),DATEDIF(CRSDATA!C234,CRSDATA!BK234,\"m\"),\"\")","v":""},{"$f":"CRSDATA!BA234","v":0},{"$f":"CRSDATA!BC234","v":0},{"$f":"IF(CRSDATA!BT234=\"\",\"\",CRSDATA!BT234)","v":""},{"$f":"CRSDATA!L234","v":0}]
[{"$f":"CRSDATA!A235","v":0},{"$f":"CRSDATA!C235","v":0},{"$f":"CRSDATA!D235","v":0},{"$f":"CRSDATA!F235","v":0},{"$f":"CRSDATA!E235","v":0},{"$f":"IF(CRSDATA!H235=3000,998,CRSDATA!H235)","v":0},{"$f":"CRSDATA!O235","v":0},{"$f":"CRSDATA!U235","v":0},{"$f":"IF(CRSDATA!V235=\"\",\"\",CRSDATA!V235)","v":""},{"$f":"IF(CRSDATA!W235=\"\",\"\",CRSDATA!W235)","v":""},{"$f":"key_row(CRSDATA!X235,CRSDATA!Y235,CRSDATA!AL235,CRSDATA!AK235,CRSDATA!AJ235,CRSDATA!AM235,CRSDATA!P235,CRSDATA!V235)","v":""},{"$f":"CRSDATA!P235","v":0},{"$f":"CRSDATA!J235","v":0},{"$f":"CRSDATA!I235","v":0},null,{"$f":"IF(LEFT(CRSDATA!N235,2)=\"A0\",\"A00\",IF(LEFT(CRSDATA!N235,3)=\"B02\",\"B02\",IF(LEFT(CRSDATA!N235,3)=\"B03\",\"B03\",IF(CRSDATA!N235=\"B04\",\"C01\",IF(CRSDATA!N235=\"H01\",\"H00\",IF(OR(CRSDATA!N235=\"H02\",CRSDATA!N235=\"H03\",CRSDATA!N235=\"H04\",CRSDATA!N235=\"H05\",CRSDATA!N235=\"H06\"),\"I01\",IF(CRSDATA!N235=\"\",\"\",CRSDATA!N235)))))))","v":""},{"$f":"IF(AND(LEN(CRSDATA!M235)=4,LEFT(CRSDATA!M235,3)=\"110\"),1100,IF(AND(LEN(CRSDATA!M235)=4,LEFT(CRSDATA!M235,3)=\"422\"),422,CRSDATA!M235))","v":0},{"$f":"IF(CRSDATA!L235=22,\"FA04\",\"\")","v":""},{"$f":"IF(CRSDATA!K235=8,\"FC02\",\"\")","v":""},{"$f":"_xlfn.IFS(OR(P235=\"A00\",P235=\"E01\",P235=\"F01\",AND(P235=\"\",A235<>0),Q235=510,Q235=520,AF235=60),1,P235=\"G01\",IF(AF235=10,21,22),OR(M235=41203,M235=41204),22,OR(AND(OR(P235=\"B02\",P235=\"B03\"),M235=41310),OR(P235=\"E02\",P235=\"I01\")),21,AND(OR(P235=\"B01\",P235=\"B03\",P235=\"C01\"),M235<>41310),IF(VLOOKUP(F235,recipient_country!AB:AD,3,FALSE)=10024,\"\",1),AND(P235=\"B02\",M235<>41310),IF(VLOOKUP(M235,channel_codes!J:P,7,FALSE)=0,\"\",VLOOKUP(M235,channel_codes!J:P,7,FALSE)),ISNUMBER(MATCH(P235,{\"D01\",\"D02\"},0)),IF(VLOOKUP(M235,channel_codes!J:P,7,FALSE)=1,1,IF(VLOOKUP(F235,recipient_country!AB:AD,3,FALSE)=10024,\"\",1)),OR(P235=\"H01\",AND(OR(ISNUMBER(SEARCH(\"41010\", L235)),ISNUMBER(SEARCH(\"41020\", L235)),ISNUMBER(SEARCH(\"41030\", L235)),ISNUMBER(SEARCH(\"41040\", L235)),ISNUMBER(SEARCH(\"41081\", L235))),F235=998)),22,F235=998,22,TRUE,\"\")","v":""},{"$f":"CRSDATA!AN235","v":0},{"$f":"CRSDATA!AO235","v":0},{"$f":"CRSDATA!AQ235","v":0},{"$f":"CRSDATA!AS235","v":0},{"$f":"CRSDATA!BB235","v":0},null,"",{"$f":"IF(AND(AND(CRSDATA!C235<>\"\",CRSDATA!BK235<>\"\"),OR(CRSDATA!N235=421,CRSDATA!N235=422,CRSDATA!N235=4221,CRSDATA!N235=4222,CRSDATA!N235=423,CRSDATA!N235=424,CRSDATA!N235=425,CRSDATA!N235=431,CRSDATA!N235=433,CRSDATA!N235=434)),DATEDIF(CRSDATA!C235,CRSDATA!BK235,\"m\"),\"\")","v":""},{"$f":"CRSDATA!BA235","v":0},{"$f":"CRSDATA!BC235","v":0},{"$f":"IF(CRSDATA!BT235=\"\",\"\",CRSDATA!BT235)","v":""},{"$f":"CRSDATA!L235","v":0}]
[{"$f":"CRSDATA!A236","v":0},{"$f":"CRSDATA!C236","v":0},{"$f":"CRSDATA!D236","v":0},{"$f":"CRSDATA!F236","v":0},{"$f":"CRSDATA!E236","v":0},{"$f":"IF(CRSDATA!H236=3000,998,CRSDATA!H236)","v":0},{"$f":"CRSDATA!O236","v":0},{"$f":"CRSDATA!U236","v":0},{"$f":"IF(CRSDATA!V236=\"\",\"\",CRSDATA!V236)","v":""},{"$f":"IF(CRSDATA!W236=\"\",\"\",CRSDATA!W236)","v":""},{"$f":"key_row(CRSDATA!X236,CRSDATA!Y236,CRSDATA!AL236,CRSDATA!AK236,CRSDATA!AJ236,CRSDATA!AM236,CRSDATA!P236,CRSDATA!V236)","v":""},{"$f":"CRSDATA!P236","v":0},{"$f":"CRSDATA!J236","v":0},{"$f":"CRSDATA!I236","v":0},null,{"$f":"IF(LEFT(CRSDATA!N236,2)=\"A0\",\"A00\",IF(LEFT(CRSDATA!N236,3)=\"B02\",\"B02\",IF(LEFT(CRSDATA!N236,3)=\"B03\",\"B03\",IF(CRSDATA!N236=\"B04\",\"C01\",IF(CRSDATA!N236=\"H01\",\"H00\",IF(OR(CRSDATA!N236=\"H02\",CRSDATA!N236=\"H03\",CRSDATA!N236=\"H04\",CRSDATA!N236=\"H05\",CRSDATA!N236=\"H06\"),\"I01\",IF(CRSDATA!N236=\"\",\"\",CRSDATA!N236)))))))","v":""},{"$f":"IF(AND(LEN(CRSDATA!M236)=4,LEFT(CRSDATA!M236,3)=\"110\"),1100,IF(AND(LEN(CRSDATA!M236)=4,LEFT(CRSDATA!M236,3)=\"422\"),422,CRSDATA!M236))","v":0},{"$f":"IF(CRSDATA!L236=22,\"FA04\",\"\")","v":""},{"$f":"IF(CRSDATA!K236=8,\"FC02\",\"\")","v":""},{"$f":"_xlfn.IFS(OR(P236=\"A00\",P236=\"E01\",P236=\"F01\",AND(P236=\"\",A236<>0),Q236=510,Q236=520,AF236=60),1,P236=\"G01\",IF(AF236=10,21,22),OR(M236=41203,M236=41204),22,OR(AND(OR(P236=\"B02\",P236=\"B03\"),M236=41310),OR(P236=\"E02\",P236=\"I01\")),21,AND(OR(P236=\"B01\",P236=\"B03\",P236=\"C01\"),M236<>41310),IF(VLOOKUP(F236,recipient_country!AB:AD,3,FALSE)=10024,\"\",1),AND(P236=\"B02\",M236<>41310),IF(VLOOKUP(M236,channel_codes!J:P,7,FALSE)=0,\"\",VLOOKUP(M236,channel_codes!J:P,7,FALSE)),ISNUMBER(MATCH(P236,{\"D01\",\"D02\"},0)),IF(VLOOKUP(M236,channel_codes!J:P,7,FALSE)=1,1,IF(VLOOKUP(F236,recipient_country!AB:AD,3,FALSE)=10024,\"\",1)),OR(P236=\"H01\",AND(OR(ISNUMBER(SEARCH(\"41010\", L236)),ISNUMBER(SEARCH(\"41020\", L236)),ISNUMBER(SEARCH(\"41030\", L236)),ISNUMBER(SEARCH(\"41040\", L236)),ISNUMBER(SEARCH(\"41081\", L236))),F236=998)),22,F236=998,22,TRUE,\"\")","v":""},{"$f":"CRSDATA!AN236","v":0},{"$f":"CRSDATA!AO236","v":0},{"$f":"CRSDATA!AQ236","v":0},{"$f":"CRSDATA!AS236","v":0},{"$f":"CRSDATA!BB236","v":0},null,"",{"$f":"IF(AND(AND(CRSDATA!C236<>\"\",CRSDATA!BK236<>\"\"),OR(CRSDATA!N236=421,CRSDATA!N236=422,CRSDATA!N236=4221,CRSDATA!N236=4222,CRSDATA!N236=423,CRSDATA!N236=424,CRSDATA!N236=425,CRSDATA!N236=431,CRSDATA!N236=433,CRSDATA!N236=434)),DATEDIF(CRSDATA!C236,CRSDATA!BK236,\"m\"),\"\")","v":""},{"$f":"CRSDATA!BA236","v":0},{"$f":"CRSDATA!BC236","v":0},{"$f":"IF(CRSDATA!BT236=\"\",\"\",CRSDATA!BT236)","v":""},{"$f":"CRSDATA!L236","v":0}]
[{"$f":"CRSDATA!A237","v":0},{"$f":"CRSDATA!C237","v":0},{"$f":"CRSDATA!D237","v":0},{"$f":"CRSDATA!F237","v":0},{"$f":"CRSDATA!E237","v":0},{"$f":"IF(CRSDATA!H237=3000,998,CRSDATA!H237)","v":0},{"$f":"CRSDATA!O237","v":0},{"$f":"CRSDATA!U237","v":0},{"$f":"IF(CRSDATA!V237=\"\",\"\",CRSDATA!V237)","v":""},{"$f":"IF(CRSDATA!W237=\"\",\"\",CRSDATA!W237)","v":""},{"$f":"key_row(CRSDATA!X237,CRSDATA!Y237,CRSDATA!AL237,CRSDATA!AK237,CRSDATA!AJ237,CRSDATA!AM237,CRSDATA!P237,CRSDATA!V237)","v":""},{"$f":"CRSDATA!P237","v":0},{"$f":"CRSDATA!J237","v":0},{"$f":"CRSDATA!I237","v":0},null,{"$f":"IF(LEFT(CRSDATA!N237,2)=\"A0\",\"A00\",IF(LEFT(CRSDATA!N237,3)=\"B02\",\"B02\",IF(LEFT(CRSDATA!N237,3)=\"B03\",\"B03\",IF(CRSDATA!N237=\"B04\",\"C01\",IF(CRSDATA!N237=\"H01\",\"H00\",IF(OR(CRSDATA!N237=\"H02\",CRSDATA!N237=\"H03\",CRSDATA!N237=\"H04\",CRSDATA!N237=\"H05\",CRSDATA!N237=\"H06\"),\"I01\",IF(CRSDATA!N237=\"\",\"\",CRSDATA!N237)))))))","v":""},{"$f":"IF(AND(LEN(CRSDATA!M237)=4,LEFT(CRSDATA!M237,3)=\"110\"),1100,IF(AND(LEN(CRSDATA!M237)=4,LEFT(CRSDATA!M237,3)=\"422\"),422,CRSDATA!M237))","v":0},{"$f":"IF(CRSDATA!L237=22,\"FA04\",\"\")","v":""},{"$f":"IF(CRSDATA!K237=8,\"FC02\",\"\")","v":""},{"$f":"_xlfn.IFS(OR(P237=\"A00\",P237=\"E01\",P237=\"F01\",AND(P237=\"\",A237<>0),Q237=510,Q237=520,AF237=60),1,P237=\"G01\",IF(AF237=10,21,22),OR(M237=41203,M237=41204),22,OR(AND(OR(P237=\"B02\",P237=\"B03\"),M237=41310),OR(P237=\"E02\",P237=\"I01\")),21,AND(OR(P237=\"B01\",P237=\"B03\",P237=\"C01\"),M237<>41310),IF(VLOOKUP(F237,recipient_country!AB:AD,3,FALSE)=10024,\"\",1),AND(P237=\"B02\",M237<>41310),IF(VLOOKUP(M237,channel_codes!J:P,7,FALSE)=0,\"\",VLOOKUP(M237,channel_codes!J:P,7,FALSE)),ISNUMBER(MATCH(P237,{\"D01\",\"D02\"},0)),IF(VLOOKUP(M237,channel_codes!J:P,7,FALSE)=1,1,IF(VLOOKUP(F237,recipient_country!AB:AD,3,FALSE)=10024,\"\",1)),OR(P237=\"H01\",AND(OR(ISNUMBER(SEARCH(\"41010\", L237)),ISNUMBER(SEARCH(\"41020\", L237)),ISNUMBER(SEARCH(\"41030\", L237)),ISNUMBER(SEARCH(\"41040\", L237)),ISNUMBER(SEARCH(\"41081\", L237))),F237=998)),22,F237=998,22,TRUE,\"\")","v":""},{"$f":"CRSDATA!AN237","v":0},{"$f":"CRSDATA!AO237","v":0},{"$f":"CRSDATA!AQ237","v":0},{"$f":"CRSDATA!AS237","v":0},{"$f":"CRSDATA!BB237","v":0},null,"",{"$f":"IF(AND(AND(CRSDATA!C237<>\"\",CRSDATA!BK237<>\"\"),OR(CRSDATA!N237=421,CRSDATA!N237=422,CRSDATA!N237=4221,CRSDATA!N237=4222,CRSDATA!N237=423,CRSDATA!N237=424,CRSDATA!N237=425,CRSDATA!N237=431,CRSDATA!N237=433,CRSDATA!N237=434)),DATEDIF(CRSDATA!C237,CRSDATA!BK237,\"m\"),\"\")","v":""},{"$f":"CRSDATA!BA237","v":0},{"$f":"CRSDATA!BC237","v":0},{"$f":"IF(CRSDATA!BT237=\"\",\"\",CRSDATA!BT237)","v":""},{"$f":"CRSDATA!L237","v":0}]
[{"$f":"CRSDATA!A238","v":0},{"$f":"CRSDATA!C238","v":0},{"$f":"CRSDATA!D238","v":0},{"$f":"CRSDATA!F238","v":0},{"$f":"CRSDATA!E238","v":0},{"$f":"IF(CRSDATA!H238=3000,998,CRSDATA!H238)","v":0},{"$f":"CRSDATA!O238","v":0},{"$f":"CRSDATA!U238","v":0},{"$f":"IF(CRSDATA!V238=\"\",\"\",CRSDATA!V238)","v":""},{"$f":"IF(CRSDATA!W238=\"\",\"\",CRSDATA!W238)","v":""},{"$f":"key_row(CRSDATA!X238,CRSDATA!Y238,CRSDATA!AL238,CRSDATA!AK238,CRSDATA!AJ238,CRSDATA!AM238,CRSDATA!P238,CRSDATA!V238)","v":""},{"$f":"CRSDATA!P238","v":0},{"$f":"CRSDATA!J238","v":0},{"$f":"CRSDATA!I238","v":0},null,{"$f":"IF(LEFT(CRSDATA!N238,2)=\"A0\",\"A00\",IF(LEFT(CRSDATA!N238,3)=\"B02\",\"B02\",IF(LEFT(CRSDATA!N238,3)=\"B03\",\"B03\",IF(CRSDATA!N238=\"B04\",\"C01\",IF(CRSDATA!N238=\"H01\",\"H00\",IF(OR(CRSDATA!N238=\"H02\",CRSDATA!N238=\"H03\",CRSDATA!N238=\"H04\",CRSDATA!N238=\"H05\",CRSDATA!N238=\"H06\"),\"I01\",IF(CRSDATA!N238=\"\",\"\",CRSDATA!N238)))))))","v":""},{"$f":"IF(AND(LEN(CRSDATA!M238)=4,LEFT(CRSDATA!M238,3)=\"110\"),1100,IF(AND(LEN(CRSDATA!M238)=4,LEFT(CRSDATA!M238,3)=\"422\"),422,CRSDATA!M238))","v":0},{"$f":"IF(CRSDATA!L238=22,\"FA04\",\"\")","v":""},{"$f":"IF(CRSDATA!K238=8,\"FC02\",\"\")","v":""},{"$f":"_xlfn.IFS(OR(P238=\"A00\",P238=\"E01\",P238=\"F01\",AND(P238=\"\",A238<>0),Q238=510,Q238=520,AF238=60),1,P238=\"G01\",IF(AF238=10,21,22),OR(M238=41203,M238=41204),22,OR(AND(OR(P238=\"B02\",P238=\"B03\"),M238=41310),OR(P238=\"E02\",P238=\"I01\")),21,AND(OR(P238=\"B01\",P238=\"B03\",P238=\"C01\"),M238<>41310),IF(VLOOKUP(F238,recipient_country!AB:AD,3,FALSE)=10024,\"\",1),AND(P238=\"B02\",M238<>41310),IF(VLOOKUP(M238,channel_codes!J:P,7,FALSE)=0,\"\",VLOOKUP(M238,channel_codes!J:P,7,FALSE)),ISNUMBER(MATCH(P238,{\"D01\",\"D02\"},0)),IF(VLOOKUP(M238,channel_codes!J:P,7,FALSE)=1,1,IF(VLOOKUP(F238,recipient_country!AB:AD,3,FALSE)=10024,\"\",1)),OR(P238=\"H01\",AND(OR(ISNUMBER(SEARCH(\"41010\", L238)),ISNUMBER(SEARCH(\"41020\", L238)),ISNUMBER(SEARCH(\"41030\", L238)),ISNUMBER(SEARCH(\"41040\", L238)),ISNUMBER(SEARCH(\"41081\", L238))),F238=998)),22,F238=998,22,TRUE,\"\")","v":""},{"$f":"CRSDATA!AN238","v":0},{"$f":"CRSDATA!AO238","v":0},{"$f":"CRSDATA!AQ238","v":0},{"$f":"CRSDATA!AS238","v":0},{"$f":"CRSDATA!BB238","v":0},null,"",{"$f":"IF(AND(AND(CRSDATA!C238<>\"\",CRSDATA!BK238<>\"\"),OR(CRSDATA!N238=421,CRSDATA!N238=422,CRSDATA!N238=4221,CRSDATA!N238=4222,CRSDATA!N238=423,CRSDATA!N238=424,CRSDATA!N238=425,CRSDATA!N238=431,CRSDATA!N238=433,CRSDATA!N238=434)),DATEDIF(CRSDATA!C238,CRSDATA!BK238,\"m\"),\"\")","v":""},{"$f":"CRSDATA!BA238","v":0},{"$f":"CRSDATA!BC238","v":0},{"$f":"IF(CRSDATA!BT238=\"\",\"\",CRSDATA!BT238)","v":""},{"$f":"CRSDATA!L238","v":0}]
[{"$f":"CRSDATA!A239","v":0},{"$f":"CRSDATA!C239","v":0},{"$f":"CRSDATA!D239","v":0},{"$f":"CRSDATA!F239","v":0},{"$f":"CRSDATA!E239","v":0},{"$f":"IF(CRSDATA!H239=3000,998,CRSDATA!H239)","v":0},{"$f":"CRSDATA!O239","v":0},{"$f":"CRSDATA!U239","v":0},{"$f":"IF(CRSDATA!V239=\"\",\"\",CRSDATA!V239)","v":""},{"$f":"IF(CRSDATA!W239=\"\",\"\",CRSDATA!W239)","v":""},{"$f":"key_row(CRSDATA!X239,CRSDATA!Y239,CRSDATA!AL239,CRSDATA!AK239,CRSDATA!AJ239,CRSDATA!AM239,CRSDATA!P239,CRSDATA!V239)","v":""},{"$f":"CRSDATA!P239","v":0},{"$f":"CRSDATA!J239","v":0},{"$f":"CRSDATA!I239","v":0},null,{"$f":"IF(LEFT(CRSDATA!N239,2)=\"A0\",\"A00\",IF(LEFT(CRSDATA!N239,3)=\"B02\",\"B02\",IF(LEFT(CRSDATA!N239,3)=\"B03\",\"B03\",IF(CRSDATA!N239=\"B04\",\"C01\",IF(CRSDATA!N239=\"H01\",\"H00\",IF(OR(CRSDATA!N239=\"H02\",CRSDATA!N239=\"H03\",CRSDATA!N239=\"H04\",CRSDATA!N239=\"H05\",CRSDATA!N239=\"H06\"),\"I01\",IF(CRSDATA!N239=\"\",\"\",CRSDATA!N239)))))))","v":""},{"$f":"IF(AND(LEN(CRSDATA!M239)=4,LEFT(CRSDATA!M239,3)=\"110\"),1100,IF(AND(LEN(CRSDATA!M239)=4,LEFT(CRSDATA!M239,3)=\"422\"),422,CRSDATA!M239))","v":0},{"$f":"IF(CRSDATA!L239=22,\"FA04\",\"\")","v":""},{"$f":"IF(CRSDATA!K239=8,\"FC02\",\"\")","v":""},{"$f":"_xlfn.IFS(OR(P239=\"A00\",P239=\"E01\",P239=\"F01\",AND(P239=\"\",A239<>0),Q239=510,Q239=520,AF239=60),1,P239=\"G01\",IF(AF239=10,21,22),OR(M239=41203,M239=41204),22,OR(AND(OR(P239=\"B02\",P239=\"B03\"),M239=41310),OR(P239=\"E02\",P239=\"I01\")),21,AND(OR(P239=\"B01\",P239=\"B03\",P239=\"C01\"),M239<>41310),IF(VLOOKUP(F239,recipient_country!AB:AD,3,FALSE)=10024,\"\",1),AND(P239=\"B02\",M239<>41310),IF(VLOOKUP(M239,channel_codes!J:P,7,FALSE)=0,\"\",VLOOKUP(M239,channel_codes!J:P,7,FALSE)),ISNUMBER(MATCH(P239,{\"D01\",\"D02\"},0)),IF(VLOOKUP(M239,channel_codes!J:P,7,FALSE)=1,1,IF(VLOOKUP(F239,recipient_country!AB:AD,3,FALSE)=10024,\"\",1)),OR(P239=\"H01\",AND(OR(ISNUMBER(SEARCH(\"41010\", L239)),ISNUMBER(SEARCH(\"41020\", L239)),ISNUMBER(SEARCH(\"41030\", L239)),ISNUMBER(SEARCH(\"41040\", L239)),ISNUMBER(SEARCH(\"41081\", L239))),F239=998)),22,F239=998,22,TRUE,\"\")","v":""},{"$f":"CRSDATA!AN239","v":0},{"$f":"CRSDATA!AO239","v":0},{"$f":"CRSDATA!AQ239","v":0},{"$f":"CRSDATA!AS239","v":0},{"$f":"CRSDATA!BB239","v":0},null,"",{"$f":"IF(AND(AND(CRSDATA!C239<>\"\",CRSDATA!BK239<>\"\"),OR(CRSDATA!N239=421,CRSDATA!N239=422,CRSDATA!N239=4221,CRSDATA!N239=4222,CRSDATA!N239=423,CRSDATA!N239=424,CRSDATA!N239=425,CRSDATA!N239=431,CRSDATA!N239=433,CRSDATA!N239=434)),DATEDIF(CRSDATA!C239,CRSDATA!BK239,\"m\"),\"\")","v":""},{"$f":"CRSDATA!BA239","v":0},{"$f":"CRSDATA!BC239","v":0},{"$f":"IF(CRSDATA!BT239=\"\",\"\",CRSDATA!BT239)","v":""},{"$f":"CRSDATA!L239","v":0}]
[{"$f":"CRSDATA!A240","v":0},{"$f":"CRSDATA!C240","v":0},{"$f":"CRSDATA!D240","v":0},{"$f":"CRSDATA!F240","v":0},{"$f":"CRSDATA!E240","v":0},{"$f":"IF(CRSDATA!H240=3000,998,CRSDATA!H240)","v":0},{"$f":"CRSDATA!O240","v":0},{"$f":"CRSDATA!U240","v":0},{"$f":"IF(CRSDATA!V240=\"\",\"\",CRSDATA!V240)","v":""},{"$f":"IF(CRSDATA!W240=\"\",\"\",CRSDATA!W240)","v":""},{"$f":"key_row(CRSDATA!X240,CRSDATA!Y240,CRSDATA!AL240,CRSDATA!AK240,CRSDATA!AJ240,CRSDATA!AM240,CRSDATA!P240,CRSDATA!V240)","v":""},{"$f":"CRSDATA!P240","v":0},{"$f":"CRSDATA!J240","v":0},{"$f":"CRSDATA!I240","v":0},null,{"$f":"IF(LEFT(CRSDATA!N240,2)=\"A0\",\"A00\",IF(LEFT(CRSDATA!N240,3)=\"B02\",\"B02\",IF(LEFT(CRSDATA!N240,3)=\"B03\",\"B03\",IF(CRSDATA!N240=\"B04\",\"C01\",IF(CRSDATA!N240=\"H01\",\"H00\",IF(OR(CRSDATA!N240=\"H02\",CRSDATA!N240=\"H03\",CRSDATA!N240=\"H04\",CRSDATA!N240=\"H05\",CRSDATA!N240=\"H06\"),\"I01\",IF(CRSDATA!N240=\"\",\"\",CRSDATA!N240)))))))","v":""},{"$f":"IF(AND(LEN(CRSDATA!M240)=4,LEFT(CRSDATA!M240,3)=\"110\"),1100,IF(AND(LEN(CRSDATA!M240)=4,LEFT(CRSDATA!M240,3)=\"422\"),422,CRSDATA!M240))","v":0},{"$f":"IF(CRSDATA!L240=22,\"FA04\",\"\")","v":""},{"$f":"IF(CRSDATA!K240=8,\"FC02\",\"\")","v":""},{"$f":"_xlfn.IFS(OR(P240=\"A00\",P240=\"E01\",P240=\"F01\",AND(P240=\"\",A240<>0),Q240=510,Q240=520,AF240=60),1,P240=\"G01\",IF(AF240=10,21,22),OR(M240=41203,M240=41204),22,OR(AND(OR(P240=\"B02\",P240=\"B03\"),M240=41310),OR(P240=\"E02\",P240=\"I01\")),21,AND(OR(P240=\"B01\",P240=\"B03\",P240=\"C01\"),M240<>41310),IF(VLOOKUP(F240,recipient_country!AB:AD,3,FALSE)=10024,\"\",1),AND(P240=\"B02\",M240<>41310),IF(VLOOKUP(M240,channel_codes!J:P,7,FALSE)=0,\"\",VLOOKUP(M240,channel_codes!J:P,7,FALSE)),ISNUMBER(MATCH(P240,{\"D01\",\"D02\"},0)),IF(VLOOKUP(M240,channel_codes!J:P,7,FALSE)=1,1,IF(VLOOKUP(F240,recipient_country!AB:AD,3,FALSE)=10024,\"\",1)),OR(P240=\"H01\",AND(OR(ISNUMBER(SEARCH(\"41010\", L240)),ISNUMBER(SEARCH(\"41020\", L240)),ISNUMBER(SEARCH(\"41030\", L240)),ISNUMBER(SEARCH(\"41040\", L240)),ISNUMBER(SEARCH(\"41081\", L240))),F240=998)),22,F240=998,22,TRUE,\"\")","v":""},{"$f":"CRSDATA!AN240","v":0},{"$f":"CRSDATA!AO240","v":0},{"$f":"CRSDATA!AQ240","v":0},{"$f":"CRSDATA!AS240","v":0},{"$f":"CRSDATA!BB240","v":0},null,"",{"$f":"IF(AND(AND(CRSDATA!C240<>\"\",CRSDATA!BK240<>\"\"),OR(CRSDATA!N240=421,CRSDATA!N240=422,CRSDATA!N240=4221,CRSDATA!N240=4222,CRSDATA!N240=423,CRSDATA!N240=424,CRSDATA!N240=425,CRSDATA!N240=431,CRSDATA!N240=433,CRSDATA!N240=434)),DATEDIF(CRSDATA!C240,CRSDATA!BK240,\"m\"),\"\")","v":""},{"$f":"CRSDATA!BA240","v":0},{"$f":"CRSDATA!BC240","v":0},{"$f":"IF(CRSDATA!BT240=\"\",\"\",CRSDATA!BT240)","v":""},{"$f":"CRSDATA!L240","v":0}]
[{"$f":"CRSDATA!A241","v":0},{"$f":"CRSDATA!C241","v":0},{"$f":"CRSDATA!D241","v":0},{"$f":"CRSDATA!F241","v":0},{"$f":"CRSDATA!E241","v":0},{"$f":"IF(CRSDATA!H241=3000,998,CRSDATA!H241)","v":0},{"$f":"CRSDATA!O241","v":0},{"$f":"CRSDATA!U241","v":0},{"$f":"IF(CRSDATA!V241=\"\",\"\",CRSDATA!V241)","v":""},{"$f":"IF(CRSDATA!W241=\"\",\"\",CRSDATA!W241)","v":""},{"$f":"key_row(CRSDATA!X241,CRSDATA!Y241,CRSDATA!AL241,CRSDATA!AK241,CRSDATA!AJ241,CRSDATA!AM241,CRSDATA!P241,CRSDATA!V241)","v":""},{"$f":"CRSDATA!P241","v":0},{"$f":"CRSDATA!J241","v":0},{"$f":"CRSDATA!I241","v":0},null,{"$f":"IF(LEFT(CRSDATA!N241,2)=\"A0\",\"A00\",IF(LEFT(CRSDATA!N241,3)=\"B02\",\"B02\",IF(LEFT(CRSDATA!N241,3)=\"B03\",\"B03\",IF(CRSDATA!N241=\"B04\",\"C01\",IF(CRSDATA!N241=\"H01\",\"H00\",IF(OR(CRSDATA!N241=\"H02\",CRSDATA!N241=\"H03\",CRSDATA!N241=\"H04\",CRSDATA!N241=\"H05\",CRSDATA!N241=\"H06\"),\"I01\",IF(CRSDATA!N241=\"\",\"\",CRSDATA!N241)))))))","v":""},{"$f":"IF(AND(LEN(CRSDATA!M241)=4,LEFT(CRSDATA!M241,3)=\"110\"),1100,IF(AND(LEN(CRSDATA!M241)=4,LEFT(CRSDATA!M241,3)=\"422\"),422,CRSDATA!M241))","v":0},{"$f":"IF(CRSDATA!L241=22,\"FA04\",\"\")","v":""},{"$f":"IF(CRSDATA!K241=8,\"FC02\",\"\")","v":""},{"$f":"_xlfn.IFS(OR(P241=\"A00\",P241=\"E01\",P241=\"F01\",AND(P241=\"\",A241<>0),Q241=510,Q241=520,AF241=60),1,P241=\"G01\",IF(AF241=10,21,22),OR(M241=41203,M241=41204),22,OR(AND(OR(P241=\"B02\",P241=\"B03\"),M241=41310),OR(P241=\"E02\",P241=\"I01\")),21,AND(OR(P241=\"B01\",P241=\"B03\",P241=\"C01\"),M241<>41310),IF(VLOOKUP(F241,recipient_country!AB:AD,3,FALSE)=10024,\"\",1),AND(P241=\"B02\",M241<>41310),IF(VLOOKUP(M241,channel_codes!J:P,7,FALSE)=0,\"\",VLOOKUP(M241,channel_codes!J:P,7,FALSE)),ISNUMBER(MATCH(P241,{\"D01\",\"D02\"},0)),IF(VLOOKUP(M241,channel_codes!J:P,7,FALSE)=1,1,IF(VLOOKUP(F241,recipient_country!AB:AD,3,FALSE)=10024,\"\",1)),OR(P241=\"H01\",AND(OR(ISNUMBER(SEARCH(\"41010\", L241)),ISNUMBER(SEARCH(\"41020\", L241)),ISNUMBER(SEARCH(\"41030\", L241)),ISNUMBER(SEARCH(\"41040\", L241)),ISNUMBER(SEARCH(\"41081\", L241))),F241=998)),22,F241=998,22,TRUE,\"\")","v":""},{"$f":"CRSDATA!AN241","v":0},{"$f":"CRSDATA!AO241","v":0},{"$f":"CRSDATA!AQ241","v":0},{"$f":"CRSDATA!AS241","v":0},{"$f":"CRSDATA!BB241","v":0},null,"",{"$f":"IF(AND(AND(CRSDATA!C241<>\"\",CRSDATA!BK241<>\"\"),OR(CRSDATA!N241=421,CRSDATA!N241=422,CRSDATA!N241=4221,CRSDATA!N241=4222,CRSDATA!N241=423,CRSDATA!N241=424,CRSDATA!N241=425,CRSDATA!N241=431,CRSDATA!N241=433,CRSDATA!N241=434)),DATEDIF(CRSDATA!C241,CRSDATA!BK241,\"m\"),\"\")","v":""},{"$f":"CRSDATA!BA241","v":0},{"$f":"CRSDATA!BC241","v":0},{"$f":"IF(CRSDATA!BT241=\"\",\"\",CRSDATA!BT241)","v":""},{"$f":"CRSDATA!L241","v":0}]
[{"$f":"CRSDATA!A242","v":0},{"$f":"CRSDATA!C242","v":0},{"$f":"CRSDATA!D242","v":0},{"$f":"CRSDATA!F242","v":0},{"$f":"CRSDATA!E242","v":0},{"$f":"IF(CRSDATA!H242=3000,998,CRSDATA!H242)","v":0},{"$f":"CRSDATA!O242","v":0},{"$f":"CRSDATA!U242","v":0},{"$f":"IF(CRSDATA!V242=\"\",\"\",CRSDATA!V242)","v":""},{"$f":"IF(CRSDATA!W242=\"\",\"\",CRSDATA!W242)","v":""},{"$f":"key_row(CRSDATA!X242,CRSDATA!Y242,CRSDATA!AL242,CRSDATA!AK242,CRSDATA!AJ242,CRSDATA!AM242,CRSDATA!P242,CRSDATA!V242)","v":""},{"$f":"CRSDATA!P242","v":0},{"$f":"CRSDATA!J242","v":0},{"$f":"CRSDATA!I242","v":0},null,{"$f":"IF(LEFT(CRSDATA!N242,2)=\"A0\",\"A00\",IF(LEFT(CRSDATA!N242,3)=\"B02\",\"B02\",IF(LEFT(CRSDATA!N242,3)=\"B03\",\"B03\",IF(CRSDATA!N242=\"B04\",\"C01\",IF(CRSDATA!N242=\"H01\",\"H00\",IF(OR(CRSDATA!N242=\"H02\",CRSDATA!N242=\"H03\",CRSDATA!N242=\"H04\",CRSDATA!N242=\"H05\",CRSDATA!N242=\"H06\"),\"I01\",IF(CRSDATA!N242=\"\",\"\",CRSDATA!N242)))))))","v":""},{"$f":"IF(AND(LEN(CRSDATA!M242)=4,LEFT(CRSDATA!M242,3)=\"110\"),1100,IF(AND(LEN(CRSDATA!M242)=4,LEFT(CRSDATA!M242,3)=\"422\"),422,CRSDATA!M242))","v":0},{"$f":"IF(CRSDATA!L242=22,\"FA04\",\"\")","v":""},{"$f":"IF(CRSDATA!K242=8,\"FC02\",\"\")","v":""},{"$f":"_xlfn.IFS(OR(P242=\"A00\",P242=\"E01\",P242=\"F01\",AND(P242=\"\",A242<>0),Q242=510,Q242=520,AF242=60),1,P242=\"G01\",IF(AF242=10,21,22),OR(M242=41203,M242=41204),22,OR(AND(OR(P242=\"B02\",P242=\"B03\"),M242=41310),OR(P242=\"E02\",P242=\"I01\")),21,AND(OR(P242=\"B01\",P242=\"B03\",P242=\"C01\"),M242<>41310),IF(VLOOKUP(F242,recipient_country!AB:AD,3,FALSE)=10024,\"\",1),AND(P242=\"B02\",M242<>41310),IF(VLOOKUP(M242,channel_codes!J:P,7,FALSE)=0,\"\",VLOOKUP(M242,channel_codes!J:P,7,FALSE)),ISNUMBER(MATCH(P242,{\"D01\",\"D02\"},0)),IF(VLOOKUP(M242,channel_codes!J:P,7,FALSE)=1,1,IF(VLOOKUP(F242,recipient_country!AB:AD,3,FALSE)=10024,\"\",1)),OR(P242=\"H01\",AND(OR(ISNUMBER(SEARCH(\"41010\", L242)),ISNUMBER(SEARCH(\"41020\", L242)),ISNUMBER(SEARCH(\"41030\", L242)),ISNUMBER(SEARCH(\"41040\", L242)),ISNUMBER(SEARCH(\"41081\", L242))),F242=998)),22,F242=998,22,TRUE,\"\")","v":""},{"$f":"CRSDATA!AN242","v":0},{"$f":"CRSDATA!AO242","v":0},{"$f":"CRSDATA!AQ242","v":0},{"$f":"CRSDATA!AS242","v":0},{"$f":"CRSDATA!BB242","v":0},null,"",{"$f":"IF(AND(AND(CRSDATA!C242<>\"\",CRSDATA!BK242<>\"\"),OR(CRSDATA!N242=421,CRSDATA!N242=422,CRSDATA!N242=4221,CRSDATA!N242=4222,CRSDATA!N242=423,CRSDATA!N242=424,CRSDATA!N242=425,CRSDATA!N242=431,CRSDATA!N242=433,CRSDATA!N242=434)),DATEDIF(CRSDATA!C242,CRSDATA!BK242,\"m\"),\"\")","v":""},{"$f":"CRSDATA!BA242","v":0},{"$f":"CRSDATA!BC242","v":0},{"$f":"IF(CRSDATA!BT242=\"\",\"\",CRSDATA!BT242)","v":""},{"$f":"CRSDATA!L242","v":0}]
[{"$f":"CRSDATA!A243","v":0},{"$f":"CRSDATA!C243","v":0},{"$f":"CRSDATA!D243","v":0},{"$f":"CRSDATA!F243","v":0},{"$f":"CRSDATA!E243","v":0},{"$f":"IF(CRSDATA!H243=3000,998,CRSDATA!H243)","v":0},{"$f":"CRSDATA!O243","v":0},{"$f":"CRSDATA!U243","v":0},{"$f":"IF(CRSDATA!V243=\"\",\"\",CRSDATA!V243)","v":""},{"$f":"IF(CRSDATA!W243=\"\",\"\",CRSDATA!W243)","v":""},{"$f":"key_row(CRSDATA!X243,CRSDATA!Y243,CRSDATA!AL243,CRSDATA!AK243,CRSDATA!AJ243,CRSDATA!AM243,CRSDATA!P243,CRSDATA!V243)","v":""},{"$f":"CRSDATA!P243","v":0},{"$f":"CRSDATA!J243","v":0},{"$f":"CRSDATA!I243","v":0},null,{"$f":"IF(LEFT(CRSDATA!N243,2)=\"A0\",\"A00\",IF(LEFT(CRSDATA!N243,3)=\"B02\",\"B02\",IF(LEFT(CRSDATA!N243,3)=\"B03\",\"B03\",IF(CRSDATA!N243=\"B04\",\"C01\",IF(CRSDATA!N243=\"H01\",\"H00\",IF(OR(CRSDATA!N243=\"H02\",CRSDATA!N243=\"H03\",CRSDATA!N243=\"H04\",CRSDATA!N243=\"H05\",CRSDATA!N243=\"H06\"),\"I01\",IF(CRSDATA!N243=\"\",\"\",CRSDATA!N243)))))))","v":""},{"$f":"IF(AND(LEN(CRSDATA!M243)=4,LEFT(CRSDATA!M243,3)=\"110\"),1100,IF(AND(LEN(CRSDATA!M243)=4,LEFT(CRSDATA!M243,3)=\"422\"),422,CRSDATA!M243))","v":0},{"$f":"IF(CRSDATA!L243=22,\"FA04\",\"\")","v":""},{"$f":"IF(CRSDATA!K243=8,\"FC02\",\"\")","v":""},{"$f":"_xlfn.IFS(OR(P243=\"A00\",P243=\"E01\",P243=\"F01\",AND(P243=\"\",A243<>0),Q243=510,Q243=520,AF243=60),1,P243=\"G01\",IF(AF243=10,21,22),OR(M243=41203,M243=41204),22,OR(AND(OR(P243=\"B02\",P243=\"B03\"),M243=41310),OR(P243=\"E02\",P243=\"I01\")),21,AND(OR(P243=\"B01\",P243=\"B03\",P243=\"C01\"),M243<>41310),IF(VLOOKUP(F243,recipient_country!AB:AD,3,FALSE)=10024,\"\",1),AND(P243=\"B02\",M243<>41310),IF(VLOOKUP(M243,channel_codes!J:P,7,FALSE)=0,\"\",VLOOKUP(M243,channel_codes!J:P,7,FALSE)),ISNUMBER(MATCH(P243,{\"D01\",\"D02\"},0)),IF(VLOOKUP(M243,channel_codes!J:P,7,FALSE)=1,1,IF(VLOOKUP(F243,recipient_country!AB:AD,3,FALSE)=10024,\"\",1)),OR(P243=\"H01\",AND(OR(ISNUMBER(SEARCH(\"41010\", L243)),ISNUMBER(SEARCH(\"41020\", L243)),ISNUMBER(SEARCH(\"41030\", L243)),ISNUMBER(SEARCH(\"41040\", L243)),ISNUMBER(SEARCH(\"41081\", L243))),F243=998)),22,F243=998,22,TRUE,\"\")","v":""},{"$f":"CRSDATA!AN243","v":0},{"$f":"CRSDATA!AO243","v":0},{"$f":"CRSDATA!AQ243","v":0},{"$f":"CRSDATA!AS243","v":0},{"$f":"CRSDATA!BB243","v":0},null,"",{"$f":"IF(AND(AND(CRSDATA!C243<>\"\",CRSDATA!BK243<>\"\"),OR(CRSDATA!N243=421,CRSDATA!N243=422,CRSDATA!N243=4221,CRSDATA!N243=4222,CRSDATA!N243=423,CRSDATA!N243=424,CRSDATA!N243=425,CRSDATA!N243=431,CRSDATA!N243=433,CRSDATA!N243=434)),DATEDIF(CRSDATA!C243,CRSDATA!BK243,\"m\"),\"\")","v":""},{"$f":"CRSDATA!BA243","v":0},{"$f":"CRSDATA!BC243","v":0},{"$f":"IF(CRSDATA!BT243=\"\",\"\",CRSDATA!BT243)","v":""},{"$f":"CRSDATA!L243","v":0}]
[{"$f":"CRSDATA!A244","v":0},{"$f":"CRSDATA!C244","v":0},{"$f":"CRSDATA!D244","v":0},{"$f":"CRSDATA!F244","v":0},{"$f":"CRSDATA!E244","v":0},{"$f":"IF(CRSDATA!H244=3000,998,CRSDATA!H244)","v":0},{"$f":"CRSDATA!O244","v":0},{"$f":"CRSDATA!U244","v":0},{"$f":"IF(CRSDATA!V244=\"\",\"\",CRSDATA!V244)","v":""},{"$f":"IF(CRSDATA!W244=\"\",\"\",CRSDATA!W244)","v":""},{"$f":"key_row(CRSDATA!X244,CRSDATA!Y244,CRSDATA!AL244,CRSDATA!AK244,CRSDATA!AJ244,CRSDATA!AM244,CRSDATA!P244,CRSDATA!V244)","v":""},{"$f":"CRSDATA!P244","v":0},{"$f":"CRSDATA!J244","v":0},{"$f":"CRSDATA!I244","v":0},null,{"$f":"IF(LEFT(CRSDATA!N244,2)=\"A0\",\"A00\",IF(LEFT(CRSDATA!N244,3)=\"B02\",\"B02\",IF(LEFT(CRSDATA!N244,3)=\"B03\",\"B03\",IF(CRSDATA!N244=\"B04\",\"C01\",IF(CRSDATA!N244=\"H01\",\"H00\",IF(OR(CRSDATA!N244=\"H02\",CRSDATA!N244=\"H03\",CRSDATA!N244=\"H04\",CRSDATA!N244=\"H05\",CRSDATA!N244=\"H06\"),\"I01\",IF(CRSDATA!N244=\"\",\"\",CRSDATA!N244)))))))","v":""},{"$f":"IF(AND(LEN(CRSDATA!M244)=4,LEFT(CRSDATA!M244,3)=\"110\"),1100,IF(AND(LEN(CRSDATA!M244)=4,LEFT(CRSDATA!M244,3)=\"422\"),422,CRSDATA!M244))","v":0},{"$f":"IF(CRSDATA!L244=22,\"FA04\",\"\")","v":""},{"$f":"IF(CRSDATA!K244=8,\"FC02\",\"\")","v":""},{"$f":"_xlfn.IFS(OR(P244=\"A00\",P244=\"E01\",P244=\"F01\",AND(P244=\"\",A244<>0),Q244=510,Q244=520,AF244=60),1,P244=\"G01\",IF(AF244=10,21,22),OR(M244=41203,M244=41204),22,OR(AND(OR(P244=\"B02\",P244=\"B03\"),M244=41310),OR(P244=\"E02\",P244=\"I01\")),21,AND(OR(P244=\"B01\",P244=\"B03\",P244=\"C01\"),M244<>41310),IF(VLOOKUP(F244,recipient_country!AB:AD,3,FALSE)=10024,\"\",1),AND(P244=\"B02\",M244<>41310),IF(VLOOKUP(M244,channel_codes!J:P,7,FALSE)=0,\"\",VLOOKUP(M244,channel_codes!J:P,7,FALSE)),ISNUMBER(MATCH(P244,{\"D01\",\"D02\"},0)),IF(VLOOKUP(M244,channel_codes!J:P,7,FALSE)=1,1,IF(VLOOKUP(F244,recipient_country!AB:AD,3,FALSE)=10024,\"\",1)),OR(P244=\"H01\",AND(OR(ISNUMBER(SEARCH(\"41010\", L244)),ISNUMBER(SEARCH(\"41020\", L244)),ISNUMBER(SEARCH(\"41030\", L244)),ISNUMBER(SEARCH(\"41040\", L244)),ISNUMBER(SEARCH(\"41081\", L244))),F244=998)),22,F244=998,22,TRUE,\"\")","v":""},{"$f":"CRSDATA!AN244","v":0},{"$f":"CRSDATA!AO244","v":0},{"$f":"CRSDATA!AQ244","v":0},{"$f":"CRSDATA!AS244","v":0},{"$f":"CRSDATA!BB244","v":0},null,"",{"$f":"IF(AND(AND(CRSDATA!C244<>\"\",CRSDATA!BK244<>\"\"),OR(CRSDATA!N244=421,CRSDATA!N244=422,CRSDATA!N244=4221,CRSDATA!N244=4222,CRSDATA!N244=423,CRSDATA!N244=424,CRSDATA!N244=425,CRSDATA!N244=431,CRSDATA!N244=433,CRSDATA!N244=434)),DATEDIF(CRSDATA!C244,CRSDATA!BK244,\"m\"),\"\")","v":""},{"$f":"CRSDATA!BA244","v":0},{"$f":"CRSDATA!BC244","v":0},{"$f":"IF(CRSDATA!BT244=\"\",\"\",CRSDATA!BT244)","v":""},{"$f":"CRSDATA!L244","v":0}]
[{"$f":"CRSDATA!A245","v":0},{"$f":"CRSDATA!C245","v":0},{"$f":"CRSDATA!D245","v":0},{"$f":"CRSDATA!F245","v":0},{"$f":"CRSDATA!E245","v":0},{"$f":"IF(CRSDATA!H245=3000,998,CRSDATA!H245)","v":0},{"$f":"CRSDATA!O245","v":0},{"$f":"CRSDATA!U245","v":0},{"$f":"IF(CRSDATA!V245=\"\",\"\",CRSDATA!V245)","v":""},{"$f":"IF(CRSDATA!W245=\"\",\"\",CRSDATA!W245)","v":""},{"$f":"key_row(CRSDATA!X245,CRSDATA!Y245,CRSDATA!AL245,CRSDATA!AK245,CRSDATA!AJ245,CRSDATA!AM245,CRSDATA!P245,CRSDATA!V245)","v":""},{"$f":"CRSDATA!P245","v":0},{"$f":"CRSDATA!J245","v":0},{"$f":"CRSDATA!I245","v":0},null,{"$f":"IF(LEFT(CRSDATA!N245,2)=\"A0\",\"A00\",IF(LEFT(CRSDATA!N245,3)=\"B02\",\"B02\",IF(LEFT(CRSDATA!N245,3)=\"B03\",\"B03\",IF(CRSDATA!N245=\"B04\",\"C01\",IF(CRSDATA!N245=\"H01\",\"H00\",IF(OR(CRSDATA!N245=\"H02\",CRSDATA!N245=\"H03\",CRSDATA!N245=\"H04\",CRSDATA!N245=\"H05\",CRSDATA!N245=\"H06\"),\"I01\",IF(CRSDATA!N245=\"\",\"\",CRSDATA!N245)))))))","v":""},{"$f":"IF(AND(LEN(CRSDATA!M245)=4,LEFT(CRSDATA!M245,3)=\"110\"),1100,IF(AND(LEN(CRSDATA!M245)=4,LEFT(CRSDATA!M245,3)=\"422\"),422,CRSDATA!M245))","v":0},{"$f":"IF(CRSDATA!L245=22,\"FA04\",\"\")","v":""},{"$f":"IF(CRSDATA!K245=8,\"FC02\",\"\")","v":""},{"$f":"_xlfn.IFS(OR(P245=\"A00\",P245=\"E01\",P245=\"F01\",AND(P245=\"\",A245<>0),Q245=510,Q245=520,AF245=60),1,P245=\"G01\",IF(AF245=10,21,22),OR(M245=41203,M245=41204),22,OR(AND(OR(P245=\"B02\",P245=\"B03\"),M245=41310),OR(P245=\"E02\",P245=\"I01\")),21,AND(OR(P245=\"B01\",P245=\"B03\",P245=\"C01\"),M245<>41310),IF(VLOOKUP(F245,recipient_country!AB:AD,3,FALSE)=10024,\"\",1),AND(P245=\"B02\",M245<>41310),IF(VLOOKUP(M245,channel_codes!J:P,7,FALSE)=0,\"\",VLOOKUP(M245,channel_codes!J:P,7,FALSE)),ISNUMBER(MATCH(P245,{\"D01\",\"D02\"},0)),IF(VLOOKUP(M245,channel_codes!J:P,7,FALSE)=1,1,IF(VLOOKUP(F245,recipient_country!AB:AD,3,FALSE)=10024,\"\",1)),OR(P245=\"H01\",AND(OR(ISNUMBER(SEARCH(\"41010\", L245)),ISNUMBER(SEARCH(\"41020\", L245)),ISNUMBER(SEARCH(\"41030\", L245)),ISNUMBER(SEARCH(\"41040\", L245)),ISNUMBER(SEARCH(\"41081\", L245))),F245=998)),22,F245=998,22,TRUE,\"\")","v":""},{"$f":"CRSDATA!AN245","v":0},{"$f":"CRSDATA!AO245","v":0},{"$f":"CRSDATA!AQ245","v":0},{"$f":"CRSDATA!AS245","v":0},{"$f":"CRSDATA!BB245","v":0},null,"",{"$f":"IF(AND(AND(CRSDATA!C245<>\"\",CRSDATA!BK245<>\"\"),OR(CRSDATA!N245=421,CRSDATA!N245=422,CRSDATA!N245=4221,CRSDATA!N245=4222,CRSDATA!N245=423,CRSDATA!N245=424,CRSDATA!N245=425,CRSDATA!N245=431,CRSDATA!N245=433,CRSDATA!N245=434)),DATEDIF(CRSDATA!C245,CRSDATA!BK245,\"m\"),\"\")","v":""},{"$f":"CRSDATA!BA245","v":0},{"$f":"CRSDATA!BC245","v":0},{"$f":"IF(CRSDATA!BT245=\"\",\"\",CRSDATA!BT245)","v":""},{"$f":"CRSDATA!L245","v":0}]
[{"$f":"CRSDATA!A246","v":0},{"$f":"CRSDATA!C246","v":0},{"$f":"CRSDATA!D246","v":0},{"$f":"CRSDATA!F246","v":0},{"$f":"CRSDATA!E246","v":0},{"$f":"IF(CRSDATA!H246=3000,998,CRSDATA!H246)","v":0},{"$f":"CRSDATA!O246","v":0},{"$f":"CRSDATA!U246","v":0},{"$f":"IF(CRSDATA!V246=\"\",\"\",CRSDATA!V246)","v":""},{"$f":"IF(CRSDATA!W246=\"\",\"\",CRSDATA!W246)","v":""},{"$f":"key_row(CRSDATA!X246,CRSDATA!Y246,CRSDATA!AL246,CRSDATA!AK246,CRSDATA!AJ246,CRSDATA!AM246,CRSDATA!P246,CRSDATA!V246)","v":""},{"$f":"CRSDATA!P246","v":0},{"$f":"CRSDATA!J246","v":0},{"$f":"CRSDATA!I246","v":0},null,{"$f":"IF(LEFT(CRSDATA!N246,2)=\"A0\",\"A00\",IF(LEFT(CRSDATA!N246,3)=\"B02\",\"B02\",IF(LEFT(CRSDATA!N246,3)=\"B03\",\"B03\",IF(CRSDATA!N246=\"B04\",\"C01\",IF(CRSDATA!N246=\"H01\",\"H00\",IF(OR(CRSDATA!N246=\"H02\",CRSDATA!N246=\"H03\",CRSDATA!N246=\"H04\",CRSDATA!N246=\"H05\",CRSDATA!N246=\"H06\"),\"I01\",IF(CRSDATA!N246=\"\",\"\",CRSDATA!N246)))))))","v":""},{"$f":"IF(AND(LEN(CRSDATA!M246)=4,LEFT(CRSDATA!M246,3)=\"110\"),1100,IF(AND(LEN(CRSDATA!M246)=4,LEFT(CRSDATA!M246,3)=\"422\"),422,CRSDATA!M246))","v":0},{"$f":"IF(CRSDATA!L246=22,\"FA04\",\"\")","v":""},{"$f":"IF(CRSDATA!K246=8,\"FC02\",\"\")","v":""},{"$f":"_xlfn.IFS(OR(P246=\"A00\",P246=\"E01\",P246=\"F01\",AND(P246=\"\",A246<>0),Q246=510,Q246=520,AF246=60),1,P246=\"G01\",IF(AF246=10,21,22),OR(M246=41203,M246=41204),22,OR(AND(OR(P246=\"B02\",P246=\"B03\"),M246=41310),OR(P246=\"E02\",P246=\"I01\")),21,AND(OR(P246=\"B01\",P246=\"B03\",P246=\"C01\"),M246<>41310),IF(VLOOKUP(F246,recipient_country!AB:AD,3,FALSE)=10024,\"\",1),AND(P246=\"B02\",M246<>41310),IF(VLOOKUP(M246,channel_codes!J:P,7,FALSE)=0,\"\",VLOOKUP(M246,channel_codes!J:P,7,FALSE)),ISNUMBER(MATCH(P246,{\"D01\",\"D02\"},0)),IF(VLOOKUP(M246,channel_codes!J:P,7,FALSE)=1,1,IF(VLOOKUP(F246,recipient_country!AB:AD,3,FALSE)=10024,\"\",1)),OR(P246=\"H01\",AND(OR(ISNUMBER(SEARCH(\"41010\", L246)),ISNUMBER(SEARCH(\"41020\", L246)),ISNUMBER(SEARCH(\"41030\", L246)),ISNUMBER(SEARCH(\"41040\", L246)),ISNUMBER(SEARCH(\"41081\", L246))),F246=998)),22,F246=998,22,TRUE,\"\")","v":""},{"$f":"CRSDATA!AN246","v":0},{"$f":"CRSDATA!AO246","v":0},{"$f":"CRSDATA!AQ246","v":0},{"$f":"CRSDATA!AS246","v":0},{"$f":"CRSDATA!BB246","v":0},null,"",{"$f":"IF(AND(AND(CRSDATA!C246<>\"\",CRSDATA!BK246<>\"\"),OR(CRSDATA!N246=421,CRSDATA!N246=422,CRSDATA!N246=4221,CRSDATA!N246=4222,CRSDATA!N246=423,CRSDATA!N246=424,CRSDATA!N246=425,CRSDATA!N246=431,CRSDATA!N246=433,CRSDATA!N246=434)),DATEDIF(CRSDATA!C246,CRSDATA!BK246,\"m\"),\"\")","v":""},{"$f":"CRSDATA!BA246","v":0},{"$f":"CRSDATA!BC246","v":0},{"$f":"IF(CRSDATA!BT246=\"\",\"\",CRSDATA!BT246)","v":""},{"$f":"CRSDATA!L246","v":0}]
[{"$f":"CRSDATA!A247","v":0},{"$f":"CRSDATA!C247","v":0},{"$f":"CRSDATA!D247","v":0},{"$f":"CRSDATA!F247","v":0},{"$f":"CRSDATA!E247","v":0},{"$f":"IF(CRSDATA!H247=3000,998,CRSDATA!H247)","v":0},{"$f":"CRSDATA!O247","v":0},{"$f":"CRSDATA!U247","v":0},{"$f":"IF(CRSDATA!V247=\"\",\"\",CRSDATA!V247)","v":""},{"$f":"IF(CRSDATA!W247=\"\",\"\",CRSDATA!W247)","v":""},{"$f":"key_row(CRSDATA!X247,CRSDATA!Y247,CRSDATA!AL247,CRSDATA!AK247,CRSDATA!AJ247,CRSDATA!AM247,CRSDATA!P247,CRSDATA!V247)","v":""},{"$f":"CRSDATA!P247","v":0},{"$f":"CRSDATA!J247","v":0},{"$f":"CRSDATA!I247","v":0},null,{"$f":"IF(LEFT(CRSDATA!N247,2)=\"A0\",\"A00\",IF(LEFT(CRSDATA!N247,3)=\"B02\",\"B02\",IF(LEFT(CRSDATA!N247,3)=\"B03\",\"B03\",IF(CRSDATA!N247=\"B04\",\"C01\",IF(CRSDATA!N247=\"H01\",\"H00\",IF(OR(CRSDATA!N247=\"H02\",CRSDATA!N247=\"H03\",CRSDATA!N247=\"H04\",CRSDATA!N247=\"H05\",CRSDATA!N247=\"H06\"),\"I01\",IF(CRSDATA!N247=\"\",\"\",CRSDATA!N247)))))))","v":""},{"$f":"IF(AND(LEN(CRSDATA!M247)=4,LEFT(CRSDATA!M247,3)=\"110\"),1100,IF(AND(LEN(CRSDATA!M247)=4,LEFT(CRSDATA!M247,3)=\"422\"),422,CRSDATA!M247))","v":0},{"$f":"IF(CRSDATA!L247=22,\"FA04\",\"\")","v":""},{"$f":"IF(CRSDATA!K247=8,\"FC02\",\"\")","v":""},{"$f":"_xlfn.IFS(OR(P247=\"A00\",P247=\"E01\",P247=\"F01\",AND(P247=\"\",A247<>0),Q247=510,Q247=520,AF247=60),1,P247=\"G01\",IF(AF247=10,21,22),OR(M247=41203,M247=41204),22,OR(AND(OR(P247=\"B02\",P247=\"B03\"),M247=41310),OR(P247=\"E02\",P247=\"I01\")),21,AND(OR(P247=\"B01\",P247=\"B03\",P247=\"C01\"),M247<>41310),IF(VLOOKUP(F247,recipient_country!AB:AD,3,FALSE)=10024,\"\",1),AND(P247=\"B02\",M247<>41310),IF(VLOOKUP(M247,channel_codes!J:P,7,FALSE)=0,\"\",VLOOKUP(M247,channel_codes!J:P,7,FALSE)),ISNUMBER(MATCH(P247,{\"D01\",\"D02\"},0)),IF(VLOOKUP(M247,channel_codes!J:P,7,FALSE)=1,1,IF(VLOOKUP(F247,recipient_country!AB:AD,3,FALSE)=10024,\"\",1)),OR(P247=\"H01\",AND(OR(ISNUMBER(SEARCH(\"41010\", L247)),ISNUMBER(SEARCH(\"41020\", L247)),ISNUMBER(SEARCH(\"41030\", L247)),ISNUMBER(SEARCH(\"41040\", L247)),ISNUMBER(SEARCH(\"41081\", L247))),F247=998)),22,F247=998,22,TRUE,\"\")","v":""},{"$f":"CRSDATA!AN247","v":0},{"$f":"CRSDATA!AO247","v":0},{"$f":"CRSDATA!AQ247","v":0},{"$f":"CRSDATA!AS247","v":0},{"$f":"CRSDATA!BB247","v":0},null,"",{"$f":"IF(AND(AND(CRSDATA!C247<>\"\",CRSDATA!BK247<>\"\"),OR(CRSDATA!N247=421,CRSDATA!N247=422,CRSDATA!N247=4221,CRSDATA!N247=4222,CRSDATA!N247=423,CRSDATA!N247=424,CRSDATA!N247=425,CRSDATA!N247=431,CRSDATA!N247=433,CRSDATA!N247=434)),DATEDIF(CRSDATA!C247,CRSDATA!BK247,\"m\"),\"\")","v":""},{"$f":"CRSDATA!BA247","v":0},{"$f":"CRSDATA!BC247","v":0},{"$f":"IF(CRSDATA!BT247=\"\",\"\",CRSDATA!BT247)","v":""},{"$f":"CRSDATA!L247","v":0}]
[{"$f":"CRSDATA!A248","v":0},{"$f":"CRSDATA!C248","v":0},{"$f":"CRSDATA!D248","v":0},{"$f":"CRSDATA!F248","v":0},{"$f":"CRSDATA!E248","v":0},{"$f":"IF(CRSDATA!H248=3000,998,CRSDATA!H248)","v":0},{"$f":"CRSDATA!O248","v":0},{"$f":"CRSDATA!U248","v":0},{"$f":"IF(CRSDATA!V248=\"\",\"\",CRSDATA!V248)","v":""},{"$f":"IF(CRSDATA!W248=\"\",\"\",CRSDATA!W248)","v":""},{"$f":"key_row(CRSDATA!X248,CRSDATA!Y248,CRSDATA!AL248,CRSDATA!AK248,CRSDATA!AJ248,CRSDATA!AM248,CRSDATA!P248,CRSDATA!V248)","v":""},{"$f":"CRSDATA!P248","v":0},{"$f":"CRSDATA!J248","v":0},{"$f":"CRSDATA!I248","v":0},null,{"$f":"IF(LEFT(CRSDATA!N248,2)=\"A0\",\"A00\",IF(LEFT(CRSDATA!N248,3)=\"B02\",\"B02\",IF(LEFT(CRSDATA!N248,3)=\"B03\",\"B03\",IF(CRSDATA!N248=\"B04\",\"C01\",IF(CRSDATA!N248=\"H01\",\"H00\",IF(OR(CRSDATA!N248=\"H02\",CRSDATA!N248=\"H03\",CRSDATA!N248=\"H04\",CRSDATA!N248=\"H05\",CRSDATA!N248=\"H06\"),\"I01\",IF(CRSDATA!N248=\"\",\"\",CRSDATA!N248)))))))","v":""},{"$f":"IF(AND(LEN(CRSDATA!M248)=4,LEFT(CRSDATA!M248,3)=\"110\"),1100,IF(AND(LEN(CRSDATA!M248)=4,LEFT(CRSDATA!M248,3)=\"422\"),422,CRSDATA!M248))","v":0},{"$f":"IF(CRSDATA!L248=22,\"FA04\",\"\")","v":""},{"$f":"IF(CRSDATA!K248=8,\"FC02\",\"\")","v":""},{"$f":"_xlfn.IFS(OR(P248=\"A00\",P248=\"E01\",P248=\"F01\",AND(P248=\"\",A248<>0),Q248=510,Q248=520,AF248=60),1,P248=\"G01\",IF(AF248=10,21,22),OR(M248=41203,M248=41204),22,OR(AND(OR(P248=\"B02\",P248=\"B03\"),M248=41310),OR(P248=\"E02\",P248=\"I01\")),21,AND(OR(P248=\"B01\",P248=\"B03\",P248=\"C01\"),M248<>41310),IF(VLOOKUP(F248,recipient_country!AB:AD,3,FALSE)=10024,\"\",1),AND(P248=\"B02\",M248<>41310),IF(VLOOKUP(M248,channel_codes!J:P,7,FALSE)=0,\"\",VLOOKUP(M248,channel_codes!J:P,7,FALSE)),ISNUMBER(MATCH(P248,{\"D01\",\"D02\"},0)),IF(VLOOKUP(M248,channel_codes!J:P,7,FALSE)=1,1,IF(VLOOKUP(F248,recipient_country!AB:AD,3,FALSE)=10024,\"\",1)),OR(P248=\"H01\",AND(OR(ISNUMBER(SEARCH(\"41010\", L248)),ISNUMBER(SEARCH(\"41020\", L248)),ISNUMBER(SEARCH(\"41030\", L248)),ISNUMBER(SEARCH(\"41040\", L248)),ISNUMBER(SEARCH(\"41081\", L248))),F248=998)),22,F248=998,22,TRUE,\"\")","v":""},{"$f":"CRSDATA!AN248","v":0},{"$f":"CRSDATA!AO248","v":0},{"$f":"CRSDATA!AQ248","v":0},{"$f":"CRSDATA!AS248","v":0},{"$f":"CRSDATA!BB248","v":0},null,"",{"$f":"IF(AND(AND(CRSDATA!C248<>\"\",CRSDATA!BK248<>\"\"),OR(CRSDATA!N248=421,CRSDATA!N248=422,CRSDATA!N248=4221,CRSDATA!N248=4222,CRSDATA!N248=423,CRSDATA!N248=424,CRSDATA!N248=425,CRSDATA!N248=431,CRSDATA!N248=433,CRSDATA!N248=434)),DATEDIF(CRSDATA!C248,CRSDATA!BK248,\"m\"),\"\")","v":""},{"$f":"CRSDATA!BA248","v":0},{"$f":"CRSDATA!BC248","v":0},{"$f":"IF(CRSDATA!BT248=\"\",\"\",CRSDATA!BT248)","v":""},{"$f":"CRSDATA!L248","v":0}]
[{"$f":"CRSDATA!A249","v":0},{"$f":"CRSDATA!C249","v":0},{"$f":"CRSDATA!D249","v":0},{"$f":"CRSDATA!F249","v":0},{"$f":"CRSDATA!E249","v":0},{"$f":"IF(CRSDATA!H249=3000,998,CRSDATA!H249)","v":0},{"$f":"CRSDATA!O249","v":0},{"$f":"CRSDATA!U249","v":0},{"$f":"IF(CRSDATA!V249=\"\",\"\",CRSDATA!V249)","v":""},{"$f":"IF(CRSDATA!W249=\"\",\"\",CRSDATA!W249)","v":""},{"$f":"key_row(CRSDATA!X249,CRSDATA!Y249,CRSDATA!AL249,CRSDATA!AK249,CRSDATA!AJ249,CRSDATA!AM249,CRSDATA!P249,CRSDATA!V249)","v":""},{"$f":"CRSDATA!P249","v":0},{"$f":"CRSDATA!J249","v":0},{"$f":"CRSDATA!I249","v":0},null,{"$f":"IF(LEFT(CRSDATA!N249,2)=\"A0\",\"A00\",IF(LEFT(CRSDATA!N249,3)=\"B02\",\"B02\",IF(LEFT(CRSDATA!N249,3)=\"B03\",\"B03\",IF(CRSDATA!N249=\"B04\",\"C01\",IF(CRSDATA!N249=\"H01\",\"H00\",IF(OR(CRSDATA!N249=\"H02\",CRSDATA!N249=\"H03\",CRSDATA!N249=\"H04\",CRSDATA!N249=\"H05\",CRSDATA!N249=\"H06\"),\"I01\",IF(CRSDATA!N249=\"\",\"\",CRSDATA!N249)))))))","v":""},{"$f":"IF(AND(LEN(CRSDATA!M249)=4,LEFT(CRSDATA!M249,3)=\"110\"),1100,IF(AND(LEN(CRSDATA!M249)=4,LEFT(CRSDATA!M249,3)=\"422\"),422,CRSDATA!M249))","v":0},{"$f":"IF(CRSDATA!L249=22,\"FA04\",\"\")","v":""},{"$f":"IF(CRSDATA!K249=8,\"FC02\",\"\")","v":""},{"$f":"_xlfn.IFS(OR(P249=\"A00\",P249=\"E01\",P249=\"F01\",AND(P249=\"\",A249<>0),Q249=510,Q249=520,AF249=60),1,P249=\"G01\",IF(AF249=10,21,22),OR(M249=41203,M249=41204),22,OR(AND(OR(P249=\"B02\",P249=\"B03\"),M249=41310),OR(P249=\"E02\",P249=\"I01\")),21,AND(OR(P249=\"B01\",P249=\"B03\",P249=\"C01\"),M249<>41310),IF(VLOOKUP(F249,recipient_country!AB:AD,3,FALSE)=10024,\"\",1),AND(P249=\"B02\",M249<>41310),IF(VLOOKUP(M249,channel_codes!J:P,7,FALSE)=0,\"\",VLOOKUP(M249,channel_codes!J:P,7,FALSE)),ISNUMBER(MATCH(P249,{\"D01\",\"D02\"},0)),IF(VLOOKUP(M249,channel_codes!J:P,7,FALSE)=1,1,IF(VLOOKUP(F249,recipient_country!AB:AD,3,FALSE)=10024,\"\",1)),OR(P249=\"H01\",AND(OR(ISNUMBER(SEARCH(\"41010\", L249)),ISNUMBER(SEARCH(\"41020\", L249)),ISNUMBER(SEARCH(\"41030\", L249)),ISNUMBER(SEARCH(\"41040\", L249)),ISNUMBER(SEARCH(\"41081\", L249))),F249=998)),22,F249=998,22,TRUE,\"\")","v":""},{"$f":"CRSDATA!AN249","v":0},{"$f":"CRSDATA!AO249","v":0},{"$f":"CRSDATA!AQ249","v":0},{"$f":"CRSDATA!AS249","v":0},{"$f":"CRSDATA!BB249","v":0},null,"",{"$f":"IF(AND(AND(CRSDATA!C249<>\"\",CRSDATA!BK249<>\"\"),OR(CRSDATA!N249=421,CRSDATA!N249=422,CRSDATA!N249=4221,CRSDATA!N249=4222,CRSDATA!N249=423,CRSDATA!N249=424,CRSDATA!N249=425,CRSDATA!N249=431,CRSDATA!N249=433,CRSDATA!N249=434)),DATEDIF(CRSDATA!C249,CRSDATA!BK249,\"m\"),\"\")","v":""},{"$f":"CRSDATA!BA249","v":0},{"$f":"CRSDATA!BC249","v":0},{"$f":"IF(CRSDATA!BT249=\"\",\"\",CRSDATA!BT249)","v":""},{"$f":"CRSDATA!L249","v":0}]
[{"$f":"CRSDATA!A250","v":0},{"$f":"CRSDATA!C250","v":0},{"$f":"CRSDATA!D250","v":0},{"$f":"CRSDATA!F250","v":0},{"$f":"CRSDATA!E250","v":0},{"$f":"IF(CRSDATA!H250=3000,998,CRSDATA!H250)","v":0},{"$f":"CRSDATA!O250","v":0},{"$f":"CRSDATA!U250","v":0},{"$f":"IF(CRSDATA!V250=\"\",\"\",CRSDATA!V250)","v":""},{"$f":"IF(CRSDATA!W250=\"\",\"\",CRSDATA!W250)","v":""},{"$f":"key_row(CRSDATA!X250,CRSDATA!Y250,CRSDATA!AL250,CRSDATA!AK250,CRSDATA!AJ250,CRSDATA!AM250,CRSDATA!P250,CRSDATA!V250)","v":""},{"$f":"CRSDATA!P250","v":0},{"$f":"CRSDATA!J250","v":0},{"$f":"CRSDATA!I250","v":0},null,{"$f":"IF(LEFT(CRSDATA!N250,2)=\"A0\",\"A00\",IF(LEFT(CRSDATA!N250,3)=\"B02\",\"B02\",IF(LEFT(CRSDATA!N250,3)=\"B03\",\"B03\",IF(CRSDATA!N250=\"B04\",\"C01\",IF(CRSDATA!N250=\"H01\",\"H00\",IF(OR(CRSDATA!N250=\"H02\",CRSDATA!N250=\"H03\",CRSDATA!N250=\"H04\",CRSDATA!N250=\"H05\",CRSDATA!N250=\"H06\"),\"I01\",IF(CRSDATA!N250=\"\",\"\",CRSDATA!N250)))))))","v":""},{"$f":"IF(AND(LEN(CRSDATA!M250)=4,LEFT(CRSDATA!M250,3)=\"110\"),1100,IF(AND(LEN(CRSDATA!M250)=4,LEFT(CRSDATA!M250,3)=\"422\"),422,CRSDATA!M250))","v":0},{"$f":"IF(CRSDATA!L250=22,\"FA04\",\"\")","v":""},{"$f":"IF(CRSDATA!K250=8,\"FC02\",\"\")","v":""},{"$f":"_xlfn.IFS(OR(P250=\"A00\",P250=\"E01\",P250=\"F01\",AND(P250=\"\",A250<>0),Q250=510,Q250=520,AF250=60),1,P250=\"G01\",IF(AF250=10,21,22),OR(M250=41203,M250=41204),22,OR(AND(OR(P250=\"B02\",P250=\"B03\"),M250=41310),OR(P250=\"E02\",P250=\"I01\")),21,AND(OR(P250=\"B01\",P250=\"B03\",P250=\"C01\"),M250<>41310),IF(VLOOKUP(F250,recipient_country!AB:AD,3,FALSE)=10024,\"\",1),AND(P250=\"B02\",M250<>41310),IF(VLOOKUP(M250,channel_codes!J:P,7,FALSE)=0,\"\",VLOOKUP(M250,channel_codes!J:P,7,FALSE)),ISNUMBER(MATCH(P250,{\"D01\",\"D02\"},0)),IF(VLOOKUP(M250,channel_codes!J:P,7,FALSE)=1,1,IF(VLOOKUP(F250,recipient_country!AB:AD,3,FALSE)=10024,\"\",1)),OR(P250=\"H01\",AND(OR(ISNUMBER(SEARCH(\"41010\", L250)),ISNUMBER(SEARCH(\"41020\", L250)),ISNUMBER(SEARCH(\"41030\", L250)),ISNUMBER(SEARCH(\"41040\", L250)),ISNUMBER(SEARCH(\"41081\", L250))),F250=998)),22,F250=998,22,TRUE,\"\")","v":""},{"$f":"CRSDATA!AN250","v":0},{"$f":"CRSDATA!AO250","v":0},{"$f":"CRSDATA!AQ250","v":0},{"$f":"CRSDATA!AS250","v":0},{"$f":"CRSDATA!BB250","v":0},null,"",{"$f":"IF(AND(AND(CRSDATA!C250<>\"\",CRSDATA!BK250<>\"\"),OR(CRSDATA!N250=421,CRSDATA!N250=422,CRSDATA!N250=4221,CRSDATA!N250=4222,CRSDATA!N250=423,CRSDATA!N250=424,CRSDATA!N250=425,CRSDATA!N250=431,CRSDATA!N250=433,CRSDATA!N250=434)),DATEDIF(CRSDATA!C250,CRSDATA!BK250,\"m\"),\"\")","v":""},{"$f":"CRSDATA!BA250","v":0},{"$f":"CRSDATA!BC250","v":0},{"$f":"IF(CRSDATA!BT250=\"\",\"\",CRSDATA!BT250)","v":""},{"$f":"CRSDATA!L250","v":0}]
[{"$f":"CRSDATA!A251","v":0},{"$f":"CRSDATA!C251","v":0},{"$f":"CRSDATA!D251","v":0},{"$f":"CRSDATA!F251","v":0},{"$f":"CRSDATA!E251","v":0},{"$f":"IF(CRSDATA!H251=3000,998,CRSDATA!H251)","v":0},{"$f":"CRSDATA!O251","v":0},{"$f":"CRSDATA!U251","v":0},{"$f":"IF(CRSDATA!V251=\"\",\"\",CRSDATA!V251)","v":""},{"$f":"IF(CRSDATA!W251=\"\",\"\",CRSDATA!W251)","v":""},{"$f":"key_row(CRSDATA!X251,CRSDATA!Y251,CRSDATA!AL251,CRSDATA!AK251,CRSDATA!AJ251,CRSDATA!AM251,CRSDATA!P251,CRSDATA!V251)","v":""},{"$f":"CRSDATA!P251","v":0},{"$f":"CRSDATA!J251","v":0},{"$f":"CRSDATA!I251","v":0},null,{"$f":"IF(LEFT(CRSDATA!N251,2)=\"A0\",\"A00\",IF(LEFT(CRSDATA!N251,3)=\"B02\",\"B02\",IF(LEFT(CRSDATA!N251,3)=\"B03\",\"B03\",IF(CRSDATA!N251=\"B04\",\"C01\",IF(CRSDATA!N251=\"H01\",\"H00\",IF(OR(CRSDATA!N251=\"H02\",CRSDATA!N251=\"H03\",CRSDATA!N251=\"H04\",CRSDATA!N251=\"H05\",CRSDATA!N251=\"H06\"),\"I01\",IF(CRSDATA!N251=\"\",\"\",CRSDATA!N251)))))))","v":""},{"$f":"IF(AND(LEN(CRSDATA!M251)=4,LEFT(CRSDATA!M251,3)=\"110\"),1100,IF(AND(LEN(CRSDATA!M251)=4,LEFT(CRSDATA!M251,3)=\"422\"),422,CRSDATA!M251))","v":0},{"$f":"IF(CRSDATA!L251=22,\"FA04\",\"\")","v":""},{"$f":"IF(CRSDATA!K251=8,\"FC02\",\"\")","v":""},{"$f":"_xlfn.IFS(OR(P251=\"A00\",P251=\"E01\",P251=\"F01\",AND(P251=\"\",A251<>0),Q251=510,Q251=520,AF251=60),1,P251=\"G01\",IF(AF251=10,21,22),OR(M251=41203,M251=41204),22,OR(AND(OR(P251=\"B02\",P251=\"B03\"),M251=41310),OR(P251=\"E02\",P251=\"I01\")),21,AND(OR(P251=\"B01\",P251=\"B03\",P251=\"C01\"),M251<>41310),IF(VLOOKUP(F251,recipient_country!AB:AD,3,FALSE)=10024,\"\",1),AND(P251=\"B02\",M251<>41310),IF(VLOOKUP(M251,channel_codes!J:P,7,FALSE)=0,\"\",VLOOKUP(M251,channel_codes!J:P,7,FALSE)),ISNUMBER(MATCH(P251,{\"D01\",\"D02\"},0)),IF(VLOOKUP(M251,channel_codes!J:P,7,FALSE)=1,1,IF(VLOOKUP(F251,recipient_country!AB:AD,3,FALSE)=10024,\"\",1)),OR(P251=\"H01\",AND(OR(ISNUMBER(SEARCH(\"41010\", L251)),ISNUMBER(SEARCH(\"41020\", L251)),ISNUMBER(SEARCH(\"41030\", L251)),ISNUMBER(SEARCH(\"41040\", L251)),ISNUMBER(SEARCH(\"41081\", L251))),F251=998)),22,F251=998,22,TRUE,\"\")","v":""},{"$f":"CRSDATA!AN251","v":0},{"$f":"CRSDATA!AO251","v":0},{"$f":"CRSDATA!AQ251","v":0},{"$f":"CRSDATA!AS251","v":0},{"$f":"CRSDATA!BB251","v":0},null,"",{"$f":"IF(AND(AND(CRSDATA!C251<>\"\",CRSDATA!BK251<>\"\"),OR(CRSDATA!N251=421,CRSDATA!N251=422,CRSDATA!N251=4221,CRSDATA!N251=4222,CRSDATA!N251=423,CRSDATA!N251=424,CRSDATA!N251=425,CRSDATA!N251=431,CRSDATA!N251=433,CRSDATA!N251=434)),DATEDIF(CRSDATA!C251,CRSDATA!BK251,\"m\"),\"\")","v":""},{"$f":"CRSDATA!BA251","v":0},{"$f":"CRSDATA!BC251","v":0},{"$f":"IF(CRSDATA!BT251=\"\",\"\",CRSDATA!BT251)","v":""},{"$f":"CRSDATA!L251","v":0}]
[{"$f":"CRSDATA!A252","v":0},{"$f":"CRSDATA!C252","v":0},{"$f":"CRSDATA!D252","v":0},{"$f":"CRSDATA!F252","v":0},{"$f":"CRSDATA!E252","v":0},{"$f":"IF(CRSDATA!H252=3000,998,CRSDATA!H252)","v":0},{"$f":"CRSDATA!O252","v":0},{"$f":"CRSDATA!U252","v":0},{"$f":"IF(CRSDATA!V252=\"\",\"\",CRSDATA!V252)","v":""},{"$f":"IF(CRSDATA!W252=\"\",\"\",CRSDATA!W252)","v":""},{"$f":"key_row(CRSDATA!X252,CRSDATA!Y252,CRSDATA!AL252,CRSDATA!AK252,CRSDATA!AJ252,CRSDATA!AM252,CRSDATA!P252,CRSDATA!V252)","v":""},{"$f":"CRSDATA!P252","v":0},{"$f":"CRSDATA!J252","v":0},{"$f":"CRSDATA!I252","v":0},null,{"$f":"IF(LEFT(CRSDATA!N252,2)=\"A0\",\"A00\",IF(LEFT(CRSDATA!N252,3)=\"B02\",\"B02\",IF(LEFT(CRSDATA!N252,3)=\"B03\",\"B03\",IF(CRSDATA!N252=\"B04\",\"C01\",IF(CRSDATA!N252=\"H01\",\"H00\",IF(OR(CRSDATA!N252=\"H02\",CRSDATA!N252=\"H03\",CRSDATA!N252=\"H04\",CRSDATA!N252=\"H05\",CRSDATA!N252=\"H06\"),\"I01\",IF(CRSDATA!N252=\"\",\"\",CRSDATA!N252)))))))","v":""},{"$f":"IF(AND(LEN(CRSDATA!M252)=4,LEFT(CRSDATA!M252,3)=\"110\"),1100,IF(AND(LEN(CRSDATA!M252)=4,LEFT(CRSDATA!M252,3)=\"422\"),422,CRSDATA!M252))","v":0},{"$f":"IF(CRSDATA!L252=22,\"FA04\",\"\")","v":""},{"$f":"IF(CRSDATA!K252=8,\"FC02\",\"\")","v":""},{"$f":"_xlfn.IFS(OR(P252=\"A00\",P252=\"E01\",P252=\"F01\",AND(P252=\"\",A252<>0),Q252=510,Q252=520,AF252=60),1,P252=\"G01\",IF(AF252=10,21,22),OR(M252=41203,M252=41204),22,OR(AND(OR(P252=\"B02\",P252=\"B03\"),M252=41310),OR(P252=\"E02\",P252=\"I01\")),21,AND(OR(P252=\"B01\",P252=\"B03\",P252=\"C01\"),M252<>41310),IF(VLOOKUP(F252,recipient_country!AB:AD,3,FALSE)=10024,\"\",1),AND(P252=\"B02\",M252<>41310),IF(VLOOKUP(M252,channel_codes!J:P,7,FALSE)=0,\"\",VLOOKUP(M252,channel_codes!J:P,7,FALSE)),ISNUMBER(MATCH(P252,{\"D01\",\"D02\"},0)),IF(VLOOKUP(M252,channel_codes!J:P,7,FALSE)=1,1,IF(VLOOKUP(F252,recipient_country!AB:AD,3,FALSE)=10024,\"\",1)),OR(P252=\"H01\",AND(OR(ISNUMBER(SEARCH(\"41010\", L252)),ISNUMBER(SEARCH(\"41020\", L252)),ISNUMBER(SEARCH(\"41030\", L252)),ISNUMBER(SEARCH(\"41040\", L252)),ISNUMBER(SEARCH(\"41081\", L252))),F252=998)),22,F252=998,22,TRUE,\"\")","v":""},{"$f":"CRSDATA!AN252","v":0},{"$f":"CRSDATA!AO252","v":0},{"$f":"CRSDATA!AQ252","v":0},{"$f":"CRSDATA!AS252","v":0},{"$f":"CRSDATA!BB252","v":0},null,"",{"$f":"IF(AND(AND(CRSDATA!C252<>\"\",CRSDATA!BK252<>\"\"),OR(CRSDATA!N252=421,CRSDATA!N252=422,CRSDATA!N252=4221,CRSDATA!N252=4222,CRSDATA!N252=423,CRSDATA!N252=424,CRSDATA!N252=425,CRSDATA!N252=431,CRSDATA!N252=433,CRSDATA!N252=434)),DATEDIF(CRSDATA!C252,CRSDATA!BK252,\"m\"),\"\")","v":""},{"$f":"CRSDATA!BA252","v":0},{"$f":"CRSDATA!BC252","v":0},{"$f":"IF(CRSDATA!BT252=\"\",\"\",CRSDATA!BT252)","v":""},{"$f":"CRSDATA!L252","v":0}]
[{"$f":"CRSDATA!A253","v":0},{"$f":"CRSDATA!C253","v":0},{"$f":"CRSDATA!D253","v":0},{"$f":"CRSDATA!F253","v":0},{"$f":"CRSDATA!E253","v":0},{"$f":"IF(CRSDATA!H253=3000,998,CRSDATA!H253)","v":0},{"$f":"CRSDATA!O253","v":0},{"$f":"CRSDATA!U253","v":0},{"$f":"IF(CRSDATA!V253=\"\",\"\",CRSDATA!V253)","v":""},{"$f":"IF(CRSDATA!W253=\"\",\"\",CRSDATA!W253)","v":""},{"$f":"key_row(CRSDATA!X253,CRSDATA!Y253,CRSDATA!AL253,CRSDATA!AK253,CRSDATA!AJ253,CRSDATA!AM253,CRSDATA!P253,CRSDATA!V253)","v":""},{"$f":"CRSDATA!P253","v":0},{"$f":"CRSDATA!J253","v":0},{"$f":"CRSDATA!I253","v":0},null,{"$f":"IF(LEFT(CRSDATA!N253,2)=\"A0\",\"A00\",IF(LEFT(CRSDATA!N253,3)=\"B02\",\"B02\",IF(LEFT(CRSDATA!N253,3)=\"B03\",\"B03\",IF(CRSDATA!N253=\"B04\",\"C01\",IF(CRSDATA!N253=\"H01\",\"H00\",IF(OR(CRSDATA!N253=\"H02\",CRSDATA!N253=\"H03\",CRSDATA!N253=\"H04\",CRSDATA!N253=\"H05\",CRSDATA!N253=\"H06\"),\"I01\",IF(CRSDATA!N253=\"\",\"\",CRSDATA!N253)))))))","v":""},{"$f":"IF(AND(LEN(CRSDATA!M253)=4,LEFT(CRSDATA!M253,3)=\"110\"),1100,IF(AND(LEN(CRSDATA!M253)=4,LEFT(CRSDATA!M253,3)=\"422\"),422,CRSDATA!M253))","v":0},{"$f":"IF(CRSDATA!L253=22,\"FA04\",\"\")","v":""},{"$f":"IF(CRSDATA!K253=8,\"FC02\",\"\")","v":""},{"$f":"_xlfn.IFS(OR(P253=\"A00\",P253=\"E01\",P253=\"F01\",AND(P253=\"\",A253<>0),Q253=510,Q253=520,AF253=60),1,P253=\"G01\",IF(AF253=10,21,22),OR(M253=41203,M253=41204),22,OR(AND(OR(P253=\"B02\",P253=\"B03\"),M253=41310),OR(P253=\"E02\",P253=\"I01\")),21,AND(OR(P253=\"B01\",P253=\"B03\",P253=\"C01\"),M253<>41310),IF(VLOOKUP(F253,recipient_country!AB:AD,3,FALSE)=10024,\"\",1),AND(P253=\"B02\",M253<>41310),IF(VLOOKUP(M253,channel_codes!J:P,7,FALSE)=0,\"\",VLOOKUP(M253,channel_codes!J:P,7,FALSE)),ISNUMBER(MATCH(P253,{\"D01\",\"D02\"},0)),IF(VLOOKUP(M253,channel_codes!J:P,7,FALSE)=1,1,IF(VLOOKUP(F253,recipient_country!AB:AD,3,FALSE)=10024,\"\",1)),OR(P253=\"H01\",AND(OR(ISNUMBER(SEARCH(\"41010\", L253)),ISNUMBER(SEARCH(\"41020\", L253)),ISNUMBER(SEARCH(\"41030\", L253)),ISNUMBER(SEARCH(\"41040\", L253)),ISNUMBER(SEARCH(\"41081\", L253))),F253=998)),22,F253=998,22,TRUE,\"\")","v":""},{"$f":"CRSDATA!AN253","v":0},{"$f":"CRSDATA!AO253","v":0},{"$f":"CRSDATA!AQ253","v":0},{"$f":"CRSDATA!AS253","v":0},{"$f":"CRSDATA!BB253","v":0},null,"",{"$f":"IF(AND(AND(CRSDATA!C253<>\"\",CRSDATA!BK253<>\"\"),OR(CRSDATA!N253=421,CRSDATA!N253=422,CRSDATA!N253=4221,CRSDATA!N253=4222,CRSDATA!N253=423,CRSDATA!N253=424,CRSDATA!N253=425,CRSDATA!N253=431,CRSDATA!N253=433,CRSDATA!N253=434)),DATEDIF(CRSDATA!C253,CRSDATA!BK253,\"m\"),\"\")","v":""},{"$f":"CRSDATA!BA253","v":0},{"$f":"CRSDATA!BC253","v":0},{"$f":"IF(CRSDATA!BT253=\"\",\"\",CRSDATA!BT253)","v":""},{"$f":"CRSDATA!L253","v":0}]
[{"$f":"CRSDATA!A254","v":0},{"$f":"CRSDATA!C254","v":0},{"$f":"CRSDATA!D254","v":0},{"$f":"CRSDATA!F254","v":0},{"$f":"CRSDATA!E254","v":0},{"$f":"IF(CRSDATA!H254=3000,998,CRSDATA!H254)","v":0},{"$f":"CRSDATA!O254","v":0},{"$f":"CRSDATA!U254","v":0},{"$f":"IF(CRSDATA!V254=\"\",\"\",CRSDATA!V254)","v":""},{"$f":"IF(CRSDATA!W254=\"\",\"\",CRSDATA!W254)","v":""},{"$f":"key_row(CRSDATA!X254,CRSDATA!Y254,CRSDATA!AL254,CRSDATA!AK254,CRSDATA!AJ254,CRSDATA!AM254,CRSDATA!P254,CRSDATA!V254)","v":""},{"$f":"CRSDATA!P254","v":0},{"$f":"CRSDATA!J254","v":0},{"$f":"CRSDATA!I254","v":0},null,{"$f":"IF(LEFT(CRSDATA!N254,2)=\"A0\",\"A00\",IF(LEFT(CRSDATA!N254,3)=\"B02\",\"B02\",IF(LEFT(CRSDATA!N254,3)=\"B03\",\"B03\",IF(CRSDATA!N254=\"B04\",\"C01\",IF(CRSDATA!N254=\"H01\",\"H00\",IF(OR(CRSDATA!N254=\"H02\",CRSDATA!N254=\"H03\",CRSDATA!N254=\"H04\",CRSDATA!N254=\"H05\",CRSDATA!N254=\"H06\"),\"I01\",IF(CRSDATA!N254=\"\",\"\",CRSDATA!N254)))))))","v":""},{"$f":"IF(AND(LEN(CRSDATA!M254)=4,LEFT(CRSDATA!M254,3)=\"110\"),1100,IF(AND(LEN(CRSDATA!M254)=4,LEFT(CRSDATA!M254,3)=\"422\"),422,CRSDATA!M254))","v":0},{"$f":"IF(CRSDATA!L254=22,\"FA04\",\"\")","v":""},{"$f":"IF(CRSDATA!K254=8,\"FC02\",\"\")","v":""},{"$f":"_xlfn.IFS(OR(P254=\"A00\",P254=\"E01\",P254=\"F01\",AND(P254=\"\",A254<>0),Q254=510,Q254=520,AF254=60),1,P254=\"G01\",IF(AF254=10,21,22),OR(M254=41203,M254=41204),22,OR(AND(OR(P254=\"B02\",P254=\"B03\"),M254=41310),OR(P254=\"E02\",P254=\"I01\")),21,AND(OR(P254=\"B01\",P254=\"B03\",P254=\"C01\"),M254<>41310),IF(VLOOKUP(F254,recipient_country!AB:AD,3,FALSE)=10024,\"\",1),AND(P254=\"B02\",M254<>41310),IF(VLOOKUP(M254,channel_codes!J:P,7,FALSE)=0,\"\",VLOOKUP(M254,channel_codes!J:P,7,FALSE)),ISNUMBER(MATCH(P254,{\"D01\",\"D02\"},0)),IF(VLOOKUP(M254,channel_codes!J:P,7,FALSE)=1,1,IF(VLOOKUP(F254,recipient_country!AB:AD,3,FALSE)=10024,\"\",1)),OR(P254=\"H01\",AND(OR(ISNUMBER(SEARCH(\"41010\", L254)),ISNUMBER(SEARCH(\"41020\", L254)),ISNUMBER(SEARCH(\"41030\", L254)),ISNUMBER(SEARCH(\"41040\", L254)),ISNUMBER(SEARCH(\"41081\", L254))),F254=998)),22,F254=998,22,TRUE,\"\")","v":""},{"$f":"CRSDATA!AN254","v":0},{"$f":"CRSDATA!AO254","v":0},{"$f":"CRSDATA!AQ254","v":0},{"$f":"CRSDATA!AS254","v":0},{"$f":"CRSDATA!BB254","v":0},null,"",{"$f":"IF(AND(AND(CRSDATA!C254<>\"\",CRSDATA!BK254<>\"\"),OR(CRSDATA!N254=421,CRSDATA!N254=422,CRSDATA!N254=4221,CRSDATA!N254=4222,CRSDATA!N254=423,CRSDATA!N254=424,CRSDATA!N254=425,CRSDATA!N254=431,CRSDATA!N254=433,CRSDATA!N254=434)),DATEDIF(CRSDATA!C254,CRSDATA!BK254,\"m\"),\"\")","v":""},{"$f":"CRSDATA!BA254","v":0},{"$f":"CRSDATA!BC254","v":0},{"$f":"IF(CRSDATA!BT254=\"\",\"\",CRSDATA!BT254)","v":""},{"$f":"CRSDATA!L254","v":0}]
[{"$f":"CRSDATA!A255","v":0},{"$f":"CRSDATA!C255","v":0},{"$f":"CRSDATA!D255","v":0},{"$f":"CRSDATA!F255","v":0},{"$f":"CRSDATA!E255","v":0},{"$f":"IF(CRSDATA!H255=3000,998,CRSDATA!H255)","v":0},{"$f":"CRSDATA!O255","v":0},{"$f":"CRSDATA!U255","v":0},{"$f":"IF(CRSDATA!V255=\"\",\"\",CRSDATA!V255)","v":""},{"$f":"IF(CRSDATA!W255=\"\",\"\",CRSDATA!W255)","v":""},{"$f":"key_row(CRSDATA!X255,CRSDATA!Y255,CRSDATA!AL255,CRSDATA!AK255,CRSDATA!AJ255,CRSDATA!AM255,CRSDATA!P255,CRSDATA!V255)","v":""},{"$f":"CRSDATA!P255","v":0},{"$f":"CRSDATA!J255","v":0},{"$f":"CRSDATA!I255","v":0},null,{"$f":"IF(LEFT(CRSDATA!N255,2)=\"A0\",\"A00\",IF(LEFT(CRSDATA!N255,3)=\"B02\",\"B02\",IF(LEFT(CRSDATA!N255,3)=\"B03\",\"B03\",IF(CRSDATA!N255=\"B04\",\"C01\",IF(CRSDATA!N255=\"H01\",\"H00\",IF(OR(CRSDATA!N255=\"H02\",CRSDATA!N255=\"H03\",CRSDATA!N255=\"H04\",CRSDATA!N255=\"H05\",CRSDATA!N255=\"H06\"),\"I01\",IF(CRSDATA!N255=\"\",\"\",CRSDATA!N255)))))))","v":""},{"$f":"IF(AND(LEN(CRSDATA!M255)=4,LEFT(CRSDATA!M255,3)=\"110\"),1100,IF(AND(LEN(CRSDATA!M255)=4,LEFT(CRSDATA!M255,3)=\"422\"),422,CRSDATA!M255))","v":0},{"$f":"IF(CRSDATA!L255=22,\"FA04\",\"\")","v":""},{"$f":"IF(CRSDATA!K255=8,\"FC02\",\"\")","v":""},{"$f":"_xlfn.IFS(OR(P255=\"A00\",P255=\"E01\",P255=\"F01\",AND(P255=\"\",A255<>0),Q255=510,Q255=520,AF255=60),1,P255=\"G01\",IF(AF255=10,21,22),OR(M255=41203,M255=41204),22,OR(AND(OR(P255=\"B02\",P255=\"B03\"),M255=41310),OR(P255=\"E02\",P255=\"I01\")),21,AND(OR(P255=\"B01\",P255=\"B03\",P255=\"C01\"),M255<>41310),IF(VLOOKUP(F255,recipient_country!AB:AD,3,FALSE)=10024,\"\",1),AND(P255=\"B02\",M255<>41310),IF(VLOOKUP(M255,channel_codes!J:P,7,FALSE)=0,\"\",VLOOKUP(M255,channel_codes!J:P,7,FALSE)),ISNUMBER(MATCH(P255,{\"D01\",\"D02\"},0)),IF(VLOOKUP(M255,channel_codes!J:P,7,FALSE)=1,1,IF(VLOOKUP(F255,recipient_country!AB:AD,3,FALSE)=10024,\"\",1)),OR(P255=\"H01\",AND(OR(ISNUMBER(SEARCH(\"41010\", L255)),ISNUMBER(SEARCH(\"41020\", L255)),ISNUMBER(SEARCH(\"41030\", L255)),ISNUMBER(SEARCH(\"41040\", L255)),ISNUMBER(SEARCH(\"41081\", L255))),F255=998)),22,F255=998,22,TRUE,\"\")","v":""},{"$f":"CRSDATA!AN255","v":0},{"$f":"CRSDATA!AO255","v":0},{"$f":"CRSDATA!AQ255","v":0},{"$f":"CRSDATA!AS255","v":0},{"$f":"CRSDATA!BB255","v":0},null,"",{"$f":"IF(AND(AND(CRSDATA!C255<>\"\",CRSDATA!BK255<>\"\"),OR(CRSDATA!N255=421,CRSDATA!N255=422,CRSDATA!N255=4221,CRSDATA!N255=4222,CRSDATA!N255=423,CRSDATA!N255=424,CRSDATA!N255=425,CRSDATA!N255=431,CRSDATA!N255=433,CRSDATA!N255=434)),DATEDIF(CRSDATA!C255,CRSDATA!BK255,\"m\"),\"\")","v":""},{"$f":"CRSDATA!BA255","v":0},{"$f":"CRSDATA!BC255","v":0},{"$f":"IF(CRSDATA!BT255=\"\",\"\",CRSDATA!BT255)","v":""},{"$f":"CRSDATA!L255","v":0}]
[{"$f":"CRSDATA!A256","v":0},{"$f":"CRSDATA!C256","v":0},{"$f":"CRSDATA!D256","v":0},{"$f":"CRSDATA!F256","v":0},{"$f":"CRSDATA!E256","v":0},{"$f":"IF(CRSDATA!H256=3000,998,CRSDATA!H256)","v":0},{"$f":"CRSDATA!O256","v":0},{"$f":"CRSDATA!U256","v":0},{"$f":"IF(CRSDATA!V256=\"\",\"\",CRSDATA!V256)","v":""},{"$f":"IF(CRSDATA!W256=\"\",\"\",CRSDATA!W256)","v":""},{"$f":"key_row(CRSDATA!X256,CRSDATA!Y256,CRSDATA!AL256,CRSDATA!AK256,CRSDATA!AJ256,CRSDATA!AM256,CRSDATA!P256,CRSDATA!V256)","v":""},{"$f":"CRSDATA!P256","v":0},{"$f":"CRSDATA!J256","v":0},{"$f":"CRSDATA!I256","v":0},null,{"$f":"IF(LEFT(CRSDATA!N256,2)=\"A0\",\"A00\",IF(LEFT(CRSDATA!N256,3)=\"B02\",\"B02\",IF(LEFT(CRSDATA!N256,3)=\"B03\",\"B03\",IF(CRSDATA!N256=\"B04\",\"C01\",IF(CRSDATA!N256=\"H01\",\"H00\",IF(OR(CRSDATA!N256=\"H02\",CRSDATA!N256=\"H03\",CRSDATA!N256=\"H04\",CRSDATA!N256=\"H05\",CRSDATA!N256=\"H06\"),\"I01\",IF(CRSDATA!N256=\"\",\"\",CRSDATA!N256)))))))","v":""},{"$f":"IF(AND(LEN(CRSDATA!M256)=4,LEFT(CRSDATA!M256,3)=\"110\"),1100,IF(AND(LEN(CRSDATA!M256)=4,LEFT(CRSDATA!M256,3)=\"422\"),422,CRSDATA!M256))","v":0},{"$f":"IF(CRSDATA!L256=22,\"FA04\",\"\")","v":""},{"$f":"IF(CRSDATA!K256=8,\"FC02\",\"\")","v":""},{"$f":"_xlfn.IFS(OR(P256=\"A00\",P256=\"E01\",P256=\"F01\",AND(P256=\"\",A256<>0),Q256=510,Q256=520,AF256=60),1,P256=\"G01\",IF(AF256=10,21,22),OR(M256=41203,M256=41204),22,OR(AND(OR(P256=\"B02\",P256=\"B03\"),M256=41310),OR(P256=\"E02\",P256=\"I01\")),21,AND(OR(P256=\"B01\",P256=\"B03\",P256=\"C01\"),M256<>41310),IF(VLOOKUP(F256,recipient_country!AB:AD,3,FALSE)=10024,\"\",1),AND(P256=\"B02\",M256<>41310),IF(VLOOKUP(M256,channel_codes!J:P,7,FALSE)=0,\"\",VLOOKUP(M256,channel_codes!J:P,7,FALSE)),ISNUMBER(MATCH(P256,{\"D01\",\"D02\"},0)),IF(VLOOKUP(M256,channel_codes!J:P,7,FALSE)=1,1,IF(VLOOKUP(F256,recipient_country!AB:AD,3,FALSE)=10024,\"\",1)),OR(P256=\"H01\",AND(OR(ISNUMBER(SEARCH(\"41010\", L256)),ISNUMBER(SEARCH(\"41020\", L256)),ISNUMBER(SEARCH(\"41030\", L256)),ISNUMBER(SEARCH(\"41040\", L256)),ISNUMBER(SEARCH(\"41081\", L256))),F256=998)),22,F256=998,22,TRUE,\"\")","v":""},{"$f":"CRSDATA!AN256","v":0},{"$f":"CRSDATA!AO256","v":0},{"$f":"CRSDATA!AQ256","v":0},{"$f":"CRSDATA!AS256","v":0},{"$f":"CRSDATA!BB256","v":0},null,"",{"$f":"IF(AND(AND(CRSDATA!C256<>\"\",CRSDATA!BK256<>\"\"),OR(CRSDATA!N256=421,CRSDATA!N256=422,CRSDATA!N256=4221,CRSDATA!N256=4222,CRSDATA!N256=423,CRSDATA!N256=424,CRSDATA!N256=425,CRSDATA!N256=431,CRSDATA!N256=433,CRSDATA!N256=434)),DATEDIF(CRSDATA!C256,CRSDATA!BK256,\"m\"),\"\")","v":""},{"$f":"CRSDATA!BA256","v":0},{"$f":"CRSDATA!BC256","v":0},{"$f":"IF(CRSDATA!BT256=\"\",\"\",CRSDATA!BT256)","v":""},{"$f":"CRSDATA!L256","v":0}]
[{"$f":"CRSDATA!A257","v":0},{"$f":"CRSDATA!C257","v":0},{"$f":"CRSDATA!D257","v":0},{"$f":"CRSDATA!F257","v":0},{"$f":"CRSDATA!E257","v":0},{"$f":"IF(CRSDATA!H257=3000,998,CRSDATA!H257)","v":0},{"$f":"CRSDATA!O257","v":0},{"$f":"CRSDATA!U257","v":0},{"$f":"IF(CRSDATA!V257=\"\",\"\",CRSDATA!V257)","v":""},{"$f":"IF(CRSDATA!W257=\"\",\"\",CRSDATA!W257)","v":""},{"$f":"key_row(CRSDATA!X257,CRSDATA!Y257,CRSDATA!AL257,CRSDATA!AK257,CRSDATA!AJ257,CRSDATA!AM257,CRSDATA!P257,CRSDATA!V257)","v":""},{"$f":"CRSDATA!P257","v":0},{"$f":"CRSDATA!J257","v":0},{"$f":"CRSDATA!I257","v":0},null,{"$f":"IF(LEFT(CRSDATA!N257,2)=\"A0\",\"A00\",IF(LEFT(CRSDATA!N257,3)=\"B02\",\"B02\",IF(LEFT(CRSDATA!N257,3)=\"B03\",\"B03\",IF(CRSDATA!N257=\"B04\",\"C01\",IF(CRSDATA!N257=\"H01\",\"H00\",IF(OR(CRSDATA!N257=\"H02\",CRSDATA!N257=\"H03\",CRSDATA!N257=\"H04\",CRSDATA!N257=\"H05\",CRSDATA!N257=\"H06\"),\"I01\",IF(CRSDATA!N257=\"\",\"\",CRSDATA!N257)))))))","v":""},{"$f":"IF(AND(LEN(CRSDATA!M257)=4,LEFT(CRSDATA!M257,3)=\"110\"),1100,IF(AND(LEN(CRSDATA!M257)=4,LEFT(CRSDATA!M257,3)=\"422\"),422,CRSDATA!M257))","v":0},{"$f":"IF(CRSDATA!L257=22,\"FA04\",\"\")","v":""},{"$f":"IF(CRSDATA!K257=8,\"FC02\",\"\")","v":""},{"$f":"_xlfn.IFS(OR(P257=\"A00\",P257=\"E01\",P257=\"F01\",AND(P257=\"\",A257<>0),Q257=510,Q257=520,AF257=60),1,P257=\"G01\",IF(AF257=10,21,22),OR(M257=41203,M257=41204),22,OR(AND(OR(P257=\"B02\",P257=\"B03\"),M257=41310),OR(P257=\"E02\",P257=\"I01\")),21,AND(OR(P257=\"B01\",P257=\"B03\",P257=\"C01\"),M257<>41310),IF(VLOOKUP(F257,recipient_country!AB:AD,3,FALSE)=10024,\"\",1),AND(P257=\"B02\",M257<>41310),IF(VLOOKUP(M257,channel_codes!J:P,7,FALSE)=0,\"\",VLOOKUP(M257,channel_codes!J:P,7,FALSE)),ISNUMBER(MATCH(P257,{\"D01\",\"D02\"},0)),IF(VLOOKUP(M257,channel_codes!J:P,7,FALSE)=1,1,IF(VLOOKUP(F257,recipient_country!AB:AD,3,FALSE)=10024,\"\",1)),OR(P257=\"H01\",AND(OR(ISNUMBER(SEARCH(\"41010\", L257)),ISNUMBER(SEARCH(\"41020\", L257)),ISNUMBER(SEARCH(\"41030\", L257)),ISNUMBER(SEARCH(\"41040\", L257)),ISNUMBER(SEARCH(\"41081\", L257))),F257=998)),22,F257=998,22,TRUE,\"\")","v":""},{"$f":"CRSDATA!AN257","v":0},{"$f":"CRSDATA!AO257","v":0},{"$f":"CRSDATA!AQ257","v":0},{"$f":"CRSDATA!AS257","v":0},{"$f":"CRSDATA!BB257","v":0},null,"",{"$f":"IF(AND(AND(CRSDATA!C257<>\"\",CRSDATA!BK257<>\"\"),OR(CRSDATA!N257=421,CRSDATA!N257=422,CRSDATA!N257=4221,CRSDATA!N257=4222,CRSDATA!N257=423,CRSDATA!N257=424,CRSDATA!N257=425,CRSDATA!N257=431,CRSDATA!N257=433,CRSDATA!N257=434)),DATEDIF(CRSDATA!C257,CRSDATA!BK257,\"m\"),\"\")","v":""},{"$f":"CRSDATA!BA257","v":0},{"$f":"CRSDATA!BC257","v":0},{"$f":"IF(CRSDATA!BT257=\"\",\"\",CRSDATA!BT257)","v":""},{"$f":"CRSDATA!L257","v":0}]
[{"$f":"CRSDATA!A258","v":0},{"$f":"CRSDATA!C258","v":0},{"$f":"CRSDATA!D258","v":0},{"$f":"CRSDATA!F258","v":0},{"$f":"CRSDATA!E258","v":0},{"$f":"IF(CRSDATA!H258=3000,998,CRSDATA!H258)","v":0},{"$f":"CRSDATA!O258","v":0},{"$f":"CRSDATA!U258","v":0},{"$f":"IF(CRSDATA!V258=\"\",\"\",CRSDATA!V258)","v":""},{"$f":"IF(CRSDATA!W258=\"\",\"\",CRSDATA!W258)","v":""},{"$f":"key_row(CRSDATA!X258,CRSDATA!Y258,CRSDATA!AL258,CRSDATA!AK258,CRSDATA!AJ258,CRSDATA!AM258,CRSDATA!P258,CRSDATA!V258)","v":""},{"$f":"CRSDATA!P258","v":0},{"$f":"CRSDATA!J258","v":0},{"$f":"CRSDATA!I258","v":0},null,{"$f":"IF(LEFT(CRSDATA!N258,2)=\"A0\",\"A00\",IF(LEFT(CRSDATA!N258,3)=\"B02\",\"B02\",IF(LEFT(CRSDATA!N258,3)=\"B03\",\"B03\",IF(CRSDATA!N258=\"B04\",\"C01\",IF(CRSDATA!N258=\"H01\",\"H00\",IF(OR(CRSDATA!N258=\"H02\",CRSDATA!N258=\"H03\",CRSDATA!N258=\"H04\",CRSDATA!N258=\"H05\",CRSDATA!N258=\"H06\"),\"I01\",IF(CRSDATA!N258=\"\",\"\",CRSDATA!N258)))))))","v":""},{"$f":"IF(AND(LEN(CRSDATA!M258)=4,LEFT(CRSDATA!M258,3)=\"110\"),1100,IF(AND(LEN(CRSDATA!M258)=4,LEFT(CRSDATA!M258,3)=\"422\"),422,CRSDATA!M258))","v":0},{"$f":"IF(CRSDATA!L258=22,\"FA04\",\"\")","v":""},{"$f":"IF(CRSDATA!K258=8,\"FC02\",\"\")","v":""},{"$f":"_xlfn.IFS(OR(P258=\"A00\",P258=\"E01\",P258=\"F01\",AND(P258=\"\",A258<>0),Q258=510,Q258=520,AF258=60),1,P258=\"G01\",IF(AF258=10,21,22),OR(M258=41203,M258=41204),22,OR(AND(OR(P258=\"B02\",P258=\"B03\"),M258=41310),OR(P258=\"E02\",P258=\"I01\")),21,AND(OR(P258=\"B01\",P258=\"B03\",P258=\"C01\"),M258<>41310),IF(VLOOKUP(F258,recipient_country!AB:AD,3,FALSE)=10024,\"\",1),AND(P258=\"B02\",M258<>41310),IF(VLOOKUP(M258,channel_codes!J:P,7,FALSE)=0,\"\",VLOOKUP(M258,channel_codes!J:P,7,FALSE)),ISNUMBER(MATCH(P258,{\"D01\",\"D02\"},0)),IF(VLOOKUP(M258,channel_codes!J:P,7,FALSE)=1,1,IF(VLOOKUP(F258,recipient_country!AB:AD,3,FALSE)=10024,\"\",1)),OR(P258=\"H01\",AND(OR(ISNUMBER(SEARCH(\"41010\", L258)),ISNUMBER(SEARCH(\"41020\", L258)),ISNUMBER(SEARCH(\"41030\", L258)),ISNUMBER(SEARCH(\"41040\", L258)),ISNUMBER(SEARCH(\"41081\", L258))),F258=998)),22,F258=998,22,TRUE,\"\")","v":""},{"$f":"CRSDATA!AN258","v":0},{"$f":"CRSDATA!AO258","v":0},{"$f":"CRSDATA!AQ258","v":0},{"$f":"CRSDATA!AS258","v":0},{"$f":"CRSDATA!BB258","v":0},null,"",{"$f":"IF(AND(AND(CRSDATA!C258<>\"\",CRSDATA!BK258<>\"\"),OR(CRSDATA!N258=421,CRSDATA!N258=422,CRSDATA!N258=4221,CRSDATA!N258=4222,CRSDATA!N258=423,CRSDATA!N258=424,CRSDATA!N258=425,CRSDATA!N258=431,CRSDATA!N258=433,CRSDATA!N258=434)),DATEDIF(CRSDATA!C258,CRSDATA!BK258,\"m\"),\"\")","v":""},{"$f":"CRSDATA!BA258","v":0},{"$f":"CRSDATA!BC258","v":0},{"$f":"IF(CRSDATA!BT258=\"\",\"\",CRSDATA!BT258)","v":""},{"$f":"CRSDATA!L258","v":0}]
[{"$f":"CRSDATA!A259","v":0},{"$f":"CRSDATA!C259","v":0},{"$f":"CRSDATA!D259","v":0},{"$f":"CRSDATA!F259","v":0},{"$f":"CRSDATA!E259","v":0},{"$f":"IF(CRSDATA!H259=3000,998,CRSDATA!H259)","v":0},{"$f":"CRSDATA!O259","v":0},{"$f":"CRSDATA!U259","v":0},{"$f":"IF(CRSDATA!V259=\"\",\"\",CRSDATA!V259)","v":""},{"$f":"IF(CRSDATA!W259=\"\",\"\",CRSDATA!W259)","v":""},{"$f":"key_row(CRSDATA!X259,CRSDATA!Y259,CRSDATA!AL259,CRSDATA!AK259,CRSDATA!AJ259,CRSDATA!AM259,CRSDATA!P259,CRSDATA!V259)","v":""},{"$f":"CRSDATA!P259","v":0},{"$f":"CRSDATA!J259","v":0},{"$f":"CRSDATA!I259","v":0},null,{"$f":"IF(LEFT(CRSDATA!N259,2)=\"A0\",\"A00\",IF(LEFT(CRSDATA!N259,3)=\"B02\",\"B02\",IF(LEFT(CRSDATA!N259,3)=\"B03\",\"B03\",IF(CRSDATA!N259=\"B04\",\"C01\",IF(CRSDATA!N259=\"H01\",\"H00\",IF(OR(CRSDATA!N259=\"H02\",CRSDATA!N259=\"H03\",CRSDATA!N259=\"H04\",CRSDATA!N259=\"H05\",CRSDATA!N259=\"H06\"),\"I01\",IF(CRSDATA!N259=\"\",\"\",CRSDATA!N259)))))))","v":""},{"$f":"IF(AND(LEN(CRSDATA!M259)=4,LEFT(CRSDATA!M259,3)=\"110\"),1100,IF(AND(LEN(CRSDATA!M259)=4,LEFT(CRSDATA!M259,3)=\"422\"),422,CRSDATA!M259))","v":0},{"$f":"IF(CRSDATA!L259=22,\"FA04\",\"\")","v":""},{"$f":"IF(CRSDATA!K259=8,\"FC02\",\"\")","v":""},{"$f":"_xlfn.IFS(OR(P259=\"A00\",P259=\"E01\",P259=\"F01\",AND(P259=\"\",A259<>0),Q259=510,Q259=520,AF259=60),1,P259=\"G01\",IF(AF259=10,21,22),OR(M259=41203,M259=41204),22,OR(AND(OR(P259=\"B02\",P259=\"B03\"),M259=41310),OR(P259=\"E02\",P259=\"I01\")),21,AND(OR(P259=\"B01\",P259=\"B03\",P259=\"C01\"),M259<>41310),IF(VLOOKUP(F259,recipient_country!AB:AD,3,FALSE)=10024,\"\",1),AND(P259=\"B02\",M259<>41310),IF(VLOOKUP(M259,channel_codes!J:P,7,FALSE)=0,\"\",VLOOKUP(M259,channel_codes!J:P,7,FALSE)),ISNUMBER(MATCH(P259,{\"D01\",\"D02\"},0)),IF(VLOOKUP(M259,channel_codes!J:P,7,FALSE)=1,1,IF(VLOOKUP(F259,recipient_country!AB:AD,3,FALSE)=10024,\"\",1)),OR(P259=\"H01\",AND(OR(ISNUMBER(SEARCH(\"41010\", L259)),ISNUMBER(SEARCH(\"41020\", L259)),ISNUMBER(SEARCH(\"41030\", L259)),ISNUMBER(SEARCH(\"41040\", L259)),ISNUMBER(SEARCH(\"41081\", L259))),F259=998)),22,F259=998,22,TRUE,\"\")","v":""},{"$f":"CRSDATA!AN259","v":0},{"$f":"CRSDATA!AO259","v":0},{"$f":"CRSDATA!AQ259","v":0},{"$f":"CRSDATA!AS259","v":0},{"$f":"CRSDATA!BB259","v":0},null,"",{"$f":"IF(AND(AND(CRSDATA!C259<>\"\",CRSDATA!BK259<>\"\"),OR(CRSDATA!N259=421,CRSDATA!N259=422,CRSDATA!N259=4221,CRSDATA!N259=4222,CRSDATA!N259=423,CRSDATA!N259=424,CRSDATA!N259=425,CRSDATA!N259=431,CRSDATA!N259=433,CRSDATA!N259=434)),DATEDIF(CRSDATA!C259,CRSDATA!BK259,\"m\"),\"\")","v":""},{"$f":"CRSDATA!BA259","v":0},{"$f":"CRSDATA!BC259","v":0},{"$f":"IF(CRSDATA!BT259=\"\",\"\",CRSDATA!BT259)","v":""},{"$f":"CRSDATA!L259","v":0}]
[{"$f":"CRSDATA!A260","v":0},{"$f":"CRSDATA!C260","v":0},{"$f":"CRSDATA!D260","v":0},{"$f":"CRSDATA!F260","v":0},{"$f":"CRSDATA!E260","v":0},{"$f":"IF(CRSDATA!H260=3000,998,CRSDATA!H260)","v":0},{"$f":"CRSDATA!O260","v":0},{"$f":"CRSDATA!U260","v":0},{"$f":"IF(CRSDATA!V260=\"\",\"\",CRSDATA!V260)","v":""},{"$f":"IF(CRSDATA!W260=\"\",\"\",CRSDATA!W260)","v":""},{"$f":"key_row(CRSDATA!X260,CRSDATA!Y260,CRSDATA!AL260,CRSDATA!AK260,CRSDATA!AJ260,CRSDATA!AM260,CRSDATA!P260,CRSDATA!V260)","v":""},{"$f":"CRSDATA!P260","v":0},{"$f":"CRSDATA!J260","v":0},{"$f":"CRSDATA!I260","v":0},null,{"$f":"IF(LEFT(CRSDATA!N260,2)=\"A0\",\"A00\",IF(LEFT(CRSDATA!N260,3)=\"B02\",\"B02\",IF(LEFT(CRSDATA!N260,3)=\"B03\",\"B03\",IF(CRSDATA!N260=\"B04\",\"C01\",IF(CRSDATA!N260=\"H01\",\"H00\",IF(OR(CRSDATA!N260=\"H02\",CRSDATA!N260=\"H03\",CRSDATA!N260=\"H04\",CRSDATA!N260=\"H05\",CRSDATA!N260=\"H06\"),\"I01\",IF(CRSDATA!N260=\"\",\"\",CRSDATA!N260)))))))","v":""},{"$f":"IF(AND(LEN(CRSDATA!M260)=4,LEFT(CRSDATA!M260,3)=\"110\"),1100,IF(AND(LEN(CRSDATA!M260)=4,LEFT(CRSDATA!M260,3)=\"422\"),422,CRSDATA!M260))","v":0},{"$f":"IF(CRSDATA!L260=22,\"FA04\",\"\")","v":""},{"$f":"IF(CRSDATA!K260=8,\"FC02\",\"\")","v":""},{"$f":"_xlfn.IFS(OR(P260=\"A00\",P260=\"E01\",P260=\"F01\",AND(P260=\"\",A260<>0),Q260=510,Q260=520,AF260=60),1,P260=\"G01\",IF(AF260=10,21,22),OR(M260=41203,M260=41204),22,OR(AND(OR(P260=\"B02\",P260=\"B03\"),M260=41310),OR(P260=\"E02\",P260=\"I01\")),21,AND(OR(P260=\"B01\",P260=\"B03\",P260=\"C01\"),M260<>41310),IF(VLOOKUP(F260,recipient_country!AB:AD,3,FALSE)=10024,\"\",1),AND(P260=\"B02\",M260<>41310),IF(VLOOKUP(M260,channel_codes!J:P,7,FALSE)=0,\"\",VLOOKUP(M260,channel_codes!J:P,7,FALSE)),ISNUMBER(MATCH(P260,{\"D01\",\"D02\"},0)),IF(VLOOKUP(M260,channel_codes!J:P,7,FALSE)=1,1,IF(VLOOKUP(F260,recipient_country!AB:AD,3,FALSE)=10024,\"\",1)),OR(P260=\"H01\",AND(OR(ISNUMBER(SEARCH(\"41010\", L260)),ISNUMBER(SEARCH(\"41020\", L260)),ISNUMBER(SEARCH(\"41030\", L260)),ISNUMBER(SEARCH(\"41040\", L260)),ISNUMBER(SEARCH(\"41081\", L260))),F260=998)),22,F260=998,22,TRUE,\"\")","v":""},{"$f":"CRSDATA!AN260","v":0},{"$f":"CRSDATA!AO260","v":0},{"$f":"CRSDATA!AQ260","v":0},{"$f":"CRSDATA!AS260","v":0},{"$f":"CRSDATA!BB260","v":0},null,"",{"$f":"IF(AND(AND(CRSDATA!C260<>\"\",CRSDATA!BK260<>\"\"),OR(CRSDATA!N260=421,CRSDATA!N260=422,CRSDATA!N260=4221,CRSDATA!N260=4222,CRSDATA!N260=423,CRSDATA!N260=424,CRSDATA!N260=425,CRSDATA!N260=431,CRSDATA!N260=433,CRSDATA!N260=434)),DATEDIF(CRSDATA!C260,CRSDATA!BK260,\"m\"),\"\")","v":""},{"$f":"CRSDATA!BA260","v":0},{"$f":"CRSDATA!BC260","v":0},{"$f":"IF(CRSDATA!BT260=\"\",\"\",CRSDATA!BT260)","v":""},{"$f":"CRSDATA!L260","v":0}]
[{"$f":"CRSDATA!A261","v":0},{"$f":"CRSDATA!C261","v":0},{"$f":"CRSDATA!D261","v":0},{"$f":"CRSDATA!F261","v":0},{"$f":"CRSDATA!E261","v":0},{"$f":"IF(CRSDATA!H261=3000,998,CRSDATA!H261)","v":0},{"$f":"CRSDATA!O261","v":0},{"$f":"CRSDATA!U261","v":0},{"$f":"IF(CRSDATA!V261=\"\",\"\",CRSDATA!V261)","v":""},{"$f":"IF(CRSDATA!W261=\"\",\"\",CRSDATA!W261)","v":""},{"$f":"key_row(CRSDATA!X261,CRSDATA!Y261,CRSDATA!AL261,CRSDATA!AK261,CRSDATA!AJ261,CRSDATA!AM261,CRSDATA!P261,CRSDATA!V261)","v":""},{"$f":"CRSDATA!P261","v":0},{"$f":"CRSDATA!J261","v":0},{"$f":"CRSDATA!I261","v":0},null,{"$f":"IF(LEFT(CRSDATA!N261,2)=\"A0\",\"A00\",IF(LEFT(CRSDATA!N261,3)=\"B02\",\"B02\",IF(LEFT(CRSDATA!N261,3)=\"B03\",\"B03\",IF(CRSDATA!N261=\"B04\",\"C01\",IF(CRSDATA!N261=\"H01\",\"H00\",IF(OR(CRSDATA!N261=\"H02\",CRSDATA!N261=\"H03\",CRSDATA!N261=\"H04\",CRSDATA!N261=\"H05\",CRSDATA!N261=\"H06\"),\"I01\",IF(CRSDATA!N261=\"\",\"\",CRSDATA!N261)))))))","v":""},{"$f":"IF(AND(LEN(CRSDATA!M261)=4,LEFT(CRSDATA!M261,3)=\"110\"),1100,IF(AND(LEN(CRSDATA!M261)=4,LEFT(CRSDATA!M261,3)=\"422\"),422,CRSDATA!M261))","v":0},{"$f":"IF(CRSDATA!L261=22,\"FA04\",\"\")","v":""},{"$f":"IF(CRSDATA!K261=8,\"FC02\",\"\")","v":""},{"$f":"_xlfn.IFS(OR(P261=\"A00\",P261=\"E01\",P261=\"F01\",AND(P261=\"\",A261<>0),Q261=510,Q261=520,AF261=60),1,P261=\"G01\",IF(AF261=10,21,22),OR(M261=41203,M261=41204),22,OR(AND(OR(P261=\"B02\",P261=\"B03\"),M261=41310),OR(P261=\"E02\",P261=\"I01\")),21,AND(OR(P261=\"B01\",P261=\"B03\",P261=\"C01\"),M261<>41310),IF(VLOOKUP(F261,recipient_country!AB:AD,3,FALSE)=10024,\"\",1),AND(P261=\"B02\",M261<>41310),IF(VLOOKUP(M261,channel_codes!J:P,7,FALSE)=0,\"\",VLOOKUP(M261,channel_codes!J:P,7,FALSE)),ISNUMBER(MATCH(P261,{\"D01\",\"D02\"},0)),IF(VLOOKUP(M261,channel_codes!J:P,7,FALSE)=1,1,IF(VLOOKUP(F261,recipient_country!AB:AD,3,FALSE)=10024,\"\",1)),OR(P261=\"H01\",AND(OR(ISNUMBER(SEARCH(\"41010\", L261)),ISNUMBER(SEARCH(\"41020\", L261)),ISNUMBER(SEARCH(\"41030\", L261)),ISNUMBER(SEARCH(\"41040\", L261)),ISNUMBER(SEARCH(\"41081\", L261))),F261=998)),22,F261=998,22,TRUE,\"\")","v":""},{"$f":"CRSDATA!AN261","v":0},{"$f":"CRSDATA!AO261","v":0},{"$f":"CRSDATA!AQ261","v":0},{"$f":"CRSDATA!AS261","v":0},{"$f":"CRSDATA!BB261","v":0},null,{"$f":"IF(R261=\"FA04\",0,\"\")","v":""},{"$f":"IF(AND(AND(CRSDATA!C261<>\"\",CRSDATA!BK261<>\"\"),OR(CRSDATA!N261=421,CRSDATA!N261=422,CRSDATA!N261=4221,CRSDATA!N261=4222,CRSDATA!N261=423,CRSDATA!N261=424,CRSDATA!N261=425,CRSDATA!N261=431,CRSDATA!N261=433,CRSDATA!N261=434)),DATEDIF(CRSDATA!C261,CRSDATA!BK261,\"m\"),\"\")","v":""},{"$f":"CRSDATA!BA261","v":0},{"$f":"CRSDATA!BC261","v":0},{"$f":"IF(CRSDATA!BT261=\"\",\"\",CRSDATA!BT261)","v":""},{"$f":"CRSDATA!L261","v":0}]
[{"$f":"CRSDATA!A262","v":0},{"$f":"CRSDATA!C262","v":0},{"$f":"CRSDATA!D262","v":0},{"$f":"CRSDATA!F262","v":0},{"$f":"CRSDATA!E262","v":0},{"$f":"IF(CRSDATA!H262=3000,998,CRSDATA!H262)","v":0},{"$f":"CRSDATA!O262","v":0},{"$f":"CRSDATA!U262","v":0},{"$f":"IF(CRSDATA!V262=\"\",\"\",CRSDATA!V262)","v":""},{"$f":"IF(CRSDATA!W262=\"\",\"\",CRSDATA!W262)","v":""},{"$f":"key_row(CRSDATA!X262,CRSDATA!Y262,CRSDATA!AL262,CRSDATA!AK262,CRSDATA!AJ262,CRSDATA!AM262,CRSDATA!P262,CRSDATA!V262)","v":""},{"$f":"CRSDATA!P262","v":0},{"$f":"CRSDATA!J262","v":0},{"$f":"CRSDATA!I262","v":0},null,{"$f":"IF(LEFT(CRSDATA!N262,2)=\"A0\",\"A00\",IF(LEFT(CRSDATA!N262,3)=\"B02\",\"B02\",IF(LEFT(CRSDATA!N262,3)=\"B03\",\"B03\",IF(CRSDATA!N262=\"B04\",\"C01\",IF(CRSDATA!N262=\"H01\",\"H00\",IF(OR(CRSDATA!N262=\"H02\",CRSDATA!N262=\"H03\",CRSDATA!N262=\"H04\",CRSDATA!N262=\"H05\",CRSDATA!N262=\"H06\"),\"I01\",IF(CRSDATA!N262=\"\",\"\",CRSDATA!N262)))))))","v":""},{"$f":"IF(AND(LEN(CRSDATA!M262)=4,LEFT(CRSDATA!M262,3)=\"110\"),1100,IF(AND(LEN(CRSDATA!M262)=4,LEFT(CRSDATA!M262,3)=\"422\"),422,CRSDATA!M262))","v":0},{"$f":"IF(CRSDATA!L262=22,\"FA04\",\"\")","v":""},{"$f":"IF(CRSDATA!K262=8,\"FC02\",\"\")","v":""},{"$f":"_xlfn.IFS(OR(P262=\"A00\",P262=\"E01\",P262=\"F01\",AND(P262=\"\",A262<>0),Q262=510,Q262=520,AF262=60),1,P262=\"G01\",IF(AF262=10,21,22),OR(M262=41203,M262=41204),22,OR(AND(OR(P262=\"B02\",P262=\"B03\"),M262=41310),OR(P262=\"E02\",P262=\"I01\")),21,AND(OR(P262=\"B01\",P262=\"B03\",P262=\"C01\"),M262<>41310),IF(VLOOKUP(F262,recipient_country!AB:AD,3,FALSE)=10024,\"\",1),AND(P262=\"B02\",M262<>41310),IF(VLOOKUP(M262,channel_codes!J:P,7,FALSE)=0,\"\",VLOOKUP(M262,channel_codes!J:P,7,FALSE)),ISNUMBER(MATCH(P262,{\"D01\",\"D02\"},0)),IF(VLOOKUP(M262,channel_codes!J:P,7,FALSE)=1,1,IF(VLOOKUP(F262,recipient_country!AB:AD,3,FALSE)=10024,\"\",1)),OR(P262=\"H01\",AND(OR(ISNUMBER(SEARCH(\"41010\", L262)),ISNUMBER(SEARCH(\"41020\", L262)),ISNUMBER(SEARCH(\"41030\", L262)),ISNUMBER(SEARCH(\"41040\", L262)),ISNUMBER(SEARCH(\"41081\", L262))),F262=998)),22,F262=998,22,TRUE,\"\")","v":""},{"$f":"CRSDATA!AN262","v":0},{"$f":"CRSDATA!AO262","v":0},{"$f":"CRSDATA!AQ262","v":0},{"$f":"CRSDATA!AS262","v":0},{"$f":"CRSDATA!BB262","v":0},null,"",{"$f":"IF(AND(AND(CRSDATA!C262<>\"\",CRSDATA!BK262<>\"\"),OR(CRSDATA!N262=421,CRSDATA!N262=422,CRSDATA!N262=4221,CRSDATA!N262=4222,CRSDATA!N262=423,CRSDATA!N262=424,CRSDATA!N262=425,CRSDATA!N262=431,CRSDATA!N262=433,CRSDATA!N262=434)),DATEDIF(CRSDATA!C262,CRSDATA!BK262,\"m\"),\"\")","v":""},{"$f":"CRSDATA!BA262","v":0},{"$f":"CRSDATA!BC262","v":0},{"$f":"IF(CRSDATA!BT262=\"\",\"\",CRSDATA!BT262)","v":""},{"$f":"CRSDATA!L262","v":0}]
[{"$f":"CRSDATA!A263","v":0},{"$f":"CRSDATA!C263","v":0},{"$f":"CRSDATA!D263","v":0},{"$f":"CRSDATA!F263","v":0},{"$f":"CRSDATA!E263","v":0},{"$f":"IF(CRSDATA!H263=3000,998,CRSDATA!H263)","v":0},{"$f":"CRSDATA!O263","v":0},{"$f":"CRSDATA!U263","v":0},{"$f":"IF(CRSDATA!V263=\"\",\"\",CRSDATA!V263)","v":""},{"$f":"IF(CRSDATA!W263=\"\",\"\",CRSDATA!W263)","v":""},{"$f":"key_row(CRSDATA!X263,CRSDATA!Y263,CRSDATA!AL263,CRSDATA!AK263,CRSDATA!AJ263,CRSDATA!AM263,CRSDATA!P263,CRSDATA!V263)","v":""},{"$f":"CRSDATA!P263","v":0},{"$f":"CRSDATA!J263","v":0},{"$f":"CRSDATA!I263","v":0},null,{"$f":"IF(LEFT(CRSDATA!N263,2)=\"A0\",\"A00\",IF(LEFT(CRSDATA!N263,3)=\"B02\",\"B02\",IF(LEFT(CRSDATA!N263,3)=\"B03\",\"B03\",IF(CRSDATA!N263=\"B04\",\"C01\",IF(CRSDATA!N263=\"H01\",\"H00\",IF(OR(CRSDATA!N263=\"H02\",CRSDATA!N263=\"H03\",CRSDATA!N263=\"H04\",CRSDATA!N263=\"H05\",CRSDATA!N263=\"H06\"),\"I01\",IF(CRSDATA!N263=\"\",\"\",CRSDATA!N263)))))))","v":""},{"$f":"IF(AND(LEN(CRSDATA!M263)=4,LEFT(CRSDATA!M263,3)=\"110\"),1100,IF(AND(LEN(CRSDATA!M263)=4,LEFT(CRSDATA!M263,3)=\"422\"),422,CRSDATA!M263))","v":0},{"$f":"IF(CRSDATA!L263=22,\"FA04\",\"\")","v":""},{"$f":"IF(CRSDATA!K263=8,\"FC02\",\"\")","v":""},{"$f":"_xlfn.IFS(OR(P263=\"A00\",P263=\"E01\",P263=\"F01\",AND(P263=\"\",A263<>0),Q263=510,Q263=520,AF263=60),1,P263=\"G01\",IF(AF263=10,21,22),OR(M263=41203,M263=41204),22,OR(AND(OR(P263=\"B02\",P263=\"B03\"),M263=41310),OR(P263=\"E02\",P263=\"I01\")),21,AND(OR(P263=\"B01\",P263=\"B03\",P263=\"C01\"),M263<>41310),IF(VLOOKUP(F263,recipient_country!AB:AD,3,FALSE)=10024,\"\",1),AND(P263=\"B02\",M263<>41310),IF(VLOOKUP(M263,channel_codes!J:P,7,FALSE)=0,\"\",VLOOKUP(M263,channel_codes!J:P,7,FALSE)),ISNUMBER(MATCH(P263,{\"D01\",\"D02\"},0)),IF(VLOOKUP(M263,channel_codes!J:P,7,FALSE)=1,1,IF(VLOOKUP(F263,recipient_country!AB:AD,3,FALSE)=10024,\"\",1)),OR(P263=\"H01\",AND(OR(ISNUMBER(SEARCH(\"41010\", L263)),ISNUMBER(SEARCH(\"41020\", L263)),ISNUMBER(SEARCH(\"41030\", L263)),ISNUMBER(SEARCH(\"41040\", L263)),ISNUMBER(SEARCH(\"41081\", L263))),F263=998)),22,F263=998,22,TRUE,\"\")","v":""},{"$f":"CRSDATA!AN263","v":0},{"$f":"CRSDATA!AO263","v":0},{"$f":"CRSDATA!AQ263","v":0},{"$f":"CRSDATA!AS263","v":0},{"$f":"CRSDATA!BB263","v":0},null,"",{"$f":"IF(AND(AND(CRSDATA!C263<>\"\",CRSDATA!BK263<>\"\"),OR(CRSDATA!N263=421,CRSDATA!N263=422,CRSDATA!N263=4221,CRSDATA!N263=4222,CRSDATA!N263=423,CRSDATA!N263=424,CRSDATA!N263=425,CRSDATA!N263=431,CRSDATA!N263=433,CRSDATA!N263=434)),DATEDIF(CRSDATA!C263,CRSDATA!BK263,\"m\"),\"\")","v":""},{"$f":"CRSDATA!BA263","v":0},{"$f":"CRSDATA!BC263","v":0},{"$f":"IF(CRSDATA!BT263=\"\",\"\",CRSDATA!BT263)","v":""},{"$f":"CRSDATA!L263","v":0}]
[{"$f":"CRSDATA!A264","v":0},{"$f":"CRSDATA!C264","v":0},{"$f":"CRSDATA!D264","v":0},{"$f":"CRSDATA!F264","v":0},{"$f":"CRSDATA!E264","v":0},{"$f":"IF(CRSDATA!H264=3000,998,CRSDATA!H264)","v":0},{"$f":"CRSDATA!O264","v":0},{"$f":"CRSDATA!U264","v":0},{"$f":"IF(CRSDATA!V264=\"\",\"\",CRSDATA!V264)","v":""},{"$f":"IF(CRSDATA!W264=\"\",\"\",CRSDATA!W264)","v":""},{"$f":"key_row(CRSDATA!X264,CRSDATA!Y264,CRSDATA!AL264,CRSDATA!AK264,CRSDATA!AJ264,CRSDATA!AM264,CRSDATA!P264,CRSDATA!V264)","v":""},{"$f":"CRSDATA!P264","v":0},{"$f":"CRSDATA!J264","v":0},{"$f":"CRSDATA!I264","v":0},null,{"$f":"IF(LEFT(CRSDATA!N264,2)=\"A0\",\"A00\",IF(LEFT(CRSDATA!N264,3)=\"B02\",\"B02\",IF(LEFT(CRSDATA!N264,3)=\"B03\",\"B03\",IF(CRSDATA!N264=\"B04\",\"C01\",IF(CRSDATA!N264=\"H01\",\"H00\",IF(OR(CRSDATA!N264=\"H02\",CRSDATA!N264=\"H03\",CRSDATA!N264=\"H04\",CRSDATA!N264=\"H05\",CRSDATA!N264=\"H06\"),\"I01\",IF(CRSDATA!N264=\"\",\"\",CRSDATA!N264)))))))","v":""},{"$f":"IF(AND(LEN(CRSDATA!M264)=4,LEFT(CRSDATA!M264,3)=\"110\"),1100,IF(AND(LEN(CRSDATA!M264)=4,LEFT(CRSDATA!M264,3)=\"422\"),422,CRSDATA!M264))","v":0},{"$f":"IF(CRSDATA!L264=22,\"FA04\",\"\")","v":""},{"$f":"IF(CRSDATA!K264=8,\"FC02\",\"\")","v":""},{"$f":"_xlfn.IFS(OR(P264=\"A00\",P264=\"E01\",P264=\"F01\",AND(P264=\"\",A264<>0),Q264=510,Q264=520,AF264=60),1,P264=\"G01\",IF(AF264=10,21,22),OR(M264=41203,M264=41204),22,OR(AND(OR(P264=\"B02\",P264=\"B03\"),M264=41310),OR(P264=\"E02\",P264=\"I01\")),21,AND(OR(P264=\"B01\",P264=\"B03\",P264=\"C01\"),M264<>41310),IF(VLOOKUP(F264,recipient_country!AB:AD,3,FALSE)=10024,\"\",1),AND(P264=\"B02\",M264<>41310),IF(VLOOKUP(M264,channel_codes!J:P,7,FALSE)=0,\"\",VLOOKUP(M264,channel_codes!J:P,7,FALSE)),ISNUMBER(MATCH(P264,{\"D01\",\"D02\"},0)),IF(VLOOKUP(M264,channel_codes!J:P,7,FALSE)=1,1,IF(VLOOKUP(F264,recipient_country!AB:AD,3,FALSE)=10024,\"\",1)),OR(P264=\"H01\",AND(OR(ISNUMBER(SEARCH(\"41010\", L264)),ISNUMBER(SEARCH(\"41020\", L264)),ISNUMBER(SEARCH(\"41030\", L264)),ISNUMBER(SEARCH(\"41040\", L264)),ISNUMBER(SEARCH(\"41081\", L264))),F264=998)),22,F264=998,22,TRUE,\"\")","v":""},{"$f":"CRSDATA!AN264","v":0},{"$f":"CRSDATA!AO264","v":0},{"$f":"CRSDATA!AQ264","v":0},{"$f":"CRSDATA!AS264","v":0},{"$f":"CRSDATA!BB264","v":0},null,"",{"$f":"IF(AND(AND(CRSDATA!C264<>\"\",CRSDATA!BK264<>\"\"),OR(CRSDATA!N264=421,CRSDATA!N264=422,CRSDATA!N264=4221,CRSDATA!N264=4222,CRSDATA!N264=423,CRSDATA!N264=424,CRSDATA!N264=425,CRSDATA!N264=431,CRSDATA!N264=433,CRSDATA!N264=434)),DATEDIF(CRSDATA!C264,CRSDATA!BK264,\"m\"),\"\")","v":""},{"$f":"CRSDATA!BA264","v":0},{"$f":"CRSDATA!BC264","v":0},{"$f":"IF(CRSDATA!BT264=\"\",\"\",CRSDATA!BT264)","v":""},{"$f":"CRSDATA!L264","v":0}]
[{"$f":"CRSDATA!A265","v":0},{"$f":"CRSDATA!C265","v":0},{"$f":"CRSDATA!D265","v":0},{"$f":"CRSDATA!F265","v":0},{"$f":"CRSDATA!E265","v":0},{"$f":"IF(CRSDATA!H265=3000,998,CRSDATA!H265)","v":0},{"$f":"CRSDATA!O265","v":0},{"$f":"CRSDATA!U265","v":0},{"$f":"IF(CRSDATA!V265=\"\",\"\",CRSDATA!V265)","v":""},{"$f":"IF(CRSDATA!W265=\"\",\"\",CRSDATA!W265)","v":""},{"$f":"key_row(CRSDATA!X265,CRSDATA!Y265,CRSDATA!AL265,CRSDATA!AK265,CRSDATA!AJ265,CRSDATA!AM265,CRSDATA!P265,CRSDATA!V265)","v":""},{"$f":"CRSDATA!P265","v":0},{"$f":"CRSDATA!J265","v":0},{"$f":"CRSDATA!I265","v":0},null,{"$f":"IF(LEFT(CRSDATA!N265,2)=\"A0\",\"A00\",IF(LEFT(CRSDATA!N265,3)=\"B02\",\"B02\",IF(LEFT(CRSDATA!N265,3)=\"B03\",\"B03\",IF(CRSDATA!N265=\"B04\",\"C01\",IF(CRSDATA!N265=\"H01\",\"H00\",IF(OR(CRSDATA!N265=\"H02\",CRSDATA!N265=\"H03\",CRSDATA!N265=\"H04\",CRSDATA!N265=\"H05\",CRSDATA!N265=\"H06\"),\"I01\",IF(CRSDATA!N265=\"\",\"\",CRSDATA!N265)))))))","v":""},{"$f":"IF(AND(LEN(CRSDATA!M265)=4,LEFT(CRSDATA!M265,3)=\"110\"),1100,IF(AND(LEN(CRSDATA!M265)=4,LEFT(CRSDATA!M265,3)=\"422\"),422,CRSDATA!M265))","v":0},{"$f":"IF(CRSDATA!L265=22,\"FA04\",\"\")","v":""},{"$f":"IF(CRSDATA!K265=8,\"FC02\",\"\")","v":""},{"$f":"_xlfn.IFS(OR(P265=\"A00\",P265=\"E01\",P265=\"F01\",AND(P265=\"\",A265<>0),Q265=510,Q265=520,AF265=60),1,P265=\"G01\",IF(AF265=10,21,22),OR(M265=41203,M265=41204),22,OR(AND(OR(P265=\"B02\",P265=\"B03\"),M265=41310),OR(P265=\"E02\",P265=\"I01\")),21,AND(OR(P265=\"B01\",P265=\"B03\",P265=\"C01\"),M265<>41310),IF(VLOOKUP(F265,recipient_country!AB:AD,3,FALSE)=10024,\"\",1),AND(P265=\"B02\",M265<>41310),IF(VLOOKUP(M265,channel_codes!J:P,7,FALSE)=0,\"\",VLOOKUP(M265,channel_codes!J:P,7,FALSE)),ISNUMBER(MATCH(P265,{\"D01\",\"D02\"},0)),IF(VLOOKUP(M265,channel_codes!J:P,7,FALSE)=1,1,IF(VLOOKUP(F265,recipient_country!AB:AD,3,FALSE)=10024,\"\",1)),OR(P265=\"H01\",AND(OR(ISNUMBER(SEARCH(\"41010\", L265)),ISNUMBER(SEARCH(\"41020\", L265)),ISNUMBER(SEARCH(\"41030\", L265)),ISNUMBER(SEARCH(\"41040\", L265)),ISNUMBER(SEARCH(\"41081\", L265))),F265=998)),22,F265=998,22,TRUE,\"\")","v":""},{"$f":"CRSDATA!AN265","v":0},{"$f":"CRSDATA!AO265","v":0},{"$f":"CRSDATA!AQ265","v":0},{"$f":"CRSDATA!AS265","v":0},{"$f":"CRSDATA!BB265","v":0},null,"",{"$f":"IF(AND(AND(CRSDATA!C265<>\"\",CRSDATA!BK265<>\"\"),OR(CRSDATA!N265=421,CRSDATA!N265=422,CRSDATA!N265=4221,CRSDATA!N265=4222,CRSDATA!N265=423,CRSDATA!N265=424,CRSDATA!N265=425,CRSDATA!N265=431,CRSDATA!N265=433,CRSDATA!N265=434)),DATEDIF(CRSDATA!C265,CRSDATA!BK265,\"m\"),\"\")","v":""},{"$f":"CRSDATA!BA265","v":0},{"$f":"CRSDATA!BC265","v":0},{"$f":"IF(CRSDATA!BT265=\"\",\"\",CRSDATA!BT265)","v":""},{"$f":"CRSDATA!L265","v":0}]
[{"$f":"CRSDATA!A266","v":0},{"$f":"CRSDATA!C266","v":0},{"$f":"CRSDATA!D266","v":0},{"$f":"CRSDATA!F266","v":0},{"$f":"CRSDATA!E266","v":0},{"$f":"IF(CRSDATA!H266=3000,998,CRSDATA!H266)","v":0},{"$f":"CRSDATA!O266","v":0},{"$f":"CRSDATA!U266","v":0},{"$f":"IF(CRSDATA!V266=\"\",\"\",CRSDATA!V266)","v":""},{"$f":"IF(CRSDATA!W266=\"\",\"\",CRSDATA!W266)","v":""},{"$f":"key_row(CRSDATA!X266,CRSDATA!Y266,CRSDATA!AL266,CRSDATA!AK266,CRSDATA!AJ266,CRSDATA!AM266,CRSDATA!P266,CRSDATA!V266)","v":""},{"$f":"CRSDATA!P266","v":0},{"$f":"CRSDATA!J266","v":0},{"$f":"CRSDATA!I266","v":0},null,{"$f":"IF(LEFT(CRSDATA!N266,2)=\"A0\",\"A00\",IF(LEFT(CRSDATA!N266,3)=\"B02\",\"B02\",IF(LEFT(CRSDATA!N266,3)=\"B03\",\"B03\",IF(CRSDATA!N266=\"B04\",\"C01\",IF(CRSDATA!N266=\"H01\",\"H00\",IF(OR(CRSDATA!N266=\"H02\",CRSDATA!N266=\"H03\",CRSDATA!N266=\"H04\",CRSDATA!N266=\"H05\",CRSDATA!N266=\"H06\"),\"I01\",IF(CRSDATA!N266=\"\",\"\",CRSDATA!N266)))))))","v":""},{"$f":"IF(AND(LEN(CRSDATA!M266)=4,LEFT(CRSDATA!M266,3)=\"110\"),1100,IF(AND(LEN(CRSDATA!M266)=4,LEFT(CRSDATA!M266,3)=\"422\"),422,CRSDATA!M266))","v":0},{"$f":"IF(CRSDATA!L266=22,\"FA04\",\"\")","v":""},{"$f":"IF(CRSDATA!K266=8,\"FC02\",\"\")","v":""},{"$f":"_xlfn.IFS(OR(P266=\"A00\",P266=\"E01\",P266=\"F01\",AND(P266=\"\",A266<>0),Q266=510,Q266=520,AF266=60),1,P266=\"G01\",IF(AF266=10,21,22),OR(M266=41203,M266=41204),22,OR(AND(OR(P266=\"B02\",P266=\"B03\"),M266=41310),OR(P266=\"E02\",P266=\"I01\")),21,AND(OR(P266=\"B01\",P266=\"B03\",P266=\"C01\"),M266<>41310),IF(VLOOKUP(F266,recipient_country!AB:AD,3,FALSE)=10024,\"\",1),AND(P266=\"B02\",M266<>41310),IF(VLOOKUP(M266,channel_codes!J:P,7,FALSE)=0,\"\",VLOOKUP(M266,channel_codes!J:P,7,FALSE)),ISNUMBER(MATCH(P266,{\"D01\",\"D02\"},0)),IF(VLOOKUP(M266,channel_codes!J:P,7,FALSE)=1,1,IF(VLOOKUP(F266,recipient_country!AB:AD,3,FALSE)=10024,\"\",1)),OR(P266=\"H01\",AND(OR(ISNUMBER(SEARCH(\"41010\", L266)),ISNUMBER(SEARCH(\"41020\", L266)),ISNUMBER(SEARCH(\"41030\", L266)),ISNUMBER(SEARCH(\"41040\", L266)),ISNUMBER(SEARCH(\"41081\", L266))),F266=998)),22,F266=998,22,TRUE,\"\")","v":""},{"$f":"CRSDATA!AN266","v":0},{"$f":"CRSDATA!AO266","v":0},{"$f":"CRSDATA!AQ266","v":0},{"$f":"CRSDATA!AS266","v":0},{"$f":"CRSDATA!BB266","v":0},null,"",{"$f":"IF(AND(AND(CRSDATA!C266<>\"\",CRSDATA!BK266<>\"\"),OR(CRSDATA!N266=421,CRSDATA!N266=422,CRSDATA!N266=4221,CRSDATA!N266=4222,CRSDATA!N266=423,CRSDATA!N266=424,CRSDATA!N266=425,CRSDATA!N266=431,CRSDATA!N266=433,CRSDATA!N266=434)),DATEDIF(CRSDATA!C266,CRSDATA!BK266,\"m\"),\"\")","v":""},{"$f":"CRSDATA!BA266","v":0},{"$f":"CRSDATA!BC266","v":0},{"$f":"IF(CRSDATA!BT266=\"\",\"\",CRSDATA!BT266)","v":""},{"$f":"CRSDATA!L266","v":0}]
[{"$f":"CRSDATA!A267","v":0},{"$f":"CRSDATA!C267","v":0},{"$f":"CRSDATA!D267","v":0},{"$f":"CRSDATA!F267","v":0},{"$f":"CRSDATA!E267","v":0},{"$f":"IF(CRSDATA!H267=3000,998,CRSDATA!H267)","v":0},{"$f":"CRSDATA!O267","v":0},{"$f":"CRSDATA!U267","v":0},{"$f":"IF(CRSDATA!V267=\"\",\"\",CRSDATA!V267)","v":""},{"$f":"IF(CRSDATA!W267=\"\",\"\",CRSDATA!W267)","v":""},{"$f":"key_row(CRSDATA!X267,CRSDATA!Y267,CRSDATA!AL267,CRSDATA!AK267,CRSDATA!AJ267,CRSDATA!AM267,CRSDATA!P267,CRSDATA!V267)","v":""},{"$f":"CRSDATA!P267","v":0},{"$f":"CRSDATA!J267","v":0},{"$f":"CRSDATA!I267","v":0},null,{"$f":"IF(LEFT(CRSDATA!N267,2)=\"A0\",\"A00\",IF(LEFT(CRSDATA!N267,3)=\"B02\",\"B02\",IF(LEFT(CRSDATA!N267,3)=\"B03\",\"B03\",IF(CRSDATA!N267=\"B04\",\"C01\",IF(CRSDATA!N267=\"H01\",\"H00\",IF(OR(CRSDATA!N267=\"H02\",CRSDATA!N267=\"H03\",CRSDATA!N267=\"H04\",CRSDATA!N267=\"H05\",CRSDATA!N267=\"H06\"),\"I01\",IF(CRSDATA!N267=\"\",\"\",CRSDATA!N267)))))))","v":""},{"$f":"IF(AND(LEN(CRSDATA!M267)=4,LEFT(CRSDATA!M267,3)=\"110\"),1100,IF(AND(LEN(CRSDATA!M267)=4,LEFT(CRSDATA!M267,3)=\"422\"),422,CRSDATA!M267))","v":0},{"$f":"IF(CRSDATA!L267=22,\"FA04\",\"\")","v":""},{"$f":"IF(CRSDATA!K267=8,\"FC02\",\"\")","v":""},{"$f":"_xlfn.IFS(OR(P267=\"A00\",P267=\"E01\",P267=\"F01\",AND(P267=\"\",A267<>0),Q267=510,Q267=520,AF267=60),1,P267=\"G01\",IF(AF267=10,21,22),OR(M267=41203,M267=41204),22,OR(AND(OR(P267=\"B02\",P267=\"B03\"),M267=41310),OR(P267=\"E02\",P267=\"I01\")),21,AND(OR(P267=\"B01\",P267=\"B03\",P267=\"C01\"),M267<>41310),IF(VLOOKUP(F267,recipient_country!AB:AD,3,FALSE)=10024,\"\",1),AND(P267=\"B02\",M267<>41310),IF(VLOOKUP(M267,channel_codes!J:P,7,FALSE)=0,\"\",VLOOKUP(M267,channel_codes!J:P,7,FALSE)),ISNUMBER(MATCH(P267,{\"D01\",\"D02\"},0)),IF(VLOOKUP(M267,channel_codes!J:P,7,FALSE)=1,1,IF(VLOOKUP(F267,recipient_country!AB:AD,3,FALSE)=10024,\"\",1)),OR(P267=\"H01\",AND(OR(ISNUMBER(SEARCH(\"41010\", L267)),ISNUMBER(SEARCH(\"41020\", L267)),ISNUMBER(SEARCH(\"41030\", L267)),ISNUMBER(SEARCH(\"41040\", L267)),ISNUMBER(SEARCH(\"41081\", L267))),F267=998)),22,F267=998,22,TRUE,\"\")","v":""},{"$f":"CRSDATA!AN267","v":0},{"$f":"CRSDATA!AO267","v":0},{"$f":"CRSDATA!AQ267","v":0},{"$f":"CRSDATA!AS267","v":0},{"$f":"CRSDATA!BB267","v":0},null,"",{"$f":"IF(AND(AND(CRSDATA!C267<>\"\",CRSDATA!BK267<>\"\"),OR(CRSDATA!N267=421,CRSDATA!N267=422,CRSDATA!N267=4221,CRSDATA!N267=4222,CRSDATA!N267=423,CRSDATA!N267=424,CRSDATA!N267=425,CRSDATA!N267=431,CRSDATA!N267=433,CRSDATA!N267=434)),DATEDIF(CRSDATA!C267,CRSDATA!BK267,\"m\"),\"\")","v":""},{"$f":"CRSDATA!BA267","v":0},{"$f":"CRSDATA!BC267","v":0},{"$f":"IF(CRSDATA!BT267=\"\",\"\",CRSDATA!BT267)","v":""},{"$f":"CRSDATA!L267","v":0}]
[{"$f":"CRSDATA!A268","v":0},{"$f":"CRSDATA!C268","v":0},{"$f":"CRSDATA!D268","v":0},{"$f":"CRSDATA!F268","v":0},{"$f":"CRSDATA!E268","v":0},{"$f":"IF(CRSDATA!H268=3000,998,CRSDATA!H268)","v":0},{"$f":"CRSDATA!O268","v":0},{"$f":"CRSDATA!U268","v":0},{"$f":"IF(CRSDATA!V268=\"\",\"\",CRSDATA!V268)","v":""},{"$f":"IF(CRSDATA!W268=\"\",\"\",CRSDATA!W268)","v":""},{"$f":"key_row(CRSDATA!X268,CRSDATA!Y268,CRSDATA!AL268,CRSDATA!AK268,CRSDATA!AJ268,CRSDATA!AM268,CRSDATA!P268,CRSDATA!V268)","v":""},{"$f":"CRSDATA!P268","v":0},{"$f":"CRSDATA!J268","v":0},{"$f":"CRSDATA!I268","v":0},null,{"$f":"IF(LEFT(CRSDATA!N268,2)=\"A0\",\"A00\",IF(LEFT(CRSDATA!N268,3)=\"B02\",\"B02\",IF(LEFT(CRSDATA!N268,3)=\"B03\",\"B03\",IF(CRSDATA!N268=\"B04\",\"C01\",IF(CRSDATA!N268=\"H01\",\"H00\",IF(OR(CRSDATA!N268=\"H02\",CRSDATA!N268=\"H03\",CRSDATA!N268=\"H04\",CRSDATA!N268=\"H05\",CRSDATA!N268=\"H06\"),\"I01\",IF(CRSDATA!N268=\"\",\"\",CRSDATA!N268)))))))","v":""},{"$f":"IF(AND(LEN(CRSDATA!M268)=4,LEFT(CRSDATA!M268,3)=\"110\"),1100,IF(AND(LEN(CRSDATA!M268)=4,LEFT(CRSDATA!M268,3)=\"422\"),422,CRSDATA!M268))","v":0},{"$f":"IF(CRSDATA!L268=22,\"FA04\",\"\")","v":""},{"$f":"IF(CRSDATA!K268=8,\"FC02\",\"\")","v":""},{"$f":"_xlfn.IFS(OR(P268=\"A00\",P268=\"E01\",P268=\"F01\",AND(P268=\"\",A268<>0),Q268=510,Q268=520,AF268=60),1,P268=\"G01\",IF(AF268=10,21,22),OR(M268=41203,M268=41204),22,OR(AND(OR(P268=\"B02\",P268=\"B03\"),M268=41310),OR(P268=\"E02\",P268=\"I01\")),21,AND(OR(P268=\"B01\",P268=\"B03\",P268=\"C01\"),M268<>41310),IF(VLOOKUP(F268,recipient_country!AB:AD,3,FALSE)=10024,\"\",1),AND(P268=\"B02\",M268<>41310),IF(VLOOKUP(M268,channel_codes!J:P,7,FALSE)=0,\"\",VLOOKUP(M268,channel_codes!J:P,7,FALSE)),ISNUMBER(MATCH(P268,{\"D01\",\"D02\"},0)),IF(VLOOKUP(M268,channel_codes!J:P,7,FALSE)=1,1,IF(VLOOKUP(F268,recipient_country!AB:AD,3,FALSE)=10024,\"\",1)),OR(P268=\"H01\",AND(OR(ISNUMBER(SEARCH(\"41010\", L268)),ISNUMBER(SEARCH(\"41020\", L268)),ISNUMBER(SEARCH(\"41030\", L268)),ISNUMBER(SEARCH(\"41040\", L268)),ISNUMBER(SEARCH(\"41081\", L268))),F268=998)),22,F268=998,22,TRUE,\"\")","v":""},{"$f":"CRSDATA!AN268","v":0},{"$f":"CRSDATA!AO268","v":0},{"$f":"CRSDATA!AQ268","v":0},{"$f":"CRSDATA!AS268","v":0},{"$f":"CRSDATA!BB268","v":0},null,"",{"$f":"IF(AND(AND(CRSDATA!C268<>\"\",CRSDATA!BK268<>\"\"),OR(CRSDATA!N268=421,CRSDATA!N268=422,CRSDATA!N268=4221,CRSDATA!N268=4222,CRSDATA!N268=423,CRSDATA!N268=424,CRSDATA!N268=425,CRSDATA!N268=431,CRSDATA!N268=433,CRSDATA!N268=434)),DATEDIF(CRSDATA!C268,CRSDATA!BK268,\"m\"),\"\")","v":""},{"$f":"CRSDATA!BA268","v":0},{"$f":"CRSDATA!BC268","v":0},{"$f":"IF(CRSDATA!BT268=\"\",\"\",CRSDATA!BT268)","v":""},{"$f":"CRSDATA!L268","v":0}]
[{"$f":"CRSDATA!A269","v":0},{"$f":"CRSDATA!C269","v":0},{"$f":"CRSDATA!D269","v":0},{"$f":"CRSDATA!F269","v":0},{"$f":"CRSDATA!E269","v":0},{"$f":"IF(CRSDATA!H269=3000,998,CRSDATA!H269)","v":0},{"$f":"CRSDATA!O269","v":0},{"$f":"CRSDATA!U269","v":0},{"$f":"IF(CRSDATA!V269=\"\",\"\",CRSDATA!V269)","v":""},{"$f":"IF(CRSDATA!W269=\"\",\"\",CRSDATA!W269)","v":""},{"$f":"key_row(CRSDATA!X269,CRSDATA!Y269,CRSDATA!AL269,CRSDATA!AK269,CRSDATA!AJ269,CRSDATA!AM269,CRSDATA!P269,CRSDATA!V269)","v":""},{"$f":"CRSDATA!P269","v":0},{"$f":"CRSDATA!J269","v":0},{"$f":"CRSDATA!I269","v":0},null,{"$f":"IF(LEFT(CRSDATA!N269,2)=\"A0\",\"A00\",IF(LEFT(CRSDATA!N269,3)=\"B02\",\"B02\",IF(LEFT(CRSDATA!N269,3)=\"B03\",\"B03\",IF(CRSDATA!N269=\"B04\",\"C01\",IF(CRSDATA!N269=\"H01\",\"H00\",IF(OR(CRSDATA!N269=\"H02\",CRSDATA!N269=\"H03\",CRSDATA!N269=\"H04\",CRSDATA!N269=\"H05\",CRSDATA!N269=\"H06\"),\"I01\",IF(CRSDATA!N269=\"\",\"\",CRSDATA!N269)))))))","v":""},{"$f":"IF(AND(LEN(CRSDATA!M269)=4,LEFT(CRSDATA!M269,3)=\"110\"),1100,IF(AND(LEN(CRSDATA!M269)=4,LEFT(CRSDATA!M269,3)=\"422\"),422,CRSDATA!M269))","v":0},{"$f":"IF(CRSDATA!L269=22,\"FA04\",\"\")","v":""},{"$f":"IF(CRSDATA!K269=8,\"FC02\",\"\")","v":""},{"$f":"_xlfn.IFS(OR(P269=\"A00\",P269=\"E01\",P269=\"F01\",AND(P269=\"\",A269<>0),Q269=510,Q269=520,AF269=60),1,P269=\"G01\",IF(AF269=10,21,22),OR(M269=41203,M269=41204),22,OR(AND(OR(P269=\"B02\",P269=\"B03\"),M269=41310),OR(P269=\"E02\",P269=\"I01\")),21,AND(OR(P269=\"B01\",P269=\"B03\",P269=\"C01\"),M269<>41310),IF(VLOOKUP(F269,recipient_country!AB:AD,3,FALSE)=10024,\"\",1),AND(P269=\"B02\",M269<>41310),IF(VLOOKUP(M269,channel_codes!J:P,7,FALSE)=0,\"\",VLOOKUP(M269,channel_codes!J:P,7,FALSE)),ISNUMBER(MATCH(P269,{\"D01\",\"D02\"},0)),IF(VLOOKUP(M269,channel_codes!J:P,7,FALSE)=1,1,IF(VLOOKUP(F269,recipient_country!AB:AD,3,FALSE)=10024,\"\",1)),OR(P269=\"H01\",AND(OR(ISNUMBER(SEARCH(\"41010\", L269)),ISNUMBER(SEARCH(\"41020\", L269)),ISNUMBER(SEARCH(\"41030\", L269)),ISNUMBER(SEARCH(\"41040\", L269)),ISNUMBER(SEARCH(\"41081\", L269))),F269=998)),22,F269=998,22,TRUE,\"\")","v":""},{"$f":"CRSDATA!AN269","v":0},{"$f":"CRSDATA!AO269","v":0},{"$f":"CRSDATA!AQ269","v":0},{"$f":"CRSDATA!AS269","v":0},{"$f":"CRSDATA!BB269","v":0},null,"",{"$f":"IF(AND(AND(CRSDATA!C269<>\"\",CRSDATA!BK269<>\"\"),OR(CRSDATA!N269=421,CRSDATA!N269=422,CRSDATA!N269=4221,CRSDATA!N269=4222,CRSDATA!N269=423,CRSDATA!N269=424,CRSDATA!N269=425,CRSDATA!N269=431,CRSDATA!N269=433,CRSDATA!N269=434)),DATEDIF(CRSDATA!C269,CRSDATA!BK269,\"m\"),\"\")","v":""},{"$f":"CRSDATA!BA269","v":0},{"$f":"CRSDATA!BC269","v":0},{"$f":"IF(CRSDATA!BT269=\"\",\"\",CRSDATA!BT269)","v":""},{"$f":"CRSDATA!L269","v":0}]
[{"$f":"CRSDATA!A270","v":0},{"$f":"CRSDATA!C270","v":0},{"$f":"CRSDATA!D270","v":0},{"$f":"CRSDATA!F270","v":0},{"$f":"CRSDATA!E270","v":0},{"$f":"IF(CRSDATA!H270=3000,998,CRSDATA!H270)","v":0},{"$f":"CRSDATA!O270","v":0},{"$f":"CRSDATA!U270","v":0},{"$f":"IF(CRSDATA!V270=\"\",\"\",CRSDATA!V270)","v":""},{"$f":"IF(CRSDATA!W270=\"\",\"\",CRSDATA!W270)","v":""},{"$f":"key_row(CRSDATA!X270,CRSDATA!Y270,CRSDATA!AL270,CRSDATA!AK270,CRSDATA!AJ270,CRSDATA!AM270,CRSDATA!P270,CRSDATA!V270)","v":""},{"$f":"CRSDATA!P270","v":0},{"$f":"CRSDATA!J270","v":0},{"$f":"CRSDATA!I270","v":0},null,{"$f":"IF(LEFT(CRSDATA!N270,2)=\"A0\",\"A00\",IF(LEFT(CRSDATA!N270,3)=\"B02\",\"B02\",IF(LEFT(CRSDATA!N270,3)=\"B03\",\"B03\",IF(CRSDATA!N270=\"B04\",\"C01\",IF(CRSDATA!N270=\"H01\",\"H00\",IF(OR(CRSDATA!N270=\"H02\",CRSDATA!N270=\"H03\",CRSDATA!N270=\"H04\",CRSDATA!N270=\"H05\",CRSDATA!N270=\"H06\"),\"I01\",IF(CRSDATA!N270=\"\",\"\",CRSDATA!N270)))))))","v":""},{"$f":"IF(AND(LEN(CRSDATA!M270)=4,LEFT(CRSDATA!M270,3)=\"110\"),1100,IF(AND(LEN(CRSDATA!M270)=4,LEFT(CRSDATA!M270,3)=\"422\"),422,CRSDATA!M270))","v":0},{"$f":"IF(CRSDATA!L270=22,\"FA04\",\"\")","v":""},{"$f":"IF(CRSDATA!K270=8,\"FC02\",\"\")","v":""},{"$f":"_xlfn.IFS(OR(P270=\"A00\",P270=\"E01\",P270=\"F01\",AND(P270=\"\",A270<>0),Q270=510,Q270=520,AF270=60),1,P270=\"G01\",IF(AF270=10,21,22),OR(M270=41203,M270=41204),22,OR(AND(OR(P270=\"B02\",P270=\"B03\"),M270=41310),OR(P270=\"E02\",P270=\"I01\")),21,AND(OR(P270=\"B01\",P270=\"B03\",P270=\"C01\"),M270<>41310),IF(VLOOKUP(F270,recipient_country!AB:AD,3,FALSE)=10024,\"\",1),AND(P270=\"B02\",M270<>41310),IF(VLOOKUP(M270,channel_codes!J:P,7,FALSE)=0,\"\",VLOOKUP(M270,channel_codes!J:P,7,FALSE)),ISNUMBER(MATCH(P270,{\"D01\",\"D02\"},0)),IF(VLOOKUP(M270,channel_codes!J:P,7,FALSE)=1,1,IF(VLOOKUP(F270,recipient_country!AB:AD,3,FALSE)=10024,\"\",1)),OR(P270=\"H01\",AND(OR(ISNUMBER(SEARCH(\"41010\", L270)),ISNUMBER(SEARCH(\"41020\", L270)),ISNUMBER(SEARCH(\"41030\", L270)),ISNUMBER(SEARCH(\"41040\", L270)),ISNUMBER(SEARCH(\"41081\", L270))),F270=998)),22,F270=998,22,TRUE,\"\")","v":""},{"$f":"CRSDATA!AN270","v":0},{"$f":"CRSDATA!AO270","v":0},{"$f":"CRSDATA!AQ270","v":0},{"$f":"CRSDATA!AS270","v":0},{"$f":"CRSDATA!BB270","v":0},null,"",{"$f":"IF(AND(AND(CRSDATA!C270<>\"\",CRSDATA!BK270<>\"\"),OR(CRSDATA!N270=421,CRSDATA!N270=422,CRSDATA!N270=4221,CRSDATA!N270=4222,CRSDATA!N270=423,CRSDATA!N270=424,CRSDATA!N270=425,CRSDATA!N270=431,CRSDATA!N270=433,CRSDATA!N270=434)),DATEDIF(CRSDATA!C270,CRSDATA!BK270,\"m\"),\"\")","v":""},{"$f":"CRSDATA!BA270","v":0},{"$f":"CRSDATA!BC270","v":0},{"$f":"IF(CRSDATA!BT270=\"\",\"\",CRSDATA!BT270)","v":""},{"$f":"CRSDATA!L270","v":0}]
[null,null,null,null,null,null,null,null,null,null,null,null,null,null,null,null,null,null,null,null,null,null,null,null,null,null,null,null,null,null,{"$f":"IF(CRSDATA!BT271=\"\",\"\",CRSDATA!BT271)","v":""}]
[null,null,null,null,null,null,null,null,null,null,null,null,null,null,null,null,null,null,null,null,null,null,null,null,null,null,null,null,null,null,{"$f":"IF(CRSDATA!BT272=\"\",\"\",CRSDATA!BT272)","v":""}]
[null,null,null,null,null,null,null,null,null,null,null,null,null,null,null,null,null,null,null,null,null,null,null,null,null,null,null,null,null,null,{"$f":"IF(CRSDATA!BT273=\"\",\"\",CRSDATA!BT273)","v":""}]
[null,null,null,null,null,null,null,null,null,null,null,null,null,null,null,null,null,null,null,null,null,null,null,null,null,null,null,null,null,null,{"$f":"IF(CRSDATA!BT274=\"\",\"\",CRSDATA!BT274)","v":""}]
[null,null,null,null,null,null,null,null,null,null,null,null,null,null,null,null,null,null,null,null,null,null,null,null,null,null,null,null,null,null,{"$f":"IF(CRSDATA!BT275=\"\",\"\",CRSDATA!BT275)","v":""}]
[null,null,null,null,null,null,null,null,null,null,null,null,null,null,null,null,null,null,null,null,null,null,null,null,null,null,null,null,null,null,{"$f":"IF(CRSDATA!BT276=\"\",\"\",CRSDATA!BT276)","v":""}]
[null,null,null,null,null,null,null,null,null,null,null,null,null,null,null,null,null,null,null,null,null,null,null,null,null,null,null,null,null,null,{"$f":"IF(CRSDATA!BT277=\"\",\"\",CRSDATA!BT277)","v":""}]
[null,null,null,null,null,null,null,null,null,null,null,null,null,null,null,null,null,null,null,null,null,null,null,null,null,null,null,null,null,null,{"$f":"IF(CRSDATA!BT278=\"\",\"\",CRSDATA!BT278)","v":""}]
[null,null,null,null,null,null,null,null,null,null,null,null,null,null,null,null,null,null,null,null,null,null,null,null,null,null,null,null,null,null,{"$f":"IF(CRSDATA!BT279=\"\",\"\",CRSDATA!BT279)","v":""}]
[null,null,null,null,null,null,null,null,null,null,null,null,null,null,null,null,null,null,null,null,null,null,null,null,null,null,null,null,null,null,{"$f":"IF(CRSDATA!BT280=\"\",\"\",CRSDATA!BT280)","v":""}]
[null,null,null,null,null,null,null,null,null,null,null,null,null,null,null,null,null,null,null,null,null,null,null,null,null,null,null,null,null,null,{"$f":"IF(CRSDATA!BT281=\"\",\"\",CRSDATA!BT281)","v":""}]
[null,null,null,null,null,null,null,null,null,null,null,null,null,null,null,null,null,null,null,null,null,null,null,null,null,null,null,null,null,null,{"$f":"IF(CRSDATA!BT282=\"\",\"\",CRSDATA!BT282)","v":""}]
[null,null,null,null,null,null,null,null,null,null,null,null,null,null,null,null,null,null,null,null,null,null,null,null,null,null,null,null,null,null,{"$f":"IF(CRSDATA!BT283=\"\",\"\",CRSDATA!BT283)","v":""}]
[null,null,null,null,null,null,null,null,null,null,null,null,null,null,null,null,null,null,null,null,null,null,null,null,null,null,null,null,null,null,{"$f":"IF(CRSDATA!BT284=\"\",\"\",CRSDATA!BT284)","v":""}]
[null,null,null,null,null,null,null,null,null,null,null,null,null,null,null,null,null,null,null,null,null,null,null,null,null,null,null,null,null,null,{"$f":"IF(CRSDATA!BT285=\"\",\"\",CRSDATA!BT285)","v":""}]
[null,null,null,null,null,null,null,null,null,null,null,null,null,null,null,null,null,null,null,null,null,null,null,null,null,null,null,null,null,null,{"$f":"IF(CRSDATA!BT286=\"\",\"\",CRSDATA!BT286)","v":""}]
[null,null,null,null,null,null,null,null,null,null,null,null,null,null,null,null,null,null,null,null,null,null,null,null,null,null,null,null,null,null,{"$f":"IF(CRSDATA!BT287=\"\",\"\",CRSDATA!BT287)","v":""}]
[null,null,null,null,null,null,null,null,null,null,null,null,null,null,null,null,null,null,null,null,null,null,null,null,null,null,null,null,null,null,{"$f":"IF(CRSDATA!BT288=\"\",\"\",CRSDATA!BT288)","v":""}]
[null,null,null,null,null,null,null,null,null,null,null,null,null,null,null,null,null,null,null,null,null,null,null,null,null,null,null,null,null,null,{"$f":"IF(CRSDATA!BT289=\"\",\"\",CRSDATA!BT289)","v":""}]
[null,null,null,null,null,null,null,null,null,null,null,null,null,null,null,null,null,null,null,null,null,null,null,null,null,null,null,null,null,null,{"$f":"IF(CRSDATA!BT290=\"\",\"\",CRSDATA!BT290)","v":""}]
[null,null,null,null,null,null,null,null,null,null,null,null,null,null,null,null,null,null,null,null,null,null,null,null,null,null,null,null,null,null,{"$f":"IF(CRSDATA!BT291=\"\",\"\",CRSDATA!BT291)","v":""}]
[null,null,null,null,null,null,null,null,null,null,null,null,null,null,null,null,null,null,null,null,null,null,null,null,null,null,null,null,null,null,{"$f":"IF(CRSDATA!BT292=\"\",\"\",CRSDATA!BT292)","v":""}]
[null,null,null,null,null,null,null,null,null,null,null,null,null,null,null,null,null,null,null,null,null,null,null,null,null,null,null,null,null,null,{"$f":"IF(CRSDATA!BT293=\"\",\"\",CRSDATA!BT293)","v":""}]
[null,null,null,null,null,null,null,null,null,null,null,null,null,null,null,null,null,null,null,null,null,null,null,null,null,null,null,null,null,null,{"$f":"IF(CRSDATA!BT294=\"\",\"\",CRSDATA!BT294)","v":""}]
[null,null,null,null,null,null,null,null,null,null,null,null,null,null,null,null,null,null,null,null,null,null,null,null,null,null,null,null,null,null,{"$f":"IF(CRSDATA!BT295=\"\",\"\",CRSDATA!BT295)","v":""}]
[null,null,null,null,null,null,null,null,null,null,null,null,null,null,null,null,null,null,null,null,null,null,null,null,null,null,null,null,null,null,{"$f":"IF(CRSDATA!BT296=\"\",\"\",CRSDATA!BT296)","v":""}]
[null,null,null,null,null,null,null,null,null,null,null,null,null,null,null,null,null,null,null,null,null,null,null,null,null,null,null,null,null,null,{"$f":"IF(CRSDATA!BT297=\"\",\"\",CRSDATA!BT297)","v":""}]
[null,null,null,null,null,null,null,null,null,null,null,null,null,null,null,null,null,null,null,null,null,null,null,null,null,null,null,null,null,null,{"$f":"IF(CRSDATA!BT298=\"\",\"\",CRSDATA!BT298)","v":""}]
[null,null,null,null,null,null,null,null,null,null,null,null,null,null,null,null,null,null,null,null,null,null,null,null,null,null,null,null,null,null,{"$f":"IF(CRSDATA!BT299=\"\",\"\",CRSDATA!BT299)","v":""}]
[null,null,null,null,null,null,null,null,null,null,null,null,null,null,null,null,null,null,null,null,null,null,null,null,null,null,null,null,null,null,{"$f":"IF(CRSDATA!BT300=\"\",\"\",CRSDATA!BT300)","v":""}]
[null,null,null,null,null,null,null,null,null,null,null,null,null,null,null,null,null,null,null,null,null,null,null,null,null,null,null,null,null,null,{"$f":"IF(CRSDATA!BT301=\"\",\"\",CRSDATA!BT301)","v":""}]
[null,null,null,null,null,null,null,null,null,null,null,null,null,null,null,null,null,null,null,null,null,null,null,null,null,null,null,null,null,null,{"$f":"IF(CRSDATA!BT302=\"\",\"\",CRSDATA!BT302)","v":""}]
[null,null,null,null,null,null,null,null,null,null,null,null,null,null,null,null,null,null,null,null,null,null,null,null,null,null,null,null,null,null,{"$f":"IF(CRSDATA!BT303=\"\",\"\",CRSDATA!BT303)","v":""}]
[null,null,null,null,null,null,null,null,null,null,null,null,null,null,null,null,null,null,null,null,null,null,null,null,null,null,null,null,null,null,{"$f":"IF(CRSDATA!BT304=\"\",\"\",CRSDATA!BT304)","v":""}]
[null,null,null,null,null,null,null,null,null,null,null,null,null,null,null,null,null,null,null,null,null,null,null,null,null,null,null,null,null,null,{"$f":"IF(CRSDATA!BT305=\"\",\"\",CRSDATA!BT305)","v":""}]
[null,null,null,null,null,null,null,null,null,null,null,null,null,null,null,null,null,null,null,null,null,null,null,null,null,null,null,null,null,null,{"$f":"IF(CRSDATA!BT306=\"\",\"\",CRSDATA!BT306)","v":""}]
[null,null,null,null,null,null,null,null,null,null,null,null,null,null,null,null,null,null,null,null,null,null,null,null,null,null,null,null,null,null,{"$f":"IF(CRSDATA!BT307=\"\",\"\",CRSDATA!BT307)","v":""}]
[null,null,null,null,null,null,null,null,null,null,null,null,null,null,null,null,null,null,null,null,null,null,null,null,null,null,null,null,null,null,{"$f":"IF(CRSDATA!BT308=\"\",\"\",CRSDATA!BT308)","v":""}]
[null,null,null,null,null,null,null,null,null,null,null,null,null,null,null,null,null,null,null,null,null,null,null,null,null,null,null,null,null,null,{"$f":"IF(CRSDATA!BT309=\"\",\"\",CRSDATA!BT309)","v":""}]
[null,null,null,null,null,null,null,null,null,null,null,null,null,null,null,null,null,null,null,null,null,null,null,null,null,null,null,null,null,null,{"$f":"IF(CRSDATA!BT310=\"\",\"\",CRSDATA!BT310)","v":""}]
[null,null,null,null,null,null,null,null,null,null,null,null,null,null,null,null,null,null,null,null,null,null,null,null,null,null,null,null,null,null,{"$f":"IF(CRSDATA!BT311=\"\",\"\",CRSDATA!BT311)","v":""}]
[null,null,null,null,null,null,null,null,null,null,null,null,null,null,null,null,null,null,null,null,null,null,null,null,null,null,null,null,null,null,{"$f":"IF(CRSDATA!BT312=\"\",\"\",CRSDATA!BT312)","v":""}]
[null,null,null,null,null,null,null,null,null,null,null,null,null,null,null,null,null,null,null,null,null,null,null,null,null,null,null,null,null,null,{"$f":"IF(CRSDATA!BT313=\"\",\"\",CRSDATA!BT313)","v":""}]
[null,null,null,null,null,null,null,null,null,null,null,null,null,null,null,null,null,null,null,null,null,null,null,null,null,null,null,null,null,null,{"$f":"IF(CRSDATA!BT314=\"\",\"\",CRSDATA!BT314)","v":""}]
[null,null,null,null,null,null,null,null,null,null,null,null,null,null,null,null,null,null,null,null,null,null,null,null,null,null,null,null,null,null,{"$f":"IF(CRSDATA!BT315=\"\",\"\",CRSDATA!BT315)","v":""}]
[null,null,null,null,null,null,null,null,null,null,null,null,null,null,null,null,null,null,null,null,null,null,null,null,null,null,null,null,null,null,{"$f":"IF(CRSDATA!BT316=\"\",\"\",CRSDATA!BT316)","v":""}]
[null,null,null,null,null,null,null,null,null,null,null,null,null,null,null,null,null,null,null,null,null,null,null,null,null,null,null,null,null,null,{"$f":"IF(CRSDATA!BT317=\"\",\"\",CRSDATA!BT317)","v":""}]
[null,null,null,null,null,null,null,null,null,null,null,null,null,null,null,null,null,null,null,null,null,null,null,null,null,null,null,null,null,null,{"$f":"IF(CRSDATA!BT318=\"\",\"\",CRSDATA!BT318)","v":""}]
[null,null,null,null,null,null,null,null,null,null,null,null,null,null,null,null,null,null,null,null,null,null,null,null,null,null,null,null,null,null,{"$f":"IF(CRSDATA!BT319=\"\",\"\",CRSDATA!BT319)","v":""}]
[null,null,null,null,null,null,null,null,null,null,null,null,null,null,null,null,null,null,null,null,null,null,null,null,null,null,null,null,null,null,{"$f":"IF(CRSDATA!BT320=\"\",\"\",CRSDATA!BT320)","v":""}]
[null,null,null,null,null,null,null,null,null,null,null,null,null,null,null,null,null,null,null,null,null,null,null,null,null,null,null,null,null,null,{"$f":"IF(CRSDATA!BT321=\"\",\"\",CRSDATA!BT321)","v":""}]
[null,null,null,null,null,null,null,null,null,null,null,null,null,null,null,null,null,null,null,null,null,null,null,null,null,null,null,null,null,null,{"$f":"IF(CRSDATA!BT322=\"\",\"\",CRSDATA!BT322)","v":""}]
[null,null,null,null,null,null,null,null,null,null,null,null,null,null,null,null,null,null,null,null,null,null,null,null,null,null,null,null,null,null,{"$f":"IF(CRSDATA!BT323=\"\",\"\",CRSDATA!BT323)","v":""}]
[null,null,null,null,null,null,null,null,null,null,null,null,null,null,null,null,null,null,null,null,null,null,null,null,null,null,null,null,null,null,{"$f":"IF(CRSDATA!BT324=\"\",\"\",CRSDATA!BT324)","v":""}]
[null,null,null,null,null,null,null,null,null,null,null,null,null,null,null,null,null,null,null,null,null,null,null,null,null,null,null,null,null,null,{"$f":"IF(CRSDATA!BT325=\"\",\"\",CRSDATA!BT325)","v":""}]
[null,null,null,null,null,null,null,null,null,null,null,null,null,null,null,null,null,null,null,null,null,null,null,null,null,null,null,null,null,null,{"$f":"IF(CRSDATA!BT326=\"\",\"\",CRSDATA!BT326)","v":""}]
[null,null,null,null,null,null,null,null,null,null,null,null,null,null,null,null,null,null,null,null,null,null,null,null,null,null,null,null,null,null,{"$f":"IF(CRSDATA!BT327=\"\",\"\",CRSDATA!BT327)","v":""}]
[null,null,null,null,null,null,null,null,null,null,null,null,null,null,null,null,null,null,null,null,null,null,null,null,null,null,null,null,null,null,{"$f":"IF(CRSDATA!BT328=\"\",\"\",CRSDATA!BT328)","v":""}]
[null,null,null,null,null,null,null,null,null,null,null,null,null,null,null,null,null,null,null,null,null,null,null,null,null,null,null,null,null,null,{"$f":"IF(CRSDATA!BT329=\"\",\"\",CRSDATA!BT329)","v":""}]
[null,null,null,null,null,null,null,null,null,null,null,null,null,null,null,null,null,null,null,null,null,null,null,null,null,null,null,null,null,null,{"$f":"IF(CRSDATA!BT330=\"\",\"\",CRSDATA!BT330)","v":""}]
[null,null,null,null,null,null,null,null,null,null,null,null,null,null,null,null,null,null,null,null,null,null,null,null,null,null,null,null,null,null,{"$f":"IF(CRSDATA!BT331=\"\",\"\",CRSDATA!BT331)","v":""}]
[null,null,null,null,null,null,null,null,null,null,null,null,null,null,null,null,null,null,null,null,null,null,null,null,null,null,null,null,null,null,{"$f":"IF(CRSDATA!BT332=\"\",\"\",CRSDATA!BT332)","v":""}]
[null,null,null,null,null,null,null,null,null,null,null,null,null,null,null,null,null,null,null,null,null,null,null,null,null,null,null,null,null,null,{"$f":"IF(CRSDATA!BT333=\"\",\"\",CRSDATA!BT333)","v":""}]
[null,null,null,null,null,null,null,null,null,null,null,null,null,null,null,null,null,null,null,null,null,null,null,null,null,null,null,null,null,null,{"$f":"IF(CRSDATA!BT334=\"\",\"\",CRSDATA!BT334)","v":""}]
[null,null,null,null,null,null,null,null,null,null,null,null,null,null,null,null,null,null,null,null,null,null,null,null,null,null,null,null,null,null,{"$f":"IF(CRSDATA!BT335=\"\",\"\",CRSDATA!BT335)","v":""}]
[null,null,null,null,null,null,null,null,null,null,null,null,null,null,null,null,null,null,null,null,null,null,null,null,null,null,null,null,null,null,{"$f":"IF(CRSDATA!BT336=\"\",\"\",CRSDATA!BT336)","v":""}]
[null,null,null,null,null,null,null,null,null,null,null,null,null,null,null,null,null,null,null,null,null,null,null,null,null,null,null,null,null,null,{"$f":"IF(CRSDATA!BT337=\"\",\"\",CRSDATA!BT337)","v":""}]
[null,null,null,null,null,null,null,null,null,null,null,null,null,null,null,null,null,null,null,null,null,null,null,null,null,null,null,null,null,null,{"$f":"IF(CRSDATA!BT338=\"\",\"\",CRSDATA!BT338)","v":""}]
[null,null,null,null,null,null,null,null,null,null,null,null,null,null,null,null,null,null,null,null,null,null,null,null,null,null,null,null,null,null,{"$f":"IF(CRSDATA!BT339=\"\",\"\",CRSDATA!BT339)","v":""}]
[null,null,null,null,null,null,null,null,null,null,null,null,null,null,null,null,null,null,null,null,null,null,null,null,null,null,null,null,null,null,{"$f":"IF(CRSDATA!BT340=\"\",\"\",CRSDATA!BT340)","v":""}]
[null,null,null,null,null,null,null,null,null,null,null,null,null,null,null,null,null,null,null,null,null,null,null,null,null,null,null,null,null,null,{"$f":"IF(CRSDATA!BT341=\"\",\"\",CRSDATA!BT341)","v":""}]
[null,null,null,null,null,null,null,null,null,null,null,null,null,null,null,null,null,null,null,null,null,null,null,null,null,null,null,null,null,null,{"$f":"IF(CRSDATA!BT342=\"\",\"\",CRSDATA!BT342)","v":""}]
[null,null,null,null,null,null,null,null,null,null,null,null,null,null,null,null,null,null,null,null,null,null,null,null,null,null,null,null,null,null,{"$f":"IF(CRSDATA!BT343=\"\",\"\",CRSDATA!BT343)","v":""}]
[null,null,null,null,null,null,null,null,null,null,null,null,null,null,null,null,null,null,null,null,null,null,null,null,null,null,null,null,null,null,{"$f":"IF(CRSDATA!BT344=\"\",\"\",CRSDATA!BT344)","v":""}]
[null,null,null,null,null,null,null,null,null,null,null,null,null,null,null,null,null,null,null,null,null,null,null,null,null,null,null,null,null,null,{"$f":"IF(CRSDATA!BT345=\"\",\"\",CRSDATA!BT345)","v":""}]
[null,null,null,null,null,null,null,null,null,null,null,null,null,null,null,null,null,null,null,null,null,null,null,null,null,null,null,null,null,null,{"$f":"IF(CRSDATA!BT346=\"\",\"\",CRSDATA!BT346)","v":""}]
[null,null,null,null,null,null,null,null,null,null,null,null,null,null,null,null,null,null,null,null,null,null,null,null,null,null,null,null,null,null,{"$f":"IF(CRSDATA!BT347=\"\",\"\",CRSDATA!BT347)","v":""}]
[null,null,null,null,null,null,null,null,null,null,null,null,null,null,null,null,null,null,null,null,null,null,null,null,null,null,null,null,null,null,{"$f":"IF(CRSDATA!BT348=\"\",\"\",CRSDATA!BT348)","v":""}]
[null,null,null,null,null,null,null,null,null,null,null,null,null,null,null,null,null,null,null,null,null,null,null,null,null,null,null,null,null,null,{"$f":"IF(CRSDATA!BT349=\"\",\"\",CRSDATA!BT349)","v":""}]
[null,null,null,null,null,null,null,null,null,null,null,null,null,null,null,null,null,null,null,null,null,null,null,null,null,null,null,null,null,null,{"$f":"IF(CRSDATA!BT350=\"\",\"\",CRSDATA!BT350)","v":""}]
[null,null,null,null,null,null,null,null,null,null,null,null,null,null,null,null,null,null,null,null,null,null,null,null,null,null,null,null,null,null,{"$f":"IF(CRSDATA!BT351=\"\",\"\",CRSDATA!BT351)","v":""}]
[null,null,null,null,null,null,null,null,null,null,null,null,null,null,null,null,null,null,null,null,null,null,null,null,null,null,null,null,null,null,{"$f":"IF(CRSDATA!BT352=\"\",\"\",CRSDATA!BT352)","v":""}]
[null,null,null,null,null,null,null,null,null,null,null,null,null,null,null,null,null,null,null,null,null,null,null,null,null,null,null,null,null,null,{"$f":"IF(CRSDATA!BT353=\"\",\"\",CRSDATA!BT353)","v":""}]
[null,null,null,null,null,null,null,null,null,null,null,null,null,null,null,null,null,null,null,null,null,null,null,null,null,null,null,null,null,null,{"$f":"IF(CRSDATA!BT354=\"\",\"\",CRSDATA!BT354)","v":""}]
[null,null,null,null,null,null,null,null,null,null,null,null,null,null,null,null,null,null,null,null,null,null,null,null,null,null,null,null,null,null,{"$f":"IF(CRSDATA!BT355=\"\",\"\",CRSDATA!BT355)","v":""}]
[null,null,null,null,null,null,null,null,null,null,null,null,null,null,null,null,null,null,null,null,null,null,null,null,null,null,null,null,null,null,{"$f":"IF(CRSDATA!BT356=\"\",\"\",CRSDATA!BT356)","v":""}]
[null,null,null,null,null,null,null,null,null,null,null,null,null,null,null,null,null,null,null,null,null,null,null,null,null,null,null,null,null,null,{"$f":"IF(CRSDATA!BT357=\"\",\"\",CRSDATA!BT357)","v":""}]
[null,null,null,null,null,null,null,null,null,null,null,null,null,null,null,null,null,null,null,null,null,null,null,null,null,null,null,null,null,null,{"$f":"IF(CRSDATA!BT358=\"\",\"\",CRSDATA!BT358)","v":""}]
[null,null,null,null,null,null,null,null,null,null,null,null,null,null,null,null,null,null,null,null,null,null,null,null,null,null,null,null,null,null,{"$f":"IF(CRSDATA!BT359=\"\",\"\",CRSDATA!BT359)","v":""}]
[null,null,null,null,null,null,null,null,null,null,null,null,null,null,null,null,null,null,null,null,null,null,null,null,null,null,null,null,null,null,{"$f":"IF(CRSDATA!BT360=\"\",\"\",CRSDATA!BT360)","v":""}]
[null,null,null,null,null,null,null,null,null,null,null,null,null,null,null,null,null,null,null,null,null,null,null,null,null,null,null,null,null,null,{"$f":"IF(CRSDATA!BT361=\"\",\"\",CRSDATA!BT361)","v":""}]
[null,null,null,null,null,null,null,null,null,null,null,null,null,null,null,null,null,null,null,null,null,null,null,null,null,null,null,null,null,null,{"$f":"IF(CRSDATA!BT362=\"\",\"\",CRSDATA!BT362)","v":""}]
[null,null,null,null,null,null,null,null,null,null,null,null,null,null,null,null,null,null,null,null,null,null,null,null,null,null,null,null,null,null,{"$f":"IF(CRSDATA!BT363=\"\",\"\",CRSDATA!BT363)","v":""}]
[null,null,null,null,null,null,null,null,null,null,null,null,null,null,null,null,null,null,null,null,null,null,null,null,null,null,null,null,null,null,{"$f":"IF(CRSDATA!BT364=\"\",\"\",CRSDATA!BT364)","v":""}]
[null,null,null,null,null,null,null,null,null,null,null,null,null,null,null,null,null,null,null,null,null,null,null,null,null,null,null,null,null,null,{"$f":"IF(CRSDATA!BT365=\"\",\"\",CRSDATA!BT365)","v":""}]
[null,null,null,null,null,null,null,null,null,null,null,null,null,null,null,null,null,null,null,null,null,null,null,null,null,null,null,null,null,null,{"$f":"IF(CRSDATA!BT366=\"\",\"\",CRSDATA!BT366)","v":""}]
[null,null,null,null,null,null,null,null,null,null,null,null,null,null,null,null,null,null,null,null,null,null,null,null,null,null,null,null,null,null,{"$f":"IF(CRSDATA!BT367=\"\",\"\",CRSDATA!BT367)","v":""}]
[null,null,null,null,null,null,null,null,null,null,null,null,null,null,null,null,null,null,null,null,null,null,null,null,null,null,null,null,null,null,{"$f":"IF(CRSDATA!BT368=\"\",\"\",CRSDATA!BT368)","v":""}]
[null,null,null,null,null,null,null,null,null,null,null,null,null,null,null,null,null,null,null,null,null,null,null,null,null,null,null,null,null,null,{"$f":"IF(CRSDATA!BT369=\"\",\"\",CRSDATA!BT369)","v":""}]
[null,null,null,null,null,null,null,null,null,null,null,null,null,null,null,null,null,null,null,null,null,null,null,null,null,null,null,null,null,null,{"$f":"IF(CRSDATA!BT370=\"\",\"\",CRSDATA!BT370)","v":""}]
[null,null,null,null,null,null,null,null,null,null,null,null,null,null,null,null,null,null,null,null,null,null,null,null,null,null,null,null,null,null,{"$f":"IF(CRSDATA!BT371=\"\",\"\",CRSDATA!BT371)","v":""}]
[null,null,null,null,null,null,null,null,null,null,null,null,null,null,null,null,null,null,null,null,null,null,null,null,null,null,null,null,null,null,{"$f":"IF(CRSDATA!BT372=\"\",\"\",CRSDATA!BT372)","v":""}]
[null,null,null,null,null,null,null,null,null,null,null,null,null,null,null,null,null,null,null,null,null,null,null,null,null,null,null,null,null,null,{"$f":"IF(CRSDATA!BT373=\"\",\"\",CRSDATA!BT373)","v":""}]
[null,null,null,null,null,null,null,null,null,null,null,null,null,null,null,null,null,null,null,null,null,null,null,null,null,null,null,null,null,null,{"$f":"IF(CRSDATA!BT374=\"\",\"\",CRSDATA!BT374)","v":""}]
[null,null,null,null,null,null,null,null,null,null,null,null,null,null,null,null,null,null,null,null,null,null,null,null,null,null,null,null,null,null,{"$f":"IF(CRSDATA!BT375=\"\",\"\",CRSDATA!BT375)","v":""}]
[null,null,null,null,null,null,null,null,null,null,null,null,null,null,null,null,null,null,null,null,null,null,null,null,null,null,null,null,null,null,{"$f":"IF(CRSDATA!BT376=\"\",\"\",CRSDATA!BT376)","v":""}]
[null,null,null,null,null,null,null,null,null,null,null,null,null,null,null,null,null,null,null,null,null,null,null,null,null,null,null,null,null,null,{"$f":"IF(CRSDATA!BT377=\"\",\"\",CRSDATA!BT377)","v":""}]
[null,null,null,null,null,null,null,null,null,null,null,null,null,null,null,null,null,null,null,null,null,null,null,null,null,null,null,null,null,null,{"$f":"IF(CRSDATA!BT378=\"\",\"\",CRSDATA!BT378)","v":""}]
[null,null,null,null,null,null,null,null,null,null,null,null,null,null,null,null,null,null,null,null,null,null,null,null,null,null,null,null,null,null,{"$f":"IF(CRSDATA!BT379=\"\",\"\",CRSDATA!BT379)","v":""}]
[null,null,null,null,null,null,null,null,null,null,null,null,null,null,null,null,null,null,null,null,null,null,null,null,null,null,null,null,null,null,{"$f":"IF(CRSDATA!BT380=\"\",\"\",CRSDATA!BT380)","v":""}]
[null,null,null,null,null,null,null,null,null,null,null,null,null,null,null,null,null,null,null,null,null,null,null,null,null,null,null,null,null,null,{"$f":"IF(CRSDATA!BT381=\"\",\"\",CRSDATA!BT381)","v":""}]
[null,null,null,null,null,null,null,null,null,null,null,null,null,null,null,null,null,null,null,null,null,null,null,null,null,null,null,null,null,null,{"$f":"IF(CRSDATA!BT382=\"\",\"\",CRSDATA!BT382)","v":""}]
[null,null,null,null,null,null,null,null,null,null,null,null,null,null,null,null,null,null,null,null,null,null,null,null,null,null,null,null,null,null,{"$f":"IF(CRSDATA!BT383=\"\",\"\",CRSDATA!BT383)","v":""}]
[null,null,null,null,null,null,null,null,null,null,null,null,null,null,null,null,null,null,null,null,null,null,null,null,null,null,null,null,null,null,{"$f":"IF(CRSDATA!BT384=\"\",\"\",CRSDATA!BT384)","v":""}]
[null,null,null,null,null,null,null,null,null,null,null,null,null,null,null,null,null,null,null,null,null,null,null,null,null,null,null,null,null,null,{"$f":"IF(CRSDATA!BT385=\"\",\"\",CRSDATA!BT385)","v":""}]
[null,null,null,null,null,null,null,null,null,null,null,null,null,null,null,null,null,null,null,null,null,null,null,null,null,null,null,null,null,null,{"$f":"IF(CRSDATA!BT386=\"\",\"\",CRSDATA!BT386)","v":""}]
[null,null,null,null,null,null,null,null,null,null,null,null,null,null,null,null,null,null,null,null,null,null,null,null,null,null,null,null,null,null,{"$f":"IF(CRSDATA!BT387=\"\",\"\",CRSDATA!BT387)","v":""}]
[null,null,null,null,null,null,null,null,null,null,null,null,null,null,null,null,null,null,null,null,null,null,null,null,null,null,null,null,null,null,{"$f":"IF(CRSDATA!BT388=\"\",\"\",CRSDATA!BT388)","v":""}]
[null,null,null,null,null,null,null,null,null,null,null,null,null,null,null,null,null,null,null,null,null,null,null,null,null,null,null,null,null,null,{"$f":"IF(CRSDATA!BT389=\"\",\"\",CRSDATA!BT389)","v":""}]
[null,null,null,null,null,null,null,null,null,null,null,null,null,null,null,null,null,null,null,null,null,null,null,null,null,null,null,null,null,null,{"$f":"IF(CRSDATA!BT390=\"\",\"\",CRSDATA!BT390)","v":""}]
[null,null,null,null,null,null,null,null,null,null,null,null,null,null,null,null,null,null,null,null,null,null,null,null,null,null,null,null,null,null,{"$f":"IF(CRSDATA!BT391=\"\",\"\",CRSDATA!BT391)","v":""}]
[null,null,null,null,null,null,null,null,null,null,null,null,null,null,null,null,null,null,null,null,null,null,null,null,null,null,null,null,null,null,{"$f":"IF(CRSDATA!BT392=\"\",\"\",CRSDATA!BT392)","v":""}]
[null,null,null,null,null,null,null,null,null,null,null,null,null,null,null,null,null,null,null,null,null,null,null,null,null,null,null,null,null,null,{"$f":"IF(CRSDATA!BT393=\"\",\"\",CRSDATA!BT393)","v":""}]
[null,null,null,null,null,null,null,null,null,null,null,null,null,null,null,null,null,null,null,null,null,null,null,null,null,null,null,null,null,null,{"$f":"IF(CRSDATA!BT394=\"\",\"\",CRSDATA!BT394)","v":""}]
[null,null,null,null,null,null,null,null,null,null,null,null,null,null,null,null,null,null,null,null,null,null,null,null,null,null,null,null,null,null,{"$f":"IF(CRSDATA!BT395=\"\",\"\",CRSDATA!BT395)","v":""}]
[null,null,null,null,null,null,null,null,null,null,null,null,null,null,null,null,null,null,null,null,null,null,null,null,null,null,null,null,null,null,{"$f":"IF(CRSDATA!BT396=\"\",\"\",CRSDATA!BT396)","v":""}]
[null,null,null,null,null,null,null,null,null,null,null,null,null,null,null,null,null,null,null,null,null,null,null,null,null,null,null,null,null,null,{"$f":"IF(CRSDATA!BT397=\"\",\"\",CRSDATA!BT397)","v":""}]
[null,null,null,null,null,null,null,null,null,null,null,null,null,null,null,null,null,null,null,null,null,null,null,null,null,null,null,null,null,null,{"$f":"IF(CRSDATA!BT398=\"\",\"\",CRSDATA!BT398)","v":""}]
[null,null,null,null,null,null,null,null,null,null,null,null,null,null,null,null,null,null,null,null,null,null,null,null,null,null,null,null,null,null,{"$f":"IF(CRSDATA!BT399=\"\",\"\",CRSDATA!BT399)","v":""}]
[null,null,null,null,null,null,null,null,null,null,null,null,null,null,null,null,null,null,null,null,null,null,null,null,null,null,null,null,null,null,{"$f":"IF(CRSDATA!BT400=\"\",\"\",CRSDATA!BT400)","v":""}]
[null,null,null,null,null,null,null,null,null,null,null,null,null,null,null,null,null,null,null,null,null,null,null,null,null,null,null,null,null,null,{"$f":"IF(CRSDATA!BT401=\"\",\"\",CRSDATA!BT401)","v":""}]
[null,null,null,null,null,null,null,null,null,null,null,null,null,null,null,null,null,null,null,null,null,null,null,null,null,null,null,null,null,null,{"$f":"IF(CRSDATA!BT402=\"\",\"\",CRSDATA!BT402)","v":""}]
[null,null,null,null,null,null,null,null,null,null,null,null,null,null,null,null,null,null,null,null,null,null,null,null,null,null,null,null,null,null,{"$f":"IF(CRSDATA!BT403=\"\",\"\",CRSDATA!BT403)","v":""}]
[null,null,null,null,null,null,null,null,null,null,null,null,null,null,null,null,null,null,null,null,null,null,null,null,null,null,null,null,null,null,{"$f":"IF(CRSDATA!BT404=\"\",\"\",CRSDATA!BT404)","v":""}]
[null,null,null,null,null,null,null,null,null,null,null,null,null,null,null,null,null,null,null,null,null,null,null,null,null,null,null,null,null,null,{"$f":"IF(CRSDATA!BT405=\"\",\"\",CRSDATA!BT405)","v":""}]
[null,null,null,null,null,null,null,null,null,null,null,null,null,null,null,null,null,null,null,null,null,null,null,null,null,null,null,null,null,null,{"$f":"IF(CRSDATA!BT406=\"\",\"\",CRSDATA!BT406)","v":""}]
[null,null,null,null,null,null,null,null,null,null,null,null,null,null,null,null,null,null,null,null,null,null,null,null,null,null,null,null,null,null,{"$f":"IF(CRSDATA!BT407=\"\",\"\",CRSDATA!BT407)","v":""}]
[null,null,null,null,null,null,null,null,null,null,null,null,null,null,null,null,null,null,null,null,null,null,null,null,null,null,null,null,null,null,{"$f":"IF(CRSDATA!BT408=\"\",\"\",CRSDATA!BT408)","v":""}]
[null,null,null,null,null,null,null,null,null,null,null,null,null,null,null,null,null,null,null,null,null,null,null,null,null,null,null,null,null,null,{"$f":"IF(CRSDATA!BT409=\"\",\"\",CRSDATA!BT409)","v":""}]
[null,null,null,null,null,null,null,null,null,null,null,null,null,null,null,null,null,null,null,null,null,null,null,null,null,null,null,null,null,null,{"$f":"IF(CRSDATA!BT410=\"\",\"\",CRSDATA!BT410)","v":""}]
[null,null,null,null,null,null,null,null,null,null,null,null,null,null,null,null,null,null,null,null,null,null,null,null,null,null,null,null,null,null,{"$f":"IF(CRSDATA!BT411=\"\",\"\",CRSDATA!BT411)","v":""}]
[null,null,null,null,null,null,null,null,null,null,null,null,null,null,null,null,null,null,null,null,null,null,null,null,null,null,null,null,null,null,{"$f":"IF(CRSDATA!BT412=\"\",\"\",CRSDATA!BT412)","v":""}]
[null,null,null,null,null,null,null,null,null,null,null,null,null,null,null,null,null,null,null,null,null,null,null,null,null,null,null,null,null,null,{"$f":"IF(CRSDATA!BT413=\"\",\"\",CRSDATA!BT413)","v":""}]
[null,null,null,null,null,null,null,null,null,null,null,null,null,null,null,null,null,null,null,null,null,null,null,null,null,null,null,null,null,null,{"$f":"IF(CRSDATA!BT414=\"\",\"\",CRSDATA!BT414)","v":""}]
[null,null,null,null,null,null,null,null,null,null,null,null,null,null,null,null,null,null,null,null,null,null,null,null,null,null,null,null,null,null,{"$f":"IF(CRSDATA!BT415=\"\",\"\",CRSDATA!BT415)","v":""}]
[null,null,null,null,null,null,null,null,null,null,null,null,null,null,null,null,null,null,null,null,null,null,null,null,null,null,null,null,null,null,{"$f":"IF(CRSDATA!BT416=\"\",\"\",CRSDATA!BT416)","v":""}]
[null,null,null,null,null,null,null,null,null,null,null,null,null,null,null,null,null,null,null,null,null,null,null,null,null,null,null,null,null,null,{"$f":"IF(CRSDATA!BT417=\"\",\"\",CRSDATA!BT417)","v":""}]
[null,null,null,null,null,null,null,null,null,null,null,null,null,null,null,null,null,null,null,null,null,null,null,null,null,null,null,null,null,null,{"$f":"IF(CRSDATA!BT418=\"\",\"\",CRSDATA!BT418)","v":""}]
[null,null,null,null,null,null,null,null,null,null,null,null,null,null,null,null,null,null,null,null,null,null,null,null,null,null,null,null,null,null,{"$f":"IF(CRSDATA!BT419=\"\",\"\",CRSDATA!BT419)","v":""}]
[null,null,null,null,null,null,null,null,null,null,null,null,null,null,null,null,null,null,null,null,null,null,null,null,null,null,null,null,null,null,{"$f":"IF(CRSDATA!BT420=\"\",\"\",CRSDATA!BT420)","v":""}]
[null,null,null,null,null,null,null,null,null,null,null,null,null,null,null,null,null,null,null,null,null,null,null,null,null,null,null,null,null,null,{"$f":"IF(CRSDATA!BT421=\"\",\"\",CRSDATA!BT421)","v":""}]
[null,null,null,null,null,null,null,null,null,null,null,null,null,null,null,null,null,null,null,null,null,null,null,null,null,null,null,null,null,null,{"$f":"IF(CRSDATA!BT422=\"\",\"\",CRSDATA!BT422)","v":""}]
[null,null,null,null,null,null,null,null,null,null,null,null,null,null,null,null,null,null,null,null,null,null,null,null,null,null,null,null,null,null,{"$f":"IF(CRSDATA!BT423=\"\",\"\",CRSDATA!BT423)","v":""}]
[null,null,null,null,null,null,null,null,null,null,null,null,null,null,null,null,null,null,null,null,null,null,null,null,null,null,null,null,null,null,{"$f":"IF(CRSDATA!BT424=\"\",\"\",CRSDATA!BT424)","v":""}]
[null,null,null,null,null,null,null,null,null,null,null,null,null,null,null,null,null,null,null,null,null,null,null,null,null,null,null,null,null,null,{"$f":"IF(CRSDATA!BT425=\"\",\"\",CRSDATA!BT425)","v":""}]
[null,null,null,null,null,null,null,null,null,null,null,null,null,null,null,null,null,null,null,null,null,null,null,null,null,null,null,null,null,null,{"$f":"IF(CRSDATA!BT426=\"\",\"\",CRSDATA!BT426)","v":""}]
[null,null,null,null,null,null,null,null,null,null,null,null,null,null,null,null,null,null,null,null,null,null,null,null,null,null,null,null,null,null,{"$f":"IF(CRSDATA!BT427=\"\",\"\",CRSDATA!BT427)","v":""}]
[null,null,null,null,null,null,null,null,null,null,null,null,null,null,null,null,null,null,null,null,null,null,null,null,null,null,null,null,null,null,{"$f":"IF(CRSDATA!BT428=\"\",\"\",CRSDATA!BT428)","v":""}]
[null,null,null,null,null,null,null,null,null,null,null,null,null,null,null,null,null,null,null,null,null,null,null,null,null,null,null,null,null,null,{"$f":"IF(CRSDATA!BT429=\"\",\"\",CRSDATA!BT429)","v":""}]
[null,null,null,null,null,null,null,null,null,null,null,null,null,null,null,null,null,null,null,null,null,null,null,null,null,null,null,null,null,null,{"$f":"IF(CRSDATA!BT430=\"\",\"\",CRSDATA!BT430)","v":""}]
[null,null,null,null,null,null,null,null,null,null,null,null,null,null,null,null,null,null,null,null,null,null,null,null,null,null,null,null,null,null,{"$f":"IF(CRSDATA!BT431=\"\",\"\",CRSDATA!BT431)","v":""}]
[null,null,null,null,null,null,null,null,null,null,null,null,null,null,null,null,null,null,null,null,null,null,null,null,null,null,null,null,null,null,{"$f":"IF(CRSDATA!BT432=\"\",\"\",CRSDATA!BT432)","v":""}]
[null,null,null,null,null,null,null,null,null,null,null,null,null,null,null,null,null,null,null,null,null,null,null,null,null,null,null,null,null,null,{"$f":"IF(CRSDATA!BT433=\"\",\"\",CRSDATA!BT433)","v":""}]
[null,null,null,null,null,null,null,null,null,null,null,null,null,null,null,null,null,null,null,null,null,null,null,null,null,null,null,null,null,null,{"$f":"IF(CRSDATA!BT434=\"\",\"\",CRSDATA!BT434)","v":""}]
[null,null,null,null,null,null,null,null,null,null,null,null,null,null,null,null,null,null,null,null,null,null,null,null,null,null,null,null,null,null,{"$f":"IF(CRSDATA!BT435=\"\",\"\",CRSDATA!BT435)","v":""}]
[null,null,null,null,null,null,null,null,null,null,null,null,null,null,null,null,null,null,null,null,null,null,null,null,null,null,null,null,null,null,{"$f":"IF(CRSDATA!BT436=\"\",\"\",CRSDATA!BT436)","v":""}]
[null,null,null,null,null,null,null,null,null,null,null,null,null,null,null,null,null,null,null,null,null,null,null,null,null,null,null,null,null,null,{"$f":"IF(CRSDATA!BT437=\"\",\"\",CRSDATA!BT437)","v":""}]
[null,null,null,null,null,null,null,null,null,null,null,null,null,null,null,null,null,null,null,null,null,null,null,null,null,null,null,null,null,null,{"$f":"IF(CRSDATA!BT438=\"\",\"\",CRSDATA!BT438)","v":""}]
[null,null,null,null,null,null,null,null,null,null,null,null,null,null,null,null,null,null,null,null,null,null,null,null,null,null,null,null,null,null,{"$f":"IF(CRSDATA!BT439=\"\",\"\",CRSDATA!BT439)","v":""}]
[null,null,null,null,null,null,null,null,null,null,null,null,null,null,null,null,null,null,null,null,null,null,null,null,null,null,null,null,null,null,{"$f":"IF(CRSDATA!BT440=\"\",\"\",CRSDATA!BT440)","v":""}]
[null,null,null,null,null,null,null,null,null,null,null,null,null,null,null,null,null,null,null,null,null,null,null,null,null,null,null,null,null,null,{"$f":"IF(CRSDATA!BT441=\"\",\"\",CRSDATA!BT441)","v":""}]
[null,null,null,null,null,null,null,null,null,null,null,null,null,null,null,null,null,null,null,null,null,null,null,null,null,null,null,null,null,null,{"$f":"IF(CRSDATA!BT442=\"\",\"\",CRSDATA!BT442)","v":""}]
[null,null,null,null,null,null,null,null,null,null,null,null,null,null,null,null,null,null,null,null,null,null,null,null,null,null,null,null,null,null,{"$f":"IF(CRSDATA!BT443=\"\",\"\",CRSDATA!BT443)","v":""}]
[null,null,null,null,null,null,null,null,null,null,null,null,null,null,null,null,null,null,null,null,null,null,null,null,null,null,null,null,null,null,{"$f":"IF(CRSDATA!BT444=\"\",\"\",CRSDATA!BT444)","v":""}]
[null,null,null,null,null,null,null,null,null,null,null,null,null,null,null,null,null,null,null,null,null,null,null,null,null,null,null,null,null,null,{"$f":"IF(CRSDATA!BT445=\"\",\"\",CRSDATA!BT445)","v":""}]
[null,null,null,null,null,null,null,null,null,null,null,null,null,null,null,null,null,null,null,null,null,null,null,null,null,null,null,null,null,null,{"$f":"IF(CRSDATA!BT446=\"\",\"\",CRSDATA!BT446)","v":""}]
[null,null,null,null,null,null,null,null,null,null,null,null,null,null,null,null,null,null,null,null,null,null,null,null,null,null,null,null,null,null,{"$f":"IF(CRSDATA!BT447=\"\",\"\",CRSDATA!BT447)","v":""}]
[null,null,null,null,null,null,null,null,null,null,null,null,null,null,null,null,null,null,null,null,null,null,null,null,null,null,null,null,null,null,{"$f":"IF(CRSDATA!BT448=\"\",\"\",CRSDATA!BT448)","v":""}]
[null,null,null,null,null,null,null,null,null,null,null,null,null,null,null,null,null,null,null,null,null,null,null,null,null,null,null,null,null,null,{"$f":"IF(CRSDATA!BT449=\"\",\"\",CRSDATA!BT449)","v":""}]
[null,null,null,null,null,null,null,null,null,null,null,null,null,null,null,null,null,null,null,null,null,null,null,null,null,null,null,null,null,null,{"$f":"IF(CRSDATA!BT450=\"\",\"\",CRSDATA!BT450)","v":""}]
[null,null,null,null,null,null,null,null,null,null,null,null,null,null,null,null,null,null,null,null,null,null,null,null,null,null,null,null,null,null,{"$f":"IF(CRSDATA!BT451=\"\",\"\",CRSDATA!BT451)","v":""}]
[null,null,null,null,null,null,null,null,null,null,null,null,null,null,null,null,null,null,null,null,null,null,null,null,null,null,null,null,null,null,{"$f":"IF(CRSDATA!BT452=\"\",\"\",CRSDATA!BT452)","v":""}]
[null,null,null,null,null,null,null,null,null,null,null,null,null,null,null,null,null,null,null,null,null,null,null,null,null,null,null,null,null,null,{"$f":"IF(CRSDATA!BT453=\"\",\"\",CRSDATA!BT453)","v":""}]
[null,null,null,null,null,null,null,null,null,null,null,null,null,null,null,null,null,null,null,null,null,null,null,null,null,null,null,null,null,null,{"$f":"IF(CRSDATA!BT454=\"\",\"\",CRSDATA!BT454)","v":""}]
[null,null,null,null,null,null,null,null,null,null,null,null,null,null,null,null,null,null,null,null,null,null,null,null,null,null,null,null,null,null,{"$f":"IF(CRSDATA!BT455=\"\",\"\",CRSDATA!BT455)","v":""}]
[null,null,null,null,null,null,null,null,null,null,null,null,null,null,null,null,null,null,null,null,null,null,null,null,null,null,null,null,null,null,{"$f":"IF(CRSDATA!BT456=\"\",\"\",CRSDATA!BT456)","v":""}]
[null,null,null,null,null,null,null,null,null,null,null,null,null,null,null,null,null,null,null,null,null,null,null,null,null,null,null,null,null,null,{"$f":"IF(CRSDATA!BT457=\"\",\"\",CRSDATA!BT457)","v":""}]
[null,null,null,null,null,null,null,null,null,null,null,null,null,null,null,null,null,null,null,null,null,null,null,null,null,null,null,null,null,null,{"$f":"IF(CRSDATA!BT458=\"\",\"\",CRSDATA!BT458)","v":""}]
[null,null,null,null,null,null,null,null,null,null,null,null,null,null,null,null,null,null,null,null,null,null,null,null,null,null,null,null,null,null,{"$f":"IF(CRSDATA!BT459=\"\",\"\",CRSDATA!BT459)","v":""}]
[null,null,null,null,null,null,null,null,null,null,null,null,null,null,null,null,null,null,null,null,null,null,null,null,null,null,null,null,null,null,{"$f":"IF(CRSDATA!BT460=\"\",\"\",CRSDATA!BT460)","v":""}]
[null,null,null,null,null,null,null,null,null,null,null,null,null,null,null,null,null,null,null,null,null,null,null,null,null,null,null,null,null,null,{"$f":"IF(CRSDATA!BT461=\"\",\"\",CRSDATA!BT461)","v":""}]
[null,null,null,null,null,null,null,null,null,null,null,null,null,null,null,null,null,null,null,null,null,null,null,null,null,null,null,null,null,null,{"$f":"IF(CRSDATA!BT462=\"\",\"\",CRSDATA!BT462)","v":""}]
[null,null,null,null,null,null,null,null,null,null,null,null,null,null,null,null,null,null,null,null,null,null,null,null,null,null,null,null,null,null,{"$f":"IF(CRSDATA!BT463=\"\",\"\",CRSDATA!BT463)","v":""}]
[null,null,null,null,null,null,null,null,null,null,null,null,null,null,null,null,null,null,null,null,null,null,null,null,null,null,null,null,null,null,{"$f":"IF(CRSDATA!BT464=\"\",\"\",CRSDATA!BT464)","v":""}]
[null,null,null,null,null,null,null,null,null,null,null,null,null,null,null,null,null,null,null,null,null,null,null,null,null,null,null,null,null,null,{"$f":"IF(CRSDATA!BT465=\"\",\"\",CRSDATA!BT465)","v":""}]
[null,null,null,null,null,null,null,null,null,null,null,null,null,null,null,null,null,null,null,null,null,null,null,null,null,null,null,null,null,null,{"$f":"IF(CRSDATA!BT466=\"\",\"\",CRSDATA!BT466)","v":""}]
[null,null,null,null,null,null,null,null,null,null,null,null,null,null,null,null,null,null,null,null,null,null,null,null,null,null,null,null,null,null,{"$f":"IF(CRSDATA!BT467=\"\",\"\",CRSDATA!BT467)","v":""}]
[null,null,null,null,null,null,null,null,null,null,null,null,null,null,null,null,null,null,null,null,null,null,null,null,null,null,null,null,null,null,{"$f":"IF(CRSDATA!BT468=\"\",\"\",CRSDATA!BT468)","v":""}]
[null,null,null,null,null,null,null,null,null,null,null,null,null,null,null,null,null,null,null,null,null,null,null,null,null,null,null,null,null,null,{"$f":"IF(CRSDATA!BT469=\"\",\"\",CRSDATA!BT469)","v":""}]
[null,null,null,null,null,null,null,null,null,null,null,null,null,null,null,null,null,null,null,null,null,null,null,null,null,null,null,null,null,null,{"$f":"IF(CRSDATA!BT470=\"\",\"\",CRSDATA!BT470)","v":""}]
[null,null,null,null,null,null,null,null,null,null,null,null,null,null,null,null,null,null,null,null,null,null,null,null,null,null,null,null,null,null,{"$f":"IF(CRSDATA!BT471=\"\",\"\",CRSDATA!BT471)","v":""}]
[null,null,null,null,null,null,null,null,null,null,null,null,null,null,null,null,null,null,null,null,null,null,null,null,null,null,null,null,null,null,{"$f":"IF(CRSDATA!BT472=\"\",\"\",CRSDATA!BT472)","v":""}]
[null,null,null,null,null,null,null,null,null,null,null,null,null,null,null,null,null,null,null,null,null,null,null,null,null,null,null,null,null,null,{"$f":"IF(CRSDATA!BT473=\"\",\"\",CRSDATA!BT473)","v":""}]
[null,null,null,null,null,null,null,null,null,null,null,null,null,null,null,null,null,null,null,null,null,null,null,null,null,null,null,null,null,null,{"$f":"IF(CRSDATA!BT474=\"\",\"\",CRSDATA!BT474)","v":""}]
[null,null,null,null,null,null,null,null,null,null,null,null,null,null,null,null,null,null,null,null,null,null,null,null,null,null,null,null,null,null,{"$f":"IF(CRSDATA!BT475=\"\",\"\",CRSDATA!BT475)","v":""}]
[null,null,null,null,null,null,null,null,null,null,null,null,null,null,null,null,null,null,null,null,null,null,null,null,null,null,null,null,null,null,{"$f":"IF(CRSDATA!BT476=\"\",\"\",CRSDATA!BT476)","v":""}]
[null,null,null,null,null,null,null,null,null,null,null,null,null,null,null,null,null,null,null,null,null,null,null,null,null,null,null,null,null,null,{"$f":"IF(CRSDATA!BT477=\"\",\"\",CRSDATA!BT477)","v":""}]
[null,null,null,null,null,null,null,null,null,null,null,null,null,null,null,null,null,null,null,null,null,null,null,null,null,null,null,null,null,null,{"$f":"IF(CRSDATA!BT478=\"\",\"\",CRSDATA!BT478)","v":""}]
[null,null,null,null,null,null,null,null,null,null,null,null,null,null,null,null,null,null,null,null,null,null,null,null,null,null,null,null,null,null,{"$f":"IF(CRSDATA!BT479=\"\",\"\",CRSDATA!BT479)","v":""}]
[null,null,null,null,null,null,null,null,null,null,null,null,null,null,null,null,null,null,null,null,null,null,null,null,null,null,null,null,null,null,{"$f":"IF(CRSDATA!BT480=\"\",\"\",CRSDATA!BT480)","v":""}]
[null,null,null,null,null,null,null,null,null,null,null,null,null,null,null,null,null,null,null,null,null,null,null,null,null,null,null,null,null,null,{"$f":"IF(CRSDATA!BT481=\"\",\"\",CRSDATA!BT481)","v":""}]
[null,null,null,null,null,null,null,null,null,null,null,null,null,null,null,null,null,null,null,null,null,null,null,null,null,null,null,null,null,null,{"$f":"IF(CRSDATA!BT482=\"\",\"\",CRSDATA!BT482)","v":""}]
[null,null,null,null,null,null,null,null,null,null,null,null,null,null,null,null,null,null,null,null,null,null,null,null,null,null,null,null,null,null,{"$f":"IF(CRSDATA!BT483=\"\",\"\",CRSDATA!BT483)","v":""}]
[null,null,null,null,null,null,null,null,null,null,null,null,null,null,null,null,null,null,null,null,null,null,null,null,null,null,null,null,null,null,{"$f":"IF(CRSDATA!BT484=\"\",\"\",CRSDATA!BT484)","v":""}]
[null,null,null,null,null,null,null,null,null,null,null,null,null,null,null,null,null,null,null,null,null,null,null,null,null,null,null,null,null,null,{"$f":"IF(CRSDATA!BT485=\"\",\"\",CRSDATA!BT485)","v":""}]
[null,null,null,null,null,null,null,null,null,null,null,null,null,null,null,null,null,null,null,null,null,null,null,null,null,null,null,null,null,null,{"$f":"IF(CRSDATA!BT486=\"\",\"\",CRSDATA!BT486)","v":""}]
[null,null,null,null,null,null,null,null,null,null,null,null,null,null,null,null,null,null,null,null,null,null,null,null,null,null,null,null,null,null,{"$f":"IF(CRSDATA!BT487=\"\",\"\",CRSDATA!BT487)","v":""}]
[null,null,null,null,null,null,null,null,null,null,null,null,null,null,null,null,null,null,null,null,null,null,null,null,null,null,null,null,null,null,{"$f":"IF(CRSDATA!BT488=\"\",\"\",CRSDATA!BT488)","v":""}]
[null,null,null,null,null,null,null,null,null,null,null,null,null,null,null,null,null,null,null,null,null,null,null,null,null,null,null,null,null,null,{"$f":"IF(CRSDATA!BT489=\"\",\"\",CRSDATA!BT489)","v":""}]
[null,null,null,null,null,null,null,null,null,null,null,null,null,null,null,null,null,null,null,null,null,null,null,null,null,null,null,null,null,null,{"$f":"IF(CRSDATA!BT490=\"\",\"\",CRSDATA!BT490)","v":""}]
[null,null,null,null,null,null,null,null,null,null,null,null,null,null,null,null,null,null,null,null,null,null,null,null,null,null,null,null,null,null,{"$f":"IF(CRSDATA!BT491=\"\",\"\",CRSDATA!BT491)","v":""}]
[null,null,null,null,null,null,null,null,null,null,null,null,null,null,null,null,null,null,null,null,null,null,null,null,null,null,null,null,null,null,{"$f":"IF(CRSDATA!BT492=\"\",\"\",CRSDATA!BT492)","v":""}]
[null,null,null,null,null,null,null,null,null,null,null,null,null,null,null,null,null,null,null,null,null,null,null,null,null,null,null,null,null,null,{"$f":"IF(CRSDATA!BT493=\"\",\"\",CRSDATA!BT493)","v":""}]
[null,null,null,null,null,null,null,null,null,null,null,null,null,null,null,null,null,null,null,null,null,null,null,null,null,null,null,null,null,null,{"$f":"IF(CRSDATA!BT494=\"\",\"\",CRSDATA!BT494)","v":""}]
[null,null,null,null,null,null,null,null,null,null,null,null,null,null,null,null,null,null,null,null,null,null,null,null,null,null,null,null,null,null,{"$f":"IF(CRSDATA!BT495=\"\",\"\",CRSDATA!BT495)","v":""}]
[null,null,null,null,null,null,null,null,null,null,null,null,null,null,null,null,null,null,null,null,null,null,null,null,null,null,null,null,null,null,{"$f":"IF(CRSDATA!BT496=\"\",\"\",CRSDATA!BT496)","v":""}]
[null,null,null,null,null,null,null,null,null,null,null,null,null,null,null,null,null,null,null,null,null,null,null,null,null,null,null,null,null,null,{"$f":"IF(CRSDATA!BT497=\"\",\"\",CRSDATA!BT497)","v":""}]
[null,null,null,null,null,null,null,null,null,null,null,null,null,null,null,null,null,null,null,null,null,null,null,null,null,null,null,null,null,null,{"$f":"IF(CRSDATA!BT498=\"\",\"\",CRSDATA!BT498)","v":""}]
[null,null,null,null,null,null,null,null,null,null,null,null,null,null,null,null,null,null,null,null,null,null,null,null,null,null,null,null,null,null,{"$f":"IF(CRSDATA!BT499=\"\",\"\",CRSDATA!BT499)","v":""}]
[null,null,null,null,null,null,null,null,null,null,null,null,null,null,null,null,null,null,null,null,null,null,null,null,null,null,null,null,null,null,{"$f":"IF(CRSDATA!BT500=\"\",\"\",CRSDATA!BT500)","v":""}]
[null,null,null,null,null,null,null,null,null,null,null,null,null,null,null,null,null,null,null,null,null,null,null,null,null,null,null,null,null,null,{"$f":"IF(CRSDATA!BT501=\"\",\"\",CRSDATA!BT501)","v":""}]
[null,null,null,null,null,null,null,null,null,null,null,null,null,null,null,null,null,null,null,null,null,null,null,null,null,null,null,null,null,null,{"$f":"IF(CRSDATA!BT502=\"\",\"\",CRSDATA!BT502)","v":""}]
[null,null,null,null,null,null,null,null,null,null,null,null,null,null,null,null,null,null,null,null,null,null,null,null,null,null,null,null,null,null,{"$f":"IF(CRSDATA!BT503=\"\",\"\",CRSDATA!BT503)","v":""}]
[null,null,null,null,null,null,null,null,null,null,null,null,null,null,null,null,null,null,null,null,null,null,null,null,null,null,null,null,null,null,{"$f":"IF(CRSDATA!BT504=\"\",\"\",CRSDATA!BT504)","v":""}]
[null,null,null,null,null,null,null,null,null,null,null,null,null,null,null,null,null,null,null,null,null,null,null,null,null,null,null,null,null,null,{"$f":"IF(CRSDATA!BT505=\"\",\"\",CRSDATA!BT505)","v":""}]
[null,null,null,null,null,null,null,null,null,null,null,null,null,null,null,null,null,null,null,null,null,null,null,null,null,null,null,null,null,null,{"$f":"IF(CRSDATA!BT506=\"\",\"\",CRSDATA!BT506)","v":""}]
[null,null,null,null,null,null,null,null,null,null,null,null,null,null,null,null,null,null,null,null,null,null,null,null,null,null,null,null,null,null,{"$f":"IF(CRSDATA!BT507=\"\",\"\",CRSDATA!BT507)","v":""}]
[null,null,null,null,null,null,null,null,null,null,null,null,null,null,null,null,null,null,null,null,null,null,null,null,null,null,null,null,null,null,{"$f":"IF(CRSDATA!BT508=\"\",\"\",CRSDATA!BT508)","v":""}]
[null,null,null,null,null,null,null,null,null,null,null,null,null,null,null,null,null,null,null,null,null,null,null,null,null,null,null,null,null,null,{"$f":"IF(CRSDATA!BT509=\"\",\"\",CRSDATA!BT509)","v":""}]
[null,null,null,null,null,null,null,null,null,null,null,null,null,null,null,null,null,null,null,null,null,null,null,null,null,null,null,null,null,null,{"$f":"IF(CRSDATA!BT510=\"\",\"\",CRSDATA!BT510)","v":""}]
[null,null,null,null,null,null,null,null,null,null,null,null,null,null,null,null,null,null,null,null,null,null,null,null,null,null,null,null,null,null,{"$f":"IF(CRSDATA!BT511=\"\",\"\",CRSDATA!BT511)","v":""}]
[null,null,null,null,null,null,null,null,null,null,null,null,null,null,null,null,null,null,null,null,null,null,null,null,null,null,null,null,null,null,{"$f":"IF(CRSDATA!BT512=\"\",\"\",CRSDATA!BT512)","v":""}]
[null,null,null,null,null,null,null,null,null,null,null,null,null,null,null,null,null,null,null,null,null,null,null,null,null,null,null,null,null,null,{"$f":"IF(CRSDATA!BT513=\"\",\"\",CRSDATA!BT513)","v":""}]
[null,null,null,null,null,null,null,null,null,null,null,null,null,null,null,null,null,null,null,null,null,null,null,null,null,null,null,null,null,null,{"$f":"IF(CRSDATA!BT514=\"\",\"\",CRSDATA!BT514)","v":""}]
[null,null,null,null,null,null,null,null,null,null,null,null,null,null,null,null,null,null,null,null,null,null,null,null,null,null,null,null,null,null,{"$f":"IF(CRSDATA!BT515=\"\",\"\",CRSDATA!BT515)","v":""}]
[null,null,null,null,null,null,null,null,null,null,null,null,null,null,null,null,null,null,null,null,null,null,null,null,null,null,null,null,null,null,{"$f":"IF(CRSDATA!BT516=\"\",\"\",CRSDATA!BT516)","v":""}]
[null,null,null,null,null,null,null,null,null,null,null,null,null,null,null,null,null,null,null,null,null,null,null,null,null,null,null,null,null,null,{"$f":"IF(CRSDATA!BT517=\"\",\"\",CRSDATA!BT517)","v":""}]
[null,null,null,null,null,null,null,null,null,null,null,null,null,null,null,null,null,null,null,null,null,null,null,null,null,null,null,null,null,null,{"$f":"IF(CRSDATA!BT518=\"\",\"\",CRSDATA!BT518)","v":""}]
[null,null,null,null,null,null,null,null,null,null,null,null,null,null,null,null,null,null,null,null,null,null,null,null,null,null,null,null,null,null,{"$f":"IF(CRSDATA!BT519=\"\",\"\",CRSDATA!BT519)","v":""}]
[null,null,null,null,null,null,null,null,null,null,null,null,null,null,null,null,null,null,null,null,null,null,null,null,null,null,null,null,null,null,{"$f":"IF(CRSDATA!BT520=\"\",\"\",CRSDATA!BT520)","v":""}]
[null,null,null,null,null,null,null,null,null,null,null,null,null,null,null,null,null,null,null,null,null,null,null,null,null,null,null,null,null,null,{"$f":"IF(CRSDATA!BT521=\"\",\"\",CRSDATA!BT521)","v":""}]
[null,null,null,null,null,null,null,null,null,null,null,null,null,null,null,null,null,null,null,null,null,null,null,null,null,null,null,null,null,null,{"$f":"IF(CRSDATA!BT522=\"\",\"\",CRSDATA!BT522)","v":""}]
[null,null,null,null,null,null,null,null,null,null,null,null,null,null,null,null,null,null,null,null,null,null,null,null,null,null,null,null,null,null,{"$f":"IF(CRSDATA!BT523=\"\",\"\",CRSDATA!BT523)","v":""}]
[null,null,null,null,null,null,null,null,null,null,null,null,null,null,null,null,null,null,null,null,null,null,null,null,null,null,null,null,null,null,{"$f":"IF(CRSDATA!BT524=\"\",\"\",CRSDATA!BT524)","v":""}]
[null,null,null,null,null,null,null,null,null,null,null,null,null,null,null,null,null,null,null,null,null,null,null,null,null,null,null,null,null,null,{"$f":"IF(CRSDATA!BT525=\"\",\"\",CRSDATA!BT525)","v":""}]
[null,null,null,null,null,null,null,null,null,null,null,null,null,null,null,null,null,null,null,null,null,null,null,null,null,null,null,null,null,null,{"$f":"IF(CRSDATA!BT526=\"\",\"\",CRSDATA!BT526)","v":""}]
[null,null,null,null,null,null,null,null,null,null,null,null,null,null,null,null,null,null,null,null,null,null,null,null,null,null,null,null,null,null,{"$f":"IF(CRSDATA!BT527=\"\",\"\",CRSDATA!BT527)","v":""}]
[null,null,null,null,null,null,null,null,null,null,null,null,null,null,null,null,null,null,null,null,null,null,null,null,null,null,null,null,null,null,{"$f":"IF(CRSDATA!BT528=\"\",\"\",CRSDATA!BT528)","v":""}]
[null,null,null,null,null,null,null,null,null,null,null,null,null,null,null,null,null,null,null,null,null,null,null,null,null,null,null,null,null,null,{"$f":"IF(CRSDATA!BT529=\"\",\"\",CRSDATA!BT529)","v":""}]
[null,null,null,null,null,null,null,null,null,null,null,null,null,null,null,null,null,null,null,null,null,null,null,null,null,null,null,null,null,null,{"$f":"IF(CRSDATA!BT530=\"\",\"\",CRSDATA!BT530)","v":""}]
[null,null,null,null,null,null,null,null,null,null,null,null,null,null,null,null,null,null,null,null,null,null,null,null,null,null,null,null,null,null,{"$f":"IF(CRSDATA!BT531=\"\",\"\",CRSDATA!BT531)","v":""}]
[null,null,null,null,null,null,null,null,null,null,null,null,null,null,null,null,null,null,null,null,null,null,null,null,null,null,null,null,null,null,{"$f":"IF(CRSDATA!BT532=\"\",\"\",CRSDATA!BT532)","v":""}]
[null,null,null,null,null,null,null,null,null,null,null,null,null,null,null,null,null,null,null,null,null,null,null,null,null,null,null,null,null,null,{"$f":"IF(CRSDATA!BT533=\"\",\"\",CRSDATA!BT533)","v":""}]
[null,null,null,null,null,null,null,null,null,null,null,null,null,null,null,null,null,null,null,null,null,null,null,null,null,null,null,null,null,null,{"$f":"IF(CRSDATA!BT534=\"\",\"\",CRSDATA!BT534)","v":""}]
[null,null,null,null,null,null,null,null,null,null,null,null,null,null,null,null,null,null,null,null,null,null,null,null,null,null,null,null,null,null,{"$f":"IF(CRSDATA!BT535=\"\",\"\",CRSDATA!BT535)","v":""}]
[null,null,null,null,null,null,null,null,null,null,null,null,null,null,null,null,null,null,null,null,null,null,null,null,null,null,null,null,null,null,{"$f":"IF(CRSDATA!BT536=\"\",\"\",CRSDATA!BT536)","v":""}]
[null,null,null,null,null,null,null,null,null,null,null,null,null,null,null,null,null,null,null,null,null,null,null,null,null,null,null,null,null,null,{"$f":"IF(CRSDATA!BT537=\"\",\"\",CRSDATA!BT537)","v":""}]
[null,null,null,null,null,null,null,null,null,null,null,null,null,null,null,null,null,null,null,null,null,null,null,null,null,null,null,null,null,null,{"$f":"IF(CRSDATA!BT538=\"\",\"\",CRSDATA!BT538)","v":""}]
[null,null,null,null,null,null,null,null,null,null,null,null,null,null,null,null,null,null,null,null,null,null,null,null,null,null,null,null,null,null,{"$f":"IF(CRSDATA!BT539=\"\",\"\",CRSDATA!BT539)","v":""}]
[null,null,null,null,null,null,null,null,null,null,null,null,null,null,null,null,null,null,null,null,null,null,null,null,null,null,null,null,null,null,{"$f":"IF(CRSDATA!BT540=\"\",\"\",CRSDATA!BT540)","v":""}]
[null,null,null,null,null,null,null,null,null,null,null,null,null,null,null,null,null,null,null,null,null,null,null,null,null,null,null,null,null,null,{"$f":"IF(CRSDATA!BT541=\"\",\"\",CRSDATA!BT541)","v":""}]
[null,null,null,null,null,null,null,null,null,null,null,null,null,null,null,null,null,null,null,null,null,null,null,null,null,null,null,null,null,null,{"$f":"IF(CRSDATA!BT542=\"\",\"\",CRSDATA!BT542)","v":""}]
[null,null,null,null,null,null,null,null,null,null,null,null,null,null,null,null,null,null,null,null,null,null,null,null,null,null,null,null,null,null,{"$f":"IF(CRSDATA!BT543=\"\",\"\",CRSDATA!BT543)","v":""}]
[null,null,null,null,null,null,null,null,null,null,null,null,null,null,null,null,null,null,null,null,null,null,null,null,null,null,null,null,null,null,{"$f":"IF(CRSDATA!BT544=\"\",\"\",CRSDATA!BT544)","v":""}]
[null,null,null,null,null,null,null,null,null,null,null,null,null,null,null,null,null,null,null,null,null,null,null,null,null,null,null,null,null,null,{"$f":"IF(CRSDATA!BT545=\"\",\"\",CRSDATA!BT545)","v":""}]
[null,null,null,null,null,null,null,null,null,null,null,null,null,null,null,null,null,null,null,null,null,null,null,null,null,null,null,null,null,null,{"$f":"IF(CRSDATA!BT546=\"\",\"\",CRSDATA!BT546)","v":""}]
[null,null,null,null,null,null,null,null,null,null,null,null,null,null,null,null,null,null,null,null,null,null,null,null,null,null,null,null,null,null,{"$f":"IF(CRSDATA!BT547=\"\",\"\",CRSDATA!BT547)","v":""}]
[null,null,null,null,null,null,null,null,null,null,null,null,null,null,null,null,null,null,null,null,null,null,null,null,null,null,null,null,null,null,{"$f":"IF(CRSDATA!BT548=\"\",\"\",CRSDATA!BT548)","v":""}]
[null,null,null,null,null,null,null,null,null,null,null,null,null,null,null,null,null,null,null,null,null,null,null,null,null,null,null,null,null,null,{"$f":"IF(CRSDATA!BT549=\"\",\"\",CRSDATA!BT549)","v":""}]
[null,null,null,null,null,null,null,null,null,null,null,null,null,null,null,null,null,null,null,null,null,null,null,null,null,null,null,null,null,null,{"$f":"IF(CRSDATA!BT550=\"\",\"\",CRSDATA!BT550)","v":""}]
[null,null,null,null,null,null,null,null,null,null,null,null,null,null,null,null,null,null,null,null,null,null,null,null,null,null,null,null,null,null,{"$f":"IF(CRSDATA!BT551=\"\",\"\",CRSDATA!BT551)","v":""}]
[null,null,null,null,null,null,null,null,null,null,null,null,null,null,null,null,null,null,null,null,null,null,null,null,null,null,null,null,null,null,{"$f":"IF(CRSDATA!BT552=\"\",\"\",CRSDATA!BT552)","v":""}]
[null,null,null,null,null,null,null,null,null,null,null,null,null,null,null,null,null,null,null,null,null,null,null,null,null,null,null,null,null,null,{"$f":"IF(CRSDATA!BT553=\"\",\"\",CRSDATA!BT553)","v":""}]
[null,null,null,null,null,null,null,null,null,null,null,null,null,null,null,null,null,null,null,null,null,null,null,null,null,null,null,null,null,null,{"$f":"IF(CRSDATA!BT554=\"\",\"\",CRSDATA!BT554)","v":""}]
[null,null,null,null,null,null,null,null,null,null,null,null,null,null,null,null,null,null,null,null,null,null,null,null,null,null,null,null,null,null,{"$f":"IF(CRSDATA!BT555=\"\",\"\",CRSDATA!BT555)","v":""}]
[null,null,null,null,null,null,null,null,null,null,null,null,null,null,null,null,null,null,null,null,null,null,null,null,null,null,null,null,null,null,{"$f":"IF(CRSDATA!BT556=\"\",\"\",CRSDATA!BT556)","v":""}]
[null,null,null,null,null,null,null,null,null,null,null,null,null,null,null,null,null,null,null,null,null,null,null,null,null,null,null,null,null,null,{"$f":"IF(CRSDATA!BT557=\"\",\"\",CRSDATA!BT557)","v":""}]
[null,null,null,null,null,null,null,null,null,null,null,null,null,null,null,null,null,null,null,null,null,null,null,null,null,null,null,null,null,null,{"$f":"IF(CRSDATA!BT558=\"\",\"\",CRSDATA!BT558)","v":""}]
[null,null,null,null,null,null,null,null,null,null,null,null,null,null,null,null,null,null,null,null,null,null,null,null,null,null,null,null,null,null,{"$f":"IF(CRSDATA!BT559=\"\",\"\",CRSDATA!BT559)","v":""}]
[null,null,null,null,null,null,null,null,null,null,null,null,null,null,null,null,null,null,null,null,null,null,null,null,null,null,null,null,null,null,{"$f":"IF(CRSDATA!BT560=\"\",\"\",CRSDATA!BT560)","v":""}]
[null,null,null,null,null,null,null,null,null,null,null,null,null,null,null,null,null,null,null,null,null,null,null,null,null,null,null,null,null,null,{"$f":"IF(CRSDATA!BT561=\"\",\"\",CRSDATA!BT561)","v":""}]
[null,null,null,null,null,null,null,null,null,null,null,null,null,null,null,null,null,null,null,null,null,null,null,null,null,null,null,null,null,null,{"$f":"IF(CRSDATA!BT562=\"\",\"\",CRSDATA!BT562)","v":""}]
[null,null,null,null,null,null,null,null,null,null,null,null,null,null,null,null,null,null,null,null,null,null,null,null,null,null,null,null,null,null,{"$f":"IF(CRSDATA!BT563=\"\",\"\",CRSDATA!BT563)","v":""}]
[null,null,null,null,null,null,null,null,null,null,null,null,null,null,null,null,null,null,null,null,null,null,null,null,null,null,null,null,null,null,{"$f":"IF(CRSDATA!BT564=\"\",\"\",CRSDATA!BT564)","v":""}]
[null,null,null,null,null,null,null,null,null,null,null,null,null,null,null,null,null,null,null,null,null,null,null,null,null,null,null,null,null,null,{"$f":"IF(CRSDATA!BT565=\"\",\"\",CRSDATA!BT565)","v":""}]
[null,null,null,null,null,null,null,null,null,null,null,null,null,null,null,null,null,null,null,null,null,null,null,null,null,null,null,null,null,null,{"$f":"IF(CRSDATA!BT566=\"\",\"\",CRSDATA!BT566)","v":""}]
[null,null,null,null,null,null,null,null,null,null,null,null,null,null,null,null,null,null,null,null,null,null,null,null,null,null,null,null,null,null,{"$f":"IF(CRSDATA!BT567=\"\",\"\",CRSDATA!BT567)","v":""}]
[null,null,null,null,null,null,null,null,null,null,null,null,null,null,null,null,null,null,null,null,null,null,null,null,null,null,null,null,null,null,{"$f":"IF(CRSDATA!BT568=\"\",\"\",CRSDATA!BT568)","v":""}]
[null,null,null,null,null,null,null,null,null,null,null,null,null,null,null,null,null,null,null,null,null,null,null,null,null,null,null,null,null,null,{"$f":"IF(CRSDATA!BT569=\"\",\"\",CRSDATA!BT569)","v":""}]
[null,null,null,null,null,null,null,null,null,null,null,null,null,null,null,null,null,null,null,null,null,null,null,null,null,null,null,null,null,null,{"$f":"IF(CRSDATA!BT570=\"\",\"\",CRSDATA!BT570)","v":""}]
[null,null,null,null,null,null,null,null,null,null,null,null,null,null,null,null,null,null,null,null,null,null,null,null,null,null,null,null,null,null,{"$f":"IF(CRSDATA!BT571=\"\",\"\",CRSDATA!BT571)","v":""}]
[null,null,null,null,null,null,null,null,null,null,null,null,null,null,null,null,null,null,null,null,null,null,null,null,null,null,null,null,null,null,{"$f":"IF(CRSDATA!BT572=\"\",\"\",CRSDATA!BT572)","v":""}]
[null,null,null,null,null,null,null,null,null,null,null,null,null,null,null,null,null,null,null,null,null,null,null,null,null,null,null,null,null,null,{"$f":"IF(CRSDATA!BT573=\"\",\"\",CRSDATA!BT573)","v":""}]
[null,null,null,null,null,null,null,null,null,null,null,null,null,null,null,null,null,null,null,null,null,null,null,null,null,null,null,null,null,null,{"$f":"IF(CRSDATA!BT574=\"\",\"\",CRSDATA!BT574)","v":""}]
[null,null,null,null,null,null,null,null,null,null,null,null,null,null,null,null,null,null,null,null,null,null,null,null,null,null,null,null,null,null,{"$f":"IF(CRSDATA!BT575=\"\",\"\",CRSDATA!BT575)","v":""}]
[null,null,null,null,null,null,null,null,null,null,null,null,null,null,null,null,null,null,null,null,null,null,null,null,null,null,null,null,null,null,{"$f":"IF(CRSDATA!BT576=\"\",\"\",CRSDATA!BT576)","v":""}]
[null,null,null,null,null,null,null,null,null,null,null,null,null,null,null,null,null,null,null,null,null,null,null,null,null,null,null,null,null,null,{"$f":"IF(CRSDATA!BT577=\"\",\"\",CRSDATA!BT577)","v":""}]
[null,null,null,null,null,null,null,null,null,null,null,null,null,null,null,null,null,null,null,null,null,null,null,null,null,null,null,null,null,null,{"$f":"IF(CRSDATA!BT578=\"\",\"\",CRSDATA!BT578)","v":""}]
[null,null,null,null,null,null,null,null,null,null,null,null,null,null,null,null,null,null,null,null,null,null,null,null,null,null,null,null,null,null,{"$f":"IF(CRSDATA!BT579=\"\",\"\",CRSDATA!BT579)","v":""}]
[null,null,null,null,null,null,null,null,null,null,null,null,null,null,null,null,null,null,null,null,null,null,null,null,null,null,null,null,null,null,{"$f":"IF(CRSDATA!BT580=\"\",\"\",CRSDATA!BT580)","v":""}]
[null,null,null,null,null,null,null,null,null,null,null,null,null,null,null,null,null,null,null,null,null,null,null,null,null,null,null,null,null,null,{"$f":"IF(CRSDATA!BT581=\"\",\"\",CRSDATA!BT581)","v":""}]
[null,null,null,null,null,null,null,null,null,null,null,null,null,null,null,null,null,null,null,null,null,null,null,null,null,null,null,null,null,null,{"$f":"IF(CRSDATA!BT582=\"\",\"\",CRSDATA!BT582)","v":""}]
[null,null,null,null,null,null,null,null,null,null,null,null,null,null,null,null,null,null,null,null,null,null,null,null,null,null,null,null,null,null,{"$f":"IF(CRSDATA!BT583=\"\",\"\",CRSDATA!BT583)","v":""}]
[null,null,null,null,null,null,null,null,null,null,null,null,null,null,null,null,null,null,null,null,null,null,null,null,null,null,null,null,null,null,{"$f":"IF(CRSDATA!BT584=\"\",\"\",CRSDATA!BT584)","v":""}]
[null,null,null,null,null,null,null,null,null,null,null,null,null,null,null,null,null,null,null,null,null,null,null,null,null,null,null,null,null,null,{"$f":"IF(CRSDATA!BT585=\"\",\"\",CRSDATA!BT585)","v":""}]
[null,null,null,null,null,null,null,null,null,null,null,null,null,null,null,null,null,null,null,null,null,null,null,null,null,null,null,null,null,null,{"$f":"IF(CRSDATA!BT586=\"\",\"\",CRSDATA!BT586)","v":""}]
[null,null,null,null,null,null,null,null,null,null,null,null,null,null,null,null,null,null,null,null,null,null,null,null,null,null,null,null,null,null,{"$f":"IF(CRSDATA!BT587=\"\",\"\",CRSDATA!BT587)","v":""}]
[null,null,null,null,null,null,null,null,null,null,null,null,null,null,null,null,null,null,null,null,null,null,null,null,null,null,null,null,null,null,{"$f":"IF(CRSDATA!BT588=\"\",\"\",CRSDATA!BT588)","v":""}]
[null,null,null,null,null,null,null,null,null,null,null,null,null,null,null,null,null,null,null,null,null,null,null,null,null,null,null,null,null,null,{"$f":"IF(CRSDATA!BT589=\"\",\"\",CRSDATA!BT589)","v":""}]
[null,null,null,null,null,null,null,null,null,null,null,null,null,null,null,null,null,null,null,null,null,null,null,null,null,null,null,null,null,null,{"$f":"IF(CRSDATA!BT590=\"\",\"\",CRSDATA!BT590)","v":""}]
[null,null,null,null,null,null,null,null,null,null,null,null,null,null,null,null,null,null,null,null,null,null,null,null,null,null,null,null,null,null,{"$f":"IF(CRSDATA!BT591=\"\",\"\",CRSDATA!BT591)","v":""}]
[null,null,null,null,null,null,null,null,null,null,null,null,null,null,null,null,null,null,null,null,null,null,null,null,null,null,null,null,null,null,{"$f":"IF(CRSDATA!BT592=\"\",\"\",CRSDATA!BT592)","v":""}]
[null,null,null,null,null,null,null,null,null,null,null,null,null,null,null,null,null,null,null,null,null,null,null,null,null,null,null,null,null,null,{"$f":"IF(CRSDATA!BT593=\"\",\"\",CRSDATA!BT593)","v":""}]
[null,null,null,null,null,null,null,null,null,null,null,null,null,null,null,null,null,null,null,null,null,null,null,null,null,null,null,null,null,null,{"$f":"IF(CRSDATA!BT594=\"\",\"\",CRSDATA!BT594)","v":""}]
[null,null,null,null,null,null,null,null,null,null,null,null,null,null,null,null,null,null,null,null,null,null,null,null,null,null,null,null,null,null,{"$f":"IF(CRSDATA!BT595=\"\",\"\",CRSDATA!BT595)","v":""}]
[null,null,null,null,null,null,null,null,null,null,null,null,null,null,null,null,null,null,null,null,null,null,null,null,null,null,null,null,null,null,{"$f":"IF(CRSDATA!BT596=\"\",\"\",CRSDATA!BT596)","v":""}]
[null,null,null,null,null,null,null,null,null,null,null,null,null,null,null,null,null,null,null,null,null,null,null,null,null,null,null,null,null,null,{"$f":"IF(CRSDATA!BT597=\"\",\"\",CRSDATA!BT597)","v":""}]
[null,null,null,null,null,null,null,null,null,null,null,null,null,null,null,null,null,null,null,null,null,null,null,null,null,null,null,null,null,null,{"$f":"IF(CRSDATA!BT598=\"\",\"\",CRSDATA!BT598)","v":""}]
[null,null,null,null,null,null,null,null,null,null,null,null,null,null,null,null,null,null,null,null,null,null,null,null,null,null,null,null,null,null,{"$f":"IF(CRSDATA!BT599=\"\",\"\",CRSDATA!BT599)","v":""}]
[null,null,null,null,null,null,null,null,null,null,null,null,null,null,null,null,null,null,null,null,null,null,null,null,null,null,null,null,null,null,{"$f":"IF(CRSDATA!BT600=\"\",\"\",CRSDATA!BT600)","v":""}]
[null,null,null,null,null,null,null,null,null,null,null,null,null,null,null,null,null,null,null,null,null,null,null,null,null,null,null,null,null,null,{"$f":"IF(CRSDATA!BT601=\"\",\"\",CRSDATA!BT601)","v":""}]
[null,null,null,null,null,null,null,null,null,null,null,null,null,null,null,null,null,null,null,null,null,null,null,null,null,null,null,null,null,null,{"$f":"IF(CRSDATA!BT602=\"\",\"\",CRSDATA!BT602)","v":""}]
[null,null,null,null,null,null,null,null,null,null,null,null,null,null,null,null,null,null,null,null,null,null,null,null,null,null,null,null,null,null,{"$f":"IF(CRSDATA!BT603=\"\",\"\",CRSDATA!BT603)","v":""}]
[null,null,null,null,null,null,null,null,null,null,null,null,null,null,null,null,null,null,null,null,null,null,null,null,null,null,null,null,null,null,{"$f":"IF(CRSDATA!BT604=\"\",\"\",CRSDATA!BT604)","v":""}]
[null,null,null,null,null,null,null,null,null,null,null,null,null,null,null,null,null,null,null,null,null,null,null,null,null,null,null,null,null,null,{"$f":"IF(CRSDATA!BT605=\"\",\"\",CRSDATA!BT605)","v":""}]
[null,null,null,null,null,null,null,null,null,null,null,null,null,null,null,null,null,null,null,null,null,null,null,null,null,null,null,null,null,null,{"$f":"IF(CRSDATA!BT606=\"\",\"\",CRSDATA!BT606)","v":""}]
[null,null,null,null,null,null,null,null,null,null,null,null,null,null,null,null,null,null,null,null,null,null,null,null,null,null,null,null,null,null,{"$f":"IF(CRSDATA!BT607=\"\",\"\",CRSDATA!BT607)","v":""}]
[null,null,null,null,null,null,null,null,null,null,null,null,null,null,null,null,null,null,null,null,null,null,null,null,null,null,null,null,null,null,{"$f":"IF(CRSDATA!BT608=\"\",\"\",CRSDATA!BT608)","v":""}]
[null,null,null,null,null,null,null,null,null,null,null,null,null,null,null,null,null,null,null,null,null,null,null,null,null,null,null,null,null,null,{"$f":"IF(CRSDATA!BT609=\"\",\"\",CRSDATA!BT609)","v":""}]
[null,null,null,null,null,null,null,null,null,null,null,null,null,null,null,null,null,null,null,null,null,null,null,null,null,null,null,null,null,null,{"$f":"IF(CRSDATA!BT610=\"\",\"\",CRSDATA!BT610)","v":""}]
[null,null,null,null,null,null,null,null,null,null,null,null,null,null,null,null,null,null,null,null,null,null,null,null,null,null,null,null,null,null,{"$f":"IF(CRSDATA!BT611=\"\",\"\",CRSDATA!BT611)","v":""}]
[null,null,null,null,null,null,null,null,null,null,null,null,null,null,null,null,null,null,null,null,null,null,null,null,null,null,null,null,null,null,{"$f":"IF(CRSDATA!BT612=\"\",\"\",CRSDATA!BT612)","v":""}]
[null,null,null,null,null,null,null,null,null,null,null,null,null,null,null,null,null,null,null,null,null,null,null,null,null,null,null,null,null,null,{"$f":"IF(CRSDATA!BT613=\"\",\"\",CRSDATA!BT613)","v":""}]
[null,null,null,null,null,null,null,null,null,null,null,null,null,null,null,null,null,null,null,null,null,null,null,null,null,null,null,null,null,null,{"$f":"IF(CRSDATA!BT614=\"\",\"\",CRSDATA!BT614)","v":""}]
[null,null,null,null,null,null,null,null,null,null,null,null,null,null,null,null,null,null,null,null,null,null,null,null,null,null,null,null,null,null,{"$f":"IF(CRSDATA!BT615=\"\",\"\",CRSDATA!BT615)","v":""}]
[null,null,null,null,null,null,null,null,null,null,null,null,null,null,null,null,null,null,null,null,null,null,null,null,null,null,null,null,null,null,{"$f":"IF(CRSDATA!BT616=\"\",\"\",CRSDATA!BT616)","v":""}]
[null,null,null,null,null,null,null,null,null,null,null,null,null,null,null,null,null,null,null,null,null,null,null,null,null,null,null,null,null,null,{"$f":"IF(CRSDATA!BT617=\"\",\"\",CRSDATA!BT617)","v":""}]
[null,null,null,null,null,null,null,null,null,null,null,null,null,null,null,null,null,null,null,null,null,null,null,null,null,null,null,null,null,null,{"$f":"IF(CRSDATA!BT618=\"\",\"\",CRSDATA!BT618)","v":""}]
[null,null,null,null,null,null,null,null,null,null,null,null,null,null,null,null,null,null,null,null,null,null,null,null,null,null,null,null,null,null,{"$f":"IF(CRSDATA!BT619=\"\",\"\",CRSDATA!BT619)","v":""}]
[null,null,null,null,null,null,null,null,null,null,null,null,null,null,null,null,null,null,null,null,null,null,null,null,null,null,null,null,null,null,{"$f":"IF(CRSDATA!BT620=\"\",\"\",CRSDATA!BT620)","v":""}]
[null,null,null,null,null,null,null,null,null,null,null,null,null,null,null,null,null,null,null,null,null,null,null,null,null,null,null,null,null,null,{"$f":"IF(CRSDATA!BT621=\"\",\"\",CRSDATA!BT621)","v":""}]
[null,null,null,null,null,null,null,null,null,null,null,null,null,null,null,null,null,null,null,null,null,null,null,null,null,null,null,null,null,null,{"$f":"IF(CRSDATA!BT622=\"\",\"\",CRSDATA!BT622)","v":""}]
[null,null,null,null,null,null,null,null,null,null,null,null,null,null,null,null,null,null,null,null,null,null,null,null,null,null,null,null,null,null,{"$f":"IF(CRSDATA!BT623=\"\",\"\",CRSDATA!BT623)","v":""}]
[null,null,null,null,null,null,null,null,null,null,null,null,null,null,null,null,null,null,null,null,null,null,null,null,null,null,null,null,null,null,{"$f":"IF(CRSDATA!BT624=\"\",\"\",CRSDATA!BT624)","v":""}]
[null,null,null,null,null,null,null,null,null,null,null,null,null,null,null,null,null,null,null,null,null,null,null,null,null,null,null,null,null,null,{"$f":"IF(CRSDATA!BT625=\"\",\"\",CRSDATA!BT625)","v":""}]
[null,null,null,null,null,null,null,null,null,null,null,null,null,null,null,null,null,null,null,null,null,null,null,null,null,null,null,null,null,null,{"$f":"IF(CRSDATA!BT626=\"\",\"\",CRSDATA!BT626)","v":""}]
[null,null,null,null,null,null,null,null,null,null,null,null,null,null,null,null,null,null,null,null,null,null,null,null,null,null,null,null,null,null,{"$f":"IF(CRSDATA!BT627=\"\",\"\",CRSDATA!BT627)","v":""}]
[null,null,null,null,null,null,null,null,null,null,null,null,null,null,null,null,null,null,null,null,null,null,null,null,null,null,null,null,null,null,{"$f":"IF(CRSDATA!BT628=\"\",\"\",CRSDATA!BT628)","v":""}]
[null,null,null,null,null,null,null,null,null,null,null,null,null,null,null,null,null,null,null,null,null,null,null,null,null,null,null,null,null,null,{"$f":"IF(CRSDATA!BT629=\"\",\"\",CRSDATA!BT629)","v":""}]
[null,null,null,null,null,null,null,null,null,null,null,null,null,null,null,null,null,null,null,null,null,null,null,null,null,null,null,null,null,null,{"$f":"IF(CRSDATA!BT630=\"\",\"\",CRSDATA!BT630)","v":""}]
[null,null,null,null,null,null,null,null,null,null,null,null,null,null,null,null,null,null,null,null,null,null,null,null,null,null,null,null,null,null,{"$f":"IF(CRSDATA!BT631=\"\",\"\",CRSDATA!BT631)","v":""}]
[null,null,null,null,null,null,null,null,null,null,null,null,null,null,null,null,null,null,null,null,null,null,null,null,null,null,null,null,null,null,{"$f":"IF(CRSDATA!BT632=\"\",\"\",CRSDATA!BT632)","v":""}]
[null,null,null,null,null,null,null,null,null,null,null,null,null,null,null,null,null,null,null,null,null,null,null,null,null,null,null,null,null,null,{"$f":"IF(CRSDATA!BT633=\"\",\"\",CRSDATA!BT633)","v":""}]
[null,null,null,null,null,null,null,null,null,null,null,null,null,null,null,null,null,null,null,null,null,null,null,null,null,null,null,null,null,null,{"$f":"IF(CRSDATA!BT634=\"\",\"\",CRSDATA!BT634)","v":""}]
[null,null,null,null,null,null,null,null,null,null,null,null,null,null,null,null,null,null,null,null,null,null,null,null,null,null,null,null,null,null,{"$f":"IF(CRSDATA!BT635=\"\",\"\",CRSDATA!BT635)","v":""}]
[null,null,null,null,null,null,null,null,null,null,null,null,null,null,null,null,null,null,null,null,null,null,null,null,null,null,null,null,null,null,{"$f":"IF(CRSDATA!BT636=\"\",\"\",CRSDATA!BT636)","v":""}]
[null,null,null,null,null,null,null,null,null,null,null,null,null,null,null,null,null,null,null,null,null,null,null,null,null,null,null,null,null,null,{"$f":"IF(CRSDATA!BT637=\"\",\"\",CRSDATA!BT637)","v":""}]
[null,null,null,null,null,null,null,null,null,null,null,null,null,null,null,null,null,null,null,null,null,null,null,null,null,null,null,null,null,null,{"$f":"IF(CRSDATA!BT638=\"\",\"\",CRSDATA!BT638)","v":""}]
[null,null,null,null,null,null,null,null,null,null,null,null,null,null,null,null,null,null,null,null,null,null,null,null,null,null,null,null,null,null,{"$f":"IF(CRSDATA!BT639=\"\",\"\",CRSDATA!BT639)","v":""}]
[null,null,null,null,null,null,null,null,null,null,null,null,null,null,null,null,null,null,null,null,null,null,null,null,null,null,null,null,null,null,{"$f":"IF(CRSDATA!BT640=\"\",\"\",CRSDATA!BT640)","v":""}]
[null,null,null,null,null,null,null,null,null,null,null,null,null,null,null,null,null,null,null,null,null,null,null,null,null,null,null,null,null,null,{"$f":"IF(CRSDATA!BT641=\"\",\"\",CRSDATA!BT641)","v":""}]
[null,null,null,null,null,null,null,null,null,null,null,null,null,null,null,null,null,null,null,null,null,null,null,null,null,null,null,null,null,null,{"$f":"IF(CRSDATA!BT642=\"\",\"\",CRSDATA!BT642)","v":""}]
[null,null,null,null,null,null,null,null,null,null,null,null,null,null,null,null,null,null,null,null,null,null,null,null,null,null,null,null,null,null,{"$f":"IF(CRSDATA!BT643=\"\",\"\",CRSDATA!BT643)","v":""}]
[null,null,null,null,null,null,null,null,null,null,null,null,null,null,null,null,null,null,null,null,null,null,null,null,null,null,null,null,null,null,{"$f":"IF(CRSDATA!BT644=\"\",\"\",CRSDATA!BT644)","v":""}]
[null,null,null,null,null,null,null,null,null,null,null,null,null,null,null,null,null,null,null,null,null,null,null,null,null,null,null,null,null,null,{"$f":"IF(CRSDATA!BT645=\"\",\"\",CRSDATA!BT645)","v":""}]
[null,null,null,null,null,null,null,null,null,null,null,null,null,null,null,null,null,null,null,null,null,null,null,null,null,null,null,null,null,null,{"$f":"IF(CRSDATA!BT646=\"\",\"\",CRSDATA!BT646)","v":""}]
[null,null,null,null,null,null,null,null,null,null,null,null,null,null,null,null,null,null,null,null,null,null,null,null,null,null,null,null,null,null,{"$f":"IF(CRSDATA!BT647=\"\",\"\",CRSDATA!BT647)","v":""}]
[null,null,null,null,null,null,null,null,null,null,null,null,null,null,null,null,null,null,null,null,null,null,null,null,null,null,null,null,null,null,{"$f":"IF(CRSDATA!BT648=\"\",\"\",CRSDATA!BT648)","v":""}]
[null,null,null,null,null,null,null,null,null,null,null,null,null,null,null,null,null,null,null,null,null,null,null,null,null,null,null,null,null,null,{"$f":"IF(CRSDATA!BT649=\"\",\"\",CRSDATA!BT649)","v":""}]
[null,null,null,null,null,null,null,null,null,null,null,null,null,null,null,null,null,null,null,null,null,null,null,null,null,null,null,null,null,null,{"$f":"IF(CRSDATA!BT650=\"\",\"\",CRSDATA!BT650)","v":""}]
[null,null,null,null,null,null,null,null,null,null,null,null,null,null,null,null,null,null,null,null,null,null,null,null,null,null,null,null,null,null,{"$f":"IF(CRSDATA!BT651=\"\",\"\",CRSDATA!BT651)","v":""}]
[null,null,null,null,null,null,null,null,null,null,null,null,null,null,null,null,null,null,null,null,null,null,null,null,null,null,null,null,null,null,{"$f":"IF(CRSDATA!BT652=\"\",\"\",CRSDATA!BT652)","v":""}]
[null,null,null,null,null,null,null,null,null,null,null,null,null,null,null,null,null,null,null,null,null,null,null,null,null,null,null,null,null,null,{"$f":"IF(CRSDATA!BT653=\"\",\"\",CRSDATA!BT653)","v":""}]
[null,null,null,null,null,null,null,null,null,null,null,null,null,null,null,null,null,null,null,null,null,null,null,null,null,null,null,null,null,null,{"$f":"IF(CRSDATA!BT654=\"\",\"\",CRSDATA!BT654)","v":""}]
[null,null,null,null,null,null,null,null,null,null,null,null,null,null,null,null,null,null,null,null,null,null,null,null,null,null,null,null,null,null,{"$f":"IF(CRSDATA!BT655=\"\",\"\",CRSDATA!BT655)","v":""}]
[null,null,null,null,null,null,null,null,null,null,null,null,null,null,null,null,null,null,null,null,null,null,null,null,null,null,null,null,null,null,{"$f":"IF(CRSDATA!BT656=\"\",\"\",CRSDATA!BT656)","v":""}]
[null,null,null,null,null,null,null,null,null,null,null,null,null,null,null,null,null,null,null,null,null,null,null,null,null,null,null,null,null,null,{"$f":"IF(CRSDATA!BT657=\"\",\"\",CRSDATA!BT657)","v":""}]
[null,null,null,null,null,null,null,null,null,null,null,null,null,null,null,null,null,null,null,null,null,null,null,null,null,null,null,null,null,null,{"$f":"IF(CRSDATA!BT658=\"\",\"\",CRSDATA!BT658)","v":""}]
[null,null,null,null,null,null,null,null,null,null,null,null,null,null,null,null,null,null,null,null,null,null,null,null,null,null,null,null,null,null,{"$f":"IF(CRSDATA!BT659=\"\",\"\",CRSDATA!BT659)","v":""}]
[null,null,null,null,null,null,null,null,null,null,null,null,null,null,null,null,null,null,null,null,null,null,null,null,null,null,null,null,null,null,{"$f":"IF(CRSDATA!BT660=\"\",\"\",CRSDATA!BT660)","v":""}]
[null,null,null,null,null,null,null,null,null,null,null,null,null,null,null,null,null,null,null,null,null,null,null,null,null,null,null,null,null,null,{"$f":"IF(CRSDATA!BT661=\"\",\"\",CRSDATA!BT661)","v":""}]
[null,null,null,null,null,null,null,null,null,null,null,null,null,null,null,null,null,null,null,null,null,null,null,null,null,null,null,null,null,null,{"$f":"IF(CRSDATA!BT662=\"\",\"\",CRSDATA!BT662)","v":""}]
[null,null,null,null,null,null,null,null,null,null,null,null,null,null,null,null,null,null,null,null,null,null,null,null,null,null,null,null,null,null,{"$f":"IF(CRSDATA!BT663=\"\",\"\",CRSDATA!BT663)","v":""}]
[null,null,null,null,null,null,null,null,null,null,null,null,null,null,null,null,null,null,null,null,null,null,null,null,null,null,null,null,null,null,{"$f":"IF(CRSDATA!BT664=\"\",\"\",CRSDATA!BT664)","v":""}]
[null,null,null,null,null,null,null,null,null,null,null,null,null,null,null,null,null,null,null,null,null,null,null,null,null,null,null,null,null,null,{"$f":"IF(CRSDATA!BT665=\"\",\"\",CRSDATA!BT665)","v":""}]
[null,null,null,null,null,null,null,null,null,null,null,null,null,null,null,null,null,null,null,null,null,null,null,null,null,null,null,null,null,null,{"$f":"IF(CRSDATA!BT666=\"\",\"\",CRSDATA!BT666)","v":""}]
[null,null,null,null,null,null,null,null,null,null,null,null,null,null,null,null,null,null,null,null,null,null,null,null,null,null,null,null,null,null,{"$f":"IF(CRSDATA!BT667=\"\",\"\",CRSDATA!BT667)","v":""}]
[null,null,null,null,null,null,null,null,null,null,null,null,null,null,null,null,null,null,null,null,null,null,null,null,null,null,null,null,null,null,{"$f":"IF(CRSDATA!BT668=\"\",\"\",CRSDATA!BT668)","v":""}]
[null,null,null,null,null,null,null,null,null,null,null,null,null,null,null,null,null,null,null,null,null,null,null,null,null,null,null,null,null,null,{"$f":"IF(CRSDATA!BT669=\"\",\"\",CRSDATA!BT669)","v":""}]
[null,null,null,null,null,null,null,null,null,null,null,null,null,null,null,null,null,null,null,null,null,null,null,null,null,null,null,null,null,null,{"$f":"IF(CRSDATA!BT670=\"\",\"\",CRSDATA!BT670)","v":""}]
[null,null,null,null,null,null,null,null,null,null,null,null,null,null,null,null,null,null,null,null,null,null,null,null,null,null,null,null,null,null,{"$f":"IF(CRSDATA!BT671=\"\",\"\",CRSDATA!BT671)","v":""}]
[null,null,null,null,null,null,null,null,null,null,null,null,null,null,null,null,null,null,null,null,null,null,null,null,null,null,null,null,null,null,{"$f":"IF(CRSDATA!BT672=\"\",\"\",CRSDATA!BT672)","v":""}]
[null,null,null,null,null,null,null,null,null,null,null,null,null,null,null,null,null,null,null,null,null,null,null,null,null,null,null,null,null,null,{"$f":"IF(CRSDATA!BT673=\"\",\"\",CRSDATA!BT673)","v":""}]
[null,null,null,null,null,null,null,null,null,null,null,null,null,null,null,null,null,null,null,null,null,null,null,null,null,null,null,null,null,null,{"$f":"IF(CRSDATA!BT674=\"\",\"\",CRSDATA!BT674)","v":""}]
[null,null,null,null,null,null,null,null,null,null,null,null,null,null,null,null,null,null,null,null,null,null,null,null,null,null,null,null,null,null,{"$f":"IF(CRSDATA!BT675=\"\",\"\",CRSDATA!BT675)","v":""}]
[null,null,null,null,null,null,null,null,null,null,null,null,null,null,null,null,null,null,null,null,null,null,null,null,null,null,null,null,null,null,{"$f":"IF(CRSDATA!BT676=\"\",\"\",CRSDATA!BT676)","v":""}]
[null,null,null,null,null,null,null,null,null,null,null,null,null,null,null,null,null,null,null,null,null,null,null,null,null,null,null,null,null,null,{"$f":"IF(CRSDATA!BT677=\"\",\"\",CRSDATA!BT677)","v":""}]
[null,null,null,null,null,null,null,null,null,null,null,null,null,null,null,null,null,null,null,null,null,null,null,null,null,null,null,null,null,null,{"$f":"IF(CRSDATA!BT678=\"\",\"\",CRSDATA!BT678)","v":""}]
[null,null,null,null,null,null,null,null,null,null,null,null,null,null,null,null,null,null,null,null,null,null,null,null,null,null,null,null,null,null,{"$f":"IF(CRSDATA!BT679=\"\",\"\",CRSDATA!BT679)","v":""}]
[null,null,null,null,null,null,null,null,null,null,null,null,null,null,null,null,null,null,null,null,null,null,null,null,null,null,null,null,null,null,{"$f":"IF(CRSDATA!BT680=\"\",\"\",CRSDATA!BT680)","v":""}]
[null,null,null,null,null,null,null,null,null,null,null,null,null,null,null,null,null,null,null,null,null,null,null,null,null,null,null,null,null,null,{"$f":"IF(CRSDATA!BT681=\"\",\"\",CRSDATA!BT681)","v":""}]
[null,null,null,null,null,null,null,null,null,null,null,null,null,null,null,null,null,null,null,null,null,null,null,null,null,null,null,null,null,null,{"$f":"IF(CRSDATA!BT682=\"\",\"\",CRSDATA!BT682)","v":""}]
[null,null,null,null,null,null,null,null,null,null,null,null,null,null,null,null,null,null,null,null,null,null,null,null,null,null,null,null,null,null,{"$f":"IF(CRSDATA!BT683=\"\",\"\",CRSDATA!BT683)","v":""}]
[null,null,null,null,null,null,null,null,null,null,null,null,null,null,null,null,null,null,null,null,null,null,null,null,null,null,null,null,null,null,{"$f":"IF(CRSDATA!BT684=\"\",\"\",CRSDATA!BT684)","v":""}]
[null,null,null,null,null,null,null,null,null,null,null,null,null,null,null,null,null,null,null,null,null,null,null,null,null,null,null,null,null,null,{"$f":"IF(CRSDATA!BT685=\"\",\"\",CRSDATA!BT685)","v":""}]
[null,null,null,null,null,null,null,null,null,null,null,null,null,null,null,null,null,null,null,null,null,null,null,null,null,null,null,null,null,null,{"$f":"IF(CRSDATA!BT686=\"\",\"\",CRSDATA!BT686)","v":""}]
[null,null,null,null,null,null,null,null,null,null,null,null,null,null,null,null,null,null,null,null,null,null,null,null,null,null,null,null,null,null,{"$f":"IF(CRSDATA!BT687=\"\",\"\",CRSDATA!BT687)","v":""}]
[null,null,null,null,null,null,null,null,null,null,null,null,null,null,null,null,null,null,null,null,null,null,null,null,null,null,null,null,null,null,{"$f":"IF(CRSDATA!BT688=\"\",\"\",CRSDATA!BT688)","v":""}]
[null,null,null,null,null,null,null,null,null,null,null,null,null,null,null,null,null,null,null,null,null,null,null,null,null,null,null,null,null,null,{"$f":"IF(CRSDATA!BT689=\"\",\"\",CRSDATA!BT689)","v":""}]
[null,null,null,null,null,null,null,null,null,null,null,null,null,null,null,null,null,null,null,null,null,null,null,null,null,null,null,null,null,null,{"$f":"IF(CRSDATA!BT690=\"\",\"\",CRSDATA!BT690)","v":""}]
[null,null,null,null,null,null,null,null,null,null,null,null,null,null,null,null,null,null,null,null,null,null,null,null,null,null,null,null,null,null,{"$f":"IF(CRSDATA!BT691=\"\",\"\",CRSDATA!BT691)","v":""}]
[null,null,null,null,null,null,null,null,null,null,null,null,null,null,null,null,null,null,null,null,null,null,null,null,null,null,null,null,null,null,{"$f":"IF(CRSDATA!BT692=\"\",\"\",CRSDATA!BT692)","v":""}]
[null,null,null,null,null,null,null,null,null,null,null,null,null,null,null,null,null,null,null,null,null,null,null,null,null,null,null,null,null,null,{"$f":"IF(CRSDATA!BT693=\"\",\"\",CRSDATA!BT693)","v":""}]
[null,null,null,null,null,null,null,null,null,null,null,null,null,null,null,null,null,null,null,null,null,null,null,null,null,null,null,null,null,null,{"$f":"IF(CRSDATA!BT694=\"\",\"\",CRSDATA!BT694)","v":""}]
[null,null,null,null,null,null,null,null,null,null,null,null,null,null,null,null,null,null,null,null,null,null,null,null,null,null,null,null,null,null,{"$f":"IF(CRSDATA!BT695=\"\",\"\",CRSDATA!BT695)","v":""}]
[null,null,null,null,null,null,null,null,null,null,null,null,null,null,null,null,null,null,null,null,null,null,null,null,null,null,null,null,null,null,{"$f":"IF(CRSDATA!BT696=\"\",\"\",CRSDATA!BT696)","v":""}]
[null,null,null,null,null,null,null,null,null,null,null,null,null,null,null,null,null,null,null,null,null,null,null,null,null,null,null,null,null,null,{"$f":"IF(CRSDATA!BT697=\"\",\"\",CRSDATA!BT697)","v":""}]
[null,null,null,null,null,null,null,null,null,null,null,null,null,null,null,null,null,null,null,null,null,null,null,null,null,null,null,null,null,null,{"$f":"IF(CRSDATA!BT698=\"\",\"\",CRSDATA!BT698)","v":""}]
[null,null,null,null,null,null,null,null,null,null,null,null,null,null,null,null,null,null,null,null,null,null,null,null,null,null,null,null,null,null,{"$f":"IF(CRSDATA!BT699=\"\",\"\",CRSDATA!BT699)","v":""}]
[null,null,null,null,null,null,null,null,null,null,null,null,null,null,null,null,null,null,null,null,null,null,null,null,null,null,null,null,null,null,{"$f":"IF(CRSDATA!BT700=\"\",\"\",CRSDATA!BT700)","v":""}]
[null,null,null,null,null,null,null,null,null,null,null,null,null,null,null,null,null,null,null,null,null,null,null,null,null,null,null,null,null,null,{"$f":"IF(CRSDATA!BT701=\"\",\"\",CRSDATA!BT701)","v":""}]
[null,null,null,null,null,null,null,null,null,null,null,null,null,null,null,null,null,null,null,null,null,null,null,null,null,null,null,null,null,null,{"$f":"IF(CRSDATA!BT702=\"\",\"\",CRSDATA!BT702)","v":""}]
[null,null,null,null,null,null,null,null,null,null,null,null,null,null,null,null,null,null,null,null,null,null,null,null,null,null,null,null,null,null,{"$f":"IF(CRSDATA!BT703=\"\",\"\",CRSDATA!BT703)","v":""}]
[null,null,null,null,null,null,null,null,null,null,null,null,null,null,null,null,null,null,null,null,null,null,null,null,null,null,null,null,null,null,{"$f":"IF(CRSDATA!BT704=\"\",\"\",CRSDATA!BT704)","v":""}]
[null,null,null,null,null,null,null,null,null,null,null,null,null,null,null,null,null,null,null,null,null,null,null,null,null,null,null,null,null,null,{"$f":"IF(CRSDATA!BT705=\"\",\"\",CRSDATA!BT705)","v":""}]
[null,null,null,null,null,null,null,null,null,null,null,null,null,null,null,null,null,null,null,null,null,null,null,null,null,null,null,null,null,null,{"$f":"IF(CRSDATA!BT706=\"\",\"\",CRSDATA!BT706)","v":""}]
[null,null,null,null,null,null,null,null,null,null,null,null,null,null,null,null,null,null,null,null,null,null,null,null,null,null,null,null,null,null,{"$f":"IF(CRSDATA!BT707=\"\",\"\",CRSDATA!BT707)","v":""}]
[null,null,null,null,null,null,null,null,null,null,null,null,null,null,null,null,null,null,null,null,null,null,null,null,null,null,null,null,null,null,{"$f":"IF(CRSDATA!BT708=\"\",\"\",CRSDATA!BT708)","v":""}]
[null,null,null,null,null,null,null,null,null,null,null,null,null,null,null,null,null,null,null,null,null,null,null,null,null,null,null,null,null,null,{"$f":"IF(CRSDATA!BT709=\"\",\"\",CRSDATA!BT709)","v":""}]
[null,null,null,null,null,null,null,null,null,null,null,null,null,null,null,null,null,null,null,null,null,null,null,null,null,null,null,null,null,null,{"$f":"IF(CRSDATA!BT710=\"\",\"\",CRSDATA!BT710)","v":""}]
[null,null,null,null,null,null,null,null,null,null,null,null,null,null,null,null,null,null,null,null,null,null,null,null,null,null,null,null,null,null,{"$f":"IF(CRSDATA!BT711=\"\",\"\",CRSDATA!BT711)","v":""}]
[null,null,null,null,null,null,null,null,null,null,null,null,null,null,null,null,null,null,null,null,null,null,null,null,null,null,null,null,null,null,{"$f":"IF(CRSDATA!BT712=\"\",\"\",CRSDATA!BT712)","v":""}]
[null,null,null,null,null,null,null,null,null,null,null,null,null,null,null,null,null,null,null,null,null,null,null,null,null,null,null,null,null,null,{"$f":"IF(CRSDATA!BT713=\"\",\"\",CRSDATA!BT713)","v":""}]
[null,null,null,null,null,null,null,null,null,null,null,null,null,null,null,null,null,null,null,null,null,null,null,null,null,null,null,null,null,null,{"$f":"IF(CRSDATA!BT714=\"\",\"\",CRSDATA!BT714)","v":""}]
[null,null,null,null,null,null,null,null,null,null,null,null,null,null,null,null,null,null,null,null,null,null,null,null,null,null,null,null,null,null,{"$f":"IF(CRSDATA!BT715=\"\",\"\",CRSDATA!BT715)","v":""}]
[null,null,null,null,null,null,null,null,null,null,null,null,null,null,null,null,null,null,null,null,null,null,null,null,null,null,null,null,null,null,{"$f":"IF(CRSDATA!BT716=\"\",\"\",CRSDATA!BT716)","v":""}]
[null,null,null,null,null,null,null,null,null,null,null,null,null,null,null,null,null,null,null,null,null,null,null,null,null,null,null,null,null,null,{"$f":"IF(CRSDATA!BT717=\"\",\"\",CRSDATA!BT717)","v":""}]
[null,null,null,null,null,null,null,null,null,null,null,null,null,null,null,null,null,null,null,null,null,null,null,null,null,null,null,null,null,null,{"$f":"IF(CRSDATA!BT718=\"\",\"\",CRSDATA!BT718)","v":""}]
[null,null,null,null,null,null,null,null,null,null,null,null,null,null,null,null,null,null,null,null,null,null,null,null,null,null,null,null,null,null,{"$f":"IF(CRSDATA!BT719=\"\",\"\",CRSDATA!BT719)","v":""}]
[null,null,null,null,null,null,null,null,null,null,null,null,null,null,null,null,null,null,null,null,null,null,null,null,null,null,null,null,null,null,{"$f":"IF(CRSDATA!BT720=\"\",\"\",CRSDATA!BT720)","v":""}]
[null,null,null,null,null,null,null,null,null,null,null,null,null,null,null,null,null,null,null,null,null,null,null,null,null,null,null,null,null,null,{"$f":"IF(CRSDATA!BT721=\"\",\"\",CRSDATA!BT721)","v":""}]
[null,null,null,null,null,null,null,null,null,null,null,null,null,null,null,null,null,null,null,null,null,null,null,null,null,null,null,null,null,null,{"$f":"IF(CRSDATA!BT722=\"\",\"\",CRSDATA!BT722)","v":""}]
[null,null,null,null,null,null,null,null,null,null,null,null,null,null,null,null,null,null,null,null,null,null,null,null,null,null,null,null,null,null,{"$f":"IF(CRSDATA!BT723=\"\",\"\",CRSDATA!BT723)","v":""}]
[null,null,null,null,null,null,null,null,null,null,null,null,null,null,null,null,null,null,null,null,null,null,null,null,null,null,null,null,null,null,{"$f":"IF(CRSDATA!BT724=\"\",\"\",CRSDATA!BT724)","v":""}]
[null,null,null,null,null,null,null,null,null,null,null,null,null,null,null,null,null,null,null,null,null,null,null,null,null,null,null,null,null,null,{"$f":"IF(CRSDATA!BT725=\"\",\"\",CRSDATA!BT725)","v":""}]
[null,null,null,null,null,null,null,null,null,null,null,null,null,null,null,null,null,null,null,null,null,null,null,null,null,null,null,null,null,null,{"$f":"IF(CRSDATA!BT726=\"\",\"\",CRSDATA!BT726)","v":""}]
[null,null,null,null,null,null,null,null,null,null,null,null,null,null,null,null,null,null,null,null,null,null,null,null,null,null,null,null,null,null,{"$f":"IF(CRSDATA!BT727=\"\",\"\",CRSDATA!BT727)","v":""}]
[null,null,null,null,null,null,null,null,null,null,null,null,null,null,null,null,null,null,null,null,null,null,null,null,null,null,null,null,null,null,{"$f":"IF(CRSDATA!BT728=\"\",\"\",CRSDATA!BT728)","v":""}]
[null,null,null,null,null,null,null,null,null,null,null,null,null,null,null,null,null,null,null,null,null,null,null,null,null,null,null,null,null,null,{"$f":"IF(CRSDATA!BT729=\"\",\"\",CRSDATA!BT729)","v":""}]
[null,null,null,null,null,null,null,null,null,null,null,null,null,null,null,null,null,null,null,null,null,null,null,null,null,null,null,null,null,null,{"$f":"IF(CRSDATA!BT730=\"\",\"\",CRSDATA!BT730)","v":""}]
[null,null,null,null,null,null,null,null,null,null,null,null,null,null,null,null,null,null,null,null,null,null,null,null,null,null,null,null,null,null,{"$f":"IF(CRSDATA!BT731=\"\",\"\",CRSDATA!BT731)","v":""}]
[null,null,null,null,null,null,null,null,null,null,null,null,null,null,null,null,null,null,null,null,null,null,null,null,null,null,null,null,null,null,{"$f":"IF(CRSDATA!BT732=\"\",\"\",CRSDATA!BT732)","v":""}]
[null,null,null,null,null,null,null,null,null,null,null,null,null,null,null,null,null,null,null,null,null,null,null,null,null,null,null,null,null,null,{"$f":"IF(CRSDATA!BT733=\"\",\"\",CRSDATA!BT733)","v":""}]
[null,null,null,null,null,null,null,null,null,null,null,null,null,null,null,null,null,null,null,null,null,null,null,null,null,null,null,null,null,null,{"$f":"IF(CRSDATA!BT734=\"\",\"\",CRSDATA!BT734)","v":""}]
[null,null,null,null,null,null,null,null,null,null,null,null,null,null,null,null,null,null,null,null,null,null,null,null,null,null,null,null,null,null,{"$f":"IF(CRSDATA!BT735=\"\",\"\",CRSDATA!BT735)","v":""}]
[null,null,null,null,null,null,null,null,null,null,null,null,null,null,null,null,null,null,null,null,null,null,null,null,null,null,null,null,null,null,{"$f":"IF(CRSDATA!BT736=\"\",\"\",CRSDATA!BT736)","v":""}]
[null,null,null,null,null,null,null,null,null,null,null,null,null,null,null,null,null,null,null,null,null,null,null,null,null,null,null,null,null,null,{"$f":"IF(CRSDATA!BT737=\"\",\"\",CRSDATA!BT737)","v":""}]
[null,null,null,null,null,null,null,null,null,null,null,null,null,null,null,null,null,null,null,null,null,null,null,null,null,null,null,null,null,null,{"$f":"IF(CRSDATA!BT738=\"\",\"\",CRSDATA!BT738)","v":""}]
[null,null,null,null,null,null,null,null,null,null,null,null,null,null,null,null,null,null,null,null,null,null,null,null,null,null,null,null,null,null,{"$f":"IF(CRSDATA!BT739=\"\",\"\",CRSDATA!BT739)","v":""}]
[null,null,null,null,null,null,null,null,null,null,null,null,null,null,null,null,null,null,null,null,null,null,null,null,null,null,null,null,null,null,{"$f":"IF(CRSDATA!BT740=\"\",\"\",CRSDATA!BT740)","v":""}]
[null,null,null,null,null,null,null,null,null,null,null,null,null,null,null,null,null,null,null,null,null,null,null,null,null,null,null,null,null,null,{"$f":"IF(CRSDATA!BT741=\"\",\"\",CRSDATA!BT741)","v":""}]
[null,null,null,null,null,null,null,null,null,null,null,null,null,null,null,null,null,null,null,null,null,null,null,null,null,null,null,null,null,null,{"$f":"IF(CRSDATA!BT742=\"\",\"\",CRSDATA!BT742)","v":""}]
[null,null,null,null,null,null,null,null,null,null,null,null,null,null,null,null,null,null,null,null,null,null,null,null,null,null,null,null,null,null,{"$f":"IF(CRSDATA!BT743=\"\",\"\",CRSDATA!BT743)","v":""}]
[null,null,null,null,null,null,null,null,null,null,null,null,null,null,null,null,null,null,null,null,null,null,null,null,null,null,null,null,null,null,{"$f":"IF(CRSDATA!BT744=\"\",\"\",CRSDATA!BT744)","v":""}]
[null,null,null,null,null,null,null,null,null,null,null,null,null,null,null,null,null,null,null,null,null,null,null,null,null,null,null,null,null,null,{"$f":"IF(CRSDATA!BT745=\"\",\"\",CRSDATA!BT745)","v":""}]
[null,null,null,null,null,null,null,null,null,null,null,null,null,null,null,null,null,null,null,null,null,null,null,null,null,null,null,null,null,null,{"$f":"IF(CRSDATA!BT746=\"\",\"\",CRSDATA!BT746)","v":""}]
[null,null,null,null,null,null,null,null,null,null,null,null,null,null,null,null,null,null,null,null,null,null,null,null,null,null,null,null,null,null,{"$f":"IF(CRSDATA!BT747=\"\",\"\",CRSDATA!BT747)","v":""}]
[null,null,null,null,null,null,null,null,null,null,null,null,null,null,null,null,null,null,null,null,null,null,null,null,null,null,null,null,null,null,{"$f":"IF(CRSDATA!BT748=\"\",\"\",CRSDATA!BT748)","v":""}]
[null,null,null,null,null,null,null,null,null,null,null,null,null,null,null,null,null,null,null,null,null,null,null,null,null,null,null,null,null,null,{"$f":"IF(CRSDATA!BT749=\"\",\"\",CRSDATA!BT749)","v":""}]
[null,null,null,null,null,null,null,null,null,null,null,null,null,null,null,null,null,null,null,null,null,null,null,null,null,null,null,null,null,null,{"$f":"IF(CRSDATA!BT750=\"\",\"\",CRSDATA!BT750)","v":""}]
[null,null,null,null,null,null,null,null,null,null,null,null,null,null,null,null,null,null,null,null,null,null,null,null,null,null,null,null,null,null,{"$f":"IF(CRSDATA!BT751=\"\",\"\",CRSDATA!BT751)","v":""}]
[null,null,null,null,null,null,null,null,null,null,null,null,null,null,null,null,null,null,null,null,null,null,null,null,null,null,null,null,null,null,{"$f":"IF(CRSDATA!BT752=\"\",\"\",CRSDATA!BT752)","v":""}]
[null,null,null,null,null,null,null,null,null,null,null,null,null,null,null,null,null,null,null,null,null,null,null,null,null,null,null,null,null,null,{"$f":"IF(CRSDATA!BT753=\"\",\"\",CRSDATA!BT753)","v":""}]
[null,null,null,null,null,null,null,null,null,null,null,null,null,null,null,null,null,null,null,null,null,null,null,null,null,null,null,null,null,null,{"$f":"IF(CRSDATA!BT754=\"\",\"\",CRSDATA!BT754)","v":""}]
[null,null,null,null,null,null,null,null,null,null,null,null,null,null,null,null,null,null,null,null,null,null,null,null,null,null,null,null,null,null,{"$f":"IF(CRSDATA!BT755=\"\",\"\",CRSDATA!BT755)","v":""}]
[null,null,null,null,null,null,null,null,null,null,null,null,null,null,null,null,null,null,null,null,null,null,null,null,null,null,null,null,null,null,{"$f":"IF(CRSDATA!BT756=\"\",\"\",CRSDATA!BT756)","v":""}]
[null,null,null,null,null,null,null,null,null,null,null,null,null,null,null,null,null,null,null,null,null,null,null,null,null,null,null,null,null,null,{"$f":"IF(CRSDATA!BT757=\"\",\"\",CRSDATA!BT757)","v":""}]
[null,null,null,null,null,null,null,null,null,null,null,null,null,null,null,null,null,null,null,null,null,null,null,null,null,null,null,null,null,null,{"$f":"IF(CRSDATA!BT758=\"\",\"\",CRSDATA!BT758)","v":""}]
[null,null,null,null,null,null,null,null,null,null,null,null,null,null,null,null,null,null,null,null,null,null,null,null,null,null,null,null,null,null,{"$f":"IF(CRSDATA!BT759=\"\",\"\",CRSDATA!BT759)","v":""}]
[null,null,null,null,null,null,null,null,null,null,null,null,null,null,null,null,null,null,null,null,null,null,null,null,null,null,null,null,null,null,{"$f":"IF(CRSDATA!BT760=\"\",\"\",CRSDATA!BT760)","v":""}]
[null,null,null,null,null,null,null,null,null,null,null,null,null,null,null,null,null,null,null,null,null,null,null,null,null,null,null,null,null,null,{"$f":"IF(CRSDATA!BT761=\"\",\"\",CRSDATA!BT761)","v":""}]
[null,null,null,null,null,null,null,null,null,null,null,null,null,null,null,null,null,null,null,null,null,null,null,null,null,null,null,null,null,null,{"$f":"IF(CRSDATA!BT762=\"\",\"\",CRSDATA!BT762)","v":""}]
[null,null,null,null,null,null,null,null,null,null,null,null,null,null,null,null,null,null,null,null,null,null,null,null,null,null,null,null,null,null,{"$f":"IF(CRSDATA!BT763=\"\",\"\",CRSDATA!BT763)","v":""}]
[null,null,null,null,null,null,null,null,null,null,null,null,null,null,null,null,null,null,null,null,null,null,null,null,null,null,null,null,null,null,{"$f":"IF(CRSDATA!BT764=\"\",\"\",CRSDATA!BT764)","v":""}]
[null,null,null,null,null,null,null,null,null,null,null,null,null,null,null,null,null,null,null,null,null,null,null,null,null,null,null,null,null,null,{"$f":"IF(CRSDATA!BT765=\"\",\"\",CRSDATA!BT765)","v":""}]
[null,null,null,null,null,null,null,null,null,null,null,null,null,null,null,null,null,null,null,null,null,null,null,null,null,null,null,null,null,null,{"$f":"IF(CRSDATA!BT766=\"\",\"\",CRSDATA!BT766)","v":""}]
[null,null,null,null,null,null,null,null,null,null,null,null,null,null,null,null,null,null,null,null,null,null,null,null,null,null,null,null,null,null,{"$f":"IF(CRSDATA!BT767=\"\",\"\",CRSDATA!BT767)","v":""}]
[null,null,null,null,null,null,null,null,null,null,null,null,null,null,null,null,null,null,null,null,null,null,null,null,null,null,null,null,null,null,{"$f":"IF(CRSDATA!BT768=\"\",\"\",CRSDATA!BT768)","v":""}]
[null,null,null,null,null,null,null,null,null,null,null,null,null,null,null,null,null,null,null,null,null,null,null,null,null,null,null,null,null,null,{"$f":"IF(CRSDATA!BT769=\"\",\"\",CRSDATA!BT769)","v":""}]
[null,null,null,null,null,null,null,null,null,null,null,null,null,null,null,null,null,null,null,null,null,null,null,null,null,null,null,null,null,null,{"$f":"IF(CRSDATA!BT770=\"\",\"\",CRSDATA!BT770)","v":""}]
[null,null,null,null,null,null,null,null,null,null,null,null,null,null,null,null,null,null,null,null,null,null,null,null,null,null,null,null,null,null,{"$f":"IF(CRSDATA!BT771=\"\",\"\",CRSDATA!BT771)","v":""}]
[null,null,null,null,null,null,null,null,null,null,null,null,null,null,null,null,null,null,null,null,null,null,null,null,null,null,null,null,null,null,{"$f":"IF(CRSDATA!BT772=\"\",\"\",CRSDATA!BT772)","v":""}]
[null,null,null,null,null,null,null,null,null,null,null,null,null,null,null,null,null,null,null,null,null,null,null,null,null,null,null,null,null,null,{"$f":"IF(CRSDATA!BT773=\"\",\"\",CRSDATA!BT773)","v":""}]
[null,null,null,null,null,null,null,null,null,null,null,null,null,null,null,null,null,null,null,null,null,null,null,null,null,null,null,null,null,null,{"$f":"IF(CRSDATA!BT774=\"\",\"\",CRSDATA!BT774)","v":""}]
[null,null,null,null,null,null,null,null,null,null,null,null,null,null,null,null,null,null,null,null,null,null,null,null,null,null,null,null,null,null,{"$f":"IF(CRSDATA!BT775=\"\",\"\",CRSDATA!BT775)","v":""}]
[null,null,null,null,null,null,null,null,null,null,null,null,null,null,null,null,null,null,null,null,null,null,null,null,null,null,null,null,null,null,{"$f":"IF(CRSDATA!BT776=\"\",\"\",CRSDATA!BT776)","v":""}]
[null,null,null,null,null,null,null,null,null,null,null,null,null,null,null,null,null,null,null,null,null,null,null,null,null,null,null,null,null,null,{"$f":"IF(CRSDATA!BT777=\"\",\"\",CRSDATA!BT777)","v":""}]
[null,null,null,null,null,null,null,null,null,null,null,null,null,null,null,null,null,null,null,null,null,null,null,null,null,null,null,null,null,null,{"$f":"IF(CRSDATA!BT778=\"\",\"\",CRSDATA!BT778)","v":""}]
[null,null,null,null,null,null,null,null,null,null,null,null,null,null,null,null,null,null,null,null,null,null,null,null,null,null,null,null,null,null,{"$f":"IF(CRSDATA!BT779=\"\",\"\",CRSDATA!BT779)","v":""}]
[null,null,null,null,null,null,null,null,null,null,null,null,null,null,null,null,null,null,null,null,null,null,null,null,null,null,null,null,null,null,{"$f":"IF(CRSDATA!BT780=\"\",\"\",CRSDATA!BT780)","v":""}]
[null,null,null,null,null,null,null,null,null,null,null,null,null,null,null,null,null,null,null,null,null,null,null,null,null,null,null,null,null,null,{"$f":"IF(CRSDATA!BT781=\"\",\"\",CRSDATA!BT781)","v":""}]
[null,null,null,null,null,null,null,null,null,null,null,null,null,null,null,null,null,null,null,null,null,null,null,null,null,null,null,null,null,null,{"$f":"IF(CRSDATA!BT782=\"\",\"\",CRSDATA!BT782)","v":""}]
[null,null,null,null,null,null,null,null,null,null,null,null,null,null,null,null,null,null,null,null,null,null,null,null,null,null,null,null,null,null,{"$f":"IF(CRSDATA!BT783=\"\",\"\",CRSDATA!BT783)","v":""}]
[null,null,null,null,null,null,null,null,null,null,null,null,null,null,null,null,null,null,null,null,null,null,null,null,null,null,null,null,null,null,{"$f":"IF(CRSDATA!BT784=\"\",\"\",CRSDATA!BT784)","v":""}]
[null,null,null,null,null,null,null,null,null,null,null,null,null,null,null,null,null,null,null,null,null,null,null,null,null,null,null,null,null,null,{"$f":"IF(CRSDATA!BT785=\"\",\"\",CRSDATA!BT785)","v":""}]
[null,null,null,null,null,null,null,null,null,null,null,null,null,null,null,null,null,null,null,null,null,null,null,null,null,null,null,null,null,null,{"$f":"IF(CRSDATA!BT786=\"\",\"\",CRSDATA!BT786)","v":""}]
[null,null,null,null,null,null,null,null,null,null,null,null,null,null,null,null,null,null,null,null,null,null,null,null,null,null,null,null,null,null,{"$f":"IF(CRSDATA!BT787=\"\",\"\",CRSDATA!BT787)","v":""}]
[null,null,null,null,null,null,null,null,null,null,null,null,null,null,null,null,null,null,null,null,null,null,null,null,null,null,null,null,null,null,{"$f":"IF(CRSDATA!BT788=\"\",\"\",CRSDATA!BT788)","v":""}]
[null,null,null,null,null,null,null,null,null,null,null,null,null,null,null,null,null,null,null,null,null,null,null,null,null,null,null,null,null,null,{"$f":"IF(CRSDATA!BT789=\"\",\"\",CRSDATA!BT789)","v":""}]
[null,null,null,null,null,null,null,null,null,null,null,null,null,null,null,null,null,null,null,null,null,null,null,null,null,null,null,null,null,null,{"$f":"IF(CRSDATA!BT790=\"\",\"\",CRSDATA!BT790)","v":""}]
[null,null,null,null,null,null,null,null,null,null,null,null,null,null,null,null,null,null,null,null,null,null,null,null,null,null,null,null,null,null,{"$f":"IF(CRSDATA!BT791=\"\",\"\",CRSDATA!BT791)","v":""}]
[null,null,null,null,null,null,null,null,null,null,null,null,null,null,null,null,null,null,null,null,null,null,null,null,null,null,null,null,null,null,{"$f":"IF(CRSDATA!BT792=\"\",\"\",CRSDATA!BT792)","v":""}]
[null,null,null,null,null,null,null,null,null,null,null,null,null,null,null,null,null,null,null,null,null,null,null,null,null,null,null,null,null,null,{"$f":"IF(CRSDATA!BT793=\"\",\"\",CRSDATA!BT793)","v":""}]
[null,null,null,null,null,null,null,null,null,null,null,null,null,null,null,null,null,null,null,null,null,null,null,null,null,null,null,null,null,null,{"$f":"IF(CRSDATA!BT794=\"\",\"\",CRSDATA!BT794)","v":""}]
[null,null,null,null,null,null,null,null,null,null,null,null,null,null,null,null,null,null,null,null,null,null,null,null,null,null,null,null,null,null,{"$f":"IF(CRSDATA!BT795=\"\",\"\",CRSDATA!BT795)","v":""}]
[null,null,null,null,null,null,null,null,null,null,null,null,null,null,null,null,null,null,null,null,null,null,null,null,null,null,null,null,null,null,{"$f":"IF(CRSDATA!BT796=\"\",\"\",CRSDATA!BT796)","v":""}]
[null,null,null,null,null,null,null,null,null,null,null,null,null,null,null,null,null,null,null,null,null,null,null,null,null,null,null,null,null,null,{"$f":"IF(CRSDATA!BT797=\"\",\"\",CRSDATA!BT797)","v":""}]
[null,null,null,null,null,null,null,null,null,null,null,null,null,null,null,null,null,null,null,null,null,null,null,null,null,null,null,null,null,null,{"$f":"IF(CRSDATA!BT798=\"\",\"\",CRSDATA!BT798)","v":""}]
[null,null,null,null,null,null,null,null,null,null,null,null,null,null,null,null,null,null,null,null,null,null,null,null,null,null,null,null,null,null,{"$f":"IF(CRSDATA!BT799=\"\",\"\",CRSDATA!BT799)","v":""}]
[null,null,null,null,null,null,null,null,null,null,null,null,null,null,null,null,null,null,null,null,null,null,null,null,null,null,null,null,null,null,{"$f":"IF(CRSDATA!BT800=\"\",\"\",CRSDATA!BT800)","v":""}]
[null,null,null,null,null,null,null,null,null,null,null,null,null,null,null,null,null,null,null,null,null,null,null,null,null,null,null,null,null,null,{"$f":"IF(CRSDATA!BT801=\"\",\"\",CRSDATA!BT801)","v":""}]
[null,null,null,null,null,null,null,null,null,null,null,null,null,null,null,null,null,null,null,null,null,null,null,null,null,null,null,null,null,null,{"$f":"IF(CRSDATA!BT802=\"\",\"\",CRSDATA!BT802)","v":""}]
[null,null,null,null,null,null,null,null,null,null,null,null,null,null,null,null,null,null,null,null,null,null,null,null,null,null,null,null,null,null,{"$f":"IF(CRSDATA!BT803=\"\",\"\",CRSDATA!BT803)","v":""}]
[null,null,null,null,null,null,null,null,null,null,null,null,null,null,null,null,null,null,null,null,null,null,null,null,null,null,null,null,null,null,{"$f":"IF(CRSDATA!BT804=\"\",\"\",CRSDATA!BT804)","v":""}]
[null,null,null,null,null,null,null,null,null,null,null,null,null,null,null,null,null,null,null,null,null,null,null,null,null,null,null,null,null,null,{"$f":"IF(CRSDATA!BT805=\"\",\"\",CRSDATA!BT805)","v":""}]
[null,null,null,null,null,null,null,null,null,null,null,null,null,null,null,null,null,null,null,null,null,null,null,null,null,null,null,null,null,null,{"$f":"IF(CRSDATA!BT806=\"\",\"\",CRSDATA!BT806)","v":""}]
[null,null,null,null,null,null,null,null,null,null,null,null,null,null,null,null,null,null,null,null,null,null,null,null,null,null,null,null,null,null,{"$f":"IF(CRSDATA!BT807=\"\",\"\",CRSDATA!BT807)","v":""}]
[null,null,null,null,null,null,null,null,null,null,null,null,null,null,null,null,null,null,null,null,null,null,null,null,null,null,null,null,null,null,{"$f":"IF(CRSDATA!BT808=\"\",\"\",CRSDATA!BT808)","v":""}]
[null,null,null,null,null,null,null,null,null,null,null,null,null,null,null,null,null,null,null,null,null,null,null,null,null,null,null,null,null,null,{"$f":"IF(CRSDATA!BT809=\"\",\"\",CRSDATA!BT809)","v":""}]
[null,null,null,null,null,null,null,null,null,null,null,null,null,null,null,null,null,null,null,null,null,null,null,null,null,null,null,null,null,null,{"$f":"IF(CRSDATA!BT810=\"\",\"\",CRSDATA!BT810)","v":""}]
[null,null,null,null,null,null,null,null,null,null,null,null,null,null,null,null,null,null,null,null,null,null,null,null,null,null,null,null,null,null,{"$f":"IF(CRSDATA!BT811=\"\",\"\",CRSDATA!BT811)","v":""}]
[null,null,null,null,null,null,null,null,null,null,null,null,null,null,null,null,null,null,null,null,null,null,null,null,null,null,null,null,null,null,{"$f":"IF(CRSDATA!BT812=\"\",\"\",CRSDATA!BT812)","v":""}]
[null,null,null,null,null,null,null,null,null,null,null,null,null,null,null,null,null,null,null,null,null,null,null,null,null,null,null,null,null,null,{"$f":"IF(CRSDATA!BT813=\"\",\"\",CRSDATA!BT813)","v":""}]
[null,null,null,null,null,null,null,null,null,null,null,null,null,null,null,null,null,null,null,null,null,null,null,null,null,null,null,null,null,null,{"$f":"IF(CRSDATA!BT814=\"\",\"\",CRSDATA!BT814)","v":""}]
[null,null,null,null,null,null,null,null,null,null,null,null,null,null,null,null,null,null,null,null,null,null,null,null,null,null,null,null,null,null,{"$f":"IF(CRSDATA!BT815=\"\",\"\",CRSDATA!BT815)","v":""}]
[null,null,null,null,null,null,null,null,null,null,null,null,null,null,null,null,null,null,null,null,null,null,null,null,null,null,null,null,null,null,{"$f":"IF(CRSDATA!BT816=\"\",\"\",CRSDATA!BT816)","v":""}]
[null,null,null,null,null,null,null,null,null,null,null,null,null,null,null,null,null,null,null,null,null,null,null,null,null,null,null,null,null,null,{"$f":"IF(CRSDATA!BT817=\"\",\"\",CRSDATA!BT817)","v":""}]
[null,null,null,null,null,null,null,null,null,null,null,null,null,null,null,null,null,null,null,null,null,null,null,null,null,null,null,null,null,null,{"$f":"IF(CRSDATA!BT818=\"\",\"\",CRSDATA!BT818)","v":""}]
[null,null,null,null,null,null,null,null,null,null,null,null,null,null,null,null,null,null,null,null,null,null,null,null,null,null,null,null,null,null,{"$f":"IF(CRSDATA!BT819=\"\",\"\",CRSDATA!BT819)","v":""}]
[null,null,null,null,null,null,null,null,null,null,null,null,null,null,null,null,null,null,null,null,null,null,null,null,null,null,null,null,null,null,{"$f":"IF(CRSDATA!BT820=\"\",\"\",CRSDATA!BT820)","v":""}]
[null,null,null,null,null,null,null,null,null,null,null,null,null,null,null,null,null,null,null,null,null,null,null,null,null,null,null,null,null,null,{"$f":"IF(CRSDATA!BT821=\"\",\"\",CRSDATA!BT821)","v":""}]
[null,null,null,null,null,null,null,null,null,null,null,null,null,null,null,null,null,null,null,null,null,null,null,null,null,null,null,null,null,null,{"$f":"IF(CRSDATA!BT822=\"\",\"\",CRSDATA!BT822)","v":""}]
[null,null,null,null,null,null,null,null,null,null,null,null,null,null,null,null,null,null,null,null,null,null,null,null,null,null,null,null,null,null,{"$f":"IF(CRSDATA!BT823=\"\",\"\",CRSDATA!BT823)","v":""}]
[null,null,null,null,null,null,null,null,null,null,null,null,null,null,null,null,null,null,null,null,null,null,null,null,null,null,null,null,null,null,{"$f":"IF(CRSDATA!BT824=\"\",\"\",CRSDATA!BT824)","v":""}]
[null,null,null,null,null,null,null,null,null,null,null,null,null,null,null,null,null,null,null,null,null,null,null,null,null,null,null,null,null,null,{"$f":"IF(CRSDATA!BT825=\"\",\"\",CRSDATA!BT825)","v":""}]
[null,null,null,null,null,null,null,null,null,null,null,null,null,null,null,null,null,null,null,null,null,null,null,null,null,null,null,null,null,null,{"$f":"IF(CRSDATA!BT826=\"\",\"\",CRSDATA!BT826)","v":""}]
[null,null,null,null,null,null,null,null,null,null,null,null,null,null,null,null,null,null,null,null,null,null,null,null,null,null,null,null,null,null,{"$f":"IF(CRSDATA!BT827=\"\",\"\",CRSDATA!BT827)","v":""}]
[null,null,null,null,null,null,null,null,null,null,null,null,null,null,null,null,null,null,null,null,null,null,null,null,null,null,null,null,null,null,{"$f":"IF(CRSDATA!BT828=\"\",\"\",CRSDATA!BT828)","v":""}]
[null,null,null,null,null,null,null,null,null,null,null,null,null,null,null,null,null,null,null,null,null,null,null,null,null,null,null,null,null,null,{"$f":"IF(CRSDATA!BT829=\"\",\"\",CRSDATA!BT829)","v":""}]
[null,null,null,null,null,null,null,null,null,null,null,null,null,null,null,null,null,null,null,null,null,null,null,null,null,null,null,null,null,null,{"$f":"IF(CRSDATA!BT830=\"\",\"\",CRSDATA!BT830)","v":""}]
[null,null,null,null,null,null,null,null,null,null,null,null,null,null,null,null,null,null,null,null,null,null,null,null,null,null,null,null,null,null,{"$f":"IF(CRSDATA!BT831=\"\",\"\",CRSDATA!BT831)","v":""}]
[null,null,null,null,null,null,null,null,null,null,null,null,null,null,null,null,null,null,null,null,null,null,null,null,null,null,null,null,null,null,{"$f":"IF(CRSDATA!BT832=\"\",\"\",CRSDATA!BT832)","v":""}]
[null,null,null,null,null,null,null,null,null,null,null,null,null,null,null,null,null,null,null,null,null,null,null,null,null,null,null,null,null,null,{"$f":"IF(CRSDATA!BT833=\"\",\"\",CRSDATA!BT833)","v":""}]
[null,null,null,null,null,null,null,null,null,null,null,null,null,null,null,null,null,null,null,null,null,null,null,null,null,null,null,null,null,null,{"$f":"IF(CRSDATA!BT834=\"\",\"\",CRSDATA!BT834)","v":""}]
[null,null,null,null,null,null,null,null,null,null,null,null,null,null,null,null,null,null,null,null,null,null,null,null,null,null,null,null,null,null,{"$f":"IF(CRSDATA!BT835=\"\",\"\",CRSDATA!BT835)","v":""}]
[null,null,null,null,null,null,null,null,null,null,null,null,null,null,null,null,null,null,null,null,null,null,null,null,null,null,null,null,null,null,{"$f":"IF(CRSDATA!BT836=\"\",\"\",CRSDATA!BT836)","v":""}]
[null,null,null,null,null,null,null,null,null,null,null,null,null,null,null,null,null,null,null,null,null,null,null,null,null,null,null,null,null,null,{"$f":"IF(CRSDATA!BT837=\"\",\"\",CRSDATA!BT837)","v":""}]
[null,null,null,null,null,null,null,null,null,null,null,null,null,null,null,null,null,null,null,null,null,null,null,null,null,null,null,null,null,null,{"$f":"IF(CRSDATA!BT838=\"\",\"\",CRSDATA!BT838)","v":""}]
[null,null,null,null,null,null,null,null,null,null,null,null,null,null,null,null,null,null,null,null,null,null,null,null,null,null,null,null,null,null,{"$f":"IF(CRSDATA!BT839=\"\",\"\",CRSDATA!BT839)","v":""}]
[null,null,null,null,null,null,null,null,null,null,null,null,null,null,null,null,null,null,null,null,null,null,null,null,null,null,null,null,null,null,{"$f":"IF(CRSDATA!BT840=\"\",\"\",CRSDATA!BT840)","v":""}]
[null,null,null,null,null,null,null,null,null,null,null,null,null,null,null,null,null,null,null,null,null,null,null,null,null,null,null,null,null,null,{"$f":"IF(CRSDATA!BT841=\"\",\"\",CRSDATA!BT841)","v":""}]
[null,null,null,null,null,null,null,null,null,null,null,null,null,null,null,null,null,null,null,null,null,null,null,null,null,null,null,null,null,null,{"$f":"IF(CRSDATA!BT842=\"\",\"\",CRSDATA!BT842)","v":""}]
[null,null,null,null,null,null,null,null,null,null,null,null,null,null,null,null,null,null,null,null,null,null,null,null,null,null,null,null,null,null,{"$f":"IF(CRSDATA!BT843=\"\",\"\",CRSDATA!BT843)","v":""}]
[null,null,null,null,null,null,null,null,null,null,null,null,null,null,null,null,null,null,null,null,null,null,null,null,null,null,null,null,null,null,{"$f":"IF(CRSDATA!BT844=\"\",\"\",CRSDATA!BT844)","v":""}]
[null,null,null,null,null,null,null,null,null,null,null,null,null,null,null,null,null,null,null,null,null,null,null,null,null,null,null,null,null,null,{"$f":"IF(CRSDATA!BT845=\"\",\"\",CRSDATA!BT845)","v":""}]
[null,null,null,null,null,null,null,null,null,null,null,null,null,null,null,null,null,null,null,null,null,null,null,null,null,null,null,null,null,null,{"$f":"IF(CRSDATA!BT846=\"\",\"\",CRSDATA!BT846)","v":""}]
[null,null,null,null,null,null,null,null,null,null,null,null,null,null,null,null,null,null,null,null,null,null,null,null,null,null,null,null,null,null,{"$f":"IF(CRSDATA!BT847=\"\",\"\",CRSDATA!BT847)","v":""}]
[null,null,null,null,null,null,null,null,null,null,null,null,null,null,null,null,null,null,null,null,null,null,null,null,null,null,null,null,null,null,{"$f":"IF(CRSDATA!BT848=\"\",\"\",CRSDATA!BT848)","v":""}]
[null,null,null,null,null,null,null,null,null,null,null,null,null,null,null,null,null,null,null,null,null,null,null,null,null,null,null,null,null,null,{"$f":"IF(CRSDATA!BT849=\"\",\"\",CRSDATA!BT849)","v":""}]
[null,null,null,null,null,null,null,null,null,null,null,null,null,null,null,null,null,null,null,null,null,null,null,null,null,null,null,null,null,null,{"$f":"IF(CRSDATA!BT850=\"\",\"\",CRSDATA!BT850)","v":""}]
[null,null,null,null,null,null,null,null,null,null,null,null,null,null,null,null,null,null,null,null,null,null,null,null,null,null,null,null,null,null,{"$f":"IF(CRSDATA!BT851=\"\",\"\",CRSDATA!BT851)","v":""}]
[null,null,null,null,null,null,null,null,null,null,null,null,null,null,null,null,null,null,null,null,null,null,null,null,null,null,null,null,null,null,{"$f":"IF(CRSDATA!BT852=\"\",\"\",CRSDATA!BT852)","v":""}]
[null,null,null,null,null,null,null,null,null,null,null,null,null,null,null,null,null,null,null,null,null,null,null,null,null,null,null,null,null,null,{"$f":"IF(CRSDATA!BT853=\"\",\"\",CRSDATA!BT853)","v":""}]
[null,null,null,null,null,null,null,null,null,null,null,null,null,null,null,null,null,null,null,null,null,null,null,null,null,null,null,null,null,null,{"$f":"IF(CRSDATA!BT854=\"\",\"\",CRSDATA!BT854)","v":""}]
[null,null,null,null,null,null,null,null,null,null,null,null,null,null,null,null,null,null,null,null,null,null,null,null,null,null,null,null,null,null,{"$f":"IF(CRSDATA!BT855=\"\",\"\",CRSDATA!BT855)","v":""}]
[null,null,null,null,null,null,null,null,null,null,null,null,null,null,null,null,null,null,null,null,null,null,null,null,null,null,null,null,null,null,{"$f":"IF(CRSDATA!BT856=\"\",\"\",CRSDATA!BT856)","v":""}]
[null,null,null,null,null,null,null,null,null,null,null,null,null,null,null,null,null,null,null,null,null,null,null,null,null,null,null,null,null,null,{"$f":"IF(CRSDATA!BT857=\"\",\"\",CRSDATA!BT857)","v":""}]
[null,null,null,null,null,null,null,null,null,null,null,null,null,null,null,null,null,null,null,null,null,null,null,null,null,null,null,null,null,null,{"$f":"IF(CRSDATA!BT858=\"\",\"\",CRSDATA!BT858)","v":""}]
[null,null,null,null,null,null,null,null,null,null,null,null,null,null,null,null,null,null,null,null,null,null,null,null,null,null,null,null,null,null,{"$f":"IF(CRSDATA!BT859=\"\",\"\",CRSDATA!BT859)","v":""}]
[null,null,null,null,null,null,null,null,null,null,null,null,null,null,null,null,null,null,null,null,null,null,null,null,null,null,null,null,null,null,{"$f":"IF(CRSDATA!BT860=\"\",\"\",CRSDATA!BT860)","v":""}]
[null,null,null,null,null,null,null,null,null,null,null,null,null,null,null,null,null,null,null,null,null,null,null,null,null,null,null,null,null,null,{"$f":"IF(CRSDATA!BT861=\"\",\"\",CRSDATA!BT861)","v":""}]
[null,null,null,null,null,null,null,null,null,null,null,null,null,null,null,null,null,null,null,null,null,null,null,null,null,null,null,null,null,null,{"$f":"IF(CRSDATA!BT862=\"\",\"\",CRSDATA!BT862)","v":""}]
[null,null,null,null,null,null,null,null,null,null,null,null,null,null,null,null,null,null,null,null,null,null,null,null,null,null,null,null,null,null,{"$f":"IF(CRSDATA!BT863=\"\",\"\",CRSDATA!BT863)","v":""}]
[null,null,null,null,null,null,null,null,null,null,null,null,null,null,null,null,null,null,null,null,null,null,null,null,null,null,null,null,null,null,{"$f":"IF(CRSDATA!BT864=\"\",\"\",CRSDATA!BT864)","v":""}]
[null,null,null,null,null,null,null,null,null,null,null,null,null,null,null,null,null,null,null,null,null,null,null,null,null,null,null,null,null,null,{"$f":"IF(CRSDATA!BT865=\"\",\"\",CRSDATA!BT865)","v":""}]
[null,null,null,null,null,null,null,null,null,null,null,null,null,null,null,null,null,null,null,null,null,null,null,null,null,null,null,null,null,null,{"$f":"IF(CRSDATA!BT866=\"\",\"\",CRSDATA!BT866)","v":""}]
[null,null,null,null,null,null,null,null,null,null,null,null,null,null,null,null,null,null,null,null,null,null,null,null,null,null,null,null,null,null,{"$f":"IF(CRSDATA!BT867=\"\",\"\",CRSDATA!BT867)","v":""}]
[null,null,null,null,null,null,null,null,null,null,null,null,null,null,null,null,null,null,null,null,null,null,null,null,null,null,null,null,null,null,{"$f":"IF(CRSDATA!BT868=\"\",\"\",CRSDATA!BT868)","v":""}]
[null,null,null,null,null,null,null,null,null,null,null,null,null,null,null,null,null,null,null,null,null,null,null,null,null,null,null,null,null,null,{"$f":"IF(CRSDATA!BT869=\"\",\"\",CRSDATA!BT869)","v":""}]
[null,null,null,null,null,null,null,null,null,null,null,null,null,null,null,null,null,null,null,null,null,null,null,null,null,null,null,null,null,null,{"$f":"IF(CRSDATA!BT870=\"\",\"\",CRSDATA!BT870)","v":""}]
[null,null,null,null,null,null,null,null,null,null,null,null,null,null,null,null,null,null,null,null,null,null,null,null,null,null,null,null,null,null,{"$f":"IF(CRSDATA!BT871=\"\",\"\",CRSDATA!BT871)","v":""}]
[null,null,null,null,null,null,null,null,null,null,null,null,null,null,null,null,null,null,null,null,null,null,null,null,null,null,null,null,null,null,{"$f":"IF(CRSDATA!BT872=\"\",\"\",CRSDATA!BT872)","v":""}]
[null,null,null,null,null,null,null,null,null,null,null,null,null,null,null,null,null,null,null,null,null,null,null,null,null,null,null,null,null,null,{"$f":"IF(CRSDATA!BT873=\"\",\"\",CRSDATA!BT873)","v":""}]
[null,null,null,null,null,null,null,null,null,null,null,null,null,null,null,null,null,null,null,null,null,null,null,null,null,null,null,null,null,null,{"$f":"IF(CRSDATA!BT874=\"\",\"\",CRSDATA!BT874)","v":""}]
[null,null,null,null,null,null,null,null,null,null,null,null,null,null,null,null,null,null,null,null,null,null,null,null,null,null,null,null,null,null,{"$f":"IF(CRSDATA!BT875=\"\",\"\",CRSDATA!BT875)","v":""}]
[null,null,null,null,null,null,null,null,null,null,null,null,null,null,null,null,null,null,null,null,null,null,null,null,null,null,null,null,null,null,{"$f":"IF(CRSDATA!BT876=\"\",\"\",CRSDATA!BT876)","v":""}]
[null,null,null,null,null,null,null,null,null,null,null,null,null,null,null,null,null,null,null,null,null,null,null,null,null,null,null,null,null,null,{"$f":"IF(CRSDATA!BT877=\"\",\"\",CRSDATA!BT877)","v":""}]
[null,null,null,null,null,null,null,null,null,null,null,null,null,null,null,null,null,null,null,null,null,null,null,null,null,null,null,null,null,null,{"$f":"IF(CRSDATA!BT878=\"\",\"\",CRSDATA!BT878)","v":""}]
[null,null,null,null,null,null,null,null,null,null,null,null,null,null,null,null,null,null,null,null,null,null,null,null,null,null,null,null,null,null,{"$f":"IF(CRSDATA!BT879=\"\",\"\",CRSDATA!BT879)","v":""}]
[null,null,null,null,null,null,null,null,null,null,null,null,null,null,null,null,null,null,null,null,null,null,null,null,null,null,null,null,null,null,{"$f":"IF(CRSDATA!BT880=\"\",\"\",CRSDATA!BT880)","v":""}]
[null,null,null,null,null,null,null,null,null,null,null,null,null,null,null,null,null,null,null,null,null,null,null,null,null,null,null,null,null,null,{"$f":"IF(CRSDATA!BT881=\"\",\"\",CRSDATA!BT881)","v":""}]
[null,null,null,null,null,null,null,null,null,null,null,null,null,null,null,null,null,null,null,null,null,null,null,null,null,null,null,null,null,null,{"$f":"IF(CRSDATA!BT882=\"\",\"\",CRSDATA!BT882)","v":""}]
[null,null,null,null,null,null,null,null,null,null,null,null,null,null,null,null,null,null,null,null,null,null,null,null,null,null,null,null,null,null,{"$f":"IF(CRSDATA!BT883=\"\",\"\",CRSDATA!BT883)","v":""}]
[null,null,null,null,null,null,null,null,null,null,null,null,null,null,null,null,null,null,null,null,null,null,null,null,null,null,null,null,null,null,{"$f":"IF(CRSDATA!BT884=\"\",\"\",CRSDATA!BT884)","v":""}]
[null,null,null,null,null,null,null,null,null,null,null,null,null,null,null,null,null,null,null,null,null,null,null,null,null,null,null,null,null,null,{"$f":"IF(CRSDATA!BT885=\"\",\"\",CRSDATA!BT885)","v":""}]
[null,null,null,null,null,null,null,null,null,null,null,null,null,null,null,null,null,null,null,null,null,null,null,null,null,null,null,null,null,null,{"$f":"IF(CRSDATA!BT886=\"\",\"\",CRSDATA!BT886)","v":""}]
[null,null,null,null,null,null,null,null,null,null,null,null,null,null,null,null,null,null,null,null,null,null,null,null,null,null,null,null,null,null,{"$f":"IF(CRSDATA!BT887=\"\",\"\",CRSDATA!BT887)","v":""}]
[null,null,null,null,null,null,null,null,null,null,null,null,null,null,null,null,null,null,null,null,null,null,null,null,null,null,null,null,null,null,{"$f":"IF(CRSDATA!BT888=\"\",\"\",CRSDATA!BT888)","v":""}]
[null,null,null,null,null,null,null,null,null,null,null,null,null,null,null,null,null,null,null,null,null,null,null,null,null,null,null,null,null,null,{"$f":"IF(CRSDATA!BT889=\"\",\"\",CRSDATA!BT889)","v":""}]
[null,null,null,null,null,null,null,null,null,null,null,null,null,null,null,null,null,null,null,null,null,null,null,null,null,null,null,null,null,null,{"$f":"IF(CRSDATA!BT890=\"\",\"\",CRSDATA!BT890)","v":""}]
[null,null,null,null,null,null,null,null,null,null,null,null,null,null,null,null,null,null,null,null,null,null,null,null,null,null,null,null,null,null,{"$f":"IF(CRSDATA!BT891=\"\",\"\",CRSDATA!BT891)","v":""}]
[null,null,null,null,null,null,null,null,null,null,null,null,null,null,null,null,null,null,null,null,null,null,null,null,null,null,null,null,null,null,{"$f":"IF(CRSDATA!BT892=\"\",\"\",CRSDATA!BT892)","v":""}]
[null,null,null,null,null,null,null,null,null,null,null,null,null,null,null,null,null,null,null,null,null,null,null,null,null,null,null,null,null,null,{"$f":"IF(CRSDATA!BT893=\"\",\"\",CRSDATA!BT893)","v":""}]
[null,null,null,null,null,null,null,null,null,null,null,null,null,null,null,null,null,null,null,null,null,null,null,null,null,null,null,null,null,null,{"$f":"IF(CRSDATA!BT894=\"\",\"\",CRSDATA!BT894)","v":""}]
[null,null,null,null,null,null,null,null,null,null,null,null,null,null,null,null,null,null,null,null,null,null,null,null,null,null,null,null,null,null,{"$f":"IF(CRSDATA!BT895=\"\",\"\",CRSDATA!BT895)","v":""}]
[null,null,null,null,null,null,null,null,null,null,null,null,null,null,null,null,null,null,null,null,null,null,null,null,null,null,null,null,null,null,{"$f":"IF(CRSDATA!BT896=\"\",\"\",CRSDATA!BT896)","v":""}]
[null,null,null,null,null,null,null,null,null,null,null,null,null,null,null,null,null,null,null,null,null,null,null,null,null,null,null,null,null,null,{"$f":"IF(CRSDATA!BT897=\"\",\"\",CRSDATA!BT897)","v":""}]
[null,null,null,null,null,null,null,null,null,null,null,null,null,null,null,null,null,null,null,null,null,null,null,null,null,null,null,null,null,null,{"$f":"IF(CRSDATA!BT898=\"\",\"\",CRSDATA!BT898)","v":""}]
[null,null,null,null,null,null,null,null,null,null,null,null,null,null,null,null,null,null,null,null,null,null,null,null,null,null,null,null,null,null,{"$f":"IF(CRSDATA!BT899=\"\",\"\",CRSDATA!BT899)","v":""}]
[null,null,null,null,null,null,null,null,null,null,null,null,null,null,null,null,null,null,null,null,null,null,null,null,null,null,null,null,null,null,{"$f":"IF(CRSDATA!BT900=\"\",\"\",CRSDATA!BT900)","v":""}]
[null,null,null,null,null,null,null,null,null,null,null,null,null,null,null,null,null,null,null,null,null,null,null,null,null,null,null,null,null,null,{"$f":"IF(CRSDATA!BT901=\"\",\"\",CRSDATA!BT901)","v":""}]
[null,null,null,null,null,null,null,null,null,null,null,null,null,null,null,null,null,null,null,null,null,null,null,null,null,null,null,null,null,null,{"$f":"IF(CRSDATA!BT902=\"\",\"\",CRSDATA!BT902)","v":""}]
[null,null,null,null,null,null,null,null,null,null,null,null,null,null,null,null,null,null,null,null,null,null,null,null,null,null,null,null,null,null,{"$f":"IF(CRSDATA!BT903=\"\",\"\",CRSDATA!BT903)","v":""}]
[null,null,null,null,null,null,null,null,null,null,null,null,null,null,null,null,null,null,null,null,null,null,null,null,null,null,null,null,null,null,{"$f":"IF(CRSDATA!BT904=\"\",\"\",CRSDATA!BT904)","v":""}]
[null,null,null,null,null,null,null,null,null,null,null,null,null,null,null,null,null,null,null,null,null,null,null,null,null,null,null,null,null,null,{"$f":"IF(CRSDATA!BT905=\"\",\"\",CRSDATA!BT905)","v":""}]
[null,null,null,null,null,null,null,null,null,null,null,null,null,null,null,null,null,null,null,null,null,null,null,null,null,null,null,null,null,null,{"$f":"IF(CRSDATA!BT906=\"\",\"\",CRSDATA!BT906)","v":""}]
[null,null,null,null,null,null,null,null,null,null,null,null,null,null,null,null,null,null,null,null,null,null,null,null,null,null,null,null,null,null,{"$f":"IF(CRSDATA!BT907=\"\",\"\",CRSDATA!BT907)","v":""}]
[null,null,null,null,null,null,null,null,null,null,null,null,null,null,null,null,null,null,null,null,null,null,null,null,null,null,null,null,null,null,{"$f":"IF(CRSDATA!BT908=\"\",\"\",CRSDATA!BT908)","v":""}]
[null,null,null,null,null,null,null,null,null,null,null,null,null,null,null,null,null,null,null,null,null,null,null,null,null,null,null,null,null,null,{"$f":"IF(CRSDATA!BT909=\"\",\"\",CRSDATA!BT909)","v":""}]
[null,null,null,null,null,null,null,null,null,null,null,null,null,null,null,null,null,null,null,null,null,null,null,null,null,null,null,null,null,null,{"$f":"IF(CRSDATA!BT910=\"\",\"\",CRSDATA!BT910)","v":""}]
[null,null,null,null,null,null,null,null,null,null,null,null,null,null,null,null,null,null,null,null,null,null,null,null,null,null,null,null,null,null,{"$f":"IF(CRSDATA!BT911=\"\",\"\",CRSDATA!BT911)","v":""}]
[null,null,null,null,null,null,null,null,null,null,null,null,null,null,null,null,null,null,null,null,null,null,null,null,null,null,null,null,null,null,{"$f":"IF(CRSDATA!BT912=\"\",\"\",CRSDATA!BT912)","v":""}]
[null,null,null,null,null,null,null,null,null,null,null,null,null,null,null,null,null,null,null,null,null,null,null,null,null,null,null,null,null,null,{"$f":"IF(CRSDATA!BT913=\"\",\"\",CRSDATA!BT913)","v":""}]
[null,null,null,null,null,null,null,null,null,null,null,null,null,null,null,null,null,null,null,null,null,null,null,null,null,null,null,null,null,null,{"$f":"IF(CRSDATA!BT914=\"\",\"\",CRSDATA!BT914)","v":""}]
[null,null,null,null,null,null,null,null,null,null,null,null,null,null,null,null,null,null,null,null,null,null,null,null,null,null,null,null,null,null,{"$f":"IF(CRSDATA!BT915=\"\",\"\",CRSDATA!BT915)","v":""}]
[null,null,null,null,null,null,null,null,null,null,null,null,null,null,null,null,null,null,null,null,null,null,null,null,null,null,null,null,null,null,{"$f":"IF(CRSDATA!BT916=\"\",\"\",CRSDATA!BT916)","v":""}]
[null,null,null,null,null,null,null,null,null,null,null,null,null,null,null,null,null,null,null,null,null,null,null,null,null,null,null,null,null,null,{"$f":"IF(CRSDATA!BT917=\"\",\"\",CRSDATA!BT917)","v":""}]
[null,null,null,null,null,null,null,null,null,null,null,null,null,null,null,null,null,null,null,null,null,null,null,null,null,null,null,null,null,null,{"$f":"IF(CRSDATA!BT918=\"\",\"\",CRSDATA!BT918)","v":""}]
[null,null,null,null,null,null,null,null,null,null,null,null,null,null,null,null,null,null,null,null,null,null,null,null,null,null,null,null,null,null,{"$f":"IF(CRSDATA!BT919=\"\",\"\",CRSDATA!BT919)","v":""}]
[null,null,null,null,null,null,null,null,null,null,null,null,null,null,null,null,null,null,null,null,null,null,null,null,null,null,null,null,null,null,{"$f":"IF(CRSDATA!BT920=\"\",\"\",CRSDATA!BT920)","v":""}]
[null,null,null,null,null,null,null,null,null,null,null,null,null,null,null,null,null,null,null,null,null,null,null,null,null,null,null,null,null,null,{"$f":"IF(CRSDATA!BT921=\"\",\"\",CRSDATA!BT921)","v":""}]
[null,null,null,null,null,null,null,null,null,null,null,null,null,null,null,null,null,null,null,null,null,null,null,null,null,null,null,null,null,null,{"$f":"IF(CRSDATA!BT922=\"\",\"\",CRSDATA!BT922)","v":""}]
[null,null,null,null,null,null,null,null,null,null,null,null,null,null,null,null,null,null,null,null,null,null,null,null,null,null,null,null,null,null,{"$f":"IF(CRSDATA!BT923=\"\",\"\",CRSDATA!BT923)","v":""}]
[null,null,null,null,null,null,null,null,null,null,null,null,null,null,null,null,null,null,null,null,null,null,null,null,null,null,null,null,null,null,{"$f":"IF(CRSDATA!BT924=\"\",\"\",CRSDATA!BT924)","v":""}]
[null,null,null,null,null,null,null,null,null,null,null,null,null,null,null,null,null,null,null,null,null,null,null,null,null,null,null,null,null,null,{"$f":"IF(CRSDATA!BT925=\"\",\"\",CRSDATA!BT925)","v":""}]
[null,null,null,null,null,null,null,null,null,null,null,null,null,null,null,null,null,null,null,null,null,null,null,null,null,null,null,null,null,null,{"$f":"IF(CRSDATA!BT926=\"\",\"\",CRSDATA!BT926)","v":""}]
[null,null,null,null,null,null,null,null,null,null,null,null,null,null,null,null,null,null,null,null,null,null,null,null,null,null,null,null,null,null,{"$f":"IF(CRSDATA!BT927=\"\",\"\",CRSDATA!BT927)","v":""}]
[null,null,null,null,null,null,null,null,null,null,null,null,null,null,null,null,null,null,null,null,null,null,null,null,null,null,null,null,null,null,{"$f":"IF(CRSDATA!BT928=\"\",\"\",CRSDATA!BT928)","v":""}]
[null,null,null,null,null,null,null,null,null,null,null,null,null,null,null,null,null,null,null,null,null,null,null,null,null,null,null,null,null,null,{"$f":"IF(CRSDATA!BT929=\"\",\"\",CRSDATA!BT929)","v":""}]
[null,null,null,null,null,null,null,null,null,null,null,null,null,null,null,null,null,null,null,null,null,null,null,null,null,null,null,null,null,null,{"$f":"IF(CRSDATA!BT930=\"\",\"\",CRSDATA!BT930)","v":""}]
[null,null,null,null,null,null,null,null,null,null,null,null,null,null,null,null,null,null,null,null,null,null,null,null,null,null,null,null,null,null,{"$f":"IF(CRSDATA!BT931=\"\",\"\",CRSDATA!BT931)","v":""}]
[null,null,null,null,null,null,null,null,null,null,null,null,null,null,null,null,null,null,null,null,null,null,null,null,null,null,null,null,null,null,{"$f":"IF(CRSDATA!BT932=\"\",\"\",CRSDATA!BT932)","v":""}]
[null,null,null,null,null,null,null,null,null,null,null,null,null,null,null,null,null,null,null,null,null,null,null,null,null,null,null,null,null,null,{"$f":"IF(CRSDATA!BT933=\"\",\"\",CRSDATA!BT933)","v":""}]
[null,null,null,null,null,null,null,null,null,null,null,null,null,null,null,null,null,null,null,null,null,null,null,null,null,null,null,null,null,null,{"$f":"IF(CRSDATA!BT934=\"\",\"\",CRSDATA!BT934)","v":""}]
[null,null,null,null,null,null,null,null,null,null,null,null,null,null,null,null,null,null,null,null,null,null,null,null,null,null,null,null,null,null,{"$f":"IF(CRSDATA!BT935=\"\",\"\",CRSDATA!BT935)","v":""}]
[null,null,null,null,null,null,null,null,null,null,null,null,null,null,null,null,null,null,null,null,null,null,null,null,null,null,null,null,null,null,{"$f":"IF(CRSDATA!BT936=\"\",\"\",CRSDATA!BT936)","v":""}]
[null,null,null,null,null,null,null,null,null,null,null,null,null,null,null,null,null,null,null,null,null,null,null,null,null,null,null,null,null,null,{"$f":"IF(CRSDATA!BT937=\"\",\"\",CRSDATA!BT937)","v":""}]
[null,null,null,null,null,null,null,null,null,null,null,null,null,null,null,null,null,null,null,null,null,null,null,null,null,null,null,null,null,null,{"$f":"IF(CRSDATA!BT938=\"\",\"\",CRSDATA!BT938)","v":""}]
[null,null,null,null,null,null,null,null,null,null,null,null,null,null,null,null,null,null,null,null,null,null,null,null,null,null,null,null,null,null,{"$f":"IF(CRSDATA!BT939=\"\",\"\",CRSDATA!BT939)","v":""}]
[null,null,null,null,null,null,null,null,null,null,null,null,null,null,null,null,null,null,null,null,null,null,null,null,null,null,null,null,null,null,{"$f":"IF(CRSDATA!BT940=\"\",\"\",CRSDATA!BT940)","v":""}]
[null,null,null,null,null,null,null,null,null,null,null,null,null,null,null,null,null,null,null,null,null,null,null,null,null,null,null,null,null,null,{"$f":"IF(CRSDATA!BT941=\"\",\"\",CRSDATA!BT941)","v":""}]
[null,null,null,null,null,null,null,null,null,null,null,null,null,null,null,null,null,null,null,null,null,null,null,null,null,null,null,null,null,null,{"$f":"IF(CRSDATA!BT942=\"\",\"\",CRSDATA!BT942)","v":""}]
[null,null,null,null,null,null,null,null,null,null,null,null,null,null,null,null,null,null,null,null,null,null,null,null,null,null,null,null,null,null,{"$f":"IF(CRSDATA!BT943=\"\",\"\",CRSDATA!BT943)","v":""}]
[null,null,null,null,null,null,null,null,null,null,null,null,null,null,null,null,null,null,null,null,null,null,null,null,null,null,null,null,null,null,{"$f":"IF(CRSDATA!BT944=\"\",\"\",CRSDATA!BT944)","v":""}]
[null,null,null,null,null,null,null,null,null,null,null,null,null,null,null,null,null,null,null,null,null,null,null,null,null,null,null,null,null,null,{"$f":"IF(CRSDATA!BT945=\"\",\"\",CRSDATA!BT945)","v":""}]
[null,null,null,null,null,null,null,null,null,null,null,null,null,null,null,null,null,null,null,null,null,null,null,null,null,null,null,null,null,null,{"$f":"IF(CRSDATA!BT946=\"\",\"\",CRSDATA!BT946)","v":""}]
[null,null,null,null,null,null,null,null,null,null,null,null,null,null,null,null,null,null,null,null,null,null,null,null,null,null,null,null,null,null,{"$f":"IF(CRSDATA!BT947=\"\",\"\",CRSDATA!BT947)","v":""}]
[null,null,null,null,null,null,null,null,null,null,null,null,null,null,null,null,null,null,null,null,null,null,null,null,null,null,null,null,null,null,{"$f":"IF(CRSDATA!BT948=\"\",\"\",CRSDATA!BT948)","v":""}]
[null,null,null,null,null,null,null,null,null,null,null,null,null,null,null,null,null,null,null,null,null,null,null,null,null,null,null,null,null,null,{"$f":"IF(CRSDATA!BT949=\"\",\"\",CRSDATA!BT949)","v":""}]
[null,null,null,null,null,null,null,null,null,null,null,null,null,null,null,null,null,null,null,null,null,null,null,null,null,null,null,null,null,null,{"$f":"IF(CRSDATA!BT950=\"\",\"\",CRSDATA!BT950)","v":""}]
[null,null,null,null,null,null,null,null,null,null,null,null,null,null,null,null,null,null,null,null,null,null,null,null,null,null,null,null,null,null,{"$f":"IF(CRSDATA!BT951=\"\",\"\",CRSDATA!BT951)","v":""}]
[null,null,null,null,null,null,null,null,null,null,null,null,null,null,null,null,null,null,null,null,null,null,null,null,null,null,null,null,null,null,{"$f":"IF(CRSDATA!BT952=\"\",\"\",CRSDATA!BT952)","v":""}]
[null,null,null,null,null,null,null,null,null,null,null,null,null,null,null,null,null,null,null,null,null,null,null,null,null,null,null,null,null,null,{"$f":"IF(CRSDATA!BT953=\"\",\"\",CRSDATA!BT953)","v":""}]
[null,null,null,null,null,null,null,null,null,null,null,null,null,null,null,null,null,null,null,null,null,null,null,null,null,null,null,null,null,null,{"$f":"IF(CRSDATA!BT954=\"\",\"\",CRSDATA!BT954)","v":""}]
[null,null,null,null,null,null,null,null,null,null,null,null,null,null,null,null,null,null,null,null,null,null,null,null,null,null,null,null,null,null,{"$f":"IF(CRSDATA!BT955=\"\",\"\",CRSDATA!BT955)","v":""}]
[null,null,null,null,null,null,null,null,null,null,null,null,null,null,null,null,null,null,null,null,null,null,null,null,null,null,null,null,null,null,{"$f":"IF(CRSDATA!BT956=\"\",\"\",CRSDATA!BT956)","v":""}]
[null,null,null,null,null,null,null,null,null,null,null,null,null,null,null,null,null,null,null,null,null,null,null,null,null,null,null,null,null,null,{"$f":"IF(CRSDATA!BT957=\"\",\"\",CRSDATA!BT957)","v":""}]
[null,null,null,null,null,null,null,null,null,null,null,null,null,null,null,null,null,null,null,null,null,null,null,null,null,null,null,null,null,null,{"$f":"IF(CRSDATA!BT958=\"\",\"\",CRSDATA!BT958)","v":""}]
[null,null,null,null,null,null,null,null,null,null,null,null,null,null,null,null,null,null,null,null,null,null,null,null,null,null,null,null,null,null,{"$f":"IF(CRSDATA!BT959=\"\",\"\",CRSDATA!BT959)","v":""}]
[null,null,null,null,null,null,null,null,null,null,null,null,null,null,null,null,null,null,null,null,null,null,null,null,null,null,null,null,null,null,{"$f":"IF(CRSDATA!BT960=\"\",\"\",CRSDATA!BT960)","v":""}]
[null,null,null,null,null,null,null,null,null,null,null,null,null,null,null,null,null,null,null,null,null,null,null,null,null,null,null,null,null,null,{"$f":"IF(CRSDATA!BT961=\"\",\"\",CRSDATA!BT961)","v":""}]
[null,null,null,null,null,null,null,null,null,null,null,null,null,null,null,null,null,null,null,null,null,null,null,null,null,null,null,null,null,null,{"$f":"IF(CRSDATA!BT962=\"\",\"\",CRSDATA!BT962)","v":""}]
[null,null,null,null,null,null,null,null,null,null,null,null,null,null,null,null,null,null,null,null,null,null,null,null,null,null,null,null,null,null,{"$f":"IF(CRSDATA!BT963=\"\",\"\",CRSDATA!BT963)","v":""}]
[null,null,null,null,null,null,null,null,null,null,null,null,null,null,null,null,null,null,null,null,null,null,null,null,null,null,null,null,null,null,{"$f":"IF(CRSDATA!BT964=\"\",\"\",CRSDATA!BT964)","v":""}]
[null,null,null,null,null,null,null,null,null,null,null,null,null,null,null,null,null,null,null,null,null,null,null,null,null,null,null,null,null,null,{"$f":"IF(CRSDATA!BT965=\"\",\"\",CRSDATA!BT965)","v":""}]
[null,null,null,null,null,null,null,null,null,null,null,null,null,null,null,null,null,null,null,null,null,null,null,null,null,null,null,null,null,null,{"$f":"IF(CRSDATA!BT966=\"\",\"\",CRSDATA!BT966)","v":""}]
[null,null,null,null,null,null,null,null,null,null,null,null,null,null,null,null,null,null,null,null,null,null,null,null,null,null,null,null,null,null,{"$f":"IF(CRSDATA!BT967=\"\",\"\",CRSDATA!BT967)","v":""}]
[null,null,null,null,null,null,null,null,null,null,null,null,null,null,null,null,null,null,null,null,null,null,null,null,null,null,null,null,null,null,{"$f":"IF(CRSDATA!BT968=\"\",\"\",CRSDATA!BT968)","v":""}]
[null,null,null,null,null,null,null,null,null,null,null,null,null,null,null,null,null,null,null,null,null,null,null,null,null,null,null,null,null,null,{"$f":"IF(CRSDATA!BT969=\"\",\"\",CRSDATA!BT969)","v":""}]
[null,null,null,null,null,null,null,null,null,null,null,null,null,null,null,null,null,null,null,null,null,null,null,null,null,null,null,null,null,null,{"$f":"IF(CRSDATA!BT970=\"\",\"\",CRSDATA!BT970)","v":""}]
[null,null,null,null,null,null,null,null,null,null,null,null,null,null,null,null,null,null,null,null,null,null,null,null,null,null,null,null,null,null,{"$f":"IF(CRSDATA!BT971=\"\",\"\",CRSDATA!BT971)","v":""}]
[null,null,null,null,null,null,null,null,null,null,null,null,null,null,null,null,null,null,null,null,null,null,null,null,null,null,null,null,null,null,{"$f":"IF(CRSDATA!BT972=\"\",\"\",CRSDATA!BT972)","v":""}]
[null,null,null,null,null,null,null,null,null,null,null,null,null,null,null,null,null,null,null,null,null,null,null,null,null,null,null,null,null,null,{"$f":"IF(CRSDATA!BT973=\"\",\"\",CRSDATA!BT973)","v":""}]
[null,null,null,null,null,null,null,null,null,null,null,null,null,null,null,null,null,null,null,null,null,null,null,null,null,null,null,null,null,null,{"$f":"IF(CRSDATA!BT974=\"\",\"\",CRSDATA!BT974)","v":""}]
[null,null,null,null,null,null,null,null,null,null,null,null,null,null,null,null,null,null,null,null,null,null,null,null,null,null,null,null,null,null,{"$f":"IF(CRSDATA!BT975=\"\",\"\",CRSDATA!BT975)","v":""}]
[null,null,null,null,null,null,null,null,null,null,null,null,null,null,null,null,null,null,null,null,null,null,null,null,null,null,null,null,null,null,{"$f":"IF(CRSDATA!BT976=\"\",\"\",CRSDATA!BT976)","v":""}]
[null,null,null,null,null,null,null,null,null,null,null,null,null,null,null,null,null,null,null,null,null,null,null,null,null,null,null,null,null,null,{"$f":"IF(CRSDATA!BT977=\"\",\"\",CRSDATA!BT977)","v":""}]
[null,null,null,null,null,null,null,null,null,null,null,null,null,null,null,null,null,null,null,null,null,null,null,null,null,null,null,null,null,null,{"$f":"IF(CRSDATA!BT978=\"\",\"\",CRSDATA!BT978)","v":""}]
[null,null,null,null,null,null,null,null,null,null,null,null,null,null,null,null,null,null,null,null,null,null,null,null,null,null,null,null,null,null,{"$f":"IF(CRSDATA!BT979=\"\",\"\",CRSDATA!BT979)","v":""}]
[null,null,null,null,null,null,null,null,null,null,null,null,null,null,null,null,null,null,null,null,null,null,null,null,null,null,null,null,null,null,{"$f":"IF(CRSDATA!BT980=\"\",\"\",CRSDATA!BT980)","v":""}]
[null,null,null,null,null,null,null,null,null,null,null,null,null,null,null,null,null,null,null,null,null,null,null,null,null,null,null,null,null,null,{"$f":"IF(CRSDATA!BT981=\"\",\"\",CRSDATA!BT981)","v":""}]
[null,null,null,null,null,null,null,null,null,null,null,null,null,null,null,null,null,null,null,null,null,null,null,null,null,null,null,null,null,null,{"$f":"IF(CRSDATA!BT982=\"\",\"\",CRSDATA!BT982)","v":""}]
[null,null,null,null,null,null,null,null,null,null,null,null,null,null,null,null,null,null,null,null,null,null,null,null,null,null,null,null,null,null,{"$f":"IF(CRSDATA!BT983=\"\",\"\",CRSDATA!BT983)","v":""}]
[null,null,null,null,null,null,null,null,null,null,null,null,null,null,null,null,null,null,null,null,null,null,null,null,null,null,null,null,null,null,{"$f":"IF(CRSDATA!BT984=\"\",\"\",CRSDATA!BT984)","v":""}]
[null,null,null,null,null,null,null,null,null,null,null,null,null,null,null,null,null,null,null,null,null,null,null,null,null,null,null,null,null,null,{"$f":"IF(CRSDATA!BT985=\"\",\"\",CRSDATA!BT985)","v":""}]
[null,null,null,null,null,null,null,null,null,null,null,null,null,null,null,null,null,null,null,null,null,null,null,null,null,null,null,null,null,null,{"$f":"IF(CRSDATA!BT986=\"\",\"\",CRSDATA!BT986)","v":""}]
[null,null,null,null,null,null,null,null,null,null,null,null,null,null,null,null,null,null,null,null,null,null,null,null,null,null,null,null,null,null,{"$f":"IF(CRSDATA!BT987=\"\",\"\",CRSDATA!BT987)","v":""}]
[null,null,null,null,null,null,null,null,null,null,null,null,null,null,null,null,null,null,null,null,null,null,null,null,null,null,null,null,null,null,{"$f":"IF(CRSDATA!BT988=\"\",\"\",CRSDATA!BT988)","v":""}]
[null,null,null,null,null,null,null,null,null,null,null,null,null,null,null,null,null,null,null,null,null,null,null,null,null,null,null,null,null,null,{"$f":"IF(CRSDATA!BT989=\"\",\"\",CRSDATA!BT989)","v":""}]
[null,null,null,null,null,null,null,null,null,null,null,null,null,null,null,null,null,null,null,null,null,null,null,null,null,null,null,null,null,null,{"$f":"IF(CRSDATA!BT990=\"\",\"\",CRSDATA!BT990)","v":""}]
[null,null,null,null,null,null,null,null,null,null,null,null,null,null,null,null,null,null,null,null,null,null,null,null,null,null,null,null,null,null,{"$f":"IF(CRSDATA!BT991=\"\",\"\",CRSDATA!BT991)","v":""}]
[null,null,null,null,null,null,null,null,null,null,null,null,null,null,null,null,null,null,null,null,null,null,null,null,null,null,null,null,null,null,{"$f":"IF(CRSDATA!BT992=\"\",\"\",CRSDATA!BT992)","v":""}]
[null,null,null,null,null,null,null,null,null,null,null,null,null,null,null,null,null,null,null,null,null,null,null,null,null,null,null,null,null,null,{"$f":"IF(CRSDATA!BT993=\"\",\"\",CRSDATA!BT993)","v":""}]
[null,null,null,null,null,null,null,null,null,null,null,null,null,null,null,null,null,null,null,null,null,null,null,null,null,null,null,null,null,null,{"$f":"IF(CRSDATA!BT994=\"\",\"\",CRSDATA!BT994)","v":""}]
[null,null,null,null,null,null,null,null,null,null,null,null,null,null,null,null,null,null,null,null,null,null,null,null,null,null,null,null,null,null,{"$f":"IF(CRSDATA!BT995=\"\",\"\",CRSDATA!BT995)","v":""}]
[null,null,null,null,null,null,null,null,null,null,null,null,null,null,null,null,null,null,null,null,null,null,null,null,null,null,null,null,null,null,{"$f":"IF(CRSDATA!BT996=\"\",\"\",CRSDATA!BT996)","v":""}]
[null,null,null,null,null,null,null,null,null,null,null,null,null,null,null,null,null,null,null,null,null,null,null,null,null,null,null,null,null,null,{"$f":"IF(CRSDATA!BT997=\"\",\"\",CRSDATA!BT997)","v":""}]
[null,null,null,null,null,null,null,null,null,null,null,null,null,null,null,null,null,null,null,null,null,null,null,null,null,null,null,null,null,null,{"$f":"IF(CRSDATA!BT998=\"\",\"\",CRSDATA!BT998)","v":""}]
[null,null,null,null,null,null,null,null,null,null,null,null,null,null,null,null,null,null,null,null,null,null,null,null,null,null,null,null,null,null,{"$f":"IF(CRSDATA!BT999=\"\",\"\",CRSDATA!BT999)","v":""}]
[null,null,null,null,null,null,null,null,null,null,null,null,null,null,null,null,null,null,null,null,null,null,null,null,null,null,null,null,null,null,{"$f":"IF(CRSDATA!BT1000=\"\",\"\",CRSDATA!BT1000)","v":""}]
[null,null,null,null,null,null,null,null,null,null,null,null,null,null,null,null,null,null,null,null,null,null,null,null,null,null,null,null,null,null,{"$f":"IF(CRSDATA!BT1001=\"\",\"\",CRSDATA!BT1001)","v":""}]
[null,null,null,null,null,null,null,null,null,null,null,null,null,null,null,null,null,null,null,null,null,null,null,null,null,null,null,null,null,null,{"$f":"IF(CRSDATA!BT1002=\"\",\"\",CRSDATA!BT1002)","v":""}]
[null,null,null,null,null,null,null,null,null,null,null,null,null,null,null,null,null,null,null,null,null,null,null,null,null,null,null,null,null,null,{"$f":"IF(CRSDATA!BT1003=\"\",\"\",CRSDATA!BT1003)","v":""}]
[null,null,null,null,null,null,null,null,null,null,null,null,null,null,null,null,null,null,null,null,null,null,null,null,null,null,null,null,null,null,{"$f":"IF(CRSDATA!BT1004=\"\",\"\",CRSDATA!BT1004)","v":""}]
[null,null,null,null,null,null,null,null,null,null,null,null,null,null,null,null,null,null,null,null,null,null,null,null,null,null,null,null,null,null,{"$f":"IF(CRSDATA!BT1005=\"\",\"\",CRSDATA!BT1005)","v":""}]
[null,null,null,null,null,null,null,null,null,null,null,null,null,null,null,null,null,null,null,null,null,null,null,null,null,null,null,null,null,null,{"$f":"IF(CRSDATA!BT1006=\"\",\"\",CRSDATA!BT1006)","v":""}]
[null,null,null,null,null,null,null,null,null,null,null,null,null,null,null,null,null,null,null,null,null,null,null,null,null,null,null,null,null,null,{"$f":"IF(CRSDATA!BT1007=\"\",\"\",CRSDATA!BT1007)","v":""}]
[null,null,null,null,null,null,null,null,null,null,null,null,null,null,null,null,null,null,null,null,null,null,null,null,null,null,null,null,null,null,{"$f":"IF(CRSDATA!BT1008=\"\",\"\",CRSDATA!BT1008)","v":""}]
[null,null,null,null,null,null,null,null,null,null,null,null,null,null,null,null,null,null,null,null,null,null,null,null,null,null,null,null,null,null,{"$f":"IF(CRSDATA!BT1009=\"\",\"\",CRSDATA!BT1009)","v":""}]
[null,null,null,null,null,null,null,null,null,null,null,null,null,null,null,null,null,null,null,null,null,null,null,null,null,null,null,null,null,null,{"$f":"IF(CRSDATA!BT1010=\"\",\"\",CRSDATA!BT1010)","v":""}]
[null,null,null,null,null,null,null,null,null,null,null,null,null,null,null,null,null,null,null,null,null,null,null,null,null,null,null,null,null,null,{"$f":"IF(CRSDATA!BT1011=\"\",\"\",CRSDATA!BT1011)","v":""}]
[null,null,null,null,null,null,null,null,null,null,null,null,null,null,null,null,null,null,null,null,null,null,null,null,null,null,null,null,null,null,{"$f":"IF(CRSDATA!BT1012=\"\",\"\",CRSDATA!BT1012)","v":""}]
[null,null,null,null,null,null,null,null,null,null,null,null,null,null,null,null,null,null,null,null,null,null,null,null,null,null,null,null,null,null,{"$f":"IF(CRSDATA!BT1013=\"\",\"\",CRSDATA!BT1013)","v":""}]
[null,null,null,null,null,null,null,null,null,null,null,null,null,null,null,null,null,null,null,null,null,null,null,null,null,null,null,null,null,null,{"$f":"IF(CRSDATA!BT1014=\"\",\"\",CRSDATA!BT1014)","v":""}]
[null,null,null,null,null,null,null,null,null,null,null,null,null,null,null,null,null,null,null,null,null,null,null,null,null,null,null,null,null,null,{"$f":"IF(CRSDATA!BT1015=\"\",\"\",CRSDATA!BT1015)","v":""}]
[null,null,null,null,null,null,null,null,null,null,null,null,null,null,null,null,null,null,null,null,null,null,null,null,null,null,null,null,null,null,{"$f":"IF(CRSDATA!BT1016=\"\",\"\",CRSDATA!BT1016)","v":""}]
[null,null,null,null,null,null,null,null,null,null,null,null,null,null,null,null,null,null,null,null,null,null,null,null,null,null,null,null,null,null,{"$f":"IF(CRSDATA!BT1017=\"\",\"\",CRSDATA!BT1017)","v":""}]
[null,null,null,null,null,null,null,null,null,null,null,null,null,null,null,null,null,null,null,null,null,null,null,null,null,null,null,null,null,null,{"$f":"IF(CRSDATA!BT1018=\"\",\"\",CRSDATA!BT1018)","v":""}]
[null,null,null,null,null,null,null,null,null,null,null,null,null,null,null,null,null,null,null,null,null,null,null,null,null,null,null,null,null,null,{"$f":"IF(CRSDATA!BT1019=\"\",\"\",CRSDATA!BT1019)","v":""}]
[null,null,null,null,null,null,null,null,null,null,null,null,null,null,null,null,null,null,null,null,null,null,null,null,null,null,null,null,null,null,{"$f":"IF(CRSDATA!BT1020=\"\",\"\",CRSDATA!BT1020)","v":""}]
[null,null,null,null,null,null,null,null,null,null,null,null,null,null,null,null,null,null,null,null,null,null,null,null,null,null,null,null,null,null,{"$f":"IF(CRSDATA!BT1021=\"\",\"\",CRSDATA!BT1021)","v":""}]
[null,null,null,null,null,null,null,null,null,null,null,null,null,null,null,null,null,null,null,null,null,null,null,null,null,null,null,null,null,null,{"$f":"IF(CRSDATA!BT1022=\"\",\"\",CRSDATA!BT1022)","v":""}]
[null,null,null,null,null,null,null,null,null,null,null,null,null,null,null,null,null,null,null,null,null,null,null,null,null,null,null,null,null,null,{"$f":"IF(CRSDATA!BT1023=\"\",\"\",CRSDATA!BT1023)","v":""}]
[null,null,null,null,null,null,null,null,null,null,null,null,null,null,null,null,null,null,null,null,null,null,null,null,null,null,null,null,null,null,{"$f":"IF(CRSDATA!BT1024=\"\",\"\",CRSDATA!BT1024)","v":""}]
[null,null,null,null,null,null,null,null,null,null,null,null,null,null,null,null,null,null,null,null,null,null,null,null,null,null,null,null,null,null,{"$f":"IF(CRSDATA!BT1025=\"\",\"\",CRSDATA!BT1025)","v":""}]
[null,null,null,null,null,null,null,null,null,null,null,null,null,null,null,null,null,null,null,null,null,null,null,null,null,null,null,null,null,null,{"$f":"IF(CRSDATA!BT1026=\"\",\"\",CRSDATA!BT1026)","v":""}]
[null,null,null,null,null,null,null,null,null,null,null,null,null,null,null,null,null,null,null,null,null,null,null,null,null,null,null,null,null,null,{"$f":"IF(CRSDATA!BT1027=\"\",\"\",CRSDATA!BT1027)","v":""}]
[null,null,null,null,null,null,null,null,null,null,null,null,null,null,null,null,null,null,null,null,null,null,null,null,null,null,null,null,null,null,{"$f":"IF(CRSDATA!BT1028=\"\",\"\",CRSDATA!BT1028)","v":""}]
[null,null,null,null,null,null,null,null,null,null,null,null,null,null,null,null,null,null,null,null,null,null,null,null,null,null,null,null,null,null,{"$f":"IF(CRSDATA!BT1029=\"\",\"\",CRSDATA!BT1029)","v":""}]
[null,null,null,null,null,null,null,null,null,null,null,null,null,null,null,null,null,null,null,null,null,null,null,null,null,null,null,null,null,null,{"$f":"IF(CRSDATA!BT1030=\"\",\"\",CRSDATA!BT1030)","v":""}]
[null,null,null,null,null,null,null,null,null,null,null,null,null,null,null,null,null,null,null,null,null,null,null,null,null,null,null,null,null,null,{"$f":"IF(CRSDATA!BT1031=\"\",\"\",CRSDATA!BT1031)","v":""}]
[null,null,null,null,null,null,null,null,null,null,null,null,null,null,null,null,null,null,null,null,null,null,null,null,null,null,null,null,null,null,{"$f":"IF(CRSDATA!BT1032=\"\",\"\",CRSDATA!BT1032)","v":""}]
[null,null,null,null,null,null,null,null,null,null,null,null,null,null,null,null,null,null,null,null,null,null,null,null,null,null,null,null,null,null,{"$f":"IF(CRSDATA!BT1033=\"\",\"\",CRSDATA!BT1033)","v":""}]
[null,null,null,null,null,null,null,null,null,null,null,null,null,null,null,null,null,null,null,null,null,null,null,null,null,null,null,null,null,null,{"$f":"IF(CRSDATA!BT1034=\"\",\"\",CRSDATA!BT1034)","v":""}]
[null,null,null,null,null,null,null,null,null,null,null,null,null,null,null,null,null,null,null,null,null,null,null,null,null,null,null,null,null,null,{"$f":"IF(CRSDATA!BT1035=\"\",\"\",CRSDATA!BT1035)","v":""}]
[null,null,null,null,null,null,null,null,null,null,null,null,null,null,null,null,null,null,null,null,null,null,null,null,null,null,null,null,null,null,{"$f":"IF(CRSDATA!BT1036=\"\",\"\",CRSDATA!BT1036)","v":""}]
[null,null,null,null,null,null,null,null,null,null,null,null,null,null,null,null,null,null,null,null,null,null,null,null,null,null,null,null,null,null,{"$f":"IF(CRSDATA!BT1037=\"\",\"\",CRSDATA!BT1037)","v":""}]
[null,null,null,null,null,null,null,null,null,null,null,null,null,null,null,null,null,null,null,null,null,null,null,null,null,null,null,null,null,null,{"$f":"IF(CRSDATA!BT1038=\"\",\"\",CRSDATA!BT1038)","v":""}]
[null,null,null,null,null,null,null,null,null,null,null,null,null,null,null,null,null,null,null,null,null,null,null,null,null,null,null,null,null,null,{"$f":"IF(CRSDATA!BT1039=\"\",\"\",CRSDATA!BT1039)","v":""}]
[null,null,null,null,null,null,null,null,null,null,null,null,null,null,null,null,null,null,null,null,null,null,null,null,null,null,null,null,null,null,{"$f":"IF(CRSDATA!BT1040=\"\",\"\",CRSDATA!BT1040)","v":""}]
[null,null,null,null,null,null,null,null,null,null,null,null,null,null,null,null,null,null,null,null,null,null,null,null,null,null,null,null,null,null,{"$f":"IF(CRSDATA!BT1041=\"\",\"\",CRSDATA!BT1041)","v":""}]
[null,null,null,null,null,null,null,null,null,null,null,null,null,null,null,null,null,null,null,null,null,null,null,null,null,null,null,null,null,null,{"$f":"IF(CRSDATA!BT1042=\"\",\"\",CRSDATA!BT1042)","v":""}]
[null,null,null,null,null,null,null,null,null,null,null,null,null,null,null,null,null,null,null,null,null,null,null,null,null,null,null,null,null,null,{"$f":"IF(CRSDATA!BT1043=\"\",\"\",CRSDATA!BT1043)","v":""}]
[null,null,null,null,null,null,null,null,null,null,null,null,null,null,null,null,null,null,null,null,null,null,null,null,null,null,null,null,null,null,{"$f":"IF(CRSDATA!BT1044=\"\",\"\",CRSDATA!BT1044)","v":""}]
[null,null,null,null,null,null,null,null,null,null,null,null,null,null,null,null,null,null,null,null,null,null,null,null,null,null,null,null,null,null,{"$f":"IF(CRSDATA!BT1045=\"\",\"\",CRSDATA!BT1045)","v":""}]
[null,null,null,null,null,null,null,null,null,null,null,null,null,null,null,null,null,null,null,null,null,null,null,null,null,null,null,null,null,null,{"$f":"IF(CRSDATA!BT1046=\"\",\"\",CRSDATA!BT1046)","v":""}]
[null,null,null,null,null,null,null,null,null,null,null,null,null,null,null,null,null,null,null,null,null,null,null,null,null,null,null,null,null,null,{"$f":"IF(CRSDATA!BT1047=\"\",\"\",CRSDATA!BT1047)","v":""}]
[null,null,null,null,null,null,null,null,null,null,null,null,null,null,null,null,null,null,null,null,null,null,null,null,null,null,null,null,null,null,{"$f":"IF(CRSDATA!BT1048=\"\",\"\",CRSDATA!BT1048)","v":""}]
[null,null,null,null,null,null,null,null,null,null,null,null,null,null,null,null,null,null,null,null,null,null,null,null,null,null,null,null,null,null,{"$f":"IF(CRSDATA!BT1049=\"\",\"\",CRSDATA!BT1049)","v":""}]
[null,null,null,null,null,null,null,null,null,null,null,null,null,null,null,null,null,null,null,null,null,null,null,null,null,null,null,null,null,null,{"$f":"IF(CRSDATA!BT1050=\"\",\"\",CRSDATA!BT1050)","v":""}]
[null,null,null,null,null,null,null,null,null,null,null,null,null,null,null,null,null,null,null,null,null,null,null,null,null,null,null,null,null,null,{"$f":"IF(CRSDATA!BT1051=\"\",\"\",CRSDATA!BT1051)","v":""}]
[null,null,null,null,null,null,null,null,null,null,null,null,null,null,null,null,null,null,null,null,null,null,null,null,null,null,null,null,null,null,{"$f":"IF(CRSDATA!BT1052=\"\",\"\",CRSDATA!BT1052)","v":""}]
[null,null,null,null,null,null,null,null,null,null,null,null,null,null,null,null,null,null,null,null,null,null,null,null,null,null,null,null,null,null,{"$f":"IF(CRSDATA!BT1053=\"\",\"\",CRSDATA!BT1053)","v":""}]
[null,null,null,null,null,null,null,null,null,null,null,null,null,null,null,null,null,null,null,null,null,null,null,null,null,null,null,null,null,null,{"$f":"IF(CRSDATA!BT1054=\"\",\"\",CRSDATA!BT1054)","v":""}]
[null,null,null,null,null,null,null,null,null,null,null,null,null,null,null,null,null,null,null,null,null,null,null,null,null,null,null,null,null,null,{"$f":"IF(CRSDATA!BT1055=\"\",\"\",CRSDATA!BT1055)","v":""}]
[null,null,null,null,null,null,null,null,null,null,null,null,null,null,null,null,null,null,null,null,null,null,null,null,null,null,null,null,null,null,{"$f":"IF(CRSDATA!BT1056=\"\",\"\",CRSDATA!BT1056)","v":""}]
[null,null,null,null,null,null,null,null,null,null,null,null,null,null,null,null,null,null,null,null,null,null,null,null,null,null,null,null,null,null,{"$f":"IF(CRSDATA!BT1057=\"\",\"\",CRSDATA!BT1057)","v":""}]
[null,null,null,null,null,null,null,null,null,null,null,null,null,null,null,null,null,null,null,null,null,null,null,null,null,null,null,null,null,null,{"$f":"IF(CRSDATA!BT1058=\"\",\"\",CRSDATA!BT1058)","v":""}]
[null,null,null,null,null,null,null,null,null,null,null,null,null,null,null,null,null,null,null,null,null,null,null,null,null,null,null,null,null,null,{"$f":"IF(CRSDATA!BT1059=\"\",\"\",CRSDATA!BT1059)","v":""}]
[null,null,null,null,null,null,null,null,null,null,null,null,null,null,null,null,null,null,null,null,null,null,null,null,null,null,null,null,null,null,{"$f":"IF(CRSDATA!BT1060=\"\",\"\",CRSDATA!BT1060)","v":""}]
[null,null,null,null,null,null,null,null,null,null,null,null,null,null,null,null,null,null,null,null,null,null,null,null,null,null,null,null,null,null,{"$f":"IF(CRSDATA!BT1061=\"\",\"\",CRSDATA!BT1061)","v":""}]
[null,null,null,null,null,null,null,null,null,null,null,null,null,null,null,null,null,null,null,null,null,null,null,null,null,null,null,null,null,null,{"$f":"IF(CRSDATA!BT1062=\"\",\"\",CRSDATA!BT1062)","v":""}]
[null,null,null,null,null,null,null,null,null,null,null,null,null,null,null,null,null,null,null,null,null,null,null,null,null,null,null,null,null,null,{"$f":"IF(CRSDATA!BT1063=\"\",\"\",CRSDATA!BT1063)","v":""}]
[null,null,null,null,null,null,null,null,null,null,null,null,null,null,null,null,null,null,null,null,null,null,null,null,null,null,null,null,null,null,{"$f":"IF(CRSDATA!BT1064=\"\",\"\",CRSDATA!BT1064)","v":""}]
[null,null,null,null,null,null,null,null,null,null,null,null,null,null,null,null,null,null,null,null,null,null,null,null,null,null,null,null,null,null,{"$f":"IF(CRSDATA!BT1065=\"\",\"\",CRSDATA!BT1065)","v":""}]
[null,null,null,null,null,null,null,null,null,null,null,null,null,null,null,null,null,null,null,null,null,null,null,null,null,null,null,null,null,null,{"$f":"IF(CRSDATA!BT1066=\"\",\"\",CRSDATA!BT1066)","v":""}]
[null,null,null,null,null,null,null,null,null,null,null,null,null,null,null,null,null,null,null,null,null,null,null,null,null,null,null,null,null,null,{"$f":"IF(CRSDATA!BT1067=\"\",\"\",CRSDATA!BT1067)","v":""}]
[null,null,null,null,null,null,null,null,null,null,null,null,null,null,null,null,null,null,null,null,null,null,null,null,null,null,null,null,null,null,{"$f":"IF(CRSDATA!BT1068=\"\",\"\",CRSDATA!BT1068)","v":""}]
[null,null,null,null,null,null,null,null,null,null,null,null,null,null,null,null,null,null,null,null,null,null,null,null,null,null,null,null,null,null,{"$f":"IF(CRSDATA!BT1069=\"\",\"\",CRSDATA!BT1069)","v":""}]
[null,null,null,null,null,null,null,null,null,null,null,null,null,null,null,null,null,null,null,null,null,null,null,null,null,null,null,null,null,null,{"$f":"IF(CRSDATA!BT1070=\"\",\"\",CRSDATA!BT1070)","v":""}]
[null,null,null,null,null,null,null,null,null,null,null,null,null,null,null,null,null,null,null,null,null,null,null,null,null,null,null,null,null,null,{"$f":"IF(CRSDATA!BT1071=\"\",\"\",CRSDATA!BT1071)","v":""}]
[null,null,null,null,null,null,null,null,null,null,null,null,null,null,null,null,null,null,null,null,null,null,null,null,null,null,null,null,null,null,{"$f":"IF(CRSDATA!BT1072=\"\",\"\",CRSDATA!BT1072)","v":""}]
[null,null,null,null,null,null,null,null,null,null,null,null,null,null,null,null,null,null,null,null,null,null,null,null,null,null,null,null,null,null,{"$f":"IF(CRSDATA!BT1073=\"\",\"\",CRSDATA!BT1073)","v":""}]
[null,null,null,null,null,null,null,null,null,null,null,null,null,null,null,null,null,null,null,null,null,null,null,null,null,null,null,null,null,null,{"$f":"IF(CRSDATA!BT1074=\"\",\"\",CRSDATA!BT1074)","v":""}]
[null,null,null,null,null,null,null,null,null,null,null,null,null,null,null,null,null,null,null,null,null,null,null,null,null,null,null,null,null,null,{"$f":"IF(CRSDATA!BT1075=\"\",\"\",CRSDATA!BT1075)","v":""}]
[null,null,null,null,null,null,null,null,null,null,null,null,null,null,null,null,null,null,null,null,null,null,null,null,null,null,null,null,null,null,{"$f":"IF(CRSDATA!BT1076=\"\",\"\",CRSDATA!BT1076)","v":""}]
[null,null,null,null,null,null,null,null,null,null,null,null,null,null,null,null,null,null,null,null,null,null,null,null,null,null,null,null,null,null,{"$f":"IF(CRSDATA!BT1077=\"\",\"\",CRSDATA!BT1077)","v":""}]
[null,null,null,null,null,null,null,null,null,null,null,null,null,null,null,null,null,null,null,null,null,null,null,null,null,null,null,null,null,null,{"$f":"IF(CRSDATA!BT1078=\"\",\"\",CRSDATA!BT1078)","v":""}]
[null,null,null,null,null,null,null,null,null,null,null,null,null,null,null,null,null,null,null,null,null,null,null,null,null,null,null,null,null,null,{"$f":"IF(CRSDATA!BT1079=\"\",\"\",CRSDATA!BT1079)","v":""}]
[null,null,null,null,null,null,null,null,null,null,null,null,null,null,null,null,null,null,null,null,null,null,null,null,null,null,null,null,null,null,{"$f":"IF(CRSDATA!BT1080=\"\",\"\",CRSDATA!BT1080)","v":""}]
[null,null,null,null,null,null,null,null,null,null,null,null,null,null,null,null,null,null,null,null,null,null,null,null,null,null,null,null,null,null,{"$f":"IF(CRSDATA!BT1081=\"\",\"\",CRSDATA!BT1081)","v":""}]
[null,null,null,null,null,null,null,null,null,null,null,null,null,null,null,null,null,null,null,null,null,null,null,null,null,null,null,null,null,null,{"$f":"IF(CRSDATA!BT1082=\"\",\"\",CRSDATA!BT1082)","v":""}]
[null,null,null,null,null,null,null,null,null,null,null,null,null,null,null,null,null,null,null,null,null,null,null,null,null,null,null,null,null,null,{"$f":"IF(CRSDATA!BT1083=\"\",\"\",CRSDATA!BT1083)","v":""}]
[null,null,null,null,null,null,null,null,null,null,null,null,null,null,null,null,null,null,null,null,null,null,null,null,null,null,null,null,null,null,{"$f":"IF(CRSDATA!BT1084=\"\",\"\",CRSDATA!BT1084)","v":""}]
[null,null,null,null,null,null,null,null,null,null,null,null,null,null,null,null,null,null,null,null,null,null,null,null,null,null,null,null,null,null,{"$f":"IF(CRSDATA!BT1085=\"\",\"\",CRSDATA!BT1085)","v":""}]
[null,null,null,null,null,null,null,null,null,null,null,null,null,null,null,null,null,null,null,null,null,null,null,null,null,null,null,null,null,null,{"$f":"IF(CRSDATA!BT1086=\"\",\"\",CRSDATA!BT1086)","v":""}]
[null,null,null,null,null,null,null,null,null,null,null,null,null,null,null,null,null,null,null,null,null,null,null,null,null,null,null,null,null,null,{"$f":"IF(CRSDATA!BT1087=\"\",\"\",CRSDATA!BT1087)","v":""}]
[null,null,null,null,null,null,null,null,null,null,null,null,null,null,null,null,null,null,null,null,null,null,null,null,null,null,null,null,null,null,{"$f":"IF(CRSDATA!BT1088=\"\",\"\",CRSDATA!BT1088)","v":""}]
[null,null,null,null,null,null,null,null,null,null,null,null,null,null,null,null,null,null,null,null,null,null,null,null,null,null,null,null,null,null,{"$f":"IF(CRSDATA!BT1089=\"\",\"\",CRSDATA!BT1089)","v":""}]
[null,null,null,null,null,null,null,null,null,null,null,null,null,null,null,null,null,null,null,null,null,null,null,null,null,null,null,null,null,null,{"$f":"IF(CRSDATA!BT1090=\"\",\"\",CRSDATA!BT1090)","v":""}]
[null,null,null,null,null,null,null,null,null,null,null,null,null,null,null,null,null,null,null,null,null,null,null,null,null,null,null,null,null,null,{"$f":"IF(CRSDATA!BT1091=\"\",\"\",CRSDATA!BT1091)","v":""}]
[null,null,null,null,null,null,null,null,null,null,null,null,null,null,null,null,null,null,null,null,null,null,null,null,null,null,null,null,null,null,{"$f":"IF(CRSDATA!BT1092=\"\",\"\",CRSDATA!BT1092)","v":""}]
[null,null,null,null,null,null,null,null,null,null,null,null,null,null,null,null,null,null,null,null,null,null,null,null,null,null,null,null,null,null,{"$f":"IF(CRSDATA!BT1093=\"\",\"\",CRSDATA!BT1093)","v":""}]
[null,null,null,null,null,null,null,null,null,null,null,null,null,null,null,null,null,null,null,null,null,null,null,null,null,null,null,null,null,null,{"$f":"IF(CRSDATA!BT1094=\"\",\"\",CRSDATA!BT1094)","v":""}]
[null,null,null,null,null,null,null,null,null,null,null,null,null,null,null,null,null,null,null,null,null,null,null,null,null,null,null,null,null,null,{"$f":"IF(CRSDATA!BT1095=\"\",\"\",CRSDATA!BT1095)","v":""}]
[null,null,null,null,null,null,null,null,null,null,null,null,null,null,null,null,null,null,null,null,null,null,null,null,null,null,null,null,null,null,{"$f":"IF(CRSDATA!BT1096=\"\",\"\",CRSDATA!BT1096)","v":""}]
[null,null,null,null,null,null,null,null,null,null,null,null,null,null,null,null,null,null,null,null,null,null,null,null,null,null,null,null,null,null,{"$f":"IF(CRSDATA!BT1097=\"\",\"\",CRSDATA!BT1097)","v":""}]
[null,null,null,null,null,null,null,null,null,null,null,null,null,null,null,null,null,null,null,null,null,null,null,null,null,null,null,null,null,null,{"$f":"IF(CRSDATA!BT1098=\"\",\"\",CRSDATA!BT1098)","v":""}]
[null,null,null,null,null,null,null,null,null,null,null,null,null,null,null,null,null,null,null,null,null,null,null,null,null,null,null,null,null,null,{"$f":"IF(CRSDATA!BT1099=\"\",\"\",CRSDATA!BT1099)","v":""}]
[null,null,null,null,null,null,null,null,null,null,null,null,null,null,null,null,null,null,null,null,null,null,null,null,null,null,null,null,null,null,{"$f":"IF(CRSDATA!BT1100=\"\",\"\",CRSDATA!BT1100)","v":""}]
[null,null,null,null,null,null,null,null,null,null,null,null,null,null,null,null,null,null,null,null,null,null,null,null,null,null,null,null,null,null,{"$f":"IF(CRSDATA!BT1101=\"\",\"\",CRSDATA!BT1101)","v":""}]
[null,null,null,null,null,null,null,null,null,null,null,null,null,null,null,null,null,null,null,null,null,null,null,null,null,null,null,null,null,null,{"$f":"IF(CRSDATA!BT1102=\"\",\"\",CRSDATA!BT1102)","v":""}]
[null,null,null,null,null,null,null,null,null,null,null,null,null,null,null,null,null,null,null,null,null,null,null,null,null,null,null,null,null,null,{"$f":"IF(CRSDATA!BT1103=\"\",\"\",CRSDATA!BT1103)","v":""}]
[null,null,null,null,null,null,null,null,null,null,null,null,null,null,null,null,null,null,null,null,null,null,null,null,null,null,null,null,null,null,{"$f":"IF(CRSDATA!BT1104=\"\",\"\",CRSDATA!BT1104)","v":""}]
[null,null,null,null,null,null,null,null,null,null,null,null,null,null,null,null,null,null,null,null,null,null,null,null,null,null,null,null,null,null,{"$f":"IF(CRSDATA!BT1105=\"\",\"\",CRSDATA!BT1105)","v":""}]
[null,null,null,null,null,null,null,null,null,null,null,null,null,null,null,null,null,null,null,null,null,null,null,null,null,null,null,null,null,null,{"$f":"IF(CRSDATA!BT1106=\"\",\"\",CRSDATA!BT1106)","v":""}]
[null,null,null,null,null,null,null,null,null,null,null,null,null,null,null,null,null,null,null,null,null,null,null,null,null,null,null,null,null,null,{"$f":"IF(CRSDATA!BT1107=\"\",\"\",CRSDATA!BT1107)","v":""}]
[null,null,null,null,null,null,null,null,null,null,null,null,null,null,null,null,null,null,null,null,null,null,null,null,null,null,null,null,null,null,{"$f":"IF(CRSDATA!BT1108=\"\",\"\",CRSDATA!BT1108)","v":""}]
[null,null,null,null,null,null,null,null,null,null,null,null,null,null,null,null,null,null,null,null,null,null,null,null,null,null,null,null,null,null,{"$f":"IF(CRSDATA!BT1109=\"\",\"\",CRSDATA!BT1109)","v":""}]
[null,null,null,null,null,null,null,null,null,null,null,null,null,null,null,null,null,null,null,null,null,null,null,null,null,null,null,null,null,null,{"$f":"IF(CRSDATA!BT1110=\"\",\"\",CRSDATA!BT1110)","v":""}]
[null,null,null,null,null,null,null,null,null,null,null,null,null,null,null,null,null,null,null,null,null,null,null,null,null,null,null,null,null,null,{"$f":"IF(CRSDATA!BT1111=\"\",\"\",CRSDATA!BT1111)","v":""}]
[null,null,null,null,null,null,null,null,null,null,null,null,null,null,null,null,null,null,null,null,null,null,null,null,null,null,null,null,null,null,{"$f":"IF(CRSDATA!BT1112=\"\",\"\",CRSDATA!BT1112)","v":""}]
[null,null,null,null,null,null,null,null,null,null,null,null,null,null,null,null,null,null,null,null,null,null,null,null,null,null,null,null,null,null,{"$f":"IF(CRSDATA!BT1113=\"\",\"\",CRSDATA!BT1113)","v":""}]
[null,null,null,null,null,null,null,null,null,null,null,null,null,null,null,null,null,null,null,null,null,null,null,null,null,null,null,null,null,null,{"$f":"IF(CRSDATA!BT1114=\"\",\"\",CRSDATA!BT1114)","v":""}]
[null,null,null,null,null,null,null,null,null,null,null,null,null,null,null,null,null,null,null,null,null,null,null,null,null,null,null,null,null,null,{"$f":"IF(CRSDATA!BT1115=\"\",\"\",CRSDATA!BT1115)","v":""}]
[null,null,null,null,null,null,null,null,null,null,null,null,null,null,null,null,null,null,null,null,null,null,null,null,null,null,null,null,null,null,{"$f":"IF(CRSDATA!BT1116=\"\",\"\",CRSDATA!BT1116)","v":""}]
[null,null,null,null,null,null,null,null,null,null,null,null,null,null,null,null,null,null,null,null,null,null,null,null,null,null,null,null,null,null,{"$f":"IF(CRSDATA!BT1117=\"\",\"\",CRSDATA!BT1117)","v":""}]
[null,null,null,null,null,null,null,null,null,null,null,null,null,null,null,null,null,null,null,null,null,null,null,null,null,null,null,null,null,null,{"$f":"IF(CRSDATA!BT1118=\"\",\"\",CRSDATA!BT1118)","v":""}]
[null,null,null,null,null,null,null,null,null,null,null,null,null,null,null,null,null,null,null,null,null,null,null,null,null,null,null,null,null,null,{"$f":"IF(CRSDATA!BT1119=\"\",\"\",CRSDATA!BT1119)","v":""}]
[null,null,null,null,null,null,null,null,null,null,null,null,null,null,null,null,null,null,null,null,null,null,null,null,null,null,null,null,null,null,{"$f":"IF(CRSDATA!BT1120=\"\",\"\",CRSDATA!BT1120)","v":""}]
[null,null,null,null,null,null,null,null,null,null,null,null,null,null,null,null,null,null,null,null,null,null,null,null,null,null,null,null,null,null,{"$f":"IF(CRSDATA!BT1121=\"\",\"\",CRSDATA!BT1121)","v":""}]
[null,null,null,null,null,null,null,null,null,null,null,null,null,null,null,null,null,null,null,null,null,null,null,null,null,null,null,null,null,null,{"$f":"IF(CRSDATA!BT1122=\"\",\"\",CRSDATA!BT1122)","v":""}]
[null,null,null,null,null,null,null,null,null,null,null,null,null,null,null,null,null,null,null,null,null,null,null,null,null,null,null,null,null,null,{"$f":"IF(CRSDATA!BT1123=\"\",\"\",CRSDATA!BT1123)","v":""}]
[null,null,null,null,null,null,null,null,null,null,null,null,null,null,null,null,null,null,null,null,null,null,null,null,null,null,null,null,null,null,{"$f":"IF(CRSDATA!BT1124=\"\",\"\",CRSDATA!BT1124)","v":""}]
[null,null,null,null,null,null,null,null,null,null,null,null,null,null,null,null,null,null,null,null,null,null,null,null,null,null,null,null,null,null,{"$f":"IF(CRSDATA!BT1125=\"\",\"\",CRSDATA!BT1125)","v":""}]
[null,null,null,null,null,null,null,null,null,null,null,null,null,null,null,null,null,null,null,null,null,null,null,null,null,null,null,null,null,null,{"$f":"IF(CRSDATA!BT1126=\"\",\"\",CRSDATA!BT1126)","v":""}]
[null,null,null,null,null,null,null,null,null,null,null,null,null,null,null,null,null,null,null,null,null,null,null,null,null,null,null,null,null,null,{"$f":"IF(CRSDATA!BT1127=\"\",\"\",CRSDATA!BT1127)","v":""}]
[null,null,null,null,null,null,null,null,null,null,null,null,null,null,null,null,null,null,null,null,null,null,null,null,null,null,null,null,null,null,{"$f":"IF(CRSDATA!BT1128=\"\",\"\",CRSDATA!BT1128)","v":""}]
[null,null,null,null,null,null,null,null,null,null,null,null,null,null,null,null,null,null,null,null,null,null,null,null,null,null,null,null,null,null,{"$f":"IF(CRSDATA!BT1129=\"\",\"\",CRSDATA!BT1129)","v":""}]
[null,null,null,null,null,null,null,null,null,null,null,null,null,null,null,null,null,null,null,null,null,null,null,null,null,null,null,null,null,null,{"$f":"IF(CRSDATA!BT1130=\"\",\"\",CRSDATA!BT1130)","v":""}]
[null,null,null,null,null,null,null,null,null,null,null,null,null,null,null,null,null,null,null,null,null,null,null,null,null,null,null,null,null,null,{"$f":"IF(CRSDATA!BT1131=\"\",\"\",CRSDATA!BT1131)","v":""}]
[null,null,null,null,null,null,null,null,null,null,null,null,null,null,null,null,null,null,null,null,null,null,null,null,null,null,null,null,null,null,{"$f":"IF(CRSDATA!BT1132=\"\",\"\",CRSDATA!BT1132)","v":""}]
[null,null,null,null,null,null,null,null,null,null,null,null,null,null,null,null,null,null,null,null,null,null,null,null,null,null,null,null,null,null,{"$f":"IF(CRSDATA!BT1133=\"\",\"\",CRSDATA!BT1133)","v":""}]
[null,null,null,null,null,null,null,null,null,null,null,null,null,null,null,null,null,null,null,null,null,null,null,null,null,null,null,null,null,null,{"$f":"IF(CRSDATA!BT1134=\"\",\"\",CRSDATA!BT1134)","v":""}]
[null,null,null,null,null,null,null,null,null,null,null,null,null,null,null,null,null,null,null,null,null,null,null,null,null,null,null,null,null,null,{"$f":"IF(CRSDATA!BT1135=\"\",\"\",CRSDATA!BT1135)","v":""}]
[null,null,null,null,null,null,null,null,null,null,null,null,null,null,null,null,null,null,null,null,null,null,null,null,null,null,null,null,null,null,{"$f":"IF(CRSDATA!BT1136=\"\",\"\",CRSDATA!BT1136)","v":""}]
[null,null,null,null,null,null,null,null,null,null,null,null,null,null,null,null,null,null,null,null,null,null,null,null,null,null,null,null,null,null,{"$f":"IF(CRSDATA!BT1137=\"\",\"\",CRSDATA!BT1137)","v":""}]
[null,null,null,null,null,null,null,null,null,null,null,null,null,null,null,null,null,null,null,null,null,null,null,null,null,null,null,null,null,null,{"$f":"IF(CRSDATA!BT1138=\"\",\"\",CRSDATA!BT1138)","v":""}]
[null,null,null,null,null,null,null,null,null,null,null,null,null,null,null,null,null,null,null,null,null,null,null,null,null,null,null,null,null,null,{"$f":"IF(CRSDATA!BT1139=\"\",\"\",CRSDATA!BT1139)","v":""}]
[null,null,null,null,null,null,null,null,null,null,null,null,null,null,null,null,null,null,null,null,null,null,null,null,null,null,null,null,null,null,{"$f":"IF(CRSDATA!BT1140=\"\",\"\",CRSDATA!BT1140)","v":""}]
[null,null,null,null,null,null,null,null,null,null,null,null,null,null,null,null,null,null,null,null,null,null,null,null,null,null,null,null,null,null,{"$f":"IF(CRSDATA!BT1141=\"\",\"\",CRSDATA!BT1141)","v":""}]
[null,null,null,null,null,null,null,null,null,null,null,null,null,null,null,null,null,null,null,null,null,null,null,null,null,null,null,null,null,null,{"$f":"IF(CRSDATA!BT1142=\"\",\"\",CRSDATA!BT1142)","v":""}]
[null,null,null,null,null,null,null,null,null,null,null,null,null,null,null,null,null,null,null,null,null,null,null,null,null,null,null,null,null,null,{"$f":"IF(CRSDATA!BT1143=\"\",\"\",CRSDATA!BT1143)","v":""}]
[null,null,null,null,null,null,null,null,null,null,null,null,null,null,null,null,null,null,null,null,null,null,null,null,null,null,null,null,null,null,{"$f":"IF(CRSDATA!BT1144=\"\",\"\",CRSDATA!BT1144)","v":""}]
[null,null,null,null,null,null,null,null,null,null,null,null,null,null,null,null,null,null,null,null,null,null,null,null,null,null,null,null,null,null,{"$f":"IF(CRSDATA!BT1145=\"\",\"\",CRSDATA!BT1145)","v":""}]
[null,null,null,null,null,null,null,null,null,null,null,null,null,null,null,null,null,null,null,null,null,null,null,null,null,null,null,null,null,null,{"$f":"IF(CRSDATA!BT1146=\"\",\"\",CRSDATA!BT1146)","v":""}]
[null,null,null,null,null,null,null,null,null,null,null,null,null,null,null,null,null,null,null,null,null,null,null,null,null,null,null,null,null,null,{"$f":"IF(CRSDATA!BT1147=\"\",\"\",CRSDATA!BT1147)","v":""}]
[null,null,null,null,null,null,null,null,null,null,null,null,null,null,null,null,null,null,null,null,null,null,null,null,null,null,null,null,null,null,{"$f":"IF(CRSDATA!BT1148=\"\",\"\",CRSDATA!BT1148)","v":""}]
[null,null,null,null,null,null,null,null,null,null,null,null,null,null,null,null,null,null,null,null,null,null,null,null,null,null,null,null,null,null,{"$f":"IF(CRSDATA!BT1149=\"\",\"\",CRSDATA!BT1149)","v":""}]
[null,null,null,null,null,null,null,null,null,null,null,null,null,null,null,null,null,null,null,null,null,null,null,null,null,null,null,null,null,null,{"$f":"IF(CRSDATA!BT1150=\"\",\"\",CRSDATA!BT1150)","v":""}]
[null,null,null,null,null,null,null,null,null,null,null,null,null,null,null,null,null,null,null,null,null,null,null,null,null,null,null,null,null,null,{"$f":"IF(CRSDATA!BT1151=\"\",\"\",CRSDATA!BT1151)","v":""}]
[null,null,null,null,null,null,null,null,null,null,null,null,null,null,null,null,null,null,null,null,null,null,null,null,null,null,null,null,null,null,{"$f":"IF(CRSDATA!BT1152=\"\",\"\",CRSDATA!BT1152)","v":""}]
[null,null,null,null,null,null,null,null,null,null,null,null,null,null,null,null,null,null,null,null,null,null,null,null,null,null,null,null,null,null,{"$f":"IF(CRSDATA!BT1153=\"\",\"\",CRSDATA!BT1153)","v":""}]
[null,null,null,null,null,null,null,null,null,null,null,null,null,null,null,null,null,null,null,null,null,null,null,null,null,null,null,null,null,null,{"$f":"IF(CRSDATA!BT1154=\"\",\"\",CRSDATA!BT1154)","v":""}]
[null,null,null,null,null,null,null,null,null,null,null,null,null,null,null,null,null,null,null,null,null,null,null,null,null,null,null,null,null,null,{"$f":"IF(CRSDATA!BT1155=\"\",\"\",CRSDATA!BT1155)","v":""}]
[null,null,null,null,null,null,null,null,null,null,null,null,null,null,null,null,null,null,null,null,null,null,null,null,null,null,null,null,null,null,{"$f":"IF(CRSDATA!BT1156=\"\",\"\",CRSDATA!BT1156)","v":""}]
[null,null,null,null,null,null,null,null,null,null,null,null,null,null,null,null,null,null,null,null,null,null,null,null,null,null,null,null,null,null,{"$f":"IF(CRSDATA!BT1157=\"\",\"\",CRSDATA!BT1157)","v":""}]
[null,null,null,null,null,null,null,null,null,null,null,null,null,null,null,null,null,null,null,null,null,null,null,null,null,null,null,null,null,null,{"$f":"IF(CRSDATA!BT1158=\"\",\"\",CRSDATA!BT1158)","v":""}]
[null,null,null,null,null,null,null,null,null,null,null,null,null,null,null,null,null,null,null,null,null,null,null,null,null,null,null,null,null,null,{"$f":"IF(CRSDATA!BT1159=\"\",\"\",CRSDATA!BT1159)","v":""}]
[null,null,null,null,null,null,null,null,null,null,null,null,null,null,null,null,null,null,null,null,null,null,null,null,null,null,null,null,null,null,{"$f":"IF(CRSDATA!BT1160=\"\",\"\",CRSDATA!BT1160)","v":""}]
[null,null,null,null,null,null,null,null,null,null,null,null,null,null,null,null,null,null,null,null,null,null,null,null,null,null,null,null,null,null,{"$f":"IF(CRSDATA!BT1161=\"\",\"\",CRSDATA!BT1161)","v":""}]
[null,null,null,null,null,null,null,null,null,null,null,null,null,null,null,null,null,null,null,null,null,null,null,null,null,null,null,null,null,null,{"$f":"IF(CRSDATA!BT1162=\"\",\"\",CRSDATA!BT1162)","v":""}]
[null,null,null,null,null,null,null,null,null,null,null,null,null,null,null,null,null,null,null,null,null,null,null,null,null,null,null,null,null,null,{"$f":"IF(CRSDATA!BT1163=\"\",\"\",CRSDATA!BT1163)","v":""}]
[null,null,null,null,null,null,null,null,null,null,null,null,null,null,null,null,null,null,null,null,null,null,null,null,null,null,null,null,null,null,{"$f":"IF(CRSDATA!BT1164=\"\",\"\",CRSDATA!BT1164)","v":""}]
[null,null,null,null,null,null,null,null,null,null,null,null,null,null,null,null,null,null,null,null,null,null,null,null,null,null,null,null,null,null,{"$f":"IF(CRSDATA!BT1165=\"\",\"\",CRSDATA!BT1165)","v":""}]
[null,null,null,null,null,null,null,null,null,null,null,null,null,null,null,null,null,null,null,null,null,null,null,null,null,null,null,null,null,null,{"$f":"IF(CRSDATA!BT1166=\"\",\"\",CRSDATA!BT1166)","v":""}]
[null,null,null,null,null,null,null,null,null,null,null,null,null,null,null,null,null,null,null,null,null,null,null,null,null,null,null,null,null,null,{"$f":"IF(CRSDATA!BT1167=\"\",\"\",CRSDATA!BT1167)","v":""}]
[null,null,null,null,null,null,null,null,null,null,null,null,null,null,null,null,null,null,null,null,null,null,null,null,null,null,null,null,null,null,{"$f":"IF(CRSDATA!BT1168=\"\",\"\",CRSDATA!BT1168)","v":""}]
[null,null,null,null,null,null,null,null,null,null,null,null,null,null,null,null,null,null,null,null,null,null,null,null,null,null,null,null,null,null,{"$f":"IF(CRSDATA!BT1169=\"\",\"\",CRSDATA!BT1169)","v":""}]
[null,null,null,null,null,null,null,null,null,null,null,null,null,null,null,null,null,null,null,null,null,null,null,null,null,null,null,null,null,null,{"$f":"IF(CRSDATA!BT1170=\"\",\"\",CRSDATA!BT1170)","v":""}]
[null,null,null,null,null,null,null,null,null,null,null,null,null,null,null,null,null,null,null,null,null,null,null,null,null,null,null,null,null,null,{"$f":"IF(CRSDATA!BT1171=\"\",\"\",CRSDATA!BT1171)","v":""}]
[null,null,null,null,null,null,null,null,null,null,null,null,null,null,null,null,null,null,null,null,null,null,null,null,null,null,null,null,null,null,{"$f":"IF(CRSDATA!BT1172=\"\",\"\",CRSDATA!BT1172)","v":""}]
[null,null,null,null,null,null,null,null,null,null,null,null,null,null,null,null,null,null,null,null,null,null,null,null,null,null,null,null,null,null,{"$f":"IF(CRSDATA!BT1173=\"\",\"\",CRSDATA!BT1173)","v":""}]
[null,null,null,null,null,null,null,null,null,null,null,null,null,null,null,null,null,null,null,null,null,null,null,null,null,null,null,null,null,null,{"$f":"IF(CRSDATA!BT1174=\"\",\"\",CRSDATA!BT1174)","v":""}]
[null,null,null,null,null,null,null,null,null,null,null,null,null,null,null,null,null,null,null,null,null,null,null,null,null,null,null,null,null,null,{"$f":"IF(CRSDATA!BT1175=\"\",\"\",CRSDATA!BT1175)","v":""}]
[null,null,null,null,null,null,null,null,null,null,null,null,null,null,null,null,null,null,null,null,null,null,null,null,null,null,null,null,null,null,{"$f":"IF(CRSDATA!BT1176=\"\",\"\",CRSDATA!BT1176)","v":""}]
[null,null,null,null,null,null,null,null,null,null,null,null,null,null,null,null,null,null,null,null,null,null,null,null,null,null,null,null,null,null,{"$f":"IF(CRSDATA!BT1177=\"\",\"\",CRSDATA!BT1177)","v":""}]
[null,null,null,null,null,null,null,null,null,null,null,null,null,null,null,null,null,null,null,null,null,null,null,null,null,null,null,null,null,null,{"$f":"IF(CRSDATA!BT1178=\"\",\"\",CRSDATA!BT1178)","v":""}]
[null,null,null,null,null,null,null,null,null,null,null,null,null,null,null,null,null,null,null,null,null,null,null,null,null,null,null,null,null,null,{"$f":"IF(CRSDATA!BT1179=\"\",\"\",CRSDATA!BT1179)","v":""}]
[null,null,null,null,null,null,null,null,null,null,null,null,null,null,null,null,null,null,null,null,null,null,null,null,null,null,null,null,null,null,{"$f":"IF(CRSDATA!BT1180=\"\",\"\",CRSDATA!BT1180)","v":""}]
[null,null,null,null,null,null,null,null,null,null,null,null,null,null,null,null,null,null,null,null,null,null,null,null,null,null,null,null,null,null,{"$f":"IF(CRSDATA!BT1181=\"\",\"\",CRSDATA!BT1181)","v":""}]
[null,null,null,null,null,null,null,null,null,null,null,null,null,null,null,null,null,null,null,null,null,null,null,null,null,null,null,null,null,null,{"$f":"IF(CRSDATA!BT1182=\"\",\"\",CRSDATA!BT1182)","v":""}]
[null,null,null,null,null,null,null,null,null,null,null,null,null,null,null,null,null,null,null,null,null,null,null,null,null,null,null,null,null,null,{"$f":"IF(CRSDATA!BT1183=\"\",\"\",CRSDATA!BT1183)","v":""}]
[null,null,null,null,null,null,null,null,null,null,null,null,null,null,null,null,null,null,null,null,null,null,null,null,null,null,null,null,null,null,{"$f":"IF(CRSDATA!BT1184=\"\",\"\",CRSDATA!BT1184)","v":""}]
[null,null,null,null,null,null,null,null,null,null,null,null,null,null,null,null,null,null,null,null,null,null,null,null,null,null,null,null,null,null,{"$f":"IF(CRSDATA!BT1185=\"\",\"\",CRSDATA!BT1185)","v":""}]
[null,null,null,null,null,null,null,null,null,null,null,null,null,null,null,null,null,null,null,null,null,null,null,null,null,null,null,null,null,null,{"$f":"IF(CRSDATA!BT1186=\"\",\"\",CRSDATA!BT1186)","v":""}]
[null,null,null,null,null,null,null,null,null,null,null,null,null,null,null,null,null,null,null,null,null,null,null,null,null,null,null,null,null,null,{"$f":"IF(CRSDATA!BT1187=\"\",\"\",CRSDATA!BT1187)","v":""}]
[null,null,null,null,null,null,null,null,null,null,null,null,null,null,null,null,null,null,null,null,null,null,null,null,null,null,null,null,null,null,{"$f":"IF(CRSDATA!BT1188=\"\",\"\",CRSDATA!BT1188)","v":""}]
[null,null,null,null,null,null,null,null,null,null,null,null,null,null,null,null,null,null,null,null,null,null,null,null,null,null,null,null,null,null,{"$f":"IF(CRSDATA!BT1189=\"\",\"\",CRSDATA!BT1189)","v":""}]
[null,null,null,null,null,null,null,null,null,null,null,null,null,null,null,null,null,null,null,null,null,null,null,null,null,null,null,null,null,null,{"$f":"IF(CRSDATA!BT1190=\"\",\"\",CRSDATA!BT1190)","v":""}]
[null,null,null,null,null,null,null,null,null,null,null,null,null,null,null,null,null,null,null,null,null,null,null,null,null,null,null,null,null,null,{"$f":"IF(CRSDATA!BT1191=\"\",\"\",CRSDATA!BT1191)","v":""}]
[null,null,null,null,null,null,null,null,null,null,null,null,null,null,null,null,null,null,null,null,null,null,null,null,null,null,null,null,null,null,{"$f":"IF(CRSDATA!BT1192=\"\",\"\",CRSDATA!BT1192)","v":""}]
[null,null,null,null,null,null,null,null,null,null,null,null,null,null,null,null,null,null,null,null,null,null,null,null,null,null,null,null,null,null,{"$f":"IF(CRSDATA!BT1193=\"\",\"\",CRSDATA!BT1193)","v":""}]
[null,null,null,null,null,null,null,null,null,null,null,null,null,null,null,null,null,null,null,null,null,null,null,null,null,null,null,null,null,null,{"$f":"IF(CRSDATA!BT1194=\"\",\"\",CRSDATA!BT1194)","v":""}]
[null,null,null,null,null,null,null,null,null,null,null,null,null,null,null,null,null,null,null,null,null,null,null,null,null,null,null,null,null,null,{"$f":"IF(CRSDATA!BT1195=\"\",\"\",CRSDATA!BT1195)","v":""}]
[null,null,null,null,null,null,null,null,null,null,null,null,null,null,null,null,null,null,null,null,null,null,null,null,null,null,null,null,null,null,{"$f":"IF(CRSDATA!BT1196=\"\",\"\",CRSDATA!BT1196)","v":""}]
[null,null,null,null,null,null,null,null,null,null,null,null,null,null,null,null,null,null,null,null,null,null,null,null,null,null,null,null,null,null,{"$f":"IF(CRSDATA!BT1197=\"\",\"\",CRSDATA!BT1197)","v":""}]
[null,null,null,null,null,null,null,null,null,null,null,null,null,null,null,null,null,null,null,null,null,null,null,null,null,null,null,null,null,null,{"$f":"IF(CRSDATA!BT1198=\"\",\"\",CRSDATA!BT1198)","v":""}]
[null,null,null,null,null,null,null,null,null,null,null,null,null,null,null,null,null,null,null,null,null,null,null,null,null,null,null,null,null,null,{"$f":"IF(CRSDATA!BT1199=\"\",\"\",CRSDATA!BT1199)","v":""}]
[null,null,null,null,null,null,null,null,null,null,null,null,null,null,null,null,null,null,null,null,null,null,null,null,null,null,null,null,null,null,{"$f":"IF(CRSDATA!BT1200=\"\",\"\",CRSDATA!BT1200)","v":""}]
[null,null,null,null,null,null,null,null,null,null,null,null,null,null,null,null,null,null,null,null,null,null,null,null,null,null,null,null,null,null,{"$f":"IF(CRSDATA!BT1201=\"\",\"\",CRSDATA!BT1201)","v":""}]
[null,null,null,null,null,null,null,null,null,null,null,null,null,null,null,null,null,null,null,null,null,null,null,null,null,null,null,null,null,null,{"$f":"IF(CRSDATA!BT1202=\"\",\"\",CRSDATA!BT1202)","v":""}]
[null,null,null,null,null,null,null,null,null,null,null,null,null,null,null,null,null,null,null,null,null,null,null,null,null,null,null,null,null,null,{"$f":"IF(CRSDATA!BT1203=\"\",\"\",CRSDATA!BT1203)","v":""}]
[null,null,null,null,null,null,null,null,null,null,null,null,null,null,null,null,null,null,null,null,null,null,null,null,null,null,null,null,null,null,{"$f":"IF(CRSDATA!BT1204=\"\",\"\",CRSDATA!BT1204)","v":""}]
[null,null,null,null,null,null,null,null,null,null,null,null,null,null,null,null,null,null,null,null,null,null,null,null,null,null,null,null,null,null,{"$f":"IF(CRSDATA!BT1205=\"\",\"\",CRSDATA!BT1205)","v":""}]
[null,null,null,null,null,null,null,null,null,null,null,null,null,null,null,null,null,null,null,null,null,null,null,null,null,null,null,null,null,null,{"$f":"IF(CRSDATA!BT1206=\"\",\"\",CRSDATA!BT1206)","v":""}]
[null,null,null,null,null,null,null,null,null,null,null,null,null,null,null,null,null,null,null,null,null,null,null,null,null,null,null,null,null,null,{"$f":"IF(CRSDATA!BT1207=\"\",\"\",CRSDATA!BT1207)","v":""}]
[null,null,null,null,null,null,null,null,null,null,null,null,null,null,null,null,null,null,null,null,null,null,null,null,null,null,null,null,null,null,{"$f":"IF(CRSDATA!BT1208=\"\",\"\",CRSDATA!BT1208)","v":""}]
[null,null,null,null,null,null,null,null,null,null,null,null,null,null,null,null,null,null,null,null,null,null,null,null,null,null,null,null,null,null,{"$f":"IF(CRSDATA!BT1209=\"\",\"\",CRSDATA!BT1209)","v":""}]
[null,null,null,null,null,null,null,null,null,null,null,null,null,null,null,null,null,null,null,null,null,null,null,null,null,null,null,null,null,null,{"$f":"IF(CRSDATA!BT1210=\"\",\"\",CRSDATA!BT1210)","v":""}]
[null,null,null,null,null,null,null,null,null,null,null,null,null,null,null,null,null,null,null,null,null,null,null,null,null,null,null,null,null,null,{"$f":"IF(CRSDATA!BT1211=\"\",\"\",CRSDATA!BT1211)","v":""}]
[null,null,null,null,null,null,null,null,null,null,null,null,null,null,null,null,null,null,null,null,null,null,null,null,null,null,null,null,null,null,{"$f":"IF(CRSDATA!BT1212=\"\",\"\",CRSDATA!BT1212)","v":""}]
[null,null,null,null,null,null,null,null,null,null,null,null,null,null,null,null,null,null,null,null,null,null,null,null,null,null,null,null,null,null,{"$f":"IF(CRSDATA!BT1213=\"\",\"\",CRSDATA!BT1213)","v":""}]
[null,null,null,null,null,null,null,null,null,null,null,null,null,null,null,null,null,null,null,null,null,null,null,null,null,null,null,null,null,null,{"$f":"IF(CRSDATA!BT1214=\"\",\"\",CRSDATA!BT1214)","v":""}]
[null,null,null,null,null,null,null,null,null,null,null,null,null,null,null,null,null,null,null,null,null,null,null,null,null,null,null,null,null,null,{"$f":"IF(CRSDATA!BT1215=\"\",\"\",CRSDATA!BT1215)","v":""}]
[null,null,null,null,null,null,null,null,null,null,null,null,null,null,null,null,null,null,null,null,null,null,null,null,null,null,null,null,null,null,{"$f":"IF(CRSDATA!BT1216=\"\",\"\",CRSDATA!BT1216)","v":""}]
[null,null,null,null,null,null,null,null,null,null,null,null,null,null,null,null,null,null,null,null,null,null,null,null,null,null,null,null,null,null,{"$f":"IF(CRSDATA!BT1217=\"\",\"\",CRSDATA!BT1217)","v":""}]
[null,null,null,null,null,null,null,null,null,null,null,null,null,null,null,null,null,null,null,null,null,null,null,null,null,null,null,null,null,null,{"$f":"IF(CRSDATA!BT1218=\"\",\"\",CRSDATA!BT1218)","v":""}]
[null,null,null,null,null,null,null,null,null,null,null,null,null,null,null,null,null,null,null,null,null,null,null,null,null,null,null,null,null,null,{"$f":"IF(CRSDATA!BT1219=\"\",\"\",CRSDATA!BT1219)","v":""}]
[null,null,null,null,null,null,null,null,null,null,null,null,null,null,null,null,null,null,null,null,null,null,null,null,null,null,null,null,null,null,{"$f":"IF(CRSDATA!BT1220=\"\",\"\",CRSDATA!BT1220)","v":""}]
[null,null,null,null,null,null,null,null,null,null,null,null,null,null,null,null,null,null,null,null,null,null,null,null,null,null,null,null,null,null,{"$f":"IF(CRSDATA!BT1221=\"\",\"\",CRSDATA!BT1221)","v":""}]
[null,null,null,null,null,null,null,null,null,null,null,null,null,null,null,null,null,null,null,null,null,null,null,null,null,null,null,null,null,null,{"$f":"IF(CRSDATA!BT1222=\"\",\"\",CRSDATA!BT1222)","v":""}]
[null,null,null,null,null,null,null,null,null,null,null,null,null,null,null,null,null,null,null,null,null,null,null,null,null,null,null,null,null,null,{"$f":"IF(CRSDATA!BT1223=\"\",\"\",CRSDATA!BT1223)","v":""}]
[null,null,null,null,null,null,null,null,null,null,null,null,null,null,null,null,null,null,null,null,null,null,null,null,null,null,null,null,null,null,{"$f":"IF(CRSDATA!BT1224=\"\",\"\",CRSDATA!BT1224)","v":""}]
[null,null,null,null,null,null,null,null,null,null,null,null,null,null,null,null,null,null,null,null,null,null,null,null,null,null,null,null,null,null,{"$f":"IF(CRSDATA!BT1225=\"\",\"\",CRSDATA!BT1225)","v":""}]
[null,null,null,null,null,null,null,null,null,null,null,null,null,null,null,null,null,null,null,null,null,null,null,null,null,null,null,null,null,null,{"$f":"IF(CRSDATA!BT1226=\"\",\"\",CRSDATA!BT1226)","v":""}]
[null,null,null,null,null,null,null,null,null,null,null,null,null,null,null,null,null,null,null,null,null,null,null,null,null,null,null,null,null,null,{"$f":"IF(CRSDATA!BT1227=\"\",\"\",CRSDATA!BT1227)","v":""}]
[null,null,null,null,null,null,null,null,null,null,null,null,null,null,null,null,null,null,null,null,null,null,null,null,null,null,null,null,null,null,{"$f":"IF(CRSDATA!BT1228=\"\",\"\",CRSDATA!BT1228)","v":""}]
[null,null,null,null,null,null,null,null,null,null,null,null,null,null,null,null,null,null,null,null,null,null,null,null,null,null,null,null,null,null,{"$f":"IF(CRSDATA!BT1229=\"\",\"\",CRSDATA!BT1229)","v":""}]
[null,null,null,null,null,null,null,null,null,null,null,null,null,null,null,null,null,null,null,null,null,null,null,null,null,null,null,null,null,null,{"$f":"IF(CRSDATA!BT1230=\"\",\"\",CRSDATA!BT1230)","v":""}]
[null,null,null,null,null,null,null,null,null,null,null,null,null,null,null,null,null,null,null,null,null,null,null,null,null,null,null,null,null,null,{"$f":"IF(CRSDATA!BT1231=\"\",\"\",CRSDATA!BT1231)","v":""}]
[null,null,null,null,null,null,null,null,null,null,null,null,null,null,null,null,null,null,null,null,null,null,null,null,null,null,null,null,null,null,{"$f":"IF(CRSDATA!BT1232=\"\",\"\",CRSDATA!BT1232)","v":""}]
[null,null,null,null,null,null,null,null,null,null,null,null,null,null,null,null,null,null,null,null,null,null,null,null,null,null,null,null,null,null,{"$f":"IF(CRSDATA!BT1233=\"\",\"\",CRSDATA!BT1233)","v":""}]
[null,null,null,null,null,null,null,null,null,null,null,null,null,null,null,null,null,null,null,null,null,null,null,null,null,null,null,null,null,null,{"$f":"IF(CRSDATA!BT1234=\"\",\"\",CRSDATA!BT1234)","v":""}]
[null,null,null,null,null,null,null,null,null,null,null,null,null,null,null,null,null,null,null,null,null,null,null,null,null,null,null,null,null,null,{"$f":"IF(CRSDATA!BT1235=\"\",\"\",CRSDATA!BT1235)","v":""}]
[null,null,null,null,null,null,null,null,null,null,null,null,null,null,null,null,null,null,null,null,null,null,null,null,null,null,null,null,null,null,{"$f":"IF(CRSDATA!BT1236=\"\",\"\",CRSDATA!BT1236)","v":""}]
[null,null,null,null,null,null,null,null,null,null,null,null,null,null,null,null,null,null,null,null,null,null,null,null,null,null,null,null,null,null,{"$f":"IF(CRSDATA!BT1237=\"\",\"\",CRSDATA!BT1237)","v":""}]
[null,null,null,null,null,null,null,null,null,null,null,null,null,null,null,null,null,null,null,null,null,null,null,null,null,null,null,null,null,null,{"$f":"IF(CRSDATA!BT1238=\"\",\"\",CRSDATA!BT1238)","v":""}]
[null,null,null,null,null,null,null,null,null,null,null,null,null,null,null,null,null,null,null,null,null,null,null,null,null,null,null,null,null,null,{"$f":"IF(CRSDATA!BT1239=\"\",\"\",CRSDATA!BT1239)","v":""}]
[null,null,null,null,null,null,null,null,null,null,null,null,null,null,null,null,null,null,null,null,null,null,null,null,null,null,null,null,null,null,{"$f":"IF(CRSDATA!BT1240=\"\",\"\",CRSDATA!BT1240)","v":""}]
[null,null,null,null,null,null,null,null,null,null,null,null,null,null,null,null,null,null,null,null,null,null,null,null,null,null,null,null,null,null,{"$f":"IF(CRSDATA!BT1241=\"\",\"\",CRSDATA!BT1241)","v":""}]
[null,null,null,null,null,null,null,null,null,null,null,null,null,null,null,null,null,null,null,null,null,null,null,null,null,null,null,null,null,null,{"$f":"IF(CRSDATA!BT1242=\"\",\"\",CRSDATA!BT1242)","v":""}]
[null,null,null,null,null,null,null,null,null,null,null,null,null,null,null,null,null,null,null,null,null,null,null,null,null,null,null,null,null,null,{"$f":"IF(CRSDATA!BT1243=\"\",\"\",CRSDATA!BT1243)","v":""}]
[null,null,null,null,null,null,null,null,null,null,null,null,null,null,null,null,null,null,null,null,null,null,null,null,null,null,null,null,null,null,{"$f":"IF(CRSDATA!BT1244=\"\",\"\",CRSDATA!BT1244)","v":""}]
[null,null,null,null,null,null,null,null,null,null,null,null,null,null,null,null,null,null,null,null,null,null,null,null,null,null,null,null,null,null,{"$f":"IF(CRSDATA!BT1245=\"\",\"\",CRSDATA!BT1245)","v":""}]
[null,null,null,null,null,null,null,null,null,null,null,null,null,null,null,null,null,null,null,null,null,null,null,null,null,null,null,null,null,null,{"$f":"IF(CRSDATA!BT1246=\"\",\"\",CRSDATA!BT1246)","v":""}]
[null,null,null,null,null,null,null,null,null,null,null,null,null,null,null,null,null,null,null,null,null,null,null,null,null,null,null,null,null,null,{"$f":"IF(CRSDATA!BT1247=\"\",\"\",CRSDATA!BT1247)","v":""}]
[null,null,null,null,null,null,null,null,null,null,null,null,null,null,null,null,null,null,null,null,null,null,null,null,null,null,null,null,null,null,{"$f":"IF(CRSDATA!BT1248=\"\",\"\",CRSDATA!BT1248)","v":""}]
[null,null,null,null,null,null,null,null,null,null,null,null,null,null,null,null,null,null,null,null,null,null,null,null,null,null,null,null,null,null,{"$f":"IF(CRSDATA!BT1249=\"\",\"\",CRSDATA!BT1249)","v":""}]
[null,null,null,null,null,null,null,null,null,null,null,null,null,null,null,null,null,null,null,null,null,null,null,null,null,null,null,null,null,null,{"$f":"IF(CRSDATA!BT1250=\"\",\"\",CRSDATA!BT1250)","v":""}]
[null,null,null,null,null,null,null,null,null,null,null,null,null,null,null,null,null,null,null,null,null,null,null,null,null,null,null,null,null,null,{"$f":"IF(CRSDATA!BT1251=\"\",\"\",CRSDATA!BT1251)","v":""}]
[null,null,null,null,null,null,null,null,null,null,null,null,null,null,null,null,null,null,null,null,null,null,null,null,null,null,null,null,null,null,{"$f":"IF(CRSDATA!BT1252=\"\",\"\",CRSDATA!BT1252)","v":""}]
[null,null,null,null,null,null,null,null,null,null,null,null,null,null,null,null,null,null,null,null,null,null,null,null,null,null,null,null,null,null,{"$f":"IF(CRSDATA!BT1253=\"\",\"\",CRSDATA!BT1253)","v":""}]
[null,null,null,null,null,null,null,null,null,null,null,null,null,null,null,null,null,null,null,null,null,null,null,null,null,null,null,null,null,null,{"$f":"IF(CRSDATA!BT1254=\"\",\"\",CRSDATA!BT1254)","v":""}]
[null,null,null,null,null,null,null,null,null,null,null,null,null,null,null,null,null,null,null,null,null,null,null,null,null,null,null,null,null,null,{"$f":"IF(CRSDATA!BT1255=\"\",\"\",CRSDATA!BT1255)","v":""}]
[null,null,null,null,null,null,null,null,null,null,null,null,null,null,null,null,null,null,null,null,null,null,null,null,null,null,null,null,null,null,{"$f":"IF(CRSDATA!BT1256=\"\",\"\",CRSDATA!BT1256)","v":""}]
[null,null,null,null,null,null,null,null,null,null,null,null,null,null,null,null,null,null,null,null,null,null,null,null,null,null,null,null,null,null,{"$f":"IF(CRSDATA!BT1257=\"\",\"\",CRSDATA!BT1257)","v":""}]
[null,null,null,null,null,null,null,null,null,null,null,null,null,null,null,null,null,null,null,null,null,null,null,null,null,null,null,null,null,null,{"$f":"IF(CRSDATA!BT1258=\"\",\"\",CRSDATA!BT1258)","v":""}]
[null,null,null,null,null,null,null,null,null,null,null,null,null,null,null,null,null,null,null,null,null,null,null,null,null,null,null,null,null,null,{"$f":"IF(CRSDATA!BT1259=\"\",\"\",CRSDATA!BT1259)","v":""}]
[null,null,null,null,null,null,null,null,null,null,null,null,null,null,null,null,null,null,null,null,null,null,null,null,null,null,null,null,null,null,{"$f":"IF(CRSDATA!BT1260=\"\",\"\",CRSDATA!BT1260)","v":""}]
[null,null,null,null,null,null,null,null,null,null,null,null,null,null,null,null,null,null,null,null,null,null,null,null,null,null,null,null,null,null,{"$f":"IF(CRSDATA!BT1261=\"\",\"\",CRSDATA!BT1261)","v":""}]
[null,null,null,null,null,null,null,null,null,null,null,null,null,null,null,null,null,null,null,null,null,null,null,null,null,null,null,null,null,null,{"$f":"IF(CRSDATA!BT1262=\"\",\"\",CRSDATA!BT1262)","v":""}]
[null,null,null,null,null,null,null,null,null,null,null,null,null,null,null,null,null,null,null,null,null,null,null,null,null,null,null,null,null,null,{"$f":"IF(CRSDATA!BT1263=\"\",\"\",CRSDATA!BT1263)","v":""}]
[null,null,null,null,null,null,null,null,null,null,null,null,null,null,null,null,null,null,null,null,null,null,null,null,null,null,null,null,null,null,{"$f":"IF(CRSDATA!BT1264=\"\",\"\",CRSDATA!BT1264)","v":""}]
[null,null,null,null,null,null,null,null,null,null,null,null,null,null,null,null,null,null,null,null,null,null,null,null,null,null,null,null,null,null,{"$f":"IF(CRSDATA!BT1265=\"\",\"\",CRSDATA!BT1265)","v":""}]
[null,null,null,null,null,null,null,null,null,null,null,null,null,null,null,null,null,null,null,null,null,null,null,null,null,null,null,null,null,null,{"$f":"IF(CRSDATA!BT1266=\"\",\"\",CRSDATA!BT1266)","v":""}]
[null,null,null,null,null,null,null,null,null,null,null,null,null,null,null,null,null,null,null,null,null,null,null,null,null,null,null,null,null,null,{"$f":"IF(CRSDATA!BT1267=\"\",\"\",CRSDATA!BT1267)","v":""}]
[null,null,null,null,null,null,null,null,null,null,null,null,null,null,null,null,null,null,null,null,null,null,null,null,null,null,null,null,null,null,{"$f":"IF(CRSDATA!BT1268=\"\",\"\",CRSDATA!BT1268)","v":""}]
[null,null,null,null,null,null,null,null,null,null,null,null,null,null,null,null,null,null,null,null,null,null,null,null,null,null,null,null,null,null,{"$f":"IF(CRSDATA!BT1269=\"\",\"\",CRSDATA!BT1269)","v":""}]
[null,null,null,null,null,null,null,null,null,null,null,null,null,null,null,null,null,null,null,null,null,null,null,null,null,null,null,null,null,null,{"$f":"IF(CRSDATA!BT1270=\"\",\"\",CRSDATA!BT1270)","v":""}]
[null,null,null,null,null,null,null,null,null,null,null,null,null,null,null,null,null,null,null,null,null,null,null,null,null,null,null,null,null,null,{"$f":"IF(CRSDATA!BT1271=\"\",\"\",CRSDATA!BT1271)","v":""}]
[null,null,null,null,null,null,null,null,null,null,null,null,null,null,null,null,null,null,null,null,null,null,null,null,null,null,null,null,null,null,{"$f":"IF(CRSDATA!BT1272=\"\",\"\",CRSDATA!BT1272)","v":""}]
[null,null,null,null,null,null,null,null,null,null,null,null,null,null,null,null,null,null,null,null,null,null,null,null,null,null,null,null,null,null,{"$f":"IF(CRSDATA!BT1273=\"\",\"\",CRSDATA!BT1273)","v":""}]
[null,null,null,null,null,null,null,null,null,null,null,null,null,null,null,null,null,null,null,null,null,null,null,null,null,null,null,null,null,null,{"$f":"IF(CRSDATA!BT1274=\"\",\"\",CRSDATA!BT1274)","v":""}]
[null,null,null,null,null,null,null,null,null,null,null,null,null,null,null,null,null,null,null,null,null,null,null,null,null,null,null,null,null,null,{"$f":"IF(CRSDATA!BT1275=\"\",\"\",CRSDATA!BT1275)","v":""}]
[null,null,null,null,null,null,null,null,null,null,null,null,null,null,null,null,null,null,null,null,null,null,null,null,null,null,null,null,null,null,{"$f":"IF(CRSDATA!BT1276=\"\",\"\",CRSDATA!BT1276)","v":""}]
[null,null,null,null,null,null,null,null,null,null,null,null,null,null,null,null,null,null,null,null,null,null,null,null,null,null,null,null,null,null,{"$f":"IF(CRSDATA!BT1277=\"\",\"\",CRSDATA!BT1277)","v":""}]
[null,null,null,null,null,null,null,null,null,null,null,null,null,null,null,null,null,null,null,null,null,null,null,null,null,null,null,null,null,null,{"$f":"IF(CRSDATA!BT1278=\"\",\"\",CRSDATA!BT1278)","v":""}]
[null,null,null,null,null,null,null,null,null,null,null,null,null,null,null,null,null,null,null,null,null,null,null,null,null,null,null,null,null,null,{"$f":"IF(CRSDATA!BT1279=\"\",\"\",CRSDATA!BT1279)","v":""}]
[null,null,null,null,null,null,null,null,null,null,null,null,null,null,null,null,null,null,null,null,null,null,null,null,null,null,null,null,null,null,{"$f":"IF(CRSDATA!BT1280=\"\",\"\",CRSDATA!BT1280)","v":""}]
[null,null,null,null,null,null,null,null,null,null,null,null,null,null,null,null,null,null,null,null,null,null,null,null,null,null,null,null,null,null,{"$f":"IF(CRSDATA!BT1281=\"\",\"\",CRSDATA!BT1281)","v":""}]
[null,null,null,null,null,null,null,null,null,null,null,null,null,null,null,null,null,null,null,null,null,null,null,null,null,null,null,null,null,null,{"$f":"IF(CRSDATA!BT1282=\"\",\"\",CRSDATA!BT1282)","v":""}]
[null,null,null,null,null,null,null,null,null,null,null,null,null,null,null,null,null,null,null,null,null,null,null,null,null,null,null,null,null,null,{"$f":"IF(CRSDATA!BT1283=\"\",\"\",CRSDATA!BT1283)","v":""}]
[null,null,null,null,null,null,null,null,null,null,null,null,null,null,null,null,null,null,null,null,null,null,null,null,null,null,null,null,null,null,{"$f":"IF(CRSDATA!BT1284=\"\",\"\",CRSDATA!BT1284)","v":""}]
[null,null,null,null,null,null,null,null,null,null,null,null,null,null,null,null,null,null,null,null,null,null,null,null,null,null,null,null,null,null,{"$f":"IF(CRSDATA!BT1285=\"\",\"\",CRSDATA!BT1285)","v":""}]
[null,null,null,null,null,null,null,null,null,null,null,null,null,null,null,null,null,null,null,null,null,null,null,null,null,null,null,null,null,null,{"$f":"IF(CRSDATA!BT1286=\"\",\"\",CRSDATA!BT1286)","v":""}]
[null,null,null,null,null,null,null,null,null,null,null,null,null,null,null,null,null,null,null,null,null,null,null,null,null,null,null,null,null,null,{"$f":"IF(CRSDATA!BT1287=\"\",\"\",CRSDATA!BT1287)","v":""}]
[null,null,null,null,null,null,null,null,null,null,null,null,null,null,null,null,null,null,null,null,null,null,null,null,null,null,null,null,null,null,{"$f":"IF(CRSDATA!BT1288=\"\",\"\",CRSDATA!BT1288)","v":""}]
[null,null,null,null,null,null,null,null,null,null,null,null,null,null,null,null,null,null,null,null,null,null,null,null,null,null,null,null,null,null,{"$f":"IF(CRSDATA!BT1289=\"\",\"\",CRSDATA!BT1289)","v":""}]
[null,null,null,null,null,null,null,null,null,null,null,null,null,null,null,null,null,null,null,null,null,null,null,null,null,null,null,null,null,null,{"$f":"IF(CRSDATA!BT1290=\"\",\"\",CRSDATA!BT1290)","v":""}]
[null,null,null,null,null,null,null,null,null,null,null,null,null,null,null,null,null,null,null,null,null,null,null,null,null,null,null,null,null,null,{"$f":"IF(CRSDATA!BT1291=\"\",\"\",CRSDATA!BT1291)","v":""}]
[null,null,null,null,null,null,null,null,null,null,null,null,null,null,null,null,null,null,null,null,null,null,null,null,null,null,null,null,null,null,{"$f":"IF(CRSDATA!BT1292=\"\",\"\",CRSDATA!BT1292)","v":""}]
[null,null,null,null,null,null,null,null,null,null,null,null,null,null,null,null,null,null,null,null,null,null,null,null,null,null,null,null,null,null,{"$f":"IF(CRSDATA!BT1293=\"\",\"\",CRSDATA!BT1293)","v":""}]
[null,null,null,null,null,null,null,null,null,null,null,null,null,null,null,null,null,null,null,null,null,null,null,null,null,null,null,null,null,null,{"$f":"IF(CRSDATA!BT1294=\"\",\"\",CRSDATA!BT1294)","v":""}]
[null,null,null,null,null,null,null,null,null,null,null,null,null,null,null,null,null,null,null,null,null,null,null,null,null,null,null,null,null,null,{"$f":"IF(CRSDATA!BT1295=\"\",\"\",CRSDATA!BT1295)","v":""}]
[null,null,null,null,null,null,null,null,null,null,null,null,null,null,null,null,null,null,null,null,null,null,null,null,null,null,null,null,null,null,{"$f":"IF(CRSDATA!BT1296=\"\",\"\",CRSDATA!BT1296)","v":""}]
[null,null,null,null,null,null,null,null,null,null,null,null,null,null,null,null,null,null,null,null,null,null,null,null,null,null,null,null,null,null,{"$f":"IF(CRSDATA!BT1297=\"\",\"\",CRSDATA!BT1297)","v":""}]
[null,null,null,null,null,null,null,null,null,null,null,null,null,null,null,null,null,null,null,null,null,null,null,null,null,null,null,null,null,null,{"$f":"IF(CRSDATA!BT1298=\"\",\"\",CRSDATA!BT1298)","v":""}]
[null,null,null,null,null,null,null,null,null,null,null,null,null,null,null,null,null,null,null,null,null,null,null,null,null,null,null,null,null,null,{"$f":"IF(CRSDATA!BT1299=\"\",\"\",CRSDATA!BT1299)","v":""}]
[null,null,null,null,null,null,null,null,null,null,null,null,null,null,null,null,null,null,null,null,null,null,null,null,null,null,null,null,null,null,{"$f":"IF(CRSDATA!BT1300=\"\",\"\",CRSDATA!BT1300)","v":""}]
[null,null,null,null,null,null,null,null,null,null,null,null,null,null,null,null,null,null,null,null,null,null,null,null,null,null,null,null,null,null,{"$f":"IF(CRSDATA!BT1301=\"\",\"\",CRSDATA!BT1301)","v":""}]
[null,null,null,null,null,null,null,null,null,null,null,null,null,null,null,null,null,null,null,null,null,null,null,null,null,null,null,null,null,null,{"$f":"IF(CRSDATA!BT1302=\"\",\"\",CRSDATA!BT1302)","v":""}]
[null,null,null,null,null,null,null,null,null,null,null,null,null,null,null,null,null,null,null,null,null,null,null,null,null,null,null,null,null,null,{"$f":"IF(CRSDATA!BT1303=\"\",\"\",CRSDATA!BT1303)","v":""}]
[null,null,null,null,null,null,null,null,null,null,null,null,null,null,null,null,null,null,null,null,null,null,null,null,null,null,null,null,null,null,{"$f":"IF(CRSDATA!BT1304=\"\",\"\",CRSDATA!BT1304)","v":""}]
[null,null,null,null,null,null,null,null,null,null,null,null,null,null,null,null,null,null,null,null,null,null,null,null,null,null,null,null,null,null,{"$f":"IF(CRSDATA!BT1305=\"\",\"\",CRSDATA!BT1305)","v":""}]
[null,null,null,null,null,null,null,null,null,null,null,null,null,null,null,null,null,null,null,null,null,null,null,null,null,null,null,null,null,null,{"$f":"IF(CRSDATA!BT1306=\"\",\"\",CRSDATA!BT1306)","v":""}]
[null,null,null,null,null,null,null,null,null,null,null,null,null,null,null,null,null,null,null,null,null,null,null,null,null,null,null,null,null,null,{"$f":"IF(CRSDATA!BT1307=\"\",\"\",CRSDATA!BT1307)","v":""}]
[null,null,null,null,null,null,null,null,null,null,null,null,null,null,null,null,null,null,null,null,null,null,null,null,null,null,null,null,null,null,{"$f":"IF(CRSDATA!BT1308=\"\",\"\",CRSDATA!BT1308)","v":""}]
[null,null,null,null,null,null,null,null,null,null,null,null,null,null,null,null,null,null,null,null,null,null,null,null,null,null,null,null,null,null,{"$f":"IF(CRSDATA!BT1309=\"\",\"\",CRSDATA!BT1309)","v":""}]
[null,null,null,null,null,null,null,null,null,null,null,null,null,null,null,null,null,null,null,null,null,null,null,null,null,null,null,null,null,null,{"$f":"IF(CRSDATA!BT1310=\"\",\"\",CRSDATA!BT1310)","v":""}]
[null,null,null,null,null,null,null,null,null,null,null,null,null,null,null,null,null,null,null,null,null,null,null,null,null,null,null,null,null,null,{"$f":"IF(CRSDATA!BT1311=\"\",\"\",CRSDATA!BT1311)","v":""}]
[null,null,null,null,null,null,null,null,null,null,null,null,null,null,null,null,null,null,null,null,null,null,null,null,null,null,null,null,null,null,{"$f":"IF(CRSDATA!BT1312=\"\",\"\",CRSDATA!BT1312)","v":""}]
[null,null,null,null,null,null,null,null,null,null,null,null,null,null,null,null,null,null,null,null,null,null,null,null,null,null,null,null,null,null,{"$f":"IF(CRSDATA!BT1313=\"\",\"\",CRSDATA!BT1313)","v":""}]
[null,null,null,null,null,null,null,null,null,null,null,null,null,null,null,null,null,null,null,null,null,null,null,null,null,null,null,null,null,null,{"$f":"IF(CRSDATA!BT1314=\"\",\"\",CRSDATA!BT1314)","v":""}]
[null,null,null,null,null,null,null,null,null,null,null,null,null,null,null,null,null,null,null,null,null,null,null,null,null,null,null,null,null,null,{"$f":"IF(CRSDATA!BT1315=\"\",\"\",CRSDATA!BT1315)","v":""}]
[null,null,null,null,null,null,null,null,null,null,null,null,null,null,null,null,null,null,null,null,null,null,null,null,null,null,null,null,null,null,{"$f":"IF(CRSDATA!BT1316=\"\",\"\",CRSDATA!BT1316)","v":""}]
[null,null,null,null,null,null,null,null,null,null,null,null,null,null,null,null,null,null,null,null,null,null,null,null,null,null,null,null,null,null,{"$f":"IF(CRSDATA!BT1317=\"\",\"\",CRSDATA!BT1317)","v":""}]
[null,null,null,null,null,null,null,null,null,null,null,null,null,null,null,null,null,null,null,null,null,null,null,null,null,null,null,null,null,null,{"$f":"IF(CRSDATA!BT1318=\"\",\"\",CRSDATA!BT1318)","v":""}]
[null,null,null,null,null,null,null,null,null,null,null,null,null,null,null,null,null,null,null,null,null,null,null,null,null,null,null,null,null,null,{"$f":"IF(CRSDATA!BT1319=\"\",\"\",CRSDATA!BT1319)","v":""}]
[null,null,null,null,null,null,null,null,null,null,null,null,null,null,null,null,null,null,null,null,null,null,null,null,null,null,null,null,null,null,{"$f":"IF(CRSDATA!BT1320=\"\",\"\",CRSDATA!BT1320)","v":""}]
[null,null,null,null,null,null,null,null,null,null,null,null,null,null,null,null,null,null,null,null,null,null,null,null,null,null,null,null,null,null,{"$f":"IF(CRSDATA!BT1321=\"\",\"\",CRSDATA!BT1321)","v":""}]
[null,null,null,null,null,null,null,null,null,null,null,null,null,null,null,null,null,null,null,null,null,null,null,null,null,null,null,null,null,null,{"$f":"IF(CRSDATA!BT1322=\"\",\"\",CRSDATA!BT1322)","v":""}]
[null,null,null,null,null,null,null,null,null,null,null,null,null,null,null,null,null,null,null,null,null,null,null,null,null,null,null,null,null,null,{"$f":"IF(CRSDATA!BT1323=\"\",\"\",CRSDATA!BT1323)","v":""}]
[null,null,null,null,null,null,null,null,null,null,null,null,null,null,null,null,null,null,null,null,null,null,null,null,null,null,null,null,null,null,{"$f":"IF(CRSDATA!BT1324=\"\",\"\",CRSDATA!BT1324)","v":""}]
[null,null,null,null,null,null,null,null,null,null,null,null,null,null,null,null,null,null,null,null,null,null,null,null,null,null,null,null,null,null,{"$f":"IF(CRSDATA!BT1325=\"\",\"\",CRSDATA!BT1325)","v":""}]
[null,null,null,null,null,null,null,null,null,null,null,null,null,null,null,null,null,null,null,null,null,null,null,null,null,null,null,null,null,null,{"$f":"IF(CRSDATA!BT1326=\"\",\"\",CRSDATA!BT1326)","v":""}]
[null,null,null,null,null,null,null,null,null,null,null,null,null,null,null,null,null,null,null,null,null,null,null,null,null,null,null,null,null,null,{"$f":"IF(CRSDATA!BT1327=\"\",\"\",CRSDATA!BT1327)","v":""}]
[null,null,null,null,null,null,null,null,null,null,null,null,null,null,null,null,null,null,null,null,null,null,null,null,null,null,null,null,null,null,{"$f":"IF(CRSDATA!BT1328=\"\",\"\",CRSDATA!BT1328)","v":""}]
[null,null,null,null,null,null,null,null,null,null,null,null,null,null,null,null,null,null,null,null,null,null,null,null,null,null,null,null,null,null,{"$f":"IF(CRSDATA!BT1329=\"\",\"\",CRSDATA!BT1329)","v":""}]
[null,null,null,null,null,null,null,null,null,null,null,null,null,null,null,null,null,null,null,null,null,null,null,null,null,null,null,null,null,null,{"$f":"IF(CRSDATA!BT1330=\"\",\"\",CRSDATA!BT1330)","v":""}]
[null,null,null,null,null,null,null,null,null,null,null,null,null,null,null,null,null,null,null,null,null,null,null,null,null,null,null,null,null,null,{"$f":"IF(CRSDATA!BT1331=\"\",\"\",CRSDATA!BT1331)","v":""}]
[null,null,null,null,null,null,null,null,null,null,null,null,null,null,null,null,null,null,null,null,null,null,null,null,null,null,null,null,null,null,{"$f":"IF(CRSDATA!BT1332=\"\",\"\",CRSDATA!BT1332)","v":""}]
[null,null,null,null,null,null,null,null,null,null,null,null,null,null,null,null,null,null,null,null,null,null,null,null,null,null,null,null,null,null,{"$f":"IF(CRSDATA!BT1333=\"\",\"\",CRSDATA!BT1333)","v":""}]
[null,null,null,null,null,null,null,null,null,null,null,null,null,null,null,null,null,null,null,null,null,null,null,null,null,null,null,null,null,null,{"$f":"IF(CRSDATA!BT1334=\"\",\"\",CRSDATA!BT1334)","v":""}]
[null,null,null,null,null,null,null,null,null,null,null,null,null,null,null,null,null,null,null,null,null,null,null,null,null,null,null,null,null,null,{"$f":"IF(CRSDATA!BT1335=\"\",\"\",CRSDATA!BT1335)","v":""}]
[null,null,null,null,null,null,null,null,null,null,null,null,null,null,null,null,null,null,null,null,null,null,null,null,null,null,null,null,null,null,{"$f":"IF(CRSDATA!BT1336=\"\",\"\",CRSDATA!BT1336)","v":""}]
[null,null,null,null,null,null,null,null,null,null,null,null,null,null,null,null,null,null,null,null,null,null,null,null,null,null,null,null,null,null,{"$f":"IF(CRSDATA!BT1337=\"\",\"\",CRSDATA!BT1337)","v":""}]
[null,null,null,null,null,null,null,null,null,null,null,null,null,null,null,null,null,null,null,null,null,null,null,null,null,null,null,null,null,null,{"$f":"IF(CRSDATA!BT1338=\"\",\"\",CRSDATA!BT1338)","v":""}]
[null,null,null,null,null,null,null,null,null,null,null,null,null,null,null,null,null,null,null,null,null,null,null,null,null,null,null,null,null,null,{"$f":"IF(CRSDATA!BT1339=\"\",\"\",CRSDATA!BT1339)","v":""}]
[null,null,null,null,null,null,null,null,null,null,null,null,null,null,null,null,null,null,null,null,null,null,null,null,null,null,null,null,null,null,{"$f":"IF(CRSDATA!BT1340=\"\",\"\",CRSDATA!BT1340)","v":""}]
[null,null,null,null,null,null,null,null,null,null,null,null,null,null,null,null,null,null,null,null,null,null,null,null,null,null,null,null,null,null,{"$f":"IF(CRSDATA!BT1341=\"\",\"\",CRSDATA!BT1341)","v":""}]
[null,null,null,null,null,null,null,null,null,null,null,null,null,null,null,null,null,null,null,null,null,null,null,null,null,null,null,null,null,null,{"$f":"IF(CRSDATA!BT1342=\"\",\"\",CRSDATA!BT1342)","v":""}]
[null,null,null,null,null,null,null,null,null,null,null,null,null,null,null,null,null,null,null,null,null,null,null,null,null,null,null,null,null,null,{"$f":"IF(CRSDATA!BT1343=\"\",\"\",CRSDATA!BT1343)","v":""}]
[null,null,null,null,null,null,null,null,null,null,null,null,null,null,null,null,null,null,null,null,null,null,null,null,null,null,null,null,null,null,{"$f":"IF(CRSDATA!BT1344=\"\",\"\",CRSDATA!BT1344)","v":""}]
[null,null,null,null,null,null,null,null,null,null,null,null,null,null,null,null,null,null,null,null,null,null,null,null,null,null,null,null,null,null,{"$f":"IF(CRSDATA!BT1345=\"\",\"\",CRSDATA!BT1345)","v":""}]
[null,null,null,null,null,null,null,null,null,null,null,null,null,null,null,null,null,null,null,null,null,null,null,null,null,null,null,null,null,null,{"$f":"IF(CRSDATA!BT1346=\"\",\"\",CRSDATA!BT1346)","v":""}]
[null,null,null,null,null,null,null,null,null,null,null,null,null,null,null,null,null,null,null,null,null,null,null,null,null,null,null,null,null,null,{"$f":"IF(CRSDATA!BT1347=\"\",\"\",CRSDATA!BT1347)","v":""}]
[null,null,null,null,null,null,null,null,null,null,null,null,null,null,null,null,null,null,null,null,null,null,null,null,null,null,null,null,null,null,{"$f":"IF(CRSDATA!BT1348=\"\",\"\",CRSDATA!BT1348)","v":""}]
[null,null,null,null,null,null,null,null,null,null,null,null,null,null,null,null,null,null,null,null,null,null,null,null,null,null,null,null,null,null,{"$f":"IF(CRSDATA!BT1349=\"\",\"\",CRSDATA!BT1349)","v":""}]
[null,null,null,null,null,null,null,null,null,null,null,null,null,null,null,null,null,null,null,null,null,null,null,null,null,null,null,null,null,null,{"$f":"IF(CRSDATA!BT1350=\"\",\"\",CRSDATA!BT1350)","v":""}]
[null,null,null,null,null,null,null,null,null,null,null,null,null,null,null,null,null,null,null,null,null,null,null,null,null,null,null,null,null,null,{"$f":"IF(CRSDATA!BT1351=\"\",\"\",CRSDATA!BT1351)","v":""}]
[null,null,null,null,null,null,null,null,null,null,null,null,null,null,null,null,null,null,null,null,null,null,null,null,null,null,null,null,null,null,{"$f":"IF(CRSDATA!BT1352=\"\",\"\",CRSDATA!BT1352)","v":""}]
[null,null,null,null,null,null,null,null,null,null,null,null,null,null,null,null,null,null,null,null,null,null,null,null,null,null,null,null,null,null,{"$f":"IF(CRSDATA!BT1353=\"\",\"\",CRSDATA!BT1353)","v":""}]
[null,null,null,null,null,null,null,null,null,null,null,null,null,null,null,null,null,null,null,null,null,null,null,null,null,null,null,null,null,null,{"$f":"IF(CRSDATA!BT1354=\"\",\"\",CRSDATA!BT1354)","v":""}]
[null,null,null,null,null,null,null,null,null,null,null,null,null,null,null,null,null,null,null,null,null,null,null,null,null,null,null,null,null,null,{"$f":"IF(CRSDATA!BT1355=\"\",\"\",CRSDATA!BT1355)","v":""}]
[null,null,null,null,null,null,null,null,null,null,null,null,null,null,null,null,null,null,null,null,null,null,null,null,null,null,null,null,null,null,{"$f":"IF(CRSDATA!BT1356=\"\",\"\",CRSDATA!BT1356)","v":""}]
[null,null,null,null,null,null,null,null,null,null,null,null,null,null,null,null,null,null,null,null,null,null,null,null,null,null,null,null,null,null,{"$f":"IF(CRSDATA!BT1357=\"\",\"\",CRSDATA!BT1357)","v":""}]
[null,null,null,null,null,null,null,null,null,null,null,null,null,null,null,null,null,null,null,null,null,null,null,null,null,null,null,null,null,null,{"$f":"IF(CRSDATA!BT1358=\"\",\"\",CRSDATA!BT1358)","v":""}]
[null,null,null,null,null,null,null,null,null,null,null,null,null,null,null,null,null,null,null,null,null,null,null,null,null,null,null,null,null,null,{"$f":"IF(CRSDATA!BT1359=\"\",\"\",CRSDATA!BT1359)","v":""}]
[null,null,null,null,null,null,null,null,null,null,null,null,null,null,null,null,null,null,null,null,null,null,null,null,null,null,null,null,null,null,{"$f":"IF(CRSDATA!BT1360=\"\",\"\",CRSDATA!BT1360)","v":""}]
[null,null,null,null,null,null,null,null,null,null,null,null,null,null,null,null,null,null,null,null,null,null,null,null,null,null,null,null,null,null,{"$f":"IF(CRSDATA!BT1361=\"\",\"\",CRSDATA!BT1361)","v":""}]
[null,null,null,null,null,null,null,null,null,null,null,null,null,null,null,null,null,null,null,null,null,null,null,null,null,null,null,null,null,null,{"$f":"IF(CRSDATA!BT1362=\"\",\"\",CRSDATA!BT1362)","v":""}]
[null,null,null,null,null,null,null,null,null,null,null,null,null,null,null,null,null,null,null,null,null,null,null,null,null,null,null,null,null,null,{"$f":"IF(CRSDATA!BT1363=\"\",\"\",CRSDATA!BT1363)","v":""}]
[null,null,null,null,null,null,null,null,null,null,null,null,null,null,null,null,null,null,null,null,null,null,null,null,null,null,null,null,null,null,{"$f":"IF(CRSDATA!BT1364=\"\",\"\",CRSDATA!BT1364)","v":""}]
[null,null,null,null,null,null,null,null,null,null,null,null,null,null,null,null,null,null,null,null,null,null,null,null,null,null,null,null,null,null,{"$f":"IF(CRSDATA!BT1365=\"\",\"\",CRSDATA!BT1365)","v":""}]
[null,null,null,null,null,null,null,null,null,null,null,null,null,null,null,null,null,null,null,null,null,null,null,null,null,null,null,null,null,null,{"$f":"IF(CRSDATA!BT1366=\"\",\"\",CRSDATA!BT1366)","v":""}]
[null,null,null,null,null,null,null,null,null,null,null,null,null,null,null,null,null,null,null,null,null,null,null,null,null,null,null,null,null,null,{"$f":"IF(CRSDATA!BT1367=\"\",\"\",CRSDATA!BT1367)","v":""}]
[null,null,null,null,null,null,null,null,null,null,null,null,null,null,null,null,null,null,null,null,null,null,null,null,null,null,null,null,null,null,{"$f":"IF(CRSDATA!BT1368=\"\",\"\",CRSDATA!BT1368)","v":""}]
[null,null,null,null,null,null,null,null,null,null,null,null,null,null,null,null,null,null,null,null,null,null,null,null,null,null,null,null,null,null,{"$f":"IF(CRSDATA!BT1369=\"\",\"\",CRSDATA!BT1369)","v":""}]
[null,null,null,null,null,null,null,null,null,null,null,null,null,null,null,null,null,null,null,null,null,null,null,null,null,null,null,null,null,null,{"$f":"IF(CRSDATA!BT1370=\"\",\"\",CRSDATA!BT1370)","v":""}]
[null,null,null,null,null,null,null,null,null,null,null,null,null,null,null,null,null,null,null,null,null,null,null,null,null,null,null,null,null,null,{"$f":"IF(CRSDATA!BT1371=\"\",\"\",CRSDATA!BT1371)","v":""}]
[null,null,null,null,null,null,null,null,null,null,null,null,null,null,null,null,null,null,null,null,null,null,null,null,null,null,null,null,null,null,{"$f":"IF(CRSDATA!BT1372=\"\",\"\",CRSDATA!BT1372)","v":""}]
[null,null,null,null,null,null,null,null,null,null,null,null,null,null,null,null,null,null,null,null,null,null,null,null,null,null,null,null,null,null,{"$f":"IF(CRSDATA!BT1373=\"\",\"\",CRSDATA!BT1373)","v":""}]
[null,null,null,null,null,null,null,null,null,null,null,null,null,null,null,null,null,null,null,null,null,null,null,null,null,null,null,null,null,null,{"$f":"IF(CRSDATA!BT1374=\"\",\"\",CRSDATA!BT1374)","v":""}]
[null,null,null,null,null,null,null,null,null,null,null,null,null,null,null,null,null,null,null,null,null,null,null,null,null,null,null,null,null,null,{"$f":"IF(CRSDATA!BT1375=\"\",\"\",CRSDATA!BT1375)","v":""}]
[null,null,null,null,null,null,null,null,null,null,null,null,null,null,null,null,null,null,null,null,null,null,null,null,null,null,null,null,null,null,{"$f":"IF(CRSDATA!BT1376=\"\",\"\",CRSDATA!BT1376)","v":""}]
[null,null,null,null,null,null,null,null,null,null,null,null,null,null,null,null,null,null,null,null,null,null,null,null,null,null,null,null,null,null,{"$f":"IF(CRSDATA!BT1377=\"\",\"\",CRSDATA!BT1377)","v":""}]
[null,null,null,null,null,null,null,null,null,null,null,null,null,null,null,null,null,null,null,null,null,null,null,null,null,null,null,null,null,null,{"$f":"IF(CRSDATA!BT1378=\"\",\"\",CRSDATA!BT1378)","v":""}]
[null,null,null,null,null,null,null,null,null,null,null,null,null,null,null,null,null,null,null,null,null,null,null,null,null,null,null,null,null,null,{"$f":"IF(CRSDATA!BT1379=\"\",\"\",CRSDATA!BT1379)","v":""}]
[null,null,null,null,null,null,null,null,null,null,null,null,null,null,null,null,null,null,null,null,null,null,null,null,null,null,null,null,null,null,{"$f":"IF(CRSDATA!BT1380=\"\",\"\",CRSDATA!BT1380)","v":""}]
[null,null,null,null,null,null,null,null,null,null,null,null,null,null,null,null,null,null,null,null,null,null,null,null,null,null,null,null,null,null,{"$f":"IF(CRSDATA!BT1381=\"\",\"\",CRSDATA!BT1381)","v":""}]
[null,null,null,null,null,null,null,null,null,null,null,null,null,null,null,null,null,null,null,null,null,null,null,null,null,null,null,null,null,null,{"$f":"IF(CRSDATA!BT1382=\"\",\"\",CRSDATA!BT1382)","v":""}]
[null,null,null,null,null,null,null,null,null,null,null,null,null,null,null,null,null,null,null,null,null,null,null,null,null,null,null,null,null,null,{"$f":"IF(CRSDATA!BT1383=\"\",\"\",CRSDATA!BT1383)","v":""}]
[null,null,null,null,null,null,null,null,null,null,null,null,null,null,null,null,null,null,null,null,null,null,null,null,null,null,null,null,null,null,{"$f":"IF(CRSDATA!BT1384=\"\",\"\",CRSDATA!BT1384)","v":""}]
[null,null,null,null,null,null,null,null,null,null,null,null,null,null,null,null,null,null,null,null,null,null,null,null,null,null,null,null,null,null,{"$f":"IF(CRSDATA!BT1385=\"\",\"\",CRSDATA!BT1385)","v":""}]
[null,null,null,null,null,null,null,null,null,null,null,null,null,null,null,null,null,null,null,null,null,null,null,null,null,null,null,null,null,null,{"$f":"IF(CRSDATA!BT1386=\"\",\"\",CRSDATA!BT1386)","v":""}]
[null,null,null,null,null,null,null,null,null,null,null,null,null,null,null,null,null,null,null,null,null,null,null,null,null,null,null,null,null,null,{"$f":"IF(CRSDATA!BT1387=\"\",\"\",CRSDATA!BT1387)","v":""}]
[null,null,null,null,null,null,null,null,null,null,null,null,null,null,null,null,null,null,null,null,null,null,null,null,null,null,null,null,null,null,{"$f":"IF(CRSDATA!BT1388=\"\",\"\",CRSDATA!BT1388)","v":""}]
[null,null,null,null,null,null,null,null,null,null,null,null,null,null,null,null,null,null,null,null,null,null,null,null,null,null,null,null,null,null,{"$f":"IF(CRSDATA!BT1389=\"\",\"\",CRSDATA!BT1389)","v":""}]
[null,null,null,null,null,null,null,null,null,null,null,null,null,null,null,null,null,null,null,null,null,null,null,null,null,null,null,null,null,null,{"$f":"IF(CRSDATA!BT1390=\"\",\"\",CRSDATA!BT1390)","v":""}]
[null,null,null,null,null,null,null,null,null,null,null,null,null,null,null,null,null,null,null,null,null,null,null,null,null,null,null,null,null,null,{"$f":"IF(CRSDATA!BT1391=\"\",\"\",CRSDATA!BT1391)","v":""}]
[null,null,null,null,null,null,null,null,null,null,null,null,null,null,null,null,null,null,null,null,null,null,null,null,null,null,null,null,null,null,{"$f":"IF(CRSDATA!BT1392=\"\",\"\",CRSDATA!BT1392)","v":""}]
[null,null,null,null,null,null,null,null,null,null,null,null,null,null,null,null,null,null,null,null,null,null,null,null,null,null,null,null,null,null,{"$f":"IF(CRSDATA!BT1393=\"\",\"\",CRSDATA!BT1393)","v":""}]
[null,null,null,null,null,null,null,null,null,null,null,null,null,null,null,null,null,null,null,null,null,null,null,null,null,null,null,null,null,null,{"$f":"IF(CRSDATA!BT1394=\"\",\"\",CRSDATA!BT1394)","v":""}]
[null,null,null,null,null,null,null,null,null,null,null,null,null,null,null,null,null,null,null,null,null,null,null,null,null,null,null,null,null,null,{"$f":"IF(CRSDATA!BT1395=\"\",\"\",CRSDATA!BT1395)","v":""}]
[null,null,null,null,null,null,null,null,null,null,null,null,null,null,null,null,null,null,null,null,null,null,null,null,null,null,null,null,null,null,{"$f":"IF(CRSDATA!BT1396=\"\",\"\",CRSDATA!BT1396)","v":""}]
[null,null,null,null,null,null,null,null,null,null,null,null,null,null,null,null,null,null,null,null,null,null,null,null,null,null,null,null,null,null,{"$f":"IF(CRSDATA!BT1397=\"\",\"\",CRSDATA!BT1397)","v":""}]
[null,null,null,null,null,null,null,null,null,null,null,null,null,null,null,null,null,null,null,null,null,null,null,null,null,null,null,null,null,null,{"$f":"IF(CRSDATA!BT1398=\"\",\"\",CRSDATA!BT1398)","v":""}]
[null,null,null,null,null,null,null,null,null,null,null,null,null,null,null,null,null,null,null,null,null,null,null,null,null,null,null,null,null,null,{"$f":"IF(CRSDATA!BT1399=\"\",\"\",CRSDATA!BT1399)","v":""}]
[null,null,null,null,null,null,null,null,null,null,null,null,null,null,null,null,null,null,null,null,null,null,null,null,null,null,null,null,null,null,{"$f":"IF(CRSDATA!BT1400=\"\",\"\",CRSDATA!BT1400)","v":""}]
[null,null,null,null,null,null,null,null,null,null,null,null,null,null,null,null,null,null,null,null,null,null,null,null,null,null,null,null,null,null,{"$f":"IF(CRSDATA!BT1401=\"\",\"\",CRSDATA!BT1401)","v":""}]
[null,null,null,null,null,null,null,null,null,null,null,null,null,null,null,null,null,null,null,null,null,null,null,null,null,null,null,null,null,null,{"$f":"IF(CRSDATA!BT1402=\"\",\"\",CRSDATA!BT1402)","v":""}]
[null,null,null,null,null,null,null,null,null,null,null,null,null,null,null,null,null,null,null,null,null,null,null,null,null,null,null,null,null,null,{"$f":"IF(CRSDATA!BT1403=\"\",\"\",CRSDATA!BT1403)","v":""}]
[null,null,null,null,null,null,null,null,null,null,null,null,null,null,null,null,null,null,null,null,null,null,null,null,null,null,null,null,null,null,{"$f":"IF(CRSDATA!BT1404=\"\",\"\",CRSDATA!BT1404)","v":""}]
[null,null,null,null,null,null,null,null,null,null,null,null,null,null,null,null,null,null,null,null,null,null,null,null,null,null,null,null,null,null,{"$f":"IF(CRSDATA!BT1405=\"\",\"\",CRSDATA!BT1405)","v":""}]
[null,null,null,null,null,null,null,null,null,null,null,null,null,null,null,null,null,null,null,null,null,null,null,null,null,null,null,null,null,null,{"$f":"IF(CRSDATA!BT1406=\"\",\"\",CRSDATA!BT1406)","v":""}]
[null,null,null,null,null,null,null,null,null,null,null,null,null,null,null,null,null,null,null,null,null,null,null,null,null,null,null,null,null,null,{"$f":"IF(CRSDATA!BT1407=\"\",\"\",CRSDATA!BT1407)","v":""}]
[null,null,null,null,null,null,null,null,null,null,null,null,null,null,null,null,null,null,null,null,null,null,null,null,null,null,null,null,null,null,{"$f":"IF(CRSDATA!BT1408=\"\",\"\",CRSDATA!BT1408)","v":""}]
[null,null,null,null,null,null,null,null,null,null,null,null,null,null,null,null,null,null,null,null,null,null,null,null,null,null,null,null,null,null,{"$f":"IF(CRSDATA!BT1409=\"\",\"\",CRSDATA!BT1409)","v":""}]
[null,null,null,null,null,null,null,null,null,null,null,null,null,null,null,null,null,null,null,null,null,null,null,null,null,null,null,null,null,null,{"$f":"IF(CRSDATA!BT1410=\"\",\"\",CRSDATA!BT1410)","v":""}]
[null,null,null,null,null,null,null,null,null,null,null,null,null,null,null,null,null,null,null,null,null,null,null,null,null,null,null,null,null,null,{"$f":"IF(CRSDATA!BT1411=\"\",\"\",CRSDATA!BT1411)","v":""}]
[null,null,null,null,null,null,null,null,null,null,null,null,null,null,null,null,null,null,null,null,null,null,null,null,null,null,null,null,null,null,{"$f":"IF(CRSDATA!BT1412=\"\",\"\",CRSDATA!BT1412)","v":""}]
[null,null,null,null,null,null,null,null,null,null,null,null,null,null,null,null,null,null,null,null,null,null,null,null,null,null,null,null,null,null,{"$f":"IF(CRSDATA!BT1413=\"\",\"\",CRSDATA!BT1413)","v":""}]
[null,null,null,null,null,null,null,null,null,null,null,null,null,null,null,null,null,null,null,null,null,null,null,null,null,null,null,null,null,null,{"$f":"IF(CRSDATA!BT1414=\"\",\"\",CRSDATA!BT1414)","v":""}]
[null,null,null,null,null,null,null,null,null,null,null,null,null,null,null,null,null,null,null,null,null,null,null,null,null,null,null,null,null,null,{"$f":"IF(CRSDATA!BT1415=\"\",\"\",CRSDATA!BT1415)","v":""}]
[null,null,null,null,null,null,null,null,null,null,null,null,null,null,null,null,null,null,null,null,null,null,null,null,null,null,null,null,null,null,{"$f":"IF(CRSDATA!BT1416=\"\",\"\",CRSDATA!BT1416)","v":""}]
[null,null,null,null,null,null,null,null,null,null,null,null,null,null,null,null,null,null,null,null,null,null,null,null,null,null,null,null,null,null,{"$f":"IF(CRSDATA!BT1417=\"\",\"\",CRSDATA!BT1417)","v":""}]
[null,null,null,null,null,null,null,null,null,null,null,null,null,null,null,null,null,null,null,null,null,null,null,null,null,null,null,null,null,null,{"$f":"IF(CRSDATA!BT1418=\"\",\"\",CRSDATA!BT1418)","v":""}]
[null,null,null,null,null,null,null,null,null,null,null,null,null,null,null,null,null,null,null,null,null,null,null,null,null,null,null,null,null,null,{"$f":"IF(CRSDATA!BT1419=\"\",\"\",CRSDATA!BT1419)","v":""}]
[null,null,null,null,null,null,null,null,null,null,null,null,null,null,null,null,null,null,null,null,null,null,null,null,null,null,null,null,null,null,{"$f":"IF(CRSDATA!BT1420=\"\",\"\",CRSDATA!BT1420)","v":""}]
[null,null,null,null,null,null,null,null,null,null,null,null,null,null,null,null,null,null,null,null,null,null,null,null,null,null,null,null,null,null,{"$f":"IF(CRSDATA!BT1421=\"\",\"\",CRSDATA!BT1421)","v":""}]
[null,null,null,null,null,null,null,null,null,null,null,null,null,null,null,null,null,null,null,null,null,null,null,null,null,null,null,null,null,null,{"$f":"IF(CRSDATA!BT1422=\"\",\"\",CRSDATA!BT1422)","v":""}]
[null,null,null,null,null,null,null,null,null,null,null,null,null,null,null,null,null,null,null,null,null,null,null,null,null,null,null,null,null,null,{"$f":"IF(CRSDATA!BT1423=\"\",\"\",CRSDATA!BT1423)","v":""}]
[null,null,null,null,null,null,null,null,null,null,null,null,null,null,null,null,null,null,null,null,null,null,null,null,null,null,null,null,null,null,{"$f":"IF(CRSDATA!BT1424=\"\",\"\",CRSDATA!BT1424)","v":""}]
[null,null,null,null,null,null,null,null,null,null,null,null,null,null,null,null,null,null,null,null,null,null,null,null,null,null,null,null,null,null,{"$f":"IF(CRSDATA!BT1425=\"\",\"\",CRSDATA!BT1425)","v":""}]
[null,null,null,null,null,null,null,null,null,null,null,null,null,null,null,null,null,null,null,null,null,null,null,null,null,null,null,null,null,null,{"$f":"IF(CRSDATA!BT1426=\"\",\"\",CRSDATA!BT1426)","v":""}]
[null,null,null,null,null,null,null,null,null,null,null,null,null,null,null,null,null,null,null,null,null,null,null,null,null,null,null,null,null,null,{"$f":"IF(CRSDATA!BT1427=\"\",\"\",CRSDATA!BT1427)","v":""}]
[null,null,null,null,null,null,null,null,null,null,null,null,null,null,null,null,null,null,null,null,null,null,null,null,null,null,null,null,null,null,{"$f":"IF(CRSDATA!BT1428=\"\",\"\",CRSDATA!BT1428)","v":""}]
[null,null,null,null,null,null,null,null,null,null,null,null,null,null,null,null,null,null,null,null,null,null,null,null,null,null,null,null,null,null,{"$f":"IF(CRSDATA!BT1429=\"\",\"\",CRSDATA!BT1429)","v":""}]
[null,null,null,null,null,null,null,null,null,null,null,null,null,null,null,null,null,null,null,null,null,null,null,null,null,null,null,null,null,null,{"$f":"IF(CRSDATA!BT1430=\"\",\"\",CRSDATA!BT1430)","v":""}]
[null,null,null,null,null,null,null,null,null,null,null,null,null,null,null,null,null,null,null,null,null,null,null,null,null,null,null,null,null,null,{"$f":"IF(CRSDATA!BT1431=\"\",\"\",CRSDATA!BT1431)","v":""}]
[null,null,null,null,null,null,null,null,null,null,null,null,null,null,null,null,null,null,null,null,null,null,null,null,null,null,null,null,null,null,{"$f":"IF(CRSDATA!BT1432=\"\",\"\",CRSDATA!BT1432)","v":""}]
[null,null,null,null,null,null,null,null,null,null,null,null,null,null,null,null,null,null,null,null,null,null,null,null,null,null,null,null,null,null,{"$f":"IF(CRSDATA!BT1433=\"\",\"\",CRSDATA!BT1433)","v":""}]
[null,null,null,null,null,null,null,null,null,null,null,null,null,null,null,null,null,null,null,null,null,null,null,null,null,null,null,null,null,null,{"$f":"IF(CRSDATA!BT1434=\"\",\"\",CRSDATA!BT1434)","v":""}]
[null,null,null,null,null,null,null,null,null,null,null,null,null,null,null,null,null,null,null,null,null,null,null,null,null,null,null,null,null,null,{"$f":"IF(CRSDATA!BT1435=\"\",\"\",CRSDATA!BT1435)","v":""}]
[null,null,null,null,null,null,null,null,null,null,null,null,null,null,null,null,null,null,null,null,null,null,null,null,null,null,null,null,null,null,{"$f":"IF(CRSDATA!BT1436=\"\",\"\",CRSDATA!BT1436)","v":""}]
[null,null,null,null,null,null,null,null,null,null,null,null,null,null,null,null,null,null,null,null,null,null,null,null,null,null,null,null,null,null,{"$f":"IF(CRSDATA!BT1437=\"\",\"\",CRSDATA!BT1437)","v":""}]
[null,null,null,null,null,null,null,null,null,null,null,null,null,null,null,null,null,null,null,null,null,null,null,null,null,null,null,null,null,null,{"$f":"IF(CRSDATA!BT1438=\"\",\"\",CRSDATA!BT1438)","v":""}]
[null,null,null,null,null,null,null,null,null,null,null,null,null,null,null,null,null,null,null,null,null,null,null,null,null,null,null,null,null,null,{"$f":"IF(CRSDATA!BT1439=\"\",\"\",CRSDATA!BT1439)","v":""}]
[null,null,null,null,null,null,null,null,null,null,null,null,null,null,null,null,null,null,null,null,null,null,null,null,null,null,null,null,null,null,{"$f":"IF(CRSDATA!BT1440=\"\",\"\",CRSDATA!BT1440)","v":""}]
[null,null,null,null,null,null,null,null,null,null,null,null,null,null,null,null,null,null,null,null,null,null,null,null,null,null,null,null,null,null,{"$f":"IF(CRSDATA!BT1441=\"\",\"\",CRSDATA!BT1441)","v":""}]
[null,null,null,null,null,null,null,null,null,null,null,null,null,null,null,null,null,null,null,null,null,null,null,null,null,null,null,null,null,null,{"$f":"IF(CRSDATA!BT1442=\"\",\"\",CRSDATA!BT1442)","v":""}]
[null,null,null,null,null,null,null,null,null,null,null,null,null,null,null,null,null,null,null,null,null,null,null,null,null,null,null,null,null,null,{"$f":"IF(CRSDATA!BT1443=\"\",\"\",CRSDATA!BT1443)","v":""}]
[null,null,null,null,null,null,null,null,null,null,null,null,null,null,null,null,null,null,null,null,null,null,null,null,null,null,null,null,null,null,{"$f":"IF(CRSDATA!BT1444=\"\",\"\",CRSDATA!BT1444)","v":""}]
[null,null,null,null,null,null,null,null,null,null,null,null,null,null,null,null,null,null,null,null,null,null,null,null,null,null,null,null,null,null,{"$f":"IF(CRSDATA!BT1445=\"\",\"\",CRSDATA!BT1445)","v":""}]
[null,null,null,null,null,null,null,null,null,null,null,null,null,null,null,null,null,null,null,null,null,null,null,null,null,null,null,null,null,null,{"$f":"IF(CRSDATA!BT1446=\"\",\"\",CRSDATA!BT1446)","v":""}]
[null,null,null,null,null,null,null,null,null,null,null,null,null,null,null,null,null,null,null,null,null,null,null,null,null,null,null,null,null,null,{"$f":"IF(CRSDATA!BT1447=\"\",\"\",CRSDATA!BT1447)","v":""}]
[null,null,null,null,null,null,null,null,null,null,null,null,null,null,null,null,null,null,null,null,null,null,null,null,null,null,null,null,null,null,{"$f":"IF(CRSDATA!BT1448=\"\",\"\",CRSDATA!BT1448)","v":""}]
[null,null,null,null,null,null,null,null,null,null,null,null,null,null,null,null,null,null,null,null,null,null,null,null,null,null,null,null,null,null,{"$f":"IF(CRSDATA!BT1449=\"\",\"\",CRSDATA!BT1449)","v":""}]
[null,null,null,null,null,null,null,null,null,null,null,null,null,null,null,null,null,null,null,null,null,null,null,null,null,null,null,null,null,null,{"$f":"IF(CRSDATA!BT1450=\"\",\"\",CRSDATA!BT1450)","v":""}]
[null,null,null,null,null,null,null,null,null,null,null,null,null,null,null,null,null,null,null,null,null,null,null,null,null,null,null,null,null,null,{"$f":"IF(CRSDATA!BT1451=\"\",\"\",CRSDATA!BT1451)","v":""}]
[null,null,null,null,null,null,null,null,null,null,null,null,null,null,null,null,null,null,null,null,null,null,null,null,null,null,null,null,null,null,{"$f":"IF(CRSDATA!BT1452=\"\",\"\",CRSDATA!BT1452)","v":""}]
[null,null,null,null,null,null,null,null,null,null,null,null,null,null,null,null,null,null,null,null,null,null,null,null,null,null,null,null,null,null,{"$f":"IF(CRSDATA!BT1453=\"\",\"\",CRSDATA!BT1453)","v":""}]
[null,null,null,null,null,null,null,null,null,null,null,null,null,null,null,null,null,null,null,null,null,null,null,null,null,null,null,null,null,null,{"$f":"IF(CRSDATA!BT1454=\"\",\"\",CRSDATA!BT1454)","v":""}]
[null,null,null,null,null,null,null,null,null,null,null,null,null,null,null,null,null,null,null,null,null,null,null,null,null,null,null,null,null,null,{"$f":"IF(CRSDATA!BT1455=\"\",\"\",CRSDATA!BT1455)","v":""}]
[null,null,null,null,null,null,null,null,null,null,null,null,null,null,null,null,null,null,null,null,null,null,null,null,null,null,null,null,null,null,{"$f":"IF(CRSDATA!BT1456=\"\",\"\",CRSDATA!BT1456)","v":""}]
[null,null,null,null,null,null,null,null,null,null,null,null,null,null,null,null,null,null,null,null,null,null,null,null,null,null,null,null,null,null,{"$f":"IF(CRSDATA!BT1457=\"\",\"\",CRSDATA!BT1457)","v":""}]
[null,null,null,null,null,null,null,null,null,null,null,null,null,null,null,null,null,null,null,null,null,null,null,null,null,null,null,null,null,null,{"$f":"IF(CRSDATA!BT1458=\"\",\"\",CRSDATA!BT1458)","v":""}]
[null,null,null,null,null,null,null,null,null,null,null,null,null,null,null,null,null,null,null,null,null,null,null,null,null,null,null,null,null,null,{"$f":"IF(CRSDATA!BT1459=\"\",\"\",CRSDATA!BT1459)","v":""}]
[null,null,null,null,null,null,null,null,null,null,null,null,null,null,null,null,null,null,null,null,null,null,null,null,null,null,null,null,null,null,{"$f":"IF(CRSDATA!BT1460=\"\",\"\",CRSDATA!BT1460)","v":""}]
[null,null,null,null,null,null,null,null,null,null,null,null,null,null,null,null,null,null,null,null,null,null,null,null,null,null,null,null,null,null,{"$f":"IF(CRSDATA!BT1461=\"\",\"\",CRSDATA!BT1461)","v":""}]
[null,null,null,null,null,null,null,null,null,null,null,null,null,null,null,null,null,null,null,null,null,null,null,null,null,null,null,null,null,null,{"$f":"IF(CRSDATA!BT1462=\"\",\"\",CRSDATA!BT1462)","v":""}]
[null,null,null,null,null,null,null,null,null,null,null,null,null,null,null,null,null,null,null,null,null,null,null,null,null,null,null,null,null,null,{"$f":"IF(CRSDATA!BT1463=\"\",\"\",CRSDATA!BT1463)","v":""}]
[null,null,null,null,null,null,null,null,null,null,null,null,null,null,null,null,null,null,null,null,null,null,null,null,null,null,null,null,null,null,{"$f":"IF(CRSDATA!BT1464=\"\",\"\",CRSDATA!BT1464)","v":""}]
[null,null,null,null,null,null,null,null,null,null,null,null,null,null,null,null,null,null,null,null,null,null,null,null,null,null,null,null,null,null,{"$f":"IF(CRSDATA!BT1465=\"\",\"\",CRSDATA!BT1465)","v":""}]
[null,null,null,null,null,null,null,null,null,null,null,null,null,null,null,null,null,null,null,null,null,null,null,null,null,null,null,null,null,null,{"$f":"IF(CRSDATA!BT1466=\"\",\"\",CRSDATA!BT1466)","v":""}]
[null,null,null,null,null,null,null,null,null,null,null,null,null,null,null,null,null,null,null,null,null,null,null,null,null,null,null,null,null,null,{"$f":"IF(CRSDATA!BT1467=\"\",\"\",CRSDATA!BT1467)","v":""}]
[null,null,null,null,null,null,null,null,null,null,null,null,null,null,null,null,null,null,null,null,null,null,null,null,null,null,null,null,null,null,{"$f":"IF(CRSDATA!BT1468=\"\",\"\",CRSDATA!BT1468)","v":""}]
[null,null,null,null,null,null,null,null,null,null,null,null,null,null,null,null,null,null,null,null,null,null,null,null,null,null,null,null,null,null,{"$f":"IF(CRSDATA!BT1469=\"\",\"\",CRSDATA!BT1469)","v":""}]
[null,null,null,null,null,null,null,null,null,null,null,null,null,null,null,null,null,null,null,null,null,null,null,null,null,null,null,null,null,null,{"$f":"IF(CRSDATA!BT1470=\"\",\"\",CRSDATA!BT1470)","v":""}]
[null,null,null,null,null,null,null,null,null,null,null,null,null,null,null,null,null,null,null,null,null,null,null,null,null,null,null,null,null,null,{"$f":"IF(CRSDATA!BT1471=\"\",\"\",CRSDATA!BT1471)","v":""}]
[null,null,null,null,null,null,null,null,null,null,null,null,null,null,null,null,null,null,null,null,null,null,null,null,null,null,null,null,null,null,{"$f":"IF(CRSDATA!BT1472=\"\",\"\",CRSDATA!BT1472)","v":""}]
[null,null,null,null,null,null,null,null,null,null,null,null,null,null,null,null,null,null,null,null,null,null,null,null,null,null,null,null,null,null,{"$f":"IF(CRSDATA!BT1473=\"\",\"\",CRSDATA!BT1473)","v":""}]
[null,null,null,null,null,null,null,null,null,null,null,null,null,null,null,null,null,null,null,null,null,null,null,null,null,null,null,null,null,null,{"$f":"IF(CRSDATA!BT1474=\"\",\"\",CRSDATA!BT1474)","v":""}]
[null,null,null,null,null,null,null,null,null,null,null,null,null,null,null,null,null,null,null,null,null,null,null,null,null,null,null,null,null,null,{"$f":"IF(CRSDATA!BT1475=\"\",\"\",CRSDATA!BT1475)","v":""}]
[null,null,null,null,null,null,null,null,null,null,null,null,null,null,null,null,null,null,null,null,null,null,null,null,null,null,null,null,null,null,{"$f":"IF(CRSDATA!BT1476=\"\",\"\",CRSDATA!BT1476)","v":""}]
[null,null,null,null,null,null,null,null,null,null,null,null,null,null,null,null,null,null,null,null,null,null,null,null,null,null,null,null,null,null,{"$f":"IF(CRSDATA!BT1477=\"\",\"\",CRSDATA!BT1477)","v":""}]
[null,null,null,null,null,null,null,null,null,null,null,null,null,null,null,null,null,null,null,null,null,null,null,null,null,null,null,null,null,null,{"$f":"IF(CRSDATA!BT1478=\"\",\"\",CRSDATA!BT1478)","v":""}]
[null,null,null,null,null,null,null,null,null,null,null,null,null,null,null,null,null,null,null,null,null,null,null,null,null,null,null,null,null,null,{"$f":"IF(CRSDATA!BT1479=\"\",\"\",CRSDATA!BT1479)","v":""}]
[null,null,null,null,null,null,null,null,null,null,null,null,null,null,null,null,null,null,null,null,null,null,null,null,null,null,null,null,null,null,{"$f":"IF(CRSDATA!BT1480=\"\",\"\",CRSDATA!BT1480)","v":""}]
[null,null,null,null,null,null,null,null,null,null,null,null,null,null,null,null,null,null,null,null,null,null,null,null,null,null,null,null,null,null,{"$f":"IF(CRSDATA!BT1481=\"\",\"\",CRSDATA!BT1481)","v":""}]
[null,null,null,null,null,null,null,null,null,null,null,null,null,null,null,null,null,null,null,null,null,null,null,null,null,null,null,null,null,null,{"$f":"IF(CRSDATA!BT1482=\"\",\"\",CRSDATA!BT1482)","v":""}]
[null,null,null,null,null,null,null,null,null,null,null,null,null,null,null,null,null,null,null,null,null,null,null,null,null,null,null,null,null,null,{"$f":"IF(CRSDATA!BT1483=\"\",\"\",CRSDATA!BT1483)","v":""}]
[null,null,null,null,null,null,null,null,null,null,null,null,null,null,null,null,null,null,null,null,null,null,null,null,null,null,null,null,null,null,{"$f":"IF(CRSDATA!BT1484=\"\",\"\",CRSDATA!BT1484)","v":""}]
[null,null,null,null,null,null,null,null,null,null,null,null,null,null,null,null,null,null,null,null,null,null,null,null,null,null,null,null,null,null,{"$f":"IF(CRSDATA!BT1485=\"\",\"\",CRSDATA!BT1485)","v":""}]
[null,null,null,null,null,null,null,null,null,null,null,null,null,null,null,null,null,null,null,null,null,null,null,null,null,null,null,null,null,null,{"$f":"IF(CRSDATA!BT1486=\"\",\"\",CRSDATA!BT1486)","v":""}]
[null,null,null,null,null,null,null,null,null,null,null,null,null,null,null,null,null,null,null,null,null,null,null,null,null,null,null,null,null,null,{"$f":"IF(CRSDATA!BT1487=\"\",\"\",CRSDATA!BT1487)","v":""}]
[null,null,null,null,null,null,null,null,null,null,null,null,null,null,null,null,null,null,null,null,null,null,null,null,null,null,null,null,null,null,{"$f":"IF(CRSDATA!BT1488=\"\",\"\",CRSDATA!BT1488)","v":""}]
[null,null,null,null,null,null,null,null,null,null,null,null,null,null,null,null,null,null,null,null,null,null,null,null,null,null,null,null,null,null,{"$f":"IF(CRSDATA!BT1489=\"\",\"\",CRSDATA!BT1489)","v":""}]
[null,null,null,null,null,null,null,null,null,null,null,null,null,null,null,null,null,null,null,null,null,null,null,null,null,null,null,null,null,null,{"$f":"IF(CRSDATA!BT1490=\"\",\"\",CRSDATA!BT1490)","v":""}]
[null,null,null,null,null,null,null,null,null,null,null,null,null,null,null,null,null,null,null,null,null,null,null,null,null,null,null,null,null,null,{"$f":"IF(CRSDATA!BT1491=\"\",\"\",CRSDATA!BT1491)","v":""}]
[null,null,null,null,null,null,null,null,null,null,null,null,null,null,null,null,null,null,null,null,null,null,null,null,null,null,null,null,null,null,{"$f":"IF(CRSDATA!BT1492=\"\",\"\",CRSDATA!BT1492)","v":""}]
[null,null,null,null,null,null,null,null,null,null,null,null,null,null,null,null,null,null,null,null,null,null,null,null,null,null,null,null,null,null,{"$f":"IF(CRSDATA!BT1493=\"\",\"\",CRSDATA!BT1493)","v":""}]
[null,null,null,null,null,null,null,null,null,null,null,null,null,null,null,null,null,null,null,null,null,null,null,null,null,null,null,null,null,null,{"$f":"IF(CRSDATA!BT1494=\"\",\"\",CRSDATA!BT1494)","v":""}]
[null,null,null,null,null,null,null,null,null,null,null,null,null,null,null,null,null,null,null,null,null,null,null,null,null,null,null,null,null,null,{"$f":"IF(CRSDATA!BT1495=\"\",\"\",CRSDATA!BT1495)","v":""}]
[null,null,null,null,null,null,null,null,null,null,null,null,null,null,null,null,null,null,null,null,null,null,null,null,null,null,null,null,null,null,{"$f":"IF(CRSDATA!BT1496=\"\",\"\",CRSDATA!BT1496)","v":""}]
[null,null,null,null,null,null,null,null,null,null,null,null,null,null,null,null,null,null,null,null,null,null,null,null,null,null,null,null,null,null,{"$f":"IF(CRSDATA!BT1497=\"\",\"\",CRSDATA!BT1497)","v":""}]
[null,null,null,null,null,null,null,null,null,null,null,null,null,null,null,null,null,null,null,null,null,null,null,null,null,null,null,null,null,null,{"$f":"IF(CRSDATA!BT1498=\"\",\"\",CRSDATA!BT1498)","v":""}]
[null,null,null,null,null,null,null,null,null,null,null,null,null,null,null,null,null,null,null,null,null,null,null,null,null,null,null,null,null,null,{"$f":"IF(CRSDATA!BT1499=\"\",\"\",CRSDATA!BT1499)","v":""}]
[null,null,null,null,null,null,null,null,null,null,null,null,null,null,null,null,null,null,null,null,null,null,null,null,null,null,null,null,null,null,{"$f":"IF(CRSDATA!BT1500=\"\",\"\",CRSDATA!BT1500)","v":""}]
[null,null,null,null,null,null,null,null,null,null,null,null,null,null,null,null,null,null,null,null,null,null,null,null,null,null,null,null,null,null,{"$f":"IF(CRSDATA!BT1501=\"\",\"\",CRSDATA!BT1501)","v":""}]
[null,null,null,null,null,null,null,null,null,null,null,null,null,null,null,null,null,null,null,null,null,null,null,null,null,null,null,null,null,null,{"$f":"IF(CRSDATA!BT1502=\"\",\"\",CRSDATA!BT1502)","v":""}]
[null,null,null,null,null,null,null,null,null,null,null,null,null,null,null,null,null,null,null,null,null,null,null,null,null,null,null,null,null,null,{"$f":"IF(CRSDATA!BT1503=\"\",\"\",CRSDATA!BT1503)","v":""}]
[null,null,null,null,null,null,null,null,null,null,null,null,null,null,null,null,null,null,null,null,null,null,null,null,null,null,null,null,null,null,{"$f":"IF(CRSDATA!BT1504=\"\",\"\",CRSDATA!BT1504)","v":""}]
[null,null,null,null,null,null,null,null,null,null,null,null,null,null,null,null,null,null,null,null,null,null,null,null,null,null,null,null,null,null,{"$f":"IF(CRSDATA!BT1505=\"\",\"\",CRSDATA!BT1505)","v":""}]
[null,null,null,null,null,null,null,null,null,null,null,null,null,null,null,null,null,null,null,null,null,null,null,null,null,null,null,null,null,null,{"$f":"IF(CRSDATA!BT1506=\"\",\"\",CRSDATA!BT1506)","v":""}]
[null,null,null,null,null,null,null,null,null,null,null,null,null,null,null,null,null,null,null,null,null,null,null,null,null,null,null,null,null,null,{"$f":"IF(CRSDATA!BT1507=\"\",\"\",CRSDATA!BT1507)","v":""}]
[null,null,null,null,null,null,null,null,null,null,null,null,null,null,null,null,null,null,null,null,null,null,null,null,null,null,null,null,null,null,{"$f":"IF(CRSDATA!BT1508=\"\",\"\",CRSDATA!BT1508)","v":""}]
[null,null,null,null,null,null,null,null,null,null,null,null,null,null,null,null,null,null,null,null,null,null,null,null,null,null,null,null,null,null,{"$f":"IF(CRSDATA!BT1509=\"\",\"\",CRSDATA!BT1509)","v":""}]
[null,null,null,null,null,null,null,null,null,null,null,null,null,null,null,null,null,null,null,null,null,null,null,null,null,null,null,null,null,null,{"$f":"IF(CRSDATA!BT1510=\"\",\"\",CRSDATA!BT1510)","v":""}]
[null,null,null,null,null,null,null,null,null,null,null,null,null,null,null,null,null,null,null,null,null,null,null,null,null,null,null,null,null,null,{"$f":"IF(CRSDATA!BT1511=\"\",\"\",CRSDATA!BT1511)","v":""}]
[null,null,null,null,null,null,null,null,null,null,null,null,null,null,null,null,null,null,null,null,null,null,null,null,null,null,null,null,null,null,{"$f":"IF(CRSDATA!BT1512=\"\",\"\",CRSDATA!BT1512)","v":""}]
[null,null,null,null,null,null,null,null,null,null,null,null,null,null,null,null,null,null,null,null,null,null,null,null,null,null,null,null,null,null,{"$f":"IF(CRSDATA!BT1513=\"\",\"\",CRSDATA!BT1513)","v":""}]
[null,null,null,null,null,null,null,null,null,null,null,null,null,null,null,null,null,null,null,null,null,null,null,null,null,null,null,null,null,null,{"$f":"IF(CRSDATA!BT1514=\"\",\"\",CRSDATA!BT1514)","v":""}]
[null,null,null,null,null,null,null,null,null,null,null,null,null,null,null,null,null,null,null,null,null,null,null,null,null,null,null,null,null,null,{"$f":"IF(CRSDATA!BT1515=\"\",\"\",CRSDATA!BT1515)","v":""}]
[null,null,null,null,null,null,null,null,null,null,null,null,null,null,null,null,null,null,null,null,null,null,null,null,null,null,null,null,null,null,{"$f":"IF(CRSDATA!BT1516=\"\",\"\",CRSDATA!BT1516)","v":""}]
[null,null,null,null,null,null,null,null,null,null,null,null,null,null,null,null,null,null,null,null,null,null,null,null,null,null,null,null,null,null,{"$f":"IF(CRSDATA!BT1517=\"\",\"\",CRSDATA!BT1517)","v":""}]
[null,null,null,null,null,null,null,null,null,null,null,null,null,null,null,null,null,null,null,null,null,null,null,null,null,null,null,null,null,null,{"$f":"IF(CRSDATA!BT1518=\"\",\"\",CRSDATA!BT1518)","v":""}]
[null,null,null,null,null,null,null,null,null,null,null,null,null,null,null,null,null,null,null,null,null,null,null,null,null,null,null,null,null,null,{"$f":"IF(CRSDATA!BT1519=\"\",\"\",CRSDATA!BT1519)","v":""}]
[null,null,null,null,null,null,null,null,null,null,null,null,null,null,null,null,null,null,null,null,null,null,null,null,null,null,null,null,null,null,{"$f":"IF(CRSDATA!BT1520=\"\",\"\",CRSDATA!BT1520)","v":""}]
[null,null,null,null,null,null,null,null,null,null,null,null,null,null,null,null,null,null,null,null,null,null,null,null,null,null,null,null,null,null,{"$f":"IF(CRSDATA!BT1521=\"\",\"\",CRSDATA!BT1521)","v":""}]
[null,null,null,null,null,null,null,null,null,null,null,null,null,null,null,null,null,null,null,null,null,null,null,null,null,null,null,null,null,null,{"$f":"IF(CRSDATA!BT1522=\"\",\"\",CRSDATA!BT1522)","v":""}]
[null,null,null,null,null,null,null,null,null,null,null,null,null,null,null,null,null,null,null,null,null,null,null,null,null,null,null,null,null,null,{"$f":"IF(CRSDATA!BT1523=\"\",\"\",CRSDATA!BT1523)","v":""}]
[null,null,null,null,null,null,null,null,null,null,null,null,null,null,null,null,null,null,null,null,null,null,null,null,null,null,null,null,null,null,{"$f":"IF(CRSDATA!BT1524=\"\",\"\",CRSDATA!BT1524)","v":""}]
[null,null,null,null,null,null,null,null,null,null,null,null,null,null,null,null,null,null,null,null,null,null,null,null,null,null,null,null,null,null,{"$f":"IF(CRSDATA!BT1525=\"\",\"\",CRSDATA!BT1525)","v":""}]
[null,null,null,null,null,null,null,null,null,null,null,null,null,null,null,null,null,null,null,null,null,null,null,null,null,null,null,null,null,null,{"$f":"IF(CRSDATA!BT1526=\"\",\"\",CRSDATA!BT1526)","v":""}]
[null,null,null,null,null,null,null,null,null,null,null,null,null,null,null,null,null,null,null,null,null,null,null,null,null,null,null,null,null,null,{"$f":"IF(CRSDATA!BT1527=\"\",\"\",CRSDATA!BT1527)","v":""}]
[null,null,null,null,null,null,null,null,null,null,null,null,null,null,null,null,null,null,null,null,null,null,null,null,null,null,null,null,null,null,{"$f":"IF(CRSDATA!BT1528=\"\",\"\",CRSDATA!BT1528)","v":""}]
[null,null,null,null,null,null,null,null,null,null,null,null,null,null,null,null,null,null,null,null,null,null,null,null,null,null,null,null,null,null,{"$f":"IF(CRSDATA!BT1529=\"\",\"\",CRSDATA!BT1529)","v":""}]
[null,null,null,null,null,null,null,null,null,null,null,null,null,null,null,null,null,null,null,null,null,null,null,null,null,null,null,null,null,null,{"$f":"IF(CRSDATA!BT1530=\"\",\"\",CRSDATA!BT1530)","v":""}]
[null,null,null,null,null,null,null,null,null,null,null,null,null,null,null,null,null,null,null,null,null,null,null,null,null,null,null,null,null,null,{"$f":"IF(CRSDATA!BT1531=\"\",\"\",CRSDATA!BT1531)","v":""}]
[null,null,null,null,null,null,null,null,null,null,null,null,null,null,null,null,null,null,null,null,null,null,null,null,null,null,null,null,null,null,{"$f":"IF(CRSDATA!BT1532=\"\",\"\",CRSDATA!BT1532)","v":""}]
[null,null,null,null,null,null,null,null,null,null,null,null,null,null,null,null,null,null,null,null,null,null,null,null,null,null,null,null,null,null,{"$f":"IF(CRSDATA!BT1533=\"\",\"\",CRSDATA!BT1533)","v":""}]
[null,null,null,null,null,null,null,null,null,null,null,null,null,null,null,null,null,null,null,null,null,null,null,null,null,null,null,null,null,null,{"$f":"IF(CRSDATA!BT1534=\"\",\"\",CRSDATA!BT1534)","v":""}]
[null,null,null,null,null,null,null,null,null,null,null,null,null,null,null,null,null,null,null,null,null,null,null,null,null,null,null,null,null,null,{"$f":"IF(CRSDATA!BT1535=\"\",\"\",CRSDATA!BT1535)","v":""}]
[null,null,null,null,null,null,null,null,null,null,null,null,null,null,null,null,null,null,null,null,null,null,null,null,null,null,null,null,null,null,{"$f":"IF(CRSDATA!BT1536=\"\",\"\",CRSDATA!BT1536)","v":""}]
[null,null,null,null,null,null,null,null,null,null,null,null,null,null,null,null,null,null,null,null,null,null,null,null,null,null,null,null,null,null,{"$f":"IF(CRSDATA!BT1537=\"\",\"\",CRSDATA!BT1537)","v":""}]
[null,null,null,null,null,null,null,null,null,null,null,null,null,null,null,null,null,null,null,null,null,null,null,null,null,null,null,null,null,null,{"$f":"IF(CRSDATA!BT1538=\"\",\"\",CRSDATA!BT1538)","v":""}]
[null,null,null,null,null,null,null,null,null,null,null,null,null,null,null,null,null,null,null,null,null,null,null,null,null,null,null,null,null,null,{"$f":"IF(CRSDATA!BT1539=\"\",\"\",CRSDATA!BT1539)","v":""}]
[null,null,null,null,null,null,null,null,null,null,null,null,null,null,null,null,null,null,null,null,null,null,null,null,null,null,null,null,null,null,{"$f":"IF(CRSDATA!BT1540=\"\",\"\",CRSDATA!BT1540)","v":""}]
[null,null,null,null,null,null,null,null,null,null,null,null,null,null,null,null,null,null,null,null,null,null,null,null,null,null,null,null,null,null,{"$f":"IF(CRSDATA!BT1541=\"\",\"\",CRSDATA!BT1541)","v":""}]
[null,null,null,null,null,null,null,null,null,null,null,null,null,null,null,null,null,null,null,null,null,null,null,null,null,null,null,null,null,null,{"$f":"IF(CRSDATA!BT1542=\"\",\"\",CRSDATA!BT1542)","v":""}]
[null,null,null,null,null,null,null,null,null,null,null,null,null,null,null,null,null,null,null,null,null,null,null,null,null,null,null,null,null,null,{"$f":"IF(CRSDATA!BT1543=\"\",\"\",CRSDATA!BT1543)","v":""}]
[null,null,null,null,null,null,null,null,null,null,null,null,null,null,null,null,null,null,null,null,null,null,null,null,null,null,null,null,null,null,{"$f":"IF(CRSDATA!BT1544=\"\",\"\",CRSDATA!BT1544)","v":""}]
[null,null,null,null,null,null,null,null,null,null,null,null,null,null,null,null,null,null,null,null,null,null,null,null,null,null,null,null,null,null,{"$f":"IF(CRSDATA!BT1545=\"\",\"\",CRSDATA!BT1545)","v":""}]
[null,null,null,null,null,null,null,null,null,null,null,null,null,null,null,null,null,null,null,null,null,null,null,null,null,null,null,null,null,null,{"$f":"IF(CRSDATA!BT1546=\"\",\"\",CRSDATA!BT1546)","v":""}]
[null,null,null,null,null,null,null,null,null,null,null,null,null,null,null,null,null,null,null,null,null,null,null,null,null,null,null,null,null,null,{"$f":"IF(CRSDATA!BT1547=\"\",\"\",CRSDATA!BT1547)","v":""}]
[null,null,null,null,null,null,null,null,null,null,null,null,null,null,null,null,null,null,null,null,null,null,null,null,null,null,null,null,null,null,{"$f":"IF(CRSDATA!BT1548=\"\",\"\",CRSDATA!BT1548)","v":""}]
[null,null,null,null,null,null,null,null,null,null,null,null,null,null,null,null,null,null,null,null,null,null,null,null,null,null,null,null,null,null,{"$f":"IF(CRSDATA!BT1549=\"\",\"\",CRSDATA!BT1549)","v":""}]
[null,null,null,null,null,null,null,null,null,null,null,null,null,null,null,null,null,null,null,null,null,null,null,null,null,null,null,null,null,null,{"$f":"IF(CRSDATA!BT1550=\"\",\"\",CRSDATA!BT1550)","v":""}]
[null,null,null,null,null,null,null,null,null,null,null,null,null,null,null,null,null,null,null,null,null,null,null,null,null,null,null,null,null,null,{"$f":"IF(CRSDATA!BT1551=\"\",\"\",CRSDATA!BT1551)","v":""}]
[null,null,null,null,null,null,null,null,null,null,null,null,null,null,null,null,null,null,null,null,null,null,null,null,null,null,null,null,null,null,{"$f":"IF(CRSDATA!BT1552=\"\",\"\",CRSDATA!BT1552)","v":""}]
[null,null,null,null,null,null,null,null,null,null,null,null,null,null,null,null,null,null,null,null,null,null,null,null,null,null,null,null,null,null,{"$f":"IF(CRSDATA!BT1553=\"\",\"\",CRSDATA!BT1553)","v":""}]
[null,null,null,null,null,null,null,null,null,null,null,null,null,null,null,null,null,null,null,null,null,null,null,null,null,null,null,null,null,null,{"$f":"IF(CRSDATA!BT1554=\"\",\"\",CRSDATA!BT1554)","v":""}]
[null,null,null,null,null,null,null,null,null,null,null,null,null,null,null,null,null,null,null,null,null,null,null,null,null,null,null,null,null,null,{"$f":"IF(CRSDATA!BT1555=\"\",\"\",CRSDATA!BT1555)","v":""}]
[null,null,null,null,null,null,null,null,null,null,null,null,null,null,null,null,null,null,null,null,null,null,null,null,null,null,null,null,null,null,{"$f":"IF(CRSDATA!BT1556=\"\",\"\",CRSDATA!BT1556)","v":""}]
[null,null,null,null,null,null,null,null,null,null,null,null,null,null,null,null,null,null,null,null,null,null,null,null,null,null,null,null,null,null,{"$f":"IF(CRSDATA!BT1557=\"\",\"\",CRSDATA!BT1557)","v":""}]
[null,null,null,null,null,null,null,null,null,null,null,null,null,null,null,null,null,null,null,null,null,null,null,null,null,null,null,null,null,null,{"$f":"IF(CRSDATA!BT1558=\"\",\"\",CRSDATA!BT1558)","v":""}]
[null,null,null,null,null,null,null,null,null,null,null,null,null,null,null,null,null,null,null,null,null,null,null,null,null,null,null,null,null,null,{"$f":"IF(CRSDATA!BT1559=\"\",\"\",CRSDATA!BT1559)","v":""}]
[null,null,null,null,null,null,null,null,null,null,null,null,null,null,null,null,null,null,null,null,null,null,null,null,null,null,null,null,null,null,{"$f":"IF(CRSDATA!BT1560=\"\",\"\",CRSDATA!BT1560)","v":""}]
[null,null,null,null,null,null,null,null,null,null,null,null,null,null,null,null,null,null,null,null,null,null,null,null,null,null,null,null,null,null,{"$f":"IF(CRSDATA!BT1561=\"\",\"\",CRSDATA!BT1561)","v":""}]
[null,null,null,null,null,null,null,null,null,null,null,null,null,null,null,null,null,null,null,null,null,null,null,null,null,null,null,null,null,null,{"$f":"IF(CRSDATA!BT1562=\"\",\"\",CRSDATA!BT1562)","v":""}]
[null,null,null,null,null,null,null,null,null,null,null,null,null,null,null,null,null,null,null,null,null,null,null,null,null,null,null,null,null,null,{"$f":"IF(CRSDATA!BT1563=\"\",\"\",CRSDATA!BT1563)","v":""}]
[null,null,null,null,null,null,null,null,null,null,null,null,null,null,null,null,null,null,null,null,null,null,null,null,null,null,null,null,null,null,{"$f":"IF(CRSDATA!BT1564=\"\",\"\",CRSDATA!BT1564)","v":""}]
[null,null,null,null,null,null,null,null,null,null,null,null,null,null,null,null,null,null,null,null,null,null,null,null,null,null,null,null,null,null,{"$f":"IF(CRSDATA!BT1565=\"\",\"\",CRSDATA!BT1565)","v":""}]
[null,null,null,null,null,null,null,null,null,null,null,null,null,null,null,null,null,null,null,null,null,null,null,null,null,null,null,null,null,null,{"$f":"IF(CRSDATA!BT1566=\"\",\"\",CRSDATA!BT1566)","v":""}]
[null,null,null,null,null,null,null,null,null,null,null,null,null,null,null,null,null,null,null,null,null,null,null,null,null,null,null,null,null,null,{"$f":"IF(CRSDATA!BT1567=\"\",\"\",CRSDATA!BT1567)","v":""}]
[null,null,null,null,null,null,null,null,null,null,null,null,null,null,null,null,null,null,null,null,null,null,null,null,null,null,null,null,null,null,{"$f":"IF(CRSDATA!BT1568=\"\",\"\",CRSDATA!BT1568)","v":""}]
[null,null,null,null,null,null,null,null,null,null,null,null,null,null,null,null,null,null,null,null,null,null,null,null,null,null,null,null,null,null,{"$f":"IF(CRSDATA!BT1569=\"\",\"\",CRSDATA!BT1569)","v":""}]
[null,null,null,null,null,null,null,null,null,null,null,null,null,null,null,null,null,null,null,null,null,null,null,null,null,null,null,null,null,null,{"$f":"IF(CRSDATA!BT1570=\"\",\"\",CRSDATA!BT1570)","v":""}]
[null,null,null,null,null,null,null,null,null,null,null,null,null,null,null,null,null,null,null,null,null,null,null,null,null,null,null,null,null,null,{"$f":"IF(CRSDATA!BT1571=\"\",\"\",CRSDATA!BT1571)","v":""}]
[null,null,null,null,null,null,null,null,null,null,null,null,null,null,null,null,null,null,null,null,null,null,null,null,null,null,null,null,null,null,{"$f":"IF(CRSDATA!BT1572=\"\",\"\",CRSDATA!BT1572)","v":""}]
[null,null,null,null,null,null,null,null,null,null,null,null,null,null,null,null,null,null,null,null,null,null,null,null,null,null,null,null,null,null,{"$f":"IF(CRSDATA!BT1573=\"\",\"\",CRSDATA!BT1573)","v":""}]
[null,null,null,null,null,null,null,null,null,null,null,null,null,null,null,null,null,null,null,null,null,null,null,null,null,null,null,null,null,null,{"$f":"IF(CRSDATA!BT1574=\"\",\"\",CRSDATA!BT1574)","v":""}]
[null,null,null,null,null,null,null,null,null,null,null,null,null,null,null,null,null,null,null,null,null,null,null,null,null,null,null,null,null,null,{"$f":"IF(CRSDATA!BT1575=\"\",\"\",CRSDATA!BT1575)","v":""}]
[null,null,null,null,null,null,null,null,null,null,null,null,null,null,null,null,null,null,null,null,null,null,null,null,null,null,null,null,null,null,{"$f":"IF(CRSDATA!BT1576=\"\",\"\",CRSDATA!BT1576)","v":""}]
[null,null,null,null,null,null,null,null,null,null,null,null,null,null,null,null,null,null,null,null,null,null,null,null,null,null,null,null,null,null,{"$f":"IF(CRSDATA!BT1577=\"\",\"\",CRSDATA!BT1577)","v":""}]
[null,null,null,null,null,null,null,null,null,null,null,null,null,null,null,null,null,null,null,null,null,null,null,null,null,null,null,null,null,null,{"$f":"IF(CRSDATA!BT1578=\"\",\"\",CRSDATA!BT1578)","v":""}]
[null,null,null,null,null,null,null,null,null,null,null,null,null,null,null,null,null,null,null,null,null,null,null,null,null,null,null,null,null,null,{"$f":"IF(CRSDATA!BT1579=\"\",\"\",CRSDATA!BT1579)","v":""}]
[null,null,null,null,null,null,null,null,null,null,null,null,null,null,null,null,null,null,null,null,null,null,null,null,null,null,null,null,null,null,{"$f":"IF(CRSDATA!BT1580=\"\",\"\",CRSDATA!BT1580)","v":""}]
[null,null,null,null,null,null,null,null,null,null,null,null,null,null,null,null,null,null,null,null,null,null,null,null,null,null,null,null,null,null,{"$f":"IF(CRSDATA!BT1581=\"\",\"\",CRSDATA!BT1581)","v":""}]
[null,null,null,null,null,null,null,null,null,null,null,null,null,null,null,null,null,null,null,null,null,null,null,null,null,null,null,null,null,null,{"$f":"IF(CRSDATA!BT1582=\"\",\"\",CRSDATA!BT1582)","v":""}]
[null,null,null,null,null,null,null,null,null,null,null,null,null,null,null,null,null,null,null,null,null,null,null,null,null,null,null,null,null,null,{"$f":"IF(CRSDATA!BT1583=\"\",\"\",CRSDATA!BT1583)","v":""}]
[null,null,null,null,null,null,null,null,null,null,null,null,null,null,null,null,null,null,null,null,null,null,null,null,null,null,null,null,null,null,{"$f":"IF(CRSDATA!BT1584=\"\",\"\",CRSDATA!BT1584)","v":""}]
[null,null,null,null,null,null,null,null,null,null,null,null,null,null,null,null,null,null,null,null,null,null,null,null,null,null,null,null,null,null,{"$f":"IF(CRSDATA!BT1585=\"\",\"\",CRSDATA!BT1585)","v":""}]
[null,null,null,null,null,null,null,null,null,null,null,null,null,null,null,null,null,null,null,null,null,null,null,null,null,null,null,null,null,null,{"$f":"IF(CRSDATA!BT1586=\"\",\"\",CRSDATA!BT1586)","v":""}]
[null,null,null,null,null,null,null,null,null,null,null,null,null,null,null,null,null,null,null,null,null,null,null,null,null,null,null,null,null,null,{"$f":"IF(CRSDATA!BT1587=\"\",\"\",CRSDATA!BT1587)","v":""}]
[null,null,null,null,null,null,null,null,null,null,null,null,null,null,null,null,null,null,null,null,null,null,null,null,null,null,null,null,null,null,{"$f":"IF(CRSDATA!BT1588=\"\",\"\",CRSDATA!BT1588)","v":""}]
[null,null,null,null,null,null,null,null,null,null,null,null,null,null,null,null,null,null,null,null,null,null,null,null,null,null,null,null,null,null,{"$f":"IF(CRSDATA!BT1589=\"\",\"\",CRSDATA!BT1589)","v":""}]
[null,null,null,null,null,null,null,null,null,null,null,null,null,null,null,null,null,null,null,null,null,null,null,null,null,null,null,null,null,null,{"$f":"IF(CRSDATA!BT1590=\"\",\"\",CRSDATA!BT1590)","v":""}]
[null,null,null,null,null,null,null,null,null,null,null,null,null,null,null,null,null,null,null,null,null,null,null,null,null,null,null,null,null,null,{"$f":"IF(CRSDATA!BT1591=\"\",\"\",CRSDATA!BT1591)","v":""}]
[null,null,null,null,null,null,null,null,null,null,null,null,null,null,null,null,null,null,null,null,null,null,null,null,null,null,null,null,null,null,{"$f":"IF(CRSDATA!BT1592=\"\",\"\",CRSDATA!BT1592)","v":""}]
[null,null,null,null,null,null,null,null,null,null,null,null,null,null,null,null,null,null,null,null,null,null,null,null,null,null,null,null,null,null,{"$f":"IF(CRSDATA!BT1593=\"\",\"\",CRSDATA!BT1593)","v":""}]
[null,null,null,null,null,null,null,null,null,null,null,null,null,null,null,null,null,null,null,null,null,null,null,null,null,null,null,null,null,null,{"$f":"IF(CRSDATA!BT1594=\"\",\"\",CRSDATA!BT1594)","v":""}]
[null,null,null,null,null,null,null,null,null,null,null,null,null,null,null,null,null,null,null,null,null,null,null,null,null,null,null,null,null,null,{"$f":"IF(CRSDATA!BT1595=\"\",\"\",CRSDATA!BT1595)","v":""}]
[null,null,null,null,null,null,null,null,null,null,null,null,null,null,null,null,null,null,null,null,null,null,null,null,null,null,null,null,null,null,{"$f":"IF(CRSDATA!BT1596=\"\",\"\",CRSDATA!BT1596)","v":""}]
[null,null,null,null,null,null,null,null,null,null,null,null,null,null,null,null,null,null,null,null,null,null,null,null,null,null,null,null,null,null,{"$f":"IF(CRSDATA!BT1597=\"\",\"\",CRSDATA!BT1597)","v":""}]
[null,null,null,null,null,null,null,null,null,null,null,null,null,null,null,null,null,null,null,null,null,null,null,null,null,null,null,null,null,null,{"$f":"IF(CRSDATA!BT1598=\"\",\"\",CRSDATA!BT1598)","v":""}]
[null,null,null,null,null,null,null,null,null,null,null,null,null,null,null,null,null,null,null,null,null,null,null,null,null,null,null,null,null,null,{"$f":"IF(CRSDATA!BT1599=\"\",\"\",CRSDATA!BT1599)","v":""}]
[null,null,null,null,null,null,null,null,null,null,null,null,null,null,null,null,null,null,null,null,null,null,null,null,null,null,null,null,null,null,{"$f":"IF(CRSDATA!BT1600=\"\",\"\",CRSDATA!BT1600)","v":""}]
[null,null,null,null,null,null,null,null,null,null,null,null,null,null,null,null,null,null,null,null,null,null,null,null,null,null,null,null,null,null,{"$f":"IF(CRSDATA!BT1601=\"\",\"\",CRSDATA!BT1601)","v":""}]
[null,null,null,null,null,null,null,null,null,null,null,null,null,null,null,null,null,null,null,null,null,null,null,null,null,null,null,null,null,null,{"$f":"IF(CRSDATA!BT1602=\"\",\"\",CRSDATA!BT1602)","v":""}]
[null,null,null,null,null,null,null,null,null,null,null,null,null,null,null,null,null,null,null,null,null,null,null,null,null,null,null,null,null,null,{"$f":"IF(CRSDATA!BT1603=\"\",\"\",CRSDATA!BT1603)","v":""}]
[null,null,null,null,null,null,null,null,null,null,null,null,null,null,null,null,null,null,null,null,null,null,null,null,null,null,null,null,null,null,{"$f":"IF(CRSDATA!BT1604=\"\",\"\",CRSDATA!BT1604)","v":""}]
[null,null,null,null,null,null,null,null,null,null,null,null,null,null,null,null,null,null,null,null,null,null,null,null,null,null,null,null,null,null,{"$f":"IF(CRSDATA!BT1605=\"\",\"\",CRSDATA!BT1605)","v":""}]
[null,null,null,null,null,null,null,null,null,null,null,null,null,null,null,null,null,null,null,null,null,null,null,null,null,null,null,null,null,null,{"$f":"IF(CRSDATA!BT1606=\"\",\"\",CRSDATA!BT1606)","v":""}]
[null,null,null,null,null,null,null,null,null,null,null,null,null,null,null,null,null,null,null,null,null,null,null,null,null,null,null,null,null,null,{"$f":"IF(CRSDATA!BT1607=\"\",\"\",CRSDATA!BT1607)","v":""}]
[null,null,null,null,null,null,null,null,null,null,null,null,null,null,null,null,null,null,null,null,null,null,null,null,null,null,null,null,null,null,{"$f":"IF(CRSDATA!BT1608=\"\",\"\",CRSDATA!BT1608)","v":""}]
[null,null,null,null,null,null,null,null,null,null,null,null,null,null,null,null,null,null,null,null,null,null,null,null,null,null,null,null,null,null,{"$f":"IF(CRSDATA!BT1609=\"\",\"\",CRSDATA!BT1609)","v":""}]
[null,null,null,null,null,null,null,null,null,null,null,null,null,null,null,null,null,null,null,null,null,null,null,null,null,null,null,null,null,null,{"$f":"IF(CRSDATA!BT1610=\"\",\"\",CRSDATA!BT1610)","v":""}]
[null,null,null,null,null,null,null,null,null,null,null,null,null,null,null,null,null,null,null,null,null,null,null,null,null,null,null,null,null,null,{"$f":"IF(CRSDATA!BT1611=\"\",\"\",CRSDATA!BT1611)","v":""}]
[null,null,null,null,null,null,null,null,null,null,null,null,null,null,null,null,null,null,null,null,null,null,null,null,null,null,null,null,null,null,{"$f":"IF(CRSDATA!BT1612=\"\",\"\",CRSDATA!BT1612)","v":""}]
[null,null,null,null,null,null,null,null,null,null,null,null,null,null,null,null,null,null,null,null,null,null,null,null,null,null,null,null,null,null,{"$f":"IF(CRSDATA!BT1613=\"\",\"\",CRSDATA!BT1613)","v":""}]
[null,null,null,null,null,null,null,null,null,null,null,null,null,null,null,null,null,null,null,null,null,null,null,null,null,null,null,null,null,null,{"$f":"IF(CRSDATA!BT1614=\"\",\"\",CRSDATA!BT1614)","v":""}]
[null,null,null,null,null,null,null,null,null,null,null,null,null,null,null,null,null,null,null,null,null,null,null,null,null,null,null,null,null,null,{"$f":"IF(CRSDATA!BT1615=\"\",\"\",CRSDATA!BT1615)","v":""}]
[null,null,null,null,null,null,null,null,null,null,null,null,null,null,null,null,null,null,null,null,null,null,null,null,null,null,null,null,null,null,{"$f":"IF(CRSDATA!BT1616=\"\",\"\",CRSDATA!BT1616)","v":""}]
[null,null,null,null,null,null,null,null,null,null,null,null,null,null,null,null,null,null,null,null,null,null,null,null,null,null,null,null,null,null,{"$f":"IF(CRSDATA!BT1617=\"\",\"\",CRSDATA!BT1617)","v":""}]
[null,null,null,null,null,null,null,null,null,null,null,null,null,null,null,null,null,null,null,null,null,null,null,null,null,null,null,null,null,null,{"$f":"IF(CRSDATA!BT1618=\"\",\"\",CRSDATA!BT1618)","v":""}]
[null,null,null,null,null,null,null,null,null,null,null,null,null,null,null,null,null,null,null,null,null,null,null,null,null,null,null,null,null,null,{"$f":"IF(CRSDATA!BT1619=\"\",\"\",CRSDATA!BT1619)","v":""}]
[null,null,null,null,null,null,null,null,null,null,null,null,null,null,null,null,null,null,null,null,null,null,null,null,null,null,null,null,null,null,{"$f":"IF(CRSDATA!BT1620=\"\",\"\",CRSDATA!BT1620)","v":""}]
[null,null,null,null,null,null,null,null,null,null,null,null,null,null,null,null,null,null,null,null,null,null,null,null,null,null,null,null,null,null,{"$f":"IF(CRSDATA!BT1621=\"\",\"\",CRSDATA!BT1621)","v":""}]
[null,null,null,null,null,null,null,null,null,null,null,null,null,null,null,null,null,null,null,null,null,null,null,null,null,null,null,null,null,null,{"$f":"IF(CRSDATA!BT1622=\"\",\"\",CRSDATA!BT1622)","v":""}]
[null,null,null,null,null,null,null,null,null,null,null,null,null,null,null,null,null,null,null,null,null,null,null,null,null,null,null,null,null,null,{"$f":"IF(CRSDATA!BT1623=\"\",\"\",CRSDATA!BT1623)","v":""}]
[null,null,null,null,null,null,null,null,null,null,null,null,null,null,null,null,null,null,null,null,null,null,null,null,null,null,null,null,null,null,{"$f":"IF(CRSDATA!BT1624=\"\",\"\",CRSDATA!BT1624)","v":""}]
[null,null,null,null,null,null,null,null,null,null,null,null,null,null,null,null,null,null,null,null,null,null,null,null,null,null,null,null,null,null,{"$f":"IF(CRSDATA!BT1625=\"\",\"\",CRSDATA!BT1625)","v":""}]
[null,null,null,null,null,null,null,null,null,null,null,null,null,null,null,null,null,null,null,null,null,null,null,null,null,null,null,null,null,null,{"$f":"IF(CRSDATA!BT1626=\"\",\"\",CRSDATA!BT1626)","v":""}]
[null,null,null,null,null,null,null,null,null,null,null,null,null,null,null,null,null,null,null,null,null,null,null,null,null,null,null,null,null,null,{"$f":"IF(CRSDATA!BT1627=\"\",\"\",CRSDATA!BT1627)","v":""}]
[null,null,null,null,null,null,null,null,null,null,null,null,null,null,null,null,null,null,null,null,null,null,null,null,null,null,null,null,null,null,{"$f":"IF(CRSDATA!BT1628=\"\",\"\",CRSDATA!BT1628)","v":""}]
[null,null,null,null,null,null,null,null,null,null,null,null,null,null,null,null,null,null,null,null,null,null,null,null,null,null,null,null,null,null,{"$f":"IF(CRSDATA!BT1629=\"\",\"\",CRSDATA!BT1629)","v":""}]
[null,null,null,null,null,null,null,null,null,null,null,null,null,null,null,null,null,null,null,null,null,null,null,null,null,null,null,null,null,null,{"$f":"IF(CRSDATA!BT1630=\"\",\"\",CRSDATA!BT1630)","v":""}]
[null,null,null,null,null,null,null,null,null,null,null,null,null,null,null,null,null,null,null,null,null,null,null,null,null,null,null,null,null,null,{"$f":"IF(CRSDATA!BT1631=\"\",\"\",CRSDATA!BT1631)","v":""}]
[null,null,null,null,null,null,null,null,null,null,null,null,null,null,null,null,null,null,null,null,null,null,null,null,null,null,null,null,null,null,{"$f":"IF(CRSDATA!BT1632=\"\",\"\",CRSDATA!BT1632)","v":""}]
[null,null,null,null,null,null,null,null,null,null,null,null,null,null,null,null,null,null,null,null,null,null,null,null,null,null,null,null,null,null,{"$f":"IF(CRSDATA!BT1633=\"\",\"\",CRSDATA!BT1633)","v":""}]
[null,null,null,null,null,null,null,null,null,null,null,null,null,null,null,null,null,null,null,null,null,null,null,null,null,null,null,null,null,null,{"$f":"IF(CRSDATA!BT1634=\"\",\"\",CRSDATA!BT1634)","v":""}]
[null,null,null,null,null,null,null,null,null,null,null,null,null,null,null,null,null,null,null,null,null,null,null,null,null,null,null,null,null,null,{"$f":"IF(CRSDATA!BT1635=\"\",\"\",CRSDATA!BT1635)","v":""}]
[null,null,null,null,null,null,null,null,null,null,null,null,null,null,null,null,null,null,null,null,null,null,null,null,null,null,null,null,null,null,{"$f":"IF(CRSDATA!BT1636=\"\",\"\",CRSDATA!BT1636)","v":""}]
[null,null,null,null,null,null,null,null,null,null,null,null,null,null,null,null,null,null,null,null,null,null,null,null,null,null,null,null,null,null,{"$f":"IF(CRSDATA!BT1637=\"\",\"\",CRSDATA!BT1637)","v":""}]
[null,null,null,null,null,null,null,null,null,null,null,null,null,null,null,null,null,null,null,null,null,null,null,null,null,null,null,null,null,null,{"$f":"IF(CRSDATA!BT1638=\"\",\"\",CRSDATA!BT1638)","v":""}]
[null,null,null,null,null,null,null,null,null,null,null,null,null,null,null,null,null,null,null,null,null,null,null,null,null,null,null,null,null,null,{"$f":"IF(CRSDATA!BT1639=\"\",\"\",CRSDATA!BT1639)","v":""}]
[null,null,null,null,null,null,null,null,null,null,null,null,null,null,null,null,null,null,null,null,null,null,null,null,null,null,null,null,null,null,{"$f":"IF(CRSDATA!BT1640=\"\",\"\",CRSDATA!BT1640)","v":""}]
[null,null,null,null,null,null,null,null,null,null,null,null,null,null,null,null,null,null,null,null,null,null,null,null,null,null,null,null,null,null,{"$f":"IF(CRSDATA!BT1641=\"\",\"\",CRSDATA!BT1641)","v":""}]
[null,null,null,null,null,null,null,null,null,null,null,null,null,null,null,null,null,null,null,null,null,null,null,null,null,null,null,null,null,null,{"$f":"IF(CRSDATA!BT1642=\"\",\"\",CRSDATA!BT1642)","v":""}]
[null,null,null,null,null,null,null,null,null,null,null,null,null,null,null,null,null,null,null,null,null,null,null,null,null,null,null,null,null,null,{"$f":"IF(CRSDATA!BT1643=\"\",\"\",CRSDATA!BT1643)","v":""}]
[null,null,null,null,null,null,null,null,null,null,null,null,null,null,null,null,null,null,null,null,null,null,null,null,null,null,null,null,null,null,{"$f":"IF(CRSDATA!BT1644=\"\",\"\",CRSDATA!BT1644)","v":""}]
[null,null,null,null,null,null,null,null,null,null,null,null,null,null,null,null,null,null,null,null,null,null,null,null,null,null,null,null,null,null,{"$f":"IF(CRSDATA!BT1645=\"\",\"\",CRSDATA!BT1645)","v":""}]
[null,null,null,null,null,null,null,null,null,null,null,null,null,null,null,null,null,null,null,null,null,null,null,null,null,null,null,null,null,null,{"$f":"IF(CRSDATA!BT1646=\"\",\"\",CRSDATA!BT1646)","v":""}]
[null,null,null,null,null,null,null,null,null,null,null,null,null,null,null,null,null,null,null,null,null,null,null,null,null,null,null,null,null,null,{"$f":"IF(CRSDATA!BT1647=\"\",\"\",CRSDATA!BT1647)","v":""}]
[null,null,null,null,null,null,null,null,null,null,null,null,null,null,null,null,null,null,null,null,null,null,null,null,null,null,null,null,null,null,{"$f":"IF(CRSDATA!BT1648=\"\",\"\",CRSDATA!BT1648)","v":""}]
[null,null,null,null,null,null,null,null,null,null,null,null,null,null,null,null,null,null,null,null,null,null,null,null,null,null,null,null,null,null,{"$f":"IF(CRSDATA!BT1649=\"\",\"\",CRSDATA!BT1649)","v":""}]
[null,null,null,null,null,null,null,null,null,null,null,null,null,null,null,null,null,null,null,null,null,null,null,null,null,null,null,null,null,null,{"$f":"IF(CRSDATA!BT1650=\"\",\"\",CRSDATA!BT1650)","v":""}]
[null,null,null,null,null,null,null,null,null,null,null,null,null,null,null,null,null,null,null,null,null,null,null,null,null,null,null,null,null,null,{"$f":"IF(CRSDATA!BT1651=\"\",\"\",CRSDATA!BT1651)","v":""}]
[null,null,null,null,null,null,null,null,null,null,null,null,null,null,null,null,null,null,null,null,null,null,null,null,null,null,null,null,null,null,{"$f":"IF(CRSDATA!BT1652=\"\",\"\",CRSDATA!BT1652)","v":""}]
[null,null,null,null,null,null,null,null,null,null,null,null,null,null,null,null,null,null,null,null,null,null,null,null,null,null,null,null,null,null,{"$f":"IF(CRSDATA!BT1653=\"\",\"\",CRSDATA!BT1653)","v":""}]
[null,null,null,null,null,null,null,null,null,null,null,null,null,null,null,null,null,null,null,null,null,null,null,null,null,null,null,null,null,null,{"$f":"IF(CRSDATA!BT1654=\"\",\"\",CRSDATA!BT1654)","v":""}]
[null,null,null,null,null,null,null,null,null,null,null,null,null,null,null,null,null,null,null,null,null,null,null,null,null,null,null,null,null,null,{"$f":"IF(CRSDATA!BT1655=\"\",\"\",CRSDATA!BT1655)","v":""}]
[null,null,null,null,null,null,null,null,null,null,null,null,null,null,null,null,null,null,null,null,null,null,null,null,null,null,null,null,null,null,{"$f":"IF(CRSDATA!BT1656=\"\",\"\",CRSDATA!BT1656)","v":""}]
[null,null,null,null,null,null,null,null,null,null,null,null,null,null,null,null,null,null,null,null,null,null,null,null,null,null,null,null,null,null,{"$f":"IF(CRSDATA!BT1657=\"\",\"\",CRSDATA!BT1657)","v":""}]
[null,null,null,null,null,null,null,null,null,null,null,null,null,null,null,null,null,null,null,null,null,null,null,null,null,null,null,null,null,null,{"$f":"IF(CRSDATA!BT1658=\"\",\"\",CRSDATA!BT1658)","v":""}]
[null,null,null,null,null,null,null,null,null,null,null,null,null,null,null,null,null,null,null,null,null,null,null,null,null,null,null,null,null,null,{"$f":"IF(CRSDATA!BT1659=\"\",\"\",CRSDATA!BT1659)","v":""}]
[null,null,null,null,null,null,null,null,null,null,null,null,null,null,null,null,null,null,null,null,null,null,null,null,null,null,null,null,null,null,{"$f":"IF(CRSDATA!BT1660=\"\",\"\",CRSDATA!BT1660)","v":""}]
[null,null,null,null,null,null,null,null,null,null,null,null,null,null,null,null,null,null,null,null,null,null,null,null,null,null,null,null,null,null,{"$f":"IF(CRSDATA!BT1661=\"\",\"\",CRSDATA!BT1661)","v":""}]
[null,null,null,null,null,null,null,null,null,null,null,null,null,null,null,null,null,null,null,null,null,null,null,null,null,null,null,null,null,null,{"$f":"IF(CRSDATA!BT1662=\"\",\"\",CRSDATA!BT1662)","v":""}]
[null,null,null,null,null,null,null,null,null,null,null,null,null,null,null,null,null,null,null,null,null,null,null,null,null,null,null,null,null,null,{"$f":"IF(CRSDATA!BT1663=\"\",\"\",CRSDATA!BT1663)","v":""}]
[null,null,null,null,null,null,null,null,null,null,null,null,null,null,null,null,null,null,null,null,null,null,null,null,null,null,null,null,null,null,{"$f":"IF(CRSDATA!BT1664=\"\",\"\",CRSDATA!BT1664)","v":""}]
[null,null,null,null,null,null,null,null,null,null,null,null,null,null,null,null,null,null,null,null,null,null,null,null,null,null,null,null,null,null,{"$f":"IF(CRSDATA!BT1665=\"\",\"\",CRSDATA!BT1665)","v":""}]
[null,null,null,null,null,null,null,null,null,null,null,null,null,null,null,null,null,null,null,null,null,null,null,null,null,null,null,null,null,null,{"$f":"IF(CRSDATA!BT1666=\"\",\"\",CRSDATA!BT1666)","v":""}]
[null,null,null,null,null,null,null,null,null,null,null,null,null,null,null,null,null,null,null,null,null,null,null,null,null,null,null,null,null,null,{"$f":"IF(CRSDATA!BT1667=\"\",\"\",CRSDATA!BT1667)","v":""}]
[null,null,null,null,null,null,null,null,null,null,null,null,null,null,null,null,null,null,null,null,null,null,null,null,null,null,null,null,null,null,{"$f":"IF(CRSDATA!BT1668=\"\",\"\",CRSDATA!BT1668)","v":""}]
[null,null,null,null,null,null,null,null,null,null,null,null,null,null,null,null,null,null,null,null,null,null,null,null,null,null,null,null,null,null,{"$f":"IF(CRSDATA!BT1669=\"\",\"\",CRSDATA!BT1669)","v":""}]
[null,null,null,null,null,null,null,null,null,null,null,null,null,null,null,null,null,null,null,null,null,null,null,null,null,null,null,null,null,null,{"$f":"IF(CRSDATA!BT1670=\"\",\"\",CRSDATA!BT1670)","v":""}]
[null,null,null,null,null,null,null,null,null,null,null,null,null,null,null,null,null,null,null,null,null,null,null,null,null,null,null,null,null,null,{"$f":"IF(CRSDATA!BT1671=\"\",\"\",CRSDATA!BT1671)","v":""}]
[null,null,null,null,null,null,null,null,null,null,null,null,null,null,null,null,null,null,null,null,null,null,null,null,null,null,null,null,null,null,{"$f":"IF(CRSDATA!BT1672=\"\",\"\",CRSDATA!BT1672)","v":""}]
[null,null,null,null,null,null,null,null,null,null,null,null,null,null,null,null,null,null,null,null,null,null,null,null,null,null,null,null,null,null,{"$f":"IF(CRSDATA!BT1673=\"\",\"\",CRSDATA!BT1673)","v":""}]
[null,null,null,null,null,null,null,null,null,null,null,null,null,null,null,null,null,null,null,null,null,null,null,null,null,null,null,null,null,null,{"$f":"IF(CRSDATA!BT1674=\"\",\"\",CRSDATA!BT1674)","v":""}]
[null,null,null,null,null,null,null,null,null,null,null,null,null,null,null,null,null,null,null,null,null,null,null,null,null,null,null,null,null,null,{"$f":"IF(CRSDATA!BT1675=\"\",\"\",CRSDATA!BT1675)","v":""}]
[null,null,null,null,null,null,null,null,null,null,null,null,null,null,null,null,null,null,null,null,null,null,null,null,null,null,null,null,null,null,{"$f":"IF(CRSDATA!BT1676=\"\",\"\",CRSDATA!BT1676)","v":""}]
[null,null,null,null,null,null,null,null,null,null,null,null,null,null,null,null,null,null,null,null,null,null,null,null,null,null,null,null,null,null,{"$f":"IF(CRSDATA!BT1677=\"\",\"\",CRSDATA!BT1677)","v":""}]
[null,null,null,null,null,null,null,null,null,null,null,null,null,null,null,null,null,null,null,null,null,null,null,null,null,null,null,null,null,null,{"$f":"IF(CRSDATA!BT1678=\"\",\"\",CRSDATA!BT1678)","v":""}]
[null,null,null,null,null,null,null,null,null,null,null,null,null,null,null,null,null,null,null,null,null,null,null,null,null,null,null,null,null,null,{"$f":"IF(CRSDATA!BT1679=\"\",\"\",CRSDATA!BT1679)","v":""}]
[null,null,null,null,null,null,null,null,null,null,null,null,null,null,null,null,null,null,null,null,null,null,null,null,null,null,null,null,null,null,{"$f":"IF(CRSDATA!BT1680=\"\",\"\",CRSDATA!BT1680)","v":""}]
[null,null,null,null,null,null,null,null,null,null,null,null,null,null,null,null,null,null,null,null,null,null,null,null,null,null,null,null,null,null,{"$f":"IF(CRSDATA!BT1681=\"\",\"\",CRSDATA!BT1681)","v":""}]
[null,null,null,null,null,null,null,null,null,null,null,null,null,null,null,null,null,null,null,null,null,null,null,null,null,null,null,null,null,null,{"$f":"IF(CRSDATA!BT1682=\"\",\"\",CRSDATA!BT1682)","v":""}]
[null,null,null,null,null,null,null,null,null,null,null,null,null,null,null,null,null,null,null,null,null,null,null,null,null,null,null,null,null,null,{"$f":"IF(CRSDATA!BT1683=\"\",\"\",CRSDATA!BT1683)","v":""}]
[null,null,null,null,null,null,null,null,null,null,null,null,null,null,null,null,null,null,null,null,null,null,null,null,null,null,null,null,null,null,{"$f":"IF(CRSDATA!BT1684=\"\",\"\",CRSDATA!BT1684)","v":""}]
[null,null,null,null,null,null,null,null,null,null,null,null,null,null,null,null,null,null,null,null,null,null,null,null,null,null,null,null,null,null,{"$f":"IF(CRSDATA!BT1685=\"\",\"\",CRSDATA!BT1685)","v":""}]
[null,null,null,null,null,null,null,null,null,null,null,null,null,null,null,null,null,null,null,null,null,null,null,null,null,null,null,null,null,null,{"$f":"IF(CRSDATA!BT1686=\"\",\"\",CRSDATA!BT1686)","v":""}]
[null,null,null,null,null,null,null,null,null,null,null,null,null,null,null,null,null,null,null,null,null,null,null,null,null,null,null,null,null,null,{"$f":"IF(CRSDATA!BT1687=\"\",\"\",CRSDATA!BT1687)","v":""}]
[null,null,null,null,null,null,null,null,null,null,null,null,null,null,null,null,null,null,null,null,null,null,null,null,null,null,null,null,null,null,{"$f":"IF(CRSDATA!BT1688=\"\",\"\",CRSDATA!BT1688)","v":""}]
[null,null,null,null,null,null,null,null,null,null,null,null,null,null,null,null,null,null,null,null,null,null,null,null,null,null,null,null,null,null,{"$f":"IF(CRSDATA!BT1689=\"\",\"\",CRSDATA!BT1689)","v":""}]
[null,null,null,null,null,null,null,null,null,null,null,null,null,null,null,null,null,null,null,null,null,null,null,null,null,null,null,null,null,null,{"$f":"IF(CRSDATA!BT1690=\"\",\"\",CRSDATA!BT1690)","v":""}]
[null,null,null,null,null,null,null,null,null,null,null,null,null,null,null,null,null,null,null,null,null,null,null,null,null,null,null,null,null,null,{"$f":"IF(CRSDATA!BT1691=\"\",\"\",CRSDATA!BT1691)","v":""}]
[null,null,null,null,null,null,null,null,null,null,null,null,null,null,null,null,null,null,null,null,null,null,null,null,null,null,null,null,null,null,{"$f":"IF(CRSDATA!BT1692=\"\",\"\",CRSDATA!BT1692)","v":""}]
[null,null,null,null,null,null,null,null,null,null,null,null,null,null,null,null,null,null,null,null,null,null,null,null,null,null,null,null,null,null,{"$f":"IF(CRSDATA!BT1693=\"\",\"\",CRSDATA!BT1693)","v":""}]
[null,null,null,null,null,null,null,null,null,null,null,null,null,null,null,null,null,null,null,null,null,null,null,null,null,null,null,null,null,null,{"$f":"IF(CRSDATA!BT1694=\"\",\"\",CRSDATA!BT1694)","v":""}]
[null,null,null,null,null,null,null,null,null,null,null,null,null,null,null,null,null,null,null,null,null,null,null,null,null,null,null,null,null,null,{"$f":"IF(CRSDATA!BT1695=\"\",\"\",CRSDATA!BT1695)","v":""}]
[null,null,null,null,null,null,null,null,null,null,null,null,null,null,null,null,null,null,null,null,null,null,null,null,null,null,null,null,null,null,{"$f":"IF(CRSDATA!BT1696=\"\",\"\",CRSDATA!BT1696)","v":""}]
[null,null,null,null,null,null,null,null,null,null,null,null,null,null,null,null,null,null,null,null,null,null,null,null,null,null,null,null,null,null,{"$f":"IF(CRSDATA!BT1697=\"\",\"\",CRSDATA!BT1697)","v":""}]
[null,null,null,null,null,null,null,null,null,null,null,null,null,null,null,null,null,null,null,null,null,null,null,null,null,null,null,null,null,null,{"$f":"IF(CRSDATA!BT1698=\"\",\"\",CRSDATA!BT1698)","v":""}]
[null,null,null,null,null,null,null,null,null,null,null,null,null,null,null,null,null,null,null,null,null,null,null,null,null,null,null,null,null,null,{"$f":"IF(CRSDATA!BT1699=\"\",\"\",CRSDATA!BT1699)","v":""}]
[null,null,null,null,null,null,null,null,null,null,null,null,null,null,null,null,null,null,null,null,null,null,null,null,null,null,null,null,null,null,{"$f":"IF(CRSDATA!BT1700=\"\",\"\",CRSDATA!BT1700)","v":""}]
[null,null,null,null,null,null,null,null,null,null,null,null,null,null,null,null,null,null,null,null,null,null,null,null,null,null,null,null,null,null,{"$f":"IF(CRSDATA!BT1701=\"\",\"\",CRSDATA!BT1701)","v":""}]
[null,null,null,null,null,null,null,null,null,null,null,null,null,null,null,null,null,null,null,null,null,null,null,null,null,null,null,null,null,null,{"$f":"IF(CRSDATA!BT1702=\"\",\"\",CRSDATA!BT1702)","v":""}]
[null,null,null,null,null,null,null,null,null,null,null,null,null,null,null,null,null,null,null,null,null,null,null,null,null,null,null,null,null,null,{"$f":"IF(CRSDATA!BT1703=\"\",\"\",CRSDATA!BT1703)","v":""}]
[null,null,null,null,null,null,null,null,null,null,null,null,null,null,null,null,null,null,null,null,null,null,null,null,null,null,null,null,null,null,{"$f":"IF(CRSDATA!BT1704=\"\",\"\",CRSDATA!BT1704)","v":""}]
[null,null,null,null,null,null,null,null,null,null,null,null,null,null,null,null,null,null,null,null,null,null,null,null,null,null,null,null,null,null,{"$f":"IF(CRSDATA!BT1705=\"\",\"\",CRSDATA!BT1705)","v":""}]
[null,null,null,null,null,null,null,null,null,null,null,null,null,null,null,null,null,null,null,null,null,null,null,null,null,null,null,null,null,null,{"$f":"IF(CRSDATA!BT1706=\"\",\"\",CRSDATA!BT1706)","v":""}]
[null,null,null,null,null,null,null,null,null,null,null,null,null,null,null,null,null,null,null,null,null,null,null,null,null,null,null,null,null,null,{"$f":"IF(CRSDATA!BT1707=\"\",\"\",CRSDATA!BT1707)","v":""}]
[null,null,null,null,null,null,null,null,null,null,null,null,null,null,null,null,null,null,null,null,null,null,null,null,null,null,null,null,null,null,{"$f":"IF(CRSDATA!BT1708=\"\",\"\",CRSDATA!BT1708)","v":""}]
[null,null,null,null,null,null,null,null,null,null,null,null,null,null,null,null,null,null,null,null,null,null,null,null,null,null,null,null,null,null,{"$f":"IF(CRSDATA!BT1709=\"\",\"\",CRSDATA!BT1709)","v":""}]
[null,null,null,null,null,null,null,null,null,null,null,null,null,null,null,null,null,null,null,null,null,null,null,null,null,null,null,null,null,null,{"$f":"IF(CRSDATA!BT1710=\"\",\"\",CRSDATA!BT1710)","v":""}]
[null,null,null,null,null,null,null,null,null,null,null,null,null,null,null,null,null,null,null,null,null,null,null,null,null,null,null,null,null,null,{"$f":"IF(CRSDATA!BT1711=\"\",\"\",CRSDATA!BT1711)","v":""}]
[null,null,null,null,null,null,null,null,null,null,null,null,null,null,null,null,null,null,null,null,null,null,null,null,null,null,null,null,null,null,{"$f":"IF(CRSDATA!BT1712=\"\",\"\",CRSDATA!BT1712)","v":""}]
[null,null,null,null,null,null,null,null,null,null,null,null,null,null,null,null,null,null,null,null,null,null,null,null,null,null,null,null,null,null,{"$f":"IF(CRSDATA!BT1713=\"\",\"\",CRSDATA!BT1713)","v":""}]
[null,null,null,null,null,null,null,null,null,null,null,null,null,null,null,null,null,null,null,null,null,null,null,null,null,null,null,null,null,null,{"$f":"IF(CRSDATA!BT1714=\"\",\"\",CRSDATA!BT1714)","v":""}]
[null,null,null,null,null,null,null,null,null,null,null,null,null,null,null,null,null,null,null,null,null,null,null,null,null,null,null,null,null,null,{"$f":"IF(CRSDATA!BT1715=\"\",\"\",CRSDATA!BT1715)","v":""}]
[null,null,null,null,null,null,null,null,null,null,null,null,null,null,null,null,null,null,null,null,null,null,null,null,null,null,null,null,null,null,{"$f":"IF(CRSDATA!BT1716=\"\",\"\",CRSDATA!BT1716)","v":""}]
[null,null,null,null,null,null,null,null,null,null,null,null,null,null,null,null,null,null,null,null,null,null,null,null,null,null,null,null,null,null,{"$f":"IF(CRSDATA!BT1717=\"\",\"\",CRSDATA!BT1717)","v":""}]
[null,null,null,null,null,null,null,null,null,null,null,null,null,null,null,null,null,null,null,null,null,null,null,null,null,null,null,null,null,null,{"$f":"IF(CRSDATA!BT1718=\"\",\"\",CRSDATA!BT1718)","v":""}]
[null,null,null,null,null,null,null,null,null,null,null,null,null,null,null,null,null,null,null,null,null,null,null,null,null,null,null,null,null,null,{"$f":"IF(CRSDATA!BT1719=\"\",\"\",CRSDATA!BT1719)","v":""}]
[null,null,null,null,null,null,null,null,null,null,null,null,null,null,null,null,null,null,null,null,null,null,null,null,null,null,null,null,null,null,{"$f":"IF(CRSDATA!BT1720=\"\",\"\",CRSDATA!BT1720)","v":""}]
[null,null,null,null,null,null,null,null,null,null,null,null,null,null,null,null,null,null,null,null,null,null,null,null,null,null,null,null,null,null,{"$f":"IF(CRSDATA!BT1721=\"\",\"\",CRSDATA!BT1721)","v":""}]
[null,null,null,null,null,null,null,null,null,null,null,null,null,null,null,null,null,null,null,null,null,null,null,null,null,null,null,null,null,null,{"$f":"IF(CRSDATA!BT1722=\"\",\"\",CRSDATA!BT1722)","v":""}]
[null,null,null,null,null,null,null,null,null,null,null,null,null,null,null,null,null,null,null,null,null,null,null,null,null,null,null,null,null,null,{"$f":"IF(CRSDATA!BT1723=\"\",\"\",CRSDATA!BT1723)","v":""}]
[null,null,null,null,null,null,null,null,null,null,null,null,null,null,null,null,null,null,null,null,null,null,null,null,null,null,null,null,null,null,{"$f":"IF(CRSDATA!BT1724=\"\",\"\",CRSDATA!BT1724)","v":""}]
[null,null,null,null,null,null,null,null,null,null,null,null,null,null,null,null,null,null,null,null,null,null,null,null,null,null,null,null,null,null,{"$f":"IF(CRSDATA!BT1725=\"\",\"\",CRSDATA!BT1725)","v":""}]
[null,null,null,null,null,null,null,null,null,null,null,null,null,null,null,null,null,null,null,null,null,null,null,null,null,null,null,null,null,null,{"$f":"IF(CRSDATA!BT1726=\"\",\"\",CRSDATA!BT1726)","v":""}]
[null,null,null,null,null,null,null,null,null,null,null,null,null,null,null,null,null,null,null,null,null,null,null,null,null,null,null,null,null,null,{"$f":"IF(CRSDATA!BT1727=\"\",\"\",CRSDATA!BT1727)","v":""}]
[null,null,null,null,null,null,null,null,null,null,null,null,null,null,null,null,null,null,null,null,null,null,null,null,null,null,null,null,null,null,{"$f":"IF(CRSDATA!BT1728=\"\",\"\",CRSDATA!BT1728)","v":""}]
[null,null,null,null,null,null,null,null,null,null,null,null,null,null,null,null,null,null,null,null,null,null,null,null,null,null,null,null,null,null,{"$f":"IF(CRSDATA!BT1729=\"\",\"\",CRSDATA!BT1729)","v":""}]
[null,null,null,null,null,null,null,null,null,null,null,null,null,null,null,null,null,null,null,null,null,null,null,null,null,null,null,null,null,null,{"$f":"IF(CRSDATA!BT1730=\"\",\"\",CRSDATA!BT1730)","v":""}]
[null,null,null,null,null,null,null,null,null,null,null,null,null,null,null,null,null,null,null,null,null,null,null,null,null,null,null,null,null,null,{"$f":"IF(CRSDATA!BT1731=\"\",\"\",CRSDATA!BT1731)","v":""}]
[null,null,null,null,null,null,null,null,null,null,null,null,null,null,null,null,null,null,null,null,null,null,null,null,null,null,null,null,null,null,{"$f":"IF(CRSDATA!BT1732=\"\",\"\",CRSDATA!BT1732)","v":""}]
[null,null,null,null,null,null,null,null,null,null,null,null,null,null,null,null,null,null,null,null,null,null,null,null,null,null,null,null,null,null,{"$f":"IF(CRSDATA!BT1733=\"\",\"\",CRSDATA!BT1733)","v":""}]
[null,null,null,null,null,null,null,null,null,null,null,null,null,null,null,null,null,null,null,null,null,null,null,null,null,null,null,null,null,null,{"$f":"IF(CRSDATA!BT1734=\"\",\"\",CRSDATA!BT1734)","v":""}]
[null,null,null,null,null,null,null,null,null,null,null,null,null,null,null,null,null,null,null,null,null,null,null,null,null,null,null,null,null,null,{"$f":"IF(CRSDATA!BT1735=\"\",\"\",CRSDATA!BT1735)","v":""}]
[null,null,null,null,null,null,null,null,null,null,null,null,null,null,null,null,null,null,null,null,null,null,null,null,null,null,null,null,null,null,{"$f":"IF(CRSDATA!BT1736=\"\",\"\",CRSDATA!BT1736)","v":""}]
[null,null,null,null,null,null,null,null,null,null,null,null,null,null,null,null,null,null,null,null,null,null,null,null,null,null,null,null,null,null,{"$f":"IF(CRSDATA!BT1737=\"\",\"\",CRSDATA!BT1737)","v":""}]
[null,null,null,null,null,null,null,null,null,null,null,null,null,null,null,null,null,null,null,null,null,null,null,null,null,null,null,null,null,null,{"$f":"IF(CRSDATA!BT1738=\"\",\"\",CRSDATA!BT1738)","v":""}]
[null,null,null,null,null,null,null,null,null,null,null,null,null,null,null,null,null,null,null,null,null,null,null,null,null,null,null,null,null,null,{"$f":"IF(CRSDATA!BT1739=\"\",\"\",CRSDATA!BT1739)","v":""}]
[null,null,null,null,null,null,null,null,null,null,null,null,null,null,null,null,null,null,null,null,null,null,null,null,null,null,null,null,null,null,{"$f":"IF(CRSDATA!BT1740=\"\",\"\",CRSDATA!BT1740)","v":""}]
[null,null,null,null,null,null,null,null,null,null,null,null,null,null,null,null,null,null,null,null,null,null,null,null,null,null,null,null,null,null,{"$f":"IF(CRSDATA!BT1741=\"\",\"\",CRSDATA!BT1741)","v":""}]
[null,null,null,null,null,null,null,null,null,null,null,null,null,null,null,null,null,null,null,null,null,null,null,null,null,null,null,null,null,null,{"$f":"IF(CRSDATA!BT1742=\"\",\"\",CRSDATA!BT1742)","v":""}]
[null,null,null,null,null,null,null,null,null,null,null,null,null,null,null,null,null,null,null,null,null,null,null,null,null,null,null,null,null,null,{"$f":"IF(CRSDATA!BT1743=\"\",\"\",CRSDATA!BT1743)","v":""}]
[null,null,null,null,null,null,null,null,null,null,null,null,null,null,null,null,null,null,null,null,null,null,null,null,null,null,null,null,null,null,{"$f":"IF(CRSDATA!BT1744=\"\",\"\",CRSDATA!BT1744)","v":""}]
[null,null,null,null,null,null,null,null,null,null,null,null,null,null,null,null,null,null,null,null,null,null,null,null,null,null,null,null,null,null,{"$f":"IF(CRSDATA!BT1745=\"\",\"\",CRSDATA!BT1745)","v":""}]
[null,null,null,null,null,null,null,null,null,null,null,null,null,null,null,null,null,null,null,null,null,null,null,null,null,null,null,null,null,null,{"$f":"IF(CRSDATA!BT1746=\"\",\"\",CRSDATA!BT1746)","v":""}]
[null,null,null,null,null,null,null,null,null,null,null,null,null,null,null,null,null,null,null,null,null,null,null,null,null,null,null,null,null,null,{"$f":"IF(CRSDATA!BT1747=\"\",\"\",CRSDATA!BT1747)","v":""}]
[null,null,null,null,null,null,null,null,null,null,null,null,null,null,null,null,null,null,null,null,null,null,null,null,null,null,null,null,null,null,{"$f":"IF(CRSDATA!BT1748=\"\",\"\",CRSDATA!BT1748)","v":""}]
[null,null,null,null,null,null,null,null,null,null,null,null,null,null,null,null,null,null,null,null,null,null,null,null,null,null,null,null,null,null,{"$f":"IF(CRSDATA!BT1749=\"\",\"\",CRSDATA!BT1749)","v":""}]
[null,null,null,null,null,null,null,null,null,null,null,null,null,null,null,null,null,null,null,null,null,null,null,null,null,null,null,null,null,null,{"$f":"IF(CRSDATA!BT1750=\"\",\"\",CRSDATA!BT1750)","v":""}]
[null,null,null,null,null,null,null,null,null,null,null,null,null,null,null,null,null,null,null,null,null,null,null,null,null,null,null,null,null,null,{"$f":"IF(CRSDATA!BT1751=\"\",\"\",CRSDATA!BT1751)","v":""}]
[null,null,null,null,null,null,null,null,null,null,null,null,null,null,null,null,null,null,null,null,null,null,null,null,null,null,null,null,null,null,{"$f":"IF(CRSDATA!BT1752=\"\",\"\",CRSDATA!BT1752)","v":""}]
[null,null,null,null,null,null,null,null,null,null,null,null,null,null,null,null,null,null,null,null,null,null,null,null,null,null,null,null,null,null,{"$f":"IF(CRSDATA!BT1753=\"\",\"\",CRSDATA!BT1753)","v":""}]
[null,null,null,null,null,null,null,null,null,null,null,null,null,null,null,null,null,null,null,null,null,null,null,null,null,null,null,null,null,null,{"$f":"IF(CRSDATA!BT1754=\"\",\"\",CRSDATA!BT1754)","v":""}]
[null,null,null,null,null,null,null,null,null,null,null,null,null,null,null,null,null,null,null,null,null,null,null,null,null,null,null,null,null,null,{"$f":"IF(CRSDATA!BT1755=\"\",\"\",CRSDATA!BT1755)","v":""}]
[null,null,null,null,null,null,null,null,null,null,null,null,null,null,null,null,null,null,null,null,null,null,null,null,null,null,null,null,null,null,{"$f":"IF(CRSDATA!BT1756=\"\",\"\",CRSDATA!BT1756)","v":""}]
[null,null,null,null,null,null,null,null,null,null,null,null,null,null,null,null,null,null,null,null,null,null,null,null,null,null,null,null,null,null,{"$f":"IF(CRSDATA!BT1757=\"\",\"\",CRSDATA!BT1757)","v":""}]
[null,null,null,null,null,null,null,null,null,null,null,null,null,null,null,null,null,null,null,null,null,null,null,null,null,null,null,null,null,null,{"$f":"IF(CRSDATA!BT1758=\"\",\"\",CRSDATA!BT1758)","v":""}]
[null,null,null,null,null,null,null,null,null,null,null,null,null,null,null,null,null,null,null,null,null,null,null,null,null,null,null,null,null,null,{"$f":"IF(CRSDATA!BT1759=\"\",\"\",CRSDATA!BT1759)","v":""}]
[null,null,null,null,null,null,null,null,null,null,null,null,null,null,null,null,null,null,null,null,null,null,null,null,null,null,null,null,null,null,{"$f":"IF(CRSDATA!BT1760=\"\",\"\",CRSDATA!BT1760)","v":""}]
[null,null,null,null,null,null,null,null,null,null,null,null,null,null,null,null,null,null,null,null,null,null,null,null,null,null,null,null,null,null,{"$f":"IF(CRSDATA!BT1761=\"\",\"\",CRSDATA!BT1761)","v":""}]
[null,null,null,null,null,null,null,null,null,null,null,null,null,null,null,null,null,null,null,null,null,null,null,null,null,null,null,null,null,null,{"$f":"IF(CRSDATA!BT1762=\"\",\"\",CRSDATA!BT1762)","v":""}]
[null,null,null,null,null,null,null,null,null,null,null,null,null,null,null,null,null,null,null,null,null,null,null,null,null,null,null,null,null,null,{"$f":"IF(CRSDATA!BT1763=\"\",\"\",CRSDATA!BT1763)","v":""}]
[null,null,null,null,null,null,null,null,null,null,null,null,null,null,null,null,null,null,null,null,null,null,null,null,null,null,null,null,null,null,{"$f":"IF(CRSDATA!BT1764=\"\",\"\",CRSDATA!BT1764)","v":""}]
[null,null,null,null,null,null,null,null,null,null,null,null,null,null,null,null,null,null,null,null,null,null,null,null,null,null,null,null,null,null,{"$f":"IF(CRSDATA!BT1765=\"\",\"\",CRSDATA!BT1765)","v":""}]
[null,null,null,null,null,null,null,null,null,null,null,null,null,null,null,null,null,null,null,null,null,null,null,null,null,null,null,null,null,null,{"$f":"IF(CRSDATA!BT1766=\"\",\"\",CRSDATA!BT1766)","v":""}]
[null,null,null,null,null,null,null,null,null,null,null,null,null,null,null,null,null,null,null,null,null,null,null,null,null,null,null,null,null,null,{"$f":"IF(CRSDATA!BT1767=\"\",\"\",CRSDATA!BT1767)","v":""}]
[null,null,null,null,null,null,null,null,null,null,null,null,null,null,null,null,null,null,null,null,null,null,null,null,null,null,null,null,null,null,{"$f":"IF(CRSDATA!BT1768=\"\",\"\",CRSDATA!BT1768)","v":""}]
[null,null,null,null,null,null,null,null,null,null,null,null,null,null,null,null,null,null,null,null,null,null,null,null,null,null,null,null,null,null,{"$f":"IF(CRSDATA!BT1769=\"\",\"\",CRSDATA!BT1769)","v":""}]
[null,null,null,null,null,null,null,null,null,null,null,null,null,null,null,null,null,null,null,null,null,null,null,null,null,null,null,null,null,null,{"$f":"IF(CRSDATA!BT1770=\"\",\"\",CRSDATA!BT1770)","v":""}]
[null,null,null,null,null,null,null,null,null,null,null,null,null,null,null,null,null,null,null,null,null,null,null,null,null,null,null,null,null,null,{"$f":"IF(CRSDATA!BT1771=\"\",\"\",CRSDATA!BT1771)","v":""}]
[null,null,null,null,null,null,null,null,null,null,null,null,null,null,null,null,null,null,null,null,null,null,null,null,null,null,null,null,null,null,{"$f":"IF(CRSDATA!BT1772=\"\",\"\",CRSDATA!BT1772)","v":""}]
[null,null,null,null,null,null,null,null,null,null,null,null,null,null,null,null,null,null,null,null,null,null,null,null,null,null,null,null,null,null,{"$f":"IF(CRSDATA!BT1773=\"\",\"\",CRSDATA!BT1773)","v":""}]
[null,null,null,null,null,null,null,null,null,null,null,null,null,null,null,null,null,null,null,null,null,null,null,null,null,null,null,null,null,null,{"$f":"IF(CRSDATA!BT1774=\"\",\"\",CRSDATA!BT1774)","v":""}]
[null,null,null,null,null,null,null,null,null,null,null,null,null,null,null,null,null,null,null,null,null,null,null,null,null,null,null,null,null,null,{"$f":"IF(CRSDATA!BT1775=\"\",\"\",CRSDATA!BT1775)","v":""}]
[null,null,null,null,null,null,null,null,null,null,null,null,null,null,null,null,null,null,null,null,null,null,null,null,null,null,null,null,null,null,{"$f":"IF(CRSDATA!BT1776=\"\",\"\",CRSDATA!BT1776)","v":""}]
[null,null,null,null,null,null,null,null,null,null,null,null,null,null,null,null,null,null,null,null,null,null,null,null,null,null,null,null,null,null,{"$f":"IF(CRSDATA!BT1777=\"\",\"\",CRSDATA!BT1777)","v":""}]
[null,null,null,null,null,null,null,null,null,null,null,null,null,null,null,null,null,null,null,null,null,null,null,null,null,null,null,null,null,null,{"$f":"IF(CRSDATA!BT1778=\"\",\"\",CRSDATA!BT1778)","v":""}]
[null,null,null,null,null,null,null,null,null,null,null,null,null,null,null,null,null,null,null,null,null,null,null,null,null,null,null,null,null,null,{"$f":"IF(CRSDATA!BT1779=\"\",\"\",CRSDATA!BT1779)","v":""}]
[null,null,null,null,null,null,null,null,null,null,null,null,null,null,null,null,null,null,null,null,null,null,null,null,null,null,null,null,null,null,{"$f":"IF(CRSDATA!BT1780=\"\",\"\",CRSDATA!BT1780)","v":""}]
[null,null,null,null,null,null,null,null,null,null,null,null,null,null,null,null,null,null,null,null,null,null,null,null,null,null,null,null,null,null,{"$f":"IF(CRSDATA!BT1781=\"\",\"\",CRSDATA!BT1781)","v":""}]
[null,null,null,null,null,null,null,null,null,null,null,null,null,null,null,null,null,null,null,null,null,null,null,null,null,null,null,null,null,null,{"$f":"IF(CRSDATA!BT1782=\"\",\"\",CRSDATA!BT1782)","v":""}]
[null,null,null,null,null,null,null,null,null,null,null,null,null,null,null,null,null,null,null,null,null,null,null,null,null,null,null,null,null,null,{"$f":"IF(CRSDATA!BT1783=\"\",\"\",CRSDATA!BT1783)","v":""}]
[null,null,null,null,null,null,null,null,null,null,null,null,null,null,null,null,null,null,null,null,null,null,null,null,null,null,null,null,null,null,{"$f":"IF(CRSDATA!BT1784=\"\",\"\",CRSDATA!BT1784)","v":""}]
[null,null,null,null,null,null,null,null,null,null,null,null,null,null,null,null,null,null,null,null,null,null,null,null,null,null,null,null,null,null,{"$f":"IF(CRSDATA!BT1785=\"\",\"\",CRSDATA!BT1785)","v":""}]
[null,null,null,null,null,null,null,null,null,null,null,null,null,null,null,null,null,null,null,null,null,null,null,null,null,null,null,null,null,null,{"$f":"IF(CRSDATA!BT1786=\"\",\"\",CRSDATA!BT1786)","v":""}]
[null,null,null,null,null,null,null,null,null,null,null,null,null,null,null,null,null,null,null,null,null,null,null,null,null,null,null,null,null,null,{"$f":"IF(CRSDATA!BT1787=\"\",\"\",CRSDATA!BT1787)","v":""}]
[null,null,null,null,null,null,null,null,null,null,null,null,null,null,null,null,null,null,null,null,null,null,null,null,null,null,null,null,null,null,{"$f":"IF(CRSDATA!BT1788=\"\",\"\",CRSDATA!BT1788)","v":""}]
[null,null,null,null,null,null,null,null,null,null,null,null,null,null,null,null,null,null,null,null,null,null,null,null,null,null,null,null,null,null,{"$f":"IF(CRSDATA!BT1789=\"\",\"\",CRSDATA!BT1789)","v":""}]
[null,null,null,null,null,null,null,null,null,null,null,null,null,null,null,null,null,null,null,null,null,null,null,null,null,null,null,null,null,null,{"$f":"IF(CRSDATA!BT1790=\"\",\"\",CRSDATA!BT1790)","v":""}]
[null,null,null,null,null,null,null,null,null,null,null,null,null,null,null,null,null,null,null,null,null,null,null,null,null,null,null,null,null,null,{"$f":"IF(CRSDATA!BT1791=\"\",\"\",CRSDATA!BT1791)","v":""}]
[null,null,null,null,null,null,null,null,null,null,null,null,null,null,null,null,null,null,null,null,null,null,null,null,null,null,null,null,null,null,{"$f":"IF(CRSDATA!BT1792=\"\",\"\",CRSDATA!BT1792)","v":""}]
[null,null,null,null,null,null,null,null,null,null,null,null,null,null,null,null,null,null,null,null,null,null,null,null,null,null,null,null,null,null,{"$f":"IF(CRSDATA!BT1793=\"\",\"\",CRSDATA!BT1793)","v":""}]
[null,null,null,null,null,null,null,null,null,null,null,null,null,null,null,null,null,null,null,null,null,null,null,null,null,null,null,null,null,null,{"$f":"IF(CRSDATA!BT1794=\"\",\"\",CRSDATA!BT1794)","v":""}]
[null,null,null,null,null,null,null,null,null,null,null,null,null,null,null,null,null,null,null,null,null,null,null,null,null,null,null,null,null,null,{"$f":"IF(CRSDATA!BT1795=\"\",\"\",CRSDATA!BT1795)","v":""}]
[null,null,null,null,null,null,null,null,null,null,null,null,null,null,null,null,null,null,null,null,null,null,null,null,null,null,null,null,null,null,{"$f":"IF(CRSDATA!BT1796=\"\",\"\",CRSDATA!BT1796)","v":""}]
[null,null,null,null,null,null,null,null,null,null,null,null,null,null,null,null,null,null,null,null,null,null,null,null,null,null,null,null,null,null,{"$f":"IF(CRSDATA!BT1797=\"\",\"\",CRSDATA!BT1797)","v":""}]
[null,null,null,null,null,null,null,null,null,null,null,null,null,null,null,null,null,null,null,null,null,null,null,null,null,null,null,null,null,null,{"$f":"IF(CRSDATA!BT1798=\"\",\"\",CRSDATA!BT1798)","v":""}]
[null,null,null,null,null,null,null,null,null,null,null,null,null,null,null,null,null,null,null,null,null,null,null,null,null,null,null,null,null,null,{"$f":"IF(CRSDATA!BT1799=\"\",\"\",CRSDATA!BT1799)","v":""}]
[null,null,null,null,null,null,null,null,null,null,null,null,null,null,null,null,null,null,null,null,null,null,null,null,null,null,null,null,null,null,{"$f":"IF(CRSDATA!BT1800=\"\",\"\",CRSDATA!BT1800)","v":""}]
[null,null,null,null,null,null,null,null,null,null,null,null,null,null,null,null,null,null,null,null,null,null,null,null,null,null,null,null,null,null,{"$f":"IF(CRSDATA!BT1801=\"\",\"\",CRSDATA!BT1801)","v":""}]
[null,null,null,null,null,null,null,null,null,null,null,null,null,null,null,null,null,null,null,null,null,null,null,null,null,null,null,null,null,null,{"$f":"IF(CRSDATA!BT1802=\"\",\"\",CRSDATA!BT1802)","v":""}]
[null,null,null,null,null,null,null,null,null,null,null,null,null,null,null,null,null,null,null,null,null,null,null,null,null,null,null,null,null,null,{"$f":"IF(CRSDATA!BT1803=\"\",\"\",CRSDATA!BT1803)","v":""}]
[null,null,null,null,null,null,null,null,null,null,null,null,null,null,null,null,null,null,null,null,null,null,null,null,null,null,null,null,null,null,{"$f":"IF(CRSDATA!BT1804=\"\",\"\",CRSDATA!BT1804)","v":""}]
[null,null,null,null,null,null,null,null,null,null,null,null,null,null,null,null,null,null,null,null,null,null,null,null,null,null,null,null,null,null,{"$f":"IF(CRSDATA!BT1805=\"\",\"\",CRSDATA!BT1805)","v":""}]
[null,null,null,null,null,null,null,null,null,null,null,null,null,null,null,null,null,null,null,null,null,null,null,null,null,null,null,null,null,null,{"$f":"IF(CRSDATA!BT1806=\"\",\"\",CRSDATA!BT1806)","v":""}]
[null,null,null,null,null,null,null,null,null,null,null,null,null,null,null,null,null,null,null,null,null,null,null,null,null,null,null,null,null,null,{"$f":"IF(CRSDATA!BT1807=\"\",\"\",CRSDATA!BT1807)","v":""}]
[null,null,null,null,null,null,null,null,null,null,null,null,null,null,null,null,null,null,null,null,null,null,null,null,null,null,null,null,null,null,{"$f":"IF(CRSDATA!BT1808=\"\",\"\",CRSDATA!BT1808)","v":""}]
[null,null,null,null,null,null,null,null,null,null,null,null,null,null,null,null,null,null,null,null,null,null,null,null,null,null,null,null,null,null,{"$f":"IF(CRSDATA!BT1809=\"\",\"\",CRSDATA!BT1809)","v":""}]
[null,null,null,null,null,null,null,null,null,null,null,null,null,null,null,null,null,null,null,null,null,null,null,null,null,null,null,null,null,null,{"$f":"IF(CRSDATA!BT1810=\"\",\"\",CRSDATA!BT1810)","v":""}]
[null,null,null,null,null,null,null,null,null,null,null,null,null,null,null,null,null,null,null,null,null,null,null,null,null,null,null,null,null,null,{"$f":"IF(CRSDATA!BT1811=\"\",\"\",CRSDATA!BT1811)","v":""}]
[null,null,null,null,null,null,null,null,null,null,null,null,null,null,null,null,null,null,null,null,null,null,null,null,null,null,null,null,null,null,{"$f":"IF(CRSDATA!BT1812=\"\",\"\",CRSDATA!BT1812)","v":""}]
[null,null,null,null,null,null,null,null,null,null,null,null,null,null,null,null,null,null,null,null,null,null,null,null,null,null,null,null,null,null,{"$f":"IF(CRSDATA!BT1813=\"\",\"\",CRSDATA!BT1813)","v":""}]
[null,null,null,null,null,null,null,null,null,null,null,null,null,null,null,null,null,null,null,null,null,null,null,null,null,null,null,null,null,null,{"$f":"IF(CRSDATA!BT1814=\"\",\"\",CRSDATA!BT1814)","v":""}]
[null,null,null,null,null,null,null,null,null,null,null,null,null,null,null,null,null,null,null,null,null,null,null,null,null,null,null,null,null,null,{"$f":"IF(CRSDATA!BT1815=\"\",\"\",CRSDATA!BT1815)","v":""}]
[null,null,null,null,null,null,null,null,null,null,null,null,null,null,null,null,null,null,null,null,null,null,null,null,null,null,null,null,null,null,{"$f":"IF(CRSDATA!BT1816=\"\",\"\",CRSDATA!BT1816)","v":""}]
[null,null,null,null,null,null,null,null,null,null,null,null,null,null,null,null,null,null,null,null,null,null,null,null,null,null,null,null,null,null,{"$f":"IF(CRSDATA!BT1817=\"\",\"\",CRSDATA!BT1817)","v":""}]
[null,null,null,null,null,null,null,null,null,null,null,null,null,null,null,null,null,null,null,null,null,null,null,null,null,null,null,null,null,null,{"$f":"IF(CRSDATA!BT1818=\"\",\"\",CRSDATA!BT1818)","v":""}]
[null,null,null,null,null,null,null,null,null,null,null,null,null,null,null,null,null,null,null,null,null,null,null,null,null,null,null,null,null,null,{"$f":"IF(CRSDATA!BT1819=\"\",\"\",CRSDATA!BT1819)","v":""}]
[null,null,null,null,null,null,null,null,null,null,null,null,null,null,null,null,null,null,null,null,null,null,null,null,null,null,null,null,null,null,{"$f":"IF(CRSDATA!BT1820=\"\",\"\",CRSDATA!BT1820)","v":""}]
[null,null,null,null,null,null,null,null,null,null,null,null,null,null,null,null,null,null,null,null,null,null,null,null,null,null,null,null,null,null,{"$f":"IF(CRSDATA!BT1821=\"\",\"\",CRSDATA!BT1821)","v":""}]
[null,null,null,null,null,null,null,null,null,null,null,null,null,null,null,null,null,null,null,null,null,null,null,null,null,null,null,null,null,null,{"$f":"IF(CRSDATA!BT1822=\"\",\"\",CRSDATA!BT1822)","v":""}]
[null,null,null,null,null,null,null,null,null,null,null,null,null,null,null,null,null,null,null,null,null,null,null,null,null,null,null,null,null,null,{"$f":"IF(CRSDATA!BT1823=\"\",\"\",CRSDATA!BT1823)","v":""}]
[null,null,null,null,null,null,null,null,null,null,null,null,null,null,null,null,null,null,null,null,null,null,null,null,null,null,null,null,null,null,{"$f":"IF(CRSDATA!BT1824=\"\",\"\",CRSDATA!BT1824)","v":""}]
[null,null,null,null,null,null,null,null,null,null,null,null,null,null,null,null,null,null,null,null,null,null,null,null,null,null,null,null,null,null,{"$f":"IF(CRSDATA!BT1825=\"\",\"\",CRSDATA!BT1825)","v":""}]
[null,null,null,null,null,null,null,null,null,null,null,null,null,null,null,null,null,null,null,null,null,null,null,null,null,null,null,null,null,null,{"$f":"IF(CRSDATA!BT1826=\"\",\"\",CRSDATA!BT1826)","v":""}]
[null,null,null,null,null,null,null,null,null,null,null,null,null,null,null,null,null,null,null,null,null,null,null,null,null,null,null,null,null,null,{"$f":"IF(CRSDATA!BT1827=\"\",\"\",CRSDATA!BT1827)","v":""}]
[null,null,null,null,null,null,null,null,null,null,null,null,null,null,null,null,null,null,null,null,null,null,null,null,null,null,null,null,null,null,{"$f":"IF(CRSDATA!BT1828=\"\",\"\",CRSDATA!BT1828)","v":""}]
[null,null,null,null,null,null,null,null,null,null,null,null,null,null,null,null,null,null,null,null,null,null,null,null,null,null,null,null,null,null,{"$f":"IF(CRSDATA!BT1829=\"\",\"\",CRSDATA!BT1829)","v":""}]
[null,null,null,null,null,null,null,null,null,null,null,null,null,null,null,null,null,null,null,null,null,null,null,null,null,null,null,null,null,null,{"$f":"IF(CRSDATA!BT1830=\"\",\"\",CRSDATA!BT1830)","v":""}]
[null,null,null,null,null,null,null,null,null,null,null,null,null,null,null,null,null,null,null,null,null,null,null,null,null,null,null,null,null,null,{"$f":"IF(CRSDATA!BT1831=\"\",\"\",CRSDATA!BT1831)","v":""}]
[null,null,null,null,null,null,null,null,null,null,null,null,null,null,null,null,null,null,null,null,null,null,null,null,null,null,null,null,null,null,{"$f":"IF(CRSDATA!BT1832=\"\",\"\",CRSDATA!BT1832)","v":""}]
[null,null,null,null,null,null,null,null,null,null,null,null,null,null,null,null,null,null,null,null,null,null,null,null,null,null,null,null,null,null,{"$f":"IF(CRSDATA!BT1833=\"\",\"\",CRSDATA!BT1833)","v":""}]
[null,null,null,null,null,null,null,null,null,null,null,null,null,null,null,null,null,null,null,null,null,null,null,null,null,null,null,null,null,null,{"$f":"IF(CRSDATA!BT1834=\"\",\"\",CRSDATA!BT1834)","v":""}]
[null,null,null,null,null,null,null,null,null,null,null,null,null,null,null,null,null,null,null,null,null,null,null,null,null,null,null,null,null,null,{"$f":"IF(CRSDATA!BT1835=\"\",\"\",CRSDATA!BT1835)","v":""}]
[null,null,null,null,null,null,null,null,null,null,null,null,null,null,null,null,null,null,null,null,null,null,null,null,null,null,null,null,null,null,{"$f":"IF(CRSDATA!BT1836=\"\",\"\",CRSDATA!BT1836)","v":""}]
[null,null,null,null,null,null,null,null,null,null,null,null,null,null,null,null,null,null,null,null,null,null,null,null,null,null,null,null,null,null,{"$f":"IF(CRSDATA!BT1837=\"\",\"\",CRSDATA!BT1837)","v":""}]
[null,null,null,null,null,null,null,null,null,null,null,null,null,null,null,null,null,null,null,null,null,null,null,null,null,null,null,null,null,null,{"$f":"IF(CRSDATA!BT1838=\"\",\"\",CRSDATA!BT1838)","v":""}]
[null,null,null,null,null,null,null,null,null,null,null,null,null,null,null,null,null,null,null,null,null,null,null,null,null,null,null,null,null,null,{"$f":"IF(CRSDATA!BT1839=\"\",\"\",CRSDATA!BT1839)","v":""}]
[null,null,null,null,null,null,null,null,null,null,null,null,null,null,null,null,null,null,null,null,null,null,null,null,null,null,null,null,null,null,{"$f":"IF(CRSDATA!BT1840=\"\",\"\",CRSDATA!BT1840)","v":""}]
[null,null,null,null,null,null,null,null,null,null,null,null,null,null,null,null,null,null,null,null,null,null,null,null,null,null,null,null,null,null,{"$f":"IF(CRSDATA!BT1841=\"\",\"\",CRSDATA!BT1841)","v":""}]
[null,null,null,null,null,null,null,null,null,null,null,null,null,null,null,null,null,null,null,null,null,null,null,null,null,null,null,null,null,null,{"$f":"IF(CRSDATA!BT1842=\"\",\"\",CRSDATA!BT1842)","v":""}]
[null,null,null,null,null,null,null,null,null,null,null,null,null,null,null,null,null,null,null,null,null,null,null,null,null,null,null,null,null,null,{"$f":"IF(CRSDATA!BT1843=\"\",\"\",CRSDATA!BT1843)","v":""}]
[null,null,null,null,null,null,null,null,null,null,null,null,null,null,null,null,null,null,null,null,null,null,null,null,null,null,null,null,null,null,{"$f":"IF(CRSDATA!BT1844=\"\",\"\",CRSDATA!BT1844)","v":""}]
[null,null,null,null,null,null,null,null,null,null,null,null,null,null,null,null,null,null,null,null,null,null,null,null,null,null,null,null,null,null,{"$f":"IF(CRSDATA!BT1845=\"\",\"\",CRSDATA!BT1845)","v":""}]
[null,null,null,null,null,null,null,null,null,null,null,null,null,null,null,null,null,null,null,null,null,null,null,null,null,null,null,null,null,null,{"$f":"IF(CRSDATA!BT1846=\"\",\"\",CRSDATA!BT1846)","v":""}]
[null,null,null,null,null,null,null,null,null,null,null,null,null,null,null,null,null,null,null,null,null,null,null,null,null,null,null,null,null,null,{"$f":"IF(CRSDATA!BT1847=\"\",\"\",CRSDATA!BT1847)","v":""}]
[null,null,null,null,null,null,null,null,null,null,null,null,null,null,null,null,null,null,null,null,null,null,null,null,null,null,null,null,null,null,{"$f":"IF(CRSDATA!BT1848=\"\",\"\",CRSDATA!BT1848)","v":""}]
[null,null,null,null,null,null,null,null,null,null,null,null,null,null,null,null,null,null,null,null,null,null,null,null,null,null,null,null,null,null,{"$f":"IF(CRSDATA!BT1849=\"\",\"\",CRSDATA!BT1849)","v":""}]
[null,null,null,null,null,null,null,null,null,null,null,null,null,null,null,null,null,null,null,null,null,null,null,null,null,null,null,null,null,null,{"$f":"IF(CRSDATA!BT1850=\"\",\"\",CRSDATA!BT1850)","v":""}]
[null,null,null,null,null,null,null,null,null,null,null,null,null,null,null,null,null,null,null,null,null,null,null,null,null,null,null,null,null,null,{"$f":"IF(CRSDATA!BT1851=\"\",\"\",CRSDATA!BT1851)","v":""}]
[null,null,null,null,null,null,null,null,null,null,null,null,null,null,null,null,null,null,null,null,null,null,null,null,null,null,null,null,null,null,{"$f":"IF(CRSDATA!BT1852=\"\",\"\",CRSDATA!BT1852)","v":""}]
[null,null,null,null,null,null,null,null,null,null,null,null,null,null,null,null,null,null,null,null,null,null,null,null,null,null,null,null,null,null,{"$f":"IF(CRSDATA!BT1853=\"\",\"\",CRSDATA!BT1853)","v":""}]
[null,null,null,null,null,null,null,null,null,null,null,null,null,null,null,null,null,null,null,null,null,null,null,null,null,null,null,null,null,null,{"$f":"IF(CRSDATA!BT1854=\"\",\"\",CRSDATA!BT1854)","v":""}]
[null,null,null,null,null,null,null,null,null,null,null,null,null,null,null,null,null,null,null,null,null,null,null,null,null,null,null,null,null,null,{"$f":"IF(CRSDATA!BT1855=\"\",\"\",CRSDATA!BT1855)","v":""}]
[null,null,null,null,null,null,null,null,null,null,null,null,null,null,null,null,null,null,null,null,null,null,null,null,null,null,null,null,null,null,{"$f":"IF(CRSDATA!BT1856=\"\",\"\",CRSDATA!BT1856)","v":""}]
[null,null,null,null,null,null,null,null,null,null,null,null,null,null,null,null,null,null,null,null,null,null,null,null,null,null,null,null,null,null,{"$f":"IF(CRSDATA!BT1857=\"\",\"\",CRSDATA!BT1857)","v":""}]
[null,null,null,null,null,null,null,null,null,null,null,null,null,null,null,null,null,null,null,null,null,null,null,null,null,null,null,null,null,null,{"$f":"IF(CRSDATA!BT1858=\"\",\"\",CRSDATA!BT1858)","v":""}]
[null,null,null,null,null,null,null,null,null,null,null,null,null,null,null,null,null,null,null,null,null,null,null,null,null,null,null,null,null,null,{"$f":"IF(CRSDATA!BT1859=\"\",\"\",CRSDATA!BT1859)","v":""}]
[null,null,null,null,null,null,null,null,null,null,null,null,null,null,null,null,null,null,null,null,null,null,null,null,null,null,null,null,null,null,{"$f":"IF(CRSDATA!BT1860=\"\",\"\",CRSDATA!BT1860)","v":""}]
[null,null,null,null,null,null,null,null,null,null,null,null,null,null,null,null,null,null,null,null,null,null,null,null,null,null,null,null,null,null,{"$f":"IF(CRSDATA!BT1861=\"\",\"\",CRSDATA!BT1861)","v":""}]
[null,null,null,null,null,null,null,null,null,null,null,null,null,null,null,null,null,null,null,null,null,null,null,null,null,null,null,null,null,null,{"$f":"IF(CRSDATA!BT1862=\"\",\"\",CRSDATA!BT1862)","v":""}]
[null,null,null,null,null,null,null,null,null,null,null,null,null,null,null,null,null,null,null,null,null,null,null,null,null,null,null,null,null,null,{"$f":"IF(CRSDATA!BT1863=\"\",\"\",CRSDATA!BT1863)","v":""}]
[null,null,null,null,null,null,null,null,null,null,null,null,null,null,null,null,null,null,null,null,null,null,null,null,null,null,null,null,null,null,{"$f":"IF(CRSDATA!BT1864=\"\",\"\",CRSDATA!BT1864)","v":""}]
[null,null,null,null,null,null,null,null,null,null,null,null,null,null,null,null,null,null,null,null,null,null,null,null,null,null,null,null,null,null,{"$f":"IF(CRSDATA!BT1865=\"\",\"\",CRSDATA!BT1865)","v":""}]
[null,null,null,null,null,null,null,null,null,null,null,null,null,null,null,null,null,null,null,null,null,null,null,null,null,null,null,null,null,null,{"$f":"IF(CRSDATA!BT1866=\"\",\"\",CRSDATA!BT1866)","v":""}]
[null,null,null,null,null,null,null,null,null,null,null,null,null,null,null,null,null,null,null,null,null,null,null,null,null,null,null,null,null,null,{"$f":"IF(CRSDATA!BT1867=\"\",\"\",CRSDATA!BT1867)","v":""}]
[null,null,null,null,null,null,null,null,null,null,null,null,null,null,null,null,null,null,null,null,null,null,null,null,null,null,null,null,null,null,{"$f":"IF(CRSDATA!BT1868=\"\",\"\",CRSDATA!BT1868)","v":""}]
[null,null,null,null,null,null,null,null,null,null,null,null,null,null,null,null,null,null,null,null,null,null,null,null,null,null,null,null,null,null,{"$f":"IF(CRSDATA!BT1869=\"\",\"\",CRSDATA!BT1869)","v":""}]
[null,null,null,null,null,null,null,null,null,null,null,null,null,null,null,null,null,null,null,null,null,null,null,null,null,null,null,null,null,null,{"$f":"IF(CRSDATA!BT1870=\"\",\"\",CRSDATA!BT1870)","v":""}]
[null,null,null,null,null,null,null,null,null,null,null,null,null,null,null,null,null,null,null,null,null,null,null,null,null,null,null,null,null,null,{"$f":"IF(CRSDATA!BT1871=\"\",\"\",CRSDATA!BT1871)","v":""}]
[null,null,null,null,null,null,null,null,null,null,null,null,null,null,null,null,null,null,null,null,null,null,null,null,null,null,null,null,null,null,{"$f":"IF(CRSDATA!BT1872=\"\",\"\",CRSDATA!BT1872)","v":""}]
[null,null,null,null,null,null,null,null,null,null,null,null,null,null,null,null,null,null,null,null,null,null,null,null,null,null,null,null,null,null,{"$f":"IF(CRSDATA!BT1873=\"\",\"\",CRSDATA!BT1873)","v":""}]
[null,null,null,null,null,null,null,null,null,null,null,null,null,null,null,null,null,null,null,null,null,null,null,null,null,null,null,null,null,null,{"$f":"IF(CRSDATA!BT1874=\"\",\"\",CRSDATA!BT1874)","v":""}]
[null,null,null,null,null,null,null,null,null,null,null,null,null,null,null,null,null,null,null,null,null,null,null,null,null,null,null,null,null,null,{"$f":"IF(CRSDATA!BT1875=\"\",\"\",CRSDATA!BT1875)","v":""}]
[null,null,null,null,null,null,null,null,null,null,null,null,null,null,null,null,null,null,null,null,null,null,null,null,null,null,null,null,null,null,{"$f":"IF(CRSDATA!BT1876=\"\",\"\",CRSDATA!BT1876)","v":""}]
[null,null,null,null,null,null,null,null,null,null,null,null,null,null,null,null,null,null,null,null,null,null,null,null,null,null,null,null,null,null,{"$f":"IF(CRSDATA!BT1877=\"\",\"\",CRSDATA!BT1877)","v":""}]
[null,null,null,null,null,null,null,null,null,null,null,null,null,null,null,null,null,null,null,null,null,null,null,null,null,null,null,null,null,null,{"$f":"IF(CRSDATA!BT1878=\"\",\"\",CRSDATA!BT1878)","v":""}]
[null,null,null,null,null,null,null,null,null,null,null,null,null,null,null,null,null,null,null,null,null,null,null,null,null,null,null,null,null,null,{"$f":"IF(CRSDATA!BT1879=\"\",\"\",CRSDATA!BT1879)","v":""}]
[null,null,null,null,null,null,null,null,null,null,null,null,null,null,null,null,null,null,null,null,null,null,null,null,null,null,null,null,null,null,{"$f":"IF(CRSDATA!BT1880=\"\",\"\",CRSDATA!BT1880)","v":""}]
[null,null,null,null,null,null,null,null,null,null,null,null,null,null,null,null,null,null,null,null,null,null,null,null,null,null,null,null,null,null,{"$f":"IF(CRSDATA!BT1881=\"\",\"\",CRSDATA!BT1881)","v":""}]
[null,null,null,null,null,null,null,null,null,null,null,null,null,null,null,null,null,null,null,null,null,null,null,null,null,null,null,null,null,null,{"$f":"IF(CRSDATA!BT1882=\"\",\"\",CRSDATA!BT1882)","v":""}]
[null,null,null,null,null,null,null,null,null,null,null,null,null,null,null,null,null,null,null,null,null,null,null,null,null,null,null,null,null,null,{"$f":"IF(CRSDATA!BT1883=\"\",\"\",CRSDATA!BT1883)","v":""}]
[null,null,null,null,null,null,null,null,null,null,null,null,null,null,null,null,null,null,null,null,null,null,null,null,null,null,null,null,null,null,{"$f":"IF(CRSDATA!BT1884=\"\",\"\",CRSDATA!BT1884)","v":""}]
[null,null,null,null,null,null,null,null,null,null,null,null,null,null,null,null,null,null,null,null,null,null,null,null,null,null,null,null,null,null,{"$f":"IF(CRSDATA!BT1885=\"\",\"\",CRSDATA!BT1885)","v":""}]
[null,null,null,null,null,null,null,null,null,null,null,null,null,null,null,null,null,null,null,null,null,null,null,null,null,null,null,null,null,null,{"$f":"IF(CRSDATA!BT1886=\"\",\"\",CRSDATA!BT1886)","v":""}]
[null,null,null,null,null,null,null,null,null,null,null,null,null,null,null,null,null,null,null,null,null,null,null,null,null,null,null,null,null,null,{"$f":"IF(CRSDATA!BT1887=\"\",\"\",CRSDATA!BT1887)","v":""}]
[null,null,null,null,null,null,null,null,null,null,null,null,null,null,null,null,null,null,null,null,null,null,null,null,null,null,null,null,null,null,{"$f":"IF(CRSDATA!BT1888=\"\",\"\",CRSDATA!BT1888)","v":""}]
[null,null,null,null,null,null,null,null,null,null,null,null,null,null,null,null,null,null,null,null,null,null,null,null,null,null,null,null,null,null,{"$f":"IF(CRSDATA!BT1889=\"\",\"\",CRSDATA!BT1889)","v":""}]
[null,null,null,null,null,null,null,null,null,null,null,null,null,null,null,null,null,null,null,null,null,null,null,null,null,null,null,null,null,null,{"$f":"IF(CRSDATA!BT1890=\"\",\"\",CRSDATA!BT1890)","v":""}]
[null,null,null,null,null,null,null,null,null,null,null,null,null,null,null,null,null,null,null,null,null,null,null,null,null,null,null,null,null,null,{"$f":"IF(CRSDATA!BT1891=\"\",\"\",CRSDATA!BT1891)","v":""}]
[null,null,null,null,null,null,null,null,null,null,null,null,null,null,null,null,null,null,null,null,null,null,null,null,null,null,null,null,null,null,{"$f":"IF(CRSDATA!BT1892=\"\",\"\",CRSDATA!BT1892)","v":""}]
[null,null,null,null,null,null,null,null,null,null,null,null,null,null,null,null,null,null,null,null,null,null,null,null,null,null,null,null,null,null,{"$f":"IF(CRSDATA!BT1893=\"\",\"\",CRSDATA!BT1893)","v":""}]
[null,null,null,null,null,null,null,null,null,null,null,null,null,null,null,null,null,null,null,null,null,null,null,null,null,null,null,null,null,null,{"$f":"IF(CRSDATA!BT1894=\"\",\"\",CRSDATA!BT1894)","v":""}]
[null,null,null,null,null,null,null,null,null,null,null,null,null,null,null,null,null,null,null,null,null,null,null,null,null,null,null,null,null,null,{"$f":"IF(CRSDATA!BT1895=\"\",\"\",CRSDATA!BT1895)","v":""}]
[null,null,null,null,null,null,null,null,null,null,null,null,null,null,null,null,null,null,null,null,null,null,null,null,null,null,null,null,null,null,{"$f":"IF(CRSDATA!BT1896=\"\",\"\",CRSDATA!BT1896)","v":""}]
[null,null,null,null,null,null,null,null,null,null,null,null,null,null,null,null,null,null,null,null,null,null,null,null,null,null,null,null,null,null,{"$f":"IF(CRSDATA!BT1897=\"\",\"\",CRSDATA!BT1897)","v":""}]
[null,null,null,null,null,null,null,null,null,null,null,null,null,null,null,null,null,null,null,null,null,null,null,null,null,null,null,null,null,null,{"$f":"IF(CRSDATA!BT1898=\"\",\"\",CRSDATA!BT1898)","v":""}]
[null,null,null,null,null,null,null,null,null,null,null,null,null,null,null,null,null,null,null,null,null,null,null,null,null,null,null,null,null,null,{"$f":"IF(CRSDATA!BT1899=\"\",\"\",CRSDATA!BT1899)","v":""}]
[null,null,null,null,null,null,null,null,null,null,null,null,null,null,null,null,null,null,null,null,null,null,null,null,null,null,null,null,null,null,{"$f":"IF(CRSDATA!BT1900=\"\",\"\",CRSDATA!BT1900)","v":""}]
[null,null,null,null,null,null,null,null,null,null,null,null,null,null,null,null,null,null,null,null,null,null,null,null,null,null,null,null,null,null,{"$f":"IF(CRSDATA!BT1901=\"\",\"\",CRSDATA!BT1901)","v":""}]
[null,null,null,null,null,null,null,null,null,null,null,null,null,null,null,null,null,null,null,null,null,null,null,null,null,null,null,null,null,null,{"$f":"IF(CRSDATA!BT1902=\"\",\"\",CRSDATA!BT1902)","v":""}]
[null,null,null,null,null,null,null,null,null,null,null,null,null,null,null,null,null,null,null,null,null,null,null,null,null,null,null,null,null,null,{"$f":"IF(CRSDATA!BT1903=\"\",\"\",CRSDATA!BT1903)","v":""}]
[null,null,null,null,null,null,null,null,null,null,null,null,null,null,null,null,null,null,null,null,null,null,null,null,null,null,null,null,null,null,{"$f":"IF(CRSDATA!BT1904=\"\",\"\",CRSDATA!BT1904)","v":""}]
[null,null,null,null,null,null,null,null,null,null,null,null,null,null,null,null,null,null,null,null,null,null,null,null,null,null,null,null,null,null,{"$f":"IF(CRSDATA!BT1905=\"\",\"\",CRSDATA!BT1905)","v":""}]
[null,null,null,null,null,null,null,null,null,null,null,null,null,null,null,null,null,null,null,null,null,null,null,null,null,null,null,null,null,null,{"$f":"IF(CRSDATA!BT1906=\"\",\"\",CRSDATA!BT1906)","v":""}]
[null,null,null,null,null,null,null,null,null,null,null,null,null,null,null,null,null,null,null,null,null,null,null,null,null,null,null,null,null,null,{"$f":"IF(CRSDATA!BT1907=\"\",\"\",CRSDATA!BT1907)","v":""}]
[null,null,null,null,null,null,null,null,null,null,null,null,null,null,null,null,null,null,null,null,null,null,null,null,null,null,null,null,null,null,{"$f":"IF(CRSDATA!BT1908=\"\",\"\",CRSDATA!BT1908)","v":""}]
[null,null,null,null,null,null,null,null,null,null,null,null,null,null,null,null,null,null,null,null,null,null,null,null,null,null,null,null,null,null,{"$f":"IF(CRSDATA!BT1909=\"\",\"\",CRSDATA!BT1909)","v":""}]
[null,null,null,null,null,null,null,null,null,null,null,null,null,null,null,null,null,null,null,null,null,null,null,null,null,null,null,null,null,null,{"$f":"IF(CRSDATA!BT1910=\"\",\"\",CRSDATA!BT1910)","v":""}]
[null,null,null,null,null,null,null,null,null,null,null,null,null,null,null,null,null,null,null,null,null,null,null,null,null,null,null,null,null,null,{"$f":"IF(CRSDATA!BT1911=\"\",\"\",CRSDATA!BT1911)","v":""}]
[null,null,null,null,null,null,null,null,null,null,null,null,null,null,null,null,null,null,null,null,null,null,null,null,null,null,null,null,null,null,{"$f":"IF(CRSDATA!BT1912=\"\",\"\",CRSDATA!BT1912)","v":""}]
[null,null,null,null,null,null,null,null,null,null,null,null,null,null,null,null,null,null,null,null,null,null,null,null,null,null,null,null,null,null,{"$f":"IF(CRSDATA!BT1913=\"\",\"\",CRSDATA!BT1913)","v":""}]
[null,null,null,null,null,null,null,null,null,null,null,null,null,null,null,null,null,null,null,null,null,null,null,null,null,null,null,null,null,null,{"$f":"IF(CRSDATA!BT1914=\"\",\"\",CRSDATA!BT1914)","v":""}]
[null,null,null,null,null,null,null,null,null,null,null,null,null,null,null,null,null,null,null,null,null,null,null,null,null,null,null,null,null,null,{"$f":"IF(CRSDATA!BT1915=\"\",\"\",CRSDATA!BT1915)","v":""}]
[null,null,null,null,null,null,null,null,null,null,null,null,null,null,null,null,null,null,null,null,null,null,null,null,null,null,null,null,null,null,{"$f":"IF(CRSDATA!BT1916=\"\",\"\",CRSDATA!BT1916)","v":""}]
[null,null,null,null,null,null,null,null,null,null,null,null,null,null,null,null,null,null,null,null,null,null,null,null,null,null,null,null,null,null,{"$f":"IF(CRSDATA!BT1917=\"\",\"\",CRSDATA!BT1917)","v":""}]
[null,null,null,null,null,null,null,null,null,null,null,null,null,null,null,null,null,null,null,null,null,null,null,null,null,null,null,null,null,null,{"$f":"IF(CRSDATA!BT1918=\"\",\"\",CRSDATA!BT1918)","v":""}]
[null,null,null,null,null,null,null,null,null,null,null,null,null,null,null,null,null,null,null,null,null,null,null,null,null,null,null,null,null,null,{"$f":"IF(CRSDATA!BT1919=\"\",\"\",CRSDATA!BT1919)","v":""}]
[null,null,null,null,null,null,null,null,null,null,null,null,null,null,null,null,null,null,null,null,null,null,null,null,null,null,null,null,null,null,{"$f":"IF(CRSDATA!BT1920=\"\",\"\",CRSDATA!BT1920)","v":""}]
[null,null,null,null,null,null,null,null,null,null,null,null,null,null,null,null,null,null,null,null,null,null,null,null,null,null,null,null,null,null,{"$f":"IF(CRSDATA!BT1921=\"\",\"\",CRSDATA!BT1921)","v":""}]
[null,null,null,null,null,null,null,null,null,null,null,null,null,null,null,null,null,null,null,null,null,null,null,null,null,null,null,null,null,null,{"$f":"IF(CRSDATA!BT1922=\"\",\"\",CRSDATA!BT1922)","v":""}]
[null,null,null,null,null,null,null,null,null,null,null,null,null,null,null,null,null,null,null,null,null,null,null,null,null,null,null,null,null,null,{"$f":"IF(CRSDATA!BT1923=\"\",\"\",CRSDATA!BT1923)","v":""}]
[null,null,null,null,null,null,null,null,null,null,null,null,null,null,null,null,null,null,null,null,null,null,null,null,null,null,null,null,null,null,{"$f":"IF(CRSDATA!BT1924=\"\",\"\",CRSDATA!BT1924)","v":""}]
[null,null,null,null,null,null,null,null,null,null,null,null,null,null,null,null,null,null,null,null,null,null,null,null,null,null,null,null,null,null,{"$f":"IF(CRSDATA!BT1925=\"\",\"\",CRSDATA!BT1925)","v":""}]
[null,null,null,null,null,null,null,null,null,null,null,null,null,null,null,null,null,null,null,null,null,null,null,null,null,null,null,null,null,null,{"$f":"IF(CRSDATA!BT1926=\"\",\"\",CRSDATA!BT1926)","v":""}]
[null,null,null,null,null,null,null,null,null,null,null,null,null,null,null,null,null,null,null,null,null,null,null,null,null,null,null,null,null,null,{"$f":"IF(CRSDATA!BT1927=\"\",\"\",CRSDATA!BT1927)","v":""}]
[null,null,null,null,null,null,null,null,null,null,null,null,null,null,null,null,null,null,null,null,null,null,null,null,null,null,null,null,null,null,{"$f":"IF(CRSDATA!BT1928=\"\",\"\",CRSDATA!BT1928)","v":""}]
[null,null,null,null,null,null,null,null,null,null,null,null,null,null,null,null,null,null,null,null,null,null,null,null,null,null,null,null,null,null,{"$f":"IF(CRSDATA!BT1929=\"\",\"\",CRSDATA!BT1929)","v":""}]
[null,null,null,null,null,null,null,null,null,null,null,null,null,null,null,null,null,null,null,null,null,null,null,null,null,null,null,null,null,null,{"$f":"IF(CRSDATA!BT1930=\"\",\"\",CRSDATA!BT1930)","v":""}]
[null,null,null,null,null,null,null,null,null,null,null,null,null,null,null,null,null,null,null,null,null,null,null,null,null,null,null,null,null,null,{"$f":"IF(CRSDATA!BT1931=\"\",\"\",CRSDATA!BT1931)","v":""}]
[null,null,null,null,null,null,null,null,null,null,null,null,null,null,null,null,null,null,null,null,null,null,null,null,null,null,null,null,null,null,{"$f":"IF(CRSDATA!BT1932=\"\",\"\",CRSDATA!BT1932)","v":""}]
[null,null,null,null,null,null,null,null,null,null,null,null,null,null,null,null,null,null,null,null,null,null,null,null,null,null,null,null,null,null,{"$f":"IF(CRSDATA!BT1933=\"\",\"\",CRSDATA!BT1933)","v":""}]
[null,null,null,null,null,null,null,null,null,null,null,null,null,null,null,null,null,null,null,null,null,null,null,null,null,null,null,null,null,null,{"$f":"IF(CRSDATA!BT1934=\"\",\"\",CRSDATA!BT1934)","v":""}]
[null,null,null,null,null,null,null,null,null,null,null,null,null,null,null,null,null,null,null,null,null,null,null,null,null,null,null,null,null,null,{"$f":"IF(CRSDATA!BT1935=\"\",\"\",CRSDATA!BT1935)","v":""}]
[null,null,null,null,null,null,null,null,null,null,null,null,null,null,null,null,null,null,null,null,null,null,null,null,null,null,null,null,null,null,{"$f":"IF(CRSDATA!BT1936=\"\",\"\",CRSDATA!BT1936)","v":""}]
[null,null,null,null,null,null,null,null,null,null,null,null,null,null,null,null,null,null,null,null,null,null,null,null,null,null,null,null,null,null,{"$f":"IF(CRSDATA!BT1937=\"\",\"\",CRSDATA!BT1937)","v":""}]
[null,null,null,null,null,null,null,null,null,null,null,null,null,null,null,null,null,null,null,null,null,null,null,null,null,null,null,null,null,null,{"$f":"IF(CRSDATA!BT1938=\"\",\"\",CRSDATA!BT1938)","v":""}]
[null,null,null,null,null,null,null,null,null,null,null,null,null,null,null,null,null,null,null,null,null,null,null,null,null,null,null,null,null,null,{"$f":"IF(CRSDATA!BT1939=\"\",\"\",CRSDATA!BT1939)","v":""}]
[null,null,null,null,null,null,null,null,null,null,null,null,null,null,null,null,null,null,null,null,null,null,null,null,null,null,null,null,null,null,{"$f":"IF(CRSDATA!BT1940=\"\",\"\",CRSDATA!BT1940)","v":""}]
[null,null,null,null,null,null,null,null,null,null,null,null,null,null,null,null,null,null,null,null,null,null,null,null,null,null,null,null,null,null,{"$f":"IF(CRSDATA!BT1941=\"\",\"\",CRSDATA!BT1941)","v":""}]
[null,null,null,null,null,null,null,null,null,null,null,null,null,null,null,null,null,null,null,null,null,null,null,null,null,null,null,null,null,null,{"$f":"IF(CRSDATA!BT1942=\"\",\"\",CRSDATA!BT1942)","v":""}]
[null,null,null,null,null,null,null,null,null,null,null,null,null,null,null,null,null,null,null,null,null,null,null,null,null,null,null,null,null,null,{"$f":"IF(CRSDATA!BT1943=\"\",\"\",CRSDATA!BT1943)","v":""}]
[null,null,null,null,null,null,null,null,null,null,null,null,null,null,null,null,null,null,null,null,null,null,null,null,null,null,null,null,null,null,{"$f":"IF(CRSDATA!BT1944=\"\",\"\",CRSDATA!BT1944)","v":""}]
[null,null,null,null,null,null,null,null,null,null,null,null,null,null,null,null,null,null,null,null,null,null,null,null,null,null,null,null,null,null,{"$f":"IF(CRSDATA!BT1945=\"\",\"\",CRSDATA!BT1945)","v":""}]
[null,null,null,null,null,null,null,null,null,null,null,null,null,null,null,null,null,null,null,null,null,null,null,null,null,null,null,null,null,null,{"$f":"IF(CRSDATA!BT1946=\"\",\"\",CRSDATA!BT1946)","v":""}]
[null,null,null,null,null,null,null,null,null,null,null,null,null,null,null,null,null,null,null,null,null,null,null,null,null,null,null,null,null,null,{"$f":"IF(CRSDATA!BT1947=\"\",\"\",CRSDATA!BT1947)","v":""}]
[null,null,null,null,null,null,null,null,null,null,null,null,null,null,null,null,null,null,null,null,null,null,null,null,null,null,null,null,null,null,{"$f":"IF(CRSDATA!BT1948=\"\",\"\",CRSDATA!BT1948)","v":""}]
[null,null,null,null,null,null,null,null,null,null,null,null,null,null,null,null,null,null,null,null,null,null,null,null,null,null,null,null,null,null,{"$f":"IF(CRSDATA!BT1949=\"\",\"\",CRSDATA!BT1949)","v":""}]
[null,null,null,null,null,null,null,null,null,null,null,null,null,null,null,null,null,null,null,null,null,null,null,null,null,null,null,null,null,null,{"$f":"IF(CRSDATA!BT1950=\"\",\"\",CRSDATA!BT1950)","v":""}]
[null,null,null,null,null,null,null,null,null,null,null,null,null,null,null,null,null,null,null,null,null,null,null,null,null,null,null,null,null,null,{"$f":"IF(CRSDATA!BT1951=\"\",\"\",CRSDATA!BT1951)","v":""}]
[null,null,null,null,null,null,null,null,null,null,null,null,null,null,null,null,null,null,null,null,null,null,null,null,null,null,null,null,null,null,{"$f":"IF(CRSDATA!BT1952=\"\",\"\",CRSDATA!BT1952)","v":""}]
[null,null,null,null,null,null,null,null,null,null,null,null,null,null,null,null,null,null,null,null,null,null,null,null,null,null,null,null,null,null,{"$f":"IF(CRSDATA!BT1953=\"\",\"\",CRSDATA!BT1953)","v":""}]
[null,null,null,null,null,null,null,null,null,null,null,null,null,null,null,null,null,null,null,null,null,null,null,null,null,null,null,null,null,null,{"$f":"IF(CRSDATA!BT1954=\"\",\"\",CRSDATA!BT1954)","v":""}]
[null,null,null,null,null,null,null,null,null,null,null,null,null,null,null,null,null,null,null,null,null,null,null,null,null,null,null,null,null,null,{"$f":"IF(CRSDATA!BT1955=\"\",\"\",CRSDATA!BT1955)","v":""}]
[null,null,null,null,null,null,null,null,null,null,null,null,null,null,null,null,null,null,null,null,null,null,null,null,null,null,null,null,null,null,{"$f":"IF(CRSDATA!BT1956=\"\",\"\",CRSDATA!BT1956)","v":""}]
[null,null,null,null,null,null,null,null,null,null,null,null,null,null,null,null,null,null,null,null,null,null,null,null,null,null,null,null,null,null,{"$f":"IF(CRSDATA!BT1957=\"\",\"\",CRSDATA!BT1957)","v":""}]
[null,null,null,null,null,null,null,null,null,null,null,null,null,null,null,null,null,null,null,null,null,null,null,null,null,null,null,null,null,null,{"$f":"IF(CRSDATA!BT1958=\"\",\"\",CRSDATA!BT1958)","v":""}]
[null,null,null,null,null,null,null,null,null,null,null,null,null,null,null,null,null,null,null,null,null,null,null,null,null,null,null,null,null,null,{"$f":"IF(CRSDATA!BT1959=\"\",\"\",CRSDATA!BT1959)","v":""}]
[null,null,null,null,null,null,null,null,null,null,null,null,null,null,null,null,null,null,null,null,null,null,null,null,null,null,null,null,null,null,{"$f":"IF(CRSDATA!BT1960=\"\",\"\",CRSDATA!BT1960)","v":""}]
[null,null,null,null,null,null,null,null,null,null,null,null,null,null,null,null,null,null,null,null,null,null,null,null,null,null,null,null,null,null,{"$f":"IF(CRSDATA!BT1961=\"\",\"\",CRSDATA!BT1961)","v":""}]
[null,null,null,null,null,null,null,null,null,null,null,null,null,null,null,null,null,null,null,null,null,null,null,null,null,null,null,null,null,null,{"$f":"IF(CRSDATA!BT1962=\"\",\"\",CRSDATA!BT1962)","v":""}]
[null,null,null,null,null,null,null,null,null,null,null,null,null,null,null,null,null,null,null,null,null,null,null,null,null,null,null,null,null,null,{"$f":"IF(CRSDATA!BT1963=\"\",\"\",CRSDATA!BT1963)","v":""}]
[null,null,null,null,null,null,null,null,null,null,null,null,null,null,null,null,null,null,null,null,null,null,null,null,null,null,null,null,null,null,{"$f":"IF(CRSDATA!BT1964=\"\",\"\",CRSDATA!BT1964)","v":""}]
[null,null,null,null,null,null,null,null,null,null,null,null,null,null,null,null,null,null,null,null,null,null,null,null,null,null,null,null,null,null,{"$f":"IF(CRSDATA!BT1965=\"\",\"\",CRSDATA!BT1965)","v":""}]
[null,null,null,null,null,null,null,null,null,null,null,null,null,null,null,null,null,null,null,null,null,null,null,null,null,null,null,null,null,null,{"$f":"IF(CRSDATA!BT1966=\"\",\"\",CRSDATA!BT1966)","v":""}]
[null,null,null,null,null,null,null,null,null,null,null,null,null,null,null,null,null,null,null,null,null,null,null,null,null,null,null,null,null,null,{"$f":"IF(CRSDATA!BT1967=\"\",\"\",CRSDATA!BT1967)","v":""}]
[null,null,null,null,null,null,null,null,null,null,null,null,null,null,null,null,null,null,null,null,null,null,null,null,null,null,null,null,null,null,{"$f":"IF(CRSDATA!BT1968=\"\",\"\",CRSDATA!BT1968)","v":""}]
[null,null,null,null,null,null,null,null,null,null,null,null,null,null,null,null,null,null,null,null,null,null,null,null,null,null,null,null,null,null,{"$f":"IF(CRSDATA!BT1969=\"\",\"\",CRSDATA!BT1969)","v":""}]
[null,null,null,null,null,null,null,null,null,null,null,null,null,null,null,null,null,null,null,null,null,null,null,null,null,null,null,null,null,null,{"$f":"IF(CRSDATA!BT1970=\"\",\"\",CRSDATA!BT1970)","v":""}]
[null,null,null,null,null,null,null,null,null,null,null,null,null,null,null,null,null,null,null,null,null,null,null,null,null,null,null,null,null,null,{"$f":"IF(CRSDATA!BT1971=\"\",\"\",CRSDATA!BT1971)","v":""}]
[null,null,null,null,null,null,null,null,null,null,null,null,null,null,null,null,null,null,null,null,null,null,null,null,null,null,null,null,null,null,{"$f":"IF(CRSDATA!BT1972=\"\",\"\",CRSDATA!BT1972)","v":""}]
[null,null,null,null,null,null,null,null,null,null,null,null,null,null,null,null,null,null,null,null,null,null,null,null,null,null,null,null,null,null,{"$f":"IF(CRSDATA!BT1973=\"\",\"\",CRSDATA!BT1973)","v":""}]
[null,null,null,null,null,null,null,null,null,null,null,null,null,null,null,null,null,null,null,null,null,null,null,null,null,null,null,null,null,null,{"$f":"IF(CRSDATA!BT1974=\"\",\"\",CRSDATA!BT1974)","v":""}]
[null,null,null,null,null,null,null,null,null,null,null,null,null,null,null,null,null,null,null,null,null,null,null,null,null,null,null,null,null,null,{"$f":"IF(CRSDATA!BT1975=\"\",\"\",CRSDATA!BT1975)","v":""}]
[null,null,null,null,null,null,null,null,null,null,null,null,null,null,null,null,null,null,null,null,null,null,null,null,null,null,null,null,null,null,{"$f":"IF(CRSDATA!BT1976=\"\",\"\",CRSDATA!BT1976)","v":""}]
[null,null,null,null,null,null,null,null,null,null,null,null,null,null,null,null,null,null,null,null,null,null,null,null,null,null,null,null,null,null,{"$f":"IF(CRSDATA!BT1977=\"\",\"\",CRSDATA!BT1977)","v":""}]
[null,null,null,null,null,null,null,null,null,null,null,null,null,null,null,null,null,null,null,null,null,null,null,null,null,null,null,null,null,null,{"$f":"IF(CRSDATA!BT1978=\"\",\"\",CRSDATA!BT1978)","v":""}]
[null,null,null,null,null,null,null,null,null,null,null,null,null,null,null,null,null,null,null,null,null,null,null,null,null,null,null,null,null,null,{"$f":"IF(CRSDATA!BT1979=\"\",\"\",CRSDATA!BT1979)","v":""}]
[null,null,null,null,null,null,null,null,null,null,null,null,null,null,null,null,null,null,null,null,null,null,null,null,null,null,null,null,null,null,{"$f":"IF(CRSDATA!BT1980=\"\",\"\",CRSDATA!BT1980)","v":""}]
[null,null,null,null,null,null,null,null,null,null,null,null,null,null,null,null,null,null,null,null,null,null,null,null,null,null,null,null,null,null,{"$f":"IF(CRSDATA!BT1981=\"\",\"\",CRSDATA!BT1981)","v":""}]
[null,null,null,null,null,null,null,null,null,null,null,null,null,null,null,null,null,null,null,null,null,null,null,null,null,null,null,null,null,null,{"$f":"IF(CRSDATA!BT1982=\"\",\"\",CRSDATA!BT1982)","v":""}]
[null,null,null,null,null,null,null,null,null,null,null,null,null,null,null,null,null,null,null,null,null,null,null,null,null,null,null,null,null,null,{"$f":"IF(CRSDATA!BT1983=\"\",\"\",CRSDATA!BT1983)","v":""}]
[null,null,null,null,null,null,null,null,null,null,null,null,null,null,null,null,null,null,null,null,null,null,null,null,null,null,null,null,null,null,{"$f":"IF(CRSDATA!BT1984=\"\",\"\",CRSDATA!BT1984)","v":""}]
[null,null,null,null,null,null,null,null,null,null,null,null,null,null,null,null,null,null,null,null,null,null,null,null,null,null,null,null,null,null,{"$f":"IF(CRSDATA!BT1985=\"\",\"\",CRSDATA!BT1985)","v":""}]
[null,null,null,null,null,null,null,null,null,null,null,null,null,null,null,null,null,null,null,null,null,null,null,null,null,null,null,null,null,null,{"$f":"IF(CRSDATA!BT1986=\"\",\"\",CRSDATA!BT1986)","v":""}]
[null,null,null,null,null,null,null,null,null,null,null,null,null,null,null,null,null,null,null,null,null,null,null,null,null,null,null,null,null,null,{"$f":"IF(CRSDATA!BT1987=\"\",\"\",CRSDATA!BT1987)","v":""}]
[null,null,null,null,null,null,null,null,null,null,null,null,null,null,null,null,null,null,null,null,null,null,null,null,null,null,null,null,null,null,{"$f":"IF(CRSDATA!BT1988=\"\",\"\",CRSDATA!BT1988)","v":""}]
[null,null,null,null,null,null,null,null,null,null,null,null,null,null,null,null,null,null,null,null,null,null,null,null,null,null,null,null,null,null,{"$f":"IF(CRSDATA!BT1989=\"\",\"\",CRSDATA!BT1989)","v":""}]
[null,null,null,null,null,null,null,null,null,null,null,null,null,null,null,null,null,null,null,null,null,null,null,null,null,null,null,null,null,null,{"$f":"IF(CRSDATA!BT1990=\"\",\"\",CRSDATA!BT1990)","v":""}]
[null,null,null,null,null,null,null,null,null,null,null,null,null,null,null,null,null,null,null,null,null,null,null,null,null,null,null,null,null,null,{"$f":"IF(CRSDATA!BT1991=\"\",\"\",CRSDATA!BT1991)","v":""}]
[null,null,null,null,null,null,null,null,null,null,null,null,null,null,null,null,null,null,null,null,null,null,null,null,null,null,null,null,null,null,{"$f":"IF(CRSDATA!BT1992=\"\",\"\",CRSDATA!BT1992)","v":""}]
[null,null,null,null,null,null,null,null,null,null,null,null,null,null,null,null,null,null,null,null,null,null,null,null,null,null,null,null,null,null,{"$f":"IF(CRSDATA!BT1993=\"\",\"\",CRSDATA!BT1993)","v":""}]
[null,null,null,null,null,null,null,null,null,null,null,null,null,null,null,null,null,null,null,null,null,null,null,null,null,null,null,null,null,null,{"$f":"IF(CRSDATA!BT1994=\"\",\"\",CRSDATA!BT1994)","v":""}]
[null,null,null,null,null,null,null,null,null,null,null,null,null,null,null,null,null,null,null,null,null,null,null,null,null,null,null,null,null,null,{"$f":"IF(CRSDATA!BT1995=\"\",\"\",CRSDATA!BT1995)","v":""}]
[null,null,null,null,null,null,null,null,null,null,null,null,null,null,null,null,null,null,null,null,null,null,null,null,null,null,null,null,null,null,{"$f":"IF(CRSDATA!BT1996=\"\",\"\",CRSDATA!BT1996)","v":""}]
[null,null,null,null,null,null,null,null,null,null,null,null,null,null,null,null,null,null,null,null,null,null,null,null,null,null,null,null,null,null,{"$f":"IF(CRSDATA!BT1997=\"\",\"\",CRSDATA!BT1997)","v":""}]
[null,null,null,null,null,null,null,null,null,null,null,null,null,null,null,null,null,null,null,null,null,null,null,null,null,null,null,null,null,null,{"$f":"IF(CRSDATA!BT1998=\"\",\"\",CRSDATA!BT1998)","v":""}]
[null,null,null,null,null,null,null,null,null,null,null,null,null,null,null,null,null,null,null,null,null,null,null,null,null,null,null,null,null,null,{"$f":"IF(CRSDATA!BT1999=\"\",\"\",CRSDATA!BT1999)","v":""}]
[null,null,null,null,null,null,null,null,null,null,null,null,null,null,null,null,null,null,null,null,null,null,null,null,null,null,null,null,null,null,{"$f":"IF(CRSDATA!BT2000=\"\",\"\",CRSDATA!BT2000)","v":""}]
[null,null,null,null,null,null,null,null,null,null,null,null,null,null,null,null,null,null,null,null,null,null,null,null,null,null,null,null,null,null,{"$f":"IF(CRSDATA!BT2001=\"\",\"\",CRSDATA!BT2001)","v":""}]
[null,null,null,null,null,null,null,null,null,null,null,null,null,null,null,null,null,null,null,null,null,null,null,null,null,null,null,null,null,null,{"$f":"IF(CRSDATA!BT2002=\"\",\"\",CRSDATA!BT2002)","v":""}]
[null,null,null,null,null,null,null,null,null,null,null,null,null,null,null,null,null,null,null,null,null,null,null,null,null,null,null,null,null,null,{"$f":"IF(CRSDATA!BT2003=\"\",\"\",CRSDATA!BT2003)","v":""}]
[null,null,null,null,null,null,null,null,null,null,null,null,null,null,null,null,null,null,null,null,null,null,null,null,null,null,null,null,null,null,{"$f":"IF(CRSDATA!BT2004=\"\",\"\",CRSDATA!BT2004)","v":""}]
[null,null,null,null,null,null,null,null,null,null,null,null,null,null,null,null,null,null,null,null,null,null,null,null,null,null,null,null,null,null,{"$f":"IF(CRSDATA!BT2005=\"\",\"\",CRSDATA!BT2005)","v":""}]
[null,null,null,null,null,null,null,null,null,null,null,null,null,null,null,null,null,null,null,null,null,null,null,null,null,null,null,null,null,null,{"$f":"IF(CRSDATA!BT2006=\"\",\"\",CRSDATA!BT2006)","v":""}]
[null,null,null,null,null,null,null,null,null,null,null,null,null,null,null,null,null,null,null,null,null,null,null,null,null,null,null,null,null,null,{"$f":"IF(CRSDATA!BT2007=\"\",\"\",CRSDATA!BT2007)","v":""}]
[null,null,null,null,null,null,null,null,null,null,null,null,null,null,null,null,null,null,null,null,null,null,null,null,null,null,null,null,null,null,{"$f":"IF(CRSDATA!BT2008=\"\",\"\",CRSDATA!BT2008)","v":""}]
[null,null,null,null,null,null,null,null,null,null,null,null,null,null,null,null,null,null,null,null,null,null,null,null,null,null,null,null,null,null,{"$f":"IF(CRSDATA!BT2009=\"\",\"\",CRSDATA!BT2009)","v":""}]
[null,null,null,null,null,null,null,null,null,null,null,null,null,null,null,null,null,null,null,null,null,null,null,null,null,null,null,null,null,null,{"$f":"IF(CRSDATA!BT2010=\"\",\"\",CRSDATA!BT2010)","v":""}]
[null,null,null,null,null,null,null,null,null,null,null,null,null,null,null,null,null,null,null,null,null,null,null,null,null,null,null,null,null,null,{"$f":"IF(CRSDATA!BT2011=\"\",\"\",CRSDATA!BT2011)","v":""}]
[null,null,null,null,null,null,null,null,null,null,null,null,null,null,null,null,null,null,null,null,null,null,null,null,null,null,null,null,null,null,{"$f":"IF(CRSDATA!BT2012=\"\",\"\",CRSDATA!BT2012)","v":""}]
[null,null,null,null,null,null,null,null,null,null,null,null,null,null,null,null,null,null,null,null,null,null,null,null,null,null,null,null,null,null,{"$f":"IF(CRSDATA!BT2013=\"\",\"\",CRSDATA!BT2013)","v":""}]
[null,null,null,null,null,null,null,null,null,null,null,null,null,null,null,null,null,null,null,null,null,null,null,null,null,null,null,null,null,null,{"$f":"IF(CRSDATA!BT2014=\"\",\"\",CRSDATA!BT2014)","v":""}]
[null,null,null,null,null,null,null,null,null,null,null,null,null,null,null,null,null,null,null,null,null,null,null,null,null,null,null,null,null,null,{"$f":"IF(CRSDATA!BT2015=\"\",\"\",CRSDATA!BT2015)","v":""}]
[null,null,null,null,null,null,null,null,null,null,null,null,null,null,null,null,null,null,null,null,null,null,null,null,null,null,null,null,null,null,{"$f":"IF(CRSDATA!BT2016=\"\",\"\",CRSDATA!BT2016)","v":""}]
[null,null,null,null,null,null,null,null,null,null,null,null,null,null,null,null,null,null,null,null,null,null,null,null,null,null,null,null,null,null,{"$f":"IF(CRSDATA!BT2017=\"\",\"\",CRSDATA!BT2017)","v":""}]
[null,null,null,null,null,null,null,null,null,null,null,null,null,null,null,null,null,null,null,null,null,null,null,null,null,null,null,null,null,null,{"$f":"IF(CRSDATA!BT2018=\"\",\"\",CRSDATA!BT2018)","v":""}]
[null,null,null,null,null,null,null,null,null,null,null,null,null,null,null,null,null,null,null,null,null,null,null,null,null,null,null,null,null,null,{"$f":"IF(CRSDATA!BT2019=\"\",\"\",CRSDATA!BT2019)","v":""}]
[null,null,null,null,null,null,null,null,null,null,null,null,null,null,null,null,null,null,null,null,null,null,null,null,null,null,null,null,null,null,{"$f":"IF(CRSDATA!BT2020=\"\",\"\",CRSDATA!BT2020)","v":""}]
[null,null,null,null,null,null,null,null,null,null,null,null,null,null,null,null,null,null,null,null,null,null,null,null,null,null,null,null,null,null,{"$f":"IF(CRSDATA!BT2021=\"\",\"\",CRSDATA!BT2021)","v":""}]
[null,null,null,null,null,null,null,null,null,null,null,null,null,null,null,null,null,null,null,null,null,null,null,null,null,null,null,null,null,null,{"$f":"IF(CRSDATA!BT2022=\"\",\"\",CRSDATA!BT2022)","v":""}]
[null,null,null,null,null,null,null,null,null,null,null,null,null,null,null,null,null,null,null,null,null,null,null,null,null,null,null,null,null,null,{"$f":"IF(CRSDATA!BT2023=\"\",\"\",CRSDATA!BT2023)","v":""}]
[null,null,null,null,null,null,null,null,null,null,null,null,null,null,null,null,null,null,null,null,null,null,null,null,null,null,null,null,null,null,{"$f":"IF(CRSDATA!BT2024=\"\",\"\",CRSDATA!BT2024)","v":""}]
[null,null,null,null,null,null,null,null,null,null,null,null,null,null,null,null,null,null,null,null,null,null,null,null,null,null,null,null,null,null,{"$f":"IF(CRSDATA!BT2025=\"\",\"\",CRSDATA!BT2025)","v":""}]
[null,null,null,null,null,null,null,null,null,null,null,null,null,null,null,null,null,null,null,null,null,null,null,null,null,null,null,null,null,null,{"$f":"IF(CRSDATA!BT2026=\"\",\"\",CRSDATA!BT2026)","v":""}]
[null,null,null,null,null,null,null,null,null,null,null,null,null,null,null,null,null,null,null,null,null,null,null,null,null,null,null,null,null,null,{"$f":"IF(CRSDATA!BT2027=\"\",\"\",CRSDATA!BT2027)","v":""}]
[null,null,null,null,null,null,null,null,null,null,null,null,null,null,null,null,null,null,null,null,null,null,null,null,null,null,null,null,null,null,{"$f":"IF(CRSDATA!BT2028=\"\",\"\",CRSDATA!BT2028)","v":""}]
[null,null,null,null,null,null,null,null,null,null,null,null,null,null,null,null,null,null,null,null,null,null,null,null,null,null,null,null,null,null,{"$f":"IF(CRSDATA!BT2029=\"\",\"\",CRSDATA!BT2029)","v":""}]
[null,null,null,null,null,null,null,null,null,null,null,null,null,null,null,null,null,null,null,null,null,null,null,null,null,null,null,null,null,null,{"$f":"IF(CRSDATA!BT2030=\"\",\"\",CRSDATA!BT2030)","v":""}]
[null,null,null,null,null,null,null,null,null,null,null,null,null,null,null,null,null,null,null,null,null,null,null,null,null,null,null,null,null,null,{"$f":"IF(CRSDATA!BT2031=\"\",\"\",CRSDATA!BT2031)","v":""}]
[null,null,null,null,null,null,null,null,null,null,null,null,null,null,null,null,null,null,null,null,null,null,null,null,null,null,null,null,null,null,{"$f":"IF(CRSDATA!BT2032=\"\",\"\",CRSDATA!BT2032)","v":""}]
[null,null,null,null,null,null,null,null,null,null,null,null,null,null,null,null,null,null,null,null,null,null,null,null,null,null,null,null,null,null,{"$f":"IF(CRSDATA!BT2033=\"\",\"\",CRSDATA!BT2033)","v":""}]
[null,null,null,null,null,null,null,null,null,null,null,null,null,null,null,null,null,null,null,null,null,null,null,null,null,null,null,null,null,null,{"$f":"IF(CRSDATA!BT2034=\"\",\"\",CRSDATA!BT2034)","v":""}]
[null,null,null,null,null,null,null,null,null,null,null,null,null,null,null,null,null,null,null,null,null,null,null,null,null,null,null,null,null,null,{"$f":"IF(CRSDATA!BT2035=\"\",\"\",CRSDATA!BT2035)","v":""}]
[null,null,null,null,null,null,null,null,null,null,null,null,null,null,null,null,null,null,null,null,null,null,null,null,null,null,null,null,null,null,{"$f":"IF(CRSDATA!BT2036=\"\",\"\",CRSDATA!BT2036)","v":""}]
[null,null,null,null,null,null,null,null,null,null,null,null,null,null,null,null,null,null,null,null,null,null,null,null,null,null,null,null,null,null,{"$f":"IF(CRSDATA!BT2037=\"\",\"\",CRSDATA!BT2037)","v":""}]
[null,null,null,null,null,null,null,null,null,null,null,null,null,null,null,null,null,null,null,null,null,null,null,null,null,null,null,null,null,null,{"$f":"IF(CRSDATA!BT2038=\"\",\"\",CRSDATA!BT2038)","v":""}]
[null,null,null,null,null,null,null,null,null,null,null,null,null,null,null,null,null,null,null,null,null,null,null,null,null,null,null,null,null,null,{"$f":"IF(CRSDATA!BT2039=\"\",\"\",CRSDATA!BT2039)","v":""}]
[null,null,null,null,null,null,null,null,null,null,null,null,null,null,null,null,null,null,null,null,null,null,null,null,null,null,null,null,null,null,{"$f":"IF(CRSDATA!BT2040=\"\",\"\",CRSDATA!BT2040)","v":""}]
[null,null,null,null,null,null,null,null,null,null,null,null,null,null,null,null,null,null,null,null,null,null,null,null,null,null,null,null,null,null,{"$f":"IF(CRSDATA!BT2041=\"\",\"\",CRSDATA!BT2041)","v":""}]
[null,null,null,null,null,null,null,null,null,null,null,null,null,null,null,null,null,null,null,null,null,null,null,null,null,null,null,null,null,null,{"$f":"IF(CRSDATA!BT2042=\"\",\"\",CRSDATA!BT2042)","v":""}]
[null,null,null,null,null,null,null,null,null,null,null,null,null,null,null,null,null,null,null,null,null,null,null,null,null,null,null,null,null,null,{"$f":"IF(CRSDATA!BT2043=\"\",\"\",CRSDATA!BT2043)","v":""}]
[null,null,null,null,null,null,null,null,null,null,null,null,null,null,null,null,null,null,null,null,null,null,null,null,null,null,null,null,null,null,{"$f":"IF(CRSDATA!BT2044=\"\",\"\",CRSDATA!BT2044)","v":""}]
[null,null,null,null,null,null,null,null,null,null,null,null,null,null,null,null,null,null,null,null,null,null,null,null,null,null,null,null,null,null,{"$f":"IF(CRSDATA!BT2045=\"\",\"\",CRSDATA!BT2045)","v":""}]
[null,null,null,null,null,null,null,null,null,null,null,null,null,null,null,null,null,null,null,null,null,null,null,null,null,null,null,null,null,null,{"$f":"IF(CRSDATA!BT2046=\"\",\"\",CRSDATA!BT2046)","v":""}]
[null,null,null,null,null,null,null,null,null,null,null,null,null,null,null,null,null,null,null,null,null,null,null,null,null,null,null,null,null,null,{"$f":"IF(CRSDATA!BT2047=\"\",\"\",CRSDATA!BT2047)","v":""}]
[null,null,null,null,null,null,null,null,null,null,null,null,null,null,null,null,null,null,null,null,null,null,null,null,null,null,null,null,null,null,{"$f":"IF(CRSDATA!BT2048=\"\",\"\",CRSDATA!BT2048)","v":""}]
[null,null,null,null,null,null,null,null,null,null,null,null,null,null,null,null,null,null,null,null,null,null,null,null,null,null,null,null,null,null,{"$f":"IF(CRSDATA!BT2049=\"\",\"\",CRSDATA!BT2049)","v":""}]
[null,null,null,null,null,null,null,null,null,null,null,null,null,null,null,null,null,null,null,null,null,null,null,null,null,null,null,null,null,null,{"$f":"IF(CRSDATA!BT2050=\"\",\"\",CRSDATA!BT2050)","v":""}]
[null,null,null,null,null,null,null,null,null,null,null,null,null,null,null,null,null,null,null,null,null,null,null,null,null,null,null,null,null,null,{"$f":"IF(CRSDATA!BT2051=\"\",\"\",CRSDATA!BT2051)","v":""}]
[null,null,null,null,null,null,null,null,null,null,null,null,null,null,null,null,null,null,null,null,null,null,null,null,null,null,null,null,null,null,{"$f":"IF(CRSDATA!BT2052=\"\",\"\",CRSDATA!BT2052)","v":""}]
[null,null,null,null,null,null,null,null,null,null,null,null,null,null,null,null,null,null,null,null,null,null,null,null,null,null,null,null,null,null,{"$f":"IF(CRSDATA!BT2053=\"\",\"\",CRSDATA!BT2053)","v":""}]
[null,null,null,null,null,null,null,null,null,null,null,null,null,null,null,null,null,null,null,null,null,null,null,null,null,null,null,null,null,null,{"$f":"IF(CRSDATA!BT2054=\"\",\"\",CRSDATA!BT2054)","v":""}]
[null,null,null,null,null,null,null,null,null,null,null,null,null,null,null,null,null,null,null,null,null,null,null,null,null,null,null,null,null,null,{"$f":"IF(CRSDATA!BT2055=\"\",\"\",CRSDATA!BT2055)","v":""}]
[null,null,null,null,null,null,null,null,null,null,null,null,null,null,null,null,null,null,null,null,null,null,null,null,null,null,null,null,null,null,{"$f":"IF(CRSDATA!BT2056=\"\",\"\",CRSDATA!BT2056)","v":""}]
[null,null,null,null,null,null,null,null,null,null,null,null,null,null,null,null,null,null,null,null,null,null,null,null,null,null,null,null,null,null,{"$f":"IF(CRSDATA!BT2057=\"\",\"\",CRSDATA!BT2057)","v":""}]
[null,null,null,null,null,null,null,null,null,null,null,null,null,null,null,null,null,null,null,null,null,null,null,null,null,null,null,null,null,null,{"$f":"IF(CRSDATA!BT2058=\"\",\"\",CRSDATA!BT2058)","v":""}]
[null,null,null,null,null,null,null,null,null,null,null,null,null,null,null,null,null,null,null,null,null,null,null,null,null,null,null,null,null,null,{"$f":"IF(CRSDATA!BT2059=\"\",\"\",CRSDATA!BT2059)","v":""}]
[null,null,null,null,null,null,null,null,null,null,null,null,null,null,null,null,null,null,null,null,null,null,null,null,null,null,null,null,null,null,{"$f":"IF(CRSDATA!BT2060=\"\",\"\",CRSDATA!BT2060)","v":""}]
[null,null,null,null,null,null,null,null,null,null,null,null,null,null,null,null,null,null,null,null,null,null,null,null,null,null,null,null,null,null,{"$f":"IF(CRSDATA!BT2061=\"\",\"\",CRSDATA!BT2061)","v":""}]
[null,null,null,null,null,null,null,null,null,null,null,null,null,null,null,null,null,null,null,null,null,null,null,null,null,null,null,null,null,null,{"$f":"IF(CRSDATA!BT2062=\"\",\"\",CRSDATA!BT2062)","v":""}]
[null,null,null,null,null,null,null,null,null,null,null,null,null,null,null,null,null,null,null,null,null,null,null,null,null,null,null,null,null,null,{"$f":"IF(CRSDATA!BT2063=\"\",\"\",CRSDATA!BT2063)","v":""}]
[null,null,null,null,null,null,null,null,null,null,null,null,null,null,null,null,null,null,null,null,null,null,null,null,null,null,null,null,null,null,{"$f":"IF(CRSDATA!BT2064=\"\",\"\",CRSDATA!BT2064)","v":""}]
[null,null,null,null,null,null,null,null,null,null,null,null,null,null,null,null,null,null,null,null,null,null,null,null,null,null,null,null,null,null,{"$f":"IF(CRSDATA!BT2065=\"\",\"\",CRSDATA!BT2065)","v":""}]
[null,null,null,null,null,null,null,null,null,null,null,null,null,null,null,null,null,null,null,null,null,null,null,null,null,null,null,null,null,null,{"$f":"IF(CRSDATA!BT2066=\"\",\"\",CRSDATA!BT2066)","v":""}]
[null,null,null,null,null,null,null,null,null,null,null,null,null,null,null,null,null,null,null,null,null,null,null,null,null,null,null,null,null,null,{"$f":"IF(CRSDATA!BT2067=\"\",\"\",CRSDATA!BT2067)","v":""}]
[null,null,null,null,null,null,null,null,null,null,null,null,null,null,null,null,null,null,null,null,null,null,null,null,null,null,null,null,null,null,{"$f":"IF(CRSDATA!BT2068=\"\",\"\",CRSDATA!BT2068)","v":""}]
[null,null,null,null,null,null,null,null,null,null,null,null,null,null,null,null,null,null,null,null,null,null,null,null,null,null,null,null,null,null,{"$f":"IF(CRSDATA!BT2069=\"\",\"\",CRSDATA!BT2069)","v":""}]
[null,null,null,null,null,null,null,null,null,null,null,null,null,null,null,null,null,null,null,null,null,null,null,null,null,null,null,null,null,null,{"$f":"IF(CRSDATA!BT2070=\"\",\"\",CRSDATA!BT2070)","v":""}]
[null,null,null,null,null,null,null,null,null,null,null,null,null,null,null,null,null,null,null,null,null,null,null,null,null,null,null,null,null,null,{"$f":"IF(CRSDATA!BT2071=\"\",\"\",CRSDATA!BT2071)","v":""}]
[null,null,null,null,null,null,null,null,null,null,null,null,null,null,null,null,null,null,null,null,null,null,null,null,null,null,null,null,null,null,{"$f":"IF(CRSDATA!BT2072=\"\",\"\",CRSDATA!BT2072)","v":""}]
[null,null,null,null,null,null,null,null,null,null,null,null,null,null,null,null,null,null,null,null,null,null,null,null,null,null,null,null,null,null,{"$f":"IF(CRSDATA!BT2073=\"\",\"\",CRSDATA!BT2073)","v":""}]
[null,null,null,null,null,null,null,null,null,null,null,null,null,null,null,null,null,null,null,null,null,null,null,null,null,null,null,null,null,null,{"$f":"IF(CRSDATA!BT2074=\"\",\"\",CRSDATA!BT2074)","v":""}]
[null,null,null,null,null,null,null,null,null,null,null,null,null,null,null,null,null,null,null,null,null,null,null,null,null,null,null,null,null,null,{"$f":"IF(CRSDATA!BT2075=\"\",\"\",CRSDATA!BT2075)","v":""}]
[null,null,null,null,null,null,null,null,null,null,null,null,null,null,null,null,null,null,null,null,null,null,null,null,null,null,null,null,null,null,{"$f":"IF(CRSDATA!BT2076=\"\",\"\",CRSDATA!BT2076)","v":""}]
[null,null,null,null,null,null,null,null,null,null,null,null,null,null,null,null,null,null,null,null,null,null,null,null,null,null,null,null,null,null,{"$f":"IF(CRSDATA!BT2077=\"\",\"\",CRSDATA!BT2077)","v":""}]
[null,null,null,null,null,null,null,null,null,null,null,null,null,null,null,null,null,null,null,null,null,null,null,null,null,null,null,null,null,null,{"$f":"IF(CRSDATA!BT2078=\"\",\"\",CRSDATA!BT2078)","v":""}]
[null,null,null,null,null,null,null,null,null,null,null,null,null,null,null,null,null,null,null,null,null,null,null,null,null,null,null,null,null,null,{"$f":"IF(CRSDATA!BT2079=\"\",\"\",CRSDATA!BT2079)","v":""}]
[null,null,null,null,null,null,null,null,null,null,null,null,null,null,null,null,null,null,null,null,null,null,null,null,null,null,null,null,null,null,{"$f":"IF(CRSDATA!BT2080=\"\",\"\",CRSDATA!BT2080)","v":""}]
[null,null,null,null,null,null,null,null,null,null,null,null,null,null,null,null,null,null,null,null,null,null,null,null,null,null,null,null,null,null,{"$f":"IF(CRSDATA!BT2081=\"\",\"\",CRSDATA!BT2081)","v":""}]
[null,null,null,null,null,null,null,null,null,null,null,null,null,null,null,null,null,null,null,null,null,null,null,null,null,null,null,null,null,null,{"$f":"IF(CRSDATA!BT2082=\"\",\"\",CRSDATA!BT2082)","v":""}]
[null,null,null,null,null,null,null,null,null,null,null,null,null,null,null,null,null,null,null,null,null,null,null,null,null,null,null,null,null,null,{"$f":"IF(CRSDATA!BT2083=\"\",\"\",CRSDATA!BT2083)","v":""}]
[null,null,null,null,null,null,null,null,null,null,null,null,null,null,null,null,null,null,null,null,null,null,null,null,null,null,null,null,null,null,{"$f":"IF(CRSDATA!BT2084=\"\",\"\",CRSDATA!BT2084)","v":""}]
[null,null,null,null,null,null,null,null,null,null,null,null,null,null,null,null,null,null,null,null,null,null,null,null,null,null,null,null,null,null,{"$f":"IF(CRSDATA!BT2085=\"\",\"\",CRSDATA!BT2085)","v":""}]
[null,null,null,null,null,null,null,null,null,null,null,null,null,null,null,null,null,null,null,null,null,null,null,null,null,null,null,null,null,null,{"$f":"IF(CRSDATA!BT2086=\"\",\"\",CRSDATA!BT2086)","v":""}]
[null,null,null,null,null,null,null,null,null,null,null,null,null,null,null,null,null,null,null,null,null,null,null,null,null,null,null,null,null,null,{"$f":"IF(CRSDATA!BT2087=\"\",\"\",CRSDATA!BT2087)","v":""}]
[null,null,null,null,null,null,null,null,null,null,null,null,null,null,null,null,null,null,null,null,null,null,null,null,null,null,null,null,null,null,{"$f":"IF(CRSDATA!BT2088=\"\",\"\",CRSDATA!BT2088)","v":""}]
[null,null,null,null,null,null,null,null,null,null,null,null,null,null,null,null,null,null,null,null,null,null,null,null,null,null,null,null,null,null,{"$f":"IF(CRSDATA!BT2089=\"\",\"\",CRSDATA!BT2089)","v":""}]
[null,null,null,null,null,null,null,null,null,null,null,null,null,null,null,null,null,null,null,null,null,null,null,null,null,null,null,null,null,null,{"$f":"IF(CRSDATA!BT2090=\"\",\"\",CRSDATA!BT2090)","v":""}]
[null,null,null,null,null,null,null,null,null,null,null,null,null,null,null,null,null,null,null,null,null,null,null,null,null,null,null,null,null,null,{"$f":"IF(CRSDATA!BT2091=\"\",\"\",CRSDATA!BT2091)","v":""}]
[null,null,null,null,null,null,null,null,null,null,null,null,null,null,null,null,null,null,null,null,null,null,null,null,null,null,null,null,null,null,{"$f":"IF(CRSDATA!BT2092=\"\",\"\",CRSDATA!BT2092)","v":""}]
[null,null,null,null,null,null,null,null,null,null,null,null,null,null,null,null,null,null,null,null,null,null,null,null,null,null,null,null,null,null,{"$f":"IF(CRSDATA!BT2093=\"\",\"\",CRSDATA!BT2093)","v":""}]
[null,null,null,null,null,null,null,null,null,null,null,null,null,null,null,null,null,null,null,null,null,null,null,null,null,null,null,null,null,null,{"$f":"IF(CRSDATA!BT2094=\"\",\"\",CRSDATA!BT2094)","v":""}]
[null,null,null,null,null,null,null,null,null,null,null,null,null,null,null,null,null,null,null,null,null,null,null,null,null,null,null,null,null,null,{"$f":"IF(CRSDATA!BT2095=\"\",\"\",CRSDATA!BT2095)","v":""}]
[null,null,null,null,null,null,null,null,null,null,null,null,null,null,null,null,null,null,null,null,null,null,null,null,null,null,null,null,null,null,{"$f":"IF(CRSDATA!BT2096=\"\",\"\",CRSDATA!BT2096)","v":""}]
[null,null,null,null,null,null,null,null,null,null,null,null,null,null,null,null,null,null,null,null,null,null,null,null,null,null,null,null,null,null,{"$f":"IF(CRSDATA!BT2097=\"\",\"\",CRSDATA!BT2097)","v":""}]
[null,null,null,null,null,null,null,null,null,null,null,null,null,null,null,null,null,null,null,null,null,null,null,null,null,null,null,null,null,null,{"$f":"IF(CRSDATA!BT2098=\"\",\"\",CRSDATA!BT2098)","v":""}]
[null,null,null,null,null,null,null,null,null,null,null,null,null,null,null,null,null,null,null,null,null,null,null,null,null,null,null,null,null,null,{"$f":"IF(CRSDATA!BT2099=\"\",\"\",CRSDATA!BT2099)","v":""}]
[null,null,null,null,null,null,null,null,null,null,null,null,null,null,null,null,null,null,null,null,null,null,null,null,null,null,null,null,null,null,{"$f":"IF(CRSDATA!BT2100=\"\",\"\",CRSDATA!BT2100)","v":""}]
[null,null,null,null,null,null,null,null,null,null,null,null,null,null,null,null,null,null,null,null,null,null,null,null,null,null,null,null,null,null,{"$f":"IF(CRSDATA!BT2101=\"\",\"\",CRSDATA!BT2101)","v":""}]
[null,null,null,null,null,null,null,null,null,null,null,null,null,null,null,null,null,null,null,null,null,null,null,null,null,null,null,null,null,null,{"$f":"IF(CRSDATA!BT2102=\"\",\"\",CRSDATA!BT2102)","v":""}]
[null,null,null,null,null,null,null,null,null,null,null,null,null,null,null,null,null,null,null,null,null,null,null,null,null,null,null,null,null,null,{"$f":"IF(CRSDATA!BT2103=\"\",\"\",CRSDATA!BT2103)","v":""}]
[null,null,null,null,null,null,null,null,null,null,null,null,null,null,null,null,null,null,null,null,null,null,null,null,null,null,null,null,null,null,{"$f":"IF(CRSDATA!BT2104=\"\",\"\",CRSDATA!BT2104)","v":""}]
[null,null,null,null,null,null,null,null,null,null,null,null,null,null,null,null,null,null,null,null,null,null,null,null,null,null,null,null,null,null,{"$f":"IF(CRSDATA!BT2105=\"\",\"\",CRSDATA!BT2105)","v":""}]
[null,null,null,null,null,null,null,null,null,null,null,null,null,null,null,null,null,null,null,null,null,null,null,null,null,null,null,null,null,null,{"$f":"IF(CRSDATA!BT2106=\"\",\"\",CRSDATA!BT2106)","v":""}]
[null,null,null,null,null,null,null,null,null,null,null,null,null,null,null,null,null,null,null,null,null,null,null,null,null,null,null,null,null,null,{"$f":"IF(CRSDATA!BT2107=\"\",\"\",CRSDATA!BT2107)","v":""}]
[null,null,null,null,null,null,null,null,null,null,null,null,null,null,null,null,null,null,null,null,null,null,null,null,null,null,null,null,null,null,{"$f":"IF(CRSDATA!BT2108=\"\",\"\",CRSDATA!BT2108)","v":""}]
[null,null,null,null,null,null,null,null,null,null,null,null,null,null,null,null,null,null,null,null,null,null,null,null,null,null,null,null,null,null,{"$f":"IF(CRSDATA!BT2109=\"\",\"\",CRSDATA!BT2109)","v":""}]
[null,null,null,null,null,null,null,null,null,null,null,null,null,null,null,null,null,null,null,null,null,null,null,null,null,null,null,null,null,null,{"$f":"IF(CRSDATA!BT2110=\"\",\"\",CRSDATA!BT2110)","v":""}]
[null,null,null,null,null,null,null,null,null,null,null,null,null,null,null,null,null,null,null,null,null,null,null,null,null,null,null,null,null,null,{"$f":"IF(CRSDATA!BT2111=\"\",\"\",CRSDATA!BT2111)","v":""}]
[null,null,null,null,null,null,null,null,null,null,null,null,null,null,null,null,null,null,null,null,null,null,null,null,null,null,null,null,null,null,{"$f":"IF(CRSDATA!BT2112=\"\",\"\",CRSDATA!BT2112)","v":""}]
[null,null,null,null,null,null,null,null,null,null,null,null,null,null,null,null,null,null,null,null,null,null,null,null,null,null,null,null,null,null,{"$f":"IF(CRSDATA!BT2113=\"\",\"\",CRSDATA!BT2113)","v":""}]
[null,null,null,null,null,null,null,null,null,null,null,null,null,null,null,null,null,null,null,null,null,null,null,null,null,null,null,null,null,null,{"$f":"IF(CRSDATA!BT2114=\"\",\"\",CRSDATA!BT2114)","v":""}]
[null,null,null,null,null,null,null,null,null,null,null,null,null,null,null,null,null,null,null,null,null,null,null,null,null,null,null,null,null,null,{"$f":"IF(CRSDATA!BT2115=\"\",\"\",CRSDATA!BT2115)","v":""}]
[null,null,null,null,null,null,null,null,null,null,null,null,null,null,null,null,null,null,null,null,null,null,null,null,null,null,null,null,null,null,{"$f":"IF(CRSDATA!BT2116=\"\",\"\",CRSDATA!BT2116)","v":""}]
[null,null,null,null,null,null,null,null,null,null,null,null,null,null,null,null,null,null,null,null,null,null,null,null,null,null,null,null,null,null,{"$f":"IF(CRSDATA!BT2117=\"\",\"\",CRSDATA!BT2117)","v":""}]
[null,null,null,null,null,null,null,null,null,null,null,null,null,null,null,null,null,null,null,null,null,null,null,null,null,null,null,null,null,null,{"$f":"IF(CRSDATA!BT2118=\"\",\"\",CRSDATA!BT2118)","v":""}]
[null,null,null,null,null,null,null,null,null,null,null,null,null,null,null,null,null,null,null,null,null,null,null,null,null,null,null,null,null,null,{"$f":"IF(CRSDATA!BT2119=\"\",\"\",CRSDATA!BT2119)","v":""}]
[null,null,null,null,null,null,null,null,null,null,null,null,null,null,null,null,null,null,null,null,null,null,null,null,null,null,null,null,null,null,{"$f":"IF(CRSDATA!BT2120=\"\",\"\",CRSDATA!BT2120)","v":""}]
[null,null,null,null,null,null,null,null,null,null,null,null,null,null,null,null,null,null,null,null,null,null,null,null,null,null,null,null,null,null,{"$f":"IF(CRSDATA!BT2121=\"\",\"\",CRSDATA!BT2121)","v":""}]
[null,null,null,null,null,null,null,null,null,null,null,null,null,null,null,null,null,null,null,null,null,null,null,null,null,null,null,null,null,null,{"$f":"IF(CRSDATA!BT2122=\"\",\"\",CRSDATA!BT2122)","v":""}]
[null,null,null,null,null,null,null,null,null,null,null,null,null,null,null,null,null,null,null,null,null,null,null,null,null,null,null,null,null,null,{"$f":"IF(CRSDATA!BT2123=\"\",\"\",CRSDATA!BT2123)","v":""}]
[null,null,null,null,null,null,null,null,null,null,null,null,null,null,null,null,null,null,null,null,null,null,null,null,null,null,null,null,null,null,{"$f":"IF(CRSDATA!BT2124=\"\",\"\",CRSDATA!BT2124)","v":""}]
[null,null,null,null,null,null,null,null,null,null,null,null,null,null,null,null,null,null,null,null,null,null,null,null,null,null,null,null,null,null,{"$f":"IF(CRSDATA!BT2125=\"\",\"\",CRSDATA!BT2125)","v":""}]
[null,null,null,null,null,null,null,null,null,null,null,null,null,null,null,null,null,null,null,null,null,null,null,null,null,null,null,null,null,null,{"$f":"IF(CRSDATA!BT2126=\"\",\"\",CRSDATA!BT2126)","v":""}]
[null,null,null,null,null,null,null,null,null,null,null,null,null,null,null,null,null,null,null,null,null,null,null,null,null,null,null,null,null,null,{"$f":"IF(CRSDATA!BT2127=\"\",\"\",CRSDATA!BT2127)","v":""}]
[null,null,null,null,null,null,null,null,null,null,null,null,null,null,null,null,null,null,null,null,null,null,null,null,null,null,null,null,null,null,{"$f":"IF(CRSDATA!BT2128=\"\",\"\",CRSDATA!BT2128)","v":""}]
[null,null,null,null,null,null,null,null,null,null,null,null,null,null,null,null,null,null,null,null,null,null,null,null,null,null,null,null,null,null,{"$f":"IF(CRSDATA!BT2129=\"\",\"\",CRSDATA!BT2129)","v":""}]
[null,null,null,null,null,null,null,null,null,null,null,null,null,null,null,null,null,null,null,null,null,null,null,null,null,null,null,null,null,null,{"$f":"IF(CRSDATA!BT2130=\"\",\"\",CRSDATA!BT2130)","v":""}]
[null,null,null,null,null,null,null,null,null,null,null,null,null,null,null,null,null,null,null,null,null,null,null,null,null,null,null,null,null,null,{"$f":"IF(CRSDATA!BT2131=\"\",\"\",CRSDATA!BT2131)","v":""}]
[null,null,null,null,null,null,null,null,null,null,null,null,null,null,null,null,null,null,null,null,null,null,null,null,null,null,null,null,null,null,{"$f":"IF(CRSDATA!BT2132=\"\",\"\",CRSDATA!BT2132)","v":""}]
[null,null,null,null,null,null,null,null,null,null,null,null,null,null,null,null,null,null,null,null,null,null,null,null,null,null,null,null,null,null,{"$f":"IF(CRSDATA!BT2133=\"\",\"\",CRSDATA!BT2133)","v":""}]
[null,null,null,null,null,null,null,null,null,null,null,null,null,null,null,null,null,null,null,null,null,null,null,null,null,null,null,null,null,null,{"$f":"IF(CRSDATA!BT2134=\"\",\"\",CRSDATA!BT2134)","v":""}]
[null,null,null,null,null,null,null,null,null,null,null,null,null,null,null,null,null,null,null,null,null,null,null,null,null,null,null,null,null,null,{"$f":"IF(CRSDATA!BT2135=\"\",\"\",CRSDATA!BT2135)","v":""}]
[null,null,null,null,null,null,null,null,null,null,null,null,null,null,null,null,null,null,null,null,null,null,null,null,null,null,null,null,null,null,{"$f":"IF(CRSDATA!BT2136=\"\",\"\",CRSDATA!BT2136)","v":""}]
[null,null,null,null,null,null,null,null,null,null,null,null,null,null,null,null,null,null,null,null,null,null,null,null,null,null,null,null,null,null,{"$f":"IF(CRSDATA!BT2137=\"\",\"\",CRSDATA!BT2137)","v":""}]
[null,null,null,null,null,null,null,null,null,null,null,null,null,null,null,null,null,null,null,null,null,null,null,null,null,null,null,null,null,null,{"$f":"IF(CRSDATA!BT2138=\"\",\"\",CRSDATA!BT2138)","v":""}]
[null,null,null,null,null,null,null,null,null,null,null,null,null,null,null,null,null,null,null,null,null,null,null,null,null,null,null,null,null,null,{"$f":"IF(CRSDATA!BT2139=\"\",\"\",CRSDATA!BT2139)","v":""}]
[null,null,null,null,null,null,null,null,null,null,null,null,null,null,null,null,null,null,null,null,null,null,null,null,null,null,null,null,null,null,{"$f":"IF(CRSDATA!BT2140=\"\",\"\",CRSDATA!BT2140)","v":""}]
[null,null,null,null,null,null,null,null,null,null,null,null,null,null,null,null,null,null,null,null,null,null,null,null,null,null,null,null,null,null,{"$f":"IF(CRSDATA!BT2141=\"\",\"\",CRSDATA!BT2141)","v":""}]
[null,null,null,null,null,null,null,null,null,null,null,null,null,null,null,null,null,null,null,null,null,null,null,null,null,null,null,null,null,null,{"$f":"IF(CRSDATA!BT2142=\"\",\"\",CRSDATA!BT2142)","v":""}]
[null,null,null,null,null,null,null,null,null,null,null,null,null,null,null,null,null,null,null,null,null,null,null,null,null,null,null,null,null,null,{"$f":"IF(CRSDATA!BT2143=\"\",\"\",CRSDATA!BT2143)","v":""}]
[null,null,null,null,null,null,null,null,null,null,null,null,null,null,null,null,null,null,null,null,null,null,null,null,null,null,null,null,null,null,{"$f":"IF(CRSDATA!BT2144=\"\",\"\",CRSDATA!BT2144)","v":""}]
[null,null,null,null,null,null,null,null,null,null,null,null,null,null,null,null,null,null,null,null,null,null,null,null,null,null,null,null,null,null,{"$f":"IF(CRSDATA!BT2145=\"\",\"\",CRSDATA!BT2145)","v":""}]
[null,null,null,null,null,null,null,null,null,null,null,null,null,null,null,null,null,null,null,null,null,null,null,null,null,null,null,null,null,null,{"$f":"IF(CRSDATA!BT2146=\"\",\"\",CRSDATA!BT2146)","v":""}]
[null,null,null,null,null,null,null,null,null,null,null,null,null,null,null,null,null,null,null,null,null,null,null,null,null,null,null,null,null,null,{"$f":"IF(CRSDATA!BT2147=\"\",\"\",CRSDATA!BT2147)","v":""}]
[null,null,null,null,null,null,null,null,null,null,null,null,null,null,null,null,null,null,null,null,null,null,null,null,null,null,null,null,null,null,{"$f":"IF(CRSDATA!BT2148=\"\",\"\",CRSDATA!BT2148)","v":""}]
[null,null,null,null,null,null,null,null,null,null,null,null,null,null,null,null,null,null,null,null,null,null,null,null,null,null,null,null,null,null,{"$f":"IF(CRSDATA!BT2149=\"\",\"\",CRSDATA!BT2149)","v":""}]
[null,null,null,null,null,null,null,null,null,null,null,null,null,null,null,null,null,null,null,null,null,null,null,null,null,null,null,null,null,null,{"$f":"IF(CRSDATA!BT2150=\"\",\"\",CRSDATA!BT2150)","v":""}]
[null,null,null,null,null,null,null,null,null,null,null,null,null,null,null,null,null,null,null,null,null,null,null,null,null,null,null,null,null,null,{"$f":"IF(CRSDATA!BT2151=\"\",\"\",CRSDATA!BT2151)","v":""}]
[null,null,null,null,null,null,null,null,null,null,null,null,null,null,null,null,null,null,null,null,null,null,null,null,null,null,null,null,null,null,{"$f":"IF(CRSDATA!BT2152=\"\",\"\",CRSDATA!BT2152)","v":""}]
[null,null,null,null,null,null,null,null,null,null,null,null,null,null,null,null,null,null,null,null,null,null,null,null,null,null,null,null,null,null,{"$f":"IF(CRSDATA!BT2153=\"\",\"\",CRSDATA!BT2153)","v":""}]
[null,null,null,null,null,null,null,null,null,null,null,null,null,null,null,null,null,null,null,null,null,null,null,null,null,null,null,null,null,null,{"$f":"IF(CRSDATA!BT2154=\"\",\"\",CRSDATA!BT2154)","v":""}]
[null,null,null,null,null,null,null,null,null,null,null,null,null,null,null,null,null,null,null,null,null,null,null,null,null,null,null,null,null,null,{"$f":"IF(CRSDATA!BT2155=\"\",\"\",CRSDATA!BT2155)","v":""}]
[null,null,null,null,null,null,null,null,null,null,null,null,null,null,null,null,null,null,null,null,null,null,null,null,null,null,null,null,null,null,{"$f":"IF(CRSDATA!BT2156=\"\",\"\",CRSDATA!BT2156)","v":""}]
[null,null,null,null,null,null,null,null,null,null,null,null,null,null,null,null,null,null,null,null,null,null,null,null,null,null,null,null,null,null,{"$f":"IF(CRSDATA!BT2157=\"\",\"\",CRSDATA!BT2157)","v":""}]
[null,null,null,null,null,null,null,null,null,null,null,null,null,null,null,null,null,null,null,null,null,null,null,null,null,null,null,null,null,null,{"$f":"IF(CRSDATA!BT2158=\"\",\"\",CRSDATA!BT2158)","v":""}]
[null,null,null,null,null,null,null,null,null,null,null,null,null,null,null,null,null,null,null,null,null,null,null,null,null,null,null,null,null,null,{"$f":"IF(CRSDATA!BT2159=\"\",\"\",CRSDATA!BT2159)","v":""}]
[null,null,null,null,null,null,null,null,null,null,null,null,null,null,null,null,null,null,null,null,null,null,null,null,null,null,null,null,null,null,{"$f":"IF(CRSDATA!BT2160=\"\",\"\",CRSDATA!BT2160)","v":""}]
[null,null,null,null,null,null,null,null,null,null,null,null,null,null,null,null,null,null,null,null,null,null,null,null,null,null,null,null,null,null,{"$f":"IF(CRSDATA!BT2161=\"\",\"\",CRSDATA!BT2161)","v":""}]
[null,null,null,null,null,null,null,null,null,null,null,null,null,null,null,null,null,null,null,null,null,null,null,null,null,null,null,null,null,null,{"$f":"IF(CRSDATA!BT2162=\"\",\"\",CRSDATA!BT2162)","v":""}]
[null,null,null,null,null,null,null,null,null,null,null,null,null,null,null,null,null,null,null,null,null,null,null,null,null,null,null,null,null,null,{"$f":"IF(CRSDATA!BT2163=\"\",\"\",CRSDATA!BT2163)","v":""}]
[null,null,null,null,null,null,null,null,null,null,null,null,null,null,null,null,null,null,null,null,null,null,null,null,null,null,null,null,null,null,{"$f":"IF(CRSDATA!BT2164=\"\",\"\",CRSDATA!BT2164)","v":""}]
[null,null,null,null,null,null,null,null,null,null,null,null,null,null,null,null,null,null,null,null,null,null,null,null,null,null,null,null,null,null,{"$f":"IF(CRSDATA!BT2165=\"\",\"\",CRSDATA!BT2165)","v":""}]
[null,null,null,null,null,null,null,null,null,null,null,null,null,null,null,null,null,null,null,null,null,null,null,null,null,null,null,null,null,null,{"$f":"IF(CRSDATA!BT2166=\"\",\"\",CRSDATA!BT2166)","v":""}]
[null,null,null,null,null,null,null,null,null,null,null,null,null,null,null,null,null,null,null,null,null,null,null,null,null,null,null,null,null,null,{"$f":"IF(CRSDATA!BT2167=\"\",\"\",CRSDATA!BT2167)","v":""}]
[null,null,null,null,null,null,null,null,null,null,null,null,null,null,null,null,null,null,null,null,null,null,null,null,null,null,null,null,null,null,{"$f":"IF(CRSDATA!BT2168=\"\",\"\",CRSDATA!BT2168)","v":""}]
[null,null,null,null,null,null,null,null,null,null,null,null,null,null,null,null,null,null,null,null,null,null,null,null,null,null,null,null,null,null,{"$f":"IF(CRSDATA!BT2169=\"\",\"\",CRSDATA!BT2169)","v":""}]
[null,null,null,null,null,null,null,null,null,null,null,null,null,null,null,null,null,null,null,null,null,null,null,null,null,null,null,null,null,null,{"$f":"IF(CRSDATA!BT2170=\"\",\"\",CRSDATA!BT2170)","v":""}]
[null,null,null,null,null,null,null,null,null,null,null,null,null,null,null,null,null,null,null,null,null,null,null,null,null,null,null,null,null,null,{"$f":"IF(CRSDATA!BT2171=\"\",\"\",CRSDATA!BT2171)","v":""}]
[null,null,null,null,null,null,null,null,null,null,null,null,null,null,null,null,null,null,null,null,null,null,null,null,null,null,null,null,null,null,{"$f":"IF(CRSDATA!BT2172=\"\",\"\",CRSDATA!BT2172)","v":""}]
[null,null,null,null,null,null,null,null,null,null,null,null,null,null,null,null,null,null,null,null,null,null,null,null,null,null,null,null,null,null,{"$f":"IF(CRSDATA!BT2173=\"\",\"\",CRSDATA!BT2173)","v":""}]
[null,null,null,null,null,null,null,null,null,null,null,null,null,null,null,null,null,null,null,null,null,null,null,null,null,null,null,null,null,null,{"$f":"IF(CRSDATA!BT2174=\"\",\"\",CRSDATA!BT2174)","v":""}]
[null,null,null,null,null,null,null,null,null,null,null,null,null,null,null,null,null,null,null,null,null,null,null,null,null,null,null,null,null,null,{"$f":"IF(CRSDATA!BT2175=\"\",\"\",CRSDATA!BT2175)","v":""}]
[null,null,null,null,null,null,null,null,null,null,null,null,null,null,null,null,null,null,null,null,null,null,null,null,null,null,null,null,null,null,{"$f":"IF(CRSDATA!BT2176=\"\",\"\",CRSDATA!BT2176)","v":""}]
[null,null,null,null,null,null,null,null,null,null,null,null,null,null,null,null,null,null,null,null,null,null,null,null,null,null,null,null,null,null,{"$f":"IF(CRSDATA!BT2177=\"\",\"\",CRSDATA!BT2177)","v":""}]
[null,null,null,null,null,null,null,null,null,null,null,null,null,null,null,null,null,null,null,null,null,null,null,null,null,null,null,null,null,null,{"$f":"IF(CRSDATA!BT2178=\"\",\"\",CRSDATA!BT2178)","v":""}]
[null,null,null,null,null,null,null,null,null,null,null,null,null,null,null,null,null,null,null,null,null,null,null,null,null,null,null,null,null,null,{"$f":"IF(CRSDATA!BT2179=\"\",\"\",CRSDATA!BT2179)","v":""}]
[null,null,null,null,null,null,null,null,null,null,null,null,null,null,null,null,null,null,null,null,null,null,null,null,null,null,null,null,null,null,{"$f":"IF(CRSDATA!BT2180=\"\",\"\",CRSDATA!BT2180)","v":""}]
[null,null,null,null,null,null,null,null,null,null,null,null,null,null,null,null,null,null,null,null,null,null,null,null,null,null,null,null,null,null,{"$f":"IF(CRSDATA!BT2181=\"\",\"\",CRSDATA!BT2181)","v":""}]
[null,null,null,null,null,null,null,null,null,null,null,null,null,null,null,null,null,null,null,null,null,null,null,null,null,null,null,null,null,null,{"$f":"IF(CRSDATA!BT2182=\"\",\"\",CRSDATA!BT2182)","v":""}]
[null,null,null,null,null,null,null,null,null,null,null,null,null,null,null,null,null,null,null,null,null,null,null,null,null,null,null,null,null,null,{"$f":"IF(CRSDATA!BT2183=\"\",\"\",CRSDATA!BT2183)","v":""}]
[null,null,null,null,null,null,null,null,null,null,null,null,null,null,null,null,null,null,null,null,null,null,null,null,null,null,null,null,null,null,{"$f":"IF(CRSDATA!BT2184=\"\",\"\",CRSDATA!BT2184)","v":""}]
[null,null,null,null,null,null,null,null,null,null,null,null,null,null,null,null,null,null,null,null,null,null,null,null,null,null,null,null,null,null,{"$f":"IF(CRSDATA!BT2185=\"\",\"\",CRSDATA!BT2185)","v":""}]
[null,null,null,null,null,null,null,null,null,null,null,null,null,null,null,null,null,null,null,null,null,null,null,null,null,null,null,null,null,null,{"$f":"IF(CRSDATA!BT2186=\"\",\"\",CRSDATA!BT2186)","v":""}]
[null,null,null,null,null,null,null,null,null,null,null,null,null,null,null,null,null,null,null,null,null,null,null,null,null,null,null,null,null,null,{"$f":"IF(CRSDATA!BT2187=\"\",\"\",CRSDATA!BT2187)","v":""}]
[null,null,null,null,null,null,null,null,null,null,null,null,null,null,null,null,null,null,null,null,null,null,null,null,null,null,null,null,null,null,{"$f":"IF(CRSDATA!BT2188=\"\",\"\",CRSDATA!BT2188)","v":""}]
[null,null,null,null,null,null,null,null,null,null,null,null,null,null,null,null,null,null,null,null,null,null,null,null,null,null,null,null,null,null,{"$f":"IF(CRSDATA!BT2189=\"\",\"\",CRSDATA!BT2189)","v":""}]
[null,null,null,null,null,null,null,null,null,null,null,null,null,null,null,null,null,null,null,null,null,null,null,null,null,null,null,null,null,null,{"$f":"IF(CRSDATA!BT2190=\"\",\"\",CRSDATA!BT2190)","v":""}]
[null,null,null,null,null,null,null,null,null,null,null,null,null,null,null,null,null,null,null,null,null,null,null,null,null,null,null,null,null,null,{"$f":"IF(CRSDATA!BT2191=\"\",\"\",CRSDATA!BT2191)","v":""}]
[null,null,null,null,null,null,null,null,null,null,null,null,null,null,null,null,null,null,null,null,null,null,null,null,null,null,null,null,null,null,{"$f":"IF(CRSDATA!BT2192=\"\",\"\",CRSDATA!BT2192)","v":""}]
[null,null,null,null,null,null,null,null,null,null,null,null,null,null,null,null,null,null,null,null,null,null,null,null,null,null,null,null,null,null,{"$f":"IF(CRSDATA!BT2193=\"\",\"\",CRSDATA!BT2193)","v":""}]
[null,null,null,null,null,null,null,null,null,null,null,null,null,null,null,null,null,null,null,null,null,null,null,null,null,null,null,null,null,null,{"$f":"IF(CRSDATA!BT2194=\"\",\"\",CRSDATA!BT2194)","v":""}]
[null,null,null,null,null,null,null,null,null,null,null,null,null,null,null,null,null,null,null,null,null,null,null,null,null,null,null,null,null,null,{"$f":"IF(CRSDATA!BT2195=\"\",\"\",CRSDATA!BT2195)","v":""}]
[null,null,null,null,null,null,null,null,null,null,null,null,null,null,null,null,null,null,null,null,null,null,null,null,null,null,null,null,null,null,{"$f":"IF(CRSDATA!BT2196=\"\",\"\",CRSDATA!BT2196)","v":""}]
[null,null,null,null,null,null,null,null,null,null,null,null,null,null,null,null,null,null,null,null,null,null,null,null,null,null,null,null,null,null,{"$f":"IF(CRSDATA!BT2197=\"\",\"\",CRSDATA!BT2197)","v":""}]
[null,null,null,null,null,null,null,null,null,null,null,null,null,null,null,null,null,null,null,null,null,null,null,null,null,null,null,null,null,null,{"$f":"IF(CRSDATA!BT2198=\"\",\"\",CRSDATA!BT2198)","v":""}]
[null,null,null,null,null,null,null,null,null,null,null,null,null,null,null,null,null,null,null,null,null,null,null,null,null,null,null,null,null,null,{"$f":"IF(CRSDATA!BT2199=\"\",\"\",CRSDATA!BT2199)","v":""}]
[null,null,null,null,null,null,null,null,null,null,null,null,null,null,null,null,null,null,null,null,null,null,null,null,null,null,null,null,null,null,{"$f":"IF(CRSDATA!BT2200=\"\",\"\",CRSDATA!BT2200)","v":""}]
[null,null,null,null,null,null,null,null,null,null,null,null,null,null,null,null,null,null,null,null,null,null,null,null,null,null,null,null,null,null,{"$f":"IF(CRSDATA!BT2201=\"\",\"\",CRSDATA!BT2201)","v":""}]
[null,null,null,null,null,null,null,null,null,null,null,null,null,null,null,null,null,null,null,null,null,null,null,null,null,null,null,null,null,null,{"$f":"IF(CRSDATA!BT2202=\"\",\"\",CRSDATA!BT2202)","v":""}]
[null,null,null,null,null,null,null,null,null,null,null,null,null,null,null,null,null,null,null,null,null,null,null,null,null,null,null,null,null,null,{"$f":"IF(CRSDATA!BT2203=\"\",\"\",CRSDATA!BT2203)","v":""}]
[null,null,null,null,null,null,null,null,null,null,null,null,null,null,null,null,null,null,null,null,null,null,null,null,null,null,null,null,null,null,{"$f":"IF(CRSDATA!BT2204=\"\",\"\",CRSDATA!BT2204)","v":""}]
[null,null,null,null,null,null,null,null,null,null,null,null,null,null,null,null,null,null,null,null,null,null,null,null,null,null,null,null,null,null,{"$f":"IF(CRSDATA!BT2205=\"\",\"\",CRSDATA!BT2205)","v":""}]
[null,null,null,null,null,null,null,null,null,null,null,null,null,null,null,null,null,null,null,null,null,null,null,null,null,null,null,null,null,null,{"$f":"IF(CRSDATA!BT2206=\"\",\"\",CRSDATA!BT2206)","v":""}]
[null,null,null,null,null,null,null,null,null,null,null,null,null,null,null,null,null,null,null,null,null,null,null,null,null,null,null,null,null,null,{"$f":"IF(CRSDATA!BT2207=\"\",\"\",CRSDATA!BT2207)","v":""}]
[null,null,null,null,null,null,null,null,null,null,null,null,null,null,null,null,null,null,null,null,null,null,null,null,null,null,null,null,null,null,{"$f":"IF(CRSDATA!BT2208=\"\",\"\",CRSDATA!BT2208)","v":""}]
[null,null,null,null,null,null,null,null,null,null,null,null,null,null,null,null,null,null,null,null,null,null,null,null,null,null,null,null,null,null,{"$f":"IF(CRSDATA!BT2209=\"\",\"\",CRSDATA!BT2209)","v":""}]
[null,null,null,null,null,null,null,null,null,null,null,null,null,null,null,null,null,null,null,null,null,null,null,null,null,null,null,null,null,null,{"$f":"IF(CRSDATA!BT2210=\"\",\"\",CRSDATA!BT2210)","v":""}]
[null,null,null,null,null,null,null,null,null,null,null,null,null,null,null,null,null,null,null,null,null,null,null,null,null,null,null,null,null,null,{"$f":"IF(CRSDATA!BT2211=\"\",\"\",CRSDATA!BT2211)","v":""}]
[null,null,null,null,null,null,null,null,null,null,null,null,null,null,null,null,null,null,null,null,null,null,null,null,null,null,null,null,null,null,{"$f":"IF(CRSDATA!BT2212=\"\",\"\",CRSDATA!BT2212)","v":""}]
[null,null,null,null,null,null,null,null,null,null,null,null,null,null,null,null,null,null,null,null,null,null,null,null,null,null,null,null,null,null,{"$f":"IF(CRSDATA!BT2213=\"\",\"\",CRSDATA!BT2213)","v":""}]
[null,null,null,null,null,null,null,null,null,null,null,null,null,null,null,null,null,null,null,null,null,null,null,null,null,null,null,null,null,null,{"$f":"IF(CRSDATA!BT2214=\"\",\"\",CRSDATA!BT2214)","v":""}]
[null,null,null,null,null,null,null,null,null,null,null,null,null,null,null,null,null,null,null,null,null,null,null,null,null,null,null,null,null,null,{"$f":"IF(CRSDATA!BT2215=\"\",\"\",CRSDATA!BT2215)","v":""}]
[null,null,null,null,null,null,null,null,null,null,null,null,null,null,null,null,null,null,null,null,null,null,null,null,null,null,null,null,null,null,{"$f":"IF(CRSDATA!BT2216=\"\",\"\",CRSDATA!BT2216)","v":""}]
[null,null,null,null,null,null,null,null,null,null,null,null,null,null,null,null,null,null,null,null,null,null,null,null,null,null,null,null,null,null,{"$f":"IF(CRSDATA!BT2217=\"\",\"\",CRSDATA!BT2217)","v":""}]
[null,null,null,null,null,null,null,null,null,null,null,null,null,null,null,null,null,null,null,null,null,null,null,null,null,null,null,null,null,null,{"$f":"IF(CRSDATA!BT2218=\"\",\"\",CRSDATA!BT2218)","v":""}]
[null,null,null,null,null,null,null,null,null,null,null,null,null,null,null,null,null,null,null,null,null,null,null,null,null,null,null,null,null,null,{"$f":"IF(CRSDATA!BT2219=\"\",\"\",CRSDATA!BT2219)","v":""}]
[null,null,null,null,null,null,null,null,null,null,null,null,null,null,null,null,null,null,null,null,null,null,null,null,null,null,null,null,null,null,{"$f":"IF(CRSDATA!BT2220=\"\",\"\",CRSDATA!BT2220)","v":""}]
[null,null,null,null,null,null,null,null,null,null,null,null,null,null,null,null,null,null,null,null,null,null,null,null,null,null,null,null,null,null,{"$f":"IF(CRSDATA!BT2221=\"\",\"\",CRSDATA!BT2221)","v":""}]
[null,null,null,null,null,null,null,null,null,null,null,null,null,null,null,null,null,null,null,null,null,null,null,null,null,null,null,null,null,null,{"$f":"IF(CRSDATA!BT2222=\"\",\"\",CRSDATA!BT2222)","v":""}]
[null,null,null,null,null,null,null,null,null,null,null,null,null,null,null,null,null,null,null,null,null,null,null,null,null,null,null,null,null,null,{"$f":"IF(CRSDATA!BT2223=\"\",\"\",CRSDATA!BT2223)","v":""}]
[null,null,null,null,null,null,null,null,null,null,null,null,null,null,null,null,null,null,null,null,null,null,null,null,null,null,null,null,null,null,{"$f":"IF(CRSDATA!BT2224=\"\",\"\",CRSDATA!BT2224)","v":""}]
[null,null,null,null,null,null,null,null,null,null,null,null,null,null,null,null,null,null,null,null,null,null,null,null,null,null,null,null,null,null,{"$f":"IF(CRSDATA!BT2225=\"\",\"\",CRSDATA!BT2225)","v":""}]
[null,null,null,null,null,null,null,null,null,null,null,null,null,null,null,null,null,null,null,null,null,null,null,null,null,null,null,null,null,null,{"$f":"IF(CRSDATA!BT2226=\"\",\"\",CRSDATA!BT2226)","v":""}]
[null,null,null,null,null,null,null,null,null,null,null,null,null,null,null,null,null,null,null,null,null,null,null,null,null,null,null,null,null,null,{"$f":"IF(CRSDATA!BT2227=\"\",\"\",CRSDATA!BT2227)","v":""}]
[null,null,null,null,null,null,null,null,null,null,null,null,null,null,null,null,null,null,null,null,null,null,null,null,null,null,null,null,null,null,{"$f":"IF(CRSDATA!BT2228=\"\",\"\",CRSDATA!BT2228)","v":""}]
[null,null,null,null,null,null,null,null,null,null,null,null,null,null,null,null,null,null,null,null,null,null,null,null,null,null,null,null,null,null,{"$f":"IF(CRSDATA!BT2229=\"\",\"\",CRSDATA!BT2229)","v":""}]
[null,null,null,null,null,null,null,null,null,null,null,null,null,null,null,null,null,null,null,null,null,null,null,null,null,null,null,null,null,null,{"$f":"IF(CRSDATA!BT2230=\"\",\"\",CRSDATA!BT2230)","v":""}]
[null,null,null,null,null,null,null,null,null,null,null,null,null,null,null,null,null,null,null,null,null,null,null,null,null,null,null,null,null,null,{"$f":"IF(CRSDATA!BT2231=\"\",\"\",CRSDATA!BT2231)","v":""}]
[null,null,null,null,null,null,null,null,null,null,null,null,null,null,null,null,null,null,null,null,null,null,null,null,null,null,null,null,null,null,{"$f":"IF(CRSDATA!BT2232=\"\",\"\",CRSDATA!BT2232)","v":""}]
[null,null,null,null,null,null,null,null,null,null,null,null,null,null,null,null,null,null,null,null,null,null,null,null,null,null,null,null,null,null,{"$f":"IF(CRSDATA!BT2233=\"\",\"\",CRSDATA!BT2233)","v":""}]
[null,null,null,null,null,null,null,null,null,null,null,null,null,null,null,null,null,null,null,null,null,null,null,null,null,null,null,null,null,null,{"$f":"IF(CRSDATA!BT2234=\"\",\"\",CRSDATA!BT2234)","v":""}]
[null,null,null,null,null,null,null,null,null,null,null,null,null,null,null,null,null,null,null,null,null,null,null,null,null,null,null,null,null,null,{"$f":"IF(CRSDATA!BT2235=\"\",\"\",CRSDATA!BT2235)","v":""}]
[null,null,null,null,null,null,null,null,null,null,null,null,null,null,null,null,null,null,null,null,null,null,null,null,null,null,null,null,null,null,{"$f":"IF(CRSDATA!BT2236=\"\",\"\",CRSDATA!BT2236)","v":""}]
[null,null,null,null,null,null,null,null,null,null,null,null,null,null,null,null,null,null,null,null,null,null,null,null,null,null,null,null,null,null,{"$f":"IF(CRSDATA!BT2237=\"\",\"\",CRSDATA!BT2237)","v":""}]
[null,null,null,null,null,null,null,null,null,null,null,null,null,null,null,null,null,null,null,null,null,null,null,null,null,null,null,null,null,null,{"$f":"IF(CRSDATA!BT2238=\"\",\"\",CRSDATA!BT2238)","v":""}]
[null,null,null,null,null,null,null,null,null,null,null,null,null,null,null,null,null,null,null,null,null,null,null,null,null,null,null,null,null,null,{"$f":"IF(CRSDATA!BT2239=\"\",\"\",CRSDATA!BT2239)","v":""}]
[null,null,null,null,null,null,null,null,null,null,null,null,null,null,null,null,null,null,null,null,null,null,null,null,null,null,null,null,null,null,{"$f":"IF(CRSDATA!BT2240=\"\",\"\",CRSDATA!BT2240)","v":""}]
[null,null,null,null,null,null,null,null,null,null,null,null,null,null,null,null,null,null,null,null,null,null,null,null,null,null,null,null,null,null,{"$f":"IF(CRSDATA!BT2241=\"\",\"\",CRSDATA!BT2241)","v":""}]
[null,null,null,null,null,null,null,null,null,null,null,null,null,null,null,null,null,null,null,null,null,null,null,null,null,null,null,null,null,null,{"$f":"IF(CRSDATA!BT2242=\"\",\"\",CRSDATA!BT2242)","v":""}]
[null,null,null,null,null,null,null,null,null,null,null,null,null,null,null,null,null,null,null,null,null,null,null,null,null,null,null,null,null,null,{"$f":"IF(CRSDATA!BT2243=\"\",\"\",CRSDATA!BT2243)","v":""}]
[null,null,null,null,null,null,null,null,null,null,null,null,null,null,null,null,null,null,null,null,null,null,null,null,null,null,null,null,null,null,{"$f":"IF(CRSDATA!BT2244=\"\",\"\",CRSDATA!BT2244)","v":""}]
[null,null,null,null,null,null,null,null,null,null,null,null,null,null,null,null,null,null,null,null,null,null,null,null,null,null,null,null,null,null,{"$f":"IF(CRSDATA!BT2245=\"\",\"\",CRSDATA!BT2245)","v":""}]
[null,null,null,null,null,null,null,null,null,null,null,null,null,null,null,null,null,null,null,null,null,null,null,null,null,null,null,null,null,null,{"$f":"IF(CRSDATA!BT2246=\"\",\"\",CRSDATA!BT2246)","v":""}]
[null,null,null,null,null,null,null,null,null,null,null,null,null,null,null,null,null,null,null,null,null,null,null,null,null,null,null,null,null,null,{"$f":"IF(CRSDATA!BT2247=\"\",\"\",CRSDATA!BT2247)","v":""}]
[null,null,null,null,null,null,null,null,null,null,null,null,null,null,null,null,null,null,null,null,null,null,null,null,null,null,null,null,null,null,{"$f":"IF(CRSDATA!BT2248=\"\",\"\",CRSDATA!BT2248)","v":""}]
[null,null,null,null,null,null,null,null,null,null,null,null,null,null,null,null,null,null,null,null,null,null,null,null,null,null,null,null,null,null,{"$f":"IF(CRSDATA!BT2249=\"\",\"\",CRSDATA!BT2249)","v":""}]
[null,null,null,null,null,null,null,null,null,null,null,null,null,null,null,null,null,null,null,null,null,null,null,null,null,null,null,null,null,null,{"$f":"IF(CRSDATA!BT2250=\"\",\"\",CRSDATA!BT2250)","v":""}]
[null,null,null,null,null,null,null,null,null,null,null,null,null,null,null,null,null,null,null,null,null,null,null,null,null,null,null,null,null,null,{"$f":"IF(CRSDATA!BT2251=\"\",\"\",CRSDATA!BT2251)","v":""}]
[null,null,null,null,null,null,null,null,null,null,null,null,null,null,null,null,null,null,null,null,null,null,null,null,null,null,null,null,null,null,{"$f":"IF(CRSDATA!BT2252=\"\",\"\",CRSDATA!BT2252)","v":""}]
[null,null,null,null,null,null,null,null,null,null,null,null,null,null,null,null,null,null,null,null,null,null,null,null,null,null,null,null,null,null,{"$f":"IF(CRSDATA!BT2253=\"\",\"\",CRSDATA!BT2253)","v":""}]
[null,null,null,null,null,null,null,null,null,null,null,null,null,null,null,null,null,null,null,null,null,null,null,null,null,null,null,null,null,null,{"$f":"IF(CRSDATA!BT2254=\"\",\"\",CRSDATA!BT2254)","v":""}]
[null,null,null,null,null,null,null,null,null,null,null,null,null,null,null,null,null,null,null,null,null,null,null,null,null,null,null,null,null,null,{"$f":"IF(CRSDATA!BT2255=\"\",\"\",CRSDATA!BT2255)","v":""}]
[null,null,null,null,null,null,null,null,null,null,null,null,null,null,null,null,null,null,null,null,null,null,null,null,null,null,null,null,null,null,{"$f":"IF(CRSDATA!BT2256=\"\",\"\",CRSDATA!BT2256)","v":""}]
[null,null,null,null,null,null,null,null,null,null,null,null,null,null,null,null,null,null,null,null,null,null,null,null,null,null,null,null,null,null,{"$f":"IF(CRSDATA!BT2257=\"\",\"\",CRSDATA!BT2257)","v":""}]
[null,null,null,null,null,null,null,null,null,null,null,null,null,null,null,null,null,null,null,null,null,null,null,null,null,null,null,null,null,null,{"$f":"IF(CRSDATA!BT2258=\"\",\"\",CRSDATA!BT2258)","v":""}]
[null,null,null,null,null,null,null,null,null,null,null,null,null,null,null,null,null,null,null,null,null,null,null,null,null,null,null,null,null,null,{"$f":"IF(CRSDATA!BT2259=\"\",\"\",CRSDATA!BT2259)","v":""}]
[null,null,null,null,null,null,null,null,null,null,null,null,null,null,null,null,null,null,null,null,null,null,null,null,null,null,null,null,null,null,{"$f":"IF(CRSDATA!BT2260=\"\",\"\",CRSDATA!BT2260)","v":""}]
[null,null,null,null,null,null,null,null,null,null,null,null,null,null,null,null,null,null,null,null,null,null,null,null,null,null,null,null,null,null,{"$f":"IF(CRSDATA!BT2261=\"\",\"\",CRSDATA!BT2261)","v":""}]
[null,null,null,null,null,null,null,null,null,null,null,null,null,null,null,null,null,null,null,null,null,null,null,null,null,null,null,null,null,null,{"$f":"IF(CRSDATA!BT2262=\"\",\"\",CRSDATA!BT2262)","v":""}]
[null,null,null,null,null,null,null,null,null,null,null,null,null,null,null,null,null,null,null,null,null,null,null,null,null,null,null,null,null,null,{"$f":"IF(CRSDATA!BT2263=\"\",\"\",CRSDATA!BT2263)","v":""}]
[null,null,null,null,null,null,null,null,null,null,null,null,null,null,null,null,null,null,null,null,null,null,null,null,null,null,null,null,null,null,{"$f":"IF(CRSDATA!BT2264=\"\",\"\",CRSDATA!BT2264)","v":""}]
[null,null,null,null,null,null,null,null,null,null,null,null,null,null,null,null,null,null,null,null,null,null,null,null,null,null,null,null,null,null,{"$f":"IF(CRSDATA!BT2265=\"\",\"\",CRSDATA!BT2265)","v":""}]
[null,null,null,null,null,null,null,null,null,null,null,null,null,null,null,null,null,null,null,null,null,null,null,null,null,null,null,null,null,null,{"$f":"IF(CRSDATA!BT2266=\"\",\"\",CRSDATA!BT2266)","v":""}]
[null,null,null,null,null,null,null,null,null,null,null,null,null,null,null,null,null,null,null,null,null,null,null,null,null,null,null,null,null,null,{"$f":"IF(CRSDATA!BT2267=\"\",\"\",CRSDATA!BT2267)","v":""}]
[null,null,null,null,null,null,null,null,null,null,null,null,null,null,null,null,null,null,null,null,null,null,null,null,null,null,null,null,null,null,{"$f":"IF(CRSDATA!BT2268=\"\",\"\",CRSDATA!BT2268)","v":""}]
[null,null,null,null,null,null,null,null,null,null,null,null,null,null,null,null,null,null,null,null,null,null,null,null,null,null,null,null,null,null,{"$f":"IF(CRSDATA!BT2269=\"\",\"\",CRSDATA!BT2269)","v":""}]
[null,null,null,null,null,null,null,null,null,null,null,null,null,null,null,null,null,null,null,null,null,null,null,null,null,null,null,null,null,null,{"$f":"IF(CRSDATA!BT2270=\"\",\"\",CRSDATA!BT2270)","v":""}]
[null,null,null,null,null,null,null,null,null,null,null,null,null,null,null,null,null,null,null,null,null,null,null,null,null,null,null,null,null,null,{"$f":"IF(CRSDATA!BT2271=\"\",\"\",CRSDATA!BT2271)","v":""}]
[null,null,null,null,null,null,null,null,null,null,null,null,null,null,null,null,null,null,null,null,null,null,null,null,null,null,null,null,null,null,{"$f":"IF(CRSDATA!BT2272=\"\",\"\",CRSDATA!BT2272)","v":""}]
[null,null,null,null,null,null,null,null,null,null,null,null,null,null,null,null,null,null,null,null,null,null,null,null,null,null,null,null,null,null,{"$f":"IF(CRSDATA!BT2273=\"\",\"\",CRSDATA!BT2273)","v":""}]
[null,null,null,null,null,null,null,null,null,null,null,null,null,null,null,null,null,null,null,null,null,null,null,null,null,null,null,null,null,null,{"$f":"IF(CRSDATA!BT2274=\"\",\"\",CRSDATA!BT2274)","v":""}]
[null,null,null,null,null,null,null,null,null,null,null,null,null,null,null,null,null,null,null,null,null,null,null,null,null,null,null,null,null,null,{"$f":"IF(CRSDATA!BT2275=\"\",\"\",CRSDATA!BT2275)","v":""}]
[null,null,null,null,null,null,null,null,null,null,null,null,null,null,null,null,null,null,null,null,null,null,null,null,null,null,null,null,null,null,{"$f":"IF(CRSDATA!BT2276=\"\",\"\",CRSDATA!BT2276)","v":""}]
[null,null,null,null,null,null,null,null,null,null,null,null,null,null,null,null,null,null,null,null,null,null,null,null,null,null,null,null,null,null,{"$f":"IF(CRSDATA!BT2277=\"\",\"\",CRSDATA!BT2277)","v":""}]
[null,null,null,null,null,null,null,null,null,null,null,null,null,null,null,null,null,null,null,null,null,null,null,null,null,null,null,null,null,null,{"$f":"IF(CRSDATA!BT2278=\"\",\"\",CRSDATA!BT2278)","v":""}]
[null,null,null,null,null,null,null,null,null,null,null,null,null,null,null,null,null,null,null,null,null,null,null,null,null,null,null,null,null,null,{"$f":"IF(CRSDATA!BT2279=\"\",\"\",CRSDATA!BT2279)","v":""}]
[null,null,null,null,null,null,null,null,null,null,null,null,null,null,null,null,null,null,null,null,null,null,null,null,null,null,null,null,null,null,{"$f":"IF(CRSDATA!BT2280=\"\",\"\",CRSDATA!BT2280)","v":""}]
[null,null,null,null,null,null,null,null,null,null,null,null,null,null,null,null,null,null,null,null,null,null,null,null,null,null,null,null,null,null,{"$f":"IF(CRSDATA!BT2281=\"\",\"\",CRSDATA!BT2281)","v":""}]
[null,null,null,null,null,null,null,null,null,null,null,null,null,null,null,null,null,null,null,null,null,null,null,null,null,null,null,null,null,null,{"$f":"IF(CRSDATA!BT2282=\"\",\"\",CRSDATA!BT2282)","v":""}]
[null,null,null,null,null,null,null,null,null,null,null,null,null,null,null,null,null,null,null,null,null,null,null,null,null,null,null,null,null,null,{"$f":"IF(CRSDATA!BT2283=\"\",\"\",CRSDATA!BT2283)","v":""}]
[null,null,null,null,null,null,null,null,null,null,null,null,null,null,null,null,null,null,null,null,null,null,null,null,null,null,null,null,null,null,{"$f":"IF(CRSDATA!BT2284=\"\",\"\",CRSDATA!BT2284)","v":""}]
[null,null,null,null,null,null,null,null,null,null,null,null,null,null,null,null,null,null,null,null,null,null,null,null,null,null,null,null,null,null,{"$f":"IF(CRSDATA!BT2285=\"\",\"\",CRSDATA!BT2285)","v":""}]
[null,null,null,null,null,null,null,null,null,null,null,null,null,null,null,null,null,null,null,null,null,null,null,null,null,null,null,null,null,null,{"$f":"IF(CRSDATA!BT2286=\"\",\"\",CRSDATA!BT2286)","v":""}]
[null,null,null,null,null,null,null,null,null,null,null,null,null,null,null,null,null,null,null,null,null,null,null,null,null,null,null,null,null,null,{"$f":"IF(CRSDATA!BT2287=\"\",\"\",CRSDATA!BT2287)","v":""}]
[null,null,null,null,null,null,null,null,null,null,null,null,null,null,null,null,null,null,null,null,null,null,null,null,null,null,null,null,null,null,{"$f":"IF(CRSDATA!BT2288=\"\",\"\",CRSDATA!BT2288)","v":""}]
[null,null,null,null,null,null,null,null,null,null,null,null,null,null,null,null,null,null,null,null,null,null,null,null,null,null,null,null,null,null,{"$f":"IF(CRSDATA!BT2289=\"\",\"\",CRSDATA!BT2289)","v":""}]
[null,null,null,null,null,null,null,null,null,null,null,null,null,null,null,null,null,null,null,null,null,null,null,null,null,null,null,null,null,null,{"$f":"IF(CRSDATA!BT2290=\"\",\"\",CRSDATA!BT2290)","v":""}]
[null,null,null,null,null,null,null,null,null,null,null,null,null,null,null,null,null,null,null,null,null,null,null,null,null,null,null,null,null,null,{"$f":"IF(CRSDATA!BT2291=\"\",\"\",CRSDATA!BT2291)","v":""}]
[null,null,null,null,null,null,null,null,null,null,null,null,null,null,null,null,null,null,null,null,null,null,null,null,null,null,null,null,null,null,{"$f":"IF(CRSDATA!BT2292=\"\",\"\",CRSDATA!BT2292)","v":""}]
[null,null,null,null,null,null,null,null,null,null,null,null,null,null,null,null,null,null,null,null,null,null,null,null,null,null,null,null,null,null,{"$f":"IF(CRSDATA!BT2293=\"\",\"\",CRSDATA!BT2293)","v":""}]
[null,null,null,null,null,null,null,null,null,null,null,null,null,null,null,null,null,null,null,null,null,null,null,null,null,null,null,null,null,null,{"$f":"IF(CRSDATA!BT2294=\"\",\"\",CRSDATA!BT2294)","v":""}]
[null,null,null,null,null,null,null,null,null,null,null,null,null,null,null,null,null,null,null,null,null,null,null,null,null,null,null,null,null,null,{"$f":"IF(CRSDATA!BT2295=\"\",\"\",CRSDATA!BT2295)","v":""}]
[null,null,null,null,null,null,null,null,null,null,null,null,null,null,null,null,null,null,null,null,null,null,null,null,null,null,null,null,null,null,{"$f":"IF(CRSDATA!BT2296=\"\",\"\",CRSDATA!BT2296)","v":""}]
[null,null,null,null,null,null,null,null,null,null,null,null,null,null,null,null,null,null,null,null,null,null,null,null,null,null,null,null,null,null,{"$f":"IF(CRSDATA!BT2297=\"\",\"\",CRSDATA!BT2297)","v":""}]
[null,null,null,null,null,null,null,null,null,null,null,null,null,null,null,null,null,null,null,null,null,null,null,null,null,null,null,null,null,null,{"$f":"IF(CRSDATA!BT2298=\"\",\"\",CRSDATA!BT2298)","v":""}]
[null,null,null,null,null,null,null,null,null,null,null,null,null,null,null,null,null,null,null,null,null,null,null,null,null,null,null,null,null,null,{"$f":"IF(CRSDATA!BT2299=\"\",\"\",CRSDATA!BT2299)","v":""}]
[null,null,null,null,null,null,null,null,null,null,null,null,null,null,null,null,null,null,null,null,null,null,null,null,null,null,null,null,null,null,{"$f":"IF(CRSDATA!BT2300=\"\",\"\",CRSDATA!BT2300)","v":""}]
[null,null,null,null,null,null,null,null,null,null,null,null,null,null,null,null,null,null,null,null,null,null,null,null,null,null,null,null,null,null,{"$f":"IF(CRSDATA!BT2301=\"\",\"\",CRSDATA!BT2301)","v":""}]
[null,null,null,null,null,null,null,null,null,null,null,null,null,null,null,null,null,null,null,null,null,null,null,null,null,null,null,null,null,null,{"$f":"IF(CRSDATA!BT2302=\"\",\"\",CRSDATA!BT2302)","v":""}]
[null,null,null,null,null,null,null,null,null,null,null,null,null,null,null,null,null,null,null,null,null,null,null,null,null,null,null,null,null,null,{"$f":"IF(CRSDATA!BT2303=\"\",\"\",CRSDATA!BT2303)","v":""}]
[null,null,null,null,null,null,null,null,null,null,null,null,null,null,null,null,null,null,null,null,null,null,null,null,null,null,null,null,null,null,{"$f":"IF(CRSDATA!BT2304=\"\",\"\",CRSDATA!BT2304)","v":""}]
[null,null,null,null,null,null,null,null,null,null,null,null,null,null,null,null,null,null,null,null,null,null,null,null,null,null,null,null,null,null,{"$f":"IF(CRSDATA!BT2305=\"\",\"\",CRSDATA!BT2305)","v":""}]
[null,null,null,null,null,null,null,null,null,null,null,null,null,null,null,null,null,null,null,null,null,null,null,null,null,null,null,null,null,null,{"$f":"IF(CRSDATA!BT2306=\"\",\"\",CRSDATA!BT2306)","v":""}]
[null,null,null,null,null,null,null,null,null,null,null,null,null,null,null,null,null,null,null,null,null,null,null,null,null,null,null,null,null,null,{"$f":"IF(CRSDATA!BT2307=\"\",\"\",CRSDATA!BT2307)","v":""}]
[null,null,null,null,null,null,null,null,null,null,null,null,null,null,null,null,null,null,null,null,null,null,null,null,null,null,null,null,null,null,{"$f":"IF(CRSDATA!BT2308=\"\",\"\",CRSDATA!BT2308)","v":""}]
[null,null,null,null,null,null,null,null,null,null,null,null,null,null,null,null,null,null,null,null,null,null,null,null,null,null,null,null,null,null,{"$f":"IF(CRSDATA!BT2309=\"\",\"\",CRSDATA!BT2309)","v":""}]
[null,null,null,null,null,null,null,null,null,null,null,null,null,null,null,null,null,null,null,null,null,null,null,null,null,null,null,null,null,null,{"$f":"IF(CRSDATA!BT2310=\"\",\"\",CRSDATA!BT2310)","v":""}]
[null,null,null,null,null,null,null,null,null,null,null,null,null,null,null,null,null,null,null,null,null,null,null,null,null,null,null,null,null,null,{"$f":"IF(CRSDATA!BT2311=\"\",\"\",CRSDATA!BT2311)","v":""}]
[null,null,null,null,null,null,null,null,null,null,null,null,null,null,null,null,null,null,null,null,null,null,null,null,null,null,null,null,null,null,{"$f":"IF(CRSDATA!BT2312=\"\",\"\",CRSDATA!BT2312)","v":""}]
[null,null,null,null,null,null,null,null,null,null,null,null,null,null,null,null,null,null,null,null,null,null,null,null,null,null,null,null,null,null,{"$f":"IF(CRSDATA!BT2313=\"\",\"\",CRSDATA!BT2313)","v":""}]
[null,null,null,null,null,null,null,null,null,null,null,null,null,null,null,null,null,null,null,null,null,null,null,null,null,null,null,null,null,null,{"$f":"IF(CRSDATA!BT2314=\"\",\"\",CRSDATA!BT2314)","v":""}]
[null,null,null,null,null,null,null,null,null,null,null,null,null,null,null,null,null,null,null,null,null,null,null,null,null,null,null,null,null,null,{"$f":"IF(CRSDATA!BT2315=\"\",\"\",CRSDATA!BT2315)","v":""}]
[null,null,null,null,null,null,null,null,null,null,null,null,null,null,null,null,null,null,null,null,null,null,null,null,null,null,null,null,null,null,{"$f":"IF(CRSDATA!BT2316=\"\",\"\",CRSDATA!BT2316)","v":""}]
[null,null,null,null,null,null,null,null,null,null,null,null,null,null,null,null,null,null,null,null,null,null,null,null,null,null,null,null,null,null,{"$f":"IF(CRSDATA!BT2317=\"\",\"\",CRSDATA!BT2317)","v":""}]
[null,null,null,null,null,null,null,null,null,null,null,null,null,null,null,null,null,null,null,null,null,null,null,null,null,null,null,null,null,null,{"$f":"IF(CRSDATA!BT2318=\"\",\"\",CRSDATA!BT2318)","v":""}]
[null,null,null,null,null,null,null,null,null,null,null,null,null,null,null,null,null,null,null,null,null,null,null,null,null,null,null,null,null,null,{"$f":"IF(CRSDATA!BT2319=\"\",\"\",CRSDATA!BT2319)","v":""}]
[null,null,null,null,null,null,null,null,null,null,null,null,null,null,null,null,null,null,null,null,null,null,null,null,null,null,null,null,null,null,{"$f":"IF(CRSDATA!BT2320=\"\",\"\",CRSDATA!BT2320)","v":""}]
[null,null,null,null,null,null,null,null,null,null,null,null,null,null,null,null,null,null,null,null,null,null,null,null,null,null,null,null,null,null,{"$f":"IF(CRSDATA!BT2321=\"\",\"\",CRSDATA!BT2321)","v":""}]
[null,null,null,null,null,null,null,null,null,null,null,null,null,null,null,null,null,null,null,null,null,null,null,null,null,null,null,null,null,null,{"$f":"IF(CRSDATA!BT2322=\"\",\"\",CRSDATA!BT2322)","v":""}]
[null,null,null,null,null,null,null,null,null,null,null,null,null,null,null,null,null,null,null,null,null,null,null,null,null,null,null,null,null,null,{"$f":"IF(CRSDATA!BT2323=\"\",\"\",CRSDATA!BT2323)","v":""}]
[null,null,null,null,null,null,null,null,null,null,null,null,null,null,null,null,null,null,null,null,null,null,null,null,null,null,null,null,null,null,{"$f":"IF(CRSDATA!BT2324=\"\",\"\",CRSDATA!BT2324)","v":""}]
[null,null,null,null,null,null,null,null,null,null,null,null,null,null,null,null,null,null,null,null,null,null,null,null,null,null,null,null,null,null,{"$f":"IF(CRSDATA!BT2325=\"\",\"\",CRSDATA!BT2325)","v":""}]
[null,null,null,null,null,null,null,null,null,null,null,null,null,null,null,null,null,null,null,null,null,null,null,null,null,null,null,null,null,null,{"$f":"IF(CRSDATA!BT2326=\"\",\"\",CRSDATA!BT2326)","v":""}]
[null,null,null,null,null,null,null,null,null,null,null,null,null,null,null,null,null,null,null,null,null,null,null,null,null,null,null,null,null,null,{"$f":"IF(CRSDATA!BT2327=\"\",\"\",CRSDATA!BT2327)","v":""}]
[null,null,null,null,null,null,null,null,null,null,null,null,null,null,null,null,null,null,null,null,null,null,null,null,null,null,null,null,null,null,{"$f":"IF(CRSDATA!BT2328=\"\",\"\",CRSDATA!BT2328)","v":""}]
[null,null,null,null,null,null,null,null,null,null,null,null,null,null,null,null,null,null,null,null,null,null,null,null,null,null,null,null,null,null,{"$f":"IF(CRSDATA!BT2329=\"\",\"\",CRSDATA!BT2329)","v":""}]
[null,null,null,null,null,null,null,null,null,null,null,null,null,null,null,null,null,null,null,null,null,null,null,null,null,null,null,null,null,null,{"$f":"IF(CRSDATA!BT2330=\"\",\"\",CRSDATA!BT2330)","v":""}]
[null,null,null,null,null,null,null,null,null,null,null,null,null,null,null,null,null,null,null,null,null,null,null,null,null,null,null,null,null,null,{"$f":"IF(CRSDATA!BT2331=\"\",\"\",CRSDATA!BT2331)","v":""}]
[null,null,null,null,null,null,null,null,null,null,null,null,null,null,null,null,null,null,null,null,null,null,null,null,null,null,null,null,null,null,{"$f":"IF(CRSDATA!BT2332=\"\",\"\",CRSDATA!BT2332)","v":""}]
[null,null,null,null,null,null,null,null,null,null,null,null,null,null,null,null,null,null,null,null,null,null,null,null,null,null,null,null,null,null,{"$f":"IF(CRSDATA!BT2333=\"\",\"\",CRSDATA!BT2333)","v":""}]
[null,null,null,null,null,null,null,null,null,null,null,null,null,null,null,null,null,null,null,null,null,null,null,null,null,null,null,null,null,null,{"$f":"IF(CRSDATA!BT2334=\"\",\"\",CRSDATA!BT2334)","v":""}]
[null,null,null,null,null,null,null,null,null,null,null,null,null,null,null,null,null,null,null,null,null,null,null,null,null,null,null,null,null,null,{"$f":"IF(CRSDATA!BT2335=\"\",\"\",CRSDATA!BT2335)","v":""}]
[null,null,null,null,null,null,null,null,null,null,null,null,null,null,null,null,null,null,null,null,null,null,null,null,null,null,null,null,null,null,{"$f":"IF(CRSDATA!BT2336=\"\",\"\",CRSDATA!BT2336)","v":""}]
[null,null,null,null,null,null,null,null,null,null,null,null,null,null,null,null,null,null,null,null,null,null,null,null,null,null,null,null,null,null,{"$f":"IF(CRSDATA!BT2337=\"\",\"\",CRSDATA!BT2337)","v":""}]
[null,null,null,null,null,null,null,null,null,null,null,null,null,null,null,null,null,null,null,null,null,null,null,null,null,null,null,null,null,null,{"$f":"IF(CRSDATA!BT2338=\"\",\"\",CRSDATA!BT2338)","v":""}]
[null,null,null,null,null,null,null,null,null,null,null,null,null,null,null,null,null,null,null,null,null,null,null,null,null,null,null,null,null,null,{"$f":"IF(CRSDATA!BT2339=\"\",\"\",CRSDATA!BT2339)","v":""}]
[null,null,null,null,null,null,null,null,null,null,null,null,null,null,null,null,null,null,null,null,null,null,null,null,null,null,null,null,null,null,{"$f":"IF(CRSDATA!BT2340=\"\",\"\",CRSDATA!BT2340)","v":""}]
[null,null,null,null,null,null,null,null,null,null,null,null,null,null,null,null,null,null,null,null,null,null,null,null,null,null,null,null,null,null,{"$f":"IF(CRSDATA!BT2341=\"\",\"\",CRSDATA!BT2341)","v":""}]
[null,null,null,null,null,null,null,null,null,null,null,null,null,null,null,null,null,null,null,null,null,null,null,null,null,null,null,null,null,null,{"$f":"IF(CRSDATA!BT2342=\"\",\"\",CRSDATA!BT2342)","v":""}]
[null,null,null,null,null,null,null,null,null,null,null,null,null,null,null,null,null,null,null,null,null,null,null,null,null,null,null,null,null,null,{"$f":"IF(CRSDATA!BT2343=\"\",\"\",CRSDATA!BT2343)","v":""}]
[null,null,null,null,null,null,null,null,null,null,null,null,null,null,null,null,null,null,null,null,null,null,null,null,null,null,null,null,null,null,{"$f":"IF(CRSDATA!BT2344=\"\",\"\",CRSDATA!BT2344)","v":""}]
[null,null,null,null,null,null,null,null,null,null,null,null,null,null,null,null,null,null,null,null,null,null,null,null,null,null,null,null,null,null,{"$f":"IF(CRSDATA!BT2345=\"\",\"\",CRSDATA!BT2345)","v":""}]
[null,null,null,null,null,null,null,null,null,null,null,null,null,null,null,null,null,null,null,null,null,null,null,null,null,null,null,null,null,null,{"$f":"IF(CRSDATA!BT2346=\"\",\"\",CRSDATA!BT2346)","v":""}]
[null,null,null,null,null,null,null,null,null,null,null,null,null,null,null,null,null,null,null,null,null,null,null,null,null,null,null,null,null,null,{"$f":"IF(CRSDATA!BT2347=\"\",\"\",CRSDATA!BT2347)","v":""}]
[null,null,null,null,null,null,null,null,null,null,null,null,null,null,null,null,null,null,null,null,null,null,null,null,null,null,null,null,null,null,{"$f":"IF(CRSDATA!BT2348=\"\",\"\",CRSDATA!BT2348)","v":""}]
[null,null,null,null,null,null,null,null,null,null,null,null,null,null,null,null,null,null,null,null,null,null,null,null,null,null,null,null,null,null,{"$f":"IF(CRSDATA!BT2349=\"\",\"\",CRSDATA!BT2349)","v":""}]
[null,null,null,null,null,null,null,null,null,null,null,null,null,null,null,null,null,null,null,null,null,null,null,null,null,null,null,null,null,null,{"$f":"IF(CRSDATA!BT2350=\"\",\"\",CRSDATA!BT2350)","v":""}]
[null,null,null,null,null,null,null,null,null,null,null,null,null,null,null,null,null,null,null,null,null,null,null,null,null,null,null,null,null,null,{"$f":"IF(CRSDATA!BT2351=\"\",\"\",CRSDATA!BT2351)","v":""}]
[null,null,null,null,null,null,null,null,null,null,null,null,null,null,null,null,null,null,null,null,null,null,null,null,null,null,null,null,null,null,{"$f":"IF(CRSDATA!BT2352=\"\",\"\",CRSDATA!BT2352)","v":""}]
[null,null,null,null,null,null,null,null,null,null,null,null,null,null,null,null,null,null,null,null,null,null,null,null,null,null,null,null,null,null,{"$f":"IF(CRSDATA!BT2353=\"\",\"\",CRSDATA!BT2353)","v":""}]
[null,null,null,null,null,null,null,null,null,null,null,null,null,null,null,null,null,null,null,null,null,null,null,null,null,null,null,null,null,null,{"$f":"IF(CRSDATA!BT2354=\"\",\"\",CRSDATA!BT2354)","v":""}]
[null,null,null,null,null,null,null,null,null,null,null,null,null,null,null,null,null,null,null,null,null,null,null,null,null,null,null,null,null,null,{"$f":"IF(CRSDATA!BT2355=\"\",\"\",CRSDATA!BT2355)","v":""}]
[null,null,null,null,null,null,null,null,null,null,null,null,null,null,null,null,null,null,null,null,null,null,null,null,null,null,null,null,null,null,{"$f":"IF(CRSDATA!BT2356=\"\",\"\",CRSDATA!BT2356)","v":""}]
[null,null,null,null,null,null,null,null,null,null,null,null,null,null,null,null,null,null,null,null,null,null,null,null,null,null,null,null,null,null,{"$f":"IF(CRSDATA!BT2357=\"\",\"\",CRSDATA!BT2357)","v":""}]
[null,null,null,null,null,null,null,null,null,null,null,null,null,null,null,null,null,null,null,null,null,null,null,null,null,null,null,null,null,null,{"$f":"IF(CRSDATA!BT2358=\"\",\"\",CRSDATA!BT2358)","v":""}]
[null,null,null,null,null,null,null,null,null,null,null,null,null,null,null,null,null,null,null,null,null,null,null,null,null,null,null,null,null,null,{"$f":"IF(CRSDATA!BT2359=\"\",\"\",CRSDATA!BT2359)","v":""}]
[null,null,null,null,null,null,null,null,null,null,null,null,null,null,null,null,null,null,null,null,null,null,null,null,null,null,null,null,null,null,{"$f":"IF(CRSDATA!BT2360=\"\",\"\",CRSDATA!BT2360)","v":""}]
[null,null,null,null,null,null,null,null,null,null,null,null,null,null,null,null,null,null,null,null,null,null,null,null,null,null,null,null,null,null,{"$f":"IF(CRSDATA!BT2361=\"\",\"\",CRSDATA!BT2361)","v":""}]
[null,null,null,null,null,null,null,null,null,null,null,null,null,null,null,null,null,null,null,null,null,null,null,null,null,null,null,null,null,null,{"$f":"IF(CRSDATA!BT2362=\"\",\"\",CRSDATA!BT2362)","v":""}]
[null,null,null,null,null,null,null,null,null,null,null,null,null,null,null,null,null,null,null,null,null,null,null,null,null,null,null,null,null,null,{"$f":"IF(CRSDATA!BT2363=\"\",\"\",CRSDATA!BT2363)","v":""}]
[null,null,null,null,null,null,null,null,null,null,null,null,null,null,null,null,null,null,null,null,null,null,null,null,null,null,null,null,null,null,{"$f":"IF(CRSDATA!BT2364=\"\",\"\",CRSDATA!BT2364)","v":""}]
[null,null,null,null,null,null,null,null,null,null,null,null,null,null,null,null,null,null,null,null,null,null,null,null,null,null,null,null,null,null,{"$f":"IF(CRSDATA!BT2365=\"\",\"\",CRSDATA!BT2365)","v":""}]
[null,null,null,null,null,null,null,null,null,null,null,null,null,null,null,null,null,null,null,null,null,null,null,null,null,null,null,null,null,null,{"$f":"IF(CRSDATA!BT2366=\"\",\"\",CRSDATA!BT2366)","v":""}]
[null,null,null,null,null,null,null,null,null,null,null,null,null,null,null,null,null,null,null,null,null,null,null,null,null,null,null,null,null,null,{"$f":"IF(CRSDATA!BT2367=\"\",\"\",CRSDATA!BT2367)","v":""}]
[null,null,null,null,null,null,null,null,null,null,null,null,null,null,null,null,null,null,null,null,null,null,null,null,null,null,null,null,null,null,{"$f":"IF(CRSDATA!BT2368=\"\",\"\",CRSDATA!BT2368)","v":""}]
[null,null,null,null,null,null,null,null,null,null,null,null,null,null,null,null,null,null,null,null,null,null,null,null,null,null,null,null,null,null,{"$f":"IF(CRSDATA!BT2369=\"\",\"\",CRSDATA!BT2369)","v":""}]
[null,null,null,null,null,null,null,null,null,null,null,null,null,null,null,null,null,null,null,null,null,null,null,null,null,null,null,null,null,null,{"$f":"IF(CRSDATA!BT2370=\"\",\"\",CRSDATA!BT2370)","v":""}]
[null,null,null,null,null,null,null,null,null,null,null,null,null,null,null,null,null,null,null,null,null,null,null,null,null,null,null,null,null,null,{"$f":"IF(CRSDATA!BT2371=\"\",\"\",CRSDATA!BT2371)","v":""}]
[null,null,null,null,null,null,null,null,null,null,null,null,null,null,null,null,null,null,null,null,null,null,null,null,null,null,null,null,null,null,{"$f":"IF(CRSDATA!BT2372=\"\",\"\",CRSDATA!BT2372)","v":""}]
[null,null,null,null,null,null,null,null,null,null,null,null,null,null,null,null,null,null,null,null,null,null,null,null,null,null,null,null,null,null,{"$f":"IF(CRSDATA!BT2373=\"\",\"\",CRSDATA!BT2373)","v":""}]
[null,null,null,null,null,null,null,null,null,null,null,null,null,null,null,null,null,null,null,null,null,null,null,null,null,null,null,null,null,null,{"$f":"IF(CRSDATA!BT2374=\"\",\"\",CRSDATA!BT2374)","v":""}]
[null,null,null,null,null,null,null,null,null,null,null,null,null,null,null,null,null,null,null,null,null,null,null,null,null,null,null,null,null,null,{"$f":"IF(CRSDATA!BT2375=\"\",\"\",CRSDATA!BT2375)","v":""}]
[null,null,null,null,null,null,null,null,null,null,null,null,null,null,null,null,null,null,null,null,null,null,null,null,null,null,null,null,null,null,{"$f":"IF(CRSDATA!BT2376=\"\",\"\",CRSDATA!BT2376)","v":""}]
[null,null,null,null,null,null,null,null,null,null,null,null,null,null,null,null,null,null,null,null,null,null,null,null,null,null,null,null,null,null,{"$f":"IF(CRSDATA!BT2377=\"\",\"\",CRSDATA!BT2377)","v":""}]
[null,null,null,null,null,null,null,null,null,null,null,null,null,null,null,null,null,null,null,null,null,null,null,null,null,null,null,null,null,null,{"$f":"IF(CRSDATA!BT2378=\"\",\"\",CRSDATA!BT2378)","v":""}]
[null,null,null,null,null,null,null,null,null,null,null,null,null,null,null,null,null,null,null,null,null,null,null,null,null,null,null,null,null,null,{"$f":"IF(CRSDATA!BT2379=\"\",\"\",CRSDATA!BT2379)","v":""}]
[null,null,null,null,null,null,null,null,null,null,null,null,null,null,null,null,null,null,null,null,null,null,null,null,null,null,null,null,null,null,{"$f":"IF(CRSDATA!BT2380=\"\",\"\",CRSDATA!BT2380)","v":""}]
[null,null,null,null,null,null,null,null,null,null,null,null,null,null,null,null,null,null,null,null,null,null,null,null,null,null,null,null,null,null,{"$f":"IF(CRSDATA!BT2381=\"\",\"\",CRSDATA!BT2381)","v":""}]
[null,null,null,null,null,null,null,null,null,null,null,null,null,null,null,null,null,null,null,null,null,null,null,null,null,null,null,null,null,null,{"$f":"IF(CRSDATA!BT2382=\"\",\"\",CRSDATA!BT2382)","v":""}]
[null,null,null,null,null,null,null,null,null,null,null,null,null,null,null,null,null,null,null,null,null,null,null,null,null,null,null,null,null,null,{"$f":"IF(CRSDATA!BT2383=\"\",\"\",CRSDATA!BT2383)","v":""}]
[null,null,null,null,null,null,null,null,null,null,null,null,null,null,null,null,null,null,null,null,null,null,null,null,null,null,null,null,null,null,{"$f":"IF(CRSDATA!BT2384=\"\",\"\",CRSDATA!BT2384)","v":""}]
[null,null,null,null,null,null,null,null,null,null,null,null,null,null,null,null,null,null,null,null,null,null,null,null,null,null,null,null,null,null,{"$f":"IF(CRSDATA!BT2385=\"\",\"\",CRSDATA!BT2385)","v":""}]
[null,null,null,null,null,null,null,null,null,null,null,null,null,null,null,null,null,null,null,null,null,null,null,null,null,null,null,null,null,null,{"$f":"IF(CRSDATA!BT2386=\"\",\"\",CRSDATA!BT2386)","v":""}]
[null,null,null,null,null,null,null,null,null,null,null,null,null,null,null,null,null,null,null,null,null,null,null,null,null,null,null,null,null,null,{"$f":"IF(CRSDATA!BT2387=\"\",\"\",CRSDATA!BT2387)","v":""}]
[null,null,null,null,null,null,null,null,null,null,null,null,null,null,null,null,null,null,null,null,null,null,null,null,null,null,null,null,null,null,{"$f":"IF(CRSDATA!BT2388=\"\",\"\",CRSDATA!BT2388)","v":""}]
[null,null,null,null,null,null,null,null,null,null,null,null,null,null,null,null,null,null,null,null,null,null,null,null,null,null,null,null,null,null,{"$f":"IF(CRSDATA!BT2389=\"\",\"\",CRSDATA!BT2389)","v":""}]
[null,null,null,null,null,null,null,null,null,null,null,null,null,null,null,null,null,null,null,null,null,null,null,null,null,null,null,null,null,null,{"$f":"IF(CRSDATA!BT2390=\"\",\"\",CRSDATA!BT2390)","v":""}]
[null,null,null,null,null,null,null,null,null,null,null,null,null,null,null,null,null,null,null,null,null,null,null,null,null,null,null,null,null,null,{"$f":"IF(CRSDATA!BT2391=\"\",\"\",CRSDATA!BT2391)","v":""}]
[null,null,null,null,null,null,null,null,null,null,null,null,null,null,null,null,null,null,null,null,null,null,null,null,null,null,null,null,null,null,{"$f":"IF(CRSDATA!BT2392=\"\",\"\",CRSDATA!BT2392)","v":""}]
[null,null,null,null,null,null,null,null,null,null,null,null,null,null,null,null,null,null,null,null,null,null,null,null,null,null,null,null,null,null,{"$f":"IF(CRSDATA!BT2393=\"\",\"\",CRSDATA!BT2393)","v":""}]
[null,null,null,null,null,null,null,null,null,null,null,null,null,null,null,null,null,null,null,null,null,null,null,null,null,null,null,null,null,null,{"$f":"IF(CRSDATA!BT2394=\"\",\"\",CRSDATA!BT2394)","v":""}]
[null,null,null,null,null,null,null,null,null,null,null,null,null,null,null,null,null,null,null,null,null,null,null,null,null,null,null,null,null,null,{"$f":"IF(CRSDATA!BT2395=\"\",\"\",CRSDATA!BT2395)","v":""}]
[null,null,null,null,null,null,null,null,null,null,null,null,null,null,null,null,null,null,null,null,null,null,null,null,null,null,null,null,null,null,{"$f":"IF(CRSDATA!BT2396=\"\",\"\",CRSDATA!BT2396)","v":""}]
[null,null,null,null,null,null,null,null,null,null,null,null,null,null,null,null,null,null,null,null,null,null,null,null,null,null,null,null,null,null,{"$f":"IF(CRSDATA!BT2397=\"\",\"\",CRSDATA!BT2397)","v":""}]
[null,null,null,null,null,null,null,null,null,null,null,null,null,null,null,null,null,null,null,null,null,null,null,null,null,null,null,null,null,null,{"$f":"IF(CRSDATA!BT2398=\"\",\"\",CRSDATA!BT2398)","v":""}]
[null,null,null,null,null,null,null,null,null,null,null,null,null,null,null,null,null,null,null,null,null,null,null,null,null,null,null,null,null,null,{"$f":"IF(CRSDATA!BT2399=\"\",\"\",CRSDATA!BT2399)","v":""}]
[null,null,null,null,null,null,null,null,null,null,null,null,null,null,null,null,null,null,null,null,null,null,null,null,null,null,null,null,null,null,{"$f":"IF(CRSDATA!BT2400=\"\",\"\",CRSDATA!BT2400)","v":""}]
[null,null,null,null,null,null,null,null,null,null,null,null,null,null,null,null,null,null,null,null,null,null,null,null,null,null,null,null,null,null,{"$f":"IF(CRSDATA!BT2401=\"\",\"\",CRSDATA!BT2401)","v":""}]
[null,null,null,null,null,null,null,null,null,null,null,null,null,null,null,null,null,null,null,null,null,null,null,null,null,null,null,null,null,null,{"$f":"IF(CRSDATA!BT2402=\"\",\"\",CRSDATA!BT2402)","v":""}]
[null,null,null,null,null,null,null,null,null,null,null,null,null,null,null,null,null,null,null,null,null,null,null,null,null,null,null,null,null,null,{"$f":"IF(CRSDATA!BT2403=\"\",\"\",CRSDATA!BT2403)","v":""}]
[null,null,null,null,null,null,null,null,null,null,null,null,null,null,null,null,null,null,null,null,null,null,null,null,null,null,null,null,null,null,{"$f":"IF(CRSDATA!BT2404=\"\",\"\",CRSDATA!BT2404)","v":""}]
[null,null,null,null,null,null,null,null,null,null,null,null,null,null,null,null,null,null,null,null,null,null,null,null,null,null,null,null,null,null,{"$f":"IF(CRSDATA!BT2405=\"\",\"\",CRSDATA!BT2405)","v":""}]
[null,null,null,null,null,null,null,null,null,null,null,null,null,null,null,null,null,null,null,null,null,null,null,null,null,null,null,null,null,null,{"$f":"IF(CRSDATA!BT2406=\"\",\"\",CRSDATA!BT2406)","v":""}]
[null,null,null,null,null,null,null,null,null,null,null,null,null,null,null,null,null,null,null,null,null,null,null,null,null,null,null,null,null,null,{"$f":"IF(CRSDATA!BT2407=\"\",\"\",CRSDATA!BT2407)","v":""}]
[null,null,null,null,null,null,null,null,null,null,null,null,null,null,null,null,null,null,null,null,null,null,null,null,null,null,null,null,null,null,{"$f":"IF(CRSDATA!BT2408=\"\",\"\",CRSDATA!BT2408)","v":""}]
[null,null,null,null,null,null,null,null,null,null,null,null,null,null,null,null,null,null,null,null,null,null,null,null,null,null,null,null,null,null,{"$f":"IF(CRSDATA!BT2409=\"\",\"\",CRSDATA!BT2409)","v":""}]
[null,null,null,null,null,null,null,null,null,null,null,null,null,null,null,null,null,null,null,null,null,null,null,null,null,null,null,null,null,null,{"$f":"IF(CRSDATA!BT2410=\"\",\"\",CRSDATA!BT2410)","v":""}]
[null,null,null,null,null,null,null,null,null,null,null,null,null,null,null,null,null,null,null,null,null,null,null,null,null,null,null,null,null,null,{"$f":"IF(CRSDATA!BT2411=\"\",\"\",CRSDATA!BT2411)","v":""}]
[null,null,null,null,null,null,null,null,null,null,null,null,null,null,null,null,null,null,null,null,null,null,null,null,null,null,null,null,null,null,{"$f":"IF(CRSDATA!BT2412=\"\",\"\",CRSDATA!BT2412)","v":""}]
[null,null,null,null,null,null,null,null,null,null,null,null,null,null,null,null,null,null,null,null,null,null,null,null,null,null,null,null,null,null,{"$f":"IF(CRSDATA!BT2413=\"\",\"\",CRSDATA!BT2413)","v":""}]
[null,null,null,null,null,null,null,null,null,null,null,null,null,null,null,null,null,null,null,null,null,null,null,null,null,null,null,null,null,null,{"$f":"IF(CRSDATA!BT2414=\"\",\"\",CRSDATA!BT2414)","v":""}]
[null,null,null,null,null,null,null,null,null,null,null,null,null,null,null,null,null,null,null,null,null,null,null,null,null,null,null,null,null,null,{"$f":"IF(CRSDATA!BT2415=\"\",\"\",CRSDATA!BT2415)","v":""}]
[null,null,null,null,null,null,null,null,null,null,null,null,null,null,null,null,null,null,null,null,null,null,null,null,null,null,null,null,null,null,{"$f":"IF(CRSDATA!BT2416=\"\",\"\",CRSDATA!BT2416)","v":""}]
[null,null,null,null,null,null,null,null,null,null,null,null,null,null,null,null,null,null,null,null,null,null,null,null,null,null,null,null,null,null,{"$f":"IF(CRSDATA!BT2417=\"\",\"\",CRSDATA!BT2417)","v":""}]
[null,null,null,null,null,null,null,null,null,null,null,null,null,null,null,null,null,null,null,null,null,null,null,null,null,null,null,null,null,null,{"$f":"IF(CRSDATA!BT2418=\"\",\"\",CRSDATA!BT2418)","v":""}]
[null,null,null,null,null,null,null,null,null,null,null,null,null,null,null,null,null,null,null,null,null,null,null,null,null,null,null,null,null,null,{"$f":"IF(CRSDATA!BT2419=\"\",\"\",CRSDATA!BT2419)","v":""}]
[null,null,null,null,null,null,null,null,null,null,null,null,null,null,null,null,null,null,null,null,null,null,null,null,null,null,null,null,null,null,{"$f":"IF(CRSDATA!BT2420=\"\",\"\",CRSDATA!BT2420)","v":""}]
[null,null,null,null,null,null,null,null,null,null,null,null,null,null,null,null,null,null,null,null,null,null,null,null,null,null,null,null,null,null,{"$f":"IF(CRSDATA!BT2421=\"\",\"\",CRSDATA!BT2421)","v":""}]
[null,null,null,null,null,null,null,null,null,null,null,null,null,null,null,null,null,null,null,null,null,null,null,null,null,null,null,null,null,null,{"$f":"IF(CRSDATA!BT2422=\"\",\"\",CRSDATA!BT2422)","v":""}]
[null,null,null,null,null,null,null,null,null,null,null,null,null,null,null,null,null,null,null,null,null,null,null,null,null,null,null,null,null,null,{"$f":"IF(CRSDATA!BT2423=\"\",\"\",CRSDATA!BT2423)","v":""}]
[null,null,null,null,null,null,null,null,null,null,null,null,null,null,null,null,null,null,null,null,null,null,null,null,null,null,null,null,null,null,{"$f":"IF(CRSDATA!BT2424=\"\",\"\",CRSDATA!BT2424)","v":""}]
[null,null,null,null,null,null,null,null,null,null,null,null,null,null,null,null,null,null,null,null,null,null,null,null,null,null,null,null,null,null,{"$f":"IF(CRSDATA!BT2425=\"\",\"\",CRSDATA!BT2425)","v":""}]
[null,null,null,null,null,null,null,null,null,null,null,null,null,null,null,null,null,null,null,null,null,null,null,null,null,null,null,null,null,null,{"$f":"IF(CRSDATA!BT2426=\"\",\"\",CRSDATA!BT2426)","v":""}]
[null,null,null,null,null,null,null,null,null,null,null,null,null,null,null,null,null,null,null,null,null,null,null,null,null,null,null,null,null,null,{"$f":"IF(CRSDATA!BT2427=\"\",\"\",CRSDATA!BT2427)","v":""}]
[null,null,null,null,null,null,null,null,null,null,null,null,null,null,null,null,null,null,null,null,null,null,null,null,null,null,null,null,null,null,{"$f":"IF(CRSDATA!BT2428=\"\",\"\",CRSDATA!BT2428)","v":""}]
[null,null,null,null,null,null,null,null,null,null,null,null,null,null,null,null,null,null,null,null,null,null,null,null,null,null,null,null,null,null,{"$f":"IF(CRSDATA!BT2429=\"\",\"\",CRSDATA!BT2429)","v":""}]
[null,null,null,null,null,null,null,null,null,null,null,null,null,null,null,null,null,null,null,null,null,null,null,null,null,null,null,null,null,null,{"$f":"IF(CRSDATA!BT2430=\"\",\"\",CRSDATA!BT2430)","v":""}]
[null,null,null,null,null,null,null,null,null,null,null,null,null,null,null,null,null,null,null,null,null,null,null,null,null,null,null,null,null,null,{"$f":"IF(CRSDATA!BT2431=\"\",\"\",CRSDATA!BT2431)","v":""}]
[null,null,null,null,null,null,null,null,null,null,null,null,null,null,null,null,null,null,null,null,null,null,null,null,null,null,null,null,null,null,{"$f":"IF(CRSDATA!BT2432=\"\",\"\",CRSDATA!BT2432)","v":""}]
[null,null,null,null,null,null,null,null,null,null,null,null,null,null,null,null,null,null,null,null,null,null,null,null,null,null,null,null,null,null,{"$f":"IF(CRSDATA!BT2433=\"\",\"\",CRSDATA!BT2433)","v":""}]
[null,null,null,null,null,null,null,null,null,null,null,null,null,null,null,null,null,null,null,null,null,null,null,null,null,null,null,null,null,null,{"$f":"IF(CRSDATA!BT2434=\"\",\"\",CRSDATA!BT2434)","v":""}]
[null,null,null,null,null,null,null,null,null,null,null,null,null,null,null,null,null,null,null,null,null,null,null,null,null,null,null,null,null,null,{"$f":"IF(CRSDATA!BT2435=\"\",\"\",CRSDATA!BT2435)","v":""}]
[null,null,null,null,null,null,null,null,null,null,null,null,null,null,null,null,null,null,null,null,null,null,null,null,null,null,null,null,null,null,{"$f":"IF(CRSDATA!BT2436=\"\",\"\",CRSDATA!BT2436)","v":""}]
[null,null,null,null,null,null,null,null,null,null,null,null,null,null,null,null,null,null,null,null,null,null,null,null,null,null,null,null,null,null,{"$f":"IF(CRSDATA!BT2437=\"\",\"\",CRSDATA!BT2437)","v":""}]
[null,null,null,null,null,null,null,null,null,null,null,null,null,null,null,null,null,null,null,null,null,null,null,null,null,null,null,null,null,null,{"$f":"IF(CRSDATA!BT2438=\"\",\"\",CRSDATA!BT2438)","v":""}]
[null,null,null,null,null,null,null,null,null,null,null,null,null,null,null,null,null,null,null,null,null,null,null,null,null,null,null,null,null,null,{"$f":"IF(CRSDATA!BT2439=\"\",\"\",CRSDATA!BT2439)","v":""}]
[null,null,null,null,null,null,null,null,null,null,null,null,null,null,null,null,null,null,null,null,null,null,null,null,null,null,null,null,null,null,{"$f":"IF(CRSDATA!BT2440=\"\",\"\",CRSDATA!BT2440)","v":""}]
[null,null,null,null,null,null,null,null,null,null,null,null,null,null,null,null,null,null,null,null,null,null,null,null,null,null,null,null,null,null,{"$f":"IF(CRSDATA!BT2441=\"\",\"\",CRSDATA!BT2441)","v":""}]
[null,null,null,null,null,null,null,null,null,null,null,null,null,null,null,null,null,null,null,null,null,null,null,null,null,null,null,null,null,null,{"$f":"IF(CRSDATA!BT2442=\"\",\"\",CRSDATA!BT2442)","v":""}]
[null,null,null,null,null,null,null,null,null,null,null,null,null,null,null,null,null,null,null,null,null,null,null,null,null,null,null,null,null,null,{"$f":"IF(CRSDATA!BT2443=\"\",\"\",CRSDATA!BT2443)","v":""}]
[null,null,null,null,null,null,null,null,null,null,null,null,null,null,null,null,null,null,null,null,null,null,null,null,null,null,null,null,null,null,{"$f":"IF(CRSDATA!BT2444=\"\",\"\",CRSDATA!BT2444)","v":""}]
[null,null,null,null,null,null,null,null,null,null,null,null,null,null,null,null,null,null,null,null,null,null,null,null,null,null,null,null,null,null,{"$f":"IF(CRSDATA!BT2445=\"\",\"\",CRSDATA!BT2445)","v":""}]
[null,null,null,null,null,null,null,null,null,null,null,null,null,null,null,null,null,null,null,null,null,null,null,null,null,null,null,null,null,null,{"$f":"IF(CRSDATA!BT2446=\"\",\"\",CRSDATA!BT2446)","v":""}]
[null,null,null,null,null,null,null,null,null,null,null,null,null,null,null,null,null,null,null,null,null,null,null,null,null,null,null,null,null,null,{"$f":"IF(CRSDATA!BT2447=\"\",\"\",CRSDATA!BT2447)","v":""}]
[null,null,null,null,null,null,null,null,null,null,null,null,null,null,null,null,null,null,null,null,null,null,null,null,null,null,null,null,null,null,{"$f":"IF(CRSDATA!BT2448=\"\",\"\",CRSDATA!BT2448)","v":""}]
[null,null,null,null,null,null,null,null,null,null,null,null,null,null,null,null,null,null,null,null,null,null,null,null,null,null,null,null,null,null,{"$f":"IF(CRSDATA!BT2449=\"\",\"\",CRSDATA!BT2449)","v":""}]
[null,null,null,null,null,null,null,null,null,null,null,null,null,null,null,null,null,null,null,null,null,null,null,null,null,null,null,null,null,null,{"$f":"IF(CRSDATA!BT2450=\"\",\"\",CRSDATA!BT2450)","v":""}]
[null,null,null,null,null,null,null,null,null,null,null,null,null,null,null,null,null,null,null,null,null,null,null,null,null,null,null,null,null,null,{"$f":"IF(CRSDATA!BT2451=\"\",\"\",CRSDATA!BT2451)","v":""}]
[null,null,null,null,null,null,null,null,null,null,null,null,null,null,null,null,null,null,null,null,null,null,null,null,null,null,null,null,null,null,{"$f":"IF(CRSDATA!BT2452=\"\",\"\",CRSDATA!BT2452)","v":""}]
[null,null,null,null,null,null,null,null,null,null,null,null,null,null,null,null,null,null,null,null,null,null,null,null,null,null,null,null,null,null,{"$f":"IF(CRSDATA!BT2453=\"\",\"\",CRSDATA!BT2453)","v":""}]
[null,null,null,null,null,null,null,null,null,null,null,null,null,null,null,null,null,null,null,null,null,null,null,null,null,null,null,null,null,null,{"$f":"IF(CRSDATA!BT2454=\"\",\"\",CRSDATA!BT2454)","v":""}]
[null,null,null,null,null,null,null,null,null,null,null,null,null,null,null,null,null,null,null,null,null,null,null,null,null,null,null,null,null,null,{"$f":"IF(CRSDATA!BT2455=\"\",\"\",CRSDATA!BT2455)","v":""}]
[null,null,null,null,null,null,null,null,null,null,null,null,null,null,null,null,null,null,null,null,null,null,null,null,null,null,null,null,null,null,{"$f":"IF(CRSDATA!BT2456=\"\",\"\",CRSDATA!BT2456)","v":""}]
[null,null,null,null,null,null,null,null,null,null,null,null,null,null,null,null,null,null,null,null,null,null,null,null,null,null,null,null,null,null,{"$f":"IF(CRSDATA!BT2457=\"\",\"\",CRSDATA!BT2457)","v":""}]
[null,null,null,null,null,null,null,null,null,null,null,null,null,null,null,null,null,null,null,null,null,null,null,null,null,null,null,null,null,null,{"$f":"IF(CRSDATA!BT2458=\"\",\"\",CRSDATA!BT2458)","v":""}]
[null,null,null,null,null,null,null,null,null,null,null,null,null,null,null,null,null,null,null,null,null,null,null,null,null,null,null,null,null,null,{"$f":"IF(CRSDATA!BT2459=\"\",\"\",CRSDATA!BT2459)","v":""}]
[null,null,null,null,null,null,null,null,null,null,null,null,null,null,null,null,null,null,null,null,null,null,null,null,null,null,null,null,null,null,{"$f":"IF(CRSDATA!BT2460=\"\",\"\",CRSDATA!BT2460)","v":""}]
[null,null,null,null,null,null,null,null,null,null,null,null,null,null,null,null,null,null,null,null,null,null,null,null,null,null,null,null,null,null,{"$f":"IF(CRSDATA!BT2461=\"\",\"\",CRSDATA!BT2461)","v":""}]
[null,null,null,null,null,null,null,null,null,null,null,null,null,null,null,null,null,null,null,null,null,null,null,null,null,null,null,null,null,null,{"$f":"IF(CRSDATA!BT2462=\"\",\"\",CRSDATA!BT2462)","v":""}]
[null,null,null,null,null,null,null,null,null,null,null,null,null,null,null,null,null,null,null,null,null,null,null,null,null,null,null,null,null,null,{"$f":"IF(CRSDATA!BT2463=\"\",\"\",CRSDATA!BT2463)","v":""}]
[null,null,null,null,null,null,null,null,null,null,null,null,null,null,null,null,null,null,null,null,null,null,null,null,null,null,null,null,null,null,{"$f":"IF(CRSDATA!BT2464=\"\",\"\",CRSDATA!BT2464)","v":""}]
[null,null,null,null,null,null,null,null,null,null,null,null,null,null,null,null,null,null,null,null,null,null,null,null,null,null,null,null,null,null,{"$f":"IF(CRSDATA!BT2465=\"\",\"\",CRSDATA!BT2465)","v":""}]
[null,null,null,null,null,null,null,null,null,null,null,null,null,null,null,null,null,null,null,null,null,null,null,null,null,null,null,null,null,null,{"$f":"IF(CRSDATA!BT2466=\"\",\"\",CRSDATA!BT2466)","v":""}]
[null,null,null,null,null,null,null,null,null,null,null,null,null,null,null,null,null,null,null,null,null,null,null,null,null,null,null,null,null,null,{"$f":"IF(CRSDATA!BT2467=\"\",\"\",CRSDATA!BT2467)","v":""}]
[null,null,null,null,null,null,null,null,null,null,null,null,null,null,null,null,null,null,null,null,null,null,null,null,null,null,null,null,null,null,{"$f":"IF(CRSDATA!BT2468=\"\",\"\",CRSDATA!BT2468)","v":""}]
[null,null,null,null,null,null,null,null,null,null,null,null,null,null,null,null,null,null,null,null,null,null,null,null,null,null,null,null,null,null,{"$f":"IF(CRSDATA!BT2469=\"\",\"\",CRSDATA!BT2469)","v":""}]
[null,null,null,null,null,null,null,null,null,null,null,null,null,null,null,null,null,null,null,null,null,null,null,null,null,null,null,null,null,null,{"$f":"IF(CRSDATA!BT2470=\"\",\"\",CRSDATA!BT2470)","v":""}]
[null,null,null,null,null,null,null,null,null,null,null,null,null,null,null,null,null,null,null,null,null,null,null,null,null,null,null,null,null,null,{"$f":"IF(CRSDATA!BT2471=\"\",\"\",CRSDATA!BT2471)","v":""}]
[null,null,null,null,null,null,null,null,null,null,null,null,null,null,null,null,null,null,null,null,null,null,null,null,null,null,null,null,null,null,{"$f":"IF(CRSDATA!BT2472=\"\",\"\",CRSDATA!BT2472)","v":""}]
[null,null,null,null,null,null,null,null,null,null,null,null,null,null,null,null,null,null,null,null,null,null,null,null,null,null,null,null,null,null,{"$f":"IF(CRSDATA!BT2473=\"\",\"\",CRSDATA!BT2473)","v":""}]
[null,null,null,null,null,null,null,null,null,null,null,null,null,null,null,null,null,null,null,null,null,null,null,null,null,null,null,null,null,null,{"$f":"IF(CRSDATA!BT2474=\"\",\"\",CRSDATA!BT2474)","v":""}]
[null,null,null,null,null,null,null,null,null,null,null,null,null,null,null,null,null,null,null,null,null,null,null,null,null,null,null,null,null,null,{"$f":"IF(CRSDATA!BT2475=\"\",\"\",CRSDATA!BT2475)","v":""}]
[null,null,null,null,null,null,null,null,null,null,null,null,null,null,null,null,null,null,null,null,null,null,null,null,null,null,null,null,null,null,{"$f":"IF(CRSDATA!BT2476=\"\",\"\",CRSDATA!BT2476)","v":""}]
[null,null,null,null,null,null,null,null,null,null,null,null,null,null,null,null,null,null,null,null,null,null,null,null,null,null,null,null,null,null,{"$f":"IF(CRSDATA!BT2477=\"\",\"\",CRSDATA!BT2477)","v":""}]
[null,null,null,null,null,null,null,null,null,null,null,null,null,null,null,null,null,null,null,null,null,null,null,null,null,null,null,null,null,null,{"$f":"IF(CRSDATA!BT2478=\"\",\"\",CRSDATA!BT2478)","v":""}]
[null,null,null,null,null,null,null,null,null,null,null,null,null,null,null,null,null,null,null,null,null,null,null,null,null,null,null,null,null,null,{"$f":"IF(CRSDATA!BT2479=\"\",\"\",CRSDATA!BT2479)","v":""}]
[null,null,null,null,null,null,null,null,null,null,null,null,null,null,null,null,null,null,null,null,null,null,null,null,null,null,null,null,null,null,{"$f":"IF(CRSDATA!BT2480=\"\",\"\",CRSDATA!BT2480)","v":""}]
[null,null,null,null,null,null,null,null,null,null,null,null,null,null,null,null,null,null,null,null,null,null,null,null,null,null,null,null,null,null,{"$f":"IF(CRSDATA!BT2481=\"\",\"\",CRSDATA!BT2481)","v":""}]
[null,null,null,null,null,null,null,null,null,null,null,null,null,null,null,null,null,null,null,null,null,null,null,null,null,null,null,null,null,null,{"$f":"IF(CRSDATA!BT2482=\"\",\"\",CRSDATA!BT2482)","v":""}]
[null,null,null,null,null,null,null,null,null,null,null,null,null,null,null,null,null,null,null,null,null,null,null,null,null,null,null,null,null,null,{"$f":"IF(CRSDATA!BT2483=\"\",\"\",CRSDATA!BT2483)","v":""}]
[null,null,null,null,null,null,null,null,null,null,null,null,null,null,null,null,null,null,null,null,null,null,null,null,null,null,null,null,null,null,{"$f":"IF(CRSDATA!BT2484=\"\",\"\",CRSDATA!BT2484)","v":""}]
[null,null,null,null,null,null,null,null,null,null,null,null,null,null,null,null,null,null,null,null,null,null,null,null,null,null,null,null,null,null,{"$f":"IF(CRSDATA!BT2485=\"\",\"\",CRSDATA!BT2485)","v":""}]
[null,null,null,null,null,null,null,null,null,null,null,null,null,null,null,null,null,null,null,null,null,null,null,null,null,null,null,null,null,null,{"$f":"IF(CRSDATA!BT2486=\"\",\"\",CRSDATA!BT2486)","v":""}]
[null,null,null,null,null,null,null,null,null,null,null,null,null,null,null,null,null,null,null,null,null,null,null,null,null,null,null,null,null,null,{"$f":"IF(CRSDATA!BT2487=\"\",\"\",CRSDATA!BT2487)","v":""}]
[null,null,null,null,null,null,null,null,null,null,null,null,null,null,null,null,null,null,null,null,null,null,null,null,null,null,null,null,null,null,{"$f":"IF(CRSDATA!BT2488=\"\",\"\",CRSDATA!BT2488)","v":""}]
[null,null,null,null,null,null,null,null,null,null,null,null,null,null,null,null,null,null,null,null,null,null,null,null,null,null,null,null,null,null,{"$f":"IF(CRSDATA!BT2489=\"\",\"\",CRSDATA!BT2489)","v":""}]
[null,null,null,null,null,null,null,null,null,null,null,null,null,null,null,null,null,null,null,null,null,null,null,null,null,null,null,null,null,null,{"$f":"IF(CRSDATA!BT2490=\"\",\"\",CRSDATA!BT2490)","v":""}]
[null,null,null,null,null,null,null,null,null,null,null,null,null,null,null,null,null,null,null,null,null,null,null,null,null,null,null,null,null,null,{"$f":"IF(CRSDATA!BT2491=\"\",\"\",CRSDATA!BT2491)","v":""}]
[null,null,null,null,null,null,null,null,null,null,null,null,null,null,null,null,null,null,null,null,null,null,null,null,null,null,null,null,null,null,{"$f":"IF(CRSDATA!BT2492=\"\",\"\",CRSDATA!BT2492)","v":""}]
[null,null,null,null,null,null,null,null,null,null,null,null,null,null,null,null,null,null,null,null,null,null,null,null,null,null,null,null,null,null,{"$f":"IF(CRSDATA!BT2493=\"\",\"\",CRSDATA!BT2493)","v":""}]
[null,null,null,null,null,null,null,null,null,null,null,null,null,null,null,null,null,null,null,null,null,null,null,null,null,null,null,null,null,null,{"$f":"IF(CRSDATA!BT2494=\"\",\"\",CRSDATA!BT2494)","v":""}]
[null,null,null,null,null,null,null,null,null,null,null,null,null,null,null,null,null,null,null,null,null,null,null,null,null,null,null,null,null,null,{"$f":"IF(CRSDATA!BT2495=\"\",\"\",CRSDATA!BT2495)","v":""}]
[null,null,null,null,null,null,null,null,null,null,null,null,null,null,null,null,null,null,null,null,null,null,null,null,null,null,null,null,null,null,{"$f":"IF(CRSDATA!BT2496=\"\",\"\",CRSDATA!BT2496)","v":""}]
[null,null,null,null,null,null,null,null,null,null,null,null,null,null,null,null,null,null,null,null,null,null,null,null,null,null,null,null,null,null,{"$f":"IF(CRSDATA!BT2497=\"\",\"\",CRSDATA!BT2497)","v":""}]
[null,null,null,null,null,null,null,null,null,null,null,null,null,null,null,null,null,null,null,null,null,null,null,null,null,null,null,null,null,null,{"$f":"IF(CRSDATA!BT2498=\"\",\"\",CRSDATA!BT2498)","v":""}]
[null,null,null,null,null,null,null,null,null,null,null,null,null,null,null,null,null,null,null,null,null,null,null,null,null,null,null,null,null,null,{"$f":"IF(CRSDATA!BT2499=\"\",\"\",CRSDATA!BT2499)","v":""}]
[null,null,null,null,null,null,null,null,null,null,null,null,null,null,null,null,null,null,null,null,null,null,null,null,null,null,null,null,null,null,{"$f":"IF(CRSDATA!BT2500=\"\",\"\",CRSDATA!BT2500)","v":""}]
[null,null,null,null,null,null,null,null,null,null,null,null,null,null,null,null,null,null,null,null,null,null,null,null,null,null,null,null,null,null,{"$f":"IF(CRSDATA!BT2501=\"\",\"\",CRSDATA!BT2501)","v":""}]
[null,null,null,null,null,null,null,null,null,null,null,null,null,null,null,null,null,null,null,null,null,null,null,null,null,null,null,null,null,null,{"$f":"IF(CRSDATA!BT2502=\"\",\"\",CRSDATA!BT2502)","v":""}]
[null,null,null,null,null,null,null,null,null,null,null,null,null,null,null,null,null,null,null,null,null,null,null,null,null,null,null,null,null,null,{"$f":"IF(CRSDATA!BT2503=\"\",\"\",CRSDATA!BT2503)","v":""}]
[null,null,null,null,null,null,null,null,null,null,null,null,null,null,null,null,null,null,null,null,null,null,null,null,null,null,null,null,null,null,{"$f":"IF(CRSDATA!BT2504=\"\",\"\",CRSDATA!BT2504)","v":""}]
[null,null,null,null,null,null,null,null,null,null,null,null,null,null,null,null,null,null,null,null,null,null,null,null,null,null,null,null,null,null,{"$f":"IF(CRSDATA!BT2505=\"\",\"\",CRSDATA!BT2505)","v":""}]
[null,null,null,null,null,null,null,null,null,null,null,null,null,null,null,null,null,null,null,null,null,null,null,null,null,null,null,null,null,null,{"$f":"IF(CRSDATA!BT2506=\"\",\"\",CRSDATA!BT2506)","v":""}]
[null,null,null,null,null,null,null,null,null,null,null,null,null,null,null,null,null,null,null,null,null,null,null,null,null,null,null,null,null,null,{"$f":"IF(CRSDATA!BT2507=\"\",\"\",CRSDATA!BT2507)","v":""}]
[null,null,null,null,null,null,null,null,null,null,null,null,null,null,null,null,null,null,null,null,null,null,null,null,null,null,null,null,null,null,{"$f":"IF(CRSDATA!BT2508=\"\",\"\",CRSDATA!BT2508)","v":""}]
[null,null,null,null,null,null,null,null,null,null,null,null,null,null,null,null,null,null,null,null,null,null,null,null,null,null,null,null,null,null,{"$f":"IF(CRSDATA!BT2509=\"\",\"\",CRSDATA!BT2509)","v":""}]
[null,null,null,null,null,null,null,null,null,null,null,null,null,null,null,null,null,null,null,null,null,null,null,null,null,null,null,null,null,null,{"$f":"IF(CRSDATA!BT2510=\"\",\"\",CRSDATA!BT2510)","v":""}]
[null,null,null,null,null,null,null,null,null,null,null,null,null,null,null,null,null,null,null,null,null,null,null,null,null,null,null,null,null,null,{"$f":"IF(CRSDATA!BT2511=\"\",\"\",CRSDATA!BT2511)","v":""}]
[null,null,null,null,null,null,null,null,null,null,null,null,null,null,null,null,null,null,null,null,null,null,null,null,null,null,null,null,null,null,{"$f":"IF(CRSDATA!BT2512=\"\",\"\",CRSDATA!BT2512)","v":""}]
[null,null,null,null,null,null,null,null,null,null,null,null,null,null,null,null,null,null,null,null,null,null,null,null,null,null,null,null,null,null,{"$f":"IF(CRSDATA!BT2513=\"\",\"\",CRSDATA!BT2513)","v":""}]
[null,null,null,null,null,null,null,null,null,null,null,null,null,null,null,null,null,null,null,null,null,null,null,null,null,null,null,null,null,null,{"$f":"IF(CRSDATA!BT2514=\"\",\"\",CRSDATA!BT2514)","v":""}]
[null,null,null,null,null,null,null,null,null,null,null,null,null,null,null,null,null,null,null,null,null,null,null,null,null,null,null,null,null,null,{"$f":"IF(CRSDATA!BT2515=\"\",\"\",CRSDATA!BT2515)","v":""}]
[null,null,null,null,null,null,null,null,null,null,null,null,null,null,null,null,null,null,null,null,null,null,null,null,null,null,null,null,null,null,{"$f":"IF(CRSDATA!BT2516=\"\",\"\",CRSDATA!BT2516)","v":""}]
[null,null,null,null,null,null,null,null,null,null,null,null,null,null,null,null,null,null,null,null,null,null,null,null,null,null,null,null,null,null,{"$f":"IF(CRSDATA!BT2517=\"\",\"\",CRSDATA!BT2517)","v":""}]
[null,null,null,null,null,null,null,null,null,null,null,null,null,null,null,null,null,null,null,null,null,null,null,null,null,null,null,null,null,null,{"$f":"IF(CRSDATA!BT2518=\"\",\"\",CRSDATA!BT2518)","v":""}]
[null,null,null,null,null,null,null,null,null,null,null,null,null,null,null,null,null,null,null,null,null,null,null,null,null,null,null,null,null,null,{"$f":"IF(CRSDATA!BT2519=\"\",\"\",CRSDATA!BT2519)","v":""}]
[null,null,null,null,null,null,null,null,null,null,null,null,null,null,null,null,null,null,null,null,null,null,null,null,null,null,null,null,null,null,{"$f":"IF(CRSDATA!BT2520=\"\",\"\",CRSDATA!BT2520)","v":""}]
[null,null,null,null,null,null,null,null,null,null,null,null,null,null,null,null,null,null,null,null,null,null,null,null,null,null,null,null,null,null,{"$f":"IF(CRSDATA!BT2521=\"\",\"\",CRSDATA!BT2521)","v":""}]
[null,null,null,null,null,null,null,null,null,null,null,null,null,null,null,null,null,null,null,null,null,null,null,null,null,null,null,null,null,null,{"$f":"IF(CRSDATA!BT2522=\"\",\"\",CRSDATA!BT2522)","v":""}]
[null,null,null,null,null,null,null,null,null,null,null,null,null,null,null,null,null,null,null,null,null,null,null,null,null,null,null,null,null,null,{"$f":"IF(CRSDATA!BT2523=\"\",\"\",CRSDATA!BT2523)","v":""}]
[null,null,null,null,null,null,null,null,null,null,null,null,null,null,null,null,null,null,null,null,null,null,null,null,null,null,null,null,null,null,{"$f":"IF(CRSDATA!BT2524=\"\",\"\",CRSDATA!BT2524)","v":""}]
[null,null,null,null,null,null,null,null,null,null,null,null,null,null,null,null,null,null,null,null,null,null,null,null,null,null,null,null,null,null,{"$f":"IF(CRSDATA!BT2525=\"\",\"\",CRSDATA!BT2525)","v":""}]
[null,null,null,null,null,null,null,null,null,null,null,null,null,null,null,null,null,null,null,null,null,null,null,null,null,null,null,null,null,null,{"$f":"IF(CRSDATA!BT2526=\"\",\"\",CRSDATA!BT2526)","v":""}]
[null,null,null,null,null,null,null,null,null,null,null,null,null,null,null,null,null,null,null,null,null,null,null,null,null,null,null,null,null,null,{"$f":"IF(CRSDATA!BT2527=\"\",\"\",CRSDATA!BT2527)","v":""}]
[null,null,null,null,null,null,null,null,null,null,null,null,null,null,null,null,null,null,null,null,null,null,null,null,null,null,null,null,null,null,{"$f":"IF(CRSDATA!BT2528=\"\",\"\",CRSDATA!BT2528)","v":""}]
[null,null,null,null,null,null,null,null,null,null,null,null,null,null,null,null,null,null,null,null,null,null,null,null,null,null,null,null,null,null,{"$f":"IF(CRSDATA!BT2529=\"\",\"\",CRSDATA!BT2529)","v":""}]
[null,null,null,null,null,null,null,null,null,null,null,null,null,null,null,null,null,null,null,null,null,null,null,null,null,null,null,null,null,null,{"$f":"IF(CRSDATA!BT2530=\"\",\"\",CRSDATA!BT2530)","v":""}]
[null,null,null,null,null,null,null,null,null,null,null,null,null,null,null,null,null,null,null,null,null,null,null,null,null,null,null,null,null,null,{"$f":"IF(CRSDATA!BT2531=\"\",\"\",CRSDATA!BT2531)","v":""}]
[null,null,null,null,null,null,null,null,null,null,null,null,null,null,null,null,null,null,null,null,null,null,null,null,null,null,null,null,null,null,{"$f":"IF(CRSDATA!BT2532=\"\",\"\",CRSDATA!BT2532)","v":""}]
[null,null,null,null,null,null,null,null,null,null,null,null,null,null,null,null,null,null,null,null,null,null,null,null,null,null,null,null,null,null,{"$f":"IF(CRSDATA!BT2533=\"\",\"\",CRSDATA!BT2533)","v":""}]
[null,null,null,null,null,null,null,null,null,null,null,null,null,null,null,null,null,null,null,null,null,null,null,null,null,null,null,null,null,null,{"$f":"IF(CRSDATA!BT2534=\"\",\"\",CRSDATA!BT2534)","v":""}]
[null,null,null,null,null,null,null,null,null,null,null,null,null,null,null,null,null,null,null,null,null,null,null,null,null,null,null,null,null,null,{"$f":"IF(CRSDATA!BT2535=\"\",\"\",CRSDATA!BT2535)","v":""}]
[null,null,null,null,null,null,null,null,null,null,null,null,null,null,null,null,null,null,null,null,null,null,null,null,null,null,null,null,null,null,{"$f":"IF(CRSDATA!BT2536=\"\",\"\",CRSDATA!BT2536)","v":""}]
[null,null,null,null,null,null,null,null,null,null,null,null,null,null,null,null,null,null,null,null,null,null,null,null,null,null,null,null,null,null,{"$f":"IF(CRSDATA!BT2537=\"\",\"\",CRSDATA!BT2537)","v":""}]
[null,null,null,null,null,null,null,null,null,null,null,null,null,null,null,null,null,null,null,null,null,null,null,null,null,null,null,null,null,null,{"$f":"IF(CRSDATA!BT2538=\"\",\"\",CRSDATA!BT2538)","v":""}]
[null,null,null,null,null,null,null,null,null,null,null,null,null,null,null,null,null,null,null,null,null,null,null,null,null,null,null,null,null,null,{"$f":"IF(CRSDATA!BT2539=\"\",\"\",CRSDATA!BT2539)","v":""}]
[null,null,null,null,null,null,null,null,null,null,null,null,null,null,null,null,null,null,null,null,null,null,null,null,null,null,null,null,null,null,{"$f":"IF(CRSDATA!BT2540=\"\",\"\",CRSDATA!BT2540)","v":""}]
[null,null,null,null,null,null,null,null,null,null,null,null,null,null,null,null,null,null,null,null,null,null,null,null,null,null,null,null,null,null,{"$f":"IF(CRSDATA!BT2541=\"\",\"\",CRSDATA!BT2541)","v":""}]
[null,null,null,null,null,null,null,null,null,null,null,null,null,null,null,null,null,null,null,null,null,null,null,null,null,null,null,null,null,null,{"$f":"IF(CRSDATA!BT2542=\"\",\"\",CRSDATA!BT2542)","v":""}]
[null,null,null,null,null,null,null,null,null,null,null,null,null,null,null,null,null,null,null,null,null,null,null,null,null,null,null,null,null,null,{"$f":"IF(CRSDATA!BT2543=\"\",\"\",CRSDATA!BT2543)","v":""}]
[null,null,null,null,null,null,null,null,null,null,null,null,null,null,null,null,null,null,null,null,null,null,null,null,null,null,null,null,null,null,{"$f":"IF(CRSDATA!BT2544=\"\",\"\",CRSDATA!BT2544)","v":""}]
[null,null,null,null,null,null,null,null,null,null,null,null,null,null,null,null,null,null,null,null,null,null,null,null,null,null,null,null,null,null,{"$f":"IF(CRSDATA!BT2545=\"\",\"\",CRSDATA!BT2545)","v":""}]
[null,null,null,null,null,null,null,null,null,null,null,null,null,null,null,null,null,null,null,null,null,null,null,null,null,null,null,null,null,null,{"$f":"IF(CRSDATA!BT2546=\"\",\"\",CRSDATA!BT2546)","v":""}]
[null,null,null,null,null,null,null,null,null,null,null,null,null,null,null,null,null,null,null,null,null,null,null,null,null,null,null,null,null,null,{"$f":"IF(CRSDATA!BT2547=\"\",\"\",CRSDATA!BT2547)","v":""}]
[null,null,null,null,null,null,null,null,null,null,null,null,null,null,null,null,null,null,null,null,null,null,null,null,null,null,null,null,null,null,{"$f":"IF(CRSDATA!BT2548=\"\",\"\",CRSDATA!BT2548)","v":""}]
[null,null,null,null,null,null,null,null,null,null,null,null,null,null,null,null,null,null,null,null,null,null,null,null,null,null,null,null,null,null,{"$f":"IF(CRSDATA!BT2549=\"\",\"\",CRSDATA!BT2549)","v":""}]
[null,null,null,null,null,null,null,null,null,null,null,null,null,null,null,null,null,null,null,null,null,null,null,null,null,null,null,null,null,null,{"$f":"IF(CRSDATA!BT2550=\"\",\"\",CRSDATA!BT2550)","v":""}]
[null,null,null,null,null,null,null,null,null,null,null,null,null,null,null,null,null,null,null,null,null,null,null,null,null,null,null,null,null,null,{"$f":"IF(CRSDATA!BT2551=\"\",\"\",CRSDATA!BT2551)","v":""}]
[null,null,null,null,null,null,null,null,null,null,null,null,null,null,null,null,null,null,null,null,null,null,null,null,null,null,null,null,null,null,{"$f":"IF(CRSDATA!BT2552=\"\",\"\",CRSDATA!BT2552)","v":""}]
[null,null,null,null,null,null,null,null,null,null,null,null,null,null,null,null,null,null,null,null,null,null,null,null,null,null,null,null,null,null,{"$f":"IF(CRSDATA!BT2553=\"\",\"\",CRSDATA!BT2553)","v":""}]
[null,null,null,null,null,null,null,null,null,null,null,null,null,null,null,null,null,null,null,null,null,null,null,null,null,null,null,null,null,null,{"$f":"IF(CRSDATA!BT2554=\"\",\"\",CRSDATA!BT2554)","v":""}]
[null,null,null,null,null,null,null,null,null,null,null,null,null,null,null,null,null,null,null,null,null,null,null,null,null,null,null,null,null,null,{"$f":"IF(CRSDATA!BT2555=\"\",\"\",CRSDATA!BT2555)","v":""}]
[null,null,null,null,null,null,null,null,null,null,null,null,null,null,null,null,null,null,null,null,null,null,null,null,null,null,null,null,null,null,{"$f":"IF(CRSDATA!BT2556=\"\",\"\",CRSDATA!BT2556)","v":""}]
[null,null,null,null,null,null,null,null,null,null,null,null,null,null,null,null,null,null,null,null,null,null,null,null,null,null,null,null,null,null,{"$f":"IF(CRSDATA!BT2557=\"\",\"\",CRSDATA!BT2557)","v":""}]
[null,null,null,null,null,null,null,null,null,null,null,null,null,null,null,null,null,null,null,null,null,null,null,null,null,null,null,null,null,null,{"$f":"IF(CRSDATA!BT2558=\"\",\"\",CRSDATA!BT2558)","v":""}]
[null,null,null,null,null,null,null,null,null,null,null,null,null,null,null,null,null,null,null,null,null,null,null,null,null,null,null,null,null,null,{"$f":"IF(CRSDATA!BT2559=\"\",\"\",CRSDATA!BT2559)","v":""}]
[null,null,null,null,null,null,null,null,null,null,null,null,null,null,null,null,null,null,null,null,null,null,null,null,null,null,null,null,null,null,{"$f":"IF(CRSDATA!BT2560=\"\",\"\",CRSDATA!BT2560)","v":""}]
[null,null,null,null,null,null,null,null,null,null,null,null,null,null,null,null,null,null,null,null,null,null,null,null,null,null,null,null,null,null,{"$f":"IF(CRSDATA!BT2561=\"\",\"\",CRSDATA!BT2561)","v":""}]
[null,null,null,null,null,null,null,null,null,null,null,null,null,null,null,null,null,null,null,null,null,null,null,null,null,null,null,null,null,null,{"$f":"IF(CRSDATA!BT2562=\"\",\"\",CRSDATA!BT2562)","v":""}]
[null,null,null,null,null,null,null,null,null,null,null,null,null,null,null,null,null,null,null,null,null,null,null,null,null,null,null,null,null,null,{"$f":"IF(CRSDATA!BT2563=\"\",\"\",CRSDATA!BT2563)","v":""}]
[null,null,null,null,null,null,null,null,null,null,null,null,null,null,null,null,null,null,null,null,null,null,null,null,null,null,null,null,null,null,{"$f":"IF(CRSDATA!BT2564=\"\",\"\",CRSDATA!BT2564)","v":""}]
[null,null,null,null,null,null,null,null,null,null,null,null,null,null,null,null,null,null,null,null,null,null,null,null,null,null,null,null,null,null,{"$f":"IF(CRSDATA!BT2565=\"\",\"\",CRSDATA!BT2565)","v":""}]
[null,null,null,null,null,null,null,null,null,null,null,null,null,null,null,null,null,null,null,null,null,null,null,null,null,null,null,null,null,null,{"$f":"IF(CRSDATA!BT2566=\"\",\"\",CRSDATA!BT2566)","v":""}]
[null,null,null,null,null,null,null,null,null,null,null,null,null,null,null,null,null,null,null,null,null,null,null,null,null,null,null,null,null,null,{"$f":"IF(CRSDATA!BT2567=\"\",\"\",CRSDATA!BT2567)","v":""}]
[null,null,null,null,null,null,null,null,null,null,null,null,null,null,null,null,null,null,null,null,null,null,null,null,null,null,null,null,null,null,{"$f":"IF(CRSDATA!BT2568=\"\",\"\",CRSDATA!BT2568)","v":""}]
[null,null,null,null,null,null,null,null,null,null,null,null,null,null,null,null,null,null,null,null,null,null,null,null,null,null,null,null,null,null,{"$f":"IF(CRSDATA!BT2569=\"\",\"\",CRSDATA!BT2569)","v":""}]
[null,null,null,null,null,null,null,null,null,null,null,null,null,null,null,null,null,null,null,null,null,null,null,null,null,null,null,null,null,null,{"$f":"IF(CRSDATA!BT2570=\"\",\"\",CRSDATA!BT2570)","v":""}]
[null,null,null,null,null,null,null,null,null,null,null,null,null,null,null,null,null,null,null,null,null,null,null,null,null,null,null,null,null,null,{"$f":"IF(CRSDATA!BT2571=\"\",\"\",CRSDATA!BT2571)","v":""}]
[null,null,null,null,null,null,null,null,null,null,null,null,null,null,null,null,null,null,null,null,null,null,null,null,null,null,null,null,null,null,{"$f":"IF(CRSDATA!BT2572=\"\",\"\",CRSDATA!BT2572)","v":""}]
[null,null,null,null,null,null,null,null,null,null,null,null,null,null,null,null,null,null,null,null,null,null,null,null,null,null,null,null,null,null,{"$f":"IF(CRSDATA!BT2573=\"\",\"\",CRSDATA!BT2573)","v":""}]
[null,null,null,null,null,null,null,null,null,null,null,null,null,null,null,null,null,null,null,null,null,null,null,null,null,null,null,null,null,null,{"$f":"IF(CRSDATA!BT2574=\"\",\"\",CRSDATA!BT2574)","v":""}]
[null,null,null,null,null,null,null,null,null,null,null,null,null,null,null,null,null,null,null,null,null,null,null,null,null,null,null,null,null,null,{"$f":"IF(CRSDATA!BT2575=\"\",\"\",CRSDATA!BT2575)","v":""}]
[null,null,null,null,null,null,null,null,null,null,null,null,null,null,null,null,null,null,null,null,null,null,null,null,null,null,null,null,null,null,{"$f":"IF(CRSDATA!BT2576=\"\",\"\",CRSDATA!BT2576)","v":""}]
[null,null,null,null,null,null,null,null,null,null,null,null,null,null,null,null,null,null,null,null,null,null,null,null,null,null,null,null,null,null,{"$f":"IF(CRSDATA!BT2577=\"\",\"\",CRSDATA!BT2577)","v":""}]
[null,null,null,null,null,null,null,null,null,null,null,null,null,null,null,null,null,null,null,null,null,null,null,null,null,null,null,null,null,null,{"$f":"IF(CRSDATA!BT2578=\"\",\"\",CRSDATA!BT2578)","v":""}]
[null,null,null,null,null,null,null,null,null,null,null,null,null,null,null,null,null,null,null,null,null,null,null,null,null,null,null,null,null,null,{"$f":"IF(CRSDATA!BT2579=\"\",\"\",CRSDATA!BT2579)","v":""}]
[null,null,null,null,null,null,null,null,null,null,null,null,null,null,null,null,null,null,null,null,null,null,null,null,null,null,null,null,null,null,{"$f":"IF(CRSDATA!BT2580=\"\",\"\",CRSDATA!BT2580)","v":""}]
[null,null,null,null,null,null,null,null,null,null,null,null,null,null,null,null,null,null,null,null,null,null,null,null,null,null,null,null,null,null,{"$f":"IF(CRSDATA!BT2581=\"\",\"\",CRSDATA!BT2581)","v":""}]
[null,null,null,null,null,null,null,null,null,null,null,null,null,null,null,null,null,null,null,null,null,null,null,null,null,null,null,null,null,null,{"$f":"IF(CRSDATA!BT2582=\"\",\"\",CRSDATA!BT2582)","v":""}]
[null,null,null,null,null,null,null,null,null,null,null,null,null,null,null,null,null,null,null,null,null,null,null,null,null,null,null,null,null,null,{"$f":"IF(CRSDATA!BT2583=\"\",\"\",CRSDATA!BT2583)","v":""}]
[null,null,null,null,null,null,null,null,null,null,null,null,null,null,null,null,null,null,null,null,null,null,null,null,null,null,null,null,null,null,{"$f":"IF(CRSDATA!BT2584=\"\",\"\",CRSDATA!BT2584)","v":""}]
[null,null,null,null,null,null,null,null,null,null,null,null,null,null,null,null,null,null,null,null,null,null,null,null,null,null,null,null,null,null,{"$f":"IF(CRSDATA!BT2585=\"\",\"\",CRSDATA!BT2585)","v":""}]
[null,null,null,null,null,null,null,null,null,null,null,null,null,null,null,null,null,null,null,null,null,null,null,null,null,null,null,null,null,null,{"$f":"IF(CRSDATA!BT2586=\"\",\"\",CRSDATA!BT2586)","v":""}]
[null,null,null,null,null,null,null,null,null,null,null,null,null,null,null,null,null,null,null,null,null,null,null,null,null,null,null,null,null,null,{"$f":"IF(CRSDATA!BT2587=\"\",\"\",CRSDATA!BT2587)","v":""}]
[null,null,null,null,null,null,null,null,null,null,null,null,null,null,null,null,null,null,null,null,null,null,null,null,null,null,null,null,null,null,{"$f":"IF(CRSDATA!BT2588=\"\",\"\",CRSDATA!BT2588)","v":""}]
[null,null,null,null,null,null,null,null,null,null,null,null,null,null,null,null,null,null,null,null,null,null,null,null,null,null,null,null,null,null,{"$f":"IF(CRSDATA!BT2589=\"\",\"\",CRSDATA!BT2589)","v":""}]
[null,null,null,null,null,null,null,null,null,null,null,null,null,null,null,null,null,null,null,null,null,null,null,null,null,null,null,null,null,null,{"$f":"IF(CRSDATA!BT2590=\"\",\"\",CRSDATA!BT2590)","v":""}]
[null,null,null,null,null,null,null,null,null,null,null,null,null,null,null,null,null,null,null,null,null,null,null,null,null,null,null,null,null,null,{"$f":"IF(CRSDATA!BT2591=\"\",\"\",CRSDATA!BT2591)","v":""}]
[null,null,null,null,null,null,null,null,null,null,null,null,null,null,null,null,null,null,null,null,null,null,null,null,null,null,null,null,null,null,{"$f":"IF(CRSDATA!BT2592=\"\",\"\",CRSDATA!BT2592)","v":""}]
[null,null,null,null,null,null,null,null,null,null,null,null,null,null,null,null,null,null,null,null,null,null,null,null,null,null,null,null,null,null,{"$f":"IF(CRSDATA!BT2593=\"\",\"\",CRSDATA!BT2593)","v":""}]
[null,null,null,null,null,null,null,null,null,null,null,null,null,null,null,null,null,null,null,null,null,null,null,null,null,null,null,null,null,null,{"$f":"IF(CRSDATA!BT2594=\"\",\"\",CRSDATA!BT2594)","v":""}]
[null,null,null,null,null,null,null,null,null,null,null,null,null,null,null,null,null,null,null,null,null,null,null,null,null,null,null,null,null,null,{"$f":"IF(CRSDATA!BT2595=\"\",\"\",CRSDATA!BT2595)","v":""}]
[null,null,null,null,null,null,null,null,null,null,null,null,null,null,null,null,null,null,null,null,null,null,null,null,null,null,null,null,null,null,{"$f":"IF(CRSDATA!BT2596=\"\",\"\",CRSDATA!BT2596)","v":""}]
[null,null,null,null,null,null,null,null,null,null,null,null,null,null,null,null,null,null,null,null,null,null,null,null,null,null,null,null,null,null,{"$f":"IF(CRSDATA!BT2597=\"\",\"\",CRSDATA!BT2597)","v":""}]
[null,null,null,null,null,null,null,null,null,null,null,null,null,null,null,null,null,null,null,null,null,null,null,null,null,null,null,null,null,null,{"$f":"IF(CRSDATA!BT2598=\"\",\"\",CRSDATA!BT2598)","v":""}]
[null,null,null,null,null,null,null,null,null,null,null,null,null,null,null,null,null,null,null,null,null,null,null,null,null,null,null,null,null,null,{"$f":"IF(CRSDATA!BT2599=\"\",\"\",CRSDATA!BT2599)","v":""}]
[null,null,null,null,null,null,null,null,null,null,null,null,null,null,null,null,null,null,null,null,null,null,null,null,null,null,null,null,null,null,{"$f":"IF(CRSDATA!BT2600=\"\",\"\",CRSDATA!BT2600)","v":""}]
[null,null,null,null,null,null,null,null,null,null,null,null,null,null,null,null,null,null,null,null,null,null,null,null,null,null,null,null,null,null,{"$f":"IF(CRSDATA!BT2601=\"\",\"\",CRSDATA!BT2601)","v":""}]
[null,null,null,null,null,null,null,null,null,null,null,null,null,null,null,null,null,null,null,null,null,null,null,null,null,null,null,null,null,null,{"$f":"IF(CRSDATA!BT2602=\"\",\"\",CRSDATA!BT2602)","v":""}]
[null,null,null,null,null,null,null,null,null,null,null,null,null,null,null,null,null,null,null,null,null,null,null,null,null,null,null,null,null,null,{"$f":"IF(CRSDATA!BT2603=\"\",\"\",CRSDATA!BT2603)","v":""}]
[null,null,null,null,null,null,null,null,null,null,null,null,null,null,null,null,null,null,null,null,null,null,null,null,null,null,null,null,null,null,{"$f":"IF(CRSDATA!BT2604=\"\",\"\",CRSDATA!BT2604)","v":""}]
[null,null,null,null,null,null,null,null,null,null,null,null,null,null,null,null,null,null,null,null,null,null,null,null,null,null,null,null,null,null,{"$f":"IF(CRSDATA!BT2605=\"\",\"\",CRSDATA!BT2605)","v":""}]
[null,null,null,null,null,null,null,null,null,null,null,null,null,null,null,null,null,null,null,null,null,null,null,null,null,null,null,null,null,null,{"$f":"IF(CRSDATA!BT2606=\"\",\"\",CRSDATA!BT2606)","v":""}]
[null,null,null,null,null,null,null,null,null,null,null,null,null,null,null,null,null,null,null,null,null,null,null,null,null,null,null,null,null,null,{"$f":"IF(CRSDATA!BT2607=\"\",\"\",CRSDATA!BT2607)","v":""}]
[null,null,null,null,null,null,null,null,null,null,null,null,null,null,null,null,null,null,null,null,null,null,null,null,null,null,null,null,null,null,{"$f":"IF(CRSDATA!BT2608=\"\",\"\",CRSDATA!BT2608)","v":""}]
[null,null,null,null,null,null,null,null,null,null,null,null,null,null,null,null,null,null,null,null,null,null,null,null,null,null,null,null,null,null,{"$f":"IF(CRSDATA!BT2609=\"\",\"\",CRSDATA!BT2609)","v":""}]
[null,null,null,null,null,null,null,null,null,null,null,null,null,null,null,null,null,null,null,null,null,null,null,null,null,null,null,null,null,null,{"$f":"IF(CRSDATA!BT2610=\"\",\"\",CRSDATA!BT2610)","v":""}]
[null,null,null,null,null,null,null,null,null,null,null,null,null,null,null,null,null,null,null,null,null,null,null,null,null,null,null,null,null,null,{"$f":"IF(CRSDATA!BT2611=\"\",\"\",CRSDATA!BT2611)","v":""}]
[null,null,null,null,null,null,null,null,null,null,null,null,null,null,null,null,null,null,null,null,null,null,null,null,null,null,null,null,null,null,{"$f":"IF(CRSDATA!BT2612=\"\",\"\",CRSDATA!BT2612)","v":""}]
[null,null,null,null,null,null,null,null,null,null,null,null,null,null,null,null,null,null,null,null,null,null,null,null,null,null,null,null,null,null,{"$f":"IF(CRSDATA!BT2613=\"\",\"\",CRSDATA!BT2613)","v":""}]
[null,null,null,null,null,null,null,null,null,null,null,null,null,null,null,null,null,null,null,null,null,null,null,null,null,null,null,null,null,null,{"$f":"IF(CRSDATA!BT2614=\"\",\"\",CRSDATA!BT2614)","v":""}]
[null,null,null,null,null,null,null,null,null,null,null,null,null,null,null,null,null,null,null,null,null,null,null,null,null,null,null,null,null,null,{"$f":"IF(CRSDATA!BT2615=\"\",\"\",CRSDATA!BT2615)","v":""}]
[null,null,null,null,null,null,null,null,null,null,null,null,null,null,null,null,null,null,null,null,null,null,null,null,null,null,null,null,null,null,{"$f":"IF(CRSDATA!BT2616=\"\",\"\",CRSDATA!BT2616)","v":""}]
[null,null,null,null,null,null,null,null,null,null,null,null,null,null,null,null,null,null,null,null,null,null,null,null,null,null,null,null,null,null,{"$f":"IF(CRSDATA!BT2617=\"\",\"\",CRSDATA!BT2617)","v":""}]
[null,null,null,null,null,null,null,null,null,null,null,null,null,null,null,null,null,null,null,null,null,null,null,null,null,null,null,null,null,null,{"$f":"IF(CRSDATA!BT2618=\"\",\"\",CRSDATA!BT2618)","v":""}]
[null,null,null,null,null,null,null,null,null,null,null,null,null,null,null,null,null,null,null,null,null,null,null,null,null,null,null,null,null,null,{"$f":"IF(CRSDATA!BT2619=\"\",\"\",CRSDATA!BT2619)","v":""}]
[null,null,null,null,null,null,null,null,null,null,null,null,null,null,null,null,null,null,null,null,null,null,null,null,null,null,null,null,null,null,{"$f":"IF(CRSDATA!BT2620=\"\",\"\",CRSDATA!BT2620)","v":""}]
[null,null,null,null,null,null,null,null,null,null,null,null,null,null,null,null,null,null,null,null,null,null,null,null,null,null,null,null,null,null,{"$f":"IF(CRSDATA!BT2621=\"\",\"\",CRSDATA!BT2621)","v":""}]
[null,null,null,null,null,null,null,null,null,null,null,null,null,null,null,null,null,null,null,null,null,null,null,null,null,null,null,null,null,null,{"$f":"IF(CRSDATA!BT2622=\"\",\"\",CRSDATA!BT2622)","v":""}]
[null,null,null,null,null,null,null,null,null,null,null,null,null,null,null,null,null,null,null,null,null,null,null,null,null,null,null,null,null,null,{"$f":"IF(CRSDATA!BT2623=\"\",\"\",CRSDATA!BT2623)","v":""}]
[null,null,null,null,null,null,null,null,null,null,null,null,null,null,null,null,null,null,null,null,null,null,null,null,null,null,null,null,null,null,{"$f":"IF(CRSDATA!BT2624=\"\",\"\",CRSDATA!BT2624)","v":""}]
[null,null,null,null,null,null,null,null,null,null,null,null,null,null,null,null,null,null,null,null,null,null,null,null,null,null,null,null,null,null,{"$f":"IF(CRSDATA!BT2625=\"\",\"\",CRSDATA!BT2625)","v":""}]
[null,null,null,null,null,null,null,null,null,null,null,null,null,null,null,null,null,null,null,null,null,null,null,null,null,null,null,null,null,null,{"$f":"IF(CRSDATA!BT2626=\"\",\"\",CRSDATA!BT2626)","v":""}]
[null,null,null,null,null,null,null,null,null,null,null,null,null,null,null,null,null,null,null,null,null,null,null,null,null,null,null,null,null,null,{"$f":"IF(CRSDATA!BT2627=\"\",\"\",CRSDATA!BT2627)","v":""}]
[null,null,null,null,null,null,null,null,null,null,null,null,null,null,null,null,null,null,null,null,null,null,null,null,null,null,null,null,null,null,{"$f":"IF(CRSDATA!BT2628=\"\",\"\",CRSDATA!BT2628)","v":""}]
[null,null,null,null,null,null,null,null,null,null,null,null,null,null,null,null,null,null,null,null,null,null,null,null,null,null,null,null,null,null,{"$f":"IF(CRSDATA!BT2629=\"\",\"\",CRSDATA!BT2629)","v":""}]
[null,null,null,null,null,null,null,null,null,null,null,null,null,null,null,null,null,null,null,null,null,null,null,null,null,null,null,null,null,null,{"$f":"IF(CRSDATA!BT2630=\"\",\"\",CRSDATA!BT2630)","v":""}]
[null,null,null,null,null,null,null,null,null,null,null,null,null,null,null,null,null,null,null,null,null,null,null,null,null,null,null,null,null,null,{"$f":"IF(CRSDATA!BT2631=\"\",\"\",CRSDATA!BT2631)","v":""}]
[null,null,null,null,null,null,null,null,null,null,null,null,null,null,null,null,null,null,null,null,null,null,null,null,null,null,null,null,null,null,{"$f":"IF(CRSDATA!BT2632=\"\",\"\",CRSDATA!BT2632)","v":""}]
[null,null,null,null,null,null,null,null,null,null,null,null,null,null,null,null,null,null,null,null,null,null,null,null,null,null,null,null,null,null,{"$f":"IF(CRSDATA!BT2633=\"\",\"\",CRSDATA!BT2633)","v":""}]
[null,null,null,null,null,null,null,null,null,null,null,null,null,null,null,null,null,null,null,null,null,null,null,null,null,null,null,null,null,null,{"$f":"IF(CRSDATA!BT2634=\"\",\"\",CRSDATA!BT2634)","v":""}]
[null,null,null,null,null,null,null,null,null,null,null,null,null,null,null,null,null,null,null,null,null,null,null,null,null,null,null,null,null,null,{"$f":"IF(CRSDATA!BT2635=\"\",\"\",CRSDATA!BT2635)","v":""}]
[null,null,null,null,null,null,null,null,null,null,null,null,null,null,null,null,null,null,null,null,null,null,null,null,null,null,null,null,null,null,{"$f":"IF(CRSDATA!BT2636=\"\",\"\",CRSDATA!BT2636)","v":""}]
[null,null,null,null,null,null,null,null,null,null,null,null,null,null,null,null,null,null,null,null,null,null,null,null,null,null,null,null,null,null,{"$f":"IF(CRSDATA!BT2637=\"\",\"\",CRSDATA!BT2637)","v":""}]
[null,null,null,null,null,null,null,null,null,null,null,null,null,null,null,null,null,null,null,null,null,null,null,null,null,null,null,null,null,null,{"$f":"IF(CRSDATA!BT2638=\"\",\"\",CRSDATA!BT2638)","v":""}]
[null,null,null,null,null,null,null,null,null,null,null,null,null,null,null,null,null,null,null,null,null,null,null,null,null,null,null,null,null,null,{"$f":"IF(CRSDATA!BT2639=\"\",\"\",CRSDATA!BT2639)","v":""}]
[null,null,null,null,null,null,null,null,null,null,null,null,null,null,null,null,null,null,null,null,null,null,null,null,null,null,null,null,null,null,{"$f":"IF(CRSDATA!BT2640=\"\",\"\",CRSDATA!BT2640)","v":""}]
[null,null,null,null,null,null,null,null,null,null,null,null,null,null,null,null,null,null,null,null,null,null,null,null,null,null,null,null,null,null,{"$f":"IF(CRSDATA!BT2641=\"\",\"\",CRSDATA!BT2641)","v":""}]
[null,null,null,null,null,null,null,null,null,null,null,null,null,null,null,null,null,null,null,null,null,null,null,null,null,null,null,null,null,null,{"$f":"IF(CRSDATA!BT2642=\"\",\"\",CRSDATA!BT2642)","v":""}]
[null,null,null,null,null,null,null,null,null,null,null,null,null,null,null,null,null,null,null,null,null,null,null,null,null,null,null,null,null,null,{"$f":"IF(CRSDATA!BT2643=\"\",\"\",CRSDATA!BT2643)","v":""}]
[null,null,null,null,null,null,null,null,null,null,null,null,null,null,null,null,null,null,null,null,null,null,null,null,null,null,null,null,null,null,{"$f":"IF(CRSDATA!BT2644=\"\",\"\",CRSDATA!BT2644)","v":""}]
[null,null,null,null,null,null,null,null,null,null,null,null,null,null,null,null,null,null,null,null,null,null,null,null,null,null,null,null,null,null,{"$f":"IF(CRSDATA!BT2645=\"\",\"\",CRSDATA!BT2645)","v":""}]
[null,null,null,null,null,null,null,null,null,null,null,null,null,null,null,null,null,null,null,null,null,null,null,null,null,null,null,null,null,null,{"$f":"IF(CRSDATA!BT2646=\"\",\"\",CRSDATA!BT2646)","v":""}]
[null,null,null,null,null,null,null,null,null,null,null,null,null,null,null,null,null,null,null,null,null,null,null,null,null,null,null,null,null,null,{"$f":"IF(CRSDATA!BT2647=\"\",\"\",CRSDATA!BT2647)","v":""}]
[null,null,null,null,null,null,null,null,null,null,null,null,null,null,null,null,null,null,null,null,null,null,null,null,null,null,null,null,null,null,{"$f":"IF(CRSDATA!BT2648=\"\",\"\",CRSDATA!BT2648)","v":""}]
[null,null,null,null,null,null,null,null,null,null,null,null,null,null,null,null,null,null,null,null,null,null,null,null,null,null,null,null,null,null,{"$f":"IF(CRSDATA!BT2649=\"\",\"\",CRSDATA!BT2649)","v":""}]
[null,null,null,null,null,null,null,null,null,null,null,null,null,null,null,null,null,null,null,null,null,null,null,null,null,null,null,null,null,null,{"$f":"IF(CRSDATA!BT2650=\"\",\"\",CRSDATA!BT2650)","v":""}]
[null,null,null,null,null,null,null,null,null,null,null,null,null,null,null,null,null,null,null,null,null,null,null,null,null,null,null,null,null,null,{"$f":"IF(CRSDATA!BT2651=\"\",\"\",CRSDATA!BT2651)","v":""}]
[null,null,null,null,null,null,null,null,null,null,null,null,null,null,null,null,null,null,null,null,null,null,null,null,null,null,null,null,null,null,{"$f":"IF(CRSDATA!BT2652=\"\",\"\",CRSDATA!BT2652)","v":""}]
[null,null,null,null,null,null,null,null,null,null,null,null,null,null,null,null,null,null,null,null,null,null,null,null,null,null,null,null,null,null,{"$f":"IF(CRSDATA!BT2653=\"\",\"\",CRSDATA!BT2653)","v":""}]
[null,null,null,null,null,null,null,null,null,null,null,null,null,null,null,null,null,null,null,null,null,null,null,null,null,null,null,null,null,null,{"$f":"IF(CRSDATA!BT2654=\"\",\"\",CRSDATA!BT2654)","v":""}]
[null,null,null,null,null,null,null,null,null,null,null,null,null,null,null,null,null,null,null,null,null,null,null,null,null,null,null,null,null,null,{"$f":"IF(CRSDATA!BT2655=\"\",\"\",CRSDATA!BT2655)","v":""}]
[null,null,null,null,null,null,null,null,null,null,null,null,null,null,null,null,null,null,null,null,null,null,null,null,null,null,null,null,null,null,{"$f":"IF(CRSDATA!BT2656=\"\",\"\",CRSDATA!BT2656)","v":""}]
[null,null,null,null,null,null,null,null,null,null,null,null,null,null,null,null,null,null,null,null,null,null,null,null,null,null,null,null,null,null,{"$f":"IF(CRSDATA!BT2657=\"\",\"\",CRSDATA!BT2657)","v":""}]
[null,null,null,null,null,null,null,null,null,null,null,null,null,null,null,null,null,null,null,null,null,null,null,null,null,null,null,null,null,null,{"$f":"IF(CRSDATA!BT2658=\"\",\"\",CRSDATA!BT2658)","v":""}]
[null,null,null,null,null,null,null,null,null,null,null,null,null,null,null,null,null,null,null,null,null,null,null,null,null,null,null,null,null,null,{"$f":"IF(CRSDATA!BT2659=\"\",\"\",CRSDATA!BT2659)","v":""}]
[null,null,null,null,null,null,null,null,null,null,null,null,null,null,null,null,null,null,null,null,null,null,null,null,null,null,null,null,null,null,{"$f":"IF(CRSDATA!BT2660=\"\",\"\",CRSDATA!BT2660)","v":""}]
[null,null,null,null,null,null,null,null,null,null,null,null,null,null,null,null,null,null,null,null,null,null,null,null,null,null,null,null,null,null,{"$f":"IF(CRSDATA!BT2661=\"\",\"\",CRSDATA!BT2661)","v":""}]
[null,null,null,null,null,null,null,null,null,null,null,null,null,null,null,null,null,null,null,null,null,null,null,null,null,null,null,null,null,null,{"$f":"IF(CRSDATA!BT2662=\"\",\"\",CRSDATA!BT2662)","v":""}]
[null,null,null,null,null,null,null,null,null,null,null,null,null,null,null,null,null,null,null,null,null,null,null,null,null,null,null,null,null,null,{"$f":"IF(CRSDATA!BT2663=\"\",\"\",CRSDATA!BT2663)","v":""}]
[null,null,null,null,null,null,null,null,null,null,null,null,null,null,null,null,null,null,null,null,null,null,null,null,null,null,null,null,null,null,{"$f":"IF(CRSDATA!BT2664=\"\",\"\",CRSDATA!BT2664)","v":""}]
[null,null,null,null,null,null,null,null,null,null,null,null,null,null,null,null,null,null,null,null,null,null,null,null,null,null,null,null,null,null,{"$f":"IF(CRSDATA!BT2665=\"\",\"\",CRSDATA!BT2665)","v":""}]
[null,null,null,null,null,null,null,null,null,null,null,null,null,null,null,null,null,null,null,null,null,null,null,null,null,null,null,null,null,null,{"$f":"IF(CRSDATA!BT2666=\"\",\"\",CRSDATA!BT2666)","v":""}]
[null,null,null,null,null,null,null,null,null,null,null,null,null,null,null,null,null,null,null,null,null,null,null,null,null,null,null,null,null,null,{"$f":"IF(CRSDATA!BT2667=\"\",\"\",CRSDATA!BT2667)","v":""}]
[null,null,null,null,null,null,null,null,null,null,null,null,null,null,null,null,null,null,null,null,null,null,null,null,null,null,null,null,null,null,{"$f":"IF(CRSDATA!BT2668=\"\",\"\",CRSDATA!BT2668)","v":""}]
[null,null,null,null,null,null,null,null,null,null,null,null,null,null,null,null,null,null,null,null,null,null,null,null,null,null,null,null,null,null,{"$f":"IF(CRSDATA!BT2669=\"\",\"\",CRSDATA!BT2669)","v":""}]
[null,null,null,null,null,null,null,null,null,null,null,null,null,null,null,null,null,null,null,null,null,null,null,null,null,null,null,null,null,null,{"$f":"IF(CRSDATA!BT2670=\"\",\"\",CRSDATA!BT2670)","v":""}]
[null,null,null,null,null,null,null,null,null,null,null,null,null,null,null,null,null,null,null,null,null,null,null,null,null,null,null,null,null,null,{"$f":"IF(CRSDATA!BT2671=\"\",\"\",CRSDATA!BT2671)","v":""}]
[null,null,null,null,null,null,null,null,null,null,null,null,null,null,null,null,null,null,null,null,null,null,null,null,null,null,null,null,null,null,{"$f":"IF(CRSDATA!BT2672=\"\",\"\",CRSDATA!BT2672)","v":""}]
[null,null,null,null,null,null,null,null,null,null,null,null,null,null,null,null,null,null,null,null,null,null,null,null,null,null,null,null,null,null,{"$f":"IF(CRSDATA!BT2673=\"\",\"\",CRSDATA!BT2673)","v":""}]
[null,null,null,null,null,null,null,null,null,null,null,null,null,null,null,null,null,null,null,null,null,null,null,null,null,null,null,null,null,null,{"$f":"IF(CRSDATA!BT2674=\"\",\"\",CRSDATA!BT2674)","v":""}]
[null,null,null,null,null,null,null,null,null,null,null,null,null,null,null,null,null,null,null,null,null,null,null,null,null,null,null,null,null,null,{"$f":"IF(CRSDATA!BT2675=\"\",\"\",CRSDATA!BT2675)","v":""}]
[null,null,null,null,null,null,null,null,null,null,null,null,null,null,null,null,null,null,null,null,null,null,null,null,null,null,null,null,null,null,{"$f":"IF(CRSDATA!BT2676=\"\",\"\",CRSDATA!BT2676)","v":""}]
[null,null,null,null,null,null,null,null,null,null,null,null,null,null,null,null,null,null,null,null,null,null,null,null,null,null,null,null,null,null,{"$f":"IF(CRSDATA!BT2677=\"\",\"\",CRSDATA!BT2677)","v":""}]
[null,null,null,null,null,null,null,null,null,null,null,null,null,null,null,null,null,null,null,null,null,null,null,null,null,null,null,null,null,null,{"$f":"IF(CRSDATA!BT2678=\"\",\"\",CRSDATA!BT2678)","v":""}]
[null,null,null,null,null,null,null,null,null,null,null,null,null,null,null,null,null,null,null,null,null,null,null,null,null,null,null,null,null,null,{"$f":"IF(CRSDATA!BT2679=\"\",\"\",CRSDATA!BT2679)","v":""}]
[null,null,null,null,null,null,null,null,null,null,null,null,null,null,null,null,null,null,null,null,null,null,null,null,null,null,null,null,null,null,{"$f":"IF(CRSDATA!BT2680=\"\",\"\",CRSDATA!BT2680)","v":""}]
[null,null,null,null,null,null,null,null,null,null,null,null,null,null,null,null,null,null,null,null,null,null,null,null,null,null,null,null,null,null,{"$f":"IF(CRSDATA!BT2681=\"\",\"\",CRSDATA!BT2681)","v":""}]
[null,null,null,null,null,null,null,null,null,null,null,null,null,null,null,null,null,null,null,null,null,null,null,null,null,null,null,null,null,null,{"$f":"IF(CRSDATA!BT2682=\"\",\"\",CRSDATA!BT2682)","v":""}]
[null,null,null,null,null,null,null,null,null,null,null,null,null,null,null,null,null,null,null,null,null,null,null,null,null,null,null,null,null,null,{"$f":"IF(CRSDATA!BT2683=\"\",\"\",CRSDATA!BT2683)","v":""}]
[null,null,null,null,null,null,null,null,null,null,null,null,null,null,null,null,null,null,null,null,null,null,null,null,null,null,null,null,null,null,{"$f":"IF(CRSDATA!BT2684=\"\",\"\",CRSDATA!BT2684)","v":""}]
[null,null,null,null,null,null,null,null,null,null,null,null,null,null,null,null,null,null,null,null,null,null,null,null,null,null,null,null,null,null,{"$f":"IF(CRSDATA!BT2685=\"\",\"\",CRSDATA!BT2685)","v":""}]
[null,null,null,null,null,null,null,null,null,null,null,null,null,null,null,null,null,null,null,null,null,null,null,null,null,null,null,null,null,null,{"$f":"IF(CRSDATA!BT2686=\"\",\"\",CRSDATA!BT2686)","v":""}]
[null,null,null,null,null,null,null,null,null,null,null,null,null,null,null,null,null,null,null,null,null,null,null,null,null,null,null,null,null,null,{"$f":"IF(CRSDATA!BT2687=\"\",\"\",CRSDATA!BT2687)","v":""}]
[null,null,null,null,null,null,null,null,null,null,null,null,null,null,null,null,null,null,null,null,null,null,null,null,null,null,null,null,null,null,{"$f":"IF(CRSDATA!BT2688=\"\",\"\",CRSDATA!BT2688)","v":""}]
[null,null,null,null,null,null,null,null,null,null,null,null,null,null,null,null,null,null,null,null,null,null,null,null,null,null,null,null,null,null,{"$f":"IF(CRSDATA!BT2689=\"\",\"\",CRSDATA!BT2689)","v":""}]
[null,null,null,null,null,null,null,null,null,null,null,null,null,null,null,null,null,null,null,null,null,null,null,null,null,null,null,null,null,null,{"$f":"IF(CRSDATA!BT2690=\"\",\"\",CRSDATA!BT2690)","v":""}]
[null,null,null,null,null,null,null,null,null,null,null,null,null,null,null,null,null,null,null,null,null,null,null,null,null,null,null,null,null,null,{"$f":"IF(CRSDATA!BT2691=\"\",\"\",CRSDATA!BT2691)","v":""}]
[null,null,null,null,null,null,null,null,null,null,null,null,null,null,null,null,null,null,null,null,null,null,null,null,null,null,null,null,null,null,{"$f":"IF(CRSDATA!BT2692=\"\",\"\",CRSDATA!BT2692)","v":""}]
[null,null,null,null,null,null,null,null,null,null,null,null,null,null,null,null,null,null,null,null,null,null,null,null,null,null,null,null,null,null,{"$f":"IF(CRSDATA!BT2693=\"\",\"\",CRSDATA!BT2693)","v":""}]
[null,null,null,null,null,null,null,null,null,null,null,null,null,null,null,null,null,null,null,null,null,null,null,null,null,null,null,null,null,null,{"$f":"IF(CRSDATA!BT2694=\"\",\"\",CRSDATA!BT2694)","v":""}]
[null,null,null,null,null,null,null,null,null,null,null,null,null,null,null,null,null,null,null,null,null,null,null,null,null,null,null,null,null,null,{"$f":"IF(CRSDATA!BT2695=\"\",\"\",CRSDATA!BT2695)","v":""}]
[null,null,null,null,null,null,null,null,null,null,null,null,null,null,null,null,null,null,null,null,null,null,null,null,null,null,null,null,null,null,{"$f":"IF(CRSDATA!BT2696=\"\",\"\",CRSDATA!BT2696)","v":""}]
[null,null,null,null,null,null,null,null,null,null,null,null,null,null,null,null,null,null,null,null,null,null,null,null,null,null,null,null,null,null,{"$f":"IF(CRSDATA!BT2697=\"\",\"\",CRSDATA!BT2697)","v":""}]
[null,null,null,null,null,null,null,null,null,null,null,null,null,null,null,null,null,null,null,null,null,null,null,null,null,null,null,null,null,null,{"$f":"IF(CRSDATA!BT2698=\"\",\"\",CRSDATA!BT2698)","v":""}]
[null,null,null,null,null,null,null,null,null,null,null,null,null,null,null,null,null,null,null,null,null,null,null,null,null,null,null,null,null,null,{"$f":"IF(CRSDATA!BT2699=\"\",\"\",CRSDATA!BT2699)","v":""}]
[null,null,null,null,null,null,null,null,null,null,null,null,null,null,null,null,null,null,null,null,null,null,null,null,null,null,null,null,null,null,{"$f":"IF(CRSDATA!BT2700=\"\",\"\",CRSDATA!BT2700)","v":""}]
[null,null,null,null,null,null,null,null,null,null,null,null,null,null,null,null,null,null,null,null,null,null,null,null,null,null,null,null,null,null,{"$f":"IF(CRSDATA!BT2701=\"\",\"\",CRSDATA!BT2701)","v":""}]
[null,null,null,null,null,null,null,null,null,null,null,null,null,null,null,null,null,null,null,null,null,null,null,null,null,null,null,null,null,null,{"$f":"IF(CRSDATA!BT2702=\"\",\"\",CRSDATA!BT2702)","v":""}]
[null,null,null,null,null,null,null,null,null,null,null,null,null,null,null,null,null,null,null,null,null,null,null,null,null,null,null,null,null,null,{"$f":"IF(CRSDATA!BT2703=\"\",\"\",CRSDATA!BT2703)","v":""}]
[null,null,null,null,null,null,null,null,null,null,null,null,null,null,null,null,null,null,null,null,null,null,null,null,null,null,null,null,null,null,{"$f":"IF(CRSDATA!BT2704=\"\",\"\",CRSDATA!BT2704)","v":""}]
[null,null,null,null,null,null,null,null,null,null,null,null,null,null,null,null,null,null,null,null,null,null,null,null,null,null,null,null,null,null,{"$f":"IF(CRSDATA!BT2705=\"\",\"\",CRSDATA!BT2705)","v":""}]
[null,null,null,null,null,null,null,null,null,null,null,null,null,null,null,null,null,null,null,null,null,null,null,null,null,null,null,null,null,null,{"$f":"IF(CRSDATA!BT2706=\"\",\"\",CRSDATA!BT2706)","v":""}]
[null,null,null,null,null,null,null,null,null,null,null,null,null,null,null,null,null,null,null,null,null,null,null,null,null,null,null,null,null,null,{"$f":"IF(CRSDATA!BT2707=\"\",\"\",CRSDATA!BT2707)","v":""}]
[null,null,null,null,null,null,null,null,null,null,null,null,null,null,null,null,null,null,null,null,null,null,null,null,null,null,null,null,null,null,{"$f":"IF(CRSDATA!BT2708=\"\",\"\",CRSDATA!BT2708)","v":""}]
[null,null,null,null,null,null,null,null,null,null,null,null,null,null,null,null,null,null,null,null,null,null,null,null,null,null,null,null,null,null,{"$f":"IF(CRSDATA!BT2709=\"\",\"\",CRSDATA!BT2709)","v":""}]
[null,null,null,null,null,null,null,null,null,null,null,null,null,null,null,null,null,null,null,null,null,null,null,null,null,null,null,null,null,null,{"$f":"IF(CRSDATA!BT2710=\"\",\"\",CRSDATA!BT2710)","v":""}]
[null,null,null,null,null,null,null,null,null,null,null,null,null,null,null,null,null,null,null,null,null,null,null,null,null,null,null,null,null,null,{"$f":"IF(CRSDATA!BT2711=\"\",\"\",CRSDATA!BT2711)","v":""}]
[null,null,null,null,null,null,null,null,null,null,null,null,null,null,null,null,null,null,null,null,null,null,null,null,null,null,null,null,null,null,{"$f":"IF(CRSDATA!BT2712=\"\",\"\",CRSDATA!BT2712)","v":""}]
[null,null,null,null,null,null,null,null,null,null,null,null,null,null,null,null,null,null,null,null,null,null,null,null,null,null,null,null,null,null,{"$f":"IF(CRSDATA!BT2713=\"\",\"\",CRSDATA!BT2713)","v":""}]
[null,null,null,null,null,null,null,null,null,null,null,null,null,null,null,null,null,null,null,null,null,null,null,null,null,null,null,null,null,null,{"$f":"IF(CRSDATA!BT2714=\"\",\"\",CRSDATA!BT2714)","v":""}]
[null,null,null,null,null,null,null,null,null,null,null,null,null,null,null,null,null,null,null,null,null,null,null,null,null,null,null,null,null,null,{"$f":"IF(CRSDATA!BT2715=\"\",\"\",CRSDATA!BT2715)","v":""}]
[null,null,null,null,null,null,null,null,null,null,null,null,null,null,null,null,null,null,null,null,null,null,null,null,null,null,null,null,null,null,{"$f":"IF(CRSDATA!BT2716=\"\",\"\",CRSDATA!BT2716)","v":""}]
[null,null,null,null,null,null,null,null,null,null,null,null,null,null,null,null,null,null,null,null,null,null,null,null,null,null,null,null,null,null,{"$f":"IF(CRSDATA!BT2717=\"\",\"\",CRSDATA!BT2717)","v":""}]
[null,null,null,null,null,null,null,null,null,null,null,null,null,null,null,null,null,null,null,null,null,null,null,null,null,null,null,null,null,null,{"$f":"IF(CRSDATA!BT2718=\"\",\"\",CRSDATA!BT2718)","v":""}]
[null,null,null,null,null,null,null,null,null,null,null,null,null,null,null,null,null,null,null,null,null,null,null,null,null,null,null,null,null,null,{"$f":"IF(CRSDATA!BT2719=\"\",\"\",CRSDATA!BT2719)","v":""}]
[null,null,null,null,null,null,null,null,null,null,null,null,null,null,null,null,null,null,null,null,null,null,null,null,null,null,null,null,null,null,{"$f":"IF(CRSDATA!BT2720=\"\",\"\",CRSDATA!BT2720)","v":""}]
[null,null,null,null,null,null,null,null,null,null,null,null,null,null,null,null,null,null,null,null,null,null,null,null,null,null,null,null,null,null,{"$f":"IF(CRSDATA!BT2721=\"\",\"\",CRSDATA!BT2721)","v":""}]
[null,null,null,null,null,null,null,null,null,null,null,null,null,null,null,null,null,null,null,null,null,null,null,null,null,null,null,null,null,null,{"$f":"IF(CRSDATA!BT2722=\"\",\"\",CRSDATA!BT2722)","v":""}]
[null,null,null,null,null,null,null,null,null,null,null,null,null,null,null,null,null,null,null,null,null,null,null,null,null,null,null,null,null,null,{"$f":"IF(CRSDATA!BT2723=\"\",\"\",CRSDATA!BT2723)","v":""}]
[null,null,null,null,null,null,null,null,null,null,null,null,null,null,null,null,null,null,null,null,null,null,null,null,null,null,null,null,null,null,{"$f":"IF(CRSDATA!BT2724=\"\",\"\",CRSDATA!BT2724)","v":""}]
[null,null,null,null,null,null,null,null,null,null,null,null,null,null,null,null,null,null,null,null,null,null,null,null,null,null,null,null,null,null,{"$f":"IF(CRSDATA!BT2725=\"\",\"\",CRSDATA!BT2725)","v":""}]
[null,null,null,null,null,null,null,null,null,null,null,null,null,null,null,null,null,null,null,null,null,null,null,null,null,null,null,null,null,null,{"$f":"IF(CRSDATA!BT2726=\"\",\"\",CRSDATA!BT2726)","v":""}]
[null,null,null,null,null,null,null,null,null,null,null,null,null,null,null,null,null,null,null,null,null,null,null,null,null,null,null,null,null,null,{"$f":"IF(CRSDATA!BT2727=\"\",\"\",CRSDATA!BT2727)","v":""}]
[null,null,null,null,null,null,null,null,null,null,null,null,null,null,null,null,null,null,null,null,null,null,null,null,null,null,null,null,null,null,{"$f":"IF(CRSDATA!BT2728=\"\",\"\",CRSDATA!BT2728)","v":""}]
[null,null,null,null,null,null,null,null,null,null,null,null,null,null,null,null,null,null,null,null,null,null,null,null,null,null,null,null,null,null,{"$f":"IF(CRSDATA!BT2729=\"\",\"\",CRSDATA!BT2729)","v":""}]
[null,null,null,null,null,null,null,null,null,null,null,null,null,null,null,null,null,null,null,null,null,null,null,null,null,null,null,null,null,null,{"$f":"IF(CRSDATA!BT2730=\"\",\"\",CRSDATA!BT2730)","v":""}]
[null,null,null,null,null,null,null,null,null,null,null,null,null,null,null,null,null,null,null,null,null,null,null,null,null,null,null,null,null,null,{"$f":"IF(CRSDATA!BT2731=\"\",\"\",CRSDATA!BT2731)","v":""}]
[null,null,null,null,null,null,null,null,null,null,null,null,null,null,null,null,null,null,null,null,null,null,null,null,null,null,null,null,null,null,{"$f":"IF(CRSDATA!BT2732=\"\",\"\",CRSDATA!BT2732)","v":""}]
[null,null,null,null,null,null,null,null,null,null,null,null,null,null,null,null,null,null,null,null,null,null,null,null,null,null,null,null,null,null,{"$f":"IF(CRSDATA!BT2733=\"\",\"\",CRSDATA!BT2733)","v":""}]
[null,null,null,null,null,null,null,null,null,null,null,null,null,null,null,null,null,null,null,null,null,null,null,null,null,null,null,null,null,null,{"$f":"IF(CRSDATA!BT2734=\"\",\"\",CRSDATA!BT2734)","v":""}]
[null,null,null,null,null,null,null,null,null,null,null,null,null,null,null,null,null,null,null,null,null,null,null,null,null,null,null,null,null,null,{"$f":"IF(CRSDATA!BT2735=\"\",\"\",CRSDATA!BT2735)","v":""}]

{"sheet":"TOSSDKEEP","index":6,"n_rows":8,"n_cols":33,"rows_kept":8,"cut":false,"hidden":true,"merged":[[0,0,0,4],[0,5,0,18],[0,20,0,24]]}
["A Identification data",null,null,null,null,null,null,null,null,null,null,null,null,null,null,null,null,null,null,null,"C. Volume data",null,null,null,null,"For in-kind technical co-operation","For loans only",null,"For mobilisation only"]
["1.Reporting year","2.Provider country/institution","3.Provider agency","4.Provider project number","5.TOSSD ID Number","6.TOSSD recipient","7.Project title","8.Description","9.External link","10a.SDG focus","10b. Keywords","11.Sector","12.Channelcode","13.Channel name","OtherPartners","14.Modality","15.Financial instrument","16. Financing arrangement","17. Framework of collaboration","18. TOSSD pillar","19. Currency","20.   Amount committed (thousand)","21.   Amount disbursed (thousand)","22.   Reflows to the provider (thousand)","23.Amount mobilised  (thousand)","24. Salary cost (thousand)","25. Concessionality","26.Maturity (in months)","27.Leveraging mechanism","28.Origin of the funds mobilised",null,"For reference: category of flows","Notes"]
[1,2,3,4,5,6,7,8,9,"10a","10b",11,12,13,"13.b",14,15,16,17,18,19,20,21,22,23,24,25,26,27,28,29]
[{"$f":"CRSDATA!A4","v":0},{"$f":"CRSDATA!C4","v":0},{"$f":"CRSDATA!D4","v":0},{"$f":"CRSDATA!F4","v":0},{"$f":"CRSDATA!E4","v":0},{"$f":"IF(CRSDATA!H4=3000,998,CRSDATA!H4)","v":0},{"$f":"CRSDATA!O4","v":0},{"$f":"CRSDATA!U4","v":0},{"$f":"IF(CRSDATA!V4=\"\",\"\",CRSDATA!V4)","v":""},{"$f":"IF(CRSDATA!W4=\"\",\"\",CRSDATA!W4)","v":""},{"$f":"key_row(CRSDATA!X4,CRSDATA!Y4,CRSDATA!AL4,CRSDATA!AK4,CRSDATA!AJ4,CRSDATA!AM4,CRSDATA!P4,CRSDATA!V4)","v":""},{"$f":"CRSDATA!P4","v":0},{"$f":"CRSDATA!J4","v":0},{"$f":"CRSDATA!I4","v":0},null,{"$f":"IF(LEFT(CRSDATA!N4,2)=\"A0\",\"A00\",IF(LEFT(CRSDATA!N4,3)=\"B02\",\"B02\",IF(LEFT(CRSDATA!N4,3)=\"B03\",\"B03\",IF(CRSDATA!N4=\"B04\",\"C01\",IF(CRSDATA!N4=\"H01\",\"H00\",IF(OR(CRSDATA!N4=\"H02\",CRSDATA!N4=\"H03\",CRSDATA!N4=\"H04\",CRSDATA!N4=\"H05\",CRSDATA!N4=\"H06\"),\"I01\",IF(CRSDATA!N4=\"\",\"\",CRSDATA!N4)))))))","v":""},{"$f":"IF(AND(LEN(CRSDATA!M4)=4,LEFT(CRSDATA!M4,3)=\"110\"),1100,IF(AND(LEN(CRSDATA!M4)=4,LEFT(CRSDATA!M4,3)=\"422\"),422,CRSDATA!M4))","v":0},{"$f":"IF(CRSDATA!L4=22,\"FA04\",\"\")","v":""},{"$f":"IF(CRSDATA!K4=8,\"FC02\",\"\")","v":""},{"$f":"_xlfn.IFS(OR(P4=\"A00\",P4=\"E01\",P4=\"F01\",AND(P4=\"\",A4<>0),Q4=510,Q4=520,AF4=60),1,P4=\"G01\",IF(AF4=10,21,22),OR(M4=41203,M4=41204),22,OR(AND(OR(P4=\"B02\",P4=\"B03\"),M4=41310),OR(P4=\"E02\",P4=\"I01\")),21,AND(OR(P4=\"B01\",P4=\"B03\",P4=\"C01\"),M4<>41310),IF(VLOOKUP(F4,recipient_country!AB:AD,3,FALSE)=10024,\"\",1),AND(P4=\"B02\",M4<>41310),IF(VLOOKUP(M4,channel_codes!J:P,7,FALSE)=0,\"\",VLOOKUP(M4,channel_codes!J:P,7,FALSE)),ISNUMBER(MATCH(P4,{\"D01\",\"D02\"},0)),IF(VLOOKUP(M4,channel_codes!J:P,7,FALSE)=1,1,IF(VLOOKUP(F4,recipient_country!AB:AD,3,FALSE)=10024,\"\",1)),OR(P4=\"H01\",AND(OR(ISNUMBER(SEARCH(\"41010\", L4)),ISNUMBER(SEARCH(\"41020\", L4)),ISNUMBER(SEARCH(\"41030\", L4)),ISNUMBER(SEARCH(\"41040\", L4)),ISNUMBER(SEARCH(\"41081\", L4))),F4=998)),22,F4=998,22,TRUE,\"\")","v":""},{"$f":"CRSDATA!AN4","v":0},{"$f":"CRSDATA!AO4","v":0},{"$f":"CRSDATA!AQ4","v":0},{"$f":"CRSDATA!AS4","v":0},{"$f":"CRSDATA!BB4","v":0},null,{"$f":"IF(R4=\"FA04\",0,\"\")","v":""},{"$f":"IF(AND(AND(CRSDATA!C4<>\"\",CRSDATA!BK4<>\"\"),OR(CRSDATA!N4=421,CRSDATA!N4=422,CRSDATA!N4=4221,CRSDATA!N4=4222,CRSDATA!N4=423,CRSDATA!N4=424,CRSDATA!N4=425,CRSDATA!N4=431,CRSDATA!N4=433,CRSDATA!N4=434)),DATEDIF(CRSDATA!C4,CRSDATA!BK4,\"m\"),\"\")","v":""},{"$f":"CRSDATA!BA4","v":0},{"$f":"CRSDATA!BC4","v":0},{"$f":"IF(CRSDATA!BT4=\"\",\"\",CRSDATA!BT4)","v":""},{"$f":"CRSDATA!L4","v":0}]
[{"$f":"CRSDATA!A5","v":0},{"$f":"CRSDATA!C5","v":0},{"$f":"CRSDATA!D5","v":0},{"$f":"CRSDATA!F5","v":0},{"$f":"CRSDATA!E5","v":0},{"$f":"IF(CRSDATA!H5=3000,998,CRSDATA!H5)","v":0},{"$f":"CRSDATA!O5","v":0},{"$f":"CRSDATA!U5","v":0},{"$f":"IF(CRSDATA!V5=\"\",\"\",CRSDATA!V5)","v":""},{"$f":"IF(CRSDATA!W5=\"\",\"\",CRSDATA!W5)","v":""},{"$f":"key_row(CRSDATA!X5,CRSDATA!Y5,CRSDATA!AL5,CRSDATA!AK5,CRSDATA!AJ5,CRSDATA!AM5,CRSDATA!P5,CRSDATA!V5)","v":""},{"$f":"CRSDATA!P5","v":0},{"$f":"CRSDATA!J5","v":0},{"$f":"CRSDATA!I5","v":0},null,{"$f":"IF(LEFT(CRSDATA!N5,2)=\"A0\",\"A00\",IF(LEFT(CRSDATA!N5,3)=\"B02\",\"B02\",IF(LEFT(CRSDATA!N5,3)=\"B03\",\"B03\",IF(CRSDATA!N5=\"B04\",\"C01\",IF(CRSDATA!N5=\"H01\",\"H00\",IF(OR(CRSDATA!N5=\"H02\",CRSDATA!N5=\"H03\",CRSDATA!N5=\"H04\",CRSDATA!N5=\"H05\",CRSDATA!N5=\"H06\"),\"I01\",IF(CRSDATA!N5=\"\",\"\",CRSDATA!N5)))))))","v":""},{"$f":"IF(AND(LEN(CRSDATA!M5)=4,LEFT(CRSDATA!M5,3)=\"110\"),1100,IF(AND(LEN(CRSDATA!M5)=4,LEFT(CRSDATA!M5,3)=\"422\"),422,CRSDATA!M5))","v":0},{"$f":"IF(CRSDATA!L5=22,\"FA04\",\"\")","v":""},{"$f":"IF(CRSDATA!K5=8,\"FC02\",\"\")","v":""},{"$f":"_xlfn.IFS(OR(P5=\"A00\",P5=\"E01\",P5=\"F01\",AND(P5=\"\",A5<>0),Q5=510,Q5=520,AF5=60),1,P5=\"G01\",IF(AF5=10,21,22),OR(M5=41203,M5=41204),22,OR(AND(OR(P5=\"B02\",P5=\"B03\"),M5=41310),OR(P5=\"E02\",P5=\"I01\")),21,AND(OR(P5=\"B01\",P5=\"B03\",P5=\"C01\"),M5<>41310),IF(VLOOKUP(F5,recipient_country!AB:AD,3,FALSE)=10024,\"\",1),AND(P5=\"B02\",M5<>41310),IF(VLOOKUP(M5,channel_codes!J:P,7,FALSE)=0,\"\",VLOOKUP(M5,channel_codes!J:P,7,FALSE)),ISNUMBER(MATCH(P5,{\"D01\",\"D02\"},0)),IF(VLOOKUP(M5,channel_codes!J:P,7,FALSE)=1,1,IF(VLOOKUP(F5,recipient_country!AB:AD,3,FALSE)=10024,\"\",1)),OR(P5=\"H01\",AND(OR(ISNUMBER(SEARCH(\"41010\", L5)),ISNUMBER(SEARCH(\"41020\", L5)),ISNUMBER(SEARCH(\"41030\", L5)),ISNUMBER(SEARCH(\"41040\", L5)),ISNUMBER(SEARCH(\"41081\", L5))),F5=998)),22,F5=998,22,TRUE,\"\")","v":""},{"$f":"CRSDATA!AN5","v":0},{"$f":"CRSDATA!AO5","v":0},{"$f":"CRSDATA!AQ5","v":0},{"$f":"CRSDATA!AS5","v":0},{"$f":"CRSDATA!BB5","v":0},null,{"$f":"IF(R5=\"FA04\",0,\"\")","v":""},{"$f":"IF(AND(AND(CRSDATA!C5<>\"\",CRSDATA!BK5<>\"\"),OR(CRSDATA!N5=421,CRSDATA!N5=422,CRSDATA!N5=4221,CRSDATA!N5=4222,CRSDATA!N5=423,CRSDATA!N5=424,CRSDATA!N5=425,CRSDATA!N5=431,CRSDATA!N5=433,CRSDATA!N5=434)),DATEDIF(CRSDATA!C5,CRSDATA!BK5,\"m\"),\"\")","v":""},{"$f":"CRSDATA!BA5","v":0},{"$f":"CRSDATA!BC5","v":0},{"$f":"IF(CRSDATA!BT5=\"\",\"\",CRSDATA!BT5)","v":""},{"$f":"CRSDATA!L5","v":0}]
[{"$f":"CRSDATA!A6","v":0},{"$f":"CRSDATA!C6","v":0},{"$f":"CRSDATA!D6","v":0},{"$f":"CRSDATA!F6","v":0},{"$f":"CRSDATA!E6","v":0},{"$f":"IF(CRSDATA!H6=3000,998,CRSDATA!H6)","v":0},{"$f":"CRSDATA!O6","v":0},{"$f":"CRSDATA!U6","v":0},{"$f":"IF(CRSDATA!V6=\"\",\"\",CRSDATA!V6)","v":""},{"$f":"IF(CRSDATA!W6=\"\",\"\",CRSDATA!W6)","v":""},{"$f":"key_row(CRSDATA!X6,CRSDATA!Y6,CRSDATA!AL6,CRSDATA!AK6,CRSDATA!AJ6,CRSDATA!AM6,CRSDATA!P6,CRSDATA!V6)","v":""},{"$f":"CRSDATA!P6","v":0},{"$f":"CRSDATA!J6","v":0},{"$f":"CRSDATA!I6","v":0},null,{"$f":"IF(LEFT(CRSDATA!N6,2)=\"A0\",\"A00\",IF(LEFT(CRSDATA!N6,3)=\"B02\",\"B02\",IF(LEFT(CRSDATA!N6,3)=\"B03\",\"B03\",IF(CRSDATA!N6=\"B04\",\"C01\",IF(CRSDATA!N6=\"H01\",\"H00\",IF(OR(CRSDATA!N6=\"H02\",CRSDATA!N6=\"H03\",CRSDATA!N6=\"H04\",CRSDATA!N6=\"H05\",CRSDATA!N6=\"H06\"),\"I01\",IF(CRSDATA!N6=\"\",\"\",CRSDATA!N6)))))))","v":""},{"$f":"IF(AND(LEN(CRSDATA!M6)=4,LEFT(CRSDATA!M6,3)=\"110\"),1100,IF(AND(LEN(CRSDATA!M6)=4,LEFT(CRSDATA!M6,3)=\"422\"),422,CRSDATA!M6))","v":0},{"$f":"IF(CRSDATA!L6=22,\"FA04\",\"\")","v":""},{"$f":"IF(CRSDATA!K6=8,\"FC02\",\"\")","v":""},{"$f":"_xlfn.IFS(OR(P6=\"A00\",P6=\"E01\",P6=\"F01\",AND(P6=\"\",A6<>0),Q6=510,Q6=520,AF6=60),1,P6=\"G01\",IF(AF6=10,21,22),OR(M6=41203,M6=41204),22,OR(AND(OR(P6=\"B02\",P6=\"B03\"),M6=41310),OR(P6=\"E02\",P6=\"I01\")),21,AND(OR(P6=\"B01\",P6=\"B03\",P6=\"C01\"),M6<>41310),IF(VLOOKUP(F6,recipient_country!AB:AD,3,FALSE)=10024,\"\",1),AND(P6=\"B02\",M6<>41310),IF(VLOOKUP(M6,channel_codes!J:P,7,FALSE)=0,\"\",VLOOKUP(M6,channel_codes!J:P,7,FALSE)),ISNUMBER(MATCH(P6,{\"D01\",\"D02\"},0)),IF(VLOOKUP(M6,channel_codes!J:P,7,FALSE)=1,1,IF(VLOOKUP(F6,recipient_country!AB:AD,3,FALSE)=10024,\"\",1)),OR(P6=\"H01\",AND(OR(ISNUMBER(SEARCH(\"41010\", L6)),ISNUMBER(SEARCH(\"41020\", L6)),ISNUMBER(SEARCH(\"41030\", L6)),ISNUMBER(SEARCH(\"41040\", L6)),ISNUMBER(SEARCH(\"41081\", L6))),F6=998)),22,F6=998,22,TRUE,\"\")","v":""},{"$f":"CRSDATA!AN6","v":0},{"$f":"CRSDATA!AO6","v":0},{"$f":"CRSDATA!AQ6","v":0},{"$f":"CRSDATA!AS6","v":0},{"$f":"CRSDATA!BB6","v":0},null,"",{"$f":"IF(AND(AND(CRSDATA!C6<>\"\",CRSDATA!BK6<>\"\"),OR(CRSDATA!N6=421,CRSDATA!N6=422,CRSDATA!N6=4221,CRSDATA!N6=4222,CRSDATA!N6=423,CRSDATA!N6=424,CRSDATA!N6=425,CRSDATA!N6=431,CRSDATA!N6=433,CRSDATA!N6=434)),DATEDIF(CRSDATA!C6,CRSDATA!BK6,\"m\"),\"\")","v":""},{"$f":"CRSDATA!BA6","v":0},{"$f":"CRSDATA!BC6","v":0},{"$f":"IF(CRSDATA!BT6=\"\",\"\",CRSDATA!BT6)","v":""},{"$f":"CRSDATA!L6","v":0}]
[{"$f":"CRSDATA!A7","v":0},{"$f":"CRSDATA!C7","v":0},{"$f":"CRSDATA!D7","v":0},{"$f":"CRSDATA!F7","v":0},{"$f":"CRSDATA!E7","v":0},{"$f":"IF(CRSDATA!H7=3000,998,CRSDATA!H7)","v":0},{"$f":"CRSDATA!O7","v":0},{"$f":"CRSDATA!U7","v":0},{"$f":"IF(CRSDATA!V7=\"\",\"\",CRSDATA!V7)","v":""},{"$f":"IF(CRSDATA!W7=\"\",\"\",CRSDATA!W7)","v":""},{"$f":"key_row(CRSDATA!X7,CRSDATA!Y7,CRSDATA!AL7,CRSDATA!AK7,CRSDATA!AJ7,CRSDATA!AM7,CRSDATA!P7,CRSDATA!V7)","v":""},{"$f":"CRSDATA!P7","v":0},{"$f":"CRSDATA!J7","v":0},{"$f":"CRSDATA!I7","v":0},null,{"$f":"IF(LEFT(CRSDATA!N7,2)=\"A0\",\"A00\",IF(LEFT(CRSDATA!N7,3)=\"B02\",\"B02\",IF(LEFT(CRSDATA!N7,3)=\"B03\",\"B03\",IF(CRSDATA!N7=\"B04\",\"C01\",IF(CRSDATA!N7=\"H01\",\"H00\",IF(OR(CRSDATA!N7=\"H02\",CRSDATA!N7=\"H03\",CRSDATA!N7=\"H04\",CRSDATA!N7=\"H05\",CRSDATA!N7=\"H06\"),\"I01\",IF(CRSDATA!N7=\"\",\"\",CRSDATA!N7)))))))","v":""},{"$f":"IF(AND(LEN(CRSDATA!M7)=4,LEFT(CRSDATA!M7,3)=\"110\"),1100,IF(AND(LEN(CRSDATA!M7)=4,LEFT(CRSDATA!M7,3)=\"422\"),422,CRSDATA!M7))","v":0},{"$f":"IF(CRSDATA!L7=22,\"FA04\",\"\")","v":""},{"$f":"IF(CRSDATA!K7=8,\"FC02\",\"\")","v":""},{"$f":"_xlfn.IFS(OR(P7=\"A00\",P7=\"E01\",P7=\"F01\",AND(P7=\"\",A7<>0),Q7=510,Q7=520,AF7=60),1,P7=\"G01\",IF(AF7=10,21,22),OR(M7=41203,M7=41204),22,OR(AND(OR(P7=\"B02\",P7=\"B03\"),M7=41310),OR(P7=\"E02\",P7=\"I01\")),21,AND(OR(P7=\"B01\",P7=\"B03\",P7=\"C01\"),M7<>41310),IF(VLOOKUP(F7,recipient_country!AB:AD,3,FALSE)=10024,\"\",1),AND(P7=\"B02\",M7<>41310),IF(VLOOKUP(M7,channel_codes!J:P,7,FALSE)=0,\"\",VLOOKUP(M7,channel_codes!J:P,7,FALSE)),ISNUMBER(MATCH(P7,{\"D01\",\"D02\"},0)),IF(VLOOKUP(M7,channel_codes!J:P,7,FALSE)=1,1,IF(VLOOKUP(F7,recipient_country!AB:AD,3,FALSE)=10024,\"\",1)),OR(P7=\"H01\",AND(OR(ISNUMBER(SEARCH(\"41010\", L7)),ISNUMBER(SEARCH(\"41020\", L7)),ISNUMBER(SEARCH(\"41030\", L7)),ISNUMBER(SEARCH(\"41040\", L7)),ISNUMBER(SEARCH(\"41081\", L7))),F7=998)),22,F7=998,22,TRUE,\"\")","v":""},{"$f":"CRSDATA!AN7","v":0},{"$f":"CRSDATA!AO7","v":0},{"$f":"CRSDATA!AQ7","v":0},{"$f":"CRSDATA!AS7","v":0},{"$f":"CRSDATA!BB7","v":0},null,"",{"$f":"IF(AND(AND(CRSDATA!C7<>\"\",CRSDATA!BK7<>\"\"),OR(CRSDATA!N7=421,CRSDATA!N7=422,CRSDATA!N7=4221,CRSDATA!N7=4222,CRSDATA!N7=423,CRSDATA!N7=424,CRSDATA!N7=425,CRSDATA!N7=431,CRSDATA!N7=433,CRSDATA!N7=434)),DATEDIF(CRSDATA!C7,CRSDATA!BK7,\"m\"),\"\")","v":""},{"$f":"CRSDATA!BA7","v":0},{"$f":"CRSDATA!BC7","v":0},{"$f":"IF(CRSDATA!BT7=\"\",\"\",CRSDATA!BT7)","v":""},{"$f":"CRSDATA!L7","v":0}]
[{"$f":"CRSDATA!A8","v":0},{"$f":"CRSDATA!C8","v":0},{"$f":"CRSDATA!D8","v":0},{"$f":"CRSDATA!F8","v":0},{"$f":"CRSDATA!E8","v":0},{"$f":"IF(CRSDATA!H8=3000,998,CRSDATA!H8)","v":0},{"$f":"CRSDATA!O8","v":0},{"$f":"CRSDATA!U8","v":0},{"$f":"IF(CRSDATA!V8=\"\",\"\",CRSDATA!V8)","v":""},{"$f":"IF(CRSDATA!W8=\"\",\"\",CRSDATA!W8)","v":""},{"$f":"key_row(CRSDATA!X8,CRSDATA!Y8,CRSDATA!AL8,CRSDATA!AK8,CRSDATA!AJ8,CRSDATA!AM8,CRSDATA!P8,CRSDATA!V8)","v":""},{"$f":"CRSDATA!P8","v":0},{"$f":"CRSDATA!J8","v":0},{"$f":"CRSDATA!I8","v":0},null,{"$f":"IF(LEFT(CRSDATA!N8,2)=\"A0\",\"A00\",IF(LEFT(CRSDATA!N8,3)=\"B02\",\"B02\",IF(LEFT(CRSDATA!N8,3)=\"B03\",\"B03\",IF(CRSDATA!N8=\"B04\",\"C01\",IF(CRSDATA!N8=\"H01\",\"H00\",IF(OR(CRSDATA!N8=\"H02\",CRSDATA!N8=\"H03\",CRSDATA!N8=\"H04\",CRSDATA!N8=\"H05\",CRSDATA!N8=\"H06\"),\"I01\",IF(CRSDATA!N8=\"\",\"\",CRSDATA!N8)))))))","v":""},{"$f":"IF(AND(LEN(CRSDATA!M8)=4,LEFT(CRSDATA!M8,3)=\"110\"),1100,IF(AND(LEN(CRSDATA!M8)=4,LEFT(CRSDATA!M8,3)=\"422\"),422,CRSDATA!M8))","v":0},{"$f":"IF(CRSDATA!L8=22,\"FA04\",\"\")","v":""},{"$f":"IF(CRSDATA!K8=8,\"FC02\",\"\")","v":""},{"$f":"_xlfn.IFS(OR(P8=\"A00\",P8=\"E01\",P8=\"F01\",AND(P8=\"\",A8<>0),Q8=510,Q8=520,AF8=60),1,P8=\"G01\",IF(AF8=10,21,22),OR(M8=41203,M8=41204),22,OR(AND(OR(P8=\"B02\",P8=\"B03\"),M8=41310),OR(P8=\"E02\",P8=\"I01\")),21,AND(OR(P8=\"B01\",P8=\"B03\",P8=\"C01\"),M8<>41310),IF(VLOOKUP(F8,recipient_country!AB:AD,3,FALSE)=10024,\"\",1),AND(P8=\"B02\",M8<>41310),IF(VLOOKUP(M8,channel_codes!J:P,7,FALSE)=0,\"\",VLOOKUP(M8,channel_codes!J:P,7,FALSE)),ISNUMBER(MATCH(P8,{\"D01\",\"D02\"},0)),IF(VLOOKUP(M8,channel_codes!J:P,7,FALSE)=1,1,IF(VLOOKUP(F8,recipient_country!AB:AD,3,FALSE)=10024,\"\",1)),OR(P8=\"H01\",AND(OR(ISNUMBER(SEARCH(\"41010\", L8)),ISNUMBER(SEARCH(\"41020\", L8)),ISNUMBER(SEARCH(\"41030\", L8)),ISNUMBER(SEARCH(\"41040\", L8)),ISNUMBER(SEARCH(\"41081\", L8))),F8=998)),22,F8=998,22,TRUE,\"\")","v":""},{"$f":"CRSDATA!AN8","v":0},{"$f":"CRSDATA!AO8","v":0},{"$f":"CRSDATA!AQ8","v":0},{"$f":"CRSDATA!AS8","v":0},{"$f":"CRSDATA!BB8","v":0},null,"",{"$f":"IF(AND(AND(CRSDATA!C8<>\"\",CRSDATA!BK8<>\"\"),OR(CRSDATA!N8=421,CRSDATA!N8=422,CRSDATA!N8=4221,CRSDATA!N8=4222,CRSDATA!N8=423,CRSDATA!N8=424,CRSDATA!N8=425,CRSDATA!N8=431,CRSDATA!N8=433,CRSDATA!N8=434)),DATEDIF(CRSDATA!C8,CRSDATA!BK8,\"m\"),\"\")","v":""},{"$f":"CRSDATA!BA8","v":0},{"$f":"CRSDATA!BC8","v":0},{"$f":"IF(CRSDATA!BT8=\"\",\"\",CRSDATA!BT8)","v":""},{"$f":"CRSDATA!L8","v":0}]

{"sheet":"Mobilisation","index":7,"n_rows":201,"n_cols":56,"rows_kept":201,"cut":false,"hidden":false,"merged":[[2,26,2,28],[2,29,2,31],[2,18,3,18],[2,19,3,19],[2,20,3,20],[2,21,3,21],[2,22,3,22],[2,24,2,25],[2,16,3,16],[0,0,0,16],[0,18,0,32],[1,0,1,13],[1,14,1,16],[1,17,3,17],[1,18,1,22],[1,23,1,31],[1,32,3,32],[2,0,3,0],[2,1,3,1],[2,2,3,2],[2,3,3,3],[2,4,2,13],[2,14,3,14],[2,15,3,15]]}
["BASIC IDENTIFICATION FIELDS AND AMOUNTS MOBILISED (as in the CRSDATA template)",null,null,null,null,null,null,null,null,null,null,null,null,null,null,null,null,null,"SUPPLEMENTARY DATA, USED FOR CHECKING PURPOSES ONLY"]
["IDENTIFICATION AND DESCRIPTIVE INFORMATION",null,null,null,null,null,null,null,null,null,null,null,null,null,"MOBILISATION",null,null,"CHECK FIELD \n(as per OECD calculation)","FIELDS FOR ALL INSTRUMENTS",null,null,null,null,"INSTRUMENT-SPECIFIC FIELDS",null,null,null,null,null,null,null,null,"Notes"]
["Reporting year","Agency","Provider project number","ID number","Only if link with the consolidated template cannot be made using provider project number or ID number:",null,null,null,null,null,null,null,null,null,"Amounts mobilised from the private sector","Leveraging mechanism and role/ position","Origin of the funds mobilised",null,"Type of PILOT (if relevant): \nOther \"baskets\" of Mobilisation and Generation ","Amounts invested by your institution \n(or exposure value / share for guarantees)","Total official funding, including your institution\n(or total public exposure for guarantees)","Private finance before attribution\n(for credit lines: LFI top-up funds)","Project finance SPV flag \n(1=Yes)","Syndicated loans","Shares in CIVs, companies and project finance SPVs",null,"Credit lines / second-level flows mobilised through CIVs (data PILOTS only)",null,null,"Technical Assistance"]
[null,null,null,null,"Recipient code","Short description / Project title","SDG focus","Type of flow (main DAC 1 category)","Sector / Purpose code and corresponding shares","CC mitigation","CC adaptation","Gender","Biodiveristy","Currency",null,null,null,null,null,null,null,null,null,"Type of arranger","Number of official investors in the riskiest tranche (incl. your instituion)","Number of official investors in the mezzanine/senior tranche (incl. your institution)","Expected share of the CIV’s investment in total investee’s equity \n(for data PILOTS only)","Revolving factor \n(credit lines, pilot on debt funds) / \nExpected use of CIV's funds \n(pilot on equity funds)\n(if not available,  \n enter 1)","Amount of end-borrowers' equities \n(for pilot on equity funds, as % total investees') ","TA flag","Names of other official financiers","Justification of the mobilisation effect and finaning structure description (and useful links)",null,null,null,"Levmech: CODE","LOOKUP ROW","1=Syndicated loan, arranger","2=Syndicated loan, participant","3=Common shares in flat collective investment vehicle","4=Shares in the riskiest tranche of structured collective investment vehicle, first-loss shares and others (e.g. lock-up shares)","5=Shares in the mezzanine/senior tranche of structured CIV","6=Guarantee/insurance ","7=Direct investment in companies, equity","8=Direct investment in companies, mezzanine/senior debt","9=Credit lines","10=Co-financing arrangements","11= Portfolio mobilisation, investment exists (debt or equity) (PILOT) ","12=Porfolio mobilisation, risk transfer through securitisation (PILOT","13=Portfolio mobilisation, risk transfer through portfolio insurance (PILOT)","14= Balance sheet operations, equity (PILOT)","15= Balance sheet operations, hybrid capital (PILOT)","16= Balance sheet operations, bond issuance (PILOT)"]
[1,3,4,5,8,15,22,24,16,36,37,24,35,39,52,53,54,null,"More guidance HERE","S1","S2","S3","S4","S5","S6","S7","S7b","S8","S9","TA1","TA2","TA3",null,null,null,null,1,1,2,3,4,5,6,7,8,9,10,11,12,13,14,15,16]
[null,null,null,null,null,null,null,null,null,null,null,null,null,null,null,null,null,{"$f":"IF(LEN(P6)=0,\"\",HLOOKUP(AJ6,$AL$5:$BA$200,AK6,FALSE))","v":""},null,null,null,null,null,{"$f":"IFERROR(IF(P6=\"1=Syndicated loan, arranger\",\"1=Official institution\",IF(P6=1,\"1=Official institution\",\"\")),\"\")","v":""},null,null,null,null,null,null,null,null,null,null,null,{"$f":"IFERROR(VLOOKUP(P6,BC:BD,2,FALSE),\"\")","v":""},{"$f":"AK5+1","v":2},{"$f":"IF(T6>U6,\"B cannot be higher than C\",IF(COUNTA(T6:V6)=0,\"Fill in supplementary fields\",IFERROR(IF(VALUE(LEFT(X6,1))=1,V6/2+(T6/U6)*(V6/2),IF(VALUE(LEFT(X6,1))=2,\"impossible combination\",\"check not available\")),\"\")))","v":"Fill in supplementary fields"},{"$f":"IF(T6>U6,\"B cannot be higher than C\",IF(COUNTA(T6:V6)=0,\"Fill in supplementary fields\",IFERROR(IF(VALUE(LEFT(X6,1))=1,(T6/U6)*(V6/2),IF(VALUE(LEFT(X6,1))=2,(T6/U6)*(V6),\"check not available\")),\"\")))","v":"Fill in supplementary fields"},{"$f":"IF(T6>U6,\"B cannot be higher than C\",IF(COUNTA(Y6:Z6)=0,\"Fill in supplementary fields\",(V6/2)*(T6/U6)+(V6/2)*(1/SUM(Y6:Z6))))+(IF(LEFT(S6,1)=\"1\",((T18*AB18)*(AC18/(1-AC18))),IF(LEFT(S6,1)=\"2\",IF(COUNTA(T6:V6)=0,\"Fill in supplementary fields\",(U6+V6)*AC6*AB6))))","v":{"$error":"#VALUE!"}},{"$f":"IF(T6>U6,\"B cannot be higher than C\",IFERROR(IF(COUNTA(Y6:Z6)=0,\"Fill in supplementary fields\",V6/2)*(T6/U6)+(V6/2)*(1/Y6),\"Fill in supplementary fields\"))+(IF(LEFT(S6,1)=\"1\",((T18*AB18)*(AC18/(1-AC18))),IF(LEFT(S6,1)=\"2\",IF(COUNTA(T6:V6)=0,\"Fill in supplementary fields\",(U6+V6)*AC6*AB6))))","v":{"$error":"#VALUE!"}},{"$f":"IF(T6>U6,\"B cannot be higher than C\",IFERROR(IF(COUNTA(Y6:Z6)=0,\"Fill in supplementary fields\",IF(Y6=0,V6/2*(T6/U6)+V6/2*(1/Z6),(V6/2)*(T6/U6))),\"Fill in supplementary fields\"))+(IF(LEFT(S6,1)=\"1\",((T18*AB18)*(AC18/(1-AC18))),IF(LEFT(S6,1)=\"2\",IF(COUNTA(T6:V6)=0,\"Fill in supplementary fields\",(U6+V6)*AC6*AB6))))","v":{"$error":"#VALUE!"}},{"$f":"IF(T6>U6,\"B cannot be higher than C\",IF(COUNTA(T6:V6)=0,\"Enter exposure values in fields A and B\",(V6)*(T6/U6)))","v":"Enter exposure values in fields A and B"},{"$f":"IF(T6>U6,\"B cannot be higher than C\",IFERROR(IF(COUNTA(Y6:Z6)=0,\"Fill in supplementary fields\",V6/2)*(T6/U6)+(V6/2)*(1/Y6),\"Fill in supplementary fields\"))","v":"Fill in supplementary fields"},{"$f":"IF(T6>U6,\"B cannot be higher than C\",IFERROR(IF(COUNTA(Y6:Z6)=0,\"Fill in supplementary fields\",IF(Y6=0,V6/2*(T6/U6)+V6/2*(1/Z6),(V6/2)*(T6/U6))),\"Fill in supplementary fields\"))","v":"Fill in supplementary fields"},{"$f":"IF(T6>U6,\"B cannot be higher than C\",IF(COUNTA(T6:V6)=0,\"Fill in supplementary fields\",(T6/U6)*((V6)+AB6*AC6)))","v":"Fill in supplementary fields"},{"$f":"IF(T6>U6,\"B cannot be higher than C\",IF(COUNTA(T6:V6)=0,\"Fill in supplementary fields\",(V6)*(T6/U6)))","v":"Fill in supplementary fields"},{"$f":"$V6","v":0},0,0,0,0,0,0,"1=Syndicated loan, arranger",{"$f":"VALUE(LEFT(BC6,FIND(\"=\",BC6)-1))","v":1}]
[null,null,null,null,null,null,null,null,null,null,null,null,null,null,null,null,null,"",null,null,null,null,null,"",null,null,null,null,null,null,null,null,null,null,null,"",3,"Fill in supplementary fields","Fill in supplementary fields",{"$f":"IF(T7>U7,\"B cannot be higher than C\",IF(COUNTA(Y7:Z7)=0,\"Fill in supplementary fields\",(V7/2)*(T7/U7)+(V7/2)*(1/SUM(Y7:Z7))))+(IF(LEFT(S7,1)=\"1\",((U7+V7)/AA7)*(T7/(U7+V7))*AB7*AC7*(AA7/(1-AC7)),IF(LEFT(S7,1)=\"2\",IF(COUNTA(T7:V7)=0,\"Fill in supplementary fields\",(U7+V7)*AC7*AB7))))","v":{"$error":"#VALUE!"}},{"$f":"IF(T7>U7,\"B cannot be higher than C\",IFERROR(IF(COUNTA(Y7:Z7)=0,\"Fill in supplementary fields\",V7/2)*(T7/U7)+(V7/2)*(1/Y7),\"Fill in supplementary fields\"))+(IF(LEFT(S7,1)=\"1\",((U7+V7)/AA7)*(T7/(U7+V7))*AB7*AC7*(AA7/(1-AC7)),IF(LEFT(S7,1)=\"2\",IF(COUNTA(T7:V7)=0,\"Fill in supplementary fields\",(U7+V7)*AC7*AB7))))","v":{"$error":"#VALUE!"}},{"$f":"IF(T7>U7,\"B cannot be higher than C\",IFERROR(IF(COUNTA(Y7:Z7)=0,\"Fill in supplementary fields\",IF(Y7=0,V7/2*(T7/U7)+V7/2*(1/Z7),(V7/2)*(T7/U7))),\"Fill in supplementary fields\"))+(IF(LEFT(S7,1)=\"1\",((U7+V7)/AA7)*(T7/(U7+V7))*AB7*AC7*(AA7/(1-AC7)),IF(LEFT(S7,1)=\"2\",IF(COUNTA(T7:V7)=0,\"Fill in supplementary fields\",(U7+V7)*AC7*AB7))))","v":{"$error":"#VALUE!"}},"Enter exposure values in fields A and B","Fill in supplementary fields","Fill in supplementary fields","Fill in supplementary fields","Fill in supplementary fields",0,0,0,0,0,0,0,"2=Syndicated loan, participant",2]
[2025,null,"123abc",2025000001,null,null,null,null,null,null,null,null,null,"USD",10714.3,"4=Shares in the riskiest tranche of structured collective investment vehicle, first-loss shares and others (e.g. lock-up shares)","2=Recipient country ",10714.285714285714,null,20000,35000,20000,null,"",2,1,null,null,null,null,null,null,"Example",null,null,4,4,"","",{"$f":"IF(T8>U8,\"B cannot be higher than C\",IF(COUNTA(Y8:Z8)=0,\"Fill in supplementary fields\",(V8/2)*(T8/U8)+(V8/2)*(1/SUM(Y8:Z8))))+(IF(LEFT(S8,1)=\"1\",((U8+V8)/AA8)*(T8/(U8+V8))*AB8*AC8*(AA8/(1-AC8)),IF(LEFT(S8,1)=\"2\",IF(COUNTA(T8:V8)=0,\"Fill in supplementary fields\",(U8+V8)*AC8*AB8))))","v":9047.6190476190459},{"$f":"IF(T8>U8,\"B cannot be higher than C\",IFERROR(IF(COUNTA(Y8:Z8)=0,\"Fill in supplementary fields\",V8/2)*(T8/U8)+(V8/2)*(1/Y8),\"Fill in supplementary fields\"))+(IF(LEFT(S8,1)=\"1\",((U8+V8)/AA8)*(T8/(U8+V8))*AB8*AC8*(AA8/(1-AC8)),IF(LEFT(S8,1)=\"2\",IF(COUNTA(T8:V8)=0,\"Fill in supplementary fields\",(U8+V8)*AC8*AB8))))","v":10714.285714285714},{"$f":"IF(T8>U8,\"B cannot be higher than C\",IFERROR(IF(COUNTA(Y8:Z8)=0,\"Fill in supplementary fields\",IF(Y8=0,V8/2*(T8/U8)+V8/2*(1/Z8),(V8/2)*(T8/U8))),\"Fill in supplementary fields\"))+(IF(LEFT(S8,1)=\"1\",((U8+V8)/AA8)*(T8/(U8+V8))*AB8*AC8*(AA8/(1-AC8)),IF(LEFT(S8,1)=\"2\",IF(COUNTA(T8:V8)=0,\"Fill in supplementary fields\",(U8+V8)*AC8*AB8))))","v":5714.2857142857138},11428.571428571428,10714.285714285714,5714.2857142857138,11428.571428571428,11428.571428571428,20000,20000,20000,20000,20000,20000,20000,"3=Common shares in flat collective investment vehicle",3]
[2025,null,"123abc",{"$f":"D8+1","v":2025000002},null,null,null,null,null,null,null,null,null,"USD",15000,"11=Portfolio mobilisation, Investment exists (debt or equity) (PILOT) ","3=Third high income/OECD country",15000,"3= Portfolio mobilisation",3000,3000,15000,null,"",null,null,null,null,null,null,null,null,"Example",null,null,11,5,"","",{"$f":"IF(T9>U9,\"B cannot be higher than C\",IF(COUNTA(Y9:Z9)=0,\"Fill in supplementary fields\",(V9/2)*(T9/U9)+(V9/2)*(1/SUM(Y9:Z9))))+(IF(LEFT(S9,1)=\"1\",((T21*AB21)*(AC21/(1-AC21))),IF(LEFT(S9,1)=\"2\",IF(COUNTA(T9:V9)=0,\"Fill in supplementary fields\",(U9+V9)*AC9*AB9))))","v":{"$error":"#VALUE!"}},{"$f":"IF(T9>U9,\"B cannot be higher than C\",IFERROR(IF(COUNTA(Y9:Z9)=0,\"Fill in supplementary fields\",V9/2)*(T9/U9)+(V9/2)*(1/Y9),\"Fill in supplementary fields\"))+(IF(LEFT(S9,1)=\"1\",((T21*AB21)*(AC21/(1-AC21))),IF(LEFT(S9,1)=\"2\",IF(COUNTA(T9:V9)=0,\"Fill in supplementary fields\",(U9+V9)*AC9*AB9))))","v":{"$error":"#VALUE!"}},{"$f":"IF(T9>U9,\"B cannot be higher than C\",IFERROR(IF(COUNTA(Y9:Z9)=0,\"Fill in supplementary fields\",IF(Y9=0,V9/2*(T9/U9)+V9/2*(1/Z9),(V9/2)*(T9/U9))),\"Fill in supplementary fields\"))+(IF(LEFT(S9,1)=\"1\",((T21*AB21)*(AC21/(1-AC21))),IF(LEFT(S9,1)=\"2\",IF(COUNTA(T9:V9)=0,\"Fill in supplementary fields\",(U9+V9)*AC9*AB9))))","v":{"$error":"#VALUE!"}},15000,"Fill in supplementary fields","Fill in supplementary fields",15000,15000,15000,15000,15000,15000,15000,15000,15000,"4=Shares in the riskiest tranche of structured collective investment vehicle, first-loss shares and others (e.g. lock-up shares)",4]
[2025,null,"123abc",2025000003,null,null,null,null,null,null,null,null,null,"USD",8800,"4=Shares in the riskiest tranche of structured collective investment vehicle, first-loss shares and others (e.g. lock-up shares)","4=Other third country",8800,"1 = Second-level flows mobilised through CIVs, equity funds ",16000,16000,6000,null,"",1,null,0.5,0.7,0.2,null,null,null,"Example",null,null,4,6,"","",{"$f":"IF(T10>U10,\"B cannot be higher than C\",IF(COUNTA(Y10:Z10)=0,\"Fill in supplementary fields\",(V10/2)*(T10/U10)+(V10/2)*(1/SUM(Y10:Z10))))+(IF(LEFT(S10,1)=\"1\",((U10+V10)/AA10)*(T10/(U10+V10))*AB10*AC10*(AA10/(1-AC10)),IF(LEFT(S10,1)=\"2\",IF(COUNTA(T10:V10)=0,\"Fill in supplementary fields\",(U10+V10)*AC10*AB10))))","v":8800},{"$f":"IF(T10>U10,\"B cannot be higher than C\",IFERROR(IF(COUNTA(Y10:Z10)=0,\"Fill in supplementary fields\",V10/2)*(T10/U10)+(V10/2)*(1/Y10),\"Fill in supplementary fields\"))+(IF(LEFT(S10,1)=\"1\",((U10+V10)/AA10)*(T10/(U10+V10))*AB10*AC10*(AA10/(1-AC10)),IF(LEFT(S10,1)=\"2\",IF(COUNTA(T10:V10)=0,\"Fill in supplementary fields\",(U10+V10)*AC10*AB10))))","v":8800},{"$f":"IF(T10>U10,\"B cannot be higher than C\",IFERROR(IF(COUNTA(Y10:Z10)=0,\"Fill in supplementary fields\",IF(Y10=0,V10/2*(T10/U10)+V10/2*(1/Z10),(V10/2)*(T10/U10))),\"Fill in supplementary fields\"))+(IF(LEFT(S10,1)=\"1\",((U10+V10)/AA10)*(T10/(U10+V10))*AB10*AC10*(AA10/(1-AC10)),IF(LEFT(S10,1)=\"2\",IF(COUNTA(T10:V10)=0,\"Fill in supplementary fields\",(U10+V10)*AC10*AB10))))","v":5800},6000,6000,3000,6000.14,6000,6000,6000,6000,6000,6000,6000,6000,"5=Shares in the mezzanine/senior tranche of structured CIV",5]
[2025,null,"123abc",2025000004,null,null,null,null,null,null,null,null,null,"USD",11160,"3=Common shares in flat collective investment vehicle","4=Other third country",11160,"2 = Second-level flows mobilised through CIVs, debt funds ",14000,14000,3000,null,"",1,null,null,1.6,0.3,null,null,null,"Example",null,null,3,7,"","",{"$f":"IF(T11>U11,\"B cannot be higher than C\",IF(COUNTA(Y11:Z11)=0,\"Fill in supplementary fields\",(V11/2)*(T11/U11)+(V11/2)*(1/SUM(Y11:Z11))))+(IF(LEFT(S11,1)=\"1\",((U11+V11)/AA11)*(T11/(U11+V11))*AB11*AC11*(AA11/(1-AC11)),IF(LEFT(S11,1)=\"2\",IF(COUNTA(T11:V11)=0,\"Fill in supplementary fields\",(U11+V11)*AC11*AB11))))","v":11160},{"$f":"IF(T11>U11,\"B cannot be higher than C\",IFERROR(IF(COUNTA(Y11:Z11)=0,\"Fill in supplementary fields\",V11/2)*(T11/U11)+(V11/2)*(1/Y11),\"Fill in supplementary fields\"))+(IF(LEFT(S11,1)=\"1\",((U11+V11)/AA11)*(T11/(U11+V11))*AB11*AC11*(AA11/(1-AC11)),IF(LEFT(S11,1)=\"2\",IF(COUNTA(T11:V11)=0,\"Fill in supplementary fields\",(U11+V11)*AC11*AB11))))","v":11160},{"$f":"IF(T11>U11,\"B cannot be higher than C\",IFERROR(IF(COUNTA(Y11:Z11)=0,\"Fill in supplementary fields\",IF(Y11=0,V11/2*(T11/U11)+V11/2*(1/Z11),(V11/2)*(T11/U11))),\"Fill in supplementary fields\"))+(IF(LEFT(S11,1)=\"1\",((U11+V11)/AA11)*(T11/(U11+V11))*AB11*AC11*(AA11/(1-AC11)),IF(LEFT(S11,1)=\"2\",IF(COUNTA(T11:V11)=0,\"Fill in supplementary fields\",(U11+V11)*AC11*AB11))))","v":9660},3000,3000,1500,3000.48,3000,3000,3000,3000,3000,3000,3000,3000,"6=Guarantee/insurance ",6]
[2025,null,"123abc",2025000005,null,null,null,null,null,null,null,null,null,"USD",25000,"6=Guarantee/insurance ","2=Recipient country ",40000,null,25000,25000,40000,null,"",null,null,null,null,null,null,null,null,"Example",null,null,6,8,"","",{"$f":"IF(T12>U12,\"B cannot be higher than C\",IF(COUNTA(Y12:Z12)=0,\"Fill in supplementary fields\",(V12/2)*(T12/U12)+(V12/2)*(1/SUM(Y12:Z12))))+(IF(LEFT(S12,1)=\"1\",((T24*AB24)*(AC24/(1-AC24))),IF(LEFT(S12,1)=\"2\",IF(COUNTA(T12:V12)=0,\"Fill in supplementary fields\",(U12+V12)*AC12*AB12))))","v":{"$error":"#VALUE!"}},{"$f":"IF(T12>U12,\"B cannot be higher than C\",IFERROR(IF(COUNTA(Y12:Z12)=0,\"Fill in supplementary fields\",V12/2)*(T12/U12)+(V12/2)*(1/Y12),\"Fill in supplementary fields\"))+(IF(LEFT(S12,1)=\"1\",((T24*AB24)*(AC24/(1-AC24))),IF(LEFT(S12,1)=\"2\",IF(COUNTA(T12:V12)=0,\"Fill in supplementary fields\",(U12+V12)*AC12*AB12))))","v":{"$error":"#VALUE!"}},{"$f":"IF(T12>U12,\"B cannot be higher than C\",IFERROR(IF(COUNTA(Y12:Z12)=0,\"Fill in supplementary fields\",IF(Y12=0,V12/2*(T12/U12)+V12/2*(1/Z12),(V12/2)*(T12/U12))),\"Fill in supplementary fields\"))+(IF(LEFT(S12,1)=\"1\",((T24*AB24)*(AC24/(1-AC24))),IF(LEFT(S12,1)=\"2\",IF(COUNTA(T12:V12)=0,\"Fill in supplementary fields\",(U12+V12)*AC12*AB12))))","v":{"$error":"#VALUE!"}},40000,"Fill in supplementary fields","Fill in supplementary fields",40000,40000,40000,40000,40000,40000,40000,40000,40000,"7=Direct investment in companies/SPVs, equity",7]
[2025,null,"123abc",2025000006,null,null,null,null,null,null,null,null,null,"USD ",8000,"12=Porfolio mobilisation, Risk transfer through securitisation (PILOT)","3=Third high income/OECD country",8000,"3= Portfolio mobilisation",100000,100000,8000,null,"",null,null,null,null,null,null,null,null,"Example",null,null,12,9,"","",{"$f":"IF(T13>U13,\"B cannot be higher than C\",IF(COUNTA(Y13:Z13)=0,\"Fill in supplementary fields\",(V13/2)*(T13/U13)+(V13/2)*(1/SUM(Y13:Z13))))+(IF(LEFT(S13,1)=\"1\",((U13+V13)/AA13)*(T13/(U13+V13))*AB13*AC13*(AA13/(1-AC13)),IF(LEFT(S13,1)=\"2\",IF(COUNTA(T13:V13)=0,\"Fill in supplementary fields\",(U13+V13)*AC13*AB13))))","v":{"$error":"#VALUE!"}},{"$f":"IF(T13>U13,\"B cannot be higher than C\",IFERROR(IF(COUNTA(Y13:Z13)=0,\"Fill in supplementary fields\",V13/2)*(T13/U13)+(V13/2)*(1/Y13),\"Fill in supplementary fields\"))+(IF(LEFT(S13,1)=\"1\",((U13+V13)/AA13)*(T13/(U13+V13))*AB13*AC13*(AA13/(1-AC13)),IF(LEFT(S13,1)=\"2\",IF(COUNTA(T13:V13)=0,\"Fill in supplementary fields\",(U13+V13)*AC13*AB13))))","v":{"$error":"#VALUE!"}},{"$f":"IF(T13>U13,\"B cannot be higher than C\",IFERROR(IF(COUNTA(Y13:Z13)=0,\"Fill in supplementary fields\",IF(Y13=0,V13/2*(T13/U13)+V13/2*(1/Z13),(V13/2)*(T13/U13))),\"Fill in supplementary fields\"))+(IF(LEFT(S13,1)=\"1\",((U13+V13)/AA13)*(T13/(U13+V13))*AB13*AC13*(AA13/(1-AC13)),IF(LEFT(S13,1)=\"2\",IF(COUNTA(T13:V13)=0,\"Fill in supplementary fields\",(U13+V13)*AC13*AB13))))","v":{"$error":"#VALUE!"}},8000,"Fill in supplementary fields","Fill in supplementary fields",8000,8000,8000,8000,8000,8000,8000,8000,8000,"8=Direct investment in companies/SPVs, mezzanine/senior debt",8]
[2025,null,"123abc",2025000007,null,null,null,null,null,null,null,null,null,"USD",400000,"16=Generation, bond issuance (PILOT)","3=Third high income/OECD country",400000,"4= Generation",500000,500000,400000,null,"",null,null,null,null,null,null,null,null,"Example",null,null,16,10,"","",{"$f":"IF(T14>U14,\"B cannot be higher than C\",IF(COUNTA(Y14:Z14)=0,\"Fill in supplementary fields\",(V14/2)*(T14/U14)+(V14/2)*(1/SUM(Y14:Z14))))+(IF(LEFT(S14,1)=\"1\",((U14+V14)/AA14)*(T14/(U14+V14))*AB14*AC14*(AA14/(1-AC14)),IF(LEFT(S14,1)=\"2\",IF(COUNTA(T14:V14)=0,\"Fill in supplementary fields\",(U14+V14)*AC14*AB14))))","v":{"$error":"#VALUE!"}},{"$f":"IF(T14>U14,\"B cannot be higher than C\",IFERROR(IF(COUNTA(Y14:Z14)=0,\"Fill in supplementary fields\",V14/2)*(T14/U14)+(V14/2)*(1/Y14),\"Fill in supplementary fields\"))+(IF(LEFT(S14,1)=\"1\",((U14+V14)/AA14)*(T14/(U14+V14))*AB14*AC14*(AA14/(1-AC14)),IF(LEFT(S14,1)=\"2\",IF(COUNTA(T14:V14)=0,\"Fill in supplementary fields\",(U14+V14)*AC14*AB14))))","v":{"$error":"#VALUE!"}},{"$f":"IF(T14>U14,\"B cannot be higher than C\",IFERROR(IF(COUNTA(Y14:Z14)=0,\"Fill in supplementary fields\",IF(Y14=0,V14/2*(T14/U14)+V14/2*(1/Z14),(V14/2)*(T14/U14))),\"Fill in supplementary fields\"))+(IF(LEFT(S14,1)=\"1\",((U14+V14)/AA14)*(T14/(U14+V14))*AB14*AC14*(AA14/(1-AC14)),IF(LEFT(S14,1)=\"2\",IF(COUNTA(T14:V14)=0,\"Fill in supplementary fields\",(U14+V14)*AC14*AB14))))","v":{"$error":"#VALUE!"}},400000,"Fill in supplementary fields","Fill in supplementary fields",400000,400000,400000,400000,400000,400000,400000,400000,400000,"9=Credit lines",9]
[2025,null,"123abc",2025000008,null,null,null,null,null,null,null,null,null,"USD",200000,"1=Syndicated loan, arranger","2=Recipient country ",200000,null,100000,100000,200000,null,"1=Official institution",null,null,null,null,null,null,null,null,"Example",null,null,1,11,200000,100000,{"$f":"IF(T15>U15,\"B cannot be higher than C\",IF(COUNTA(Y15:Z15)=0,\"Fill in supplementary fields\",(V15/2)*(T15/U15)+(V15/2)*(1/SUM(Y15:Z15))))+(IF(LEFT(S15,1)=\"1\",((T27*AB27)*(AC27/(1-AC27))),IF(LEFT(S15,1)=\"2\",IF(COUNTA(T15:V15)=0,\"Fill in supplementary fields\",(U15+V15)*AC15*AB15))))","v":{"$error":"#VALUE!"}},{"$f":"IF(T15>U15,\"B cannot be higher than C\",IFERROR(IF(COUNTA(Y15:Z15)=0,\"Fill in supplementary fields\",V15/2)*(T15/U15)+(V15/2)*(1/Y15),\"Fill in supplementary fields\"))+(IF(LEFT(S15,1)=\"1\",((T27*AB27)*(AC27/(1-AC27))),IF(LEFT(S15,1)=\"2\",IF(COUNTA(T15:V15)=0,\"Fill in supplementary fields\",(U15+V15)*AC15*AB15))))","v":{"$error":"#VALUE!"}},{"$f":"IF(T15>U15,\"B cannot be higher than C\",IFERROR(IF(COUNTA(Y15:Z15)=0,\"Fill in supplementary fields\",IF(Y15=0,V15/2*(T15/U15)+V15/2*(1/Z15),(V15/2)*(T15/U15))),\"Fill in supplementary fields\"))+(IF(LEFT(S15,1)=\"1\",((T27*AB27)*(AC27/(1-AC27))),IF(LEFT(S15,1)=\"2\",IF(COUNTA(T15:V15)=0,\"Fill in supplementary fields\",(U15+V15)*AC15*AB15))))","v":{"$error":"#VALUE!"}},200000,"Fill in supplementary fields","Fill in supplementary fields",200000,200000,200000,200000,200000,200000,200000,200000,200000,"10=Simple co-financing arrangements",10]
[2025,null,"123abc",2025000009,null,null,null,null,null,null,null,null,null,"USD",30000,"6=Guarantee/insurance ","1=Provider country",30000,null,20000,20000,30000,null,"",null,null,null,null,null,null,null,null,null,null,null,6,12,"","",{"$f":"IF(T16>U16,\"B cannot be higher than C\",IF(COUNTA(Y16:Z16)=0,\"Fill in supplementary fields\",(V16/2)*(T16/U16)+(V16/2)*(1/SUM(Y16:Z16))))+(IF(LEFT(S16,1)=\"1\",((U16+V16)/AA16)*(T16/(U16+V16))*AB16*AC16*(AA16/(1-AC16)),IF(LEFT(S16,1)=\"2\",IF(COUNTA(T16:V16)=0,\"Fill in supplementary fields\",(U16+V16)*AC16*AB16))))","v":{"$error":"#VALUE!"}},{"$f":"IF(T16>U16,\"B cannot be higher than C\",IFERROR(IF(COUNTA(Y16:Z16)=0,\"Fill in supplementary fields\",V16/2)*(T16/U16)+(V16/2)*(1/Y16),\"Fill in supplementary fields\"))+(IF(LEFT(S16,1)=\"1\",((U16+V16)/AA16)*(T16/(U16+V16))*AB16*AC16*(AA16/(1-AC16)),IF(LEFT(S16,1)=\"2\",IF(COUNTA(T16:V16)=0,\"Fill in supplementary fields\",(U16+V16)*AC16*AB16))))","v":{"$error":"#VALUE!"}},{"$f":"IF(T16>U16,\"B cannot be higher than C\",IFERROR(IF(COUNTA(Y16:Z16)=0,\"Fill in supplementary fields\",IF(Y16=0,V16/2*(T16/U16)+V16/2*(1/Z16),(V16/2)*(T16/U16))),\"Fill in supplementary fields\"))+(IF(LEFT(S16,1)=\"1\",((U16+V16)/AA16)*(T16/(U16+V16))*AB16*AC16*(AA16/(1-AC16)),IF(LEFT(S16,1)=\"2\",IF(COUNTA(T16:V16)=0,\"Fill in supplementary fields\",(U16+V16)*AC16*AB16))))","v":{"$error":"#VALUE!"}},30000,"Fill in supplementary fields","Fill in supplementary fields",30000,30000,{"$f":"$V16","v":30000},30000,30000,30000,30000,30000,30000,"11=Portfolio mobilisation, investment exists (debt or equity) (PILOT) ",11]
[2025,null,"123abc",2025000010,null,null,null,null,null,null,null,null,null,"USD",40000,"9=Credit lines","2=Recipient country ",40000,null,10000,10000,15000,null,"",null,null,null,1,25000,null,null,null,null,null,null,9,13,"","",{"$f":"IF(T17>U17,\"B cannot be higher than C\",IF(COUNTA(Y17:Z17)=0,\"Fill in supplementary fields\",(V17/2)*(T17/U17)+(V17/2)*(1/SUM(Y17:Z17))))+(IF(LEFT(S17,1)=\"1\",((U17+V17)/AA17)*(T17/(U17+V17))*AB17*AC17*(AA17/(1-AC17)),IF(LEFT(S17,1)=\"2\",IF(COUNTA(T17:V17)=0,\"Fill in supplementary fields\",(U17+V17)*AC17*AB17))))","v":{"$error":"#VALUE!"}},{"$f":"IF(T17>U17,\"B cannot be higher than C\",IFERROR(IF(COUNTA(Y17:Z17)=0,\"Fill in supplementary fields\",V17/2)*(T17/U17)+(V17/2)*(1/Y17),\"Fill in supplementary fields\"))+(IF(LEFT(S17,1)=\"1\",((U17+V17)/AA17)*(T17/(U17+V17))*AB17*AC17*(AA17/(1-AC17)),IF(LEFT(S17,1)=\"2\",IF(COUNTA(T17:V17)=0,\"Fill in supplementary fields\",(U17+V17)*AC17*AB17))))","v":{"$error":"#VALUE!"}},{"$f":"IF(T17>U17,\"B cannot be higher than C\",IFERROR(IF(COUNTA(Y17:Z17)=0,\"Fill in supplementary fields\",IF(Y17=0,V17/2*(T17/U17)+V17/2*(1/Z17),(V17/2)*(T17/U17))),\"Fill in supplementary fields\"))+(IF(LEFT(S17,1)=\"1\",((U17+V17)/AA17)*(T17/(U17+V17))*AB17*AC17*(AA17/(1-AC17)),IF(LEFT(S17,1)=\"2\",IF(COUNTA(T17:V17)=0,\"Fill in supplementary fields\",(U17+V17)*AC17*AB17))))","v":{"$error":"#VALUE!"}},15000,"Fill in supplementary fields","Fill in supplementary fields",40000,15000,15000,15000,15000,15000,15000,15000,15000,"12=Porfolio mobilisation, risk transfer through securitisation (PILOT)",12]
[null,null,null,null,null,null,null,null,null,null,null,null,null,null,null,null,null,"",null,null,null,null,null,null,null,null,null,null,null,null,null,null,null,null,null,"",14,"Fill in supplementary fields","Fill in supplementary fields",{"$f":"IF(T18>U18,\"B cannot be higher than C\",IF(COUNTA(Y18:Z18)=0,\"Fill in supplementary fields\",(V18/2)*(T18/U18)+(V18/2)*(1/SUM(Y18:Z18))))+(IF(LEFT(S18,1)=\"1\",((T30*AB30)*(AC30/(1-AC30))),IF(LEFT(S18,1)=\"2\",IF(COUNTA(T18:V18)=0,\"Fill in supplementary fields\",(U18+V18)*AC18*AB18))))","v":{"$error":"#VALUE!"}},{"$f":"IF(T18>U18,\"B cannot be higher than C\",IFERROR(IF(COUNTA(Y18:Z18)=0,\"Fill in supplementary fields\",V18/2)*(T18/U18)+(V18/2)*(1/Y18),\"Fill in supplementary fields\"))+(IF(LEFT(S18,1)=\"1\",((T30*AB30)*(AC30/(1-AC30))),IF(LEFT(S18,1)=\"2\",IF(COUNTA(T18:V18)=0,\"Fill in supplementary fields\",(U18+V18)*AC18*AB18))))","v":{"$error":"#VALUE!"}},{"$f":"IF(T18>U18,\"B cannot be higher than C\",IFERROR(IF(COUNTA(Y18:Z18)=0,\"Fill in supplementary fields\",IF(Y18=0,V18/2*(T18/U18)+V18/2*(1/Z18),(V18/2)*(T18/U18))),\"Fill in supplementary fields\"))+(IF(LEFT(S18,1)=\"1\",((T30*AB30)*(AC30/(1-AC30))),IF(LEFT(S18,1)=\"2\",IF(COUNTA(T18:V18)=0,\"Fill in supplementary fields\",(U18+V18)*AC18*AB18))))","v":{"$error":"#VALUE!"}},"Enter exposure values in fields A and B","Fill in supplementary fields","Fill in supplementary fields","Fill in supplementary fields","Fill in supplementary fields",0,0,0,0,0,0,0,"13=Portfolio mobilisation, risk transfer through portfolio insurance (PILOT)",13]
[null,null,null,null,null,null,null,null,null,null,null,null,null,null,null,null,null,"",null,null,null,null,null,null,null,null,null,null,null,null,null,null,null,null,null,"",15,"Fill in supplementary fields","Fill in supplementary fields",{"$f":"IF(T19>U19,\"B cannot be higher than C\",IF(COUNTA(Y19:Z19)=0,\"Fill in supplementary fields\",(V19/2)*(T19/U19)+(V19/2)*(1/SUM(Y19:Z19))))+(IF(LEFT(S19,1)=\"1\",((U19+V19)/AA19)*(T19/(U19+V19))*AB19*AC19*(AA19/(1-AC19)),IF(LEFT(S19,1)=\"2\",IF(COUNTA(T19:V19)=0,\"Fill in supplementary fields\",(U19+V19)*AC19*AB19))))","v":{"$error":"#VALUE!"}},{"$f":"IF(T19>U19,\"B cannot be higher than C\",IFERROR(IF(COUNTA(Y19:Z19)=0,\"Fill in supplementary fields\",V19/2)*(T19/U19)+(V19/2)*(1/Y19),\"Fill in supplementary fields\"))+(IF(LEFT(S19,1)=\"1\",((U19+V19)/AA19)*(T19/(U19+V19))*AB19*AC19*(AA19/(1-AC19)),IF(LEFT(S19,1)=\"2\",IF(COUNTA(T19:V19)=0,\"Fill in supplementary fields\",(U19+V19)*AC19*AB19))))","v":{"$error":"#VALUE!"}},{"$f":"IF(T19>U19,\"B cannot be higher than C\",IFERROR(IF(COUNTA(Y19:Z19)=0,\"Fill in supplementary fields\",IF(Y19=0,V19/2*(T19/U19)+V19/2*(1/Z19),(V19/2)*(T19/U19))),\"Fill in supplementary fields\"))+(IF(LEFT(S19,1)=\"1\",((U19+V19)/AA19)*(T19/(U19+V19))*AB19*AC19*(AA19/(1-AC19)),IF(LEFT(S19,1)=\"2\",IF(COUNTA(T19:V19)=0,\"Fill in supplementary fields\",(U19+V19)*AC19*AB19))))","v":{"$error":"#VALUE!"}},"Enter exposure values in fields A and B","Fill in supplementary fields","Fill in supplementary fields","Fill in supplementary fields","Fill in supplementary fields",0,0,0,0,0,0,0,"14=Generation, equity (PILOT) ",14]
[null,null,null,null,null,null,null,null,null,null,null,null,null,null,null,null,null,"",null,null,null,null,null,null,null,null,null,null,null,null,null,null,null,null,null,"",16,"Fill in supplementary fields","Fill in supplementary fields",{"$f":"IF(T20>U20,\"B cannot be higher than C\",IF(COUNTA(Y20:Z20)=0,\"Fill in supplementary fields\",(V20/2)*(T20/U20)+(V20/2)*(1/SUM(Y20:Z20))))+(IF(LEFT(S20,1)=\"1\",((U20+V20)/AA20)*(T20/(U20+V20))*AB20*AC20*(AA20/(1-AC20)),IF(LEFT(S20,1)=\"2\",IF(COUNTA(T20:V20)=0,\"Fill in supplementary fields\",(U20+V20)*AC20*AB20))))","v":{"$error":"#VALUE!"}},{"$f":"IF(T20>U20,\"B cannot be higher than C\",IFERROR(IF(COUNTA(Y20:Z20)=0,\"Fill in supplementary fields\",V20/2)*(T20/U20)+(V20/2)*(1/Y20),\"Fill in supplementary fields\"))+(IF(LEFT(S20,1)=\"1\",((U20+V20)/AA20)*(T20/(U20+V20))*AB20*AC20*(AA20/(1-AC20)),IF(LEFT(S20,1)=\"2\",IF(COUNTA(T20:V20)=0,\"Fill in supplementary fields\",(U20+V20)*AC20*AB20))))","v":{"$error":"#VALUE!"}},{"$f":"IF(T20>U20,\"B cannot be higher than C\",IFERROR(IF(COUNTA(Y20:Z20)=0,\"Fill in supplementary fields\",IF(Y20=0,V20/2*(T20/U20)+V20/2*(1/Z20),(V20/2)*(T20/U20))),\"Fill in supplementary fields\"))+(IF(LEFT(S20,1)=\"1\",((U20+V20)/AA20)*(T20/(U20+V20))*AB20*AC20*(AA20/(1-AC20)),IF(LEFT(S20,1)=\"2\",IF(COUNTA(T20:V20)=0,\"Fill in supplementary fields\",(U20+V20)*AC20*AB20))))","v":{"$error":"#VALUE!"}},"Enter exposure values in fields A and B","Fill in supplementary fields","Fill in supplementary fields","Fill in supplementary fields","Fill in supplementary fields",0,0,0,0,0,0,0,"15=Generation, hybrid capital (PILOT)",15]
[null,null,null,null,null,null,null,null,null,null,null,null,null,null,null,null,null,"",null,null,null,null,null,{"$f":"IFERROR(IF(P21=\"1=Syndicated loan, arranger\",\"1=Official institution\",IF(P21=1,\"1=Official institution\",\"\")),\"\")","v":""},null,null,null,null,null,null,null,null,null,null,null,"",17,"Fill in supplementary fields","Fill in supplementary fields",{"$f":"IF(T21>U21,\"B cannot be higher than C\",IF(COUNTA(Y21:Z21)=0,\"Fill in supplementary fields\",(V21/2)*(T21/U21)+(V21/2)*(1/SUM(Y21:Z21))))+(IF(LEFT(S21,1)=\"1\",((T33*AB33)*(AC33/(1-AC33))),IF(LEFT(S21,1)=\"2\",IF(COUNTA(T21:V21)=0,\"Fill in supplementary fields\",(U21+V21)*AC21*AB21))))","v":{"$error":"#VALUE!"}},{"$f":"IF(T21>U21,\"B cannot be higher than C\",IFERROR(IF(COUNTA(Y21:Z21)=0,\"Fill in supplementary fields\",V21/2)*(T21/U21)+(V21/2)*(1/Y21),\"Fill in supplementary fields\"))+(IF(LEFT(S21,1)=\"1\",((T33*AB33)*(AC33/(1-AC33))),IF(LEFT(S21,1)=\"2\",IF(COUNTA(T21:V21)=0,\"Fill in supplementary fields\",(U21+V21)*AC21*AB21))))","v":{"$error":"#VALUE!"}},{"$f":"IF(T21>U21,\"B cannot be higher than C\",IFERROR(IF(COUNTA(Y21:Z21)=0,\"Fill in supplementary fields\",IF(Y21=0,V21/2*(T21/U21)+V21/2*(1/Z21),(V21/2)*(T21/U21))),\"Fill in supplementary fields\"))+(IF(LEFT(S21,1)=\"1\",((T33*AB33)*(AC33/(1-AC33))),IF(LEFT(S21,1)=\"2\",IF(COUNTA(T21:V21)=0,\"Fill in supplementary fields\",(U21+V21)*AC21*AB21))))","v":{"$error":"#VALUE!"}},"Enter exposure values in fields A and B","Fill in supplementary fields","Fill in supplementary fields","Fill in supplementary fields","Fill in supplementary fields",0,0,0,0,0,0,0,"16=Generation, bond issuance (PILOT)",16]
[null,null,null,null,null,null,null,null,null,null,null,null,null,null,null,null,null,"",null,null,null,null,null,"",null,null,null,null,null,null,null,null,null,null,null,"",18,"Fill in supplementary fields","Fill in supplementary fields",{"$f":"IF(T22>U22,\"B cannot be higher than C\",IF(COUNTA(Y22:Z22)=0,\"Fill in supplementary fields\",(V22/2)*(T22/U22)+(V22/2)*(1/SUM(Y22:Z22))))+(IF(LEFT(S22,1)=\"1\",((U22+V22)/AA22)*(T22/(U22+V22))*AB22*AC22*(AA22/(1-AC22)),IF(LEFT(S22,1)=\"2\",IF(COUNTA(T22:V22)=0,\"Fill in supplementary fields\",(U22+V22)*AC22*AB22))))","v":{"$error":"#VALUE!"}},{"$f":"IF(T22>U22,\"B cannot be higher than C\",IFERROR(IF(COUNTA(Y22:Z22)=0,\"Fill in supplementary fields\",V22/2)*(T22/U22)+(V22/2)*(1/Y22),\"Fill in supplementary fields\"))+(IF(LEFT(S22,1)=\"1\",((U22+V22)/AA22)*(T22/(U22+V22))*AB22*AC22*(AA22/(1-AC22)),IF(LEFT(S22,1)=\"2\",IF(COUNTA(T22:V22)=0,\"Fill in supplementary fields\",(U22+V22)*AC22*AB22))))","v":{"$error":"#VALUE!"}},{"$f":"IF(T22>U22,\"B cannot be higher than C\",IFERROR(IF(COUNTA(Y22:Z22)=0,\"Fill in supplementary fields\",IF(Y22=0,V22/2*(T22/U22)+V22/2*(1/Z22),(V22/2)*(T22/U22))),\"Fill in supplementary fields\"))+(IF(LEFT(S22,1)=\"1\",((U22+V22)/AA22)*(T22/(U22+V22))*AB22*AC22*(AA22/(1-AC22)),IF(LEFT(S22,1)=\"2\",IF(COUNTA(T22:V22)=0,\"Fill in supplementary fields\",(U22+V22)*AC22*AB22))))","v":{"$error":"#VALUE!"}},"Enter exposure values in fields A and B","Fill in supplementary fields","Fill in supplementary fields","Fill in supplementary fields","Fill in supplementary fields",0,0,0,0,0,0,0]
[null,null,null,null,null,null,null,null,null,null,null,null,null,null,null,null,null,"",null,null,null,null,null,"",null,null,null,null,null,null,null,null,null,null,null,"",19,"Fill in supplementary fields","Fill in supplementary fields",{"$f":"IF(T23>U23,\"B cannot be higher than C\",IF(COUNTA(Y23:Z23)=0,\"Fill in supplementary fields\",(V23/2)*(T23/U23)+(V23/2)*(1/SUM(Y23:Z23))))+(IF(LEFT(S23,1)=\"1\",((U23+V23)/AA23)*(T23/(U23+V23))*AB23*AC23*(AA23/(1-AC23)),IF(LEFT(S23,1)=\"2\",IF(COUNTA(T23:V23)=0,\"Fill in supplementary fields\",(U23+V23)*AC23*AB23))))","v":{"$error":"#VALUE!"}},{"$f":"IF(T23>U23,\"B cannot be higher than C\",IFERROR(IF(COUNTA(Y23:Z23)=0,\"Fill in supplementary fields\",V23/2)*(T23/U23)+(V23/2)*(1/Y23),\"Fill in supplementary fields\"))+(IF(LEFT(S23,1)=\"1\",((U23+V23)/AA23)*(T23/(U23+V23))*AB23*AC23*(AA23/(1-AC23)),IF(LEFT(S23,1)=\"2\",IF(COUNTA(T23:V23)=0,\"Fill in supplementary fields\",(U23+V23)*AC23*AB23))))","v":{"$error":"#VALUE!"}},{"$f":"IF(T23>U23,\"B cannot be higher than C\",IFERROR(IF(COUNTA(Y23:Z23)=0,\"Fill in supplementary fields\",IF(Y23=0,V23/2*(T23/U23)+V23/2*(1/Z23),(V23/2)*(T23/U23))),\"Fill in supplementary fields\"))+(IF(LEFT(S23,1)=\"1\",((U23+V23)/AA23)*(T23/(U23+V23))*AB23*AC23*(AA23/(1-AC23)),IF(LEFT(S23,1)=\"2\",IF(COUNTA(T23:V23)=0,\"Fill in supplementary fields\",(U23+V23)*AC23*AB23))))","v":{"$error":"#VALUE!"}},"Enter exposure values in fields A and B","Fill in supplementary fields","Fill in supplementary fields","Fill in supplementary fields","Fill in supplementary fields",0,0,0,0,0,0,0]
[null,null,null,null,null,null,null,null,null,null,null,null,null,null,null,null,null,"",null,null,null,null,null,"",null,null,null,null,null,null,null,null,null,null,null,"",20,"Fill in supplementary fields","Fill in supplementary fields",{"$f":"IF(T24>U24,\"B cannot be higher than C\",IF(COUNTA(Y24:Z24)=0,\"Fill in supplementary fields\",(V24/2)*(T24/U24)+(V24/2)*(1/SUM(Y24:Z24))))+(IF(LEFT(S24,1)=\"1\",((T36*AB36)*(AC36/(1-AC36))),IF(LEFT(S24,1)=\"2\",IF(COUNTA(T24:V24)=0,\"Fill in supplementary fields\",(U24+V24)*AC24*AB24))))","v":{"$error":"#VALUE!"}},{"$f":"IF(T24>U24,\"B cannot be higher than C\",IFERROR(IF(COUNTA(Y24:Z24)=0,\"Fill in supplementary fields\",V24/2)*(T24/U24)+(V24/2)*(1/Y24),\"Fill in supplementary fields\"))+(IF(LEFT(S24,1)=\"1\",((T36*AB36)*(AC36/(1-AC36))),IF(LEFT(S24,1)=\"2\",IF(COUNTA(T24:V24)=0,\"Fill in supplementary fields\",(U24+V24)*AC24*AB24))))","v":{"$error":"#VALUE!"}},{"$f":"IF(T24>U24,\"B cannot be higher than C\",IFERROR(IF(COUNTA(Y24:Z24)=0,\"Fill in supplementary fields\",IF(Y24=0,V24/2*(T24/U24)+V24/2*(1/Z24),(V24/2)*(T24/U24))),\"Fill in supplementary fields\"))+(IF(LEFT(S24,1)=\"1\",((T36*AB36)*(AC36/(1-AC36))),IF(LEFT(S24,1)=\"2\",IF(COUNTA(T24:V24)=0,\"Fill in supplementary fields\",(U24+V24)*AC24*AB24))))","v":{"$error":"#VALUE!"}},"Enter exposure values in fields A and B","Fill in supplementary fields","Fill in supplementary fields","Fill in supplementary fields","Fill in supplementary fields",0,0,0,0,0,0,0]
[null,null,null,null,null,null,null,null,null,null,null,null,null,null,null,null,null,"",null,null,null,null,null,"",null,null,null,null,null,null,null,null,null,null,null,"",21,"Fill in supplementary fields","Fill in supplementary fields",{"$f":"IF(T25>U25,\"B cannot be higher than C\",IF(COUNTA(Y25:Z25)=0,\"Fill in supplementary fields\",(V25/2)*(T25/U25)+(V25/2)*(1/SUM(Y25:Z25))))+(IF(LEFT(S25,1)=\"1\",((U25+V25)/AA25)*(T25/(U25+V25))*AB25*AC25*(AA25/(1-AC25)),IF(LEFT(S25,1)=\"2\",IF(COUNTA(T25:V25)=0,\"Fill in supplementary fields\",(U25+V25)*AC25*AB25))))","v":{"$error":"#VALUE!"}},{"$f":"IF(T25>U25,\"B cannot be higher than C\",IFERROR(IF(COUNTA(Y25:Z25)=0,\"Fill in supplementary fields\",V25/2)*(T25/U25)+(V25/2)*(1/Y25),\"Fill in supplementary fields\"))+(IF(LEFT(S25,1)=\"1\",((U25+V25)/AA25)*(T25/(U25+V25))*AB25*AC25*(AA25/(1-AC25)),IF(LEFT(S25,1)=\"2\",IF(COUNTA(T25:V25)=0,\"Fill in supplementary fields\",(U25+V25)*AC25*AB25))))","v":{"$error":"#VALUE!"}},{"$f":"IF(T25>U25,\"B cannot be higher than C\",IFERROR(IF(COUNTA(Y25:Z25)=0,\"Fill in supplementary fields\",IF(Y25=0,V25/2*(T25/U25)+V25/2*(1/Z25),(V25/2)*(T25/U25))),\"Fill in supplementary fields\"))+(IF(LEFT(S25,1)=\"1\",((U25+V25)/AA25)*(T25/(U25+V25))*AB25*AC25*(AA25/(1-AC25)),IF(LEFT(S25,1)=\"2\",IF(COUNTA(T25:V25)=0,\"Fill in supplementary fields\",(U25+V25)*AC25*AB25))))","v":{"$error":"#VALUE!"}},"Enter exposure values in fields A and B","Fill in supplementary fields","Fill in supplementary fields","Fill in supplementary fields","Fill in supplementary fields",0,0,0,0,0,0,0]
[null,null,null,null,null,null,null,null,null,null,null,null,null,null,null,null,null,"",null,null,null,null,null,"",null,null,null,null,null,null,null,null,null,null,null,"",22,"Fill in supplementary fields","Fill in supplementary fields",{"$f":"IF(T26>U26,\"B cannot be higher than C\",IF(COUNTA(Y26:Z26)=0,\"Fill in supplementary fields\",(V26/2)*(T26/U26)+(V26/2)*(1/SUM(Y26:Z26))))+(IF(LEFT(S26,1)=\"1\",((U26+V26)/AA26)*(T26/(U26+V26))*AB26*AC26*(AA26/(1-AC26)),IF(LEFT(S26,1)=\"2\",IF(COUNTA(T26:V26)=0,\"Fill in supplementary fields\",(U26+V26)*AC26*AB26))))","v":{"$error":"#VALUE!"}},{"$f":"IF(T26>U26,\"B cannot be higher than C\",IFERROR(IF(COUNTA(Y26:Z26)=0,\"Fill in supplementary fields\",V26/2)*(T26/U26)+(V26/2)*(1/Y26),\"Fill in supplementary fields\"))+(IF(LEFT(S26,1)=\"1\",((U26+V26)/AA26)*(T26/(U26+V26))*AB26*AC26*(AA26/(1-AC26)),IF(LEFT(S26,1)=\"2\",IF(COUNTA(T26:V26)=0,\"Fill in supplementary fields\",(U26+V26)*AC26*AB26))))","v":{"$error":"#VALUE!"}},{"$f":"IF(T26>U26,\"B cannot be higher than C\",IFERROR(IF(COUNTA(Y26:Z26)=0,\"Fill in supplementary fields\",IF(Y26=0,V26/2*(T26/U26)+V26/2*(1/Z26),(V26/2)*(T26/U26))),\"Fill in supplementary fields\"))+(IF(LEFT(S26,1)=\"1\",((U26+V26)/AA26)*(T26/(U26+V26))*AB26*AC26*(AA26/(1-AC26)),IF(LEFT(S26,1)=\"2\",IF(COUNTA(T26:V26)=0,\"Fill in supplementary fields\",(U26+V26)*AC26*AB26))))","v":{"$error":"#VALUE!"}},"Enter exposure values in fields A and B","Fill in supplementary fields","Fill in supplementary fields","Fill in supplementary fields","Fill in supplementary fields",{"$f":"$V26","v":0},0,0,0,0,0,0]
[null,null,null,null,null,null,null,null,null,null,null,null,null,null,null,null,null,"",null,null,null,null,null,"",null,null,null,null,null,null,null,null,null,null,null,"",23,"Fill in supplementary fields","Fill in supplementary fields",{"$f":"IF(T27>U27,\"B cannot be higher than C\",IF(COUNTA(Y27:Z27)=0,\"Fill in supplementary fields\",(V27/2)*(T27/U27)+(V27/2)*(1/SUM(Y27:Z27))))+(IF(LEFT(S27,1)=\"1\",((T39*AB39)*(AC39/(1-AC39))),IF(LEFT(S27,1)=\"2\",IF(COUNTA(T27:V27)=0,\"Fill in supplementary fields\",(U27+V27)*AC27*AB27))))","v":{"$error":"#VALUE!"}},{"$f":"IF(T27>U27,\"B cannot be higher than C\",IFERROR(IF(COUNTA(Y27:Z27)=0,\"Fill in supplementary fields\",V27/2)*(T27/U27)+(V27/2)*(1/Y27),\"Fill in supplementary fields\"))+(IF(LEFT(S27,1)=\"1\",((T39*AB39)*(AC39/(1-AC39))),IF(LEFT(S27,1)=\"2\",IF(COUNTA(T27:V27)=0,\"Fill in supplementary fields\",(U27+V27)*AC27*AB27))))","v":{"$error":"#VALUE!"}},{"$f":"IF(T27>U27,\"B cannot be higher than C\",IFERROR(IF(COUNTA(Y27:Z27)=0,\"Fill in supplementary fields\",IF(Y27=0,V27/2*(T27/U27)+V27/2*(1/Z27),(V27/2)*(T27/U27))),\"Fill in supplementary fields\"))+(IF(LEFT(S27,1)=\"1\",((T39*AB39)*(AC39/(1-AC39))),IF(LEFT(S27,1)=\"2\",IF(COUNTA(T27:V27)=0,\"Fill in supplementary fields\",(U27+V27)*AC27*AB27))))","v":{"$error":"#VALUE!"}},"Enter exposure values in fields A and B","Fill in supplementary fields","Fill in supplementary fields","Fill in supplementary fields","Fill in supplementary fields",0,0,0,0,0,0,0]
[null,null,null,null,null,null,null,null,null,null,null,null,null,null,null,null,null,"",null,null,null,null,null,"",null,null,null,null,null,null,null,null,null,null,null,"",24,"Fill in supplementary fields","Fill in supplementary fields",{"$f":"IF(T28>U28,\"B cannot be higher than C\",IF(COUNTA(Y28:Z28)=0,\"Fill in supplementary fields\",(V28/2)*(T28/U28)+(V28/2)*(1/SUM(Y28:Z28))))+(IF(LEFT(S28,1)=\"1\",((U28+V28)/AA28)*(T28/(U28+V28))*AB28*AC28*(AA28/(1-AC28)),IF(LEFT(S28,1)=\"2\",IF(COUNTA(T28:V28)=0,\"Fill in supplementary fields\",(U28+V28)*AC28*AB28))))","v":{"$error":"#VALUE!"}},{"$f":"IF(T28>U28,\"B cannot be higher than C\",IFERROR(IF(COUNTA(Y28:Z28)=0,\"Fill in supplementary fields\",V28/2)*(T28/U28)+(V28/2)*(1/Y28),\"Fill in supplementary fields\"))+(IF(LEFT(S28,1)=\"1\",((U28+V28)/AA28)*(T28/(U28+V28))*AB28*AC28*(AA28/(1-AC28)),IF(LEFT(S28,1)=\"2\",IF(COUNTA(T28:V28)=0,\"Fill in supplementary fields\",(U28+V28)*AC28*AB28))))","v":{"$error":"#VALUE!"}},{"$f":"IF(T28>U28,\"B cannot be higher than C\",IFERROR(IF(COUNTA(Y28:Z28)=0,\"Fill in supplementary fields\",IF(Y28=0,V28/2*(T28/U28)+V28/2*(1/Z28),(V28/2)*(T28/U28))),\"Fill in supplementary fields\"))+(IF(LEFT(S28,1)=\"1\",((U28+V28)/AA28)*(T28/(U28+V28))*AB28*AC28*(AA28/(1-AC28)),IF(LEFT(S28,1)=\"2\",IF(COUNTA(T28:V28)=0,\"Fill in supplementary fields\",(U28+V28)*AC28*AB28))))","v":{"$error":"#VALUE!"}},"Enter exposure values in fields A and B","Fill in supplementary fields","Fill in supplementary fields","Fill in supplementary fields","Fill in supplementary fields",0,0,0,0,0,0,0]
[null,null,null,null,null,null,null,null,null,null,null,null,null,null,null,null,null,"",null,null,null,null,null,"",null,null,null,null,null,null,null,null,null,null,null,"",25,"Fill in supplementary fields","Fill in supplementary fields",{"$f":"IF(T29>U29,\"B cannot be higher than C\",IF(COUNTA(Y29:Z29)=0,\"Fill in supplementary fields\",(V29/2)*(T29/U29)+(V29/2)*(1/SUM(Y29:Z29))))+(IF(LEFT(S29,1)=\"1\",((U29+V29)/AA29)*(T29/(U29+V29))*AB29*AC29*(AA29/(1-AC29)),IF(LEFT(S29,1)=\"2\",IF(COUNTA(T29:V29)=0,\"Fill in supplementary fields\",(U29+V29)*AC29*AB29))))","v":{"$error":"#VALUE!"}},{"$f":"IF(T29>U29,\"B cannot be higher than C\",IFERROR(IF(COUNTA(Y29:Z29)=0,\"Fill in supplementary fields\",V29/2)*(T29/U29)+(V29/2)*(1/Y29),\"Fill in supplementary fields\"))+(IF(LEFT(S29,1)=\"1\",((U29+V29)/AA29)*(T29/(U29+V29))*AB29*AC29*(AA29/(1-AC29)),IF(LEFT(S29,1)=\"2\",IF(COUNTA(T29:V29)=0,\"Fill in supplementary fields\",(U29+V29)*AC29*AB29))))","v":{"$error":"#VALUE!"}},{"$f":"IF(T29>U29,\"B cannot be higher than C\",IFERROR(IF(COUNTA(Y29:Z29)=0,\"Fill in supplementary fields\",IF(Y29=0,V29/2*(T29/U29)+V29/2*(1/Z29),(V29/2)*(T29/U29))),\"Fill in supplementary fields\"))+(IF(LEFT(S29,1)=\"1\",((U29+V29)/AA29)*(T29/(U29+V29))*AB29*AC29*(AA29/(1-AC29)),IF(LEFT(S29,1)=\"2\",IF(COUNTA(T29:V29)=0,\"Fill in supplementary fields\",(U29+V29)*AC29*AB29))))","v":{"$error":"#VALUE!"}},"Enter exposure values in fields A and B","Fill in supplementary fields","Fill in supplementary fields","Fill in supplementary fields","Fill in supplementary fields",0,0,0,0,0,0,0]
[null,null,null,null,null,null,null,null,null,null,null,null,null,null,null,null,null,"",null,null,null,null,null,"",null,null,null,null,null,null,null,null,null,null,null,"",26,"Fill in supplementary fields","Fill in supplementary fields",{"$f":"IF(T30>U30,\"B cannot be higher than C\",IF(COUNTA(Y30:Z30)=0,\"Fill in supplementary fields\",(V30/2)*(T30/U30)+(V30/2)*(1/SUM(Y30:Z30))))+(IF(LEFT(S30,1)=\"1\",((T42*AB42)*(AC42/(1-AC42))),IF(LEFT(S30,1)=\"2\",IF(COUNTA(T30:V30)=0,\"Fill in supplementary fields\",(U30+V30)*AC30*AB30))))","v":{"$error":"#VALUE!"}},{"$f":"IF(T30>U30,\"B cannot be higher than C\",IFERROR(IF(COUNTA(Y30:Z30)=0,\"Fill in supplementary fields\",V30/2)*(T30/U30)+(V30/2)*(1/Y30),\"Fill in supplementary fields\"))+(IF(LEFT(S30,1)=\"1\",((T42*AB42)*(AC42/(1-AC42))),IF(LEFT(S30,1)=\"2\",IF(COUNTA(T30:V30)=0,\"Fill in supplementary fields\",(U30+V30)*AC30*AB30))))","v":{"$error":"#VALUE!"}},{"$f":"IF(T30>U30,\"B cannot be higher than C\",IFERROR(IF(COUNTA(Y30:Z30)=0,\"Fill in supplementary fields\",IF(Y30=0,V30/2*(T30/U30)+V30/2*(1/Z30),(V30/2)*(T30/U30))),\"Fill in supplementary fields\"))+(IF(LEFT(S30,1)=\"1\",((T42*AB42)*(AC42/(1-AC42))),IF(LEFT(S30,1)=\"2\",IF(COUNTA(T30:V30)=0,\"Fill in supplementary fields\",(U30+V30)*AC30*AB30))))","v":{"$error":"#VALUE!"}},"Enter exposure values in fields A and B","Fill in supplementary fields","Fill in supplementary fields","Fill in supplementary fields","Fill in supplementary fields",0,0,0,0,0,0,0]
[null,null,null,null,null,null,null,null,null,null,null,null,null,null,null,null,null,"",null,null,null,null,null,"",null,null,null,null,null,null,null,null,null,null,null,"",27,"Fill in supplementary fields","Fill in supplementary fields",{"$f":"IF(T31>U31,\"B cannot be higher than C\",IF(COUNTA(Y31:Z31)=0,\"Fill in supplementary fields\",(V31/2)*(T31/U31)+(V31/2)*(1/SUM(Y31:Z31))))+(IF(LEFT(S31,1)=\"1\",((U31+V31)/AA31)*(T31/(U31+V31))*AB31*AC31*(AA31/(1-AC31)),IF(LEFT(S31,1)=\"2\",IF(COUNTA(T31:V31)=0,\"Fill in supplementary fields\",(U31+V31)*AC31*AB31))))","v":{"$error":"#VALUE!"}},{"$f":"IF(T31>U31,\"B cannot be higher than C\",IFERROR(IF(COUNTA(Y31:Z31)=0,\"Fill in supplementary fields\",V31/2)*(T31/U31)+(V31/2)*(1/Y31),\"Fill in supplementary fields\"))+(IF(LEFT(S31,1)=\"1\",((U31+V31)/AA31)*(T31/(U31+V31))*AB31*AC31*(AA31/(1-AC31)),IF(LEFT(S31,1)=\"2\",IF(COUNTA(T31:V31)=0,\"Fill in supplementary fields\",(U31+V31)*AC31*AB31))))","v":{"$error":"#VALUE!"}},{"$f":"IF(T31>U31,\"B cannot be higher than C\",IFERROR(IF(COUNTA(Y31:Z31)=0,\"Fill in supplementary fields\",IF(Y31=0,V31/2*(T31/U31)+V31/2*(1/Z31),(V31/2)*(T31/U31))),\"Fill in supplementary fields\"))+(IF(LEFT(S31,1)=\"1\",((U31+V31)/AA31)*(T31/(U31+V31))*AB31*AC31*(AA31/(1-AC31)),IF(LEFT(S31,1)=\"2\",IF(COUNTA(T31:V31)=0,\"Fill in supplementary fields\",(U31+V31)*AC31*AB31))))","v":{"$error":"#VALUE!"}},"Enter exposure values in fields A and B","Fill in supplementary fields","Fill in supplementary fields","Fill in supplementary fields","Fill in supplementary fields",0,0,0,0,0,0,0]
[null,null,null,null,null,null,null,null,null,null,null,null,null,null,null,null,null,"",null,null,null,null,null,"",null,null,null,null,null,null,null,null,null,null,null,"",28,"Fill in supplementary fields","Fill in supplementary fields",{"$f":"IF(T32>U32,\"B cannot be higher than C\",IF(COUNTA(Y32:Z32)=0,\"Fill in supplementary fields\",(V32/2)*(T32/U32)+(V32/2)*(1/SUM(Y32:Z32))))+(IF(LEFT(S32,1)=\"1\",((U32+V32)/AA32)*(T32/(U32+V32))*AB32*AC32*(AA32/(1-AC32)),IF(LEFT(S32,1)=\"2\",IF(COUNTA(T32:V32)=0,\"Fill in supplementary fields\",(U32+V32)*AC32*AB32))))","v":{"$error":"#VALUE!"}},{"$f":"IF(T32>U32,\"B cannot be higher than C\",IFERROR(IF(COUNTA(Y32:Z32)=0,\"Fill in supplementary fields\",V32/2)*(T32/U32)+(V32/2)*(1/Y32),\"Fill in supplementary fields\"))+(IF(LEFT(S32,1)=\"1\",((U32+V32)/AA32)*(T32/(U32+V32))*AB32*AC32*(AA32/(1-AC32)),IF(LEFT(S32,1)=\"2\",IF(COUNTA(T32:V32)=0,\"Fill in supplementary fields\",(U32+V32)*AC32*AB32))))","v":{"$error":"#VALUE!"}},{"$f":"IF(T32>U32,\"B cannot be higher than C\",IFERROR(IF(COUNTA(Y32:Z32)=0,\"Fill in supplementary fields\",IF(Y32=0,V32/2*(T32/U32)+V32/2*(1/Z32),(V32/2)*(T32/U32))),\"Fill in supplementary fields\"))+(IF(LEFT(S32,1)=\"1\",((U32+V32)/AA32)*(T32/(U32+V32))*AB32*AC32*(AA32/(1-AC32)),IF(LEFT(S32,1)=\"2\",IF(COUNTA(T32:V32)=0,\"Fill in supplementary fields\",(U32+V32)*AC32*AB32))))","v":{"$error":"#VALUE!"}},"Enter exposure values in fields A and B","Fill in supplementary fields","Fill in supplementary fields","Fill in supplementary fields","Fill in supplementary fields",0,0,0,0,0,0,0]
[null,null,null,null,null,null,null,null,null,null,null,null,null,null,null,null,null,"",null,null,null,null,null,"",null,null,null,null,null,null,null,null,null,null,null,"",29,"Fill in supplementary fields","Fill in supplementary fields",{"$f":"IF(T33>U33,\"B cannot be higher than C\",IF(COUNTA(Y33:Z33)=0,\"Fill in supplementary fields\",(V33/2)*(T33/U33)+(V33/2)*(1/SUM(Y33:Z33))))+(IF(LEFT(S33,1)=\"1\",((T45*AB45)*(AC45/(1-AC45))),IF(LEFT(S33,1)=\"2\",IF(COUNTA(T33:V33)=0,\"Fill in supplementary fields\",(U33+V33)*AC33*AB33))))","v":{"$error":"#VALUE!"}},{"$f":"IF(T33>U33,\"B cannot be higher than C\",IFERROR(IF(COUNTA(Y33:Z33)=0,\"Fill in supplementary fields\",V33/2)*(T33/U33)+(V33/2)*(1/Y33),\"Fill in supplementary fields\"))+(IF(LEFT(S33,1)=\"1\",((T45*AB45)*(AC45/(1-AC45))),IF(LEFT(S33,1)=\"2\",IF(COUNTA(T33:V33)=0,\"Fill in supplementary fields\",(U33+V33)*AC33*AB33))))","v":{"$error":"#VALUE!"}},{"$f":"IF(T33>U33,\"B cannot be higher than C\",IFERROR(IF(COUNTA(Y33:Z33)=0,\"Fill in supplementary fields\",IF(Y33=0,V33/2*(T33/U33)+V33/2*(1/Z33),(V33/2)*(T33/U33))),\"Fill in supplementary fields\"))+(IF(LEFT(S33,1)=\"1\",((T45*AB45)*(AC45/(1-AC45))),IF(LEFT(S33,1)=\"2\",IF(COUNTA(T33:V33)=0,\"Fill in supplementary fields\",(U33+V33)*AC33*AB33))))","v":{"$error":"#VALUE!"}},"Enter exposure values in fields A and B","Fill in supplementary fields","Fill in supplementary fields","Fill in supplementary fields","Fill in supplementary fields",0,0,0,0,0,0,0]
[null,null,null,null,null,null,null,null,null,null,null,null,null,null,null,null,null,"",null,null,null,null,null,"",null,null,null,null,null,null,null,null,null,null,null,"",30,"Fill in supplementary fields","Fill in supplementary fields",{"$f":"IF(T34>U34,\"B cannot be higher than C\",IF(COUNTA(Y34:Z34)=0,\"Fill in supplementary fields\",(V34/2)*(T34/U34)+(V34/2)*(1/SUM(Y34:Z34))))+(IF(LEFT(S34,1)=\"1\",((U34+V34)/AA34)*(T34/(U34+V34))*AB34*AC34*(AA34/(1-AC34)),IF(LEFT(S34,1)=\"2\",IF(COUNTA(T34:V34)=0,\"Fill in supplementary fields\",(U34+V34)*AC34*AB34))))","v":{"$error":"#VALUE!"}},{"$f":"IF(T34>U34,\"B cannot be higher than C\",IFERROR(IF(COUNTA(Y34:Z34)=0,\"Fill in supplementary fields\",V34/2)*(T34/U34)+(V34/2)*(1/Y34),\"Fill in supplementary fields\"))+(IF(LEFT(S34,1)=\"1\",((U34+V34)/AA34)*(T34/(U34+V34))*AB34*AC34*(AA34/(1-AC34)),IF(LEFT(S34,1)=\"2\",IF(COUNTA(T34:V34)=0,\"Fill in supplementary fields\",(U34+V34)*AC34*AB34))))","v":{"$error":"#VALUE!"}},{"$f":"IF(T34>U34,\"B cannot be higher than C\",IFERROR(IF(COUNTA(Y34:Z34)=0,\"Fill in supplementary fields\",IF(Y34=0,V34/2*(T34/U34)+V34/2*(1/Z34),(V34/2)*(T34/U34))),\"Fill in supplementary fields\"))+(IF(LEFT(S34,1)=\"1\",((U34+V34)/AA34)*(T34/(U34+V34))*AB34*AC34*(AA34/(1-AC34)),IF(LEFT(S34,1)=\"2\",IF(COUNTA(T34:V34)=0,\"Fill in supplementary fields\",(U34+V34)*AC34*AB34))))","v":{"$error":"#VALUE!"}},"Enter exposure values in fields A and B","Fill in supplementary fields","Fill in supplementary fields","Fill in supplementary fields","Fill in supplementary fields",0,0,0,0,0,0,0]
[null,null,null,null,null,null,null,null,null,null,null,null,null,null,null,null,null,"",null,null,null,null,null,"",null,null,null,null,null,null,null,null,null,null,null,"",31,"Fill in supplementary fields","Fill in supplementary fields",{"$f":"IF(T35>U35,\"B cannot be higher than C\",IF(COUNTA(Y35:Z35)=0,\"Fill in supplementary fields\",(V35/2)*(T35/U35)+(V35/2)*(1/SUM(Y35:Z35))))+(IF(LEFT(S35,1)=\"1\",((U35+V35)/AA35)*(T35/(U35+V35))*AB35*AC35*(AA35/(1-AC35)),IF(LEFT(S35,1)=\"2\",IF(COUNTA(T35:V35)=0,\"Fill in supplementary fields\",(U35+V35)*AC35*AB35))))","v":{"$error":"#VALUE!"}},{"$f":"IF(T35>U35,\"B cannot be higher than C\",IFERROR(IF(COUNTA(Y35:Z35)=0,\"Fill in supplementary fields\",V35/2)*(T35/U35)+(V35/2)*(1/Y35),\"Fill in supplementary fields\"))+(IF(LEFT(S35,1)=\"1\",((U35+V35)/AA35)*(T35/(U35+V35))*AB35*AC35*(AA35/(1-AC35)),IF(LEFT(S35,1)=\"2\",IF(COUNTA(T35:V35)=0,\"Fill in supplementary fields\",(U35+V35)*AC35*AB35))))","v":{"$error":"#VALUE!"}},{"$f":"IF(T35>U35,\"B cannot be higher than C\",IFERROR(IF(COUNTA(Y35:Z35)=0,\"Fill in supplementary fields\",IF(Y35=0,V35/2*(T35/U35)+V35/2*(1/Z35),(V35/2)*(T35/U35))),\"Fill in supplementary fields\"))+(IF(LEFT(S35,1)=\"1\",((U35+V35)/AA35)*(T35/(U35+V35))*AB35*AC35*(AA35/(1-AC35)),IF(LEFT(S35,1)=\"2\",IF(COUNTA(T35:V35)=0,\"Fill in supplementary fields\",(U35+V35)*AC35*AB35))))","v":{"$error":"#VALUE!"}},"Enter exposure values in fields A and B","Fill in supplementary fields","Fill in supplementary fields","Fill in supplementary fields","Fill in supplementary fields",0,0,0,0,0,0,0]
[null,null,null,null,null,null,null,null,null,null,null,null,null,null,null,null,null,"",null,null,null,null,null,"",null,null,null,null,null,null,null,null,null,null,null,"",32,"Fill in supplementary fields","Fill in supplementary fields",{"$f":"IF(T36>U36,\"B cannot be higher than C\",IF(COUNTA(Y36:Z36)=0,\"Fill in supplementary fields\",(V36/2)*(T36/U36)+(V36/2)*(1/SUM(Y36:Z36))))+(IF(LEFT(S36,1)=\"1\",((T48*AB48)*(AC48/(1-AC48))),IF(LEFT(S36,1)=\"2\",IF(COUNTA(T36:V36)=0,\"Fill in supplementary fields\",(U36+V36)*AC36*AB36))))","v":{"$error":"#VALUE!"}},{"$f":"IF(T36>U36,\"B cannot be higher than C\",IFERROR(IF(COUNTA(Y36:Z36)=0,\"Fill in supplementary fields\",V36/2)*(T36/U36)+(V36/2)*(1/Y36),\"Fill in supplementary fields\"))+(IF(LEFT(S36,1)=\"1\",((T48*AB48)*(AC48/(1-AC48))),IF(LEFT(S36,1)=\"2\",IF(COUNTA(T36:V36)=0,\"Fill in supplementary fields\",(U36+V36)*AC36*AB36))))","v":{"$error":"#VALUE!"}},{"$f":"IF(T36>U36,\"B cannot be higher than C\",IFERROR(IF(COUNTA(Y36:Z36)=0,\"Fill in supplementary fields\",IF(Y36=0,V36/2*(T36/U36)+V36/2*(1/Z36),(V36/2)*(T36/U36))),\"Fill in supplementary fields\"))+(IF(LEFT(S36,1)=\"1\",((T48*AB48)*(AC48/(1-AC48))),IF(LEFT(S36,1)=\"2\",IF(COUNTA(T36:V36)=0,\"Fill in supplementary fields\",(U36+V36)*AC36*AB36))))","v":{"$error":"#VALUE!"}},"Enter exposure values in fields A and B","Fill in supplementary fields","Fill in supplementary fields","Fill in supplementary fields","Fill in supplementary fields",{"$f":"$V36","v":0},0,0,0,0,0,0]
[null,null,null,null,null,null,null,null,null,null,null,null,null,null,null,null,null,"",null,null,null,null,null,"",null,null,null,null,null,null,null,null,null,null,null,"",33,"Fill in supplementary fields","Fill in supplementary fields",{"$f":"IF(T37>U37,\"B cannot be higher than C\",IF(COUNTA(Y37:Z37)=0,\"Fill in supplementary fields\",(V37/2)*(T37/U37)+(V37/2)*(1/SUM(Y37:Z37))))+(IF(LEFT(S37,1)=\"1\",((U37+V37)/AA37)*(T37/(U37+V37))*AB37*AC37*(AA37/(1-AC37)),IF(LEFT(S37,1)=\"2\",IF(COUNTA(T37:V37)=0,\"Fill in supplementary fields\",(U37+V37)*AC37*AB37))))","v":{"$error":"#VALUE!"}},{"$f":"IF(T37>U37,\"B cannot be higher than C\",IFERROR(IF(COUNTA(Y37:Z37)=0,\"Fill in supplementary fields\",V37/2)*(T37/U37)+(V37/2)*(1/Y37),\"Fill in supplementary fields\"))+(IF(LEFT(S37,1)=\"1\",((U37+V37)/AA37)*(T37/(U37+V37))*AB37*AC37*(AA37/(1-AC37)),IF(LEFT(S37,1)=\"2\",IF(COUNTA(T37:V37)=0,\"Fill in supplementary fields\",(U37+V37)*AC37*AB37))))","v":{"$error":"#VALUE!"}},{"$f":"IF(T37>U37,\"B cannot be higher than C\",IFERROR(IF(COUNTA(Y37:Z37)=0,\"Fill in supplementary fields\",IF(Y37=0,V37/2*(T37/U37)+V37/2*(1/Z37),(V37/2)*(T37/U37))),\"Fill in supplementary fields\"))+(IF(LEFT(S37,1)=\"1\",((U37+V37)/AA37)*(T37/(U37+V37))*AB37*AC37*(AA37/(1-AC37)),IF(LEFT(S37,1)=\"2\",IF(COUNTA(T37:V37)=0,\"Fill in supplementary fields\",(U37+V37)*AC37*AB37))))","v":{"$error":"#VALUE!"}},"Enter exposure values in fields A and B","Fill in supplementary fields","Fill in supplementary fields","Fill in supplementary fields","Fill in supplementary fields",0,0,0,0,0,0,0]
[null,null,null,null,null,null,null,null,null,null,null,null,null,null,null,null,null,{"$f":"IF(LEN(P38)=0,\"\",HLOOKUP(AJ38,$AL$5:$BA$200,AK38,FALSE))","v":""},null,null,null,null,null,"",null,null,null,null,null,null,null,null,null,null,null,{"$f":"IFERROR(VLOOKUP(P38,BC:BD,2,FALSE),\"\")","v":""},{"$f":"AK37+1","v":34},{"$f":"IF(T38>U38,\"B cannot be higher than C\",IF(COUNTA(T38:V38)=0,\"Fill in supplementary fields\",IFERROR(IF(VALUE(LEFT(X38,1))=1,V38/2+(T38/U38)*(V38/2),IF(VALUE(LEFT(X38,1))=2,\"impossible combination\",\"check not available\")),\"\")))","v":"Fill in supplementary fields"},{"$f":"IF(T38>U38,\"B cannot be higher than C\",IF(COUNTA(T38:V38)=0,\"Fill in supplementary fields\",IFERROR(IF(VALUE(LEFT(X38,1))=1,(T38/U38)*(V38/2),IF(VALUE(LEFT(X38,1))=2,(T38/U38)*(V38),\"check not available\")),\"\")))","v":"Fill in supplementary fields"},{"$f":"IF(T38>U38,\"B cannot be higher than C\",IF(COUNTA(Y38:Z38)=0,\"Fill in supplementary fields\",(V38/2)*(T38/U38)+(V38/2)*(1/SUM(Y38:Z38))))+(IF(LEFT(S38,1)=\"1\",((U38+V38)/AA38)*(T38/(U38+V38))*AB38*AC38*(AA38/(1-AC38)),IF(LEFT(S38,1)=\"2\",IF(COUNTA(T38:V38)=0,\"Fill in supplementary fields\",(U38+V38)*AC38*AB38))))","v":{"$error":"#VALUE!"}},{"$f":"IF(T38>U38,\"B cannot be higher than C\",IFERROR(IF(COUNTA(Y38:Z38)=0,\"Fill in supplementary fields\",V38/2)*(T38/U38)+(V38/2)*(1/Y38),\"Fill in supplementary fields\"))+(IF(LEFT(S38,1)=\"1\",((U38+V38)/AA38)*(T38/(U38+V38))*AB38*AC38*(AA38/(1-AC38)),IF(LEFT(S38,1)=\"2\",IF(COUNTA(T38:V38)=0,\"Fill in supplementary fields\",(U38+V38)*AC38*AB38))))","v":{"$error":"#VALUE!"}},{"$f":"IF(T38>U38,\"B cannot be higher than C\",IFERROR(IF(COUNTA(Y38:Z38)=0,\"Fill in supplementary fields\",IF(Y38=0,V38/2*(T38/U38)+V38/2*(1/Z38),(V38/2)*(T38/U38))),\"Fill in supplementary fields\"))+(IF(LEFT(S38,1)=\"1\",((U38+V38)/AA38)*(T38/(U38+V38))*AB38*AC38*(AA38/(1-AC38)),IF(LEFT(S38,1)=\"2\",IF(COUNTA(T38:V38)=0,\"Fill in supplementary fields\",(U38+V38)*AC38*AB38))))","v":{"$error":"#VALUE!"}},{"$f":"IF(T38>U38,\"B cannot be higher than C\",IF(COUNTA(T38:V38)=0,\"Enter exposure values in fields A and B\",(V38)*(T38/U38)))","v":"Enter exposure values in fields A and B"},{"$f":"IF(T38>U38,\"B cannot be higher than C\",IFERROR(IF(COUNTA(Y38:Z38)=0,\"Fill in supplementary fields\",V38/2)*(T38/U38)+(V38/2)*(1/Y38),\"Fill in supplementary fields\"))","v":"Fill in supplementary fields"},{"$f":"IF(T38>U38,\"B cannot be higher than C\",IFERROR(IF(COUNTA(Y38:Z38)=0,\"Fill in supplementary fields\",IF(Y38=0,V38/2*(T38/U38)+V38/2*(1/Z38),(V38/2)*(T38/U38))),\"Fill in supplementary fields\"))","v":"Fill in supplementary fields"},{"$f":"IF(T38>U38,\"B cannot be higher than C\",IF(COUNTA(T38:V38)=0,\"Fill in supplementary fields\",(T38/U38)*((V38)+AB38*AC38)))","v":"Fill in supplementary fields"},{"$f":"IF(T38>U38,\"B cannot be higher than C\",IF(COUNTA(T38:V38)=0,\"Fill in supplementary fields\",(V38)*(T38/U38)))","v":"Fill in supplementary fields"},0,0,0,0,0,0,0]
[null,null,null,null,null,null,null,null,null,null,null,null,null,null,null,null,null,"",null,null,null,null,null,"",null,null,null,null,null,null,null,null,null,null,null,"",35,"Fill in supplementary fields","Fill in supplementary fields",{"$f":"IF(T39>U39,\"B cannot be higher than C\",IF(COUNTA(Y39:Z39)=0,\"Fill in supplementary fields\",(V39/2)*(T39/U39)+(V39/2)*(1/SUM(Y39:Z39))))+(IF(LEFT(S39,1)=\"1\",((T51*AB51)*(AC51/(1-AC51))),IF(LEFT(S39,1)=\"2\",IF(COUNTA(T39:V39)=0,\"Fill in supplementary fields\",(U39+V39)*AC39*AB39))))","v":{"$error":"#VALUE!"}},{"$f":"IF(T39>U39,\"B cannot be higher than C\",IFERROR(IF(COUNTA(Y39:Z39)=0,\"Fill in supplementary fields\",V39/2)*(T39/U39)+(V39/2)*(1/Y39),\"Fill in supplementary fields\"))+(IF(LEFT(S39,1)=\"1\",((T51*AB51)*(AC51/(1-AC51))),IF(LEFT(S39,1)=\"2\",IF(COUNTA(T39:V39)=0,\"Fill in supplementary fields\",(U39+V39)*AC39*AB39))))","v":{"$error":"#VALUE!"}},{"$f":"IF(T39>U39,\"B cannot be higher than C\",IFERROR(IF(COUNTA(Y39:Z39)=0,\"Fill in supplementary fields\",IF(Y39=0,V39/2*(T39/U39)+V39/2*(1/Z39),(V39/2)*(T39/U39))),\"Fill in supplementary fields\"))+(IF(LEFT(S39,1)=\"1\",((T51*AB51)*(AC51/(1-AC51))),IF(LEFT(S39,1)=\"2\",IF(COUNTA(T39:V39)=0,\"Fill in supplementary fields\",(U39+V39)*AC39*AB39))))","v":{"$error":"#VALUE!"}},"Enter exposure values in fields A and B","Fill in supplementary fields","Fill in supplementary fields","Fill in supplementary fields","Fill in supplementary fields",0,0,0,0,0,0,0]
[null,null,null,null,null,null,null,null,null,null,null,null,null,null,null,null,null,"",null,null,null,null,null,"",null,null,null,null,null,null,null,null,null,null,null,"",36,"Fill in supplementary fields","Fill in supplementary fields",{"$f":"IF(T40>U40,\"B cannot be higher than C\",IF(COUNTA(Y40:Z40)=0,\"Fill in supplementary fields\",(V40/2)*(T40/U40)+(V40/2)*(1/SUM(Y40:Z40))))+(IF(LEFT(S40,1)=\"1\",((U40+V40)/AA40)*(T40/(U40+V40))*AB40*AC40*(AA40/(1-AC40)),IF(LEFT(S40,1)=\"2\",IF(COUNTA(T40:V40)=0,\"Fill in supplementary fields\",(U40+V40)*AC40*AB40))))","v":{"$error":"#VALUE!"}},{"$f":"IF(T40>U40,\"B cannot be higher than C\",IFERROR(IF(COUNTA(Y40:Z40)=0,\"Fill in supplementary fields\",V40/2)*(T40/U40)+(V40/2)*(1/Y40),\"Fill in supplementary fields\"))+(IF(LEFT(S40,1)=\"1\",((U40+V40)/AA40)*(T40/(U40+V40))*AB40*AC40*(AA40/(1-AC40)),IF(LEFT(S40,1)=\"2\",IF(COUNTA(T40:V40)=0,\"Fill in supplementary fields\",(U40+V40)*AC40*AB40))))","v":{"$error":"#VALUE!"}},{"$f":"IF(T40>U40,\"B cannot be higher than C\",IFERROR(IF(COUNTA(Y40:Z40)=0,\"Fill in supplementary fields\",IF(Y40=0,V40/2*(T40/U40)+V40/2*(1/Z40),(V40/2)*(T40/U40))),\"Fill in supplementary fields\"))+(IF(LEFT(S40,1)=\"1\",((U40+V40)/AA40)*(T40/(U40+V40))*AB40*AC40*(AA40/(1-AC40)),IF(LEFT(S40,1)=\"2\",IF(COUNTA(T40:V40)=0,\"Fill in supplementary fields\",(U40+V40)*AC40*AB40))))","v":{"$error":"#VALUE!"}},"Enter exposure values in fields A and B","Fill in supplementary fields","Fill in supplementary fields","Fill in supplementary fields","Fill in supplementary fields",0,0,0,0,0,0,0]
[null,null,null,null,null,null,null,null,null,null,null,null,null,null,null,null,null,"",null,null,null,null,null,"",null,null,null,null,null,null,null,null,null,null,null,"",37,"Fill in supplementary fields","Fill in supplementary fields",{"$f":"IF(T41>U41,\"B cannot be higher than C\",IF(COUNTA(Y41:Z41)=0,\"Fill in supplementary fields\",(V41/2)*(T41/U41)+(V41/2)*(1/SUM(Y41:Z41))))+(IF(LEFT(S41,1)=\"1\",((U41+V41)/AA41)*(T41/(U41+V41))*AB41*AC41*(AA41/(1-AC41)),IF(LEFT(S41,1)=\"2\",IF(COUNTA(T41:V41)=0,\"Fill in supplementary fields\",(U41+V41)*AC41*AB41))))","v":{"$error":"#VALUE!"}},{"$f":"IF(T41>U41,\"B cannot be higher than C\",IFERROR(IF(COUNTA(Y41:Z41)=0,\"Fill in supplementary fields\",V41/2)*(T41/U41)+(V41/2)*(1/Y41),\"Fill in supplementary fields\"))+(IF(LEFT(S41,1)=\"1\",((U41+V41)/AA41)*(T41/(U41+V41))*AB41*AC41*(AA41/(1-AC41)),IF(LEFT(S41,1)=\"2\",IF(COUNTA(T41:V41)=0,\"Fill in supplementary fields\",(U41+V41)*AC41*AB41))))","v":{"$error":"#VALUE!"}},{"$f":"IF(T41>U41,\"B cannot be higher than C\",IFERROR(IF(COUNTA(Y41:Z41)=0,\"Fill in supplementary fields\",IF(Y41=0,V41/2*(T41/U41)+V41/2*(1/Z41),(V41/2)*(T41/U41))),\"Fill in supplementary fields\"))+(IF(LEFT(S41,1)=\"1\",((U41+V41)/AA41)*(T41/(U41+V41))*AB41*AC41*(AA41/(1-AC41)),IF(LEFT(S41,1)=\"2\",IF(COUNTA(T41:V41)=0,\"Fill in supplementary fields\",(U41+V41)*AC41*AB41))))","v":{"$error":"#VALUE!"}},"Enter exposure values in fields A and B","Fill in supplementary fields","Fill in supplementary fields","Fill in supplementary fields","Fill in supplementary fields",0,0,0,0,0,0,0]
[null,null,null,null,null,null,null,null,null,null,null,null,null,null,null,null,null,"",null,null,null,null,null,"",null,null,null,null,null,null,null,null,null,null,null,"",38,"Fill in supplementary fields","Fill in supplementary fields",{"$f":"IF(T42>U42,\"B cannot be higher than C\",IF(COUNTA(Y42:Z42)=0,\"Fill in supplementary fields\",(V42/2)*(T42/U42)+(V42/2)*(1/SUM(Y42:Z42))))+(IF(LEFT(S42,1)=\"1\",((T54*AB54)*(AC54/(1-AC54))),IF(LEFT(S42,1)=\"2\",IF(COUNTA(T42:V42)=0,\"Fill in supplementary fields\",(U42+V42)*AC42*AB42))))","v":{"$error":"#VALUE!"}},{"$f":"IF(T42>U42,\"B cannot be higher than C\",IFERROR(IF(COUNTA(Y42:Z42)=0,\"Fill in supplementary fields\",V42/2)*(T42/U42)+(V42/2)*(1/Y42),\"Fill in supplementary fields\"))+(IF(LEFT(S42,1)=\"1\",((T54*AB54)*(AC54/(1-AC54))),IF(LEFT(S42,1)=\"2\",IF(COUNTA(T42:V42)=0,\"Fill in supplementary fields\",(U42+V42)*AC42*AB42))))","v":{"$error":"#VALUE!"}},{"$f":"IF(T42>U42,\"B cannot be higher than C\",IFERROR(IF(COUNTA(Y42:Z42)=0,\"Fill in supplementary fields\",IF(Y42=0,V42/2*(T42/U42)+V42/2*(1/Z42),(V42/2)*(T42/U42))),\"Fill in supplementary fields\"))+(IF(LEFT(S42,1)=\"1\",((T54*AB54)*(AC54/(1-AC54))),IF(LEFT(S42,1)=\"2\",IF(COUNTA(T42:V42)=0,\"Fill in supplementary fields\",(U42+V42)*AC42*AB42))))","v":{"$error":"#VALUE!"}},"Enter exposure values in fields A and B","Fill in supplementary fields","Fill in supplementary fields","Fill in supplementary fields","Fill in supplementary fields",0,0,0,0,0,0,0]
[null,null,null,null,null,null,null,null,null,null,null,null,null,null,null,null,null,"",null,null,null,null,null,"",null,null,null,null,null,null,null,null,null,null,null,"",39,"Fill in supplementary fields","Fill in supplementary fields",{"$f":"IF(T43>U43,\"B cannot be higher than C\",IF(COUNTA(Y43:Z43)=0,\"Fill in supplementary fields\",(V43/2)*(T43/U43)+(V43/2)*(1/SUM(Y43:Z43))))+(IF(LEFT(S43,1)=\"1\",((U43+V43)/AA43)*(T43/(U43+V43))*AB43*AC43*(AA43/(1-AC43)),IF(LEFT(S43,1)=\"2\",IF(COUNTA(T43:V43)=0,\"Fill in supplementary fields\",(U43+V43)*AC43*AB43))))","v":{"$error":"#VALUE!"}},{"$f":"IF(T43>U43,\"B cannot be higher than C\",IFERROR(IF(COUNTA(Y43:Z43)=0,\"Fill in supplementary fields\",V43/2)*(T43/U43)+(V43/2)*(1/Y43),\"Fill in supplementary fields\"))+(IF(LEFT(S43,1)=\"1\",((U43+V43)/AA43)*(T43/(U43+V43))*AB43*AC43*(AA43/(1-AC43)),IF(LEFT(S43,1)=\"2\",IF(COUNTA(T43:V43)=0,\"Fill in supplementary fields\",(U43+V43)*AC43*AB43))))","v":{"$error":"#VALUE!"}},{"$f":"IF(T43>U43,\"B cannot be higher than C\",IFERROR(IF(COUNTA(Y43:Z43)=0,\"Fill in supplementary fields\",IF(Y43=0,V43/2*(T43/U43)+V43/2*(1/Z43),(V43/2)*(T43/U43))),\"Fill in supplementary fields\"))+(IF(LEFT(S43,1)=\"1\",((U43+V43)/AA43)*(T43/(U43+V43))*AB43*AC43*(AA43/(1-AC43)),IF(LEFT(S43,1)=\"2\",IF(COUNTA(T43:V43)=0,\"Fill in supplementary fields\",(U43+V43)*AC43*AB43))))","v":{"$error":"#VALUE!"}},"Enter exposure values in fields A and B","Fill in supplementary fields","Fill in supplementary fields","Fill in supplementary fields","Fill in supplementary fields",0,0,0,0,0,0,0]
[null,null,null,null,null,null,null,null,null,null,null,null,null,null,null,null,null,"",null,null,null,null,null,"",null,null,null,null,null,null,null,null,null,null,null,"",40,"Fill in supplementary fields","Fill in supplementary fields",{"$f":"IF(T44>U44,\"B cannot be higher than C\",IF(COUNTA(Y44:Z44)=0,\"Fill in supplementary fields\",(V44/2)*(T44/U44)+(V44/2)*(1/SUM(Y44:Z44))))+(IF(LEFT(S44,1)=\"1\",((U44+V44)/AA44)*(T44/(U44+V44))*AB44*AC44*(AA44/(1-AC44)),IF(LEFT(S44,1)=\"2\",IF(COUNTA(T44:V44)=0,\"Fill in supplementary fields\",(U44+V44)*AC44*AB44))))","v":{"$error":"#VALUE!"}},{"$f":"IF(T44>U44,\"B cannot be higher than C\",IFERROR(IF(COUNTA(Y44:Z44)=0,\"Fill in supplementary fields\",V44/2)*(T44/U44)+(V44/2)*(1/Y44),\"Fill in supplementary fields\"))+(IF(LEFT(S44,1)=\"1\",((U44+V44)/AA44)*(T44/(U44+V44))*AB44*AC44*(AA44/(1-AC44)),IF(LEFT(S44,1)=\"2\",IF(COUNTA(T44:V44)=0,\"Fill in supplementary fields\",(U44+V44)*AC44*AB44))))","v":{"$error":"#VALUE!"}},{"$f":"IF(T44>U44,\"B cannot be higher than C\",IFERROR(IF(COUNTA(Y44:Z44)=0,\"Fill in supplementary fields\",IF(Y44=0,V44/2*(T44/U44)+V44/2*(1/Z44),(V44/2)*(T44/U44))),\"Fill in supplementary fields\"))+(IF(LEFT(S44,1)=\"1\",((U44+V44)/AA44)*(T44/(U44+V44))*AB44*AC44*(AA44/(1-AC44)),IF(LEFT(S44,1)=\"2\",IF(COUNTA(T44:V44)=0,\"Fill in supplementary fields\",(U44+V44)*AC44*AB44))))","v":{"$error":"#VALUE!"}},"Enter exposure values in fields A and B","Fill in supplementary fields","Fill in supplementary fields","Fill in supplementary fields","Fill in supplementary fields",0,0,0,0,0,0,0]
[null,null,null,null,null,null,null,null,null,null,null,null,null,null,null,null,null,"",null,null,null,null,null,"",null,null,null,null,null,null,null,null,null,null,null,"",41,"Fill in supplementary fields","Fill in supplementary fields",{"$f":"IF(T45>U45,\"B cannot be higher than C\",IF(COUNTA(Y45:Z45)=0,\"Fill in supplementary fields\",(V45/2)*(T45/U45)+(V45/2)*(1/SUM(Y45:Z45))))+(IF(LEFT(S45,1)=\"1\",((T57*AB57)*(AC57/(1-AC57))),IF(LEFT(S45,1)=\"2\",IF(COUNTA(T45:V45)=0,\"Fill in supplementary fields\",(U45+V45)*AC45*AB45))))","v":{"$error":"#VALUE!"}},{"$f":"IF(T45>U45,\"B cannot be higher than C\",IFERROR(IF(COUNTA(Y45:Z45)=0,\"Fill in supplementary fields\",V45/2)*(T45/U45)+(V45/2)*(1/Y45),\"Fill in supplementary fields\"))+(IF(LEFT(S45,1)=\"1\",((T57*AB57)*(AC57/(1-AC57))),IF(LEFT(S45,1)=\"2\",IF(COUNTA(T45:V45)=0,\"Fill in supplementary fields\",(U45+V45)*AC45*AB45))))","v":{"$error":"#VALUE!"}},{"$f":"IF(T45>U45,\"B cannot be higher than C\",IFERROR(IF(COUNTA(Y45:Z45)=0,\"Fill in supplementary fields\",IF(Y45=0,V45/2*(T45/U45)+V45/2*(1/Z45),(V45/2)*(T45/U45))),\"Fill in supplementary fields\"))+(IF(LEFT(S45,1)=\"1\",((T57*AB57)*(AC57/(1-AC57))),IF(LEFT(S45,1)=\"2\",IF(COUNTA(T45:V45)=0,\"Fill in supplementary fields\",(U45+V45)*AC45*AB45))))","v":{"$error":"#VALUE!"}},"Enter exposure values in fields A and B","Fill in supplementary fields","Fill in supplementary fields","Fill in supplementary fields","Fill in supplementary fields",0,0,0,0,0,0,0]
[null,null,null,null,null,null,null,null,null,null,null,null,null,null,null,null,null,"",null,null,null,null,null,"",null,null,null,null,null,null,null,null,null,null,null,"",42,"Fill in supplementary fields","Fill in supplementary fields",{"$f":"IF(T46>U46,\"B cannot be higher than C\",IF(COUNTA(Y46:Z46)=0,\"Fill in supplementary fields\",(V46/2)*(T46/U46)+(V46/2)*(1/SUM(Y46:Z46))))+(IF(LEFT(S46,1)=\"1\",((U46+V46)/AA46)*(T46/(U46+V46))*AB46*AC46*(AA46/(1-AC46)),IF(LEFT(S46,1)=\"2\",IF(COUNTA(T46:V46)=0,\"Fill in supplementary fields\",(U46+V46)*AC46*AB46))))","v":{"$error":"#VALUE!"}},{"$f":"IF(T46>U46,\"B cannot be higher than C\",IFERROR(IF(COUNTA(Y46:Z46)=0,\"Fill in supplementary fields\",V46/2)*(T46/U46)+(V46/2)*(1/Y46),\"Fill in supplementary fields\"))+(IF(LEFT(S46,1)=\"1\",((U46+V46)/AA46)*(T46/(U46+V46))*AB46*AC46*(AA46/(1-AC46)),IF(LEFT(S46,1)=\"2\",IF(COUNTA(T46:V46)=0,\"Fill in supplementary fields\",(U46+V46)*AC46*AB46))))","v":{"$error":"#VALUE!"}},{"$f":"IF(T46>U46,\"B cannot be higher than C\",IFERROR(IF(COUNTA(Y46:Z46)=0,\"Fill in supplementary fields\",IF(Y46=0,V46/2*(T46/U46)+V46/2*(1/Z46),(V46/2)*(T46/U46))),\"Fill in supplementary fields\"))+(IF(LEFT(S46,1)=\"1\",((U46+V46)/AA46)*(T46/(U46+V46))*AB46*AC46*(AA46/(1-AC46)),IF(LEFT(S46,1)=\"2\",IF(COUNTA(T46:V46)=0,\"Fill in supplementary fields\",(U46+V46)*AC46*AB46))))","v":{"$error":"#VALUE!"}},"Enter exposure values in fields A and B","Fill in supplementary fields","Fill in supplementary fields","Fill in supplementary fields","Fill in supplementary fields",{"$f":"$V46","v":0},0,0,0,0,0,0]
[null,null,null,null,null,null,null,null,null,null,null,null,null,null,null,null,null,"",null,null,null,null,null,"",null,null,null,null,null,null,null,null,null,null,null,"",43,"Fill in supplementary fields","Fill in supplementary fields",{"$f":"IF(T47>U47,\"B cannot be higher than C\",IF(COUNTA(Y47:Z47)=0,\"Fill in supplementary fields\",(V47/2)*(T47/U47)+(V47/2)*(1/SUM(Y47:Z47))))+(IF(LEFT(S47,1)=\"1\",((U47+V47)/AA47)*(T47/(U47+V47))*AB47*AC47*(AA47/(1-AC47)),IF(LEFT(S47,1)=\"2\",IF(COUNTA(T47:V47)=0,\"Fill in supplementary fields\",(U47+V47)*AC47*AB47))))","v":{"$error":"#VALUE!"}},{"$f":"IF(T47>U47,\"B cannot be higher than C\",IFERROR(IF(COUNTA(Y47:Z47)=0,\"Fill in supplementary fields\",V47/2)*(T47/U47)+(V47/2)*(1/Y47),\"Fill in supplementary fields\"))+(IF(LEFT(S47,1)=\"1\",((U47+V47)/AA47)*(T47/(U47+V47))*AB47*AC47*(AA47/(1-AC47)),IF(LEFT(S47,1)=\"2\",IF(COUNTA(T47:V47)=0,\"Fill in supplementary fields\",(U47+V47)*AC47*AB47))))","v":{"$error":"#VALUE!"}},{"$f":"IF(T47>U47,\"B cannot be higher than C\",IFERROR(IF(COUNTA(Y47:Z47)=0,\"Fill in supplementary fields\",IF(Y47=0,V47/2*(T47/U47)+V47/2*(1/Z47),(V47/2)*(T47/U47))),\"Fill in supplementary fields\"))+(IF(LEFT(S47,1)=\"1\",((U47+V47)/AA47)*(T47/(U47+V47))*AB47*AC47*(AA47/(1-AC47)),IF(LEFT(S47,1)=\"2\",IF(COUNTA(T47:V47)=0,\"Fill in supplementary fields\",(U47+V47)*AC47*AB47))))","v":{"$error":"#VALUE!"}},"Enter exposure values in fields A and B","Fill in supplementary fields","Fill in supplementary fields","Fill in supplementary fields","Fill in supplementary fields",0,0,0,0,0,0,0]
[null,null,null,null,null,null,null,null,null,null,null,null,null,null,null,null,null,"",null,null,null,null,null,"",null,null,null,null,null,null,null,null,null,null,null,"",44,"Fill in supplementary fields","Fill in supplementary fields",{"$f":"IF(T48>U48,\"B cannot be higher than C\",IF(COUNTA(Y48:Z48)=0,\"Fill in supplementary fields\",(V48/2)*(T48/U48)+(V48/2)*(1/SUM(Y48:Z48))))+(IF(LEFT(S48,1)=\"1\",((T60*AB60)*(AC60/(1-AC60))),IF(LEFT(S48,1)=\"2\",IF(COUNTA(T48:V48)=0,\"Fill in supplementary fields\",(U48+V48)*AC48*AB48))))","v":{"$error":"#VALUE!"}},{"$f":"IF(T48>U48,\"B cannot be higher than C\",IFERROR(IF(COUNTA(Y48:Z48)=0,\"Fill in supplementary fields\",V48/2)*(T48/U48)+(V48/2)*(1/Y48),\"Fill in supplementary fields\"))+(IF(LEFT(S48,1)=\"1\",((T60*AB60)*(AC60/(1-AC60))),IF(LEFT(S48,1)=\"2\",IF(COUNTA(T48:V48)=0,\"Fill in supplementary fields\",(U48+V48)*AC48*AB48))))","v":{"$error":"#VALUE!"}},{"$f":"IF(T48>U48,\"B cannot be higher than C\",IFERROR(IF(COUNTA(Y48:Z48)=0,\"Fill in supplementary fields\",IF(Y48=0,V48/2*(T48/U48)+V48/2*(1/Z48),(V48/2)*(T48/U48))),\"Fill in supplementary fields\"))+(IF(LEFT(S48,1)=\"1\",((T60*AB60)*(AC60/(1-AC60))),IF(LEFT(S48,1)=\"2\",IF(COUNTA(T48:V48)=0,\"Fill in supplementary fields\",(U48+V48)*AC48*AB48))))","v":{"$error":"#VALUE!"}},"Enter exposure values in fields A and B","Fill in supplementary fields","Fill in supplementary fields","Fill in supplementary fields","Fill in supplementary fields",0,0,0,0,0,0,0]
[null,null,null,null,null,null,null,null,null,null,null,null,null,null,null,null,null,"",null,null,null,null,null,"",null,null,null,null,null,null,null,null,null,null,null,"",45,"Fill in supplementary fields","Fill in supplementary fields",{"$f":"IF(T49>U49,\"B cannot be higher than C\",IF(COUNTA(Y49:Z49)=0,\"Fill in supplementary fields\",(V49/2)*(T49/U49)+(V49/2)*(1/SUM(Y49:Z49))))+(IF(LEFT(S49,1)=\"1\",((U49+V49)/AA49)*(T49/(U49+V49))*AB49*AC49*(AA49/(1-AC49)),IF(LEFT(S49,1)=\"2\",IF(COUNTA(T49:V49)=0,\"Fill in supplementary fields\",(U49+V49)*AC49*AB49))))","v":{"$error":"#VALUE!"}},{"$f":"IF(T49>U49,\"B cannot be higher than C\",IFERROR(IF(COUNTA(Y49:Z49)=0,\"Fill in supplementary fields\",V49/2)*(T49/U49)+(V49/2)*(1/Y49),\"Fill in supplementary fields\"))+(IF(LEFT(S49,1)=\"1\",((U49+V49)/AA49)*(T49/(U49+V49))*AB49*AC49*(AA49/(1-AC49)),IF(LEFT(S49,1)=\"2\",IF(COUNTA(T49:V49)=0,\"Fill in supplementary fields\",(U49+V49)*AC49*AB49))))","v":{"$error":"#VALUE!"}},{"$f":"IF(T49>U49,\"B cannot be higher than C\",IFERROR(IF(COUNTA(Y49:Z49)=0,\"Fill in supplementary fields\",IF(Y49=0,V49/2*(T49/U49)+V49/2*(1/Z49),(V49/2)*(T49/U49))),\"Fill in supplementary fields\"))+(IF(LEFT(S49,1)=\"1\",((U49+V49)/AA49)*(T49/(U49+V49))*AB49*AC49*(AA49/(1-AC49)),IF(LEFT(S49,1)=\"2\",IF(COUNTA(T49:V49)=0,\"Fill in supplementary fields\",(U49+V49)*AC49*AB49))))","v":{"$error":"#VALUE!"}},"Enter exposure values in fields A and B","Fill in supplementary fields","Fill in supplementary fields","Fill in supplementary fields","Fill in supplementary fields",0,0,0,0,0,0,0]
[null,null,null,null,null,null,null,null,null,null,null,null,null,null,null,null,null,"",null,null,null,null,null,"",null,null,null,null,null,null,null,null,null,null,null,"",46,"Fill in supplementary fields","Fill in supplementary fields",{"$f":"IF(T50>U50,\"B cannot be higher than C\",IF(COUNTA(Y50:Z50)=0,\"Fill in supplementary fields\",(V50/2)*(T50/U50)+(V50/2)*(1/SUM(Y50:Z50))))+(IF(LEFT(S50,1)=\"1\",((U50+V50)/AA50)*(T50/(U50+V50))*AB50*AC50*(AA50/(1-AC50)),IF(LEFT(S50,1)=\"2\",IF(COUNTA(T50:V50)=0,\"Fill in supplementary fields\",(U50+V50)*AC50*AB50))))","v":{"$error":"#VALUE!"}},{"$f":"IF(T50>U50,\"B cannot be higher than C\",IFERROR(IF(COUNTA(Y50:Z50)=0,\"Fill in supplementary fields\",V50/2)*(T50/U50)+(V50/2)*(1/Y50),\"Fill in supplementary fields\"))+(IF(LEFT(S50,1)=\"1\",((U50+V50)/AA50)*(T50/(U50+V50))*AB50*AC50*(AA50/(1-AC50)),IF(LEFT(S50,1)=\"2\",IF(COUNTA(T50:V50)=0,\"Fill in supplementary fields\",(U50+V50)*AC50*AB50))))","v":{"$error":"#VALUE!"}},{"$f":"IF(T50>U50,\"B cannot be higher than C\",IFERROR(IF(COUNTA(Y50:Z50)=0,\"Fill in supplementary fields\",IF(Y50=0,V50/2*(T50/U50)+V50/2*(1/Z50),(V50/2)*(T50/U50))),\"Fill in supplementary fields\"))+(IF(LEFT(S50,1)=\"1\",((U50+V50)/AA50)*(T50/(U50+V50))*AB50*AC50*(AA50/(1-AC50)),IF(LEFT(S50,1)=\"2\",IF(COUNTA(T50:V50)=0,\"Fill in supplementary fields\",(U50+V50)*AC50*AB50))))","v":{"$error":"#VALUE!"}},"Enter exposure values in fields A and B","Fill in supplementary fields","Fill in supplementary fields","Fill in supplementary fields","Fill in supplementary fields",0,0,0,0,0,0,0]
[null,null,null,null,null,null,null,null,null,null,null,null,null,null,null,null,null,"",null,null,null,null,null,"",null,null,null,null,null,null,null,null,null,null,null,"",47,"Fill in supplementary fields","Fill in supplementary fields",{"$f":"IF(T51>U51,\"B cannot be higher than C\",IF(COUNTA(Y51:Z51)=0,\"Fill in supplementary fields\",(V51/2)*(T51/U51)+(V51/2)*(1/SUM(Y51:Z51))))+(IF(LEFT(S51,1)=\"1\",((T63*AB63)*(AC63/(1-AC63))),IF(LEFT(S51,1)=\"2\",IF(COUNTA(T51:V51)=0,\"Fill in supplementary fields\",(U51+V51)*AC51*AB51))))","v":{"$error":"#VALUE!"}},{"$f":"IF(T51>U51,\"B cannot be higher than C\",IFERROR(IF(COUNTA(Y51:Z51)=0,\"Fill in supplementary fields\",V51/2)*(T51/U51)+(V51/2)*(1/Y51),\"Fill in supplementary fields\"))+(IF(LEFT(S51,1)=\"1\",((T63*AB63)*(AC63/(1-AC63))),IF(LEFT(S51,1)=\"2\",IF(COUNTA(T51:V51)=0,\"Fill in supplementary fields\",(U51+V51)*AC51*AB51))))","v":{"$error":"#VALUE!"}},{"$f":"IF(T51>U51,\"B cannot be higher than C\",IFERROR(IF(COUNTA(Y51:Z51)=0,\"Fill in supplementary fields\",IF(Y51=0,V51/2*(T51/U51)+V51/2*(1/Z51),(V51/2)*(T51/U51))),\"Fill in supplementary fields\"))+(IF(LEFT(S51,1)=\"1\",((T63*AB63)*(AC63/(1-AC63))),IF(LEFT(S51,1)=\"2\",IF(COUNTA(T51:V51)=0,\"Fill in supplementary fields\",(U51+V51)*AC51*AB51))))","v":{"$error":"#VALUE!"}},"Enter exposure values in fields A and B","Fill in supplementary fields","Fill in supplementary fields","Fill in supplementary fields","Fill in supplementary fields",0,0,0,0,0,0,0]
[null,null,null,null,null,null,null,null,null,null,null,null,null,null,null,null,null,"",null,null,null,null,null,"",null,null,null,null,null,null,null,null,null,null,null,"",48,"Fill in supplementary fields","Fill in supplementary fields",{"$f":"IF(T52>U52,\"B cannot be higher than C\",IF(COUNTA(Y52:Z52)=0,\"Fill in supplementary fields\",(V52/2)*(T52/U52)+(V52/2)*(1/SUM(Y52:Z52))))+(IF(LEFT(S52,1)=\"1\",((U52+V52)/AA52)*(T52/(U52+V52))*AB52*AC52*(AA52/(1-AC52)),IF(LEFT(S52,1)=\"2\",IF(COUNTA(T52:V52)=0,\"Fill in supplementary fields\",(U52+V52)*AC52*AB52))))","v":{"$error":"#VALUE!"}},{"$f":"IF(T52>U52,\"B cannot be higher than C\",IFERROR(IF(COUNTA(Y52:Z52)=0,\"Fill in supplementary fields\",V52/2)*(T52/U52)+(V52/2)*(1/Y52),\"Fill in supplementary fields\"))+(IF(LEFT(S52,1)=\"1\",((U52+V52)/AA52)*(T52/(U52+V52))*AB52*AC52*(AA52/(1-AC52)),IF(LEFT(S52,1)=\"2\",IF(COUNTA(T52:V52)=0,\"Fill in supplementary fields\",(U52+V52)*AC52*AB52))))","v":{"$error":"#VALUE!"}},{"$f":"IF(T52>U52,\"B cannot be higher than C\",IFERROR(IF(COUNTA(Y52:Z52)=0,\"Fill in supplementary fields\",IF(Y52=0,V52/2*(T52/U52)+V52/2*(1/Z52),(V52/2)*(T52/U52))),\"Fill in supplementary fields\"))+(IF(LEFT(S52,1)=\"1\",((U52+V52)/AA52)*(T52/(U52+V52))*AB52*AC52*(AA52/(1-AC52)),IF(LEFT(S52,1)=\"2\",IF(COUNTA(T52:V52)=0,\"Fill in supplementary fields\",(U52+V52)*AC52*AB52))))","v":{"$error":"#VALUE!"}},"Enter exposure values in fields A and B","Fill in supplementary fields","Fill in supplementary fields","Fill in supplementary fields","Fill in supplementary fields",0,0,0,0,0,0,0]
[null,null,null,null,null,null,null,null,null,null,null,null,null,null,null,null,null,"",null,null,null,null,null,{"$f":"IFERROR(IF(P53=\"1=Syndicated loan, arranger\",\"1=Official institution\",IF(P53=1,\"1=Official institution\",\"\")),\"\")","v":""},null,null,null,null,null,null,null,null,null,null,null,"",49,"Fill in supplementary fields","Fill in supplementary fields",{"$f":"IF(T53>U53,\"B cannot be higher than C\",IF(COUNTA(Y53:Z53)=0,\"Fill in supplementary fields\",(V53/2)*(T53/U53)+(V53/2)*(1/SUM(Y53:Z53))))+(IF(LEFT(S53,1)=\"1\",((U53+V53)/AA53)*(T53/(U53+V53))*AB53*AC53*(AA53/(1-AC53)),IF(LEFT(S53,1)=\"2\",IF(COUNTA(T53:V53)=0,\"Fill in supplementary fields\",(U53+V53)*AC53*AB53))))","v":{"$error":"#VALUE!"}},{"$f":"IF(T53>U53,\"B cannot be higher than C\",IFERROR(IF(COUNTA(Y53:Z53)=0,\"Fill in supplementary fields\",V53/2)*(T53/U53)+(V53/2)*(1/Y53),\"Fill in supplementary fields\"))+(IF(LEFT(S53,1)=\"1\",((U53+V53)/AA53)*(T53/(U53+V53))*AB53*AC53*(AA53/(1-AC53)),IF(LEFT(S53,1)=\"2\",IF(COUNTA(T53:V53)=0,\"Fill in supplementary fields\",(U53+V53)*AC53*AB53))))","v":{"$error":"#VALUE!"}},{"$f":"IF(T53>U53,\"B cannot be higher than C\",IFERROR(IF(COUNTA(Y53:Z53)=0,\"Fill in supplementary fields\",IF(Y53=0,V53/2*(T53/U53)+V53/2*(1/Z53),(V53/2)*(T53/U53))),\"Fill in supplementary fields\"))+(IF(LEFT(S53,1)=\"1\",((U53+V53)/AA53)*(T53/(U53+V53))*AB53*AC53*(AA53/(1-AC53)),IF(LEFT(S53,1)=\"2\",IF(COUNTA(T53:V53)=0,\"Fill in supplementary fields\",(U53+V53)*AC53*AB53))))","v":{"$error":"#VALUE!"}},"Enter exposure values in fields A and B","Fill in supplementary fields","Fill in supplementary fields","Fill in supplementary fields","Fill in supplementary fields",0,0,0,0,0,0,0]
[null,null,null,null,null,null,null,null,null,null,null,null,null,null,null,null,null,"",null,null,null,null,null,"",null,null,null,null,null,null,null,null,null,null,null,"",50,"Fill in supplementary fields","Fill in supplementary fields",{"$f":"IF(T54>U54,\"B cannot be higher than C\",IF(COUNTA(Y54:Z54)=0,\"Fill in supplementary fields\",(V54/2)*(T54/U54)+(V54/2)*(1/SUM(Y54:Z54))))+(IF(LEFT(S54,1)=\"1\",((T66*AB66)*(AC66/(1-AC66))),IF(LEFT(S54,1)=\"2\",IF(COUNTA(T54:V54)=0,\"Fill in supplementary fields\",(U54+V54)*AC54*AB54))))","v":{"$error":"#VALUE!"}},{"$f":"IF(T54>U54,\"B cannot be higher than C\",IFERROR(IF(COUNTA(Y54:Z54)=0,\"Fill in supplementary fields\",V54/2)*(T54/U54)+(V54/2)*(1/Y54),\"Fill in supplementary fields\"))+(IF(LEFT(S54,1)=\"1\",((T66*AB66)*(AC66/(1-AC66))),IF(LEFT(S54,1)=\"2\",IF(COUNTA(T54:V54)=0,\"Fill in supplementary fields\",(U54+V54)*AC54*AB54))))","v":{"$error":"#VALUE!"}},{"$f":"IF(T54>U54,\"B cannot be higher than C\",IFERROR(IF(COUNTA(Y54:Z54)=0,\"Fill in supplementary fields\",IF(Y54=0,V54/2*(T54/U54)+V54/2*(1/Z54),(V54/2)*(T54/U54))),\"Fill in supplementary fields\"))+(IF(LEFT(S54,1)=\"1\",((T66*AB66)*(AC66/(1-AC66))),IF(LEFT(S54,1)=\"2\",IF(COUNTA(T54:V54)=0,\"Fill in supplementary fields\",(U54+V54)*AC54*AB54))))","v":{"$error":"#VALUE!"}},"Enter exposure values in fields A and B","Fill in supplementary fields","Fill in supplementary fields","Fill in supplementary fields","Fill in supplementary fields",0,0,0,0,0,0,0]
[null,null,null,null,null,null,null,null,null,null,null,null,null,null,null,null,null,"",null,null,null,null,null,"",null,null,null,null,null,null,null,null,null,null,null,"",51,"Fill in supplementary fields","Fill in supplementary fields",{"$f":"IF(T55>U55,\"B cannot be higher than C\",IF(COUNTA(Y55:Z55)=0,\"Fill in supplementary fields\",(V55/2)*(T55/U55)+(V55/2)*(1/SUM(Y55:Z55))))+(IF(LEFT(S55,1)=\"1\",((U55+V55)/AA55)*(T55/(U55+V55))*AB55*AC55*(AA55/(1-AC55)),IF(LEFT(S55,1)=\"2\",IF(COUNTA(T55:V55)=0,\"Fill in supplementary fields\",(U55+V55)*AC55*AB55))))","v":{"$error":"#VALUE!"}},{"$f":"IF(T55>U55,\"B cannot be higher than C\",IFERROR(IF(COUNTA(Y55:Z55)=0,\"Fill in supplementary fields\",V55/2)*(T55/U55)+(V55/2)*(1/Y55),\"Fill in supplementary fields\"))+(IF(LEFT(S55,1)=\"1\",((U55+V55)/AA55)*(T55/(U55+V55))*AB55*AC55*(AA55/(1-AC55)),IF(LEFT(S55,1)=\"2\",IF(COUNTA(T55:V55)=0,\"Fill in supplementary fields\",(U55+V55)*AC55*AB55))))","v":{"$error":"#VALUE!"}},{"$f":"IF(T55>U55,\"B cannot be higher than C\",IFERROR(IF(COUNTA(Y55:Z55)=0,\"Fill in supplementary fields\",IF(Y55=0,V55/2*(T55/U55)+V55/2*(1/Z55),(V55/2)*(T55/U55))),\"Fill in supplementary fields\"))+(IF(LEFT(S55,1)=\"1\",((U55+V55)/AA55)*(T55/(U55+V55))*AB55*AC55*(AA55/(1-AC55)),IF(LEFT(S55,1)=\"2\",IF(COUNTA(T55:V55)=0,\"Fill in supplementary fields\",(U55+V55)*AC55*AB55))))","v":{"$error":"#VALUE!"}},"Enter exposure values in fields A and B","Fill in supplementary fields","Fill in supplementary fields","Fill in supplementary fields","Fill in supplementary fields",0,0,0,0,0,0,0]
[null,null,null,null,null,null,null,null,null,null,null,null,null,null,null,null,null,"",null,null,null,null,null,"",null,null,null,null,null,null,null,null,null,null,null,"",52,"Fill in supplementary fields","Fill in supplementary fields",{"$f":"IF(T56>U56,\"B cannot be higher than C\",IF(COUNTA(Y56:Z56)=0,\"Fill in supplementary fields\",(V56/2)*(T56/U56)+(V56/2)*(1/SUM(Y56:Z56))))+(IF(LEFT(S56,1)=\"1\",((U56+V56)/AA56)*(T56/(U56+V56))*AB56*AC56*(AA56/(1-AC56)),IF(LEFT(S56,1)=\"2\",IF(COUNTA(T56:V56)=0,\"Fill in supplementary fields\",(U56+V56)*AC56*AB56))))","v":{"$error":"#VALUE!"}},{"$f":"IF(T56>U56,\"B cannot be higher than C\",IFERROR(IF(COUNTA(Y56:Z56)=0,\"Fill in supplementary fields\",V56/2)*(T56/U56)+(V56/2)*(1/Y56),\"Fill in supplementary fields\"))+(IF(LEFT(S56,1)=\"1\",((U56+V56)/AA56)*(T56/(U56+V56))*AB56*AC56*(AA56/(1-AC56)),IF(LEFT(S56,1)=\"2\",IF(COUNTA(T56:V56)=0,\"Fill in supplementary fields\",(U56+V56)*AC56*AB56))))","v":{"$error":"#VALUE!"}},{"$f":"IF(T56>U56,\"B cannot be higher than C\",IFERROR(IF(COUNTA(Y56:Z56)=0,\"Fill in supplementary fields\",IF(Y56=0,V56/2*(T56/U56)+V56/2*(1/Z56),(V56/2)*(T56/U56))),\"Fill in supplementary fields\"))+(IF(LEFT(S56,1)=\"1\",((U56+V56)/AA56)*(T56/(U56+V56))*AB56*AC56*(AA56/(1-AC56)),IF(LEFT(S56,1)=\"2\",IF(COUNTA(T56:V56)=0,\"Fill in supplementary fields\",(U56+V56)*AC56*AB56))))","v":{"$error":"#VALUE!"}},"Enter exposure values in fields A and B","Fill in supplementary fields","Fill in supplementary fields","Fill in supplementary fields","Fill in supplementary fields",{"$f":"$V56","v":0},0,0,0,0,0,0]
[null,null,null,null,null,null,null,null,null,null,null,null,null,null,null,null,null,"",null,null,null,null,null,"",null,null,null,null,null,null,null,null,null,null,null,"",53,"Fill in supplementary fields","Fill in supplementary fields",{"$f":"IF(T57>U57,\"B cannot be higher than C\",IF(COUNTA(Y57:Z57)=0,\"Fill in supplementary fields\",(V57/2)*(T57/U57)+(V57/2)*(1/SUM(Y57:Z57))))+(IF(LEFT(S57,1)=\"1\",((T69*AB69)*(AC69/(1-AC69))),IF(LEFT(S57,1)=\"2\",IF(COUNTA(T57:V57)=0,\"Fill in supplementary fields\",(U57+V57)*AC57*AB57))))","v":{"$error":"#VALUE!"}},{"$f":"IF(T57>U57,\"B cannot be higher than C\",IFERROR(IF(COUNTA(Y57:Z57)=0,\"Fill in supplementary fields\",V57/2)*(T57/U57)+(V57/2)*(1/Y57),\"Fill in supplementary fields\"))+(IF(LEFT(S57,1)=\"1\",((T69*AB69)*(AC69/(1-AC69))),IF(LEFT(S57,1)=\"2\",IF(COUNTA(T57:V57)=0,\"Fill in supplementary fields\",(U57+V57)*AC57*AB57))))","v":{"$error":"#VALUE!"}},{"$f":"IF(T57>U57,\"B cannot be higher than C\",IFERROR(IF(COUNTA(Y57:Z57)=0,\"Fill in supplementary fields\",IF(Y57=0,V57/2*(T57/U57)+V57/2*(1/Z57),(V57/2)*(T57/U57))),\"Fill in supplementary fields\"))+(IF(LEFT(S57,1)=\"1\",((T69*AB69)*(AC69/(1-AC69))),IF(LEFT(S57,1)=\"2\",IF(COUNTA(T57:V57)=0,\"Fill in supplementary fields\",(U57+V57)*AC57*AB57))))","v":{"$error":"#VALUE!"}},"Enter exposure values in fields A and B","Fill in supplementary fields","Fill in supplementary fields","Fill in supplementary fields","Fill in supplementary fields",0,0,0,0,0,0,0]
[null,null,null,null,null,null,null,null,null,null,null,null,null,null,null,null,null,"",null,null,null,null,null,"",null,null,null,null,null,null,null,null,null,null,null,"",54,"Fill in supplementary fields","Fill in supplementary fields",{"$f":"IF(T58>U58,\"B cannot be higher than C\",IF(COUNTA(Y58:Z58)=0,\"Fill in supplementary fields\",(V58/2)*(T58/U58)+(V58/2)*(1/SUM(Y58:Z58))))+(IF(LEFT(S58,1)=\"1\",((U58+V58)/AA58)*(T58/(U58+V58))*AB58*AC58*(AA58/(1-AC58)),IF(LEFT(S58,1)=\"2\",IF(COUNTA(T58:V58)=0,\"Fill in supplementary fields\",(U58+V58)*AC58*AB58))))","v":{"$error":"#VALUE!"}},{"$f":"IF(T58>U58,\"B cannot be higher than C\",IFERROR(IF(COUNTA(Y58:Z58)=0,\"Fill in supplementary fields\",V58/2)*(T58/U58)+(V58/2)*(1/Y58),\"Fill in supplementary fields\"))+(IF(LEFT(S58,1)=\"1\",((U58+V58)/AA58)*(T58/(U58+V58))*AB58*AC58*(AA58/(1-AC58)),IF(LEFT(S58,1)=\"2\",IF(COUNTA(T58:V58)=0,\"Fill in supplementary fields\",(U58+V58)*AC58*AB58))))","v":{"$error":"#VALUE!"}},{"$f":"IF(T58>U58,\"B cannot be higher than C\",IFERROR(IF(COUNTA(Y58:Z58)=0,\"Fill in supplementary fields\",IF(Y58=0,V58/2*(T58/U58)+V58/2*(1/Z58),(V58/2)*(T58/U58))),\"Fill in supplementary fields\"))+(IF(LEFT(S58,1)=\"1\",((U58+V58)/AA58)*(T58/(U58+V58))*AB58*AC58*(AA58/(1-AC58)),IF(LEFT(S58,1)=\"2\",IF(COUNTA(T58:V58)=0,\"Fill in supplementary fields\",(U58+V58)*AC58*AB58))))","v":{"$error":"#VALUE!"}},"Enter exposure values in fields A and B","Fill in supplementary fields","Fill in supplementary fields","Fill in supplementary fields","Fill in supplementary fields",0,0,0,0,0,0,0]
[null,null,null,null,null,null,null,null,null,null,null,null,null,null,null,null,null,"",null,null,null,null,null,"",null,null,null,null,null,null,null,null,null,null,null,"",55,"Fill in supplementary fields","Fill in supplementary fields",{"$f":"IF(T59>U59,\"B cannot be higher than C\",IF(COUNTA(Y59:Z59)=0,\"Fill in supplementary fields\",(V59/2)*(T59/U59)+(V59/2)*(1/SUM(Y59:Z59))))+(IF(LEFT(S59,1)=\"1\",((U59+V59)/AA59)*(T59/(U59+V59))*AB59*AC59*(AA59/(1-AC59)),IF(LEFT(S59,1)=\"2\",IF(COUNTA(T59:V59)=0,\"Fill in supplementary fields\",(U59+V59)*AC59*AB59))))","v":{"$error":"#VALUE!"}},{"$f":"IF(T59>U59,\"B cannot be higher than C\",IFERROR(IF(COUNTA(Y59:Z59)=0,\"Fill in supplementary fields\",V59/2)*(T59/U59)+(V59/2)*(1/Y59),\"Fill in supplementary fields\"))+(IF(LEFT(S59,1)=\"1\",((U59+V59)/AA59)*(T59/(U59+V59))*AB59*AC59*(AA59/(1-AC59)),IF(LEFT(S59,1)=\"2\",IF(COUNTA(T59:V59)=0,\"Fill in supplementary fields\",(U59+V59)*AC59*AB59))))","v":{"$error":"#VALUE!"}},{"$f":"IF(T59>U59,\"B cannot be higher than C\",IFERROR(IF(COUNTA(Y59:Z59)=0,\"Fill in supplementary fields\",IF(Y59=0,V59/2*(T59/U59)+V59/2*(1/Z59),(V59/2)*(T59/U59))),\"Fill in supplementary fields\"))+(IF(LEFT(S59,1)=\"1\",((U59+V59)/AA59)*(T59/(U59+V59))*AB59*AC59*(AA59/(1-AC59)),IF(LEFT(S59,1)=\"2\",IF(COUNTA(T59:V59)=0,\"Fill in supplementary fields\",(U59+V59)*AC59*AB59))))","v":{"$error":"#VALUE!"}},"Enter exposure values in fields A and B","Fill in supplementary fields","Fill in supplementary fields","Fill in supplementary fields","Fill in supplementary fields",0,0,0,0,0,0,0]
[null,null,null,null,null,null,null,null,null,null,null,null,null,null,null,null,null,"",null,null,null,null,null,"",null,null,null,null,null,null,null,null,null,null,null,"",56,"Fill in supplementary fields","Fill in supplementary fields",{"$f":"IF(T60>U60,\"B cannot be higher than C\",IF(COUNTA(Y60:Z60)=0,\"Fill in supplementary fields\",(V60/2)*(T60/U60)+(V60/2)*(1/SUM(Y60:Z60))))+(IF(LEFT(S60,1)=\"1\",((T72*AB72)*(AC72/(1-AC72))),IF(LEFT(S60,1)=\"2\",IF(COUNTA(T60:V60)=0,\"Fill in supplementary fields\",(U60+V60)*AC60*AB60))))","v":{"$error":"#VALUE!"}},{"$f":"IF(T60>U60,\"B cannot be higher than C\",IFERROR(IF(COUNTA(Y60:Z60)=0,\"Fill in supplementary fields\",V60/2)*(T60/U60)+(V60/2)*(1/Y60),\"Fill in supplementary fields\"))+(IF(LEFT(S60,1)=\"1\",((T72*AB72)*(AC72/(1-AC72))),IF(LEFT(S60,1)=\"2\",IF(COUNTA(T60:V60)=0,\"Fill in supplementary fields\",(U60+V60)*AC60*AB60))))","v":{"$error":"#VALUE!"}},{"$f":"IF(T60>U60,\"B cannot be higher than C\",IFERROR(IF(COUNTA(Y60:Z60)=0,\"Fill in supplementary fields\",IF(Y60=0,V60/2*(T60/U60)+V60/2*(1/Z60),(V60/2)*(T60/U60))),\"Fill in supplementary fields\"))+(IF(LEFT(S60,1)=\"1\",((T72*AB72)*(AC72/(1-AC72))),IF(LEFT(S60,1)=\"2\",IF(COUNTA(T60:V60)=0,\"Fill in supplementary fields\",(U60+V60)*AC60*AB60))))","v":{"$error":"#VALUE!"}},"Enter exposure values in fields A and B","Fill in supplementary fields","Fill in supplementary fields","Fill in supplementary fields","Fill in supplementary fields",0,0,0,0,0,0,0]
[null,null,null,null,null,null,null,null,null,null,null,null,null,null,null,null,null,"",null,null,null,null,null,"",null,null,null,null,null,null,null,null,null,null,null,"",57,"Fill in supplementary fields","Fill in supplementary fields",{"$f":"IF(T61>U61,\"B cannot be higher than C\",IF(COUNTA(Y61:Z61)=0,\"Fill in supplementary fields\",(V61/2)*(T61/U61)+(V61/2)*(1/SUM(Y61:Z61))))+(IF(LEFT(S61,1)=\"1\",((U61+V61)/AA61)*(T61/(U61+V61))*AB61*AC61*(AA61/(1-AC61)),IF(LEFT(S61,1)=\"2\",IF(COUNTA(T61:V61)=0,\"Fill in supplementary fields\",(U61+V61)*AC61*AB61))))","v":{"$error":"#VALUE!"}},{"$f":"IF(T61>U61,\"B cannot be higher than C\",IFERROR(IF(COUNTA(Y61:Z61)=0,\"Fill in supplementary fields\",V61/2)*(T61/U61)+(V61/2)*(1/Y61),\"Fill in supplementary fields\"))+(IF(LEFT(S61,1)=\"1\",((U61+V61)/AA61)*(T61/(U61+V61))*AB61*AC61*(AA61/(1-AC61)),IF(LEFT(S61,1)=\"2\",IF(COUNTA(T61:V61)=0,\"Fill in supplementary fields\",(U61+V61)*AC61*AB61))))","v":{"$error":"#VALUE!"}},{"$f":"IF(T61>U61,\"B cannot be higher than C\",IFERROR(IF(COUNTA(Y61:Z61)=0,\"Fill in supplementary fields\",IF(Y61=0,V61/2*(T61/U61)+V61/2*(1/Z61),(V61/2)*(T61/U61))),\"Fill in supplementary fields\"))+(IF(LEFT(S61,1)=\"1\",((U61+V61)/AA61)*(T61/(U61+V61))*AB61*AC61*(AA61/(1-AC61)),IF(LEFT(S61,1)=\"2\",IF(COUNTA(T61:V61)=0,\"Fill in supplementary fields\",(U61+V61)*AC61*AB61))))","v":{"$error":"#VALUE!"}},"Enter exposure values in fields A and B","Fill in supplementary fields","Fill in supplementary fields","Fill in supplementary fields","Fill in supplementary fields",0,0,0,0,0,0,0]
[null,null,null,null,null,null,null,null,null,null,null,null,null,null,null,null,null,"",null,null,null,null,null,"",null,null,null,null,null,null,null,null,null,null,null,"",58,"Fill in supplementary fields","Fill in supplementary fields",{"$f":"IF(T62>U62,\"B cannot be higher than C\",IF(COUNTA(Y62:Z62)=0,\"Fill in supplementary fields\",(V62/2)*(T62/U62)+(V62/2)*(1/SUM(Y62:Z62))))+(IF(LEFT(S62,1)=\"1\",((U62+V62)/AA62)*(T62/(U62+V62))*AB62*AC62*(AA62/(1-AC62)),IF(LEFT(S62,1)=\"2\",IF(COUNTA(T62:V62)=0,\"Fill in supplementary fields\",(U62+V62)*AC62*AB62))))","v":{"$error":"#VALUE!"}},{"$f":"IF(T62>U62,\"B cannot be higher than C\",IFERROR(IF(COUNTA(Y62:Z62)=0,\"Fill in supplementary fields\",V62/2)*(T62/U62)+(V62/2)*(1/Y62),\"Fill in supplementary fields\"))+(IF(LEFT(S62,1)=\"1\",((U62+V62)/AA62)*(T62/(U62+V62))*AB62*AC62*(AA62/(1-AC62)),IF(LEFT(S62,1)=\"2\",IF(COUNTA(T62:V62)=0,\"Fill in supplementary fields\",(U62+V62)*AC62*AB62))))","v":{"$error":"#VALUE!"}},{"$f":"IF(T62>U62,\"B cannot be higher than C\",IFERROR(IF(COUNTA(Y62:Z62)=0,\"Fill in supplementary fields\",IF(Y62=0,V62/2*(T62/U62)+V62/2*(1/Z62),(V62/2)*(T62/U62))),\"Fill in supplementary fields\"))+(IF(LEFT(S62,1)=\"1\",((U62+V62)/AA62)*(T62/(U62+V62))*AB62*AC62*(AA62/(1-AC62)),IF(LEFT(S62,1)=\"2\",IF(COUNTA(T62:V62)=0,\"Fill in supplementary fields\",(U62+V62)*AC62*AB62))))","v":{"$error":"#VALUE!"}},"Enter exposure values in fields A and B","Fill in supplementary fields","Fill in supplementary fields","Fill in supplementary fields","Fill in supplementary fields",0,0,0,0,0,0,0]
[null,null,null,null,null,null,null,null,null,null,null,null,null,null,null,null,null,"",null,null,null,null,null,"",null,null,null,null,null,null,null,null,null,null,null,"",59,"Fill in supplementary fields","Fill in supplementary fields",{"$f":"IF(T63>U63,\"B cannot be higher than C\",IF(COUNTA(Y63:Z63)=0,\"Fill in supplementary fields\",(V63/2)*(T63/U63)+(V63/2)*(1/SUM(Y63:Z63))))+(IF(LEFT(S63,1)=\"1\",((T75*AB75)*(AC75/(1-AC75))),IF(LEFT(S63,1)=\"2\",IF(COUNTA(T63:V63)=0,\"Fill in supplementary fields\",(U63+V63)*AC63*AB63))))","v":{"$error":"#VALUE!"}},{"$f":"IF(T63>U63,\"B cannot be higher than C\",IFERROR(IF(COUNTA(Y63:Z63)=0,\"Fill in supplementary fields\",V63/2)*(T63/U63)+(V63/2)*(1/Y63),\"Fill in supplementary fields\"))+(IF(LEFT(S63,1)=\"1\",((T75*AB75)*(AC75/(1-AC75))),IF(LEFT(S63,1)=\"2\",IF(COUNTA(T63:V63)=0,\"Fill in supplementary fields\",(U63+V63)*AC63*AB63))))","v":{"$error":"#VALUE!"}},{"$f":"IF(T63>U63,\"B cannot be higher than C\",IFERROR(IF(COUNTA(Y63:Z63)=0,\"Fill in supplementary fields\",IF(Y63=0,V63/2*(T63/U63)+V63/2*(1/Z63),(V63/2)*(T63/U63))),\"Fill in supplementary fields\"))+(IF(LEFT(S63,1)=\"1\",((T75*AB75)*(AC75/(1-AC75))),IF(LEFT(S63,1)=\"2\",IF(COUNTA(T63:V63)=0,\"Fill in supplementary fields\",(U63+V63)*AC63*AB63))))","v":{"$error":"#VALUE!"}},"Enter exposure values in fields A and B","Fill in supplementary fields","Fill in supplementary fields","Fill in supplementary fields","Fill in supplementary fields",0,0,0,0,0,0,0]
[null,null,null,null,null,null,null,null,null,null,null,null,null,null,null,null,null,"",null,null,null,null,null,"",null,null,null,null,null,null,null,null,null,null,null,"",60,"Fill in supplementary fields","Fill in supplementary fields",{"$f":"IF(T64>U64,\"B cannot be higher than C\",IF(COUNTA(Y64:Z64)=0,\"Fill in supplementary fields\",(V64/2)*(T64/U64)+(V64/2)*(1/SUM(Y64:Z64))))+(IF(LEFT(S64,1)=\"1\",((U64+V64)/AA64)*(T64/(U64+V64))*AB64*AC64*(AA64/(1-AC64)),IF(LEFT(S64,1)=\"2\",IF(COUNTA(T64:V64)=0,\"Fill in supplementary fields\",(U64+V64)*AC64*AB64))))","v":{"$error":"#VALUE!"}},{"$f":"IF(T64>U64,\"B cannot be higher than C\",IFERROR(IF(COUNTA(Y64:Z64)=0,\"Fill in supplementary fields\",V64/2)*(T64/U64)+(V64/2)*(1/Y64),\"Fill in supplementary fields\"))+(IF(LEFT(S64,1)=\"1\",((U64+V64)/AA64)*(T64/(U64+V64))*AB64*AC64*(AA64/(1-AC64)),IF(LEFT(S64,1)=\"2\",IF(COUNTA(T64:V64)=0,\"Fill in supplementary fields\",(U64+V64)*AC64*AB64))))","v":{"$error":"#VALUE!"}},{"$f":"IF(T64>U64,\"B cannot be higher than C\",IFERROR(IF(COUNTA(Y64:Z64)=0,\"Fill in supplementary fields\",IF(Y64=0,V64/2*(T64/U64)+V64/2*(1/Z64),(V64/2)*(T64/U64))),\"Fill in supplementary fields\"))+(IF(LEFT(S64,1)=\"1\",((U64+V64)/AA64)*(T64/(U64+V64))*AB64*AC64*(AA64/(1-AC64)),IF(LEFT(S64,1)=\"2\",IF(COUNTA(T64:V64)=0,\"Fill in supplementary fields\",(U64+V64)*AC64*AB64))))","v":{"$error":"#VALUE!"}},"Enter exposure values in fields A and B","Fill in supplementary fields","Fill in supplementary fields","Fill in supplementary fields","Fill in supplementary fields",0,0,0,0,0,0,0]
[null,null,null,null,null,null,null,null,null,null,null,null,null,null,null,null,null,"",null,null,null,null,null,"",null,null,null,null,null,null,null,null,null,null,null,"",61,"Fill in supplementary fields","Fill in supplementary fields",{"$f":"IF(T65>U65,\"B cannot be higher than C\",IF(COUNTA(Y65:Z65)=0,\"Fill in supplementary fields\",(V65/2)*(T65/U65)+(V65/2)*(1/SUM(Y65:Z65))))+(IF(LEFT(S65,1)=\"1\",((U65+V65)/AA65)*(T65/(U65+V65))*AB65*AC65*(AA65/(1-AC65)),IF(LEFT(S65,1)=\"2\",IF(COUNTA(T65:V65)=0,\"Fill in supplementary fields\",(U65+V65)*AC65*AB65))))","v":{"$error":"#VALUE!"}},{"$f":"IF(T65>U65,\"B cannot be higher than C\",IFERROR(IF(COUNTA(Y65:Z65)=0,\"Fill in supplementary fields\",V65/2)*(T65/U65)+(V65/2)*(1/Y65),\"Fill in supplementary fields\"))+(IF(LEFT(S65,1)=\"1\",((U65+V65)/AA65)*(T65/(U65+V65))*AB65*AC65*(AA65/(1-AC65)),IF(LEFT(S65,1)=\"2\",IF(COUNTA(T65:V65)=0,\"Fill in supplementary fields\",(U65+V65)*AC65*AB65))))","v":{"$error":"#VALUE!"}},{"$f":"IF(T65>U65,\"B cannot be higher than C\",IFERROR(IF(COUNTA(Y65:Z65)=0,\"Fill in supplementary fields\",IF(Y65=0,V65/2*(T65/U65)+V65/2*(1/Z65),(V65/2)*(T65/U65))),\"Fill in supplementary fields\"))+(IF(LEFT(S65,1)=\"1\",((U65+V65)/AA65)*(T65/(U65+V65))*AB65*AC65*(AA65/(1-AC65)),IF(LEFT(S65,1)=\"2\",IF(COUNTA(T65:V65)=0,\"Fill in supplementary fields\",(U65+V65)*AC65*AB65))))","v":{"$error":"#VALUE!"}},"Enter exposure values in fields A and B","Fill in supplementary fields","Fill in supplementary fields","Fill in supplementary fields","Fill in supplementary fields",0,0,0,0,0,0,0]
[null,null,null,null,null,null,null,null,null,null,null,null,null,null,null,null,null,"",null,null,null,null,null,"",null,null,null,null,null,null,null,null,null,null,null,"",62,"Fill in supplementary fields","Fill in supplementary fields",{"$f":"IF(T66>U66,\"B cannot be higher than C\",IF(COUNTA(Y66:Z66)=0,\"Fill in supplementary fields\",(V66/2)*(T66/U66)+(V66/2)*(1/SUM(Y66:Z66))))+(IF(LEFT(S66,1)=\"1\",((T78*AB78)*(AC78/(1-AC78))),IF(LEFT(S66,1)=\"2\",IF(COUNTA(T66:V66)=0,\"Fill in supplementary fields\",(U66+V66)*AC66*AB66))))","v":{"$error":"#VALUE!"}},{"$f":"IF(T66>U66,\"B cannot be higher than C\",IFERROR(IF(COUNTA(Y66:Z66)=0,\"Fill in supplementary fields\",V66/2)*(T66/U66)+(V66/2)*(1/Y66),\"Fill in supplementary fields\"))+(IF(LEFT(S66,1)=\"1\",((T78*AB78)*(AC78/(1-AC78))),IF(LEFT(S66,1)=\"2\",IF(COUNTA(T66:V66)=0,\"Fill in supplementary fields\",(U66+V66)*AC66*AB66))))","v":{"$error":"#VALUE!"}},{"$f":"IF(T66>U66,\"B cannot be higher than C\",IFERROR(IF(COUNTA(Y66:Z66)=0,\"Fill in supplementary fields\",IF(Y66=0,V66/2*(T66/U66)+V66/2*(1/Z66),(V66/2)*(T66/U66))),\"Fill in supplementary fields\"))+(IF(LEFT(S66,1)=\"1\",((T78*AB78)*(AC78/(1-AC78))),IF(LEFT(S66,1)=\"2\",IF(COUNTA(T66:V66)=0,\"Fill in supplementary fields\",(U66+V66)*AC66*AB66))))","v":{"$error":"#VALUE!"}},"Enter exposure values in fields A and B","Fill in supplementary fields","Fill in supplementary fields","Fill in supplementary fields","Fill in supplementary fields",{"$f":"$V66","v":0},0,0,0,0,0,0]
[null,null,null,null,null,null,null,null,null,null,null,null,null,null,null,null,null,"",null,null,null,null,null,"",null,null,null,null,null,null,null,null,null,null,null,"",63,"Fill in supplementary fields","Fill in supplementary fields",{"$f":"IF(T67>U67,\"B cannot be higher than C\",IF(COUNTA(Y67:Z67)=0,\"Fill in supplementary fields\",(V67/2)*(T67/U67)+(V67/2)*(1/SUM(Y67:Z67))))+(IF(LEFT(S67,1)=\"1\",((U67+V67)/AA67)*(T67/(U67+V67))*AB67*AC67*(AA67/(1-AC67)),IF(LEFT(S67,1)=\"2\",IF(COUNTA(T67:V67)=0,\"Fill in supplementary fields\",(U67+V67)*AC67*AB67))))","v":{"$error":"#VALUE!"}},{"$f":"IF(T67>U67,\"B cannot be higher than C\",IFERROR(IF(COUNTA(Y67:Z67)=0,\"Fill in supplementary fields\",V67/2)*(T67/U67)+(V67/2)*(1/Y67),\"Fill in supplementary fields\"))+(IF(LEFT(S67,1)=\"1\",((U67+V67)/AA67)*(T67/(U67+V67))*AB67*AC67*(AA67/(1-AC67)),IF(LEFT(S67,1)=\"2\",IF(COUNTA(T67:V67)=0,\"Fill in supplementary fields\",(U67+V67)*AC67*AB67))))","v":{"$error":"#VALUE!"}},{"$f":"IF(T67>U67,\"B cannot be higher than C\",IFERROR(IF(COUNTA(Y67:Z67)=0,\"Fill in supplementary fields\",IF(Y67=0,V67/2*(T67/U67)+V67/2*(1/Z67),(V67/2)*(T67/U67))),\"Fill in supplementary fields\"))+(IF(LEFT(S67,1)=\"1\",((U67+V67)/AA67)*(T67/(U67+V67))*AB67*AC67*(AA67/(1-AC67)),IF(LEFT(S67,1)=\"2\",IF(COUNTA(T67:V67)=0,\"Fill in supplementary fields\",(U67+V67)*AC67*AB67))))","v":{"$error":"#VALUE!"}},"Enter exposure values in fields A and B","Fill in supplementary fields","Fill in supplementary fields","Fill in supplementary fields","Fill in supplementary fields",0,0,0,0,0,0,0]
[null,null,null,null,null,null,null,null,null,null,null,null,null,null,null,null,null,"",null,null,null,null,null,"",null,null,null,null,null,null,null,null,null,null,null,"",64,"Fill in supplementary fields","Fill in supplementary fields",{"$f":"IF(T68>U68,\"B cannot be higher than C\",IF(COUNTA(Y68:Z68)=0,\"Fill in supplementary fields\",(V68/2)*(T68/U68)+(V68/2)*(1/SUM(Y68:Z68))))+(IF(LEFT(S68,1)=\"1\",((U68+V68)/AA68)*(T68/(U68+V68))*AB68*AC68*(AA68/(1-AC68)),IF(LEFT(S68,1)=\"2\",IF(COUNTA(T68:V68)=0,\"Fill in supplementary fields\",(U68+V68)*AC68*AB68))))","v":{"$error":"#VALUE!"}},{"$f":"IF(T68>U68,\"B cannot be higher than C\",IFERROR(IF(COUNTA(Y68:Z68)=0,\"Fill in supplementary fields\",V68/2)*(T68/U68)+(V68/2)*(1/Y68),\"Fill in supplementary fields\"))+(IF(LEFT(S68,1)=\"1\",((U68+V68)/AA68)*(T68/(U68+V68))*AB68*AC68*(AA68/(1-AC68)),IF(LEFT(S68,1)=\"2\",IF(COUNTA(T68:V68)=0,\"Fill in supplementary fields\",(U68+V68)*AC68*AB68))))","v":{"$error":"#VALUE!"}},{"$f":"IF(T68>U68,\"B cannot be higher than C\",IFERROR(IF(COUNTA(Y68:Z68)=0,\"Fill in supplementary fields\",IF(Y68=0,V68/2*(T68/U68)+V68/2*(1/Z68),(V68/2)*(T68/U68))),\"Fill in supplementary fields\"))+(IF(LEFT(S68,1)=\"1\",((U68+V68)/AA68)*(T68/(U68+V68))*AB68*AC68*(AA68/(1-AC68)),IF(LEFT(S68,1)=\"2\",IF(COUNTA(T68:V68)=0,\"Fill in supplementary fields\",(U68+V68)*AC68*AB68))))","v":{"$error":"#VALUE!"}},"Enter exposure values in fields A and B","Fill in supplementary fields","Fill in supplementary fields","Fill in supplementary fields","Fill in supplementary fields",0,0,0,0,0,0,0]
[null,null,null,null,null,null,null,null,null,null,null,null,null,null,null,null,null,"",null,null,null,null,null,"",null,null,null,null,null,null,null,null,null,null,null,"",65,"Fill in supplementary fields","Fill in supplementary fields",{"$f":"IF(T69>U69,\"B cannot be higher than C\",IF(COUNTA(Y69:Z69)=0,\"Fill in supplementary fields\",(V69/2)*(T69/U69)+(V69/2)*(1/SUM(Y69:Z69))))+(IF(LEFT(S69,1)=\"1\",((T81*AB81)*(AC81/(1-AC81))),IF(LEFT(S69,1)=\"2\",IF(COUNTA(T69:V69)=0,\"Fill in supplementary fields\",(U69+V69)*AC69*AB69))))","v":{"$error":"#VALUE!"}},{"$f":"IF(T69>U69,\"B cannot be higher than C\",IFERROR(IF(COUNTA(Y69:Z69)=0,\"Fill in supplementary fields\",V69/2)*(T69/U69)+(V69/2)*(1/Y69),\"Fill in supplementary fields\"))+(IF(LEFT(S69,1)=\"1\",((T81*AB81)*(AC81/(1-AC81))),IF(LEFT(S69,1)=\"2\",IF(COUNTA(T69:V69)=0,\"Fill in supplementary fields\",(U69+V69)*AC69*AB69))))","v":{"$error":"#VALUE!"}},{"$f":"IF(T69>U69,\"B cannot be higher than C\",IFERROR(IF(COUNTA(Y69:Z69)=0,\"Fill in supplementary fields\",IF(Y69=0,V69/2*(T69/U69)+V69/2*(1/Z69),(V69/2)*(T69/U69))),\"Fill in supplementary fields\"))+(IF(LEFT(S69,1)=\"1\",((T81*AB81)*(AC81/(1-AC81))),IF(LEFT(S69,1)=\"2\",IF(COUNTA(T69:V69)=0,\"Fill in supplementary fields\",(U69+V69)*AC69*AB69))))","v":{"$error":"#VALUE!"}},"Enter exposure values in fields A and B","Fill in supplementary fields","Fill in supplementary fields","Fill in supplementary fields","Fill in supplementary fields",0,0,0,0,0,0,0]
[null,null,null,null,null,null,null,null,null,null,null,null,null,null,null,null,null,{"$f":"IF(LEN(P70)=0,\"\",HLOOKUP(AJ70,$AL$5:$BA$200,AK70,FALSE))","v":""},null,null,null,null,null,"",null,null,null,null,null,null,null,null,null,null,null,{"$f":"IFERROR(VLOOKUP(P70,BC:BD,2,FALSE),\"\")","v":""},{"$f":"AK69+1","v":66},{"$f":"IF(T70>U70,\"B cannot be higher than C\",IF(COUNTA(T70:V70)=0,\"Fill in supplementary fields\",IFERROR(IF(VALUE(LEFT(X70,1))=1,V70/2+(T70/U70)*(V70/2),IF(VALUE(LEFT(X70,1))=2,\"impossible combination\",\"check not available\")),\"\")))","v":"Fill in supplementary fields"},{"$f":"IF(T70>U70,\"B cannot be higher than C\",IF(COUNTA(T70:V70)=0,\"Fill in supplementary fields\",IFERROR(IF(VALUE(LEFT(X70,1))=1,(T70/U70)*(V70/2),IF(VALUE(LEFT(X70,1))=2,(T70/U70)*(V70),\"check not available\")),\"\")))","v":"Fill in supplementary fields"},{"$f":"IF(T70>U70,\"B cannot be higher than C\",IF(COUNTA(Y70:Z70)=0,\"Fill in supplementary fields\",(V70/2)*(T70/U70)+(V70/2)*(1/SUM(Y70:Z70))))+(IF(LEFT(S70,1)=\"1\",((U70+V70)/AA70)*(T70/(U70+V70))*AB70*AC70*(AA70/(1-AC70)),IF(LEFT(S70,1)=\"2\",IF(COUNTA(T70:V70)=0,\"Fill in supplementary fields\",(U70+V70)*AC70*AB70))))","v":{"$error":"#VALUE!"}},{"$f":"IF(T70>U70,\"B cannot be higher than C\",IFERROR(IF(COUNTA(Y70:Z70)=0,\"Fill in supplementary fields\",V70/2)*(T70/U70)+(V70/2)*(1/Y70),\"Fill in supplementary fields\"))+(IF(LEFT(S70,1)=\"1\",((U70+V70)/AA70)*(T70/(U70+V70))*AB70*AC70*(AA70/(1-AC70)),IF(LEFT(S70,1)=\"2\",IF(COUNTA(T70:V70)=0,\"Fill in supplementary fields\",(U70+V70)*AC70*AB70))))","v":{"$error":"#VALUE!"}},{"$f":"IF(T70>U70,\"B cannot be higher than C\",IFERROR(IF(COUNTA(Y70:Z70)=0,\"Fill in supplementary fields\",IF(Y70=0,V70/2*(T70/U70)+V70/2*(1/Z70),(V70/2)*(T70/U70))),\"Fill in supplementary fields\"))+(IF(LEFT(S70,1)=\"1\",((U70+V70)/AA70)*(T70/(U70+V70))*AB70*AC70*(AA70/(1-AC70)),IF(LEFT(S70,1)=\"2\",IF(COUNTA(T70:V70)=0,\"Fill in supplementary fields\",(U70+V70)*AC70*AB70))))","v":{"$error":"#VALUE!"}},{"$f":"IF(T70>U70,\"B cannot be higher than C\",IF(COUNTA(T70:V70)=0,\"Enter exposure values in fields A and B\",(V70)*(T70/U70)))","v":"Enter exposure values in fields A and B"},{"$f":"IF(T70>U70,\"B cannot be higher than C\",IFERROR(IF(COUNTA(Y70:Z70)=0,\"Fill in supplementary fields\",V70/2)*(T70/U70)+(V70/2)*(1/Y70),\"Fill in supplementary fields\"))","v":"Fill in supplementary fields"},{"$f":"IF(T70>U70,\"B cannot be higher than C\",IFERROR(IF(COUNTA(Y70:Z70)=0,\"Fill in supplementary fields\",IF(Y70=0,V70/2*(T70/U70)+V70/2*(1/Z70),(V70/2)*(T70/U70))),\"Fill in supplementary fields\"))","v":"Fill in supplementary fields"},{"$f":"IF(T70>U70,\"B cannot be higher than C\",IF(COUNTA(T70:V70)=0,\"Fill in supplementary fields\",(T70/U70)*((V70)+AB70*AC70)))","v":"Fill in supplementary fields"},{"$f":"IF(T70>U70,\"B cannot be higher than C\",IF(COUNTA(T70:V70)=0,\"Fill in supplementary fields\",(V70)*(T70/U70)))","v":"Fill in supplementary fields"},0,0,0,0,0,0,0]
[null,null,null,null,null,null,null,null,null,null,null,null,null,null,null,null,null,"",null,null,null,null,null,"",null,null,null,null,null,null,null,null,null,null,null,"",67,"Fill in supplementary fields","Fill in supplementary fields",{"$f":"IF(T71>U71,\"B cannot be higher than C\",IF(COUNTA(Y71:Z71)=0,\"Fill in supplementary fields\",(V71/2)*(T71/U71)+(V71/2)*(1/SUM(Y71:Z71))))+(IF(LEFT(S71,1)=\"1\",((U71+V71)/AA71)*(T71/(U71+V71))*AB71*AC71*(AA71/(1-AC71)),IF(LEFT(S71,1)=\"2\",IF(COUNTA(T71:V71)=0,\"Fill in supplementary fields\",(U71+V71)*AC71*AB71))))","v":{"$error":"#VALUE!"}},{"$f":"IF(T71>U71,\"B cannot be higher than C\",IFERROR(IF(COUNTA(Y71:Z71)=0,\"Fill in supplementary fields\",V71/2)*(T71/U71)+(V71/2)*(1/Y71),\"Fill in supplementary fields\"))+(IF(LEFT(S71,1)=\"1\",((U71+V71)/AA71)*(T71/(U71+V71))*AB71*AC71*(AA71/(1-AC71)),IF(LEFT(S71,1)=\"2\",IF(COUNTA(T71:V71)=0,\"Fill in supplementary fields\",(U71+V71)*AC71*AB71))))","v":{"$error":"#VALUE!"}},{"$f":"IF(T71>U71,\"B cannot be higher than C\",IFERROR(IF(COUNTA(Y71:Z71)=0,\"Fill in supplementary fields\",IF(Y71=0,V71/2*(T71/U71)+V71/2*(1/Z71),(V71/2)*(T71/U71))),\"Fill in supplementary fields\"))+(IF(LEFT(S71,1)=\"1\",((U71+V71)/AA71)*(T71/(U71+V71))*AB71*AC71*(AA71/(1-AC71)),IF(LEFT(S71,1)=\"2\",IF(COUNTA(T71:V71)=0,\"Fill in supplementary fields\",(U71+V71)*AC71*AB71))))","v":{"$error":"#VALUE!"}},"Enter exposure values in fields A and B","Fill in supplementary fields","Fill in supplementary fields","Fill in supplementary fields","Fill in supplementary fields",0,0,0,0,0,0,0]
[null,null,null,null,null,null,null,null,null,null,null,null,null,null,null,null,null,"",null,null,null,null,null,"",null,null,null,null,null,null,null,null,null,null,null,"",68,"Fill in supplementary fields","Fill in supplementary fields",{"$f":"IF(T72>U72,\"B cannot be higher than C\",IF(COUNTA(Y72:Z72)=0,\"Fill in supplementary fields\",(V72/2)*(T72/U72)+(V72/2)*(1/SUM(Y72:Z72))))+(IF(LEFT(S72,1)=\"1\",((T84*AB84)*(AC84/(1-AC84))),IF(LEFT(S72,1)=\"2\",IF(COUNTA(T72:V72)=0,\"Fill in supplementary fields\",(U72+V72)*AC72*AB72))))","v":{"$error":"#VALUE!"}},{"$f":"IF(T72>U72,\"B cannot be higher than C\",IFERROR(IF(COUNTA(Y72:Z72)=0,\"Fill in supplementary fields\",V72/2)*(T72/U72)+(V72/2)*(1/Y72),\"Fill in supplementary fields\"))+(IF(LEFT(S72,1)=\"1\",((T84*AB84)*(AC84/(1-AC84))),IF(LEFT(S72,1)=\"2\",IF(COUNTA(T72:V72)=0,\"Fill in supplementary fields\",(U72+V72)*AC72*AB72))))","v":{"$error":"#VALUE!"}},{"$f":"IF(T72>U72,\"B cannot be higher than C\",IFERROR(IF(COUNTA(Y72:Z72)=0,\"Fill in supplementary fields\",IF(Y72=0,V72/2*(T72/U72)+V72/2*(1/Z72),(V72/2)*(T72/U72))),\"Fill in supplementary fields\"))+(IF(LEFT(S72,1)=\"1\",((T84*AB84)*(AC84/(1-AC84))),IF(LEFT(S72,1)=\"2\",IF(COUNTA(T72:V72)=0,\"Fill in supplementary fields\",(U72+V72)*AC72*AB72))))","v":{"$error":"#VALUE!"}},"Enter exposure values in fields A and B","Fill in supplementary fields","Fill in supplementary fields","Fill in supplementary fields","Fill in supplementary fields",0,0,0,0,0,0,0]
[null,null,null,null,null,null,null,null,null,null,null,null,null,null,null,null,null,"",null,null,null,null,null,"",null,null,null,null,null,null,null,null,null,null,null,"",69,"Fill in supplementary fields","Fill in supplementary fields",{"$f":"IF(T73>U73,\"B cannot be higher than C\",IF(COUNTA(Y73:Z73)=0,\"Fill in supplementary fields\",(V73/2)*(T73/U73)+(V73/2)*(1/SUM(Y73:Z73))))+(IF(LEFT(S73,1)=\"1\",((U73+V73)/AA73)*(T73/(U73+V73))*AB73*AC73*(AA73/(1-AC73)),IF(LEFT(S73,1)=\"2\",IF(COUNTA(T73:V73)=0,\"Fill in supplementary fields\",(U73+V73)*AC73*AB73))))","v":{"$error":"#VALUE!"}},{"$f":"IF(T73>U73,\"B cannot be higher than C\",IFERROR(IF(COUNTA(Y73:Z73)=0,\"Fill in supplementary fields\",V73/2)*(T73/U73)+(V73/2)*(1/Y73),\"Fill in supplementary fields\"))+(IF(LEFT(S73,1)=\"1\",((U73+V73)/AA73)*(T73/(U73+V73))*AB73*AC73*(AA73/(1-AC73)),IF(LEFT(S73,1)=\"2\",IF(COUNTA(T73:V73)=0,\"Fill in supplementary fields\",(U73+V73)*AC73*AB73))))","v":{"$error":"#VALUE!"}},{"$f":"IF(T73>U73,\"B cannot be higher than C\",IFERROR(IF(COUNTA(Y73:Z73)=0,\"Fill in supplementary fields\",IF(Y73=0,V73/2*(T73/U73)+V73/2*(1/Z73),(V73/2)*(T73/U73))),\"Fill in supplementary fields\"))+(IF(LEFT(S73,1)=\"1\",((U73+V73)/AA73)*(T73/(U73+V73))*AB73*AC73*(AA73/(1-AC73)),IF(LEFT(S73,1)=\"2\",IF(COUNTA(T73:V73)=0,\"Fill in supplementary fields\",(U73+V73)*AC73*AB73))))","v":{"$error":"#VALUE!"}},"Enter exposure values in fields A and B","Fill in supplementary fields","Fill in supplementary fields","Fill in supplementary fields","Fill in supplementary fields",0,0,0,0,0,0,0]
[null,null,null,null,null,null,null,null,null,null,null,null,null,null,null,null,null,"",null,null,null,null,null,"",null,null,null,null,null,null,null,null,null,null,null,"",70,"Fill in supplementary fields","Fill in supplementary fields",{"$f":"IF(T74>U74,\"B cannot be higher than C\",IF(COUNTA(Y74:Z74)=0,\"Fill in supplementary fields\",(V74/2)*(T74/U74)+(V74/2)*(1/SUM(Y74:Z74))))+(IF(LEFT(S74,1)=\"1\",((U74+V74)/AA74)*(T74/(U74+V74))*AB74*AC74*(AA74/(1-AC74)),IF(LEFT(S74,1)=\"2\",IF(COUNTA(T74:V74)=0,\"Fill in supplementary fields\",(U74+V74)*AC74*AB74))))","v":{"$error":"#VALUE!"}},{"$f":"IF(T74>U74,\"B cannot be higher than C\",IFERROR(IF(COUNTA(Y74:Z74)=0,\"Fill in supplementary fields\",V74/2)*(T74/U74)+(V74/2)*(1/Y74),\"Fill in supplementary fields\"))+(IF(LEFT(S74,1)=\"1\",((U74+V74)/AA74)*(T74/(U74+V74))*AB74*AC74*(AA74/(1-AC74)),IF(LEFT(S74,1)=\"2\",IF(COUNTA(T74:V74)=0,\"Fill in supplementary fields\",(U74+V74)*AC74*AB74))))","v":{"$error":"#VALUE!"}},{"$f":"IF(T74>U74,\"B cannot be higher than C\",IFERROR(IF(COUNTA(Y74:Z74)=0,\"Fill in supplementary fields\",IF(Y74=0,V74/2*(T74/U74)+V74/2*(1/Z74),(V74/2)*(T74/U74))),\"Fill in supplementary fields\"))+(IF(LEFT(S74,1)=\"1\",((U74+V74)/AA74)*(T74/(U74+V74))*AB74*AC74*(AA74/(1-AC74)),IF(LEFT(S74,1)=\"2\",IF(COUNTA(T74:V74)=0,\"Fill in supplementary fields\",(U74+V74)*AC74*AB74))))","v":{"$error":"#VALUE!"}},"Enter exposure values in fields A and B","Fill in supplementary fields","Fill in supplementary fields","Fill in supplementary fields","Fill in supplementary fields",0,0,0,0,0,0,0]
[null,null,null,null,null,null,null,null,null,null,null,null,null,null,null,null,null,"",null,null,null,null,null,"",null,null,null,null,null,null,null,null,null,null,null,"",71,"Fill in supplementary fields","Fill in supplementary fields",{"$f":"IF(T75>U75,\"B cannot be higher than C\",IF(COUNTA(Y75:Z75)=0,\"Fill in supplementary fields\",(V75/2)*(T75/U75)+(V75/2)*(1/SUM(Y75:Z75))))+(IF(LEFT(S75,1)=\"1\",((T87*AB87)*(AC87/(1-AC87))),IF(LEFT(S75,1)=\"2\",IF(COUNTA(T75:V75)=0,\"Fill in supplementary fields\",(U75+V75)*AC75*AB75))))","v":{"$error":"#VALUE!"}},{"$f":"IF(T75>U75,\"B cannot be higher than C\",IFERROR(IF(COUNTA(Y75:Z75)=0,\"Fill in supplementary fields\",V75/2)*(T75/U75)+(V75/2)*(1/Y75),\"Fill in supplementary fields\"))+(IF(LEFT(S75,1)=\"1\",((T87*AB87)*(AC87/(1-AC87))),IF(LEFT(S75,1)=\"2\",IF(COUNTA(T75:V75)=0,\"Fill in supplementary fields\",(U75+V75)*AC75*AB75))))","v":{"$error":"#VALUE!"}},{"$f":"IF(T75>U75,\"B cannot be higher than C\",IFERROR(IF(COUNTA(Y75:Z75)=0,\"Fill in supplementary fields\",IF(Y75=0,V75/2*(T75/U75)+V75/2*(1/Z75),(V75/2)*(T75/U75))),\"Fill in supplementary fields\"))+(IF(LEFT(S75,1)=\"1\",((T87*AB87)*(AC87/(1-AC87))),IF(LEFT(S75,1)=\"2\",IF(COUNTA(T75:V75)=0,\"Fill in supplementary fields\",(U75+V75)*AC75*AB75))))","v":{"$error":"#VALUE!"}},"Enter exposure values in fields A and B","Fill in supplementary fields","Fill in supplementary fields","Fill in supplementary fields","Fill in supplementary fields",0,0,0,0,0,0,0]
[null,null,null,null,null,null,null,null,null,null,null,null,null,null,null,null,null,"",null,null,null,null,null,"",null,null,null,null,null,null,null,null,null,null,null,"",72,"Fill in supplementary fields","Fill in supplementary fields",{"$f":"IF(T76>U76,\"B cannot be higher than C\",IF(COUNTA(Y76:Z76)=0,\"Fill in supplementary fields\",(V76/2)*(T76/U76)+(V76/2)*(1/SUM(Y76:Z76))))+(IF(LEFT(S76,1)=\"1\",((U76+V76)/AA76)*(T76/(U76+V76))*AB76*AC76*(AA76/(1-AC76)),IF(LEFT(S76,1)=\"2\",IF(COUNTA(T76:V76)=0,\"Fill in supplementary fields\",(U76+V76)*AC76*AB76))))","v":{"$error":"#VALUE!"}},{"$f":"IF(T76>U76,\"B cannot be higher than C\",IFERROR(IF(COUNTA(Y76:Z76)=0,\"Fill in supplementary fields\",V76/2)*(T76/U76)+(V76/2)*(1/Y76),\"Fill in supplementary fields\"))+(IF(LEFT(S76,1)=\"1\",((U76+V76)/AA76)*(T76/(U76+V76))*AB76*AC76*(AA76/(1-AC76)),IF(LEFT(S76,1)=\"2\",IF(COUNTA(T76:V76)=0,\"Fill in supplementary fields\",(U76+V76)*AC76*AB76))))","v":{"$error":"#VALUE!"}},{"$f":"IF(T76>U76,\"B cannot be higher than C\",IFERROR(IF(COUNTA(Y76:Z76)=0,\"Fill in supplementary fields\",IF(Y76=0,V76/2*(T76/U76)+V76/2*(1/Z76),(V76/2)*(T76/U76))),\"Fill in supplementary fields\"))+(IF(LEFT(S76,1)=\"1\",((U76+V76)/AA76)*(T76/(U76+V76))*AB76*AC76*(AA76/(1-AC76)),IF(LEFT(S76,1)=\"2\",IF(COUNTA(T76:V76)=0,\"Fill in supplementary fields\",(U76+V76)*AC76*AB76))))","v":{"$error":"#VALUE!"}},"Enter exposure values in fields A and B","Fill in supplementary fields","Fill in supplementary fields","Fill in supplementary fields","Fill in supplementary fields",{"$f":"$V76","v":0},0,0,0,0,0,0]
[null,null,null,null,null,null,null,null,null,null,null,null,null,null,null,null,null,"",null,null,null,null,null,"",null,null,null,null,null,null,null,null,null,null,null,"",73,"Fill in supplementary fields","Fill in supplementary fields",{"$f":"IF(T77>U77,\"B cannot be higher than C\",IF(COUNTA(Y77:Z77)=0,\"Fill in supplementary fields\",(V77/2)*(T77/U77)+(V77/2)*(1/SUM(Y77:Z77))))+(IF(LEFT(S77,1)=\"1\",((U77+V77)/AA77)*(T77/(U77+V77))*AB77*AC77*(AA77/(1-AC77)),IF(LEFT(S77,1)=\"2\",IF(COUNTA(T77:V77)=0,\"Fill in supplementary fields\",(U77+V77)*AC77*AB77))))","v":{"$error":"#VALUE!"}},{"$f":"IF(T77>U77,\"B cannot be higher than C\",IFERROR(IF(COUNTA(Y77:Z77)=0,\"Fill in supplementary fields\",V77/2)*(T77/U77)+(V77/2)*(1/Y77),\"Fill in supplementary fields\"))+(IF(LEFT(S77,1)=\"1\",((U77+V77)/AA77)*(T77/(U77+V77))*AB77*AC77*(AA77/(1-AC77)),IF(LEFT(S77,1)=\"2\",IF(COUNTA(T77:V77)=0,\"Fill in supplementary fields\",(U77+V77)*AC77*AB77))))","v":{"$error":"#VALUE!"}},{"$f":"IF(T77>U77,\"B cannot be higher than C\",IFERROR(IF(COUNTA(Y77:Z77)=0,\"Fill in supplementary fields\",IF(Y77=0,V77/2*(T77/U77)+V77/2*(1/Z77),(V77/2)*(T77/U77))),\"Fill in supplementary fields\"))+(IF(LEFT(S77,1)=\"1\",((U77+V77)/AA77)*(T77/(U77+V77))*AB77*AC77*(AA77/(1-AC77)),IF(LEFT(S77,1)=\"2\",IF(COUNTA(T77:V77)=0,\"Fill in supplementary fields\",(U77+V77)*AC77*AB77))))","v":{"$error":"#VALUE!"}},"Enter exposure values in fields A and B","Fill in supplementary fields","Fill in supplementary fields","Fill in supplementary fields","Fill in supplementary fields",0,0,0,0,0,0,0]
[null,null,null,null,null,null,null,null,null,null,null,null,null,null,null,null,null,"",null,null,null,null,null,"",null,null,null,null,null,null,null,null,null,null,null,"",74,"Fill in supplementary fields","Fill in supplementary fields",{"$f":"IF(T78>U78,\"B cannot be higher than C\",IF(COUNTA(Y78:Z78)=0,\"Fill in supplementary fields\",(V78/2)*(T78/U78)+(V78/2)*(1/SUM(Y78:Z78))))+(IF(LEFT(S78,1)=\"1\",((T90*AB90)*(AC90/(1-AC90))),IF(LEFT(S78,1)=\"2\",IF(COUNTA(T78:V78)=0,\"Fill in supplementary fields\",(U78+V78)*AC78*AB78))))","v":{"$error":"#VALUE!"}},{"$f":"IF(T78>U78,\"B cannot be higher than C\",IFERROR(IF(COUNTA(Y78:Z78)=0,\"Fill in supplementary fields\",V78/2)*(T78/U78)+(V78/2)*(1/Y78),\"Fill in supplementary fields\"))+(IF(LEFT(S78,1)=\"1\",((T90*AB90)*(AC90/(1-AC90))),IF(LEFT(S78,1)=\"2\",IF(COUNTA(T78:V78)=0,\"Fill in supplementary fields\",(U78+V78)*AC78*AB78))))","v":{"$error":"#VALUE!"}},{"$f":"IF(T78>U78,\"B cannot be higher than C\",IFERROR(IF(COUNTA(Y78:Z78)=0,\"Fill in supplementary fields\",IF(Y78=0,V78/2*(T78/U78)+V78/2*(1/Z78),(V78/2)*(T78/U78))),\"Fill in supplementary fields\"))+(IF(LEFT(S78,1)=\"1\",((T90*AB90)*(AC90/(1-AC90))),IF(LEFT(S78,1)=\"2\",IF(COUNTA(T78:V78)=0,\"Fill in supplementary fields\",(U78+V78)*AC78*AB78))))","v":{"$error":"#VALUE!"}},"Enter exposure values in fields A and B","Fill in supplementary fields","Fill in supplementary fields","Fill in supplementary fields","Fill in supplementary fields",0,0,0,0,0,0,0]
[null,null,null,null,null,null,null,null,null,null,null,null,null,null,null,null,null,"",null,null,null,null,null,"",null,null,null,null,null,null,null,null,null,null,null,"",75,"Fill in supplementary fields","Fill in supplementary fields",{"$f":"IF(T79>U79,\"B cannot be higher than C\",IF(COUNTA(Y79:Z79)=0,\"Fill in supplementary fields\",(V79/2)*(T79/U79)+(V79/2)*(1/SUM(Y79:Z79))))+(IF(LEFT(S79,1)=\"1\",((U79+V79)/AA79)*(T79/(U79+V79))*AB79*AC79*(AA79/(1-AC79)),IF(LEFT(S79,1)=\"2\",IF(COUNTA(T79:V79)=0,\"Fill in supplementary fields\",(U79+V79)*AC79*AB79))))","v":{"$error":"#VALUE!"}},{"$f":"IF(T79>U79,\"B cannot be higher than C\",IFERROR(IF(COUNTA(Y79:Z79)=0,\"Fill in supplementary fields\",V79/2)*(T79/U79)+(V79/2)*(1/Y79),\"Fill in supplementary fields\"))+(IF(LEFT(S79,1)=\"1\",((U79+V79)/AA79)*(T79/(U79+V79))*AB79*AC79*(AA79/(1-AC79)),IF(LEFT(S79,1)=\"2\",IF(COUNTA(T79:V79)=0,\"Fill in supplementary fields\",(U79+V79)*AC79*AB79))))","v":{"$error":"#VALUE!"}},{"$f":"IF(T79>U79,\"B cannot be higher than C\",IFERROR(IF(COUNTA(Y79:Z79)=0,\"Fill in supplementary fields\",IF(Y79=0,V79/2*(T79/U79)+V79/2*(1/Z79),(V79/2)*(T79/U79))),\"Fill in supplementary fields\"))+(IF(LEFT(S79,1)=\"1\",((U79+V79)/AA79)*(T79/(U79+V79))*AB79*AC79*(AA79/(1-AC79)),IF(LEFT(S79,1)=\"2\",IF(COUNTA(T79:V79)=0,\"Fill in supplementary fields\",(U79+V79)*AC79*AB79))))","v":{"$error":"#VALUE!"}},"Enter exposure values in fields A and B","Fill in supplementary fields","Fill in supplementary fields","Fill in supplementary fields","Fill in supplementary fields",0,0,0,0,0,0,0]
[null,null,null,null,null,null,null,null,null,null,null,null,null,null,null,null,null,"",null,null,null,null,null,"",null,null,null,null,null,null,null,null,null,null,null,"",76,"Fill in supplementary fields","Fill in supplementary fields",{"$f":"IF(T80>U80,\"B cannot be higher than C\",IF(COUNTA(Y80:Z80)=0,\"Fill in supplementary fields\",(V80/2)*(T80/U80)+(V80/2)*(1/SUM(Y80:Z80))))+(IF(LEFT(S80,1)=\"1\",((U80+V80)/AA80)*(T80/(U80+V80))*AB80*AC80*(AA80/(1-AC80)),IF(LEFT(S80,1)=\"2\",IF(COUNTA(T80:V80)=0,\"Fill in supplementary fields\",(U80+V80)*AC80*AB80))))","v":{"$error":"#VALUE!"}},{"$f":"IF(T80>U80,\"B cannot be higher than C\",IFERROR(IF(COUNTA(Y80:Z80)=0,\"Fill in supplementary fields\",V80/2)*(T80/U80)+(V80/2)*(1/Y80),\"Fill in supplementary fields\"))+(IF(LEFT(S80,1)=\"1\",((U80+V80)/AA80)*(T80/(U80+V80))*AB80*AC80*(AA80/(1-AC80)),IF(LEFT(S80,1)=\"2\",IF(COUNTA(T80:V80)=0,\"Fill in supplementary fields\",(U80+V80)*AC80*AB80))))","v":{"$error":"#VALUE!"}},{"$f":"IF(T80>U80,\"B cannot be higher than C\",IFERROR(IF(COUNTA(Y80:Z80)=0,\"Fill in supplementary fields\",IF(Y80=0,V80/2*(T80/U80)+V80/2*(1/Z80),(V80/2)*(T80/U80))),\"Fill in supplementary fields\"))+(IF(LEFT(S80,1)=\"1\",((U80+V80)/AA80)*(T80/(U80+V80))*AB80*AC80*(AA80/(1-AC80)),IF(LEFT(S80,1)=\"2\",IF(COUNTA(T80:V80)=0,\"Fill in supplementary fields\",(U80+V80)*AC80*AB80))))","v":{"$error":"#VALUE!"}},"Enter exposure values in fields A and B","Fill in supplementary fields","Fill in supplementary fields","Fill in supplementary fields","Fill in supplementary fields",0,0,0,0,0,0,0]
[null,null,null,null,null,null,null,null,null,null,null,null,null,null,null,null,null,"",null,null,null,null,null,"",null,null,null,null,null,null,null,null,null,null,null,"",77,"Fill in supplementary fields","Fill in supplementary fields",{"$f":"IF(T81>U81,\"B cannot be higher than C\",IF(COUNTA(Y81:Z81)=0,\"Fill in supplementary fields\",(V81/2)*(T81/U81)+(V81/2)*(1/SUM(Y81:Z81))))+(IF(LEFT(S81,1)=\"1\",((T93*AB93)*(AC93/(1-AC93))),IF(LEFT(S81,1)=\"2\",IF(COUNTA(T81:V81)=0,\"Fill in supplementary fields\",(U81+V81)*AC81*AB81))))","v":{"$error":"#VALUE!"}},{"$f":"IF(T81>U81,\"B cannot be higher than C\",IFERROR(IF(COUNTA(Y81:Z81)=0,\"Fill in supplementary fields\",V81/2)*(T81/U81)+(V81/2)*(1/Y81),\"Fill in supplementary fields\"))+(IF(LEFT(S81,1)=\"1\",((T93*AB93)*(AC93/(1-AC93))),IF(LEFT(S81,1)=\"2\",IF(COUNTA(T81:V81)=0,\"Fill in supplementary fields\",(U81+V81)*AC81*AB81))))","v":{"$error":"#VALUE!"}},{"$f":"IF(T81>U81,\"B cannot be higher than C\",IFERROR(IF(COUNTA(Y81:Z81)=0,\"Fill in supplementary fields\",IF(Y81=0,V81/2*(T81/U81)+V81/2*(1/Z81),(V81/2)*(T81/U81))),\"Fill in supplementary fields\"))+(IF(LEFT(S81,1)=\"1\",((T93*AB93)*(AC93/(1-AC93))),IF(LEFT(S81,1)=\"2\",IF(COUNTA(T81:V81)=0,\"Fill in supplementary fields\",(U81+V81)*AC81*AB81))))","v":{"$error":"#VALUE!"}},"Enter exposure values in fields A and B","Fill in supplementary fields","Fill in supplementary fields","Fill in supplementary fields","Fill in supplementary fields",0,0,0,0,0,0,0]
[null,null,null,null,null,null,null,null,null,null,null,null,null,null,null,null,null,"",null,null,null,null,null,"",null,null,null,null,null,null,null,null,null,null,null,"",78,"Fill in supplementary fields","Fill in supplementary fields",{"$f":"IF(T82>U82,\"B cannot be higher than C\",IF(COUNTA(Y82:Z82)=0,\"Fill in supplementary fields\",(V82/2)*(T82/U82)+(V82/2)*(1/SUM(Y82:Z82))))+(IF(LEFT(S82,1)=\"1\",((U82+V82)/AA82)*(T82/(U82+V82))*AB82*AC82*(AA82/(1-AC82)),IF(LEFT(S82,1)=\"2\",IF(COUNTA(T82:V82)=0,\"Fill in supplementary fields\",(U82+V82)*AC82*AB82))))","v":{"$error":"#VALUE!"}},{"$f":"IF(T82>U82,\"B cannot be higher than C\",IFERROR(IF(COUNTA(Y82:Z82)=0,\"Fill in supplementary fields\",V82/2)*(T82/U82)+(V82/2)*(1/Y82),\"Fill in supplementary fields\"))+(IF(LEFT(S82,1)=\"1\",((U82+V82)/AA82)*(T82/(U82+V82))*AB82*AC82*(AA82/(1-AC82)),IF(LEFT(S82,1)=\"2\",IF(COUNTA(T82:V82)=0,\"Fill in supplementary fields\",(U82+V82)*AC82*AB82))))","v":{"$error":"#VALUE!"}},{"$f":"IF(T82>U82,\"B cannot be higher than C\",IFERROR(IF(COUNTA(Y82:Z82)=0,\"Fill in supplementary fields\",IF(Y82=0,V82/2*(T82/U82)+V82/2*(1/Z82),(V82/2)*(T82/U82))),\"Fill in supplementary fields\"))+(IF(LEFT(S82,1)=\"1\",((U82+V82)/AA82)*(T82/(U82+V82))*AB82*AC82*(AA82/(1-AC82)),IF(LEFT(S82,1)=\"2\",IF(COUNTA(T82:V82)=0,\"Fill in supplementary fields\",(U82+V82)*AC82*AB82))))","v":{"$error":"#VALUE!"}},"Enter exposure values in fields A and B","Fill in supplementary fields","Fill in supplementary fields","Fill in supplementary fields","Fill in supplementary fields",0,0,0,0,0,0,0]
[null,null,null,null,null,null,null,null,null,null,null,null,null,null,null,null,null,"",null,null,null,null,null,"",null,null,null,null,null,null,null,null,null,null,null,"",79,"Fill in supplementary fields","Fill in supplementary fields",{"$f":"IF(T83>U83,\"B cannot be higher than C\",IF(COUNTA(Y83:Z83)=0,\"Fill in supplementary fields\",(V83/2)*(T83/U83)+(V83/2)*(1/SUM(Y83:Z83))))+(IF(LEFT(S83,1)=\"1\",((U83+V83)/AA83)*(T83/(U83+V83))*AB83*AC83*(AA83/(1-AC83)),IF(LEFT(S83,1)=\"2\",IF(COUNTA(T83:V83)=0,\"Fill in supplementary fields\",(U83+V83)*AC83*AB83))))","v":{"$error":"#VALUE!"}},{"$f":"IF(T83>U83,\"B cannot be higher than C\",IFERROR(IF(COUNTA(Y83:Z83)=0,\"Fill in supplementary fields\",V83/2)*(T83/U83)+(V83/2)*(1/Y83),\"Fill in supplementary fields\"))+(IF(LEFT(S83,1)=\"1\",((U83+V83)/AA83)*(T83/(U83+V83))*AB83*AC83*(AA83/(1-AC83)),IF(LEFT(S83,1)=\"2\",IF(COUNTA(T83:V83)=0,\"Fill in supplementary fields\",(U83+V83)*AC83*AB83))))","v":{"$error":"#VALUE!"}},{"$f":"IF(T83>U83,\"B cannot be higher than C\",IFERROR(IF(COUNTA(Y83:Z83)=0,\"Fill in supplementary fields\",IF(Y83=0,V83/2*(T83/U83)+V83/2*(1/Z83),(V83/2)*(T83/U83))),\"Fill in supplementary fields\"))+(IF(LEFT(S83,1)=\"1\",((U83+V83)/AA83)*(T83/(U83+V83))*AB83*AC83*(AA83/(1-AC83)),IF(LEFT(S83,1)=\"2\",IF(COUNTA(T83:V83)=0,\"Fill in supplementary fields\",(U83+V83)*AC83*AB83))))","v":{"$error":"#VALUE!"}},"Enter exposure values in fields A and B","Fill in supplementary fields","Fill in supplementary fields","Fill in supplementary fields","Fill in supplementary fields",0,0,0,0,0,0,0]
[null,null,null,null,null,null,null,null,null,null,null,null,null,null,null,null,null,"",null,null,null,null,null,"",null,null,null,null,null,null,null,null,null,null,null,"",80,"Fill in supplementary fields","Fill in supplementary fields",{"$f":"IF(T84>U84,\"B cannot be higher than C\",IF(COUNTA(Y84:Z84)=0,\"Fill in supplementary fields\",(V84/2)*(T84/U84)+(V84/2)*(1/SUM(Y84:Z84))))+(IF(LEFT(S84,1)=\"1\",((T96*AB96)*(AC96/(1-AC96))),IF(LEFT(S84,1)=\"2\",IF(COUNTA(T84:V84)=0,\"Fill in supplementary fields\",(U84+V84)*AC84*AB84))))","v":{"$error":"#VALUE!"}},{"$f":"IF(T84>U84,\"B cannot be higher than C\",IFERROR(IF(COUNTA(Y84:Z84)=0,\"Fill in supplementary fields\",V84/2)*(T84/U84)+(V84/2)*(1/Y84),\"Fill in supplementary fields\"))+(IF(LEFT(S84,1)=\"1\",((T96*AB96)*(AC96/(1-AC96))),IF(LEFT(S84,1)=\"2\",IF(COUNTA(T84:V84)=0,\"Fill in supplementary fields\",(U84+V84)*AC84*AB84))))","v":{"$error":"#VALUE!"}},{"$f":"IF(T84>U84,\"B cannot be higher than C\",IFERROR(IF(COUNTA(Y84:Z84)=0,\"Fill in supplementary fields\",IF(Y84=0,V84/2*(T84/U84)+V84/2*(1/Z84),(V84/2)*(T84/U84))),\"Fill in supplementary fields\"))+(IF(LEFT(S84,1)=\"1\",((T96*AB96)*(AC96/(1-AC96))),IF(LEFT(S84,1)=\"2\",IF(COUNTA(T84:V84)=0,\"Fill in supplementary fields\",(U84+V84)*AC84*AB84))))","v":{"$error":"#VALUE!"}},"Enter exposure values in fields A and B","Fill in supplementary fields","Fill in supplementary fields","Fill in supplementary fields","Fill in supplementary fields",0,0,0,0,0,0,0]
[null,null,null,null,null,null,null,null,null,null,null,null,null,null,null,null,null,"",null,null,null,null,null,{"$f":"IFERROR(IF(P85=\"1=Syndicated loan, arranger\",\"1=Official institution\",IF(P85=1,\"1=Official institution\",\"\")),\"\")","v":""},null,null,null,null,null,null,null,null,null,null,null,"",81,"Fill in supplementary fields","Fill in supplementary fields",{"$f":"IF(T85>U85,\"B cannot be higher than C\",IF(COUNTA(Y85:Z85)=0,\"Fill in supplementary fields\",(V85/2)*(T85/U85)+(V85/2)*(1/SUM(Y85:Z85))))+(IF(LEFT(S85,1)=\"1\",((U85+V85)/AA85)*(T85/(U85+V85))*AB85*AC85*(AA85/(1-AC85)),IF(LEFT(S85,1)=\"2\",IF(COUNTA(T85:V85)=0,\"Fill in supplementary fields\",(U85+V85)*AC85*AB85))))","v":{"$error":"#VALUE!"}},{"$f":"IF(T85>U85,\"B cannot be higher than C\",IFERROR(IF(COUNTA(Y85:Z85)=0,\"Fill in supplementary fields\",V85/2)*(T85/U85)+(V85/2)*(1/Y85),\"Fill in supplementary fields\"))+(IF(LEFT(S85,1)=\"1\",((U85+V85)/AA85)*(T85/(U85+V85))*AB85*AC85*(AA85/(1-AC85)),IF(LEFT(S85,1)=\"2\",IF(COUNTA(T85:V85)=0,\"Fill in supplementary fields\",(U85+V85)*AC85*AB85))))","v":{"$error":"#VALUE!"}},{"$f":"IF(T85>U85,\"B cannot be higher than C\",IFERROR(IF(COUNTA(Y85:Z85)=0,\"Fill in supplementary fields\",IF(Y85=0,V85/2*(T85/U85)+V85/2*(1/Z85),(V85/2)*(T85/U85))),\"Fill in supplementary fields\"))+(IF(LEFT(S85,1)=\"1\",((U85+V85)/AA85)*(T85/(U85+V85))*AB85*AC85*(AA85/(1-AC85)),IF(LEFT(S85,1)=\"2\",IF(COUNTA(T85:V85)=0,\"Fill in supplementary fields\",(U85+V85)*AC85*AB85))))","v":{"$error":"#VALUE!"}},"Enter exposure values in fields A and B","Fill in supplementary fields","Fill in supplementary fields","Fill in supplementary fields","Fill in supplementary fields",0,0,0,0,0,0,0]
[null,null,null,null,null,null,null,null,null,null,null,null,null,null,null,null,null,"",null,null,null,null,null,"",null,null,null,null,null,null,null,null,null,null,null,"",82,"Fill in supplementary fields","Fill in supplementary fields",{"$f":"IF(T86>U86,\"B cannot be higher than C\",IF(COUNTA(Y86:Z86)=0,\"Fill in supplementary fields\",(V86/2)*(T86/U86)+(V86/2)*(1/SUM(Y86:Z86))))+(IF(LEFT(S86,1)=\"1\",((U86+V86)/AA86)*(T86/(U86+V86))*AB86*AC86*(AA86/(1-AC86)),IF(LEFT(S86,1)=\"2\",IF(COUNTA(T86:V86)=0,\"Fill in supplementary fields\",(U86+V86)*AC86*AB86))))","v":{"$error":"#VALUE!"}},{"$f":"IF(T86>U86,\"B cannot be higher than C\",IFERROR(IF(COUNTA(Y86:Z86)=0,\"Fill in supplementary fields\",V86/2)*(T86/U86)+(V86/2)*(1/Y86),\"Fill in supplementary fields\"))+(IF(LEFT(S86,1)=\"1\",((U86+V86)/AA86)*(T86/(U86+V86))*AB86*AC86*(AA86/(1-AC86)),IF(LEFT(S86,1)=\"2\",IF(COUNTA(T86:V86)=0,\"Fill in supplementary fields\",(U86+V86)*AC86*AB86))))","v":{"$error":"#VALUE!"}},{"$f":"IF(T86>U86,\"B cannot be higher than C\",IFERROR(IF(COUNTA(Y86:Z86)=0,\"Fill in supplementary fields\",IF(Y86=0,V86/2*(T86/U86)+V86/2*(1/Z86),(V86/2)*(T86/U86))),\"Fill in supplementary fields\"))+(IF(LEFT(S86,1)=\"1\",((U86+V86)/AA86)*(T86/(U86+V86))*AB86*AC86*(AA86/(1-AC86)),IF(LEFT(S86,1)=\"2\",IF(COUNTA(T86:V86)=0,\"Fill in supplementary fields\",(U86+V86)*AC86*AB86))))","v":{"$error":"#VALUE!"}},"Enter exposure values in fields A and B","Fill in supplementary fields","Fill in supplementary fields","Fill in supplementary fields","Fill in supplementary fields",{"$f":"$V86","v":0},0,0,0,0,0,0]
[null,null,null,null,null,null,null,null,null,null,null,null,null,null,null,null,null,"",null,null,null,null,null,"",null,null,null,null,null,null,null,null,null,null,null,"",83,"Fill in supplementary fields","Fill in supplementary fields",{"$f":"IF(T87>U87,\"B cannot be higher than C\",IF(COUNTA(Y87:Z87)=0,\"Fill in supplementary fields\",(V87/2)*(T87/U87)+(V87/2)*(1/SUM(Y87:Z87))))+(IF(LEFT(S87,1)=\"1\",((T99*AB99)*(AC99/(1-AC99))),IF(LEFT(S87,1)=\"2\",IF(COUNTA(T87:V87)=0,\"Fill in supplementary fields\",(U87+V87)*AC87*AB87))))","v":{"$error":"#VALUE!"}},{"$f":"IF(T87>U87,\"B cannot be higher than C\",IFERROR(IF(COUNTA(Y87:Z87)=0,\"Fill in supplementary fields\",V87/2)*(T87/U87)+(V87/2)*(1/Y87),\"Fill in supplementary fields\"))+(IF(LEFT(S87,1)=\"1\",((T99*AB99)*(AC99/(1-AC99))),IF(LEFT(S87,1)=\"2\",IF(COUNTA(T87:V87)=0,\"Fill in supplementary fields\",(U87+V87)*AC87*AB87))))","v":{"$error":"#VALUE!"}},{"$f":"IF(T87>U87,\"B cannot be higher than C\",IFERROR(IF(COUNTA(Y87:Z87)=0,\"Fill in supplementary fields\",IF(Y87=0,V87/2*(T87/U87)+V87/2*(1/Z87),(V87/2)*(T87/U87))),\"Fill in supplementary fields\"))+(IF(LEFT(S87,1)=\"1\",((T99*AB99)*(AC99/(1-AC99))),IF(LEFT(S87,1)=\"2\",IF(COUNTA(T87:V87)=0,\"Fill in supplementary fields\",(U87+V87)*AC87*AB87))))","v":{"$error":"#VALUE!"}},"Enter exposure values in fields A and B","Fill in supplementary fields","Fill in supplementary fields","Fill in supplementary fields","Fill in supplementary fields",0,0,0,0,0,0,0]
[null,null,null,null,null,null,null,null,null,null,null,null,null,null,null,null,null,"",null,null,null,null,null,"",null,null,null,null,null,null,null,null,null,null,null,"",84,"Fill in supplementary fields","Fill in supplementary fields",{"$f":"IF(T88>U88,\"B cannot be higher than C\",IF(COUNTA(Y88:Z88)=0,\"Fill in supplementary fields\",(V88/2)*(T88/U88)+(V88/2)*(1/SUM(Y88:Z88))))+(IF(LEFT(S88,1)=\"1\",((U88+V88)/AA88)*(T88/(U88+V88))*AB88*AC88*(AA88/(1-AC88)),IF(LEFT(S88,1)=\"2\",IF(COUNTA(T88:V88)=0,\"Fill in supplementary fields\",(U88+V88)*AC88*AB88))))","v":{"$error":"#VALUE!"}},{"$f":"IF(T88>U88,\"B cannot be higher than C\",IFERROR(IF(COUNTA(Y88:Z88)=0,\"Fill in supplementary fields\",V88/2)*(T88/U88)+(V88/2)*(1/Y88),\"Fill in supplementary fields\"))+(IF(LEFT(S88,1)=\"1\",((U88+V88)/AA88)*(T88/(U88+V88))*AB88*AC88*(AA88/(1-AC88)),IF(LEFT(S88,1)=\"2\",IF(COUNTA(T88:V88)=0,\"Fill in supplementary fields\",(U88+V88)*AC88*AB88))))","v":{"$error":"#VALUE!"}},{"$f":"IF(T88>U88,\"B cannot be higher than C\",IFERROR(IF(COUNTA(Y88:Z88)=0,\"Fill in supplementary fields\",IF(Y88=0,V88/2*(T88/U88)+V88/2*(1/Z88),(V88/2)*(T88/U88))),\"Fill in supplementary fields\"))+(IF(LEFT(S88,1)=\"1\",((U88+V88)/AA88)*(T88/(U88+V88))*AB88*AC88*(AA88/(1-AC88)),IF(LEFT(S88,1)=\"2\",IF(COUNTA(T88:V88)=0,\"Fill in supplementary fields\",(U88+V88)*AC88*AB88))))","v":{"$error":"#VALUE!"}},"Enter exposure values in fields A and B","Fill in supplementary fields","Fill in supplementary fields","Fill in supplementary fields","Fill in supplementary fields",0,0,0,0,0,0,0]
[null,null,null,null,null,null,null,null,null,null,null,null,null,null,null,null,null,"",null,null,null,null,null,"",null,null,null,null,null,null,null,null,null,null,null,"",85,"Fill in supplementary fields","Fill in supplementary fields",{"$f":"IF(T89>U89,\"B cannot be higher than C\",IF(COUNTA(Y89:Z89)=0,\"Fill in supplementary fields\",(V89/2)*(T89/U89)+(V89/2)*(1/SUM(Y89:Z89))))+(IF(LEFT(S89,1)=\"1\",((U89+V89)/AA89)*(T89/(U89+V89))*AB89*AC89*(AA89/(1-AC89)),IF(LEFT(S89,1)=\"2\",IF(COUNTA(T89:V89)=0,\"Fill in supplementary fields\",(U89+V89)*AC89*AB89))))","v":{"$error":"#VALUE!"}},{"$f":"IF(T89>U89,\"B cannot be higher than C\",IFERROR(IF(COUNTA(Y89:Z89)=0,\"Fill in supplementary fields\",V89/2)*(T89/U89)+(V89/2)*(1/Y89),\"Fill in supplementary fields\"))+(IF(LEFT(S89,1)=\"1\",((U89+V89)/AA89)*(T89/(U89+V89))*AB89*AC89*(AA89/(1-AC89)),IF(LEFT(S89,1)=\"2\",IF(COUNTA(T89:V89)=0,\"Fill in supplementary fields\",(U89+V89)*AC89*AB89))))","v":{"$error":"#VALUE!"}},{"$f":"IF(T89>U89,\"B cannot be higher than C\",IFERROR(IF(COUNTA(Y89:Z89)=0,\"Fill in supplementary fields\",IF(Y89=0,V89/2*(T89/U89)+V89/2*(1/Z89),(V89/2)*(T89/U89))),\"Fill in supplementary fields\"))+(IF(LEFT(S89,1)=\"1\",((U89+V89)/AA89)*(T89/(U89+V89))*AB89*AC89*(AA89/(1-AC89)),IF(LEFT(S89,1)=\"2\",IF(COUNTA(T89:V89)=0,\"Fill in supplementary fields\",(U89+V89)*AC89*AB89))))","v":{"$error":"#VALUE!"}},"Enter exposure values in fields A and B","Fill in supplementary fields","Fill in supplementary fields","Fill in supplementary fields","Fill in supplementary fields",0,0,0,0,0,0,0]
[null,null,null,null,null,null,null,null,null,null,null,null,null,null,null,null,null,"",null,null,null,null,null,"",null,null,null,null,null,null,null,null,null,null,null,"",86,"Fill in supplementary fields","Fill in supplementary fields",{"$f":"IF(T90>U90,\"B cannot be higher than C\",IF(COUNTA(Y90:Z90)=0,\"Fill in supplementary fields\",(V90/2)*(T90/U90)+(V90/2)*(1/SUM(Y90:Z90))))+(IF(LEFT(S90,1)=\"1\",((T102*AB102)*(AC102/(1-AC102))),IF(LEFT(S90,1)=\"2\",IF(COUNTA(T90:V90)=0,\"Fill in supplementary fields\",(U90+V90)*AC90*AB90))))","v":{"$error":"#VALUE!"}},{"$f":"IF(T90>U90,\"B cannot be higher than C\",IFERROR(IF(COUNTA(Y90:Z90)=0,\"Fill in supplementary fields\",V90/2)*(T90/U90)+(V90/2)*(1/Y90),\"Fill in supplementary fields\"))+(IF(LEFT(S90,1)=\"1\",((T102*AB102)*(AC102/(1-AC102))),IF(LEFT(S90,1)=\"2\",IF(COUNTA(T90:V90)=0,\"Fill in supplementary fields\",(U90+V90)*AC90*AB90))))","v":{"$error":"#VALUE!"}},{"$f":"IF(T90>U90,\"B cannot be higher than C\",IFERROR(IF(COUNTA(Y90:Z90)=0,\"Fill in supplementary fields\",IF(Y90=0,V90/2*(T90/U90)+V90/2*(1/Z90),(V90/2)*(T90/U90))),\"Fill in supplementary fields\"))+(IF(LEFT(S90,1)=\"1\",((T102*AB102)*(AC102/(1-AC102))),IF(LEFT(S90,1)=\"2\",IF(COUNTA(T90:V90)=0,\"Fill in supplementary fields\",(U90+V90)*AC90*AB90))))","v":{"$error":"#VALUE!"}},"Enter exposure values in fields A and B","Fill in supplementary fields","Fill in supplementary fields","Fill in supplementary fields","Fill in supplementary fields",0,0,0,0,0,0,0]
[null,null,null,null,null,null,null,null,null,null,null,null,null,null,null,null,null,"",null,null,null,null,null,"",null,null,null,null,null,null,null,null,null,null,null,"",87,"Fill in supplementary fields","Fill in supplementary fields",{"$f":"IF(T91>U91,\"B cannot be higher than C\",IF(COUNTA(Y91:Z91)=0,\"Fill in supplementary fields\",(V91/2)*(T91/U91)+(V91/2)*(1/SUM(Y91:Z91))))+(IF(LEFT(S91,1)=\"1\",((U91+V91)/AA91)*(T91/(U91+V91))*AB91*AC91*(AA91/(1-AC91)),IF(LEFT(S91,1)=\"2\",IF(COUNTA(T91:V91)=0,\"Fill in supplementary fields\",(U91+V91)*AC91*AB91))))","v":{"$error":"#VALUE!"}},{"$f":"IF(T91>U91,\"B cannot be higher than C\",IFERROR(IF(COUNTA(Y91:Z91)=0,\"Fill in supplementary fields\",V91/2)*(T91/U91)+(V91/2)*(1/Y91),\"Fill in supplementary fields\"))+(IF(LEFT(S91,1)=\"1\",((U91+V91)/AA91)*(T91/(U91+V91))*AB91*AC91*(AA91/(1-AC91)),IF(LEFT(S91,1)=\"2\",IF(COUNTA(T91:V91)=0,\"Fill in supplementary fields\",(U91+V91)*AC91*AB91))))","v":{"$error":"#VALUE!"}},{"$f":"IF(T91>U91,\"B cannot be higher than C\",IFERROR(IF(COUNTA(Y91:Z91)=0,\"Fill in supplementary fields\",IF(Y91=0,V91/2*(T91/U91)+V91/2*(1/Z91),(V91/2)*(T91/U91))),\"Fill in supplementary fields\"))+(IF(LEFT(S91,1)=\"1\",((U91+V91)/AA91)*(T91/(U91+V91))*AB91*AC91*(AA91/(1-AC91)),IF(LEFT(S91,1)=\"2\",IF(COUNTA(T91:V91)=0,\"Fill in supplementary fields\",(U91+V91)*AC91*AB91))))","v":{"$error":"#VALUE!"}},"Enter exposure values in fields A and B","Fill in supplementary fields","Fill in supplementary fields","Fill in supplementary fields","Fill in supplementary fields",0,0,0,0,0,0,0]
[null,null,null,null,null,null,null,null,null,null,null,null,null,null,null,null,null,"",null,null,null,null,null,"",null,null,null,null,null,null,null,null,null,null,null,"",88,"Fill in supplementary fields","Fill in supplementary fields",{"$f":"IF(T92>U92,\"B cannot be higher than C\",IF(COUNTA(Y92:Z92)=0,\"Fill in supplementary fields\",(V92/2)*(T92/U92)+(V92/2)*(1/SUM(Y92:Z92))))+(IF(LEFT(S92,1)=\"1\",((U92+V92)/AA92)*(T92/(U92+V92))*AB92*AC92*(AA92/(1-AC92)),IF(LEFT(S92,1)=\"2\",IF(COUNTA(T92:V92)=0,\"Fill in supplementary fields\",(U92+V92)*AC92*AB92))))","v":{"$error":"#VALUE!"}},{"$f":"IF(T92>U92,\"B cannot be higher than C\",IFERROR(IF(COUNTA(Y92:Z92)=0,\"Fill in supplementary fields\",V92/2)*(T92/U92)+(V92/2)*(1/Y92),\"Fill in supplementary fields\"))+(IF(LEFT(S92,1)=\"1\",((U92+V92)/AA92)*(T92/(U92+V92))*AB92*AC92*(AA92/(1-AC92)),IF(LEFT(S92,1)=\"2\",IF(COUNTA(T92:V92)=0,\"Fill in supplementary fields\",(U92+V92)*AC92*AB92))))","v":{"$error":"#VALUE!"}},{"$f":"IF(T92>U92,\"B cannot be higher than C\",IFERROR(IF(COUNTA(Y92:Z92)=0,\"Fill in supplementary fields\",IF(Y92=0,V92/2*(T92/U92)+V92/2*(1/Z92),(V92/2)*(T92/U92))),\"Fill in supplementary fields\"))+(IF(LEFT(S92,1)=\"1\",((U92+V92)/AA92)*(T92/(U92+V92))*AB92*AC92*(AA92/(1-AC92)),IF(LEFT(S92,1)=\"2\",IF(COUNTA(T92:V92)=0,\"Fill in supplementary fields\",(U92+V92)*AC92*AB92))))","v":{"$error":"#VALUE!"}},"Enter exposure values in fields A and B","Fill in supplementary fields","Fill in supplementary fields","Fill in supplementary fields","Fill in supplementary fields",0,0,0,0,0,0,0]
[null,null,null,null,null,null,null,null,null,null,null,null,null,null,null,null,null,"",null,null,null,null,null,"",null,null,null,null,null,null,null,null,null,null,null,"",89,"Fill in supplementary fields","Fill in supplementary fields",{"$f":"IF(T93>U93,\"B cannot be higher than C\",IF(COUNTA(Y93:Z93)=0,\"Fill in supplementary fields\",(V93/2)*(T93/U93)+(V93/2)*(1/SUM(Y93:Z93))))+(IF(LEFT(S93,1)=\"1\",((T105*AB105)*(AC105/(1-AC105))),IF(LEFT(S93,1)=\"2\",IF(COUNTA(T93:V93)=0,\"Fill in supplementary fields\",(U93+V93)*AC93*AB93))))","v":{"$error":"#VALUE!"}},{"$f":"IF(T93>U93,\"B cannot be higher than C\",IFERROR(IF(COUNTA(Y93:Z93)=0,\"Fill in supplementary fields\",V93/2)*(T93/U93)+(V93/2)*(1/Y93),\"Fill in supplementary fields\"))+(IF(LEFT(S93,1)=\"1\",((T105*AB105)*(AC105/(1-AC105))),IF(LEFT(S93,1)=\"2\",IF(COUNTA(T93:V93)=0,\"Fill in supplementary fields\",(U93+V93)*AC93*AB93))))","v":{"$error":"#VALUE!"}},{"$f":"IF(T93>U93,\"B cannot be higher than C\",IFERROR(IF(COUNTA(Y93:Z93)=0,\"Fill in supplementary fields\",IF(Y93=0,V93/2*(T93/U93)+V93/2*(1/Z93),(V93/2)*(T93/U93))),\"Fill in supplementary fields\"))+(IF(LEFT(S93,1)=\"1\",((T105*AB105)*(AC105/(1-AC105))),IF(LEFT(S93,1)=\"2\",IF(COUNTA(T93:V93)=0,\"Fill in supplementary fields\",(U93+V93)*AC93*AB93))))","v":{"$error":"#VALUE!"}},"Enter exposure values in fields A and B","Fill in supplementary fields","Fill in supplementary fields","Fill in supplementary fields","Fill in supplementary fields",0,0,0,0,0,0,0]
[null,null,null,null,null,null,null,null,null,null,null,null,null,null,null,null,null,"",null,null,null,null,null,"",null,null,null,null,null,null,null,null,null,null,null,"",90,"Fill in supplementary fields","Fill in supplementary fields",{"$f":"IF(T94>U94,\"B cannot be higher than C\",IF(COUNTA(Y94:Z94)=0,\"Fill in supplementary fields\",(V94/2)*(T94/U94)+(V94/2)*(1/SUM(Y94:Z94))))+(IF(LEFT(S94,1)=\"1\",((U94+V94)/AA94)*(T94/(U94+V94))*AB94*AC94*(AA94/(1-AC94)),IF(LEFT(S94,1)=\"2\",IF(COUNTA(T94:V94)=0,\"Fill in supplementary fields\",(U94+V94)*AC94*AB94))))","v":{"$error":"#VALUE!"}},{"$f":"IF(T94>U94,\"B cannot be higher than C\",IFERROR(IF(COUNTA(Y94:Z94)=0,\"Fill in supplementary fields\",V94/2)*(T94/U94)+(V94/2)*(1/Y94),\"Fill in supplementary fields\"))+(IF(LEFT(S94,1)=\"1\",((U94+V94)/AA94)*(T94/(U94+V94))*AB94*AC94*(AA94/(1-AC94)),IF(LEFT(S94,1)=\"2\",IF(COUNTA(T94:V94)=0,\"Fill in supplementary fields\",(U94+V94)*AC94*AB94))))","v":{"$error":"#VALUE!"}},{"$f":"IF(T94>U94,\"B cannot be higher than C\",IFERROR(IF(COUNTA(Y94:Z94)=0,\"Fill in supplementary fields\",IF(Y94=0,V94/2*(T94/U94)+V94/2*(1/Z94),(V94/2)*(T94/U94))),\"Fill in supplementary fields\"))+(IF(LEFT(S94,1)=\"1\",((U94+V94)/AA94)*(T94/(U94+V94))*AB94*AC94*(AA94/(1-AC94)),IF(LEFT(S94,1)=\"2\",IF(COUNTA(T94:V94)=0,\"Fill in supplementary fields\",(U94+V94)*AC94*AB94))))","v":{"$error":"#VALUE!"}},"Enter exposure values in fields A and B","Fill in supplementary fields","Fill in supplementary fields","Fill in supplementary fields","Fill in supplementary fields",0,0,0,0,0,0,0]
[null,null,null,null,null,null,null,null,null,null,null,null,null,null,null,null,null,"",null,null,null,null,null,"",null,null,null,null,null,null,null,null,null,null,null,"",91,"Fill in supplementary fields","Fill in supplementary fields",{"$f":"IF(T95>U95,\"B cannot be higher than C\",IF(COUNTA(Y95:Z95)=0,\"Fill in supplementary fields\",(V95/2)*(T95/U95)+(V95/2)*(1/SUM(Y95:Z95))))+(IF(LEFT(S95,1)=\"1\",((U95+V95)/AA95)*(T95/(U95+V95))*AB95*AC95*(AA95/(1-AC95)),IF(LEFT(S95,1)=\"2\",IF(COUNTA(T95:V95)=0,\"Fill in supplementary fields\",(U95+V95)*AC95*AB95))))","v":{"$error":"#VALUE!"}},{"$f":"IF(T95>U95,\"B cannot be higher than C\",IFERROR(IF(COUNTA(Y95:Z95)=0,\"Fill in supplementary fields\",V95/2)*(T95/U95)+(V95/2)*(1/Y95),\"Fill in supplementary fields\"))+(IF(LEFT(S95,1)=\"1\",((U95+V95)/AA95)*(T95/(U95+V95))*AB95*AC95*(AA95/(1-AC95)),IF(LEFT(S95,1)=\"2\",IF(COUNTA(T95:V95)=0,\"Fill in supplementary fields\",(U95+V95)*AC95*AB95))))","v":{"$error":"#VALUE!"}},{"$f":"IF(T95>U95,\"B cannot be higher than C\",IFERROR(IF(COUNTA(Y95:Z95)=0,\"Fill in supplementary fields\",IF(Y95=0,V95/2*(T95/U95)+V95/2*(1/Z95),(V95/2)*(T95/U95))),\"Fill in supplementary fields\"))+(IF(LEFT(S95,1)=\"1\",((U95+V95)/AA95)*(T95/(U95+V95))*AB95*AC95*(AA95/(1-AC95)),IF(LEFT(S95,1)=\"2\",IF(COUNTA(T95:V95)=0,\"Fill in supplementary fields\",(U95+V95)*AC95*AB95))))","v":{"$error":"#VALUE!"}},"Enter exposure values in fields A and B","Fill in supplementary fields","Fill in supplementary fields","Fill in supplementary fields","Fill in supplementary fields",0,0,0,0,0,0,0]
[null,null,null,null,null,null,null,null,null,null,null,null,null,null,null,null,null,"",null,null,null,null,null,"",null,null,null,null,null,null,null,null,null,null,null,"",92,"Fill in supplementary fields","Fill in supplementary fields",{"$f":"IF(T96>U96,\"B cannot be higher than C\",IF(COUNTA(Y96:Z96)=0,\"Fill in supplementary fields\",(V96/2)*(T96/U96)+(V96/2)*(1/SUM(Y96:Z96))))+(IF(LEFT(S96,1)=\"1\",((T108*AB108)*(AC108/(1-AC108))),IF(LEFT(S96,1)=\"2\",IF(COUNTA(T96:V96)=0,\"Fill in supplementary fields\",(U96+V96)*AC96*AB96))))","v":{"$error":"#VALUE!"}},{"$f":"IF(T96>U96,\"B cannot be higher than C\",IFERROR(IF(COUNTA(Y96:Z96)=0,\"Fill in supplementary fields\",V96/2)*(T96/U96)+(V96/2)*(1/Y96),\"Fill in supplementary fields\"))+(IF(LEFT(S96,1)=\"1\",((T108*AB108)*(AC108/(1-AC108))),IF(LEFT(S96,1)=\"2\",IF(COUNTA(T96:V96)=0,\"Fill in supplementary fields\",(U96+V96)*AC96*AB96))))","v":{"$error":"#VALUE!"}},{"$f":"IF(T96>U96,\"B cannot be higher than C\",IFERROR(IF(COUNTA(Y96:Z96)=0,\"Fill in supplementary fields\",IF(Y96=0,V96/2*(T96/U96)+V96/2*(1/Z96),(V96/2)*(T96/U96))),\"Fill in supplementary fields\"))+(IF(LEFT(S96,1)=\"1\",((T108*AB108)*(AC108/(1-AC108))),IF(LEFT(S96,1)=\"2\",IF(COUNTA(T96:V96)=0,\"Fill in supplementary fields\",(U96+V96)*AC96*AB96))))","v":{"$error":"#VALUE!"}},"Enter exposure values in fields A and B","Fill in supplementary fields","Fill in supplementary fields","Fill in supplementary fields","Fill in supplementary fields",{"$f":"$V96","v":0},0,0,0,0,0,0]
[null,null,null,null,null,null,null,null,null,null,null,null,null,null,null,null,null,"",null,null,null,null,null,"",null,null,null,null,null,null,null,null,null,null,null,"",93,"Fill in supplementary fields","Fill in supplementary fields",{"$f":"IF(T97>U97,\"B cannot be higher than C\",IF(COUNTA(Y97:Z97)=0,\"Fill in supplementary fields\",(V97/2)*(T97/U97)+(V97/2)*(1/SUM(Y97:Z97))))+(IF(LEFT(S97,1)=\"1\",((U97+V97)/AA97)*(T97/(U97+V97))*AB97*AC97*(AA97/(1-AC97)),IF(LEFT(S97,1)=\"2\",IF(COUNTA(T97:V97)=0,\"Fill in supplementary fields\",(U97+V97)*AC97*AB97))))","v":{"$error":"#VALUE!"}},{"$f":"IF(T97>U97,\"B cannot be higher than C\",IFERROR(IF(COUNTA(Y97:Z97)=0,\"Fill in supplementary fields\",V97/2)*(T97/U97)+(V97/2)*(1/Y97),\"Fill in supplementary fields\"))+(IF(LEFT(S97,1)=\"1\",((U97+V97)/AA97)*(T97/(U97+V97))*AB97*AC97*(AA97/(1-AC97)),IF(LEFT(S97,1)=\"2\",IF(COUNTA(T97:V97)=0,\"Fill in supplementary fields\",(U97+V97)*AC97*AB97))))","v":{"$error":"#VALUE!"}},{"$f":"IF(T97>U97,\"B cannot be higher than C\",IFERROR(IF(COUNTA(Y97:Z97)=0,\"Fill in supplementary fields\",IF(Y97=0,V97/2*(T97/U97)+V97/2*(1/Z97),(V97/2)*(T97/U97))),\"Fill in supplementary fields\"))+(IF(LEFT(S97,1)=\"1\",((U97+V97)/AA97)*(T97/(U97+V97))*AB97*AC97*(AA97/(1-AC97)),IF(LEFT(S97,1)=\"2\",IF(COUNTA(T97:V97)=0,\"Fill in supplementary fields\",(U97+V97)*AC97*AB97))))","v":{"$error":"#VALUE!"}},"Enter exposure values in fields A and B","Fill in supplementary fields","Fill in supplementary fields","Fill in supplementary fields","Fill in supplementary fields",0,0,0,0,0,0,0]
[null,null,null,null,null,null,null,null,null,null,null,null,null,null,null,null,null,"",null,null,null,null,null,"",null,null,null,null,null,null,null,null,null,null,null,"",94,"Fill in supplementary fields","Fill in supplementary fields",{"$f":"IF(T98>U98,\"B cannot be higher than C\",IF(COUNTA(Y98:Z98)=0,\"Fill in supplementary fields\",(V98/2)*(T98/U98)+(V98/2)*(1/SUM(Y98:Z98))))+(IF(LEFT(S98,1)=\"1\",((U98+V98)/AA98)*(T98/(U98+V98))*AB98*AC98*(AA98/(1-AC98)),IF(LEFT(S98,1)=\"2\",IF(COUNTA(T98:V98)=0,\"Fill in supplementary fields\",(U98+V98)*AC98*AB98))))","v":{"$error":"#VALUE!"}},{"$f":"IF(T98>U98,\"B cannot be higher than C\",IFERROR(IF(COUNTA(Y98:Z98)=0,\"Fill in supplementary fields\",V98/2)*(T98/U98)+(V98/2)*(1/Y98),\"Fill in supplementary fields\"))+(IF(LEFT(S98,1)=\"1\",((U98+V98)/AA98)*(T98/(U98+V98))*AB98*AC98*(AA98/(1-AC98)),IF(LEFT(S98,1)=\"2\",IF(COUNTA(T98:V98)=0,\"Fill in supplementary fields\",(U98+V98)*AC98*AB98))))","v":{"$error":"#VALUE!"}},{"$f":"IF(T98>U98,\"B cannot be higher than C\",IFERROR(IF(COUNTA(Y98:Z98)=0,\"Fill in supplementary fields\",IF(Y98=0,V98/2*(T98/U98)+V98/2*(1/Z98),(V98/2)*(T98/U98))),\"Fill in supplementary fields\"))+(IF(LEFT(S98,1)=\"1\",((U98+V98)/AA98)*(T98/(U98+V98))*AB98*AC98*(AA98/(1-AC98)),IF(LEFT(S98,1)=\"2\",IF(COUNTA(T98:V98)=0,\"Fill in supplementary fields\",(U98+V98)*AC98*AB98))))","v":{"$error":"#VALUE!"}},"Enter exposure values in fields A and B","Fill in supplementary fields","Fill in supplementary fields","Fill in supplementary fields","Fill in supplementary fields",0,0,0,0,0,0,0]
[null,null,null,null,null,null,null,null,null,null,null,null,null,null,null,null,null,"",null,null,null,null,null,"",null,null,null,null,null,null,null,null,null,null,null,"",95,"Fill in supplementary fields","Fill in supplementary fields",{"$f":"IF(T99>U99,\"B cannot be higher than C\",IF(COUNTA(Y99:Z99)=0,\"Fill in supplementary fields\",(V99/2)*(T99/U99)+(V99/2)*(1/SUM(Y99:Z99))))+(IF(LEFT(S99,1)=\"1\",((T111*AB111)*(AC111/(1-AC111))),IF(LEFT(S99,1)=\"2\",IF(COUNTA(T99:V99)=0,\"Fill in supplementary fields\",(U99+V99)*AC99*AB99))))","v":{"$error":"#VALUE!"}},{"$f":"IF(T99>U99,\"B cannot be higher than C\",IFERROR(IF(COUNTA(Y99:Z99)=0,\"Fill in supplementary fields\",V99/2)*(T99/U99)+(V99/2)*(1/Y99),\"Fill in supplementary fields\"))+(IF(LEFT(S99,1)=\"1\",((T111*AB111)*(AC111/(1-AC111))),IF(LEFT(S99,1)=\"2\",IF(COUNTA(T99:V99)=0,\"Fill in supplementary fields\",(U99+V99)*AC99*AB99))))","v":{"$error":"#VALUE!"}},{"$f":"IF(T99>U99,\"B cannot be higher than C\",IFERROR(IF(COUNTA(Y99:Z99)=0,\"Fill in supplementary fields\",IF(Y99=0,V99/2*(T99/U99)+V99/2*(1/Z99),(V99/2)*(T99/U99))),\"Fill in supplementary fields\"))+(IF(LEFT(S99,1)=\"1\",((T111*AB111)*(AC111/(1-AC111))),IF(LEFT(S99,1)=\"2\",IF(COUNTA(T99:V99)=0,\"Fill in supplementary fields\",(U99+V99)*AC99*AB99))))","v":{"$error":"#VALUE!"}},"Enter exposure values in fields A and B","Fill in supplementary fields","Fill in supplementary fields","Fill in supplementary fields","Fill in supplementary fields",0,0,0,0,0,0,0]
[null,null,null,null,null,null,null,null,null,null,null,null,null,null,null,null,null,"",null,null,null,null,null,"",null,null,null,null,null,null,null,null,null,null,null,"",96,"Fill in supplementary fields","Fill in supplementary fields",{"$f":"IF(T100>U100,\"B cannot be higher than C\",IF(COUNTA(Y100:Z100)=0,\"Fill in supplementary fields\",(V100/2)*(T100/U100)+(V100/2)*(1/SUM(Y100:Z100))))+(IF(LEFT(S100,1)=\"1\",((U100+V100)/AA100)*(T100/(U100+V100))*AB100*AC100*(AA100/(1-AC100)),IF(LEFT(S100,1)=\"2\",IF(COUNTA(T100:V100)=0,\"Fill in supplementary fields\",(U100+V100)*AC100*AB100))))","v":{"$error":"#VALUE!"}},{"$f":"IF(T100>U100,\"B cannot be higher than C\",IFERROR(IF(COUNTA(Y100:Z100)=0,\"Fill in supplementary fields\",V100/2)*(T100/U100)+(V100/2)*(1/Y100),\"Fill in supplementary fields\"))+(IF(LEFT(S100,1)=\"1\",((U100+V100)/AA100)*(T100/(U100+V100))*AB100*AC100*(AA100/(1-AC100)),IF(LEFT(S100,1)=\"2\",IF(COUNTA(T100:V100)=0,\"Fill in supplementary fields\",(U100+V100)*AC100*AB100))))","v":{"$error":"#VALUE!"}},{"$f":"IF(T100>U100,\"B cannot be higher than C\",IFERROR(IF(COUNTA(Y100:Z100)=0,\"Fill in supplementary fields\",IF(Y100=0,V100/2*(T100/U100)+V100/2*(1/Z100),(V100/2)*(T100/U100))),\"Fill in supplementary fields\"))+(IF(LEFT(S100,1)=\"1\",((U100+V100)/AA100)*(T100/(U100+V100))*AB100*AC100*(AA100/(1-AC100)),IF(LEFT(S100,1)=\"2\",IF(COUNTA(T100:V100)=0,\"Fill in supplementary fields\",(U100+V100)*AC100*AB100))))","v":{"$error":"#VALUE!"}},"Enter exposure values in fields A and B","Fill in supplementary fields","Fill in supplementary fields","Fill in supplementary fields","Fill in supplementary fields",0,0,0,0,0,0,0]
[null,null,null,null,null,null,null,null,null,null,null,null,null,null,null,null,null,"",null,null,null,null,null,"",null,null,null,null,null,null,null,null,null,null,null,"",97,"Fill in supplementary fields","Fill in supplementary fields",{"$f":"IF(T101>U101,\"B cannot be higher than C\",IF(COUNTA(Y101:Z101)=0,\"Fill in supplementary fields\",(V101/2)*(T101/U101)+(V101/2)*(1/SUM(Y101:Z101))))+(IF(LEFT(S101,1)=\"1\",((U101+V101)/AA101)*(T101/(U101+V101))*AB101*AC101*(AA101/(1-AC101)),IF(LEFT(S101,1)=\"2\",IF(COUNTA(T101:V101)=0,\"Fill in supplementary fields\",(U101+V101)*AC101*AB101))))","v":{"$error":"#VALUE!"}},{"$f":"IF(T101>U101,\"B cannot be higher than C\",IFERROR(IF(COUNTA(Y101:Z101)=0,\"Fill in supplementary fields\",V101/2)*(T101/U101)+(V101/2)*(1/Y101),\"Fill in supplementary fields\"))+(IF(LEFT(S101,1)=\"1\",((U101+V101)/AA101)*(T101/(U101+V101))*AB101*AC101*(AA101/(1-AC101)),IF(LEFT(S101,1)=\"2\",IF(COUNTA(T101:V101)=0,\"Fill in supplementary fields\",(U101+V101)*AC101*AB101))))","v":{"$error":"#VALUE!"}},{"$f":"IF(T101>U101,\"B cannot be higher than C\",IFERROR(IF(COUNTA(Y101:Z101)=0,\"Fill in supplementary fields\",IF(Y101=0,V101/2*(T101/U101)+V101/2*(1/Z101),(V101/2)*(T101/U101))),\"Fill in supplementary fields\"))+(IF(LEFT(S101,1)=\"1\",((U101+V101)/AA101)*(T101/(U101+V101))*AB101*AC101*(AA101/(1-AC101)),IF(LEFT(S101,1)=\"2\",IF(COUNTA(T101:V101)=0,\"Fill in supplementary fields\",(U101+V101)*AC101*AB101))))","v":{"$error":"#VALUE!"}},"Enter exposure values in fields A and B","Fill in supplementary fields","Fill in supplementary fields","Fill in supplementary fields","Fill in supplementary fields",0,0,0,0,0,0,0]
[null,null,null,null,null,null,null,null,null,null,null,null,null,null,null,null,null,{"$f":"IF(LEN(P102)=0,\"\",HLOOKUP(AJ102,$AL$5:$BA$200,AK102,FALSE))","v":""},null,null,null,null,null,"",null,null,null,null,null,null,null,null,null,null,null,{"$f":"IFERROR(VLOOKUP(P102,BC:BD,2,FALSE),\"\")","v":""},{"$f":"AK101+1","v":98},{"$f":"IF(T102>U102,\"B cannot be higher than C\",IF(COUNTA(T102:V102)=0,\"Fill in supplementary fields\",IFERROR(IF(VALUE(LEFT(X102,1))=1,V102/2+(T102/U102)*(V102/2),IF(VALUE(LEFT(X102,1))=2,\"impossible combination\",\"check not available\")),\"\")))","v":"Fill in supplementary fields"},{"$f":"IF(T102>U102,\"B cannot be higher than C\",IF(COUNTA(T102:V102)=0,\"Fill in supplementary fields\",IFERROR(IF(VALUE(LEFT(X102,1))=1,(T102/U102)*(V102/2),IF(VALUE(LEFT(X102,1))=2,(T102/U102)*(V102),\"check not available\")),\"\")))","v":"Fill in supplementary fields"},{"$f":"IF(T102>U102,\"B cannot be higher than C\",IF(COUNTA(Y102:Z102)=0,\"Fill in supplementary fields\",(V102/2)*(T102/U102)+(V102/2)*(1/SUM(Y102:Z102))))+(IF(LEFT(S102,1)=\"1\",((T114*AB114)*(AC114/(1-AC114))),IF(LEFT(S102,1)=\"2\",IF(COUNTA(T102:V102)=0,\"Fill in supplementary fields\",(U102+V102)*AC102*AB102))))","v":{"$error":"#VALUE!"}},{"$f":"IF(T102>U102,\"B cannot be higher than C\",IFERROR(IF(COUNTA(Y102:Z102)=0,\"Fill in supplementary fields\",V102/2)*(T102/U102)+(V102/2)*(1/Y102),\"Fill in supplementary fields\"))+(IF(LEFT(S102,1)=\"1\",((T114*AB114)*(AC114/(1-AC114))),IF(LEFT(S102,1)=\"2\",IF(COUNTA(T102:V102)=0,\"Fill in supplementary fields\",(U102+V102)*AC102*AB102))))","v":{"$error":"#VALUE!"}},{"$f":"IF(T102>U102,\"B cannot be higher than C\",IFERROR(IF(COUNTA(Y102:Z102)=0,\"Fill in supplementary fields\",IF(Y102=0,V102/2*(T102/U102)+V102/2*(1/Z102),(V102/2)*(T102/U102))),\"Fill in supplementary fields\"))+(IF(LEFT(S102,1)=\"1\",((T114*AB114)*(AC114/(1-AC114))),IF(LEFT(S102,1)=\"2\",IF(COUNTA(T102:V102)=0,\"Fill in supplementary fields\",(U102+V102)*AC102*AB102))))","v":{"$error":"#VALUE!"}},{"$f":"IF(T102>U102,\"B cannot be higher than C\",IF(COUNTA(T102:V102)=0,\"Enter exposure values in fields A and B\",(V102)*(T102/U102)))","v":"Enter exposure values in fields A and B"},{"$f":"IF(T102>U102,\"B cannot be higher than C\",IFERROR(IF(COUNTA(Y102:Z102)=0,\"Fill in supplementary fields\",V102/2)*(T102/U102)+(V102/2)*(1/Y102),\"Fill in supplementary fields\"))","v":"Fill in supplementary fields"},{"$f":"IF(T102>U102,\"B cannot be higher than C\",IFERROR(IF(COUNTA(Y102:Z102)=0,\"Fill in supplementary fields\",IF(Y102=0,V102/2*(T102/U102)+V102/2*(1/Z102),(V102/2)*(T102/U102))),\"Fill in supplementary fields\"))","v":"Fill in supplementary fields"},{"$f":"IF(T102>U102,\"B cannot be higher than C\",IF(COUNTA(T102:V102)=0,\"Fill in supplementary fields\",(T102/U102)*((V102)+AB102*AC102)))","v":"Fill in supplementary fields"},{"$f":"IF(T102>U102,\"B cannot be higher than C\",IF(COUNTA(T102:V102)=0,\"Fill in supplementary fields\",(V102)*(T102/U102)))","v":"Fill in supplementary fields"},0,0,0,0,0,0,0]
[null,null,null,null,null,null,null,null,null,null,null,null,null,null,null,null,null,"",null,null,null,null,null,"",null,null,null,null,null,null,null,null,null,null,null,"",99,"Fill in supplementary fields","Fill in supplementary fields",{"$f":"IF(T103>U103,\"B cannot be higher than C\",IF(COUNTA(Y103:Z103)=0,\"Fill in supplementary fields\",(V103/2)*(T103/U103)+(V103/2)*(1/SUM(Y103:Z103))))+(IF(LEFT(S103,1)=\"1\",((U103+V103)/AA103)*(T103/(U103+V103))*AB103*AC103*(AA103/(1-AC103)),IF(LEFT(S103,1)=\"2\",IF(COUNTA(T103:V103)=0,\"Fill in supplementary fields\",(U103+V103)*AC103*AB103))))","v":{"$error":"#VALUE!"}},{"$f":"IF(T103>U103,\"B cannot be higher than C\",IFERROR(IF(COUNTA(Y103:Z103)=0,\"Fill in supplementary fields\",V103/2)*(T103/U103)+(V103/2)*(1/Y103),\"Fill in supplementary fields\"))+(IF(LEFT(S103,1)=\"1\",((U103+V103)/AA103)*(T103/(U103+V103))*AB103*AC103*(AA103/(1-AC103)),IF(LEFT(S103,1)=\"2\",IF(COUNTA(T103:V103)=0,\"Fill in supplementary fields\",(U103+V103)*AC103*AB103))))","v":{"$error":"#VALUE!"}},{"$f":"IF(T103>U103,\"B cannot be higher than C\",IFERROR(IF(COUNTA(Y103:Z103)=0,\"Fill in supplementary fields\",IF(Y103=0,V103/2*(T103/U103)+V103/2*(1/Z103),(V103/2)*(T103/U103))),\"Fill in supplementary fields\"))+(IF(LEFT(S103,1)=\"1\",((U103+V103)/AA103)*(T103/(U103+V103))*AB103*AC103*(AA103/(1-AC103)),IF(LEFT(S103,1)=\"2\",IF(COUNTA(T103:V103)=0,\"Fill in supplementary fields\",(U103+V103)*AC103*AB103))))","v":{"$error":"#VALUE!"}},"Enter exposure values in fields A and B","Fill in supplementary fields","Fill in supplementary fields","Fill in supplementary fields","Fill in supplementary fields",0,0,0,0,0,0,0]
[null,null,null,null,null,null,null,null,null,null,null,null,null,null,null,null,null,"",null,null,null,null,null,"",null,null,null,null,null,null,null,null,null,null,null,"",100,"Fill in supplementary fields","Fill in supplementary fields",{"$f":"IF(T104>U104,\"B cannot be higher than C\",IF(COUNTA(Y104:Z104)=0,\"Fill in supplementary fields\",(V104/2)*(T104/U104)+(V104/2)*(1/SUM(Y104:Z104))))+(IF(LEFT(S104,1)=\"1\",((U104+V104)/AA104)*(T104/(U104+V104))*AB104*AC104*(AA104/(1-AC104)),IF(LEFT(S104,1)=\"2\",IF(COUNTA(T104:V104)=0,\"Fill in supplementary fields\",(U104+V104)*AC104*AB104))))","v":{"$error":"#VALUE!"}},{"$f":"IF(T104>U104,\"B cannot be higher than C\",IFERROR(IF(COUNTA(Y104:Z104)=0,\"Fill in supplementary fields\",V104/2)*(T104/U104)+(V104/2)*(1/Y104),\"Fill in supplementary fields\"))+(IF(LEFT(S104,1)=\"1\",((U104+V104)/AA104)*(T104/(U104+V104))*AB104*AC104*(AA104/(1-AC104)),IF(LEFT(S104,1)=\"2\",IF(COUNTA(T104:V104)=0,\"Fill in supplementary fields\",(U104+V104)*AC104*AB104))))","v":{"$error":"#VALUE!"}},{"$f":"IF(T104>U104,\"B cannot be higher than C\",IFERROR(IF(COUNTA(Y104:Z104)=0,\"Fill in supplementary fields\",IF(Y104=0,V104/2*(T104/U104)+V104/2*(1/Z104),(V104/2)*(T104/U104))),\"Fill in supplementary fields\"))+(IF(LEFT(S104,1)=\"1\",((U104+V104)/AA104)*(T104/(U104+V104))*AB104*AC104*(AA104/(1-AC104)),IF(LEFT(S104,1)=\"2\",IF(COUNTA(T104:V104)=0,\"Fill in supplementary fields\",(U104+V104)*AC104*AB104))))","v":{"$error":"#VALUE!"}},"Enter exposure values in fields A and B","Fill in supplementary fields","Fill in supplementary fields","Fill in supplementary fields","Fill in supplementary fields",0,0,0,0,0,0,0]
[null,null,null,null,null,null,null,null,null,null,null,null,null,null,null,null,null,"",null,null,null,null,null,"",null,null,null,null,null,null,null,null,null,null,null,"",101,"Fill in supplementary fields","Fill in supplementary fields",{"$f":"IF(T105>U105,\"B cannot be higher than C\",IF(COUNTA(Y105:Z105)=0,\"Fill in supplementary fields\",(V105/2)*(T105/U105)+(V105/2)*(1/SUM(Y105:Z105))))+(IF(LEFT(S105,1)=\"1\",((T117*AB117)*(AC117/(1-AC117))),IF(LEFT(S105,1)=\"2\",IF(COUNTA(T105:V105)=0,\"Fill in supplementary fields\",(U105+V105)*AC105*AB105))))","v":{"$error":"#VALUE!"}},{"$f":"IF(T105>U105,\"B cannot be higher than C\",IFERROR(IF(COUNTA(Y105:Z105)=0,\"Fill in supplementary fields\",V105/2)*(T105/U105)+(V105/2)*(1/Y105),\"Fill in supplementary fields\"))+(IF(LEFT(S105,1)=\"1\",((T117*AB117)*(AC117/(1-AC117))),IF(LEFT(S105,1)=\"2\",IF(COUNTA(T105:V105)=0,\"Fill in supplementary fields\",(U105+V105)*AC105*AB105))))","v":{"$error":"#VALUE!"}},{"$f":"IF(T105>U105,\"B cannot be higher than C\",IFERROR(IF(COUNTA(Y105:Z105)=0,\"Fill in supplementary fields\",IF(Y105=0,V105/2*(T105/U105)+V105/2*(1/Z105),(V105/2)*(T105/U105))),\"Fill in supplementary fields\"))+(IF(LEFT(S105,1)=\"1\",((T117*AB117)*(AC117/(1-AC117))),IF(LEFT(S105,1)=\"2\",IF(COUNTA(T105:V105)=0,\"Fill in supplementary fields\",(U105+V105)*AC105*AB105))))","v":{"$error":"#VALUE!"}},"Enter exposure values in fields A and B","Fill in supplementary fields","Fill in supplementary fields","Fill in supplementary fields","Fill in supplementary fields",0,0,0,0,0,0,0]
[null,null,null,null,null,null,null,null,null,null,null,null,null,null,null,null,null,"",null,null,null,null,null,"",null,null,null,null,null,null,null,null,null,null,null,"",102,"Fill in supplementary fields","Fill in supplementary fields",{"$f":"IF(T106>U106,\"B cannot be higher than C\",IF(COUNTA(Y106:Z106)=0,\"Fill in supplementary fields\",(V106/2)*(T106/U106)+(V106/2)*(1/SUM(Y106:Z106))))+(IF(LEFT(S106,1)=\"1\",((U106+V106)/AA106)*(T106/(U106+V106))*AB106*AC106*(AA106/(1-AC106)),IF(LEFT(S106,1)=\"2\",IF(COUNTA(T106:V106)=0,\"Fill in supplementary fields\",(U106+V106)*AC106*AB106))))","v":{"$error":"#VALUE!"}},{"$f":"IF(T106>U106,\"B cannot be higher than C\",IFERROR(IF(COUNTA(Y106:Z106)=0,\"Fill in supplementary fields\",V106/2)*(T106/U106)+(V106/2)*(1/Y106),\"Fill in supplementary fields\"))+(IF(LEFT(S106,1)=\"1\",((U106+V106)/AA106)*(T106/(U106+V106))*AB106*AC106*(AA106/(1-AC106)),IF(LEFT(S106,1)=\"2\",IF(COUNTA(T106:V106)=0,\"Fill in supplementary fields\",(U106+V106)*AC106*AB106))))","v":{"$error":"#VALUE!"}},{"$f":"IF(T106>U106,\"B cannot be higher than C\",IFERROR(IF(COUNTA(Y106:Z106)=0,\"Fill in supplementary fields\",IF(Y106=0,V106/2*(T106/U106)+V106/2*(1/Z106),(V106/2)*(T106/U106))),\"Fill in supplementary fields\"))+(IF(LEFT(S106,1)=\"1\",((U106+V106)/AA106)*(T106/(U106+V106))*AB106*AC106*(AA106/(1-AC106)),IF(LEFT(S106,1)=\"2\",IF(COUNTA(T106:V106)=0,\"Fill in supplementary fields\",(U106+V106)*AC106*AB106))))","v":{"$error":"#VALUE!"}},"Enter exposure values in fields A and B","Fill in supplementary fields","Fill in supplementary fields","Fill in supplementary fields","Fill in supplementary fields",{"$f":"$V106","v":0},0,0,0,0,0,0]
[null,null,null,null,null,null,null,null,null,null,null,null,null,null,null,null,null,"",null,null,null,null,null,"",null,null,null,null,null,null,null,null,null,null,null,"",103,"Fill in supplementary fields","Fill in supplementary fields",{"$f":"IF(T107>U107,\"B cannot be higher than C\",IF(COUNTA(Y107:Z107)=0,\"Fill in supplementary fields\",(V107/2)*(T107/U107)+(V107/2)*(1/SUM(Y107:Z107))))+(IF(LEFT(S107,1)=\"1\",((U107+V107)/AA107)*(T107/(U107+V107))*AB107*AC107*(AA107/(1-AC107)),IF(LEFT(S107,1)=\"2\",IF(COUNTA(T107:V107)=0,\"Fill in supplementary fields\",(U107+V107)*AC107*AB107))))","v":{"$error":"#VALUE!"}},{"$f":"IF(T107>U107,\"B cannot be higher than C\",IFERROR(IF(COUNTA(Y107:Z107)=0,\"Fill in supplementary fields\",V107/2)*(T107/U107)+(V107/2)*(1/Y107),\"Fill in supplementary fields\"))+(IF(LEFT(S107,1)=\"1\",((U107+V107)/AA107)*(T107/(U107+V107))*AB107*AC107*(AA107/(1-AC107)),IF(LEFT(S107,1)=\"2\",IF(COUNTA(T107:V107)=0,\"Fill in supplementary fields\",(U107+V107)*AC107*AB107))))","v":{"$error":"#VALUE!"}},{"$f":"IF(T107>U107,\"B cannot be higher than C\",IFERROR(IF(COUNTA(Y107:Z107)=0,\"Fill in supplementary fields\",IF(Y107=0,V107/2*(T107/U107)+V107/2*(1/Z107),(V107/2)*(T107/U107))),\"Fill in supplementary fields\"))+(IF(LEFT(S107,1)=\"1\",((U107+V107)/AA107)*(T107/(U107+V107))*AB107*AC107*(AA107/(1-AC107)),IF(LEFT(S107,1)=\"2\",IF(COUNTA(T107:V107)=0,\"Fill in supplementary fields\",(U107+V107)*AC107*AB107))))","v":{"$error":"#VALUE!"}},"Enter exposure values in fields A and B","Fill in supplementary fields","Fill in supplementary fields","Fill in supplementary fields","Fill in supplementary fields",0,0,0,0,0,0,0]
[null,null,null,null,null,null,null,null,null,null,null,null,null,null,null,null,null,"",null,null,null,null,null,"",null,null,null,null,null,null,null,null,null,null,null,"",104,"Fill in supplementary fields","Fill in supplementary fields",{"$f":"IF(T108>U108,\"B cannot be higher than C\",IF(COUNTA(Y108:Z108)=0,\"Fill in supplementary fields\",(V108/2)*(T108/U108)+(V108/2)*(1/SUM(Y108:Z108))))+(IF(LEFT(S108,1)=\"1\",((T120*AB120)*(AC120/(1-AC120))),IF(LEFT(S108,1)=\"2\",IF(COUNTA(T108:V108)=0,\"Fill in supplementary fields\",(U108+V108)*AC108*AB108))))","v":{"$error":"#VALUE!"}},{"$f":"IF(T108>U108,\"B cannot be higher than C\",IFERROR(IF(COUNTA(Y108:Z108)=0,\"Fill in supplementary fields\",V108/2)*(T108/U108)+(V108/2)*(1/Y108),\"Fill in supplementary fields\"))+(IF(LEFT(S108,1)=\"1\",((T120*AB120)*(AC120/(1-AC120))),IF(LEFT(S108,1)=\"2\",IF(COUNTA(T108:V108)=0,\"Fill in supplementary fields\",(U108+V108)*AC108*AB108))))","v":{"$error":"#VALUE!"}},{"$f":"IF(T108>U108,\"B cannot be higher than C\",IFERROR(IF(COUNTA(Y108:Z108)=0,\"Fill in supplementary fields\",IF(Y108=0,V108/2*(T108/U108)+V108/2*(1/Z108),(V108/2)*(T108/U108))),\"Fill in supplementary fields\"))+(IF(LEFT(S108,1)=\"1\",((T120*AB120)*(AC120/(1-AC120))),IF(LEFT(S108,1)=\"2\",IF(COUNTA(T108:V108)=0,\"Fill in supplementary fields\",(U108+V108)*AC108*AB108))))","v":{"$error":"#VALUE!"}},"Enter exposure values in fields A and B","Fill in supplementary fields","Fill in supplementary fields","Fill in supplementary fields","Fill in supplementary fields",0,0,0,0,0,0,0]
[null,null,null,null,null,null,null,null,null,null,null,null,null,null,null,null,null,"",null,null,null,null,null,"",null,null,null,null,null,null,null,null,null,null,null,"",105,"Fill in supplementary fields","Fill in supplementary fields",{"$f":"IF(T109>U109,\"B cannot be higher than C\",IF(COUNTA(Y109:Z109)=0,\"Fill in supplementary fields\",(V109/2)*(T109/U109)+(V109/2)*(1/SUM(Y109:Z109))))+(IF(LEFT(S109,1)=\"1\",((U109+V109)/AA109)*(T109/(U109+V109))*AB109*AC109*(AA109/(1-AC109)),IF(LEFT(S109,1)=\"2\",IF(COUNTA(T109:V109)=0,\"Fill in supplementary fields\",(U109+V109)*AC109*AB109))))","v":{"$error":"#VALUE!"}},{"$f":"IF(T109>U109,\"B cannot be higher than C\",IFERROR(IF(COUNTA(Y109:Z109)=0,\"Fill in supplementary fields\",V109/2)*(T109/U109)+(V109/2)*(1/Y109),\"Fill in supplementary fields\"))+(IF(LEFT(S109,1)=\"1\",((U109+V109)/AA109)*(T109/(U109+V109))*AB109*AC109*(AA109/(1-AC109)),IF(LEFT(S109,1)=\"2\",IF(COUNTA(T109:V109)=0,\"Fill in supplementary fields\",(U109+V109)*AC109*AB109))))","v":{"$error":"#VALUE!"}},{"$f":"IF(T109>U109,\"B cannot be higher than C\",IFERROR(IF(COUNTA(Y109:Z109)=0,\"Fill in supplementary fields\",IF(Y109=0,V109/2*(T109/U109)+V109/2*(1/Z109),(V109/2)*(T109/U109))),\"Fill in supplementary fields\"))+(IF(LEFT(S109,1)=\"1\",((U109+V109)/AA109)*(T109/(U109+V109))*AB109*AC109*(AA109/(1-AC109)),IF(LEFT(S109,1)=\"2\",IF(COUNTA(T109:V109)=0,\"Fill in supplementary fields\",(U109+V109)*AC109*AB109))))","v":{"$error":"#VALUE!"}},"Enter exposure values in fields A and B","Fill in supplementary fields","Fill in supplementary fields","Fill in supplementary fields","Fill in supplementary fields",0,0,0,0,0,0,0]
[null,null,null,null,null,null,null,null,null,null,null,null,null,null,null,null,null,"",null,null,null,null,null,"",null,null,null,null,null,null,null,null,null,null,null,"",106,"Fill in supplementary fields","Fill in supplementary fields",{"$f":"IF(T110>U110,\"B cannot be higher than C\",IF(COUNTA(Y110:Z110)=0,\"Fill in supplementary fields\",(V110/2)*(T110/U110)+(V110/2)*(1/SUM(Y110:Z110))))+(IF(LEFT(S110,1)=\"1\",((U110+V110)/AA110)*(T110/(U110+V110))*AB110*AC110*(AA110/(1-AC110)),IF(LEFT(S110,1)=\"2\",IF(COUNTA(T110:V110)=0,\"Fill in supplementary fields\",(U110+V110)*AC110*AB110))))","v":{"$error":"#VALUE!"}},{"$f":"IF(T110>U110,\"B cannot be higher than C\",IFERROR(IF(COUNTA(Y110:Z110)=0,\"Fill in supplementary fields\",V110/2)*(T110/U110)+(V110/2)*(1/Y110),\"Fill in supplementary fields\"))+(IF(LEFT(S110,1)=\"1\",((U110+V110)/AA110)*(T110/(U110+V110))*AB110*AC110*(AA110/(1-AC110)),IF(LEFT(S110,1)=\"2\",IF(COUNTA(T110:V110)=0,\"Fill in supplementary fields\",(U110+V110)*AC110*AB110))))","v":{"$error":"#VALUE!"}},{"$f":"IF(T110>U110,\"B cannot be higher than C\",IFERROR(IF(COUNTA(Y110:Z110)=0,\"Fill in supplementary fields\",IF(Y110=0,V110/2*(T110/U110)+V110/2*(1/Z110),(V110/2)*(T110/U110))),\"Fill in supplementary fields\"))+(IF(LEFT(S110,1)=\"1\",((U110+V110)/AA110)*(T110/(U110+V110))*AB110*AC110*(AA110/(1-AC110)),IF(LEFT(S110,1)=\"2\",IF(COUNTA(T110:V110)=0,\"Fill in supplementary fields\",(U110+V110)*AC110*AB110))))","v":{"$error":"#VALUE!"}},"Enter exposure values in fields A and B","Fill in supplementary fields","Fill in supplementary fields","Fill in supplementary fields","Fill in supplementary fields",0,0,0,0,0,0,0]
[null,null,null,null,null,null,null,null,null,null,null,null,null,null,null,null,null,"",null,null,null,null,null,"",null,null,null,null,null,null,null,null,null,null,null,"",107,"Fill in supplementary fields","Fill in supplementary fields",{"$f":"IF(T111>U111,\"B cannot be higher than C\",IF(COUNTA(Y111:Z111)=0,\"Fill in supplementary fields\",(V111/2)*(T111/U111)+(V111/2)*(1/SUM(Y111:Z111))))+(IF(LEFT(S111,1)=\"1\",((T123*AB123)*(AC123/(1-AC123))),IF(LEFT(S111,1)=\"2\",IF(COUNTA(T111:V111)=0,\"Fill in supplementary fields\",(U111+V111)*AC111*AB111))))","v":{"$error":"#VALUE!"}},{"$f":"IF(T111>U111,\"B cannot be higher than C\",IFERROR(IF(COUNTA(Y111:Z111)=0,\"Fill in supplementary fields\",V111/2)*(T111/U111)+(V111/2)*(1/Y111),\"Fill in supplementary fields\"))+(IF(LEFT(S111,1)=\"1\",((T123*AB123)*(AC123/(1-AC123))),IF(LEFT(S111,1)=\"2\",IF(COUNTA(T111:V111)=0,\"Fill in supplementary fields\",(U111+V111)*AC111*AB111))))","v":{"$error":"#VALUE!"}},{"$f":"IF(T111>U111,\"B cannot be higher than C\",IFERROR(IF(COUNTA(Y111:Z111)=0,\"Fill in supplementary fields\",IF(Y111=0,V111/2*(T111/U111)+V111/2*(1/Z111),(V111/2)*(T111/U111))),\"Fill in supplementary fields\"))+(IF(LEFT(S111,1)=\"1\",((T123*AB123)*(AC123/(1-AC123))),IF(LEFT(S111,1)=\"2\",IF(COUNTA(T111:V111)=0,\"Fill in supplementary fields\",(U111+V111)*AC111*AB111))))","v":{"$error":"#VALUE!"}},"Enter exposure values in fields A and B","Fill in supplementary fields","Fill in supplementary fields","Fill in supplementary fields","Fill in supplementary fields",0,0,0,0,0,0,0]
[null,null,null,null,null,null,null,null,null,null,null,null,null,null,null,null,null,"",null,null,null,null,null,"",null,null,null,null,null,null,null,null,null,null,null,"",108,"Fill in supplementary fields","Fill in supplementary fields",{"$f":"IF(T112>U112,\"B cannot be higher than C\",IF(COUNTA(Y112:Z112)=0,\"Fill in supplementary fields\",(V112/2)*(T112/U112)+(V112/2)*(1/SUM(Y112:Z112))))+(IF(LEFT(S112,1)=\"1\",((U112+V112)/AA112)*(T112/(U112+V112))*AB112*AC112*(AA112/(1-AC112)),IF(LEFT(S112,1)=\"2\",IF(COUNTA(T112:V112)=0,\"Fill in supplementary fields\",(U112+V112)*AC112*AB112))))","v":{"$error":"#VALUE!"}},{"$f":"IF(T112>U112,\"B cannot be higher than C\",IFERROR(IF(COUNTA(Y112:Z112)=0,\"Fill in supplementary fields\",V112/2)*(T112/U112)+(V112/2)*(1/Y112),\"Fill in supplementary fields\"))+(IF(LEFT(S112,1)=\"1\",((U112+V112)/AA112)*(T112/(U112+V112))*AB112*AC112*(AA112/(1-AC112)),IF(LEFT(S112,1)=\"2\",IF(COUNTA(T112:V112)=0,\"Fill in supplementary fields\",(U112+V112)*AC112*AB112))))","v":{"$error":"#VALUE!"}},{"$f":"IF(T112>U112,\"B cannot be higher than C\",IFERROR(IF(COUNTA(Y112:Z112)=0,\"Fill in supplementary fields\",IF(Y112=0,V112/2*(T112/U112)+V112/2*(1/Z112),(V112/2)*(T112/U112))),\"Fill in supplementary fields\"))+(IF(LEFT(S112,1)=\"1\",((U112+V112)/AA112)*(T112/(U112+V112))*AB112*AC112*(AA112/(1-AC112)),IF(LEFT(S112,1)=\"2\",IF(COUNTA(T112:V112)=0,\"Fill in supplementary fields\",(U112+V112)*AC112*AB112))))","v":{"$error":"#VALUE!"}},"Enter exposure values in fields A and B","Fill in supplementary fields","Fill in supplementary fields","Fill in supplementary fields","Fill in supplementary fields",0,0,0,0,0,0,0]
[null,null,null,null,null,null,null,null,null,null,null,null,null,null,null,null,null,"",null,null,null,null,null,"",null,null,null,null,null,null,null,null,null,null,null,"",109,"Fill in supplementary fields","Fill in supplementary fields",{"$f":"IF(T113>U113,\"B cannot be higher than C\",IF(COUNTA(Y113:Z113)=0,\"Fill in supplementary fields\",(V113/2)*(T113/U113)+(V113/2)*(1/SUM(Y113:Z113))))+(IF(LEFT(S113,1)=\"1\",((U113+V113)/AA113)*(T113/(U113+V113))*AB113*AC113*(AA113/(1-AC113)),IF(LEFT(S113,1)=\"2\",IF(COUNTA(T113:V113)=0,\"Fill in supplementary fields\",(U113+V113)*AC113*AB113))))","v":{"$error":"#VALUE!"}},{"$f":"IF(T113>U113,\"B cannot be higher than C\",IFERROR(IF(COUNTA(Y113:Z113)=0,\"Fill in supplementary fields\",V113/2)*(T113/U113)+(V113/2)*(1/Y113),\"Fill in supplementary fields\"))+(IF(LEFT(S113,1)=\"1\",((U113+V113)/AA113)*(T113/(U113+V113))*AB113*AC113*(AA113/(1-AC113)),IF(LEFT(S113,1)=\"2\",IF(COUNTA(T113:V113)=0,\"Fill in supplementary fields\",(U113+V113)*AC113*AB113))))","v":{"$error":"#VALUE!"}},{"$f":"IF(T113>U113,\"B cannot be higher than C\",IFERROR(IF(COUNTA(Y113:Z113)=0,\"Fill in supplementary fields\",IF(Y113=0,V113/2*(T113/U113)+V113/2*(1/Z113),(V113/2)*(T113/U113))),\"Fill in supplementary fields\"))+(IF(LEFT(S113,1)=\"1\",((U113+V113)/AA113)*(T113/(U113+V113))*AB113*AC113*(AA113/(1-AC113)),IF(LEFT(S113,1)=\"2\",IF(COUNTA(T113:V113)=0,\"Fill in supplementary fields\",(U113+V113)*AC113*AB113))))","v":{"$error":"#VALUE!"}},"Enter exposure values in fields A and B","Fill in supplementary fields","Fill in supplementary fields","Fill in supplementary fields","Fill in supplementary fields",0,0,0,0,0,0,0]
[null,null,null,null,null,null,null,null,null,null,null,null,null,null,null,null,null,"",null,null,null,null,null,"",null,null,null,null,null,null,null,null,null,null,null,"",110,"Fill in supplementary fields","Fill in supplementary fields",{"$f":"IF(T114>U114,\"B cannot be higher than C\",IF(COUNTA(Y114:Z114)=0,\"Fill in supplementary fields\",(V114/2)*(T114/U114)+(V114/2)*(1/SUM(Y114:Z114))))+(IF(LEFT(S114,1)=\"1\",((T126*AB126)*(AC126/(1-AC126))),IF(LEFT(S114,1)=\"2\",IF(COUNTA(T114:V114)=0,\"Fill in supplementary fields\",(U114+V114)*AC114*AB114))))","v":{"$error":"#VALUE!"}},{"$f":"IF(T114>U114,\"B cannot be higher than C\",IFERROR(IF(COUNTA(Y114:Z114)=0,\"Fill in supplementary fields\",V114/2)*(T114/U114)+(V114/2)*(1/Y114),\"Fill in supplementary fields\"))+(IF(LEFT(S114,1)=\"1\",((T126*AB126)*(AC126/(1-AC126))),IF(LEFT(S114,1)=\"2\",IF(COUNTA(T114:V114)=0,\"Fill in supplementary fields\",(U114+V114)*AC114*AB114))))","v":{"$error":"#VALUE!"}},{"$f":"IF(T114>U114,\"B cannot be higher than C\",IFERROR(IF(COUNTA(Y114:Z114)=0,\"Fill in supplementary fields\",IF(Y114=0,V114/2*(T114/U114)+V114/2*(1/Z114),(V114/2)*(T114/U114))),\"Fill in supplementary fields\"))+(IF(LEFT(S114,1)=\"1\",((T126*AB126)*(AC126/(1-AC126))),IF(LEFT(S114,1)=\"2\",IF(COUNTA(T114:V114)=0,\"Fill in supplementary fields\",(U114+V114)*AC114*AB114))))","v":{"$error":"#VALUE!"}},"Enter exposure values in fields A and B","Fill in supplementary fields","Fill in supplementary fields","Fill in supplementary fields","Fill in supplementary fields",0,0,0,0,0,0,0]
[null,null,null,null,null,null,null,null,null,null,null,null,null,null,null,null,null,"",null,null,null,null,null,"",null,null,null,null,null,null,null,null,null,null,null,"",111,"Fill in supplementary fields","Fill in supplementary fields",{"$f":"IF(T115>U115,\"B cannot be higher than C\",IF(COUNTA(Y115:Z115)=0,\"Fill in supplementary fields\",(V115/2)*(T115/U115)+(V115/2)*(1/SUM(Y115:Z115))))+(IF(LEFT(S115,1)=\"1\",((U115+V115)/AA115)*(T115/(U115+V115))*AB115*AC115*(AA115/(1-AC115)),IF(LEFT(S115,1)=\"2\",IF(COUNTA(T115:V115)=0,\"Fill in supplementary fields\",(U115+V115)*AC115*AB115))))","v":{"$error":"#VALUE!"}},{"$f":"IF(T115>U115,\"B cannot be higher than C\",IFERROR(IF(COUNTA(Y115:Z115)=0,\"Fill in supplementary fields\",V115/2)*(T115/U115)+(V115/2)*(1/Y115),\"Fill in supplementary fields\"))+(IF(LEFT(S115,1)=\"1\",((U115+V115)/AA115)*(T115/(U115+V115))*AB115*AC115*(AA115/(1-AC115)),IF(LEFT(S115,1)=\"2\",IF(COUNTA(T115:V115)=0,\"Fill in supplementary fields\",(U115+V115)*AC115*AB115))))","v":{"$error":"#VALUE!"}},{"$f":"IF(T115>U115,\"B cannot be higher than C\",IFERROR(IF(COUNTA(Y115:Z115)=0,\"Fill in supplementary fields\",IF(Y115=0,V115/2*(T115/U115)+V115/2*(1/Z115),(V115/2)*(T115/U115))),\"Fill in supplementary fields\"))+(IF(LEFT(S115,1)=\"1\",((U115+V115)/AA115)*(T115/(U115+V115))*AB115*AC115*(AA115/(1-AC115)),IF(LEFT(S115,1)=\"2\",IF(COUNTA(T115:V115)=0,\"Fill in supplementary fields\",(U115+V115)*AC115*AB115))))","v":{"$error":"#VALUE!"}},"Enter exposure values in fields A and B","Fill in supplementary fields","Fill in supplementary fields","Fill in supplementary fields","Fill in supplementary fields",0,0,0,0,0,0,0]
[null,null,null,null,null,null,null,null,null,null,null,null,null,null,null,null,null,"",null,null,null,null,null,"",null,null,null,null,null,null,null,null,null,null,null,"",112,"Fill in supplementary fields","Fill in supplementary fields",{"$f":"IF(T116>U116,\"B cannot be higher than C\",IF(COUNTA(Y116:Z116)=0,\"Fill in supplementary fields\",(V116/2)*(T116/U116)+(V116/2)*(1/SUM(Y116:Z116))))+(IF(LEFT(S116,1)=\"1\",((U116+V116)/AA116)*(T116/(U116+V116))*AB116*AC116*(AA116/(1-AC116)),IF(LEFT(S116,1)=\"2\",IF(COUNTA(T116:V116)=0,\"Fill in supplementary fields\",(U116+V116)*AC116*AB116))))","v":{"$error":"#VALUE!"}},{"$f":"IF(T116>U116,\"B cannot be higher than C\",IFERROR(IF(COUNTA(Y116:Z116)=0,\"Fill in supplementary fields\",V116/2)*(T116/U116)+(V116/2)*(1/Y116),\"Fill in supplementary fields\"))+(IF(LEFT(S116,1)=\"1\",((U116+V116)/AA116)*(T116/(U116+V116))*AB116*AC116*(AA116/(1-AC116)),IF(LEFT(S116,1)=\"2\",IF(COUNTA(T116:V116)=0,\"Fill in supplementary fields\",(U116+V116)*AC116*AB116))))","v":{"$error":"#VALUE!"}},{"$f":"IF(T116>U116,\"B cannot be higher than C\",IFERROR(IF(COUNTA(Y116:Z116)=0,\"Fill in supplementary fields\",IF(Y116=0,V116/2*(T116/U116)+V116/2*(1/Z116),(V116/2)*(T116/U116))),\"Fill in supplementary fields\"))+(IF(LEFT(S116,1)=\"1\",((U116+V116)/AA116)*(T116/(U116+V116))*AB116*AC116*(AA116/(1-AC116)),IF(LEFT(S116,1)=\"2\",IF(COUNTA(T116:V116)=0,\"Fill in supplementary fields\",(U116+V116)*AC116*AB116))))","v":{"$error":"#VALUE!"}},"Enter exposure values in fields A and B","Fill in supplementary fields","Fill in supplementary fields","Fill in supplementary fields","Fill in supplementary fields",{"$f":"$V116","v":0},0,0,0,0,0,0]
[null,null,null,null,null,null,null,null,null,null,null,null,null,null,null,null,null,"",null,null,null,null,null,{"$f":"IFERROR(IF(P117=\"1=Syndicated loan, arranger\",\"1=Official institution\",IF(P117=1,\"1=Official institution\",\"\")),\"\")","v":""},null,null,null,null,null,null,null,null,null,null,null,"",113,"Fill in supplementary fields","Fill in supplementary fields",{"$f":"IF(T117>U117,\"B cannot be higher than C\",IF(COUNTA(Y117:Z117)=0,\"Fill in supplementary fields\",(V117/2)*(T117/U117)+(V117/2)*(1/SUM(Y117:Z117))))+(IF(LEFT(S117,1)=\"1\",((T129*AB129)*(AC129/(1-AC129))),IF(LEFT(S117,1)=\"2\",IF(COUNTA(T117:V117)=0,\"Fill in supplementary fields\",(U117+V117)*AC117*AB117))))","v":{"$error":"#VALUE!"}},{"$f":"IF(T117>U117,\"B cannot be higher than C\",IFERROR(IF(COUNTA(Y117:Z117)=0,\"Fill in supplementary fields\",V117/2)*(T117/U117)+(V117/2)*(1/Y117),\"Fill in supplementary fields\"))+(IF(LEFT(S117,1)=\"1\",((T129*AB129)*(AC129/(1-AC129))),IF(LEFT(S117,1)=\"2\",IF(COUNTA(T117:V117)=0,\"Fill in supplementary fields\",(U117+V117)*AC117*AB117))))","v":{"$error":"#VALUE!"}},{"$f":"IF(T117>U117,\"B cannot be higher than C\",IFERROR(IF(COUNTA(Y117:Z117)=0,\"Fill in supplementary fields\",IF(Y117=0,V117/2*(T117/U117)+V117/2*(1/Z117),(V117/2)*(T117/U117))),\"Fill in supplementary fields\"))+(IF(LEFT(S117,1)=\"1\",((T129*AB129)*(AC129/(1-AC129))),IF(LEFT(S117,1)=\"2\",IF(COUNTA(T117:V117)=0,\"Fill in supplementary fields\",(U117+V117)*AC117*AB117))))","v":{"$error":"#VALUE!"}},"Enter exposure values in fields A and B","Fill in supplementary fields","Fill in supplementary fields","Fill in supplementary fields","Fill in supplementary fields",0,0,0,0,0,0,0]
[null,null,null,null,null,null,null,null,null,null,null,null,null,null,null,null,null,"",null,null,null,null,null,"",null,null,null,null,null,null,null,null,null,null,null,"",114,"Fill in supplementary fields","Fill in supplementary fields",{"$f":"IF(T118>U118,\"B cannot be higher than C\",IF(COUNTA(Y118:Z118)=0,\"Fill in supplementary fields\",(V118/2)*(T118/U118)+(V118/2)*(1/SUM(Y118:Z118))))+(IF(LEFT(S118,1)=\"1\",((U118+V118)/AA118)*(T118/(U118+V118))*AB118*AC118*(AA118/(1-AC118)),IF(LEFT(S118,1)=\"2\",IF(COUNTA(T118:V118)=0,\"Fill in supplementary fields\",(U118+V118)*AC118*AB118))))","v":{"$error":"#VALUE!"}},{"$f":"IF(T118>U118,\"B cannot be higher than C\",IFERROR(IF(COUNTA(Y118:Z118)=0,\"Fill in supplementary fields\",V118/2)*(T118/U118)+(V118/2)*(1/Y118),\"Fill in supplementary fields\"))+(IF(LEFT(S118,1)=\"1\",((U118+V118)/AA118)*(T118/(U118+V118))*AB118*AC118*(AA118/(1-AC118)),IF(LEFT(S118,1)=\"2\",IF(COUNTA(T118:V118)=0,\"Fill in supplementary fields\",(U118+V118)*AC118*AB118))))","v":{"$error":"#VALUE!"}},{"$f":"IF(T118>U118,\"B cannot be higher than C\",IFERROR(IF(COUNTA(Y118:Z118)=0,\"Fill in supplementary fields\",IF(Y118=0,V118/2*(T118/U118)+V118/2*(1/Z118),(V118/2)*(T118/U118))),\"Fill in supplementary fields\"))+(IF(LEFT(S118,1)=\"1\",((U118+V118)/AA118)*(T118/(U118+V118))*AB118*AC118*(AA118/(1-AC118)),IF(LEFT(S118,1)=\"2\",IF(COUNTA(T118:V118)=0,\"Fill in supplementary fields\",(U118+V118)*AC118*AB118))))","v":{"$error":"#VALUE!"}},"Enter exposure values in fields A and B","Fill in supplementary fields","Fill in supplementary fields","Fill in supplementary fields","Fill in supplementary fields",0,0,0,0,0,0,0]
[null,null,null,null,null,null,null,null,null,null,null,null,null,null,null,null,null,"",null,null,null,null,null,"",null,null,null,null,null,null,null,null,null,null,null,"",115,"Fill in supplementary fields","Fill in supplementary fields",{"$f":"IF(T119>U119,\"B cannot be higher than C\",IF(COUNTA(Y119:Z119)=0,\"Fill in supplementary fields\",(V119/2)*(T119/U119)+(V119/2)*(1/SUM(Y119:Z119))))+(IF(LEFT(S119,1)=\"1\",((U119+V119)/AA119)*(T119/(U119+V119))*AB119*AC119*(AA119/(1-AC119)),IF(LEFT(S119,1)=\"2\",IF(COUNTA(T119:V119)=0,\"Fill in supplementary fields\",(U119+V119)*AC119*AB119))))","v":{"$error":"#VALUE!"}},{"$f":"IF(T119>U119,\"B cannot be higher than C\",IFERROR(IF(COUNTA(Y119:Z119)=0,\"Fill in supplementary fields\",V119/2)*(T119/U119)+(V119/2)*(1/Y119),\"Fill in supplementary fields\"))+(IF(LEFT(S119,1)=\"1\",((U119+V119)/AA119)*(T119/(U119+V119))*AB119*AC119*(AA119/(1-AC119)),IF(LEFT(S119,1)=\"2\",IF(COUNTA(T119:V119)=0,\"Fill in supplementary fields\",(U119+V119)*AC119*AB119))))","v":{"$error":"#VALUE!"}},{"$f":"IF(T119>U119,\"B cannot be higher than C\",IFERROR(IF(COUNTA(Y119:Z119)=0,\"Fill in supplementary fields\",IF(Y119=0,V119/2*(T119/U119)+V119/2*(1/Z119),(V119/2)*(T119/U119))),\"Fill in supplementary fields\"))+(IF(LEFT(S119,1)=\"1\",((U119+V119)/AA119)*(T119/(U119+V119))*AB119*AC119*(AA119/(1-AC119)),IF(LEFT(S119,1)=\"2\",IF(COUNTA(T119:V119)=0,\"Fill in supplementary fields\",(U119+V119)*AC119*AB119))))","v":{"$error":"#VALUE!"}},"Enter exposure values in fields A and B","Fill in supplementary fields","Fill in supplementary fields","Fill in supplementary fields","Fill in supplementary fields",0,0,0,0,0,0,0]
[null,null,null,null,null,null,null,null,null,null,null,null,null,null,null,null,null,"",null,null,null,null,null,"",null,null,null,null,null,null,null,null,null,null,null,"",116,"Fill in supplementary fields","Fill in supplementary fields",{"$f":"IF(T120>U120,\"B cannot be higher than C\",IF(COUNTA(Y120:Z120)=0,\"Fill in supplementary fields\",(V120/2)*(T120/U120)+(V120/2)*(1/SUM(Y120:Z120))))+(IF(LEFT(S120,1)=\"1\",((T132*AB132)*(AC132/(1-AC132))),IF(LEFT(S120,1)=\"2\",IF(COUNTA(T120:V120)=0,\"Fill in supplementary fields\",(U120+V120)*AC120*AB120))))","v":{"$error":"#VALUE!"}},{"$f":"IF(T120>U120,\"B cannot be higher than C\",IFERROR(IF(COUNTA(Y120:Z120)=0,\"Fill in supplementary fields\",V120/2)*(T120/U120)+(V120/2)*(1/Y120),\"Fill in supplementary fields\"))+(IF(LEFT(S120,1)=\"1\",((T132*AB132)*(AC132/(1-AC132))),IF(LEFT(S120,1)=\"2\",IF(COUNTA(T120:V120)=0,\"Fill in supplementary fields\",(U120+V120)*AC120*AB120))))","v":{"$error":"#VALUE!"}},{"$f":"IF(T120>U120,\"B cannot be higher than C\",IFERROR(IF(COUNTA(Y120:Z120)=0,\"Fill in supplementary fields\",IF(Y120=0,V120/2*(T120/U120)+V120/2*(1/Z120),(V120/2)*(T120/U120))),\"Fill in supplementary fields\"))+(IF(LEFT(S120,1)=\"1\",((T132*AB132)*(AC132/(1-AC132))),IF(LEFT(S120,1)=\"2\",IF(COUNTA(T120:V120)=0,\"Fill in supplementary fields\",(U120+V120)*AC120*AB120))))","v":{"$error":"#VALUE!"}},"Enter exposure values in fields A and B","Fill in supplementary fields","Fill in supplementary fields","Fill in supplementary fields","Fill in supplementary fields",0,0,0,0,0,0,0]
[null,null,null,null,null,null,null,null,null,null,null,null,null,null,null,null,null,"",null,null,null,null,null,"",null,null,null,null,null,null,null,null,null,null,null,"",117,"Fill in supplementary fields","Fill in supplementary fields",{"$f":"IF(T121>U121,\"B cannot be higher than C\",IF(COUNTA(Y121:Z121)=0,\"Fill in supplementary fields\",(V121/2)*(T121/U121)+(V121/2)*(1/SUM(Y121:Z121))))+(IF(LEFT(S121,1)=\"1\",((U121+V121)/AA121)*(T121/(U121+V121))*AB121*AC121*(AA121/(1-AC121)),IF(LEFT(S121,1)=\"2\",IF(COUNTA(T121:V121)=0,\"Fill in supplementary fields\",(U121+V121)*AC121*AB121))))","v":{"$error":"#VALUE!"}},{"$f":"IF(T121>U121,\"B cannot be higher than C\",IFERROR(IF(COUNTA(Y121:Z121)=0,\"Fill in supplementary fields\",V121/2)*(T121/U121)+(V121/2)*(1/Y121),\"Fill in supplementary fields\"))+(IF(LEFT(S121,1)=\"1\",((U121+V121)/AA121)*(T121/(U121+V121))*AB121*AC121*(AA121/(1-AC121)),IF(LEFT(S121,1)=\"2\",IF(COUNTA(T121:V121)=0,\"Fill in supplementary fields\",(U121+V121)*AC121*AB121))))","v":{"$error":"#VALUE!"}},{"$f":"IF(T121>U121,\"B cannot be higher than C\",IFERROR(IF(COUNTA(Y121:Z121)=0,\"Fill in supplementary fields\",IF(Y121=0,V121/2*(T121/U121)+V121/2*(1/Z121),(V121/2)*(T121/U121))),\"Fill in supplementary fields\"))+(IF(LEFT(S121,1)=\"1\",((U121+V121)/AA121)*(T121/(U121+V121))*AB121*AC121*(AA121/(1-AC121)),IF(LEFT(S121,1)=\"2\",IF(COUNTA(T121:V121)=0,\"Fill in supplementary fields\",(U121+V121)*AC121*AB121))))","v":{"$error":"#VALUE!"}},"Enter exposure values in fields A and B","Fill in supplementary fields","Fill in supplementary fields","Fill in supplementary fields","Fill in supplementary fields",0,0,0,0,0,0,0]
[null,null,null,null,null,null,null,null,null,null,null,null,null,null,null,null,null,"",null,null,null,null,null,"",null,null,null,null,null,null,null,null,null,null,null,"",118,"Fill in supplementary fields","Fill in supplementary fields",{"$f":"IF(T122>U122,\"B cannot be higher than C\",IF(COUNTA(Y122:Z122)=0,\"Fill in supplementary fields\",(V122/2)*(T122/U122)+(V122/2)*(1/SUM(Y122:Z122))))+(IF(LEFT(S122,1)=\"1\",((U122+V122)/AA122)*(T122/(U122+V122))*AB122*AC122*(AA122/(1-AC122)),IF(LEFT(S122,1)=\"2\",IF(COUNTA(T122:V122)=0,\"Fill in supplementary fields\",(U122+V122)*AC122*AB122))))","v":{"$error":"#VALUE!"}},{"$f":"IF(T122>U122,\"B cannot be higher than C\",IFERROR(IF(COUNTA(Y122:Z122)=0,\"Fill in supplementary fields\",V122/2)*(T122/U122)+(V122/2)*(1/Y122),\"Fill in supplementary fields\"))+(IF(LEFT(S122,1)=\"1\",((U122+V122)/AA122)*(T122/(U122+V122))*AB122*AC122*(AA122/(1-AC122)),IF(LEFT(S122,1)=\"2\",IF(COUNTA(T122:V122)=0,\"Fill in supplementary fields\",(U122+V122)*AC122*AB122))))","v":{"$error":"#VALUE!"}},{"$f":"IF(T122>U122,\"B cannot be higher than C\",IFERROR(IF(COUNTA(Y122:Z122)=0,\"Fill in supplementary fields\",IF(Y122=0,V122/2*(T122/U122)+V122/2*(1/Z122),(V122/2)*(T122/U122))),\"Fill in supplementary fields\"))+(IF(LEFT(S122,1)=\"1\",((U122+V122)/AA122)*(T122/(U122+V122))*AB122*AC122*(AA122/(1-AC122)),IF(LEFT(S122,1)=\"2\",IF(COUNTA(T122:V122)=0,\"Fill in supplementary fields\",(U122+V122)*AC122*AB122))))","v":{"$error":"#VALUE!"}},"Enter exposure values in fields A and B","Fill in supplementary fields","Fill in supplementary fields","Fill in supplementary fields","Fill in supplementary fields",0,0,0,0,0,0,0]
[null,null,null,null,null,null,null,null,null,null,null,null,null,null,null,null,null,"",null,null,null,null,null,"",null,null,null,null,null,null,null,null,null,null,null,"",119,"Fill in supplementary fields","Fill in supplementary fields",{"$f":"IF(T123>U123,\"B cannot be higher than C\",IF(COUNTA(Y123:Z123)=0,\"Fill in supplementary fields\",(V123/2)*(T123/U123)+(V123/2)*(1/SUM(Y123:Z123))))+(IF(LEFT(S123,1)=\"1\",((T135*AB135)*(AC135/(1-AC135))),IF(LEFT(S123,1)=\"2\",IF(COUNTA(T123:V123)=0,\"Fill in supplementary fields\",(U123+V123)*AC123*AB123))))","v":{"$error":"#VALUE!"}},{"$f":"IF(T123>U123,\"B cannot be higher than C\",IFERROR(IF(COUNTA(Y123:Z123)=0,\"Fill in supplementary fields\",V123/2)*(T123/U123)+(V123/2)*(1/Y123),\"Fill in supplementary fields\"))+(IF(LEFT(S123,1)=\"1\",((T135*AB135)*(AC135/(1-AC135))),IF(LEFT(S123,1)=\"2\",IF(COUNTA(T123:V123)=0,\"Fill in supplementary fields\",(U123+V123)*AC123*AB123))))","v":{"$error":"#VALUE!"}},{"$f":"IF(T123>U123,\"B cannot be higher than C\",IFERROR(IF(COUNTA(Y123:Z123)=0,\"Fill in supplementary fields\",IF(Y123=0,V123/2*(T123/U123)+V123/2*(1/Z123),(V123/2)*(T123/U123))),\"Fill in supplementary fields\"))+(IF(LEFT(S123,1)=\"1\",((T135*AB135)*(AC135/(1-AC135))),IF(LEFT(S123,1)=\"2\",IF(COUNTA(T123:V123)=0,\"Fill in supplementary fields\",(U123+V123)*AC123*AB123))))","v":{"$error":"#VALUE!"}},"Enter exposure values in fields A and B","Fill in supplementary fields","Fill in supplementary fields","Fill in supplementary fields","Fill in supplementary fields",0,0,0,0,0,0,0]
[null,null,null,null,null,null,null,null,null,null,null,null,null,null,null,null,null,"",null,null,null,null,null,"",null,null,null,null,null,null,null,null,null,null,null,"",120,"Fill in supplementary fields","Fill in supplementary fields",{"$f":"IF(T124>U124,\"B cannot be higher than C\",IF(COUNTA(Y124:Z124)=0,\"Fill in supplementary fields\",(V124/2)*(T124/U124)+(V124/2)*(1/SUM(Y124:Z124))))+(IF(LEFT(S124,1)=\"1\",((U124+V124)/AA124)*(T124/(U124+V124))*AB124*AC124*(AA124/(1-AC124)),IF(LEFT(S124,1)=\"2\",IF(COUNTA(T124:V124)=0,\"Fill in supplementary fields\",(U124+V124)*AC124*AB124))))","v":{"$error":"#VALUE!"}},{"$f":"IF(T124>U124,\"B cannot be higher than C\",IFERROR(IF(COUNTA(Y124:Z124)=0,\"Fill in supplementary fields\",V124/2)*(T124/U124)+(V124/2)*(1/Y124),\"Fill in supplementary fields\"))+(IF(LEFT(S124,1)=\"1\",((U124+V124)/AA124)*(T124/(U124+V124))*AB124*AC124*(AA124/(1-AC124)),IF(LEFT(S124,1)=\"2\",IF(COUNTA(T124:V124)=0,\"Fill in supplementary fields\",(U124+V124)*AC124*AB124))))","v":{"$error":"#VALUE!"}},{"$f":"IF(T124>U124,\"B cannot be higher than C\",IFERROR(IF(COUNTA(Y124:Z124)=0,\"Fill in supplementary fields\",IF(Y124=0,V124/2*(T124/U124)+V124/2*(1/Z124),(V124/2)*(T124/U124))),\"Fill in supplementary fields\"))+(IF(LEFT(S124,1)=\"1\",((U124+V124)/AA124)*(T124/(U124+V124))*AB124*AC124*(AA124/(1-AC124)),IF(LEFT(S124,1)=\"2\",IF(COUNTA(T124:V124)=0,\"Fill in supplementary fields\",(U124+V124)*AC124*AB124))))","v":{"$error":"#VALUE!"}},"Enter exposure values in fields A and B","Fill in supplementary fields","Fill in supplementary fields","Fill in supplementary fields","Fill in supplementary fields",0,0,0,0,0,0,0]
[null,null,null,null,null,null,null,null,null,null,null,null,null,null,null,null,null,"",null,null,null,null,null,"",null,null,null,null,null,null,null,null,null,null,null,"",121,"Fill in supplementary fields","Fill in supplementary fields",{"$f":"IF(T125>U125,\"B cannot be higher than C\",IF(COUNTA(Y125:Z125)=0,\"Fill in supplementary fields\",(V125/2)*(T125/U125)+(V125/2)*(1/SUM(Y125:Z125))))+(IF(LEFT(S125,1)=\"1\",((U125+V125)/AA125)*(T125/(U125+V125))*AB125*AC125*(AA125/(1-AC125)),IF(LEFT(S125,1)=\"2\",IF(COUNTA(T125:V125)=0,\"Fill in supplementary fields\",(U125+V125)*AC125*AB125))))","v":{"$error":"#VALUE!"}},{"$f":"IF(T125>U125,\"B cannot be higher than C\",IFERROR(IF(COUNTA(Y125:Z125)=0,\"Fill in supplementary fields\",V125/2)*(T125/U125)+(V125/2)*(1/Y125),\"Fill in supplementary fields\"))+(IF(LEFT(S125,1)=\"1\",((U125+V125)/AA125)*(T125/(U125+V125))*AB125*AC125*(AA125/(1-AC125)),IF(LEFT(S125,1)=\"2\",IF(COUNTA(T125:V125)=0,\"Fill in supplementary fields\",(U125+V125)*AC125*AB125))))","v":{"$error":"#VALUE!"}},{"$f":"IF(T125>U125,\"B cannot be higher than C\",IFERROR(IF(COUNTA(Y125:Z125)=0,\"Fill in supplementary fields\",IF(Y125=0,V125/2*(T125/U125)+V125/2*(1/Z125),(V125/2)*(T125/U125))),\"Fill in supplementary fields\"))+(IF(LEFT(S125,1)=\"1\",((U125+V125)/AA125)*(T125/(U125+V125))*AB125*AC125*(AA125/(1-AC125)),IF(LEFT(S125,1)=\"2\",IF(COUNTA(T125:V125)=0,\"Fill in supplementary fields\",(U125+V125)*AC125*AB125))))","v":{"$error":"#VALUE!"}},"Enter exposure values in fields A and B","Fill in supplementary fields","Fill in supplementary fields","Fill in supplementary fields","Fill in supplementary fields",0,0,0,0,0,0,0]
[null,null,null,null,null,null,null,null,null,null,null,null,null,null,null,null,null,"",null,null,null,null,null,"",null,null,null,null,null,null,null,null,null,null,null,"",122,"Fill in supplementary fields","Fill in supplementary fields",{"$f":"IF(T126>U126,\"B cannot be higher than C\",IF(COUNTA(Y126:Z126)=0,\"Fill in supplementary fields\",(V126/2)*(T126/U126)+(V126/2)*(1/SUM(Y126:Z126))))+(IF(LEFT(S126,1)=\"1\",((T138*AB138)*(AC138/(1-AC138))),IF(LEFT(S126,1)=\"2\",IF(COUNTA(T126:V126)=0,\"Fill in supplementary fields\",(U126+V126)*AC126*AB126))))","v":{"$error":"#VALUE!"}},{"$f":"IF(T126>U126,\"B cannot be higher than C\",IFERROR(IF(COUNTA(Y126:Z126)=0,\"Fill in supplementary fields\",V126/2)*(T126/U126)+(V126/2)*(1/Y126),\"Fill in supplementary fields\"))+(IF(LEFT(S126,1)=\"1\",((T138*AB138)*(AC138/(1-AC138))),IF(LEFT(S126,1)=\"2\",IF(COUNTA(T126:V126)=0,\"Fill in supplementary fields\",(U126+V126)*AC126*AB126))))","v":{"$error":"#VALUE!"}},{"$f":"IF(T126>U126,\"B cannot be higher than C\",IFERROR(IF(COUNTA(Y126:Z126)=0,\"Fill in supplementary fields\",IF(Y126=0,V126/2*(T126/U126)+V126/2*(1/Z126),(V126/2)*(T126/U126))),\"Fill in supplementary fields\"))+(IF(LEFT(S126,1)=\"1\",((T138*AB138)*(AC138/(1-AC138))),IF(LEFT(S126,1)=\"2\",IF(COUNTA(T126:V126)=0,\"Fill in supplementary fields\",(U126+V126)*AC126*AB126))))","v":{"$error":"#VALUE!"}},"Enter exposure values in fields A and B","Fill in supplementary fields","Fill in supplementary fields","Fill in supplementary fields","Fill in supplementary fields",{"$f":"$V126","v":0},0,0,0,0,0,0]
[null,null,null,null,null,null,null,null,null,null,null,null,null,null,null,null,null,"",null,null,null,null,null,"",null,null,null,null,null,null,null,null,null,null,null,"",123,"Fill in supplementary fields","Fill in supplementary fields",{"$f":"IF(T127>U127,\"B cannot be higher than C\",IF(COUNTA(Y127:Z127)=0,\"Fill in supplementary fields\",(V127/2)*(T127/U127)+(V127/2)*(1/SUM(Y127:Z127))))+(IF(LEFT(S127,1)=\"1\",((U127+V127)/AA127)*(T127/(U127+V127))*AB127*AC127*(AA127/(1-AC127)),IF(LEFT(S127,1)=\"2\",IF(COUNTA(T127:V127)=0,\"Fill in supplementary fields\",(U127+V127)*AC127*AB127))))","v":{"$error":"#VALUE!"}},{"$f":"IF(T127>U127,\"B cannot be higher than C\",IFERROR(IF(COUNTA(Y127:Z127)=0,\"Fill in supplementary fields\",V127/2)*(T127/U127)+(V127/2)*(1/Y127),\"Fill in supplementary fields\"))+(IF(LEFT(S127,1)=\"1\",((U127+V127)/AA127)*(T127/(U127+V127))*AB127*AC127*(AA127/(1-AC127)),IF(LEFT(S127,1)=\"2\",IF(COUNTA(T127:V127)=0,\"Fill in supplementary fields\",(U127+V127)*AC127*AB127))))","v":{"$error":"#VALUE!"}},{"$f":"IF(T127>U127,\"B cannot be higher than C\",IFERROR(IF(COUNTA(Y127:Z127)=0,\"Fill in supplementary fields\",IF(Y127=0,V127/2*(T127/U127)+V127/2*(1/Z127),(V127/2)*(T127/U127))),\"Fill in supplementary fields\"))+(IF(LEFT(S127,1)=\"1\",((U127+V127)/AA127)*(T127/(U127+V127))*AB127*AC127*(AA127/(1-AC127)),IF(LEFT(S127,1)=\"2\",IF(COUNTA(T127:V127)=0,\"Fill in supplementary fields\",(U127+V127)*AC127*AB127))))","v":{"$error":"#VALUE!"}},"Enter exposure values in fields A and B","Fill in supplementary fields","Fill in supplementary fields","Fill in supplementary fields","Fill in supplementary fields",0,0,0,0,0,0,0]
[null,null,null,null,null,null,null,null,null,null,null,null,null,null,null,null,null,"",null,null,null,null,null,"",null,null,null,null,null,null,null,null,null,null,null,"",124,"Fill in supplementary fields","Fill in supplementary fields",{"$f":"IF(T128>U128,\"B cannot be higher than C\",IF(COUNTA(Y128:Z128)=0,\"Fill in supplementary fields\",(V128/2)*(T128/U128)+(V128/2)*(1/SUM(Y128:Z128))))+(IF(LEFT(S128,1)=\"1\",((U128+V128)/AA128)*(T128/(U128+V128))*AB128*AC128*(AA128/(1-AC128)),IF(LEFT(S128,1)=\"2\",IF(COUNTA(T128:V128)=0,\"Fill in supplementary fields\",(U128+V128)*AC128*AB128))))","v":{"$error":"#VALUE!"}},{"$f":"IF(T128>U128,\"B cannot be higher than C\",IFERROR(IF(COUNTA(Y128:Z128)=0,\"Fill in supplementary fields\",V128/2)*(T128/U128)+(V128/2)*(1/Y128),\"Fill in supplementary fields\"))+(IF(LEFT(S128,1)=\"1\",((U128+V128)/AA128)*(T128/(U128+V128))*AB128*AC128*(AA128/(1-AC128)),IF(LEFT(S128,1)=\"2\",IF(COUNTA(T128:V128)=0,\"Fill in supplementary fields\",(U128+V128)*AC128*AB128))))","v":{"$error":"#VALUE!"}},{"$f":"IF(T128>U128,\"B cannot be higher than C\",IFERROR(IF(COUNTA(Y128:Z128)=0,\"Fill in supplementary fields\",IF(Y128=0,V128/2*(T128/U128)+V128/2*(1/Z128),(V128/2)*(T128/U128))),\"Fill in supplementary fields\"))+(IF(LEFT(S128,1)=\"1\",((U128+V128)/AA128)*(T128/(U128+V128))*AB128*AC128*(AA128/(1-AC128)),IF(LEFT(S128,1)=\"2\",IF(COUNTA(T128:V128)=0,\"Fill in supplementary fields\",(U128+V128)*AC128*AB128))))","v":{"$error":"#VALUE!"}},"Enter exposure values in fields A and B","Fill in supplementary fields","Fill in supplementary fields","Fill in supplementary fields","Fill in supplementary fields",0,0,0,0,0,0,0]
[null,null,null,null,null,null,null,null,null,null,null,null,null,null,null,null,null,"",null,null,null,null,null,"",null,null,null,null,null,null,null,null,null,null,null,"",125,"Fill in supplementary fields","Fill in supplementary fields",{"$f":"IF(T129>U129,\"B cannot be higher than C\",IF(COUNTA(Y129:Z129)=0,\"Fill in supplementary fields\",(V129/2)*(T129/U129)+(V129/2)*(1/SUM(Y129:Z129))))+(IF(LEFT(S129,1)=\"1\",((T141*AB141)*(AC141/(1-AC141))),IF(LEFT(S129,1)=\"2\",IF(COUNTA(T129:V129)=0,\"Fill in supplementary fields\",(U129+V129)*AC129*AB129))))","v":{"$error":"#VALUE!"}},{"$f":"IF(T129>U129,\"B cannot be higher than C\",IFERROR(IF(COUNTA(Y129:Z129)=0,\"Fill in supplementary fields\",V129/2)*(T129/U129)+(V129/2)*(1/Y129),\"Fill in supplementary fields\"))+(IF(LEFT(S129,1)=\"1\",((T141*AB141)*(AC141/(1-AC141))),IF(LEFT(S129,1)=\"2\",IF(COUNTA(T129:V129)=0,\"Fill in supplementary fields\",(U129+V129)*AC129*AB129))))","v":{"$error":"#VALUE!"}},{"$f":"IF(T129>U129,\"B cannot be higher than C\",IFERROR(IF(COUNTA(Y129:Z129)=0,\"Fill in supplementary fields\",IF(Y129=0,V129/2*(T129/U129)+V129/2*(1/Z129),(V129/2)*(T129/U129))),\"Fill in supplementary fields\"))+(IF(LEFT(S129,1)=\"1\",((T141*AB141)*(AC141/(1-AC141))),IF(LEFT(S129,1)=\"2\",IF(COUNTA(T129:V129)=0,\"Fill in supplementary fields\",(U129+V129)*AC129*AB129))))","v":{"$error":"#VALUE!"}},"Enter exposure values in fields A and B","Fill in supplementary fields","Fill in supplementary fields","Fill in supplementary fields","Fill in supplementary fields",0,0,0,0,0,0,0]
[null,null,null,null,null,null,null,null,null,null,null,null,null,null,null,null,null,"",null,null,null,null,null,"",null,null,null,null,null,null,null,null,null,null,null,"",126,"Fill in supplementary fields","Fill in supplementary fields",{"$f":"IF(T130>U130,\"B cannot be higher than C\",IF(COUNTA(Y130:Z130)=0,\"Fill in supplementary fields\",(V130/2)*(T130/U130)+(V130/2)*(1/SUM(Y130:Z130))))+(IF(LEFT(S130,1)=\"1\",((U130+V130)/AA130)*(T130/(U130+V130))*AB130*AC130*(AA130/(1-AC130)),IF(LEFT(S130,1)=\"2\",IF(COUNTA(T130:V130)=0,\"Fill in supplementary fields\",(U130+V130)*AC130*AB130))))","v":{"$error":"#VALUE!"}},{"$f":"IF(T130>U130,\"B cannot be higher than C\",IFERROR(IF(COUNTA(Y130:Z130)=0,\"Fill in supplementary fields\",V130/2)*(T130/U130)+(V130/2)*(1/Y130),\"Fill in supplementary fields\"))+(IF(LEFT(S130,1)=\"1\",((U130+V130)/AA130)*(T130/(U130+V130))*AB130*AC130*(AA130/(1-AC130)),IF(LEFT(S130,1)=\"2\",IF(COUNTA(T130:V130)=0,\"Fill in supplementary fields\",(U130+V130)*AC130*AB130))))","v":{"$error":"#VALUE!"}},{"$f":"IF(T130>U130,\"B cannot be higher than C\",IFERROR(IF(COUNTA(Y130:Z130)=0,\"Fill in supplementary fields\",IF(Y130=0,V130/2*(T130/U130)+V130/2*(1/Z130),(V130/2)*(T130/U130))),\"Fill in supplementary fields\"))+(IF(LEFT(S130,1)=\"1\",((U130+V130)/AA130)*(T130/(U130+V130))*AB130*AC130*(AA130/(1-AC130)),IF(LEFT(S130,1)=\"2\",IF(COUNTA(T130:V130)=0,\"Fill in supplementary fields\",(U130+V130)*AC130*AB130))))","v":{"$error":"#VALUE!"}},"Enter exposure values in fields A and B","Fill in supplementary fields","Fill in supplementary fields","Fill in supplementary fields","Fill in supplementary fields",0,0,0,0,0,0,0]
[null,null,null,null,null,null,null,null,null,null,null,null,null,null,null,null,null,"",null,null,null,null,null,"",null,null,null,null,null,null,null,null,null,null,null,"",127,"Fill in supplementary fields","Fill in supplementary fields",{"$f":"IF(T131>U131,\"B cannot be higher than C\",IF(COUNTA(Y131:Z131)=0,\"Fill in supplementary fields\",(V131/2)*(T131/U131)+(V131/2)*(1/SUM(Y131:Z131))))+(IF(LEFT(S131,1)=\"1\",((U131+V131)/AA131)*(T131/(U131+V131))*AB131*AC131*(AA131/(1-AC131)),IF(LEFT(S131,1)=\"2\",IF(COUNTA(T131:V131)=0,\"Fill in supplementary fields\",(U131+V131)*AC131*AB131))))","v":{"$error":"#VALUE!"}},{"$f":"IF(T131>U131,\"B cannot be higher than C\",IFERROR(IF(COUNTA(Y131:Z131)=0,\"Fill in supplementary fields\",V131/2)*(T131/U131)+(V131/2)*(1/Y131),\"Fill in supplementary fields\"))+(IF(LEFT(S131,1)=\"1\",((U131+V131)/AA131)*(T131/(U131+V131))*AB131*AC131*(AA131/(1-AC131)),IF(LEFT(S131,1)=\"2\",IF(COUNTA(T131:V131)=0,\"Fill in supplementary fields\",(U131+V131)*AC131*AB131))))","v":{"$error":"#VALUE!"}},{"$f":"IF(T131>U131,\"B cannot be higher than C\",IFERROR(IF(COUNTA(Y131:Z131)=0,\"Fill in supplementary fields\",IF(Y131=0,V131/2*(T131/U131)+V131/2*(1/Z131),(V131/2)*(T131/U131))),\"Fill in supplementary fields\"))+(IF(LEFT(S131,1)=\"1\",((U131+V131)/AA131)*(T131/(U131+V131))*AB131*AC131*(AA131/(1-AC131)),IF(LEFT(S131,1)=\"2\",IF(COUNTA(T131:V131)=0,\"Fill in supplementary fields\",(U131+V131)*AC131*AB131))))","v":{"$error":"#VALUE!"}},"Enter exposure values in fields A and B","Fill in supplementary fields","Fill in supplementary fields","Fill in supplementary fields","Fill in supplementary fields",0,0,0,0,0,0,0]
[null,null,null,null,null,null,null,null,null,null,null,null,null,null,null,null,null,"",null,null,null,null,null,"",null,null,null,null,null,null,null,null,null,null,null,"",128,"Fill in supplementary fields","Fill in supplementary fields",{"$f":"IF(T132>U132,\"B cannot be higher than C\",IF(COUNTA(Y132:Z132)=0,\"Fill in supplementary fields\",(V132/2)*(T132/U132)+(V132/2)*(1/SUM(Y132:Z132))))+(IF(LEFT(S132,1)=\"1\",((T144*AB144)*(AC144/(1-AC144))),IF(LEFT(S132,1)=\"2\",IF(COUNTA(T132:V132)=0,\"Fill in supplementary fields\",(U132+V132)*AC132*AB132))))","v":{"$error":"#VALUE!"}},{"$f":"IF(T132>U132,\"B cannot be higher than C\",IFERROR(IF(COUNTA(Y132:Z132)=0,\"Fill in supplementary fields\",V132/2)*(T132/U132)+(V132/2)*(1/Y132),\"Fill in supplementary fields\"))+(IF(LEFT(S132,1)=\"1\",((T144*AB144)*(AC144/(1-AC144))),IF(LEFT(S132,1)=\"2\",IF(COUNTA(T132:V132)=0,\"Fill in supplementary fields\",(U132+V132)*AC132*AB132))))","v":{"$error":"#VALUE!"}},{"$f":"IF(T132>U132,\"B cannot be higher than C\",IFERROR(IF(COUNTA(Y132:Z132)=0,\"Fill in supplementary fields\",IF(Y132=0,V132/2*(T132/U132)+V132/2*(1/Z132),(V132/2)*(T132/U132))),\"Fill in supplementary fields\"))+(IF(LEFT(S132,1)=\"1\",((T144*AB144)*(AC144/(1-AC144))),IF(LEFT(S132,1)=\"2\",IF(COUNTA(T132:V132)=0,\"Fill in supplementary fields\",(U132+V132)*AC132*AB132))))","v":{"$error":"#VALUE!"}},"Enter exposure values in fields A and B","Fill in supplementary fields","Fill in supplementary fields","Fill in supplementary fields","Fill in supplementary fields",0,0,0,0,0,0,0]
[null,null,null,null,null,null,null,null,null,null,null,null,null,null,null,null,null,"",null,null,null,null,null,"",null,null,null,null,null,null,null,null,null,null,null,"",129,"Fill in supplementary fields","Fill in supplementary fields",{"$f":"IF(T133>U133,\"B cannot be higher than C\",IF(COUNTA(Y133:Z133)=0,\"Fill in supplementary fields\",(V133/2)*(T133/U133)+(V133/2)*(1/SUM(Y133:Z133))))+(IF(LEFT(S133,1)=\"1\",((U133+V133)/AA133)*(T133/(U133+V133))*AB133*AC133*(AA133/(1-AC133)),IF(LEFT(S133,1)=\"2\",IF(COUNTA(T133:V133)=0,\"Fill in supplementary fields\",(U133+V133)*AC133*AB133))))","v":{"$error":"#VALUE!"}},{"$f":"IF(T133>U133,\"B cannot be higher than C\",IFERROR(IF(COUNTA(Y133:Z133)=0,\"Fill in supplementary fields\",V133/2)*(T133/U133)+(V133/2)*(1/Y133),\"Fill in supplementary fields\"))+(IF(LEFT(S133,1)=\"1\",((U133+V133)/AA133)*(T133/(U133+V133))*AB133*AC133*(AA133/(1-AC133)),IF(LEFT(S133,1)=\"2\",IF(COUNTA(T133:V133)=0,\"Fill in supplementary fields\",(U133+V133)*AC133*AB133))))","v":{"$error":"#VALUE!"}},{"$f":"IF(T133>U133,\"B cannot be higher than C\",IFERROR(IF(COUNTA(Y133:Z133)=0,\"Fill in supplementary fields\",IF(Y133=0,V133/2*(T133/U133)+V133/2*(1/Z133),(V133/2)*(T133/U133))),\"Fill in supplementary fields\"))+(IF(LEFT(S133,1)=\"1\",((U133+V133)/AA133)*(T133/(U133+V133))*AB133*AC133*(AA133/(1-AC133)),IF(LEFT(S133,1)=\"2\",IF(COUNTA(T133:V133)=0,\"Fill in supplementary fields\",(U133+V133)*AC133*AB133))))","v":{"$error":"#VALUE!"}},"Enter exposure values in fields A and B","Fill in supplementary fields","Fill in supplementary fields","Fill in supplementary fields","Fill in supplementary fields",0,0,0,0,0,0,0]
[null,null,null,null,null,null,null,null,null,null,null,null,null,null,null,null,null,{"$f":"IF(LEN(P134)=0,\"\",HLOOKUP(AJ134,$AL$5:$BA$200,AK134,FALSE))","v":""},null,null,null,null,null,"",null,null,null,null,null,null,null,null,null,null,null,{"$f":"IFERROR(VLOOKUP(P134,BC:BD,2,FALSE),\"\")","v":""},{"$f":"AK133+1","v":130},{"$f":"IF(T134>U134,\"B cannot be higher than C\",IF(COUNTA(T134:V134)=0,\"Fill in supplementary fields\",IFERROR(IF(VALUE(LEFT(X134,1))=1,V134/2+(T134/U134)*(V134/2),IF(VALUE(LEFT(X134,1))=2,\"impossible combination\",\"check not available\")),\"\")))","v":"Fill in supplementary fields"},{"$f":"IF(T134>U134,\"B cannot be higher than C\",IF(COUNTA(T134:V134)=0,\"Fill in supplementary fields\",IFERROR(IF(VALUE(LEFT(X134,1))=1,(T134/U134)*(V134/2),IF(VALUE(LEFT(X134,1))=2,(T134/U134)*(V134),\"check not available\")),\"\")))","v":"Fill in supplementary fields"},{"$f":"IF(T134>U134,\"B cannot be higher than C\",IF(COUNTA(Y134:Z134)=0,\"Fill in supplementary fields\",(V134/2)*(T134/U134)+(V134/2)*(1/SUM(Y134:Z134))))+(IF(LEFT(S134,1)=\"1\",((U134+V134)/AA134)*(T134/(U134+V134))*AB134*AC134*(AA134/(1-AC134)),IF(LEFT(S134,1)=\"2\",IF(COUNTA(T134:V134)=0,\"Fill in supplementary fields\",(U134+V134)*AC134*AB134))))","v":{"$error":"#VALUE!"}},{"$f":"IF(T134>U134,\"B cannot be higher than C\",IFERROR(IF(COUNTA(Y134:Z134)=0,\"Fill in supplementary fields\",V134/2)*(T134/U134)+(V134/2)*(1/Y134),\"Fill in supplementary fields\"))+(IF(LEFT(S134,1)=\"1\",((U134+V134)/AA134)*(T134/(U134+V134))*AB134*AC134*(AA134/(1-AC134)),IF(LEFT(S134,1)=\"2\",IF(COUNTA(T134:V134)=0,\"Fill in supplementary fields\",(U134+V134)*AC134*AB134))))","v":{"$error":"#VALUE!"}},{"$f":"IF(T134>U134,\"B cannot be higher than C\",IFERROR(IF(COUNTA(Y134:Z134)=0,\"Fill in supplementary fields\",IF(Y134=0,V134/2*(T134/U134)+V134/2*(1/Z134),(V134/2)*(T134/U134))),\"Fill in supplementary fields\"))+(IF(LEFT(S134,1)=\"1\",((U134+V134)/AA134)*(T134/(U134+V134))*AB134*AC134*(AA134/(1-AC134)),IF(LEFT(S134,1)=\"2\",IF(COUNTA(T134:V134)=0,\"Fill in supplementary fields\",(U134+V134)*AC134*AB134))))","v":{"$error":"#VALUE!"}},{"$f":"IF(T134>U134,\"B cannot be higher than C\",IF(COUNTA(T134:V134)=0,\"Enter exposure values in fields A and B\",(V134)*(T134/U134)))","v":"Enter exposure values in fields A and B"},{"$f":"IF(T134>U134,\"B cannot be higher than C\",IFERROR(IF(COUNTA(Y134:Z134)=0,\"Fill in supplementary fields\",V134/2)*(T134/U134)+(V134/2)*(1/Y134),\"Fill in supplementary fields\"))","v":"Fill in supplementary fields"},{"$f":"IF(T134>U134,\"B cannot be higher than C\",IFERROR(IF(COUNTA(Y134:Z134)=0,\"Fill in supplementary fields\",IF(Y134=0,V134/2*(T134/U134)+V134/2*(1/Z134),(V134/2)*(T134/U134))),\"Fill in supplementary fields\"))","v":"Fill in supplementary fields"},{"$f":"IF(T134>U134,\"B cannot be higher than C\",IF(COUNTA(T134:V134)=0,\"Fill in supplementary fields\",(T134/U134)*((V134)+AB134*AC134)))","v":"Fill in supplementary fields"},{"$f":"IF(T134>U134,\"B cannot be higher than C\",IF(COUNTA(T134:V134)=0,\"Fill in supplementary fields\",(V134)*(T134/U134)))","v":"Fill in supplementary fields"},0,0,0,0,0,0,0]
[null,null,null,null,null,null,null,null,null,null,null,null,null,null,null,null,null,"",null,null,null,null,null,"",null,null,null,null,null,null,null,null,null,null,null,"",131,"Fill in supplementary fields","Fill in supplementary fields",{"$f":"IF(T135>U135,\"B cannot be higher than C\",IF(COUNTA(Y135:Z135)=0,\"Fill in supplementary fields\",(V135/2)*(T135/U135)+(V135/2)*(1/SUM(Y135:Z135))))+(IF(LEFT(S135,1)=\"1\",((T147*AB147)*(AC147/(1-AC147))),IF(LEFT(S135,1)=\"2\",IF(COUNTA(T135:V135)=0,\"Fill in supplementary fields\",(U135+V135)*AC135*AB135))))","v":{"$error":"#VALUE!"}},{"$f":"IF(T135>U135,\"B cannot be higher than C\",IFERROR(IF(COUNTA(Y135:Z135)=0,\"Fill in supplementary fields\",V135/2)*(T135/U135)+(V135/2)*(1/Y135),\"Fill in supplementary fields\"))+(IF(LEFT(S135,1)=\"1\",((T147*AB147)*(AC147/(1-AC147))),IF(LEFT(S135,1)=\"2\",IF(COUNTA(T135:V135)=0,\"Fill in supplementary fields\",(U135+V135)*AC135*AB135))))","v":{"$error":"#VALUE!"}},{"$f":"IF(T135>U135,\"B cannot be higher than C\",IFERROR(IF(COUNTA(Y135:Z135)=0,\"Fill in supplementary fields\",IF(Y135=0,V135/2*(T135/U135)+V135/2*(1/Z135),(V135/2)*(T135/U135))),\"Fill in supplementary fields\"))+(IF(LEFT(S135,1)=\"1\",((T147*AB147)*(AC147/(1-AC147))),IF(LEFT(S135,1)=\"2\",IF(COUNTA(T135:V135)=0,\"Fill in supplementary fields\",(U135+V135)*AC135*AB135))))","v":{"$error":"#VALUE!"}},"Enter exposure values in fields A and B","Fill in supplementary fields","Fill in supplementary fields","Fill in supplementary fields","Fill in supplementary fields",0,0,0,0,0,0,0]
[null,null,null,null,null,null,null,null,null,null,null,null,null,null,null,null,null,"",null,null,null,null,null,"",null,null,null,null,null,null,null,null,null,null,null,"",132,"Fill in supplementary fields","Fill in supplementary fields",{"$f":"IF(T136>U136,\"B cannot be higher than C\",IF(COUNTA(Y136:Z136)=0,\"Fill in supplementary fields\",(V136/2)*(T136/U136)+(V136/2)*(1/SUM(Y136:Z136))))+(IF(LEFT(S136,1)=\"1\",((U136+V136)/AA136)*(T136/(U136+V136))*AB136*AC136*(AA136/(1-AC136)),IF(LEFT(S136,1)=\"2\",IF(COUNTA(T136:V136)=0,\"Fill in supplementary fields\",(U136+V136)*AC136*AB136))))","v":{"$error":"#VALUE!"}},{"$f":"IF(T136>U136,\"B cannot be higher than C\",IFERROR(IF(COUNTA(Y136:Z136)=0,\"Fill in supplementary fields\",V136/2)*(T136/U136)+(V136/2)*(1/Y136),\"Fill in supplementary fields\"))+(IF(LEFT(S136,1)=\"1\",((U136+V136)/AA136)*(T136/(U136+V136))*AB136*AC136*(AA136/(1-AC136)),IF(LEFT(S136,1)=\"2\",IF(COUNTA(T136:V136)=0,\"Fill in supplementary fields\",(U136+V136)*AC136*AB136))))","v":{"$error":"#VALUE!"}},{"$f":"IF(T136>U136,\"B cannot be higher than C\",IFERROR(IF(COUNTA(Y136:Z136)=0,\"Fill in supplementary fields\",IF(Y136=0,V136/2*(T136/U136)+V136/2*(1/Z136),(V136/2)*(T136/U136))),\"Fill in supplementary fields\"))+(IF(LEFT(S136,1)=\"1\",((U136+V136)/AA136)*(T136/(U136+V136))*AB136*AC136*(AA136/(1-AC136)),IF(LEFT(S136,1)=\"2\",IF(COUNTA(T136:V136)=0,\"Fill in supplementary fields\",(U136+V136)*AC136*AB136))))","v":{"$error":"#VALUE!"}},"Enter exposure values in fields A and B","Fill in supplementary fields","Fill in supplementary fields","Fill in supplementary fields","Fill in supplementary fields",{"$f":"$V136","v":0},0,0,0,0,0,0]
[null,null,null,null,null,null,null,null,null,null,null,null,null,null,null,null,null,"",null,null,null,null,null,"",null,null,null,null,null,null,null,null,null,null,null,"",133,"Fill in supplementary fields","Fill in supplementary fields",{"$f":"IF(T137>U137,\"B cannot be higher than C\",IF(COUNTA(Y137:Z137)=0,\"Fill in supplementary fields\",(V137/2)*(T137/U137)+(V137/2)*(1/SUM(Y137:Z137))))+(IF(LEFT(S137,1)=\"1\",((U137+V137)/AA137)*(T137/(U137+V137))*AB137*AC137*(AA137/(1-AC137)),IF(LEFT(S137,1)=\"2\",IF(COUNTA(T137:V137)=0,\"Fill in supplementary fields\",(U137+V137)*AC137*AB137))))","v":{"$error":"#VALUE!"}},{"$f":"IF(T137>U137,\"B cannot be higher than C\",IFERROR(IF(COUNTA(Y137:Z137)=0,\"Fill in supplementary fields\",V137/2)*(T137/U137)+(V137/2)*(1/Y137),\"Fill in supplementary fields\"))+(IF(LEFT(S137,1)=\"1\",((U137+V137)/AA137)*(T137/(U137+V137))*AB137*AC137*(AA137/(1-AC137)),IF(LEFT(S137,1)=\"2\",IF(COUNTA(T137:V137)=0,\"Fill in supplementary fields\",(U137+V137)*AC137*AB137))))","v":{"$error":"#VALUE!"}},{"$f":"IF(T137>U137,\"B cannot be higher than C\",IFERROR(IF(COUNTA(Y137:Z137)=0,\"Fill in supplementary fields\",IF(Y137=0,V137/2*(T137/U137)+V137/2*(1/Z137),(V137/2)*(T137/U137))),\"Fill in supplementary fields\"))+(IF(LEFT(S137,1)=\"1\",((U137+V137)/AA137)*(T137/(U137+V137))*AB137*AC137*(AA137/(1-AC137)),IF(LEFT(S137,1)=\"2\",IF(COUNTA(T137:V137)=0,\"Fill in supplementary fields\",(U137+V137)*AC137*AB137))))","v":{"$error":"#VALUE!"}},"Enter exposure values in fields A and B","Fill in supplementary fields","Fill in supplementary fields","Fill in supplementary fields","Fill in supplementary fields",0,0,0,0,0,0,0]
[null,null,null,null,null,null,null,null,null,null,null,null,null,null,null,null,null,"",null,null,null,null,null,"",null,null,null,null,null,null,null,null,null,null,null,"",134,"Fill in supplementary fields","Fill in supplementary fields",{"$f":"IF(T138>U138,\"B cannot be higher than C\",IF(COUNTA(Y138:Z138)=0,\"Fill in supplementary fields\",(V138/2)*(T138/U138)+(V138/2)*(1/SUM(Y138:Z138))))+(IF(LEFT(S138,1)=\"1\",((T150*AB150)*(AC150/(1-AC150))),IF(LEFT(S138,1)=\"2\",IF(COUNTA(T138:V138)=0,\"Fill in supplementary fields\",(U138+V138)*AC138*AB138))))","v":{"$error":"#VALUE!"}},{"$f":"IF(T138>U138,\"B cannot be higher than C\",IFERROR(IF(COUNTA(Y138:Z138)=0,\"Fill in supplementary fields\",V138/2)*(T138/U138)+(V138/2)*(1/Y138),\"Fill in supplementary fields\"))+(IF(LEFT(S138,1)=\"1\",((T150*AB150)*(AC150/(1-AC150))),IF(LEFT(S138,1)=\"2\",IF(COUNTA(T138:V138)=0,\"Fill in supplementary fields\",(U138+V138)*AC138*AB138))))","v":{"$error":"#VALUE!"}},{"$f":"IF(T138>U138,\"B cannot be higher than C\",IFERROR(IF(COUNTA(Y138:Z138)=0,\"Fill in supplementary fields\",IF(Y138=0,V138/2*(T138/U138)+V138/2*(1/Z138),(V138/2)*(T138/U138))),\"Fill in supplementary fields\"))+(IF(LEFT(S138,1)=\"1\",((T150*AB150)*(AC150/(1-AC150))),IF(LEFT(S138,1)=\"2\",IF(COUNTA(T138:V138)=0,\"Fill in supplementary fields\",(U138+V138)*AC138*AB138))))","v":{"$error":"#VALUE!"}},"Enter exposure values in fields A and B","Fill in supplementary fields","Fill in supplementary fields","Fill in supplementary fields","Fill in supplementary fields",0,0,0,0,0,0,0]
[null,null,null,null,null,null,null,null,null,null,null,null,null,null,null,null,null,"",null,null,null,null,null,"",null,null,null,null,null,null,null,null,null,null,null,"",135,"Fill in supplementary fields","Fill in supplementary fields",{"$f":"IF(T139>U139,\"B cannot be higher than C\",IF(COUNTA(Y139:Z139)=0,\"Fill in supplementary fields\",(V139/2)*(T139/U139)+(V139/2)*(1/SUM(Y139:Z139))))+(IF(LEFT(S139,1)=\"1\",((U139+V139)/AA139)*(T139/(U139+V139))*AB139*AC139*(AA139/(1-AC139)),IF(LEFT(S139,1)=\"2\",IF(COUNTA(T139:V139)=0,\"Fill in supplementary fields\",(U139+V139)*AC139*AB139))))","v":{"$error":"#VALUE!"}},{"$f":"IF(T139>U139,\"B cannot be higher than C\",IFERROR(IF(COUNTA(Y139:Z139)=0,\"Fill in supplementary fields\",V139/2)*(T139/U139)+(V139/2)*(1/Y139),\"Fill in supplementary fields\"))+(IF(LEFT(S139,1)=\"1\",((U139+V139)/AA139)*(T139/(U139+V139))*AB139*AC139*(AA139/(1-AC139)),IF(LEFT(S139,1)=\"2\",IF(COUNTA(T139:V139)=0,\"Fill in supplementary fields\",(U139+V139)*AC139*AB139))))","v":{"$error":"#VALUE!"}},{"$f":"IF(T139>U139,\"B cannot be higher than C\",IFERROR(IF(COUNTA(Y139:Z139)=0,\"Fill in supplementary fields\",IF(Y139=0,V139/2*(T139/U139)+V139/2*(1/Z139),(V139/2)*(T139/U139))),\"Fill in supplementary fields\"))+(IF(LEFT(S139,1)=\"1\",((U139+V139)/AA139)*(T139/(U139+V139))*AB139*AC139*(AA139/(1-AC139)),IF(LEFT(S139,1)=\"2\",IF(COUNTA(T139:V139)=0,\"Fill in supplementary fields\",(U139+V139)*AC139*AB139))))","v":{"$error":"#VALUE!"}},"Enter exposure values in fields A and B","Fill in supplementary fields","Fill in supplementary fields","Fill in supplementary fields","Fill in supplementary fields",0,0,0,0,0,0,0]
[null,null,null,null,null,null,null,null,null,null,null,null,null,null,null,null,null,"",null,null,null,null,null,"",null,null,null,null,null,null,null,null,null,null,null,"",136,"Fill in supplementary fields","Fill in supplementary fields",{"$f":"IF(T140>U140,\"B cannot be higher than C\",IF(COUNTA(Y140:Z140)=0,\"Fill in supplementary fields\",(V140/2)*(T140/U140)+(V140/2)*(1/SUM(Y140:Z140))))+(IF(LEFT(S140,1)=\"1\",((U140+V140)/AA140)*(T140/(U140+V140))*AB140*AC140*(AA140/(1-AC140)),IF(LEFT(S140,1)=\"2\",IF(COUNTA(T140:V140)=0,\"Fill in supplementary fields\",(U140+V140)*AC140*AB140))))","v":{"$error":"#VALUE!"}},{"$f":"IF(T140>U140,\"B cannot be higher than C\",IFERROR(IF(COUNTA(Y140:Z140)=0,\"Fill in supplementary fields\",V140/2)*(T140/U140)+(V140/2)*(1/Y140),\"Fill in supplementary fields\"))+(IF(LEFT(S140,1)=\"1\",((U140+V140)/AA140)*(T140/(U140+V140))*AB140*AC140*(AA140/(1-AC140)),IF(LEFT(S140,1)=\"2\",IF(COUNTA(T140:V140)=0,\"Fill in supplementary fields\",(U140+V140)*AC140*AB140))))","v":{"$error":"#VALUE!"}},{"$f":"IF(T140>U140,\"B cannot be higher than C\",IFERROR(IF(COUNTA(Y140:Z140)=0,\"Fill in supplementary fields\",IF(Y140=0,V140/2*(T140/U140)+V140/2*(1/Z140),(V140/2)*(T140/U140))),\"Fill in supplementary fields\"))+(IF(LEFT(S140,1)=\"1\",((U140+V140)/AA140)*(T140/(U140+V140))*AB140*AC140*(AA140/(1-AC140)),IF(LEFT(S140,1)=\"2\",IF(COUNTA(T140:V140)=0,\"Fill in supplementary fields\",(U140+V140)*AC140*AB140))))","v":{"$error":"#VALUE!"}},"Enter exposure values in fields A and B","Fill in supplementary fields","Fill in supplementary fields","Fill in supplementary fields","Fill in supplementary fields",0,0,0,0,0,0,0]
[null,null,null,null,null,null,null,null,null,null,null,null,null,null,null,null,null,"",null,null,null,null,null,"",null,null,null,null,null,null,null,null,null,null,null,"",137,"Fill in supplementary fields","Fill in supplementary fields",{"$f":"IF(T141>U141,\"B cannot be higher than C\",IF(COUNTA(Y141:Z141)=0,\"Fill in supplementary fields\",(V141/2)*(T141/U141)+(V141/2)*(1/SUM(Y141:Z141))))+(IF(LEFT(S141,1)=\"1\",((T153*AB153)*(AC153/(1-AC153))),IF(LEFT(S141,1)=\"2\",IF(COUNTA(T141:V141)=0,\"Fill in supplementary fields\",(U141+V141)*AC141*AB141))))","v":{"$error":"#VALUE!"}},{"$f":"IF(T141>U141,\"B cannot be higher than C\",IFERROR(IF(COUNTA(Y141:Z141)=0,\"Fill in supplementary fields\",V141/2)*(T141/U141)+(V141/2)*(1/Y141),\"Fill in supplementary fields\"))+(IF(LEFT(S141,1)=\"1\",((T153*AB153)*(AC153/(1-AC153))),IF(LEFT(S141,1)=\"2\",IF(COUNTA(T141:V141)=0,\"Fill in supplementary fields\",(U141+V141)*AC141*AB141))))","v":{"$error":"#VALUE!"}},{"$f":"IF(T141>U141,\"B cannot be higher than C\",IFERROR(IF(COUNTA(Y141:Z141)=0,\"Fill in supplementary fields\",IF(Y141=0,V141/2*(T141/U141)+V141/2*(1/Z141),(V141/2)*(T141/U141))),\"Fill in supplementary fields\"))+(IF(LEFT(S141,1)=\"1\",((T153*AB153)*(AC153/(1-AC153))),IF(LEFT(S141,1)=\"2\",IF(COUNTA(T141:V141)=0,\"Fill in supplementary fields\",(U141+V141)*AC141*AB141))))","v":{"$error":"#VALUE!"}},"Enter exposure values in fields A and B","Fill in supplementary fields","Fill in supplementary fields","Fill in supplementary fields","Fill in supplementary fields",0,0,0,0,0,0,0]
[null,null,null,null,null,null,null,null,null,null,null,null,null,null,null,null,null,"",null,null,null,null,null,"",null,null,null,null,null,null,null,null,null,null,null,"",138,"Fill in supplementary fields","Fill in supplementary fields",{"$f":"IF(T142>U142,\"B cannot be higher than C\",IF(COUNTA(Y142:Z142)=0,\"Fill in supplementary fields\",(V142/2)*(T142/U142)+(V142/2)*(1/SUM(Y142:Z142))))+(IF(LEFT(S142,1)=\"1\",((U142+V142)/AA142)*(T142/(U142+V142))*AB142*AC142*(AA142/(1-AC142)),IF(LEFT(S142,1)=\"2\",IF(COUNTA(T142:V142)=0,\"Fill in supplementary fields\",(U142+V142)*AC142*AB142))))","v":{"$error":"#VALUE!"}},{"$f":"IF(T142>U142,\"B cannot be higher than C\",IFERROR(IF(COUNTA(Y142:Z142)=0,\"Fill in supplementary fields\",V142/2)*(T142/U142)+(V142/2)*(1/Y142),\"Fill in supplementary fields\"))+(IF(LEFT(S142,1)=\"1\",((U142+V142)/AA142)*(T142/(U142+V142))*AB142*AC142*(AA142/(1-AC142)),IF(LEFT(S142,1)=\"2\",IF(COUNTA(T142:V142)=0,\"Fill in supplementary fields\",(U142+V142)*AC142*AB142))))","v":{"$error":"#VALUE!"}},{"$f":"IF(T142>U142,\"B cannot be higher than C\",IFERROR(IF(COUNTA(Y142:Z142)=0,\"Fill in supplementary fields\",IF(Y142=0,V142/2*(T142/U142)+V142/2*(1/Z142),(V142/2)*(T142/U142))),\"Fill in supplementary fields\"))+(IF(LEFT(S142,1)=\"1\",((U142+V142)/AA142)*(T142/(U142+V142))*AB142*AC142*(AA142/(1-AC142)),IF(LEFT(S142,1)=\"2\",IF(COUNTA(T142:V142)=0,\"Fill in supplementary fields\",(U142+V142)*AC142*AB142))))","v":{"$error":"#VALUE!"}},"Enter exposure values in fields A and B","Fill in supplementary fields","Fill in supplementary fields","Fill in supplementary fields","Fill in supplementary fields",0,0,0,0,0,0,0]
[null,null,null,null,null,null,null,null,null,null,null,null,null,null,null,null,null,"",null,null,null,null,null,"",null,null,null,null,null,null,null,null,null,null,null,"",139,"Fill in supplementary fields","Fill in supplementary fields",{"$f":"IF(T143>U143,\"B cannot be higher than C\",IF(COUNTA(Y143:Z143)=0,\"Fill in supplementary fields\",(V143/2)*(T143/U143)+(V143/2)*(1/SUM(Y143:Z143))))+(IF(LEFT(S143,1)=\"1\",((U143+V143)/AA143)*(T143/(U143+V143))*AB143*AC143*(AA143/(1-AC143)),IF(LEFT(S143,1)=\"2\",IF(COUNTA(T143:V143)=0,\"Fill in supplementary fields\",(U143+V143)*AC143*AB143))))","v":{"$error":"#VALUE!"}},{"$f":"IF(T143>U143,\"B cannot be higher than C\",IFERROR(IF(COUNTA(Y143:Z143)=0,\"Fill in supplementary fields\",V143/2)*(T143/U143)+(V143/2)*(1/Y143),\"Fill in supplementary fields\"))+(IF(LEFT(S143,1)=\"1\",((U143+V143)/AA143)*(T143/(U143+V143))*AB143*AC143*(AA143/(1-AC143)),IF(LEFT(S143,1)=\"2\",IF(COUNTA(T143:V143)=0,\"Fill in supplementary fields\",(U143+V143)*AC143*AB143))))","v":{"$error":"#VALUE!"}},{"$f":"IF(T143>U143,\"B cannot be higher than C\",IFERROR(IF(COUNTA(Y143:Z143)=0,\"Fill in supplementary fields\",IF(Y143=0,V143/2*(T143/U143)+V143/2*(1/Z143),(V143/2)*(T143/U143))),\"Fill in supplementary fields\"))+(IF(LEFT(S143,1)=\"1\",((U143+V143)/AA143)*(T143/(U143+V143))*AB143*AC143*(AA143/(1-AC143)),IF(LEFT(S143,1)=\"2\",IF(COUNTA(T143:V143)=0,\"Fill in supplementary fields\",(U143+V143)*AC143*AB143))))","v":{"$error":"#VALUE!"}},"Enter exposure values in fields A and B","Fill in supplementary fields","Fill in supplementary fields","Fill in supplementary fields","Fill in supplementary fields",0,0,0,0,0,0,0]
[null,null,null,null,null,null,null,null,null,null,null,null,null,null,null,null,null,"",null,null,null,null,null,"",null,null,null,null,null,null,null,null,null,null,null,"",140,"Fill in supplementary fields","Fill in supplementary fields",{"$f":"IF(T144>U144,\"B cannot be higher than C\",IF(COUNTA(Y144:Z144)=0,\"Fill in supplementary fields\",(V144/2)*(T144/U144)+(V144/2)*(1/SUM(Y144:Z144))))+(IF(LEFT(S144,1)=\"1\",((T156*AB156)*(AC156/(1-AC156))),IF(LEFT(S144,1)=\"2\",IF(COUNTA(T144:V144)=0,\"Fill in supplementary fields\",(U144+V144)*AC144*AB144))))","v":{"$error":"#VALUE!"}},{"$f":"IF(T144>U144,\"B cannot be higher than C\",IFERROR(IF(COUNTA(Y144:Z144)=0,\"Fill in supplementary fields\",V144/2)*(T144/U144)+(V144/2)*(1/Y144),\"Fill in supplementary fields\"))+(IF(LEFT(S144,1)=\"1\",((T156*AB156)*(AC156/(1-AC156))),IF(LEFT(S144,1)=\"2\",IF(COUNTA(T144:V144)=0,\"Fill in supplementary fields\",(U144+V144)*AC144*AB144))))","v":{"$error":"#VALUE!"}},{"$f":"IF(T144>U144,\"B cannot be higher than C\",IFERROR(IF(COUNTA(Y144:Z144)=0,\"Fill in supplementary fields\",IF(Y144=0,V144/2*(T144/U144)+V144/2*(1/Z144),(V144/2)*(T144/U144))),\"Fill in supplementary fields\"))+(IF(LEFT(S144,1)=\"1\",((T156*AB156)*(AC156/(1-AC156))),IF(LEFT(S144,1)=\"2\",IF(COUNTA(T144:V144)=0,\"Fill in supplementary fields\",(U144+V144)*AC144*AB144))))","v":{"$error":"#VALUE!"}},"Enter exposure values in fields A and B","Fill in supplementary fields","Fill in supplementary fields","Fill in supplementary fields","Fill in supplementary fields",0,0,0,0,0,0,0]
[null,null,null,null,null,null,null,null,null,null,null,null,null,null,null,null,null,"",null,null,null,null,null,"",null,null,null,null,null,null,null,null,null,null,null,"",141,"Fill in supplementary fields","Fill in supplementary fields",{"$f":"IF(T145>U145,\"B cannot be higher than C\",IF(COUNTA(Y145:Z145)=0,\"Fill in supplementary fields\",(V145/2)*(T145/U145)+(V145/2)*(1/SUM(Y145:Z145))))+(IF(LEFT(S145,1)=\"1\",((U145+V145)/AA145)*(T145/(U145+V145))*AB145*AC145*(AA145/(1-AC145)),IF(LEFT(S145,1)=\"2\",IF(COUNTA(T145:V145)=0,\"Fill in supplementary fields\",(U145+V145)*AC145*AB145))))","v":{"$error":"#VALUE!"}},{"$f":"IF(T145>U145,\"B cannot be higher than C\",IFERROR(IF(COUNTA(Y145:Z145)=0,\"Fill in supplementary fields\",V145/2)*(T145/U145)+(V145/2)*(1/Y145),\"Fill in supplementary fields\"))+(IF(LEFT(S145,1)=\"1\",((U145+V145)/AA145)*(T145/(U145+V145))*AB145*AC145*(AA145/(1-AC145)),IF(LEFT(S145,1)=\"2\",IF(COUNTA(T145:V145)=0,\"Fill in supplementary fields\",(U145+V145)*AC145*AB145))))","v":{"$error":"#VALUE!"}},{"$f":"IF(T145>U145,\"B cannot be higher than C\",IFERROR(IF(COUNTA(Y145:Z145)=0,\"Fill in supplementary fields\",IF(Y145=0,V145/2*(T145/U145)+V145/2*(1/Z145),(V145/2)*(T145/U145))),\"Fill in supplementary fields\"))+(IF(LEFT(S145,1)=\"1\",((U145+V145)/AA145)*(T145/(U145+V145))*AB145*AC145*(AA145/(1-AC145)),IF(LEFT(S145,1)=\"2\",IF(COUNTA(T145:V145)=0,\"Fill in supplementary fields\",(U145+V145)*AC145*AB145))))","v":{"$error":"#VALUE!"}},"Enter exposure values in fields A and B","Fill in supplementary fields","Fill in supplementary fields","Fill in supplementary fields","Fill in supplementary fields",0,0,0,0,0,0,0]
[null,null,null,null,null,null,null,null,null,null,null,null,null,null,null,null,null,"",null,null,null,null,null,"",null,null,null,null,null,null,null,null,null,null,null,"",142,"Fill in supplementary fields","Fill in supplementary fields",{"$f":"IF(T146>U146,\"B cannot be higher than C\",IF(COUNTA(Y146:Z146)=0,\"Fill in supplementary fields\",(V146/2)*(T146/U146)+(V146/2)*(1/SUM(Y146:Z146))))+(IF(LEFT(S146,1)=\"1\",((U146+V146)/AA146)*(T146/(U146+V146))*AB146*AC146*(AA146/(1-AC146)),IF(LEFT(S146,1)=\"2\",IF(COUNTA(T146:V146)=0,\"Fill in supplementary fields\",(U146+V146)*AC146*AB146))))","v":{"$error":"#VALUE!"}},{"$f":"IF(T146>U146,\"B cannot be higher than C\",IFERROR(IF(COUNTA(Y146:Z146)=0,\"Fill in supplementary fields\",V146/2)*(T146/U146)+(V146/2)*(1/Y146),\"Fill in supplementary fields\"))+(IF(LEFT(S146,1)=\"1\",((U146+V146)/AA146)*(T146/(U146+V146))*AB146*AC146*(AA146/(1-AC146)),IF(LEFT(S146,1)=\"2\",IF(COUNTA(T146:V146)=0,\"Fill in supplementary fields\",(U146+V146)*AC146*AB146))))","v":{"$error":"#VALUE!"}},{"$f":"IF(T146>U146,\"B cannot be higher than C\",IFERROR(IF(COUNTA(Y146:Z146)=0,\"Fill in supplementary fields\",IF(Y146=0,V146/2*(T146/U146)+V146/2*(1/Z146),(V146/2)*(T146/U146))),\"Fill in supplementary fields\"))+(IF(LEFT(S146,1)=\"1\",((U146+V146)/AA146)*(T146/(U146+V146))*AB146*AC146*(AA146/(1-AC146)),IF(LEFT(S146,1)=\"2\",IF(COUNTA(T146:V146)=0,\"Fill in supplementary fields\",(U146+V146)*AC146*AB146))))","v":{"$error":"#VALUE!"}},"Enter exposure values in fields A and B","Fill in supplementary fields","Fill in supplementary fields","Fill in supplementary fields","Fill in supplementary fields",{"$f":"$V146","v":0},0,0,0,0,0,0]
[null,null,null,null,null,null,null,null,null,null,null,null,null,null,null,null,null,"",null,null,null,null,null,"",null,null,null,null,null,null,null,null,null,null,null,"",143,"Fill in supplementary fields","Fill in supplementary fields",{"$f":"IF(T147>U147,\"B cannot be higher than C\",IF(COUNTA(Y147:Z147)=0,\"Fill in supplementary fields\",(V147/2)*(T147/U147)+(V147/2)*(1/SUM(Y147:Z147))))+(IF(LEFT(S147,1)=\"1\",((T159*AB159)*(AC159/(1-AC159))),IF(LEFT(S147,1)=\"2\",IF(COUNTA(T147:V147)=0,\"Fill in supplementary fields\",(U147+V147)*AC147*AB147))))","v":{"$error":"#VALUE!"}},{"$f":"IF(T147>U147,\"B cannot be higher than C\",IFERROR(IF(COUNTA(Y147:Z147)=0,\"Fill in supplementary fields\",V147/2)*(T147/U147)+(V147/2)*(1/Y147),\"Fill in supplementary fields\"))+(IF(LEFT(S147,1)=\"1\",((T159*AB159)*(AC159/(1-AC159))),IF(LEFT(S147,1)=\"2\",IF(COUNTA(T147:V147)=0,\"Fill in supplementary fields\",(U147+V147)*AC147*AB147))))","v":{"$error":"#VALUE!"}},{"$f":"IF(T147>U147,\"B cannot be higher than C\",IFERROR(IF(COUNTA(Y147:Z147)=0,\"Fill in supplementary fields\",IF(Y147=0,V147/2*(T147/U147)+V147/2*(1/Z147),(V147/2)*(T147/U147))),\"Fill in supplementary fields\"))+(IF(LEFT(S147,1)=\"1\",((T159*AB159)*(AC159/(1-AC159))),IF(LEFT(S147,1)=\"2\",IF(COUNTA(T147:V147)=0,\"Fill in supplementary fields\",(U147+V147)*AC147*AB147))))","v":{"$error":"#VALUE!"}},"Enter exposure values in fields A and B","Fill in supplementary fields","Fill in supplementary fields","Fill in supplementary fields","Fill in supplementary fields",0,0,0,0,0,0,0]
[null,null,null,null,null,null,null,null,null,null,null,null,null,null,null,null,null,"",null,null,null,null,null,"",null,null,null,null,null,null,null,null,null,null,null,"",144,"Fill in supplementary fields","Fill in supplementary fields",{"$f":"IF(T148>U148,\"B cannot be higher than C\",IF(COUNTA(Y148:Z148)=0,\"Fill in supplementary fields\",(V148/2)*(T148/U148)+(V148/2)*(1/SUM(Y148:Z148))))+(IF(LEFT(S148,1)=\"1\",((U148+V148)/AA148)*(T148/(U148+V148))*AB148*AC148*(AA148/(1-AC148)),IF(LEFT(S148,1)=\"2\",IF(COUNTA(T148:V148)=0,\"Fill in supplementary fields\",(U148+V148)*AC148*AB148))))","v":{"$error":"#VALUE!"}},{"$f":"IF(T148>U148,\"B cannot be higher than C\",IFERROR(IF(COUNTA(Y148:Z148)=0,\"Fill in supplementary fields\",V148/2)*(T148/U148)+(V148/2)*(1/Y148),\"Fill in supplementary fields\"))+(IF(LEFT(S148,1)=\"1\",((U148+V148)/AA148)*(T148/(U148+V148))*AB148*AC148*(AA148/(1-AC148)),IF(LEFT(S148,1)=\"2\",IF(COUNTA(T148:V148)=0,\"Fill in supplementary fields\",(U148+V148)*AC148*AB148))))","v":{"$error":"#VALUE!"}},{"$f":"IF(T148>U148,\"B cannot be higher than C\",IFERROR(IF(COUNTA(Y148:Z148)=0,\"Fill in supplementary fields\",IF(Y148=0,V148/2*(T148/U148)+V148/2*(1/Z148),(V148/2)*(T148/U148))),\"Fill in supplementary fields\"))+(IF(LEFT(S148,1)=\"1\",((U148+V148)/AA148)*(T148/(U148+V148))*AB148*AC148*(AA148/(1-AC148)),IF(LEFT(S148,1)=\"2\",IF(COUNTA(T148:V148)=0,\"Fill in supplementary fields\",(U148+V148)*AC148*AB148))))","v":{"$error":"#VALUE!"}},"Enter exposure values in fields A and B","Fill in supplementary fields","Fill in supplementary fields","Fill in supplementary fields","Fill in supplementary fields",0,0,0,0,0,0,0]
[null,null,null,null,null,null,null,null,null,null,null,null,null,null,null,null,null,"",null,null,null,null,null,{"$f":"IFERROR(IF(P149=\"1=Syndicated loan, arranger\",\"1=Official institution\",IF(P149=1,\"1=Official institution\",\"\")),\"\")","v":""},null,null,null,null,null,null,null,null,null,null,null,"",145,"Fill in supplementary fields","Fill in supplementary fields",{"$f":"IF(T149>U149,\"B cannot be higher than C\",IF(COUNTA(Y149:Z149)=0,\"Fill in supplementary fields\",(V149/2)*(T149/U149)+(V149/2)*(1/SUM(Y149:Z149))))+(IF(LEFT(S149,1)=\"1\",((U149+V149)/AA149)*(T149/(U149+V149))*AB149*AC149*(AA149/(1-AC149)),IF(LEFT(S149,1)=\"2\",IF(COUNTA(T149:V149)=0,\"Fill in supplementary fields\",(U149+V149)*AC149*AB149))))","v":{"$error":"#VALUE!"}},{"$f":"IF(T149>U149,\"B cannot be higher than C\",IFERROR(IF(COUNTA(Y149:Z149)=0,\"Fill in supplementary fields\",V149/2)*(T149/U149)+(V149/2)*(1/Y149),\"Fill in supplementary fields\"))+(IF(LEFT(S149,1)=\"1\",((U149+V149)/AA149)*(T149/(U149+V149))*AB149*AC149*(AA149/(1-AC149)),IF(LEFT(S149,1)=\"2\",IF(COUNTA(T149:V149)=0,\"Fill in supplementary fields\",(U149+V149)*AC149*AB149))))","v":{"$error":"#VALUE!"}},{"$f":"IF(T149>U149,\"B cannot be higher than C\",IFERROR(IF(COUNTA(Y149:Z149)=0,\"Fill in supplementary fields\",IF(Y149=0,V149/2*(T149/U149)+V149/2*(1/Z149),(V149/2)*(T149/U149))),\"Fill in supplementary fields\"))+(IF(LEFT(S149,1)=\"1\",((U149+V149)/AA149)*(T149/(U149+V149))*AB149*AC149*(AA149/(1-AC149)),IF(LEFT(S149,1)=\"2\",IF(COUNTA(T149:V149)=0,\"Fill in supplementary fields\",(U149+V149)*AC149*AB149))))","v":{"$error":"#VALUE!"}},"Enter exposure values in fields A and B","Fill in supplementary fields","Fill in supplementary fields","Fill in supplementary fields","Fill in supplementary fields",0,0,0,0,0,0,0]
[null,null,null,null,null,null,null,null,null,null,null,null,null,null,null,null,null,"",null,null,null,null,null,"",null,null,null,null,null,null,null,null,null,null,null,"",146,"Fill in supplementary fields","Fill in supplementary fields",{"$f":"IF(T150>U150,\"B cannot be higher than C\",IF(COUNTA(Y150:Z150)=0,\"Fill in supplementary fields\",(V150/2)*(T150/U150)+(V150/2)*(1/SUM(Y150:Z150))))+(IF(LEFT(S150,1)=\"1\",((T162*AB162)*(AC162/(1-AC162))),IF(LEFT(S150,1)=\"2\",IF(COUNTA(T150:V150)=0,\"Fill in supplementary fields\",(U150+V150)*AC150*AB150))))","v":{"$error":"#VALUE!"}},{"$f":"IF(T150>U150,\"B cannot be higher than C\",IFERROR(IF(COUNTA(Y150:Z150)=0,\"Fill in supplementary fields\",V150/2)*(T150/U150)+(V150/2)*(1/Y150),\"Fill in supplementary fields\"))+(IF(LEFT(S150,1)=\"1\",((T162*AB162)*(AC162/(1-AC162))),IF(LEFT(S150,1)=\"2\",IF(COUNTA(T150:V150)=0,\"Fill in supplementary fields\",(U150+V150)*AC150*AB150))))","v":{"$error":"#VALUE!"}},{"$f":"IF(T150>U150,\"B cannot be higher than C\",IFERROR(IF(COUNTA(Y150:Z150)=0,\"Fill in supplementary fields\",IF(Y150=0,V150/2*(T150/U150)+V150/2*(1/Z150),(V150/2)*(T150/U150))),\"Fill in supplementary fields\"))+(IF(LEFT(S150,1)=\"1\",((T162*AB162)*(AC162/(1-AC162))),IF(LEFT(S150,1)=\"2\",IF(COUNTA(T150:V150)=0,\"Fill in supplementary fields\",(U150+V150)*AC150*AB150))))","v":{"$error":"#VALUE!"}},"Enter exposure values in fields A and B","Fill in supplementary fields","Fill in supplementary fields","Fill in supplementary fields","Fill in supplementary fields",0,0,0,0,0,0,0]
[null,null,null,null,null,null,null,null,null,null,null,null,null,null,null,null,null,"",null,null,null,null,null,"",null,null,null,null,null,null,null,null,null,null,null,"",147,"Fill in supplementary fields","Fill in supplementary fields",{"$f":"IF(T151>U151,\"B cannot be higher than C\",IF(COUNTA(Y151:Z151)=0,\"Fill in supplementary fields\",(V151/2)*(T151/U151)+(V151/2)*(1/SUM(Y151:Z151))))+(IF(LEFT(S151,1)=\"1\",((U151+V151)/AA151)*(T151/(U151+V151))*AB151*AC151*(AA151/(1-AC151)),IF(LEFT(S151,1)=\"2\",IF(COUNTA(T151:V151)=0,\"Fill in supplementary fields\",(U151+V151)*AC151*AB151))))","v":{"$error":"#VALUE!"}},{"$f":"IF(T151>U151,\"B cannot be higher than C\",IFERROR(IF(COUNTA(Y151:Z151)=0,\"Fill in supplementary fields\",V151/2)*(T151/U151)+(V151/2)*(1/Y151),\"Fill in supplementary fields\"))+(IF(LEFT(S151,1)=\"1\",((U151+V151)/AA151)*(T151/(U151+V151))*AB151*AC151*(AA151/(1-AC151)),IF(LEFT(S151,1)=\"2\",IF(COUNTA(T151:V151)=0,\"Fill in supplementary fields\",(U151+V151)*AC151*AB151))))","v":{"$error":"#VALUE!"}},{"$f":"IF(T151>U151,\"B cannot be higher than C\",IFERROR(IF(COUNTA(Y151:Z151)=0,\"Fill in supplementary fields\",IF(Y151=0,V151/2*(T151/U151)+V151/2*(1/Z151),(V151/2)*(T151/U151))),\"Fill in supplementary fields\"))+(IF(LEFT(S151,1)=\"1\",((U151+V151)/AA151)*(T151/(U151+V151))*AB151*AC151*(AA151/(1-AC151)),IF(LEFT(S151,1)=\"2\",IF(COUNTA(T151:V151)=0,\"Fill in supplementary fields\",(U151+V151)*AC151*AB151))))","v":{"$error":"#VALUE!"}},"Enter exposure values in fields A and B","Fill in supplementary fields","Fill in supplementary fields","Fill in supplementary fields","Fill in supplementary fields",0,0,0,0,0,0,0]
[null,null,null,null,null,null,null,null,null,null,null,null,null,null,null,null,null,"",null,null,null,null,null,"",null,null,null,null,null,null,null,null,null,null,null,"",148,"Fill in supplementary fields","Fill in supplementary fields",{"$f":"IF(T152>U152,\"B cannot be higher than C\",IF(COUNTA(Y152:Z152)=0,\"Fill in supplementary fields\",(V152/2)*(T152/U152)+(V152/2)*(1/SUM(Y152:Z152))))+(IF(LEFT(S152,1)=\"1\",((U152+V152)/AA152)*(T152/(U152+V152))*AB152*AC152*(AA152/(1-AC152)),IF(LEFT(S152,1)=\"2\",IF(COUNTA(T152:V152)=0,\"Fill in supplementary fields\",(U152+V152)*AC152*AB152))))","v":{"$error":"#VALUE!"}},{"$f":"IF(T152>U152,\"B cannot be higher than C\",IFERROR(IF(COUNTA(Y152:Z152)=0,\"Fill in supplementary fields\",V152/2)*(T152/U152)+(V152/2)*(1/Y152),\"Fill in supplementary fields\"))+(IF(LEFT(S152,1)=\"1\",((U152+V152)/AA152)*(T152/(U152+V152))*AB152*AC152*(AA152/(1-AC152)),IF(LEFT(S152,1)=\"2\",IF(COUNTA(T152:V152)=0,\"Fill in supplementary fields\",(U152+V152)*AC152*AB152))))","v":{"$error":"#VALUE!"}},{"$f":"IF(T152>U152,\"B cannot be higher than C\",IFERROR(IF(COUNTA(Y152:Z152)=0,\"Fill in supplementary fields\",IF(Y152=0,V152/2*(T152/U152)+V152/2*(1/Z152),(V152/2)*(T152/U152))),\"Fill in supplementary fields\"))+(IF(LEFT(S152,1)=\"1\",((U152+V152)/AA152)*(T152/(U152+V152))*AB152*AC152*(AA152/(1-AC152)),IF(LEFT(S152,1)=\"2\",IF(COUNTA(T152:V152)=0,\"Fill in supplementary fields\",(U152+V152)*AC152*AB152))))","v":{"$error":"#VALUE!"}},"Enter exposure values in fields A and B","Fill in supplementary fields","Fill in supplementary fields","Fill in supplementary fields","Fill in supplementary fields",0,0,0,0,0,0,0]
[null,null,null,null,null,null,null,null,null,null,null,null,null,null,null,null,null,"",null,null,null,null,null,"",null,null,null,null,null,null,null,null,null,null,null,"",149,"Fill in supplementary fields","Fill in supplementary fields",{"$f":"IF(T153>U153,\"B cannot be higher than C\",IF(COUNTA(Y153:Z153)=0,\"Fill in supplementary fields\",(V153/2)*(T153/U153)+(V153/2)*(1/SUM(Y153:Z153))))+(IF(LEFT(S153,1)=\"1\",((T165*AB165)*(AC165/(1-AC165))),IF(LEFT(S153,1)=\"2\",IF(COUNTA(T153:V153)=0,\"Fill in supplementary fields\",(U153+V153)*AC153*AB153))))","v":{"$error":"#VALUE!"}},{"$f":"IF(T153>U153,\"B cannot be higher than C\",IFERROR(IF(COUNTA(Y153:Z153)=0,\"Fill in supplementary fields\",V153/2)*(T153/U153)+(V153/2)*(1/Y153),\"Fill in supplementary fields\"))+(IF(LEFT(S153,1)=\"1\",((T165*AB165)*(AC165/(1-AC165))),IF(LEFT(S153,1)=\"2\",IF(COUNTA(T153:V153)=0,\"Fill in supplementary fields\",(U153+V153)*AC153*AB153))))","v":{"$error":"#VALUE!"}},{"$f":"IF(T153>U153,\"B cannot be higher than C\",IFERROR(IF(COUNTA(Y153:Z153)=0,\"Fill in supplementary fields\",IF(Y153=0,V153/2*(T153/U153)+V153/2*(1/Z153),(V153/2)*(T153/U153))),\"Fill in supplementary fields\"))+(IF(LEFT(S153,1)=\"1\",((T165*AB165)*(AC165/(1-AC165))),IF(LEFT(S153,1)=\"2\",IF(COUNTA(T153:V153)=0,\"Fill in supplementary fields\",(U153+V153)*AC153*AB153))))","v":{"$error":"#VALUE!"}},"Enter exposure values in fields A and B","Fill in supplementary fields","Fill in supplementary fields","Fill in supplementary fields","Fill in supplementary fields",0,0,0,0,0,0,0]
[null,null,null,null,null,null,null,null,null,null,null,null,null,null,null,null,null,"",null,null,null,null,null,"",null,null,null,null,null,null,null,null,null,null,null,"",150,"Fill in supplementary fields","Fill in supplementary fields",{"$f":"IF(T154>U154,\"B cannot be higher than C\",IF(COUNTA(Y154:Z154)=0,\"Fill in supplementary fields\",(V154/2)*(T154/U154)+(V154/2)*(1/SUM(Y154:Z154))))+(IF(LEFT(S154,1)=\"1\",((U154+V154)/AA154)*(T154/(U154+V154))*AB154*AC154*(AA154/(1-AC154)),IF(LEFT(S154,1)=\"2\",IF(COUNTA(T154:V154)=0,\"Fill in supplementary fields\",(U154+V154)*AC154*AB154))))","v":{"$error":"#VALUE!"}},{"$f":"IF(T154>U154,\"B cannot be higher than C\",IFERROR(IF(COUNTA(Y154:Z154)=0,\"Fill in supplementary fields\",V154/2)*(T154/U154)+(V154/2)*(1/Y154),\"Fill in supplementary fields\"))+(IF(LEFT(S154,1)=\"1\",((U154+V154)/AA154)*(T154/(U154+V154))*AB154*AC154*(AA154/(1-AC154)),IF(LEFT(S154,1)=\"2\",IF(COUNTA(T154:V154)=0,\"Fill in supplementary fields\",(U154+V154)*AC154*AB154))))","v":{"$error":"#VALUE!"}},{"$f":"IF(T154>U154,\"B cannot be higher than C\",IFERROR(IF(COUNTA(Y154:Z154)=0,\"Fill in supplementary fields\",IF(Y154=0,V154/2*(T154/U154)+V154/2*(1/Z154),(V154/2)*(T154/U154))),\"Fill in supplementary fields\"))+(IF(LEFT(S154,1)=\"1\",((U154+V154)/AA154)*(T154/(U154+V154))*AB154*AC154*(AA154/(1-AC154)),IF(LEFT(S154,1)=\"2\",IF(COUNTA(T154:V154)=0,\"Fill in supplementary fields\",(U154+V154)*AC154*AB154))))","v":{"$error":"#VALUE!"}},"Enter exposure values in fields A and B","Fill in supplementary fields","Fill in supplementary fields","Fill in supplementary fields","Fill in supplementary fields",0,0,0,0,0,0,0]
[null,null,null,null,null,null,null,null,null,null,null,null,null,null,null,null,null,"",null,null,null,null,null,"",null,null,null,null,null,null,null,null,null,null,null,"",151,"Fill in supplementary fields","Fill in supplementary fields",{"$f":"IF(T155>U155,\"B cannot be higher than C\",IF(COUNTA(Y155:Z155)=0,\"Fill in supplementary fields\",(V155/2)*(T155/U155)+(V155/2)*(1/SUM(Y155:Z155))))+(IF(LEFT(S155,1)=\"1\",((U155+V155)/AA155)*(T155/(U155+V155))*AB155*AC155*(AA155/(1-AC155)),IF(LEFT(S155,1)=\"2\",IF(COUNTA(T155:V155)=0,\"Fill in supplementary fields\",(U155+V155)*AC155*AB155))))","v":{"$error":"#VALUE!"}},{"$f":"IF(T155>U155,\"B cannot be higher than C\",IFERROR(IF(COUNTA(Y155:Z155)=0,\"Fill in supplementary fields\",V155/2)*(T155/U155)+(V155/2)*(1/Y155),\"Fill in supplementary fields\"))+(IF(LEFT(S155,1)=\"1\",((U155+V155)/AA155)*(T155/(U155+V155))*AB155*AC155*(AA155/(1-AC155)),IF(LEFT(S155,1)=\"2\",IF(COUNTA(T155:V155)=0,\"Fill in supplementary fields\",(U155+V155)*AC155*AB155))))","v":{"$error":"#VALUE!"}},{"$f":"IF(T155>U155,\"B cannot be higher than C\",IFERROR(IF(COUNTA(Y155:Z155)=0,\"Fill in supplementary fields\",IF(Y155=0,V155/2*(T155/U155)+V155/2*(1/Z155),(V155/2)*(T155/U155))),\"Fill in supplementary fields\"))+(IF(LEFT(S155,1)=\"1\",((U155+V155)/AA155)*(T155/(U155+V155))*AB155*AC155*(AA155/(1-AC155)),IF(LEFT(S155,1)=\"2\",IF(COUNTA(T155:V155)=0,\"Fill in supplementary fields\",(U155+V155)*AC155*AB155))))","v":{"$error":"#VALUE!"}},"Enter exposure values in fields A and B","Fill in supplementary fields","Fill in supplementary fields","Fill in supplementary fields","Fill in supplementary fields",0,0,0,0,0,0,0]
[null,null,null,null,null,null,null,null,null,null,null,null,null,null,null,null,null,"",null,null,null,null,null,"",null,null,null,null,null,null,null,null,null,null,null,"",152,"Fill in supplementary fields","Fill in supplementary fields",{"$f":"IF(T156>U156,\"B cannot be higher than C\",IF(COUNTA(Y156:Z156)=0,\"Fill in supplementary fields\",(V156/2)*(T156/U156)+(V156/2)*(1/SUM(Y156:Z156))))+(IF(LEFT(S156,1)=\"1\",((T168*AB168)*(AC168/(1-AC168))),IF(LEFT(S156,1)=\"2\",IF(COUNTA(T156:V156)=0,\"Fill in supplementary fields\",(U156+V156)*AC156*AB156))))","v":{"$error":"#VALUE!"}},{"$f":"IF(T156>U156,\"B cannot be higher than C\",IFERROR(IF(COUNTA(Y156:Z156)=0,\"Fill in supplementary fields\",V156/2)*(T156/U156)+(V156/2)*(1/Y156),\"Fill in supplementary fields\"))+(IF(LEFT(S156,1)=\"1\",((T168*AB168)*(AC168/(1-AC168))),IF(LEFT(S156,1)=\"2\",IF(COUNTA(T156:V156)=0,\"Fill in supplementary fields\",(U156+V156)*AC156*AB156))))","v":{"$error":"#VALUE!"}},{"$f":"IF(T156>U156,\"B cannot be higher than C\",IFERROR(IF(COUNTA(Y156:Z156)=0,\"Fill in supplementary fields\",IF(Y156=0,V156/2*(T156/U156)+V156/2*(1/Z156),(V156/2)*(T156/U156))),\"Fill in supplementary fields\"))+(IF(LEFT(S156,1)=\"1\",((T168*AB168)*(AC168/(1-AC168))),IF(LEFT(S156,1)=\"2\",IF(COUNTA(T156:V156)=0,\"Fill in supplementary fields\",(U156+V156)*AC156*AB156))))","v":{"$error":"#VALUE!"}},"Enter exposure values in fields A and B","Fill in supplementary fields","Fill in supplementary fields","Fill in supplementary fields","Fill in supplementary fields",{"$f":"$V156","v":0},0,0,0,0,0,0]
[null,null,null,null,null,null,null,null,null,null,null,null,null,null,null,null,null,"",null,null,null,null,null,"",null,null,null,null,null,null,null,null,null,null,null,"",153,"Fill in supplementary fields","Fill in supplementary fields",{"$f":"IF(T157>U157,\"B cannot be higher than C\",IF(COUNTA(Y157:Z157)=0,\"Fill in supplementary fields\",(V157/2)*(T157/U157)+(V157/2)*(1/SUM(Y157:Z157))))+(IF(LEFT(S157,1)=\"1\",((U157+V157)/AA157)*(T157/(U157+V157))*AB157*AC157*(AA157/(1-AC157)),IF(LEFT(S157,1)=\"2\",IF(COUNTA(T157:V157)=0,\"Fill in supplementary fields\",(U157+V157)*AC157*AB157))))","v":{"$error":"#VALUE!"}},{"$f":"IF(T157>U157,\"B cannot be higher than C\",IFERROR(IF(COUNTA(Y157:Z157)=0,\"Fill in supplementary fields\",V157/2)*(T157/U157)+(V157/2)*(1/Y157),\"Fill in supplementary fields\"))+(IF(LEFT(S157,1)=\"1\",((U157+V157)/AA157)*(T157/(U157+V157))*AB157*AC157*(AA157/(1-AC157)),IF(LEFT(S157,1)=\"2\",IF(COUNTA(T157:V157)=0,\"Fill in supplementary fields\",(U157+V157)*AC157*AB157))))","v":{"$error":"#VALUE!"}},{"$f":"IF(T157>U157,\"B cannot be higher than C\",IFERROR(IF(COUNTA(Y157:Z157)=0,\"Fill in supplementary fields\",IF(Y157=0,V157/2*(T157/U157)+V157/2*(1/Z157),(V157/2)*(T157/U157))),\"Fill in supplementary fields\"))+(IF(LEFT(S157,1)=\"1\",((U157+V157)/AA157)*(T157/(U157+V157))*AB157*AC157*(AA157/(1-AC157)),IF(LEFT(S157,1)=\"2\",IF(COUNTA(T157:V157)=0,\"Fill in supplementary fields\",(U157+V157)*AC157*AB157))))","v":{"$error":"#VALUE!"}},"Enter exposure values in fields A and B","Fill in supplementary fields","Fill in supplementary fields","Fill in supplementary fields","Fill in supplementary fields",0,0,0,0,0,0,0]
[null,null,null,null,null,null,null,null,null,null,null,null,null,null,null,null,null,"",null,null,null,null,null,"",null,null,null,null,null,null,null,null,null,null,null,"",154,"Fill in supplementary fields","Fill in supplementary fields",{"$f":"IF(T158>U158,\"B cannot be higher than C\",IF(COUNTA(Y158:Z158)=0,\"Fill in supplementary fields\",(V158/2)*(T158/U158)+(V158/2)*(1/SUM(Y158:Z158))))+(IF(LEFT(S158,1)=\"1\",((U158+V158)/AA158)*(T158/(U158+V158))*AB158*AC158*(AA158/(1-AC158)),IF(LEFT(S158,1)=\"2\",IF(COUNTA(T158:V158)=0,\"Fill in supplementary fields\",(U158+V158)*AC158*AB158))))","v":{"$error":"#VALUE!"}},{"$f":"IF(T158>U158,\"B cannot be higher than C\",IFERROR(IF(COUNTA(Y158:Z158)=0,\"Fill in supplementary fields\",V158/2)*(T158/U158)+(V158/2)*(1/Y158),\"Fill in supplementary fields\"))+(IF(LEFT(S158,1)=\"1\",((U158+V158)/AA158)*(T158/(U158+V158))*AB158*AC158*(AA158/(1-AC158)),IF(LEFT(S158,1)=\"2\",IF(COUNTA(T158:V158)=0,\"Fill in supplementary fields\",(U158+V158)*AC158*AB158))))","v":{"$error":"#VALUE!"}},{"$f":"IF(T158>U158,\"B cannot be higher than C\",IFERROR(IF(COUNTA(Y158:Z158)=0,\"Fill in supplementary fields\",IF(Y158=0,V158/2*(T158/U158)+V158/2*(1/Z158),(V158/2)*(T158/U158))),\"Fill in supplementary fields\"))+(IF(LEFT(S158,1)=\"1\",((U158+V158)/AA158)*(T158/(U158+V158))*AB158*AC158*(AA158/(1-AC158)),IF(LEFT(S158,1)=\"2\",IF(COUNTA(T158:V158)=0,\"Fill in supplementary fields\",(U158+V158)*AC158*AB158))))","v":{"$error":"#VALUE!"}},"Enter exposure values in fields A and B","Fill in supplementary fields","Fill in supplementary fields","Fill in supplementary fields","Fill in supplementary fields",0,0,0,0,0,0,0]
[null,null,null,null,null,null,null,null,null,null,null,null,null,null,null,null,null,"",null,null,null,null,null,"",null,null,null,null,null,null,null,null,null,null,null,"",155,"Fill in supplementary fields","Fill in supplementary fields",{"$f":"IF(T159>U159,\"B cannot be higher than C\",IF(COUNTA(Y159:Z159)=0,\"Fill in supplementary fields\",(V159/2)*(T159/U159)+(V159/2)*(1/SUM(Y159:Z159))))+(IF(LEFT(S159,1)=\"1\",((T171*AB171)*(AC171/(1-AC171))),IF(LEFT(S159,1)=\"2\",IF(COUNTA(T159:V159)=0,\"Fill in supplementary fields\",(U159+V159)*AC159*AB159))))","v":{"$error":"#VALUE!"}},{"$f":"IF(T159>U159,\"B cannot be higher than C\",IFERROR(IF(COUNTA(Y159:Z159)=0,\"Fill in supplementary fields\",V159/2)*(T159/U159)+(V159/2)*(1/Y159),\"Fill in supplementary fields\"))+(IF(LEFT(S159,1)=\"1\",((T171*AB171)*(AC171/(1-AC171))),IF(LEFT(S159,1)=\"2\",IF(COUNTA(T159:V159)=0,\"Fill in supplementary fields\",(U159+V159)*AC159*AB159))))","v":{"$error":"#VALUE!"}},{"$f":"IF(T159>U159,\"B cannot be higher than C\",IFERROR(IF(COUNTA(Y159:Z159)=0,\"Fill in supplementary fields\",IF(Y159=0,V159/2*(T159/U159)+V159/2*(1/Z159),(V159/2)*(T159/U159))),\"Fill in supplementary fields\"))+(IF(LEFT(S159,1)=\"1\",((T171*AB171)*(AC171/(1-AC171))),IF(LEFT(S159,1)=\"2\",IF(COUNTA(T159:V159)=0,\"Fill in supplementary fields\",(U159+V159)*AC159*AB159))))","v":{"$error":"#VALUE!"}},"Enter exposure values in fields A and B","Fill in supplementary fields","Fill in supplementary fields","Fill in supplementary fields","Fill in supplementary fields",0,0,0,0,0,0,0]
[null,null,null,null,null,null,null,null,null,null,null,null,null,null,null,null,null,"",null,null,null,null,null,"",null,null,null,null,null,null,null,null,null,null,null,"",156,"Fill in supplementary fields","Fill in supplementary fields",{"$f":"IF(T160>U160,\"B cannot be higher than C\",IF(COUNTA(Y160:Z160)=0,\"Fill in supplementary fields\",(V160/2)*(T160/U160)+(V160/2)*(1/SUM(Y160:Z160))))+(IF(LEFT(S160,1)=\"1\",((U160+V160)/AA160)*(T160/(U160+V160))*AB160*AC160*(AA160/(1-AC160)),IF(LEFT(S160,1)=\"2\",IF(COUNTA(T160:V160)=0,\"Fill in supplementary fields\",(U160+V160)*AC160*AB160))))","v":{"$error":"#VALUE!"}},{"$f":"IF(T160>U160,\"B cannot be higher than C\",IFERROR(IF(COUNTA(Y160:Z160)=0,\"Fill in supplementary fields\",V160/2)*(T160/U160)+(V160/2)*(1/Y160),\"Fill in supplementary fields\"))+(IF(LEFT(S160,1)=\"1\",((U160+V160)/AA160)*(T160/(U160+V160))*AB160*AC160*(AA160/(1-AC160)),IF(LEFT(S160,1)=\"2\",IF(COUNTA(T160:V160)=0,\"Fill in supplementary fields\",(U160+V160)*AC160*AB160))))","v":{"$error":"#VALUE!"}},{"$f":"IF(T160>U160,\"B cannot be higher than C\",IFERROR(IF(COUNTA(Y160:Z160)=0,\"Fill in supplementary fields\",IF(Y160=0,V160/2*(T160/U160)+V160/2*(1/Z160),(V160/2)*(T160/U160))),\"Fill in supplementary fields\"))+(IF(LEFT(S160,1)=\"1\",((U160+V160)/AA160)*(T160/(U160+V160))*AB160*AC160*(AA160/(1-AC160)),IF(LEFT(S160,1)=\"2\",IF(COUNTA(T160:V160)=0,\"Fill in supplementary fields\",(U160+V160)*AC160*AB160))))","v":{"$error":"#VALUE!"}},"Enter exposure values in fields A and B","Fill in supplementary fields","Fill in supplementary fields","Fill in supplementary fields","Fill in supplementary fields",0,0,0,0,0,0,0]
[null,null,null,null,null,null,null,null,null,null,null,null,null,null,null,null,null,"",null,null,null,null,null,"",null,null,null,null,null,null,null,null,null,null,null,"",157,"Fill in supplementary fields","Fill in supplementary fields",{"$f":"IF(T161>U161,\"B cannot be higher than C\",IF(COUNTA(Y161:Z161)=0,\"Fill in supplementary fields\",(V161/2)*(T161/U161)+(V161/2)*(1/SUM(Y161:Z161))))+(IF(LEFT(S161,1)=\"1\",((U161+V161)/AA161)*(T161/(U161+V161))*AB161*AC161*(AA161/(1-AC161)),IF(LEFT(S161,1)=\"2\",IF(COUNTA(T161:V161)=0,\"Fill in supplementary fields\",(U161+V161)*AC161*AB161))))","v":{"$error":"#VALUE!"}},{"$f":"IF(T161>U161,\"B cannot be higher than C\",IFERROR(IF(COUNTA(Y161:Z161)=0,\"Fill in supplementary fields\",V161/2)*(T161/U161)+(V161/2)*(1/Y161),\"Fill in supplementary fields\"))+(IF(LEFT(S161,1)=\"1\",((U161+V161)/AA161)*(T161/(U161+V161))*AB161*AC161*(AA161/(1-AC161)),IF(LEFT(S161,1)=\"2\",IF(COUNTA(T161:V161)=0,\"Fill in supplementary fields\",(U161+V161)*AC161*AB161))))","v":{"$error":"#VALUE!"}},{"$f":"IF(T161>U161,\"B cannot be higher than C\",IFERROR(IF(COUNTA(Y161:Z161)=0,\"Fill in supplementary fields\",IF(Y161=0,V161/2*(T161/U161)+V161/2*(1/Z161),(V161/2)*(T161/U161))),\"Fill in supplementary fields\"))+(IF(LEFT(S161,1)=\"1\",((U161+V161)/AA161)*(T161/(U161+V161))*AB161*AC161*(AA161/(1-AC161)),IF(LEFT(S161,1)=\"2\",IF(COUNTA(T161:V161)=0,\"Fill in supplementary fields\",(U161+V161)*AC161*AB161))))","v":{"$error":"#VALUE!"}},"Enter exposure values in fields A and B","Fill in supplementary fields","Fill in supplementary fields","Fill in supplementary fields","Fill in supplementary fields",0,0,0,0,0,0,0]
[null,null,null,null,null,null,null,null,null,null,null,null,null,null,null,null,null,"",null,null,null,null,null,"",null,null,null,null,null,null,null,null,null,null,null,"",158,"Fill in supplementary fields","Fill in supplementary fields",{"$f":"IF(T162>U162,\"B cannot be higher than C\",IF(COUNTA(Y162:Z162)=0,\"Fill in supplementary fields\",(V162/2)*(T162/U162)+(V162/2)*(1/SUM(Y162:Z162))))+(IF(LEFT(S162,1)=\"1\",((T174*AB174)*(AC174/(1-AC174))),IF(LEFT(S162,1)=\"2\",IF(COUNTA(T162:V162)=0,\"Fill in supplementary fields\",(U162+V162)*AC162*AB162))))","v":{"$error":"#VALUE!"}},{"$f":"IF(T162>U162,\"B cannot be higher than C\",IFERROR(IF(COUNTA(Y162:Z162)=0,\"Fill in supplementary fields\",V162/2)*(T162/U162)+(V162/2)*(1/Y162),\"Fill in supplementary fields\"))+(IF(LEFT(S162,1)=\"1\",((T174*AB174)*(AC174/(1-AC174))),IF(LEFT(S162,1)=\"2\",IF(COUNTA(T162:V162)=0,\"Fill in supplementary fields\",(U162+V162)*AC162*AB162))))","v":{"$error":"#VALUE!"}},{"$f":"IF(T162>U162,\"B cannot be higher than C\",IFERROR(IF(COUNTA(Y162:Z162)=0,\"Fill in supplementary fields\",IF(Y162=0,V162/2*(T162/U162)+V162/2*(1/Z162),(V162/2)*(T162/U162))),\"Fill in supplementary fields\"))+(IF(LEFT(S162,1)=\"1\",((T174*AB174)*(AC174/(1-AC174))),IF(LEFT(S162,1)=\"2\",IF(COUNTA(T162:V162)=0,\"Fill in supplementary fields\",(U162+V162)*AC162*AB162))))","v":{"$error":"#VALUE!"}},"Enter exposure values in fields A and B","Fill in supplementary fields","Fill in supplementary fields","Fill in supplementary fields","Fill in supplementary fields",0,0,0,0,0,0,0]
[null,null,null,null,null,null,null,null,null,null,null,null,null,null,null,null,null,"",null,null,null,null,null,"",null,null,null,null,null,null,null,null,null,null,null,"",159,"Fill in supplementary fields","Fill in supplementary fields",{"$f":"IF(T163>U163,\"B cannot be higher than C\",IF(COUNTA(Y163:Z163)=0,\"Fill in supplementary fields\",(V163/2)*(T163/U163)+(V163/2)*(1/SUM(Y163:Z163))))+(IF(LEFT(S163,1)=\"1\",((U163+V163)/AA163)*(T163/(U163+V163))*AB163*AC163*(AA163/(1-AC163)),IF(LEFT(S163,1)=\"2\",IF(COUNTA(T163:V163)=0,\"Fill in supplementary fields\",(U163+V163)*AC163*AB163))))","v":{"$error":"#VALUE!"}},{"$f":"IF(T163>U163,\"B cannot be higher than C\",IFERROR(IF(COUNTA(Y163:Z163)=0,\"Fill in supplementary fields\",V163/2)*(T163/U163)+(V163/2)*(1/Y163),\"Fill in supplementary fields\"))+(IF(LEFT(S163,1)=\"1\",((U163+V163)/AA163)*(T163/(U163+V163))*AB163*AC163*(AA163/(1-AC163)),IF(LEFT(S163,1)=\"2\",IF(COUNTA(T163:V163)=0,\"Fill in supplementary fields\",(U163+V163)*AC163*AB163))))","v":{"$error":"#VALUE!"}},{"$f":"IF(T163>U163,\"B cannot be higher than C\",IFERROR(IF(COUNTA(Y163:Z163)=0,\"Fill in supplementary fields\",IF(Y163=0,V163/2*(T163/U163)+V163/2*(1/Z163),(V163/2)*(T163/U163))),\"Fill in supplementary fields\"))+(IF(LEFT(S163,1)=\"1\",((U163+V163)/AA163)*(T163/(U163+V163))*AB163*AC163*(AA163/(1-AC163)),IF(LEFT(S163,1)=\"2\",IF(COUNTA(T163:V163)=0,\"Fill in supplementary fields\",(U163+V163)*AC163*AB163))))","v":{"$error":"#VALUE!"}},"Enter exposure values in fields A and B","Fill in supplementary fields","Fill in supplementary fields","Fill in supplementary fields","Fill in supplementary fields",0,0,0,0,0,0,0]
[null,null,null,null,null,null,null,null,null,null,null,null,null,null,null,null,null,"",null,null,null,null,null,"",null,null,null,null,null,null,null,null,null,null,null,"",160,"Fill in supplementary fields","Fill in supplementary fields",{"$f":"IF(T164>U164,\"B cannot be higher than C\",IF(COUNTA(Y164:Z164)=0,\"Fill in supplementary fields\",(V164/2)*(T164/U164)+(V164/2)*(1/SUM(Y164:Z164))))+(IF(LEFT(S164,1)=\"1\",((U164+V164)/AA164)*(T164/(U164+V164))*AB164*AC164*(AA164/(1-AC164)),IF(LEFT(S164,1)=\"2\",IF(COUNTA(T164:V164)=0,\"Fill in supplementary fields\",(U164+V164)*AC164*AB164))))","v":{"$error":"#VALUE!"}},{"$f":"IF(T164>U164,\"B cannot be higher than C\",IFERROR(IF(COUNTA(Y164:Z164)=0,\"Fill in supplementary fields\",V164/2)*(T164/U164)+(V164/2)*(1/Y164),\"Fill in supplementary fields\"))+(IF(LEFT(S164,1)=\"1\",((U164+V164)/AA164)*(T164/(U164+V164))*AB164*AC164*(AA164/(1-AC164)),IF(LEFT(S164,1)=\"2\",IF(COUNTA(T164:V164)=0,\"Fill in supplementary fields\",(U164+V164)*AC164*AB164))))","v":{"$error":"#VALUE!"}},{"$f":"IF(T164>U164,\"B cannot be higher than C\",IFERROR(IF(COUNTA(Y164:Z164)=0,\"Fill in supplementary fields\",IF(Y164=0,V164/2*(T164/U164)+V164/2*(1/Z164),(V164/2)*(T164/U164))),\"Fill in supplementary fields\"))+(IF(LEFT(S164,1)=\"1\",((U164+V164)/AA164)*(T164/(U164+V164))*AB164*AC164*(AA164/(1-AC164)),IF(LEFT(S164,1)=\"2\",IF(COUNTA(T164:V164)=0,\"Fill in supplementary fields\",(U164+V164)*AC164*AB164))))","v":{"$error":"#VALUE!"}},"Enter exposure values in fields A and B","Fill in supplementary fields","Fill in supplementary fields","Fill in supplementary fields","Fill in supplementary fields",0,0,0,0,0,0,0]
[null,null,null,null,null,null,null,null,null,null,null,null,null,null,null,null,null,"",null,null,null,null,null,"",null,null,null,null,null,null,null,null,null,null,null,"",161,"Fill in supplementary fields","Fill in supplementary fields",{"$f":"IF(T165>U165,\"B cannot be higher than C\",IF(COUNTA(Y165:Z165)=0,\"Fill in supplementary fields\",(V165/2)*(T165/U165)+(V165/2)*(1/SUM(Y165:Z165))))+(IF(LEFT(S165,1)=\"1\",((T177*AB177)*(AC177/(1-AC177))),IF(LEFT(S165,1)=\"2\",IF(COUNTA(T165:V165)=0,\"Fill in supplementary fields\",(U165+V165)*AC165*AB165))))","v":{"$error":"#VALUE!"}},{"$f":"IF(T165>U165,\"B cannot be higher than C\",IFERROR(IF(COUNTA(Y165:Z165)=0,\"Fill in supplementary fields\",V165/2)*(T165/U165)+(V165/2)*(1/Y165),\"Fill in supplementary fields\"))+(IF(LEFT(S165,1)=\"1\",((T177*AB177)*(AC177/(1-AC177))),IF(LEFT(S165,1)=\"2\",IF(COUNTA(T165:V165)=0,\"Fill in supplementary fields\",(U165+V165)*AC165*AB165))))","v":{"$error":"#VALUE!"}},{"$f":"IF(T165>U165,\"B cannot be higher than C\",IFERROR(IF(COUNTA(Y165:Z165)=0,\"Fill in supplementary fields\",IF(Y165=0,V165/2*(T165/U165)+V165/2*(1/Z165),(V165/2)*(T165/U165))),\"Fill in supplementary fields\"))+(IF(LEFT(S165,1)=\"1\",((T177*AB177)*(AC177/(1-AC177))),IF(LEFT(S165,1)=\"2\",IF(COUNTA(T165:V165)=0,\"Fill in supplementary fields\",(U165+V165)*AC165*AB165))))","v":{"$error":"#VALUE!"}},"Enter exposure values in fields A and B","Fill in supplementary fields","Fill in supplementary fields","Fill in supplementary fields","Fill in supplementary fields",0,0,0,0,0,0,0]
[null,null,null,null,null,null,null,null,null,null,null,null,null,null,null,null,null,{"$f":"IF(LEN(P166)=0,\"\",HLOOKUP(AJ166,$AL$5:$BA$200,AK166,FALSE))","v":""},null,null,null,null,null,"",null,null,null,null,null,null,null,null,null,null,null,{"$f":"IFERROR(VLOOKUP(P166,BC:BD,2,FALSE),\"\")","v":""},{"$f":"AK165+1","v":162},{"$f":"IF(T166>U166,\"B cannot be higher than C\",IF(COUNTA(T166:V166)=0,\"Fill in supplementary fields\",IFERROR(IF(VALUE(LEFT(X166,1))=1,V166/2+(T166/U166)*(V166/2),IF(VALUE(LEFT(X166,1))=2,\"impossible combination\",\"check not available\")),\"\")))","v":"Fill in supplementary fields"},{"$f":"IF(T166>U166,\"B cannot be higher than C\",IF(COUNTA(T166:V166)=0,\"Fill in supplementary fields\",IFERROR(IF(VALUE(LEFT(X166,1))=1,(T166/U166)*(V166/2),IF(VALUE(LEFT(X166,1))=2,(T166/U166)*(V166),\"check not available\")),\"\")))","v":"Fill in supplementary fields"},{"$f":"IF(T166>U166,\"B cannot be higher than C\",IF(COUNTA(Y166:Z166)=0,\"Fill in supplementary fields\",(V166/2)*(T166/U166)+(V166/2)*(1/SUM(Y166:Z166))))+(IF(LEFT(S166,1)=\"1\",((U166+V166)/AA166)*(T166/(U166+V166))*AB166*AC166*(AA166/(1-AC166)),IF(LEFT(S166,1)=\"2\",IF(COUNTA(T166:V166)=0,\"Fill in supplementary fields\",(U166+V166)*AC166*AB166))))","v":{"$error":"#VALUE!"}},{"$f":"IF(T166>U166,\"B cannot be higher than C\",IFERROR(IF(COUNTA(Y166:Z166)=0,\"Fill in supplementary fields\",V166/2)*(T166/U166)+(V166/2)*(1/Y166),\"Fill in supplementary fields\"))+(IF(LEFT(S166,1)=\"1\",((U166+V166)/AA166)*(T166/(U166+V166))*AB166*AC166*(AA166/(1-AC166)),IF(LEFT(S166,1)=\"2\",IF(COUNTA(T166:V166)=0,\"Fill in supplementary fields\",(U166+V166)*AC166*AB166))))","v":{"$error":"#VALUE!"}},{"$f":"IF(T166>U166,\"B cannot be higher than C\",IFERROR(IF(COUNTA(Y166:Z166)=0,\"Fill in supplementary fields\",IF(Y166=0,V166/2*(T166/U166)+V166/2*(1/Z166),(V166/2)*(T166/U166))),\"Fill in supplementary fields\"))+(IF(LEFT(S166,1)=\"1\",((U166+V166)/AA166)*(T166/(U166+V166))*AB166*AC166*(AA166/(1-AC166)),IF(LEFT(S166,1)=\"2\",IF(COUNTA(T166:V166)=0,\"Fill in supplementary fields\",(U166+V166)*AC166*AB166))))","v":{"$error":"#VALUE!"}},{"$f":"IF(T166>U166,\"B cannot be higher than C\",IF(COUNTA(T166:V166)=0,\"Enter exposure values in fields A and B\",(V166)*(T166/U166)))","v":"Enter exposure values in fields A and B"},{"$f":"IF(T166>U166,\"B cannot be higher than C\",IFERROR(IF(COUNTA(Y166:Z166)=0,\"Fill in supplementary fields\",V166/2)*(T166/U166)+(V166/2)*(1/Y166),\"Fill in supplementary fields\"))","v":"Fill in supplementary fields"},{"$f":"IF(T166>U166,\"B cannot be higher than C\",IFERROR(IF(COUNTA(Y166:Z166)=0,\"Fill in supplementary fields\",IF(Y166=0,V166/2*(T166/U166)+V166/2*(1/Z166),(V166/2)*(T166/U166))),\"Fill in supplementary fields\"))","v":"Fill in supplementary fields"},{"$f":"IF(T166>U166,\"B cannot be higher than C\",IF(COUNTA(T166:V166)=0,\"Fill in supplementary fields\",(T166/U166)*((V166)+AB166*AC166)))","v":"Fill in supplementary fields"},{"$f":"IF(T166>U166,\"B cannot be higher than C\",IF(COUNTA(T166:V166)=0,\"Fill in supplementary fields\",(V166)*(T166/U166)))","v":"Fill in supplementary fields"},{"$f":"$V166","v":0},0,0,0,0,0,0]
[null,null,null,null,null,null,null,null,null,null,null,null,null,null,null,null,null,"",null,null,null,null,null,"",null,null,null,null,null,null,null,null,null,null,null,"",163,"Fill in supplementary fields","Fill in supplementary fields",{"$f":"IF(T167>U167,\"B cannot be higher than C\",IF(COUNTA(Y167:Z167)=0,\"Fill in supplementary fields\",(V167/2)*(T167/U167)+(V167/2)*(1/SUM(Y167:Z167))))+(IF(LEFT(S167,1)=\"1\",((U167+V167)/AA167)*(T167/(U167+V167))*AB167*AC167*(AA167/(1-AC167)),IF(LEFT(S167,1)=\"2\",IF(COUNTA(T167:V167)=0,\"Fill in supplementary fields\",(U167+V167)*AC167*AB167))))","v":{"$error":"#VALUE!"}},{"$f":"IF(T167>U167,\"B cannot be higher than C\",IFERROR(IF(COUNTA(Y167:Z167)=0,\"Fill in supplementary fields\",V167/2)*(T167/U167)+(V167/2)*(1/Y167),\"Fill in supplementary fields\"))+(IF(LEFT(S167,1)=\"1\",((U167+V167)/AA167)*(T167/(U167+V167))*AB167*AC167*(AA167/(1-AC167)),IF(LEFT(S167,1)=\"2\",IF(COUNTA(T167:V167)=0,\"Fill in supplementary fields\",(U167+V167)*AC167*AB167))))","v":{"$error":"#VALUE!"}},{"$f":"IF(T167>U167,\"B cannot be higher than C\",IFERROR(IF(COUNTA(Y167:Z167)=0,\"Fill in supplementary fields\",IF(Y167=0,V167/2*(T167/U167)+V167/2*(1/Z167),(V167/2)*(T167/U167))),\"Fill in supplementary fields\"))+(IF(LEFT(S167,1)=\"1\",((U167+V167)/AA167)*(T167/(U167+V167))*AB167*AC167*(AA167/(1-AC167)),IF(LEFT(S167,1)=\"2\",IF(COUNTA(T167:V167)=0,\"Fill in supplementary fields\",(U167+V167)*AC167*AB167))))","v":{"$error":"#VALUE!"}},"Enter exposure values in fields A and B","Fill in supplementary fields","Fill in supplementary fields","Fill in supplementary fields","Fill in supplementary fields",0,0,0,0,0,0,0]
[null,null,null,null,null,null,null,null,null,null,null,null,null,null,null,null,null,"",null,null,null,null,null,"",null,null,null,null,null,null,null,null,null,null,null,"",164,"Fill in supplementary fields","Fill in supplementary fields",{"$f":"IF(T168>U168,\"B cannot be higher than C\",IF(COUNTA(Y168:Z168)=0,\"Fill in supplementary fields\",(V168/2)*(T168/U168)+(V168/2)*(1/SUM(Y168:Z168))))+(IF(LEFT(S168,1)=\"1\",((T180*AB180)*(AC180/(1-AC180))),IF(LEFT(S168,1)=\"2\",IF(COUNTA(T168:V168)=0,\"Fill in supplementary fields\",(U168+V168)*AC168*AB168))))","v":{"$error":"#VALUE!"}},{"$f":"IF(T168>U168,\"B cannot be higher than C\",IFERROR(IF(COUNTA(Y168:Z168)=0,\"Fill in supplementary fields\",V168/2)*(T168/U168)+(V168/2)*(1/Y168),\"Fill in supplementary fields\"))+(IF(LEFT(S168,1)=\"1\",((T180*AB180)*(AC180/(1-AC180))),IF(LEFT(S168,1)=\"2\",IF(COUNTA(T168:V168)=0,\"Fill in supplementary fields\",(U168+V168)*AC168*AB168))))","v":{"$error":"#VALUE!"}},{"$f":"IF(T168>U168,\"B cannot be higher than C\",IFERROR(IF(COUNTA(Y168:Z168)=0,\"Fill in supplementary fields\",IF(Y168=0,V168/2*(T168/U168)+V168/2*(1/Z168),(V168/2)*(T168/U168))),\"Fill in supplementary fields\"))+(IF(LEFT(S168,1)=\"1\",((T180*AB180)*(AC180/(1-AC180))),IF(LEFT(S168,1)=\"2\",IF(COUNTA(T168:V168)=0,\"Fill in supplementary fields\",(U168+V168)*AC168*AB168))))","v":{"$error":"#VALUE!"}},"Enter exposure values in fields A and B","Fill in supplementary fields","Fill in supplementary fields","Fill in supplementary fields","Fill in supplementary fields",0,0,0,0,0,0,0]
[null,null,null,null,null,null,null,null,null,null,null,null,null,null,null,null,null,"",null,null,null,null,null,"",null,null,null,null,null,null,null,null,null,null,null,"",165,"Fill in supplementary fields","Fill in supplementary fields",{"$f":"IF(T169>U169,\"B cannot be higher than C\",IF(COUNTA(Y169:Z169)=0,\"Fill in supplementary fields\",(V169/2)*(T169/U169)+(V169/2)*(1/SUM(Y169:Z169))))+(IF(LEFT(S169,1)=\"1\",((U169+V169)/AA169)*(T169/(U169+V169))*AB169*AC169*(AA169/(1-AC169)),IF(LEFT(S169,1)=\"2\",IF(COUNTA(T169:V169)=0,\"Fill in supplementary fields\",(U169+V169)*AC169*AB169))))","v":{"$error":"#VALUE!"}},{"$f":"IF(T169>U169,\"B cannot be higher than C\",IFERROR(IF(COUNTA(Y169:Z169)=0,\"Fill in supplementary fields\",V169/2)*(T169/U169)+(V169/2)*(1/Y169),\"Fill in supplementary fields\"))+(IF(LEFT(S169,1)=\"1\",((U169+V169)/AA169)*(T169/(U169+V169))*AB169*AC169*(AA169/(1-AC169)),IF(LEFT(S169,1)=\"2\",IF(COUNTA(T169:V169)=0,\"Fill in supplementary fields\",(U169+V169)*AC169*AB169))))","v":{"$error":"#VALUE!"}},{"$f":"IF(T169>U169,\"B cannot be higher than C\",IFERROR(IF(COUNTA(Y169:Z169)=0,\"Fill in supplementary fields\",IF(Y169=0,V169/2*(T169/U169)+V169/2*(1/Z169),(V169/2)*(T169/U169))),\"Fill in supplementary fields\"))+(IF(LEFT(S169,1)=\"1\",((U169+V169)/AA169)*(T169/(U169+V169))*AB169*AC169*(AA169/(1-AC169)),IF(LEFT(S169,1)=\"2\",IF(COUNTA(T169:V169)=0,\"Fill in supplementary fields\",(U169+V169)*AC169*AB169))))","v":{"$error":"#VALUE!"}},"Enter exposure values in fields A and B","Fill in supplementary fields","Fill in supplementary fields","Fill in supplementary fields","Fill in supplementary fields",0,0,0,0,0,0,0]
[null,null,null,null,null,null,null,null,null,null,null,null,null,null,null,null,null,"",null,null,null,null,null,"",null,null,null,null,null,null,null,null,null,null,null,"",166,"Fill in supplementary fields","Fill in supplementary fields",{"$f":"IF(T170>U170,\"B cannot be higher than C\",IF(COUNTA(Y170:Z170)=0,\"Fill in supplementary fields\",(V170/2)*(T170/U170)+(V170/2)*(1/SUM(Y170:Z170))))+(IF(LEFT(S170,1)=\"1\",((U170+V170)/AA170)*(T170/(U170+V170))*AB170*AC170*(AA170/(1-AC170)),IF(LEFT(S170,1)=\"2\",IF(COUNTA(T170:V170)=0,\"Fill in supplementary fields\",(U170+V170)*AC170*AB170))))","v":{"$error":"#VALUE!"}},{"$f":"IF(T170>U170,\"B cannot be higher than C\",IFERROR(IF(COUNTA(Y170:Z170)=0,\"Fill in supplementary fields\",V170/2)*(T170/U170)+(V170/2)*(1/Y170),\"Fill in supplementary fields\"))+(IF(LEFT(S170,1)=\"1\",((U170+V170)/AA170)*(T170/(U170+V170))*AB170*AC170*(AA170/(1-AC170)),IF(LEFT(S170,1)=\"2\",IF(COUNTA(T170:V170)=0,\"Fill in supplementary fields\",(U170+V170)*AC170*AB170))))","v":{"$error":"#VALUE!"}},{"$f":"IF(T170>U170,\"B cannot be higher than C\",IFERROR(IF(COUNTA(Y170:Z170)=0,\"Fill in supplementary fields\",IF(Y170=0,V170/2*(T170/U170)+V170/2*(1/Z170),(V170/2)*(T170/U170))),\"Fill in supplementary fields\"))+(IF(LEFT(S170,1)=\"1\",((U170+V170)/AA170)*(T170/(U170+V170))*AB170*AC170*(AA170/(1-AC170)),IF(LEFT(S170,1)=\"2\",IF(COUNTA(T170:V170)=0,\"Fill in supplementary fields\",(U170+V170)*AC170*AB170))))","v":{"$error":"#VALUE!"}},"Enter exposure values in fields A and B","Fill in supplementary fields","Fill in supplementary fields","Fill in supplementary fields","Fill in supplementary fields",0,0,0,0,0,0,0]
[null,null,null,null,null,null,null,null,null,null,null,null,null,null,null,null,null,"",null,null,null,null,null,"",null,null,null,null,null,null,null,null,null,null,null,"",167,"Fill in supplementary fields","Fill in supplementary fields",{"$f":"IF(T171>U171,\"B cannot be higher than C\",IF(COUNTA(Y171:Z171)=0,\"Fill in supplementary fields\",(V171/2)*(T171/U171)+(V171/2)*(1/SUM(Y171:Z171))))+(IF(LEFT(S171,1)=\"1\",((T183*AB183)*(AC183/(1-AC183))),IF(LEFT(S171,1)=\"2\",IF(COUNTA(T171:V171)=0,\"Fill in supplementary fields\",(U171+V171)*AC171*AB171))))","v":{"$error":"#VALUE!"}},{"$f":"IF(T171>U171,\"B cannot be higher than C\",IFERROR(IF(COUNTA(Y171:Z171)=0,\"Fill in supplementary fields\",V171/2)*(T171/U171)+(V171/2)*(1/Y171),\"Fill in supplementary fields\"))+(IF(LEFT(S171,1)=\"1\",((T183*AB183)*(AC183/(1-AC183))),IF(LEFT(S171,1)=\"2\",IF(COUNTA(T171:V171)=0,\"Fill in supplementary fields\",(U171+V171)*AC171*AB171))))","v":{"$error":"#VALUE!"}},{"$f":"IF(T171>U171,\"B cannot be higher than C\",IFERROR(IF(COUNTA(Y171:Z171)=0,\"Fill in supplementary fields\",IF(Y171=0,V171/2*(T171/U171)+V171/2*(1/Z171),(V171/2)*(T171/U171))),\"Fill in supplementary fields\"))+(IF(LEFT(S171,1)=\"1\",((T183*AB183)*(AC183/(1-AC183))),IF(LEFT(S171,1)=\"2\",IF(COUNTA(T171:V171)=0,\"Fill in supplementary fields\",(U171+V171)*AC171*AB171))))","v":{"$error":"#VALUE!"}},"Enter exposure values in fields A and B","Fill in supplementary fields","Fill in supplementary fields","Fill in supplementary fields","Fill in supplementary fields",0,0,0,0,0,0,0]
[null,null,null,null,null,null,null,null,null,null,null,null,null,null,null,null,null,"",null,null,null,null,null,"",null,null,null,null,null,null,null,null,null,null,null,"",168,"Fill in supplementary fields","Fill in supplementary fields",{"$f":"IF(T172>U172,\"B cannot be higher than C\",IF(COUNTA(Y172:Z172)=0,\"Fill in supplementary fields\",(V172/2)*(T172/U172)+(V172/2)*(1/SUM(Y172:Z172))))+(IF(LEFT(S172,1)=\"1\",((U172+V172)/AA172)*(T172/(U172+V172))*AB172*AC172*(AA172/(1-AC172)),IF(LEFT(S172,1)=\"2\",IF(COUNTA(T172:V172)=0,\"Fill in supplementary fields\",(U172+V172)*AC172*AB172))))","v":{"$error":"#VALUE!"}},{"$f":"IF(T172>U172,\"B cannot be higher than C\",IFERROR(IF(COUNTA(Y172:Z172)=0,\"Fill in supplementary fields\",V172/2)*(T172/U172)+(V172/2)*(1/Y172),\"Fill in supplementary fields\"))+(IF(LEFT(S172,1)=\"1\",((U172+V172)/AA172)*(T172/(U172+V172))*AB172*AC172*(AA172/(1-AC172)),IF(LEFT(S172,1)=\"2\",IF(COUNTA(T172:V172)=0,\"Fill in supplementary fields\",(U172+V172)*AC172*AB172))))","v":{"$error":"#VALUE!"}},{"$f":"IF(T172>U172,\"B cannot be higher than C\",IFERROR(IF(COUNTA(Y172:Z172)=0,\"Fill in supplementary fields\",IF(Y172=0,V172/2*(T172/U172)+V172/2*(1/Z172),(V172/2)*(T172/U172))),\"Fill in supplementary fields\"))+(IF(LEFT(S172,1)=\"1\",((U172+V172)/AA172)*(T172/(U172+V172))*AB172*AC172*(AA172/(1-AC172)),IF(LEFT(S172,1)=\"2\",IF(COUNTA(T172:V172)=0,\"Fill in supplementary fields\",(U172+V172)*AC172*AB172))))","v":{"$error":"#VALUE!"}},"Enter exposure values in fields A and B","Fill in supplementary fields","Fill in supplementary fields","Fill in supplementary fields","Fill in supplementary fields",0,0,0,0,0,0,0]
[null,null,null,null,null,null,null,null,null,null,null,null,null,null,null,null,null,"",null,null,null,null,null,"",null,null,null,null,null,null,null,null,null,null,null,"",169,"Fill in supplementary fields","Fill in supplementary fields",{"$f":"IF(T173>U173,\"B cannot be higher than C\",IF(COUNTA(Y173:Z173)=0,\"Fill in supplementary fields\",(V173/2)*(T173/U173)+(V173/2)*(1/SUM(Y173:Z173))))+(IF(LEFT(S173,1)=\"1\",((U173+V173)/AA173)*(T173/(U173+V173))*AB173*AC173*(AA173/(1-AC173)),IF(LEFT(S173,1)=\"2\",IF(COUNTA(T173:V173)=0,\"Fill in supplementary fields\",(U173+V173)*AC173*AB173))))","v":{"$error":"#VALUE!"}},{"$f":"IF(T173>U173,\"B cannot be higher than C\",IFERROR(IF(COUNTA(Y173:Z173)=0,\"Fill in supplementary fields\",V173/2)*(T173/U173)+(V173/2)*(1/Y173),\"Fill in supplementary fields\"))+(IF(LEFT(S173,1)=\"1\",((U173+V173)/AA173)*(T173/(U173+V173))*AB173*AC173*(AA173/(1-AC173)),IF(LEFT(S173,1)=\"2\",IF(COUNTA(T173:V173)=0,\"Fill in supplementary fields\",(U173+V173)*AC173*AB173))))","v":{"$error":"#VALUE!"}},{"$f":"IF(T173>U173,\"B cannot be higher than C\",IFERROR(IF(COUNTA(Y173:Z173)=0,\"Fill in supplementary fields\",IF(Y173=0,V173/2*(T173/U173)+V173/2*(1/Z173),(V173/2)*(T173/U173))),\"Fill in supplementary fields\"))+(IF(LEFT(S173,1)=\"1\",((U173+V173)/AA173)*(T173/(U173+V173))*AB173*AC173*(AA173/(1-AC173)),IF(LEFT(S173,1)=\"2\",IF(COUNTA(T173:V173)=0,\"Fill in supplementary fields\",(U173+V173)*AC173*AB173))))","v":{"$error":"#VALUE!"}},"Enter exposure values in fields A and B","Fill in supplementary fields","Fill in supplementary fields","Fill in supplementary fields","Fill in supplementary fields",0,0,0,0,0,0,0]
[null,null,null,null,null,null,null,null,null,null,null,null,null,null,null,null,null,"",null,null,null,null,null,"",null,null,null,null,null,null,null,null,null,null,null,"",170,"Fill in supplementary fields","Fill in supplementary fields",{"$f":"IF(T174>U174,\"B cannot be higher than C\",IF(COUNTA(Y174:Z174)=0,\"Fill in supplementary fields\",(V174/2)*(T174/U174)+(V174/2)*(1/SUM(Y174:Z174))))+(IF(LEFT(S174,1)=\"1\",((T186*AB186)*(AC186/(1-AC186))),IF(LEFT(S174,1)=\"2\",IF(COUNTA(T174:V174)=0,\"Fill in supplementary fields\",(U174+V174)*AC174*AB174))))","v":{"$error":"#VALUE!"}},{"$f":"IF(T174>U174,\"B cannot be higher than C\",IFERROR(IF(COUNTA(Y174:Z174)=0,\"Fill in supplementary fields\",V174/2)*(T174/U174)+(V174/2)*(1/Y174),\"Fill in supplementary fields\"))+(IF(LEFT(S174,1)=\"1\",((T186*AB186)*(AC186/(1-AC186))),IF(LEFT(S174,1)=\"2\",IF(COUNTA(T174:V174)=0,\"Fill in supplementary fields\",(U174+V174)*AC174*AB174))))","v":{"$error":"#VALUE!"}},{"$f":"IF(T174>U174,\"B cannot be higher than C\",IFERROR(IF(COUNTA(Y174:Z174)=0,\"Fill in supplementary fields\",IF(Y174=0,V174/2*(T174/U174)+V174/2*(1/Z174),(V174/2)*(T174/U174))),\"Fill in supplementary fields\"))+(IF(LEFT(S174,1)=\"1\",((T186*AB186)*(AC186/(1-AC186))),IF(LEFT(S174,1)=\"2\",IF(COUNTA(T174:V174)=0,\"Fill in supplementary fields\",(U174+V174)*AC174*AB174))))","v":{"$error":"#VALUE!"}},"Enter exposure values in fields A and B","Fill in supplementary fields","Fill in supplementary fields","Fill in supplementary fields","Fill in supplementary fields",0,0,0,0,0,0,0]
[null,null,null,null,null,null,null,null,null,null,null,null,null,null,null,null,null,"",null,null,null,null,null,"",null,null,null,null,null,null,null,null,null,null,null,"",171,"Fill in supplementary fields","Fill in supplementary fields",{"$f":"IF(T175>U175,\"B cannot be higher than C\",IF(COUNTA(Y175:Z175)=0,\"Fill in supplementary fields\",(V175/2)*(T175/U175)+(V175/2)*(1/SUM(Y175:Z175))))+(IF(LEFT(S175,1)=\"1\",((U175+V175)/AA175)*(T175/(U175+V175))*AB175*AC175*(AA175/(1-AC175)),IF(LEFT(S175,1)=\"2\",IF(COUNTA(T175:V175)=0,\"Fill in supplementary fields\",(U175+V175)*AC175*AB175))))","v":{"$error":"#VALUE!"}},{"$f":"IF(T175>U175,\"B cannot be higher than C\",IFERROR(IF(COUNTA(Y175:Z175)=0,\"Fill in supplementary fields\",V175/2)*(T175/U175)+(V175/2)*(1/Y175),\"Fill in supplementary fields\"))+(IF(LEFT(S175,1)=\"1\",((U175+V175)/AA175)*(T175/(U175+V175))*AB175*AC175*(AA175/(1-AC175)),IF(LEFT(S175,1)=\"2\",IF(COUNTA(T175:V175)=0,\"Fill in supplementary fields\",(U175+V175)*AC175*AB175))))","v":{"$error":"#VALUE!"}},{"$f":"IF(T175>U175,\"B cannot be higher than C\",IFERROR(IF(COUNTA(Y175:Z175)=0,\"Fill in supplementary fields\",IF(Y175=0,V175/2*(T175/U175)+V175/2*(1/Z175),(V175/2)*(T175/U175))),\"Fill in supplementary fields\"))+(IF(LEFT(S175,1)=\"1\",((U175+V175)/AA175)*(T175/(U175+V175))*AB175*AC175*(AA175/(1-AC175)),IF(LEFT(S175,1)=\"2\",IF(COUNTA(T175:V175)=0,\"Fill in supplementary fields\",(U175+V175)*AC175*AB175))))","v":{"$error":"#VALUE!"}},"Enter exposure values in fields A and B","Fill in supplementary fields","Fill in supplementary fields","Fill in supplementary fields","Fill in supplementary fields",0,0,0,0,0,0,0]
[null,null,null,null,null,null,null,null,null,null,null,null,null,null,null,null,null,"",null,null,null,null,null,"",null,null,null,null,null,null,null,null,null,null,null,"",172,"Fill in supplementary fields","Fill in supplementary fields",{"$f":"IF(T176>U176,\"B cannot be higher than C\",IF(COUNTA(Y176:Z176)=0,\"Fill in supplementary fields\",(V176/2)*(T176/U176)+(V176/2)*(1/SUM(Y176:Z176))))+(IF(LEFT(S176,1)=\"1\",((U176+V176)/AA176)*(T176/(U176+V176))*AB176*AC176*(AA176/(1-AC176)),IF(LEFT(S176,1)=\"2\",IF(COUNTA(T176:V176)=0,\"Fill in supplementary fields\",(U176+V176)*AC176*AB176))))","v":{"$error":"#VALUE!"}},{"$f":"IF(T176>U176,\"B cannot be higher than C\",IFERROR(IF(COUNTA(Y176:Z176)=0,\"Fill in supplementary fields\",V176/2)*(T176/U176)+(V176/2)*(1/Y176),\"Fill in supplementary fields\"))+(IF(LEFT(S176,1)=\"1\",((U176+V176)/AA176)*(T176/(U176+V176))*AB176*AC176*(AA176/(1-AC176)),IF(LEFT(S176,1)=\"2\",IF(COUNTA(T176:V176)=0,\"Fill in supplementary fields\",(U176+V176)*AC176*AB176))))","v":{"$error":"#VALUE!"}},{"$f":"IF(T176>U176,\"B cannot be higher than C\",IFERROR(IF(COUNTA(Y176:Z176)=0,\"Fill in supplementary fields\",IF(Y176=0,V176/2*(T176/U176)+V176/2*(1/Z176),(V176/2)*(T176/U176))),\"Fill in supplementary fields\"))+(IF(LEFT(S176,1)=\"1\",((U176+V176)/AA176)*(T176/(U176+V176))*AB176*AC176*(AA176/(1-AC176)),IF(LEFT(S176,1)=\"2\",IF(COUNTA(T176:V176)=0,\"Fill in supplementary fields\",(U176+V176)*AC176*AB176))))","v":{"$error":"#VALUE!"}},"Enter exposure values in fields A and B","Fill in supplementary fields","Fill in supplementary fields","Fill in supplementary fields","Fill in supplementary fields",{"$f":"$V176","v":0},0,0,0,0,0,0]
[null,null,null,null,null,null,null,null,null,null,null,null,null,null,null,null,null,"",null,null,null,null,null,"",null,null,null,null,null,null,null,null,null,null,null,"",173,"Fill in supplementary fields","Fill in supplementary fields",{"$f":"IF(T177>U177,\"B cannot be higher than C\",IF(COUNTA(Y177:Z177)=0,\"Fill in supplementary fields\",(V177/2)*(T177/U177)+(V177/2)*(1/SUM(Y177:Z177))))+(IF(LEFT(S177,1)=\"1\",((T189*AB189)*(AC189/(1-AC189))),IF(LEFT(S177,1)=\"2\",IF(COUNTA(T177:V177)=0,\"Fill in supplementary fields\",(U177+V177)*AC177*AB177))))","v":{"$error":"#VALUE!"}},{"$f":"IF(T177>U177,\"B cannot be higher than C\",IFERROR(IF(COUNTA(Y177:Z177)=0,\"Fill in supplementary fields\",V177/2)*(T177/U177)+(V177/2)*(1/Y177),\"Fill in supplementary fields\"))+(IF(LEFT(S177,1)=\"1\",((T189*AB189)*(AC189/(1-AC189))),IF(LEFT(S177,1)=\"2\",IF(COUNTA(T177:V177)=0,\"Fill in supplementary fields\",(U177+V177)*AC177*AB177))))","v":{"$error":"#VALUE!"}},{"$f":"IF(T177>U177,\"B cannot be higher than C\",IFERROR(IF(COUNTA(Y177:Z177)=0,\"Fill in supplementary fields\",IF(Y177=0,V177/2*(T177/U177)+V177/2*(1/Z177),(V177/2)*(T177/U177))),\"Fill in supplementary fields\"))+(IF(LEFT(S177,1)=\"1\",((T189*AB189)*(AC189/(1-AC189))),IF(LEFT(S177,1)=\"2\",IF(COUNTA(T177:V177)=0,\"Fill in supplementary fields\",(U177+V177)*AC177*AB177))))","v":{"$error":"#VALUE!"}},"Enter exposure values in fields A and B","Fill in supplementary fields","Fill in supplementary fields","Fill in supplementary fields","Fill in supplementary fields",0,0,0,0,0,0,0]
[null,null,null,null,null,null,null,null,null,null,null,null,null,null,null,null,null,"",null,null,null,null,null,"",null,null,null,null,null,null,null,null,null,null,null,"",174,"Fill in supplementary fields","Fill in supplementary fields",{"$f":"IF(T178>U178,\"B cannot be higher than C\",IF(COUNTA(Y178:Z178)=0,\"Fill in supplementary fields\",(V178/2)*(T178/U178)+(V178/2)*(1/SUM(Y178:Z178))))+(IF(LEFT(S178,1)=\"1\",((U178+V178)/AA178)*(T178/(U178+V178))*AB178*AC178*(AA178/(1-AC178)),IF(LEFT(S178,1)=\"2\",IF(COUNTA(T178:V178)=0,\"Fill in supplementary fields\",(U178+V178)*AC178*AB178))))","v":{"$error":"#VALUE!"}},{"$f":"IF(T178>U178,\"B cannot be higher than C\",IFERROR(IF(COUNTA(Y178:Z178)=0,\"Fill in supplementary fields\",V178/2)*(T178/U178)+(V178/2)*(1/Y178),\"Fill in supplementary fields\"))+(IF(LEFT(S178,1)=\"1\",((U178+V178)/AA178)*(T178/(U178+V178))*AB178*AC178*(AA178/(1-AC178)),IF(LEFT(S178,1)=\"2\",IF(COUNTA(T178:V178)=0,\"Fill in supplementary fields\",(U178+V178)*AC178*AB178))))","v":{"$error":"#VALUE!"}},{"$f":"IF(T178>U178,\"B cannot be higher than C\",IFERROR(IF(COUNTA(Y178:Z178)=0,\"Fill in supplementary fields\",IF(Y178=0,V178/2*(T178/U178)+V178/2*(1/Z178),(V178/2)*(T178/U178))),\"Fill in supplementary fields\"))+(IF(LEFT(S178,1)=\"1\",((U178+V178)/AA178)*(T178/(U178+V178))*AB178*AC178*(AA178/(1-AC178)),IF(LEFT(S178,1)=\"2\",IF(COUNTA(T178:V178)=0,\"Fill in supplementary fields\",(U178+V178)*AC178*AB178))))","v":{"$error":"#VALUE!"}},"Enter exposure values in fields A and B","Fill in supplementary fields","Fill in supplementary fields","Fill in supplementary fields","Fill in supplementary fields",0,0,0,0,0,0,0]
[null,null,null,null,null,null,null,null,null,null,null,null,null,null,null,null,null,"",null,null,null,null,null,"",null,null,null,null,null,null,null,null,null,null,null,"",175,"Fill in supplementary fields","Fill in supplementary fields",{"$f":"IF(T179>U179,\"B cannot be higher than C\",IF(COUNTA(Y179:Z179)=0,\"Fill in supplementary fields\",(V179/2)*(T179/U179)+(V179/2)*(1/SUM(Y179:Z179))))+(IF(LEFT(S179,1)=\"1\",((U179+V179)/AA179)*(T179/(U179+V179))*AB179*AC179*(AA179/(1-AC179)),IF(LEFT(S179,1)=\"2\",IF(COUNTA(T179:V179)=0,\"Fill in supplementary fields\",(U179+V179)*AC179*AB179))))","v":{"$error":"#VALUE!"}},{"$f":"IF(T179>U179,\"B cannot be higher than C\",IFERROR(IF(COUNTA(Y179:Z179)=0,\"Fill in supplementary fields\",V179/2)*(T179/U179)+(V179/2)*(1/Y179),\"Fill in supplementary fields\"))+(IF(LEFT(S179,1)=\"1\",((U179+V179)/AA179)*(T179/(U179+V179))*AB179*AC179*(AA179/(1-AC179)),IF(LEFT(S179,1)=\"2\",IF(COUNTA(T179:V179)=0,\"Fill in supplementary fields\",(U179+V179)*AC179*AB179))))","v":{"$error":"#VALUE!"}},{"$f":"IF(T179>U179,\"B cannot be higher than C\",IFERROR(IF(COUNTA(Y179:Z179)=0,\"Fill in supplementary fields\",IF(Y179=0,V179/2*(T179/U179)+V179/2*(1/Z179),(V179/2)*(T179/U179))),\"Fill in supplementary fields\"))+(IF(LEFT(S179,1)=\"1\",((U179+V179)/AA179)*(T179/(U179+V179))*AB179*AC179*(AA179/(1-AC179)),IF(LEFT(S179,1)=\"2\",IF(COUNTA(T179:V179)=0,\"Fill in supplementary fields\",(U179+V179)*AC179*AB179))))","v":{"$error":"#VALUE!"}},"Enter exposure values in fields A and B","Fill in supplementary fields","Fill in supplementary fields","Fill in supplementary fields","Fill in supplementary fields",0,0,0,0,0,0,0]
[null,null,null,null,null,null,null,null,null,null,null,null,null,null,null,null,null,"",null,null,null,null,null,"",null,null,null,null,null,null,null,null,null,null,null,"",176,"Fill in supplementary fields","Fill in supplementary fields",{"$f":"IF(T180>U180,\"B cannot be higher than C\",IF(COUNTA(Y180:Z180)=0,\"Fill in supplementary fields\",(V180/2)*(T180/U180)+(V180/2)*(1/SUM(Y180:Z180))))+(IF(LEFT(S180,1)=\"1\",((T192*AB192)*(AC192/(1-AC192))),IF(LEFT(S180,1)=\"2\",IF(COUNTA(T180:V180)=0,\"Fill in supplementary fields\",(U180+V180)*AC180*AB180))))","v":{"$error":"#VALUE!"}},{"$f":"IF(T180>U180,\"B cannot be higher than C\",IFERROR(IF(COUNTA(Y180:Z180)=0,\"Fill in supplementary fields\",V180/2)*(T180/U180)+(V180/2)*(1/Y180),\"Fill in supplementary fields\"))+(IF(LEFT(S180,1)=\"1\",((T192*AB192)*(AC192/(1-AC192))),IF(LEFT(S180,1)=\"2\",IF(COUNTA(T180:V180)=0,\"Fill in supplementary fields\",(U180+V180)*AC180*AB180))))","v":{"$error":"#VALUE!"}},{"$f":"IF(T180>U180,\"B cannot be higher than C\",IFERROR(IF(COUNTA(Y180:Z180)=0,\"Fill in supplementary fields\",IF(Y180=0,V180/2*(T180/U180)+V180/2*(1/Z180),(V180/2)*(T180/U180))),\"Fill in supplementary fields\"))+(IF(LEFT(S180,1)=\"1\",((T192*AB192)*(AC192/(1-AC192))),IF(LEFT(S180,1)=\"2\",IF(COUNTA(T180:V180)=0,\"Fill in supplementary fields\",(U180+V180)*AC180*AB180))))","v":{"$error":"#VALUE!"}},"Enter exposure values in fields A and B","Fill in supplementary fields","Fill in supplementary fields","Fill in supplementary fields","Fill in supplementary fields",0,0,0,0,0,0,0]
[null,null,null,null,null,null,null,null,null,null,null,null,null,null,null,null,null,"",null,null,null,null,null,{"$f":"IFERROR(IF(P181=\"1=Syndicated loan, arranger\",\"1=Official institution\",IF(P181=1,\"1=Official institution\",\"\")),\"\")","v":""},null,null,null,null,null,null,null,null,null,null,null,"",177,"Fill in supplementary fields","Fill in supplementary fields",{"$f":"IF(T181>U181,\"B cannot be higher than C\",IF(COUNTA(Y181:Z181)=0,\"Fill in supplementary fields\",(V181/2)*(T181/U181)+(V181/2)*(1/SUM(Y181:Z181))))+(IF(LEFT(S181,1)=\"1\",((U181+V181)/AA181)*(T181/(U181+V181))*AB181*AC181*(AA181/(1-AC181)),IF(LEFT(S181,1)=\"2\",IF(COUNTA(T181:V181)=0,\"Fill in supplementary fields\",(U181+V181)*AC181*AB181))))","v":{"$error":"#VALUE!"}},{"$f":"IF(T181>U181,\"B cannot be higher than C\",IFERROR(IF(COUNTA(Y181:Z181)=0,\"Fill in supplementary fields\",V181/2)*(T181/U181)+(V181/2)*(1/Y181),\"Fill in supplementary fields\"))+(IF(LEFT(S181,1)=\"1\",((U181+V181)/AA181)*(T181/(U181+V181))*AB181*AC181*(AA181/(1-AC181)),IF(LEFT(S181,1)=\"2\",IF(COUNTA(T181:V181)=0,\"Fill in supplementary fields\",(U181+V181)*AC181*AB181))))","v":{"$error":"#VALUE!"}},{"$f":"IF(T181>U181,\"B cannot be higher than C\",IFERROR(IF(COUNTA(Y181:Z181)=0,\"Fill in supplementary fields\",IF(Y181=0,V181/2*(T181/U181)+V181/2*(1/Z181),(V181/2)*(T181/U181))),\"Fill in supplementary fields\"))+(IF(LEFT(S181,1)=\"1\",((U181+V181)/AA181)*(T181/(U181+V181))*AB181*AC181*(AA181/(1-AC181)),IF(LEFT(S181,1)=\"2\",IF(COUNTA(T181:V181)=0,\"Fill in supplementary fields\",(U181+V181)*AC181*AB181))))","v":{"$error":"#VALUE!"}},"Enter exposure values in fields A and B","Fill in supplementary fields","Fill in supplementary fields","Fill in supplementary fields","Fill in supplementary fields",0,0,0,0,0,0,0]
[null,null,null,null,null,null,null,null,null,null,null,null,null,null,null,null,null,"",null,null,null,null,null,"",null,null,null,null,null,null,null,null,null,null,null,"",178,"Fill in supplementary fields","Fill in supplementary fields",{"$f":"IF(T182>U182,\"B cannot be higher than C\",IF(COUNTA(Y182:Z182)=0,\"Fill in supplementary fields\",(V182/2)*(T182/U182)+(V182/2)*(1/SUM(Y182:Z182))))+(IF(LEFT(S182,1)=\"1\",((U182+V182)/AA182)*(T182/(U182+V182))*AB182*AC182*(AA182/(1-AC182)),IF(LEFT(S182,1)=\"2\",IF(COUNTA(T182:V182)=0,\"Fill in supplementary fields\",(U182+V182)*AC182*AB182))))","v":{"$error":"#VALUE!"}},{"$f":"IF(T182>U182,\"B cannot be higher than C\",IFERROR(IF(COUNTA(Y182:Z182)=0,\"Fill in supplementary fields\",V182/2)*(T182/U182)+(V182/2)*(1/Y182),\"Fill in supplementary fields\"))+(IF(LEFT(S182,1)=\"1\",((U182+V182)/AA182)*(T182/(U182+V182))*AB182*AC182*(AA182/(1-AC182)),IF(LEFT(S182,1)=\"2\",IF(COUNTA(T182:V182)=0,\"Fill in supplementary fields\",(U182+V182)*AC182*AB182))))","v":{"$error":"#VALUE!"}},{"$f":"IF(T182>U182,\"B cannot be higher than C\",IFERROR(IF(COUNTA(Y182:Z182)=0,\"Fill in supplementary fields\",IF(Y182=0,V182/2*(T182/U182)+V182/2*(1/Z182),(V182/2)*(T182/U182))),\"Fill in supplementary fields\"))+(IF(LEFT(S182,1)=\"1\",((U182+V182)/AA182)*(T182/(U182+V182))*AB182*AC182*(AA182/(1-AC182)),IF(LEFT(S182,1)=\"2\",IF(COUNTA(T182:V182)=0,\"Fill in supplementary fields\",(U182+V182)*AC182*AB182))))","v":{"$error":"#VALUE!"}},"Enter exposure values in fields A and B","Fill in supplementary fields","Fill in supplementary fields","Fill in supplementary fields","Fill in supplementary fields",0,0,0,0,0,0,0]
[null,null,null,null,null,null,null,null,null,null,null,null,null,null,null,null,null,"",null,null,null,null,null,"",null,null,null,null,null,null,null,null,null,null,null,"",179,"Fill in supplementary fields","Fill in supplementary fields",{"$f":"IF(T183>U183,\"B cannot be higher than C\",IF(COUNTA(Y183:Z183)=0,\"Fill in supplementary fields\",(V183/2)*(T183/U183)+(V183/2)*(1/SUM(Y183:Z183))))+(IF(LEFT(S183,1)=\"1\",((T195*AB195)*(AC195/(1-AC195))),IF(LEFT(S183,1)=\"2\",IF(COUNTA(T183:V183)=0,\"Fill in supplementary fields\",(U183+V183)*AC183*AB183))))","v":{"$error":"#VALUE!"}},{"$f":"IF(T183>U183,\"B cannot be higher than C\",IFERROR(IF(COUNTA(Y183:Z183)=0,\"Fill in supplementary fields\",V183/2)*(T183/U183)+(V183/2)*(1/Y183),\"Fill in supplementary fields\"))+(IF(LEFT(S183,1)=\"1\",((T195*AB195)*(AC195/(1-AC195))),IF(LEFT(S183,1)=\"2\",IF(COUNTA(T183:V183)=0,\"Fill in supplementary fields\",(U183+V183)*AC183*AB183))))","v":{"$error":"#VALUE!"}},{"$f":"IF(T183>U183,\"B cannot be higher than C\",IFERROR(IF(COUNTA(Y183:Z183)=0,\"Fill in supplementary fields\",IF(Y183=0,V183/2*(T183/U183)+V183/2*(1/Z183),(V183/2)*(T183/U183))),\"Fill in supplementary fields\"))+(IF(LEFT(S183,1)=\"1\",((T195*AB195)*(AC195/(1-AC195))),IF(LEFT(S183,1)=\"2\",IF(COUNTA(T183:V183)=0,\"Fill in supplementary fields\",(U183+V183)*AC183*AB183))))","v":{"$error":"#VALUE!"}},"Enter exposure values in fields A and B","Fill in supplementary fields","Fill in supplementary fields","Fill in supplementary fields","Fill in supplementary fields",0,0,0,0,0,0,0]
[null,null,null,null,null,null,null,null,null,null,null,null,null,null,null,null,null,"",null,null,null,null,null,"",null,null,null,null,null,null,null,null,null,null,null,"",180,"Fill in supplementary fields","Fill in supplementary fields",{"$f":"IF(T184>U184,\"B cannot be higher than C\",IF(COUNTA(Y184:Z184)=0,\"Fill in supplementary fields\",(V184/2)*(T184/U184)+(V184/2)*(1/SUM(Y184:Z184))))+(IF(LEFT(S184,1)=\"1\",((U184+V184)/AA184)*(T184/(U184+V184))*AB184*AC184*(AA184/(1-AC184)),IF(LEFT(S184,1)=\"2\",IF(COUNTA(T184:V184)=0,\"Fill in supplementary fields\",(U184+V184)*AC184*AB184))))","v":{"$error":"#VALUE!"}},{"$f":"IF(T184>U184,\"B cannot be higher than C\",IFERROR(IF(COUNTA(Y184:Z184)=0,\"Fill in supplementary fields\",V184/2)*(T184/U184)+(V184/2)*(1/Y184),\"Fill in supplementary fields\"))+(IF(LEFT(S184,1)=\"1\",((U184+V184)/AA184)*(T184/(U184+V184))*AB184*AC184*(AA184/(1-AC184)),IF(LEFT(S184,1)=\"2\",IF(COUNTA(T184:V184)=0,\"Fill in supplementary fields\",(U184+V184)*AC184*AB184))))","v":{"$error":"#VALUE!"}},{"$f":"IF(T184>U184,\"B cannot be higher than C\",IFERROR(IF(COUNTA(Y184:Z184)=0,\"Fill in supplementary fields\",IF(Y184=0,V184/2*(T184/U184)+V184/2*(1/Z184),(V184/2)*(T184/U184))),\"Fill in supplementary fields\"))+(IF(LEFT(S184,1)=\"1\",((U184+V184)/AA184)*(T184/(U184+V184))*AB184*AC184*(AA184/(1-AC184)),IF(LEFT(S184,1)=\"2\",IF(COUNTA(T184:V184)=0,\"Fill in supplementary fields\",(U184+V184)*AC184*AB184))))","v":{"$error":"#VALUE!"}},"Enter exposure values in fields A and B","Fill in supplementary fields","Fill in supplementary fields","Fill in supplementary fields","Fill in supplementary fields",0,0,0,0,0,0,0]
[null,null,null,null,null,null,null,null,null,null,null,null,null,null,null,null,null,"",null,null,null,null,null,"",null,null,null,null,null,null,null,null,null,null,null,"",181,"Fill in supplementary fields","Fill in supplementary fields",{"$f":"IF(T185>U185,\"B cannot be higher than C\",IF(COUNTA(Y185:Z185)=0,\"Fill in supplementary fields\",(V185/2)*(T185/U185)+(V185/2)*(1/SUM(Y185:Z185))))+(IF(LEFT(S185,1)=\"1\",((U185+V185)/AA185)*(T185/(U185+V185))*AB185*AC185*(AA185/(1-AC185)),IF(LEFT(S185,1)=\"2\",IF(COUNTA(T185:V185)=0,\"Fill in supplementary fields\",(U185+V185)*AC185*AB185))))","v":{"$error":"#VALUE!"}},{"$f":"IF(T185>U185,\"B cannot be higher than C\",IFERROR(IF(COUNTA(Y185:Z185)=0,\"Fill in supplementary fields\",V185/2)*(T185/U185)+(V185/2)*(1/Y185),\"Fill in supplementary fields\"))+(IF(LEFT(S185,1)=\"1\",((U185+V185)/AA185)*(T185/(U185+V185))*AB185*AC185*(AA185/(1-AC185)),IF(LEFT(S185,1)=\"2\",IF(COUNTA(T185:V185)=0,\"Fill in supplementary fields\",(U185+V185)*AC185*AB185))))","v":{"$error":"#VALUE!"}},{"$f":"IF(T185>U185,\"B cannot be higher than C\",IFERROR(IF(COUNTA(Y185:Z185)=0,\"Fill in supplementary fields\",IF(Y185=0,V185/2*(T185/U185)+V185/2*(1/Z185),(V185/2)*(T185/U185))),\"Fill in supplementary fields\"))+(IF(LEFT(S185,1)=\"1\",((U185+V185)/AA185)*(T185/(U185+V185))*AB185*AC185*(AA185/(1-AC185)),IF(LEFT(S185,1)=\"2\",IF(COUNTA(T185:V185)=0,\"Fill in supplementary fields\",(U185+V185)*AC185*AB185))))","v":{"$error":"#VALUE!"}},"Enter exposure values in fields A and B","Fill in supplementary fields","Fill in supplementary fields","Fill in supplementary fields","Fill in supplementary fields",0,0,0,0,0,0,0]
[null,null,null,null,null,null,null,null,null,null,null,null,null,null,null,null,null,"",null,null,null,null,null,"",null,null,null,null,null,null,null,null,null,null,null,"",182,"Fill in supplementary fields","Fill in supplementary fields",{"$f":"IF(T186>U186,\"B cannot be higher than C\",IF(COUNTA(Y186:Z186)=0,\"Fill in supplementary fields\",(V186/2)*(T186/U186)+(V186/2)*(1/SUM(Y186:Z186))))+(IF(LEFT(S186,1)=\"1\",((T198*AB198)*(AC198/(1-AC198))),IF(LEFT(S186,1)=\"2\",IF(COUNTA(T186:V186)=0,\"Fill in supplementary fields\",(U186+V186)*AC186*AB186))))","v":{"$error":"#VALUE!"}},{"$f":"IF(T186>U186,\"B cannot be higher than C\",IFERROR(IF(COUNTA(Y186:Z186)=0,\"Fill in supplementary fields\",V186/2)*(T186/U186)+(V186/2)*(1/Y186),\"Fill in supplementary fields\"))+(IF(LEFT(S186,1)=\"1\",((T198*AB198)*(AC198/(1-AC198))),IF(LEFT(S186,1)=\"2\",IF(COUNTA(T186:V186)=0,\"Fill in supplementary fields\",(U186+V186)*AC186*AB186))))","v":{"$error":"#VALUE!"}},{"$f":"IF(T186>U186,\"B cannot be higher than C\",IFERROR(IF(COUNTA(Y186:Z186)=0,\"Fill in supplementary fields\",IF(Y186=0,V186/2*(T186/U186)+V186/2*(1/Z186),(V186/2)*(T186/U186))),\"Fill in supplementary fields\"))+(IF(LEFT(S186,1)=\"1\",((T198*AB198)*(AC198/(1-AC198))),IF(LEFT(S186,1)=\"2\",IF(COUNTA(T186:V186)=0,\"Fill in supplementary fields\",(U186+V186)*AC186*AB186))))","v":{"$error":"#VALUE!"}},"Enter exposure values in fields A and B","Fill in supplementary fields","Fill in supplementary fields","Fill in supplementary fields","Fill in supplementary fields",{"$f":"$V186","v":0},0,0,0,0,0,0]
[null,null,null,null,null,null,null,null,null,null,null,null,null,null,null,null,null,"",null,null,null,null,null,"",null,null,null,null,null,null,null,null,null,null,null,"",183,"Fill in supplementary fields","Fill in supplementary fields",{"$f":"IF(T187>U187,\"B cannot be higher than C\",IF(COUNTA(Y187:Z187)=0,\"Fill in supplementary fields\",(V187/2)*(T187/U187)+(V187/2)*(1/SUM(Y187:Z187))))+(IF(LEFT(S187,1)=\"1\",((U187+V187)/AA187)*(T187/(U187+V187))*AB187*AC187*(AA187/(1-AC187)),IF(LEFT(S187,1)=\"2\",IF(COUNTA(T187:V187)=0,\"Fill in supplementary fields\",(U187+V187)*AC187*AB187))))","v":{"$error":"#VALUE!"}},{"$f":"IF(T187>U187,\"B cannot be higher than C\",IFERROR(IF(COUNTA(Y187:Z187)=0,\"Fill in supplementary fields\",V187/2)*(T187/U187)+(V187/2)*(1/Y187),\"Fill in supplementary fields\"))+(IF(LEFT(S187,1)=\"1\",((U187+V187)/AA187)*(T187/(U187+V187))*AB187*AC187*(AA187/(1-AC187)),IF(LEFT(S187,1)=\"2\",IF(COUNTA(T187:V187)=0,\"Fill in supplementary fields\",(U187+V187)*AC187*AB187))))","v":{"$error":"#VALUE!"}},{"$f":"IF(T187>U187,\"B cannot be higher than C\",IFERROR(IF(COUNTA(Y187:Z187)=0,\"Fill in supplementary fields\",IF(Y187=0,V187/2*(T187/U187)+V187/2*(1/Z187),(V187/2)*(T187/U187))),\"Fill in supplementary fields\"))+(IF(LEFT(S187,1)=\"1\",((U187+V187)/AA187)*(T187/(U187+V187))*AB187*AC187*(AA187/(1-AC187)),IF(LEFT(S187,1)=\"2\",IF(COUNTA(T187:V187)=0,\"Fill in supplementary fields\",(U187+V187)*AC187*AB187))))","v":{"$error":"#VALUE!"}},"Enter exposure values in fields A and B","Fill in supplementary fields","Fill in supplementary fields","Fill in supplementary fields","Fill in supplementary fields",0,0,0,0,0,0,0]
[null,null,null,null,null,null,null,null,null,null,null,null,null,null,null,null,null,"",null,null,null,null,null,"",null,null,null,null,null,null,null,null,null,null,null,"",184,"Fill in supplementary fields","Fill in supplementary fields",{"$f":"IF(T188>U188,\"B cannot be higher than C\",IF(COUNTA(Y188:Z188)=0,\"Fill in supplementary fields\",(V188/2)*(T188/U188)+(V188/2)*(1/SUM(Y188:Z188))))+(IF(LEFT(S188,1)=\"1\",((U188+V188)/AA188)*(T188/(U188+V188))*AB188*AC188*(AA188/(1-AC188)),IF(LEFT(S188,1)=\"2\",IF(COUNTA(T188:V188)=0,\"Fill in supplementary fields\",(U188+V188)*AC188*AB188))))","v":{"$error":"#VALUE!"}},{"$f":"IF(T188>U188,\"B cannot be higher than C\",IFERROR(IF(COUNTA(Y188:Z188)=0,\"Fill in supplementary fields\",V188/2)*(T188/U188)+(V188/2)*(1/Y188),\"Fill in supplementary fields\"))+(IF(LEFT(S188,1)=\"1\",((U188+V188)/AA188)*(T188/(U188+V188))*AB188*AC188*(AA188/(1-AC188)),IF(LEFT(S188,1)=\"2\",IF(COUNTA(T188:V188)=0,\"Fill in supplementary fields\",(U188+V188)*AC188*AB188))))","v":{"$error":"#VALUE!"}},{"$f":"IF(T188>U188,\"B cannot be higher than C\",IFERROR(IF(COUNTA(Y188:Z188)=0,\"Fill in supplementary fields\",IF(Y188=0,V188/2*(T188/U188)+V188/2*(1/Z188),(V188/2)*(T188/U188))),\"Fill in supplementary fields\"))+(IF(LEFT(S188,1)=\"1\",((U188+V188)/AA188)*(T188/(U188+V188))*AB188*AC188*(AA188/(1-AC188)),IF(LEFT(S188,1)=\"2\",IF(COUNTA(T188:V188)=0,\"Fill in supplementary fields\",(U188+V188)*AC188*AB188))))","v":{"$error":"#VALUE!"}},"Enter exposure values in fields A and B","Fill in supplementary fields","Fill in supplementary fields","Fill in supplementary fields","Fill in supplementary fields",0,0,0,0,0,0,0]
[null,null,null,null,null,null,null,null,null,null,null,null,null,null,null,null,null,"",null,null,null,null,null,"",null,null,null,null,null,null,null,null,null,null,null,"",185,"Fill in supplementary fields","Fill in supplementary fields",{"$f":"IF(T189>U189,\"B cannot be higher than C\",IF(COUNTA(Y189:Z189)=0,\"Fill in supplementary fields\",(V189/2)*(T189/U189)+(V189/2)*(1/SUM(Y189:Z189))))+(IF(LEFT(S189,1)=\"1\",((T201*AB201)*(AC201/(1-AC201))),IF(LEFT(S189,1)=\"2\",IF(COUNTA(T189:V189)=0,\"Fill in supplementary fields\",(U189+V189)*AC189*AB189))))","v":{"$error":"#VALUE!"}},{"$f":"IF(T189>U189,\"B cannot be higher than C\",IFERROR(IF(COUNTA(Y189:Z189)=0,\"Fill in supplementary fields\",V189/2)*(T189/U189)+(V189/2)*(1/Y189),\"Fill in supplementary fields\"))+(IF(LEFT(S189,1)=\"1\",((T201*AB201)*(AC201/(1-AC201))),IF(LEFT(S189,1)=\"2\",IF(COUNTA(T189:V189)=0,\"Fill in supplementary fields\",(U189+V189)*AC189*AB189))))","v":{"$error":"#VALUE!"}},{"$f":"IF(T189>U189,\"B cannot be higher than C\",IFERROR(IF(COUNTA(Y189:Z189)=0,\"Fill in supplementary fields\",IF(Y189=0,V189/2*(T189/U189)+V189/2*(1/Z189),(V189/2)*(T189/U189))),\"Fill in supplementary fields\"))+(IF(LEFT(S189,1)=\"1\",((T201*AB201)*(AC201/(1-AC201))),IF(LEFT(S189,1)=\"2\",IF(COUNTA(T189:V189)=0,\"Fill in supplementary fields\",(U189+V189)*AC189*AB189))))","v":{"$error":"#VALUE!"}},"Enter exposure values in fields A and B","Fill in supplementary fields","Fill in supplementary fields","Fill in supplementary fields","Fill in supplementary fields",0,0,0,0,0,0,0]
[null,null,null,null,null,null,null,null,null,null,null,null,null,null,null,null,null,"",null,null,null,null,null,"",null,null,null,null,null,null,null,null,null,null,null,"",186,"Fill in supplementary fields","Fill in supplementary fields",{"$f":"IF(T190>U190,\"B cannot be higher than C\",IF(COUNTA(Y190:Z190)=0,\"Fill in supplementary fields\",(V190/2)*(T190/U190)+(V190/2)*(1/SUM(Y190:Z190))))+(IF(LEFT(S190,1)=\"1\",((U190+V190)/AA190)*(T190/(U190+V190))*AB190*AC190*(AA190/(1-AC190)),IF(LEFT(S190,1)=\"2\",IF(COUNTA(T190:V190)=0,\"Fill in supplementary fields\",(U190+V190)*AC190*AB190))))","v":{"$error":"#VALUE!"}},{"$f":"IF(T190>U190,\"B cannot be higher than C\",IFERROR(IF(COUNTA(Y190:Z190)=0,\"Fill in supplementary fields\",V190/2)*(T190/U190)+(V190/2)*(1/Y190),\"Fill in supplementary fields\"))+(IF(LEFT(S190,1)=\"1\",((U190+V190)/AA190)*(T190/(U190+V190))*AB190*AC190*(AA190/(1-AC190)),IF(LEFT(S190,1)=\"2\",IF(COUNTA(T190:V190)=0,\"Fill in supplementary fields\",(U190+V190)*AC190*AB190))))","v":{"$error":"#VALUE!"}},{"$f":"IF(T190>U190,\"B cannot be higher than C\",IFERROR(IF(COUNTA(Y190:Z190)=0,\"Fill in supplementary fields\",IF(Y190=0,V190/2*(T190/U190)+V190/2*(1/Z190),(V190/2)*(T190/U190))),\"Fill in supplementary fields\"))+(IF(LEFT(S190,1)=\"1\",((U190+V190)/AA190)*(T190/(U190+V190))*AB190*AC190*(AA190/(1-AC190)),IF(LEFT(S190,1)=\"2\",IF(COUNTA(T190:V190)=0,\"Fill in supplementary fields\",(U190+V190)*AC190*AB190))))","v":{"$error":"#VALUE!"}},"Enter exposure values in fields A and B","Fill in supplementary fields","Fill in supplementary fields","Fill in supplementary fields","Fill in supplementary fields",0,0,0,0,0,0,0]
[null,null,null,null,null,null,null,null,null,null,null,null,null,null,null,null,null,"",null,null,null,null,null,"",null,null,null,null,null,null,null,null,null,null,null,"",187,"Fill in supplementary fields","Fill in supplementary fields",{"$f":"IF(T191>U191,\"B cannot be higher than C\",IF(COUNTA(Y191:Z191)=0,\"Fill in supplementary fields\",(V191/2)*(T191/U191)+(V191/2)*(1/SUM(Y191:Z191))))+(IF(LEFT(S191,1)=\"1\",((U191+V191)/AA191)*(T191/(U191+V191))*AB191*AC191*(AA191/(1-AC191)),IF(LEFT(S191,1)=\"2\",IF(COUNTA(T191:V191)=0,\"Fill in supplementary fields\",(U191+V191)*AC191*AB191))))","v":{"$error":"#VALUE!"}},{"$f":"IF(T191>U191,\"B cannot be higher than C\",IFERROR(IF(COUNTA(Y191:Z191)=0,\"Fill in supplementary fields\",V191/2)*(T191/U191)+(V191/2)*(1/Y191),\"Fill in supplementary fields\"))+(IF(LEFT(S191,1)=\"1\",((U191+V191)/AA191)*(T191/(U191+V191))*AB191*AC191*(AA191/(1-AC191)),IF(LEFT(S191,1)=\"2\",IF(COUNTA(T191:V191)=0,\"Fill in supplementary fields\",(U191+V191)*AC191*AB191))))","v":{"$error":"#VALUE!"}},{"$f":"IF(T191>U191,\"B cannot be higher than C\",IFERROR(IF(COUNTA(Y191:Z191)=0,\"Fill in supplementary fields\",IF(Y191=0,V191/2*(T191/U191)+V191/2*(1/Z191),(V191/2)*(T191/U191))),\"Fill in supplementary fields\"))+(IF(LEFT(S191,1)=\"1\",((U191+V191)/AA191)*(T191/(U191+V191))*AB191*AC191*(AA191/(1-AC191)),IF(LEFT(S191,1)=\"2\",IF(COUNTA(T191:V191)=0,\"Fill in supplementary fields\",(U191+V191)*AC191*AB191))))","v":{"$error":"#VALUE!"}},"Enter exposure values in fields A and B","Fill in supplementary fields","Fill in supplementary fields","Fill in supplementary fields","Fill in supplementary fields",0,0,0,0,0,0,0]
[null,null,null,null,null,null,null,null,null,null,null,null,null,null,null,null,null,"",null,null,null,null,null,"",null,null,null,null,null,null,null,null,null,null,null,"",188,"Fill in supplementary fields","Fill in supplementary fields",{"$f":"IF(T192>U192,\"B cannot be higher than C\",IF(COUNTA(Y192:Z192)=0,\"Fill in supplementary fields\",(V192/2)*(T192/U192)+(V192/2)*(1/SUM(Y192:Z192))))+(IF(LEFT(S192,1)=\"1\",((T204*AB204)*(AC204/(1-AC204))),IF(LEFT(S192,1)=\"2\",IF(COUNTA(T192:V192)=0,\"Fill in supplementary fields\",(U192+V192)*AC192*AB192))))","v":{"$error":"#VALUE!"}},{"$f":"IF(T192>U192,\"B cannot be higher than C\",IFERROR(IF(COUNTA(Y192:Z192)=0,\"Fill in supplementary fields\",V192/2)*(T192/U192)+(V192/2)*(1/Y192),\"Fill in supplementary fields\"))+(IF(LEFT(S192,1)=\"1\",((T204*AB204)*(AC204/(1-AC204))),IF(LEFT(S192,1)=\"2\",IF(COUNTA(T192:V192)=0,\"Fill in supplementary fields\",(U192+V192)*AC192*AB192))))","v":{"$error":"#VALUE!"}},{"$f":"IF(T192>U192,\"B cannot be higher than C\",IFERROR(IF(COUNTA(Y192:Z192)=0,\"Fill in supplementary fields\",IF(Y192=0,V192/2*(T192/U192)+V192/2*(1/Z192),(V192/2)*(T192/U192))),\"Fill in supplementary fields\"))+(IF(LEFT(S192,1)=\"1\",((T204*AB204)*(AC204/(1-AC204))),IF(LEFT(S192,1)=\"2\",IF(COUNTA(T192:V192)=0,\"Fill in supplementary fields\",(U192+V192)*AC192*AB192))))","v":{"$error":"#VALUE!"}},"Enter exposure values in fields A and B","Fill in supplementary fields","Fill in supplementary fields","Fill in supplementary fields","Fill in supplementary fields",0,0,0,0,0,0,0]
[null,null,null,null,null,null,null,null,null,null,null,null,null,null,null,null,null,"",null,null,null,null,null,"",null,null,null,null,null,null,null,null,null,null,null,"",189,"Fill in supplementary fields","Fill in supplementary fields",{"$f":"IF(T193>U193,\"B cannot be higher than C\",IF(COUNTA(Y193:Z193)=0,\"Fill in supplementary fields\",(V193/2)*(T193/U193)+(V193/2)*(1/SUM(Y193:Z193))))+(IF(LEFT(S193,1)=\"1\",((U193+V193)/AA193)*(T193/(U193+V193))*AB193*AC193*(AA193/(1-AC193)),IF(LEFT(S193,1)=\"2\",IF(COUNTA(T193:V193)=0,\"Fill in supplementary fields\",(U193+V193)*AC193*AB193))))","v":{"$error":"#VALUE!"}},{"$f":"IF(T193>U193,\"B cannot be higher than C\",IFERROR(IF(COUNTA(Y193:Z193)=0,\"Fill in supplementary fields\",V193/2)*(T193/U193)+(V193/2)*(1/Y193),\"Fill in supplementary fields\"))+(IF(LEFT(S193,1)=\"1\",((U193+V193)/AA193)*(T193/(U193+V193))*AB193*AC193*(AA193/(1-AC193)),IF(LEFT(S193,1)=\"2\",IF(COUNTA(T193:V193)=0,\"Fill in supplementary fields\",(U193+V193)*AC193*AB193))))","v":{"$error":"#VALUE!"}},{"$f":"IF(T193>U193,\"B cannot be higher than C\",IFERROR(IF(COUNTA(Y193:Z193)=0,\"Fill in supplementary fields\",IF(Y193=0,V193/2*(T193/U193)+V193/2*(1/Z193),(V193/2)*(T193/U193))),\"Fill in supplementary fields\"))+(IF(LEFT(S193,1)=\"1\",((U193+V193)/AA193)*(T193/(U193+V193))*AB193*AC193*(AA193/(1-AC193)),IF(LEFT(S193,1)=\"2\",IF(COUNTA(T193:V193)=0,\"Fill in supplementary fields\",(U193+V193)*AC193*AB193))))","v":{"$error":"#VALUE!"}},"Enter exposure values in fields A and B","Fill in supplementary fields","Fill in supplementary fields","Fill in supplementary fields","Fill in supplementary fields",0,0,0,0,0,0,0]
[null,null,null,null,null,null,null,null,null,null,null,null,null,null,null,null,null,"",null,null,null,null,null,"",null,null,null,null,null,null,null,null,null,null,null,"",190,"Fill in supplementary fields","Fill in supplementary fields",{"$f":"IF(T194>U194,\"B cannot be higher than C\",IF(COUNTA(Y194:Z194)=0,\"Fill in supplementary fields\",(V194/2)*(T194/U194)+(V194/2)*(1/SUM(Y194:Z194))))+(IF(LEFT(S194,1)=\"1\",((U194+V194)/AA194)*(T194/(U194+V194))*AB194*AC194*(AA194/(1-AC194)),IF(LEFT(S194,1)=\"2\",IF(COUNTA(T194:V194)=0,\"Fill in supplementary fields\",(U194+V194)*AC194*AB194))))","v":{"$error":"#VALUE!"}},{"$f":"IF(T194>U194,\"B cannot be higher than C\",IFERROR(IF(COUNTA(Y194:Z194)=0,\"Fill in supplementary fields\",V194/2)*(T194/U194)+(V194/2)*(1/Y194),\"Fill in supplementary fields\"))+(IF(LEFT(S194,1)=\"1\",((U194+V194)/AA194)*(T194/(U194+V194))*AB194*AC194*(AA194/(1-AC194)),IF(LEFT(S194,1)=\"2\",IF(COUNTA(T194:V194)=0,\"Fill in supplementary fields\",(U194+V194)*AC194*AB194))))","v":{"$error":"#VALUE!"}},{"$f":"IF(T194>U194,\"B cannot be higher than C\",IFERROR(IF(COUNTA(Y194:Z194)=0,\"Fill in supplementary fields\",IF(Y194=0,V194/2*(T194/U194)+V194/2*(1/Z194),(V194/2)*(T194/U194))),\"Fill in supplementary fields\"))+(IF(LEFT(S194,1)=\"1\",((U194+V194)/AA194)*(T194/(U194+V194))*AB194*AC194*(AA194/(1-AC194)),IF(LEFT(S194,1)=\"2\",IF(COUNTA(T194:V194)=0,\"Fill in supplementary fields\",(U194+V194)*AC194*AB194))))","v":{"$error":"#VALUE!"}},"Enter exposure values in fields A and B","Fill in supplementary fields","Fill in supplementary fields","Fill in supplementary fields","Fill in supplementary fields",0,0,0,0,0,0,0]
[null,null,null,null,null,null,null,null,null,null,null,null,null,null,null,null,null,"",null,null,null,null,null,"",null,null,null,null,null,null,null,null,null,null,null,"",191,"Fill in supplementary fields","Fill in supplementary fields",{"$f":"IF(T195>U195,\"B cannot be higher than C\",IF(COUNTA(Y195:Z195)=0,\"Fill in supplementary fields\",(V195/2)*(T195/U195)+(V195/2)*(1/SUM(Y195:Z195))))+(IF(LEFT(S195,1)=\"1\",((T207*AB207)*(AC207/(1-AC207))),IF(LEFT(S195,1)=\"2\",IF(COUNTA(T195:V195)=0,\"Fill in supplementary fields\",(U195+V195)*AC195*AB195))))","v":{"$error":"#VALUE!"}},{"$f":"IF(T195>U195,\"B cannot be higher than C\",IFERROR(IF(COUNTA(Y195:Z195)=0,\"Fill in supplementary fields\",V195/2)*(T195/U195)+(V195/2)*(1/Y195),\"Fill in supplementary fields\"))+(IF(LEFT(S195,1)=\"1\",((T207*AB207)*(AC207/(1-AC207))),IF(LEFT(S195,1)=\"2\",IF(COUNTA(T195:V195)=0,\"Fill in supplementary fields\",(U195+V195)*AC195*AB195))))","v":{"$error":"#VALUE!"}},{"$f":"IF(T195>U195,\"B cannot be higher than C\",IFERROR(IF(COUNTA(Y195:Z195)=0,\"Fill in supplementary fields\",IF(Y195=0,V195/2*(T195/U195)+V195/2*(1/Z195),(V195/2)*(T195/U195))),\"Fill in supplementary fields\"))+(IF(LEFT(S195,1)=\"1\",((T207*AB207)*(AC207/(1-AC207))),IF(LEFT(S195,1)=\"2\",IF(COUNTA(T195:V195)=0,\"Fill in supplementary fields\",(U195+V195)*AC195*AB195))))","v":{"$error":"#VALUE!"}},"Enter exposure values in fields A and B","Fill in supplementary fields","Fill in supplementary fields","Fill in supplementary fields","Fill in supplementary fields",0,0,0,0,0,0,0]
[null,null,null,null,null,null,null,null,null,null,null,null,null,null,null,null,null,"",null,null,null,null,null,"",null,null,null,null,null,null,null,null,null,null,null,"",192,"Fill in supplementary fields","Fill in supplementary fields",{"$f":"IF(T196>U196,\"B cannot be higher than C\",IF(COUNTA(Y196:Z196)=0,\"Fill in supplementary fields\",(V196/2)*(T196/U196)+(V196/2)*(1/SUM(Y196:Z196))))+(IF(LEFT(S196,1)=\"1\",((U196+V196)/AA196)*(T196/(U196+V196))*AB196*AC196*(AA196/(1-AC196)),IF(LEFT(S196,1)=\"2\",IF(COUNTA(T196:V196)=0,\"Fill in supplementary fields\",(U196+V196)*AC196*AB196))))","v":{"$error":"#VALUE!"}},{"$f":"IF(T196>U196,\"B cannot be higher than C\",IFERROR(IF(COUNTA(Y196:Z196)=0,\"Fill in supplementary fields\",V196/2)*(T196/U196)+(V196/2)*(1/Y196),\"Fill in supplementary fields\"))+(IF(LEFT(S196,1)=\"1\",((U196+V196)/AA196)*(T196/(U196+V196))*AB196*AC196*(AA196/(1-AC196)),IF(LEFT(S196,1)=\"2\",IF(COUNTA(T196:V196)=0,\"Fill in supplementary fields\",(U196+V196)*AC196*AB196))))","v":{"$error":"#VALUE!"}},{"$f":"IF(T196>U196,\"B cannot be higher than C\",IFERROR(IF(COUNTA(Y196:Z196)=0,\"Fill in supplementary fields\",IF(Y196=0,V196/2*(T196/U196)+V196/2*(1/Z196),(V196/2)*(T196/U196))),\"Fill in supplementary fields\"))+(IF(LEFT(S196,1)=\"1\",((U196+V196)/AA196)*(T196/(U196+V196))*AB196*AC196*(AA196/(1-AC196)),IF(LEFT(S196,1)=\"2\",IF(COUNTA(T196:V196)=0,\"Fill in supplementary fields\",(U196+V196)*AC196*AB196))))","v":{"$error":"#VALUE!"}},"Enter exposure values in fields A and B","Fill in supplementary fields","Fill in supplementary fields","Fill in supplementary fields","Fill in supplementary fields",0,0,0,0,0,0,0]
[null,null,null,null,null,null,null,null,null,null,null,null,null,null,null,null,null,"",null,null,null,null,null,"",null,null,null,null,null,null,null,null,null,null,null,"",193,"Fill in supplementary fields","Fill in supplementary fields",{"$f":"IF(T197>U197,\"B cannot be higher than C\",IF(COUNTA(Y197:Z197)=0,\"Fill in supplementary fields\",(V197/2)*(T197/U197)+(V197/2)*(1/SUM(Y197:Z197))))+(IF(LEFT(S197,1)=\"1\",((U197+V197)/AA197)*(T197/(U197+V197))*AB197*AC197*(AA197/(1-AC197)),IF(LEFT(S197,1)=\"2\",IF(COUNTA(T197:V197)=0,\"Fill in supplementary fields\",(U197+V197)*AC197*AB197))))","v":{"$error":"#VALUE!"}},{"$f":"IF(T197>U197,\"B cannot be higher than C\",IFERROR(IF(COUNTA(Y197:Z197)=0,\"Fill in supplementary fields\",V197/2)*(T197/U197)+(V197/2)*(1/Y197),\"Fill in supplementary fields\"))+(IF(LEFT(S197,1)=\"1\",((U197+V197)/AA197)*(T197/(U197+V197))*AB197*AC197*(AA197/(1-AC197)),IF(LEFT(S197,1)=\"2\",IF(COUNTA(T197:V197)=0,\"Fill in supplementary fields\",(U197+V197)*AC197*AB197))))","v":{"$error":"#VALUE!"}},{"$f":"IF(T197>U197,\"B cannot be higher than C\",IFERROR(IF(COUNTA(Y197:Z197)=0,\"Fill in supplementary fields\",IF(Y197=0,V197/2*(T197/U197)+V197/2*(1/Z197),(V197/2)*(T197/U197))),\"Fill in supplementary fields\"))+(IF(LEFT(S197,1)=\"1\",((U197+V197)/AA197)*(T197/(U197+V197))*AB197*AC197*(AA197/(1-AC197)),IF(LEFT(S197,1)=\"2\",IF(COUNTA(T197:V197)=0,\"Fill in supplementary fields\",(U197+V197)*AC197*AB197))))","v":{"$error":"#VALUE!"}},"Enter exposure values in fields A and B","Fill in supplementary fields","Fill in supplementary fields","Fill in supplementary fields","Fill in supplementary fields",0,0,0,0,0,0,0]
[null,null,null,null,null,null,null,null,null,null,null,null,null,null,null,null,null,"",null,null,null,null,null,"",null,null,null,null,null,null,null,null,null,null,null,"",194,"Fill in supplementary fields","Fill in supplementary fields",{"$f":"IF(T198>U198,\"B cannot be higher than C\",IF(COUNTA(Y198:Z198)=0,\"Fill in supplementary fields\",(V198/2)*(T198/U198)+(V198/2)*(1/SUM(Y198:Z198))))+(IF(LEFT(S198,1)=\"1\",((T210*AB210)*(AC210/(1-AC210))),IF(LEFT(S198,1)=\"2\",IF(COUNTA(T198:V198)=0,\"Fill in supplementary fields\",(U198+V198)*AC198*AB198))))","v":{"$error":"#VALUE!"}},{"$f":"IF(T198>U198,\"B cannot be higher than C\",IFERROR(IF(COUNTA(Y198:Z198)=0,\"Fill in supplementary fields\",V198/2)*(T198/U198)+(V198/2)*(1/Y198),\"Fill in supplementary fields\"))+(IF(LEFT(S198,1)=\"1\",((T210*AB210)*(AC210/(1-AC210))),IF(LEFT(S198,1)=\"2\",IF(COUNTA(T198:V198)=0,\"Fill in supplementary fields\",(U198+V198)*AC198*AB198))))","v":{"$error":"#VALUE!"}},{"$f":"IF(T198>U198,\"B cannot be higher than C\",IFERROR(IF(COUNTA(Y198:Z198)=0,\"Fill in supplementary fields\",IF(Y198=0,V198/2*(T198/U198)+V198/2*(1/Z198),(V198/2)*(T198/U198))),\"Fill in supplementary fields\"))+(IF(LEFT(S198,1)=\"1\",((T210*AB210)*(AC210/(1-AC210))),IF(LEFT(S198,1)=\"2\",IF(COUNTA(T198:V198)=0,\"Fill in supplementary fields\",(U198+V198)*AC198*AB198))))","v":{"$error":"#VALUE!"}},"Enter exposure values in fields A and B","Fill in supplementary fields","Fill in supplementary fields","Fill in supplementary fields","Fill in supplementary fields",0,0,0,0,0,0,0]
[null,null,null,null,null,null,null,null,null,null,null,null,null,null,null,null,null,"",null,null,null,null,null,"",null,null,null,null,null,null,null,null,null,null,null,"",195,"Fill in supplementary fields","Fill in supplementary fields",{"$f":"IF(T199>U199,\"B cannot be higher than C\",IF(COUNTA(Y199:Z199)=0,\"Fill in supplementary fields\",(V199/2)*(T199/U199)+(V199/2)*(1/SUM(Y199:Z199))))+(IF(LEFT(S199,1)=\"1\",((U199+V199)/AA199)*(T199/(U199+V199))*AB199*AC199*(AA199/(1-AC199)),IF(LEFT(S199,1)=\"2\",IF(COUNTA(T199:V199)=0,\"Fill in supplementary fields\",(U199+V199)*AC199*AB199))))","v":{"$error":"#VALUE!"}},{"$f":"IF(T199>U199,\"B cannot be higher than C\",IFERROR(IF(COUNTA(Y199:Z199)=0,\"Fill in supplementary fields\",V199/2)*(T199/U199)+(V199/2)*(1/Y199),\"Fill in supplementary fields\"))+(IF(LEFT(S199,1)=\"1\",((U199+V199)/AA199)*(T199/(U199+V199))*AB199*AC199*(AA199/(1-AC199)),IF(LEFT(S199,1)=\"2\",IF(COUNTA(T199:V199)=0,\"Fill in supplementary fields\",(U199+V199)*AC199*AB199))))","v":{"$error":"#VALUE!"}},{"$f":"IF(T199>U199,\"B cannot be higher than C\",IFERROR(IF(COUNTA(Y199:Z199)=0,\"Fill in supplementary fields\",IF(Y199=0,V199/2*(T199/U199)+V199/2*(1/Z199),(V199/2)*(T199/U199))),\"Fill in supplementary fields\"))+(IF(LEFT(S199,1)=\"1\",((U199+V199)/AA199)*(T199/(U199+V199))*AB199*AC199*(AA199/(1-AC199)),IF(LEFT(S199,1)=\"2\",IF(COUNTA(T199:V199)=0,\"Fill in supplementary fields\",(U199+V199)*AC199*AB199))))","v":{"$error":"#VALUE!"}},"Enter exposure values in fields A and B","Fill in supplementary fields","Fill in supplementary fields","Fill in supplementary fields","Fill in supplementary fields",0,0,0,0,0,0,0]
[null,null,null,null,null,null,null,null,null,null,null,null,null,null,null,null,null,"",null,null,null,null,null,"",null,null,null,null,null,null,null,null,null,null,null,"",196,"Fill in supplementary fields","Fill in supplementary fields",{"$f":"IF(T200>U200,\"B cannot be higher than C\",IF(COUNTA(Y200:Z200)=0,\"Fill in supplementary fields\",(V200/2)*(T200/U200)+(V200/2)*(1/SUM(Y200:Z200))))+(IF(LEFT(S200,1)=\"1\",((U200+V200)/AA200)*(T200/(U200+V200))*AB200*AC200*(AA200/(1-AC200)),IF(LEFT(S200,1)=\"2\",IF(COUNTA(T200:V200)=0,\"Fill in supplementary fields\",(U200+V200)*AC200*AB200))))","v":{"$error":"#VALUE!"}},{"$f":"IF(T200>U200,\"B cannot be higher than C\",IFERROR(IF(COUNTA(Y200:Z200)=0,\"Fill in supplementary fields\",V200/2)*(T200/U200)+(V200/2)*(1/Y200),\"Fill in supplementary fields\"))+(IF(LEFT(S200,1)=\"1\",((U200+V200)/AA200)*(T200/(U200+V200))*AB200*AC200*(AA200/(1-AC200)),IF(LEFT(S200,1)=\"2\",IF(COUNTA(T200:V200)=0,\"Fill in supplementary fields\",(U200+V200)*AC200*AB200))))","v":{"$error":"#VALUE!"}},{"$f":"IF(T200>U200,\"B cannot be higher than C\",IFERROR(IF(COUNTA(Y200:Z200)=0,\"Fill in supplementary fields\",IF(Y200=0,V200/2*(T200/U200)+V200/2*(1/Z200),(V200/2)*(T200/U200))),\"Fill in supplementary fields\"))+(IF(LEFT(S200,1)=\"1\",((U200+V200)/AA200)*(T200/(U200+V200))*AB200*AC200*(AA200/(1-AC200)),IF(LEFT(S200,1)=\"2\",IF(COUNTA(T200:V200)=0,\"Fill in supplementary fields\",(U200+V200)*AC200*AB200))))","v":{"$error":"#VALUE!"}},"Enter exposure values in fields A and B","Fill in supplementary fields","Fill in supplementary fields","Fill in supplementary fields","Fill in supplementary fields",0,0,0,0,0,0,0]
[null,null,null,null,null,null,null,null,null,null,null,null,null,null,null,null,null,null,null,null,null,null,null,null,null,null,null,null,null,null,null,null,null,null,null,""]

{"sheet":"MOB_validation","index":8,"n_rows":17,"n_cols":6,"rows_kept":17,"cut":false,"hidden":true,"merged":[]}
["Leveraging mechanism and role/position","Origin of the funds mobilised","Project finance SPV flag \n(1=Yes)","Type of arranger",null,"Type of mobilisation\n(for data PILOTS only)"]
["1=Syndicated loan, arranger","1=Provider country",1,"1=Official institution",null,"1 = Second-level flows mobilised through CIVs, equity funds "]
["2=Syndicated loan, participant","2=Recipient country ",null,"2=Private institution",null,"2 = Second-level flows mobilised through CIVs, debt funds "]
["3=Common shares in flat collective investment vehicle","3=Third high income/OECD country",null,null,null,"3= Portfolio mobilisation"]
["4=Shares in the riskiest tranche of structured collective investment vehicle, first-loss shares and others (e.g. lock-up shares)","4=Other third country",null,null,null,"4= Generation"]
["5=Shares in the mezzanine/senior tranche of structured CIV","5=Other/multiple origins "]
["6=Guarantee/insurance "]
["7=Direct investment in companies/SPVs, equity"]
["8=Direct investment in companies/SPVs, mezzanine/senior debt"]
["9=Credit lines"]
["10=Simple co-financing arrangements"]
["11=Portfolio mobilisation, Investment exits (debt or equity) (PILOT) "]
["12=Porfolio mobilisation, Risk transfer through securitisation (PILOT)"]
["13=Porfolio mobilisation, Risk transfer through portfolio insurance (PILOT)"]
["14=Generation, equity (PILOT) "]
["15=Generation, hybrid capital (PILOT)"]
["16=Generation, bond issuance (PILOT)"]

{"sheet":"Validation table","index":9,"n_rows":66,"n_cols":11,"rows_kept":66,"cut":false,"hidden":false,"merged":[]}
["Validation table for CRS++",null,null,null,null,null,null,null,null,"Reporting country:","???"]
["DISBURSEMENTS AND COMMITMENTS OF OFFICIAL AND PRIVATE FLOWS",null,null,null,null,null,null,null,null,"Period:",2024]
["2025 edition",null,null,null,null,null,null,null,null,"Date:","???"]
[]
[null,null,1121,1122,1120,1131,1130,1140,1151,1152,1150]
[null,null,"D I S B U R S E M E N T S",null,null,null,null,null,"COMMITMENTS"]
["Million US dollars",null,"-------- Amounts Extended --------",null,null,"Recoveries","Amounts received","Net\nAmounts",null,null,"Total commitments"]
[null,null,null,null,null,"(-)","(-)"]
[null,null,"Grants (1)","Non grants","Total amounts extended","Grants (2)","Non grants",null,"Grants (1)","Non grants"]
["I. BILATERAL FLOWS",null,"/","/","/","/","/","/","/","/","/"]
["I. A. Geographical distribution",null,"/","/","/","/","/","/","/","/","/"]
["I.A.1 Bilateral ODA (tables DAC 2a and 3a)","1015",{"$f":"SUM(C13:C18)","v":0},{"$f":"SUM(D13:D18)","v":0},{"$f":"C12+D12","v":0},{"$f":"SUM(F13:F18)","v":0},{"$f":"SUM(G13:G18)","v":0},{"$f":"E12+F12+G12","v":0},{"$f":"SUM(I13:I18)","v":0},{"$f":"SUM(J13:J18)","v":0},{"$f":"I12+J12","v":0}]
["1.1 Europe","10001",null,null,{"$f":"C13+D13","v":0},null,null,{"$f":"E13+F13+G13","v":0},null,null,{"$f":"I13+J13","v":0}]
["1.2 Africa","10002",null,null,0,null,null,0,null,null,0]
["1.3 America","10003",null,null,0,null,null,0,null,null,0]
["1.4 Asia","10004",null,null,0,null,null,0,null,null,0]
["1.5 Oceania","10005",null,null,0,null,null,0,null,null,0]
["1.6 Bilateral unallocated","10998",null,null,0,null,null,{"$f":"E18+F18+G18","v":0},null,null,0]
["Memo:  Interest received on loans (3)","10209","/","/","/","/",null,"/","/","/","/"]
["I.A.2. PSI flows (from table DAC 2b)","3400",{"$f":"SUM(C21:C26)","v":0},{"$f":"SUM(D21:D26)","v":0},{"$f":"C20+D20","v":0},{"$f":"SUM(F21:F26)","v":0},{"$f":"SUM(G21:G26)","v":0},{"$f":"E20+F20+G20","v":0},{"$f":"SUM(I21:I26)","v":0},{"$f":"SUM(J21:J26)","v":0},{"$f":"I20+J20","v":0}]
["2.1 Europe","34001",null,null,0,null,null,0,null,null,0]
["2.2 Africa","34002",null,null,0,null,null,0,null,null,0]
["2.3 America","34003",null,null,0,null,null,0,null,null,0]
["2.4 Asia","34004",null,null,0,null,null,0,null,null,0]
["2.5 Oceania","34005",null,null,0,null,null,0,null,null,0]
["2.6 Bilateral unallocated","34998",null,null,0,null,null,0,null,null,0]
["I.A.3. Bilateral OOF (from table DAC 2b)","210",{"$f":"SUM(C28:C33)","v":0},{"$f":"SUM(D28:D33)","v":0},{"$f":"C27+D27","v":0},0,0,0,0,0,{"$f":"I27+J27","v":0}]
["2.1 Europe","20001",null,null,0,null,null,0,null,null,0]
["2.2 Africa","20002",null,null,0,null,null,0,null,null,0]
["2.3 America","20003",null,null,0,null,null,0,null,null,0]
["2.4 Asia","20004",null,null,0,null,null,0,null,null,0]
["2.5 Oceania","20005",null,null,0,null,null,0,null,null,0]
["2.6 Bilateral unallocated","20998",null,null,0,null,null,0,null,null,0]
["I.A.4. Officially Supported export credits (from table DAC 2b)","30000",{"$f":"SUM(C35:C40)","v":0},{"$f":"SUM(D35:D40)","v":0},0,{"$f":"SUM(F35:F40)","v":0},{"$f":"SUM(G35:G40)","v":0},0,{"$f":"SUM(I35:I40)","v":0},{"$f":"SUM(J35:J40)","v":0},0]
["3.1 Europe","30001",null,null,0,null,null,0,null,null,0]
["3.2 Africa","30002",null,null,0,null,null,0,null,null,0]
["3.3 America","30003",null,null,0,null,null,0,null,null,0]
["3.4 Asia","30004",null,null,0,null,null,0,null,null,0]
["3.5 Oceania","30005",null,null,0,null,null,0,null,null,0]
["3.6 Bilateral unallocated","30998",null,null,0,null,null,0,null,null,0]
["I.A.5. Bilateral private flows (table DAC 4)","3320",{"$f":"SUM(C42:C47)","v":0},{"$f":"SUM(D42:D47)","v":0},{"$f":"C41+D41","v":0},{"$f":"SUM(F42:F47)","v":0},{"$f":"SUM(G42:G47)","v":0},0,"/","/","/"]
["4.1 Europe","40001",null,null,0,null,null,0,"/","/","/"]
["4.2 Africa","40002",null,null,0,null,null,0,"/","/","/"]
["4.3 America","40003",null,null,0,null,null,0,"/","/","/"]
["4.4 Asia","40004",null,null,0,null,null,0,"/","/","/"]
["4.5 Oceania","40005",null,null,0,null,null,0,"/","/","/"]
["4.6 Bilateral unallocated","40998",null,null,0,null,null,0,"/","/","/"]
["I.B. Sectoral distribution of bilateral ODA (table DAC 5)","5000",{"$f":"C49+C50","v":0},{"$f":"D49+D50","v":0},0,"/","/",{"$f":"E48","v":0},0,0,{"$f":"I48+J48","v":0}]
["Sector allocable","5450",null,null,0,"/","/",0,null,null,{"$f":"I49+J49","v":0}]
["Non sector allocable","5999",null,null,0,"/","/",0,null,null,0]
["Memo:    Developmental food aid","5520",null,null,0,"/","/",0,null,null,0]
["Humanitarian aid","5700",null,null,0,"/","/",0,null,null,0]
["              Relief food aid","5762",null,null,0,"/","/",0,null,null,0]
[]
["Memo: ODA components of associated financing packages","1990",null,null,{"$f":"C55+D55","v":0},null,null,{"$f":"E55+F55+G55","v":0},null,null,0]
[]
["II. MULTILATERAL ODA FLOWS (tables DAC 2a and 3a)","2000",{"$f":"C58+C59","v":0},{"$f":"D60","v":0},{"$f":"C57+D57","v":0},{"$f":"F58+F59","v":0},{"$f":"G60","v":0},{"$f":"E57+F57+G57","v":0},{"$f":"I58+I59","v":0},{"$f":"J60","v":0},{"$f":"I57+J57","v":0}]
["1. Grants","2201",null,"/",{"$f":"C58","v":0},null,"/",{"$f":"E58+F58","v":0},null,"/",{"$f":"I58","v":0}]
["2. Capital Subscriptions (deposit basis)","2210",null,"/",{"$f":"C59","v":0},null,"/",{"$f":"E59+F59","v":0},null,"/",{"$f":"I59","v":0}]
["3. Loans","2218","/",null,{"$f":"D60","v":0},"/",null,{"$f":"E60+G60","v":0},"/",null,{"$f":"J60","v":0}]
["Memo:  Capital subscriptions on an encashment basis","2211",null,"/",{"$f":"C61","v":0},"/","/",{"$f":"E61","v":0},"/","/","/"]
["        Interest received on loans","2209","/","/","/","/",null,"/","/","/","/"]
[]
["(1) Also includes capital subscriptions to multilateral agencies."]
["(2) Also includes recoveries on capital subscriptions."]
["(3) Does not include offsetting entries for forgiven interest."]

{"sheet":"type_of_finance","index":10,"n_rows":57,"n_cols":15,"rows_kept":57,"cut":false,"hidden":true,"merged":[]}
["Finance_T","NameE","NameF",null,null,null,null,null,null,null,null,null,"FT","PSI flag"]
[110,"Standard grant","Dons ordinaires"]
[210,"Interest subsidy","Bonification d'intérêt",null,null,null,null,null,null,null,null,null,421,null,"Pchannel 6"]
[310,"Capital subscription on deposit basis","Souscriptions au capital sur la base des dépôt",null,null,null,null,null,null,null,null,null,423,null,"Pchannel 6"]
[311,"Capital subscription on encashment basis","Souscriptions au capital sur la base des encaissements ",null,null,null,null,null,null,null,null,null,4221,"20,40,30","Pchannel 6"]
[421,"Standard loan","Prêt ordinaire",null,null,null,null,null,null,null,null,null,431,"21,22,41,42","Pchannel <>4"]
[422,"Reimbursable grant ","Don remboursable",null,null,null,null,null,null,null,null,"equities",432,"21,22,41,42,30","Pchannel <>4"]
[4221,"Loan-type reimbursable grant",null,null,null,null,null,null,null,null,null,null,510,"21,22,41,42,30","Pchannel <>4"]
[4222,"Reflow-based reimbursable grant",null,null,null,null,null,null,null,null,null,null,520,"21,22,41,42,30","Pchannel <>4"]
[423,"Bonds","Obligations",null,null,null,null,null,null,null,null,null,4222,"21,22,41,42,30","Pchannel <>4"]
[424,"Asset-backed securities ","Titres adossés à des actifs",null,null,null,null,null,null,null,null,null,1001,"20,40,30","Pchannel 1 and 6"]
[425,"Other debt securities","Autres actifs de dette",null,null,null,null,null,null,null,null,null,1002,"20,40,30","Pchannel 1 and 6"]
[431,"Subordinated loan ","Prêt subordonné",null,null,null,null,null,null,null,null,null,1003,"20,40,30","Pchannel <>4"]
[432,"Preferred equity ","Action privilégiée",null,null,null,null,null,null,null,null,null,1004,"20,40,30","Pchannel <>4"]
[433,"Other hybrid instruments ","Autres instruments hybrides",null,null,null,null,null,null,null,null,null,1005,"20,40,30","Pchannel <>4"]
[434,"Multilateral hybrid capital: hybrid capital instruments issued by multilateral institutions",null,null,null,null,null,"                                                                                ",null,null,null,null,1006,"20,40,30","Pchannel <>4"]
[510,"Common equity","Action ordinaire",null,null,null,null,null,null,null,null,null,1007,"20,40,30","Pchannel <>4"]
[520,"Shares in collective investment vehicles ","Parts dans des organismes collectifs d'investissement",null,null,null,null,null,null,null,null,null,1008,"20,40,30"]
[530,"Reinvested earnings","Bénéfices réinvestis"]
[610,"Debt forgiveness:  ODA claims (P)","Annulation/conversion de la dette : créance APD (P)"]
[611,"Debt forgiveness: ODA claims (I)","Annulation/conversion de la dette : créance APD (I)"]
[612,"Debt forgiveness: OOF claims (P)","Annulation/conversion de la dette : créance AASP (P)"]
[613,"Debt forgiveness: OOF claims (I)","Annulation/conversion de la dette : créance AASP (I)"]
[614,"Debt forgiveness:  Private claims (P)","Annulation/conversion de la dette : créance du secteur privé (P)"]
[615,"Debt forgiveness:  Private claims (I)","Annulation/conversion de la dette : créance du secteur privé (I)"]
[616,"Debt forgiveness: OOF claims (DSR)","Annulation/conversion de la dette : créance AASP (DSR)"]
[617,"Debt forgiveness:  Private claims (DSR)","Annulation/conversion de la dette : créance du secteur privé (DSR)"]
[618,"Debt forgiveness: Other","Annulation/conversion de la dette : autre"]
[620,"Debt rescheduling: ODA claims (P)","Rééchelonnement de la dette : créance APD (P)"]
[621,"Debt rescheduling: ODA claims (I)","Rééchelonnement de la dette : créance APD (I)"]
[622,"Debt rescheduling: OOF claims (P)","Rééchelonnement de la dette : créance AASP (P)"]
[623,"Debt rescheduling: OOF claims (I)","Rééchelonnement de la dette : créance AASP (I)"]
[624,"Debt rescheduling:  Private claims (P)","Rééchelonnement de la dette : créance du secteur privé (P)"]
[625,"Debt rescheduling:  Private claims (I)","Rééchelonnement de la dette : créance du secteur privé (I)"]
[626,"Debt rescheduling: OOF claims (DSR)","Rééchelonnement de la dette : créance AASP (RSD)"]
[627,"Debt rescheduling:  Private claims (DSR)","Rééchelonnement de la dette : créance du secteur privé (RSD)"]
[630,"Debt rescheduling: OOF claim (DSR – original loan principal) ","Rééchelonnement de la dette : créance AASP (RSD – principal du prêt d’origine)"]
[631,"Debt rescheduling: OOF claim (DSR – original loan interest)","Rééchelonnement de la dette : créance AASP (RSD – intérêts du prêt d’origine)"]
[632,"Debt rescheduling: Private claim (DSR – original loan principal)","Rééchelonnement de la dette : créance du secteur privé (RSD – principal du prêt d’origine)"]
[633,"Debt forgiveness/conversion: export credit claims (P)","Annulation/conversion de la dette : créance de crédit à l'exportation (P)"]
[634,"Debt forgiveness/conversion:  export credit claims (I)","Annulation/conversion de la dette : créance de crédit à l'exportation (I)"]
[635,"Debt forgiveness:  export credit claims (DSR)","Annulation de la dette : créance de crédit à l'exportation (DSR)"]
[636,"Debt rescheduling:  export credit claims (P)","Rééchelonnement de la dette : créance de crédit à  l'exportation (P)"]
[637,"Debt rescheduling:  export credit claims (I)","Rééchelonnement de la dette : créance de crédit à  l'exportation (I)"]
[638,"Debt rescheduling:  export credit claims (DSR)","Rééchelonnement de la dette : créance de crédit à  l'exportation (DSR)"]
[639,"Debt rescheduling:  export credit claim (DSR – original loan principal)","Rééchelonnement de la dette : créance de crédit à  l'exportation (DSR - principal du prêt originel)"]
[1100,"Guarantees/insurance ","Garanties/assurances"]
[1101,"Individual loan guarantee"]
[1102,"Loan portfolio guarantee"]
[1103,"Individual mezzanine finance guarantee"]
[1104,"Mezzanine finance portfolio guarantee"]
[1105,"Individual equity investment guarantee"]
[1106,"Equity portfolio guarantee"]
[1107,"First-loss guarantee"]
[1108,"Other guarantees"]
[2100,"Direct provider spending",null,"TOSSD specific code "]
[3100,"Subsidies and similar transfers",null,"TOSSD specific code "]

{"sheet":"tossd codelist","index":11,"n_rows":22,"n_cols":3,"rows_kept":22,"cut":false,"hidden":true,"merged":[]}
["code","name","Description"]
["FA01","BLENDED FINANCE","The strategic use of development finance for the mobilisation of additional finance towards sustainable development."]
["FA02","ISLAMIC FINANCE","Sharia-compliant finance (the Islamic finance instruments are included in the financial instruments classification in the relevant categories)."]
["FA03","CO-FINANCING ARRANGEMENTS INVOLVING RECIPIENT COUNTERPART FUNDS","The co-financing by the recipient country public institutions. This is applicable also to reporting on South-South Co-operation and Triangular/trilateral Co-operation activities."]
["FA04","OFFICIALLY-SUPPORTED EXPORT CREDITS","Credits extended by government-owned or controlled specialised export-financing agencies or institutions (ECAs) for commercial purposes to finance a specific purchase of goods or services from within the creditor country. They include both official direct export credits (i.e. loans extended by ECAs to facilitate exports to developing countries) and officially-guaranteed/insured export credits (i.e. loans extended by the private sector, but guaranteed/insured by ECAs to finance an export transaction)."]
["FA05","SDR TRANSACTIONS","Transactions denominated in Special Drawing Rights (SDRs)"]
[]
[]
[]
["code","name","Description"]
["FC01","SOUTH-SOUTH CO-OPERATION","A broad framework of collaboration among countries of the South in the political, economic, social, cultural, environmental and technical domains. Involving two or more TOSSD-eligible countries, it can take place on a bilateral, regional, intraregional or interregional basis. TOSSD-eligible countries share knowledge, skills, expertise and resources to meet their development goals through concerted efforts."]
["FC02","TRIANGULAR CO-OPERATION","A multi-country partnership involving partners with the following roles:\no The beneficiary partner that requests support to tackle a specific development challenge.\no The pivotal partner that has proven experience in tackling the issue, and shares its resources, knowledge and expertise to help others do the same. \no The facilitating partner that helps connect the partners, supporting the collaboration financially and technically."]
[]
[]
[]
[]
[]
["code","name","Description"]
[1,"Pillar I","Cross border resources extended to TOSSD-eligible countries in support of sustainable development."]
[2,"Pillar II","Regional and global expenditures (that do not involve cross border flows to TOSSD eligible countries) to support the provision of international public goods, promote development enablers and address global challenges."]
[21,"Pillar 2.A","Regional and global expenditures: Issues specific to developing countries or their populations"]
[22,"Pillar 2.B","Regional and global expenditures: Issues of global nature"]

{"sheet":"type_of_aid","index":12,"n_rows":63,"n_cols":2,"rows_kept":63,"cut":false,"hidden":true,"merged":[]}
["Aid_T","Aid_T_Description_E"]
["A01","General budget support"]
["A02","Sector budget support"]
["B01","Core support to NGOs, other private bodies, PPPs and research institutes"]
["B02","Core contributions to multilateral institutions"]
["B021","Core contributions to multilateral institutions"]
["B022","Core contributions to global funds"]
["B03","Contributions to specific-purpose programmes and funds managed by international organisations (multilateral, INGO)"]
["B031","Contributions to multi-donor/multi-entity funding mechanisms"]
["B032","Contributions to multi-donor/single-entity funding mechanisms"]
["B033","Contributions to single-donor funding mechanisms and contributions earmarked for a specific funding window or geographical location"]
["B04","Basket funds/pooled funding"]
["B05","PSI intra-governmental transfers"]
["C01","Project-type interventions"]
["D01","Donor country personnel"]
["D02","Other technical assistance"]
["E01","Scholarships/training in donor country"]
["E02","Imputed student costs"]
["F01","Debt relief"]
["G01","Administrative costs not included elsewhere"]
["H01","Development awareness"]
["H02","Refugees/asylum seekers in donor countries"]
["H03","Asylum-seekers ultimately accepted"]
["H04","Asylum-seekers ultimately rejected"]
["H05","Recognised refugees"]
["H06","Refugees and asylum seekers in other provider countries"]
["J01","In-kind donation of goods"]
[]
[]
[]
["TOSSD specific codes"]
["Aid_T","Aid_T_Description_E"]
["A00","Budget support"]
["B01","Core support to NGOs, other private bodies, PPPs and research institutes"]
["B02","Core contributions to multilateral institutions"]
["B02a","Assessed contributions to multilateral institutions"]
["B02b","Voluntary core contributions to multilateral institutions"]
["B03","Contributions to specific-purpose programmes and funds managed by international organisations (multilateral, INGO)"]
["C01","Projects"]
["D01","In-kind technical co-operation experts"]
["D02","Other technical co-operation"]
["E01","Scholarships/training in donor country"]
["E02","Imputed student costs"]
["F01","Debt relief - principal (original loan previously recorded in TOSSD)"]
["F02","Debt relief - principal (original loan not recorded in TOSSD)"]
["F03","Debt relief - interest"]
["G01","Administrative costs not included elsewhere"]
["H00","Expenditures in the provider country"]
["I01","Support to refugees/protected persons in the provider country (up to 12 months of their stay) "]
["I02","Support to refugees/protected persons in the provider country (beyond the 12-month period)"]
["I05","Support to refugees/protected persons/migrants for their integration in the economy of provider countries"]
["K02","RESEARCH AND DEVELOPMENT (R&D)"]
[]
[]
[]
["not indic"]
["F01"]
["F02"]
["F03"]
["G01"]
["I01"]
["I02"]
["I05"]

{"sheet":"donor_agency","index":13,"n_rows":887,"n_cols":11,"rows_kept":887,"cut":false,"hidden":true,"merged":[]}
["DonorCode","DonorNameE","DonorNameF","AgencyCode","AgencyNameE","AgencyNameF","AcronymE","AcronymF","AgencyType"]
[1,"Austria","Autriche",1,"Federal Ministry of Finance","Ministère fédéral des finances","BMF","BMF",1,null,"OB 2022 Script "]
[1,"Austria","Autriche",2,"Various ministries","Ministères divers","MIN","MIN",2,null,"Select  "]
[1,"Austria","Autriche",3,"Federal Government of Austria","Gouvernement fédéral d'Autriche","BReg","BReg",2,null,"A.DonorCode, D.DonorNameE, D.DonorNameF,  "]
[1,"Austria","Autriche",4,"Oesterreichische Kontrollbank AG","Oesterreichische Kontrollbank AG","OeKB","OeKB",4,null,"A.AgencyCode, A.AgencyNameE, A.AgencyNameF, A.AcronymE, A.AcronymF, "]
[1,"Austria","Autriche",5,"Federal Ministry for European and International Affairs","Ministère fédéral des Affaires européennes et internationales","BMEIA","BMEIA",1,null,"A.AgencyType "]
[1,"Austria","Autriche",6,"Provincial governments, local communities","Administrations provinciales, communautés locales","Reg","Reg",3]
[1,"Austria","Autriche",7,"Federal Chancellery","Federal Chancellery","BKA","BKA",2,null,"from "]
[1,"Austria","Autriche",8,"Austrian Development Agency","Agence autrichienne de développement","ADA","ADA",1,null,"DCD_Prod.DCD.LookupDonorAgency A"]
[1,"Austria","Autriche",9,"FM of Education, Science and Research","Ministère fédéral de l'Education, des Sciences et de la Recherche","BMBWF","BMBWF",2,null,"inner join "]
[1,"Austria","Autriche",10,"Federal Ministry of Agriculture, Regions and Tourism","Ministère fédéral de l'Agriculture, des Régions et du Tourisme","BMLRT","BMLRT",2,null,"DCD_Prod.DCD.LookupDonor D"]
[1,"Austria","Autriche",11,"FM of Defense","Ministère fédéral de la défense","BMLV","BMLV",2,null,"on D.DonorCode = A.DonorCode"]
[1,"Austria","Autriche",12,"Ministry of Interior","Ministère de l'intérieur","BMI","BMI",2]
[1,"Austria","Autriche",13,"Austrian Development Bank","Banque de développement de l'Autriche","OeEB","OeEB",5,null,"where "]
[1,"Austria","Autriche",14,"Ministry for Education, Arts and Culture","Ministère Fédéral de l'Education, des Arts et de la Culture","BM:UKK","BM:UKK",99,null,"isnull(A.Dissemination,3) <> 0"]
[1,"Austria","Autriche",15,"Ministry for Science, Research and Economy","Ministère de la science, de la recherche et de l'économie","BMWFW","BMWFW",99,null,"and D.DonorCode in (Select DonorCode from DCD_Prod.DCD.DonorGroup where groupid in (20005,21600))"]
[1,"Austria","Autriche",16,"Federal Ministry of Education and Women's Affairs","Ministère fédéral de l'éducation et des affaires des femmes","BMBF","BMBF",99]
[1,"Austria","Autriche",17,"Federal Ministry of Climate Action, Environment, Energy, Mobility, Innovation and Technology","Ministère fédéral de l'Action climatique, de l'Environnement, de l'Energie, de l'Innovation et de la Technologie","BMK","BMK",2]
[1,"Austria","Autriche",98,"Other Public Bodies","Autres agences publiques","OPB","AAP",99]
[1,"Austria","Autriche",99,"Miscellaneous","Divers","MISC","MISC",2]
[2,"Belgium","Belgique",10,"Directorate General for Co-operation and Development","Direction générale pour la coopération et le développement","DGCD","DGCD",1]
[2,"Belgium","Belgique",20,"Official Federal Service of Foreign Affaires (excl. DGCD)","Service public fédéral des affaires étrangères (hors. DGCD)","SPAE","SPAE",2]
[2,"Belgium","Belgique",22,"Belgian Investment Company for Developing Countries","Société belge d'Investissement pour les Pays en Développement","BIO","BIO",5]
[2,"Belgium","Belgique",30,"Official Federal Service of Finance","Service public fédéral des finances","SPFF","SPFF",2]
[2,"Belgium","Belgique",31,"Ducroire National Office","Office national du Ducroire","OND","OND",4]
[2,"Belgium","Belgique",39,"Other Official Federal Services","Autres services publics fédéraux","ASPF","ASPF",2]
[2,"Belgium","Belgique",60,"provinces/municipalities","provinces/municipalités","LOC","LOC",2]
[2,"Belgium","Belgique",70,"Flanders Official Regional Ministries","Ministères régionaux publics des Flandres","MPRF","MPRF",3]
[2,"Belgium","Belgique",80,"Walloon Official Regional Ministries","Ministères régionaux publics de Wallonie","MPRW","MPRW",3]
[2,"Belgium","Belgique",91,"Brussels Official Regional Ministries","Ministères régionaux publics de Bruxelles","MPRB","MPRB",3]
[2,"Belgium","Belgique",94,"German speaking Official Regional Ministries","Ministères régionaux publics de langue allemande","MPRG","MPRG",3]
[2,"Belgium","Belgique",99,"Miscellaneous","Divers","MISC","MISC",2]
[3,"Denmark","Danemark",1,"Ministry of Foreign Affairs","Ministère des affaires étrangères","MFA","MAE",1]
[3,"Denmark","Danemark",2,"Danish International Development Agency ","Danish International Development Agency ","DANIDA","DANIDA",1]
[3,"Denmark","Danemark",3,"Investment Fund For Developing Countries","IFU","IFU","IFU",5]
[3,"Denmark","Danemark",4,"Other ministries","Autres ministères","NULL","NULL",2]
[3,"Denmark","Danemark",5,"Ministry for Immigration, Integration and Housing","Ministère de l'immigration, de l'intégration et du logement","UIBM","UIBM",2]
[3,"Denmark","Danemark",72,"Eksport Kredit Fonden","EKR","EKR","EKR",4]
[3,"Denmark","Danemark",99,"Miscellaneous","Divers","MISC","MISC",2]
[4,"France","France",1,"Government","Gouvernement","GOV","GOUV",99]
[4,"France","France",2,"MINEFI/NATEXIS","MINEFI/NATEXIS","MINEFI/NATEXIS","MINEFI/NATEXIS",99]
[4,"France","France",3,"French Development Agency","Agence française de développement","AFD","AFD",1]
[4,"France","France",6,"Ministry of Foreign Affairs","Ministère des affaires étrangères","MAE","MAE",1]
[4,"France","France",7,"MAE/FSP","MAE/FSP","MAE/FSP","MAE/FSP",99]
[4,"France","France",8,"COOP DECENTRAL/MAE","COOP DECENTRAL","COOP DECENTRAL","COOP DECENTRAL",99]
[4,"France","France",9,"MAE/COOP","MAE/COOP","MAE/COOP","MAE/COOP",99]
[4,"France","France",10,"Ministry of Economy, Finance and Industry","Ministère de l'économie, des finances et de l'industrie","MINEFI","MINEFI",2]
[4,"France","France",12,"Ministry of Interior","Ministère de l'intérieur","INT","INT",2]
[4,"France","France",13,"Ministry of Agriculture","Ministère de l'agriculture","AGRI","AGRI",2]
[4,"France","France",14,"Ministry of Defence","Ministère de la défense","DEF","DEF",2]
[4,"France","France",15,"Interdepartmental","Interministériel","InterMin","InterMin",2]
[4,"France","France",16,"Other Ministries","Autres Ministère","NULL","NULL",2]
[4,"France","France",17,"Ministry of Education, Higher education and Research","MEN/EDUC-NATIONALE","MEN","MEN",2]
[4,"France","France",30,"MIN/EQUIPEMENT","MIN/EQUIPEMENT","MIN/EQUIPEMENT","MIN/EQUIPEMENT",99]
[4,"France","France",35,"MIN/TRANSPORTS","MIN/TRANSPORTS","MIN/TRANSPORTS","MIN/TRANSPORTS",99]
[4,"France","France",36,"MIN/SANTE","MIN/SANTE","MIN/SANTE","MIN/SANTE",99]
[4,"France","France",37,"MIN/TRAVAIL","MIN/TRAVAIL","MIN/TRAVAIL","MIN/TRAVAIL",99]
[4,"France","France",42,"MINEFI/BDF","MINEFI/BDF","MINEFI/BDF","MINEFI/BDF",99]
[4,"France","France",43,"Coface","Coface","Coface","Coface",4]
[4,"France","France",44,"Proparco","Proparco","Proparco","Proparco",5]
[4,"France","France",45,"STOA","STOA","STOA","STOA",5]
[4,"France","France",46,"CIRAD","Centre de coopération internationale en recherche agronomique pour le développement","CIRAD","CIRAD",2]
[4,"France","France",47,"IRD","Institut de recherche pour le développement","CIRAD","CIRAD",2]
[4,"France","France",91,"TRESOR","TRESOR","TRESOR","TRESOR",99]
[4,"France","France",92,"SEU","SEU","SEU","SEU",99]
[4,"France","France",93,"PTT","PTT","PTT","PTT",99]
[4,"France","France",94,"ORTF","ORTF","ORTF","ORTF",99]
[4,"France","France",95,"BPI France","BPI France","BPI","BPI",4]
[4,"France","France",99,"Miscellaneous","Divers","MISC","MISC",2]
[5,"Germany","Allemagne",1,"Federal Ministry for Economic Cooperation and Development","Ministère fédéral de la coopération économique et du développement","BMZ","BMZ",2]
[5,"Germany","Allemagne",2,"KfW Bankengruppe (KfW banking group)","KfW Bankengruppe (groupe bancaire KfW)","KfW","KfW",1]
[5,"Germany","Allemagne",4,"Deutsche Investitions- und Entwicklungsgesellschaft mbH (German Investment and Development Company)","Deutsche Investitions- und Entwicklungsgesellschaft mbH (Société allemande d'investissement et de développement)","DEG","DEG",5]
[5,"Germany","Allemagne",5,"Federal Ministry of Finance","Ministère fédéral des finances","BMF","BMF",2]
[5,"Germany","Allemagne",7,"Federal Foreign Office","Ministère fédéral des affaires étrangères","FFO","FFO",2]
[5,"Germany","Allemagne",9,"Federal Ministry for the Enviroment, Nature Conservation, Nuclear Safety and Consumer Protection","Ministère fédéral de l'Environnement, de la protection de la nature, de la sûreté nucléaire et de la protection des consommateurs","BMUV","BMUV",2]
[5,"Germany","Allemagne",12,"Federal States and Local Governments","Etats fédéraux et collectivités territoriales","L G","L G",3]
[5,"Germany","Allemagne",14,"Federal Institutions","Institutions fédérales","Fed.Inst.","Fed.Inst.",2]
[5,"Germany","Allemagne",15,"Deutscher Entwicklungsdienst","Deutscher Entwicklungsdienst","DED","DED",2]
[5,"Germany","Allemagne",16,"Federal Ministries","Ministères fédéraux","Fed.Min.","Fed.Min.",2]
[5,"Germany","Allemagne",17,"Foundations/Societies/Misc. (non federal)","Fondations/Sociétés/Divers (non fédéral)","Found","Found",2]
[5,"Germany","Allemagne",34,"Euler Hermes Aktiengesellschaft","Euler Hermes Aktiengesellschaft","Euler Hermes","Euler Hermes",4]
[5,"Germany","Allemagne",52,"Deutsche Gesellschaft für Internationale Zusammenarbeit (GIZ) GmbH","Deutsche Gesellschaft für Internationale Zusammenarbeit (GIZ) GmbH","GIZ","GIZ",1]
[5,"Germany","Allemagne",60,"Federal Ministry of the Interior and Community","Ministère fédéral de l'intérieur et du territoire","BMI","BMI",2]
[5,"Germany","Allemagne",61,"Federal Ministry of Justice","Ministère fédéral de la justice","BMJ","BMJ",2]
[5,"Germany","Allemagne",62,"Federal Ministry for Economic Affairs and Climate Action","Ministère fédéral de l'économie et de la protection du climat","BMWK","BMWK",2]
[5,"Germany","Allemagne",63,"Federal Ministry of Food and Agriculture","Ministère fédéral de l'alimentation et de l'agriculture","BMEL","BMEL",2]
[5,"Germany","Allemagne",64,"Federal Ministry of Defence","Ministère fédéral de la défense","BMVg","BMVg",2]
[5,"Germany","Allemagne",65,"Federal Ministry for Family Affairs, Senior Citizens, Women and Youth","Ministère fédéral de la famille, des personnes âgées, de la femme et de la jeunesse","BMFSFJ","BMFSFJ",2]
[5,"Germany","Allemagne",66,"Federal Ministry of Health","Ministère fédéral de la santé","BMG","BMG",2]
[5,"Germany","Allemagne",67,"Federal Ministry for Digital and Transport","Ministère fédéral du numérique et des transports","BMDV","BMDV",2]
[5,"Germany","Allemagne",68,"Federal Ministry of Education and Research","Ministère fédéral de l'éducation et de la recherche","BMBF","BMBF",2]
[5,"Germany","Allemagne",69,"Federal Government Commissioner for Culture and the Media","Délégué du gouvernement fédéral à la culture et aux médias","BKM","BKM",2]
[5,"Germany","Allemagne",70,"German Bundestag","Bundestag allemand","Bundestag","Bundestag",2]
[5,"Germany","Allemagne",71,"Federal Ministry of Labour and Social Affairs","Ministère fédéral du travail et des affaires sociales","BMAS","BMAS",2]
[5,"Germany","Allemagne",72,"Federal Ministry for Housing, Urban Development and Building","Ministère fédéral du logement, du développement urbain et de la construction","BMWSB","BMWSB",99]
[5,"Germany","Allemagne",80,"Land Schleswig-Holstein","Land de Schleswig-Holstein","Schleswig-Holstein","Schleswig-Holstein",3]
[5,"Germany","Allemagne",81,"Free and Hanseatic City of Hamburg","Ville libre et hanséatique de Hambourg","Hamburg","Hamburg",3]
[5,"Germany","Allemagne",82,"Land Lower-Saxony","Land de Basse-Saxe","Niedersachsen","Niedersachsen",3]
[5,"Germany","Allemagne",83,"Free Hanseatic City of Bremen","Ville libre hanséatique de Brême","Bremen","Bremen",3]
[5,"Germany","Allemagne",84,"Land North Rhine-Westphalia","Land de Rhénanie du Nord-Westphalie","Nordrhein-Westfalen","Nordrhein-Westfalen",3]
[5,"Germany","Allemagne",85,"Land Hesse","Land de Hesse","Hessen","Hessen",3]
[5,"Germany","Allemagne",86,"Land Rhineland-Palatinate","Land de Rhénanie-Palatinat","Rheinland-Pfalz","Rheinland-Pfalz",3]
[5,"Germany","Allemagne",87,"Land Baden-Württemberg","Land de Bade-Wurtemberg","Baden-Württemberg","Baden-Württemberg",3]
[5,"Germany","Allemagne",88,"Free State of Bavaria","Etat libre de Bavière","Bayern","Bayern",3]
[5,"Germany","Allemagne",89,"Land Saarland","Sarre","Saarland","Saarland",3]
[5,"Germany","Allemagne",90,"Land Berlin","Land de Berlin","Berlin","Berlin",3]
[5,"Germany","Allemagne",91,"Land Brandenburg","Land de Brandebourg","Brandenburg","Brandenburg",3]
[5,"Germany","Allemagne",92,"Land Mecklenburg-Western Pomerania","Land de Mecklembourg-Poméranie occidentale","Mecklenburg-Vorpommern","Mecklenburg-Vorpommern",3]
[5,"Germany","Allemagne",93,"Land Saxony-Anhalt","Land de Saxe-Anhalt","Sachsen-Anhalt","Sachsen-Anhalt",3]
[5,"Germany","Allemagne",94,"Free State of Saxony","Etat libre de Saxe","Sachsen","Sachsen",3]
[5,"Germany","Allemagne",95,"Free State of Thuringia","Etat libre de Thuringe","Thüringen","Thüringen",3]
[5,"Germany","Allemagne",99,"Miscellaneous","Divers","MISC","MISC",2]
[6,"Italy","Italie",1,"MGI","MGI","MGI","MGI",99]
[6,"Italy","Italie",2,"Agenzia Erogazioni Per l'Agricoltura","Agenzia Erogazioni Per l'Agricoltura","AGEA","AGEA",2]
[6,"Italy","Italie",3,"OGPI","OGPI","OGPI","OGPI",99]
[6,"Italy","Italie",4,"Agenzia italiana per la cooperazione allo sviluppo","Agenzia italiana per la cooperazione allo sviluppo","AICS","AICS",1]
[6,"Italy","Italie",5,"MC","MC","MC","MC",99]
[6,"Italy","Italie",7,"Central administration","Administration centrale","CA","CA",2]
[6,"Italy","Italie",8,"Local administration - Unspecified","Administration locale - Non spécifié","LA","LA",3]
[6,"Italy","Italie",9,"Artigiancassa","Artigiancassa","Art.","Art.",2]
[6,"Italy","Italie",10,"Earmarked fiscal flows to NGOs & religious organisations","Flux fiscaux pré-affectés aux ONG et organisations religieuses","NULL","NULL",2]
[6,"Italy","Italie",11,"Public universities and research institutes and Italian red cross","Universités et institutions de recherche publiques et croix rouge italienne","NULL","NULL",2]
[6,"Italy","Italie",12,"Ministry of Foreign Affairs and International Cooperation","Ministère des affaires étrangères et de la coopération internationale","MAECI","MAECI",2]
[6,"Italy","Italie",13,"Ministry of Economy and Finance","Ministère de l'économie et des finances","MEF","MEF",2]
[6,"Italy","Italie",14,"Italian Society for Enterprises Abroad","Societa italiana per le Imprese all'Estero","SIMEST","SIMEST",5]
[6,"Italy","Italie",15,"Ministry of Environment and Energy Security","Ministère de l'environnement et de la sécurité énergétique","MASE","MASE",2]
[6,"Italy","Italie",16,"Cassa Depositi e Prestiti","Cassa Depositi e Prestiti","CDP","CDP",5]
[6,"Italy","Italie",17,"Third Party funds administered by CDP","Fonds de tiers administrés par la CDP","NULL","NULL",2]
[6,"Italy","Italie",74,"Sezione Speciale per l'Assicurazione del Credito all'Esportazione","Sezione Speciale per l'Assicurazione del Credito all'Esportazione","SACE","SACE",4]
[6,"Italy","Italie",81,"Local administration - Regions and autonomous provinces","Administration locale - Régions et provinces autonomes","NULL","NULL",3]
[6,"Italy","Italie",82,"Local administration - Municipalities and metropolitan cities","Administration locale - Municipalités et cités métropolitaine","NULL","NULL",3]
[6,"Italy","Italie",99,"Miscellaneous","Divers","MISC","MISC",2]
[6,"Italy","Italie",101,"Earmarked fiscal flows to NGOs","Flux fiscaux pré-affectés aux ONG","NULL","NULL",2]
[6,"Italy","Italie",102,"Earmarked fiscal flows to religious organisations","Flux fiscaux pré-affectés aux organisations religieuses","NULL","NULL",2]
[6,"Italy","Italie",171,"Ministry of Economy and Finance funds, administered by CDP","Fonds du Ministère de l'économie et des finances, administrés par la CDP","NULL","NULL",2]
[6,"Italy","Italie",172,"Ministry of Environment and Energy Security, funds administered by CDP","Fonds du Ministère de l'environnement et de la sécurité énergétique, administrés par la CDP","NULL","NULL",2]
[7,"Netherlands","Pays-Bas",1,"Ministry of Foreign Affairs of the Netherlands","Ministère des affaires étrangères des Pays-Bas","MFA","MAE",1]
[7,"Netherlands","Pays-Bas",3,"NG","NG","NG","NG",99]
[7,"Netherlands","Pays-Bas",4,"NLD Gov. through NLD Inv Bank for Developing Countries","Gouv hollandais à travers la banque hollandaise d'inv pour les pays en dvmt","NIO/FMO","NIO/FMO",2]
[7,"Netherlands","Pays-Bas",5,"FMO","FMO","FMO","FMO",5]
[7,"Netherlands","Pays-Bas",6,"Ministry for Justice and Security","Ministère de la justice et de la sécurité","JenV","JenV",2]
[7,"Netherlands","Pays-Bas",11,"Access to Energy Fund","Fonds d'accès à l'énergie","AEF","AEF",6]
[7,"Netherlands","Pays-Bas",12,"Building Prospects","Construire des perspectives","BP","BP",6]
[7,"Netherlands","Pays-Bas",13,"Dutch Fund for Climate and Development","Fonds néerlandais pour le climat et le développement","DFCD","DFCD",6]
[7,"Netherlands","Pays-Bas",14,"MASSIF","MASSIF","MASSIF","MASSIF",6]
[7,"Netherlands","Pays-Bas",15,"Dutch Good Growth Fund – Investing Dutch entrepreneurs","Fonds néerlandais pour une bonne croissance - entrepreneurs néerlandais investisseurs","DGGF 1","DGGF 1",6]
[7,"Netherlands","Pays-Bas",16,"Dutch Good Growth Fund – Financing Local SMEs","Fonds néerlandais pour une bonne croissance - Financement des PME locales","DGGF 2","DGGF 2",6]
[7,"Netherlands","Pays-Bas",33,"NCM Credit Management Worldwide","NCM Credit Management Worldwide","NCM","NCM",4]
[7,"Netherlands","Pays-Bas",99,"Miscellaneous","Divers","MISC","MISC",2]
[8,"Norway","Norvège",1,"Norwegian Agency for Development Co-operation","Agence norvégienne de coopération pour le développement","NORAD","NORAD",1]
[8,"Norway","Norvège",4,"Ministry of Foreign Affairs","Ministère des affaires étrangères","MFA","MAE",1]
[8,"Norway","Norvège",7,"Innovation Norway","Innovation Norway","IN","IN",2]
[8,"Norway","Norvège",8,"NORFUND","NORFUND","NORFUND","NORFUND",5]
[8,"Norway","Norvège",9,"Norwegian Agency for Exchange Cooperation","Agence norvégienne de coopération pour les échanges","FK","FK",2]
[8,"Norway","Norvège",10,"Office of the Auditor General","Office of the Auditor General","OAG","OAG",2]
[8,"Norway","Norvège",11,"Ministry of Defence","Ministère de la défense","DEF","DEF",2]
[8,"Norway","Norvège",12,"Ministry of Climate and Environment","Ministère du climat et de l'environnement","ENV","ENV",2]
[8,"Norway","Norvège",13,"Ministry of Finance","Ministère des finances","FIN","FIN",2]
[8,"Norway","Norvège",14,"Ministry of Education and Research","Ministère de l'éducation et de la recherche ","KD","KD",2]
[8,"Norway","Norvège",15,"Ministry of Children and Families","Ministère des familles et des enfants","BFD","BFD",2]
[8,"Norway","Norvège",16,"Ministry of Justice and Public Security","Ministère de la justice et de la sécurité publique","JD","JD",2]
[8,"Norway","Norvège",17,"Ministry of Labour and Social Inclusion","Ministère du travail et de l'inclusion sociale","AID ","AID ",2]
[8,"Norway","Norvège",18,"Ministry of Health and Care Services","Ministère de la santé et des services de soins ","HOD","HOD",2]
[8,"Norway","Norvège",71,"Garantiinstituttet for eksportkreditt","Garantiinstituttet for Eksportkreditt","GIEK","GIEK",4]
[8,"Norway","Norvège",99,"Miscellaneous","Divers","MISC","MISC",2]
[9,"Portugal","Portugal",1,"Portuguese Government","Gouvernement portugais","GP","GP",1]
[9,"Portugal","Portugal",2,"Camões-Institute for Cooperation and Language","Camões-Institut pour la coopération et la langue","CICL","CICL",1]
[9,"Portugal","Portugal",3,"Municipalities","Municipalités","MUNIC","MUNIC",3]
[9,"Portugal","Portugal",4,"SOFID Sociedade para o Financiamento do Desenvolvimento","SOFID Société pour le financement du développement","SOFID Society for Development Financ","SOFID Society for Development Financ",5]
[9,"Portugal","Portugal",5,"Ministry of Foreign Affairs","Ministère des Affaires étrangères","MNE","MNE",2]
[9,"Portugal","Portugal",6,"Ministry of Finance","Ministère des Finances","MF","MF",2]
[9,"Portugal","Portugal",7,"Ministry of the Presidency","Ministère de la Présidence","MP","MP",2]
[9,"Portugal","Portugal",8,"Ministry of Economy and Territorial Cohesion","Ministère de l'Économie et de la Cohésion territoriale","ME","ME",2]
[9,"Portugal","Portugal",9,"Ministry of Deputy and State Reform","Ministère adjoint et de la Réforme de l'État","MARE","MARE",2]
[9,"Portugal","Portugal",10,"Ministry of National Defence","Ministère de la Défense nationale","MDN","MDN",2]
[9,"Portugal","Portugal",11,"Ministry of Infrastructure and Housing","Ministère des Infrastructures et du Logement","MIH","MIH",2]
[9,"Portugal","Portugal",12,"Ministry of Justice","Ministère de la Justice","MJ","MJ",2]
[9,"Portugal","Portugal",13,"Ministry of Internal Administration","Ministère de l'Administration interne","MAI","MAI",2]
[9,"Portugal","Portugal",14,"Ministry of Education, Science and Innovation","Ministère de l'Éducation, de la Science et de l'Innovation","MECI","MECI",2]
[9,"Portugal","Portugal",15,"Ministry of Health","Ministère de la Santé","MS","MS",2]
[9,"Portugal","Portugal",16,"Ministry of Labour, Solidarity and Social Security","Ministère du Travail, de la Solidarité et de la Sécurité sociale","MTSS","MTSS",2]
[9,"Portugal","Portugal",17,"Ministry of Environment and Energy","Ministère de l'Environnement et de l'Énergie","MAE","MAE",2]
[9,"Portugal","Portugal",18,"Ministry of Culture, Youth and Sport","Ministère de la Culture, de la Jeunesse et des Sports","MCJD","MCJD",2]
[9,"Portugal","Portugal",19,"Ministry of Agriculture and Sea","Ministère de l'Agriculture et de la Mer","MAM","MAM",2]
[9,"Portugal","Portugal",20,"Bank of Portugal","Banque du Portugal","BP","BP",2]
[9,"Portugal","Portugal",21,"Caixa Geral de Depósitos - Portuguese Public Bank","Caixa Geral de Depósitos – Banque portugaise public","CGD","CGD",2]
[9,"Portugal","Portugal",22,"Banco Português de Fomento - Development Bank","Banco Português de Fomento - Development BankBF","BF","BF",5]
[9,"Portugal","Portugal",23,"Private flows","Private flows","PRIVATE","PRIVATE",2]
[9,"Portugal","Portugal",99,"Miscellaneous","Divers","MISC","MISC",2]
[10,"Sweden","Suède",1,"SIDA","SIDA","SIDA","SIDA",99]
[10,"Sweden","Suède",2,"Ministry of Foreign Affairs","Ministère des affaires étrangères","MFA","MAE",2]
[10,"Sweden","Suède",3,"SG","SG","SG","SG",99]
[10,"Sweden","Suède",4,"SAREC","SAREC","SAREC","SAREC",99]
[10,"Sweden","Suède",5,"BITS","BITS","BITS","BITS",99]
[10,"Sweden","Suède",6,"Swedish International Development Authority","Administration suédoise de développement international","Sida","Sida",1]
[10,"Sweden","Suède",11,"Ministry of the Environment","Ministry of the Environment","ENV","ENV",99]
[10,"Sweden","Suède",13,"Swedish Migration Agency","Swedish Migration Agency","NULL","NULL",99]
[10,"Sweden","Suède",20,"Folke Bernadotte Academy","Folke Bernadotte Academy","NULL","NULL",99]
[10,"Sweden","Suède",21,"The Nordic Africa Institute","The Nordic Africa Institute","NULL","NULL",99]
[10,"Sweden","Suède",22,"SwedFund","SwedFund","SwedFund","SwedFund",5]
[10,"Sweden","Suède",23,"Swedish Civil Contingencies Agency","Swedish Civil Contingencies Agency","NULL","NULL",99]
[10,"Sweden","Suède",24,"Swedish Institute","Swedish Institute","NULL","NULL",99]
[10,"Sweden","Suède",25,"Swedish Prison and Probation Service","Swedish Prison and Probation Service","NULL","NULL",99]
[10,"Sweden","Suède",27,"Swedish National Audit Office","Swedish National Audit Office","NULL","NULL",99]
[10,"Sweden","Suède",28,"Swedish Radiation Safety Authority","Swedish Radiation Safety Authority","NULL","NULL",99]
[10,"Sweden","Suède",29,"The Swedish Research Council","The Swedish Research Council","NULL","NULL",99]
[10,"Sweden","Suède",30,"Swedish Council for Higher Education","Swedish Council for Higher Education","NULL","NULL",99]
[10,"Sweden","Suède",31,"Swedish Prosecution Authority","Swedish Prosecution Authority","NULL","NULL",99]
[10,"Sweden","Suède",32,"Swedish National Courts Administration","Swedish National Courts Administration","NULL","NULL",99]
[10,"Sweden","Suède",36,"Swedish Police Authority","Swedish Police Authority","NULL","NULL",99]
[10,"Sweden","Suède",37,"Swedish Consumer Agency","Swedish Consumer Agency","NULL","NULL",99]
[10,"Sweden","Suède",38,"Swedish National Debt Office","Swedish National Debt Office","NULL","NULL",99]
[10,"Sweden","Suède",39,"National Board of Trade","Bureau national du commerce","NULL","NULL",99]
[10,"Sweden","Suède",40,"Psychological Defence Agency","Agence de Défense Psychologique","NULL","NULL",99]
[10,"Sweden","Suède",71,"Swedish Export Credits Guarantee Board","Comité suédois de garantie de crédits à l'exportation","EKN","EKN",4]
[10,"Sweden","Suède",80,"Statistics Sweden","Statistics Sweden","NULL","NULL",99]
[10,"Sweden","Suède",99,"Miscellaneous","Divers","MISC","MISC",2]
[11,"Switzerland","Suisse",1,"Federal Administration (various departments)","Administration fédérale (divers départements)","FA","FA",2]
[11,"Switzerland","Suisse",4,"Swiss Agency for Development and Co-operation","Direction du développement et de la coopération","SDC","SDC",1]
[11,"Switzerland","Suisse",5,"State Secretariat for Economic Affairs","Secrétariat d'Etat à l'économie","Seco","Seco",2]
[11,"Switzerland","Suisse",6,"Federal Department of Foreign Affairs","Département fédéral des affaires étrangères","FDFA","FDFA",2]
[11,"Switzerland","Suisse",7,"State Secretariat for Education, Research and Innovation","Secrétariat d'Etat à la formation, à la recherche et à l'innovation","SEFRI","SEFRI",2]
[11,"Switzerland","Suisse",8,"State Secretariat for Migration","Secrétariat d'Etat aux migrations","SEM","SEM",2]
[11,"Switzerland","Suisse",9,"Federal Department for Defence, Civil Protection and Sports","Dép. fédéral de la défense, de la protection de la population et des sports","DDPS","DDPS",2]
[11,"Switzerland","Suisse",10,"Federal Office for the Environment","Office fédéral de l'environnement","FOEN","FOEN",2]
[11,"Switzerland","Suisse",11,"Cantons and municipalities","Cantons et communes","MUNIC","MUNIC",3]
[11,"Switzerland","Suisse",22,"Swiss Investment Fund for Emerging Markets","SIFEM","SIFEM","SIFEM",5]
[11,"Switzerland","Suisse",99,"Miscellaneous","Divers","MISC","MISC",2]
[12,"United Kingdom","Royaume-Uni",1,"Department for International Development","Département pour le développement international","DFID","DFID",1]
[12,"United Kingdom","Royaume-Uni",2,"British International Investment","British International Investment","BII","BII",5]
[12,"United Kingdom","Royaume-Uni",3,"Foreign & Commonwealth Office","Foreign & Commonwealth Office","FCO","FCO",2]
[12,"United Kingdom","Royaume-Uni",4,"Department of Energy and Climate Change","Département de l'énergie et du changement climatique","DECC","DECC",2]
[12,"United Kingdom","Royaume-Uni",5,"Export Credit Guarantee Department","Département de garantie de crédits à l'exportation","ECGD","ECGD",4]
[12,"United Kingdom","Royaume-Uni",6,"Home Office","Home Office","HO","HO",2]
[12,"United Kingdom","Royaume-Uni",7,"Department for Environment Food and Rural Affairs","Département pour l'environnement, l'alimentation et les affaires rurales","DEFRA","DEFRA",2]
[12,"United Kingdom","Royaume-Uni",8,"Ministry of Defence","Ministère de la Défense","MOD","MOD",2]
[12,"United Kingdom","Royaume-Uni",9,"Department for Work and Pensions","Department for Work and Pensions","DWP","DWP",2]
[12,"United Kingdom","Royaume-Uni",10,"Department of Health  and Social Care","Ministère de la santé et de la protection sociale","DHSC","DHSC",2]
[12,"United Kingdom","Royaume-Uni",11,"Department for Business, Innovation and Skills","Département des affaires de l'innovation et des compétences","BIS","BIS",2]
[12,"United Kingdom","Royaume-Uni",12,"Department for Culture, Media and Sports","Département de la Culture des Médias et du Sport","DCMS","DCMS",2]
[12,"United Kingdom","Royaume-Uni",13,"Prosperity Fund","Fonds prospérité","PF","PF",2]
[12,"United Kingdom","Royaume-Uni",14,"Conflict stability and security fund","Fonds de stabilisation des conflits et pour la sécurité","CSSF","CSSF",2]
[12,"United Kingdom","Royaume-Uni",15,"HM Revenue and Customs","Administration fiscale et douanière","HMRC","HMRC",2]
[12,"United Kingdom","Royaume-Uni",16,"Department for Business, Energy and Industrial Strategy","Département des affaires, de l'énergie et de la stratégie industrielle","BEIS","BEIS",2]
[12,"United Kingdom","Royaume-Uni",17,"Foreign, Commonwealth and Development Office","Foreign, Commonwealth and Development Office","FCDO","FCDO",1]
[12,"United Kingdom","Royaume-Uni",21,"Scottish Government","Gouvernement Ecossais","SG","SG",3]
[12,"United Kingdom","Royaume-Uni",22,"Welsh Assembly Government","Assemblée Gouvernementale Galloise","WAG","WAG",3]
[12,"United Kingdom","Royaume-Uni",23,"FSD Africa (FSDA)","FSD Africa (FSDA)","FSDA","FSDA",5]
[12,"United Kingdom","Royaume-Uni",24,"Department for Education","Département pour l'éducation","DfE","DfE",2]
[12,"United Kingdom","Royaume-Uni",25,"Mobilising Finance for Forests","Mobiliser des financements pour les forêts","MFF","MFF",5]
[12,"United Kingdom","Royaume-Uni",26,"UK-India Tech Start-up Fund","Fonds UK-Inde pour la création d'entreprises technologiques","UKIDCF","UKIDCF",5]
[12,"United Kingdom","Royaume-Uni",27,"Department for Levelling Up, Housing and Communities","Département de l'Égalité des chances, du Logement et des Communautés","DLUHC",null,2]
[12,"United Kingdom","Royaume-Uni",28,"Innovative Ventures and Technologies for Development","Entreprises et technologies innovantes pour développement","INVENT","INVENT",5]
[12,"United Kingdom","Royaume-Uni",29,"Mobilising Institutional Capital Through Listed Product Structures","Mobilising Institutional Capital Through Listed Product Structures","MOBILIST","MOBILIST",5]
[12,"United Kingdom","Royaume-Uni",30,"UK Climate Investments","UK Climate Investments","UKCI","UKCI",5]
[12,"United Kingdom","Royaume-Uni",99,"Miscellaneous","Divers","MISC","MISC",2]
[18,"Finland","Finlande",1,"Finnish Government","Gouvernement finlandais","FG","FG",2]
[18,"Finland","Finlande",2,"FinnFund","FinnFund","FF","FF",5]
[18,"Finland","Finlande",3,"Ministry of Foreign Affairs","Ministère des affaires étrangères","MFA","MAE",1]
[18,"Finland","Finlande",4,"Other Ministries","Other Ministries","NULL","NULL",2]
[18,"Finland","Finlande",5,"Ministry of Justice","Ministère de la justice","NULL","NULL",2]
[18,"Finland","Finlande",6,"Ministry of the Interior","Ministère de l'intérieur","NULL","NULL",2]
[18,"Finland","Finlande",7,"Ministry of Defence","Ministère de la Défense","NULL","NULL",2]
[18,"Finland","Finlande",8,"Ministry of Finance","Ministère des finances","NULL","NULL",2]
[18,"Finland","Finlande",9,"Ministry of Education and Culture","Ministère de l'éducation et de la culture","NULL","NULL",2]
[18,"Finland","Finlande",10,"Ministry of Agriculture and Forestry","Ministère de l'agriculture et des forêts","NULL","NULL",2]
[18,"Finland","Finlande",11,"Ministry of Transport and Communications","Ministère des transports et des communications","NULL","NULL",2]
[18,"Finland","Finlande",12,"Ministry of Economic Affairs and Employment","Ministère des affaires économiques et de l'emploi","NULL","NULL",2]
[18,"Finland","Finlande",13,"Ministry of Social Affairs and Health","Ministère des affaires sociales et de la santé","NULL","NULL",2]
[18,"Finland","Finlande",14,"Ministry of the Environment","Ministère de l'environnement","NULL","NULL",2]
[18,"Finland","Finlande",72,"FinnVera","FinnVera","FinnVera","FinnVera",4]
[18,"Finland","Finlande",99,"Miscellaneous","Divers","MISC","MISC",2]
[20,"Iceland","Islande",1,"Ministry of Foreign Affairs","Ministère des affaires étrangères","MFA","MAE",1]
[20,"Iceland","Islande",2,"ICEIDA","ICEIDA","ICEIDA","ICEIDA",1]
[20,"Iceland","Islande",3,"ICRU","ICRU","ICRU","ICRU",2]
[20,"Iceland","Islande",4,"Ministry of Finance","Ministère des finances","FIN","FIN",2]
[20,"Iceland","Islande",99,"Miscellaneous","Divers","MISC","MISC",2]
[21,"Ireland","Irlande",1,"Department of Foreign Affairs","Département des affaires étrangères","DFA","DFA",1]
[21,"Ireland","Irlande",2,"Department of Finance","Département des Finances","FIN","FIN",2]
[21,"Ireland","Irlande",3,"Department of Agriculture, Food and the Marine","Department of Agriculture, Food and the Marine","DAFM","DAFM",2]
[21,"Ireland","Irlande",99,"Miscellaneous","Divers","MISC","MISC",99]
[22,"Luxembourg","Luxembourg",1,"Lux-Development","Lux-Development","LuxDev","LuxDev",2]
[22,"Luxembourg","Luxembourg",2,"Ministry of Foreign and European Affairs","Ministère des Affaires étrangères et européennes","MFEA","MAEE",1]
[22,"Luxembourg","Luxembourg",3,"Ministry of Finance","Ministère des Finances","MFIN","MFIN",2]
[22,"Luxembourg","Luxembourg",4,"Ministry of Culture","Ministère de la Culture","MCULT","MCULT",2]
[22,"Luxembourg","Luxembourg",5,"Ministry of Health","Ministère de la Santé","MSAN","MSAN",2]
[22,"Luxembourg","Luxembourg",6,"Ministry of home affairs","Ministère des affaires intérieures","MAINT","MAINT",2]
[22,"Luxembourg","Luxembourg",7,"Ministry of the Environment, climate and biodiversity","Ministère de l'Environnement, du climat et de la biodiversité","MECB","MECB",2]
[22,"Luxembourg","Luxembourg",8,"Ministry of family affairs, solidarity, living together and reception of refugees","Ministère de la famille, des solidarités, du vivre ensemble et de l'accueil","MFSVA","MFSVA",2]
[22,"Luxembourg","Luxembourg",22,"Ducroire Office","Bureau de Ducroire","ODL","ODL",4]
[22,"Luxembourg","Luxembourg",23,"Female Entrepreneurship Fund","Fonds pour l'entrepreneuriat féminin","FEF","FEF",6]
[22,"Luxembourg","Luxembourg",99,"Miscellaneous","Divers","MISC","MISC",2]
[26,"Monaco","Monaco",1,"Government of Monaco","Gouvernement de Monaco","NULL","NULL",1]
[30,"Cyprus","Chypre",1,"Cyprus","Chypre","NULL","NULL",1]
[40,"Greece","Grèce",1,"Ministry of the Interior","Ministère de l'intérieur","INT","INT",2]
[40,"Greece","Grèce",2,"Ministry of Finance","Ministère des finances","MF","MF",2]
[40,"Greece","Grèce",3,"Ministry of Foreign Affairs","Ministère des affaires étrangères","MFA","MAE",1]
[40,"Greece","Grèce",4,"Ministry of National Defense","Ministère de la défense nationale","MND","MND",2]
[40,"Greece","Grèce",5,"Ministry of Development, Competitiveness & Shipping","Ministère du développement, de la compétitivité et de la navigation","MDCS","MDCS",2]
[40,"Greece","Grèce",6,"Ministry of the Environment, Energy & Climate Change","Ministère de l'environnement, de l'énergie et du changement climatique","MEECC","MEECC",2]
[40,"Greece","Grèce",7,"Ministry of Education, Life Long Learning & Religions","Ministère de l'éducation de la formation continue et des religions","MELLLR","MELLLR",2]
[40,"Greece","Grèce",8,"Ministry of Infrastructure, Transport and Networks","Ministère des infrastructures, des transports et des réseaux","MITN","MITN",2]
[40,"Greece","Grèce",9,"Ministry of Employment & Social Security","Ministère de l'emploi et de la sécurité sociale","MESS","MESS",2]
[40,"Greece","Grèce",10,"Ministry of Health & Social Solidarity","Ministère de la santé et de la solidarité sociale","MHSS","MHSS",2]
[40,"Greece","Grèce",11,"Ministry of Agricultural Development & Food","Ministère du développement agricole et de l'alimentation","MADF","MADF",2]
[40,"Greece","Grèce",12,"Ministry of Justice, Transparency & Human Rights","Ministère de la Justice, de la transparence et des droits humains","MJTHR","MJTHR",2]
[40,"Greece","Grèce",13,"Ministry of Citizen Protection","Ministère de la protection des citoyens","MCP","MCP",2]
[40,"Greece","Grèce",14,"Ministry of Culture & Tourism","Ministère de la culture et du tourisme","MCT","MCT",2]
[40,"Greece","Grèce",15,"Municipalities","Municipalités","LA","LA",3]
[40,"Greece","Grèce",99,"Miscellaneous","Divers","MISC","MISC",2]
[45,"Malta","Malte",1,"Malta","Malta","NULL","NULL",1]
[50,"Spain","Espagne",1,"Instituto de Credito Oficial","Instituto de Credito Oficial","ICO","ICO",1]
[50,"Spain","Espagne",2,"Compania Espanola de Seguros de Credito a la Exportacion","Compania Espanola de Seguros de Credito a la Exportación","CESCE","CESCE",4]
[50,"Spain","Espagne",4,"Ministry of Agriculture, Fisheries, and Food","Ministère de l'agriculture, pêche et alimentation","AGR","AGR",2]
[50,"Spain","Espagne",5,"Ministry of Foreign Affairs and Co-operation","Ministère des affaires étrangères et cooperation","MFA","MAE",1]
[50,"Spain","Espagne",6,"Ministry of Economy and Business","Ministère de l'économie et des affaires","ECON","ECON",2]
[50,"Spain","Espagne",7,"Ministry of Education, Culture and Sports","Ministère de l'éducation, de la culture et des sports","EDUC","EDUC",2]
[50,"Spain","Espagne",8,"Ministry of Public Works","Ministère des travaux publics","MPW","MPW",2]
[50,"Spain","Espagne",9,"Ministry of Industry and Energy","Ministère de l'industrie et de l'énergie","MIE","MIE",2]
[50,"Spain","Espagne",10,"Ministry of the Environment and Rural and Marine Environs","Ministère de l'environnement","MARM","MARM",2]
[50,"Spain","Espagne",11,"Ministry of Health","Ministère de la santé","MOH","MOH",2]
[50,"Spain","Espagne",12,"Ministry of Labour, Migration and Social Security","Ministère de l'emploi, la migration et la securité sociale","EMP","EMP",2]
[50,"Spain","Espagne",13,"Ministry of Interior","Ministère de l'intérieur","INT","INT",2]
[50,"Spain","Espagne",14,"Ministry of Finance","Ministère des finances","FIN","FIN",2]
[50,"Spain","Espagne",15,"Autonomous Governments","Gouvernements autonomes","AG","AG",3]
[50,"Spain","Espagne",16,"Municipalities","Municipalités","MUNIC","MUNIC",3]
[50,"Spain","Espagne",18,"Ministry of Science and Technology","Ministère des sciences et de la technologie","MST","MST",2]
[50,"Spain","Espagne",19,"Ministry of Defense","Ministère de la défense","DEF","DEF",2]
[50,"Spain","Espagne",20,"Public Universities","Public Universities","UNIV","UNIV",2]
[50,"Spain","Espagne",21,"Spanish Agency for International Development Co-operation","Spanish Agency for International Development Co-operation","AECID","AECID",2]
[50,"Spain","Espagne",22,"Others ministries","Autres ministères","NULL","NULL",2]
[50,"Spain","Espagne",30,"Comunidad Autónoma de Andalucía","Comunidad Autónoma de Andalucía","NULL","NULL",3]
[50,"Spain","Espagne",31,"Comunidad Autónoma de Aragón","Comunidad Autónoma de Aragón","NULL","NULL",3]
[50,"Spain","Espagne",32,"Comunidad Autónoma del Principado de Asturias","Comunidad Autónoma del Principado de Asturias","NULL","NULL",3]
[50,"Spain","Espagne",33,"Comunidad Autónoma de las Illes Balears","Comunidad Autónoma de las Illes Balears","NULL","NULL",3]
[50,"Spain","Espagne",34,"Comunidad Autónoma de Canarias","Comunidad Autónoma de Canarias","NULL","NULL",3]
[50,"Spain","Espagne",35,"Comunidad Autónoma de Cantabria","Comunidad Autónoma de Cantabria","NULL","NULL",3]
[50,"Spain","Espagne",36,"Comunidad de Castilla y León","Comunidad de Castilla y León","NULL","NULL",3]
[50,"Spain","Espagne",37,"Comunidad Autónoma de Castilla-La Mancha","Comunidad Autónoma de Castilla-La Mancha","NULL","NULL",3]
[50,"Spain","Espagne",38,"Comunidad Autónoma de Cataluña","Comunidad Autónoma de Cataluña","NULL","NULL",3]
[50,"Spain","Espagne",39,"Comunidad Valenciana","Comunidad Valenciana","NULL","NULL",3]
[50,"Spain","Espagne",40,"Comunidad Autónoma de Extremadura","Comunidad Autónoma de Extremadura","NULL","NULL",3]
[50,"Spain","Espagne",41,"Comunidad Autónoma de Galicia","Comunidad Autónoma de Galicia","NULL","NULL",3]
[50,"Spain","Espagne",42,"Comunidad de Madrid","Comunidad de Madrid","NULL","NULL",3]
[50,"Spain","Espagne",43,"Comunidad Autónoma de la Región de Murcia","Comunidad Autónoma de la Región de Murcia","NULL","NULL",3]
[50,"Spain","Espagne",44,"Comunidad Foral de Navarra","Comunidad Foral de Navarra","NULL","NULL",3]
[50,"Spain","Espagne",45,"Comunidad Autónoma del País Vasco o de Euskadi","Comunidad Autónoma del País Vasco o de Euskadi","NULL","NULL",3]
[50,"Spain","Espagne",46,"Comunidad Autónoma de La Rioja","Comunidad Autónoma de La Rioja","NULL","NULL",3]
[50,"Spain","Espagne",47,"Ciudad de Ceuta","Ciudad de Ceuta","NULL","NULL",3]
[50,"Spain","Espagne",48,"Ciudad de Melilla","Ciudad de Melilla","NULL","NULL",3]
[50,"Spain","Espagne",59,"Compañía Española de Financiación del Desarrollo","Compañía Española de Financiación del Desarrollo","COFIDES","COFIDES",5]
[50,"Spain","Espagne",60,"Development Promotion Fund","Fondo para la promoción del Desarrollo","FONPRODE","FONPRODE",5]
[50,"Spain","Espagne",99,"Miscellaneous","Divers","MISC","MISC",2]
[55,"Türkiye","Türkiye",1,"Türkiye","Türkiye","NULL","NULL",1]
[55,"Türkiye","Türkiye",99,"Miscellaneous","Divers","MISC","MISC",99]
[61,"Slovenia","Slovénie",1,"Ministry of Finance","Ministère des finances","FIN","FIN",1]
[61,"Slovenia","Slovénie",2,"Ministry of Foreign and European Affairs","Ministère des affaires étrangères et européennes","MFA","MAE",1]
[61,"Slovenia","Slovénie",3,"Ministry of the Interior","Ministère de l'intérieur","INT","INT",2]
[61,"Slovenia","Slovénie",4,"Ministry of Defence","Ministère de la défense","DEF","DEF",2]
[61,"Slovenia","Slovénie",5,"Ministry of the Environment, Climate and Energy","Ministère de l'environnement, du climat et de l'énergie","ENV ","ENV ",2]
[61,"Slovenia","Slovénie",6,"Ministry of Higher Education, Science and Innovation","Ministère de l'enseignement supérieur, des sciences et de l'innovation","EDU","EDU",2]
[61,"Slovenia","Slovénie",7,"Ministry of the Economy, Tourism and Sport","Ministère de l'economie, du tourisme et des sports","ECO","ECO",2]
[61,"Slovenia","Slovénie",99,"Miscellaneous","Divers","MISC","MISC",99]
[62,"Croatia","Croatie",1,"Ministry of Foreign and European Affairs","Ministère des affaires étrangères et européennes","MFA","MAE",1]
[62,"Croatia","Croatie",2,"Ministry of Veterans","Ministère des anciens combattants","NULL","NULL",2]
[62,"Croatia","Croatie",3,"National Protection and Rescue Directorate","Direction nationale de la protection et du sauvetage","NULL","NULL",2]
[62,"Croatia","Croatie",4,"Ministry of Health","Ministère de la santé","MoH","MoH",2]
[62,"Croatia","Croatie",5,"Ministry of Agriculture, Forestry and Fisheries","Ministère de l'agriculture, la sylviculture et de la pêche","AGRI","AGRI",2]
[62,"Croatia","Croatie",6,"Ministry for Demography and Immigration","Ministère de la démographie et de l'immigration","NULL","NULL",2]
[62,"Croatia","Croatie",7,"Ministry of Justice, Administration and Digital Transformatio","Ministère de la justice, l'administration et de la transformation numérique","JUSTICE","JUSTICE",2]
[62,"Croatia","Croatie",8,"Ministry of Science, Education and Youth","Ministère de la science, l'éducation et de la jeunesse","NULL","NULL",2]
[62,"Croatia","Croatie",9,"Ministry of Tourism and Sports","Ministère du tourisme et sport","NULL","NULL",2]
[62,"Croatia","Croatie",10,"Central State Office for Croats Abroad","Office central des Croates à l'étranger","NULL","NULL",2]
[62,"Croatia","Croatie",11,"Croatian National Bank","Banque nationale de Croatie","NULL","NULL",2]
[62,"Croatia","Croatie",12,"Ministry of Environmental Protection and Green Transition","Ministère de la protection de l'environnement et de la transition verte","ENV","ENV",2]
[62,"Croatia","Croatie",13,"Ministry of Labour, Pensions, Family and Social Policy","Ministère du travail, de la retraite, la famille et de la politique sociale","NULL","NULL",2]
[62,"Croatia","Croatie",14,"Ministry of the Interior","Ministère de l'intérieur","INT","INT",2]
[62,"Croatia","Croatie",15,"Croatian Meteorological and Hydrological Service","Service météorologique et hydrologique croate","NULL","NULL",2]
[62,"Croatia","Croatie",16,"Office for Cooperation with NGOs","Bureau de coopération avec les ONG","NULL","NULL",2]
[62,"Croatia","Croatie",17,"Central Government Office for Reconstruction and Housing","Bureau du gouvernement central pour la reconstruction et le logement","NULL","NULL",2]
[62,"Croatia","Croatie",18,"Ministry of Finance","Ministère des finances","NULL","NULL",2]
[62,"Croatia","Croatie",19,"Ministry of Economy (formerly Ministry of Economy and Sustainable Development)","Ministère de l'économie (anciennement Ministère de l'économie et du développement durable)","NULL","NULL",2]
[62,"Croatia","Croatie",20,"Croatian Bank for Reconstruction and Development","Banque croate pour la reconstruction et le développement","NULL","NULL",2]
[62,"Croatia","Croatie",21,"Ministry of Culture and Media","Ministère de la culture et des médias","NULL","NULL",2]
[62,"Croatia","Croatie",23,"Ministry of Regional Development and EU Funding of Croatia","Ministère du développement régional et du financement par l'UE pour la Croatie","NULL","NULL",2]
[62,"Croatia","Croatie",24,"Ministry of the Sea, Transport and Infrastructure","Ministère de la Mer, des Transports et des Infrastructures","NULL","NULL",2]
[62,"Croatia","Croatie",25,"Ministry of Defense","Ministère de la Défense","NULL","NULL",2]
[62,"Croatia","Croatie",26,"Ministry of Physical Planning, Construction and State Property","Ministère de l'Aménagement du Territoire, de la Construction et des Domaines de l'Etat","NULL","NULL",2]
[62,"Croatia","Croatie",27,"Ministry of Economy","Ministère de l'économie","NULL","NULL",2]
[62,"Croatia","Croatie",28,"Ministry of Demography and Immigration","Ministère de la Démographie et de l'Immigration","NULL","NULL",2]
[62,"Croatia","Croatie",29,"Croatian Civil Aviation Agency","Agence croate de l'aviation civile","NULL","NULL",2]
[62,"Croatia","Croatie",30,"Croatian Employment Service","Service croate pour l'emploi","NULL","NULL",2]
[62,"Croatia","Croatie",99,"Miscellaneous","Divers","MISC","MISC",99]
[68,"Czechia","Tchéquie",1,"Czech Development Agency","Czech Development Agency","CZDA","CZDA",1]
[68,"Czechia","Tchéquie",2,"Ministry of Foreign Affairs","Ministère des affaires étrangères","MFA","MAE",2]
[68,"Czechia","Tchéquie",3,"Ministry of Finance","Ministère des finances","FIN","FIN",2]
[68,"Czechia","Tchéquie",4,"Ministry of Education, Youth, Sports","Ministry of Education, Youth, Sports","MŠMT","MŠMT",2]
[68,"Czechia","Tchéquie",5,"Ministry of Interior","Ministère de l'intérieur","INT","INT",2]
[68,"Czechia","Tchéquie",6,"Police","Police","NULL","NULL",2]
[68,"Czechia","Tchéquie",7,"Ministry of Defence","Ministère de la Défense","DEF","DEF",2]
[68,"Czechia","Tchéquie",8,"Ministry of Health","Ministère de la santé","MoH","MoH",2]
[68,"Czechia","Tchéquie",9,"Ministry of Industry and Trade","Ministry of Industry and Trade","MIT","MIT",2]
[68,"Czechia","Tchéquie",10,"Czech National Bank","Czech National Bank","CNB","CNB",2]
[68,"Czechia","Tchéquie",11,"Ministry of Justice","Ministry of Justice","JUSTICE","JUSTICE",2]
[68,"Czechia","Tchéquie",12,"Ministry of Labour and Social Affairs","Ministry of Labour and Social Affairs","MOLSA","NULL",2]
[68,"Czechia","Tchéquie",13,"Universities","Universities","NULL","NULL",2]
[68,"Czechia","Tchéquie",14,"Regional Governments and Municipalities","Regional Governments and Municipalities","GOV","GOUV",3]
[68,"Czechia","Tchéquie",15,"Ministry of Environment","Ministry of Environment","ENV","ENV",2]
[68,"Czechia","Tchéquie",16,"State Office for Nuclear Saftey","State Office for Nuclear Saftey","SÚJB","SÚJB",2]
[68,"Czechia","Tchéquie",17,"Czech Export Bank","Czech Export Bank","CEB","CEB",4]
[68,"Czechia","Tchéquie",18,"EGAP","EGAP","EGAP","EGAP",2]
[68,"Czechia","Tchéquie",19,"Ministry of Agriculture","Ministry of Agriculture","AGRI","AGRI",2]
[68,"Czechia","Tchéquie",20,"Ministry of Regional Development","Ministry of Regional Development","MMR","MMR",2]
[68,"Czechia","Tchéquie",21,"Czech National Development Bank","Czech National Development Bank","NRB","NRB",2]
[68,"Czechia","Tchéquie",22,"Ministry of Culture","Ministère de la culture","NULL","NULL",2]
[68,"Czechia","Tchéquie",99,"Miscellaneous","Divers","MISC","MISC",99]
[69,"Slovak Republic","République slovaque",1,"Ministry of Foreign and European Affairs (MZVaEZ)","Ministry of Foreign and European Affairs (MZVaEZ)","MZVaEZ","MZVaEZ",2]
[69,"Slovak Republic","République slovaque",2,"Slovak Agency for International Deve (SAMRS)","Slovak Agency for International Deve (SAMRS)","SAMRS","SAMRS",1]
[69,"Slovak Republic","République slovaque",3,"Ministry of Finance","Ministère des finances","FIN","FIN",1]
[69,"Slovak Republic","République slovaque",4,"Ministry of Education, Science, Rese (MSVVS)","Ministry of Education, Science, Rese (MSVVS)","MSVVS","MSVVS",2]
[69,"Slovak Republic","République slovaque",5,"Ministry of Interior","Ministère de l'intérieur","INT","INT",2]
[69,"Slovak Republic","République slovaque",18,"Other ministries","Other ministries","NULL","NULL",2]
[69,"Slovak Republic","République slovaque",30,"Local and Regional governments","Local and Regional governments","VUC","VUC",3]
[69,"Slovak Republic","République slovaque",50,"Export-Import bank","Export-Import bank","EXIM","EXIM",4]
[69,"Slovak Republic","République slovaque",99,"Miscellaneous","Divers","MISC","MISC",99]
[70,"Liechtenstein","Liechtenstein",1,"Ministry of Foreign Affairs","Ministère des affaires étrangères","MFA","MAE",1]
[70,"Liechtenstein","Liechtenstein",2,"Municipalities","Municipalités","NULL","NULL",3]
[72,"Bulgaria","Bulgarie",1,"Bulgaria","Bulgarie","NULL","NULL",1]
[75,"Hungary","Hongrie",1,"Ministry of Finance","Ministère des finances","MF","MF",1]
[75,"Hungary","Hongrie",2,"Ministry of Foreign Affairs and Trade","Ministère des affaires étrangères et du commerce","MinTrade","MinTrade",1]
[75,"Hungary","Hongrie",3,"Office of Immigration and Nationality","Bureau de l'immigration et de la nationalité","BIN","BIN",2]
[75,"Hungary","Hongrie",4,"Ministry of Interior","Ministère de l'intérieur","INT","INT",2]
[75,"Hungary","Hongrie",5,"Ministry of Human Capacities","Ministère des capacités humaines","MCH","MCH",2]
[75,"Hungary","Hongrie",6,"Ministry of Defence","Ministère de la défense","DEF","DEF",2]
[75,"Hungary","Hongrie",7,"Ministry of Agriculture","Ministère de l'agriculture","AGRI","AGRI",2]
[75,"Hungary","Hongrie",8,"Ministry of Justice","Ministère de la justice","JUSTICE","JUSTICE",2]
[75,"Hungary","Hongrie",9,"Ministry for Innovation and Technology","Ministère de l'innovation et de la technologie","NULL","NULL",2]
[75,"Hungary","Hongrie",10,"Prime Minister's Office","Bureau du Premier ministre","NULL","NULL",2]
[75,"Hungary","Hongrie",11,"Ministry of Construction and Transport","Ministère de la construction et des transports","NULL","NULL",2]
[75,"Hungary","Hongrie",12,"Ministry of Energy","Ministère de l'energie","NULL","NULL",2]
[75,"Hungary","Hongrie",13,"Ministry for National Economy","Ministère de l'Economie Nationale","NULL","NULL",2]
[75,"Hungary","Hongrie",21,"Hungarian Export Import Bank PLC","Hungarian Export Import Bank PLC","EXIM","EXIM",4]
[75,"Hungary","Hongrie",99,"Miscellaneous","Divers","MISC","MISC",99]
[76,"Poland","Pologne",1,"Ministry of Foreign Affairs","Ministère des affaires étrangères","MFA","MAE",1]
[76,"Poland","Pologne",2,"Ministry of Education and Science","Ministry of Education and Science","MSHE","MSHE",2]
[76,"Poland","Pologne",3,"Ministry of Interior and Administration","Ministry of Interior and Administration","INT","INT",2]
[76,"Poland","Pologne",4,"Ministry of Culture, National Heritage and Sport","Ministry of Culture, National Heritage and Sport","MCNHS","MCNHS",2]
[76,"Poland","Pologne",5,"Ministry of Finance","Ministère des finances","FIN","FIN",2]
[76,"Poland","Pologne",6,"Ministry of Climate and Environment","Ministry of Climate and Environment","ENV","ENV",2]
[76,"Poland","Pologne",99,"Miscellaneous","Divers","MISC","MISC",99]
[77,"Romania","Roumanie",1,"Ministry of Foreign Affairs","Ministère des affaires étrangères","MFA","MAE",1]
[77,"Romania","Roumanie",2,"Ministry of Public Finance","Ministère de la Finance publique","FIN","FIN",1]
[77,"Romania","Roumanie",3,"Senate of Romania","Sénat de Roumanie","NULL","NULL",2]
[77,"Romania","Roumanie",4,"Ministry of National Defence","Ministère de la Défense","DEF","DEF",2]
[77,"Romania","Roumanie",6,"National Integrity Agency","Agence de l'Integrité Nationale","NULL","NULL",2]
[77,"Romania","Roumanie",8,"Ministry of Labour, Family, Social Protection and Elderly","Ministère du Travail, la Famille, la Protection sociale et la Vieillesse","NULL","NULL",2]
[77,"Romania","Roumanie",12,"National Agency of Civil Servants","Agence nationale des Fonctionnaires","NULL","NULL",2]
[77,"Romania","Roumanie",13,"Youth and Sports Ministry","Ministère des Sports et de la Jeunesse","NULL","NULL",2]
[77,"Romania","Roumanie",14,"Ministry of Justice","Ministère de la Justice","JUSTICE","JUSTICE",2]
[77,"Romania","Roumanie",16,"Ministry of Regional Development and Public Administration","Ministère du Développement régoinale et de l'Administration publique","NULL","NULL",1]
[77,"Romania","Roumanie",17,"Ministry of Culture","Ministère de la Culture","NULL","NULL",2]
[77,"Romania","Roumanie",18,"National Agency for Fiscal Administration","Agence nationales pour les Affaires Fiscales","NULL","NULL",2]
[77,"Romania","Roumanie",20,"Ministry of Internal Affairs","Ministère des Affaires Intérieures","INT","INT",2]
[77,"Romania","Roumanie",22,"Ministry of Health","Ministère de la santé","MoH","MoH",2]
[77,"Romania","Roumanie",23,"Ministry of Information Society","Ministère de la Société d'Information","NULL","NULL",2]
[77,"Romania","Roumanie",26,"Permanent Electoral Authority","Autorité Permanente Electorale","NULL","NULL",2]
[77,"Romania","Roumanie",28,"Ministry of Education and Scientific Research","Ministère de l'éducation et de la recherche scientifique","EDUC","EDUC",1]
[77,"Romania","Roumanie",29,"Chamber of Deputies","Chambre des Députés","NULL","NULL",2]
[77,"Romania","Roumanie",30,"Ministry of Agriculture and Regional Development","Ministère de l'Agriculture et du Développement régionale","AGRI","AGRI",2]
[77,"Romania","Roumanie",31,"Romanian Government","Gouvernement de la Roumanie","GOV","GOUV",2]
[77,"Romania","Roumanie",32,"Ministry of Environment and Climate Change","Ministère de l'Enivironnment et du Changement climatique","ENV","ENV",2]
[77,"Romania","Roumanie",33,"Public Ministry","Ministère public","NULL","NULL",1]
[77,"Romania","Roumanie",34,"National Anticorruption Directorate","Direction de l'anticorruption nationale","NULL","NULL",2]
[77,"Romania","Roumanie",35,"Ministry of Tourism","Ministère du tourisme","NULL","NULL",2]
[77,"Romania","Roumanie",36,"ROAID","ROAID","ROAID","ROAID",1]
[77,"Romania","Roumanie",37,"Nuclear Agency for Radioactive Waste","Agence nucléaire pour les déchets radioactifs","NULL","NULL",2]
[77,"Romania","Roumanie",38,"National Agency for State Reserves and Special Problems","Administration nationale des réserves de l'État et des questions spéciales","NULL","NULL",2]
[77,"Romania","Roumanie",99,"Miscellaneous","Divers","MISC","MISC",99]
[82,"Estonia","Estonie",1,"Ministry of Foreign Affairs","Ministère des affaires étrangères","MFA","MAE",99]
[82,"Estonia","Estonie",2,"Other Ministries","Autre ministères","NULL","NULL",99]
[82,"Estonia","Estonie",3,"Other Public Sector Institutions","Autres institutions du secteur public","NULL","NULL",99]
[82,"Estonia","Estonie",4,"Local Authorites","Authorités locales","NULL","NULL",99]
[83,"Latvia","Lettonie",1,"Ministry of Foreign Affairs","Ministère des affaires étrangères","MFA","MAE",1]
[83,"Latvia","Lettonie",2,"Other ministries and institutions","Autres ministères et institutions","Other","Autres",2]
[83,"Latvia","Lettonie",3,"Local and regional governments","Gouvernments locaux et régionaux","Local","Locaux",3]
[84,"Lithuania","Lituanie",1,"Government of the Republic of Lithuania","Gouvernement de la Lithuanie","GOV","GOUV",1]
[84,"Lithuania","Lituanie",2,"Ministry of Foreign Affairs","Ministère des affaires étrangères","MFA","MAE",1]
[84,"Lithuania","Lituanie",3,"Ministry of National Defense","Ministère de la défense nationale","DEF","DEF",2]
[84,"Lithuania","Lituanie",4,"Ministry of Environment","Ministère de l'environnement","ENV","ENV",2]
[84,"Lithuania","Lituanie",5,"Ministry of Finance","Ministère des finances","FIN","FIN",2]
[84,"Lithuania","Lituanie",6,"Ministry of Economy","Ministère de l'économie","ECON","ECON",2]
[84,"Lithuania","Lituanie",7,"Ministry of Education and Science","Ministère de l'éducation et de la science","EDUC","EDUC",2]
[84,"Lithuania","Lituanie",8,"Ministry of Transport and Communications","Ministère des transports et des communications","NULL","NULL",2]
[84,"Lithuania","Lituanie",9,"Ministry of Energy","Ministère de l'énergie","NULL","NULL",2]
[84,"Lithuania","Lituanie",10,"Ministry of Health","Ministère de la santé","MoH","MoH",2]
[84,"Lithuania","Lituanie",11,"Ministry of Agriculture","Ministère de l'agriculture","AGRI","AGRI",2]
[84,"Lithuania","Lituanie",12,"Ministry of the Interior","Ministère de l'intérieure","INT","INT",2]
[84,"Lithuania","Lituanie",13,"Ministry of Social Security and Labour","Ministère de la sécurité sociale et du travail","NULL","NULL",2]
[84,"Lithuania","Lituanie",14,"Ministry of Justice","Ministry of Justice","JUSTICE","JUSTICE",2]
[84,"Lithuania","Lituanie",15,"Ministry of Culture","Ministère de la Culture","NULL","NULL",2]
[84,"Lithuania","Lituanie",20,"Governments and Agencies and Other public institutions and Agencies","Autres institutions publiques","NULL","NULL",2]
[84,"Lithuania","Lituanie",30,"Local Authorities","Autorités locales","NULL","NULL",3]
[87,"Russia","Russie",1,"Russia","Russie","NULL","NULL",1]
[104,"Nordic Development Fund","Fonds du dév. nordique",1,"Nordic Development Fund","Nordic Development Fund","NDF","NDF",1]
[104,"Nordic Development Fund","Fonds du dév. nordique",2,"Energy and Environment Partnership Trust Fund","Fonds d'affectation spéciale de partenariat énergie et environnement","NULL","NULL",99]
[301,"Canada","Canada",1,"Canadian International Development Agency","Agence canadienne de développement international","CIDA","CIDA",1]
[301,"Canada","Canada",2,"International Development Research Centre","Centre de recherche pour le développement international","IDRC","IDRC",2]
[301,"Canada","Canada",3,"Global Affairs Canada","Affaires Mondiales Canada","GAC","GAC",2]
[301,"Canada","Canada",4,"Department of Finance Canada","Département des Finances","FIN","FIN",2]
[301,"Canada","Canada",6,"Foreign Affairs and International Trade Canada","Affaires étrangères et du Commerce international Canada","DFAIT","DFAIT",2]
[301,"Canada","Canada",7,"Department of National Defence","Ministère de la Défense Nationale","DND","MDN",2]
[301,"Canada","Canada",8,"Royal Canadian Mounted Police of Canada","Gendarmerie Royale du Canada","RCMP","RCMP",2]
[301,"Canada","Canada",9,"Provincial Governments and municipalities","Gouvernements provinciaux et municipalités","GOV","GOUV",3]
[301,"Canada","Canada",10,"Immigration, Refugees and Citizenship Canada","Immigration, Refugés et Citoyenneté Canada","IRCC","IRCC",99]
[301,"Canada","Canada",11,"Environment and Climate Change Canada","Environment et Changement Climatique Canada","ECCC","ECCC",99]
[301,"Canada","Canada",22,"FinDev Canada","FinDev Canada","FinDev","FinDev",5]
[301,"Canada","Canada",31,"Export Development Canada","Exportation et développement Canada","EDC","EDC",4]
[301,"Canada","Canada",99,"Miscellaneous","Divers","MISC","MISC",2]
[302,"United States","Etats-Unis",1,"Agency for International Development","Agence de développement international","AID","AID",1]
[302,"United States","Etats-Unis",2,"Department of Agriculture","Département de l'agriculture","AGR","AGR",2]
[302,"United States","Etats-Unis",6,"Department of the Treasury","Département du trésor","DTRE","DTRE",2]
[302,"United States","Etats-Unis",7,"Department of Defense","Département de la défense","DOD","DOD",2]
[302,"United States","Etats-Unis",9,"Department of the Interior","Department of the Interior","INT","INT",2]
[302,"United States","Etats-Unis",10,"Peace Corps","Volontaires du développement (« Peace Corps »)","PEACE","PEACE",2]
[302,"United States","Etats-Unis",11,"State Department","Département d'état","STATE","STATE",2]
[302,"United States","Etats-Unis",12,"Trade and Development Agency","Agence du commerce et du développement","TDA","TDA",2]
[302,"United States","Etats-Unis",13,"African Development Foundation","Fondation pour le développement africain","ADF","ADF",2]
[302,"United States","Etats-Unis",14,"Department of Health and Human Services","Department of Health and Human Services","HHS","HHS",2]
[302,"United States","Etats-Unis",15,"Department of Justice","Department of Justice","JUSTICE","JUSTICE",2]
[302,"United States","Etats-Unis",16,"Department of Commerce","Department of Commerce","COMMERCE","COMMERCE",2]
[302,"United States","Etats-Unis",17,"Department of Labor","Département du travail","LABOR","LABOR",2]
[302,"United States","Etats-Unis",18,"Millennium Challenge Corporation","Millennium Challenge Corporation","MCC","MCC",1]
[302,"United States","Etats-Unis",19,"Department of Homeland Security","Department of Homeland Security","DHS","DHS",2]
[302,"United States","Etats-Unis",20,"Department of Energy","Department of Energy","DOE","DOE",2]
[302,"United States","Etats-Unis",21,"Inter-American Development Foundation","Inter-American Development Foundation","IADF","IADF",1]
[302,"United States","Etats-Unis",22,"Overseas Private Investment Corporation","Overseas Private Investment Corporation","OPIC","OPIC",5]
[302,"United States","Etats-Unis",23,"Federal Trade Commission","Federal Trade Commission","FTC","FTC",2]
[302,"United States","Etats-Unis",26,"Department of Transportation","Department of Transportation","DOT","DOT",2]
[302,"United States","Etats-Unis",28,"Open World Leadership Center","Open World Leadership Center","LIC","LIC",2]
[302,"United States","Etats-Unis",31,"Export Import Bank","Banque d'import/export","EXIM","EXIM",4]
[302,"United States","Etats-Unis",32,"Environmental Protection Agency","Environmental Protection Agency","EPA","EPA",2]
[302,"United States","Etats-Unis",34,"International Development Finance Corporation","International Development Finance Corporation","DFC","DFC",5]
[302,"United States","Etats-Unis",35,"National Aeronautics and Space Administration","Administration nationale de l'aéronautique et de l'espace","NASA","NASA",2]
[302,"United States","Etats-Unis",40,"Private flows","Private flows","PRIVATE","PRIVATE",2]
[302,"United States","Etats-Unis",99,"Miscellaneous","Divers","MISC","MISC",2]
[358,"Mexico","Mexique",1,"Mexican Agency for International Development Cooperation","Agence mexicaine de coopération internationale pour le développement","AMEXCID","AMEXCID",1]
[358,"Mexico","Mexique",99,"Miscellaneous","Divers","MISC","MISC",99]
[546,"Israel","Israël",1,"Israel MASHAV","Israël MASHAV","NULL","NULL",1]
[546,"Israel","Israël",2,"Israeli public universities","Universités publiques israéliennes","NULL","NULL",99]
[546,"Israel","Israël",3,"Ministry of Education","Ministère de l'Éducation","NULL","NULL",2]
[546,"Israel","Israël",4,"Ministry of Aliyah and Integration","Ministère de l'Aliya et de l'Intégration","NULL","NULL",2]
[546,"Israel","Israël",5,"local government - Municipal authorities","Gouvernement local - Autorités municipales","NULL","NULL",3]
[546,"Israel","Israël",6,"Water Authority","Autorité de l'eau","NULL","NULL",2]
[546,"Israel","Israël",7,"Ministry of Agriculture","Ministère de l'Agriculture","NULL","NULL",2]
[546,"Israel","Israël",8,"Ministry of Construction and Housing","Ministère de la Construction et du Logement","NULL","NULL",2]
[546,"Israel","Israël",9,"Prime Minister's Office","Cabinet du Premier ministre","NULL","NULL",2]
[546,"Israel","Israël",10,"Ministry of Economics","Ministère de l'Économie","NULL","NULL",2]
[546,"Israel","Israël",11,"The Office for Regional Cooperation","Le Bureau de Coopération Régionale","NULL","NULL",2]
[546,"Israel","Israël",12,"Ministry of the Environment","Ministère de l'Environnement","NULL","NULL",2]
[546,"Israel","Israël",13,"Ministry of Welfare and Social Services","Ministère du Bien-être et des Services sociaux","NULL","NULL",2]
[546,"Israel","Israël",14,"Ministry of Health","Ministère de la Santé","NULL","NULL",2]
[546,"Israel","Israël",15,"Ministry of Foreign Affairs","Ministère des Affaires étrangères","NULL","NULL",1]
[546,"Israel","Israël",16,"Ministry of Tourism","ministère du Tourisme","NULL","NULL",2]
[546,"Israel","Israël",17,"Ministry of Science","Ministère des Sciences","NULL","NULL",2]
[546,"Israel","Israël",18,"Ministry of Finance","Ministère des finances","NULL","NULL",2]
[546,"Israel","Israël",19,"Ministry of Transportation","Ministère des transports","NULL","NULL",2]
[546,"Israel","Israël",20,"Ministry of Justice","Ministry of Justice","NULL","NULL",2]
[546,"Israel","Israël",21,"Ministry of Communication","Ministère de la Communication","NULL","NULL",2]
[546,"Israel","Israël",22,"Health Funds","Health Funds","NULL","NULL",99]
[552,"Kuwait","Koweit",1,"Kuwait Fund for Arab Economic Development (KFAED)","Kuwait Fund for Arab Economic Development (KFAED)","KFAED","KFAED",99]
[552,"Kuwait","Koweit",2,"Government Grants administered by KFAED","Government Grants administered by KFAED","NULL","NULL",99]
[552,"Kuwait","Koweit",99,"Miscellaneous","Divers","MISC","MISC",99]
[561,"Qatar","Qatar",1,"Qatar Fund for Development","Fonds du Qatar pour le développement","QFFD","QFFD",1]
[561,"Qatar","Qatar",2,"Doha Institute","Institut de Doha","NULL","NULL",99]
[561,"Qatar","Qatar",3,"Qatar Foundation","Fondation du Qatar","NULL","NULL",99]
[561,"Qatar","Qatar",4,"Ministry of Foreign Affairs","Ministère des Affaires étrangères","MOFA","NULL",2]
[561,"Qatar","Qatar",5,"Ministry of Public Health","Ministère de la Santé publique","MOHP","NULL",2]
[561,"Qatar","Qatar",6,"Qatar University","Université du Qatar","NULL","NULL",99]
[561,"Qatar","Qatar",7,"Qatar Airways","Qatar Airways","NULL","NULL",99]
[561,"Qatar","Qatar",8,"Ministry of Defense ","Ministère de la Défense","NULL","NULL",2]
[561,"Qatar","Qatar",9,"Ministry of Endowments and Islamic Affairs","Ministry of Endowments and Islamic Affairs","NULL","NULL",2]
[561,"Qatar","Qatar",10,"Ministry of Education and Higher Education","Ministry of Education and Higher Education","NULL","NULL",2]
[561,"Qatar","Qatar",99,"Miscellaneous","Divers","NULL","NULL",99]
[566,"Saudi Arabia","Arabie saoudite",1,"King Salman Humanitarian Aid and Relief Center","Centre d'aide humanitaire et de secours King Salman","KSHA","AHKS",1]
[566,"Saudi Arabia","Arabie saoudite",2,"Ministry of Foreign Affairs","Ministère des affaires étrangères","MFA","MAE",1]
[566,"Saudi Arabia","Arabie saoudite",3,"King Abdullah International Foundation for Humanitarian Activities","Fondation internationale du roi Abdallah pour les activités humanitaires","KAIF","KAIF",99]
[566,"Saudi Arabia","Arabie saoudite",4,"Other Governmental Entities","Autres entités gouvernementales","GOV","GOUV",99]
[566,"Saudi Arabia","Arabie saoudite",5,"Saudi Campaigns","Campagnes saoudiennes","NULL","NULL",99]
[566,"Saudi Arabia","Arabie saoudite",6,"Saudi Development Fund","Fonds de développement saoudien","SDF","FDS",1]
[566,"Saudi Arabia","Arabie saoudite",7,"Ministry of Education","Ministère de l'éducation","EDUC","EDUC",2]
[566,"Saudi Arabia","Arabie saoudite",8,"Saudi Red Crescent Authority","Autorité du Croissant-Rouge de l'Arabie Saoudite","SRCA","SRCA",99]
[566,"Saudi Arabia","Arabie saoudite",9,"Ministry of Finance","Ministère des finances","FIN","FIN",2]
[566,"Saudi Arabia","Arabie saoudite",10,"Saudi Development and Reconstruction Program for Yemen","Saudi Development and Reconstruction Program for Yemen","SDRPY","SDRPY",99]
[566,"Saudi Arabia","Arabie saoudite",99,"Miscellaneous","Divers","MISC","MISC",99]
[576,"United Arab Emirates","Emirats arabes unis",2,"Abu Dhabi Department of Finance","Département des finances d'Abu Dhabi","FIN","FIN",1]
[576,"United Arab Emirates","Emirats arabes unis",3,"Abu Dhabi Fund for Development","Fonds Abu Dhabi pour le développement","ADFD","ADFD",1]
[576,"United Arab Emirates","Emirats arabes unis",5,"Abu Dhabi Future Energy Co.","Société de l'enérgie du future Abu Dhabi","MASDAR","MASDAR",1]
[576,"United Arab Emirates","Emirats arabes unis",7,"International Humanitarian City","Ville humanitaire internationale","IHC","IHC",2]
[576,"United Arab Emirates","Emirats arabes unis",8,"Mohamed Bin Zayed Species Conservation Fund","Fonds Mohammed Bin Zayed pour la conservation de la faune et de flore","MBZ","MBZ",2]
[576,"United Arab Emirates","Emirats arabes unis",9,"Ministry of International Cooperation and Development","Ministère de la co-opération internationale et du développement","MICAD","MICAD",1]
[576,"United Arab Emirates","Emirats arabes unis",17,"Khalifa Bin Zayed Al Nahyan Foundation","Fondation Khalifa Bin Zayed Al Nahyan","KBZ","KBZ",2]
[576,"United Arab Emirates","Emirats arabes unis",18,"Mohammed Bin Rashid Al Maktoum Humanitarian and Charity Establishment","Etablissement humanitaire et de charité Mohammed Bin Rashid Al Maktoum","MBR","MBR",2]
[576,"United Arab Emirates","Emirats arabes unis",19,"Zayed Bin Sultan Al Nahyan Charitable and Humanitarian Foundation","Etablissement humanitaire et de charité Zayed Bin Sultan Al Nahyan","ZBS","ZBS",2]
[576,"United Arab Emirates","Emirats arabes unis",20,"Al Maktoum Foundation","Fondation Al Maktoum","MF","NULL",2]
[576,"United Arab Emirates","Emirats arabes unis",21,"Dubai Cares","Dubai Cares","DC","NULL",2]
[576,"United Arab Emirates","Emirats arabes unis",22,"UAE Red Crescent Authority","Autorité du Croissant-Rouge des EAU","RCA","RCA",1]
[576,"United Arab Emirates","Emirats arabes unis",23,"Noor Dubai","Noor Dubai","ND","NULL",2]
[576,"United Arab Emirates","Emirats arabes unis",25,"Other Government Entities","Autres entités gouvernementales","GOV","GOUV",2]
[576,"United Arab Emirates","Emirats arabes unis",99,"Miscellaneous","Divers","MISC","MISC",99]
[611,"Azerbaijan","Azerbaïdjan",1,"Government of Azerbaijan","Gouvernement d'Azerbaidjan","GOV","GOUV",1]
[611,"Azerbaijan","Azerbaïdjan",2,"Ministry of Foreign Affairs","Ministère des affaires étrangères","MFA","MAE",2]
[611,"Azerbaijan","Azerbaïdjan",3,"Ministry of Emergency Situations","Ministère des situations d'urgence","NULL","NULL",1]
[611,"Azerbaijan","Azerbaïdjan",4,"MFA/Azerbaijan International Development Agency","MAE/Agence internationale de développement","NULL","NULL",1]
[611,"Azerbaijan","Azerbaïdjan",5,"State Customs Committee","Comité d'état de la douane","NULL","NULL",2]
[611,"Azerbaijan","Azerbaïdjan",6,"Ministry of Culture and Tourism","Ministère de la culture et du tourisme","NULL","NULL",2]
[611,"Azerbaijan","Azerbaïdjan",7,"Ministry of Youth and Sport","Ministère de la jeunesse et des sports","NULL","NULL",2]
[611,"Azerbaijan","Azerbaïdjan",8,"Ministry of Health","Ministère de la santé","MoH","MoH",2]
[611,"Azerbaijan","Azerbaïdjan",9,"Ministry of Ecology and Natural Resources","Ministère de l'écologie et des ressources naturelles","NULL","NULL",2]
[611,"Azerbaijan","Azerbaïdjan",10,"Ministry of Defence","Ministère de la défense","NULL","NULL",2]
[613,"Kazakhstan","Kazakhstan",1,"Ministry of Foreign Affairs","Ministère des affaires étrangères","MFA","MAE",1]
[613,"Kazakhstan","Kazakhstan",2,"Government of the Republic of Kazakhstan","Gouvernement de la République du Kazakhstan","GOV","GOUV",2]
[613,"Kazakhstan","Kazakhstan",3,"Ministry of Education and Science","Ministère de l'éducation et de la science","EDUC","EDUC",2]
[613,"Kazakhstan","Kazakhstan",4,"Sovereign Wealth Fund (Samruk-Kazyna)","Fond souverain (Samruk-Kazyna)","NULL","NULL",2]
[613,"Kazakhstan","Kazakhstan",99,"Miscellaneous","Divers","MISC","MISC",99]
[701,"Japan","Japon",1,"Ministry of Agriculture, Forestry and Fisheries","Ministère de l'agriculture, de la sylviculture et de la pêche","MAFF","MAFF",2]
[701,"Japan","Japon",2,"Ministry of Foreign Affairs","Ministère des affaires étrangères","MOFA","MOFA",1]
[701,"Japan","Japon",4,"EXIM BANK","EXIM BANK","EXIM BANK","EXIM BANK",99]
[701,"Japan","Japon",5,"OECF","OECF","OECF","OECF",99]
[701,"Japan","Japon",6,"FOOD AID","FOOD AID","FOOD AID","FOOD AID",99]
[701,"Japan","Japon",7,"Overseas Fishery Co-operation Foundation","Bureau de coopération d'outre-mer pour la pêche","OFCF","OFCF",2]
[701,"Japan","Japon",8,"Japanese International Co-operation Agency","Agence japonaise de coopération internationale","JICA","JICA",1]
[701,"Japan","Japon",10,"Japan Overseas Development Co-operation","Agence japonaise de coopération outre-mer","JODC","JODC",2]
[701,"Japan","Japon",11,"Japan Bank for International Co-operation","Banque japonaise pour la coopération internationale","JBIC","JBIC",4]
[701,"Japan","Japon",12,"Other Ministries","Autres ministères","Oth. MIN","Oth. MIN",2]
[701,"Japan","Japon",13,"Public Corporations","Corporations publiques","PC","PC",2]
[701,"Japan","Japon",14,"Prefectures","Préfectures","PRF","PRF",3]
[701,"Japan","Japon",15,"Ordinance-designed Cities","Villes désignées par ordonnance","ODC","ODC",3]
[701,"Japan","Japon",71,"Nippon Export and Investment Insurance","Assurance Nippone Exports et investissements","NEXI","NEXI",4]
[701,"Japan","Japon",99,"Miscellaneous","Divers","MISC","MISC",2]
[732,"Chinese Taipei","Taipei chinois",1,"Chinese Taipei","Taipei chinois","NULL","NULL",1]
[732,"Chinese Taipei","Taipei chinois",2,"International Cooperation and Development Fund","Fonds de coopération et de développement international","ICDF","ICDF",1]
[742,"Korea","Corée",1,"Ministry of Strategy and Finance","Ministry of Strategy and Finance","MOSF","MOSF",1]
[742,"Korea","Corée",2,"Export-Import Bank of Korea","Export-Import Bank of Korea","KEXIM","KEXIM",1]
[742,"Korea","Corée",3,"Ministry of Foreign Affairs and Trade","Ministry of Foreign Affairs and Trade","MOFAT","MOFAT",1]
[742,"Korea","Corée",4,"Korea International Cooperation Agency","Korea International Cooperation Agency","KOICA","KOICA",1]
[742,"Korea","Corée",99,"Miscellaneous","Divers","MISC","MISC",99]
[764,"Thailand","Thaïlande",1,"Thailand","Thailande","NULL","NULL",1]
[764,"Thailand","Thaïlande",2,"Ministry of Finance","Ministère des finances","NULL","NULL",1]
[764,"Thailand","Thaïlande",3,"Ministry of Foreign Affairs","Ministère des affaires étrangères","NULL","NULL",1]
[764,"Thailand","Thaïlande",4,"Ministry of Agriculture and Cooperatives","Ministère de l'agriculture et des coopératives","NULL","NULL",2]
[764,"Thailand","Thaïlande",5,"Ministry of Commerce","Ministère du commerce","NULL","NULL",2]
[764,"Thailand","Thaïlande",6,"Ministry of Culture","Ministère de la culture","NULL","NULL",2]
[764,"Thailand","Thaïlande",7,"Ministry of Digital Economy and Society","Ministry of Digital Economy and Society","NULL","NULL",2]
[764,"Thailand","Thaïlande",8,"Ministry of Education","Ministère de l'éducation","NULL","NULL",2]
[764,"Thailand","Thaïlande",9,"Ministry of Energy","Ministère de l'énergie","NULL","NULL",2]
[764,"Thailand","Thaïlande",10,"Ministry of Industry","Ministère de l'industrie","NULL","NULL",2]
[764,"Thailand","Thaïlande",11,"Ministry of Interior","Ministère de l'intérieur","NULL","NULL",2]
[764,"Thailand","Thaïlande",12,"Ministry of Justice","Ministère de la justice","NULL","NULL",2]
[764,"Thailand","Thaïlande",13,"Ministry of Labour","Ministère du travail","NULL","NULL",2]
[764,"Thailand","Thaïlande",14,"Ministry of natural Resources and Environment","Ministère des ressources naturelles et de l'environement","NULL","NULL",2]
[764,"Thailand","Thaïlande",15,"Ministry of Public Health","Ministère de la santé publique","NULL","NULL",2]
[764,"Thailand","Thaïlande",16,"Ministry of Social Development and Human Security","Ministry of Social Development and Human Security","NULL","NULL",2]
[764,"Thailand","Thaïlande",17,"Ministry of Tourism and Sports","Ministère du tourisme et des sports","NULL","NULL",2]
[764,"Thailand","Thaïlande",18,"Ministry of Transport","Ministère des transports","NULL","NULL",2]
[764,"Thailand","Thaïlande",19,"The Office of the Royal Development Project Board","The Office of the Royal Development Project Board","NULL","NULL",2]
[764,"Thailand","Thaïlande",20,"The Prime Minister's Office","The Prime Minister's Office","NULL","NULL",2]
[764,"Thailand","Thaïlande",21,"Ministry of Higher Education, Science, Research and Innovation","Minstère de l'éducation supérieure, de la science, de la recherche et de l'innovation","NULL","NULL",3]
[764,"Thailand","Thaïlande",22,"Bank of Thailand","Banque de Thailande","NULL","NULL",99]
[765,"Timor-Leste","Timor oriental",1,"Timor Leste","Timor Leste","NULL","NULL",1]
[801,"Australia","Australie",2,"Attorney-General","Attorney-General","AG","AG",2]
[801,"Australia","Australie",5,"Australian Government","Gouvernement australien","GOV","GOUV",1]
[801,"Australia","Australie",72,"Export Finance and Insurance Corporation","Corporation de financement et d'assurance des exportations","EFIC","EFIC",4]
[801,"Australia","Australie",99,"Miscellaneous","Divers","MISC","MISC",2]
[807,"UNEP","PNUE",1,"Assessed contributions - UN regular budget","Assessed contributions - UN regular budget","UNEP - Assessed Contributions","UNEP - Assessed Contributions",99]
[807,"UNEP","PNUE",2,"Environment Fund","Environment Fund","UNEP - EF","UNEP - EF",1]
[807,"UNEP","PNUE",3,"Multilateral Fund under the Montreal Protocol on Substances that Deplete the Ozone Layer","Multilateral Fund under the Montreal Protocol on Substances that Deplete the Ozone Layer","UNEP - MFMP","UNEP - MFMP",2]
[807,"UNEP","PNUE",4,"Convention on International Trade in Endangered Species of Wild Fauna and Flora (CITES) - Assessed contributions","Convention on International Trade in Endangered Species of Wild Fauna and Flora (CITES) - Assessed contributions","CITES POW Assessed Contributions","CITES POW Assessed Contributions",2]
[811,"Global Environment Facility","Fonds pour l'environnement mondial",1,"GEF (general)","FEM (général)","GEF","GEF",99]
[811,"Global Environment Facility","Fonds pour l'environnement mondial",11,"GEF Trust Fund","Fonds fiduciaire du FEM","NULL","NULL",99]
[811,"Global Environment Facility","Fonds pour l'environnement mondial",12,"Least Developed Countries Trust Fund (LDCF)","Fonds pour les pays les moins avancés (FPMA)","LDCF","FPMA",99]
[811,"Global Environment Facility","Fonds pour l'environnement mondial",13,"Special Climate Change Trust Fund (SCCF)","Fonds spécial pour le changement climatique (FSCC)","SCCF","FSCC",99]
[811,"Global Environment Facility","Fonds pour l'environnement mondial",14,"Nagoya Protocol Implementation Fund (NPIF)","Fonds de mise en œuvre du protocole de Nagoya (NPIF)","NPIF","NPIF",99]
[811,"Global Environment Facility","Fonds pour l'environnement mondial",15,"GEF Capacity Building Initiative for Transparency","FEM Initiative de renforcement des capacités pour la transparence","CBIT","IRCT",99]
[811,"Global Environment Facility","Fonds pour l'environnement mondial",16,"GEF Multi-Trust Funds","Fonds multi-fiduciaires du FEM","MTF","FMF",99]
[811,"Global Environment Facility","Fonds pour l'environnement mondial",19,"Global Biodiversity Framework Fund (GBFF)","Global Biodiversity Framework Fund (GBFF)","GBFF","GBFF",99]
[812,"Montreal Protocol","Protocole de Montréal",1,"Montreal Protocol","Protocole de Montréal","NULL","NULL",99]
[820,"New Zealand","Nouvelle-Zélande",1,"Ministry of Foreign Affairs and Trade","Ministère des affaires étrangères et du commerce","NZG","NZG",2]
[820,"New Zealand","Nouvelle-Zélande",2,"New Zealand International Aid and Development Agency","Agence néozélandaise d'aide et de développement international","NZAid","NZAid",1]
[820,"New Zealand","Nouvelle-Zélande",99,"Miscellaneous","Divers","MISC","MISC",2]
[901,"International Bank for Reconstruction and Development","Banque internationale pour la reconstruction et le développement",1,"IBRD","IBRD","IBRD","IBRD",99]
[903,"International Finance Corporation","Société financière international",1,"International Finance Corporation","International Finance Corporation","IFC","IFC",1]
[905,"International Development Association","Association internationale de développement",1,"IDA","IDA","IDA","IDA",99]
[906,"Caribbean Development Bank","Banque de développement des Caraïbes",1,"Caribbean Development Bank","Banque de développement des Caraïbes","CarDB","BDC",99]
[907,"International Monetary Fund","Fond monétaire international",1,"IMF","FMI","IMF","IMF",99]
[909,"Inter-American Development Bank","Banque Interaméricaine de développement",1,"Ordinary Capital","Ordinary Capital","ORC","ORC",1]
[909,"Inter-American Development Bank","Banque Interaméricaine de développement",2,"Fund for Special Operations","Fund for Special Operations","FSO","FSO",1]
[909,"Inter-American Development Bank","Banque Interaméricaine de développement",3,"Fund for Special Operations-Ordinary Capital","Fund for Special Operations-Ordinary Capital","FSO-ORC","FSO-ORC",2]
[909,"Inter-American Development Bank","Banque Interaméricaine de développement",4,"Ordinary Capital","Ordinary Capital","ORC","ORC",2]
[909,"Inter-American Development Bank","Banque Interaméricaine de développement",5,"Multilateral Investment Fund","Multilateral Investment Fund","MIF","MIF",2]
[909,"Inter-American Development Bank","Banque Interaméricaine de développement",6,"Grant Facility","Grant Facility","GRF","GRF",2]
[909,"Inter-American Development Bank","Banque Interaméricaine de développement",11,"Clean Technology Fund","Clean Technology Fund","CTF","CTF",99]
[909,"Inter-American Development Bank","Banque Interaméricaine de développement",14,"Strategic Climate Fund","Strategic Climate Fund","SCX","SCX",99]
[909,"Inter-American Development Bank","Banque Interaméricaine de développement",15,"Small Enterprise Development Facility","Small Enterprise Development Facility","MSE","MSE",2]
[909,"Inter-American Development Bank","Banque Interaméricaine de développement",16,"Small Enterprise Investment Fund","Small Enterprise Investment Fund","MSF","MSF",2]
[909,"Inter-American Development Bank","Banque Interaméricaine de développement",17,"Human Resource Facility","Human Resource Facility","MHR","MHR",2]
[909,"Inter-American Development Bank","Banque Interaméricaine de développement",18,"IDB Grant Facility","IDB Grant Facility","GRF","GRF",2]
[909,"Inter-American Development Bank","Banque Interaméricaine de développement",20,"Fund for Increasing Productivity and Promoting Inclusive Economic Growth","Fund for Increasing Productivity and Promoting Inclusive Economic Growth","MPF","MPF",2]
[910,"Central American Bank for Economic Integration","Banque centraméricaine d'intégration économique",1,"Ordinary capital","Ordinary capital","ORC","ORC",99]
[913,"African Development Bank","Banque Africaine de développement",1,"AfDB Ordinary Capital","BAfD","AfDB Ordinary Capital","AfDB Ordinary Capital",99]
[913,"African Development Bank","Banque Africaine de développement",11,"AfDB Middle Income Country Fund","AfDB Middle Income Country Fund","NULL","NULL",99]
[913,"African Development Bank","Banque Africaine de développement",12,"AfDB Special Relief Fund","AfDB Special Relief Fund","NULL","NULL",99]
[913,"African Development Bank","Banque Africaine de développement",14,"AfDB NEPAD/IPPF","AfDB NEPAD/IPPF","NULL","NULL",99]
[913,"African Development Bank","Banque Africaine de développement",15,"AfDB African Water Facility Fund","AfDB African Water Facility Fund","NULL","NULL",99]
[913,"African Development Bank","Banque Africaine de développement",16,"Fund for African Private Sector Assistance","Fund for African Private Sector Assistance","NULL","NULL",99]
[914,"African Development Fund","Fonds Africaine de développement",1,"AfDF","FAfD","AfDF","AfDF",99]
[914,"African Development Fund","Fonds Africaine de développement",2,"NTF","NTF","NTF","NTF",99]
[914,"African Development Fund","Fonds Africaine de développement",13,"AfDB Fragile States Facility","AfDB Fragile States Facility","NULL","NULL",99]
[915,"Asian Development Bank","Banque Asiatique de développement",1,"Asian Development Bank","Banque asiatique du développement","AsDB","AsDB",99]
[915,"Asian Development Bank","Banque Asiatique de développement",2,"Asia Pacific Disaster Response Fund","Asia Pacific Disaster Response Fund","APDRF","APDRF",99]
[915,"Asian Development Bank","Banque Asiatique de développement",3,"Climate Change Fund","Climate Change Fund","CCF","CCF",99]
[915,"Asian Development Bank","Banque Asiatique de développement",4,"Pakistan Earthquake Fund","Pakistan Earthquake Fund","PEF","PEF",99]
[915,"Asian Development Bank","Banque Asiatique de développement",5,"Japan Special Fund","Japan Special Fund","JSF","JSF",99]
[915,"Asian Development Bank","Banque Asiatique de développement",6,"Japan Fund for Prosperous and Resilient Asia and the Pacific","Japan Fund for Prosperous and Resilient Asia and the Pacific","NULL","NULL",99]
[915,"Asian Development Bank","Banque Asiatique de développement",11,"Technical Assistance Special Fund (TASF)","Technical Assistance Special Fund (TASF)","TASF","TASF",99]
[915,"Asian Development Bank","Banque Asiatique de développement",12,"Regional Cooperation and Integration Fund (RCIF)","Regional Cooperation and Integration Fund (RCIF)","RCIF","RCIF",99]
[915,"Asian Development Bank","Banque Asiatique de développement",13,"Financial Sector Development Partnership Special Fund","Financial Sector Development Partnership Special Fund","FSDPSF","FSDPSF",99]
[915,"Asian Development Bank","Banque Asiatique de développement",14,"Clean Technology Fund","Clean Technology Fund","CTF","CTF",99]
[915,"Asian Development Bank","Banque Asiatique de développement",15,"Strategic Climate Fund","Strategic Climate Fund","SCF","SCF",99]
[915,"Asian Development Bank","Banque Asiatique de développement",16,"Strategic Climate Fund - Forest Investment Program","Strategic Climate Fund - Forest Investment Program","SCF-FIP","SCF-FIP",99]
[915,"Asian Development Bank","Banque Asiatique de développement",17,"Strategic Climate Fund - Scaling Up Renewable Energy in LICs Program","Strategic Climate Fund - Scaling Up Renewable Energy in LICs Program","SCF-SURELICP","SCF-SURELICP",99]
[915,"Asian Development Bank","Banque Asiatique de développement",19,"ASEAN Infrastructure Fund","ASEAN Infrastructure Fund","AIF","AIF",99]
[915,"Asian Development Bank","Banque Asiatique de développement",20,"Canadian Climate Fund For The Private Sector In Asia","Canadian Climate Fund For The Private Sector In Asia","CCF-PSA","CCF-PSA",99]
[915,"Asian Development Bank","Banque Asiatique de développement",21,"Canadian Climate Fund For The Private Sector In Asia II","Canadian Climate Fund For The Private Sector In Asia II","CCF-PSAII","CCF-PSAII",99]
[915,"Asian Development Bank","Banque Asiatique de développement",22,"Global Environment Facility","Global Environment Facility","GEF","GEF",99]
[915,"Asian Development Bank","Banque Asiatique de développement",23,"Green Climate Fund","Green Climate Fund","GCF","GCF",99]
[915,"Asian Development Bank","Banque Asiatique de développement",24,"Leading Asia's Private Sector Infrastructure Fund","Leading Asia's Private Sector Infrastructure Fund","LAPSIF","LAPSIF",99]
[918,"EU Institutions","Institutions de l'UE",1,"European Commission","Commission européenne","EC","EC",1]
[918,"EU Institutions","Institutions de l'UE",2,"European Development Fund","Fonds européen de développement","EDF","EDF",1]
[918,"EU Institutions","Institutions de l'UE",3,"European Investment Bank","Banque européenne d'investissement","EIB","EIB",2]
[918,"EU Institutions","Institutions de l'UE",4,"Humanitarian Aid Office of the European Commission","Bureau d'aide humanitaire de la Commission européenne","ECHO","ECHO",2]
[918,"EU Institutions","Institutions de l'UE",5,"Macro-Financial Assistance","Assistance macrofinancière","MFA","AMF",2]
[918,"EU Institutions","Institutions de l'UE",99,"Miscellaneous","Divers","MISC","MISC",2]
[921,"Arab Fund (AFESD)","Fonds arabe (FADES)",1,"Arab Fund ","Fonds Arabe ","AFESD","FADES",99]
[923,"UN Peacebuilding Fund","Fonds de consolidation de la paix-ONU",1,"UNPBF","FCP-ONU","UNPBF","UNPBF",99]
[926,"Council of Europe","Conseil de l'Europe",1,"Council of Europe (CoE)","Conseil de l'Europe (CoE)","CoE","CoE",99]
[928,"World Health Organisation","Organisation mondiale de la santé",1,"WHO","WHO","WHO","WHO",99]
[928,"World Health Organisation","Organisation mondiale de la santé",2,"WHO Assessed contributions","WHO Assessed contributions","AC","AC",1]
[928,"World Health Organisation","Organisation mondiale de la santé",3,"WHO Core Voluntary contributions","WHO Core Voluntary contributions","CVCA","CVCA",1]
[932,"Food and Agriculture Organisation","Organisation pour l'alimentation et l'agriculture",1,"Core resources - developmental","Core resources - developmental","FAO","FAO",99]
[940,"International Labour Organisation","Organisation internationale du Travail",1,"Regular Budget","Regular Budget","RB","RB",1]
[940,"International Labour Organisation","Organisation internationale du Travail",2,"Regular Budget Technical Cooperation","Regular Budget Technical Cooperation","RBTC","RBTC",1]
[940,"International Labour Organisation","Organisation internationale du Travail",3,"Regular Budget Supplementary Account","Regular Budget Supplementary Account","RBSA","RBSA",1]
[944,"International Atomic Energy Agency","Agence internationale de l'énergie atomique",1,"IAEA","IAEA","NULL","NULL",1]
[948,"UNECE","CEE-ONU",1,"UNECE","UNECE","UNECE","UNECE",99]
[951,"OPEC Fund for International Development","Fonds OPEP pour le développement international",1,"OPEC Fund","Fonds OPEP","OPEC Fund","Fonds OPEP",99]
[953,"Arab Bank for Economic Development in Africa","Banque arabe pour le développement économique en Afrique",1,"Arab Bank for Economic Development in Africa","BADEA","BADEA","BADEA",99]
[958,"IMF (Concessional Trust Funds)","FMI (Fonds fiduciaires concessionnels)",1,"IMF concessional","FMI concessionnel","NULL","NULL",99]
[959,"UNDP","PNUD",1,"UNDP","PNUD","UNDP","UNDP",99]
[962,"United Nations Conference on Trade and Development","Conférence des Nations Unies sur le commerce et le développement",2,"United Nations Conference on Trade and Development - Regular budget","Conférence des Nations Unies sur le commerce et le développement - budget régulier","UNCTAD","CNUCED",99]
[963,"UNICEF","UNICEF",1,"UNICEF","UNICEF","UNICEF","UNICEF",1]
[964,"UNRWA","UNRWA",1,"UNRWA","UNRWA","UNRWA","UNRWA",99]
[966,"WFP","PAM",1,"WFP","FMA","WFP","WFP",99]
[967,"UNHCR","HCR",1,"United Nations High Commissioner for Refugees","HCR","UNHCR","UNHCR",99]
[971,"UNAIDS","UNAIDS",1,"UNAIDS","UNAIDS","UNAIDS","UNAIDS",99]
[974,"UNFPA","FNUAP",1,"UNFPA","UNFPA","UNFPA","UNFPA",99]
[976,"Islamic Development Bank","Banque de développement islamique",1,"Ordinary Capital Resources","Ordinary Capital Resources","OCR","OCR",1]
[976,"Islamic Development Bank","Banque de développement islamique",2,"Awqaf Properties Investment Fund","Awqaf Properties Investment Fund","APIF","APIF",2]
[976,"Islamic Development Bank","Banque de développement islamique",3,"Islamic Corporation for the Development of the Private Sector","Islamic Corporation for the Development of the Private Sector","ICD","ICD",2]
[976,"Islamic Development Bank","Banque de développement islamique",4,"Islamic solidarity fund for Development","Islamic solidarity fund for Development","ISFD","ISFD",2]
[976,"Islamic Development Bank","Banque de développement islamique",5,"International Islamic Trade Finance Corporation","International Islamic Trade Finance Corporation","ITFC","ITFC",2]
[976,"Islamic Development Bank","Banque de développement islamique",6,"Special Assistance","Special Assistance","NULL","NULL",2]
[976,"Islamic Development Bank","Banque de développement islamique",7,"IsDB Group Science Technology and Innovation","IsDB Group Science Technology and Innovation","STI","STI",2]
[976,"Islamic Development Bank","Banque de développement islamique",8,"Trust Fund","Trust Fund","NULL","NULL",2]
[976,"Islamic Development Bank","Banque de développement islamique",9,"WAQF","WAQF","WAQF","WAQF",2]
[978,"OSCE","OSCE",1,"Organisation for Security and Co-operation in Europe","Organisation pour la sécurité et la coopération en Europe","OSCE","OSCE",1]
[981,"Black Sea Trade & Development Bank","Banque de développement de la mer Noire",1,"BSTDB Ordinary capital","BSTDB Ordinary capital","BSTDB","BSTDB",99]
[988,"IFAD","FIDA",1,"IFAD","IFAD","IFAD","IFAD",99]
[990,"European Bank for Reconstruction and Development","Banque européenne pour la reconstruction et le développement",1,"EBRD","BERD","EBRD","EBRD",99]
[997,"Global Partnership for Education","Partenariat mondial pour l'Éducation",1,"FTI","FTI","FTI","FTI",99]
[1011,"Climate Investment Funds","Fonds d'investissement climatique",10,"Clean Technology Fund","Clean Technology Fund","CTF","CTF",99]
[1011,"Climate Investment Funds","Fonds d'investissement climatique",20,"Strategic Climate Fund","Strategic Climate Fund","SCF","SCF",99]
[1011,"Climate Investment Funds","Fonds d'investissement climatique",21,"Strategic Climate Fund - FIP","Strategic Climate Fund - FIP","SCF - FIP","SCF - FIP",99]
[1011,"Climate Investment Funds","Fonds d'investissement climatique",22,"Strategic Climate Fund - PPCR","Strategic Climate Fund - PPCR","SCF - PPCR","SCF - PPCR",99]
[1011,"Climate Investment Funds","Fonds d'investissement climatique",23,"Strategic Climate Fund - SREP","Strategic Climate Fund - SREP","SCF - SREP","SCF - SREP",99]
[1012,"Adaptation Fund","Fonds d'adaptation",1,"Adaptation Fund","Fonds d'adaptation","NULL","NULL",99]
[1013,"Council of Europe Development Bank","Banque de développement du Conseil de l'Europe",1,"Council of Europe Development Bank (CEB)","Banque de développement du Conseil de l'Europe (CEB)","NULL","NULL",99]
[1013,"Council of Europe Development Bank","Banque de développement du Conseil de l'Europe",2,"Migrant and Refugee Fund","Fonds pour les Migrants et les Réfugiés","NULL","NULL",99]
[1013,"Council of Europe Development Bank","Banque de développement du Conseil de l'Europe",3,"Social Impact Account","Compte d'impact social","NULL","NULL",99]
[1014,"Private Infrastructure Development Group","Groupe du développement des infrastructures privées",1,"Infrastructure Crisis Facility – Debt Pool","Infrastructure Crisis Facility – Debt Pool","ICF - DP","ICF - DP",1]
[1014,"Private Infrastructure Development Group","Groupe du développement des infrastructures privées",2,"Emerging Africa Infrastructure Fund","Fonds des infrastructures pour l'Afrique émergente","EAIF","EAIF",1]
[1014,"Private Infrastructure Development Group","Groupe du développement des infrastructures privées",3,"GuarantCo","GuarantCo","NULL","NULL",1]
[1014,"Private Infrastructure Development Group","Groupe du développement des infrastructures privées",4,"InfraCo Asia","InfraCo Asia","NULL","NULL",1]
[1014,"Private Infrastructure Development Group","Groupe du développement des infrastructures privées",5,"InfraCo Africa","InfraCo Africa","NULL","NULL",1]
[1014,"Private Infrastructure Development Group","Groupe du développement des infrastructures privées",6,"GAP","GAP","NULL","NULL",1]
[1014,"Private Infrastructure Development Group","Groupe du développement des infrastructures privées",7,"Technical Assistance Facility","Technical Assistance Facility","TAF","TAF",1]
[1015,"Development Bank of Latin America","Banque de développement de l'Amérique latine",1,"Development Bank of Latin America","CAF","CAF","CAF",99]
[1016,"Green Climate Fund","Fonds vert pour le climat",1,"Green Climate Fund","Fonds vert pour le climat","GCF","FVC",99]
[1016,"Green Climate Fund","Fonds vert pour le climat",2,"Private Sector Facility","Private Sector Facility","GCF","FVC",99]
[1016,"Green Climate Fund","Fonds vert pour le climat",3,"Division of Mitigation and Adaptation","Division of Mitigation and Adaptation","GCF","FVC",99]
[1019,"IDB Invest","BID Invest",1,"IDB Invest","BID Invest","NULL","NULL",99]
[1020,"Central Emergency Response Fund","Fonds central d'intervention pour les urgences humanitaires",1,"Rapid Response","Réponse rapide","NULL","NULL",99]
[1020,"Central Emergency Response Fund","Fonds central d'intervention pour les urgences humanitaires",2,"Under Funded","Sous financé","NULL","NULL",99]
[1023,"World Tourism Organisation","Organisation mondiale du tourisme",1,"UNWTO-Regular Budget","UNWTO-Regular Budget","UNWTO-RB","UNWTO-RB",99]
[1023,"World Tourism Organisation","Organisation mondiale du tourisme",2,"UNWTO-Extra-Budgetary Project","UNWTO-Extra-Budgetary Project","UNWTO-XBP","UNWTO-XBP",99]
[1023,"World Tourism Organisation","Organisation mondiale du tourisme",3,"UNWTO-Extra-Budgetary Project In-Kind","UNWTO-Extra-Budgetary Project In-Kind","UNWTO-XBPI","UNWTO-XBPI",99]
[1024,"Asian Infrastructure Investment Bank","Banque asiatique d'investissement dans les infrastructures",1,"Asian Infrastructure Investment Bank","Banque asiatique d'investissement dans les infrastructures","AIIB","AIIB",99]
[1024,"Asian Infrastructure Investment Bank","Banque asiatique d'investissement dans les infrastructures",2,"Internal Special Funds","Funds speciaux internes",null,null,99]
[1025,"Center of Excellence in Finance","Centre d'excellence en finance",1,"Center of Excellence in Finance","Centre d'excellence en finance","CEF","CEF",99]
[1037,"International Investment Bank","Banque internationale d'investissement",1,"International Investment Bank","Banque internationale d'investissement","IIB","IIB",1]
[1038,"UN Institute for Disarmament Research","Institut des Nations unies pour la recherche sur le désarmement",1,"UNIDIR Trust Fund (core resources)","Fonds d'affectation spéciale de l'UNIDIR (financement au budget régulier)","UNIDIR","UNIDIR",1]
[1039,"UN Capital Development Fund","UN Capital Development Fund",2,"UNCDF","UNCDF","UNCDF","UNCDF",1]
[1040,"UN Office on Drugs and Crime","Office des Nations Unies contre la drogue et le crime",3,"Regular budget (developmental)","Regular budget (developmental)","NULL","NULL",1]
[1045,"North American Development Bank","North American Development Bank",1,"North American Development Bank","North American Development Bank","NADB","NADB",1]
[1045,"North American Development Bank","North American Development Bank",2,"Community Assistance Program","Community Assistance Program","CAP","CAP",1]
[1046,"UN Women","ONU Femmes",1,"UN Women","ONU Femmes","UN Women","ONU Femmes",99]
[1047,"COVID-19 Response and Recovery Multi-Partner Trust Fund","COVID-19 Response and Recovery Multi-Partner Trust Fund",1,"COVID-19 Response and Recovery Multi-Partner Trust Fund","COVID-19 Response and Recovery Multi-Partner Trust Fund","UN COVID-1","UN COVID-1",99]
[1048,"Joint Sustainable Development Goals Fund","Fonds conjoint des objectifs de développement durable",1,"Joint Sustainable Development Goals Fund","Fonds conjoint des objectifs de développement durable","Joint SDG ","Fonds conj",99]
[1049,"International Commission on Missing Persons","Commission internationale pour les personnes disparues",1,"ICMP core resources","CIPD (financement au budget régulier)","ICMP","CIPD",99]
[1050,"WHO-Strategic Preparedness and Response Plan","OMS-Plan stratégique de préparation et de réponse",1,"SPRP–Developmental","PSPR-Développement","SPRP","PSPR",1]
[1052,"International Centre for Genetic Engineering and Biotechnology","Centre international de génie génétique et de biotechnologie",1,"ICGEB Core, developmental","ICGEB Core, developmental","ICGEB","ICGEB",1]
[1053,"Asian Forest Cooperation Organisation","Organisation asiatique de coopération forestière",1,"AFoCO core resources","AFoCO (financement au budget régulier)","AFoCO","AFoCO",99]
[1054,"World Organisation for Animal Health","Organisation mondiale de la santé animale",1,"Statutory contribution (General budget) - Developmental","Contribution statutaire (Budget général) - dévelopemental","NULL","NULL",1]
[1054,"World Organisation for Animal Health","Organisation mondiale de la santé animale",2,"Statutory contribution and voluntary contributions from host country (WOAH Regional Representations) - Developmental","Contribution statutaire et contributions volontaires du pays hôte (représentations régionales de WOAH) - dévelopemental","NULL","NULL",1]
[1055,"CGIAR","CGIAR",1,"CGIAR","CGIAR","NULL","NULL",99]
[1057,"UN Development Coordination Office","ONU-Bureau de la coordination des activités de développement",1,"UNDCO core resources","ONU-BCAD budget régulier","NULL","NULL",99]
[1058,"IMF Resilience and Sustainability Trust","Fonds de résilience et de durabilité du FMI",1,"IMF Resilience and Sustainability Trust","Fonds de résilience et de durabilité du FMI","NULL","NULL",99]
[1311,"Global Alliance for Vaccines and Immunization","Alliance mondiale pour les vaccins et la vaccination",1,"GAVI","GAVI","GAVI","GAVI",1]
[1311,"Global Alliance for Vaccines and Immunization","Alliance mondiale pour les vaccins et la vaccination",2,"International Finance Facility for Immunisation ","International Finance Facility for Immunisation ","IFFIm","IFFIm",1]
[1312,"Global Fund","Fonds mondial",1,"Global Fund","Global Fund","Global Fund","Global Fund",99]
[1313,"Global Green Growth Institute","Institut mondial de la croissance verte",1,"Green Growth Planning and Implementation","Green Growth Planning and Implementation","GGPI","GGPI",99]
[1313,"Global Green Growth Institute","Institut mondial de la croissance verte",2,"Investment and Policy Solutions Division","Investment and Policy Solutions Division","IPSD","IPSD",99]
[1313,"Global Green Growth Institute","Institut mondial de la croissance verte",3,"Thought Leadership","Thought Leadership","TL","TL",99]
[1313,"Global Green Growth Institute","Institut mondial de la croissance verte",4,"Green Investment Services","Green Investment Services","GIS","GIS",99]
[1401,"WTO - International Trade Centre","Centre du commerce international de l'OMC",1,"International Trade Centre - Regular budget","International Trade Centre - Regular budget","ITC","ITC",99]
[1401,"WTO - International Trade Centre","Centre du commerce international de l'OMC",3,"VC unearmarked ","VC unearmarked ","NULL","NULL",99]
[1403,"UN Economic and Social Commission for Western Asia","ONU Commission économique et sociale pour l'Asie occidentale",1,"ESCWA - United Nations Economic and Social Commission for Western Asia","ESCWA - United Nations Economic and Social Commission for Western Asia","ESCWA","ESCWA",99]
[1404,"World Trade Organisation","Organisation mondiale du commerce",1,"WTO - World Trade Organization","OMC – Organisation Mondiale du Commerce","WTO","OMC",99]
[1404,"World Trade Organisation","Organisation mondiale du commerce",4,"WTO Global Trust Fund","WTO Global Trust Fund","NULL","NULL",1]
[1406,"United Nations Industrial Development Organization","ONUDI",1,"UNIDO","UNIDO","UNIDO","UNIDO",99]
[1601,"Gates Foundation","Fondation Gates",1,"Bill & Melinda Gates Foundation","Fondation Bill & Melinda Gates","BMGF","BMGF",99]
[1602,"Dutch Postcode Lottery","Dutch Postcode Lottery",1,"Dutch Postcode Lottery","Dutch Postcode Lottery","NULL","NULL",99]
[1603,"Swedish Postcode Lottery","Swedish Postcode Lottery",1,"Swedish Postcode Lottery","Swedish Postcode Lottery","NULL","NULL",99]
[1604,"People's Postcode Lottery","People's Postcode Lottery",1,"People's Postcode Lottery","People's Postcode Lottery","NULL","NULL",99]
[1605,"MetLife Foundation","Fondation MetLife",1,"MetLife Foundation","Fondation MetLife","MetLife","MetLife",99]
[1606,"Mastercard Foundation","Fondation Mastercard",1,"MasterCard Foundation","Fondation MasterCard","NULL","NULL",99]
[1608,"IKEA Foundation","Fondation IKEA",1,"IKEA Foundation","Fondation IKEA","NULL","NULL",99]
[1609,"Van Leer Foundation","Fondation Van Leer",1,"Bernard van Leer Foundation","Fondation Bernard van Leer","NULL","NULL",99]
[1610,"MAVA Foundation","MAVA, Fondation pour la nature",1,"MAVA Foundation","Fondation MAVA","NULL","NULL",99]
[1611,"Oak Foundation","Fondation Oak",1,"Oak Foundation","Fondation Oak","NULL","NULL",99]
[1612,"H&M Foundation","Fondation H&M",1,"H&M Foundation","Fondation H&M","NULL","NULL",99]
[1613,"Laudes Foundation","Fondation Laudes",1,"Laudes Foundation","Fondation Laudes","NULL","NULL",99]
[1614,"Charity Projects Ltd (Comic Relief)","Charity Projects Ltd (Comic Relief)",1,"Charity Projects Ltd","Charity Projects Ltd","NULL","NULL",99]
[1615,"Children's Investment Fund Foundation","Children's Investment Fund Foundation",1,"Children's Investment Fund Foundation","Children's Investment Fund Foundation","CIFF","CIFF",99]
[1616,"Gatsby Charitable Foundation","Gatsby Charitable Foundation",1,"Gatsby Charitable Foundation","Gatsby Charitable Foundation","NULL","NULL",99]
[1617,"Conrad N. Hilton Foundation","Fondation Conrad N. Hilton",1,"Conrad N. Hilton Foundation","Fondation Conrad N. Hilton","NULL","NULL",99]
[1618,"David and Lucile Packard Foundation","Fondation David et Lucile Packard",1,"David & Lucile Packard Foundation","Fondation David et Lucile Packard","NULL","NULL",99]
[1619,"John D. and Catherine T. MacArthur Foundation","Fondation John D. et Catherine T. MacArthur",1,"John & Catherine MacArthur Foundation","Fondation John et Catherine MacArthur","NULL","NULL",99]
[1620,"Carnegie Corporation of New York","Carnegie Corporation of New York",1,"Carnegie Corporation of New York","Carnegie Corporation of New York","NULL","NULL",99]
[1621,"Michael & Susan Dell Foundation","Fondation Michael et Susan Dell",1,"Michael & Susan Dell Foundation","Fondation Michael et Susan Dell","NULL","NULL",99]
[1622,"Omidyar Network Fund, Inc.","Omidyar Network Fund, Inc.",1,"Omidyar Network Fund, Inc.","Omidyar Network Fund, Inc.","NULL","NULL",99]
[1623,"Rockefeller Foundation","Fondation Rockefeller",1,"Rockefeller Foundation","Fondation Rockefeller","NULL","NULL",99]
[1624,"William and Flora Hewlett Foundation","Fondation William et Flora Hewlett",1,"William & Flora Hewlett Foundation","Fondation William et Flora Hewlett","NULL","NULL",99]
[1625,"Arcus Foundation","Fondation Arcus",1,"Arcus Foundation","Fondation Arcus","NULL","NULL",99]
[1626,"Gordon and Betty Moore Foundation","Fondation Gordon et Betty Moore",1,"Gordon and Betty Moore Foundation","Fondation Gordon et Betty Moore","NULL","NULL",99]
[1627,"Ford Foundation","Fondation Ford",1,"Ford Foundation","Fondation Ford","NULL","NULL",99]
[1628,"Wellcome Trust","Wellcome Trust",1,"Wellcome Trust","Wellcome Trust","NULL","NULL",99]
[1629,"UBS Optimus Foundation","Fondation UBS Optimus",1,"UBS Optimus Foundation","Fondation UBS Optimus","NULL","NULL",99]
[1630,"World Diabetes Foundation","World Diabetes Foundation",1,"World Diabetes Foundation","World Diabetes Foundation","NULL","NULL",99]
[1631,"McKnight Foundation","Fondation McKnight",1,"McKnight Foundation","Fondation McKnight","NULL","NULL",99]
[1632,"Citi Foundation","Fondation Citi",1,"Citi Foundation","Fondation Citi","NULL","NULL",99]
[1633,"LEGO Foundation","Fondation LEGO",1,"LEGO Foundation","Fondation LEGO","NULL","NULL",99]
[1634,"Norwegian Postcode Lottery","Norwegian Postcode Lottery",1,"Norwegian Postcode Lottery","Norwegian Postcode Lottery","NULL","NULL",99]
[1636,"Jacobs Foundation","Fondation Jacobs",1,"Jacobs Foundation","Fondation Jacobs","NULL","NULL",99]
[1637,"Arcadia","Arcadia",1,"Arcadia Fund","Fonds Arcadia","NULL","NULL",99]
[1638,"Margaret A. Cargill Foundation","Fondation Margaret A. Cargill",1,"Margaret A. Cargill Foundation","Fondation Margaret A. Cargill","NULL","NULL",99]
[1639,"La Caixa Banking Foundation","Fondation la Caixa",1,"La Caixa Banking Foundation","Fondation la Caixa","NULL","NULL",99]
[1640,"Bloomberg Family Foundation","Bloomberg Family Foundation",1,"Bloomberg Family Foundation","Bloomberg Family Foundation","NULL","NULL",99]
[1641,"Susan T. Buffett Foundation","Fondation Susan T. Buffett",1,"Susan T. Buffett Foundation","Fondation Susan T. Buffett","NULL","NULL",99]
[1642,"Howard G. Buffett Foundation","Fondation Howard G. Buffett",1,"Howard G. Buffett Foundation","Fondation Howard G. Buffett","NULL","NULL",99]
[1643,"Open Society Foundations","Open Society Foundations",1,"Open Society Foundations","Open Society Foundations","NULL","NULL",99]
[1644,"Fondation Botnar","Fondation Botnar",1,"Botnar Foundation","Fondation Botnar","NULL","NULL",99]
[1645,"CHANEL Foundation","Fondation CHANEL",1,"CHANEL Foundation","Fondation CHANEL","NULL","NULL",99]
[1646,"Bezos Earth Fund","Bezos Earth Fund",1,"Bezos Earth Fund","Bezos Earth Fund","NULL","NULL",99]
[1647,"German Postcode Lottery","German Postcode Lottery",1,"German Postcode Lottery","German Postcode Lottery","NULL","NULL",99]
[1648,"Leona M. and Harry B. Helmsley Charitable Trust","Leona M. and Harry B. Helmsley Charitable Trust",1,"Leona M. and Harry B. Helmsley Charitable Trust","Leona M. and Harry B. Helmsley Charitable Trust","NULL","NULL",99]
[1649,"Novo Nordisk Foundation","Novo Nordisk Foundation",1,"Novo Nordisk Foundation","Novo Nordisk Foundation","NULL","NULL",99]
[1650,"Good Ventures Foundation","Good Ventures Foundation",1,"Good Ventures Foundation","Good Ventures Foundation","NULL","NULL",99]

{"sheet":"Type of blended finance","index":14,"n_rows":5,"n_cols":2,"rows_kept":5,"cut":false,"hidden":true,"merged":[]}
["Type of blended finance"]
[1,"Concessional blended finance as a part of an associated "]
[2,"Concessional blended finance, others"]
[3,"Blended finance through leveraging instruments at project level"]
[4,"Blended finance through funds and facilities"]

{"sheet":"Mobilisation codes","index":15,"n_rows":26,"n_cols":13,"rows_kept":26,"cut":false,"hidden":true,"merged":[[6,1,6,9],[6,12,6,20]]}
["Leveraging mechanism and role / position",null,null,null,null,null,null,null,null,null,null,"Mécanisme de levier et son rôle / sa position"]
[]
[]
[1,"Syndicated loan, arranger",null,null,null,null,null,null,null,null,null,1,"prêt syndiqué, arrangeur"]
[2,"Syndicated loan, participant",null,null,null,null,null,null,null,null,null,2,"prêt syndiqué, participant"]
[3,"Common share in flat collective investment vehicle",null,null,null,null,null,null,null,null,null,3,"action ordinaire dans un organisme de placement collectif simple"]
[4,"Shares in the riskiest tranche of structured collective investment vehicle, first loss share and other (e.g. lock up share)",null,null,null,null,null,null,null,null,null,4,"action dans la tranche la plus risquée d'un organisme de placement collectif structuré, position de première perte et autres (par ex. action bloquée)"]
[5,"Guarantee/insurance",null,null,null,null,null,null,null,null,null,5,"garantie/assurance"]
[6,"Guarantee/insurance"]
[7,"Direct investment in companies/SPVs, equity"]
[8,"Direct investment in companies/SPVs, mezzanine/senior debt"]
[9,"Credit lines"]
[10,"Simple co-financing"]
[]
[]
[]
[]
[]
[]
["Origin of the funds mobilised",null,null,null,null,null,null,null,null,null,null,"Origine des fonds mobilisés"]
[]
[1,"provider country",null,null,null,null,null,null,null,null,null,1,"pays donneur"]
[2,"recipient country",null,null,null,null,null,null,null,null,null,2,"pays bénéficiaire"]
[3,"third High income OECD country",null,null,null,null,null,null,null,null,null,3,"pays tiers à haut revenu/pays de l'OCDE "]
[4,"third developing country",null,null,null,null,null,null,null,null,null,4,"pays tiers en développement"]
[5,"multiple origins"]

{"sheet":"PSI","index":16,"n_rows":36,"n_cols":9,"rows_kept":36,"cut":false,"hidden":true,"merged":[]}
["Private Sector Instrument Flag",null,null,null,null,"scaseGroup","Discount rate"]
[null,null,null,null,null,60110016,10,"421;423;4221","Pchannel 6"]
["flag","name_e",null,null,null,60110018,7.5]
[1,"PSI ODA under the institutional approach",null,null,null,60110019,6.1]
[2,"PSI ODA instrument approach",null,null,null,60210016,13,"510;520;4222","Pchannel <>4"]
[3,"Non ODA PSI",null,null,null,60210018,10.5]
[4,"Details of PSI activities that are reported under the institutional approach",null,null,null,60210019,9.1]
[null,null,null,null,null,60310016,11.5,"431;432","Pchannel <>4"]
[10,"Capital increases counted in ODA / Decapitalisations or dividends paid to the government counted in ODA",null,null,null,60310018,9]
[20,"Grant equivalents of individual PSI activities counted in ODA",null,null,null,60310019,7.6]
[21,"20 ex-ante method",null,null,null,60410016,6,"1101;1102","Pchannel 6"]
[22,"20 ex-post method",null,null,null,60410018,3.5]
[30,"PSI for which GEq is not calculated",null,null,null,60410019,2.1]
[40,"Grant equivalents of individual PSI activities for memorandum",null,null,null,60510016,5,"1101;1102","Pchannel 1"]
[41,"40 ex-ante method",null,null,null,60510018,3]
[42,"40 ex-post mehod",null,null,null,60510019,2]
[50,"Capital increases for memorandum",null,null,null,60610016,7.5,"1103;1104","Pchannel <>4"]
[null,null,null,null,null,60610018,5]
[null,null,null,null,null,60610019,3.6]
[null,null,null,null,null,60710016,9,"1105;1106;1107","Pchannel <>4"]
["Private Sector Instrument additionality",null,null,null,null,60710018,6.5]
[null,null,null,null,null,60710019,5.0999999999999996]
[]
["add_type","name_e"]
[1,"financial additionality"]
[2,"value additionality"]
[3,"financial and value additionality"]
[]
[11,"Targets underserved geographies"]
[12,"Targets underserved sectors or segments"]
[13,"Conveys investment terms unavailable on the market"]
[14,"Mobilises private finance"]
[21,"Mitigates non-financial risks"]
[22,"Promotes pro-development business models"]
[23,"Promotes knowledge transfer and generation"]
[99,"Other, please specify"]

{"sheet":"Marker","index":17,"n_rows":18,"n_cols":2,"rows_kept":18,"cut":false,"hidden":true,"merged":[[16,1,16,9]]}
["Policy objectives: Gender equality, Aid to environment, PD/GG, Trade development, RMNCH"]
["Rio markers: Biodiversity, Climate change - mitigation, Climate change - adaptation, Desertification"]
[]
[2,"principal objective"]
[1,"significant objective"]
[0,"not targeted"]
[null,"not screened"]
[]
[]
[]
[]
[]
[]
["Flags"]
[]
[1,"significant objective"]
[0,"Negligible or no funding is targeted to RMNCH activities/results. RMNCH is not an objective of the project/programme"]
[null,"not screened"]

{"sheet":"Currency","index":18,"n_rows":86,"n_cols":16,"rows_kept":86,"cut":false,"hidden":true,"merged":[]}
["CurrencyCode","isoCode","CurrencyNameE","CurrencyNameF","Notes",null,null,null,null,null,null,"CurrencyCode","isoCode","CurrencyNameE","CurrencyNameF","Notes"]
[0,null,"DAC indicators","indicateurs CAD","NULL",null,null,null,null,null,null,0,null,"DAC indicators","indicateurs CAD","NULL"]
[1,"ATS","Austrian schilling","Schilling autrichien","Replaced by Euro on 1/1/1999",null,null,null,null,null,null,1,"ATS","Austrian schilling","Schilling autrichien","Replaced by Euro on 1/1/1999"]
[2,"BEF","Belgian franc","Franc belge","Replaced by Euro on 1/1/1999",null,null,null,null,null,null,2,"BEF","Belgian franc","Franc belge","Replaced by Euro on 1/1/1999"]
[3,"DKK","Danish krone","Couronne danoise","NULL",null,null,null,null,null,null,3,"DKK","Danish krone","Couronne danoise","NULL"]
[4,"FRF","French franc","Franc français","Replaced by Euro on 1/1/1999",null,null,null,null,null,null,4,"FRF","French franc","Franc français","Replaced by Euro on 1/1/1999"]
[5,"DEM","Deutsche mark","Deutsche mark","Replaced by Euro on 1/1/1999",null,null,null,null,null,null,5,"DEM","Deutsche mark","Deutsche mark","Replaced by Euro on 1/1/1999"]
[6,"ITL","Italian lira","Lire italienne","Replaced by Euro on 1/1/1999",null,null,null,null,null,null,6,"ITL","Italian lira","Lire italienne","Replaced by Euro on 1/1/1999"]
[7,"NLG","Dutch guilder","Florin néerlandais","Replaced by Euro on 1/1/1999",null,null,null,null,null,null,7,"NLG","Dutch guilder","Florin néerlandais","Replaced by Euro on 1/1/1999"]
[8,"NOK","Norwegian krone","Couronne norvégienne","NULL",null,null,null,null,null,null,8,"NOK","Norwegian krone","Couronne norvégienne","NULL"]
[9,"PTE","Portuguese escudo","Escudo portugais","Replaced by Euro on 1/1/1999",null,null,null,null,null,null,9,"PTE","Portuguese escudo","Escudo portugais","Replaced by Euro on 1/1/1999"]
[10,"SEK","Swedish krona","Couronne suedoise","NULL",null,null,null,null,null,null,10,"SEK","Swedish krona","Couronne suedoise","NULL"]
[11,"CHF","Swiss franc","Franc suisse","NULL",null,null,null,null,null,null,11,"CHF","Swiss franc","Franc suisse","NULL"]
[12,"GBP","Pound sterling","Livre sterling","NULL",null,null,null,null,null,null,12,"GBP","Pound sterling","Livre sterling","NULL"]
[18,"FIM","Finnish markka","Mark finlandais","Replaced by Euro on 1/1/1999",null,null,null,null,null,null,18,"FIM","Finnish markka","Mark finlandais","Replaced by Euro on 1/1/1999"]
[20,"ISK","Icelandic króna","Couronne islandaise","NULL",null,null,null,null,null,null,20,"ISK","Icelandic króna","Couronne islandaise","NULL"]
[21,"IEP","Irish pound","Livre irlandaise","Replaced by Euro on 1/1/1999",null,null,null,null,null,null,21,"IEP","Irish pound","Livre irlandaise","Replaced by Euro on 1/1/1999"]
[22,"LUF","Luxembourg franc","Franc luxembourgeois","Replaced by Euro on 1/1/1999",null,null,null,null,null,null,22,"LUF","Luxembourg franc","Franc luxembourgeois","Replaced by Euro on 1/1/1999"]
[30,"CYP","Cypriot pound","Livre chypriote","Replaced by Euro on 1/1/2008",null,null,null,null,null,null,30,"CYP","Cypriot pound","Livre chypriote","Replaced by Euro on 1/1/2008"]
[40,"GRD","Greek drachma","Drachme grecque","Replaced by Euro on 1/1/2001",null,null,null,null,null,null,40,"GRD","Greek drachma","Drachme grecque","Replaced by Euro on 1/1/2001"]
[45,"MLT","Maltese lira","Lire maltaise","Replaced by Euro on 1/1/2008",null,null,null,null,null,null,45,"MTL","Maltese lira","Lire maltaise","Replaced by Euro on 1/1/2008"]
[50,"ESP","Spanish peseta","Peseta espagnole","Replaced by Euro on 1/1/1999",null,null,null,null,null,null,50,"ESP","Spanish peseta","Peseta espagnole","Replaced by Euro on 1/1/1999"]
[55,"TRY","Turkish lira","Livre turque","NULL",null,null,null,null,null,null,55,"TRY","Turkish lira","Livre turque","NULL"]
[61,"SIT","Slovenian tolar","Tolar slovène","Replaced by Euro on 1/1/2007",null,null,null,null,null,null,61,"SIT","Slovenian tolar","Tolar slovène","Replaced by Euro on 1/1/2007"]
[62,"HRV","Croatian kuna","Kuna croate","NULL",null,null,null,null,null,null,62,"HRV","Croatian kuna","Kuna croate","NULL"]
[68,"CZK","Czech koruna","Couronne tchèque","NULL",null,null,null,null,null,null,68,"CZK","Czech koruna","Couronne tchèque","NULL"]
[69,"SKK","Slovak koruna","Couronne slovaque","Replaced by Euro on 1/1/2009",null,null,null,null,null,null,69,"SKK","Slovak koruna","Couronne slovaque","Replaced by Euro on 1/1/2009"]
[70,"CHF","Swiss franc","Franc suisse","NULL",null,null,null,null,null,null,70,"CHF","Swiss franc","Franc suisse","NULL"]
[72,"BGN","Bulgarian lev","Lev bulgare","NULL",null,null,null,null,null,null,72,"BGN","Bulgarian lev","Lev bulgare","NULL"]
[75,"HUF","Hungarian forint","Forint hongrois","NULL",null,null,null,null,null,null,75,"HUF","Hungarian forint","Forint hongrois","NULL"]
[76,"PLN","Polish zloty","Zloty polonais","NULL",null,null,null,null,null,null,76,"PLN","Polish zloty","Zloty polonais","NULL"]
[77,"RON","Romanian leu","Leu roumain","NULL",null,null,null,null,null,null,77,"RON","Romanian leu","Leu roumain","NULL"]
[82,"EEK","Estonian kroon","Couronne estonienne","Replaced by Euro on 1/1/2011",null,null,null,null,null,null,82,"EEK","Estonian kroon","Couronne estonienne","Replaced by Euro on 1/1/2011"]
[83,"LVL","Latvian lats","Lats letton","Replaced by Euro on 1/1/2014",null,null,null,null,null,null,83,"LVL","Latvian lats","Lats letton","Replaced by Euro on 1/1/2014"]
[84,"LTL","Lithuanian litas","Litas lituanien","Replaced by Euro on 1/1/2015",null,null,null,null,null,null,84,"LTL","Lithuanian litas","Litas lituanien","Replaced by Euro on 1/1/2015"]
[87,"RUB","Russian ruble","Rouble russe","NULL",null,null,null,null,null,null,87,"RUB","Russian ruble","Rouble russe","NULL"]
[130,"DZD","Algerian dinar","Dinar algérien","NULL",null,null,null,null,null,null,130,"DZD","Algerian dinar","Dinar algérien","NULL"]
[133,"LYD","Libyan dinar","Dinar libyen","NULL",null,null,null,null,null,null,133,"LYD","Libyan dinar","Dinar libyen","NULL"]
[218,"ZAR","South African rand","Rand sud-africain","NULL",null,null,null,null,null,null,139,"TDN","Dinar","Dinar","NULL"]
[241,"GHS","Ghanaian cedi","Cédi ghanéen","NULL",null,null,null,null,null,null,218,"ZAR","South African rand","Rand sud-africain","NULL"]
[243,"GNF","Guinean franc","Franc guinéen","NULL",null,null,null,null,null,null,241,"GHS","Ghanaian cedi","Cédi ghanéen","NULL"]
[252,"MGA","Malagasy ariary","Ariary malgache","Malagasy franc (ISO-4217:MGF) replaced by Malagasy ariary (ISO-4217:MGA) on 1/1/2005",null,null,null,null,null,null,243,"GNF","Guinean franc","Franc guinéen","NULL"]
[256,"MRO","Mauritanian ouguiya","Ouguiya mauritanien","NULL",null,null,null,null,null,null,252,"MGA","Malagasy ariary","Ariary malgache","Malagasy franc (ISO-4217:MGF) replaced by Malagasy ariary (ISO-4217:MGA) on 1/1/2005"]
[261,"NGN","Naira","Naira","NULL",null,null,null,null,null,null,256,"MRO","Mauritanian ouguiya","Ouguiya mauritanien","NULL"]
[274,"DJF","Djiboutian franc","Franc djibouti","NULL",null,null,null,null,null,null,261,"NGN","Naira","Naira","NULL"]
[301,"CAD","Canadian dollar","Dollar canadien","NULL",null,null,null,null,null,null,274,"DJF","Djiboutian franc","Franc djibouti","NULL"]
[302,"USD","United States dollar","Dollar américain","NULL",null,null,null,null,null,null,301,"CAD","Canadian dollar","Dollar canadien","NULL"]
[358,"MXN","Mexican peso","Peso mexicain","(ISO-4217:MXN) ISO-4217 code MXP was replaced after the 1993 revaluation",null,null,null,null,null,null,302,"USD","United States dollar","Dollar américain","NULL"]
[425,"ARS","Argentine peso","Peso argentin","NULL",null,null,null,null,null,null,336,"CRC","Costa Rica colon","Colon costaricien","NULL"]
[431,"BRL","Brazilian real","Réal brésilien","NULL",null,null,null,null,null,null,340,"DOP","Dominican Peso","Peso dominicain","NULL"]
[540,"IRR","Iranian rial ","Rial iranien","NULL",null,null,null,null,null,null,347,"GTQ","Quetzal","Quetzal","NULL"]
[543,"IQD","Iraqi dinar","Dinar irakien","NULL",null,null,null,null,null,null,358,"MXN","Mexican peso","Peso mexicain","(ISO-4217:MXN) ISO-4217 code MXP was replaced after the 1993 revaluation"]
[546,"ILS","Israeli new shekel","Nouveau shekel israélien","(ISO-4217:ILS) The Israeli new shekel has been in use since 1 January 1986",null,null,null,null,null,null,425,"ARS","Argentine peso","Peso argentin","NULL"]
[552,"KWD","Kuwaiti dinar","Dinar koweïtien","NULL",null,null,null,null,null,null,431,"BRL","Brazilian real","Réal brésilien","NULL"]
[558,"OMR","Omani rial","Rial omanais","NULL",null,null,null,null,null,null,434,"CLP","Chilean peso","Peso chilien","NULL"]
[561,"QAR","Qatari riyal","Riyal qatarien","NULL",null,null,null,null,null,null,454,"PEN","Peruvian Sol","Sol péruvien","NULL"]
[566,"SAR","Saudi riyal","Riyal saoudien","NULL",null,null,null,null,null,null,460,"UYU","Uruguayan peso","Peso uruguayen","NULL"]
[576,"AED","UAE dirham","Dirham des ÉAU","NULL",null,null,null,null,null,null,540,"IRR","Iranian rial ","Rial iranien","NULL"]
[611,"AZN","Azerbaijani manat","Manat azerbaïdjanais","NULL",null,null,null,null,null,null,543,"IQD","Iraqi dinar","Dinar irakien","NULL"]
[613,"KZT","Kazakhstani tenge","Tenge kazakh","NULL",null,null,null,null,null,null,546,"ILS","Israeli new shekel","Nouveau shekel israélien","(ISO-4217:ILS) The Israeli new shekel has been in use since 1 January 1986"]
[645,"INR","Indian rupee","Roupie indienne","NULL",null,null,null,null,null,null,552,"KWD","Kuwaiti dinar","Dinar koweïtien","NULL"]
[701,"JPY","Japanese yen","Yen japonais","NULL",null,null,null,null,null,null,558,"OMR","Omani rial","Rial omanais","NULL"]
[730,"CNY","Chinese yuan","Yuan chinois","NULL",null,null,null,null,null,null,561,"QAR","Qatari riyal","Riyal qatarien","NULL"]
[732,"TWD","New Taiwan dollar","Nouveau dollar de Taïwan","NULL",null,null,null,null,null,null,566,"SAR","Saudi riyal","Riyal saoudien","NULL"]
[735,"HKD","Hong Kong dollar","Dollar de Hong Kong","NULL",null,null,null,null,null,null,576,"AED","UAE dirham","Dirham des ÉAU","NULL"]
[738,"IDR","Indonesian rupiah","Roupie indonésienne","NULL",null,null,null,null,null,null,611,"AZN","Azerbaijani manat","Manat azerbaïdjanais","NULL"]
[742,"KRW","South Korean won","Won sud-coréen","NULL",null,null,null,null,null,null,613,"KZT","Kazakhstani tenge","Tenge kazakh","NULL"]
[751,"MYR","Malaysian ringgit","Ringgit malaisien","NULL",null,null,null,null,null,null,645,"INR","Indian rupee","Roupie indienne","NULL"]
[755,"PHP","Philippine peso","Peso philippin","NULL",null,null,null,null,null,null,701,"JPY","Japanese yen","Yen japonais","NULL"]
[761,"SGD","Singapore dollar","Dollar de Singapour","NULL",null,null,null,null,null,null,730,"CNY","Chinese yuan","Yuan chinois","NULL"]
[764,"THB","Thai baht","Baht thaïlandais","NULL",null,null,null,null,null,null,732,"TWD","New Taiwan dollar","Nouveau dollar de Taïwan","NULL"]
[765,"USD","United States dollar","Dollar américain","Timor-Leste (uses USD)",null,null,null,null,null,null,735,"HKD","Hong Kong dollar","Dollar de Hong Kong","NULL"]
[801,"AUD","Australian dollar","Dollar australien","NULL",null,null,null,null,null,null,738,"IDR","Indonesian rupiah","Roupie indonésienne","NULL"]
[820,"NZD","New Zealand dollar","Dollar néo-zélandais","NULL",null,null,null,null,null,null,742,"KRW","South Korean won","Won sud-coréen","NULL"]
[854,"VUV","Vanuatu vatu","Vanuatu vatu","NULL",null,null,null,null,null,null,751,"MYR","Malaysian ringgit","Ringgit malaisien","NULL"]
[914,"UA","Unit of Account","Unité de compte","NULL",null,null,null,null,null,null,755,"PHP","Philippine peso","Peso philippin","NULL"]
[918,"EUR","Euro","Euro","NULL",null,null,null,null,null,null,761,"SGD","Singapore dollar","Dollar de Singapour","NULL"]
[943,"XDR","Special Drawing Rights","Droits de tirage spéciaux","NULL",null,"x",null,null,null,null,764,"THB","Thai baht","Baht thaïlandais","NULL"]
[null,null,null,null,null,null,null,null,null,null,null,765,"USD","United States dollar","Dollar américain","Timor-Leste (uses USD)"]
[null,null,null,null,null,null,null,null,null,null,null,801,"AUD","Australian dollar","Dollar australien","NULL"]
[null,null,null,null,null,null,null,null,null,null,null,820,"NZD","New Zealand dollar","Dollar néo-zélandais","NULL"]
[null,null,null,null,null,null,null,null,null,null,null,854,"VUV","Vanuatu vatu","Vanuatu vatu","NULL"]
[null,null,null,null,null,null,null,null,null,null,null,914,"UA","Unit of Account","Unité de compte","NULL"]
[null,null,null,null,null,null,null,null,null,null,null,918,"EUR","Euro","Euro","NULL"]
[null,null,null,null,null,null,null,null,null,null,null,943,"XDR","Special Drawing Rights","Droits de tirage spéciaux","NULL"]
[null,null,null,null,null,null,null,null,null,null,null,1059,"XAD ","Arab Dinar","Arab Dinar","NULL"]

{"sheet":"IncomeGroup","index":19,"n_rows":5896,"n_cols":9,"rows_kept":5896,"cut":false,"hidden":true,"merged":[]}
["recipientcode","year","YrRecip","groupid","IncomeGroup","IncomeGrouPSI",null,null,"SELECT  a.[recipientcode],a.[year], cast(a.year as varchar(4)) + cast(a.recipientcode as varchar(4)) as YrRecip, b.[groupid], gb.DisplayNameE as IncomeGroup,a.groupid, ga.DisplayNamee as IncomeGrouPSI "]
[298,1996,1996298,10024,"Part I unallocated by income","LDCs",null,null,"FROM DCD_Prod.[CRS].[vPSIRegionIncomeGroup] a"]
[498,1996,1996498,10024,"Part I unallocated by income","LMICs",null,null,"INNER JOIN DCD_Prod.[DCD].[RecipientGroupYr] b on a.recipientcode=b.recipientcode and a.Year=b.year "]
[798,1996,1996798,10024,"Part I unallocated by income","LDCs",null,null,"INNER JOIN DCD_Prod.dcd.LookupGroup ga on a.groupid=ga.groupid"]
[1031,1996,19961031,10024,"Part I unallocated by income","UMICs",null,null,"INNER JOIN DCD_Prod.dcd.lookupgroup gb on b.groupid=gb.groupid"]
[389,1996,1996389,10024,"Part I unallocated by income","LMICs"]
[619,1996,1996619,10024,"Part I unallocated by income","LDCs",null,null,"UNION ALL"]
[89,1996,199689,10024,"Part I unallocated by income","UMICs"]
[789,1996,1996789,10024,"Part I unallocated by income","LMICs",null,null,"SELECT  [recipientcode], replace([Year],1925,2025) as [year], cast(a.year as varchar(4)) + cast(a.recipientcode as varchar(4)) as YrRecip, a.[groupid], ga.DisplayNameE as IncomeGroup ,a.[groupid], ga.DisplayNameE as IncomeGrouPSI "]
[589,1996,1996589,10024,"Part I unallocated by income","LMICs",null,null,"FROM DCD_Prod.[DCD].[RecipientGroupYr] a  "]
[189,1996,1996189,10024,"Part I unallocated by income","LMICs",null,null,"INNER JOIN DCD_Prod.dcd.LookupGroup ga on a.groupid=ga.groupid"]
[998,1996,1996998,10024,"Part I unallocated by income","UMICs",null,null,"INNER JOIN DCD_Prod.dcd.lookupgroup gb on a.groupid=gb.groupid"]
[489,1996,1996489,10024,"Part I unallocated by income","LMICs",null,null,"WHERE a.[groupid] IN (10016,10017,10018,10019,10025)"]
[298,1997,1997298,10024,"Part I unallocated by income","LDCs"]
[498,1997,1997498,10024,"Part I unallocated by income","LMICs"]
[798,1997,1997798,10024,"Part I unallocated by income","LDCs"]
[1031,1997,19971031,10024,"Part I unallocated by income","UMICs"]
[389,1997,1997389,10024,"Part I unallocated by income","LMICs"]
[619,1997,1997619,10024,"Part I unallocated by income","LDCs"]
[89,1997,199789,10024,"Part I unallocated by income","LMICs"]
[789,1997,1997789,10024,"Part I unallocated by income","LMICs"]
[589,1997,1997589,10024,"Part I unallocated by income","LMICs"]
[189,1997,1997189,10024,"Part I unallocated by income","LMICs"]
[889,1997,1997889,10024,"Part I unallocated by income","LMICs"]
[998,1997,1997998,10024,"Part I unallocated by income","UMICs"]
[689,1997,1997689,10024,"Part I unallocated by income","LDCs"]
[489,1997,1997489,10024,"Part I unallocated by income","LMICs"]
[679,1997,1997679,10024,"Part I unallocated by income","LDCs"]
[289,1997,1997289,10024,"Part I unallocated by income","LDCs"]
[88,1997,199788,10024,"Part I unallocated by income","LMICs"]
[298,1998,1998298,10024,"Part I unallocated by income","LDCs"]
[498,1998,1998498,10024,"Part I unallocated by income","LMICs"]
[798,1998,1998798,10024,"Part I unallocated by income","LDCs"]
[1031,1998,19981031,10024,"Part I unallocated by income","UMICs"]
[389,1998,1998389,10024,"Part I unallocated by income","LMICs"]
[88,1996,199688,10024,"Part I unallocated by income","LMICs"]
[289,1996,1996289,10024,"Part I unallocated by income","LDCs"]
[679,1996,1996679,10024,"Part I unallocated by income","LDCs"]
[689,1996,1996689,10024,"Part I unallocated by income","LDCs"]
[889,1996,1996889,10024,"Part I unallocated by income","LMICs"]
[619,1998,1998619,10024,"Part I unallocated by income","LDCs"]
[89,1998,199889,10024,"Part I unallocated by income","LMICs"]
[789,1998,1998789,10024,"Part I unallocated by income","LMICs"]
[589,1998,1998589,10024,"Part I unallocated by income","LMICs"]
[189,1998,1998189,10024,"Part I unallocated by income","LMICs"]
[889,1998,1998889,10024,"Part I unallocated by income","LMICs"]
[998,1998,1998998,10024,"Part I unallocated by income","UMICs"]
[689,1998,1998689,10024,"Part I unallocated by income","LDCs"]
[489,1998,1998489,10024,"Part I unallocated by income","LMICs"]
[679,1998,1998679,10024,"Part I unallocated by income","LDCs"]
[289,1998,1998289,10024,"Part I unallocated by income","LDCs"]
[88,1998,199888,10024,"Part I unallocated by income","LMICs"]
[298,1999,1999298,10024,"Part I unallocated by income","LDCs"]
[498,1999,1999498,10024,"Part I unallocated by income","LMICs"]
[798,1999,1999798,10024,"Part I unallocated by income","LDCs"]
[1031,1999,19991031,10024,"Part I unallocated by income","UMICs"]
[389,1999,1999389,10024,"Part I unallocated by income","LMICs"]
[619,1999,1999619,10024,"Part I unallocated by income","LDCs"]
[89,1999,199989,10024,"Part I unallocated by income","LMICs"]
[789,1999,1999789,10024,"Part I unallocated by income","LMICs"]
[589,1999,1999589,10024,"Part I unallocated by income","LMICs"]
[189,1999,1999189,10024,"Part I unallocated by income","LMICs"]
[889,1999,1999889,10024,"Part I unallocated by income","LMICs"]
[998,1999,1999998,10024,"Part I unallocated by income","UMICs"]
[689,1999,1999689,10024,"Part I unallocated by income","LDCs"]
[489,1999,1999489,10024,"Part I unallocated by income","LMICs"]
[679,1999,1999679,10024,"Part I unallocated by income","LDCs"]
[289,1999,1999289,10024,"Part I unallocated by income","LDCs"]
[88,1999,199988,10024,"Part I unallocated by income","LMICs"]
[298,2000,2000298,10024,"Part I unallocated by income","LDCs"]
[498,2000,2000498,10024,"Part I unallocated by income","UMICs"]
[798,2000,2000798,10024,"Part I unallocated by income","LDCs"]
[1031,2000,20001031,10024,"Part I unallocated by income","UMICs"]
[389,2000,2000389,10024,"Part I unallocated by income","UMICs"]
[619,2000,2000619,10024,"Part I unallocated by income","LDCs"]
[89,2000,200089,10024,"Part I unallocated by income","LMICs"]
[789,2000,2000789,10024,"Part I unallocated by income","LDCs"]
[589,2000,2000589,10024,"Part I unallocated by income","LMICs"]
[189,2000,2000189,10024,"Part I unallocated by income","LMICs"]
[889,2000,2000889,10024,"Part I unallocated by income","LMICs"]
[998,2000,2000998,10024,"Part I unallocated by income","UMICs"]
[689,2000,2000689,10024,"Part I unallocated by income","LDCs"]
[489,2000,2000489,10024,"Part I unallocated by income","LMICs"]
[679,2000,2000679,10024,"Part I unallocated by income","LDCs"]
[289,2000,2000289,10024,"Part I unallocated by income","LDCs"]
[88,2000,200088,10024,"Part I unallocated by income","LMICs"]
[298,2001,2001298,10024,"Part I unallocated by income","LDCs"]
[498,2001,2001498,10024,"Part I unallocated by income","UMICs"]
[798,2001,2001798,10024,"Part I unallocated by income","LDCs"]
[1031,2001,20011031,10024,"Part I unallocated by income","UMICs"]
[389,2001,2001389,10024,"Part I unallocated by income","UMICs"]
[619,2001,2001619,10024,"Part I unallocated by income","LDCs"]
[89,2001,200189,10024,"Part I unallocated by income","LMICs"]
[789,2001,2001789,10024,"Part I unallocated by income","LDCs"]
[589,2001,2001589,10024,"Part I unallocated by income","LMICs"]
[189,2001,2001189,10024,"Part I unallocated by income","LMICs"]
[889,2001,2001889,10024,"Part I unallocated by income","LMICs"]
[998,2001,2001998,10024,"Part I unallocated by income","UMICs"]
[689,2001,2001689,10024,"Part I unallocated by income","LDCs"]
[489,2001,2001489,10024,"Part I unallocated by income","LMICs"]
[679,2001,2001679,10024,"Part I unallocated by income","LDCs"]
[289,2001,2001289,10024,"Part I unallocated by income","LDCs"]
[88,2001,200188,10024,"Part I unallocated by income","LMICs"]
[298,2002,2002298,10024,"Part I unallocated by income","LDCs"]
[498,2002,2002498,10024,"Part I unallocated by income","UMICs"]
[798,2002,2002798,10024,"Part I unallocated by income","LDCs"]
[1031,2002,20021031,10024,"Part I unallocated by income","UMICs"]
[389,2002,2002389,10024,"Part I unallocated by income","UMICs"]
[619,2002,2002619,10024,"Part I unallocated by income","LDCs"]
[89,2002,200289,10024,"Part I unallocated by income","LMICs"]
[789,2002,2002789,10024,"Part I unallocated by income","LDCs"]
[589,2002,2002589,10024,"Part I unallocated by income","LMICs"]
[189,2002,2002189,10024,"Part I unallocated by income","LMICs"]
[889,2002,2002889,10024,"Part I unallocated by income","LMICs"]
[998,2002,2002998,10024,"Part I unallocated by income","UMICs"]
[689,2002,2002689,10024,"Part I unallocated by income","LDCs"]
[489,2002,2002489,10024,"Part I unallocated by income","LMICs"]
[679,2002,2002679,10024,"Part I unallocated by income","LDCs"]
[289,2002,2002289,10024,"Part I unallocated by income","LDCs"]
[88,2002,200288,10024,"Part I unallocated by income","LMICs"]
[298,2003,2003298,10024,"Part I unallocated by income","LDCs"]
[498,2003,2003498,10024,"Part I unallocated by income","UMICs"]
[798,2003,2003798,10024,"Part I unallocated by income","LDCs"]
[1031,2003,20031031,10024,"Part I unallocated by income","UMICs"]
[389,2003,2003389,10024,"Part I unallocated by income","UMICs"]
[619,2003,2003619,10024,"Part I unallocated by income","LDCs"]
[89,2003,200389,10024,"Part I unallocated by income","LMICs"]
[789,2003,2003789,10024,"Part I unallocated by income","LDCs"]
[589,2003,2003589,10024,"Part I unallocated by income","LMICs"]
[189,2003,2003189,10024,"Part I unallocated by income","LMICs"]
[889,2003,2003889,10024,"Part I unallocated by income","LMICs"]
[998,2003,2003998,10024,"Part I unallocated by income","UMICs"]
[689,2003,2003689,10024,"Part I unallocated by income","LDCs"]
[489,2003,2003489,10024,"Part I unallocated by income","LMICs"]
[679,2003,2003679,10024,"Part I unallocated by income","LDCs"]
[289,2003,2003289,10024,"Part I unallocated by income","LDCs"]
[88,2003,200388,10024,"Part I unallocated by income","LMICs"]
[298,2004,2004298,10024,"Part I unallocated by income","LDCs"]
[498,2004,2004498,10024,"Part I unallocated by income","UMICs"]
[798,2004,2004798,10024,"Part I unallocated by income","LDCs"]
[1031,2004,20041031,10024,"Part I unallocated by income","UMICs"]
[389,2004,2004389,10024,"Part I unallocated by income","UMICs"]
[619,2004,2004619,10024,"Part I unallocated by income","LDCs"]
[89,2004,200489,10024,"Part I unallocated by income","LMICs"]
[789,2004,2004789,10024,"Part I unallocated by income","LDCs"]
[589,2004,2004589,10024,"Part I unallocated by income","LMICs"]
[189,2004,2004189,10024,"Part I unallocated by income","LMICs"]
[889,2004,2004889,10024,"Part I unallocated by income","LMICs"]
[998,2004,2004998,10024,"Part I unallocated by income","UMICs"]
[689,2004,2004689,10024,"Part I unallocated by income","LDCs"]
[489,2004,2004489,10024,"Part I unallocated by income","LMICs"]
[679,2004,2004679,10024,"Part I unallocated by income","LDCs"]
[289,2004,2004289,10024,"Part I unallocated by income","LDCs"]
[88,2004,200488,10024,"Part I unallocated by income","LMICs"]
[298,2005,2005298,10024,"Part I unallocated by income","LDCs"]
[498,2005,2005498,10024,"Part I unallocated by income","UMICs"]
[798,2005,2005798,10024,"Part I unallocated by income","LDCs"]
[1031,2005,20051031,10024,"Part I unallocated by income","UMICs"]
[389,2005,2005389,10024,"Part I unallocated by income","UMICs"]
[619,2005,2005619,10024,"Part I unallocated by income","LMICs"]
[89,2005,200589,10024,"Part I unallocated by income","LMICs"]
[789,2005,2005789,10024,"Part I unallocated by income","LDCs"]
[589,2005,2005589,10024,"Part I unallocated by income","LMICs"]
[189,2005,2005189,10024,"Part I unallocated by income","LMICs"]
[889,2005,2005889,10024,"Part I unallocated by income","LMICs"]
[998,2005,2005998,10024,"Part I unallocated by income","UMICs"]
[689,2005,2005689,10024,"Part I unallocated by income","LDCs"]
[489,2005,2005489,10024,"Part I unallocated by income","LMICs"]
[679,2005,2005679,10024,"Part I unallocated by income","LDCs"]
[289,2005,2005289,10024,"Part I unallocated by income","LDCs"]
[88,2005,200588,10024,"Part I unallocated by income","LMICs"]
[298,2006,2006298,10024,"Part I unallocated by income","LDCs"]
[498,2006,2006498,10024,"Part I unallocated by income","UMICs"]
[798,2006,2006798,10024,"Part I unallocated by income","LDCs"]
[1031,2006,20061031,10024,"Part I unallocated by income","UMICs"]
[389,2006,2006389,10024,"Part I unallocated by income","UMICs"]
[619,2006,2006619,10024,"Part I unallocated by income","LMICs"]
[89,2006,200689,10024,"Part I unallocated by income","LMICs"]
[789,2006,2006789,10024,"Part I unallocated by income","LDCs"]
[589,2006,2006589,10024,"Part I unallocated by income","LMICs"]
[189,2006,2006189,10024,"Part I unallocated by income","LMICs"]
[889,2006,2006889,10024,"Part I unallocated by income","LMICs"]
[998,2006,2006998,10024,"Part I unallocated by income","UMICs"]
[689,2006,2006689,10024,"Part I unallocated by income","LDCs"]
[489,2006,2006489,10024,"Part I unallocated by income","LMICs"]
[679,2006,2006679,10024,"Part I unallocated by income","LDCs"]
[289,2006,2006289,10024,"Part I unallocated by income","LDCs"]
[88,2006,200688,10024,"Part I unallocated by income","LMICs"]
[298,2007,2007298,10024,"Part I unallocated by income","LDCs"]
[498,2007,2007498,10024,"Part I unallocated by income","UMICs"]
[798,2007,2007798,10024,"Part I unallocated by income","LDCs"]
[1031,2007,20071031,10024,"Part I unallocated by income","UMICs"]
[389,2007,2007389,10024,"Part I unallocated by income","UMICs"]
[619,2007,2007619,10024,"Part I unallocated by income","LMICs"]
[89,2007,200789,10024,"Part I unallocated by income","LMICs"]
[789,2007,2007789,10024,"Part I unallocated by income","LDCs"]
[589,2007,2007589,10024,"Part I unallocated by income","LMICs"]
[189,2007,2007189,10024,"Part I unallocated by income","LMICs"]
[889,2007,2007889,10024,"Part I unallocated by income","LMICs"]
[998,2007,2007998,10024,"Part I unallocated by income","UMICs"]
[689,2007,2007689,10024,"Part I unallocated by income","LDCs"]
[489,2007,2007489,10024,"Part I unallocated by income","LMICs"]
[679,2007,2007679,10024,"Part I unallocated by income","LDCs"]
[289,2007,2007289,10024,"Part I unallocated by income","LDCs"]
[88,2007,200788,10024,"Part I unallocated by income","LMICs"]
[298,2008,2008298,10024,"Part I unallocated by income","LDCs"]
[498,2008,2008498,10024,"Part I unallocated by income","UMICs"]
[798,2008,2008798,10024,"Part I unallocated by income","LMICs"]
[1031,2008,20081031,10024,"Part I unallocated by income","UMICs"]
[389,2008,2008389,10024,"Part I unallocated by income","UMICs"]
[619,2008,2008619,10024,"Part I unallocated by income","LMICs"]
[89,2008,200889,10024,"Part I unallocated by income","UMICs"]
[789,2008,2008789,10024,"Part I unallocated by income","LMICs"]
[589,2008,2008589,10024,"Part I unallocated by income","LMICs"]
[189,2008,2008189,10024,"Part I unallocated by income","LMICs"]
[889,2008,2008889,10024,"Part I unallocated by income","LMICs"]
[998,2008,2008998,10024,"Part I unallocated by income","UMICs"]
[689,2008,2008689,10024,"Part I unallocated by income","LDCs"]
[489,2008,2008489,10024,"Part I unallocated by income","UMICs"]
[679,2008,2008679,10024,"Part I unallocated by income","LDCs"]
[289,2008,2008289,10024,"Part I unallocated by income","LDCs"]
[88,2008,200888,10024,"Part I unallocated by income","UMICs"]
[298,2009,2009298,10024,"Part I unallocated by income","LDCs"]
[498,2009,2009498,10024,"Part I unallocated by income","UMICs"]
[798,2009,2009798,10024,"Part I unallocated by income","LMICs"]
[1031,2009,20091031,10024,"Part I unallocated by income","UMICs"]
[389,2009,2009389,10024,"Part I unallocated by income","UMICs"]
[619,2009,2009619,10024,"Part I unallocated by income","LMICs"]
[89,2009,200989,10024,"Part I unallocated by income","LMICs"]
[789,2009,2009789,10024,"Part I unallocated by income","LMICs"]
[589,2009,2009589,10024,"Part I unallocated by income","LMICs"]
[189,2009,2009189,10024,"Part I unallocated by income","LMICs"]
[889,2009,2009889,10024,"Part I unallocated by income","LMICs"]
[998,2009,2009998,10024,"Part I unallocated by income","UMICs"]
[689,2009,2009689,10024,"Part I unallocated by income","LDCs"]
[489,2009,2009489,10024,"Part I unallocated by income","UMICs"]
[679,2009,2009679,10024,"Part I unallocated by income","LDCs"]
[289,2009,2009289,10024,"Part I unallocated by income","LDCs"]
[88,2009,200988,10024,"Part I unallocated by income","UMICs"]
[298,2010,2010298,10024,"Part I unallocated by income","LDCs"]
[498,2010,2010498,10024,"Part I unallocated by income","UMICs"]
[798,2010,2010798,10024,"Part I unallocated by income","LMICs"]
[1031,2010,20101031,10024,"Part I unallocated by income","UMICs"]
[389,2010,2010389,10024,"Part I unallocated by income","UMICs"]
[619,2010,2010619,10024,"Part I unallocated by income","LMICs"]
[89,2010,201089,10024,"Part I unallocated by income","LMICs"]
[789,2010,2010789,10024,"Part I unallocated by income","LMICs"]
[589,2010,2010589,10024,"Part I unallocated by income","LMICs"]
[189,2010,2010189,10024,"Part I unallocated by income","LMICs"]
[889,2010,2010889,10024,"Part I unallocated by income","LMICs"]
[998,2010,2010998,10024,"Part I unallocated by income","UMICs"]
[689,2010,2010689,10024,"Part I unallocated by income","LDCs"]
[489,2010,2010489,10024,"Part I unallocated by income","UMICs"]
[679,2010,2010679,10024,"Part I unallocated by income","LDCs"]
[289,2010,2010289,10024,"Part I unallocated by income","LDCs"]
[88,2010,201088,10024,"Part I unallocated by income","UMICs"]
[298,2011,2011298,10024,"Part I unallocated by income","LDCs"]
[498,2011,2011498,10024,"Part I unallocated by income","UMICs"]
[798,2011,2011798,10024,"Part I unallocated by income","LMICs"]
[1031,2011,20111031,10024,"Part I unallocated by income","UMICs"]
[389,2011,2011389,10024,"Part I unallocated by income","UMICs"]
[619,2011,2011619,10024,"Part I unallocated by income","LMICs"]
[89,2011,201189,10024,"Part I unallocated by income","UMICs"]
[789,2011,2011789,10024,"Part I unallocated by income","LMICs"]
[589,2011,2011589,10024,"Part I unallocated by income","UMICs"]
[189,2011,2011189,10024,"Part I unallocated by income","UMICs"]
[889,2011,2011889,10024,"Part I unallocated by income","LMICs"]
[998,2011,2011998,10024,"Part I unallocated by income","UMICs"]
[689,2011,2011689,10024,"Part I unallocated by income","LMICs"]
[489,2011,2011489,10024,"Part I unallocated by income","UMICs"]
[679,2011,2011679,10024,"Part I unallocated by income","LDCs"]
[289,2011,2011289,10024,"Part I unallocated by income","LDCs"]
[88,2011,201188,10024,"Part I unallocated by income","UMICs"]
[298,2012,2012298,10024,"Part I unallocated by income","LDCs"]
[498,2012,2012498,10024,"Part I unallocated by income","UMICs"]
[798,2012,2012798,10024,"Part I unallocated by income","LMICs"]
[1031,2012,20121031,10024,"Part I unallocated by income","UMICs"]
[389,2012,2012389,10024,"Part I unallocated by income","UMICs"]
[619,2012,2012619,10024,"Part I unallocated by income","LMICs"]
[89,2012,201289,10024,"Part I unallocated by income","UMICs"]
[789,2012,2012789,10024,"Part I unallocated by income","LMICs"]
[589,2012,2012589,10024,"Part I unallocated by income","UMICs"]
[189,2012,2012189,10024,"Part I unallocated by income","UMICs"]
[889,2012,2012889,10024,"Part I unallocated by income","LMICs"]
[998,2012,2012998,10024,"Part I unallocated by income","UMICs"]
[689,2012,2012689,10024,"Part I unallocated by income","LMICs"]
[489,2012,2012489,10024,"Part I unallocated by income","UMICs"]
[679,2012,2012679,10024,"Part I unallocated by income","LDCs"]
[289,2012,2012289,10024,"Part I unallocated by income","LDCs"]
[88,2012,201288,10024,"Part I unallocated by income","UMICs"]
[298,2013,2013298,10024,"Part I unallocated by income","LDCs"]
[498,2013,2013498,10024,"Part I unallocated by income","UMICs"]
[798,2013,2013798,10024,"Part I unallocated by income","LMICs"]
[1031,2013,20131031,10024,"Part I unallocated by income","UMICs"]
[389,2013,2013389,10024,"Part I unallocated by income","UMICs"]
[619,2013,2013619,10024,"Part I unallocated by income","LMICs"]
[89,2013,201389,10024,"Part I unallocated by income","UMICs"]
[789,2013,2013789,10024,"Part I unallocated by income","LMICs"]
[589,2013,2013589,10024,"Part I unallocated by income","UMICs"]
[189,2013,2013189,10024,"Part I unallocated by income","UMICs"]
[889,2013,2013889,10024,"Part I unallocated by income","LMICs"]
[998,2013,2013998,10024,"Part I unallocated by income","UMICs"]
[689,2013,2013689,10024,"Part I unallocated by income","LMICs"]
[489,2013,2013489,10024,"Part I unallocated by income","UMICs"]
[679,2013,2013679,10024,"Part I unallocated by income","LDCs"]
[289,2013,2013289,10024,"Part I unallocated by income","LDCs"]
[88,2013,201388,10024,"Part I unallocated by income","UMICs"]
[298,2014,2014298,10024,"Part I unallocated by income","LDCs"]
[498,2014,2014498,10024,"Part I unallocated by income","UMICs"]
[798,2014,2014798,10024,"Part I unallocated by income","LMICs"]
[1031,2014,20141031,10024,"Part I unallocated by income","UMICs"]
[389,2014,2014389,10024,"Part I unallocated by income","UMICs"]
[619,2014,2014619,10024,"Part I unallocated by income","LMICs"]
[89,2014,201489,10024,"Part I unallocated by income","UMICs"]
[789,2014,2014789,10024,"Part I unallocated by income","LMICs"]
[589,2014,2014589,10024,"Part I unallocated by income","UMICs"]
[189,2014,2014189,10024,"Part I unallocated by income","UMICs"]
[889,2014,2014889,10024,"Part I unallocated by income","UMICs"]
[998,2014,2014998,10024,"Part I unallocated by income","UMICs"]
[689,2014,2014689,10024,"Part I unallocated by income","LMICs"]
[489,2014,2014489,10024,"Part I unallocated by income","UMICs"]
[679,2014,2014679,10024,"Part I unallocated by income","LDCs"]
[289,2014,2014289,10024,"Part I unallocated by income","LDCs"]
[88,2014,201488,10024,"Part I unallocated by income","UMICs"]
[298,2015,2015298,10024,"Part I unallocated by income","LDCs"]
[498,2015,2015498,10024,"Part I unallocated by income","UMICs"]
[798,2015,2015798,10024,"Part I unallocated by income","LMICs"]
[1031,2015,20151031,10024,"Part I unallocated by income","UMICs"]
[389,2015,2015389,10024,"Part I unallocated by income","UMICs"]
[619,2015,2015619,10024,"Part I unallocated by income","LMICs"]
[89,2015,201589,10024,"Part I unallocated by income","UMICs"]
[789,2015,2015789,10024,"Part I unallocated by income","LMICs"]
[589,2015,2015589,10024,"Part I unallocated by income","UMICs"]
[189,2015,2015189,10024,"Part I unallocated by income","UMICs"]
[889,2015,2015889,10024,"Part I unallocated by income","UMICs"]
[998,2015,2015998,10024,"Part I unallocated by income","UMICs"]
[689,2015,2015689,10024,"Part I unallocated by income","LMICs"]
[489,2015,2015489,10024,"Part I unallocated by income","UMICs"]
[679,2015,2015679,10024,"Part I unallocated by income","LDCs"]
[289,2015,2015289,10024,"Part I unallocated by income","LDCs"]
[88,2015,201588,10024,"Part I unallocated by income","UMICs"]
[298,2016,2016298,10024,"Part I unallocated by income","LDCs"]
[498,2016,2016498,10024,"Part I unallocated by income","UMICs"]
[798,2016,2016798,10024,"Part I unallocated by income","LMICs"]
[1031,2016,20161031,10024,"Part I unallocated by income","UMICs"]
[389,2016,2016389,10024,"Part I unallocated by income","UMICs"]
[619,2016,2016619,10024,"Part I unallocated by income","LMICs"]
[89,2016,201689,10024,"Part I unallocated by income","UMICs"]
[789,2016,2016789,10024,"Part I unallocated by income","LMICs"]
[589,2016,2016589,10024,"Part I unallocated by income","UMICs"]
[189,2016,2016189,10024,"Part I unallocated by income","UMICs"]
[889,2016,2016889,10024,"Part I unallocated by income","UMICs"]
[998,2016,2016998,10024,"Part I unallocated by income","UMICs"]
[689,2016,2016689,10024,"Part I unallocated by income","LMICs"]
[489,2016,2016489,10024,"Part I unallocated by income","UMICs"]
[679,2016,2016679,10024,"Part I unallocated by income","LDCs"]
[289,2016,2016289,10024,"Part I unallocated by income","LDCs"]
[88,2016,201688,10024,"Part I unallocated by income","UMICs"]
[298,2017,2017298,10024,"Part I unallocated by income","LDCs"]
[498,2017,2017498,10024,"Part I unallocated by income","UMICs"]
[798,2017,2017798,10024,"Part I unallocated by income","LMICs"]
[1031,2017,20171031,10024,"Part I unallocated by income","UMICs"]
[389,2017,2017389,10024,"Part I unallocated by income","UMICs"]
[619,2017,2017619,10024,"Part I unallocated by income","LMICs"]
[89,2017,201789,10024,"Part I unallocated by income","UMICs"]
[789,2017,2017789,10024,"Part I unallocated by income","LMICs"]
[589,2017,2017589,10024,"Part I unallocated by income","UMICs"]
[189,2017,2017189,10024,"Part I unallocated by income","UMICs"]
[889,2017,2017889,10024,"Part I unallocated by income","UMICs"]
[998,2017,2017998,10024,"Part I unallocated by income","UMICs"]
[689,2017,2017689,10024,"Part I unallocated by income","LMICs"]
[489,2017,2017489,10024,"Part I unallocated by income","UMICs"]
[679,2017,2017679,10024,"Part I unallocated by income","LDCs"]
[289,2017,2017289,10024,"Part I unallocated by income","LDCs"]
[88,2017,201788,10024,"Part I unallocated by income","UMICs"]
[298,2018,2018298,10024,"Part I unallocated by income","LDCs"]
[498,2018,2018498,10024,"Part I unallocated by income","UMICs"]
[798,2018,2018798,10024,"Part I unallocated by income","LMICs"]
[1031,2018,20181031,10024,"Part I unallocated by income","UMICs"]
[389,2018,2018389,10024,"Part I unallocated by income","UMICs"]
[619,2018,2018619,10024,"Part I unallocated by income","LMICs"]
[89,2018,201889,10024,"Part I unallocated by income","UMICs"]
[789,2018,2018789,10024,"Part I unallocated by income","LMICs"]
[589,2018,2018589,10024,"Part I unallocated by income","UMICs"]
[189,2018,2018189,10024,"Part I unallocated by income","LMICs"]
[889,2018,2018889,10024,"Part I unallocated by income","UMICs"]
[998,2018,2018998,10024,"Part I unallocated by income","UMICs"]
[689,2018,2018689,10024,"Part I unallocated by income","LMICs"]
[489,2018,2018489,10024,"Part I unallocated by income","UMICs"]
[679,2018,2018679,10024,"Part I unallocated by income","LDCs"]
[289,2018,2018289,10024,"Part I unallocated by income","LDCs"]
[88,2018,201888,10024,"Part I unallocated by income","UMICs"]
[298,2019,2019298,10024,"Part I unallocated by income","LDCs"]
[498,2019,2019498,10024,"Part I unallocated by income","UMICs"]
[798,2019,2019798,10024,"Part I unallocated by income","LMICs"]
[1031,2019,20191031,10024,"Part I unallocated by income","UMICs"]
[389,2019,2019389,10024,"Part I unallocated by income","UMICs"]
[1032,2019,20191032,10024,"Part I unallocated by income","UMICs"]
[619,2019,2019619,10024,"Part I unallocated by income","LMICs"]
[1027,2019,20191027,10024,"Part I unallocated by income","LDCs"]
[89,2019,201989,10024,"Part I unallocated by income","UMICs"]
[789,2019,2019789,10024,"Part I unallocated by income","LMICs"]
[1033,2019,20191033,10024,"Part I unallocated by income","LDCs"]
[1034,2019,20191034,10024,"Part I unallocated by income","UMICs"]
[1028,2019,20191028,10024,"Part I unallocated by income","LDCs"]
[589,2019,2019589,10024,"Part I unallocated by income","UMICs"]
[189,2019,2019189,10024,"Part I unallocated by income","LMICs"]
[889,2019,2019889,10024,"Part I unallocated by income","UMICs"]
[1035,2019,20191035,10024,"Part I unallocated by income","UMICs"]
[998,2019,2019998,10024,"Part I unallocated by income","UMICs"]
[689,2019,2019689,10024,"Part I unallocated by income","LMICs"]
[489,2019,2019489,10024,"Part I unallocated by income","UMICs"]
[679,2019,2019679,10024,"Part I unallocated by income","LDCs"]
[289,2019,2019289,10024,"Part I unallocated by income","LDCs"]
[1029,2019,20191029,10024,"Part I unallocated by income","UMICs"]
[88,2019,201988,10024,"Part I unallocated by income","UMICs"]
[1030,2019,20191030,10024,"Part I unallocated by income","LDCs"]
[298,2020,2020298,10024,"Part I unallocated by income","LDCs"]
[498,2020,2020498,10024,"Part I unallocated by income","UMICs"]
[798,2020,2020798,10024,"Part I unallocated by income","LMICs"]
[1031,2020,20201031,10024,"Part I unallocated by income","UMICs"]
[389,2020,2020389,10024,"Part I unallocated by income","UMICs"]
[1032,2020,20201032,10024,"Part I unallocated by income","UMICs"]
[619,2020,2020619,10024,"Part I unallocated by income","LMICs"]
[1027,2020,20201027,10024,"Part I unallocated by income","LDCs"]
[89,2020,202089,10024,"Part I unallocated by income","UMICs"]
[789,2020,2020789,10024,"Part I unallocated by income","LMICs"]
[1033,2020,20201033,10024,"Part I unallocated by income","LDCs"]
[1034,2020,20201034,10024,"Part I unallocated by income","UMICs"]
[1028,2020,20201028,10024,"Part I unallocated by income","LDCs"]
[589,2020,2020589,10024,"Part I unallocated by income","UMICs"]
[189,2020,2020189,10024,"Part I unallocated by income","LMICs"]
[889,2020,2020889,10024,"Part I unallocated by income","UMICs"]
[1035,2020,20201035,10024,"Part I unallocated by income","UMICs"]
[998,2020,2020998,10024,"Part I unallocated by income","UMICs"]
[689,2020,2020689,10024,"Part I unallocated by income","LMICs"]
[489,2020,2020489,10024,"Part I unallocated by income","UMICs"]
[679,2020,2020679,10024,"Part I unallocated by income","LDCs"]
[289,2020,2020289,10024,"Part I unallocated by income","LDCs"]
[1029,2020,20201029,10024,"Part I unallocated by income","UMICs"]
[88,2020,202088,10024,"Part I unallocated by income","UMICs"]
[1030,2020,20201030,10024,"Part I unallocated by income","LDCs"]
[298,2021,2021298,10024,"Part I unallocated by income","LDCs"]
[498,2021,2021498,10024,"Part I unallocated by income","UMICs"]
[798,2021,2021798,10024,"Part I unallocated by income","LMICs"]
[1031,2021,20211031,10024,"Part I unallocated by income","UMICs"]
[389,2021,2021389,10024,"Part I unallocated by income","UMICs"]
[1032,2021,20211032,10024,"Part I unallocated by income","UMICs"]
[619,2021,2021619,10024,"Part I unallocated by income","LMICs"]
[1027,2021,20211027,10024,"Part I unallocated by income","LDCs"]
[89,2021,202189,10024,"Part I unallocated by income","UMICs"]
[789,2021,2021789,10024,"Part I unallocated by income","LMICs"]
[1033,2021,20211033,10024,"Part I unallocated by income","LMICs"]
[1034,2021,20211034,10024,"Part I unallocated by income","UMICs"]
[1028,2021,20211028,10024,"Part I unallocated by income","LDCs"]
[589,2021,2021589,10024,"Part I unallocated by income","UMICs"]
[189,2021,2021189,10024,"Part I unallocated by income","LMICs"]
[889,2021,2021889,10024,"Part I unallocated by income","UMICs"]
[1035,2021,20211035,10024,"Part I unallocated by income","UMICs"]
[998,2021,2021998,10024,"Part I unallocated by income","UMICs"]
[689,2021,2021689,10024,"Part I unallocated by income","LMICs"]
[489,2021,2021489,10024,"Part I unallocated by income","UMICs"]
[679,2021,2021679,10024,"Part I unallocated by income","LDCs"]
[289,2021,2021289,10024,"Part I unallocated by income","LDCs"]
[1029,2021,20211029,10024,"Part I unallocated by income","UMICs"]
[88,2021,202188,10024,"Part I unallocated by income","UMICs"]
[1030,2021,20211030,10024,"Part I unallocated by income","LDCs"]
[298,2022,2022298,10024,"Part I unallocated by income","LDCs"]
[498,2022,2022498,10024,"Part I unallocated by income","UMICs"]
[798,2022,2022798,10024,"Part I unallocated by income","UMICs"]
[1031,2022,20221031,10024,"Part I unallocated by income","UMICs"]
[389,2022,2022389,10024,"Part I unallocated by income","UMICs"]
[1032,2022,20221032,10024,"Part I unallocated by income","UMICs"]
[619,2022,2022619,10024,"Part I unallocated by income","UMICs"]
[1027,2022,20221027,10024,"Part I unallocated by income","LDCs"]
[89,2022,202289,10024,"Part I unallocated by income","UMICs"]
[789,2022,2022789,10024,"Part I unallocated by income","LMICs"]
[1033,2022,20221033,10024,"Part I unallocated by income","LMICs"]
[1034,2022,20221034,10024,"Part I unallocated by income","UMICs"]
[1028,2022,20221028,10024,"Part I unallocated by income","LDCs"]
[589,2022,2022589,10024,"Part I unallocated by income","UMICs"]
[189,2022,2022189,10024,"Part I unallocated by income","LMICs"]
[889,2022,2022889,10024,"Part I unallocated by income","UMICs"]
[1035,2022,20221035,10024,"Part I unallocated by income","UMICs"]
[998,2022,2022998,10024,"Part I unallocated by income","UMICs"]
[689,2022,2022689,10024,"Part I unallocated by income","UMICs"]
[489,2022,2022489,10024,"Part I unallocated by income","UMICs"]
[679,2022,2022679,10024,"Part I unallocated by income","LDCs"]
[289,2022,2022289,10024,"Part I unallocated by income","LDCs"]
[1029,2022,20221029,10024,"Part I unallocated by income","UMICs"]
[88,2022,202288,10024,"Part I unallocated by income","UMICs"]
[1030,2022,20221030,10024,"Part I unallocated by income","LDCs"]
[298,2023,2023298,10024,"Part I unallocated by income","LDCs"]
[498,2023,2023498,10024,"Part I unallocated by income","UMICs"]
[798,2023,2023798,10024,"Part I unallocated by income","UMICs"]
[1031,2023,20231031,10024,"Part I unallocated by income","UMICs"]
[389,2023,2023389,10024,"Part I unallocated by income","UMICs"]
[1032,2023,20231032,10024,"Part I unallocated by income","UMICs"]
[619,2023,2023619,10024,"Part I unallocated by income","UMICs"]
[1027,2023,20231027,10024,"Part I unallocated by income","LDCs"]
[89,2023,202389,10024,"Part I unallocated by income","UMICs"]
[789,2023,2023789,10024,"Part I unallocated by income","LMICs"]
[1033,2023,20231033,10024,"Part I unallocated by income","LMICs"]
[1034,2023,20231034,10024,"Part I unallocated by income","UMICs"]
[1028,2023,20231028,10024,"Part I unallocated by income","LDCs"]
[589,2023,2023589,10024,"Part I unallocated by income","UMICs"]
[189,2023,2023189,10024,"Part I unallocated by income","LMICs"]
[889,2023,2023889,10024,"Part I unallocated by income","UMICs"]
[1035,2023,20231035,10024,"Part I unallocated by income","UMICs"]
[998,2023,2023998,10024,"Part I unallocated by income","UMICs"]
[689,2023,2023689,10024,"Part I unallocated by income","UMICs"]
[489,2023,2023489,10024,"Part I unallocated by income","UMICs"]
[679,2023,2023679,10024,"Part I unallocated by income","LDCs"]
[289,2023,2023289,10024,"Part I unallocated by income","LDCs"]
[1029,2023,20231029,10024,"Part I unallocated by income","UMICs"]
[88,2023,202388,10024,"Part I unallocated by income","UMICs"]
[1030,2023,20231030,10024,"Part I unallocated by income","LDCs"]
[298,2024,2024298,10024,"Part I unallocated by income","LDCs"]
[498,2024,2024498,10024,"Part I unallocated by income","UMICs"]
[798,2024,2024798,10024,"Part I unallocated by income","LMICs"]
[1031,2024,20241031,10024,"Part I unallocated by income","UMICs"]
[389,2024,2024389,10024,"Part I unallocated by income","UMICs"]
[1032,2024,20241032,10024,"Part I unallocated by income","UMICs"]
[619,2024,2024619,10024,"Part I unallocated by income","UMICs"]
[1027,2024,20241027,10024,"Part I unallocated by income","LDCs"]
[89,2024,202489,10024,"Part I unallocated by income","UMICs"]
[789,2024,2024789,10024,"Part I unallocated by income","UMICs"]
[1033,2024,20241033,10024,"Part I unallocated by income","LMICs"]
[1034,2024,20241034,10024,"Part I unallocated by income","UMICs"]
[1028,2024,20241028,10024,"Part I unallocated by income","LDCs"]
[589,2024,2024589,10024,"Part I unallocated by income","LMICs"]
[189,2024,2024189,10024,"Part I unallocated by income","LMICs"]
[889,2024,2024889,10024,"Part I unallocated by income","UMICs"]
[1035,2024,20241035,10024,"Part I unallocated by income","UMICs"]
[998,2024,2024998,10024,"Part I unallocated by income","UMICs"]
[689,2024,2024689,10024,"Part I unallocated by income","LMICs"]
[489,2024,2024489,10024,"Part I unallocated by income","UMICs"]
[679,2024,2024679,10024,"Part I unallocated by income","LMICs"]
[289,2024,2024289,10024,"Part I unallocated by income","LDCs"]
[1029,2024,20241029,10024,"Part I unallocated by income","UMICs"]
[88,2024,202488,10024,"Part I unallocated by income","UMICs"]
[1030,2024,20241030,10024,"Part I unallocated by income","LDCs"]
[298,2025,2025298,10024,"Part I unallocated by income","LDCs"]
[498,2025,2025498,10024,"Part I unallocated by income","UMICs"]
[798,2025,2025798,10024,"Part I unallocated by income","LMICs"]
[1031,2025,20251031,10024,"Part I unallocated by income","UMICs"]
[389,2025,2025389,10024,"Part I unallocated by income","UMICs"]
[1032,2025,20251032,10024,"Part I unallocated by income","UMICs"]
[619,2025,2025619,10024,"Part I unallocated by income","UMICs"]
[1027,2025,20251027,10024,"Part I unallocated by income","LDCs"]
[89,2025,202589,10024,"Part I unallocated by income","UMICs"]
[789,2025,2025789,10024,"Part I unallocated by income","UMICs"]
[1033,2025,20251033,10024,"Part I unallocated by income","LMICs"]
[1034,2025,20251034,10024,"Part I unallocated by income","UMICs"]
[1028,2025,20251028,10024,"Part I unallocated by income","LDCs"]
[589,2025,2025589,10024,"Part I unallocated by income","LMICs"]
[189,2025,2025189,10024,"Part I unallocated by income","LMICs"]
[889,2025,2025889,10024,"Part I unallocated by income","UMICs"]
[1035,2025,20251035,10024,"Part I unallocated by income","UMICs"]
[998,2025,2025998,10024,"Part I unallocated by income","UMICs"]
[689,2025,2025689,10024,"Part I unallocated by income","LMICs"]
[489,2025,2025489,10024,"Part I unallocated by income","UMICs"]
[679,2025,2025679,10024,"Part I unallocated by income","LMICs"]
[289,2025,2025289,10024,"Part I unallocated by income","LDCs"]
[1029,2025,20251029,10024,"Part I unallocated by income","UMICs"]
[88,2025,202588,10024,"Part I unallocated by income","UMICs"]
[1030,2025,20251030,10024,"Part I unallocated by income","LDCs"]
[225,1996,1996225,10016,"LDCs","LDCs"]
[225,1997,1997225,10016,"LDCs","LDCs"]
[225,1998,1998225,10016,"LDCs","LDCs"]
[225,1999,1999225,10016,"LDCs","LDCs"]
[225,2000,2000225,10016,"LDCs","LDCs"]
[225,2001,2001225,10016,"LDCs","LDCs"]
[225,2002,2002225,10016,"LDCs","LDCs"]
[225,2003,2003225,10016,"LDCs","LDCs"]
[225,2004,2004225,10016,"LDCs","LDCs"]
[225,2005,2005225,10016,"LDCs","LDCs"]
[225,2006,2006225,10016,"LDCs","LDCs"]
[225,2007,2007225,10016,"LDCs","LDCs"]
[225,2008,2008225,10016,"LDCs","LDCs"]
[225,2009,2009225,10016,"LDCs","LDCs"]
[225,2010,2010225,10016,"LDCs","LDCs"]
[225,2011,2011225,10016,"LDCs","LDCs"]
[225,2012,2012225,10016,"LDCs","LDCs"]
[225,2013,2013225,10016,"LDCs","LDCs"]
[225,2014,2014225,10016,"LDCs","LDCs"]
[225,2015,2015225,10016,"LDCs","LDCs"]
[225,2016,2016225,10016,"LDCs","LDCs"]
[225,2017,2017225,10016,"LDCs","LDCs"]
[225,2018,2018225,10016,"LDCs","LDCs"]
[225,2019,2019225,10016,"LDCs","LDCs"]
[225,2020,2020225,10016,"LDCs","LDCs"]
[225,2021,2021225,10016,"LDCs","LDCs"]
[225,2022,2022225,10016,"LDCs","LDCs"]
[225,2023,2023225,10016,"LDCs","LDCs"]
[225,2024,2024225,10016,"LDCs","LDCs"]
[225,2025,2025225,10016,"LDCs","LDCs"]
[228,1996,1996228,10016,"LDCs","LDCs"]
[228,1997,1997228,10016,"LDCs","LDCs"]
[228,1998,1998228,10016,"LDCs","LDCs"]
[228,1999,1999228,10016,"LDCs","LDCs"]
[228,2000,2000228,10016,"LDCs","LDCs"]
[228,2001,2001228,10016,"LDCs","LDCs"]
[228,2002,2002228,10016,"LDCs","LDCs"]
[228,2003,2003228,10016,"LDCs","LDCs"]
[228,2004,2004228,10016,"LDCs","LDCs"]
[228,2005,2005228,10016,"LDCs","LDCs"]
[228,2006,2006228,10016,"LDCs","LDCs"]
[228,2007,2007228,10016,"LDCs","LDCs"]
[228,2008,2008228,10016,"LDCs","LDCs"]
[228,2009,2009228,10016,"LDCs","LDCs"]
[228,2010,2010228,10016,"LDCs","LDCs"]
[228,2011,2011228,10016,"LDCs","LDCs"]
[228,2012,2012228,10016,"LDCs","LDCs"]
[228,2013,2013228,10016,"LDCs","LDCs"]
[228,2014,2014228,10016,"LDCs","LDCs"]
[228,2015,2015228,10016,"LDCs","LDCs"]
[228,2016,2016228,10016,"LDCs","LDCs"]
[228,2017,2017228,10016,"LDCs","LDCs"]
[228,2018,2018228,10016,"LDCs","LDCs"]
[228,2019,2019228,10016,"LDCs","LDCs"]
[228,2020,2020228,10016,"LDCs","LDCs"]
[228,2021,2021228,10016,"LDCs","LDCs"]
[228,2022,2022228,10016,"LDCs","LDCs"]
[228,2023,2023228,10016,"LDCs","LDCs"]
[228,2024,2024228,10016,"LDCs","LDCs"]
[228,2025,2025228,10016,"LDCs","LDCs"]
[230,1996,1996230,10016,"LDCs","LDCs"]
[230,1997,1997230,10016,"LDCs","LDCs"]
[230,1998,1998230,10016,"LDCs","LDCs"]
[230,1999,1999230,10016,"LDCs","LDCs"]
[230,2000,2000230,10016,"LDCs","LDCs"]
[230,2001,2001230,10016,"LDCs","LDCs"]
[230,2002,2002230,10016,"LDCs","LDCs"]
[230,2003,2003230,10016,"LDCs","LDCs"]
[230,2004,2004230,10016,"LDCs","LDCs"]
[230,2005,2005230,10016,"LDCs","LDCs"]
[230,2006,2006230,10016,"LDCs","LDCs"]
[231,1996,1996231,10016,"LDCs","LDCs"]
[231,1997,1997231,10016,"LDCs","LDCs"]
[231,1998,1998231,10016,"LDCs","LDCs"]
[231,1999,1999231,10016,"LDCs","LDCs"]
[231,2000,2000231,10016,"LDCs","LDCs"]
[231,2001,2001231,10016,"LDCs","LDCs"]
[231,2002,2002231,10016,"LDCs","LDCs"]
[231,2003,2003231,10016,"LDCs","LDCs"]
[231,2004,2004231,10016,"LDCs","LDCs"]
[231,2005,2005231,10016,"LDCs","LDCs"]
[231,2006,2006231,10016,"LDCs","LDCs"]
[231,2007,2007231,10016,"LDCs","LDCs"]
[231,2008,2008231,10016,"LDCs","LDCs"]
[231,2009,2009231,10016,"LDCs","LDCs"]
[231,2010,2010231,10016,"LDCs","LDCs"]
[231,2011,2011231,10016,"LDCs","LDCs"]
[231,2012,2012231,10016,"LDCs","LDCs"]
[231,2013,2013231,10016,"LDCs","LDCs"]
[231,2014,2014231,10016,"LDCs","LDCs"]
[231,2015,2015231,10016,"LDCs","LDCs"]
[231,2016,2016231,10016,"LDCs","LDCs"]
[231,2017,2017231,10016,"LDCs","LDCs"]
[231,2018,2018231,10016,"LDCs","LDCs"]
[231,2019,2019231,10016,"LDCs","LDCs"]
[231,2020,2020231,10016,"LDCs","LDCs"]
[231,2021,2021231,10016,"LDCs","LDCs"]
[231,2022,2022231,10016,"LDCs","LDCs"]
[231,2023,2023231,10016,"LDCs","LDCs"]
[231,2024,2024231,10016,"LDCs","LDCs"]
[231,2025,2025231,10016,"LDCs","LDCs"]
[232,1996,1996232,10016,"LDCs","LDCs"]
[232,1997,1997232,10016,"LDCs","LDCs"]
[232,1998,1998232,10016,"LDCs","LDCs"]
[232,1999,1999232,10016,"LDCs","LDCs"]
[232,2000,2000232,10016,"LDCs","LDCs"]
[232,2001,2001232,10016,"LDCs","LDCs"]
[232,2002,2002232,10016,"LDCs","LDCs"]
[232,2003,2003232,10016,"LDCs","LDCs"]
[232,2004,2004232,10016,"LDCs","LDCs"]
[232,2005,2005232,10016,"LDCs","LDCs"]
[232,2006,2006232,10016,"LDCs","LDCs"]
[232,2007,2007232,10016,"LDCs","LDCs"]
[232,2008,2008232,10016,"LDCs","LDCs"]
[232,2009,2009232,10016,"LDCs","LDCs"]
[232,2010,2010232,10016,"LDCs","LDCs"]
[232,2011,2011232,10016,"LDCs","LDCs"]
[232,2012,2012232,10016,"LDCs","LDCs"]
[232,2013,2013232,10016,"LDCs","LDCs"]
[232,2014,2014232,10016,"LDCs","LDCs"]
[232,2015,2015232,10016,"LDCs","LDCs"]
[232,2016,2016232,10016,"LDCs","LDCs"]
[232,2017,2017232,10016,"LDCs","LDCs"]
[232,2018,2018232,10016,"LDCs","LDCs"]
[232,2019,2019232,10016,"LDCs","LDCs"]
[232,2020,2020232,10016,"LDCs","LDCs"]
[232,2021,2021232,10016,"LDCs","LDCs"]
[232,2022,2022232,10016,"LDCs","LDCs"]
[232,2023,2023232,10016,"LDCs","LDCs"]
[232,2024,2024232,10016,"LDCs","LDCs"]
[232,2025,2025232,10016,"LDCs","LDCs"]
[233,1996,1996233,10016,"LDCs","LDCs"]
[233,1997,1997233,10016,"LDCs","LDCs"]
[233,1998,1998233,10016,"LDCs","LDCs"]
[233,1999,1999233,10016,"LDCs","LDCs"]
[233,2000,2000233,10016,"LDCs","LDCs"]
[233,2001,2001233,10016,"LDCs","LDCs"]
[233,2002,2002233,10016,"LDCs","LDCs"]
[233,2003,2003233,10016,"LDCs","LDCs"]
[233,2004,2004233,10016,"LDCs","LDCs"]
[233,2005,2005233,10016,"LDCs","LDCs"]
[233,2006,2006233,10016,"LDCs","LDCs"]
[233,2007,2007233,10016,"LDCs","LDCs"]
[233,2008,2008233,10016,"LDCs","LDCs"]
[233,2009,2009233,10016,"LDCs","LDCs"]
[233,2010,2010233,10016,"LDCs","LDCs"]
[233,2011,2011233,10016,"LDCs","LDCs"]
[233,2012,2012233,10016,"LDCs","LDCs"]
[233,2013,2013233,10016,"LDCs","LDCs"]
[233,2014,2014233,10016,"LDCs","LDCs"]
[233,2015,2015233,10016,"LDCs","LDCs"]
[233,2016,2016233,10016,"LDCs","LDCs"]
[233,2017,2017233,10016,"LDCs","LDCs"]
[233,2018,2018233,10016,"LDCs","LDCs"]
[233,2019,2019233,10016,"LDCs","LDCs"]
[233,2020,2020233,10016,"LDCs","LDCs"]
[233,2021,2021233,10016,"LDCs","LDCs"]
[233,2022,2022233,10016,"LDCs","LDCs"]
[233,2023,2023233,10016,"LDCs","LDCs"]
[233,2024,2024233,10016,"LDCs","LDCs"]
[233,2025,2025233,10016,"LDCs","LDCs"]
[235,1996,1996235,10016,"LDCs","LDCs"]
[235,1997,1997235,10016,"LDCs","LDCs"]
[235,1998,1998235,10016,"LDCs","LDCs"]
[235,1999,1999235,10016,"LDCs","LDCs"]
[235,2000,2000235,10016,"LDCs","LDCs"]
[235,2001,2001235,10016,"LDCs","LDCs"]
[235,2002,2002235,10016,"LDCs","LDCs"]
[235,2003,2003235,10016,"LDCs","LDCs"]
[235,2004,2004235,10016,"LDCs","LDCs"]
[235,2005,2005235,10016,"LDCs","LDCs"]
[235,2006,2006235,10016,"LDCs","LDCs"]
[235,2007,2007235,10016,"LDCs","LDCs"]
[235,2008,2008235,10016,"LDCs","LDCs"]
[235,2009,2009235,10016,"LDCs","LDCs"]
[235,2010,2010235,10016,"LDCs","LDCs"]
[235,2011,2011235,10016,"LDCs","LDCs"]
[235,2012,2012235,10016,"LDCs","LDCs"]
[235,2013,2013235,10016,"LDCs","LDCs"]
[235,2014,2014235,10016,"LDCs","LDCs"]
[235,2015,2015235,10016,"LDCs","LDCs"]
[235,2016,2016235,10016,"LDCs","LDCs"]
[235,2017,2017235,10016,"LDCs","LDCs"]
[235,2018,2018235,10016,"LDCs","LDCs"]
[235,2019,2019235,10016,"LDCs","LDCs"]
[235,2020,2020235,10016,"LDCs","LDCs"]
[235,2021,2021235,10016,"LDCs","LDCs"]
[235,2022,2022235,10016,"LDCs","LDCs"]
[235,2023,2023235,10016,"LDCs","LDCs"]
[235,2024,2024235,10016,"LDCs","LDCs"]
[235,2025,2025235,10016,"LDCs","LDCs"]
[236,1996,1996236,10016,"LDCs","LDCs"]
[236,1997,1997236,10016,"LDCs","LDCs"]
[236,1998,1998236,10016,"LDCs","LDCs"]
[236,1999,1999236,10016,"LDCs","LDCs"]
[236,2000,2000236,10016,"LDCs","LDCs"]
[236,2001,2001236,10016,"LDCs","LDCs"]
[236,2002,2002236,10016,"LDCs","LDCs"]
[236,2003,2003236,10016,"LDCs","LDCs"]
[236,2004,2004236,10016,"LDCs","LDCs"]
[236,2005,2005236,10016,"LDCs","LDCs"]
[236,2006,2006236,10016,"LDCs","LDCs"]
[236,2007,2007236,10016,"LDCs","LDCs"]
[236,2008,2008236,10016,"LDCs","LDCs"]
[236,2009,2009236,10016,"LDCs","LDCs"]
[236,2010,2010236,10016,"LDCs","LDCs"]
[236,2011,2011236,10016,"LDCs","LDCs"]
[236,2012,2012236,10016,"LDCs","LDCs"]
[236,2013,2013236,10016,"LDCs","LDCs"]
[236,2014,2014236,10016,"LDCs","LDCs"]
[236,2015,2015236,10016,"LDCs","LDCs"]
[236,2016,2016236,10016,"LDCs","LDCs"]
[236,2017,2017236,10016,"LDCs","LDCs"]
[236,2018,2018236,10016,"LDCs","LDCs"]
[236,2019,2019236,10016,"LDCs","LDCs"]
[236,2020,2020236,10016,"LDCs","LDCs"]
[236,2021,2021236,10016,"LDCs","LDCs"]
[236,2022,2022236,10016,"LDCs","LDCs"]
[236,2023,2023236,10016,"LDCs","LDCs"]
[236,2024,2024236,10016,"LDCs","LDCs"]
[236,2025,2025236,10016,"LDCs","LDCs"]
[238,1996,1996238,10016,"LDCs","LDCs"]
[238,1997,1997238,10016,"LDCs","LDCs"]
[238,1998,1998238,10016,"LDCs","LDCs"]
[238,1999,1999238,10016,"LDCs","LDCs"]
[238,2000,2000238,10016,"LDCs","LDCs"]
[238,2001,2001238,10016,"LDCs","LDCs"]
[238,2002,2002238,10016,"LDCs","LDCs"]
[238,2003,2003238,10016,"LDCs","LDCs"]
[238,2004,2004238,10016,"LDCs","LDCs"]
[238,2005,2005238,10016,"LDCs","LDCs"]
[238,2006,2006238,10016,"LDCs","LDCs"]
[238,2007,2007238,10016,"LDCs","LDCs"]
[238,2008,2008238,10016,"LDCs","LDCs"]
[238,2009,2009238,10016,"LDCs","LDCs"]
[238,2010,2010238,10016,"LDCs","LDCs"]
[238,2011,2011238,10016,"LDCs","LDCs"]
[238,2012,2012238,10016,"LDCs","LDCs"]
[238,2013,2013238,10016,"LDCs","LDCs"]
[238,2014,2014238,10016,"LDCs","LDCs"]
[238,2015,2015238,10016,"LDCs","LDCs"]
[238,2016,2016238,10016,"LDCs","LDCs"]
[238,2017,2017238,10016,"LDCs","LDCs"]
[238,2018,2018238,10016,"LDCs","LDCs"]
[238,2019,2019238,10016,"LDCs","LDCs"]
[238,2020,2020238,10016,"LDCs","LDCs"]
[238,2021,2021238,10016,"LDCs","LDCs"]
[238,2022,2022238,10016,"LDCs","LDCs"]
[238,2023,2023238,10016,"LDCs","LDCs"]
[238,2024,2024238,10016,"LDCs","LDCs"]
[238,2025,2025238,10016,"LDCs","LDCs"]
[240,1996,1996240,10016,"LDCs","LDCs"]
[240,1997,1997240,10016,"LDCs","LDCs"]
[240,1998,1998240,10016,"LDCs","LDCs"]
[240,1999,1999240,10016,"LDCs","LDCs"]
[240,2000,2000240,10016,"LDCs","LDCs"]
[240,2001,2001240,10016,"LDCs","LDCs"]
[240,2002,2002240,10016,"LDCs","LDCs"]
[240,2003,2003240,10016,"LDCs","LDCs"]
[240,2004,2004240,10016,"LDCs","LDCs"]
[240,2005,2005240,10016,"LDCs","LDCs"]
[240,2006,2006240,10016,"LDCs","LDCs"]
[240,2007,2007240,10016,"LDCs","LDCs"]
[240,2008,2008240,10016,"LDCs","LDCs"]
[240,2009,2009240,10016,"LDCs","LDCs"]
[240,2010,2010240,10016,"LDCs","LDCs"]
[240,2011,2011240,10016,"LDCs","LDCs"]
[240,2012,2012240,10016,"LDCs","LDCs"]
[240,2013,2013240,10016,"LDCs","LDCs"]
[240,2014,2014240,10016,"LDCs","LDCs"]
[240,2015,2015240,10016,"LDCs","LDCs"]
[240,2016,2016240,10016,"LDCs","LDCs"]
[240,2017,2017240,10016,"LDCs","LDCs"]
[240,2018,2018240,10016,"LDCs","LDCs"]
[240,2019,2019240,10016,"LDCs","LDCs"]
[240,2020,2020240,10016,"LDCs","LDCs"]
[240,2021,2021240,10016,"LDCs","LDCs"]
[240,2022,2022240,10016,"LDCs","LDCs"]
[240,2023,2023240,10016,"LDCs","LDCs"]
[240,2024,2024240,10016,"LDCs","LDCs"]
[240,2025,2025240,10016,"LDCs","LDCs"]
[243,1996,1996243,10016,"LDCs","LDCs"]
[243,1997,1997243,10016,"LDCs","LDCs"]
[243,1998,1998243,10016,"LDCs","LDCs"]
[243,1999,1999243,10016,"LDCs","LDCs"]
[243,2000,2000243,10016,"LDCs","LDCs"]
[243,2001,2001243,10016,"LDCs","LDCs"]
[243,2002,2002243,10016,"LDCs","LDCs"]
[243,2003,2003243,10016,"LDCs","LDCs"]
[243,2004,2004243,10016,"LDCs","LDCs"]
[243,2005,2005243,10016,"LDCs","LDCs"]
[243,2006,2006243,10016,"LDCs","LDCs"]
[243,2007,2007243,10016,"LDCs","LDCs"]
[243,2008,2008243,10016,"LDCs","LDCs"]
[243,2009,2009243,10016,"LDCs","LDCs"]
[243,2010,2010243,10016,"LDCs","LDCs"]
[243,2011,2011243,10016,"LDCs","LDCs"]
[243,2012,2012243,10016,"LDCs","LDCs"]
[243,2013,2013243,10016,"LDCs","LDCs"]
[243,2014,2014243,10016,"LDCs","LDCs"]
[243,2015,2015243,10016,"LDCs","LDCs"]
[243,2016,2016243,10016,"LDCs","LDCs"]
[243,2017,2017243,10016,"LDCs","LDCs"]
[243,2018,2018243,10016,"LDCs","LDCs"]
[243,2019,2019243,10016,"LDCs","LDCs"]
[243,2020,2020243,10016,"LDCs","LDCs"]
[243,2021,2021243,10016,"LDCs","LDCs"]
[243,2022,2022243,10016,"LDCs","LDCs"]
[243,2023,2023243,10016,"LDCs","LDCs"]
[243,2024,2024243,10016,"LDCs","LDCs"]
[243,2025,2025243,10016,"LDCs","LDCs"]
[244,1996,1996244,10016,"LDCs","LDCs"]
[244,1997,1997244,10016,"LDCs","LDCs"]
[244,1998,1998244,10016,"LDCs","LDCs"]
[244,1999,1999244,10016,"LDCs","LDCs"]
[244,2000,2000244,10016,"LDCs","LDCs"]
[244,2001,2001244,10016,"LDCs","LDCs"]
[244,2002,2002244,10016,"LDCs","LDCs"]
[244,2003,2003244,10016,"LDCs","LDCs"]
[244,2004,2004244,10016,"LDCs","LDCs"]
[244,2005,2005244,10016,"LDCs","LDCs"]
[244,2006,2006244,10016,"LDCs","LDCs"]
[244,2007,2007244,10016,"LDCs","LDCs"]
[244,2008,2008244,10016,"LDCs","LDCs"]
[244,2009,2009244,10016,"LDCs","LDCs"]
[244,2010,2010244,10016,"LDCs","LDCs"]
[244,2011,2011244,10016,"LDCs","LDCs"]
[244,2012,2012244,10016,"LDCs","LDCs"]
[244,2013,2013244,10016,"LDCs","LDCs"]
[244,2014,2014244,10016,"LDCs","LDCs"]
[244,2015,2015244,10016,"LDCs","LDCs"]
[244,2016,2016244,10016,"LDCs","LDCs"]
[244,2017,2017244,10016,"LDCs","LDCs"]
[244,2018,2018244,10016,"LDCs","LDCs"]
[244,2019,2019244,10016,"LDCs","LDCs"]
[244,2020,2020244,10016,"LDCs","LDCs"]
[244,2021,2021244,10016,"LDCs","LDCs"]
[244,2022,2022244,10016,"LDCs","LDCs"]
[244,2023,2023244,10016,"LDCs","LDCs"]
[244,2024,2024244,10016,"LDCs","LDCs"]
[244,2025,2025244,10016,"LDCs","LDCs"]
[245,1996,1996245,10016,"LDCs","LDCs"]
[245,1997,1997245,10016,"LDCs","LDCs"]
[245,1998,1998245,10016,"LDCs","LDCs"]
[245,1999,1999245,10016,"LDCs","LDCs"]
[245,2000,2000245,10016,"LDCs","LDCs"]
[245,2001,2001245,10016,"LDCs","LDCs"]
[245,2002,2002245,10016,"LDCs","LDCs"]
[245,2003,2003245,10016,"LDCs","LDCs"]
[245,2004,2004245,10016,"LDCs","LDCs"]
[245,2005,2005245,10016,"LDCs","LDCs"]
[245,2006,2006245,10016,"LDCs","LDCs"]
[245,2007,2007245,10016,"LDCs","LDCs"]
[245,2008,2008245,10016,"LDCs","LDCs"]
[245,2009,2009245,10016,"LDCs","LDCs"]
[245,2010,2010245,10016,"LDCs","LDCs"]
[245,2011,2011245,10016,"LDCs","LDCs"]
[245,2012,2012245,10016,"LDCs","LDCs"]
[245,2013,2013245,10016,"LDCs","LDCs"]
[245,2014,2014245,10016,"LDCs","LDCs"]
[245,2015,2015245,10016,"LDCs","LDCs"]
[245,2016,2016245,10016,"LDCs","LDCs"]
[245,2017,2017245,10016,"LDCs","LDCs"]
[249,1996,1996249,10016,"LDCs","LDCs"]
[249,1997,1997249,10016,"LDCs","LDCs"]
[249,1998,1998249,10016,"LDCs","LDCs"]
[249,1999,1999249,10016,"LDCs","LDCs"]
[249,2000,2000249,10016,"LDCs","LDCs"]
[249,2001,2001249,10016,"LDCs","LDCs"]
[249,2002,2002249,10016,"LDCs","LDCs"]
[249,2003,2003249,10016,"LDCs","LDCs"]
[249,2004,2004249,10016,"LDCs","LDCs"]
[249,2005,2005249,10016,"LDCs","LDCs"]
[249,2006,2006249,10016,"LDCs","LDCs"]
[249,2007,2007249,10016,"LDCs","LDCs"]
[249,2008,2008249,10016,"LDCs","LDCs"]
[249,2009,2009249,10016,"LDCs","LDCs"]
[249,2010,2010249,10016,"LDCs","LDCs"]
[249,2011,2011249,10016,"LDCs","LDCs"]
[249,2012,2012249,10016,"LDCs","LDCs"]
[249,2013,2013249,10016,"LDCs","LDCs"]
[249,2014,2014249,10016,"LDCs","LDCs"]
[249,2015,2015249,10016,"LDCs","LDCs"]
[249,2016,2016249,10016,"LDCs","LDCs"]
[249,2017,2017249,10016,"LDCs","LDCs"]
[249,2018,2018249,10016,"LDCs","LDCs"]
[249,2019,2019249,10016,"LDCs","LDCs"]
[249,2020,2020249,10016,"LDCs","LDCs"]
[249,2021,2021249,10016,"LDCs","LDCs"]
[249,2022,2022249,10016,"LDCs","LDCs"]
[249,2023,2023249,10016,"LDCs","LDCs"]
[249,2024,2024249,10016,"LDCs","LDCs"]
[249,2025,2025249,10016,"LDCs","LDCs"]
[251,1996,1996251,10016,"LDCs","LDCs"]
[251,1997,1997251,10016,"LDCs","LDCs"]
[251,1998,1998251,10016,"LDCs","LDCs"]
[251,1999,1999251,10016,"LDCs","LDCs"]
[251,2000,2000251,10016,"LDCs","LDCs"]
[251,2001,2001251,10016,"LDCs","LDCs"]
[251,2002,2002251,10016,"LDCs","LDCs"]
[251,2003,2003251,10016,"LDCs","LDCs"]
[251,2004,2004251,10016,"LDCs","LDCs"]
[251,2005,2005251,10016,"LDCs","LDCs"]
[251,2006,2006251,10016,"LDCs","LDCs"]
[251,2007,2007251,10016,"LDCs","LDCs"]
[251,2008,2008251,10016,"LDCs","LDCs"]
[251,2009,2009251,10016,"LDCs","LDCs"]
[251,2010,2010251,10016,"LDCs","LDCs"]
[251,2011,2011251,10016,"LDCs","LDCs"]
[251,2012,2012251,10016,"LDCs","LDCs"]
[251,2013,2013251,10016,"LDCs","LDCs"]
[251,2014,2014251,10016,"LDCs","LDCs"]
[251,2015,2015251,10016,"LDCs","LDCs"]
[251,2016,2016251,10016,"LDCs","LDCs"]
[251,2017,2017251,10016,"LDCs","LDCs"]
[251,2018,2018251,10016,"LDCs","LDCs"]
[251,2019,2019251,10016,"LDCs","LDCs"]
[251,2020,2020251,10016,"LDCs","LDCs"]
[251,2021,2021251,10016,"LDCs","LDCs"]
[251,2022,2022251,10016,"LDCs","LDCs"]
[251,2023,2023251,10016,"LDCs","LDCs"]
[251,2024,2024251,10016,"LDCs","LDCs"]
[251,2025,2025251,10016,"LDCs","LDCs"]
[252,1996,1996252,10016,"LDCs","LDCs"]
[252,1997,1997252,10016,"LDCs","LDCs"]
[252,1998,1998252,10016,"LDCs","LDCs"]
[252,1999,1999252,10016,"LDCs","LDCs"]
[252,2000,2000252,10016,"LDCs","LDCs"]
[252,2001,2001252,10016,"LDCs","LDCs"]
[252,2002,2002252,10016,"LDCs","LDCs"]
[252,2003,2003252,10016,"LDCs","LDCs"]
[252,2004,2004252,10016,"LDCs","LDCs"]
[252,2005,2005252,10016,"LDCs","LDCs"]
[252,2006,2006252,10016,"LDCs","LDCs"]
[252,2007,2007252,10016,"LDCs","LDCs"]
[252,2008,2008252,10016,"LDCs","LDCs"]
[252,2009,2009252,10016,"LDCs","LDCs"]
[252,2010,2010252,10016,"LDCs","LDCs"]
[252,2011,2011252,10016,"LDCs","LDCs"]
[252,2012,2012252,10016,"LDCs","LDCs"]
[252,2013,2013252,10016,"LDCs","LDCs"]
[252,2014,2014252,10016,"LDCs","LDCs"]
[252,2015,2015252,10016,"LDCs","LDCs"]
[252,2016,2016252,10016,"LDCs","LDCs"]
[252,2017,2017252,10016,"LDCs","LDCs"]
[252,2018,2018252,10016,"LDCs","LDCs"]
[252,2019,2019252,10016,"LDCs","LDCs"]
[252,2020,2020252,10016,"LDCs","LDCs"]
[252,2021,2021252,10016,"LDCs","LDCs"]
[252,2022,2022252,10016,"LDCs","LDCs"]
[252,2023,2023252,10016,"LDCs","LDCs"]
[252,2024,2024252,10016,"LDCs","LDCs"]
[252,2025,2025252,10016,"LDCs","LDCs"]
[253,1996,1996253,10016,"LDCs","LDCs"]
[253,1997,1997253,10016,"LDCs","LDCs"]
[253,1998,1998253,10016,"LDCs","LDCs"]
[253,1999,1999253,10016,"LDCs","LDCs"]
[253,2000,2000253,10016,"LDCs","LDCs"]
[253,2001,2001253,10016,"LDCs","LDCs"]
[253,2002,2002253,10016,"LDCs","LDCs"]
[253,2003,2003253,10016,"LDCs","LDCs"]
[253,2004,2004253,10016,"LDCs","LDCs"]
[253,2005,2005253,10016,"LDCs","LDCs"]
[253,2006,2006253,10016,"LDCs","LDCs"]
[253,2007,2007253,10016,"LDCs","LDCs"]
[253,2008,2008253,10016,"LDCs","LDCs"]
[253,2009,2009253,10016,"LDCs","LDCs"]
[253,2010,2010253,10016,"LDCs","LDCs"]
[253,2011,2011253,10016,"LDCs","LDCs"]
[253,2012,2012253,10016,"LDCs","LDCs"]
[253,2013,2013253,10016,"LDCs","LDCs"]
[253,2014,2014253,10016,"LDCs","LDCs"]
[253,2015,2015253,10016,"LDCs","LDCs"]
[253,2016,2016253,10016,"LDCs","LDCs"]
[253,2017,2017253,10016,"LDCs","LDCs"]
[253,2018,2018253,10016,"LDCs","LDCs"]
[253,2019,2019253,10016,"LDCs","LDCs"]
[253,2020,2020253,10016,"LDCs","LDCs"]
[253,2021,2021253,10016,"LDCs","LDCs"]
[253,2022,2022253,10016,"LDCs","LDCs"]
[253,2023,2023253,10016,"LDCs","LDCs"]
[253,2024,2024253,10016,"LDCs","LDCs"]
[253,2025,2025253,10016,"LDCs","LDCs"]
[255,1996,1996255,10016,"LDCs","LDCs"]
[255,1997,1997255,10016,"LDCs","LDCs"]
[255,1998,1998255,10016,"LDCs","LDCs"]
[255,1999,1999255,10016,"LDCs","LDCs"]
[255,2000,2000255,10016,"LDCs","LDCs"]
[255,2001,2001255,10016,"LDCs","LDCs"]
[255,2002,2002255,10016,"LDCs","LDCs"]
[255,2003,2003255,10016,"LDCs","LDCs"]
[255,2004,2004255,10016,"LDCs","LDCs"]
[255,2005,2005255,10016,"LDCs","LDCs"]
[255,2006,2006255,10016,"LDCs","LDCs"]
[255,2007,2007255,10016,"LDCs","LDCs"]
[255,2008,2008255,10016,"LDCs","LDCs"]
[255,2009,2009255,10016,"LDCs","LDCs"]
[255,2010,2010255,10016,"LDCs","LDCs"]
[255,2011,2011255,10016,"LDCs","LDCs"]
[255,2012,2012255,10016,"LDCs","LDCs"]
[255,2013,2013255,10016,"LDCs","LDCs"]
[255,2014,2014255,10016,"LDCs","LDCs"]
[255,2015,2015255,10016,"LDCs","LDCs"]
[255,2016,2016255,10016,"LDCs","LDCs"]
[255,2017,2017255,10016,"LDCs","LDCs"]
[255,2018,2018255,10016,"LDCs","LDCs"]
[255,2019,2019255,10016,"LDCs","LDCs"]
[255,2020,2020255,10016,"LDCs","LDCs"]
[255,2021,2021255,10016,"LDCs","LDCs"]
[255,2022,2022255,10016,"LDCs","LDCs"]
[255,2023,2023255,10016,"LDCs","LDCs"]
[255,2024,2024255,10016,"LDCs","LDCs"]
[255,2025,2025255,10016,"LDCs","LDCs"]
[256,1996,1996256,10016,"LDCs","LDCs"]
[256,1997,1997256,10016,"LDCs","LDCs"]
[256,1998,1998256,10016,"LDCs","LDCs"]
[256,1999,1999256,10016,"LDCs","LDCs"]
[256,2000,2000256,10016,"LDCs","LDCs"]
[256,2001,2001256,10016,"LDCs","LDCs"]
[256,2002,2002256,10016,"LDCs","LDCs"]
[256,2003,2003256,10016,"LDCs","LDCs"]
[256,2004,2004256,10016,"LDCs","LDCs"]
[256,2005,2005256,10016,"LDCs","LDCs"]
[256,2006,2006256,10016,"LDCs","LDCs"]
[256,2007,2007256,10016,"LDCs","LDCs"]
[256,2008,2008256,10016,"LDCs","LDCs"]
[256,2009,2009256,10016,"LDCs","LDCs"]
[256,2010,2010256,10016,"LDCs","LDCs"]
[256,2011,2011256,10016,"LDCs","LDCs"]
[256,2012,2012256,10016,"LDCs","LDCs"]
[256,2013,2013256,10016,"LDCs","LDCs"]
[256,2014,2014256,10016,"LDCs","LDCs"]
[256,2015,2015256,10016,"LDCs","LDCs"]
[256,2016,2016256,10016,"LDCs","LDCs"]
[256,2017,2017256,10016,"LDCs","LDCs"]
[256,2018,2018256,10016,"LDCs","LDCs"]
[256,2019,2019256,10016,"LDCs","LDCs"]
[256,2020,2020256,10016,"LDCs","LDCs"]
[256,2021,2021256,10016,"LDCs","LDCs"]
[256,2022,2022256,10016,"LDCs","LDCs"]
[256,2023,2023256,10016,"LDCs","LDCs"]
[256,2024,2024256,10016,"LDCs","LDCs"]
[256,2025,2025256,10016,"LDCs","LDCs"]
[259,1996,1996259,10016,"LDCs","LDCs"]
[259,1997,1997259,10016,"LDCs","LDCs"]
[259,1998,1998259,10016,"LDCs","LDCs"]
[259,1999,1999259,10016,"LDCs","LDCs"]
[259,2000,2000259,10016,"LDCs","LDCs"]
[259,2001,2001259,10016,"LDCs","LDCs"]
[259,2002,2002259,10016,"LDCs","LDCs"]
[259,2003,2003259,10016,"LDCs","LDCs"]
[259,2004,2004259,10016,"LDCs","LDCs"]
[259,2005,2005259,10016,"LDCs","LDCs"]
[259,2006,2006259,10016,"LDCs","LDCs"]
[259,2007,2007259,10016,"LDCs","LDCs"]
[259,2008,2008259,10016,"LDCs","LDCs"]
[259,2009,2009259,10016,"LDCs","LDCs"]
[259,2010,2010259,10016,"LDCs","LDCs"]
[259,2011,2011259,10016,"LDCs","LDCs"]
[259,2012,2012259,10016,"LDCs","LDCs"]
[259,2013,2013259,10016,"LDCs","LDCs"]
[259,2014,2014259,10016,"LDCs","LDCs"]
[259,2015,2015259,10016,"LDCs","LDCs"]
[259,2016,2016259,10016,"LDCs","LDCs"]
[259,2017,2017259,10016,"LDCs","LDCs"]
[259,2018,2018259,10016,"LDCs","LDCs"]
[259,2019,2019259,10016,"LDCs","LDCs"]
[259,2020,2020259,10016,"LDCs","LDCs"]
[259,2021,2021259,10016,"LDCs","LDCs"]
[259,2022,2022259,10016,"LDCs","LDCs"]
[259,2023,2023259,10016,"LDCs","LDCs"]
[259,2024,2024259,10016,"LDCs","LDCs"]
[259,2025,2025259,10016,"LDCs","LDCs"]
[260,1996,1996260,10016,"LDCs","LDCs"]
[260,1997,1997260,10016,"LDCs","LDCs"]
[260,1998,1998260,10016,"LDCs","LDCs"]
[260,1999,1999260,10016,"LDCs","LDCs"]
[260,2000,2000260,10016,"LDCs","LDCs"]
[260,2001,2001260,10016,"LDCs","LDCs"]
[260,2002,2002260,10016,"LDCs","LDCs"]
[260,2003,2003260,10016,"LDCs","LDCs"]
[260,2004,2004260,10016,"LDCs","LDCs"]
[260,2005,2005260,10016,"LDCs","LDCs"]
[260,2006,2006260,10016,"LDCs","LDCs"]
[260,2007,2007260,10016,"LDCs","LDCs"]
[260,2008,2008260,10016,"LDCs","LDCs"]
[260,2009,2009260,10016,"LDCs","LDCs"]
[260,2010,2010260,10016,"LDCs","LDCs"]
[260,2011,2011260,10016,"LDCs","LDCs"]
[260,2012,2012260,10016,"LDCs","LDCs"]
[260,2013,2013260,10016,"LDCs","LDCs"]
[260,2014,2014260,10016,"LDCs","LDCs"]
[260,2015,2015260,10016,"LDCs","LDCs"]
[260,2016,2016260,10016,"LDCs","LDCs"]
[260,2017,2017260,10016,"LDCs","LDCs"]
[260,2018,2018260,10016,"LDCs","LDCs"]
[260,2019,2019260,10016,"LDCs","LDCs"]
[260,2020,2020260,10016,"LDCs","LDCs"]
[260,2021,2021260,10016,"LDCs","LDCs"]
[260,2022,2022260,10016,"LDCs","LDCs"]
[260,2023,2023260,10016,"LDCs","LDCs"]
[260,2024,2024260,10016,"LDCs","LDCs"]
[260,2025,2025260,10016,"LDCs","LDCs"]
[266,1996,1996266,10016,"LDCs","LDCs"]
[266,1997,1997266,10016,"LDCs","LDCs"]
[266,1998,1998266,10016,"LDCs","LDCs"]
[266,1999,1999266,10016,"LDCs","LDCs"]
[266,2000,2000266,10016,"LDCs","LDCs"]
[266,2001,2001266,10016,"LDCs","LDCs"]
[266,2002,2002266,10016,"LDCs","LDCs"]
[266,2003,2003266,10016,"LDCs","LDCs"]
[266,2004,2004266,10016,"LDCs","LDCs"]
[266,2005,2005266,10016,"LDCs","LDCs"]
[266,2006,2006266,10016,"LDCs","LDCs"]
[266,2007,2007266,10016,"LDCs","LDCs"]
[266,2008,2008266,10016,"LDCs","LDCs"]
[266,2009,2009266,10016,"LDCs","LDCs"]
[266,2010,2010266,10016,"LDCs","LDCs"]
[266,2011,2011266,10016,"LDCs","LDCs"]
[266,2012,2012266,10016,"LDCs","LDCs"]
[266,2013,2013266,10016,"LDCs","LDCs"]
[266,2014,2014266,10016,"LDCs","LDCs"]
[266,2015,2015266,10016,"LDCs","LDCs"]
[266,2016,2016266,10016,"LDCs","LDCs"]
[266,2017,2017266,10016,"LDCs","LDCs"]
[266,2018,2018266,10016,"LDCs","LDCs"]
[266,2019,2019266,10016,"LDCs","LDCs"]
[266,2020,2020266,10016,"LDCs","LDCs"]
[266,2021,2021266,10016,"LDCs","LDCs"]
[266,2022,2022266,10016,"LDCs","LDCs"]
[266,2023,2023266,10016,"LDCs","LDCs"]
[266,2024,2024266,10016,"LDCs","LDCs"]
[266,2025,2025266,10016,"LDCs","LDCs"]
[268,1996,1996268,10016,"LDCs","LDCs"]
[268,1997,1997268,10016,"LDCs","LDCs"]
[268,1998,1998268,10016,"LDCs","LDCs"]
[268,1999,1999268,10016,"LDCs","LDCs"]
[268,2000,2000268,10016,"LDCs","LDCs"]
[268,2001,2001268,10016,"LDCs","LDCs"]
[268,2002,2002268,10016,"LDCs","LDCs"]
[268,2003,2003268,10016,"LDCs","LDCs"]
[268,2004,2004268,10016,"LDCs","LDCs"]
[268,2005,2005268,10016,"LDCs","LDCs"]
[268,2006,2006268,10016,"LDCs","LDCs"]
[268,2007,2007268,10016,"LDCs","LDCs"]
[268,2008,2008268,10016,"LDCs","LDCs"]
[268,2009,2009268,10016,"LDCs","LDCs"]
[268,2010,2010268,10016,"LDCs","LDCs"]
[268,2011,2011268,10016,"LDCs","LDCs"]
[268,2012,2012268,10016,"LDCs","LDCs"]
[268,2013,2013268,10016,"LDCs","LDCs"]
[268,2014,2014268,10016,"LDCs","LDCs"]
[268,2015,2015268,10016,"LDCs","LDCs"]
[268,2016,2016268,10016,"LDCs","LDCs"]
[268,2017,2017268,10016,"LDCs","LDCs"]
[268,2018,2018268,10016,"LDCs","LDCs"]
[268,2019,2019268,10016,"LDCs","LDCs"]
[268,2020,2020268,10016,"LDCs","LDCs"]
[268,2021,2021268,10016,"LDCs","LDCs"]
[268,2022,2022268,10016,"LDCs","LDCs"]
[268,2023,2023268,10016,"LDCs","LDCs"]
[268,2024,2024268,10016,"LDCs","LDCs"]
[269,2001,2001269,10016,"LDCs","LDCs"]
[269,2002,2002269,10016,"LDCs","LDCs"]
[269,2003,2003269,10016,"LDCs","LDCs"]
[269,2004,2004269,10016,"LDCs","LDCs"]
[269,2005,2005269,10016,"LDCs","LDCs"]
[269,2006,2006269,10016,"LDCs","LDCs"]
[269,2007,2007269,10016,"LDCs","LDCs"]
[269,2008,2008269,10016,"LDCs","LDCs"]
[269,2009,2009269,10016,"LDCs","LDCs"]
[269,2010,2010269,10016,"LDCs","LDCs"]
[269,2011,2011269,10016,"LDCs","LDCs"]
[269,2012,2012269,10016,"LDCs","LDCs"]
[269,2013,2013269,10016,"LDCs","LDCs"]
[269,2014,2014269,10016,"LDCs","LDCs"]
[269,2015,2015269,10016,"LDCs","LDCs"]
[269,2016,2016269,10016,"LDCs","LDCs"]
[269,2017,2017269,10016,"LDCs","LDCs"]
[269,2018,2018269,10016,"LDCs","LDCs"]
[269,2019,2019269,10016,"LDCs","LDCs"]
[269,2020,2020269,10016,"LDCs","LDCs"]
[269,2021,2021269,10016,"LDCs","LDCs"]
[269,2022,2022269,10016,"LDCs","LDCs"]
[269,2023,2023269,10016,"LDCs","LDCs"]
[269,2024,2024269,10016,"LDCs","LDCs"]
[269,2025,2025269,10016,"LDCs","LDCs"]
[271,1996,1996271,10016,"LDCs","LDCs"]
[271,1997,1997271,10016,"LDCs","LDCs"]
[271,1998,1998271,10016,"LDCs","LDCs"]
[271,1999,1999271,10016,"LDCs","LDCs"]
[271,2000,2000271,10016,"LDCs","LDCs"]
[271,2001,2001271,10016,"LDCs","LDCs"]
[271,2002,2002271,10016,"LDCs","LDCs"]
[271,2003,2003271,10016,"LDCs","LDCs"]
[271,2004,2004271,10016,"LDCs","LDCs"]
[271,2005,2005271,10016,"LDCs","LDCs"]
[271,2006,2006271,10016,"LDCs","LDCs"]
[271,2007,2007271,10016,"LDCs","LDCs"]
[271,2008,2008271,10016,"LDCs","LDCs"]
[271,2009,2009271,10016,"LDCs","LDCs"]
[271,2010,2010271,10016,"LDCs","LDCs"]
[271,2011,2011271,10016,"LDCs","LDCs"]
[271,2012,2012271,10016,"LDCs","LDCs"]
[271,2013,2013271,10016,"LDCs","LDCs"]
[271,2014,2014271,10016,"LDCs","LDCs"]
[271,2015,2015271,10016,"LDCs","LDCs"]
[271,2016,2016271,10016,"LDCs","LDCs"]
[271,2017,2017271,10016,"LDCs","LDCs"]
[271,2018,2018271,10016,"LDCs","LDCs"]
[271,2019,2019271,10016,"LDCs","LDCs"]
[271,2020,2020271,10016,"LDCs","LDCs"]
[271,2021,2021271,10016,"LDCs","LDCs"]
[271,2022,2022271,10016,"LDCs","LDCs"]
[271,2023,2023271,10016,"LDCs","LDCs"]
[271,2024,2024271,10016,"LDCs","LDCs"]
[271,2025,2025271,10016,"LDCs","LDCs"]
[272,1996,1996272,10016,"LDCs","LDCs"]
[272,1997,1997272,10016,"LDCs","LDCs"]
[272,1998,1998272,10016,"LDCs","LDCs"]
[272,1999,1999272,10016,"LDCs","LDCs"]
[272,2000,2000272,10016,"LDCs","LDCs"]
[272,2001,2001272,10016,"LDCs","LDCs"]
[272,2002,2002272,10016,"LDCs","LDCs"]
[272,2003,2003272,10016,"LDCs","LDCs"]
[272,2004,2004272,10016,"LDCs","LDCs"]
[272,2005,2005272,10016,"LDCs","LDCs"]
[272,2006,2006272,10016,"LDCs","LDCs"]
[272,2007,2007272,10016,"LDCs","LDCs"]
[272,2008,2008272,10016,"LDCs","LDCs"]
[272,2009,2009272,10016,"LDCs","LDCs"]
[272,2010,2010272,10016,"LDCs","LDCs"]
[272,2011,2011272,10016,"LDCs","LDCs"]
[272,2012,2012272,10016,"LDCs","LDCs"]
[272,2013,2013272,10016,"LDCs","LDCs"]
[272,2014,2014272,10016,"LDCs","LDCs"]
[272,2015,2015272,10016,"LDCs","LDCs"]
[272,2016,2016272,10016,"LDCs","LDCs"]
[272,2017,2017272,10016,"LDCs","LDCs"]
[272,2018,2018272,10016,"LDCs","LDCs"]
[272,2019,2019272,10016,"LDCs","LDCs"]
[272,2020,2020272,10016,"LDCs","LDCs"]
[272,2021,2021272,10016,"LDCs","LDCs"]
[272,2022,2022272,10016,"LDCs","LDCs"]
[272,2023,2023272,10016,"LDCs","LDCs"]
[272,2024,2024272,10016,"LDCs","LDCs"]
[272,2025,2025272,10016,"LDCs","LDCs"]
[273,1996,1996273,10016,"LDCs","LDCs"]
[273,1997,1997273,10016,"LDCs","LDCs"]
[273,1998,1998273,10016,"LDCs","LDCs"]
[273,1999,1999273,10016,"LDCs","LDCs"]
[273,2000,2000273,10016,"LDCs","LDCs"]
[273,2001,2001273,10016,"LDCs","LDCs"]
[273,2002,2002273,10016,"LDCs","LDCs"]
[273,2003,2003273,10016,"LDCs","LDCs"]
[273,2004,2004273,10016,"LDCs","LDCs"]
[273,2005,2005273,10016,"LDCs","LDCs"]
[273,2006,2006273,10016,"LDCs","LDCs"]
[273,2007,2007273,10016,"LDCs","LDCs"]
[273,2008,2008273,10016,"LDCs","LDCs"]
[273,2009,2009273,10016,"LDCs","LDCs"]
[273,2010,2010273,10016,"LDCs","LDCs"]
[273,2011,2011273,10016,"LDCs","LDCs"]
[273,2012,2012273,10016,"LDCs","LDCs"]
[273,2013,2013273,10016,"LDCs","LDCs"]
[273,2014,2014273,10016,"LDCs","LDCs"]
[273,2015,2015273,10016,"LDCs","LDCs"]
[273,2016,2016273,10016,"LDCs","LDCs"]
[273,2017,2017273,10016,"LDCs","LDCs"]
[273,2018,2018273,10016,"LDCs","LDCs"]
[273,2019,2019273,10016,"LDCs","LDCs"]
[273,2020,2020273,10016,"LDCs","LDCs"]
[273,2021,2021273,10016,"LDCs","LDCs"]
[273,2022,2022273,10016,"LDCs","LDCs"]
[273,2023,2023273,10016,"LDCs","LDCs"]
[273,2024,2024273,10016,"LDCs","LDCs"]
[273,2025,2025273,10016,"LDCs","LDCs"]
[274,1996,1996274,10016,"LDCs","LDCs"]
[274,1997,1997274,10016,"LDCs","LDCs"]
[274,1998,1998274,10016,"LDCs","LDCs"]
[274,1999,1999274,10016,"LDCs","LDCs"]
[274,2000,2000274,10016,"LDCs","LDCs"]
[274,2001,2001274,10016,"LDCs","LDCs"]
[274,2002,2002274,10016,"LDCs","LDCs"]
[274,2003,2003274,10016,"LDCs","LDCs"]
[274,2004,2004274,10016,"LDCs","LDCs"]
[274,2005,2005274,10016,"LDCs","LDCs"]
[274,2006,2006274,10016,"LDCs","LDCs"]
[274,2007,2007274,10016,"LDCs","LDCs"]
[274,2008,2008274,10016,"LDCs","LDCs"]
[274,2009,2009274,10016,"LDCs","LDCs"]
[274,2010,2010274,10016,"LDCs","LDCs"]
[274,2011,2011274,10016,"LDCs","LDCs"]
[274,2012,2012274,10016,"LDCs","LDCs"]
[274,2013,2013274,10016,"LDCs","LDCs"]
[274,2014,2014274,10016,"LDCs","LDCs"]
[274,2015,2015274,10016,"LDCs","LDCs"]
[274,2016,2016274,10016,"LDCs","LDCs"]
[274,2017,2017274,10016,"LDCs","LDCs"]
[274,2018,2018274,10016,"LDCs","LDCs"]
[274,2019,2019274,10016,"LDCs","LDCs"]
[274,2020,2020274,10016,"LDCs","LDCs"]
[274,2021,2021274,10016,"LDCs","LDCs"]
[274,2022,2022274,10016,"LDCs","LDCs"]
[274,2023,2023274,10016,"LDCs","LDCs"]
[274,2024,2024274,10016,"LDCs","LDCs"]
[274,2025,2025274,10016,"LDCs","LDCs"]
[278,1996,1996278,10016,"LDCs","LDCs"]
[278,1997,1997278,10016,"LDCs","LDCs"]
[278,1998,1998278,10016,"LDCs","LDCs"]
[278,1999,1999278,10016,"LDCs","LDCs"]
[278,2000,2000278,10016,"LDCs","LDCs"]
[278,2001,2001278,10016,"LDCs","LDCs"]
[278,2002,2002278,10016,"LDCs","LDCs"]
[278,2003,2003278,10016,"LDCs","LDCs"]
[278,2004,2004278,10016,"LDCs","LDCs"]
[278,2005,2005278,10016,"LDCs","LDCs"]
[278,2006,2006278,10016,"LDCs","LDCs"]
[278,2007,2007278,10016,"LDCs","LDCs"]
[278,2008,2008278,10016,"LDCs","LDCs"]
[278,2009,2009278,10016,"LDCs","LDCs"]
[278,2010,2010278,10016,"LDCs","LDCs"]
[278,2011,2011278,10016,"LDCs","LDCs"]
[278,2012,2012278,10016,"LDCs","LDCs"]
[278,2013,2013278,10016,"LDCs","LDCs"]
[278,2014,2014278,10016,"LDCs","LDCs"]
[278,2015,2015278,10016,"LDCs","LDCs"]
[278,2016,2016278,10016,"LDCs","LDCs"]
[278,2017,2017278,10016,"LDCs","LDCs"]
[278,2018,2018278,10016,"LDCs","LDCs"]
[278,2019,2019278,10016,"LDCs","LDCs"]
[278,2020,2020278,10016,"LDCs","LDCs"]
[278,2021,2021278,10016,"LDCs","LDCs"]
[278,2022,2022278,10016,"LDCs","LDCs"]
[278,2023,2023278,10016,"LDCs","LDCs"]
[278,2024,2024278,10016,"LDCs","LDCs"]
[278,2025,2025278,10016,"LDCs","LDCs"]
[279,2012,2012279,10016,"LDCs","LDCs"]
[279,2013,2013279,10016,"LDCs","LDCs"]
[279,2014,2014279,10016,"LDCs","LDCs"]
[279,2015,2015279,10016,"LDCs","LDCs"]
[279,2016,2016279,10016,"LDCs","LDCs"]
[279,2017,2017279,10016,"LDCs","LDCs"]
[279,2018,2018279,10016,"LDCs","LDCs"]
[279,2019,2019279,10016,"LDCs","LDCs"]
[279,2020,2020279,10016,"LDCs","LDCs"]
[279,2021,2021279,10016,"LDCs","LDCs"]
[279,2022,2022279,10016,"LDCs","LDCs"]
[279,2023,2023279,10016,"LDCs","LDCs"]
[279,2024,2024279,10016,"LDCs","LDCs"]
[279,2025,2025279,10016,"LDCs","LDCs"]
[282,1996,1996282,10016,"LDCs","LDCs"]
[282,1997,1997282,10016,"LDCs","LDCs"]
[282,1998,1998282,10016,"LDCs","LDCs"]
[282,1999,1999282,10016,"LDCs","LDCs"]
[282,2000,2000282,10016,"LDCs","LDCs"]
[282,2001,2001282,10016,"LDCs","LDCs"]
[282,2002,2002282,10016,"LDCs","LDCs"]
[282,2003,2003282,10016,"LDCs","LDCs"]
[282,2004,2004282,10016,"LDCs","LDCs"]
[282,2005,2005282,10016,"LDCs","LDCs"]
[282,2006,2006282,10016,"LDCs","LDCs"]
[282,2007,2007282,10016,"LDCs","LDCs"]
[282,2008,2008282,10016,"LDCs","LDCs"]
[282,2009,2009282,10016,"LDCs","LDCs"]
[282,2010,2010282,10016,"LDCs","LDCs"]
[282,2011,2011282,10016,"LDCs","LDCs"]
[282,2012,2012282,10016,"LDCs","LDCs"]
[282,2013,2013282,10016,"LDCs","LDCs"]
[282,2014,2014282,10016,"LDCs","LDCs"]
[282,2015,2015282,10016,"LDCs","LDCs"]
[282,2016,2016282,10016,"LDCs","LDCs"]
[282,2017,2017282,10016,"LDCs","LDCs"]
[282,2018,2018282,10016,"LDCs","LDCs"]
[282,2019,2019282,10016,"LDCs","LDCs"]
[282,2020,2020282,10016,"LDCs","LDCs"]
[282,2021,2021282,10016,"LDCs","LDCs"]
[282,2022,2022282,10016,"LDCs","LDCs"]
[282,2023,2023282,10016,"LDCs","LDCs"]
[282,2024,2024282,10016,"LDCs","LDCs"]
[282,2025,2025282,10016,"LDCs","LDCs"]
[283,1996,1996283,10016,"LDCs","LDCs"]
[283,1997,1997283,10016,"LDCs","LDCs"]
[283,1998,1998283,10016,"LDCs","LDCs"]
[283,1999,1999283,10016,"LDCs","LDCs"]
[283,2000,2000283,10016,"LDCs","LDCs"]
[283,2001,2001283,10016,"LDCs","LDCs"]
[283,2002,2002283,10016,"LDCs","LDCs"]
[283,2003,2003283,10016,"LDCs","LDCs"]
[283,2004,2004283,10016,"LDCs","LDCs"]
[283,2005,2005283,10016,"LDCs","LDCs"]
[283,2006,2006283,10016,"LDCs","LDCs"]
[283,2007,2007283,10016,"LDCs","LDCs"]
[283,2008,2008283,10016,"LDCs","LDCs"]
[283,2009,2009283,10016,"LDCs","LDCs"]
[283,2010,2010283,10016,"LDCs","LDCs"]
[283,2011,2011283,10016,"LDCs","LDCs"]
[283,2012,2012283,10016,"LDCs","LDCs"]
[283,2013,2013283,10016,"LDCs","LDCs"]
[283,2014,2014283,10016,"LDCs","LDCs"]
[283,2015,2015283,10016,"LDCs","LDCs"]
[283,2016,2016283,10016,"LDCs","LDCs"]
[283,2017,2017283,10016,"LDCs","LDCs"]
[283,2018,2018283,10016,"LDCs","LDCs"]
[283,2019,2019283,10016,"LDCs","LDCs"]
[283,2020,2020283,10016,"LDCs","LDCs"]
[283,2021,2021283,10016,"LDCs","LDCs"]
[283,2022,2022283,10016,"LDCs","LDCs"]
[283,2023,2023283,10016,"LDCs","LDCs"]
[283,2024,2024283,10016,"LDCs","LDCs"]
[283,2025,2025283,10016,"LDCs","LDCs"]
[285,1996,1996285,10016,"LDCs","LDCs"]
[285,1997,1997285,10016,"LDCs","LDCs"]
[285,1998,1998285,10016,"LDCs","LDCs"]
[285,1999,1999285,10016,"LDCs","LDCs"]
[285,2000,2000285,10016,"LDCs","LDCs"]
[285,2001,2001285,10016,"LDCs","LDCs"]
[285,2002,2002285,10016,"LDCs","LDCs"]
[285,2003,2003285,10016,"LDCs","LDCs"]
[285,2004,2004285,10016,"LDCs","LDCs"]
[285,2005,2005285,10016,"LDCs","LDCs"]
[285,2006,2006285,10016,"LDCs","LDCs"]
[285,2007,2007285,10016,"LDCs","LDCs"]
[285,2008,2008285,10016,"LDCs","LDCs"]
[285,2009,2009285,10016,"LDCs","LDCs"]
[285,2010,2010285,10016,"LDCs","LDCs"]
[285,2011,2011285,10016,"LDCs","LDCs"]
[285,2012,2012285,10016,"LDCs","LDCs"]
[285,2013,2013285,10016,"LDCs","LDCs"]
[285,2014,2014285,10016,"LDCs","LDCs"]
[285,2015,2015285,10016,"LDCs","LDCs"]
[285,2016,2016285,10016,"LDCs","LDCs"]
[285,2017,2017285,10016,"LDCs","LDCs"]
[285,2018,2018285,10016,"LDCs","LDCs"]
[285,2019,2019285,10016,"LDCs","LDCs"]
[285,2020,2020285,10016,"LDCs","LDCs"]
[285,2021,2021285,10016,"LDCs","LDCs"]
[285,2022,2022285,10016,"LDCs","LDCs"]
[285,2023,2023285,10016,"LDCs","LDCs"]
[285,2024,2024285,10016,"LDCs","LDCs"]
[285,2025,2025285,10016,"LDCs","LDCs"]
[287,1996,1996287,10016,"LDCs","LDCs"]
[287,1997,1997287,10016,"LDCs","LDCs"]
[287,1998,1998287,10016,"LDCs","LDCs"]
[287,1999,1999287,10016,"LDCs","LDCs"]
[287,2000,2000287,10016,"LDCs","LDCs"]
[287,2001,2001287,10016,"LDCs","LDCs"]
[287,2002,2002287,10016,"LDCs","LDCs"]
[287,2003,2003287,10016,"LDCs","LDCs"]
[287,2004,2004287,10016,"LDCs","LDCs"]
[287,2005,2005287,10016,"LDCs","LDCs"]
[287,2006,2006287,10016,"LDCs","LDCs"]
[287,2007,2007287,10016,"LDCs","LDCs"]
[287,2008,2008287,10016,"LDCs","LDCs"]
[287,2009,2009287,10016,"LDCs","LDCs"]
[287,2010,2010287,10016,"LDCs","LDCs"]
[287,2011,2011287,10016,"LDCs","LDCs"]
[287,2012,2012287,10016,"LDCs","LDCs"]
[287,2013,2013287,10016,"LDCs","LDCs"]
[287,2014,2014287,10016,"LDCs","LDCs"]
[287,2015,2015287,10016,"LDCs","LDCs"]
[287,2016,2016287,10016,"LDCs","LDCs"]
[287,2017,2017287,10016,"LDCs","LDCs"]
[287,2018,2018287,10016,"LDCs","LDCs"]
[287,2019,2019287,10016,"LDCs","LDCs"]
[287,2020,2020287,10016,"LDCs","LDCs"]
[287,2021,2021287,10016,"LDCs","LDCs"]
[287,2022,2022287,10016,"LDCs","LDCs"]
[287,2023,2023287,10016,"LDCs","LDCs"]
[287,2024,2024287,10016,"LDCs","LDCs"]
[287,2025,2025287,10016,"LDCs","LDCs"]
[288,1996,1996288,10016,"LDCs","LDCs"]
[288,1997,1997288,10016,"LDCs","LDCs"]
[288,1998,1998288,10016,"LDCs","LDCs"]
[288,1999,1999288,10016,"LDCs","LDCs"]
[288,2000,2000288,10016,"LDCs","LDCs"]
[288,2001,2001288,10016,"LDCs","LDCs"]
[288,2002,2002288,10016,"LDCs","LDCs"]
[288,2003,2003288,10016,"LDCs","LDCs"]
[288,2004,2004288,10016,"LDCs","LDCs"]
[288,2005,2005288,10016,"LDCs","LDCs"]
[288,2006,2006288,10016,"LDCs","LDCs"]
[288,2007,2007288,10016,"LDCs","LDCs"]
[288,2008,2008288,10016,"LDCs","LDCs"]
[288,2009,2009288,10016,"LDCs","LDCs"]
[288,2010,2010288,10016,"LDCs","LDCs"]
[288,2011,2011288,10016,"LDCs","LDCs"]
[288,2012,2012288,10016,"LDCs","LDCs"]
[288,2013,2013288,10016,"LDCs","LDCs"]
[288,2014,2014288,10016,"LDCs","LDCs"]
[288,2015,2015288,10016,"LDCs","LDCs"]
[288,2016,2016288,10016,"LDCs","LDCs"]
[288,2017,2017288,10016,"LDCs","LDCs"]
[288,2018,2018288,10016,"LDCs","LDCs"]
[288,2019,2019288,10016,"LDCs","LDCs"]
[288,2020,2020288,10016,"LDCs","LDCs"]
[288,2021,2021288,10016,"LDCs","LDCs"]
[288,2022,2022288,10016,"LDCs","LDCs"]
[288,2023,2023288,10016,"LDCs","LDCs"]
[288,2024,2024288,10016,"LDCs","LDCs"]
[288,2025,2025288,10016,"LDCs","LDCs"]
[349,1996,1996349,10016,"LDCs","LDCs"]
[349,1997,1997349,10016,"LDCs","LDCs"]
[349,1998,1998349,10016,"LDCs","LDCs"]
[349,1999,1999349,10016,"LDCs","LDCs"]
[349,2000,2000349,10016,"LDCs","LDCs"]
[349,2001,2001349,10016,"LDCs","LDCs"]
[349,2002,2002349,10016,"LDCs","LDCs"]
[349,2003,2003349,10016,"LDCs","LDCs"]
[349,2004,2004349,10016,"LDCs","LDCs"]
[349,2005,2005349,10016,"LDCs","LDCs"]
[349,2006,2006349,10016,"LDCs","LDCs"]
[349,2007,2007349,10016,"LDCs","LDCs"]
[349,2008,2008349,10016,"LDCs","LDCs"]
[349,2009,2009349,10016,"LDCs","LDCs"]
[349,2010,2010349,10016,"LDCs","LDCs"]
[349,2011,2011349,10016,"LDCs","LDCs"]
[349,2012,2012349,10016,"LDCs","LDCs"]
[349,2013,2013349,10016,"LDCs","LDCs"]
[349,2014,2014349,10016,"LDCs","LDCs"]
[349,2015,2015349,10016,"LDCs","LDCs"]
[349,2016,2016349,10016,"LDCs","LDCs"]
[349,2017,2017349,10016,"LDCs","LDCs"]
[349,2018,2018349,10016,"LDCs","LDCs"]
[349,2019,2019349,10016,"LDCs","LDCs"]
[349,2020,2020349,10016,"LDCs","LDCs"]
[349,2021,2021349,10016,"LDCs","LDCs"]
[349,2022,2022349,10016,"LDCs","LDCs"]
[349,2023,2023349,10016,"LDCs","LDCs"]
[349,2024,2024349,10016,"LDCs","LDCs"]
[349,2025,2025349,10016,"LDCs","LDCs"]
[580,1996,1996580,10016,"LDCs","LDCs"]
[580,1997,1997580,10016,"LDCs","LDCs"]
[580,1998,1998580,10016,"LDCs","LDCs"]
[580,1999,1999580,10016,"LDCs","LDCs"]
[580,2000,2000580,10016,"LDCs","LDCs"]
[580,2001,2001580,10016,"LDCs","LDCs"]
[580,2002,2002580,10016,"LDCs","LDCs"]
[580,2003,2003580,10016,"LDCs","LDCs"]
[580,2004,2004580,10016,"LDCs","LDCs"]
[580,2005,2005580,10016,"LDCs","LDCs"]
[580,2006,2006580,10016,"LDCs","LDCs"]
[580,2007,2007580,10016,"LDCs","LDCs"]
[580,2008,2008580,10016,"LDCs","LDCs"]
[580,2009,2009580,10016,"LDCs","LDCs"]
[580,2010,2010580,10016,"LDCs","LDCs"]
[580,2011,2011580,10016,"LDCs","LDCs"]
[580,2012,2012580,10016,"LDCs","LDCs"]
[580,2013,2013580,10016,"LDCs","LDCs"]
[580,2014,2014580,10016,"LDCs","LDCs"]
[580,2015,2015580,10016,"LDCs","LDCs"]
[580,2016,2016580,10016,"LDCs","LDCs"]
[580,2017,2017580,10016,"LDCs","LDCs"]
[580,2018,2018580,10016,"LDCs","LDCs"]
[580,2019,2019580,10016,"LDCs","LDCs"]
[580,2020,2020580,10016,"LDCs","LDCs"]
[580,2021,2021580,10016,"LDCs","LDCs"]
[580,2022,2022580,10016,"LDCs","LDCs"]
[580,2023,2023580,10016,"LDCs","LDCs"]
[580,2024,2024580,10016,"LDCs","LDCs"]
[580,2025,2025580,10016,"LDCs","LDCs"]
[625,1996,1996625,10016,"LDCs","LDCs"]
[625,1997,1997625,10016,"LDCs","LDCs"]
[625,1998,1998625,10016,"LDCs","LDCs"]
[625,1999,1999625,10016,"LDCs","LDCs"]
[625,2000,2000625,10016,"LDCs","LDCs"]
[625,2001,2001625,10016,"LDCs","LDCs"]
[625,2002,2002625,10016,"LDCs","LDCs"]
[625,2003,2003625,10016,"LDCs","LDCs"]
[625,2004,2004625,10016,"LDCs","LDCs"]
[625,2005,2005625,10016,"LDCs","LDCs"]
[625,2006,2006625,10016,"LDCs","LDCs"]
[625,2007,2007625,10016,"LDCs","LDCs"]
[625,2008,2008625,10016,"LDCs","LDCs"]
[625,2009,2009625,10016,"LDCs","LDCs"]
[625,2010,2010625,10016,"LDCs","LDCs"]
[625,2011,2011625,10016,"LDCs","LDCs"]
[625,2012,2012625,10016,"LDCs","LDCs"]
[625,2013,2013625,10016,"LDCs","LDCs"]
[625,2014,2014625,10016,"LDCs","LDCs"]
[625,2015,2015625,10016,"LDCs","LDCs"]
[625,2016,2016625,10016,"LDCs","LDCs"]
[625,2017,2017625,10016,"LDCs","LDCs"]
[625,2018,2018625,10016,"LDCs","LDCs"]
[625,2019,2019625,10016,"LDCs","LDCs"]
[625,2020,2020625,10016,"LDCs","LDCs"]
[625,2021,2021625,10016,"LDCs","LDCs"]
[625,2022,2022625,10016,"LDCs","LDCs"]
[625,2023,2023625,10016,"LDCs","LDCs"]
[625,2024,2024625,10016,"LDCs","LDCs"]
[625,2025,2025625,10016,"LDCs","LDCs"]
[630,1996,1996630,10016,"LDCs","LDCs"]
[630,1997,1997630,10016,"LDCs","LDCs"]
[630,1998,1998630,10016,"LDCs","LDCs"]
[630,1999,1999630,10016,"LDCs","LDCs"]
[630,2000,2000630,10016,"LDCs","LDCs"]
[630,2001,2001630,10016,"LDCs","LDCs"]
[630,2002,2002630,10016,"LDCs","LDCs"]
[630,2003,2003630,10016,"LDCs","LDCs"]
[630,2004,2004630,10016,"LDCs","LDCs"]
[630,2005,2005630,10016,"LDCs","LDCs"]
[630,2006,2006630,10016,"LDCs","LDCs"]
[630,2007,2007630,10016,"LDCs","LDCs"]
[630,2008,2008630,10016,"LDCs","LDCs"]
[630,2009,2009630,10016,"LDCs","LDCs"]
[630,2010,2010630,10016,"LDCs","LDCs"]
[630,2011,2011630,10016,"LDCs","LDCs"]
[630,2012,2012630,10016,"LDCs","LDCs"]
[630,2013,2013630,10016,"LDCs","LDCs"]
[630,2014,2014630,10016,"LDCs","LDCs"]
[630,2015,2015630,10016,"LDCs","LDCs"]
[630,2016,2016630,10016,"LDCs","LDCs"]
[630,2017,2017630,10016,"LDCs","LDCs"]
[630,2018,2018630,10016,"LDCs","LDCs"]
[630,2019,2019630,10016,"LDCs","LDCs"]
[630,2020,2020630,10016,"LDCs","LDCs"]
[630,2021,2021630,10016,"LDCs","LDCs"]
[630,2022,2022630,10016,"LDCs","LDCs"]
[630,2023,2023630,10016,"LDCs","LDCs"]
[635,1996,1996635,10016,"LDCs","LDCs"]
[635,1997,1997635,10016,"LDCs","LDCs"]
[635,1998,1998635,10016,"LDCs","LDCs"]
[635,1999,1999635,10016,"LDCs","LDCs"]
[635,2000,2000635,10016,"LDCs","LDCs"]
[635,2001,2001635,10016,"LDCs","LDCs"]
[635,2002,2002635,10016,"LDCs","LDCs"]
[635,2003,2003635,10016,"LDCs","LDCs"]
[635,2004,2004635,10016,"LDCs","LDCs"]
[635,2005,2005635,10016,"LDCs","LDCs"]
[635,2006,2006635,10016,"LDCs","LDCs"]
[635,2007,2007635,10016,"LDCs","LDCs"]
[635,2008,2008635,10016,"LDCs","LDCs"]
[635,2009,2009635,10016,"LDCs","LDCs"]
[635,2010,2010635,10016,"LDCs","LDCs"]
[635,2011,2011635,10016,"LDCs","LDCs"]
[635,2012,2012635,10016,"LDCs","LDCs"]
[635,2013,2013635,10016,"LDCs","LDCs"]
[635,2014,2014635,10016,"LDCs","LDCs"]
[635,2015,2015635,10016,"LDCs","LDCs"]
[635,2016,2016635,10016,"LDCs","LDCs"]
[635,2017,2017635,10016,"LDCs","LDCs"]
[635,2018,2018635,10016,"LDCs","LDCs"]
[635,2019,2019635,10016,"LDCs","LDCs"]
[635,2020,2020635,10016,"LDCs","LDCs"]
[635,2021,2021635,10016,"LDCs","LDCs"]
[635,2022,2022635,10016,"LDCs","LDCs"]
[635,2023,2023635,10016,"LDCs","LDCs"]
[635,2024,2024635,10016,"LDCs","LDCs"]
[635,2025,2025635,10016,"LDCs","LDCs"]
[655,1996,1996655,10016,"LDCs","LDCs"]
[655,1997,1997655,10016,"LDCs","LDCs"]
[655,1998,1998655,10016,"LDCs","LDCs"]
[655,1999,1999655,10016,"LDCs","LDCs"]
[655,2000,2000655,10016,"LDCs","LDCs"]
[655,2001,2001655,10016,"LDCs","LDCs"]
[655,2002,2002655,10016,"LDCs","LDCs"]
[655,2003,2003655,10016,"LDCs","LDCs"]
[655,2004,2004655,10016,"LDCs","LDCs"]
[655,2005,2005655,10016,"LDCs","LDCs"]
[655,2006,2006655,10016,"LDCs","LDCs"]
[655,2007,2007655,10016,"LDCs","LDCs"]
[655,2008,2008655,10016,"LDCs","LDCs"]
[655,2009,2009655,10016,"LDCs","LDCs"]
[655,2010,2010655,10016,"LDCs","LDCs"]
[660,1996,1996660,10016,"LDCs","LDCs"]
[660,1997,1997660,10016,"LDCs","LDCs"]
[660,1998,1998660,10016,"LDCs","LDCs"]
[660,1999,1999660,10016,"LDCs","LDCs"]
[660,2000,2000660,10016,"LDCs","LDCs"]
[660,2001,2001660,10016,"LDCs","LDCs"]
[660,2002,2002660,10016,"LDCs","LDCs"]
[660,2003,2003660,10016,"LDCs","LDCs"]
[660,2004,2004660,10016,"LDCs","LDCs"]
[660,2005,2005660,10016,"LDCs","LDCs"]
[660,2006,2006660,10016,"LDCs","LDCs"]
[660,2007,2007660,10016,"LDCs","LDCs"]
[660,2008,2008660,10016,"LDCs","LDCs"]
[660,2009,2009660,10016,"LDCs","LDCs"]
[660,2010,2010660,10016,"LDCs","LDCs"]
[660,2011,2011660,10016,"LDCs","LDCs"]
[660,2012,2012660,10016,"LDCs","LDCs"]
[660,2013,2013660,10016,"LDCs","LDCs"]
[660,2014,2014660,10016,"LDCs","LDCs"]
[660,2015,2015660,10016,"LDCs","LDCs"]
[660,2016,2016660,10016,"LDCs","LDCs"]
[660,2017,2017660,10016,"LDCs","LDCs"]
[660,2018,2018660,10016,"LDCs","LDCs"]
[660,2019,2019660,10016,"LDCs","LDCs"]
[660,2020,2020660,10016,"LDCs","LDCs"]
[660,2021,2021660,10016,"LDCs","LDCs"]
[660,2022,2022660,10016,"LDCs","LDCs"]
[660,2023,2023660,10016,"LDCs","LDCs"]
[660,2024,2024660,10016,"LDCs","LDCs"]
[660,2025,2025660,10016,"LDCs","LDCs"]
[666,1996,1996666,10016,"LDCs","LDCs"]
[666,1997,1997666,10016,"LDCs","LDCs"]
[666,1998,1998666,10016,"LDCs","LDCs"]
[666,1999,1999666,10016,"LDCs","LDCs"]
[666,2000,2000666,10016,"LDCs","LDCs"]
[666,2001,2001666,10016,"LDCs","LDCs"]
[666,2002,2002666,10016,"LDCs","LDCs"]
[666,2003,2003666,10016,"LDCs","LDCs"]
[666,2004,2004666,10016,"LDCs","LDCs"]
[666,2005,2005666,10016,"LDCs","LDCs"]
[666,2006,2006666,10016,"LDCs","LDCs"]
[666,2007,2007666,10016,"LDCs","LDCs"]
[666,2008,2008666,10016,"LDCs","LDCs"]
[666,2009,2009666,10016,"LDCs","LDCs"]
[666,2010,2010666,10016,"LDCs","LDCs"]
[666,2011,2011666,10016,"LDCs","LDCs"]
[666,2012,2012666,10016,"LDCs","LDCs"]
[666,2013,2013666,10016,"LDCs","LDCs"]
[666,2014,2014666,10016,"LDCs","LDCs"]
[666,2015,2015666,10016,"LDCs","LDCs"]
[666,2016,2016666,10016,"LDCs","LDCs"]
[666,2017,2017666,10016,"LDCs","LDCs"]
[666,2018,2018666,10016,"LDCs","LDCs"]
[666,2019,2019666,10016,"LDCs","LDCs"]
[666,2020,2020666,10016,"LDCs","LDCs"]
[666,2021,2021666,10016,"LDCs","LDCs"]
[666,2022,2022666,10016,"LDCs","LDCs"]
[666,2023,2023666,10016,"LDCs","LDCs"]
[666,2024,2024666,10016,"LDCs","LDCs"]
[666,2025,2025666,10016,"LDCs","LDCs"]
[728,1996,1996728,10016,"LDCs","LDCs"]
[728,1997,1997728,10016,"LDCs","LDCs"]
[728,1998,1998728,10016,"LDCs","LDCs"]
[728,1999,1999728,10016,"LDCs","LDCs"]
[728,2000,2000728,10016,"LDCs","LDCs"]
[728,2001,2001728,10016,"LDCs","LDCs"]
[728,2002,2002728,10016,"LDCs","LDCs"]
[728,2003,2003728,10016,"LDCs","LDCs"]
[728,2004,2004728,10016,"LDCs","LDCs"]
[728,2005,2005728,10016,"LDCs","LDCs"]
[728,2006,2006728,10016,"LDCs","LDCs"]
[728,2007,2007728,10016,"LDCs","LDCs"]
[728,2008,2008728,10016,"LDCs","LDCs"]
[728,2009,2009728,10016,"LDCs","LDCs"]
[728,2010,2010728,10016,"LDCs","LDCs"]
[728,2011,2011728,10016,"LDCs","LDCs"]
[728,2012,2012728,10016,"LDCs","LDCs"]
[728,2013,2013728,10016,"LDCs","LDCs"]
[728,2014,2014728,10016,"LDCs","LDCs"]
[728,2015,2015728,10016,"LDCs","LDCs"]
[728,2016,2016728,10016,"LDCs","LDCs"]
[728,2017,2017728,10016,"LDCs","LDCs"]
[728,2018,2018728,10016,"LDCs","LDCs"]
[728,2019,2019728,10016,"LDCs","LDCs"]
[728,2020,2020728,10016,"LDCs","LDCs"]
[728,2021,2021728,10016,"LDCs","LDCs"]
[728,2022,2022728,10016,"LDCs","LDCs"]
[728,2023,2023728,10016,"LDCs","LDCs"]
[728,2024,2024728,10016,"LDCs","LDCs"]
[728,2025,2025728,10016,"LDCs","LDCs"]
[745,1996,1996745,10016,"LDCs","LDCs"]
[745,1997,1997745,10016,"LDCs","LDCs"]
[745,1998,1998745,10016,"LDCs","LDCs"]
[745,1999,1999745,10016,"LDCs","LDCs"]
[745,2000,2000745,10016,"LDCs","LDCs"]
[745,2001,2001745,10016,"LDCs","LDCs"]
[745,2002,2002745,10016,"LDCs","LDCs"]
[745,2003,2003745,10016,"LDCs","LDCs"]
[745,2004,2004745,10016,"LDCs","LDCs"]
[745,2005,2005745,10016,"LDCs","LDCs"]
[745,2006,2006745,10016,"LDCs","LDCs"]
[745,2007,2007745,10016,"LDCs","LDCs"]
[745,2008,2008745,10016,"LDCs","LDCs"]
[745,2009,2009745,10016,"LDCs","LDCs"]
[745,2010,2010745,10016,"LDCs","LDCs"]
[745,2011,2011745,10016,"LDCs","LDCs"]
[745,2012,2012745,10016,"LDCs","LDCs"]
[745,2013,2013745,10016,"LDCs","LDCs"]
[745,2014,2014745,10016,"LDCs","LDCs"]
[745,2015,2015745,10016,"LDCs","LDCs"]
[745,2016,2016745,10016,"LDCs","LDCs"]
[745,2017,2017745,10016,"LDCs","LDCs"]
[745,2018,2018745,10016,"LDCs","LDCs"]
[745,2019,2019745,10016,"LDCs","LDCs"]
[745,2020,2020745,10016,"LDCs","LDCs"]
[745,2021,2021745,10016,"LDCs","LDCs"]
[745,2022,2022745,10016,"LDCs","LDCs"]
[745,2023,2023745,10016,"LDCs","LDCs"]
[745,2024,2024745,10016,"LDCs","LDCs"]
[745,2025,2025745,10016,"LDCs","LDCs"]
[765,2003,2003765,10016,"LDCs","LDCs"]
[765,2004,2004765,10016,"LDCs","LDCs"]
[765,2005,2005765,10016,"LDCs","LDCs"]
[765,2006,2006765,10016,"LDCs","LDCs"]
[765,2007,2007765,10016,"LDCs","LDCs"]
[765,2008,2008765,10016,"LDCs","LDCs"]
[765,2009,2009765,10016,"LDCs","LDCs"]
[765,2010,2010765,10016,"LDCs","LDCs"]
[765,2011,2011765,10016,"LDCs","LDCs"]
[765,2012,2012765,10016,"LDCs","LDCs"]
[765,2013,2013765,10016,"LDCs","LDCs"]
[765,2014,2014765,10016,"LDCs","LDCs"]
[765,2015,2015765,10016,"LDCs","LDCs"]
[765,2016,2016765,10016,"LDCs","LDCs"]
[765,2017,2017765,10016,"LDCs","LDCs"]
[765,2018,2018765,10016,"LDCs","LDCs"]
[765,2019,2019765,10016,"LDCs","LDCs"]
[765,2020,2020765,10016,"LDCs","LDCs"]
[765,2021,2021765,10016,"LDCs","LDCs"]
[765,2022,2022765,10016,"LDCs","LDCs"]
[765,2023,2023765,10016,"LDCs","LDCs"]
[765,2024,2024765,10016,"LDCs","LDCs"]
[765,2025,2025765,10016,"LDCs","LDCs"]
[836,1996,1996836,10016,"LDCs","LDCs"]
[836,1997,1997836,10016,"LDCs","LDCs"]
[836,1998,1998836,10016,"LDCs","LDCs"]
[836,1999,1999836,10016,"LDCs","LDCs"]
[836,2000,2000836,10016,"LDCs","LDCs"]
[836,2001,2001836,10016,"LDCs","LDCs"]
[836,2002,2002836,10016,"LDCs","LDCs"]
[836,2003,2003836,10016,"LDCs","LDCs"]
[836,2004,2004836,10016,"LDCs","LDCs"]
[836,2005,2005836,10016,"LDCs","LDCs"]
[836,2006,2006836,10016,"LDCs","LDCs"]
[836,2007,2007836,10016,"LDCs","LDCs"]
[836,2008,2008836,10016,"LDCs","LDCs"]
[836,2009,2009836,10016,"LDCs","LDCs"]
[836,2010,2010836,10016,"LDCs","LDCs"]
[836,2011,2011836,10016,"LDCs","LDCs"]
[836,2012,2012836,10016,"LDCs","LDCs"]
[836,2013,2013836,10016,"LDCs","LDCs"]
[836,2014,2014836,10016,"LDCs","LDCs"]
[836,2015,2015836,10016,"LDCs","LDCs"]
[836,2016,2016836,10016,"LDCs","LDCs"]
[836,2017,2017836,10016,"LDCs","LDCs"]
[836,2018,2018836,10016,"LDCs","LDCs"]
[836,2019,2019836,10016,"LDCs","LDCs"]
[836,2020,2020836,10016,"LDCs","LDCs"]
[836,2021,2021836,10016,"LDCs","LDCs"]
[836,2022,2022836,10016,"LDCs","LDCs"]
[836,2023,2023836,10016,"LDCs","LDCs"]
[836,2024,2024836,10016,"LDCs","LDCs"]
[836,2025,2025836,10016,"LDCs","LDCs"]
[854,1996,1996854,10016,"LDCs","LDCs"]
[854,1997,1997854,10016,"LDCs","LDCs"]
[854,1998,1998854,10016,"LDCs","LDCs"]
[854,1999,1999854,10016,"LDCs","LDCs"]
[854,2000,2000854,10016,"LDCs","LDCs"]
[854,2001,2001854,10016,"LDCs","LDCs"]
[854,2002,2002854,10016,"LDCs","LDCs"]
[854,2003,2003854,10016,"LDCs","LDCs"]
[854,2004,2004854,10016,"LDCs","LDCs"]
[854,2005,2005854,10016,"LDCs","LDCs"]
[854,2006,2006854,10016,"LDCs","LDCs"]
[854,2007,2007854,10016,"LDCs","LDCs"]
[854,2008,2008854,10016,"LDCs","LDCs"]
[854,2009,2009854,10016,"LDCs","LDCs"]
[854,2010,2010854,10016,"LDCs","LDCs"]
[854,2011,2011854,10016,"LDCs","LDCs"]
[854,2012,2012854,10016,"LDCs","LDCs"]
[854,2013,2013854,10016,"LDCs","LDCs"]
[854,2014,2014854,10016,"LDCs","LDCs"]
[854,2015,2015854,10016,"LDCs","LDCs"]
[854,2016,2016854,10016,"LDCs","LDCs"]
[854,2017,2017854,10016,"LDCs","LDCs"]
[854,2018,2018854,10016,"LDCs","LDCs"]
[854,2019,2019854,10016,"LDCs","LDCs"]
[854,2020,2020854,10016,"LDCs","LDCs"]
[866,1996,1996866,10016,"LDCs","LDCs"]
[866,1997,1997866,10016,"LDCs","LDCs"]
[866,1998,1998866,10016,"LDCs","LDCs"]
[866,1999,1999866,10016,"LDCs","LDCs"]
[866,2000,2000866,10016,"LDCs","LDCs"]
[866,2001,2001866,10016,"LDCs","LDCs"]
[866,2002,2002866,10016,"LDCs","LDCs"]
[866,2003,2003866,10016,"LDCs","LDCs"]
[866,2004,2004866,10016,"LDCs","LDCs"]
[866,2005,2005866,10016,"LDCs","LDCs"]
[866,2006,2006866,10016,"LDCs","LDCs"]
[866,2007,2007866,10016,"LDCs","LDCs"]
[866,2008,2008866,10016,"LDCs","LDCs"]
[866,2009,2009866,10016,"LDCs","LDCs"]
[866,2010,2010866,10016,"LDCs","LDCs"]
[866,2011,2011866,10016,"LDCs","LDCs"]
[866,2012,2012866,10016,"LDCs","LDCs"]
[866,2013,2013866,10016,"LDCs","LDCs"]
[866,2014,2014866,10016,"LDCs","LDCs"]
[866,2015,2015866,10016,"LDCs","LDCs"]
[866,2016,2016866,10016,"LDCs","LDCs"]
[866,2017,2017866,10016,"LDCs","LDCs"]
[866,2018,2018866,10016,"LDCs","LDCs"]
[866,2019,2019866,10016,"LDCs","LDCs"]
[866,2020,2020866,10016,"LDCs","LDCs"]
[866,2021,2021866,10016,"LDCs","LDCs"]
[866,2022,2022866,10016,"LDCs","LDCs"]
[866,2023,2023866,10016,"LDCs","LDCs"]
[866,2024,2024866,10016,"LDCs","LDCs"]
[866,2025,2025866,10016,"LDCs","LDCs"]
[872,1996,1996872,10016,"LDCs","LDCs"]
[872,1997,1997872,10016,"LDCs","LDCs"]
[872,1998,1998872,10016,"LDCs","LDCs"]
[872,1999,1999872,10016,"LDCs","LDCs"]
[872,2000,2000872,10016,"LDCs","LDCs"]
[872,2001,2001872,10016,"LDCs","LDCs"]
[872,2002,2002872,10016,"LDCs","LDCs"]
[872,2003,2003872,10016,"LDCs","LDCs"]
[872,2004,2004872,10016,"LDCs","LDCs"]
[872,2005,2005872,10016,"LDCs","LDCs"]
[872,2006,2006872,10016,"LDCs","LDCs"]
[872,2007,2007872,10016,"LDCs","LDCs"]
[872,2008,2008872,10016,"LDCs","LDCs"]
[872,2009,2009872,10016,"LDCs","LDCs"]
[872,2010,2010872,10016,"LDCs","LDCs"]
[872,2011,2011872,10016,"LDCs","LDCs"]
[872,2012,2012872,10016,"LDCs","LDCs"]
[872,2013,2013872,10016,"LDCs","LDCs"]
[872,2014,2014872,10016,"LDCs","LDCs"]
[872,2015,2015872,10016,"LDCs","LDCs"]
[872,2016,2016872,10016,"LDCs","LDCs"]
[872,2017,2017872,10016,"LDCs","LDCs"]
[872,2018,2018872,10016,"LDCs","LDCs"]
[872,2019,2019872,10016,"LDCs","LDCs"]
[872,2020,2020872,10016,"LDCs","LDCs"]
[872,2021,2021872,10016,"LDCs","LDCs"]
[872,2022,2022872,10016,"LDCs","LDCs"]
[872,2023,2023872,10016,"LDCs","LDCs"]
[872,2024,2024872,10016,"LDCs","LDCs"]
[872,2025,2025872,10016,"LDCs","LDCs"]
[880,1996,1996880,10016,"LDCs","LDCs"]
[880,1997,1997880,10016,"LDCs","LDCs"]
[880,1998,1998880,10016,"LDCs","LDCs"]
[880,1999,1999880,10016,"LDCs","LDCs"]
[880,2000,2000880,10016,"LDCs","LDCs"]
[880,2001,2001880,10016,"LDCs","LDCs"]
[880,2002,2002880,10016,"LDCs","LDCs"]
[880,2003,2003880,10016,"LDCs","LDCs"]
[880,2004,2004880,10016,"LDCs","LDCs"]
[880,2005,2005880,10016,"LDCs","LDCs"]
[880,2006,2006880,10016,"LDCs","LDCs"]
[880,2007,2007880,10016,"LDCs","LDCs"]
[880,2008,2008880,10016,"LDCs","LDCs"]
[880,2009,2009880,10016,"LDCs","LDCs"]
[880,2010,2010880,10016,"LDCs","LDCs"]
[880,2011,2011880,10016,"LDCs","LDCs"]
[880,2012,2012880,10016,"LDCs","LDCs"]
[880,2013,2013880,10016,"LDCs","LDCs"]
[64,1996,199664,10017,"Other LICs","Other LICs"]
[64,1997,199764,10017,"Other LICs","Other LICs"]
[64,1998,199864,10017,"Other LICs","Other LICs"]
[64,1999,199964,10017,"Other LICs","Other LICs"]
[71,1996,199671,10017,"Other LICs","Other LICs"]
[71,1997,199771,10017,"Other LICs","Other LICs"]
[71,1998,199871,10017,"Other LICs","Other LICs"]
[71,1999,199971,10017,"Other LICs","Other LICs"]
[93,2000,200093,10017,"Other LICs","Other LICs"]
[93,2001,200193,10017,"Other LICs","Other LICs"]
[93,2002,200293,10017,"Other LICs","Other LICs"]
[93,2003,200393,10017,"Other LICs","Other LICs"]
[93,2004,200493,10017,"Other LICs","Other LICs"]
[93,2005,200593,10017,"Other LICs","Other LICs"]
[93,2006,200693,10017,"Other LICs","Other LICs"]
[93,2007,200793,10017,"Other LICs","Other LICs"]
[229,1996,1996229,10017,"Other LICs","Other LICs"]
[229,1997,1997229,10017,"Other LICs","Other LICs"]
[229,1998,1998229,10017,"Other LICs","Other LICs"]
[229,1999,1999229,10017,"Other LICs","Other LICs"]
[229,2000,2000229,10017,"Other LICs","Other LICs"]
[229,2001,2001229,10017,"Other LICs","Other LICs"]
[229,2002,2002229,10017,"Other LICs","Other LICs"]
[229,2003,2003229,10017,"Other LICs","Other LICs"]
[229,2004,2004229,10017,"Other LICs","Other LICs"]
[229,2005,2005229,10017,"Other LICs","Other LICs"]
[229,2006,2006229,10017,"Other LICs","Other LICs"]
[229,2007,2007229,10017,"Other LICs","Other LICs"]
[234,1996,1996234,10017,"Other LICs","Other LICs"]
[234,1997,1997234,10017,"Other LICs","Other LICs"]
[234,1998,1998234,10017,"Other LICs","Other LICs"]
[234,1999,1999234,10017,"Other LICs","Other LICs"]
[234,2000,2000234,10017,"Other LICs","Other LICs"]
[234,2001,2001234,10017,"Other LICs","Other LICs"]
[234,2002,2002234,10017,"Other LICs","Other LICs"]
[234,2003,2003234,10017,"Other LICs","Other LICs"]
[234,2004,2004234,10017,"Other LICs","Other LICs"]
[234,2005,2005234,10017,"Other LICs","Other LICs"]
[234,2006,2006234,10017,"Other LICs","Other LICs"]
[234,2007,2007234,10017,"Other LICs","Other LICs"]
[241,1996,1996241,10017,"Other LICs","Other LICs"]
[241,1997,1997241,10017,"Other LICs","Other LICs"]
[241,1998,1998241,10017,"Other LICs","Other LICs"]
[241,1999,1999241,10017,"Other LICs","Other LICs"]
[241,2000,2000241,10017,"Other LICs","Other LICs"]
[241,2001,2001241,10017,"Other LICs","Other LICs"]
[241,2002,2002241,10017,"Other LICs","Other LICs"]
[241,2003,2003241,10017,"Other LICs","Other LICs"]
[241,2004,2004241,10017,"Other LICs","Other LICs"]
[241,2005,2005241,10017,"Other LICs","Other LICs"]
[241,2006,2006241,10017,"Other LICs","Other LICs"]
[241,2007,2007241,10017,"Other LICs","Other LICs"]
[241,2008,2008241,10017,"Other LICs","Other LICs"]
[241,2009,2009241,10017,"Other LICs","Other LICs"]
[241,2010,2010241,10017,"Other LICs","Other LICs"]
[247,1996,1996247,10017,"Other LICs","Other LICs"]
[247,1997,1997247,10017,"Other LICs","Other LICs"]
[247,1998,1998247,10017,"Other LICs","Other LICs"]
[247,1999,1999247,10017,"Other LICs","Other LICs"]
[247,2000,2000247,10017,"Other LICs","Other LICs"]
[247,2001,2001247,10017,"Other LICs","Other LICs"]
[247,2002,2002247,10017,"Other LICs","Other LICs"]
[247,2003,2003247,10017,"Other LICs","Other LICs"]
[247,2004,2004247,10017,"Other LICs","Other LICs"]
[247,2005,2005247,10017,"Other LICs","Other LICs"]
[247,2006,2006247,10017,"Other LICs","Other LICs"]
[247,2007,2007247,10017,"Other LICs","Other LICs"]
[247,2008,2008247,10017,"Other LICs","Other LICs"]
[247,2009,2009247,10017,"Other LICs","Other LICs"]
[247,2010,2010247,10017,"Other LICs","Other LICs"]
[248,1996,1996248,10017,"Other LICs","Other LICs"]
[248,1997,1997248,10017,"Other LICs","Other LICs"]
[248,1998,1998248,10017,"Other LICs","Other LICs"]
[248,1999,1999248,10017,"Other LICs","Other LICs"]
[248,2000,2000248,10017,"Other LICs","Other LICs"]
[248,2001,2001248,10017,"Other LICs","Other LICs"]
[248,2002,2002248,10017,"Other LICs","Other LICs"]
[248,2003,2003248,10017,"Other LICs","Other LICs"]
[248,2004,2004248,10017,"Other LICs","Other LICs"]
[248,2005,2005248,10017,"Other LICs","Other LICs"]
[248,2006,2006248,10017,"Other LICs","Other LICs"]
[248,2007,2007248,10017,"Other LICs","Other LICs"]
[248,2008,2008248,10017,"Other LICs","Other LICs"]
[248,2009,2009248,10017,"Other LICs","Other LICs"]
[248,2010,2010248,10017,"Other LICs","Other LICs"]
[248,2011,2011248,10017,"Other LICs","Other LICs"]
[248,2012,2012248,10017,"Other LICs","Other LICs"]
[248,2013,2013248,10017,"Other LICs","Other LICs"]
[248,2014,2014248,10017,"Other LICs","Other LICs"]
[248,2015,2015248,10017,"Other LICs","Other LICs"]
[248,2016,2016248,10017,"Other LICs","Other LICs"]
[248,2017,2017248,10017,"Other LICs","Other LICs"]
[261,1996,1996261,10017,"Other LICs","Other LICs"]
[261,1997,1997261,10017,"Other LICs","Other LICs"]
[261,1998,1998261,10017,"Other LICs","Other LICs"]
[261,1999,1999261,10017,"Other LICs","Other LICs"]
[261,2000,2000261,10017,"Other LICs","Other LICs"]
[261,2001,2001261,10017,"Other LICs","Other LICs"]
[261,2002,2002261,10017,"Other LICs","Other LICs"]
[261,2003,2003261,10017,"Other LICs","Other LICs"]
[261,2004,2004261,10017,"Other LICs","Other LICs"]
[261,2005,2005261,10017,"Other LICs","Other LICs"]
[261,2006,2006261,10017,"Other LICs","Other LICs"]
[261,2007,2007261,10017,"Other LICs","Other LICs"]
[261,2008,2008261,10017,"Other LICs","Other LICs"]
[261,2009,2009261,10017,"Other LICs","Other LICs"]
[261,2010,2010261,10017,"Other LICs","Other LICs"]
[265,1996,1996265,10017,"Other LICs","Other LICs"]
[265,1997,1997265,10017,"Other LICs","Other LICs"]
[265,1998,1998265,10017,"Other LICs","Other LICs"]
[265,1999,1999265,10017,"Other LICs","Other LICs"]
[265,2000,2000265,10017,"Other LICs","Other LICs"]
[265,2001,2001265,10017,"Other LICs","Other LICs"]
[265,2002,2002265,10017,"Other LICs","Other LICs"]
[265,2003,2003265,10017,"Other LICs","Other LICs"]
[265,2004,2004265,10017,"Other LICs","Other LICs"]
[265,2005,2005265,10017,"Other LICs","Other LICs"]
[265,2006,2006265,10017,"Other LICs","Other LICs"]
[265,2007,2007265,10017,"Other LICs","Other LICs"]
[265,2008,2008265,10017,"Other LICs","Other LICs"]
[265,2009,2009265,10017,"Other LICs","Other LICs"]
[265,2010,2010265,10017,"Other LICs","Other LICs"]
[265,2011,2011265,10017,"Other LICs","Other LICs"]
[265,2012,2012265,10017,"Other LICs","Other LICs"]
[265,2013,2013265,10017,"Other LICs","Other LICs"]
[265,2014,2014265,10017,"Other LICs","Other LICs"]
[265,2015,2015265,10017,"Other LICs","Other LICs"]
[265,2016,2016265,10017,"Other LICs","Other LICs"]
[265,2017,2017265,10017,"Other LICs","Other LICs"]
[265,2018,2018265,10017,"Other LICs","Other LICs"]
[265,2019,2019265,10017,"Other LICs","Other LICs"]
[265,2020,2020265,10017,"Other LICs","Other LICs"]
[265,2021,2021265,10017,"Other LICs","Other LICs"]
[269,1996,1996269,10017,"Other LICs","Other LICs"]
[269,1997,1997269,10017,"Other LICs","Other LICs"]
[269,1998,1998269,10017,"Other LICs","Other LICs"]
[269,1999,1999269,10017,"Other LICs","Other LICs"]
[269,2000,2000269,10017,"Other LICs","Other LICs"]
[279,2011,2011279,10017,"Other LICs","Other LICs"]
[351,1996,1996351,10017,"Other LICs","Other LICs"]
[351,1997,1997351,10017,"Other LICs","Other LICs"]
[351,1998,1998351,10017,"Other LICs","Other LICs"]
[351,1999,1999351,10017,"Other LICs","Other LICs"]
[351,2000,2000351,10017,"Other LICs","Other LICs"]
[351,2001,2001351,10017,"Other LICs","Other LICs"]
[351,2002,2002351,10017,"Other LICs","Other LICs"]
[364,1996,1996364,10017,"Other LICs","Other LICs"]
[364,1997,1997364,10017,"Other LICs","Other LICs"]
[364,1998,1998364,10017,"Other LICs","Other LICs"]
[364,1999,1999364,10017,"Other LICs","Other LICs"]
[364,2000,2000364,10017,"Other LICs","Other LICs"]
[364,2001,2001364,10017,"Other LICs","Other LICs"]
[364,2002,2002364,10017,"Other LICs","Other LICs"]
[364,2003,2003364,10017,"Other LICs","Other LICs"]
[364,2004,2004364,10017,"Other LICs","Other LICs"]
[364,2005,2005364,10017,"Other LICs","Other LICs"]
[364,2006,2006364,10017,"Other LICs","Other LICs"]
[364,2007,2007364,10017,"Other LICs","Other LICs"]
[446,1996,1996446,10017,"Other LICs","Other LICs"]
[446,1997,1997446,10017,"Other LICs","Other LICs"]
[446,1998,1998446,10017,"Other LICs","Other LICs"]
[446,1999,1999446,10017,"Other LICs","Other LICs"]
[573,2022,2022573,10017,"Other LICs","Other LICs"]
[573,2023,2023573,10017,"Other LICs","Other LICs"]
[573,2024,2024573,10017,"Other LICs","Other LICs"]
[573,2025,2025573,10017,"Other LICs","Other LICs"]
[610,1996,1996610,10017,"Other LICs","Other LICs"]
[610,1997,1997610,10017,"Other LICs","Other LICs"]
[610,1998,1998610,10017,"Other LICs","Other LICs"]
[610,1999,1999610,10017,"Other LICs","Other LICs"]
[610,2000,2000610,10017,"Other LICs","Other LICs"]
[610,2001,2001610,10017,"Other LICs","Other LICs"]
[610,2002,2002610,10017,"Other LICs","Other LICs"]
[610,2003,2003610,10017,"Other LICs","Other LICs"]
[610,2004,2004610,10017,"Other LICs","Other LICs"]
[611,1996,1996611,10017,"Other LICs","Other LICs"]
[611,1997,1997611,10017,"Other LICs","Other LICs"]
[611,1998,1998611,10017,"Other LICs","Other LICs"]
[611,1999,1999611,10017,"Other LICs","Other LICs"]
[611,2000,2000611,10017,"Other LICs","Other LICs"]
[611,2001,2001611,10017,"Other LICs","Other LICs"]
[611,2002,2002611,10017,"Other LICs","Other LICs"]
[611,2003,2003611,10017,"Other LICs","Other LICs"]
[611,2004,2004611,10017,"Other LICs","Other LICs"]
[612,1996,1996612,10017,"Other LICs","Other LICs"]
[612,1997,1997612,10017,"Other LICs","Other LICs"]
[612,1998,1998612,10017,"Other LICs","Other LICs"]
[612,1999,1999612,10017,"Other LICs","Other LICs"]
[612,2003,2003612,10017,"Other LICs","Other LICs"]
[612,2004,2004612,10017,"Other LICs","Other LICs"]
[614,1996,1996614,10017,"Other LICs","Other LICs"]
[614,1997,1997614,10017,"Other LICs","Other LICs"]
[614,1998,1998614,10017,"Other LICs","Other LICs"]
[614,1999,1999614,10017,"Other LICs","Other LICs"]
[614,2000,2000614,10017,"Other LICs","Other LICs"]
[614,2001,2001614,10017,"Other LICs","Other LICs"]
[614,2002,2002614,10017,"Other LICs","Other LICs"]
[614,2003,2003614,10017,"Other LICs","Other LICs"]
[614,2004,2004614,10017,"Other LICs","Other LICs"]
[614,2005,2005614,10017,"Other LICs","Other LICs"]
[614,2006,2006614,10017,"Other LICs","Other LICs"]
[614,2007,2007614,10017,"Other LICs","Other LICs"]
[614,2008,2008614,10017,"Other LICs","Other LICs"]
[614,2009,2009614,10017,"Other LICs","Other LICs"]
[614,2010,2010614,10017,"Other LICs","Other LICs"]
[614,2011,2011614,10017,"Other LICs","Other LICs"]
[614,2012,2012614,10017,"Other LICs","Other LICs"]
[614,2013,2013614,10017,"Other LICs","Other LICs"]
[615,1996,1996615,10017,"Other LICs","Other LICs"]
[615,1997,1997615,10017,"Other LICs","Other LICs"]
[615,1998,1998615,10017,"Other LICs","Other LICs"]
[615,1999,1999615,10017,"Other LICs","Other LICs"]
[615,2000,2000615,10017,"Other LICs","Other LICs"]
[615,2001,2001615,10017,"Other LICs","Other LICs"]
[615,2002,2002615,10017,"Other LICs","Other LICs"]
[615,2003,2003615,10017,"Other LICs","Other LICs"]
[615,2004,2004615,10017,"Other LICs","Other LICs"]
[615,2005,2005615,10017,"Other LICs","Other LICs"]
[615,2006,2006615,10017,"Other LICs","Other LICs"]
[615,2007,2007615,10017,"Other LICs","Other LICs"]
[615,2008,2008615,10017,"Other LICs","Other LICs"]
[615,2009,2009615,10017,"Other LICs","Other LICs"]
[615,2010,2010615,10017,"Other LICs","Other LICs"]
[615,2011,2011615,10017,"Other LICs","Other LICs"]
[615,2012,2012615,10017,"Other LICs","Other LICs"]
[615,2013,2013615,10017,"Other LICs","Other LICs"]
[615,2014,2014615,10017,"Other LICs","Other LICs"]
[615,2015,2015615,10017,"Other LICs","Other LICs"]
[615,2016,2016615,10017,"Other LICs","Other LICs"]
[615,2017,2017615,10017,"Other LICs","Other LICs"]
[616,2000,2000616,10017,"Other LICs","Other LICs"]
[616,2001,2001616,10017,"Other LICs","Other LICs"]
[616,2002,2002616,10017,"Other LICs","Other LICs"]
[617,2003,2003617,10017,"Other LICs","Other LICs"]
[617,2004,2004617,10017,"Other LICs","Other LICs"]
[617,2005,2005617,10017,"Other LICs","Other LICs"]
[617,2006,2006617,10017,"Other LICs","Other LICs"]
[617,2007,2007617,10017,"Other LICs","Other LICs"]
[617,2008,2008617,10017,"Other LICs","Other LICs"]
[617,2009,2009617,10017,"Other LICs","Other LICs"]
[617,2010,2010617,10017,"Other LICs","Other LICs"]
[640,1996,1996640,10017,"Other LICs","Other LICs"]
[640,1997,1997640,10017,"Other LICs","Other LICs"]
[640,1998,1998640,10017,"Other LICs","Other LICs"]
[640,1999,1999640,10017,"Other LICs","Other LICs"]
[645,1996,1996645,10017,"Other LICs","Other LICs"]
[645,1997,1997645,10017,"Other LICs","Other LICs"]
[645,1998,1998645,10017,"Other LICs","Other LICs"]
[645,1999,1999645,10017,"Other LICs","Other LICs"]
[645,2000,2000645,10017,"Other LICs","Other LICs"]
[645,2001,2001645,10017,"Other LICs","Other LICs"]
[645,2002,2002645,10017,"Other LICs","Other LICs"]
[645,2003,2003645,10017,"Other LICs","Other LICs"]
[645,2004,2004645,10017,"Other LICs","Other LICs"]
[645,2005,2005645,10017,"Other LICs","Other LICs"]
[645,2006,2006645,10017,"Other LICs","Other LICs"]
[645,2007,2007645,10017,"Other LICs","Other LICs"]
[665,1996,1996665,10017,"Other LICs","Other LICs"]
[665,1997,1997665,10017,"Other LICs","Other LICs"]
[665,1998,1998665,10017,"Other LICs","Other LICs"]
[665,1999,1999665,10017,"Other LICs","Other LICs"]
[665,2000,2000665,10017,"Other LICs","Other LICs"]
[665,2001,2001665,10017,"Other LICs","Other LICs"]
[665,2002,2002665,10017,"Other LICs","Other LICs"]
[665,2003,2003665,10017,"Other LICs","Other LICs"]
[665,2004,2004665,10017,"Other LICs","Other LICs"]
[665,2005,2005665,10017,"Other LICs","Other LICs"]
[665,2006,2006665,10017,"Other LICs","Other LICs"]
[665,2007,2007665,10017,"Other LICs","Other LICs"]
[665,2008,2008665,10017,"Other LICs","Other LICs"]
[665,2009,2009665,10017,"Other LICs","Other LICs"]
[665,2010,2010665,10017,"Other LICs","Other LICs"]
[730,1996,1996730,10017,"Other LICs","Other LICs"]
[730,1997,1997730,10017,"Other LICs","Other LICs"]
[730,1998,1998730,10017,"Other LICs","Other LICs"]
[730,1999,1999730,10017,"Other LICs","Other LICs"]
[730,2000,2000730,10017,"Other LICs","Other LICs"]
[730,2001,2001730,10017,"Other LICs","Other LICs"]
[730,2002,2002730,10017,"Other LICs","Other LICs"]
[738,2000,2000738,10017,"Other LICs","Other LICs"]
[738,2001,2001738,10017,"Other LICs","Other LICs"]
[738,2002,2002738,10017,"Other LICs","Other LICs"]
[738,2003,2003738,10017,"Other LICs","Other LICs"]
[738,2004,2004738,10017,"Other LICs","Other LICs"]
[740,2000,2000740,10017,"Other LICs","Other LICs"]
[740,2001,2001740,10017,"Other LICs","Other LICs"]
[740,2002,2002740,10017,"Other LICs","Other LICs"]
[740,2003,2003740,10017,"Other LICs","Other LICs"]
[740,2004,2004740,10017,"Other LICs","Other LICs"]
[740,2005,2005740,10017,"Other LICs","Other LICs"]
[740,2006,2006740,10017,"Other LICs","Other LICs"]
[740,2007,2007740,10017,"Other LICs","Other LICs"]
[740,2008,2008740,10017,"Other LICs","Other LICs"]
[740,2009,2009740,10017,"Other LICs","Other LICs"]
[740,2010,2010740,10017,"Other LICs","Other LICs"]
[740,2011,2011740,10017,"Other LICs","Other LICs"]
[740,2012,2012740,10017,"Other LICs","Other LICs"]
[740,2013,2013740,10017,"Other LICs","Other LICs"]
[740,2014,2014740,10017,"Other LICs","Other LICs"]
[740,2015,2015740,10017,"Other LICs","Other LICs"]
[740,2016,2016740,10017,"Other LICs","Other LICs"]
[740,2017,2017740,10017,"Other LICs","Other LICs"]
[740,2018,2018740,10017,"Other LICs","Other LICs"]
[740,2019,2019740,10017,"Other LICs","Other LICs"]
[740,2020,2020740,10017,"Other LICs","Other LICs"]
[740,2021,2021740,10017,"Other LICs","Other LICs"]
[740,2022,2022740,10017,"Other LICs","Other LICs"]
[740,2023,2023740,10017,"Other LICs","Other LICs"]
[740,2024,2024740,10017,"Other LICs","Other LICs"]
[740,2025,2025740,10017,"Other LICs","Other LICs"]
[753,1996,1996753,10017,"Other LICs","Other LICs"]
[753,1997,1997753,10017,"Other LICs","Other LICs"]
[753,1998,1998753,10017,"Other LICs","Other LICs"]
[753,1999,1999753,10017,"Other LICs","Other LICs"]
[753,2000,2000753,10017,"Other LICs","Other LICs"]
[753,2001,2001753,10017,"Other LICs","Other LICs"]
[753,2002,2002753,10017,"Other LICs","Other LICs"]
[753,2003,2003753,10017,"Other LICs","Other LICs"]
[753,2004,2004753,10017,"Other LICs","Other LICs"]
[753,2005,2005753,10017,"Other LICs","Other LICs"]
[753,2006,2006753,10017,"Other LICs","Other LICs"]
[753,2007,2007753,10017,"Other LICs","Other LICs"]
[765,2000,2000765,10017,"Other LICs","Other LICs"]
[765,2001,2001765,10017,"Other LICs","Other LICs"]
[765,2002,2002765,10017,"Other LICs","Other LICs"]
[769,1996,1996769,10017,"Other LICs","Other LICs"]
[769,1997,1997769,10017,"Other LICs","Other LICs"]
[769,1998,1998769,10017,"Other LICs","Other LICs"]
[769,1999,1999769,10017,"Other LICs","Other LICs"]
[769,2000,2000769,10017,"Other LICs","Other LICs"]
[769,2001,2001769,10017,"Other LICs","Other LICs"]
[769,2002,2002769,10017,"Other LICs","Other LICs"]
[769,2003,2003769,10017,"Other LICs","Other LICs"]
[769,2004,2004769,10017,"Other LICs","Other LICs"]
[769,2005,2005769,10017,"Other LICs","Other LICs"]
[769,2006,2006769,10017,"Other LICs","Other LICs"]
[769,2007,2007769,10017,"Other LICs","Other LICs"]
[769,2008,2008769,10017,"Other LICs","Other LICs"]
[769,2009,2009769,10017,"Other LICs","Other LICs"]
[769,2010,2010769,10017,"Other LICs","Other LICs"]
[862,2003,2003862,10017,"Other LICs","Other LICs"]
[862,2004,2004862,10017,"Other LICs","Other LICs"]
[862,2005,2005862,10017,"Other LICs","Other LICs"]
[862,2006,2006862,10017,"Other LICs","Other LICs"]
[862,2007,2007862,10017,"Other LICs","Other LICs"]
[862,2008,2008862,10017,"Other LICs","Other LICs"]
[862,2009,2009862,10017,"Other LICs","Other LICs"]
[862,2010,2010862,10017,"Other LICs","Other LICs"]
[55,1996,199655,10018,"LMICs","LMICs"]
[55,1997,199755,10018,"LMICs","LMICs"]
[55,1998,199855,10018,"LMICs","LMICs"]
[55,1999,199955,10018,"LMICs","LMICs"]
[55,2003,200355,10018,"LMICs","LMICs"]
[55,2004,200455,10018,"LMICs","LMICs"]
[57,2009,200957,10018,"LMICs","LMICs"]
[57,2010,201057,10018,"LMICs","LMICs"]
[57,2011,201157,10018,"LMICs","LMICs"]
[57,2012,201257,10018,"LMICs","LMICs"]
[57,2013,201357,10018,"LMICs","LMICs"]
[57,2014,201457,10018,"LMICs","LMICs"]
[57,2015,201557,10018,"LMICs","LMICs"]
[57,2016,201657,10018,"LMICs","LMICs"]
[57,2017,201757,10018,"LMICs","LMICs"]
[57,2018,201857,10018,"LMICs","LMICs"]
[57,2019,201957,10018,"LMICs","LMICs"]
[57,2020,202057,10018,"LMICs","LMICs"]
[57,2021,202157,10018,"LMICs","LMICs"]
[63,1996,199663,10018,"LMICs","LMICs"]
[63,1997,199763,10018,"LMICs","LMICs"]
[63,1998,199863,10018,"LMICs","LMICs"]
[63,1999,199963,10018,"LMICs","LMICs"]
[63,2000,200063,10018,"LMICs","LMICs"]
[63,2001,200163,10018,"LMICs","LMICs"]
[63,2002,200263,10018,"LMICs","LMICs"]
[63,2003,200363,10018,"LMICs","LMICs"]
[63,2004,200463,10018,"LMICs","LMICs"]
[63,2005,200563,10018,"LMICs","LMICs"]
[63,2006,200663,10018,"LMICs","LMICs"]
[63,2007,200763,10018,"LMICs","LMICs"]
[64,2000,200064,10018,"LMICs","LMICs"]
[64,2001,200164,10018,"LMICs","LMICs"]
[64,2002,200264,10018,"LMICs","LMICs"]
[64,2003,200364,10018,"LMICs","LMICs"]
[64,2004,200464,10018,"LMICs","LMICs"]
[64,2005,200564,10018,"LMICs","LMICs"]
[64,2006,200664,10018,"LMICs","LMICs"]
[64,2007,200764,10018,"LMICs","LMICs"]
[64,2008,200864,10018,"LMICs","LMICs"]
[64,2009,200964,10018,"LMICs","LMICs"]
[64,2010,201064,10018,"LMICs","LMICs"]
[65,1999,199965,10018,"LMICs","LMICs"]
[65,2000,200065,10018,"LMICs","LMICs"]
[65,2001,200165,10018,"LMICs","LMICs"]
[65,2002,200265,10018,"LMICs","LMICs"]
[65,2003,200365,10018,"LMICs","LMICs"]
[65,2004,200465,10018,"LMICs","LMICs"]
[65,2005,200565,10018,"LMICs","LMICs"]
[65,2006,200665,10018,"LMICs","LMICs"]
[65,2007,200765,10018,"LMICs","LMICs"]
[66,1996,199666,10018,"LMICs","LMICs"]
[66,1997,199766,10018,"LMICs","LMICs"]
[66,1998,199866,10018,"LMICs","LMICs"]
[66,1999,199966,10018,"LMICs","LMICs"]
[66,2000,200066,10018,"LMICs","LMICs"]
[66,2001,200166,10018,"LMICs","LMICs"]
[66,2002,200266,10018,"LMICs","LMICs"]
[66,2003,200366,10018,"LMICs","LMICs"]
[66,2004,200466,10018,"LMICs","LMICs"]
[66,2005,200566,10018,"LMICs","LMICs"]
[66,2006,200666,10018,"LMICs","LMICs"]
[66,2007,200766,10018,"LMICs","LMICs"]
[66,2008,200866,10018,"LMICs","LMICs"]
[66,2009,200966,10018,"LMICs","LMICs"]
[66,2010,201066,10018,"LMICs","LMICs"]
[71,2000,200071,10018,"LMICs","LMICs"]
[71,2001,200171,10018,"LMICs","LMICs"]
[71,2002,200271,10018,"LMICs","LMICs"]
[71,2003,200371,10018,"LMICs","LMICs"]
[71,2004,200471,10018,"LMICs","LMICs"]
[71,2005,200571,10018,"LMICs","LMICs"]
[71,2006,200671,10018,"LMICs","LMICs"]
[71,2007,200771,10018,"LMICs","LMICs"]
[71,2008,200871,10018,"LMICs","LMICs"]
[71,2009,200971,10018,"LMICs","LMICs"]
[71,2010,201071,10018,"LMICs","LMICs"]
[85,2005,200585,10018,"LMICs","LMICs"]
[85,2006,200685,10018,"LMICs","LMICs"]
[85,2007,200785,10018,"LMICs","LMICs"]
[85,2008,200885,10018,"LMICs","LMICs"]
[85,2009,200985,10018,"LMICs","LMICs"]
[85,2010,201085,10018,"LMICs","LMICs"]
[85,2011,201185,10018,"LMICs","LMICs"]
[85,2012,201285,10018,"LMICs","LMICs"]
[85,2013,201385,10018,"LMICs","LMICs"]
[85,2014,201485,10018,"LMICs","LMICs"]
[85,2015,201585,10018,"LMICs","LMICs"]
[85,2016,201685,10018,"LMICs","LMICs"]
[85,2017,201785,10018,"LMICs","LMICs"]
[85,2018,201885,10018,"LMICs","LMICs"]
[85,2019,201985,10018,"LMICs","LMICs"]
[85,2020,202085,10018,"LMICs","LMICs"]
[85,2021,202185,10018,"LMICs","LMICs"]
[85,2022,202285,10018,"LMICs","LMICs"]
[85,2023,202385,10018,"LMICs","LMICs"]
[85,2024,202485,10018,"LMICs","LMICs"]
[85,2025,202585,10018,"LMICs","LMICs"]
[86,2005,200586,10018,"LMICs","LMICs"]
[86,2006,200686,10018,"LMICs","LMICs"]
[86,2007,200786,10018,"LMICs","LMICs"]
[93,1997,199793,10018,"LMICs","LMICs"]
[93,1998,199893,10018,"LMICs","LMICs"]
[93,1999,199993,10018,"LMICs","LMICs"]
[93,2008,200893,10018,"LMICs","LMICs"]
[93,2009,200993,10018,"LMICs","LMICs"]
[93,2010,201093,10018,"LMICs","LMICs"]
[93,2011,201193,10018,"LMICs","LMICs"]
[93,2012,201293,10018,"LMICs","LMICs"]
[93,2013,201393,10018,"LMICs","LMICs"]
[93,2014,201493,10018,"LMICs","LMICs"]
[93,2015,201593,10018,"LMICs","LMICs"]
[93,2016,201693,10018,"LMICs","LMICs"]
[93,2017,201793,10018,"LMICs","LMICs"]
[93,2018,201893,10018,"LMICs","LMICs"]
[93,2019,201993,10018,"LMICs","LMICs"]
[93,2020,202093,10018,"LMICs","LMICs"]
[93,2021,202193,10018,"LMICs","LMICs"]
[130,1996,1996130,10018,"LMICs","LMICs"]
[130,1997,1997130,10018,"LMICs","LMICs"]
[130,1998,1998130,10018,"LMICs","LMICs"]
[130,1999,1999130,10018,"LMICs","LMICs"]
[130,2000,2000130,10018,"LMICs","LMICs"]
[130,2001,2001130,10018,"LMICs","LMICs"]
[130,2002,2002130,10018,"LMICs","LMICs"]
[130,2003,2003130,10018,"LMICs","LMICs"]
[130,2004,2004130,10018,"LMICs","LMICs"]
[130,2005,2005130,10018,"LMICs","LMICs"]
[130,2006,2006130,10018,"LMICs","LMICs"]
[130,2007,2007130,10018,"LMICs","LMICs"]
[130,2008,2008130,10018,"LMICs","LMICs"]
[130,2009,2009130,10018,"LMICs","LMICs"]
[130,2010,2010130,10018,"LMICs","LMICs"]
[130,2022,2022130,10018,"LMICs","LMICs"]
[130,2023,2023130,10018,"LMICs","LMICs"]
[130,2024,2024130,10018,"LMICs","LMICs"]
[130,2025,2025130,10018,"LMICs","LMICs"]
[136,1996,1996136,10018,"LMICs","LMICs"]
[136,1997,1997136,10018,"LMICs","LMICs"]
[136,1998,1998136,10018,"LMICs","LMICs"]
[136,1999,1999136,10018,"LMICs","LMICs"]
[136,2000,2000136,10018,"LMICs","LMICs"]
[136,2001,2001136,10018,"LMICs","LMICs"]
[136,2002,2002136,10018,"LMICs","LMICs"]
[136,2003,2003136,10018,"LMICs","LMICs"]
[136,2004,2004136,10018,"LMICs","LMICs"]
[136,2005,2005136,10018,"LMICs","LMICs"]
[136,2006,2006136,10018,"LMICs","LMICs"]
[136,2007,2007136,10018,"LMICs","LMICs"]
[136,2008,2008136,10018,"LMICs","LMICs"]
[136,2009,2009136,10018,"LMICs","LMICs"]
[136,2010,2010136,10018,"LMICs","LMICs"]
[136,2011,2011136,10018,"LMICs","LMICs"]
[136,2012,2012136,10018,"LMICs","LMICs"]
[136,2013,2013136,10018,"LMICs","LMICs"]
[136,2014,2014136,10018,"LMICs","LMICs"]
[136,2015,2015136,10018,"LMICs","LMICs"]
[136,2016,2016136,10018,"LMICs","LMICs"]
[136,2017,2017136,10018,"LMICs","LMICs"]
[136,2018,2018136,10018,"LMICs","LMICs"]
[136,2019,2019136,10018,"LMICs","LMICs"]
[136,2020,2020136,10018,"LMICs","LMICs"]
[136,2021,2021136,10018,"LMICs","LMICs"]
[136,2022,2022136,10018,"LMICs","LMICs"]
[136,2023,2023136,10018,"LMICs","LMICs"]
[136,2024,2024136,10018,"LMICs","LMICs"]
[136,2025,2025136,10018,"LMICs","LMICs"]
[139,1996,1996139,10018,"LMICs","LMICs"]
[139,1997,1997139,10018,"LMICs","LMICs"]
[139,1998,1998139,10018,"LMICs","LMICs"]
[139,1999,1999139,10018,"LMICs","LMICs"]
[139,2000,2000139,10018,"LMICs","LMICs"]
[139,2001,2001139,10018,"LMICs","LMICs"]
[139,2002,2002139,10018,"LMICs","LMICs"]
[139,2003,2003139,10018,"LMICs","LMICs"]
[139,2004,2004139,10018,"LMICs","LMICs"]
[139,2005,2005139,10018,"LMICs","LMICs"]
[139,2006,2006139,10018,"LMICs","LMICs"]
[139,2007,2007139,10018,"LMICs","LMICs"]
[139,2008,2008139,10018,"LMICs","LMICs"]
[139,2009,2009139,10018,"LMICs","LMICs"]
[139,2010,2010139,10018,"LMICs","LMICs"]
[139,2018,2018139,10018,"LMICs","LMICs"]
[139,2019,2019139,10018,"LMICs","LMICs"]
[139,2020,2020139,10018,"LMICs","LMICs"]
[139,2021,2021139,10018,"LMICs","LMICs"]
[139,2022,2022139,10018,"LMICs","LMICs"]
[139,2023,2023139,10018,"LMICs","LMICs"]
[139,2024,2024139,10018,"LMICs","LMICs"]
[139,2025,2025139,10018,"LMICs","LMICs"]
[142,1996,1996142,10018,"LMICs","LMICs"]
[142,1997,1997142,10018,"LMICs","LMICs"]
[142,1998,1998142,10018,"LMICs","LMICs"]
[142,1999,1999142,10018,"LMICs","LMICs"]
[142,2000,2000142,10018,"LMICs","LMICs"]
[142,2001,2001142,10018,"LMICs","LMICs"]
[142,2002,2002142,10018,"LMICs","LMICs"]
[142,2003,2003142,10018,"LMICs","LMICs"]
[142,2004,2004142,10018,"LMICs","LMICs"]
[142,2005,2005142,10018,"LMICs","LMICs"]
[142,2006,2006142,10018,"LMICs","LMICs"]
[142,2007,2007142,10018,"LMICs","LMICs"]
[142,2008,2008142,10018,"LMICs","LMICs"]
[142,2009,2009142,10018,"LMICs","LMICs"]
[142,2010,2010142,10018,"LMICs","LMICs"]
[142,2011,2011142,10018,"LMICs","LMICs"]
[142,2012,2012142,10018,"LMICs","LMICs"]
[142,2013,2013142,10018,"LMICs","LMICs"]
[142,2014,2014142,10018,"LMICs","LMICs"]
[142,2015,2015142,10018,"LMICs","LMICs"]
[142,2016,2016142,10018,"LMICs","LMICs"]
[142,2017,2017142,10018,"LMICs","LMICs"]
[142,2018,2018142,10018,"LMICs","LMICs"]
[142,2019,2019142,10018,"LMICs","LMICs"]
[142,2020,2020142,10018,"LMICs","LMICs"]
[142,2021,2021142,10018,"LMICs","LMICs"]
[142,2022,2022142,10018,"LMICs","LMICs"]
[142,2023,2023142,10018,"LMICs","LMICs"]
[142,2024,2024142,10018,"LMICs","LMICs"]
[142,2025,2025142,10018,"LMICs","LMICs"]
[218,2000,2000218,10018,"LMICs","LMICs"]
[218,2001,2001218,10018,"LMICs","LMICs"]
[218,2002,2002218,10018,"LMICs","LMICs"]
[218,2003,2003218,10018,"LMICs","LMICs"]
[218,2004,2004218,10018,"LMICs","LMICs"]
[227,1996,1996227,10018,"LMICs","LMICs"]
[227,1997,1997227,10018,"LMICs","LMICs"]
[227,1998,1998227,10018,"LMICs","LMICs"]
[227,1999,1999227,10018,"LMICs","LMICs"]
[229,2008,2008229,10018,"LMICs","LMICs"]
[229,2009,2009229,10018,"LMICs","LMICs"]
[229,2010,2010229,10018,"LMICs","LMICs"]
[229,2011,2011229,10018,"LMICs","LMICs"]
[229,2012,2012229,10018,"LMICs","LMICs"]
[229,2013,2013229,10018,"LMICs","LMICs"]
[229,2014,2014229,10018,"LMICs","LMICs"]
[229,2015,2015229,10018,"LMICs","LMICs"]
[229,2016,2016229,10018,"LMICs","LMICs"]
[229,2017,2017229,10018,"LMICs","LMICs"]
[229,2018,2018229,10018,"LMICs","LMICs"]
[229,2019,2019229,10018,"LMICs","LMICs"]
[229,2020,2020229,10018,"LMICs","LMICs"]
[229,2021,2021229,10018,"LMICs","LMICs"]
[229,2022,2022229,10018,"LMICs","LMICs"]
[229,2023,2023229,10018,"LMICs","LMICs"]
[229,2024,2024229,10018,"LMICs","LMICs"]
[229,2025,2025229,10018,"LMICs","LMICs"]
[230,2007,2007230,10018,"LMICs","LMICs"]
[230,2008,2008230,10018,"LMICs","LMICs"]
[230,2009,2009230,10018,"LMICs","LMICs"]
[230,2010,2010230,10018,"LMICs","LMICs"]
[230,2011,2011230,10018,"LMICs","LMICs"]
[230,2012,2012230,10018,"LMICs","LMICs"]
[230,2013,2013230,10018,"LMICs","LMICs"]
[230,2014,2014230,10018,"LMICs","LMICs"]
[230,2015,2015230,10018,"LMICs","LMICs"]
[230,2016,2016230,10018,"LMICs","LMICs"]
[230,2017,2017230,10018,"LMICs","LMICs"]
[230,2018,2018230,10018,"LMICs","LMICs"]
[230,2019,2019230,10018,"LMICs","LMICs"]
[230,2020,2020230,10018,"LMICs","LMICs"]
[230,2021,2021230,10018,"LMICs","LMICs"]
[230,2022,2022230,10018,"LMICs","LMICs"]
[230,2023,2023230,10018,"LMICs","LMICs"]
[230,2024,2024230,10018,"LMICs","LMICs"]
[230,2025,2025230,10018,"LMICs","LMICs"]
[234,2008,2008234,10018,"LMICs","LMICs"]
[234,2009,2009234,10018,"LMICs","LMICs"]
[234,2010,2010234,10018,"LMICs","LMICs"]
[234,2011,2011234,10018,"LMICs","LMICs"]
[234,2012,2012234,10018,"LMICs","LMICs"]
[234,2013,2013234,10018,"LMICs","LMICs"]
[234,2014,2014234,10018,"LMICs","LMICs"]
[234,2015,2015234,10018,"LMICs","LMICs"]
[234,2016,2016234,10018,"LMICs","LMICs"]
[234,2017,2017234,10018,"LMICs","LMICs"]
[234,2018,2018234,10018,"LMICs","LMICs"]
[234,2019,2019234,10018,"LMICs","LMICs"]
[234,2020,2020234,10018,"LMICs","LMICs"]
[234,2021,2021234,10018,"LMICs","LMICs"]
[234,2022,2022234,10018,"LMICs","LMICs"]
[234,2023,2023234,10018,"LMICs","LMICs"]
[234,2024,2024234,10018,"LMICs","LMICs"]
[234,2025,2025234,10018,"LMICs","LMICs"]
[241,2011,2011241,10018,"LMICs","LMICs"]
[241,2012,2012241,10018,"LMICs","LMICs"]
[241,2013,2013241,10018,"LMICs","LMICs"]
[241,2014,2014241,10018,"LMICs","LMICs"]
[241,2015,2015241,10018,"LMICs","LMICs"]
[241,2016,2016241,10018,"LMICs","LMICs"]
[241,2017,2017241,10018,"LMICs","LMICs"]
[241,2018,2018241,10018,"LMICs","LMICs"]
[241,2019,2019241,10018,"LMICs","LMICs"]
[241,2020,2020241,10018,"LMICs","LMICs"]
[241,2021,2021241,10018,"LMICs","LMICs"]
[241,2022,2022241,10018,"LMICs","LMICs"]
[241,2023,2023241,10018,"LMICs","LMICs"]
[241,2024,2024241,10018,"LMICs","LMICs"]
[241,2025,2025241,10018,"LMICs","LMICs"]
[247,2011,2011247,10018,"LMICs","LMICs"]
[247,2012,2012247,10018,"LMICs","LMICs"]
[247,2013,2013247,10018,"LMICs","LMICs"]
[247,2014,2014247,10018,"LMICs","LMICs"]
[247,2015,2015247,10018,"LMICs","LMICs"]
[247,2016,2016247,10018,"LMICs","LMICs"]
[247,2017,2017247,10018,"LMICs","LMICs"]
[247,2018,2018247,10018,"LMICs","LMICs"]
[247,2019,2019247,10018,"LMICs","LMICs"]
[247,2020,2020247,10018,"LMICs","LMICs"]
[247,2021,2021247,10018,"LMICs","LMICs"]
[247,2022,2022247,10018,"LMICs","LMICs"]
[247,2023,2023247,10018,"LMICs","LMICs"]
[247,2024,2024247,10018,"LMICs","LMICs"]
[247,2025,2025247,10018,"LMICs","LMICs"]
[248,2018,2018248,10018,"LMICs","LMICs"]
[248,2019,2019248,10018,"LMICs","LMICs"]
[248,2020,2020248,10018,"LMICs","LMICs"]
[248,2021,2021248,10018,"LMICs","LMICs"]
[248,2022,2022248,10018,"LMICs","LMICs"]
[248,2023,2023248,10018,"LMICs","LMICs"]
[248,2024,2024248,10018,"LMICs","LMICs"]
[248,2025,2025248,10018,"LMICs","LMICs"]
[261,2011,2011261,10018,"LMICs","LMICs"]
[261,2012,2012261,10018,"LMICs","LMICs"]
[261,2013,2013261,10018,"LMICs","LMICs"]
[261,2014,2014261,10018,"LMICs","LMICs"]
[261,2015,2015261,10018,"LMICs","LMICs"]
[261,2016,2016261,10018,"LMICs","LMICs"]
[261,2017,2017261,10018,"LMICs","LMICs"]
[261,2018,2018261,10018,"LMICs","LMICs"]
[261,2019,2019261,10018,"LMICs","LMICs"]
[261,2020,2020261,10018,"LMICs","LMICs"]
[261,2021,2021261,10018,"LMICs","LMICs"]
[261,2022,2022261,10018,"LMICs","LMICs"]
[261,2023,2023261,10018,"LMICs","LMICs"]
[261,2024,2024261,10018,"LMICs","LMICs"]
[261,2025,2025261,10018,"LMICs","LMICs"]
[265,2022,2022265,10018,"LMICs","LMICs"]
[265,2023,2023265,10018,"LMICs","LMICs"]
[265,2024,2024265,10018,"LMICs","LMICs"]
[265,2025,2025265,10018,"LMICs","LMICs"]
[268,2025,2025268,10018,"LMICs","LMICs"]
[275,1996,1996275,10018,"LMICs","LMICs"]
[275,1997,1997275,10018,"LMICs","LMICs"]
[275,1998,1998275,10018,"LMICs","LMICs"]
[275,1999,1999275,10018,"LMICs","LMICs"]
[275,2000,2000275,10018,"LMICs","LMICs"]
[275,2001,2001275,10018,"LMICs","LMICs"]
[275,2002,2002275,10018,"LMICs","LMICs"]
[275,2003,2003275,10018,"LMICs","LMICs"]
[275,2004,2004275,10018,"LMICs","LMICs"]
[275,2005,2005275,10018,"LMICs","LMICs"]
[275,2006,2006275,10018,"LMICs","LMICs"]
[275,2007,2007275,10018,"LMICs","LMICs"]
[275,2008,2008275,10018,"LMICs","LMICs"]
[275,2009,2009275,10018,"LMICs","LMICs"]
[275,2010,2010275,10018,"LMICs","LMICs"]
[280,1996,1996280,10018,"LMICs","LMICs"]
[280,1997,1997280,10018,"LMICs","LMICs"]
[280,1998,1998280,10018,"LMICs","LMICs"]
[280,1999,1999280,10018,"LMICs","LMICs"]
[280,2000,2000280,10018,"LMICs","LMICs"]
[280,2001,2001280,10018,"LMICs","LMICs"]
[280,2002,2002280,10018,"LMICs","LMICs"]
[280,2003,2003280,10018,"LMICs","LMICs"]
[280,2004,2004280,10018,"LMICs","LMICs"]
[280,2005,2005280,10018,"LMICs","LMICs"]
[280,2006,2006280,10018,"LMICs","LMICs"]
[280,2007,2007280,10018,"LMICs","LMICs"]
[280,2008,2008280,10018,"LMICs","LMICs"]
[280,2009,2009280,10018,"LMICs","LMICs"]
[280,2010,2010280,10018,"LMICs","LMICs"]
[280,2011,2011280,10018,"LMICs","LMICs"]
[280,2012,2012280,10018,"LMICs","LMICs"]
[280,2013,2013280,10018,"LMICs","LMICs"]
[280,2014,2014280,10018,"LMICs","LMICs"]
[280,2015,2015280,10018,"LMICs","LMICs"]
[280,2016,2016280,10018,"LMICs","LMICs"]
[280,2017,2017280,10018,"LMICs","LMICs"]
[280,2018,2018280,10018,"LMICs","LMICs"]
[280,2019,2019280,10018,"LMICs","LMICs"]
[280,2020,2020280,10018,"LMICs","LMICs"]
[280,2021,2021280,10018,"LMICs","LMICs"]
[280,2022,2022280,10018,"LMICs","LMICs"]
[280,2023,2023280,10018,"LMICs","LMICs"]
[280,2024,2024280,10018,"LMICs","LMICs"]
[280,2025,2025280,10018,"LMICs","LMICs"]
[336,1996,1996336,10018,"LMICs","LMICs"]
[336,1997,1997336,10018,"LMICs","LMICs"]
[336,1998,1998336,10018,"LMICs","LMICs"]
[336,1999,1999336,10018,"LMICs","LMICs"]
[336,2000,2000336,10018,"LMICs","LMICs"]
[336,2001,2001336,10018,"LMICs","LMICs"]
[336,2002,2002336,10018,"LMICs","LMICs"]
[338,1996,1996338,10018,"LMICs","LMICs"]
[338,1997,1997338,10018,"LMICs","LMICs"]
[338,1998,1998338,10018,"LMICs","LMICs"]
[338,1999,1999338,10018,"LMICs","LMICs"]
[338,2000,2000338,10018,"LMICs","LMICs"]
[338,2001,2001338,10018,"LMICs","LMICs"]
[338,2002,2002338,10018,"LMICs","LMICs"]
[338,2003,2003338,10018,"LMICs","LMICs"]
[338,2004,2004338,10018,"LMICs","LMICs"]
[338,2005,2005338,10018,"LMICs","LMICs"]
[338,2006,2006338,10018,"LMICs","LMICs"]
[338,2007,2007338,10018,"LMICs","LMICs"]
[340,1996,1996340,10018,"LMICs","LMICs"]
[340,1997,1997340,10018,"LMICs","LMICs"]
[340,1998,1998340,10018,"LMICs","LMICs"]
[340,1999,1999340,10018,"LMICs","LMICs"]
[340,2000,2000340,10018,"LMICs","LMICs"]
[340,2001,2001340,10018,"LMICs","LMICs"]
[340,2002,2002340,10018,"LMICs","LMICs"]
[340,2003,2003340,10018,"LMICs","LMICs"]
[340,2004,2004340,10018,"LMICs","LMICs"]
[340,2005,2005340,10018,"LMICs","LMICs"]
[340,2006,2006340,10018,"LMICs","LMICs"]
[340,2007,2007340,10018,"LMICs","LMICs"]
[340,2008,2008340,10018,"LMICs","LMICs"]
[340,2009,2009340,10018,"LMICs","LMICs"]
[340,2010,2010340,10018,"LMICs","LMICs"]
[342,1996,1996342,10018,"LMICs","LMICs"]
[342,1997,1997342,10018,"LMICs","LMICs"]
[342,1998,1998342,10018,"LMICs","LMICs"]
[342,1999,1999342,10018,"LMICs","LMICs"]
[342,2000,2000342,10018,"LMICs","LMICs"]
[342,2001,2001342,10018,"LMICs","LMICs"]
[342,2002,2002342,10018,"LMICs","LMICs"]
[342,2003,2003342,10018,"LMICs","LMICs"]
[342,2004,2004342,10018,"LMICs","LMICs"]
[342,2005,2005342,10018,"LMICs","LMICs"]
[342,2006,2006342,10018,"LMICs","LMICs"]
[342,2007,2007342,10018,"LMICs","LMICs"]
[342,2008,2008342,10018,"LMICs","LMICs"]
[342,2009,2009342,10018,"LMICs","LMICs"]
[342,2010,2010342,10018,"LMICs","LMICs"]
[342,2011,2011342,10018,"LMICs","LMICs"]
[342,2012,2012342,10018,"LMICs","LMICs"]
[342,2013,2013342,10018,"LMICs","LMICs"]
[342,2014,2014342,10018,"LMICs","LMICs"]
[342,2015,2015342,10018,"LMICs","LMICs"]
[342,2016,2016342,10018,"LMICs","LMICs"]
[342,2017,2017342,10018,"LMICs","LMICs"]
[342,2018,2018342,10018,"LMICs","LMICs"]
[342,2019,2019342,10018,"LMICs","LMICs"]
[342,2020,2020342,10018,"LMICs","LMICs"]
[342,2021,2021342,10018,"LMICs","LMICs"]
[342,2022,2022342,10018,"LMICs","LMICs"]
[342,2023,2023342,10018,"LMICs","LMICs"]
[347,1996,1996347,10018,"LMICs","LMICs"]
[347,1997,1997347,10018,"LMICs","LMICs"]
[347,1998,1998347,10018,"LMICs","LMICs"]
[347,1999,1999347,10018,"LMICs","LMICs"]
[347,2000,2000347,10018,"LMICs","LMICs"]
[347,2001,2001347,10018,"LMICs","LMICs"]
[347,2002,2002347,10018,"LMICs","LMICs"]
[347,2003,2003347,10018,"LMICs","LMICs"]
[347,2004,2004347,10018,"LMICs","LMICs"]
[347,2005,2005347,10018,"LMICs","LMICs"]
[347,2006,2006347,10018,"LMICs","LMICs"]
[347,2007,2007347,10018,"LMICs","LMICs"]
[347,2008,2008347,10018,"LMICs","LMICs"]
[347,2009,2009347,10018,"LMICs","LMICs"]
[347,2010,2010347,10018,"LMICs","LMICs"]
[347,2011,2011347,10018,"LMICs","LMICs"]
[347,2012,2012347,10018,"LMICs","LMICs"]
[347,2013,2013347,10018,"LMICs","LMICs"]
[347,2014,2014347,10018,"LMICs","LMICs"]
[347,2015,2015347,10018,"LMICs","LMICs"]
[347,2016,2016347,10018,"LMICs","LMICs"]
[347,2017,2017347,10018,"LMICs","LMICs"]
[347,2018,2018347,10018,"LMICs","LMICs"]
[347,2019,2019347,10018,"LMICs","LMICs"]
[347,2020,2020347,10018,"LMICs","LMICs"]
[347,2021,2021347,10018,"LMICs","LMICs"]
[351,2003,2003351,10018,"LMICs","LMICs"]
[351,2004,2004351,10018,"LMICs","LMICs"]
[351,2005,2005351,10018,"LMICs","LMICs"]
[351,2006,2006351,10018,"LMICs","LMICs"]
[351,2007,2007351,10018,"LMICs","LMICs"]
[351,2008,2008351,10018,"LMICs","LMICs"]
[351,2009,2009351,10018,"LMICs","LMICs"]
[351,2010,2010351,10018,"LMICs","LMICs"]
[351,2011,2011351,10018,"LMICs","LMICs"]
[351,2012,2012351,10018,"LMICs","LMICs"]
[351,2013,2013351,10018,"LMICs","LMICs"]
[351,2014,2014351,10018,"LMICs","LMICs"]
[351,2015,2015351,10018,"LMICs","LMICs"]
[351,2016,2016351,10018,"LMICs","LMICs"]
[351,2017,2017351,10018,"LMICs","LMICs"]
[351,2018,2018351,10018,"LMICs","LMICs"]
[351,2019,2019351,10018,"LMICs","LMICs"]
[351,2020,2020351,10018,"LMICs","LMICs"]
[351,2021,2021351,10018,"LMICs","LMICs"]
[351,2022,2022351,10018,"LMICs","LMICs"]
[351,2023,2023351,10018,"LMICs","LMICs"]
[351,2024,2024351,10018,"LMICs","LMICs"]
[351,2025,2025351,10018,"LMICs","LMICs"]
[352,1996,1996352,10018,"LMICs","LMICs"]
[352,1997,1997352,10018,"LMICs","LMICs"]
[352,1998,1998352,10018,"LMICs","LMICs"]
[352,1999,1999352,10018,"LMICs","LMICs"]
[352,2000,2000352,10018,"LMICs","LMICs"]
[352,2001,2001352,10018,"LMICs","LMICs"]
[352,2002,2002352,10018,"LMICs","LMICs"]
[352,2003,2003352,10018,"LMICs","LMICs"]
[352,2004,2004352,10018,"LMICs","LMICs"]
[352,2011,2011352,10018,"LMICs","LMICs"]
[352,2012,2012352,10018,"LMICs","LMICs"]
[352,2013,2013352,10018,"LMICs","LMICs"]
[352,2022,2022352,10018,"LMICs","LMICs"]
[352,2023,2023352,10018,"LMICs","LMICs"]
[354,1996,1996354,10018,"LMICs","LMICs"]
[354,1997,1997354,10018,"LMICs","LMICs"]
[354,1998,1998354,10018,"LMICs","LMICs"]
[354,1999,1999354,10018,"LMICs","LMICs"]
[354,2000,2000354,10018,"LMICs","LMICs"]
[354,2001,2001354,10018,"LMICs","LMICs"]
[354,2002,2002354,10018,"LMICs","LMICs"]
[354,2003,2003354,10018,"LMICs","LMICs"]
[354,2004,2004354,10018,"LMICs","LMICs"]
[354,2005,2005354,10018,"LMICs","LMICs"]
[354,2006,2006354,10018,"LMICs","LMICs"]
[354,2007,2007354,10018,"LMICs","LMICs"]
[364,2008,2008364,10018,"LMICs","LMICs"]
[364,2009,2009364,10018,"LMICs","LMICs"]
[364,2010,2010364,10018,"LMICs","LMICs"]
[364,2011,2011364,10018,"LMICs","LMICs"]
[364,2012,2012364,10018,"LMICs","LMICs"]
[364,2013,2013364,10018,"LMICs","LMICs"]
[364,2014,2014364,10018,"LMICs","LMICs"]
[364,2015,2015364,10018,"LMICs","LMICs"]
[364,2016,2016364,10018,"LMICs","LMICs"]
[364,2017,2017364,10018,"LMICs","LMICs"]
[364,2018,2018364,10018,"LMICs","LMICs"]
[364,2019,2019364,10018,"LMICs","LMICs"]
[364,2020,2020364,10018,"LMICs","LMICs"]
[364,2021,2021364,10018,"LMICs","LMICs"]
[364,2022,2022364,10018,"LMICs","LMICs"]
[364,2023,2023364,10018,"LMICs","LMICs"]
[364,2024,2024364,10018,"LMICs","LMICs"]
[364,2025,2025364,10018,"LMICs","LMICs"]
[366,1996,1996366,10018,"LMICs","LMICs"]
[366,1997,1997366,10018,"LMICs","LMICs"]
[366,1998,1998366,10018,"LMICs","LMICs"]
[366,1999,1999366,10018,"LMICs","LMICs"]
[378,1996,1996378,10018,"LMICs","LMICs"]
[378,1997,1997378,10018,"LMICs","LMICs"]
[378,1998,1998378,10018,"LMICs","LMICs"]
[378,1999,1999378,10018,"LMICs","LMICs"]
[378,2000,2000378,10018,"LMICs","LMICs"]
[378,2001,2001378,10018,"LMICs","LMICs"]
[378,2002,2002378,10018,"LMICs","LMICs"]
[381,1996,1996381,10018,"LMICs","LMICs"]
[381,1997,1997381,10018,"LMICs","LMICs"]
[381,1998,1998381,10018,"LMICs","LMICs"]
[381,1999,1999381,10018,"LMICs","LMICs"]
[384,1996,1996384,10018,"LMICs","LMICs"]
[384,1997,1997384,10018,"LMICs","LMICs"]
[384,1998,1998384,10018,"LMICs","LMICs"]
[384,1999,1999384,10018,"LMICs","LMICs"]
[384,2000,2000384,10018,"LMICs","LMICs"]
[384,2001,2001384,10018,"LMICs","LMICs"]
[384,2002,2002384,10018,"LMICs","LMICs"]
[384,2003,2003384,10018,"LMICs","LMICs"]
[384,2004,2004384,10018,"LMICs","LMICs"]
[428,1996,1996428,10018,"LMICs","LMICs"]
[428,1997,1997428,10018,"LMICs","LMICs"]
[428,1998,1998428,10018,"LMICs","LMICs"]
[428,1999,1999428,10018,"LMICs","LMICs"]
[428,2000,2000428,10018,"LMICs","LMICs"]
[428,2001,2001428,10018,"LMICs","LMICs"]
[428,2002,2002428,10018,"LMICs","LMICs"]
[428,2003,2003428,10018,"LMICs","LMICs"]
[428,2004,2004428,10018,"LMICs","LMICs"]
[428,2005,2005428,10018,"LMICs","LMICs"]
[428,2006,2006428,10018,"LMICs","LMICs"]
[428,2007,2007428,10018,"LMICs","LMICs"]
[428,2008,2008428,10018,"LMICs","LMICs"]
[428,2009,2009428,10018,"LMICs","LMICs"]
[428,2010,2010428,10018,"LMICs","LMICs"]
[428,2011,2011428,10018,"LMICs","LMICs"]
[428,2012,2012428,10018,"LMICs","LMICs"]
[428,2013,2013428,10018,"LMICs","LMICs"]
[428,2014,2014428,10018,"LMICs","LMICs"]
[428,2015,2015428,10018,"LMICs","LMICs"]
[428,2016,2016428,10018,"LMICs","LMICs"]
[428,2017,2017428,10018,"LMICs","LMICs"]
[428,2018,2018428,10018,"LMICs","LMICs"]
[428,2019,2019428,10018,"LMICs","LMICs"]
[428,2020,2020428,10018,"LMICs","LMICs"]
[428,2021,2021428,10018,"LMICs","LMICs"]
[428,2022,2022428,10018,"LMICs","LMICs"]
[428,2023,2023428,10018,"LMICs","LMICs"]
[428,2024,2024428,10018,"LMICs","LMICs"]
[428,2025,2025428,10018,"LMICs","LMICs"]
[431,2005,2005431,10018,"LMICs","LMICs"]
[431,2006,2006431,10018,"LMICs","LMICs"]
[431,2007,2007431,10018,"LMICs","LMICs"]
[437,1996,1996437,10018,"LMICs","LMICs"]
[437,1997,1997437,10018,"LMICs","LMICs"]
[437,1998,1998437,10018,"LMICs","LMICs"]
[437,1999,1999437,10018,"LMICs","LMICs"]
[437,2000,2000437,10018,"LMICs","LMICs"]
[437,2001,2001437,10018,"LMICs","LMICs"]
[437,2002,2002437,10018,"LMICs","LMICs"]
[437,2003,2003437,10018,"LMICs","LMICs"]
[437,2004,2004437,10018,"LMICs","LMICs"]
[437,2005,2005437,10018,"LMICs","LMICs"]
[437,2006,2006437,10018,"LMICs","LMICs"]
[437,2007,2007437,10018,"LMICs","LMICs"]
[437,2008,2008437,10018,"LMICs","LMICs"]
[437,2009,2009437,10018,"LMICs","LMICs"]
[437,2010,2010437,10018,"LMICs","LMICs"]
[440,1996,1996440,10018,"LMICs","LMICs"]
[440,1997,1997440,10018,"LMICs","LMICs"]
[440,1998,1998440,10018,"LMICs","LMICs"]
[440,1999,1999440,10018,"LMICs","LMICs"]
[440,2000,2000440,10018,"LMICs","LMICs"]
[440,2001,2001440,10018,"LMICs","LMICs"]
[440,2002,2002440,10018,"LMICs","LMICs"]
[440,2003,2003440,10018,"LMICs","LMICs"]
[440,2004,2004440,10018,"LMICs","LMICs"]
[440,2005,2005440,10018,"LMICs","LMICs"]
[440,2006,2006440,10018,"LMICs","LMICs"]
[440,2007,2007440,10018,"LMICs","LMICs"]
[440,2008,2008440,10018,"LMICs","LMICs"]
[440,2009,2009440,10018,"LMICs","LMICs"]
[440,2010,2010440,10018,"LMICs","LMICs"]
[446,2000,2000446,10018,"LMICs","LMICs"]
[446,2001,2001446,10018,"LMICs","LMICs"]
[446,2002,2002446,10018,"LMICs","LMICs"]
[446,2003,2003446,10018,"LMICs","LMICs"]
[446,2004,2004446,10018,"LMICs","LMICs"]
[446,2005,2005446,10018,"LMICs","LMICs"]
[446,2006,2006446,10018,"LMICs","LMICs"]
[446,2007,2007446,10018,"LMICs","LMICs"]
[446,2008,2008446,10018,"LMICs","LMICs"]
[446,2009,2009446,10018,"LMICs","LMICs"]
[446,2010,2010446,10018,"LMICs","LMICs"]
[446,2011,2011446,10018,"LMICs","LMICs"]
[446,2012,2012446,10018,"LMICs","LMICs"]
[446,2013,2013446,10018,"LMICs","LMICs"]
[446,2014,2014446,10018,"LMICs","LMICs"]
[446,2015,2015446,10018,"LMICs","LMICs"]
[446,2016,2016446,10018,"LMICs","LMICs"]
[446,2017,2017446,10018,"LMICs","LMICs"]
[451,1996,1996451,10018,"LMICs","LMICs"]
[451,1997,1997451,10018,"LMICs","LMICs"]
[451,1998,1998451,10018,"LMICs","LMICs"]
[451,1999,1999451,10018,"LMICs","LMICs"]
[451,2000,2000451,10018,"LMICs","LMICs"]
[451,2001,2001451,10018,"LMICs","LMICs"]
[451,2002,2002451,10018,"LMICs","LMICs"]
[451,2003,2003451,10018,"LMICs","LMICs"]
[451,2004,2004451,10018,"LMICs","LMICs"]
[451,2005,2005451,10018,"LMICs","LMICs"]
[451,2006,2006451,10018,"LMICs","LMICs"]
[451,2007,2007451,10018,"LMICs","LMICs"]
[451,2008,2008451,10018,"LMICs","LMICs"]
[451,2009,2009451,10018,"LMICs","LMICs"]
[451,2010,2010451,10018,"LMICs","LMICs"]
[451,2011,2011451,10018,"LMICs","LMICs"]
[451,2012,2012451,10018,"LMICs","LMICs"]
[451,2013,2013451,10018,"LMICs","LMICs"]
[451,2014,2014451,10018,"LMICs","LMICs"]
[451,2015,2015451,10018,"LMICs","LMICs"]
[451,2016,2016451,10018,"LMICs","LMICs"]
[451,2017,2017451,10018,"LMICs","LMICs"]
[454,1996,1996454,10018,"LMICs","LMICs"]
[454,1997,1997454,10018,"LMICs","LMICs"]
[454,1998,1998454,10018,"LMICs","LMICs"]
[454,1999,1999454,10018,"LMICs","LMICs"]
[454,2000,2000454,10018,"LMICs","LMICs"]
[454,2001,2001454,10018,"LMICs","LMICs"]
[454,2002,2002454,10018,"LMICs","LMICs"]
[454,2003,2003454,10018,"LMICs","LMICs"]
[454,2004,2004454,10018,"LMICs","LMICs"]
[454,2005,2005454,10018,"LMICs","LMICs"]
[454,2006,2006454,10018,"LMICs","LMICs"]
[454,2007,2007454,10018,"LMICs","LMICs"]
[454,2008,2008454,10018,"LMICs","LMICs"]
[454,2009,2009454,10018,"LMICs","LMICs"]
[454,2010,2010454,10018,"LMICs","LMICs"]
[457,1996,1996457,10018,"LMICs","LMICs"]
[457,1997,1997457,10018,"LMICs","LMICs"]
[457,1998,1998457,10018,"LMICs","LMICs"]
[457,1999,1999457,10018,"LMICs","LMICs"]
[457,2000,2000457,10018,"LMICs","LMICs"]
[457,2001,2001457,10018,"LMICs","LMICs"]
[457,2002,2002457,10018,"LMICs","LMICs"]
[457,2003,2003457,10018,"LMICs","LMICs"]
[457,2004,2004457,10018,"LMICs","LMICs"]
[457,2005,2005457,10018,"LMICs","LMICs"]
[457,2006,2006457,10018,"LMICs","LMICs"]
[457,2007,2007457,10018,"LMICs","LMICs"]
[463,1996,1996463,10018,"LMICs","LMICs"]
[463,1997,1997463,10018,"LMICs","LMICs"]
[463,1998,1998463,10018,"LMICs","LMICs"]
[463,1999,1999463,10018,"LMICs","LMICs"]
[540,1996,1996540,10018,"LMICs","LMICs"]
[540,1997,1997540,10018,"LMICs","LMICs"]
[540,1998,1998540,10018,"LMICs","LMICs"]
[540,1999,1999540,10018,"LMICs","LMICs"]
[540,2000,2000540,10018,"LMICs","LMICs"]
[540,2001,2001540,10018,"LMICs","LMICs"]
[540,2002,2002540,10018,"LMICs","LMICs"]
[540,2003,2003540,10018,"LMICs","LMICs"]
[540,2004,2004540,10018,"LMICs","LMICs"]
[540,2005,2005540,10018,"LMICs","LMICs"]
[540,2006,2006540,10018,"LMICs","LMICs"]
[540,2007,2007540,10018,"LMICs","LMICs"]
[540,2008,2008540,10018,"LMICs","LMICs"]
[540,2009,2009540,10018,"LMICs","LMICs"]
[540,2010,2010540,10018,"LMICs","LMICs"]
[540,2022,2022540,10018,"LMICs","LMICs"]
[540,2023,2023540,10018,"LMICs","LMICs"]
[540,2024,2024540,10018,"LMICs","LMICs"]
[540,2025,2025540,10018,"LMICs","LMICs"]
[543,1996,1996543,10018,"LMICs","LMICs"]
[543,1997,1997543,10018,"LMICs","LMICs"]
[543,1998,1998543,10018,"LMICs","LMICs"]
[543,1999,1999543,10018,"LMICs","LMICs"]
[543,2000,2000543,10018,"LMICs","LMICs"]
[543,2001,2001543,10018,"LMICs","LMICs"]
[543,2002,2002543,10018,"LMICs","LMICs"]
[543,2003,2003543,10018,"LMICs","LMICs"]
[543,2004,2004543,10018,"LMICs","LMICs"]
[543,2005,2005543,10018,"LMICs","LMICs"]
[543,2006,2006543,10018,"LMICs","LMICs"]
[543,2007,2007543,10018,"LMICs","LMICs"]
[543,2008,2008543,10018,"LMICs","LMICs"]
[543,2009,2009543,10018,"LMICs","LMICs"]
[543,2010,2010543,10018,"LMICs","LMICs"]
[543,2011,2011543,10018,"LMICs","LMICs"]
[543,2012,2012543,10018,"LMICs","LMICs"]
[543,2013,2013543,10018,"LMICs","LMICs"]
[549,1996,1996549,10018,"LMICs","LMICs"]
[549,1997,1997549,10018,"LMICs","LMICs"]
[549,1998,1998549,10018,"LMICs","LMICs"]
[549,1999,1999549,10018,"LMICs","LMICs"]
[549,2000,2000549,10018,"LMICs","LMICs"]
[549,2001,2001549,10018,"LMICs","LMICs"]
[549,2002,2002549,10018,"LMICs","LMICs"]
[549,2003,2003549,10018,"LMICs","LMICs"]
[549,2004,2004549,10018,"LMICs","LMICs"]
[549,2005,2005549,10018,"LMICs","LMICs"]
[549,2006,2006549,10018,"LMICs","LMICs"]
[549,2007,2007549,10018,"LMICs","LMICs"]
[549,2008,2008549,10018,"LMICs","LMICs"]
[549,2009,2009549,10018,"LMICs","LMICs"]
[549,2010,2010549,10018,"LMICs","LMICs"]
[549,2018,2018549,10018,"LMICs","LMICs"]
[549,2019,2019549,10018,"LMICs","LMICs"]
[549,2020,2020549,10018,"LMICs","LMICs"]
[549,2021,2021549,10018,"LMICs","LMICs"]
[549,2024,2024549,10018,"LMICs","LMICs"]
[549,2025,2025549,10018,"LMICs","LMICs"]
[550,1996,1996550,10018,"LMICs","LMICs"]
[550,1997,1997550,10018,"LMICs","LMICs"]
[550,1998,1998550,10018,"LMICs","LMICs"]
[550,1999,1999550,10018,"LMICs","LMICs"]
[550,2000,2000550,10018,"LMICs","LMICs"]
[550,2001,2001550,10018,"LMICs","LMICs"]
[550,2002,2002550,10018,"LMICs","LMICs"]
[550,2003,2003550,10018,"LMICs","LMICs"]
[550,2004,2004550,10018,"LMICs","LMICs"]
[550,2005,2005550,10018,"LMICs","LMICs"]
[550,2006,2006550,10018,"LMICs","LMICs"]
[550,2007,2007550,10018,"LMICs","LMICs"]
[550,2008,2008550,10018,"LMICs","LMICs"]
[550,2009,2009550,10018,"LMICs","LMICs"]
[550,2010,2010550,10018,"LMICs","LMICs"]
[550,2011,2011550,10018,"LMICs","LMICs"]
[550,2012,2012550,10018,"LMICs","LMICs"]
[550,2013,2013550,10018,"LMICs","LMICs"]
[550,2014,2014550,10018,"LMICs","LMICs"]
[550,2015,2015550,10018,"LMICs","LMICs"]
[550,2016,2016550,10018,"LMICs","LMICs"]
[550,2017,2017550,10018,"LMICs","LMICs"]
[550,2018,2018550,10018,"LMICs","LMICs"]
[550,2019,2019550,10018,"LMICs","LMICs"]
[550,2020,2020550,10018,"LMICs","LMICs"]
[550,2021,2021550,10018,"LMICs","LMICs"]
[550,2022,2022550,10018,"LMICs","LMICs"]
[550,2023,2023550,10018,"LMICs","LMICs"]
[555,1996,1996555,10018,"LMICs","LMICs"]
[555,1997,1997555,10018,"LMICs","LMICs"]
[555,1998,1998555,10018,"LMICs","LMICs"]
[555,1999,1999555,10018,"LMICs","LMICs"]
[555,2024,2024555,10018,"LMICs","LMICs"]
[555,2025,2025555,10018,"LMICs","LMICs"]
[573,1996,1996573,10018,"LMICs","LMICs"]
[573,1997,1997573,10018,"LMICs","LMICs"]
[573,1998,1998573,10018,"LMICs","LMICs"]
[573,1999,1999573,10018,"LMICs","LMICs"]
[573,2000,2000573,10018,"LMICs","LMICs"]
[573,2001,2001573,10018,"LMICs","LMICs"]
[573,2002,2002573,10018,"LMICs","LMICs"]
[573,2003,2003573,10018,"LMICs","LMICs"]
[573,2004,2004573,10018,"LMICs","LMICs"]
[573,2005,2005573,10018,"LMICs","LMICs"]
[573,2006,2006573,10018,"LMICs","LMICs"]
[573,2007,2007573,10018,"LMICs","LMICs"]
[573,2008,2008573,10018,"LMICs","LMICs"]
[573,2009,2009573,10018,"LMICs","LMICs"]
[573,2010,2010573,10018,"LMICs","LMICs"]
[573,2011,2011573,10018,"LMICs","LMICs"]
[573,2012,2012573,10018,"LMICs","LMICs"]
[573,2013,2013573,10018,"LMICs","LMICs"]
[573,2014,2014573,10018,"LMICs","LMICs"]
[573,2015,2015573,10018,"LMICs","LMICs"]
[573,2016,2016573,10018,"LMICs","LMICs"]
[573,2017,2017573,10018,"LMICs","LMICs"]
[573,2018,2018573,10018,"LMICs","LMICs"]
[573,2019,2019573,10018,"LMICs","LMICs"]
[573,2020,2020573,10018,"LMICs","LMICs"]
[573,2021,2021573,10018,"LMICs","LMICs"]
[610,2005,2005610,10018,"LMICs","LMICs"]
[610,2006,2006610,10018,"LMICs","LMICs"]
[610,2007,2007610,10018,"LMICs","LMICs"]
[610,2008,2008610,10018,"LMICs","LMICs"]
[610,2009,2009610,10018,"LMICs","LMICs"]
[610,2010,2010610,10018,"LMICs","LMICs"]
[610,2011,2011610,10018,"LMICs","LMICs"]
[610,2012,2012610,10018,"LMICs","LMICs"]
[610,2013,2013610,10018,"LMICs","LMICs"]
[610,2014,2014610,10018,"LMICs","LMICs"]
[610,2015,2015610,10018,"LMICs","LMICs"]
[610,2016,2016610,10018,"LMICs","LMICs"]
[610,2017,2017610,10018,"LMICs","LMICs"]
[610,2018,2018610,10018,"LMICs","LMICs"]
[610,2019,2019610,10018,"LMICs","LMICs"]
[610,2020,2020610,10018,"LMICs","LMICs"]
[610,2021,2021610,10018,"LMICs","LMICs"]
[611,2005,2005611,10018,"LMICs","LMICs"]
[611,2006,2006611,10018,"LMICs","LMICs"]
[611,2007,2007611,10018,"LMICs","LMICs"]
[611,2008,2008611,10018,"LMICs","LMICs"]
[611,2009,2009611,10018,"LMICs","LMICs"]
[611,2010,2010611,10018,"LMICs","LMICs"]
[612,2000,2000612,10018,"LMICs","LMICs"]
[612,2001,2001612,10018,"LMICs","LMICs"]
[612,2002,2002612,10018,"LMICs","LMICs"]
[612,2005,2005612,10018,"LMICs","LMICs"]
[612,2006,2006612,10018,"LMICs","LMICs"]
[612,2007,2007612,10018,"LMICs","LMICs"]
[612,2008,2008612,10018,"LMICs","LMICs"]
[612,2009,2009612,10018,"LMICs","LMICs"]
[612,2010,2010612,10018,"LMICs","LMICs"]
[612,2011,2011612,10018,"LMICs","LMICs"]
[612,2012,2012612,10018,"LMICs","LMICs"]
[612,2013,2013612,10018,"LMICs","LMICs"]
[612,2014,2014612,10018,"LMICs","LMICs"]
[612,2015,2015612,10018,"LMICs","LMICs"]
[612,2016,2016612,10018,"LMICs","LMICs"]
[612,2017,2017612,10018,"LMICs","LMICs"]
[612,2018,2018612,10018,"LMICs","LMICs"]
[612,2019,2019612,10018,"LMICs","LMICs"]
[612,2020,2020612,10018,"LMICs","LMICs"]
[612,2021,2021612,10018,"LMICs","LMICs"]
[613,1996,1996613,10018,"LMICs","LMICs"]
[613,1997,1997613,10018,"LMICs","LMICs"]
[613,1998,1998613,10018,"LMICs","LMICs"]
[613,1999,1999613,10018,"LMICs","LMICs"]
[613,2000,2000613,10018,"LMICs","LMICs"]
[613,2001,2001613,10018,"LMICs","LMICs"]
[613,2002,2002613,10018,"LMICs","LMICs"]
[613,2003,2003613,10018,"LMICs","LMICs"]
[613,2004,2004613,10018,"LMICs","LMICs"]
[613,2005,2005613,10018,"LMICs","LMICs"]
[613,2006,2006613,10018,"LMICs","LMICs"]
[613,2007,2007613,10018,"LMICs","LMICs"]
[614,2014,2014614,10018,"LMICs","LMICs"]
[614,2015,2015614,10018,"LMICs","LMICs"]
[614,2016,2016614,10018,"LMICs","LMICs"]
[614,2017,2017614,10018,"LMICs","LMICs"]
[614,2018,2018614,10018,"LMICs","LMICs"]
[614,2019,2019614,10018,"LMICs","LMICs"]
[614,2020,2020614,10018,"LMICs","LMICs"]
[614,2021,2021614,10018,"LMICs","LMICs"]
[614,2022,2022614,10018,"LMICs","LMICs"]
[614,2023,2023614,10018,"LMICs","LMICs"]
[614,2024,2024614,10018,"LMICs","LMICs"]
[614,2025,2025614,10018,"LMICs","LMICs"]
[615,2018,2018615,10018,"LMICs","LMICs"]
[615,2019,2019615,10018,"LMICs","LMICs"]
[615,2020,2020615,10018,"LMICs","LMICs"]
[615,2021,2021615,10018,"LMICs","LMICs"]
[615,2022,2022615,10018,"LMICs","LMICs"]
[615,2023,2023615,10018,"LMICs","LMICs"]
[615,2024,2024615,10018,"LMICs","LMICs"]
[615,2025,2025615,10018,"LMICs","LMICs"]
[616,1996,1996616,10018,"LMICs","LMICs"]
[616,1997,1997616,10018,"LMICs","LMICs"]
[616,1998,1998616,10018,"LMICs","LMICs"]
[616,1999,1999616,10018,"LMICs","LMICs"]
[616,2003,2003616,10018,"LMICs","LMICs"]
[616,2004,2004616,10018,"LMICs","LMICs"]
[616,2005,2005616,10018,"LMICs","LMICs"]
[616,2006,2006616,10018,"LMICs","LMICs"]
[616,2007,2007616,10018,"LMICs","LMICs"]
[616,2008,2008616,10018,"LMICs","LMICs"]
[616,2009,2009616,10018,"LMICs","LMICs"]
[616,2010,2010616,10018,"LMICs","LMICs"]
[616,2011,2011616,10018,"LMICs","LMICs"]
[616,2012,2012616,10018,"LMICs","LMICs"]
[616,2013,2013616,10018,"LMICs","LMICs"]
[617,1996,1996617,10018,"LMICs","LMICs"]
[617,1997,1997617,10018,"LMICs","LMICs"]
[617,1998,1998617,10018,"LMICs","LMICs"]
[617,1999,1999617,10018,"LMICs","LMICs"]
[617,2000,2000617,10018,"LMICs","LMICs"]
[617,2001,2001617,10018,"LMICs","LMICs"]
[617,2002,2002617,10018,"LMICs","LMICs"]
[617,2011,2011617,10018,"LMICs","LMICs"]
[617,2012,2012617,10018,"LMICs","LMICs"]
[617,2013,2013617,10018,"LMICs","LMICs"]
[617,2014,2014617,10018,"LMICs","LMICs"]
[617,2015,2015617,10018,"LMICs","LMICs"]
[617,2016,2016617,10018,"LMICs","LMICs"]
[617,2017,2017617,10018,"LMICs","LMICs"]
[617,2018,2018617,10018,"LMICs","LMICs"]
[617,2019,2019617,10018,"LMICs","LMICs"]
[617,2020,2020617,10018,"LMICs","LMICs"]
[617,2021,2021617,10018,"LMICs","LMICs"]
[617,2022,2022617,10018,"LMICs","LMICs"]
[617,2023,2023617,10018,"LMICs","LMICs"]
[617,2024,2024617,10018,"LMICs","LMICs"]
[617,2025,2025617,10018,"LMICs","LMICs"]
[630,2024,2024630,10018,"LMICs","LMICs"]
[630,2025,2025630,10018,"LMICs","LMICs"]
[640,2000,2000640,10018,"LMICs","LMICs"]
[640,2001,2001640,10018,"LMICs","LMICs"]
[640,2002,2002640,10018,"LMICs","LMICs"]
[640,2003,2003640,10018,"LMICs","LMICs"]
[640,2004,2004640,10018,"LMICs","LMICs"]
[640,2005,2005640,10018,"LMICs","LMICs"]
[640,2006,2006640,10018,"LMICs","LMICs"]
[640,2007,2007640,10018,"LMICs","LMICs"]
[640,2008,2008640,10018,"LMICs","LMICs"]
[640,2009,2009640,10018,"LMICs","LMICs"]
[640,2010,2010640,10018,"LMICs","LMICs"]
[640,2011,2011640,10018,"LMICs","LMICs"]
[640,2012,2012640,10018,"LMICs","LMICs"]
[640,2013,2013640,10018,"LMICs","LMICs"]
[640,2014,2014640,10018,"LMICs","LMICs"]
[640,2015,2015640,10018,"LMICs","LMICs"]
[640,2016,2016640,10018,"LMICs","LMICs"]
[640,2017,2017640,10018,"LMICs","LMICs"]
[640,2018,2018640,10018,"LMICs","LMICs"]
[640,2019,2019640,10018,"LMICs","LMICs"]
[640,2020,2020640,10018,"LMICs","LMICs"]
[640,2021,2021640,10018,"LMICs","LMICs"]
[640,2022,2022640,10018,"LMICs","LMICs"]
[640,2023,2023640,10018,"LMICs","LMICs"]
[640,2024,2024640,10018,"LMICs","LMICs"]
[640,2025,2025640,10018,"LMICs","LMICs"]
[645,2008,2008645,10018,"LMICs","LMICs"]
[645,2009,2009645,10018,"LMICs","LMICs"]
[645,2010,2010645,10018,"LMICs","LMICs"]
[645,2011,2011645,10018,"LMICs","LMICs"]
[645,2012,2012645,10018,"LMICs","LMICs"]
[645,2013,2013645,10018,"LMICs","LMICs"]
[645,2014,2014645,10018,"LMICs","LMICs"]
[645,2015,2015645,10018,"LMICs","LMICs"]
[645,2016,2016645,10018,"LMICs","LMICs"]
[645,2017,2017645,10018,"LMICs","LMICs"]
[645,2018,2018645,10018,"LMICs","LMICs"]
[645,2019,2019645,10018,"LMICs","LMICs"]
[645,2020,2020645,10018,"LMICs","LMICs"]
[645,2021,2021645,10018,"LMICs","LMICs"]
[645,2022,2022645,10018,"LMICs","LMICs"]
[645,2023,2023645,10018,"LMICs","LMICs"]
[645,2024,2024645,10018,"LMICs","LMICs"]
[645,2025,2025645,10018,"LMICs","LMICs"]
[665,2011,2011665,10018,"LMICs","LMICs"]
[665,2012,2012665,10018,"LMICs","LMICs"]
[665,2013,2013665,10018,"LMICs","LMICs"]
[665,2014,2014665,10018,"LMICs","LMICs"]
[665,2015,2015665,10018,"LMICs","LMICs"]
[665,2016,2016665,10018,"LMICs","LMICs"]
[665,2017,2017665,10018,"LMICs","LMICs"]
[665,2018,2018665,10018,"LMICs","LMICs"]
[665,2019,2019665,10018,"LMICs","LMICs"]
[665,2020,2020665,10018,"LMICs","LMICs"]
[665,2021,2021665,10018,"LMICs","LMICs"]
[665,2022,2022665,10018,"LMICs","LMICs"]
[665,2023,2023665,10018,"LMICs","LMICs"]
[665,2024,2024665,10018,"LMICs","LMICs"]
[665,2025,2025665,10018,"LMICs","LMICs"]
[730,2003,2003730,10018,"LMICs","LMICs"]
[730,2004,2004730,10018,"LMICs","LMICs"]
[730,2005,2005730,10018,"LMICs","LMICs"]
[730,2006,2006730,10018,"LMICs","LMICs"]
[730,2007,2007730,10018,"LMICs","LMICs"]
[730,2008,2008730,10018,"LMICs","LMICs"]
[730,2009,2009730,10018,"LMICs","LMICs"]
[730,2010,2010730,10018,"LMICs","LMICs"]
[738,1996,1996738,10018,"LMICs","LMICs"]
[738,1997,1997738,10018,"LMICs","LMICs"]
[738,1998,1998738,10018,"LMICs","LMICs"]
[738,1999,1999738,10018,"LMICs","LMICs"]
[738,2005,2005738,10018,"LMICs","LMICs"]
[738,2006,2006738,10018,"LMICs","LMICs"]
[738,2007,2007738,10018,"LMICs","LMICs"]
[738,2008,2008738,10018,"LMICs","LMICs"]
[738,2009,2009738,10018,"LMICs","LMICs"]
[738,2010,2010738,10018,"LMICs","LMICs"]
[738,2011,2011738,10018,"LMICs","LMICs"]
[738,2012,2012738,10018,"LMICs","LMICs"]
[738,2013,2013738,10018,"LMICs","LMICs"]
[738,2014,2014738,10018,"LMICs","LMICs"]
[738,2015,2015738,10018,"LMICs","LMICs"]
[738,2016,2016738,10018,"LMICs","LMICs"]
[738,2017,2017738,10018,"LMICs","LMICs"]
[738,2018,2018738,10018,"LMICs","LMICs"]
[738,2019,2019738,10018,"LMICs","LMICs"]
[738,2020,2020738,10018,"LMICs","LMICs"]
[738,2021,2021738,10018,"LMICs","LMICs"]
[738,2022,2022738,10018,"LMICs","LMICs"]
[738,2023,2023738,10018,"LMICs","LMICs"]
[740,1996,1996740,10018,"LMICs","LMICs"]
[740,1997,1997740,10018,"LMICs","LMICs"]
[740,1998,1998740,10018,"LMICs","LMICs"]
[740,1999,1999740,10018,"LMICs","LMICs"]
[753,2008,2008753,10018,"LMICs","LMICs"]
[753,2009,2009753,10018,"LMICs","LMICs"]
[753,2010,2010753,10018,"LMICs","LMICs"]
[753,2011,2011753,10018,"LMICs","LMICs"]
[753,2012,2012753,10018,"LMICs","LMICs"]
[753,2013,2013753,10018,"LMICs","LMICs"]
[753,2014,2014753,10018,"LMICs","LMICs"]
[753,2015,2015753,10018,"LMICs","LMICs"]
[753,2016,2016753,10018,"LMICs","LMICs"]
[753,2017,2017753,10018,"LMICs","LMICs"]
[753,2018,2018753,10018,"LMICs","LMICs"]
[753,2019,2019753,10018,"LMICs","LMICs"]
[753,2020,2020753,10018,"LMICs","LMICs"]
[753,2021,2021753,10018,"LMICs","LMICs"]
[753,2022,2022753,10018,"LMICs","LMICs"]
[753,2023,2023753,10018,"LMICs","LMICs"]
[753,2024,2024753,10018,"LMICs","LMICs"]
[753,2025,2025753,10018,"LMICs","LMICs"]
[755,1996,1996755,10018,"LMICs","LMICs"]
[755,1997,1997755,10018,"LMICs","LMICs"]
[755,1998,1998755,10018,"LMICs","LMICs"]
[755,1999,1999755,10018,"LMICs","LMICs"]
[755,2000,2000755,10018,"LMICs","LMICs"]
[755,2001,2001755,10018,"LMICs","LMICs"]
[755,2002,2002755,10018,"LMICs","LMICs"]
[755,2003,2003755,10018,"LMICs","LMICs"]
[755,2004,2004755,10018,"LMICs","LMICs"]
[755,2005,2005755,10018,"LMICs","LMICs"]
[755,2006,2006755,10018,"LMICs","LMICs"]
[755,2007,2007755,10018,"LMICs","LMICs"]
[755,2008,2008755,10018,"LMICs","LMICs"]
[755,2009,2009755,10018,"LMICs","LMICs"]
[755,2010,2010755,10018,"LMICs","LMICs"]
[755,2011,2011755,10018,"LMICs","LMICs"]
[755,2012,2012755,10018,"LMICs","LMICs"]
[755,2013,2013755,10018,"LMICs","LMICs"]
[755,2014,2014755,10018,"LMICs","LMICs"]
[755,2015,2015755,10018,"LMICs","LMICs"]
[755,2016,2016755,10018,"LMICs","LMICs"]
[755,2017,2017755,10018,"LMICs","LMICs"]
[755,2018,2018755,10018,"LMICs","LMICs"]
[755,2019,2019755,10018,"LMICs","LMICs"]
[755,2020,2020755,10018,"LMICs","LMICs"]
[755,2021,2021755,10018,"LMICs","LMICs"]
[755,2022,2022755,10018,"LMICs","LMICs"]
[755,2023,2023755,10018,"LMICs","LMICs"]
[755,2024,2024755,10018,"LMICs","LMICs"]
[755,2025,2025755,10018,"LMICs","LMICs"]
[764,1996,1996764,10018,"LMICs","LMICs"]
[764,1997,1997764,10018,"LMICs","LMICs"]
[764,1998,1998764,10018,"LMICs","LMICs"]
[764,1999,1999764,10018,"LMICs","LMICs"]
[764,2000,2000764,10018,"LMICs","LMICs"]
[764,2001,2001764,10018,"LMICs","LMICs"]
[764,2002,2002764,10018,"LMICs","LMICs"]
[764,2003,2003764,10018,"LMICs","LMICs"]
[764,2004,2004764,10018,"LMICs","LMICs"]
[764,2005,2005764,10018,"LMICs","LMICs"]
[764,2006,2006764,10018,"LMICs","LMICs"]
[764,2007,2007764,10018,"LMICs","LMICs"]
[764,2008,2008764,10018,"LMICs","LMICs"]
[764,2009,2009764,10018,"LMICs","LMICs"]
[764,2010,2010764,10018,"LMICs","LMICs"]
[765,1996,1996765,10018,"LMICs","LMICs"]
[765,1997,1997765,10018,"LMICs","LMICs"]
[765,1998,1998765,10018,"LMICs","LMICs"]
[765,1999,1999765,10018,"LMICs","LMICs"]
[769,2011,2011769,10018,"LMICs","LMICs"]
[769,2012,2012769,10018,"LMICs","LMICs"]
[769,2013,2013769,10018,"LMICs","LMICs"]
[769,2014,2014769,10018,"LMICs","LMICs"]
[769,2015,2015769,10018,"LMICs","LMICs"]
[769,2016,2016769,10018,"LMICs","LMICs"]
[769,2017,2017769,10018,"LMICs","LMICs"]
[769,2018,2018769,10018,"LMICs","LMICs"]
[769,2019,2019769,10018,"LMICs","LMICs"]
[769,2020,2020769,10018,"LMICs","LMICs"]
[769,2021,2021769,10018,"LMICs","LMICs"]
[769,2022,2022769,10018,"LMICs","LMICs"]
[769,2023,2023769,10018,"LMICs","LMICs"]
[769,2024,2024769,10018,"LMICs","LMICs"]
[769,2025,2025769,10018,"LMICs","LMICs"]
[832,1996,1996832,10018,"LMICs","LMICs"]
[832,1997,1997832,10018,"LMICs","LMICs"]
[832,1998,1998832,10018,"LMICs","LMICs"]
[832,1999,1999832,10018,"LMICs","LMICs"]
[832,2000,2000832,10018,"LMICs","LMICs"]
[832,2001,2001832,10018,"LMICs","LMICs"]
[832,2002,2002832,10018,"LMICs","LMICs"]
[832,2003,2003832,10018,"LMICs","LMICs"]
[832,2004,2004832,10018,"LMICs","LMICs"]
[832,2005,2005832,10018,"LMICs","LMICs"]
[832,2006,2006832,10018,"LMICs","LMICs"]
[832,2007,2007832,10018,"LMICs","LMICs"]
[832,2011,2011832,10018,"LMICs","LMICs"]
[832,2012,2012832,10018,"LMICs","LMICs"]
[832,2013,2013832,10018,"LMICs","LMICs"]
[854,2021,2021854,10018,"LMICs","LMICs"]
[854,2022,2022854,10018,"LMICs","LMICs"]
[854,2023,2023854,10018,"LMICs","LMICs"]
[854,2024,2024854,10018,"LMICs","LMICs"]
[854,2025,2025854,10018,"LMICs","LMICs"]
[856,1996,1996856,10018,"LMICs","LMICs"]
[856,1997,1997856,10018,"LMICs","LMICs"]
[856,1998,1998856,10018,"LMICs","LMICs"]
[856,1999,1999856,10018,"LMICs","LMICs"]
[856,2000,2000856,10018,"LMICs","LMICs"]
[856,2001,2001856,10018,"LMICs","LMICs"]
[856,2002,2002856,10018,"LMICs","LMICs"]
[856,2003,2003856,10018,"LMICs","LMICs"]
[856,2004,2004856,10018,"LMICs","LMICs"]
[856,2005,2005856,10018,"LMICs","LMICs"]
[856,2006,2006856,10018,"LMICs","LMICs"]
[856,2007,2007856,10018,"LMICs","LMICs"]
[856,2008,2008856,10018,"LMICs","LMICs"]
[856,2009,2009856,10018,"LMICs","LMICs"]
[856,2010,2010856,10018,"LMICs","LMICs"]
[859,1996,1996859,10018,"LMICs","LMICs"]
[859,1997,1997859,10018,"LMICs","LMICs"]
[859,1998,1998859,10018,"LMICs","LMICs"]
[859,1999,1999859,10018,"LMICs","LMICs"]
[859,2000,2000859,10018,"LMICs","LMICs"]
[859,2001,2001859,10018,"LMICs","LMICs"]
[859,2002,2002859,10018,"LMICs","LMICs"]
[859,2003,2003859,10018,"LMICs","LMICs"]
[859,2004,2004859,10018,"LMICs","LMICs"]
[859,2005,2005859,10018,"LMICs","LMICs"]
[859,2006,2006859,10018,"LMICs","LMICs"]
[859,2007,2007859,10018,"LMICs","LMICs"]
[859,2008,2008859,10018,"LMICs","LMICs"]
[859,2009,2009859,10018,"LMICs","LMICs"]
[859,2010,2010859,10018,"LMICs","LMICs"]
[859,2011,2011859,10018,"LMICs","LMICs"]
[859,2012,2012859,10018,"LMICs","LMICs"]
[859,2013,2013859,10018,"LMICs","LMICs"]
[860,1996,1996860,10018,"LMICs","LMICs"]
[860,1997,1997860,10018,"LMICs","LMICs"]
[860,1998,1998860,10018,"LMICs","LMICs"]
[860,1999,1999860,10018,"LMICs","LMICs"]
[860,2000,2000860,10018,"LMICs","LMICs"]
[860,2001,2001860,10018,"LMICs","LMICs"]
[860,2002,2002860,10018,"LMICs","LMICs"]
[860,2003,2003860,10018,"LMICs","LMICs"]
[860,2004,2004860,10018,"LMICs","LMICs"]
[860,2005,2005860,10018,"LMICs","LMICs"]
[860,2006,2006860,10018,"LMICs","LMICs"]
[860,2007,2007860,10018,"LMICs","LMICs"]
[860,2008,2008860,10018,"LMICs","LMICs"]
[860,2009,2009860,10018,"LMICs","LMICs"]
[860,2010,2010860,10018,"LMICs","LMICs"]
[860,2011,2011860,10018,"LMICs","LMICs"]
[860,2012,2012860,10018,"LMICs","LMICs"]
[860,2013,2013860,10018,"LMICs","LMICs"]
[860,2014,2014860,10018,"LMICs","LMICs"]
[860,2015,2015860,10018,"LMICs","LMICs"]
[860,2016,2016860,10018,"LMICs","LMICs"]
[860,2017,2017860,10018,"LMICs","LMICs"]
[860,2018,2018860,10018,"LMICs","LMICs"]
[860,2019,2019860,10018,"LMICs","LMICs"]
[860,2020,2020860,10018,"LMICs","LMICs"]
[860,2021,2021860,10018,"LMICs","LMICs"]
[860,2022,2022860,10018,"LMICs","LMICs"]
[860,2023,2023860,10018,"LMICs","LMICs"]
[860,2024,2024860,10018,"LMICs","LMICs"]
[860,2025,2025860,10018,"LMICs","LMICs"]
[861,1996,1996861,10018,"LMICs","LMICs"]
[861,1997,1997861,10018,"LMICs","LMICs"]
[861,1998,1998861,10018,"LMICs","LMICs"]
[861,1999,1999861,10018,"LMICs","LMICs"]
[862,1996,1996862,10018,"LMICs","LMICs"]
[862,1997,1997862,10018,"LMICs","LMICs"]
[862,1998,1998862,10018,"LMICs","LMICs"]
[862,1999,1999862,10018,"LMICs","LMICs"]
[862,2000,2000862,10018,"LMICs","LMICs"]
[862,2001,2001862,10018,"LMICs","LMICs"]
[862,2002,2002862,10018,"LMICs","LMICs"]
[862,2011,2011862,10018,"LMICs","LMICs"]
[862,2012,2012862,10018,"LMICs","LMICs"]
[862,2013,2013862,10018,"LMICs","LMICs"]
[862,2014,2014862,10018,"LMICs","LMICs"]
[862,2015,2015862,10018,"LMICs","LMICs"]
[862,2016,2016862,10018,"LMICs","LMICs"]
[862,2017,2017862,10018,"LMICs","LMICs"]
[862,2018,2018862,10018,"LMICs","LMICs"]
[862,2019,2019862,10018,"LMICs","LMICs"]
[862,2020,2020862,10018,"LMICs","LMICs"]
[862,2021,2021862,10018,"LMICs","LMICs"]
[862,2022,2022862,10018,"LMICs","LMICs"]
[862,2023,2023862,10018,"LMICs","LMICs"]
[862,2024,2024862,10018,"LMICs","LMICs"]
[862,2025,2025862,10018,"LMICs","LMICs"]
[868,1996,1996868,10018,"LMICs","LMICs"]
[868,1997,1997868,10018,"LMICs","LMICs"]
[868,1998,1998868,10018,"LMICs","LMICs"]
[868,1999,1999868,10018,"LMICs","LMICs"]
[868,2000,2000868,10018,"LMICs","LMICs"]
[868,2001,2001868,10018,"LMICs","LMICs"]
[868,2002,2002868,10018,"LMICs","LMICs"]
[868,2003,2003868,10018,"LMICs","LMICs"]
[868,2004,2004868,10018,"LMICs","LMICs"]
[868,2005,2005868,10018,"LMICs","LMICs"]
[868,2006,2006868,10018,"LMICs","LMICs"]
[868,2007,2007868,10018,"LMICs","LMICs"]
[868,2008,2008868,10018,"LMICs","LMICs"]
[868,2009,2009868,10018,"LMICs","LMICs"]
[868,2010,2010868,10018,"LMICs","LMICs"]
[868,2011,2011868,10018,"LMICs","LMICs"]
[868,2012,2012868,10018,"LMICs","LMICs"]
[868,2013,2013868,10018,"LMICs","LMICs"]
[868,2014,2014868,10018,"LMICs","LMICs"]
[868,2015,2015868,10018,"LMICs","LMICs"]
[868,2016,2016868,10018,"LMICs","LMICs"]
[868,2017,2017868,10018,"LMICs","LMICs"]
[868,2018,2018868,10018,"LMICs","LMICs"]
[868,2019,2019868,10018,"LMICs","LMICs"]
[868,2020,2020868,10018,"LMICs","LMICs"]
[868,2021,2021868,10018,"LMICs","LMICs"]
[868,2022,2022868,10018,"LMICs","LMICs"]
[868,2023,2023868,10018,"LMICs","LMICs"]
[868,2024,2024868,10018,"LMICs","LMICs"]
[868,2025,2025868,10018,"LMICs","LMICs"]
[870,1996,1996870,10018,"LMICs","LMICs"]
[870,1997,1997870,10018,"LMICs","LMICs"]
[870,1998,1998870,10018,"LMICs","LMICs"]
[870,1999,1999870,10018,"LMICs","LMICs"]
[870,2000,2000870,10018,"LMICs","LMICs"]
[870,2001,2001870,10018,"LMICs","LMICs"]
[870,2002,2002870,10018,"LMICs","LMICs"]
[870,2003,2003870,10018,"LMICs","LMICs"]
[870,2004,2004870,10018,"LMICs","LMICs"]
[870,2005,2005870,10018,"LMICs","LMICs"]
[870,2006,2006870,10018,"LMICs","LMICs"]
[870,2007,2007870,10018,"LMICs","LMICs"]
[870,2008,2008870,10018,"LMICs","LMICs"]
[870,2009,2009870,10018,"LMICs","LMICs"]
[870,2010,2010870,10018,"LMICs","LMICs"]
[870,2011,2011870,10018,"LMICs","LMICs"]
[870,2012,2012870,10018,"LMICs","LMICs"]
[870,2013,2013870,10018,"LMICs","LMICs"]
[876,1996,1996876,10018,"LMICs","LMICs"]
[876,1997,1997876,10018,"LMICs","LMICs"]
[876,1998,1998876,10018,"LMICs","LMICs"]
[876,1999,1999876,10018,"LMICs","LMICs"]
[876,2000,2000876,10018,"LMICs","LMICs"]
[876,2001,2001876,10018,"LMICs","LMICs"]
[876,2002,2002876,10018,"LMICs","LMICs"]
[876,2003,2003876,10018,"LMICs","LMICs"]
[876,2004,2004876,10018,"LMICs","LMICs"]
[876,2005,2005876,10018,"LMICs","LMICs"]
[876,2006,2006876,10018,"LMICs","LMICs"]
[876,2007,2007876,10018,"LMICs","LMICs"]
[876,2008,2008876,10018,"LMICs","LMICs"]
[876,2009,2009876,10018,"LMICs","LMICs"]
[876,2010,2010876,10018,"LMICs","LMICs"]
[880,2014,2014880,10018,"LMICs","LMICs"]
[880,2015,2015880,10018,"LMICs","LMICs"]
[880,2016,2016880,10018,"LMICs","LMICs"]
[880,2017,2017880,10018,"LMICs","LMICs"]
[880,2022,2022880,10018,"LMICs","LMICs"]
[880,2023,2023880,10018,"LMICs","LMICs"]
[880,2024,2024880,10018,"LMICs","LMICs"]
[880,2025,2025880,10018,"LMICs","LMICs"]
[45,1996,199645,10019,"UMICs","UMICs"]
[45,1997,199745,10019,"UMICs","UMICs"]
[45,1998,199845,10019,"UMICs","UMICs"]
[45,1999,199945,10019,"UMICs","UMICs"]
[55,2000,200055,10019,"UMICs","UMICs"]
[55,2001,200155,10019,"UMICs","UMICs"]
[55,2002,200255,10019,"UMICs","UMICs"]
[55,2005,200555,10019,"UMICs","UMICs"]
[55,2006,200655,10019,"UMICs","UMICs"]
[55,2007,200755,10019,"UMICs","UMICs"]
[55,2008,200855,10019,"UMICs","UMICs"]
[55,2009,200955,10019,"UMICs","UMICs"]
[55,2010,201055,10019,"UMICs","UMICs"]
[55,2011,201155,10019,"UMICs","UMICs"]
[55,2012,201255,10019,"UMICs","UMICs"]
[55,2013,201355,10019,"UMICs","UMICs"]
[55,2014,201455,10019,"UMICs","UMICs"]
[55,2015,201555,10019,"UMICs","UMICs"]
[55,2016,201655,10019,"UMICs","UMICs"]
[55,2017,201755,10019,"UMICs","UMICs"]
[55,2018,201855,10019,"UMICs","UMICs"]
[55,2019,201955,10019,"UMICs","UMICs"]
[55,2020,202055,10019,"UMICs","UMICs"]
[55,2021,202155,10019,"UMICs","UMICs"]
[55,2022,202255,10019,"UMICs","UMICs"]
[55,2023,202355,10019,"UMICs","UMICs"]
[55,2024,202455,10019,"UMICs","UMICs"]
[55,2025,202555,10019,"UMICs","UMICs"]
[57,2022,202257,10019,"UMICs","UMICs"]
[57,2023,202357,10019,"UMICs","UMICs"]
[57,2024,202457,10019,"UMICs","UMICs"]
[57,2025,202557,10019,"UMICs","UMICs"]
[61,1996,199661,10019,"UMICs","UMICs"]
[61,1997,199761,10019,"UMICs","UMICs"]
[61,1998,199861,10019,"UMICs","UMICs"]
[61,1999,199961,10019,"UMICs","UMICs"]
[62,1996,199662,10019,"UMICs","UMICs"]
[62,1997,199762,10019,"UMICs","UMICs"]
[62,1998,199862,10019,"UMICs","UMICs"]
[62,1999,199962,10019,"UMICs","UMICs"]
[62,2000,200062,10019,"UMICs","UMICs"]
[62,2001,200162,10019,"UMICs","UMICs"]
[62,2002,200262,10019,"UMICs","UMICs"]
[62,2003,200362,10019,"UMICs","UMICs"]
[62,2004,200462,10019,"UMICs","UMICs"]
[62,2005,200562,10019,"UMICs","UMICs"]
[62,2006,200662,10019,"UMICs","UMICs"]
[62,2007,200762,10019,"UMICs","UMICs"]
[62,2008,200862,10019,"UMICs","UMICs"]
[62,2009,200962,10019,"UMICs","UMICs"]
[62,2010,201062,10019,"UMICs","UMICs"]
[63,2008,200863,10019,"UMICs","UMICs"]
[63,2009,200963,10019,"UMICs","UMICs"]
[63,2010,201063,10019,"UMICs","UMICs"]
[63,2011,201163,10019,"UMICs","UMICs"]
[63,2012,201263,10019,"UMICs","UMICs"]
[63,2013,201363,10019,"UMICs","UMICs"]
[63,2014,201463,10019,"UMICs","UMICs"]
[63,2015,201563,10019,"UMICs","UMICs"]
[63,2016,201663,10019,"UMICs","UMICs"]
[63,2017,201763,10019,"UMICs","UMICs"]
[63,2018,201863,10019,"UMICs","UMICs"]
[63,2019,201963,10019,"UMICs","UMICs"]
[63,2020,202063,10019,"UMICs","UMICs"]
[63,2021,202163,10019,"UMICs","UMICs"]
[63,2022,202263,10019,"UMICs","UMICs"]
[63,2023,202363,10019,"UMICs","UMICs"]
[63,2024,202463,10019,"UMICs","UMICs"]
[63,2025,202563,10019,"UMICs","UMICs"]
[64,2011,201164,10019,"UMICs","UMICs"]
[64,2012,201264,10019,"UMICs","UMICs"]
[64,2013,201364,10019,"UMICs","UMICs"]
[64,2014,201464,10019,"UMICs","UMICs"]
[64,2015,201564,10019,"UMICs","UMICs"]
[64,2016,201664,10019,"UMICs","UMICs"]
[64,2017,201764,10019,"UMICs","UMICs"]
[64,2018,201864,10019,"UMICs","UMICs"]
[64,2019,201964,10019,"UMICs","UMICs"]
[64,2020,202064,10019,"UMICs","UMICs"]
[64,2021,202164,10019,"UMICs","UMICs"]
[64,2022,202264,10019,"UMICs","UMICs"]
[64,2023,202364,10019,"UMICs","UMICs"]
[64,2024,202464,10019,"UMICs","UMICs"]
[64,2025,202564,10019,"UMICs","UMICs"]
[65,2008,200865,10019,"UMICs","UMICs"]
[65,2009,200965,10019,"UMICs","UMICs"]
[65,2010,201065,10019,"UMICs","UMICs"]
[65,2011,201165,10019,"UMICs","UMICs"]
[65,2012,201265,10019,"UMICs","UMICs"]
[65,2013,201365,10019,"UMICs","UMICs"]
[65,2014,201465,10019,"UMICs","UMICs"]
[65,2015,201565,10019,"UMICs","UMICs"]
[65,2016,201665,10019,"UMICs","UMICs"]
[65,2017,201765,10019,"UMICs","UMICs"]
[65,2018,201865,10019,"UMICs","UMICs"]
[65,2019,201965,10019,"UMICs","UMICs"]
[65,2020,202065,10019,"UMICs","UMICs"]
[65,2021,202165,10019,"UMICs","UMICs"]
[65,2022,202265,10019,"UMICs","UMICs"]
[65,2023,202365,10019,"UMICs","UMICs"]
[65,2024,202465,10019,"UMICs","UMICs"]
[65,2025,202565,10019,"UMICs","UMICs"]
[66,2011,201166,10019,"UMICs","UMICs"]
[66,2012,201266,10019,"UMICs","UMICs"]
[66,2013,201366,10019,"UMICs","UMICs"]
[66,2014,201466,10019,"UMICs","UMICs"]
[66,2015,201566,10019,"UMICs","UMICs"]
[66,2016,201666,10019,"UMICs","UMICs"]
[66,2017,201766,10019,"UMICs","UMICs"]
[66,2018,201866,10019,"UMICs","UMICs"]
[66,2019,201966,10019,"UMICs","UMICs"]
[66,2020,202066,10019,"UMICs","UMICs"]
[66,2021,202166,10019,"UMICs","UMICs"]
[66,2022,202266,10019,"UMICs","UMICs"]
[66,2023,202366,10019,"UMICs","UMICs"]
[66,2024,202466,10019,"UMICs","UMICs"]
[66,2025,202566,10019,"UMICs","UMICs"]
[71,2011,201171,10019,"UMICs","UMICs"]
[71,2012,201271,10019,"UMICs","UMICs"]
[71,2013,201371,10019,"UMICs","UMICs"]
[71,2014,201471,10019,"UMICs","UMICs"]
[71,2015,201571,10019,"UMICs","UMICs"]
[71,2016,201671,10019,"UMICs","UMICs"]
[71,2017,201771,10019,"UMICs","UMICs"]
[71,2018,201871,10019,"UMICs","UMICs"]
[71,2019,201971,10019,"UMICs","UMICs"]
[71,2020,202071,10019,"UMICs","UMICs"]
[71,2021,202171,10019,"UMICs","UMICs"]
[71,2022,202271,10019,"UMICs","UMICs"]
[71,2023,202371,10019,"UMICs","UMICs"]
[71,2024,202471,10019,"UMICs","UMICs"]
[71,2025,202571,10019,"UMICs","UMICs"]
[86,2008,200886,10019,"UMICs","UMICs"]
[86,2009,200986,10019,"UMICs","UMICs"]
[86,2010,201086,10019,"UMICs","UMICs"]
[86,2011,201186,10019,"UMICs","UMICs"]
[86,2012,201286,10019,"UMICs","UMICs"]
[86,2013,201386,10019,"UMICs","UMICs"]
[86,2014,201486,10019,"UMICs","UMICs"]
[86,2015,201586,10019,"UMICs","UMICs"]
[86,2016,201686,10019,"UMICs","UMICs"]
[86,2017,201786,10019,"UMICs","UMICs"]
[86,2018,201886,10019,"UMICs","UMICs"]
[86,2019,201986,10019,"UMICs","UMICs"]
[86,2020,202086,10019,"UMICs","UMICs"]
[86,2021,202186,10019,"UMICs","UMICs"]
[86,2022,202286,10019,"UMICs","UMICs"]
[86,2023,202386,10019,"UMICs","UMICs"]
[86,2024,202486,10019,"UMICs","UMICs"]
[86,2025,202586,10019,"UMICs","UMICs"]
[93,2022,202293,10019,"UMICs","UMICs"]
[93,2023,202393,10019,"UMICs","UMICs"]
[93,2024,202493,10019,"UMICs","UMICs"]
[93,2025,202593,10019,"UMICs","UMICs"]
[130,2011,2011130,10019,"UMICs","UMICs"]
[130,2012,2012130,10019,"UMICs","UMICs"]
[130,2013,2013130,10019,"UMICs","UMICs"]
[130,2014,2014130,10019,"UMICs","UMICs"]
[130,2015,2015130,10019,"UMICs","UMICs"]
[130,2016,2016130,10019,"UMICs","UMICs"]
[130,2017,2017130,10019,"UMICs","UMICs"]
[130,2018,2018130,10019,"UMICs","UMICs"]
[130,2019,2019130,10019,"UMICs","UMICs"]
[130,2020,2020130,10019,"UMICs","UMICs"]
[130,2021,2021130,10019,"UMICs","UMICs"]
[133,1996,1996133,10019,"UMICs","UMICs"]
[133,1997,1997133,10019,"UMICs","UMICs"]
[133,1998,1998133,10019,"UMICs","UMICs"]
[133,1999,1999133,10019,"UMICs","UMICs"]
[133,2005,2005133,10019,"UMICs","UMICs"]
[133,2006,2006133,10019,"UMICs","UMICs"]
[133,2007,2007133,10019,"UMICs","UMICs"]
[133,2008,2008133,10019,"UMICs","UMICs"]
[133,2009,2009133,10019,"UMICs","UMICs"]
[133,2010,2010133,10019,"UMICs","UMICs"]
[133,2011,2011133,10019,"UMICs","UMICs"]
[133,2012,2012133,10019,"UMICs","UMICs"]
[133,2013,2013133,10019,"UMICs","UMICs"]
[133,2014,2014133,10019,"UMICs","UMICs"]
[133,2015,2015133,10019,"UMICs","UMICs"]
[133,2016,2016133,10019,"UMICs","UMICs"]
[133,2017,2017133,10019,"UMICs","UMICs"]
[133,2018,2018133,10019,"UMICs","UMICs"]
[133,2019,2019133,10019,"UMICs","UMICs"]
[133,2020,2020133,10019,"UMICs","UMICs"]
[133,2021,2021133,10019,"UMICs","UMICs"]
[133,2022,2022133,10019,"UMICs","UMICs"]
[133,2023,2023133,10019,"UMICs","UMICs"]
[133,2024,2024133,10019,"UMICs","UMICs"]
[133,2025,2025133,10019,"UMICs","UMICs"]
[139,2011,2011139,10019,"UMICs","UMICs"]
[139,2012,2012139,10019,"UMICs","UMICs"]
[139,2013,2013139,10019,"UMICs","UMICs"]
[139,2014,2014139,10019,"UMICs","UMICs"]
[139,2015,2015139,10019,"UMICs","UMICs"]
[139,2016,2016139,10019,"UMICs","UMICs"]
[139,2017,2017139,10019,"UMICs","UMICs"]
[218,1996,1996218,10019,"UMICs","UMICs"]
[218,1997,1997218,10019,"UMICs","UMICs"]
[218,1998,1998218,10019,"UMICs","UMICs"]
[218,1999,1999218,10019,"UMICs","UMICs"]
[218,2005,2005218,10019,"UMICs","UMICs"]
[218,2006,2006218,10019,"UMICs","UMICs"]
[218,2007,2007218,10019,"UMICs","UMICs"]
[218,2008,2008218,10019,"UMICs","UMICs"]
[218,2009,2009218,10019,"UMICs","UMICs"]
[218,2010,2010218,10019,"UMICs","UMICs"]
[218,2011,2011218,10019,"UMICs","UMICs"]
[218,2012,2012218,10019,"UMICs","UMICs"]
[218,2013,2013218,10019,"UMICs","UMICs"]
[218,2014,2014218,10019,"UMICs","UMICs"]
[218,2015,2015218,10019,"UMICs","UMICs"]
[218,2016,2016218,10019,"UMICs","UMICs"]
[218,2017,2017218,10019,"UMICs","UMICs"]
[218,2018,2018218,10019,"UMICs","UMICs"]
[218,2019,2019218,10019,"UMICs","UMICs"]
[218,2020,2020218,10019,"UMICs","UMICs"]
[218,2021,2021218,10019,"UMICs","UMICs"]
[218,2022,2022218,10019,"UMICs","UMICs"]
[218,2023,2023218,10019,"UMICs","UMICs"]
[218,2024,2024218,10019,"UMICs","UMICs"]
[218,2025,2025218,10019,"UMICs","UMICs"]
[227,2000,2000227,10019,"UMICs","UMICs"]
[227,2001,2001227,10019,"UMICs","UMICs"]
[227,2002,2002227,10019,"UMICs","UMICs"]
[227,2003,2003227,10019,"UMICs","UMICs"]
[227,2004,2004227,10019,"UMICs","UMICs"]
[227,2005,2005227,10019,"UMICs","UMICs"]
[227,2006,2006227,10019,"UMICs","UMICs"]
[227,2007,2007227,10019,"UMICs","UMICs"]
[227,2008,2008227,10019,"UMICs","UMICs"]
[227,2009,2009227,10019,"UMICs","UMICs"]
[227,2010,2010227,10019,"UMICs","UMICs"]
[227,2011,2011227,10019,"UMICs","UMICs"]
[227,2012,2012227,10019,"UMICs","UMICs"]
[227,2013,2013227,10019,"UMICs","UMICs"]
[227,2014,2014227,10019,"UMICs","UMICs"]
[227,2015,2015227,10019,"UMICs","UMICs"]
[227,2016,2016227,10019,"UMICs","UMICs"]
[227,2017,2017227,10019,"UMICs","UMICs"]
[227,2018,2018227,10019,"UMICs","UMICs"]
[227,2019,2019227,10019,"UMICs","UMICs"]
[227,2020,2020227,10019,"UMICs","UMICs"]
[227,2021,2021227,10019,"UMICs","UMICs"]
[227,2022,2022227,10019,"UMICs","UMICs"]
[227,2023,2023227,10019,"UMICs","UMICs"]
[227,2024,2024227,10019,"UMICs","UMICs"]
[227,2025,2025227,10019,"UMICs","UMICs"]
[239,1996,1996239,10019,"UMICs","UMICs"]
[239,1997,1997239,10019,"UMICs","UMICs"]
[239,1998,1998239,10019,"UMICs","UMICs"]
[239,1999,1999239,10019,"UMICs","UMICs"]
[239,2000,2000239,10019,"UMICs","UMICs"]
[239,2001,2001239,10019,"UMICs","UMICs"]
[239,2002,2002239,10019,"UMICs","UMICs"]
[239,2003,2003239,10019,"UMICs","UMICs"]
[239,2004,2004239,10019,"UMICs","UMICs"]
[239,2005,2005239,10019,"UMICs","UMICs"]
[239,2006,2006239,10019,"UMICs","UMICs"]
[239,2007,2007239,10019,"UMICs","UMICs"]
[239,2008,2008239,10019,"UMICs","UMICs"]
[239,2009,2009239,10019,"UMICs","UMICs"]
[239,2010,2010239,10019,"UMICs","UMICs"]
[239,2011,2011239,10019,"UMICs","UMICs"]
[239,2012,2012239,10019,"UMICs","UMICs"]
[239,2013,2013239,10019,"UMICs","UMICs"]
[239,2014,2014239,10019,"UMICs","UMICs"]
[239,2015,2015239,10019,"UMICs","UMICs"]
[239,2016,2016239,10019,"UMICs","UMICs"]
[239,2017,2017239,10019,"UMICs","UMICs"]
[239,2018,2018239,10019,"UMICs","UMICs"]
[239,2019,2019239,10019,"UMICs","UMICs"]
[239,2020,2020239,10019,"UMICs","UMICs"]
[239,2021,2021239,10019,"UMICs","UMICs"]
[239,2022,2022239,10019,"UMICs","UMICs"]
[239,2023,2023239,10019,"UMICs","UMICs"]
[239,2024,2024239,10019,"UMICs","UMICs"]
[239,2025,2025239,10019,"UMICs","UMICs"]
[245,2018,2018245,10019,"UMICs","UMICs"]
[245,2019,2019245,10019,"UMICs","UMICs"]
[245,2020,2020245,10019,"UMICs","UMICs"]
[245,2021,2021245,10019,"UMICs","UMICs"]
[245,2022,2022245,10019,"UMICs","UMICs"]
[245,2023,2023245,10019,"UMICs","UMICs"]
[245,2024,2024245,10019,"UMICs","UMICs"]
[245,2025,2025245,10019,"UMICs","UMICs"]
[257,1996,1996257,10019,"UMICs","UMICs"]
[257,1997,1997257,10019,"UMICs","UMICs"]
[257,1998,1998257,10019,"UMICs","UMICs"]
[257,1999,1999257,10019,"UMICs","UMICs"]
[257,2000,2000257,10019,"UMICs","UMICs"]
[257,2001,2001257,10019,"UMICs","UMICs"]
[257,2002,2002257,10019,"UMICs","UMICs"]
[257,2003,2003257,10019,"UMICs","UMICs"]
[257,2004,2004257,10019,"UMICs","UMICs"]
[257,2005,2005257,10019,"UMICs","UMICs"]
[257,2006,2006257,10019,"UMICs","UMICs"]
[257,2007,2007257,10019,"UMICs","UMICs"]
[257,2008,2008257,10019,"UMICs","UMICs"]
[257,2009,2009257,10019,"UMICs","UMICs"]
[257,2010,2010257,10019,"UMICs","UMICs"]
[257,2011,2011257,10019,"UMICs","UMICs"]
[257,2012,2012257,10019,"UMICs","UMICs"]
[257,2013,2013257,10019,"UMICs","UMICs"]
[257,2014,2014257,10019,"UMICs","UMICs"]
[257,2015,2015257,10019,"UMICs","UMICs"]
[257,2016,2016257,10019,"UMICs","UMICs"]
[257,2017,2017257,10019,"UMICs","UMICs"]
[257,2018,2018257,10019,"UMICs","UMICs"]
[257,2019,2019257,10019,"UMICs","UMICs"]
[257,2020,2020257,10019,"UMICs","UMICs"]
[257,2021,2021257,10019,"UMICs","UMICs"]
[257,2022,2022257,10019,"UMICs","UMICs"]
[257,2023,2023257,10019,"UMICs","UMICs"]
[257,2024,2024257,10019,"UMICs","UMICs"]
[257,2025,2025257,10019,"UMICs","UMICs"]
[258,1996,1996258,10019,"UMICs","UMICs"]
[258,1997,1997258,10019,"UMICs","UMICs"]
[258,1998,1998258,10019,"UMICs","UMICs"]
[258,1999,1999258,10019,"UMICs","UMICs"]
[258,2000,2000258,10019,"UMICs","UMICs"]
[258,2001,2001258,10019,"UMICs","UMICs"]
[258,2002,2002258,10019,"UMICs","UMICs"]
[258,2003,2003258,10019,"UMICs","UMICs"]
[258,2004,2004258,10019,"UMICs","UMICs"]
[258,2005,2005258,10019,"UMICs","UMICs"]
[258,2006,2006258,10019,"UMICs","UMICs"]
[258,2007,2007258,10019,"UMICs","UMICs"]
[258,2008,2008258,10019,"UMICs","UMICs"]
[258,2009,2009258,10019,"UMICs","UMICs"]
[258,2010,2010258,10019,"UMICs","UMICs"]
[270,1996,1996270,10019,"UMICs","UMICs"]
[270,1997,1997270,10019,"UMICs","UMICs"]
[270,1998,1998270,10019,"UMICs","UMICs"]
[270,1999,1999270,10019,"UMICs","UMICs"]
[270,2000,2000270,10019,"UMICs","UMICs"]
[270,2001,2001270,10019,"UMICs","UMICs"]
[270,2002,2002270,10019,"UMICs","UMICs"]
[270,2003,2003270,10019,"UMICs","UMICs"]
[270,2004,2004270,10019,"UMICs","UMICs"]
[270,2005,2005270,10019,"UMICs","UMICs"]
[270,2006,2006270,10019,"UMICs","UMICs"]
[270,2007,2007270,10019,"UMICs","UMICs"]
[270,2008,2008270,10019,"UMICs","UMICs"]
[270,2009,2009270,10019,"UMICs","UMICs"]
[270,2010,2010270,10019,"UMICs","UMICs"]
[270,2011,2011270,10019,"UMICs","UMICs"]
[270,2012,2012270,10019,"UMICs","UMICs"]
[270,2013,2013270,10019,"UMICs","UMICs"]
[270,2014,2014270,10019,"UMICs","UMICs"]
[270,2015,2015270,10019,"UMICs","UMICs"]
[270,2016,2016270,10019,"UMICs","UMICs"]
[270,2017,2017270,10019,"UMICs","UMICs"]
[275,2011,2011275,10019,"UMICs","UMICs"]
[275,2012,2012275,10019,"UMICs","UMICs"]
[275,2013,2013275,10019,"UMICs","UMICs"]
[275,2014,2014275,10019,"UMICs","UMICs"]
[275,2015,2015275,10019,"UMICs","UMICs"]
[275,2016,2016275,10019,"UMICs","UMICs"]
[275,2017,2017275,10019,"UMICs","UMICs"]
[275,2018,2018275,10019,"UMICs","UMICs"]
[275,2019,2019275,10019,"UMICs","UMICs"]
[275,2020,2020275,10019,"UMICs","UMICs"]
[275,2021,2021275,10019,"UMICs","UMICs"]
[275,2022,2022275,10019,"UMICs","UMICs"]
[275,2023,2023275,10019,"UMICs","UMICs"]
[275,2024,2024275,10019,"UMICs","UMICs"]
[275,2025,2025275,10019,"UMICs","UMICs"]
[276,1996,1996276,10019,"UMICs","UMICs"]
[276,1997,1997276,10019,"UMICs","UMICs"]
[276,1998,1998276,10019,"UMICs","UMICs"]
[276,1999,1999276,10019,"UMICs","UMICs"]
[276,2000,2000276,10019,"UMICs","UMICs"]
[276,2001,2001276,10019,"UMICs","UMICs"]
[276,2002,2002276,10019,"UMICs","UMICs"]
[276,2003,2003276,10019,"UMICs","UMICs"]
[276,2004,2004276,10019,"UMICs","UMICs"]
[276,2005,2005276,10019,"UMICs","UMICs"]
[276,2006,2006276,10019,"UMICs","UMICs"]
[276,2007,2007276,10019,"UMICs","UMICs"]
[276,2008,2008276,10019,"UMICs","UMICs"]
[276,2009,2009276,10019,"UMICs","UMICs"]
[276,2010,2010276,10019,"UMICs","UMICs"]
[276,2011,2011276,10019,"UMICs","UMICs"]
[276,2012,2012276,10019,"UMICs","UMICs"]
[276,2013,2013276,10019,"UMICs","UMICs"]
[276,2014,2014276,10019,"UMICs","UMICs"]
[276,2015,2015276,10019,"UMICs","UMICs"]
[276,2016,2016276,10019,"UMICs","UMICs"]
[276,2017,2017276,10019,"UMICs","UMICs"]
[276,2018,2018276,10019,"UMICs","UMICs"]
[276,2019,2019276,10019,"UMICs","UMICs"]
[276,2020,2020276,10019,"UMICs","UMICs"]
[276,2021,2021276,10019,"UMICs","UMICs"]
[276,2022,2022276,10019,"UMICs","UMICs"]
[276,2023,2023276,10019,"UMICs","UMICs"]
[276,2024,2024276,10019,"UMICs","UMICs"]
[276,2025,2025276,10019,"UMICs","UMICs"]
[329,1996,1996329,10019,"UMICs","UMICs"]
[329,1997,1997329,10019,"UMICs","UMICs"]
[329,1998,1998329,10019,"UMICs","UMICs"]
[329,1999,1999329,10019,"UMICs","UMICs"]
[329,2000,2000329,10019,"UMICs","UMICs"]
[329,2001,2001329,10019,"UMICs","UMICs"]
[329,2002,2002329,10019,"UMICs","UMICs"]
[329,2003,2003329,10019,"UMICs","UMICs"]
[329,2004,2004329,10019,"UMICs","UMICs"]
[329,2005,2005329,10019,"UMICs","UMICs"]
[329,2006,2006329,10019,"UMICs","UMICs"]
[329,2007,2007329,10019,"UMICs","UMICs"]
[329,2008,2008329,10019,"UMICs","UMICs"]
[329,2009,2009329,10019,"UMICs","UMICs"]
[329,2010,2010329,10019,"UMICs","UMICs"]
[336,2003,2003336,10019,"UMICs","UMICs"]
[336,2004,2004336,10019,"UMICs","UMICs"]
[336,2005,2005336,10019,"UMICs","UMICs"]
[336,2006,2006336,10019,"UMICs","UMICs"]
[336,2007,2007336,10019,"UMICs","UMICs"]
[336,2008,2008336,10019,"UMICs","UMICs"]
[336,2009,2009336,10019,"UMICs","UMICs"]
[336,2010,2010336,10019,"UMICs","UMICs"]
[336,2011,2011336,10019,"UMICs","UMICs"]
[336,2012,2012336,10019,"UMICs","UMICs"]
[336,2013,2013336,10019,"UMICs","UMICs"]
[336,2014,2014336,10019,"UMICs","UMICs"]
[336,2015,2015336,10019,"UMICs","UMICs"]
[336,2016,2016336,10019,"UMICs","UMICs"]
[336,2017,2017336,10019,"UMICs","UMICs"]
[336,2018,2018336,10019,"UMICs","UMICs"]
[336,2019,2019336,10019,"UMICs","UMICs"]
[336,2020,2020336,10019,"UMICs","UMICs"]
[336,2021,2021336,10019,"UMICs","UMICs"]
[336,2022,2022336,10019,"UMICs","UMICs"]
[336,2023,2023336,10019,"UMICs","UMICs"]
[336,2024,2024336,10019,"UMICs","UMICs"]
[336,2025,2025336,10019,"UMICs","UMICs"]
[338,2008,2008338,10019,"UMICs","UMICs"]
[338,2009,2009338,10019,"UMICs","UMICs"]
[338,2010,2010338,10019,"UMICs","UMICs"]
[338,2011,2011338,10019,"UMICs","UMICs"]
[338,2012,2012338,10019,"UMICs","UMICs"]
[338,2013,2013338,10019,"UMICs","UMICs"]
[338,2014,2014338,10019,"UMICs","UMICs"]
[338,2015,2015338,10019,"UMICs","UMICs"]
[338,2016,2016338,10019,"UMICs","UMICs"]
[338,2017,2017338,10019,"UMICs","UMICs"]
[338,2018,2018338,10019,"UMICs","UMICs"]
[338,2019,2019338,10019,"UMICs","UMICs"]
[338,2020,2020338,10019,"UMICs","UMICs"]
[338,2021,2021338,10019,"UMICs","UMICs"]
[338,2022,2022338,10019,"UMICs","UMICs"]
[338,2023,2023338,10019,"UMICs","UMICs"]
[338,2024,2024338,10019,"UMICs","UMICs"]
[338,2025,2025338,10019,"UMICs","UMICs"]
[340,2011,2011340,10019,"UMICs","UMICs"]
[340,2012,2012340,10019,"UMICs","UMICs"]
[340,2013,2013340,10019,"UMICs","UMICs"]
[340,2014,2014340,10019,"UMICs","UMICs"]
[340,2015,2015340,10019,"UMICs","UMICs"]
[340,2016,2016340,10019,"UMICs","UMICs"]
[340,2017,2017340,10019,"UMICs","UMICs"]
[340,2018,2018340,10019,"UMICs","UMICs"]
[340,2019,2019340,10019,"UMICs","UMICs"]
[340,2020,2020340,10019,"UMICs","UMICs"]
[340,2021,2021340,10019,"UMICs","UMICs"]
[340,2022,2022340,10019,"UMICs","UMICs"]
[340,2023,2023340,10019,"UMICs","UMICs"]
[340,2024,2024340,10019,"UMICs","UMICs"]
[340,2025,2025340,10019,"UMICs","UMICs"]
[342,2024,2024342,10019,"UMICs","UMICs"]
[342,2025,2025342,10019,"UMICs","UMICs"]
[347,2022,2022347,10019,"UMICs","UMICs"]
[347,2023,2023347,10019,"UMICs","UMICs"]
[347,2024,2024347,10019,"UMICs","UMICs"]
[347,2025,2025347,10019,"UMICs","UMICs"]
[352,2005,2005352,10019,"UMICs","UMICs"]
[352,2006,2006352,10019,"UMICs","UMICs"]
[352,2007,2007352,10019,"UMICs","UMICs"]
[352,2008,2008352,10019,"UMICs","UMICs"]
[352,2009,2009352,10019,"UMICs","UMICs"]
[352,2010,2010352,10019,"UMICs","UMICs"]
[352,2014,2014352,10019,"UMICs","UMICs"]
[352,2015,2015352,10019,"UMICs","UMICs"]
[352,2016,2016352,10019,"UMICs","UMICs"]
[352,2017,2017352,10019,"UMICs","UMICs"]
[352,2018,2018352,10019,"UMICs","UMICs"]
[352,2019,2019352,10019,"UMICs","UMICs"]
[352,2020,2020352,10019,"UMICs","UMICs"]
[352,2021,2021352,10019,"UMICs","UMICs"]
[352,2024,2024352,10019,"UMICs","UMICs"]
[352,2025,2025352,10019,"UMICs","UMICs"]
[354,2008,2008354,10019,"UMICs","UMICs"]
[354,2009,2009354,10019,"UMICs","UMICs"]
[354,2010,2010354,10019,"UMICs","UMICs"]
[354,2011,2011354,10019,"UMICs","UMICs"]
[354,2012,2012354,10019,"UMICs","UMICs"]
[354,2013,2013354,10019,"UMICs","UMICs"]
[354,2014,2014354,10019,"UMICs","UMICs"]
[354,2015,2015354,10019,"UMICs","UMICs"]
[354,2016,2016354,10019,"UMICs","UMICs"]
[354,2017,2017354,10019,"UMICs","UMICs"]
[354,2018,2018354,10019,"UMICs","UMICs"]
[354,2019,2019354,10019,"UMICs","UMICs"]
[354,2020,2020354,10019,"UMICs","UMICs"]
[354,2021,2021354,10019,"UMICs","UMICs"]
[354,2022,2022354,10019,"UMICs","UMICs"]
[354,2023,2023354,10019,"UMICs","UMICs"]
[354,2024,2024354,10019,"UMICs","UMICs"]
[354,2025,2025354,10019,"UMICs","UMICs"]
[358,1996,1996358,10019,"UMICs","UMICs"]
[358,1997,1997358,10019,"UMICs","UMICs"]
[358,1998,1998358,10019,"UMICs","UMICs"]
[358,1999,1999358,10019,"UMICs","UMICs"]
[358,2000,2000358,10019,"UMICs","UMICs"]
[358,2001,2001358,10019,"UMICs","UMICs"]
[358,2002,2002358,10019,"UMICs","UMICs"]
[358,2003,2003358,10019,"UMICs","UMICs"]
[358,2004,2004358,10019,"UMICs","UMICs"]
[358,2005,2005358,10019,"UMICs","UMICs"]
[358,2006,2006358,10019,"UMICs","UMICs"]
[358,2007,2007358,10019,"UMICs","UMICs"]
[358,2008,2008358,10019,"UMICs","UMICs"]
[358,2009,2009358,10019,"UMICs","UMICs"]
[358,2010,2010358,10019,"UMICs","UMICs"]
[358,2011,2011358,10019,"UMICs","UMICs"]
[358,2012,2012358,10019,"UMICs","UMICs"]
[358,2013,2013358,10019,"UMICs","UMICs"]
[358,2014,2014358,10019,"UMICs","UMICs"]
[358,2015,2015358,10019,"UMICs","UMICs"]
[358,2016,2016358,10019,"UMICs","UMICs"]
[358,2017,2017358,10019,"UMICs","UMICs"]
[358,2018,2018358,10019,"UMICs","UMICs"]
[358,2019,2019358,10019,"UMICs","UMICs"]
[358,2020,2020358,10019,"UMICs","UMICs"]
[358,2021,2021358,10019,"UMICs","UMICs"]
[358,2022,2022358,10019,"UMICs","UMICs"]
[358,2023,2023358,10019,"UMICs","UMICs"]
[358,2024,2024358,10019,"UMICs","UMICs"]
[358,2025,2025358,10019,"UMICs","UMICs"]
[366,2000,2000366,10019,"UMICs","UMICs"]
[366,2001,2001366,10019,"UMICs","UMICs"]
[366,2002,2002366,10019,"UMICs","UMICs"]
[366,2003,2003366,10019,"UMICs","UMICs"]
[366,2004,2004366,10019,"UMICs","UMICs"]
[366,2005,2005366,10019,"UMICs","UMICs"]
[366,2006,2006366,10019,"UMICs","UMICs"]
[366,2007,2007366,10019,"UMICs","UMICs"]
[366,2008,2008366,10019,"UMICs","UMICs"]
[366,2009,2009366,10019,"UMICs","UMICs"]
[366,2010,2010366,10019,"UMICs","UMICs"]
[366,2011,2011366,10019,"UMICs","UMICs"]
[366,2012,2012366,10019,"UMICs","UMICs"]
[366,2013,2013366,10019,"UMICs","UMICs"]
[366,2014,2014366,10019,"UMICs","UMICs"]
[366,2015,2015366,10019,"UMICs","UMICs"]
[366,2016,2016366,10019,"UMICs","UMICs"]
[366,2017,2017366,10019,"UMICs","UMICs"]
[366,2018,2018366,10019,"UMICs","UMICs"]
[366,2019,2019366,10019,"UMICs","UMICs"]
[366,2020,2020366,10019,"UMICs","UMICs"]
[366,2021,2021366,10019,"UMICs","UMICs"]
[366,2022,2022366,10019,"UMICs","UMICs"]
[366,2023,2023366,10019,"UMICs","UMICs"]
[366,2024,2024366,10019,"UMICs","UMICs"]
[366,2025,2025366,10019,"UMICs","UMICs"]
[375,1996,1996375,10019,"UMICs","UMICs"]
[375,1997,1997375,10019,"UMICs","UMICs"]
[375,1998,1998375,10019,"UMICs","UMICs"]
[375,1999,1999375,10019,"UMICs","UMICs"]
[375,2000,2000375,10019,"UMICs","UMICs"]
[375,2001,2001375,10019,"UMICs","UMICs"]
[375,2002,2002375,10019,"UMICs","UMICs"]
[375,2003,2003375,10019,"UMICs","UMICs"]
[375,2004,2004375,10019,"UMICs","UMICs"]
[375,2005,2005375,10019,"UMICs","UMICs"]
[375,2006,2006375,10019,"UMICs","UMICs"]
[375,2007,2007375,10019,"UMICs","UMICs"]
[375,2008,2008375,10019,"UMICs","UMICs"]
[375,2009,2009375,10019,"UMICs","UMICs"]
[375,2010,2010375,10019,"UMICs","UMICs"]
[376,1996,1996376,10019,"UMICs","UMICs"]
[376,1997,1997376,10019,"UMICs","UMICs"]
[376,1998,1998376,10019,"UMICs","UMICs"]
[376,1999,1999376,10019,"UMICs","UMICs"]
[376,2000,2000376,10019,"UMICs","UMICs"]
[376,2001,2001376,10019,"UMICs","UMICs"]
[376,2002,2002376,10019,"UMICs","UMICs"]
[376,2003,2003376,10019,"UMICs","UMICs"]
[376,2004,2004376,10019,"UMICs","UMICs"]
[376,2005,2005376,10019,"UMICs","UMICs"]
[376,2006,2006376,10019,"UMICs","UMICs"]
[376,2007,2007376,10019,"UMICs","UMICs"]
[376,2008,2008376,10019,"UMICs","UMICs"]
[376,2009,2009376,10019,"UMICs","UMICs"]
[376,2010,2010376,10019,"UMICs","UMICs"]
[376,2011,2011376,10019,"UMICs","UMICs"]
[376,2012,2012376,10019,"UMICs","UMICs"]
[376,2013,2013376,10019,"UMICs","UMICs"]
[377,1996,1996377,10019,"UMICs","UMICs"]
[377,1997,1997377,10019,"UMICs","UMICs"]
[377,1998,1998377,10019,"UMICs","UMICs"]
[377,1999,1999377,10019,"UMICs","UMICs"]
[377,2000,2000377,10019,"UMICs","UMICs"]
[377,2001,2001377,10019,"UMICs","UMICs"]
[377,2002,2002377,10019,"UMICs","UMICs"]
[377,2003,2003377,10019,"UMICs","UMICs"]
[377,2004,2004377,10019,"UMICs","UMICs"]
[377,2005,2005377,10019,"UMICs","UMICs"]
[377,2006,2006377,10019,"UMICs","UMICs"]
[377,2007,2007377,10019,"UMICs","UMICs"]
[377,2008,2008377,10019,"UMICs","UMICs"]
[377,2009,2009377,10019,"UMICs","UMICs"]
[377,2010,2010377,10019,"UMICs","UMICs"]
[377,2011,2011377,10019,"UMICs","UMICs"]
[377,2012,2012377,10019,"UMICs","UMICs"]
[377,2013,2013377,10019,"UMICs","UMICs"]
[377,2014,2014377,10019,"UMICs","UMICs"]
[377,2015,2015377,10019,"UMICs","UMICs"]
[377,2016,2016377,10019,"UMICs","UMICs"]
[377,2017,2017377,10019,"UMICs","UMICs"]
[377,2018,2018377,10019,"UMICs","UMICs"]
[377,2019,2019377,10019,"UMICs","UMICs"]
[377,2020,2020377,10019,"UMICs","UMICs"]
[377,2021,2021377,10019,"UMICs","UMICs"]
[378,2003,2003378,10019,"UMICs","UMICs"]
[378,2004,2004378,10019,"UMICs","UMICs"]
[378,2005,2005378,10019,"UMICs","UMICs"]
[378,2006,2006378,10019,"UMICs","UMICs"]
[378,2007,2007378,10019,"UMICs","UMICs"]
[378,2008,2008378,10019,"UMICs","UMICs"]
[378,2009,2009378,10019,"UMICs","UMICs"]
[378,2010,2010378,10019,"UMICs","UMICs"]
[378,2011,2011378,10019,"UMICs","UMICs"]
[378,2012,2012378,10019,"UMICs","UMICs"]
[378,2013,2013378,10019,"UMICs","UMICs"]
[378,2014,2014378,10019,"UMICs","UMICs"]
[378,2015,2015378,10019,"UMICs","UMICs"]
[378,2016,2016378,10019,"UMICs","UMICs"]
[378,2017,2017378,10019,"UMICs","UMICs"]
[378,2018,2018378,10019,"UMICs","UMICs"]
[378,2019,2019378,10019,"UMICs","UMICs"]
[378,2020,2020378,10019,"UMICs","UMICs"]
[378,2021,2021378,10019,"UMICs","UMICs"]
[378,2022,2022378,10019,"UMICs","UMICs"]
[378,2023,2023378,10019,"UMICs","UMICs"]
[378,2024,2024378,10019,"UMICs","UMICs"]
[378,2025,2025378,10019,"UMICs","UMICs"]
[381,2000,2000381,10019,"UMICs","UMICs"]
[381,2001,2001381,10019,"UMICs","UMICs"]
[381,2002,2002381,10019,"UMICs","UMICs"]
[381,2003,2003381,10019,"UMICs","UMICs"]
[381,2004,2004381,10019,"UMICs","UMICs"]
[381,2005,2005381,10019,"UMICs","UMICs"]
[381,2006,2006381,10019,"UMICs","UMICs"]
[381,2007,2007381,10019,"UMICs","UMICs"]
[381,2008,2008381,10019,"UMICs","UMICs"]
[381,2009,2009381,10019,"UMICs","UMICs"]
[381,2010,2010381,10019,"UMICs","UMICs"]
[381,2011,2011381,10019,"UMICs","UMICs"]
[381,2012,2012381,10019,"UMICs","UMICs"]
[381,2013,2013381,10019,"UMICs","UMICs"]
[381,2014,2014381,10019,"UMICs","UMICs"]
[381,2015,2015381,10019,"UMICs","UMICs"]
[381,2016,2016381,10019,"UMICs","UMICs"]
[381,2017,2017381,10019,"UMICs","UMICs"]
[381,2018,2018381,10019,"UMICs","UMICs"]
[381,2019,2019381,10019,"UMICs","UMICs"]
[381,2020,2020381,10019,"UMICs","UMICs"]
[381,2021,2021381,10019,"UMICs","UMICs"]
[381,2022,2022381,10019,"UMICs","UMICs"]
[381,2023,2023381,10019,"UMICs","UMICs"]
[381,2024,2024381,10019,"UMICs","UMICs"]
[381,2025,2025381,10019,"UMICs","UMICs"]
[382,1996,1996382,10019,"UMICs","UMICs"]
[382,1997,1997382,10019,"UMICs","UMICs"]
[382,1998,1998382,10019,"UMICs","UMICs"]
[382,1999,1999382,10019,"UMICs","UMICs"]
[382,2000,2000382,10019,"UMICs","UMICs"]
[382,2001,2001382,10019,"UMICs","UMICs"]
[382,2002,2002382,10019,"UMICs","UMICs"]
[382,2003,2003382,10019,"UMICs","UMICs"]
[382,2004,2004382,10019,"UMICs","UMICs"]
[382,2005,2005382,10019,"UMICs","UMICs"]
[382,2006,2006382,10019,"UMICs","UMICs"]
[382,2007,2007382,10019,"UMICs","UMICs"]
[382,2008,2008382,10019,"UMICs","UMICs"]
[382,2009,2009382,10019,"UMICs","UMICs"]
[382,2010,2010382,10019,"UMICs","UMICs"]
[382,2011,2011382,10019,"UMICs","UMICs"]
[382,2012,2012382,10019,"UMICs","UMICs"]
[382,2013,2013382,10019,"UMICs","UMICs"]
[383,1996,1996383,10019,"UMICs","UMICs"]
[383,1997,1997383,10019,"UMICs","UMICs"]
[383,1998,1998383,10019,"UMICs","UMICs"]
[383,1999,1999383,10019,"UMICs","UMICs"]
[383,2000,2000383,10019,"UMICs","UMICs"]
[383,2001,2001383,10019,"UMICs","UMICs"]
[383,2002,2002383,10019,"UMICs","UMICs"]
[383,2003,2003383,10019,"UMICs","UMICs"]
[383,2004,2004383,10019,"UMICs","UMICs"]
[383,2005,2005383,10019,"UMICs","UMICs"]
[383,2006,2006383,10019,"UMICs","UMICs"]
[383,2007,2007383,10019,"UMICs","UMICs"]
[383,2008,2008383,10019,"UMICs","UMICs"]
[383,2009,2009383,10019,"UMICs","UMICs"]
[383,2010,2010383,10019,"UMICs","UMICs"]
[383,2011,2011383,10019,"UMICs","UMICs"]
[383,2012,2012383,10019,"UMICs","UMICs"]
[383,2013,2013383,10019,"UMICs","UMICs"]
[383,2014,2014383,10019,"UMICs","UMICs"]
[383,2015,2015383,10019,"UMICs","UMICs"]
[383,2016,2016383,10019,"UMICs","UMICs"]
[383,2017,2017383,10019,"UMICs","UMICs"]
[383,2018,2018383,10019,"UMICs","UMICs"]
[383,2019,2019383,10019,"UMICs","UMICs"]
[383,2020,2020383,10019,"UMICs","UMICs"]
[383,2021,2021383,10019,"UMICs","UMICs"]
[383,2022,2022383,10019,"UMICs","UMICs"]
[383,2023,2023383,10019,"UMICs","UMICs"]
[383,2024,2024383,10019,"UMICs","UMICs"]
[383,2025,2025383,10019,"UMICs","UMICs"]
[384,2005,2005384,10019,"UMICs","UMICs"]
[384,2006,2006384,10019,"UMICs","UMICs"]
[384,2007,2007384,10019,"UMICs","UMICs"]
[384,2008,2008384,10019,"UMICs","UMICs"]
[384,2009,2009384,10019,"UMICs","UMICs"]
[384,2010,2010384,10019,"UMICs","UMICs"]
[384,2011,2011384,10019,"UMICs","UMICs"]
[384,2012,2012384,10019,"UMICs","UMICs"]
[384,2013,2013384,10019,"UMICs","UMICs"]
[384,2014,2014384,10019,"UMICs","UMICs"]
[384,2015,2015384,10019,"UMICs","UMICs"]
[384,2016,2016384,10019,"UMICs","UMICs"]
[384,2017,2017384,10019,"UMICs","UMICs"]
[384,2018,2018384,10019,"UMICs","UMICs"]
[384,2019,2019384,10019,"UMICs","UMICs"]
[384,2020,2020384,10019,"UMICs","UMICs"]
[384,2021,2021384,10019,"UMICs","UMICs"]
[384,2022,2022384,10019,"UMICs","UMICs"]
[384,2023,2023384,10019,"UMICs","UMICs"]
[384,2024,2024384,10019,"UMICs","UMICs"]
[384,2025,2025384,10019,"UMICs","UMICs"]
[385,1996,1996385,10019,"UMICs","UMICs"]
[385,1997,1997385,10019,"UMICs","UMICs"]
[385,1998,1998385,10019,"UMICs","UMICs"]
[385,1999,1999385,10019,"UMICs","UMICs"]
[385,2000,2000385,10019,"UMICs","UMICs"]
[385,2001,2001385,10019,"UMICs","UMICs"]
[385,2002,2002385,10019,"UMICs","UMICs"]
[385,2003,2003385,10019,"UMICs","UMICs"]
[385,2004,2004385,10019,"UMICs","UMICs"]
[385,2005,2005385,10019,"UMICs","UMICs"]
[385,2006,2006385,10019,"UMICs","UMICs"]
[385,2007,2007385,10019,"UMICs","UMICs"]
[385,2008,2008385,10019,"UMICs","UMICs"]
[385,2009,2009385,10019,"UMICs","UMICs"]
[385,2010,2010385,10019,"UMICs","UMICs"]
[385,2011,2011385,10019,"UMICs","UMICs"]
[385,2012,2012385,10019,"UMICs","UMICs"]
[385,2013,2013385,10019,"UMICs","UMICs"]
[385,2014,2014385,10019,"UMICs","UMICs"]
[385,2015,2015385,10019,"UMICs","UMICs"]
[385,2016,2016385,10019,"UMICs","UMICs"]
[385,2017,2017385,10019,"UMICs","UMICs"]
[385,2018,2018385,10019,"UMICs","UMICs"]
[385,2019,2019385,10019,"UMICs","UMICs"]
[385,2020,2020385,10019,"UMICs","UMICs"]
[385,2021,2021385,10019,"UMICs","UMICs"]
[385,2022,2022385,10019,"UMICs","UMICs"]
[385,2023,2023385,10019,"UMICs","UMICs"]
[385,2024,2024385,10019,"UMICs","UMICs"]
[385,2025,2025385,10019,"UMICs","UMICs"]
[387,1996,1996387,10019,"UMICs","UMICs"]
[387,1997,1997387,10019,"UMICs","UMICs"]
[387,1998,1998387,10019,"UMICs","UMICs"]
[387,1999,1999387,10019,"UMICs","UMICs"]
[387,2000,2000387,10019,"UMICs","UMICs"]
[387,2001,2001387,10019,"UMICs","UMICs"]
[387,2002,2002387,10019,"UMICs","UMICs"]
[387,2003,2003387,10019,"UMICs","UMICs"]
[387,2004,2004387,10019,"UMICs","UMICs"]
[387,2005,2005387,10019,"UMICs","UMICs"]
[387,2006,2006387,10019,"UMICs","UMICs"]
[387,2007,2007387,10019,"UMICs","UMICs"]
[425,1996,1996425,10019,"UMICs","UMICs"]
[425,1997,1997425,10019,"UMICs","UMICs"]
[425,1998,1998425,10019,"UMICs","UMICs"]
[425,1999,1999425,10019,"UMICs","UMICs"]
[425,2000,2000425,10019,"UMICs","UMICs"]
[425,2001,2001425,10019,"UMICs","UMICs"]
[425,2002,2002425,10019,"UMICs","UMICs"]
[425,2003,2003425,10019,"UMICs","UMICs"]
[425,2004,2004425,10019,"UMICs","UMICs"]
[425,2005,2005425,10019,"UMICs","UMICs"]
[425,2006,2006425,10019,"UMICs","UMICs"]
[425,2007,2007425,10019,"UMICs","UMICs"]
[425,2008,2008425,10019,"UMICs","UMICs"]
[425,2009,2009425,10019,"UMICs","UMICs"]
[425,2010,2010425,10019,"UMICs","UMICs"]
[425,2011,2011425,10019,"UMICs","UMICs"]
[425,2012,2012425,10019,"UMICs","UMICs"]
[425,2013,2013425,10019,"UMICs","UMICs"]
[425,2014,2014425,10019,"UMICs","UMICs"]
[425,2015,2015425,10019,"UMICs","UMICs"]
[425,2016,2016425,10019,"UMICs","UMICs"]
[425,2017,2017425,10019,"UMICs","UMICs"]
[425,2018,2018425,10019,"UMICs","UMICs"]
[425,2019,2019425,10019,"UMICs","UMICs"]
[425,2020,2020425,10019,"UMICs","UMICs"]
[425,2021,2021425,10019,"UMICs","UMICs"]
[425,2022,2022425,10019,"UMICs","UMICs"]
[425,2023,2023425,10019,"UMICs","UMICs"]
[425,2024,2024425,10019,"UMICs","UMICs"]
[425,2025,2025425,10019,"UMICs","UMICs"]
[431,1996,1996431,10019,"UMICs","UMICs"]
[431,1997,1997431,10019,"UMICs","UMICs"]
[431,1998,1998431,10019,"UMICs","UMICs"]
[431,1999,1999431,10019,"UMICs","UMICs"]
[431,2000,2000431,10019,"UMICs","UMICs"]
[431,2001,2001431,10019,"UMICs","UMICs"]
[431,2002,2002431,10019,"UMICs","UMICs"]
[431,2003,2003431,10019,"UMICs","UMICs"]
[431,2004,2004431,10019,"UMICs","UMICs"]
[431,2008,2008431,10019,"UMICs","UMICs"]
[431,2009,2009431,10019,"UMICs","UMICs"]
[431,2010,2010431,10019,"UMICs","UMICs"]
[431,2011,2011431,10019,"UMICs","UMICs"]
[431,2012,2012431,10019,"UMICs","UMICs"]
[431,2013,2013431,10019,"UMICs","UMICs"]
[431,2014,2014431,10019,"UMICs","UMICs"]
[431,2015,2015431,10019,"UMICs","UMICs"]
[431,2016,2016431,10019,"UMICs","UMICs"]
[431,2017,2017431,10019,"UMICs","UMICs"]
[431,2018,2018431,10019,"UMICs","UMICs"]
[431,2019,2019431,10019,"UMICs","UMICs"]
[431,2020,2020431,10019,"UMICs","UMICs"]
[431,2021,2021431,10019,"UMICs","UMICs"]
[431,2022,2022431,10019,"UMICs","UMICs"]
[431,2023,2023431,10019,"UMICs","UMICs"]
[431,2024,2024431,10019,"UMICs","UMICs"]
[431,2025,2025431,10019,"UMICs","UMICs"]
[434,1996,1996434,10019,"UMICs","UMICs"]
[434,1997,1997434,10019,"UMICs","UMICs"]
[434,1998,1998434,10019,"UMICs","UMICs"]
[434,1999,1999434,10019,"UMICs","UMICs"]
[434,2000,2000434,10019,"UMICs","UMICs"]
[434,2001,2001434,10019,"UMICs","UMICs"]
[434,2002,2002434,10019,"UMICs","UMICs"]
[434,2003,2003434,10019,"UMICs","UMICs"]
[434,2004,2004434,10019,"UMICs","UMICs"]
[434,2005,2005434,10019,"UMICs","UMICs"]
[434,2006,2006434,10019,"UMICs","UMICs"]
[434,2007,2007434,10019,"UMICs","UMICs"]
[434,2008,2008434,10019,"UMICs","UMICs"]
[434,2009,2009434,10019,"UMICs","UMICs"]
[434,2010,2010434,10019,"UMICs","UMICs"]
[434,2011,2011434,10019,"UMICs","UMICs"]
[434,2012,2012434,10019,"UMICs","UMICs"]
[434,2013,2013434,10019,"UMICs","UMICs"]
[434,2014,2014434,10019,"UMICs","UMICs"]
[434,2015,2015434,10019,"UMICs","UMICs"]
[434,2016,2016434,10019,"UMICs","UMICs"]
[434,2017,2017434,10019,"UMICs","UMICs"]
[437,2011,2011437,10019,"UMICs","UMICs"]
[437,2012,2012437,10019,"UMICs","UMICs"]
[437,2013,2013437,10019,"UMICs","UMICs"]
[437,2014,2014437,10019,"UMICs","UMICs"]
[437,2015,2015437,10019,"UMICs","UMICs"]
[437,2016,2016437,10019,"UMICs","UMICs"]
[437,2017,2017437,10019,"UMICs","UMICs"]
[437,2018,2018437,10019,"UMICs","UMICs"]
[437,2019,2019437,10019,"UMICs","UMICs"]
[437,2020,2020437,10019,"UMICs","UMICs"]
[437,2021,2021437,10019,"UMICs","UMICs"]
[437,2022,2022437,10019,"UMICs","UMICs"]
[437,2023,2023437,10019,"UMICs","UMICs"]
[437,2024,2024437,10019,"UMICs","UMICs"]
[437,2025,2025437,10019,"UMICs","UMICs"]
[440,2011,2011440,10019,"UMICs","UMICs"]
[440,2012,2012440,10019,"UMICs","UMICs"]
[440,2013,2013440,10019,"UMICs","UMICs"]
[440,2014,2014440,10019,"UMICs","UMICs"]
[440,2015,2015440,10019,"UMICs","UMICs"]
[440,2016,2016440,10019,"UMICs","UMICs"]
[440,2017,2017440,10019,"UMICs","UMICs"]
[440,2018,2018440,10019,"UMICs","UMICs"]
[440,2019,2019440,10019,"UMICs","UMICs"]
[440,2020,2020440,10019,"UMICs","UMICs"]
[440,2021,2021440,10019,"UMICs","UMICs"]
[440,2022,2022440,10019,"UMICs","UMICs"]
[440,2023,2023440,10019,"UMICs","UMICs"]
[440,2024,2024440,10019,"UMICs","UMICs"]
[440,2025,2025440,10019,"UMICs","UMICs"]
[446,2018,2018446,10019,"UMICs","UMICs"]
[446,2019,2019446,10019,"UMICs","UMICs"]
[446,2020,2020446,10019,"UMICs","UMICs"]
[446,2021,2021446,10019,"UMICs","UMICs"]
[446,2022,2022446,10019,"UMICs","UMICs"]
[446,2023,2023446,10019,"UMICs","UMICs"]
[446,2024,2024446,10019,"UMICs","UMICs"]
[446,2025,2025446,10019,"UMICs","UMICs"]
[451,2018,2018451,10019,"UMICs","UMICs"]
[451,2019,2019451,10019,"UMICs","UMICs"]
[451,2020,2020451,10019,"UMICs","UMICs"]
[451,2021,2021451,10019,"UMICs","UMICs"]
[451,2022,2022451,10019,"UMICs","UMICs"]
[451,2023,2023451,10019,"UMICs","UMICs"]
[451,2024,2024451,10019,"UMICs","UMICs"]
[451,2025,2025451,10019,"UMICs","UMICs"]
[454,2011,2011454,10019,"UMICs","UMICs"]
[454,2012,2012454,10019,"UMICs","UMICs"]
[454,2013,2013454,10019,"UMICs","UMICs"]
[454,2014,2014454,10019,"UMICs","UMICs"]
[454,2015,2015454,10019,"UMICs","UMICs"]
[454,2016,2016454,10019,"UMICs","UMICs"]
[454,2017,2017454,10019,"UMICs","UMICs"]
[454,2018,2018454,10019,"UMICs","UMICs"]
[454,2019,2019454,10019,"UMICs","UMICs"]
[454,2020,2020454,10019,"UMICs","UMICs"]
[454,2021,2021454,10019,"UMICs","UMICs"]
[454,2022,2022454,10019,"UMICs","UMICs"]
[454,2023,2023454,10019,"UMICs","UMICs"]
[454,2024,2024454,10019,"UMICs","UMICs"]
[454,2025,2025454,10019,"UMICs","UMICs"]
[457,2008,2008457,10019,"UMICs","UMICs"]
[457,2009,2009457,10019,"UMICs","UMICs"]
[457,2010,2010457,10019,"UMICs","UMICs"]
[457,2011,2011457,10019,"UMICs","UMICs"]
[457,2012,2012457,10019,"UMICs","UMICs"]
[457,2013,2013457,10019,"UMICs","UMICs"]
[457,2014,2014457,10019,"UMICs","UMICs"]
[457,2015,2015457,10019,"UMICs","UMICs"]
[457,2016,2016457,10019,"UMICs","UMICs"]
[457,2017,2017457,10019,"UMICs","UMICs"]
[457,2018,2018457,10019,"UMICs","UMICs"]
[457,2019,2019457,10019,"UMICs","UMICs"]
[457,2020,2020457,10019,"UMICs","UMICs"]
[457,2021,2021457,10019,"UMICs","UMICs"]
[457,2022,2022457,10019,"UMICs","UMICs"]
[457,2023,2023457,10019,"UMICs","UMICs"]
[457,2024,2024457,10019,"UMICs","UMICs"]
[457,2025,2025457,10019,"UMICs","UMICs"]
[460,1996,1996460,10019,"UMICs","UMICs"]
[460,1997,1997460,10019,"UMICs","UMICs"]
[460,1998,1998460,10019,"UMICs","UMICs"]
[460,1999,1999460,10019,"UMICs","UMICs"]
[460,2000,2000460,10019,"UMICs","UMICs"]
[460,2001,2001460,10019,"UMICs","UMICs"]
[460,2002,2002460,10019,"UMICs","UMICs"]
[460,2003,2003460,10019,"UMICs","UMICs"]
[460,2004,2004460,10019,"UMICs","UMICs"]
[460,2005,2005460,10019,"UMICs","UMICs"]
[460,2006,2006460,10019,"UMICs","UMICs"]
[460,2007,2007460,10019,"UMICs","UMICs"]
[460,2008,2008460,10019,"UMICs","UMICs"]
[460,2009,2009460,10019,"UMICs","UMICs"]
[460,2010,2010460,10019,"UMICs","UMICs"]
[460,2011,2011460,10019,"UMICs","UMICs"]
[460,2012,2012460,10019,"UMICs","UMICs"]
[460,2013,2013460,10019,"UMICs","UMICs"]
[460,2014,2014460,10019,"UMICs","UMICs"]
[460,2015,2015460,10019,"UMICs","UMICs"]
[460,2016,2016460,10019,"UMICs","UMICs"]
[460,2017,2017460,10019,"UMICs","UMICs"]
[463,2000,2000463,10019,"UMICs","UMICs"]
[463,2001,2001463,10019,"UMICs","UMICs"]
[463,2002,2002463,10019,"UMICs","UMICs"]
[463,2003,2003463,10019,"UMICs","UMICs"]
[463,2004,2004463,10019,"UMICs","UMICs"]
[463,2005,2005463,10019,"UMICs","UMICs"]
[463,2006,2006463,10019,"UMICs","UMICs"]
[463,2007,2007463,10019,"UMICs","UMICs"]
[463,2008,2008463,10019,"UMICs","UMICs"]
[463,2009,2009463,10019,"UMICs","UMICs"]
[463,2010,2010463,10019,"UMICs","UMICs"]
[463,2011,2011463,10019,"UMICs","UMICs"]
[463,2012,2012463,10019,"UMICs","UMICs"]
[463,2013,2013463,10019,"UMICs","UMICs"]
[463,2014,2014463,10019,"UMICs","UMICs"]
[463,2015,2015463,10019,"UMICs","UMICs"]
[463,2016,2016463,10019,"UMICs","UMICs"]
[463,2017,2017463,10019,"UMICs","UMICs"]
[463,2018,2018463,10019,"UMICs","UMICs"]
[463,2019,2019463,10019,"UMICs","UMICs"]
[463,2020,2020463,10019,"UMICs","UMICs"]
[463,2021,2021463,10019,"UMICs","UMICs"]
[463,2022,2022463,10019,"UMICs","UMICs"]
[463,2023,2023463,10019,"UMICs","UMICs"]
[463,2024,2024463,10019,"UMICs","UMICs"]
[463,2025,2025463,10019,"UMICs","UMICs"]
[530,1996,1996530,10019,"UMICs","UMICs"]
[530,1997,1997530,10019,"UMICs","UMICs"]
[530,1998,1998530,10019,"UMICs","UMICs"]
[530,1999,1999530,10019,"UMICs","UMICs"]
[530,2000,2000530,10019,"UMICs","UMICs"]
[530,2001,2001530,10019,"UMICs","UMICs"]
[530,2002,2002530,10019,"UMICs","UMICs"]
[540,2011,2011540,10019,"UMICs","UMICs"]
[540,2012,2012540,10019,"UMICs","UMICs"]
[540,2013,2013540,10019,"UMICs","UMICs"]
[540,2014,2014540,10019,"UMICs","UMICs"]
[540,2015,2015540,10019,"UMICs","UMICs"]
[540,2016,2016540,10019,"UMICs","UMICs"]
[540,2017,2017540,10019,"UMICs","UMICs"]
[540,2018,2018540,10019,"UMICs","UMICs"]
[540,2019,2019540,10019,"UMICs","UMICs"]
[540,2020,2020540,10019,"UMICs","UMICs"]
[540,2021,2021540,10019,"UMICs","UMICs"]
[543,2014,2014543,10019,"UMICs","UMICs"]
[543,2015,2015543,10019,"UMICs","UMICs"]
[543,2016,2016543,10019,"UMICs","UMICs"]
[543,2017,2017543,10019,"UMICs","UMICs"]
[543,2018,2018543,10019,"UMICs","UMICs"]
[543,2019,2019543,10019,"UMICs","UMICs"]
[543,2020,2020543,10019,"UMICs","UMICs"]
[543,2021,2021543,10019,"UMICs","UMICs"]
[543,2022,2022543,10019,"UMICs","UMICs"]
[543,2023,2023543,10019,"UMICs","UMICs"]
[543,2024,2024543,10019,"UMICs","UMICs"]
[543,2025,2025543,10019,"UMICs","UMICs"]
[549,2011,2011549,10019,"UMICs","UMICs"]
[549,2012,2012549,10019,"UMICs","UMICs"]
[549,2013,2013549,10019,"UMICs","UMICs"]
[549,2014,2014549,10019,"UMICs","UMICs"]
[549,2015,2015549,10019,"UMICs","UMICs"]
[549,2016,2016549,10019,"UMICs","UMICs"]
[549,2017,2017549,10019,"UMICs","UMICs"]
[549,2022,2022549,10019,"UMICs","UMICs"]
[549,2023,2023549,10019,"UMICs","UMICs"]
[550,2024,2024550,10019,"UMICs","UMICs"]
[550,2025,2025550,10019,"UMICs","UMICs"]
[555,2000,2000555,10019,"UMICs","UMICs"]
[555,2001,2001555,10019,"UMICs","UMICs"]
[555,2002,2002555,10019,"UMICs","UMICs"]
[555,2003,2003555,10019,"UMICs","UMICs"]
[555,2004,2004555,10019,"UMICs","UMICs"]
[555,2005,2005555,10019,"UMICs","UMICs"]
[555,2006,2006555,10019,"UMICs","UMICs"]
[555,2007,2007555,10019,"UMICs","UMICs"]
[555,2008,2008555,10019,"UMICs","UMICs"]
[555,2009,2009555,10019,"UMICs","UMICs"]
[555,2010,2010555,10019,"UMICs","UMICs"]
[555,2011,2011555,10019,"UMICs","UMICs"]
[555,2012,2012555,10019,"UMICs","UMICs"]
[555,2013,2013555,10019,"UMICs","UMICs"]
[555,2014,2014555,10019,"UMICs","UMICs"]
[555,2015,2015555,10019,"UMICs","UMICs"]
[555,2016,2016555,10019,"UMICs","UMICs"]
[555,2017,2017555,10019,"UMICs","UMICs"]
[555,2018,2018555,10019,"UMICs","UMICs"]
[555,2019,2019555,10019,"UMICs","UMICs"]
[555,2020,2020555,10019,"UMICs","UMICs"]
[555,2021,2021555,10019,"UMICs","UMICs"]
[555,2022,2022555,10019,"UMICs","UMICs"]
[555,2023,2023555,10019,"UMICs","UMICs"]
[558,1996,1996558,10019,"UMICs","UMICs"]
[558,1997,1997558,10019,"UMICs","UMICs"]
[558,1998,1998558,10019,"UMICs","UMICs"]
[558,1999,1999558,10019,"UMICs","UMICs"]
[558,2000,2000558,10019,"UMICs","UMICs"]
[558,2001,2001558,10019,"UMICs","UMICs"]
[558,2002,2002558,10019,"UMICs","UMICs"]
[558,2003,2003558,10019,"UMICs","UMICs"]
[558,2004,2004558,10019,"UMICs","UMICs"]
[558,2005,2005558,10019,"UMICs","UMICs"]
[558,2006,2006558,10019,"UMICs","UMICs"]
[558,2007,2007558,10019,"UMICs","UMICs"]
[558,2008,2008558,10019,"UMICs","UMICs"]
[558,2009,2009558,10019,"UMICs","UMICs"]
[558,2010,2010558,10019,"UMICs","UMICs"]
[566,1996,1996566,10019,"UMICs","UMICs"]
[566,1997,1997566,10019,"UMICs","UMICs"]
[566,1998,1998566,10019,"UMICs","UMICs"]
[566,1999,1999566,10019,"UMICs","UMICs"]
[566,2000,2000566,10019,"UMICs","UMICs"]
[566,2001,2001566,10019,"UMICs","UMICs"]
[566,2002,2002566,10019,"UMICs","UMICs"]
[566,2003,2003566,10019,"UMICs","UMICs"]
[566,2004,2004566,10019,"UMICs","UMICs"]
[566,2005,2005566,10019,"UMICs","UMICs"]
[566,2006,2006566,10019,"UMICs","UMICs"]
[566,2007,2007566,10019,"UMICs","UMICs"]
[610,2022,2022610,10019,"UMICs","UMICs"]
[610,2023,2023610,10019,"UMICs","UMICs"]
[610,2024,2024610,10019,"UMICs","UMICs"]
[610,2025,2025610,10019,"UMICs","UMICs"]
[611,2011,2011611,10019,"UMICs","UMICs"]
[611,2012,2012611,10019,"UMICs","UMICs"]
[611,2013,2013611,10019,"UMICs","UMICs"]
[611,2014,2014611,10019,"UMICs","UMICs"]
[611,2015,2015611,10019,"UMICs","UMICs"]
[611,2016,2016611,10019,"UMICs","UMICs"]
[611,2017,2017611,10019,"UMICs","UMICs"]
[611,2018,2018611,10019,"UMICs","UMICs"]
[611,2019,2019611,10019,"UMICs","UMICs"]
[611,2020,2020611,10019,"UMICs","UMICs"]
[611,2021,2021611,10019,"UMICs","UMICs"]
[611,2022,2022611,10019,"UMICs","UMICs"]
[611,2023,2023611,10019,"UMICs","UMICs"]
[611,2024,2024611,10019,"UMICs","UMICs"]
[611,2025,2025611,10019,"UMICs","UMICs"]
[612,2022,2022612,10019,"UMICs","UMICs"]
[612,2023,2023612,10019,"UMICs","UMICs"]
[612,2024,2024612,10019,"UMICs","UMICs"]
[612,2025,2025612,10019,"UMICs","UMICs"]
[613,2008,2008613,10019,"UMICs","UMICs"]
[613,2009,2009613,10019,"UMICs","UMICs"]
[613,2010,2010613,10019,"UMICs","UMICs"]
[613,2011,2011613,10019,"UMICs","UMICs"]
[613,2012,2012613,10019,"UMICs","UMICs"]
[613,2013,2013613,10019,"UMICs","UMICs"]
[613,2014,2014613,10019,"UMICs","UMICs"]
[613,2015,2015613,10019,"UMICs","UMICs"]
[613,2016,2016613,10019,"UMICs","UMICs"]
[613,2017,2017613,10019,"UMICs","UMICs"]
[613,2018,2018613,10019,"UMICs","UMICs"]
[613,2019,2019613,10019,"UMICs","UMICs"]
[613,2020,2020613,10019,"UMICs","UMICs"]
[613,2021,2021613,10019,"UMICs","UMICs"]
[613,2022,2022613,10019,"UMICs","UMICs"]
[613,2023,2023613,10019,"UMICs","UMICs"]
[613,2024,2024613,10019,"UMICs","UMICs"]
[613,2025,2025613,10019,"UMICs","UMICs"]
[616,2014,2014616,10019,"UMICs","UMICs"]
[616,2015,2015616,10019,"UMICs","UMICs"]
[616,2016,2016616,10019,"UMICs","UMICs"]
[616,2017,2017616,10019,"UMICs","UMICs"]
[616,2018,2018616,10019,"UMICs","UMICs"]
[616,2019,2019616,10019,"UMICs","UMICs"]
[616,2020,2020616,10019,"UMICs","UMICs"]
[616,2021,2021616,10019,"UMICs","UMICs"]
[616,2022,2022616,10019,"UMICs","UMICs"]
[616,2023,2023616,10019,"UMICs","UMICs"]
[616,2024,2024616,10019,"UMICs","UMICs"]
[616,2025,2025616,10019,"UMICs","UMICs"]
[655,2011,2011655,10019,"UMICs","UMICs"]
[655,2012,2012655,10019,"UMICs","UMICs"]
[655,2013,2013655,10019,"UMICs","UMICs"]
[655,2014,2014655,10019,"UMICs","UMICs"]
[655,2015,2015655,10019,"UMICs","UMICs"]
[655,2016,2016655,10019,"UMICs","UMICs"]
[655,2017,2017655,10019,"UMICs","UMICs"]
[655,2018,2018655,10019,"UMICs","UMICs"]
[655,2019,2019655,10019,"UMICs","UMICs"]
[655,2020,2020655,10019,"UMICs","UMICs"]
[655,2021,2021655,10019,"UMICs","UMICs"]
[655,2022,2022655,10019,"UMICs","UMICs"]
[655,2023,2023655,10019,"UMICs","UMICs"]
[655,2024,2024655,10019,"UMICs","UMICs"]
[655,2025,2025655,10019,"UMICs","UMICs"]
[730,2011,2011730,10019,"UMICs","UMICs"]
[730,2012,2012730,10019,"UMICs","UMICs"]
[730,2013,2013730,10019,"UMICs","UMICs"]
[730,2014,2014730,10019,"UMICs","UMICs"]
[730,2015,2015730,10019,"UMICs","UMICs"]
[730,2016,2016730,10019,"UMICs","UMICs"]
[730,2017,2017730,10019,"UMICs","UMICs"]
[730,2018,2018730,10019,"UMICs","UMICs"]
[730,2019,2019730,10019,"UMICs","UMICs"]
[730,2020,2020730,10019,"UMICs","UMICs"]
[730,2021,2021730,10019,"UMICs","UMICs"]
[730,2022,2022730,10019,"UMICs","UMICs"]
[730,2023,2023730,10019,"UMICs","UMICs"]
[730,2024,2024730,10019,"UMICs","UMICs"]
[730,2025,2025730,10019,"UMICs","UMICs"]
[738,2024,2024738,10019,"UMICs","UMICs"]
[738,2025,2025738,10019,"UMICs","UMICs"]
[751,1996,1996751,10019,"UMICs","UMICs"]
[751,1997,1997751,10019,"UMICs","UMICs"]
[751,1998,1998751,10019,"UMICs","UMICs"]
[751,1999,1999751,10019,"UMICs","UMICs"]
[751,2000,2000751,10019,"UMICs","UMICs"]
[751,2001,2001751,10019,"UMICs","UMICs"]
[751,2002,2002751,10019,"UMICs","UMICs"]
[751,2003,2003751,10019,"UMICs","UMICs"]
[751,2004,2004751,10019,"UMICs","UMICs"]
[751,2005,2005751,10019,"UMICs","UMICs"]
[751,2006,2006751,10019,"UMICs","UMICs"]
[751,2007,2007751,10019,"UMICs","UMICs"]
[751,2008,2008751,10019,"UMICs","UMICs"]
[751,2009,2009751,10019,"UMICs","UMICs"]
[751,2010,2010751,10019,"UMICs","UMICs"]
[751,2011,2011751,10019,"UMICs","UMICs"]
[751,2012,2012751,10019,"UMICs","UMICs"]
[751,2013,2013751,10019,"UMICs","UMICs"]
[751,2014,2014751,10019,"UMICs","UMICs"]
[751,2015,2015751,10019,"UMICs","UMICs"]
[751,2016,2016751,10019,"UMICs","UMICs"]
[751,2017,2017751,10019,"UMICs","UMICs"]
[751,2018,2018751,10019,"UMICs","UMICs"]
[751,2019,2019751,10019,"UMICs","UMICs"]
[751,2020,2020751,10019,"UMICs","UMICs"]
[751,2021,2021751,10019,"UMICs","UMICs"]
[751,2022,2022751,10019,"UMICs","UMICs"]
[751,2023,2023751,10019,"UMICs","UMICs"]
[751,2024,2024751,10019,"UMICs","UMICs"]
[751,2025,2025751,10019,"UMICs","UMICs"]
[764,2011,2011764,10019,"UMICs","UMICs"]
[764,2012,2012764,10019,"UMICs","UMICs"]
[764,2013,2013764,10019,"UMICs","UMICs"]
[764,2014,2014764,10019,"UMICs","UMICs"]
[764,2015,2015764,10019,"UMICs","UMICs"]
[764,2016,2016764,10019,"UMICs","UMICs"]
[764,2017,2017764,10019,"UMICs","UMICs"]
[764,2018,2018764,10019,"UMICs","UMICs"]
[764,2019,2019764,10019,"UMICs","UMICs"]
[764,2020,2020764,10019,"UMICs","UMICs"]
[764,2021,2021764,10019,"UMICs","UMICs"]
[764,2022,2022764,10019,"UMICs","UMICs"]
[764,2023,2023764,10019,"UMICs","UMICs"]
[764,2024,2024764,10019,"UMICs","UMICs"]
[764,2025,2025764,10019,"UMICs","UMICs"]
[831,1996,1996831,10019,"UMICs","UMICs"]
[831,1997,1997831,10019,"UMICs","UMICs"]
[831,1998,1998831,10019,"UMICs","UMICs"]
[831,1999,1999831,10019,"UMICs","UMICs"]
[831,2000,2000831,10019,"UMICs","UMICs"]
[831,2001,2001831,10019,"UMICs","UMICs"]
[831,2002,2002831,10019,"UMICs","UMICs"]
[831,2003,2003831,10019,"UMICs","UMICs"]
[831,2004,2004831,10019,"UMICs","UMICs"]
[831,2005,2005831,10019,"UMICs","UMICs"]
[831,2006,2006831,10019,"UMICs","UMICs"]
[831,2007,2007831,10019,"UMICs","UMICs"]
[831,2008,2008831,10019,"UMICs","UMICs"]
[831,2009,2009831,10019,"UMICs","UMICs"]
[831,2010,2010831,10019,"UMICs","UMICs"]
[831,2011,2011831,10019,"UMICs","UMICs"]
[831,2012,2012831,10019,"UMICs","UMICs"]
[831,2013,2013831,10019,"UMICs","UMICs"]
[831,2014,2014831,10019,"UMICs","UMICs"]
[831,2015,2015831,10019,"UMICs","UMICs"]
[831,2016,2016831,10019,"UMICs","UMICs"]
[831,2017,2017831,10019,"UMICs","UMICs"]
[831,2018,2018831,10019,"UMICs","UMICs"]
[831,2019,2019831,10019,"UMICs","UMICs"]
[832,2008,2008832,10019,"UMICs","UMICs"]
[832,2009,2009832,10019,"UMICs","UMICs"]
[832,2010,2010832,10019,"UMICs","UMICs"]
[832,2014,2014832,10019,"UMICs","UMICs"]
[832,2015,2015832,10019,"UMICs","UMICs"]
[832,2016,2016832,10019,"UMICs","UMICs"]
[832,2017,2017832,10019,"UMICs","UMICs"]
[832,2018,2018832,10019,"UMICs","UMICs"]
[832,2019,2019832,10019,"UMICs","UMICs"]
[832,2020,2020832,10019,"UMICs","UMICs"]
[832,2021,2021832,10019,"UMICs","UMICs"]
[832,2022,2022832,10019,"UMICs","UMICs"]
[832,2023,2023832,10019,"UMICs","UMICs"]
[832,2024,2024832,10019,"UMICs","UMICs"]
[832,2025,2025832,10019,"UMICs","UMICs"]
[845,1996,1996845,10019,"UMICs","UMICs"]
[845,1997,1997845,10019,"UMICs","UMICs"]
[845,1998,1998845,10019,"UMICs","UMICs"]
[845,1999,1999845,10019,"UMICs","UMICs"]
[845,2000,2000845,10019,"UMICs","UMICs"]
[845,2001,2001845,10019,"UMICs","UMICs"]
[845,2002,2002845,10019,"UMICs","UMICs"]
[845,2003,2003845,10019,"UMICs","UMICs"]
[845,2004,2004845,10019,"UMICs","UMICs"]
[845,2005,2005845,10019,"UMICs","UMICs"]
[845,2006,2006845,10019,"UMICs","UMICs"]
[845,2007,2007845,10019,"UMICs","UMICs"]
[845,2008,2008845,10019,"UMICs","UMICs"]
[845,2009,2009845,10019,"UMICs","UMICs"]
[845,2010,2010845,10019,"UMICs","UMICs"]
[845,2011,2011845,10019,"UMICs","UMICs"]
[845,2012,2012845,10019,"UMICs","UMICs"]
[845,2013,2013845,10019,"UMICs","UMICs"]
[845,2014,2014845,10019,"UMICs","UMICs"]
[845,2015,2015845,10019,"UMICs","UMICs"]
[845,2016,2016845,10019,"UMICs","UMICs"]
[845,2017,2017845,10019,"UMICs","UMICs"]
[845,2018,2018845,10019,"UMICs","UMICs"]
[845,2019,2019845,10019,"UMICs","UMICs"]
[845,2020,2020845,10019,"UMICs","UMICs"]
[845,2021,2021845,10019,"UMICs","UMICs"]
[845,2022,2022845,10019,"UMICs","UMICs"]
[845,2023,2023845,10019,"UMICs","UMICs"]
[845,2024,2024845,10019,"UMICs","UMICs"]
[845,2025,2025845,10019,"UMICs","UMICs"]
[856,2011,2011856,10019,"UMICs","UMICs"]
[856,2012,2012856,10019,"UMICs","UMICs"]
[856,2013,2013856,10019,"UMICs","UMICs"]
[856,2014,2014856,10019,"UMICs","UMICs"]
[856,2015,2015856,10019,"UMICs","UMICs"]
[856,2016,2016856,10019,"UMICs","UMICs"]
[856,2017,2017856,10019,"UMICs","UMICs"]
[856,2018,2018856,10019,"UMICs","UMICs"]
[856,2019,2019856,10019,"UMICs","UMICs"]
[856,2020,2020856,10019,"UMICs","UMICs"]
[856,2021,2021856,10019,"UMICs","UMICs"]
[856,2022,2022856,10019,"UMICs","UMICs"]
[856,2023,2023856,10019,"UMICs","UMICs"]
[856,2024,2024856,10019,"UMICs","UMICs"]
[856,2025,2025856,10019,"UMICs","UMICs"]
[859,2014,2014859,10019,"UMICs","UMICs"]
[859,2015,2015859,10019,"UMICs","UMICs"]
[859,2016,2016859,10019,"UMICs","UMICs"]
[859,2017,2017859,10019,"UMICs","UMICs"]
[859,2018,2018859,10019,"UMICs","UMICs"]
[859,2019,2019859,10019,"UMICs","UMICs"]
[859,2020,2020859,10019,"UMICs","UMICs"]
[859,2021,2021859,10019,"UMICs","UMICs"]
[859,2022,2022859,10019,"UMICs","UMICs"]
[859,2023,2023859,10019,"UMICs","UMICs"]
[859,2024,2024859,10019,"UMICs","UMICs"]
[859,2025,2025859,10019,"UMICs","UMICs"]
[861,2000,2000861,10019,"UMICs","UMICs"]
[861,2001,2001861,10019,"UMICs","UMICs"]
[861,2002,2002861,10019,"UMICs","UMICs"]
[861,2003,2003861,10019,"UMICs","UMICs"]
[861,2004,2004861,10019,"UMICs","UMICs"]
[861,2005,2005861,10019,"UMICs","UMICs"]
[861,2006,2006861,10019,"UMICs","UMICs"]
[861,2007,2007861,10019,"UMICs","UMICs"]
[861,2008,2008861,10019,"UMICs","UMICs"]
[861,2009,2009861,10019,"UMICs","UMICs"]
[861,2010,2010861,10019,"UMICs","UMICs"]
[861,2011,2011861,10019,"UMICs","UMICs"]
[861,2012,2012861,10019,"UMICs","UMICs"]
[861,2013,2013861,10019,"UMICs","UMICs"]
[861,2014,2014861,10019,"UMICs","UMICs"]
[861,2015,2015861,10019,"UMICs","UMICs"]
[861,2016,2016861,10019,"UMICs","UMICs"]
[861,2017,2017861,10019,"UMICs","UMICs"]
[861,2018,2018861,10019,"UMICs","UMICs"]
[861,2019,2019861,10019,"UMICs","UMICs"]
[861,2020,2020861,10019,"UMICs","UMICs"]
[861,2021,2021861,10019,"UMICs","UMICs"]
[861,2022,2022861,10019,"UMICs","UMICs"]
[861,2023,2023861,10019,"UMICs","UMICs"]
[861,2024,2024861,10019,"UMICs","UMICs"]
[861,2025,2025861,10019,"UMICs","UMICs"]
[870,2014,2014870,10019,"UMICs","UMICs"]
[870,2015,2015870,10019,"UMICs","UMICs"]
[870,2016,2016870,10019,"UMICs","UMICs"]
[870,2017,2017870,10019,"UMICs","UMICs"]
[870,2018,2018870,10019,"UMICs","UMICs"]
[870,2019,2019870,10019,"UMICs","UMICs"]
[870,2020,2020870,10019,"UMICs","UMICs"]
[870,2021,2021870,10019,"UMICs","UMICs"]
[870,2022,2022870,10019,"UMICs","UMICs"]
[870,2023,2023870,10019,"UMICs","UMICs"]
[870,2024,2024870,10019,"UMICs","UMICs"]
[870,2025,2025870,10019,"UMICs","UMICs"]
[876,2011,2011876,10019,"UMICs","UMICs"]
[876,2012,2012876,10019,"UMICs","UMICs"]
[876,2013,2013876,10019,"UMICs","UMICs"]
[876,2014,2014876,10019,"UMICs","UMICs"]
[876,2015,2015876,10019,"UMICs","UMICs"]
[876,2016,2016876,10019,"UMICs","UMICs"]
[876,2017,2017876,10019,"UMICs","UMICs"]
[876,2018,2018876,10019,"UMICs","UMICs"]
[876,2019,2019876,10019,"UMICs","UMICs"]
[876,2020,2020876,10019,"UMICs","UMICs"]
[876,2021,2021876,10019,"UMICs","UMICs"]
[876,2022,2022876,10019,"UMICs","UMICs"]
[876,2023,2023876,10019,"UMICs","UMICs"]
[876,2024,2024876,10019,"UMICs","UMICs"]
[876,2025,2025876,10019,"UMICs","UMICs"]
[880,2018,2018880,10019,"UMICs","UMICs"]
[880,2019,2019880,10019,"UMICs","UMICs"]
[880,2020,2020880,10019,"UMICs","UMICs"]
[880,2021,2021880,10019,"UMICs","UMICs"]
[30,1997,199730,10025,"MADCTs","MADCTs"]
[30,1998,199830,10025,"MADCTs","MADCTs"]
[30,1999,199930,10025,"MADCTs","MADCTs"]
[30,2000,200030,10025,"MADCTs","MADCTs"]
[30,2001,200130,10025,"MADCTs","MADCTs"]
[30,2002,200230,10025,"MADCTs","MADCTs"]
[30,2003,200330,10025,"MADCTs","MADCTs"]
[30,2004,200430,10025,"MADCTs","MADCTs"]
[30,2005,200530,10025,"MADCTs","MADCTs"]
[30,2006,200630,10025,"MADCTs","MADCTs"]
[30,2007,200730,10025,"MADCTs","MADCTs"]
[30,2008,200830,10025,"MADCTs","MADCTs"]
[30,2009,200930,10025,"MADCTs","MADCTs"]
[30,2010,201030,10025,"MADCTs","MADCTs"]
[30,2011,201130,10025,"MADCTs","MADCTs"]
[30,2012,201230,10025,"MADCTs","MADCTs"]
[30,2013,201330,10025,"MADCTs","MADCTs"]
[30,2014,201430,10025,"MADCTs","MADCTs"]
[30,2015,201530,10025,"MADCTs","MADCTs"]
[30,2016,201630,10025,"MADCTs","MADCTs"]
[30,2017,201730,10025,"MADCTs","MADCTs"]
[30,2018,201830,10025,"MADCTs","MADCTs"]
[30,2019,201930,10025,"MADCTs","MADCTs"]
[30,2020,202030,10025,"MADCTs","MADCTs"]
[30,2021,202130,10025,"MADCTs","MADCTs"]
[30,2022,202230,10025,"MADCTs","MADCTs"]
[30,2023,202330,10025,"MADCTs","MADCTs"]
[30,2024,202430,10025,"MADCTs","MADCTs"]
[30,2025,202530,10025,"MADCTs","MADCTs"]
[35,2000,200035,10025,"MADCTs","MADCTs"]
[35,2001,200135,10025,"MADCTs","MADCTs"]
[35,2002,200235,10025,"MADCTs","MADCTs"]
[35,2003,200335,10025,"MADCTs","MADCTs"]
[35,2004,200435,10025,"MADCTs","MADCTs"]
[35,2005,200535,10025,"MADCTs","MADCTs"]
[35,2006,200635,10025,"MADCTs","MADCTs"]
[35,2007,200735,10025,"MADCTs","MADCTs"]
[35,2008,200835,10025,"MADCTs","MADCTs"]
[35,2009,200935,10025,"MADCTs","MADCTs"]
[35,2010,201035,10025,"MADCTs","MADCTs"]
[35,2011,201135,10025,"MADCTs","MADCTs"]
[35,2012,201235,10025,"MADCTs","MADCTs"]
[35,2013,201335,10025,"MADCTs","MADCTs"]
[35,2014,201435,10025,"MADCTs","MADCTs"]
[35,2015,201535,10025,"MADCTs","MADCTs"]
[35,2016,201635,10025,"MADCTs","MADCTs"]
[35,2017,201735,10025,"MADCTs","MADCTs"]
[35,2018,201835,10025,"MADCTs","MADCTs"]
[35,2019,201935,10025,"MADCTs","MADCTs"]
[35,2020,202035,10025,"MADCTs","MADCTs"]
[35,2021,202135,10025,"MADCTs","MADCTs"]
[35,2022,202235,10025,"MADCTs","MADCTs"]
[35,2023,202335,10025,"MADCTs","MADCTs"]
[35,2024,202435,10025,"MADCTs","MADCTs"]
[35,2025,202535,10025,"MADCTs","MADCTs"]
[45,2003,200345,10025,"MADCTs","MADCTs"]
[45,2004,200445,10025,"MADCTs","MADCTs"]
[45,2005,200545,10025,"MADCTs","MADCTs"]
[45,2006,200645,10025,"MADCTs","MADCTs"]
[45,2007,200745,10025,"MADCTs","MADCTs"]
[45,2008,200845,10025,"MADCTs","MADCTs"]
[45,2009,200945,10025,"MADCTs","MADCTs"]
[45,2010,201045,10025,"MADCTs","MADCTs"]
[45,2011,201145,10025,"MADCTs","MADCTs"]
[45,2012,201245,10025,"MADCTs","MADCTs"]
[45,2013,201345,10025,"MADCTs","MADCTs"]
[45,2014,201445,10025,"MADCTs","MADCTs"]
[45,2015,201545,10025,"MADCTs","MADCTs"]
[45,2016,201645,10025,"MADCTs","MADCTs"]
[45,2017,201745,10025,"MADCTs","MADCTs"]
[45,2018,201845,10025,"MADCTs","MADCTs"]
[45,2019,201945,10025,"MADCTs","MADCTs"]
[45,2020,202045,10025,"MADCTs","MADCTs"]
[45,2021,202145,10025,"MADCTs","MADCTs"]
[45,2022,202245,10025,"MADCTs","MADCTs"]
[45,2023,202345,10025,"MADCTs","MADCTs"]
[45,2024,202445,10025,"MADCTs","MADCTs"]
[45,2025,202545,10025,"MADCTs","MADCTs"]
[61,2003,200361,10025,"MADCTs","MADCTs"]
[61,2004,200461,10025,"MADCTs","MADCTs"]
[61,2005,200561,10025,"MADCTs","MADCTs"]
[61,2006,200661,10025,"MADCTs","MADCTs"]
[61,2007,200761,10025,"MADCTs","MADCTs"]
[61,2008,200861,10025,"MADCTs","MADCTs"]
[61,2009,200961,10025,"MADCTs","MADCTs"]
[61,2010,201061,10025,"MADCTs","MADCTs"]
[61,2011,201161,10025,"MADCTs","MADCTs"]
[61,2012,201261,10025,"MADCTs","MADCTs"]
[61,2013,201361,10025,"MADCTs","MADCTs"]
[61,2014,201461,10025,"MADCTs","MADCTs"]
[61,2015,201561,10025,"MADCTs","MADCTs"]
[61,2016,201661,10025,"MADCTs","MADCTs"]
[61,2017,201761,10025,"MADCTs","MADCTs"]
[61,2018,201861,10025,"MADCTs","MADCTs"]
[61,2019,201961,10025,"MADCTs","MADCTs"]
[61,2020,202061,10025,"MADCTs","MADCTs"]
[61,2021,202161,10025,"MADCTs","MADCTs"]
[61,2022,202261,10025,"MADCTs","MADCTs"]
[61,2023,202361,10025,"MADCTs","MADCTs"]
[61,2024,202461,10025,"MADCTs","MADCTs"]
[61,2025,202561,10025,"MADCTs","MADCTs"]
[62,2011,201162,10025,"MADCTs","MADCTs"]
[62,2012,201262,10025,"MADCTs","MADCTs"]
[62,2013,201362,10025,"MADCTs","MADCTs"]
[62,2014,201462,10025,"MADCTs","MADCTs"]
[62,2015,201562,10025,"MADCTs","MADCTs"]
[62,2016,201662,10025,"MADCTs","MADCTs"]
[62,2017,201762,10025,"MADCTs","MADCTs"]
[62,2018,201862,10025,"MADCTs","MADCTs"]
[62,2019,201962,10025,"MADCTs","MADCTs"]
[62,2020,202062,10025,"MADCTs","MADCTs"]
[62,2021,202162,10025,"MADCTs","MADCTs"]
[62,2022,202262,10025,"MADCTs","MADCTs"]
[62,2023,202362,10025,"MADCTs","MADCTs"]
[62,2024,202462,10025,"MADCTs","MADCTs"]
[62,2025,202562,10025,"MADCTs","MADCTs"]
[105,1996,1996105,10025,"MADCTs","MADCTs"]
[105,1997,1997105,10025,"MADCTs","MADCTs"]
[105,1998,1998105,10025,"MADCTs","MADCTs"]
[105,1999,1999105,10025,"MADCTs","MADCTs"]
[105,2000,2000105,10025,"MADCTs","MADCTs"]
[105,2001,2001105,10025,"MADCTs","MADCTs"]
[105,2002,2002105,10025,"MADCTs","MADCTs"]
[105,2003,2003105,10025,"MADCTs","MADCTs"]
[105,2004,2004105,10025,"MADCTs","MADCTs"]
[105,2005,2005105,10025,"MADCTs","MADCTs"]
[105,2006,2006105,10025,"MADCTs","MADCTs"]
[105,2007,2007105,10025,"MADCTs","MADCTs"]
[105,2008,2008105,10025,"MADCTs","MADCTs"]
[105,2009,2009105,10025,"MADCTs","MADCTs"]
[105,2010,2010105,10025,"MADCTs","MADCTs"]
[105,2011,2011105,10025,"MADCTs","MADCTs"]
[105,2012,2012105,10025,"MADCTs","MADCTs"]
[105,2013,2013105,10025,"MADCTs","MADCTs"]
[105,2014,2014105,10025,"MADCTs","MADCTs"]
[105,2015,2015105,10025,"MADCTs","MADCTs"]
[105,2016,2016105,10025,"MADCTs","MADCTs"]
[105,2017,2017105,10025,"MADCTs","MADCTs"]
[105,2018,2018105,10025,"MADCTs","MADCTs"]
[105,2019,2019105,10025,"MADCTs","MADCTs"]
[105,2020,2020105,10025,"MADCTs","MADCTs"]
[105,2021,2021105,10025,"MADCTs","MADCTs"]
[105,2022,2022105,10025,"MADCTs","MADCTs"]
[105,2023,2023105,10025,"MADCTs","MADCTs"]
[105,2024,2024105,10025,"MADCTs","MADCTs"]
[105,2025,2025105,10025,"MADCTs","MADCTs"]
[133,2000,2000133,10025,"MADCTs","MADCTs"]
[133,2001,2001133,10025,"MADCTs","MADCTs"]
[133,2002,2002133,10025,"MADCTs","MADCTs"]
[133,2003,2003133,10025,"MADCTs","MADCTs"]
[133,2004,2004133,10025,"MADCTs","MADCTs"]
[258,2011,2011258,10025,"MADCTs","MADCTs"]
[258,2012,2012258,10025,"MADCTs","MADCTs"]
[258,2013,2013258,10025,"MADCTs","MADCTs"]
[258,2014,2014258,10025,"MADCTs","MADCTs"]
[258,2015,2015258,10025,"MADCTs","MADCTs"]
[258,2016,2016258,10025,"MADCTs","MADCTs"]
[258,2017,2017258,10025,"MADCTs","MADCTs"]
[258,2018,2018258,10025,"MADCTs","MADCTs"]
[258,2019,2019258,10025,"MADCTs","MADCTs"]
[258,2020,2020258,10025,"MADCTs","MADCTs"]
[258,2021,2021258,10025,"MADCTs","MADCTs"]
[258,2022,2022258,10025,"MADCTs","MADCTs"]
[258,2023,2023258,10025,"MADCTs","MADCTs"]
[258,2024,2024258,10025,"MADCTs","MADCTs"]
[258,2025,2025258,10025,"MADCTs","MADCTs"]
[270,2018,2018270,10025,"MADCTs","MADCTs"]
[270,2019,2019270,10025,"MADCTs","MADCTs"]
[270,2020,2020270,10025,"MADCTs","MADCTs"]
[270,2021,2021270,10025,"MADCTs","MADCTs"]
[270,2022,2022270,10025,"MADCTs","MADCTs"]
[270,2023,2023270,10025,"MADCTs","MADCTs"]
[270,2024,2024270,10025,"MADCTs","MADCTs"]
[270,2025,2025270,10025,"MADCTs","MADCTs"]
[328,1996,1996328,10025,"MADCTs","MADCTs"]
[328,1997,1997328,10025,"MADCTs","MADCTs"]
[328,1998,1998328,10025,"MADCTs","MADCTs"]
[328,1999,1999328,10025,"MADCTs","MADCTs"]
[328,2000,2000328,10025,"MADCTs","MADCTs"]
[328,2001,2001328,10025,"MADCTs","MADCTs"]
[328,2002,2002328,10025,"MADCTs","MADCTs"]
[328,2003,2003328,10025,"MADCTs","MADCTs"]
[328,2004,2004328,10025,"MADCTs","MADCTs"]
[328,2005,2005328,10025,"MADCTs","MADCTs"]
[328,2006,2006328,10025,"MADCTs","MADCTs"]
[328,2007,2007328,10025,"MADCTs","MADCTs"]
[328,2008,2008328,10025,"MADCTs","MADCTs"]
[328,2009,2009328,10025,"MADCTs","MADCTs"]
[328,2010,2010328,10025,"MADCTs","MADCTs"]
[328,2011,2011328,10025,"MADCTs","MADCTs"]
[328,2012,2012328,10025,"MADCTs","MADCTs"]
[328,2013,2013328,10025,"MADCTs","MADCTs"]
[328,2014,2014328,10025,"MADCTs","MADCTs"]
[328,2015,2015328,10025,"MADCTs","MADCTs"]
[328,2016,2016328,10025,"MADCTs","MADCTs"]
[328,2017,2017328,10025,"MADCTs","MADCTs"]
[328,2018,2018328,10025,"MADCTs","MADCTs"]
[328,2019,2019328,10025,"MADCTs","MADCTs"]
[328,2020,2020328,10025,"MADCTs","MADCTs"]
[328,2021,2021328,10025,"MADCTs","MADCTs"]
[328,2022,2022328,10025,"MADCTs","MADCTs"]
[328,2023,2023328,10025,"MADCTs","MADCTs"]
[328,2024,2024328,10025,"MADCTs","MADCTs"]
[328,2025,2025328,10025,"MADCTs","MADCTs"]
[329,2011,2011329,10025,"MADCTs","MADCTs"]
[329,2012,2012329,10025,"MADCTs","MADCTs"]
[329,2013,2013329,10025,"MADCTs","MADCTs"]
[329,2014,2014329,10025,"MADCTs","MADCTs"]
[329,2015,2015329,10025,"MADCTs","MADCTs"]
[329,2016,2016329,10025,"MADCTs","MADCTs"]
[329,2017,2017329,10025,"MADCTs","MADCTs"]
[329,2018,2018329,10025,"MADCTs","MADCTs"]
[329,2019,2019329,10025,"MADCTs","MADCTs"]
[329,2020,2020329,10025,"MADCTs","MADCTs"]
[329,2021,2021329,10025,"MADCTs","MADCTs"]
[329,2022,2022329,10025,"MADCTs","MADCTs"]
[329,2023,2023329,10025,"MADCTs","MADCTs"]
[329,2024,2024329,10025,"MADCTs","MADCTs"]
[329,2025,2025329,10025,"MADCTs","MADCTs"]
[331,1997,1997331,10025,"MADCTs","MADCTs"]
[331,1998,1998331,10025,"MADCTs","MADCTs"]
[331,1999,1999331,10025,"MADCTs","MADCTs"]
[331,2000,2000331,10025,"MADCTs","MADCTs"]
[331,2001,2001331,10025,"MADCTs","MADCTs"]
[331,2002,2002331,10025,"MADCTs","MADCTs"]
[331,2003,2003331,10025,"MADCTs","MADCTs"]
[331,2004,2004331,10025,"MADCTs","MADCTs"]
[331,2005,2005331,10025,"MADCTs","MADCTs"]
[331,2006,2006331,10025,"MADCTs","MADCTs"]
[331,2007,2007331,10025,"MADCTs","MADCTs"]
[331,2008,2008331,10025,"MADCTs","MADCTs"]
[331,2009,2009331,10025,"MADCTs","MADCTs"]
[331,2010,2010331,10025,"MADCTs","MADCTs"]
[331,2011,2011331,10025,"MADCTs","MADCTs"]
[331,2012,2012331,10025,"MADCTs","MADCTs"]
[331,2013,2013331,10025,"MADCTs","MADCTs"]
[331,2014,2014331,10025,"MADCTs","MADCTs"]
[331,2015,2015331,10025,"MADCTs","MADCTs"]
[331,2016,2016331,10025,"MADCTs","MADCTs"]
[331,2017,2017331,10025,"MADCTs","MADCTs"]
[331,2018,2018331,10025,"MADCTs","MADCTs"]
[331,2019,2019331,10025,"MADCTs","MADCTs"]
[331,2020,2020331,10025,"MADCTs","MADCTs"]
[331,2021,2021331,10025,"MADCTs","MADCTs"]
[331,2022,2022331,10025,"MADCTs","MADCTs"]
[331,2023,2023331,10025,"MADCTs","MADCTs"]
[331,2024,2024331,10025,"MADCTs","MADCTs"]
[331,2025,2025331,10025,"MADCTs","MADCTs"]
[361,2000,2000361,10025,"MADCTs","MADCTs"]
[361,2001,2001361,10025,"MADCTs","MADCTs"]
[361,2002,2002361,10025,"MADCTs","MADCTs"]
[361,2003,2003361,10025,"MADCTs","MADCTs"]
[361,2004,2004361,10025,"MADCTs","MADCTs"]
[361,2005,2005361,10025,"MADCTs","MADCTs"]
[361,2006,2006361,10025,"MADCTs","MADCTs"]
[361,2007,2007361,10025,"MADCTs","MADCTs"]
[361,2008,2008361,10025,"MADCTs","MADCTs"]
[361,2009,2009361,10025,"MADCTs","MADCTs"]
[361,2010,2010361,10025,"MADCTs","MADCTs"]
[361,2011,2011361,10025,"MADCTs","MADCTs"]
[361,2012,2012361,10025,"MADCTs","MADCTs"]
[361,2013,2013361,10025,"MADCTs","MADCTs"]
[361,2014,2014361,10025,"MADCTs","MADCTs"]
[361,2015,2015361,10025,"MADCTs","MADCTs"]
[361,2016,2016361,10025,"MADCTs","MADCTs"]
[361,2017,2017361,10025,"MADCTs","MADCTs"]
[361,2018,2018361,10025,"MADCTs","MADCTs"]
[361,2019,2019361,10025,"MADCTs","MADCTs"]
[361,2020,2020361,10025,"MADCTs","MADCTs"]
[361,2021,2021361,10025,"MADCTs","MADCTs"]
[361,2022,2022361,10025,"MADCTs","MADCTs"]
[361,2023,2023361,10025,"MADCTs","MADCTs"]
[361,2024,2024361,10025,"MADCTs","MADCTs"]
[361,2025,2025361,10025,"MADCTs","MADCTs"]
[373,2000,2000373,10025,"MADCTs","MADCTs"]
[373,2001,2001373,10025,"MADCTs","MADCTs"]
[373,2002,2002373,10025,"MADCTs","MADCTs"]
[373,2003,2003373,10025,"MADCTs","MADCTs"]
[373,2004,2004373,10025,"MADCTs","MADCTs"]
[373,2005,2005373,10025,"MADCTs","MADCTs"]
[373,2006,2006373,10025,"MADCTs","MADCTs"]
[373,2007,2007373,10025,"MADCTs","MADCTs"]
[373,2008,2008373,10025,"MADCTs","MADCTs"]
[373,2009,2009373,10025,"MADCTs","MADCTs"]
[373,2010,2010373,10025,"MADCTs","MADCTs"]
[373,2011,2011373,10025,"MADCTs","MADCTs"]
[373,2012,2012373,10025,"MADCTs","MADCTs"]
[373,2013,2013373,10025,"MADCTs","MADCTs"]
[373,2014,2014373,10025,"MADCTs","MADCTs"]
[373,2015,2015373,10025,"MADCTs","MADCTs"]
[373,2016,2016373,10025,"MADCTs","MADCTs"]
[373,2017,2017373,10025,"MADCTs","MADCTs"]
[373,2018,2018373,10025,"MADCTs","MADCTs"]
[373,2019,2019373,10025,"MADCTs","MADCTs"]
[373,2020,2020373,10025,"MADCTs","MADCTs"]
[373,2021,2021373,10025,"MADCTs","MADCTs"]
[373,2022,2022373,10025,"MADCTs","MADCTs"]
[373,2023,2023373,10025,"MADCTs","MADCTs"]
[373,2024,2024373,10025,"MADCTs","MADCTs"]
[373,2025,2025373,10025,"MADCTs","MADCTs"]
[375,2011,2011375,10025,"MADCTs","MADCTs"]
[375,2012,2012375,10025,"MADCTs","MADCTs"]
[375,2013,2013375,10025,"MADCTs","MADCTs"]
[375,2014,2014375,10025,"MADCTs","MADCTs"]
[375,2015,2015375,10025,"MADCTs","MADCTs"]
[375,2016,2016375,10025,"MADCTs","MADCTs"]
[375,2017,2017375,10025,"MADCTs","MADCTs"]
[375,2018,2018375,10025,"MADCTs","MADCTs"]
[375,2019,2019375,10025,"MADCTs","MADCTs"]
[375,2020,2020375,10025,"MADCTs","MADCTs"]
[375,2021,2021375,10025,"MADCTs","MADCTs"]
[375,2022,2022375,10025,"MADCTs","MADCTs"]
[375,2023,2023375,10025,"MADCTs","MADCTs"]
[375,2024,2024375,10025,"MADCTs","MADCTs"]
[375,2025,2025375,10025,"MADCTs","MADCTs"]
[376,2014,2014376,10025,"MADCTs","MADCTs"]
[376,2015,2015376,10025,"MADCTs","MADCTs"]
[376,2016,2016376,10025,"MADCTs","MADCTs"]
[376,2017,2017376,10025,"MADCTs","MADCTs"]
[376,2018,2018376,10025,"MADCTs","MADCTs"]
[376,2019,2019376,10025,"MADCTs","MADCTs"]
[376,2020,2020376,10025,"MADCTs","MADCTs"]
[376,2021,2021376,10025,"MADCTs","MADCTs"]
[376,2022,2022376,10025,"MADCTs","MADCTs"]
[376,2023,2023376,10025,"MADCTs","MADCTs"]
[376,2024,2024376,10025,"MADCTs","MADCTs"]
[376,2025,2025376,10025,"MADCTs","MADCTs"]
[377,2022,2022377,10025,"MADCTs","MADCTs"]
[377,2023,2023377,10025,"MADCTs","MADCTs"]
[377,2024,2024377,10025,"MADCTs","MADCTs"]
[377,2025,2025377,10025,"MADCTs","MADCTs"]
[382,2014,2014382,10025,"MADCTs","MADCTs"]
[382,2015,2015382,10025,"MADCTs","MADCTs"]
[382,2016,2016382,10025,"MADCTs","MADCTs"]
[382,2017,2017382,10025,"MADCTs","MADCTs"]
[382,2018,2018382,10025,"MADCTs","MADCTs"]
[382,2019,2019382,10025,"MADCTs","MADCTs"]
[382,2020,2020382,10025,"MADCTs","MADCTs"]
[382,2021,2021382,10025,"MADCTs","MADCTs"]
[382,2022,2022382,10025,"MADCTs","MADCTs"]
[382,2023,2023382,10025,"MADCTs","MADCTs"]
[382,2024,2024382,10025,"MADCTs","MADCTs"]
[382,2025,2025382,10025,"MADCTs","MADCTs"]
[386,1997,1997386,10025,"MADCTs","MADCTs"]
[386,1998,1998386,10025,"MADCTs","MADCTs"]
[386,1999,1999386,10025,"MADCTs","MADCTs"]
[386,2000,2000386,10025,"MADCTs","MADCTs"]
[386,2001,2001386,10025,"MADCTs","MADCTs"]
[386,2002,2002386,10025,"MADCTs","MADCTs"]
[386,2003,2003386,10025,"MADCTs","MADCTs"]
[386,2004,2004386,10025,"MADCTs","MADCTs"]
[386,2005,2005386,10025,"MADCTs","MADCTs"]
[386,2006,2006386,10025,"MADCTs","MADCTs"]
[386,2007,2007386,10025,"MADCTs","MADCTs"]
[386,2008,2008386,10025,"MADCTs","MADCTs"]
[386,2009,2009386,10025,"MADCTs","MADCTs"]
[386,2010,2010386,10025,"MADCTs","MADCTs"]
[386,2011,2011386,10025,"MADCTs","MADCTs"]
[386,2012,2012386,10025,"MADCTs","MADCTs"]
[386,2013,2013386,10025,"MADCTs","MADCTs"]
[386,2014,2014386,10025,"MADCTs","MADCTs"]
[386,2015,2015386,10025,"MADCTs","MADCTs"]
[386,2016,2016386,10025,"MADCTs","MADCTs"]
[386,2017,2017386,10025,"MADCTs","MADCTs"]
[386,2018,2018386,10025,"MADCTs","MADCTs"]
[386,2019,2019386,10025,"MADCTs","MADCTs"]
[386,2020,2020386,10025,"MADCTs","MADCTs"]
[386,2021,2021386,10025,"MADCTs","MADCTs"]
[386,2022,2022386,10025,"MADCTs","MADCTs"]
[386,2023,2023386,10025,"MADCTs","MADCTs"]
[386,2024,2024386,10025,"MADCTs","MADCTs"]
[386,2025,2025386,10025,"MADCTs","MADCTs"]
[387,2008,2008387,10025,"MADCTs","MADCTs"]
[387,2009,2009387,10025,"MADCTs","MADCTs"]
[387,2010,2010387,10025,"MADCTs","MADCTs"]
[387,2011,2011387,10025,"MADCTs","MADCTs"]
[387,2012,2012387,10025,"MADCTs","MADCTs"]
[387,2013,2013387,10025,"MADCTs","MADCTs"]
[387,2014,2014387,10025,"MADCTs","MADCTs"]
[387,2015,2015387,10025,"MADCTs","MADCTs"]
[387,2016,2016387,10025,"MADCTs","MADCTs"]
[387,2017,2017387,10025,"MADCTs","MADCTs"]
[387,2018,2018387,10025,"MADCTs","MADCTs"]
[387,2019,2019387,10025,"MADCTs","MADCTs"]
[387,2020,2020387,10025,"MADCTs","MADCTs"]
[387,2021,2021387,10025,"MADCTs","MADCTs"]
[387,2022,2022387,10025,"MADCTs","MADCTs"]
[387,2023,2023387,10025,"MADCTs","MADCTs"]
[387,2024,2024387,10025,"MADCTs","MADCTs"]
[387,2025,2025387,10025,"MADCTs","MADCTs"]
[388,2000,2000388,10025,"MADCTs","MADCTs"]
[388,2001,2001388,10025,"MADCTs","MADCTs"]
[388,2002,2002388,10025,"MADCTs","MADCTs"]
[388,2003,2003388,10025,"MADCTs","MADCTs"]
[388,2004,2004388,10025,"MADCTs","MADCTs"]
[388,2005,2005388,10025,"MADCTs","MADCTs"]
[388,2006,2006388,10025,"MADCTs","MADCTs"]
[388,2007,2007388,10025,"MADCTs","MADCTs"]
[388,2008,2008388,10025,"MADCTs","MADCTs"]
[388,2009,2009388,10025,"MADCTs","MADCTs"]
[388,2010,2010388,10025,"MADCTs","MADCTs"]
[388,2011,2011388,10025,"MADCTs","MADCTs"]
[388,2012,2012388,10025,"MADCTs","MADCTs"]
[388,2013,2013388,10025,"MADCTs","MADCTs"]
[388,2014,2014388,10025,"MADCTs","MADCTs"]
[388,2015,2015388,10025,"MADCTs","MADCTs"]
[388,2016,2016388,10025,"MADCTs","MADCTs"]
[388,2017,2017388,10025,"MADCTs","MADCTs"]
[388,2018,2018388,10025,"MADCTs","MADCTs"]
[388,2019,2019388,10025,"MADCTs","MADCTs"]
[388,2020,2020388,10025,"MADCTs","MADCTs"]
[388,2021,2021388,10025,"MADCTs","MADCTs"]
[388,2022,2022388,10025,"MADCTs","MADCTs"]
[388,2023,2023388,10025,"MADCTs","MADCTs"]
[388,2024,2024388,10025,"MADCTs","MADCTs"]
[388,2025,2025388,10025,"MADCTs","MADCTs"]
[434,2018,2018434,10025,"MADCTs","MADCTs"]
[434,2019,2019434,10025,"MADCTs","MADCTs"]
[434,2020,2020434,10025,"MADCTs","MADCTs"]
[434,2021,2021434,10025,"MADCTs","MADCTs"]
[434,2022,2022434,10025,"MADCTs","MADCTs"]
[434,2023,2023434,10025,"MADCTs","MADCTs"]
[434,2024,2024434,10025,"MADCTs","MADCTs"]
[434,2025,2025434,10025,"MADCTs","MADCTs"]
[443,1997,1997443,10025,"MADCTs","MADCTs"]
[443,1998,1998443,10025,"MADCTs","MADCTs"]
[443,1999,1999443,10025,"MADCTs","MADCTs"]
[443,2000,2000443,10025,"MADCTs","MADCTs"]
[443,2001,2001443,10025,"MADCTs","MADCTs"]
[443,2002,2002443,10025,"MADCTs","MADCTs"]
[443,2003,2003443,10025,"MADCTs","MADCTs"]
[443,2004,2004443,10025,"MADCTs","MADCTs"]
[443,2005,2005443,10025,"MADCTs","MADCTs"]
[443,2006,2006443,10025,"MADCTs","MADCTs"]
[443,2007,2007443,10025,"MADCTs","MADCTs"]
[443,2008,2008443,10025,"MADCTs","MADCTs"]
[443,2009,2009443,10025,"MADCTs","MADCTs"]
[443,2010,2010443,10025,"MADCTs","MADCTs"]
[443,2011,2011443,10025,"MADCTs","MADCTs"]
[443,2012,2012443,10025,"MADCTs","MADCTs"]
[443,2013,2013443,10025,"MADCTs","MADCTs"]
[443,2014,2014443,10025,"MADCTs","MADCTs"]
[443,2015,2015443,10025,"MADCTs","MADCTs"]
[443,2016,2016443,10025,"MADCTs","MADCTs"]
[443,2017,2017443,10025,"MADCTs","MADCTs"]
[443,2018,2018443,10025,"MADCTs","MADCTs"]
[443,2019,2019443,10025,"MADCTs","MADCTs"]
[443,2020,2020443,10025,"MADCTs","MADCTs"]
[443,2021,2021443,10025,"MADCTs","MADCTs"]
[443,2022,2022443,10025,"MADCTs","MADCTs"]
[443,2023,2023443,10025,"MADCTs","MADCTs"]
[443,2024,2024443,10025,"MADCTs","MADCTs"]
[443,2025,2025443,10025,"MADCTs","MADCTs"]
[460,2018,2018460,10025,"MADCTs","MADCTs"]
[460,2019,2019460,10025,"MADCTs","MADCTs"]
[460,2020,2020460,10025,"MADCTs","MADCTs"]
[460,2021,2021460,10025,"MADCTs","MADCTs"]
[460,2022,2022460,10025,"MADCTs","MADCTs"]
[460,2023,2023460,10025,"MADCTs","MADCTs"]
[460,2024,2024460,10025,"MADCTs","MADCTs"]
[460,2025,2025460,10025,"MADCTs","MADCTs"]
[530,2005,2005530,10025,"MADCTs","MADCTs"]
[530,2006,2006530,10025,"MADCTs","MADCTs"]
[530,2007,2007530,10025,"MADCTs","MADCTs"]
[530,2008,2008530,10025,"MADCTs","MADCTs"]
[530,2009,2009530,10025,"MADCTs","MADCTs"]
[530,2010,2010530,10025,"MADCTs","MADCTs"]
[530,2011,2011530,10025,"MADCTs","MADCTs"]
[530,2012,2012530,10025,"MADCTs","MADCTs"]
[530,2013,2013530,10025,"MADCTs","MADCTs"]
[530,2014,2014530,10025,"MADCTs","MADCTs"]
[530,2015,2015530,10025,"MADCTs","MADCTs"]
[530,2016,2016530,10025,"MADCTs","MADCTs"]
[530,2017,2017530,10025,"MADCTs","MADCTs"]
[530,2018,2018530,10025,"MADCTs","MADCTs"]
[530,2019,2019530,10025,"MADCTs","MADCTs"]
[530,2020,2020530,10025,"MADCTs","MADCTs"]
[530,2021,2021530,10025,"MADCTs","MADCTs"]
[530,2022,2022530,10025,"MADCTs","MADCTs"]
[530,2023,2023530,10025,"MADCTs","MADCTs"]
[530,2024,2024530,10025,"MADCTs","MADCTs"]
[530,2025,2025530,10025,"MADCTs","MADCTs"]
[546,1997,1997546,10025,"MADCTs","MADCTs"]
[546,1998,1998546,10025,"MADCTs","MADCTs"]
[546,1999,1999546,10025,"MADCTs","MADCTs"]
[546,2000,2000546,10025,"MADCTs","MADCTs"]
[546,2001,2001546,10025,"MADCTs","MADCTs"]
[546,2002,2002546,10025,"MADCTs","MADCTs"]
[546,2003,2003546,10025,"MADCTs","MADCTs"]
[546,2004,2004546,10025,"MADCTs","MADCTs"]
[546,2005,2005546,10025,"MADCTs","MADCTs"]
[546,2006,2006546,10025,"MADCTs","MADCTs"]
[546,2007,2007546,10025,"MADCTs","MADCTs"]
[546,2008,2008546,10025,"MADCTs","MADCTs"]
[546,2009,2009546,10025,"MADCTs","MADCTs"]
[546,2010,2010546,10025,"MADCTs","MADCTs"]
[546,2011,2011546,10025,"MADCTs","MADCTs"]
[546,2012,2012546,10025,"MADCTs","MADCTs"]
[546,2013,2013546,10025,"MADCTs","MADCTs"]
[546,2014,2014546,10025,"MADCTs","MADCTs"]
[546,2015,2015546,10025,"MADCTs","MADCTs"]
[546,2016,2016546,10025,"MADCTs","MADCTs"]
[546,2017,2017546,10025,"MADCTs","MADCTs"]
[546,2018,2018546,10025,"MADCTs","MADCTs"]
[546,2019,2019546,10025,"MADCTs","MADCTs"]
[546,2020,2020546,10025,"MADCTs","MADCTs"]
[546,2021,2021546,10025,"MADCTs","MADCTs"]
[546,2022,2022546,10025,"MADCTs","MADCTs"]
[546,2023,2023546,10025,"MADCTs","MADCTs"]
[546,2024,2024546,10025,"MADCTs","MADCTs"]
[546,2025,2025546,10025,"MADCTs","MADCTs"]
[552,1996,1996552,10025,"MADCTs","MADCTs"]
[552,1997,1997552,10025,"MADCTs","MADCTs"]
[552,1998,1998552,10025,"MADCTs","MADCTs"]
[552,1999,1999552,10025,"MADCTs","MADCTs"]
[552,2000,2000552,10025,"MADCTs","MADCTs"]
[552,2001,2001552,10025,"MADCTs","MADCTs"]
[552,2002,2002552,10025,"MADCTs","MADCTs"]
[552,2003,2003552,10025,"MADCTs","MADCTs"]
[552,2004,2004552,10025,"MADCTs","MADCTs"]
[552,2005,2005552,10025,"MADCTs","MADCTs"]
[552,2006,2006552,10025,"MADCTs","MADCTs"]
[552,2007,2007552,10025,"MADCTs","MADCTs"]
[552,2008,2008552,10025,"MADCTs","MADCTs"]
[552,2009,2009552,10025,"MADCTs","MADCTs"]
[552,2010,2010552,10025,"MADCTs","MADCTs"]
[552,2011,2011552,10025,"MADCTs","MADCTs"]
[552,2012,2012552,10025,"MADCTs","MADCTs"]
[552,2013,2013552,10025,"MADCTs","MADCTs"]
[552,2014,2014552,10025,"MADCTs","MADCTs"]
[552,2015,2015552,10025,"MADCTs","MADCTs"]
[552,2016,2016552,10025,"MADCTs","MADCTs"]
[552,2017,2017552,10025,"MADCTs","MADCTs"]
[552,2018,2018552,10025,"MADCTs","MADCTs"]
[552,2019,2019552,10025,"MADCTs","MADCTs"]
[552,2020,2020552,10025,"MADCTs","MADCTs"]
[552,2021,2021552,10025,"MADCTs","MADCTs"]
[552,2022,2022552,10025,"MADCTs","MADCTs"]
[552,2023,2023552,10025,"MADCTs","MADCTs"]
[552,2024,2024552,10025,"MADCTs","MADCTs"]
[552,2025,2025552,10025,"MADCTs","MADCTs"]
[558,2011,2011558,10025,"MADCTs","MADCTs"]
[558,2012,2012558,10025,"MADCTs","MADCTs"]
[558,2013,2013558,10025,"MADCTs","MADCTs"]
[558,2014,2014558,10025,"MADCTs","MADCTs"]
[558,2015,2015558,10025,"MADCTs","MADCTs"]
[558,2016,2016558,10025,"MADCTs","MADCTs"]
[558,2017,2017558,10025,"MADCTs","MADCTs"]
[558,2018,2018558,10025,"MADCTs","MADCTs"]
[558,2019,2019558,10025,"MADCTs","MADCTs"]
[558,2020,2020558,10025,"MADCTs","MADCTs"]
[558,2021,2021558,10025,"MADCTs","MADCTs"]
[558,2022,2022558,10025,"MADCTs","MADCTs"]
[558,2023,2023558,10025,"MADCTs","MADCTs"]
[558,2024,2024558,10025,"MADCTs","MADCTs"]
[558,2025,2025558,10025,"MADCTs","MADCTs"]
[561,1996,1996561,10025,"MADCTs","MADCTs"]
[561,1997,1997561,10025,"MADCTs","MADCTs"]
[561,1998,1998561,10025,"MADCTs","MADCTs"]
[561,1999,1999561,10025,"MADCTs","MADCTs"]
[561,2000,2000561,10025,"MADCTs","MADCTs"]
[561,2001,2001561,10025,"MADCTs","MADCTs"]
[561,2002,2002561,10025,"MADCTs","MADCTs"]
[561,2003,2003561,10025,"MADCTs","MADCTs"]
[561,2004,2004561,10025,"MADCTs","MADCTs"]
[561,2005,2005561,10025,"MADCTs","MADCTs"]
[561,2006,2006561,10025,"MADCTs","MADCTs"]
[561,2007,2007561,10025,"MADCTs","MADCTs"]
[561,2008,2008561,10025,"MADCTs","MADCTs"]
[561,2009,2009561,10025,"MADCTs","MADCTs"]
[561,2010,2010561,10025,"MADCTs","MADCTs"]
[561,2011,2011561,10025,"MADCTs","MADCTs"]
[561,2012,2012561,10025,"MADCTs","MADCTs"]
[561,2013,2013561,10025,"MADCTs","MADCTs"]
[561,2014,2014561,10025,"MADCTs","MADCTs"]
[561,2015,2015561,10025,"MADCTs","MADCTs"]
[561,2016,2016561,10025,"MADCTs","MADCTs"]
[561,2017,2017561,10025,"MADCTs","MADCTs"]
[561,2018,2018561,10025,"MADCTs","MADCTs"]
[561,2019,2019561,10025,"MADCTs","MADCTs"]
[561,2020,2020561,10025,"MADCTs","MADCTs"]
[561,2021,2021561,10025,"MADCTs","MADCTs"]
[561,2022,2022561,10025,"MADCTs","MADCTs"]
[561,2023,2023561,10025,"MADCTs","MADCTs"]
[561,2024,2024561,10025,"MADCTs","MADCTs"]
[561,2025,2025561,10025,"MADCTs","MADCTs"]
[566,2008,2008566,10025,"MADCTs","MADCTs"]
[566,2009,2009566,10025,"MADCTs","MADCTs"]
[566,2010,2010566,10025,"MADCTs","MADCTs"]
[566,2011,2011566,10025,"MADCTs","MADCTs"]
[566,2012,2012566,10025,"MADCTs","MADCTs"]
[566,2013,2013566,10025,"MADCTs","MADCTs"]
[566,2014,2014566,10025,"MADCTs","MADCTs"]
[566,2015,2015566,10025,"MADCTs","MADCTs"]
[566,2016,2016566,10025,"MADCTs","MADCTs"]
[566,2017,2017566,10025,"MADCTs","MADCTs"]
[566,2018,2018566,10025,"MADCTs","MADCTs"]
[566,2019,2019566,10025,"MADCTs","MADCTs"]
[566,2020,2020566,10025,"MADCTs","MADCTs"]
[566,2021,2021566,10025,"MADCTs","MADCTs"]
[566,2022,2022566,10025,"MADCTs","MADCTs"]
[566,2023,2023566,10025,"MADCTs","MADCTs"]
[566,2024,2024566,10025,"MADCTs","MADCTs"]
[566,2025,2025566,10025,"MADCTs","MADCTs"]
[576,1996,1996576,10025,"MADCTs","MADCTs"]
[576,1997,1997576,10025,"MADCTs","MADCTs"]
[576,1998,1998576,10025,"MADCTs","MADCTs"]
[576,1999,1999576,10025,"MADCTs","MADCTs"]
[576,2000,2000576,10025,"MADCTs","MADCTs"]
[576,2001,2001576,10025,"MADCTs","MADCTs"]
[576,2002,2002576,10025,"MADCTs","MADCTs"]
[576,2003,2003576,10025,"MADCTs","MADCTs"]
[576,2004,2004576,10025,"MADCTs","MADCTs"]
[576,2005,2005576,10025,"MADCTs","MADCTs"]
[576,2006,2006576,10025,"MADCTs","MADCTs"]
[576,2007,2007576,10025,"MADCTs","MADCTs"]
[576,2008,2008576,10025,"MADCTs","MADCTs"]
[576,2009,2009576,10025,"MADCTs","MADCTs"]
[576,2010,2010576,10025,"MADCTs","MADCTs"]
[576,2011,2011576,10025,"MADCTs","MADCTs"]
[576,2012,2012576,10025,"MADCTs","MADCTs"]
[576,2013,2013576,10025,"MADCTs","MADCTs"]
[576,2014,2014576,10025,"MADCTs","MADCTs"]
[576,2015,2015576,10025,"MADCTs","MADCTs"]
[576,2016,2016576,10025,"MADCTs","MADCTs"]
[576,2017,2017576,10025,"MADCTs","MADCTs"]
[576,2018,2018576,10025,"MADCTs","MADCTs"]
[576,2019,2019576,10025,"MADCTs","MADCTs"]
[576,2020,2020576,10025,"MADCTs","MADCTs"]
[576,2021,2021576,10025,"MADCTs","MADCTs"]
[576,2022,2022576,10025,"MADCTs","MADCTs"]
[576,2023,2023576,10025,"MADCTs","MADCTs"]
[576,2024,2024576,10025,"MADCTs","MADCTs"]
[576,2025,2025576,10025,"MADCTs","MADCTs"]
[725,1996,1996725,10025,"MADCTs","MADCTs"]
[725,1997,1997725,10025,"MADCTs","MADCTs"]
[725,1998,1998725,10025,"MADCTs","MADCTs"]
[725,1999,1999725,10025,"MADCTs","MADCTs"]
[725,2000,2000725,10025,"MADCTs","MADCTs"]
[725,2001,2001725,10025,"MADCTs","MADCTs"]
[725,2002,2002725,10025,"MADCTs","MADCTs"]
[725,2003,2003725,10025,"MADCTs","MADCTs"]
[725,2004,2004725,10025,"MADCTs","MADCTs"]
[725,2005,2005725,10025,"MADCTs","MADCTs"]
[725,2006,2006725,10025,"MADCTs","MADCTs"]
[725,2007,2007725,10025,"MADCTs","MADCTs"]
[725,2008,2008725,10025,"MADCTs","MADCTs"]
[725,2009,2009725,10025,"MADCTs","MADCTs"]
[725,2010,2010725,10025,"MADCTs","MADCTs"]
[725,2011,2011725,10025,"MADCTs","MADCTs"]
[725,2012,2012725,10025,"MADCTs","MADCTs"]
[725,2013,2013725,10025,"MADCTs","MADCTs"]
[725,2014,2014725,10025,"MADCTs","MADCTs"]
[725,2015,2015725,10025,"MADCTs","MADCTs"]
[725,2016,2016725,10025,"MADCTs","MADCTs"]
[725,2017,2017725,10025,"MADCTs","MADCTs"]
[725,2018,2018725,10025,"MADCTs","MADCTs"]
[725,2019,2019725,10025,"MADCTs","MADCTs"]
[725,2020,2020725,10025,"MADCTs","MADCTs"]
[725,2021,2021725,10025,"MADCTs","MADCTs"]
[725,2022,2022725,10025,"MADCTs","MADCTs"]
[725,2023,2023725,10025,"MADCTs","MADCTs"]
[725,2024,2024725,10025,"MADCTs","MADCTs"]
[725,2025,2025725,10025,"MADCTs","MADCTs"]
[732,1997,1997732,10025,"MADCTs","MADCTs"]
[732,1998,1998732,10025,"MADCTs","MADCTs"]
[732,1999,1999732,10025,"MADCTs","MADCTs"]
[732,2000,2000732,10025,"MADCTs","MADCTs"]
[732,2001,2001732,10025,"MADCTs","MADCTs"]
[732,2002,2002732,10025,"MADCTs","MADCTs"]
[732,2003,2003732,10025,"MADCTs","MADCTs"]
[732,2004,2004732,10025,"MADCTs","MADCTs"]
[732,2005,2005732,10025,"MADCTs","MADCTs"]
[732,2006,2006732,10025,"MADCTs","MADCTs"]
[732,2007,2007732,10025,"MADCTs","MADCTs"]
[732,2008,2008732,10025,"MADCTs","MADCTs"]
[732,2009,2009732,10025,"MADCTs","MADCTs"]
[732,2010,2010732,10025,"MADCTs","MADCTs"]
[732,2011,2011732,10025,"MADCTs","MADCTs"]
[732,2012,2012732,10025,"MADCTs","MADCTs"]
[732,2013,2013732,10025,"MADCTs","MADCTs"]
[732,2014,2014732,10025,"MADCTs","MADCTs"]
[732,2015,2015732,10025,"MADCTs","MADCTs"]
[732,2016,2016732,10025,"MADCTs","MADCTs"]
[732,2017,2017732,10025,"MADCTs","MADCTs"]
[732,2018,2018732,10025,"MADCTs","MADCTs"]
[732,2019,2019732,10025,"MADCTs","MADCTs"]
[732,2020,2020732,10025,"MADCTs","MADCTs"]
[732,2021,2021732,10025,"MADCTs","MADCTs"]
[732,2022,2022732,10025,"MADCTs","MADCTs"]
[732,2023,2023732,10025,"MADCTs","MADCTs"]
[732,2024,2024732,10025,"MADCTs","MADCTs"]
[732,2025,2025732,10025,"MADCTs","MADCTs"]
[735,1997,1997735,10025,"MADCTs","MADCTs"]
[735,1998,1998735,10025,"MADCTs","MADCTs"]
[735,1999,1999735,10025,"MADCTs","MADCTs"]
[735,2000,2000735,10025,"MADCTs","MADCTs"]
[735,2001,2001735,10025,"MADCTs","MADCTs"]
[735,2002,2002735,10025,"MADCTs","MADCTs"]
[735,2003,2003735,10025,"MADCTs","MADCTs"]
[735,2004,2004735,10025,"MADCTs","MADCTs"]
[735,2005,2005735,10025,"MADCTs","MADCTs"]
[735,2006,2006735,10025,"MADCTs","MADCTs"]
[735,2007,2007735,10025,"MADCTs","MADCTs"]
[735,2008,2008735,10025,"MADCTs","MADCTs"]
[735,2009,2009735,10025,"MADCTs","MADCTs"]
[735,2010,2010735,10025,"MADCTs","MADCTs"]
[735,2011,2011735,10025,"MADCTs","MADCTs"]
[735,2012,2012735,10025,"MADCTs","MADCTs"]
[735,2013,2013735,10025,"MADCTs","MADCTs"]
[735,2014,2014735,10025,"MADCTs","MADCTs"]
[735,2015,2015735,10025,"MADCTs","MADCTs"]
[735,2016,2016735,10025,"MADCTs","MADCTs"]
[735,2017,2017735,10025,"MADCTs","MADCTs"]
[735,2018,2018735,10025,"MADCTs","MADCTs"]
[735,2019,2019735,10025,"MADCTs","MADCTs"]
[735,2020,2020735,10025,"MADCTs","MADCTs"]
[735,2021,2021735,10025,"MADCTs","MADCTs"]
[735,2022,2022735,10025,"MADCTs","MADCTs"]
[735,2023,2023735,10025,"MADCTs","MADCTs"]
[735,2024,2024735,10025,"MADCTs","MADCTs"]
[735,2025,2025735,10025,"MADCTs","MADCTs"]
[742,2000,2000742,10025,"MADCTs","MADCTs"]
[742,2001,2001742,10025,"MADCTs","MADCTs"]
[742,2002,2002742,10025,"MADCTs","MADCTs"]
[742,2003,2003742,10025,"MADCTs","MADCTs"]
[742,2004,2004742,10025,"MADCTs","MADCTs"]
[742,2005,2005742,10025,"MADCTs","MADCTs"]
[742,2006,2006742,10025,"MADCTs","MADCTs"]
[742,2007,2007742,10025,"MADCTs","MADCTs"]
[742,2008,2008742,10025,"MADCTs","MADCTs"]
[742,2009,2009742,10025,"MADCTs","MADCTs"]
[742,2010,2010742,10025,"MADCTs","MADCTs"]
[742,2011,2011742,10025,"MADCTs","MADCTs"]
[742,2012,2012742,10025,"MADCTs","MADCTs"]
[742,2013,2013742,10025,"MADCTs","MADCTs"]
[742,2014,2014742,10025,"MADCTs","MADCTs"]
[742,2015,2015742,10025,"MADCTs","MADCTs"]
[742,2016,2016742,10025,"MADCTs","MADCTs"]
[742,2017,2017742,10025,"MADCTs","MADCTs"]
[742,2018,2018742,10025,"MADCTs","MADCTs"]
[742,2019,2019742,10025,"MADCTs","MADCTs"]
[742,2020,2020742,10025,"MADCTs","MADCTs"]
[742,2021,2021742,10025,"MADCTs","MADCTs"]
[742,2022,2022742,10025,"MADCTs","MADCTs"]
[742,2023,2023742,10025,"MADCTs","MADCTs"]
[742,2024,2024742,10025,"MADCTs","MADCTs"]
[742,2025,2025742,10025,"MADCTs","MADCTs"]
[748,2000,2000748,10025,"MADCTs","MADCTs"]
[748,2001,2001748,10025,"MADCTs","MADCTs"]
[748,2002,2002748,10025,"MADCTs","MADCTs"]
[748,2003,2003748,10025,"MADCTs","MADCTs"]
[748,2004,2004748,10025,"MADCTs","MADCTs"]
[748,2005,2005748,10025,"MADCTs","MADCTs"]
[748,2006,2006748,10025,"MADCTs","MADCTs"]
[748,2007,2007748,10025,"MADCTs","MADCTs"]
[748,2008,2008748,10025,"MADCTs","MADCTs"]
[748,2009,2009748,10025,"MADCTs","MADCTs"]
[748,2010,2010748,10025,"MADCTs","MADCTs"]
[748,2011,2011748,10025,"MADCTs","MADCTs"]
[748,2012,2012748,10025,"MADCTs","MADCTs"]
[748,2013,2013748,10025,"MADCTs","MADCTs"]
[748,2014,2014748,10025,"MADCTs","MADCTs"]
[748,2015,2015748,10025,"MADCTs","MADCTs"]
[748,2016,2016748,10025,"MADCTs","MADCTs"]
[748,2017,2017748,10025,"MADCTs","MADCTs"]
[748,2018,2018748,10025,"MADCTs","MADCTs"]
[748,2019,2019748,10025,"MADCTs","MADCTs"]
[748,2020,2020748,10025,"MADCTs","MADCTs"]
[748,2021,2021748,10025,"MADCTs","MADCTs"]
[748,2022,2022748,10025,"MADCTs","MADCTs"]
[748,2023,2023748,10025,"MADCTs","MADCTs"]
[748,2024,2024748,10025,"MADCTs","MADCTs"]
[748,2025,2025748,10025,"MADCTs","MADCTs"]
[761,1996,1996761,10025,"MADCTs","MADCTs"]
[761,1997,1997761,10025,"MADCTs","MADCTs"]
[761,1998,1998761,10025,"MADCTs","MADCTs"]
[761,1999,1999761,10025,"MADCTs","MADCTs"]
[761,2000,2000761,10025,"MADCTs","MADCTs"]
[761,2001,2001761,10025,"MADCTs","MADCTs"]
[761,2002,2002761,10025,"MADCTs","MADCTs"]
[761,2003,2003761,10025,"MADCTs","MADCTs"]
[761,2004,2004761,10025,"MADCTs","MADCTs"]
[761,2005,2005761,10025,"MADCTs","MADCTs"]
[761,2006,2006761,10025,"MADCTs","MADCTs"]
[761,2007,2007761,10025,"MADCTs","MADCTs"]
[761,2008,2008761,10025,"MADCTs","MADCTs"]
[761,2009,2009761,10025,"MADCTs","MADCTs"]
[761,2010,2010761,10025,"MADCTs","MADCTs"]
[761,2011,2011761,10025,"MADCTs","MADCTs"]
[761,2012,2012761,10025,"MADCTs","MADCTs"]
[761,2013,2013761,10025,"MADCTs","MADCTs"]
[761,2014,2014761,10025,"MADCTs","MADCTs"]
[761,2015,2015761,10025,"MADCTs","MADCTs"]
[761,2016,2016761,10025,"MADCTs","MADCTs"]
[761,2017,2017761,10025,"MADCTs","MADCTs"]
[761,2018,2018761,10025,"MADCTs","MADCTs"]
[761,2019,2019761,10025,"MADCTs","MADCTs"]
[761,2020,2020761,10025,"MADCTs","MADCTs"]
[761,2021,2021761,10025,"MADCTs","MADCTs"]
[761,2022,2022761,10025,"MADCTs","MADCTs"]
[761,2023,2023761,10025,"MADCTs","MADCTs"]
[761,2024,2024761,10025,"MADCTs","MADCTs"]
[761,2025,2025761,10025,"MADCTs","MADCTs"]
[831,2020,2020831,10025,"MADCTs","MADCTs"]
[831,2021,2021831,10025,"MADCTs","MADCTs"]
[831,2022,2022831,10025,"MADCTs","MADCTs"]
[831,2023,2023831,10025,"MADCTs","MADCTs"]
[831,2024,2024831,10025,"MADCTs","MADCTs"]
[831,2025,2025831,10025,"MADCTs","MADCTs"]
[840,2000,2000840,10025,"MADCTs","MADCTs"]
[840,2001,2001840,10025,"MADCTs","MADCTs"]
[840,2002,2002840,10025,"MADCTs","MADCTs"]
[840,2003,2003840,10025,"MADCTs","MADCTs"]
[840,2004,2004840,10025,"MADCTs","MADCTs"]
[840,2005,2005840,10025,"MADCTs","MADCTs"]
[840,2006,2006840,10025,"MADCTs","MADCTs"]
[840,2007,2007840,10025,"MADCTs","MADCTs"]
[840,2008,2008840,10025,"MADCTs","MADCTs"]
[840,2009,2009840,10025,"MADCTs","MADCTs"]
[840,2010,2010840,10025,"MADCTs","MADCTs"]
[840,2011,2011840,10025,"MADCTs","MADCTs"]
[840,2012,2012840,10025,"MADCTs","MADCTs"]
[840,2013,2013840,10025,"MADCTs","MADCTs"]
[840,2014,2014840,10025,"MADCTs","MADCTs"]
[840,2015,2015840,10025,"MADCTs","MADCTs"]
[840,2016,2016840,10025,"MADCTs","MADCTs"]
[840,2017,2017840,10025,"MADCTs","MADCTs"]
[840,2018,2018840,10025,"MADCTs","MADCTs"]
[840,2019,2019840,10025,"MADCTs","MADCTs"]
[840,2020,2020840,10025,"MADCTs","MADCTs"]
[840,2021,2021840,10025,"MADCTs","MADCTs"]
[840,2022,2022840,10025,"MADCTs","MADCTs"]
[840,2023,2023840,10025,"MADCTs","MADCTs"]
[840,2024,2024840,10025,"MADCTs","MADCTs"]
[840,2025,2025840,10025,"MADCTs","MADCTs"]
[850,2000,2000850,10025,"MADCTs","MADCTs"]
[850,2001,2001850,10025,"MADCTs","MADCTs"]
[850,2002,2002850,10025,"MADCTs","MADCTs"]
[850,2003,2003850,10025,"MADCTs","MADCTs"]
[850,2004,2004850,10025,"MADCTs","MADCTs"]
[850,2005,2005850,10025,"MADCTs","MADCTs"]
[850,2006,2006850,10025,"MADCTs","MADCTs"]
[850,2007,2007850,10025,"MADCTs","MADCTs"]
[850,2008,2008850,10025,"MADCTs","MADCTs"]
[850,2009,2009850,10025,"MADCTs","MADCTs"]
[850,2010,2010850,10025,"MADCTs","MADCTs"]
[850,2011,2011850,10025,"MADCTs","MADCTs"]
[850,2012,2012850,10025,"MADCTs","MADCTs"]
[850,2013,2013850,10025,"MADCTs","MADCTs"]
[850,2014,2014850,10025,"MADCTs","MADCTs"]
[850,2015,2015850,10025,"MADCTs","MADCTs"]
[850,2016,2016850,10025,"MADCTs","MADCTs"]
[850,2017,2017850,10025,"MADCTs","MADCTs"]
[850,2018,2018850,10025,"MADCTs","MADCTs"]
[850,2019,2019850,10025,"MADCTs","MADCTs"]
[850,2020,2020850,10025,"MADCTs","MADCTs"]
[850,2021,2021850,10025,"MADCTs","MADCTs"]
[850,2022,2022850,10025,"MADCTs","MADCTs"]
[850,2023,2023850,10025,"MADCTs","MADCTs"]
[850,2024,2024850,10025,"MADCTs","MADCTs"]
[850,2025,2025850,10025,"MADCTs","MADCTs"]
[858,2000,2000858,10025,"MADCTs","MADCTs"]
[858,2001,2001858,10025,"MADCTs","MADCTs"]
[858,2002,2002858,10025,"MADCTs","MADCTs"]
[858,2003,2003858,10025,"MADCTs","MADCTs"]
[858,2004,2004858,10025,"MADCTs","MADCTs"]
[858,2005,2005858,10025,"MADCTs","MADCTs"]
[858,2006,2006858,10025,"MADCTs","MADCTs"]
[858,2007,2007858,10025,"MADCTs","MADCTs"]
[858,2008,2008858,10025,"MADCTs","MADCTs"]
[858,2009,2009858,10025,"MADCTs","MADCTs"]
[858,2010,2010858,10025,"MADCTs","MADCTs"]
[858,2011,2011858,10025,"MADCTs","MADCTs"]
[858,2012,2012858,10025,"MADCTs","MADCTs"]
[858,2013,2013858,10025,"MADCTs","MADCTs"]
[858,2014,2014858,10025,"MADCTs","MADCTs"]
[858,2015,2015858,10025,"MADCTs","MADCTs"]
[858,2016,2016858,10025,"MADCTs","MADCTs"]
[858,2017,2017858,10025,"MADCTs","MADCTs"]
[858,2018,2018858,10025,"MADCTs","MADCTs"]
[858,2019,2019858,10025,"MADCTs","MADCTs"]
[858,2020,2020858,10025,"MADCTs","MADCTs"]
[858,2021,2021858,10025,"MADCTs","MADCTs"]
[858,2022,2022858,10025,"MADCTs","MADCTs"]
[858,2023,2023858,10025,"MADCTs","MADCTs"]
[858,2024,2024858,10025,"MADCTs","MADCTs"]
[858,2025,2025858,10025,"MADCTs","MADCTs"]

{"sheet":"Repayment","index":20,"n_rows":5,"n_cols":5,"rows_kept":5,"cut":false,"hidden":true,"merged":[]}
["TYPE OF REPAYMENT",null,null,"NUMBER OF REPAYMENT"]
[1,"equal principal payments (EPP)",null,1,"annual"]
[2,"annuity",null,2,"semi-annual"]
[3,"lump sum",null,4,"quarterly"]
[5,"other",null,12,"monthly"]

{"sheet":"ChannelDiscountGroup","index":21,"n_rows":39,"n_cols":5,"rows_kept":39,"cut":false,"hidden":true,"merged":[]}
["ChannelCode","GroupID","Year","DiscountRate","DR4222"]
[30018,90004,2020,6,9]
[41108,90001,2020,5,8]
[41317,90001,2020,5,8]
[43001,90001,2020,5,8]
[43002,90001,2020,5,8]
[43003,90001,2020,5,8]
[43004,90001,2020,5,8]
[43005,90001,2020,5,8]
[43006,90001,2020,5,8]
[43007,90001,2023,5,8]
[44001,90001,2020,5,8]
[44002,90001,2020,5,8]
[44003,90001,2020,5,8]
[44004,90001,2020,5,8]
[44005,90001,2020,5,8]
[44006,90001,2020,5,8]
[44007,90001,2020,5,8]
[46002,90001,2020,5,8]
[46003,90002,2020,5,8]
[46004,90001,2020,5,8]
[46005,90002,2020,5,8]
[46006,90003,2020,6,9]
[46007,90003,2020,6,9]
[46008,90003,2020,6,9]
[46009,90003,2020,6,9]
[46012,90001,2020,5,8]
[46015,90002,2020,5,8]
[46018,90002,2020,5,8]
[46019,90002,2020,5,8]
[46020,90003,2020,6,9]
[46021,90003,2020,6,9]
[46022,90003,2020,6,9]
[46023,90003,2020,6,9]
[46025,90001,2020,5,8]
[47000,90001,2020,6,9]
[47034,90003,2020,6,9]
[47086,90004,2020,6,9]
[47134,90001,2020,5,8]

{"sheet":"purpose_code","index":22,"n_rows":305,"n_cols":23,"rows_kept":305,"cut":false,"hidden":true,"merged":[]}
["CRS Purposecode","PurposeName_e",null,null,"TOSSD Purposecode","PurposeName_e",null,"P&S",null,"OB 2022 Script"]
[0,"NULL",null,null,11110,"Education policy and administrative management",null,15200]
[11110,"Education policy and administrative management",null,null,11120,"Education facilities and training",null,15210,null,"SELECT --top 10  * "]
[11120,"Education facilities and training",null,null,11130,"Teacher training",null,15220,null,"Purposecode, PurposeName_e"]
[11130,"Teacher training",null,null,11182,"Educational research",null,15230,null,"FROM "]
[11182,"Educational research",null,null,11220,"Primary education",null,15240,null,"DCD_Prod.dcd.LookupPurposecode LP "]
[11220,"Primary education",null,null,11230,"Basic life skills for adults",null,15250,null,"WHERE "]
[11230,"Basic life skills for adults",null,null,11231,"Basic life skills for youth",null,15261,null,"Status in  (1,2,3)"]
[11231,"Basic life skills for youth",null,null,11232,"Primary education equivalent for adults",null,1513010]
[11232,"Primary education equivalent for adults",null,null,11240,"Early childhood education",null,1513020,null,"-- Select  * from DCD_Prod.dcd.LookupPurposeCodeStatus S"]
[11240,"Early childhood education",null,null,11250,"School feeding",null,1513030]
[11250,"School feeding",null,null,11260,"Lower secondary education",null,1516010]
[11260,"Lower secondary education",null,null,11320,"Upper Secondary Education (modified and includes data from 11322)",null,1516020,null,null,null,null,null,null,null,null,null,null,null,null,null,null,""]
[11320,"Upper Secondary Education (modified and includes data from 11322)",null,null,11330,"Vocational training",null,1520010]
[11330,"Vocational training",null,null,11420,"Higher education",null,1520020]
[11420,"Higher education",null,null,11425,"Imputed student costs",null,15113]
[11425,"Imputed student costs",null,null,11430,"Advanced technical and managerial training",null,15130]
[11430,"Advanced technical and managerial training",null,null,12110,"Health policy and administrative management",null,15131]
[12110,"Health policy and administrative management",null,null,12181,"Medical education/training",null,15132]
[12181,"Medical education/training",null,null,12182,"Medical research",null,15134]
[12182,"Medical research",null,null,12191,"Medical services",null,15136]
[12191,"Medical services",null,null,12196,"Health statistics and data",null,15137]
[12196,"Health statistics and data",null,null,12220,"Basic health care",null,15153]
[12220,"Basic health care",null,null,12230,"Basic health infrastructure",null,15160]
[12230,"Basic health infrastructure",null,null,12240,"Basic nutrition",null,15170]
[12240,"Basic nutrition",null,null,12250,"Infectious disease control",null,15180]
[12250,"Infectious disease control",null,null,12261,"Health education",null,15190]
[12261,"Health education",null,null,12262,"Malaria control"]
[12262,"Malaria control",null,null,12263,"Tuberculosis control"]
[12263,"Tuberculosis control",null,null,12264,"COVID-19 control"]
[12264,"COVID-19 control",null,null,12281,"Health personnel development"]
[12265,"COVID-19 vaccines - excess doses",null,null,12310,"NCDs control, general"]
[12266,"COVID-19 vaccines - vaccines specifically purchased",null,null,12320,"Tobacco use control"]
[12267,"COVID-19 vaccines – ancillary costs",null,null,12330,"Control of harmful use of alcohol and drugs"]
[12281,"Health personnel development",null,null,12340,"Promotion of mental health and well-being"]
[12310,"NCDs control, general",null,null,12350,"Other prevention and treatment of NCDs"]
[12320,"Tobacco use control",null,null,12382,"Research for prevention and control of NCDs"]
[12330,"Control of harmful use of alcohol and drugs",null,null,13010,"Population policy and administrative management"]
[12340,"Promotion of mental health and well-being",null,null,13020,"Reproductive health care"]
[12350,"Other prevention and treatment of NCDs",null,null,13030,"Family planning"]
[12382,"Research for prevention and control of NCDs",null,null,13040,"STD control including HIV/AIDS"]
[13010,"Population policy and administrative management",null,null,13081,"Personnel development for population and reproductive health"]
[13020,"Reproductive health care",null,null,13096,"Population statistics and data"]
[13030,"Family planning",null,null,14010,"Water sector policy and administrative management"]
[13040,"STD control including HIV/AIDS",null,null,14015,"Water resources conservation (including data collection)"]
[13081,"Personnel development for population and reproductive health",null,null,14020,"Water supply and sanitation - large systems"]
[13096,"Population statistics and data",null,null,14021,"Water supply - large systems"]
[14010,"Water sector policy and administrative management",null,null,14022,"Sanitation - large systems"]
[14015,"Water resources conservation (including data collection)",null,null,14030,"Basic drinking water supply and basic sanitation"]
[14020,"Water supply and sanitation - large systems",null,null,14031,"Basic drinking water supply"]
[14021,"Water supply - large systems",null,null,14032,"Basic sanitation"]
[14022,"Sanitation - large systems",null,null,14040,"River basins development"]
[14030,"Basic drinking water supply and basic sanitation",null,null,14050,"Waste management/disposal"]
[14031,"Basic drinking water supply",null,null,14081,"Education and training in water supply and sanitation"]
[14032,"Basic sanitation",null,null,15110,"Public sector policy and administrative management"]
[14040,"River basins development",null,null,15111,"Public finance management (PFM)"]
[14050,"Waste management/disposal",null,null,15112,"Decentralisation and support to subnational government"]
[14081,"Education and training in water supply and sanitation",null,null,15113,"Anti-corruption organisations and institutions"]
[15110,"Public sector policy and administrative management",null,null,15114,"Domestic revenue mobilisation"]
[15111,"Public finance management (PFM)",null,null,15116,"Tax collection"]
[15112,"Decentralisation and support to subnational government",null,null,15117,"Budget planning"]
[15113,"Anti-corruption organisations and institutions",null,null,15118,"National audit"]
[15114,"Domestic revenue mobilisation",null,null,15119,"Debt and aid management"]
[15116,"Tax collection",null,null,15121,"Foreign affairs"]
[15117,"Budget planning",null,null,15122,"Diplomatic missions"]
[15118,"National audit",null,null,15123,"Administration of developing countries' foreign aid"]
[15119,"Debt and aid management",null,null,15124,"General personnel services"]
[15121,"Foreign affairs",null,null,15125,"Public Procurement"]
[15122,"Diplomatic missions",null,null,15126,"Other general public services"]
[15123,"Administration of developing countries' foreign aid",null,null,15127,"National monitoring and evaluation"]
[15124,"General personnel services",null,null,15128,"Local government finance"]
[15125,"Public Procurement",null,null,15129,"Other central transfers to institutions"]
[15126,"Other general public services",null,null,15130,"Legal and judicial development"]
[15127,"National monitoring and evaluation",null,null,15131,"Justice, law and order policy, planning and administration"]
[15128,"Local government finance",null,null,15132,"Police"]
[15129,"Other central transfers to institutions",null,null,15133,"Fire and rescue services"]
[15130,"Legal and judicial development",null,null,15134,"Judicial affairs"]
[15131,"Justice, law and order policy, planning and administration",null,null,15135,"Ombudsman"]
[15132,"Police",null,null,15136,"Immigration"]
[15133,"Fire and rescue services",null,null,15137,"Prisons"]
[15134,"Judicial affairs",null,null,15142,"Macroeconomic policy"]
[15135,"Ombudsman",null,null,15143,"Meteorological services"]
[15136,"Immigration",null,null,15144,"National standards development"]
[15137,"Prisons",null,null,15150,"Democratic participation and civil society"]
[15142,"Macroeconomic policy",null,null,15151,"Elections"]
[15143,"Meteorological services",null,null,15152,"Legislatures and political parties"]
[15144,"National standards development",null,null,15153,"Media and free flow of information"]
[15150,"Democratic participation and civil society",null,null,15154,"Executive office"]
[15151,"Elections",null,null,15155,"Tax policy and administration support"]
[15152,"Legislatures and political parties",null,null,15156,"Other non-tax revenue mobilisation"]
[15153,"Media and free flow of information",null,null,15160,"Human rights"]
[15154,"Executive office",null,null,15170,"Women's rights organisations and movements, and government institutions"]
[15155,"Tax policy and administration support",null,null,15180,"Ending violence against women and girls"]
[15156,"Other non-tax revenue mobilisation",null,null,15185,"Local government administration"]
[15160,"Human rights",null,null,15190,"Facilitation of orderly, safe, regular and responsible migration and mobility"]
[15170,"Women's rights organisations and movements, and government institutions",null,null,15196,"Government and civil society statistics and data"]
[15180,"Ending violence against women and girls",null,null,15210,"Security system management and reform"]
[15185,"Local government administration",null,null,15220,"Civilian peace-building, conflict prevention and resolution"]
[15190,"Facilitation of orderly, safe, regular and responsible migration and mobility",null,null,15230,"Participation in international peacekeeping operations"]
[15196,"Government and civil society statistics and data",null,null,15240,"Reintegration and SALW control"]
[15210,"Security system management and reform",null,null,15250,"Removal of land mines and explosive remnants of war"]
[15220,"Civilian peace-building, conflict prevention and resolution",null,null,15261,"Child soldiers (prevention and demobilisation)"]
[15230,"Participation in international peacekeeping operations",null,null,16010,"Social Protection"]
[15240,"Reintegration and SALW control",null,null,16011,"Social protection and welfare services policy, planning and administration"]
[15250,"Removal of land mines and explosive remnants of war",null,null,16012,"Social security (excl pensions)"]
[15261,"Child soldiers (prevention and demobilisation)",null,null,16013,"General pensions"]
[16010,"Social Protection",null,null,16014,"Civil service pensions"]
[16011,"Social protection and welfare services policy, planning and administration",null,null,16015,"Social services (incl youth development and women+ children)"]
[16012,"Social security (excl pensions)",null,null,16020,"Employment creation"]
[16013,"General pensions",null,null,16030,"Housing policy and administrative management"]
[16014,"Civil service pensions",null,null,16040,"Low-cost housing"]
[16015,"Social services (incl youth development and women+ children)",null,null,16050,"Multisector aid for basic social services"]
[16020,"Employment creation",null,null,16061,"Culture and cultural diversity"]
[16030,"Housing policy and administrative management",null,null,16062,"Statistical capacity building"]
[16040,"Low-cost housing",null,null,16063,"Narcotics control"]
[16050,"Multisector aid for basic social services",null,null,16064,"Social mitigation of HIV/AIDS"]
[16061,"Culture and cultural diversity",null,null,16065,"Recreation and sport"]
[16062,"Statistical capacity building",null,null,16066,"Culture"]
[16063,"Narcotics control",null,null,16070,"Labour rights"]
[16064,"Social mitigation of HIV/AIDS",null,null,16080,"Social dialogue"]
[16065,"Recreation and sport",null,null,21010,"Transport policy and administrative management"]
[16066,"Culture",null,null,21011,"Transport policy, planning and administration"]
[16070,"Labour rights",null,null,21012,"Public transport services"]
[16080,"Social dialogue",null,null,21013,"Transport regulation"]
[21010,"Transport policy and administrative management",null,null,21020,"Road transport"]
[21011,"Transport policy, planning and administration",null,null,21021,"Feeder road construction"]
[21012,"Public transport services",null,null,21022,"Feeder road maintenance"]
[21013,"Transport regulation",null,null,21023,"National road construction"]
[21020,"Road transport",null,null,21024,"National road maintenance"]
[21021,"Feeder road construction",null,null,21030,"Rail transport"]
[21022,"Feeder road maintenance",null,null,21040,"Water transport"]
[21023,"National road construction",null,null,21050,"Air transport"]
[21024,"National road maintenance",null,null,21061,"Storage"]
[21030,"Rail transport",null,null,21081,"Education and training in transport and storage"]
[21040,"Water transport",null,null,22010,"Communications policy and administrative management"]
[21050,"Air transport",null,null,22011,"Communications policy, planning and administration"]
[21061,"Storage",null,null,22012,"Postal services"]
[21081,"Education and training in transport and storage",null,null,22013,"Information services"]
[22010,"Communications policy and administrative management",null,null,22020,"Telecommunications"]
[22011,"Communications policy, planning and administration",null,null,22030,"Radio, television, print and online media"]
[22012,"Postal services",null,null,22040,"Information and communication technology (ICT)"]
[22013,"Information services",null,null,22081,"Education and training in ICT, telecommunications and media"]
[22020,"Telecommunications",null,null,23110,"Energy policy and administrative management"]
[22030,"Radio, television, print and online media",null,null,23111,"Energy sector policy, planning and administration"]
[22040,"Information and communication technology (ICT)",null,null,23112,"Energy regulation"]
[22081,"Education and training in ICT, telecommunications and media",null,null,23181,"Energy education/training"]
[23110,"Energy policy and administrative management",null,null,23182,"Energy research"]
[23111,"Energy sector policy, planning and administration",null,null,23183,"Energy conservation and demand-side efficiency"]
[23112,"Energy regulation",null,null,23210,"Energy generation, renewable sources - multiple technologies"]
[23181,"Energy education/training",null,null,23220,"Hydro-electric power plants"]
[23182,"Energy research",null,null,23230,"Solar energy for centralised grids"]
[23183,"Energy conservation and demand-side efficiency",null,null,23231,"Solar energy for isolated grids and standalone systems"]
[23210,"Energy generation, renewable sources - multiple technologies",null,null,23232,"Solar energy - thermal applications"]
[23220,"Hydro-electric power plants",null,null,23240,"Wind energy"]
[23230,"Solar energy for centralised grids",null,null,23250,"Marine energy"]
[23231,"Solar energy for isolated grids and standalone systems",null,null,23260,"Geothermal energy"]
[23232,"Solar energy - thermal applications",null,null,23270,"Biofuel-fired power plants"]
[23240,"Wind energy",null,null,23310,"Energy generation, non-renewable sources, unspecified"]
[23250,"Marine energy",null,null,23320,"Coal-fired electric power plants"]
[23260,"Geothermal energy",null,null,23330,"Oil-fired electric power plants"]
[23270,"Biofuel-fired power plants",null,null,23340,"Natural gas-fired electric power plants"]
[23310,"Energy generation, non-renewable sources, unspecified",null,null,23350,"Fossil fuel electric power plants with carbon capture and storage (CCS)"]
[23320,"Coal-fired electric power plants",null,null,23360,"Non-renewable waste-fired electric power plants"]
[23330,"Oil-fired electric power plants",null,null,23410,"Hybrid energy electric power plants"]
[23340,"Natural gas-fired electric power plants",null,null,23510,"Nuclear energy electric power plants and nuclear safety"]
[23350,"Fossil fuel electric power plants with carbon capture and storage (CCS)",null,null,23610,"Heat plants"]
[23360,"Non-renewable waste-fired electric power plants",null,null,23620,"District heating and cooling"]
[23410,"Hybrid energy electric power plants",null,null,23630,"Electric power transmission and distribution (centralised grids)"]
[23510,"Nuclear energy electric power plants and nuclear safety",null,null,23631,"Electric power transmission and distribution (isolated mini-grids)"]
[23610,"Heat plants",null,null,23640,"Retail gas distribution"]
[23620,"District heating and cooling",null,null,23641,"Retail distribution of liquid or solid fossil fuels"]
[23630,"Electric power transmission and distribution (centralised grids)",null,null,23642,"Electric mobility infrastructures"]
[23631,"Electric power transmission and distribution (isolated mini-grids)",null,null,24010,"Financial policy and administrative management"]
[23640,"Retail gas distribution",null,null,24020,"Monetary institutions"]
[23641,"Retail distribution of liquid or solid fossil fuels",null,null,24030,"Formal sector financial intermediaries"]
[23642,"Electric mobility infrastructures",null,null,24040,"Informal/semi-formal financial intermediaries"]
[24010,"Financial policy and administrative management",null,null,24050,"Remittance facilitation, promotion and optimisation"]
[24020,"Monetary institutions",null,null,24081,"Education/training in banking and financial services"]
[24030,"Formal sector financial intermediaries",null,null,25010,"Business policy and administration"]
[24040,"Informal/semi-formal financial intermediaries",null,null,25020,"Privatisation"]
[24050,"Remittance facilitation, promotion and optimisation",null,null,25030,"Business development services"]
[24081,"Education/training in banking and financial services",null,null,25040,"Responsible business conduct"]
[25010,"Business policy and administration",null,null,31110,"Agricultural policy and administrative management"]
[25020,"Privatisation",null,null,31120,"Agricultural development"]
[25030,"Business development services",null,null,31130,"Agricultural land resources"]
[25040,"Responsible business conduct",null,null,31140,"Agricultural water resources"]
[31110,"Agricultural policy and administrative management",null,null,31150,"Agricultural inputs"]
[31120,"Agricultural development",null,null,31161,"Food crop production"]
[31130,"Agricultural land resources",null,null,31162,"Industrial crops/export crops"]
[31140,"Agricultural water resources",null,null,31163,"Livestock"]
[31150,"Agricultural inputs",null,null,31164,"Agrarian reform"]
[31161,"Food crop production",null,null,31165,"Agricultural alternative development"]
[31162,"Industrial crops/export crops",null,null,31166,"Agricultural extension"]
[31163,"Livestock",null,null,31181,"Agricultural education/training"]
[31164,"Agrarian reform",null,null,31182,"Agricultural research"]
[31165,"Agricultural alternative development",null,null,31191,"Agricultural services"]
[31166,"Agricultural extension",null,null,31192,"Plant and post-harvest protection and pest control"]
[31181,"Agricultural education/training",null,null,31193,"Agricultural financial services"]
[31182,"Agricultural research",null,null,31194,"Agricultural co-operatives"]
[31191,"Agricultural services",null,null,31195,"Livestock/veterinary services"]
[31192,"Plant and post-harvest protection and pest control",null,null,31210,"Forestry policy and administrative management"]
[31193,"Agricultural financial services",null,null,31220,"Forestry development"]
[31194,"Agricultural co-operatives",null,null,31261,"Fuelwood/charcoal"]
[31195,"Livestock/veterinary services",null,null,31281,"Forestry education/training"]
[31210,"Forestry policy and administrative management",null,null,31282,"Forestry research"]
[31220,"Forestry development",null,null,31291,"Forestry services"]
[31261,"Fuelwood/charcoal",null,null,31310,"Fishing policy and administrative management"]
[31281,"Forestry education/training",null,null,31320,"Fishery development"]
[31282,"Forestry research",null,null,31381,"Fishery education/training"]
[31291,"Forestry services",null,null,31382,"Fishery research"]
[31310,"Fishing policy and administrative management",null,null,31391,"Fishery services"]
[31320,"Fishery development",null,null,32110,"Industrial policy and administrative management"]
[31381,"Fishery education/training",null,null,32120,"Industrial development"]
[31382,"Fishery research",null,null,32130,"Small and medium-sized enterprises (SME) development"]
[31391,"Fishery services",null,null,32140,"Cottage industries and handicraft"]
[32110,"Industrial policy and administrative management",null,null,32161,"Agro-industries"]
[32120,"Industrial development",null,null,32162,"Forest industries"]
[32130,"Small and medium-sized enterprises (SME) development",null,null,32163,"Textiles, leather and substitutes"]
[32140,"Cottage industries and handicraft",null,null,32164,"Chemicals"]
[32161,"Agro-industries",null,null,32165,"Fertilizer plants"]
[32162,"Forest industries",null,null,32166,"Cement/lime/plaster"]
[32163,"Textiles, leather and substitutes",null,null,32167,"Energy manufacturing (fossil fuels)"]
[32164,"Chemicals",null,null,32168,"Pharmaceutical production"]
[32165,"Fertilizer plants",null,null,32169,"Basic metal industries"]
[32166,"Cement/lime/plaster",null,null,32170,"Non-ferrous metal industries"]
[32167,"Energy manufacturing (fossil fuels)",null,null,32171,"Engineering"]
[32168,"Pharmaceutical production",null,null,32172,"Transport equipment industry"]
[32169,"Basic metal industries",null,null,32173,"Modern biofuels manufacturing"]
[32170,"Non-ferrous metal industries",null,null,32174,"Clean cooking appliances manufacturing"]
[32171,"Engineering",null,null,32182,"Technological research and development"]
[32172,"Transport equipment industry",null,null,32210,"Mineral/mining policy and administrative management"]
[32173,"Modern biofuels manufacturing",null,null,32220,"Mineral prospection and exploration"]
[32174,"Clean cooking appliances manufacturing",null,null,32261,"Coal"]
[32182,"Technological research and development",null,null,32262,"Oil and gas (upstream)"]
[32210,"Mineral/mining policy and administrative management",null,null,32263,"Ferrous metals"]
[32220,"Mineral prospection and exploration",null,null,32264,"Nonferrous metals"]
[32261,"Coal",null,null,32265,"Precious metals/materials"]
[32262,"Oil and gas (upstream)",null,null,32266,"Industrial minerals"]
[32263,"Ferrous metals",null,null,32267,"Fertilizer minerals"]
[32264,"Nonferrous metals",null,null,32268,"Offshore minerals"]
[32265,"Precious metals/materials",null,null,32310,"Construction policy and administrative management"]
[32266,"Industrial minerals",null,null,33110,"Trade policy and administrative management"]
[32267,"Fertilizer minerals",null,null,33120,"Trade facilitation"]
[32268,"Offshore minerals",null,null,33130,"Regional trade agreements (RTAs)"]
[32310,"Construction policy and administrative management",null,null,33140,"Multilateral trade negotiations"]
[33110,"Trade policy and administrative management",null,null,33150,"Trade-related adjustment"]
[33120,"Trade facilitation",null,null,33181,"Trade education/training"]
[33130,"Regional trade agreements (RTAs)",null,null,33210,"Tourism policy and administrative management"]
[33140,"Multilateral trade negotiations",null,null,41010,"Environmental policy and administrative management"]
[33150,"Trade-related adjustment",null,null,41020,"Biosphere protection"]
[33181,"Trade education/training",null,null,41030,"Biodiversity"]
[33210,"Tourism policy and administrative management",null,null,41040,"Site preservation"]
[41010,"Environmental policy and administrative management",null,null,41081,"Environmental education/training"]
[41020,"Biosphere protection",null,null,41082,"Environmental research"]
[41030,"Biodiversity",null,null,43010,"Multisector aid"]
[41040,"Site preservation",null,null,43030,"Urban development and management"]
[41081,"Environmental education/training",null,null,43031,"Urban land policy and management"]
[41082,"Environmental research",null,null,43032,"Urban development"]
[43010,"Multisector aid",null,null,43040,"Rural development"]
[43030,"Urban development and management",null,null,43041,"Rural land policy and management"]
[43031,"Urban land policy and management",null,null,43042,"Rural development"]
[43032,"Urban development",null,null,43050,"Non-agricultural alternative development"]
[43040,"Rural development",null,null,43060,"Disaster Risk Reduction"]
[43041,"Rural land policy and management",null,null,43071,"Food security policy and administrative management"]
[43042,"Rural development",null,null,43072,"Household food security programmes"]
[43050,"Non-agricultural alternative development",null,null,43073,"Food safety and quality"]
[43060,"Disaster Risk Reduction",null,null,43081,"Multisector education/training"]
[43071,"Food security policy and administrative management",null,null,43082,"Research/scientific institutions"]
[43072,"Household food security programmes",null,null,51010,"General budget support-related aid"]
[43073,"Food safety and quality",null,null,52010,"Food assistance"]
[43081,"Multisector education/training",null,null,53030,"Import support (capital goods)"]
[43082,"Research/scientific institutions",null,null,53040,"Import support (commodities)"]
[51010,"General budget support-related aid",null,null,60010,"Action relating to debt"]
[52010,"Food assistance",null,null,60020,"Debt forgiveness"]
[53030,"Import support (capital goods)",null,null,60030,"Relief of multilateral debt"]
[53040,"Import support (commodities)",null,null,60040,"Rescheduling and refinancing"]
[60010,"Action relating to debt",null,null,60061,"Debt for development swap"]
[60020,"Debt forgiveness",null,null,60062,"Other debt swap"]
[60030,"Relief of multilateral debt",null,null,60063,"Debt buy-back"]
[60040,"Rescheduling and refinancing",null,null,72010,"Material relief assistance and services "]
[60061,"Debt for development swap",null,null,72011,"Basic Health Care Services in Emergencies"]
[60062,"Other debt swap",null,null,72012,"Education in emergencies"]
[60063,"Debt buy-back",null,null,72040,"Emergency food assistance"]
[72010,"Material relief assistance and services ",null,null,72050,"Relief co-ordination and support services"]
[72011,"Basic Health Care Services in Emergencies",null,null,73010,"Immediate post-emergency reconstruction and rehabilitation"]
[72012,"Education in emergencies",null,null,74020,"Multi-hazard response preparedness"]
[72040,"Emergency food assistance",null,null,91010,"Administrative costs (non-sector allocable)"]
[72050,"Relief co-ordination and support services",null,null,93010,"Refugees/asylum seekers  in donor countries (non-sector allocable)"]
[73010,"Immediate post-emergency reconstruction and rehabilitation",null,null,93011,"Refugees/asylum seekers in donor countries - food and shelter "]
[74020,"Multi-hazard response preparedness",null,null,93012,"Refugees/asylum seekers in donor countries - training"]
[91010,"Administrative costs (non-sector allocable)",null,null,93013,"Refugees/asylum seekers in donor countries - health"]
[93010,"Refugees/asylum seekers  in donor countries (non-sector allocable)",null,null,93014,"Refugees/asylum seekers in donor countries - other temporary sustenance"]
[93011,"Refugees/asylum seekers in donor countries - food and shelter ",null,null,93015,"Refugees/asylum seekers in donor countries - voluntary repatriation"]
[93012,"Refugees/asylum seekers in donor countries - training",null,null,93016,"Refugees/asylum seekers in donor countries - transport"]
[93013,"Refugees/asylum seekers in donor countries - health",null,null,93017,"Refugees/asylum seekers in donor countries - rescue at sea"]
[93014,"Refugees/asylum seekers in donor countries - other temporary sustenance",null,null,93018,"Refugees/asylum seekers in donor countries - administrative costs"]
[93015,"Refugees/asylum seekers in donor countries - voluntary repatriation",null,null,99810,"Sectors not specified"]
[93016,"Refugees/asylum seekers in donor countries - transport",null,null,99820,"Promotion of development awareness (non-sector allocable)"]
[93017,"Refugees/asylum seekers in donor countries - rescue at sea",null,null,1513010,"Fight against transnational organised crime"]
[93018,"Refugees/asylum seekers in donor countries - administrative costs",null,null,1513020,"Countering violent extremism"]
[99810,"Sectors not specified",null,null,1513030,"Cyber security"]
[99820,"Promotion of development awareness (non-sector allocable)",null,null,1516010,"Transitional justice"]
[null,null,null,null,1516020,"International criminal justice"]
[null,null,null,null,1520010,"Disarmament of Weapons of Mass Destruction (WMD)"]
[null,null,null,null,1520020,"Prevention of Violent Extremism"]

{"sheet":"SDG_focus","index":23,"n_rows":205,"n_cols":2,"rows_kept":205,"cut":false,"hidden":true,"merged":[]}
["target","NameE"]
["0","activity screened but does not aim to contribute directly to any of the SDGs"]
["1","End poverty in all its forms everywhere"]
["1.1","By 2030, eradicate extreme poverty for all people everywhere, currently measured as people living on less than $1.25 a day"]
["1.2","By 2030, reduce at least by half the proportion of men, women and children of all ages living in poverty in all its dimensions according to national definitions"]
["1.3","Implement nationally appropriate social protection systems and measures for all, including floors, and by 2030 achieve substantial coverage of the poor and the vulnerable"]
["1.4","By 2030, ensure that all men and women, in particular the poor and the vulnerable, have equal rights to economic resources, as well as access to basic services, ownership and control over land and other forms of property, inheritance, natural resources, appropriate new technology and financial services, including microfinance"]
["1.5","By 2030, build the resilience of the poor and those in vulnerable situations and reduce their exposure and vulnerability to climate-related extreme events and other economic, social and environmental shocks and disasters"]
["1.a","Ensure significant mobilization of resources from a variety of sources, including through enhanced development cooperation, in order to provide adequate and predictable means for developing countries, in particular least developed countries, to implement programmes and policies to end poverty in all its dimensions"]
["1.b","Create sound policy frameworks at the national, regional and international levels, based on pro-poor and gender-sensitive development strategies, to support accelerated investment in poverty eradication actions"]
["2","End hunger, achieve food security and improved nutrition and promote sustainable agriculture"]
["2.1","By 2030, end hunger and ensure access by all people, in particular the poor and people in vulnerable situations, including infants, to safe, nutritious and sufficient food all year round"]
["2.2","By 2030, end all forms of malnutrition, including achieving, by 2025, the internationally agreed targets on stunting and wasting in children under 5 years of age, and address the nutritional needs of adolescent girls, pregnant and lactating women and older persons"]
["2.3","By 2030, double the agricultural productivity and incomes of small-scale food producers, in particular women, indigenous peoples, family farmers, pastoralists and fishers, including through secure and equal access to land, other productive resources and inputs, knowledge, financial services, markets and opportunities for value addition and non-farm employment"]
["2.4","By 2030, ensure sustainable food production systems and implement resilient agricultural practices that increase productivity and production, that help maintain ecosystems, that strengthen capacity for adaptation to climate change, extreme weather, drought, flooding and other disasters and that progressively improve land and soil quality"]
["2.5","By 2020, maintain the genetic diversity of seeds, cultivated plants and farmed and domesticated animals and their related wild species, including through soundly managed and diversified seed and plant banks at the national, regional and international levels, and promote access to and fair and equitable sharing of benefits arising from the utilization of genetic resources and associated traditional knowledge, as internationally agreed"]
["2.a","Increase investment, including through enhanced international cooperation, in rural infrastructure, agricultural research and extension services, technology development and plant and livestock gene banks in order to enhance agricultural productive capacity in developing countries, in particular least developed countries"]
["2.b","Correct and prevent trade restrictions and distortions in world agricultural markets, including through the parallel elimination of all forms of agricultural export subsidies and all export measures with equivalent effect, in accordance with the mandate of the Doha Development Round"]
["2.c","Adopt measures to ensure the proper functioning of food commodity markets and their derivatives and facilitate timely access to market information, including on food reserves, in order to help limit extreme food price volatility"]
["3","Ensure healthy lives and promote well-being for all at all ages"]
["3.1","By 2030, reduce the global maternal mortality ratio to less than 70 per 100,000 live births"]
["3.2","By 2030, end preventable deaths of newborns and children under 5 years of age, with all countries aiming to reduce neonatal mortality to at least as low as 12 per 1,000 live births and under-5 mortality to at least as low as 25 per 1,000 live births"]
["3.3","By 2030, end the epidemics of AIDS, tuberculosis, malaria and neglected tropical diseases and combat hepatitis, water-borne diseases and other communicable diseases"]
["3.4","By 2030, reduce by one third premature mortality from non-communicable diseases through prevention and treatment and promote mental health and well-being"]
["3.5","Strengthen the prevention and treatment of substance abuse, including narcotic drug abuse and harmful use of alcohol"]
["3.6","By 2020, halve the number of global deaths and injuries from road traffic accidents"]
["3.7","By 2030, ensure universal access to sexual and reproductive health-care services, including for family planning, information and education, and the integration of reproductive health into national strategies and programmes"]
["3.8","Achieve universal health coverage, including financial risk protection, access to quality essential health-care services and access to safe, effective, quality and affordable essential medicines and vaccines for all"]
["3.9","By 2030, substantially reduce the number of deaths and illnesses from hazardous chemicals and air, water and soil pollution and contamination"]
["3.a","Strengthen the implementation of the World Health Organization Framework Convention on Tobacco Control in all countries, as appropriate"]
["3.b","Support the research and development of vaccines and medicines for the communicable and non-communicable diseases that primarily affect developing countries, provide access to affordable essential medicines and vaccines, in accordance with the Doha Declaration on the TRIPS Agreement and Public Health, which affirms the right of developing countries to use to the full the provisions in the Agreement on Trade-Related Aspects of Intellectual Property Rights regarding flexibilities to protect public health, and, in particular, provide access to medicines for all"]
["3.c","Substantially increase health financing and the recruitment, development, training and retention of the health workforce in developing countries, especially in least developed countries and small island developing States"]
["3.d","Strengthen the capacity of all countries, in particular developing countries, for early warning, risk reduction and management of national and global health risks"]
["4","Ensure inclusive and equitable quality education and promote lifelong learning opportunities for all"]
["4.1","By 2030, ensure that all girls and boys complete free, equitable and quality primary and secondary education leading to relevant and effective learning outcomes"]
["4.2","By 2030, ensure that all girls and boys have access to quality early childhood development, care and pre-primary education so that they are ready for primary education"]
["4.3","By 2030, ensure equal access for all women and men to affordable and quality technical, vocational and tertiary education, including university"]
["4.4","By 2030, substantially increase the number of youth and adults who have relevant skills, including technical and vocational skills, for employment, decent jobs and entrepreneurship"]
["4.5","By 2030, eliminate gender disparities in education and ensure equal access to all levels of education and vocational training for the vulnerable, including persons with disabilities, indigenous peoples and children in vulnerable situations"]
["4.6","By 2030, ensure that all youth and a substantial proportion of adults, both men and women, achieve literacy and numeracy"]
["4.7","By 2030, ensure that all learners acquire the knowledge and skills needed to promote sustainable development, including, among others, through education for sustainable development and sustainable lifestyles, human rights, gender equality, promotion of a culture of peace and non-violence, global citizenship and appreciation of cultural diversity and of culture’s contribution to sustainable development"]
["4.a","Build and upgrade education facilities that are child, disability and gender sensitive and provide safe, non-violent, inclusive and effective learning environments for all"]
["4.b","By 2020, substantially expand globally the number of scholarships available to developing countries, in particular least developed countries, small island developing States and African countries, for enrolment in higher education, including vocational training and information and communications technology, technical, engineering and scientific programmes, in developed countries and other developing countries"]
["4.c","By 2030, substantially increase the supply of qualified teachers, including through international cooperation for teacher training in developing countries, especially least developed countries and small island developing States"]
["5","Achieve gender equality and empower all women and girls"]
["5.1","End all forms of discrimination against all women and girls everywhere"]
["5.2","Eliminate all forms of violence against all women and girls in the public and private spheres, including trafficking and sexual and other types of exploitation"]
["5.3","Eliminate all harmful practices, such as child, early and forced marriage and female genital mutilation"]
["5.4","Recognize and value unpaid care and domestic work through the provision of public services, infrastructure and social protection policies and the promotion of shared responsibility within the household and the family as nationally appropriate"]
["5.5","Ensure women’s full and effective participation and equal opportunities for leadership at all levels of decision-making in political, economic and public life"]
["5.6","Ensure universal access to sexual and reproductive health and reproductive rights as agreed in accordance with the Programme of Action of the International Conference on Population and Development and the Beijing Platform for Action and the outcome documents of their review conferences"]
["5.a","Undertake reforms to give women equal rights to economic resources, as well as access to ownership and control over land and other forms of property, financial services, inheritance and natural resources, in accordance with national laws"]
["5.b","Enhance the use of enabling technology, in particular information and communications technology, to promote the empowerment of women"]
["5.c","Adopt and strengthen sound policies and enforceable legislation for the promotion of gender equality and the empowerment of all women and girls at all levels"]
["6","Ensure availability and sustainable management of water and sanitation for all"]
["6.1","By 2030, achieve universal and equitable access to safe and affordable drinking water for all"]
["6.2","By 2030, achieve access to adequate and equitable sanitation and hygiene for all and end open defecation, paying special attention to the needs of women and girls and those in vulnerable situations"]
["6.3","By 2030, improve water quality by reducing pollution, eliminating dumping and minimizing release of hazardous chemicals and materials, halving the proportion of untreated wastewater and substantially increasing recycling and safe reuse globally"]
["6.4","By 2030, substantially increase water-use efficiency across all sectors and ensure sustainable withdrawals and supply of freshwater to address water scarcity and substantially reduce the number of people suffering from water scarcity"]
["6.5","By 2030, implement integrated water resources management at all levels, including through transboundary cooperation as appropriate"]
["6.6","By 2020, protect and restore water-related ecosystems, including mountains, forests, wetlands, rivers, aquifers and lakes"]
["6.a","By 2030, expand international cooperation and capacity-building support to developing countries in water- and sanitation-related activities and programmes, including water harvesting, desalination, water efficiency, wastewater treatment, recycling and reuse technologies"]
["6.b","Support and strengthen the participation of local communities in improving water and sanitation management"]
["7","Ensure access to affordable, reliable, sustainable and modern energy for all"]
["7.1","By 2030, ensure universal access to affordable, reliable and modern energy services"]
["7.2","By 2030, increase substantially the share of renewable energy in the global energy mix"]
["7.3","By 2030, double the global rate of improvement in energy efficiency"]
["7.a","By 2030, enhance international cooperation to facilitate access to clean energy research and technology, including renewable energy, energy efficiency and advanced and cleaner fossil-fuel technology, and promote investment in energy infrastructure and clean energy technology"]
["7.b","By 2030, expand infrastructure and upgrade technology for supplying modern and sustainable energy services for all in developing countries, in particular least developed countries, small island developing States and landlocked developing countries, in accordance with their respective programmes of support"]
["8","Promote sustained, inclusive and sustainable economic growth, full and productive employment and decent work for all"]
["8.1","Sustain per capita economic growth in accordance with national circumstances and, in particular, at least 7 per cent gross domestic product growth per annum in the least developed countries"]
["8.2","Achieve higher levels of economic productivity through diversification, technological upgrading and innovation, including through a focus on high-value added and labour-intensive sectors"]
["8.3","Promote development-oriented policies that support productive activities, decent job creation, entrepreneurship, creativity and innovation, and encourage the formalization and growth of micro-, small- and medium-sized enterprises, including through access to financial services"]
["8.4","Improve progressively, through 2030, global resource efficiency in consumption and production and endeavour to decouple economic growth from environmental degradation, in accordance with the 10-Year Framework of Programmes on Sustainable Consumption and Production, with developed countries taking the lead"]
["8.5","By 2030, achieve full and productive employment and decent work for all women and men, including for young people and persons with disabilities, and equal pay for work of equal value"]
["8.6","By 2020, substantially reduce the proportion of youth not in employment, education or training"]
["8.7","Take immediate and effective measures to eradicate forced labour, end modern slavery and human trafficking and secure the prohibition and elimination of the worst forms of child labour, including recruitment and use of child soldiers, and by 2025 end child labour in all its forms "]
["8.8","Protect labour rights and promote safe and secure working environments for all workers, including migrant workers, in particular women migrants, and those in precarious employment"]
["8.9","By 2030, devise and implement policies to promote sustainable tourism that creates jobs and promotes local culture and products"]
["8.10","Strengthen the capacity of domestic financial institutions to encourage and expand access to banking, insurance and financial services for all"]
["8.a","Increase Aid for Trade support for developing countries, in particular least developed countries, including through the Enhanced Integrated Framework for Trade-related Technical Assistance to Least Developed Countries"]
["8.b","By 2020, develop and operationalize a global strategy for youth employment and implement the Global Jobs Pact of the International Labour Organization"]
["9","Build resilient infrastructure, promote inclusive and sustainable industrialization and foster innovation"]
["9.1","Develop quality, reliable, sustainable and resilient infrastructure, including regional and transborder infrastructure, to support economic development and human well-being, with a focus on affordable and equitable access for all"]
["9.2","Promote inclusive and sustainable industrialization and, by 2030, significantly raise industry’s share of employment and gross domestic product, in line with national circumstances, and double its share in least developed countries"]
["9.3","Increase the access of small-scale industrial and other enterprises, in particular in developing countries, to financial services, including affordable credit, and their integration into value chains and markets"]
["9.4","By 2030, upgrade infrastructure and retrofit industries to make them sustainable, with increased resource-use efficiency and greater adoption of clean and environmentally sound technologies and industrial processes, with all countries taking action in accordance with their respective capabilities"]
["9.5","Enhance scientific research, upgrade the technological capabilities of industrial sectors in all countries, in particular developing countries, including, by 2030, encouraging innovation and substantially increasing the number of research and development workers per 1 million people and public and private research and development spending"]
["9.a","Facilitate sustainable and resilient infrastructure development in developing countries through enhanced financial, technological and technical support to African countries, least developed countries, landlocked developing countries and small island developing States"]
["9.b","Support domestic technology development, research and innovation in developing countries, including by ensuring a conducive policy environment for, inter alia, industrial diversification and value addition to commodities"]
["9.c","Significantly increase access to information and communications technology and strive to provide universal and affordable access to the Internet in least developed countries by 2020"]
["10","Reduce inequality within and among countries"]
["10.1","By 2030, progressively achieve and sustain income growth of the bottom 40 per cent of the population at a rate higher than the national average"]
["10.2","By 2030, empower and promote the social, economic and political inclusion of all, irrespective of age, sex, disability, race, ethnicity, origin, religion or economic or other status"]
["10.3","Ensure equal opportunity and reduce inequalities of outcome, including by eliminating discriminatory laws, policies and practices and promoting appropriate legislation, policies and action in this regard"]
["10.4","Adopt policies, especially fiscal, wage and social protection policies, and progressively achieve greater equality"]
["10.5","Improve the regulation and monitoring of global financial markets and institutions and strengthen the implementation of such regulations"]
["10.6","Ensure enhanced representation and voice for developing countries in decision-making in global international economic and financial institutions in order to deliver more effective, credible, accountable and legitimate institutions"]
["10.7","Facilitate orderly, safe, regular and responsible migration and mobility of people, including through the implementation of planned and well-managed migration policies"]
["10.a","Implement the principle of special and differential treatment for developing countries, in particular least developed countries, in accordance with World Trade Organization agreements"]
["10.b","Encourage official development assistance and financial flows, including foreign direct investment, to States where the need is greatest, in particular least developed countries, African countries, small island developing States and landlocked developing countries, in accordance with their national plans and programmes"]
["10.c","By 2030, reduce to less than 3 per cent the transaction costs of migrant remittances and eliminate remittance corridors with costs higher than 5 per cent"]
["11","Make cities and human settlements inclusive, safe, resilient and sustainable"]
["11.1","By 2030, ensure access for all to adequate, safe and affordable housing and basic services and upgrade slums"]
["11.2","By 2030, provide access to safe, affordable, accessible and sustainable transport systems for all, improving road safety, notably by expanding public transport, with special attention to the needs of those in vulnerable situations, women, children, persons with disabilities and older persons"]
["11.3","By 2030, enhance inclusive and sustainable urbanization and capacity for participatory, integrated and sustainable human settlement planning and management in all countries"]
["11.4","Strengthen efforts to protect and safeguard the world’s cultural and natural heritage"]
["11.5","By 2030, significantly reduce the number of deaths and the number of people affected and substantially decrease the direct economic losses relative to global gross domestic product caused by disasters, including water-related disasters, with a focus on protecting the poor and people in vulnerable situations"]
["11.6","By 2030, reduce the adverse per capita environmental impact of cities, including by paying special attention to air quality and municipal and other waste management"]
["11.7","By 2030, provide universal access to safe, inclusive and accessible, green and public spaces, in particular for women and children, older persons and persons with disabilities"]
["11.a","Support positive economic, social and environmental links between urban, peri-urban and rural areas by strengthening national and regional development planning"]
["11.b","By 2020, substantially increase the number of cities and human settlements adopting and implementing integrated policies and plans towards inclusion, resource efficiency, mitigation and adaptation to climate change, resilience to disasters, and develop and implement, in line with the Sendai Framework for Disaster Risk Reduction 2015–2030, holistic disaster risk management at all levels"]
["11.c","Support least developed countries, including through financial and technical assistance, in building sustainable and resilient buildings utilizing local materials"]
["12","Ensure sustainable consumption and production patterns"]
["12.1","Implement the 10-Year Framework of Programmes on Sustainable Consumption and Production Patterns, all countries taking action, with developed countries taking the lead, taking into account the development and capabilities of developing countries"]
["12.2","By 2030, achieve the sustainable management and efficient use of natural resources"]
["12.3","By 2030, halve per capita global food waste at the retail and consumer levels and reduce food losses along production and supply chains, including post-harvest losses"]
["12.4","By 2020, achieve the environmentally sound management of chemicals and all wastes throughout their life cycle, in accordance with agreed international frameworks, and significantly reduce their release to air, water and soil in order to minimize their adverse impacts on human health and the environment"]
["12.5","By 2030, substantially reduce waste generation through prevention, reduction, recycling and reuse"]
["12.6","Encourage companies, especially large and transnational companies, to adopt sustainable practices and to integrate sustainability information into their reporting cycle"]
["12.7","Promote public procurement practices that are sustainable, in accordance with national policies and priorities"]
["12.8","By 2030, ensure that people everywhere have the relevant information and awareness for sustainable development and lifestyles in harmony with nature"]
["12.a","Support developing countries to strengthen their scientific and technological capacity to move towards more sustainable patterns of consumption and production"]
["12.b","Develop and implement tools to monitor sustainable development impacts for sustainable tourism that creates jobs and promotes local culture and products"]
["12.c","Rationalize inefficient fossil-fuel subsidies that encourage wasteful consumption by removing market distortions, in accordance with national circumstances, including by restructuring taxation and phasing out those harmful subsidies, where they exist, to reflect their environmental impacts, taking fully into account the specific needs and conditions of developing countries and minimizing the possible adverse impacts on their development in a manner that protects the poor and the affected communities"]
["13","Take urgent action to combat climate change and its impacts"]
["13.1","Strengthen resilience and adaptive capacity to climate-related hazards and natural disasters in all countries"]
["13.2","Integrate climate change measures into national policies, strategies and planning"]
["13.3","Improve education, awareness-raising and human and institutional capacity on climate change mitigation, adaptation, impact reduction and early warning"]
["13.a","Implement the commitment undertaken by developed-country parties to the United Nations Framework Convention on Climate Change to a goal of mobilizing jointly $100 billion annually by 2020 from all sources to address the needs of developing countries in the context of meaningful mitigation actions and transparency on implementation and fully operationalize the Green Climate Fund through its capitalization as soon as possible"]
["13.b","Promote mechanisms for raising capacity for effective climate change-related planning and management in least developed countries and small island developing States, including focusing on women, youth and local and marginalized communities"]
["14","Conserve and sustainably use the oceans, seas and marine resources for sustainable development"]
["14.1","By 2025, prevent and significantly reduce marine pollution of all kinds, in particular from land-based activities, including marine debris and nutrient pollution"]
["14.2","By 2020, sustainably manage and protect marine and coastal ecosystems to avoid significant adverse impacts, including by strengthening their resilience, and take action for their restoration in order to achieve healthy and productive oceans"]
["14.3","Minimize and address the impacts of ocean acidification, including through enhanced scientific cooperation at all levels"]
["14.4","By 2020, effectively regulate harvesting and end overfishing, illegal, unreported and unregulated fishing and destructive fishing practices and implement science-based management plans, in order to restore fish stocks in the shortest time feasible, at least to levels that can produce maximum sustainable yield as determined by their biological characteristics"]
["14.5","By 2020, conserve at least 10 per cent of coastal and marine areas, consistent with national and international law and based on the best available scientific information"]
["14.6","By 2020, prohibit certain forms of fisheries subsidies which contribute to overcapacity and overfishing, eliminate subsidies that contribute to illegal, unreported and unregulated fishing and refrain from introducing new such subsidies, recognizing that appropriate and effective special and differential treatment for developing and least developed countries should be an integral part of the World Trade Organization fisheries subsidies negotiation3"]
["14.7","By 2030, increase the economic benefits to small island developing States and least developed countries from the sustainable use of marine resources, including through sustainable management of fisheries, aquaculture and tourism"]
["14.a","Increase scientific knowledge, develop research capacity and transfer marine technology, taking into account the Intergovernmental Oceanographic Commission Criteria and Guidelines on the Transfer of Marine Technology, in order to improve ocean health and to enhance the contribution of marine biodiversity to the development of developing countries, in particular small island developing States and least developed countries"]
["14.b","Provide access for small-scale artisanal fishers to marine resources and markets"]
["14.c","Enhance the conservation and sustainable use of oceans and their resources by implementing international law as reflected in the United Nations Convention on the Law of the Sea, which provides the legal framework for the conservation and sustainable use of oceans and their resources, as recalled in paragraph 158 of “The future we want”"]
["15","Protect, restore and promote sustainable use of terrestrial ecosystems, sustainably manage forests, combat desertification, and halt and reverse land degradation and halt biodiversity loss"]
["15.1","By 2020, ensure the conservation, restoration and sustainable use of terrestrial and inland freshwater ecosystems and their services, in particular forests, wetlands, mountains and drylands, in line with obligations under international agreements"]
["15.2","By 2020, promote the implementation of sustainable management of all types of forests, halt deforestation, restore degraded forests and substantially increase afforestation and reforestation globally"]
["15.3","By 2030, combat desertification, restore degraded land and soil, including land affected by desertification, drought and floods, and strive to achieve a land degradation-neutral world"]
["15.4","By 2030, ensure the conservation of mountain ecosystems, including their biodiversity, in order to enhance their capacity to provide benefits that are essential for sustainable development"]
["15.5","Take urgent and significant action to reduce the degradation of natural habitats, halt the loss of biodiversity and, by 2020, protect and prevent the extinction of threatened species"]
["15.6","Promote fair and equitable sharing of the benefits arising from the utilization of genetic resources and promote appropriate access to such resources, as internationally agreed"]
["15.7","Take urgent action to end poaching and trafficking of protected species of flora and fauna and address both demand and supply of illegal wildlife products"]
["15.8","By 2020, introduce measures to prevent the introduction and significantly reduce the impact of invasive alien species on land and water ecosystems and control or eradicate the priority species"]
["15.9","By 2020, integrate ecosystem and biodiversity values into national and local planning, development processes, poverty reduction strategies and accounts"]
["15.a","Mobilize and significantly increase financial resources from all sources to conserve and sustainably use biodiversity and ecosystems"]
["15.b","Mobilize significant resources from all sources and at all levels to finance sustainable forest management and provide adequate incentives to developing countries to advance such management, including for conservation and reforestation"]
["15.c","Enhance global support for efforts to combat poaching and trafficking of protected species, including by increasing the capacity of local communities to pursue sustainable livelihood opportunities"]
["16","Promote peaceful and inclusive societies for sustainable development, provide access to justice for all and build effective, accountable and inclusive institutions at all levels"]
["16.1","Significantly reduce all forms of violence and related death rates everywhere"]
["16.2","End abuse, exploitation, trafficking and all forms of violence against and torture of children"]
["16.3","Promote the rule of law at the national and international levels and ensure equal access to justice for all"]
["16.4","By 2030, significantly reduce illicit financial and arms flows, strengthen the recovery and return of stolen assets and combat all forms of organized crime"]
["16.5","Substantially reduce corruption and bribery in all their forms"]
["16.6","Develop effective, accountable and transparent institutions at all levels"]
["16.7","Ensure responsive, inclusive, participatory and representative decision-making at all levels"]
["16.8","Broaden and strengthen the participation of developing countries in the institutions of global governance"]
["16.9","By 2030, provide legal identity for all, including birth registration"]
["16.10","Ensure public access to information and protect fundamental freedoms, in accordance with national legislation and international agreements"]
["16.a","Strengthen relevant national institutions, including through international cooperation, for building capacity at all levels, in particular in developing countries, to prevent violence and combat terrorism and crime"]
["16.b","Promote and enforce non-discriminatory laws and policies for sustainable development"]
["17","Strengthen the means of implementation and revitalize the global partnership for sustainable development"]
["17.1","Strengthen domestic resource mobilization, including through international support to developing countries, to improve domestic capacity for tax and other revenue collection"]
["17.2","Developed countries to implement fully their official development assistance commitments, including the commitment by many developed countries to achieve the target of 0.7 per cent of gross national income for official development assistance (ODA/GNI) to developing countries and 0.15 to 0.20 per cent of ODA/GNI to least developed countries; ODA providers are encouraged to consider setting a target to provide at least 0.20 per cent of ODA/GNI to least developed countries"]
["17.3","Mobilize additional financial resources for developing countries from multiple sources"]
["17.4","Assist developing countries in attaining long-term debt sustainability through coordinated policies aimed at fostering debt financing, debt relief and debt restructuring, as appropriate, and address the external debt of highly indebted poor countries to reduce debt distress"]
["17.5","Adopt and implement investment promotion regimes for least developed countries"]
["17.6","Enhance North-South, South-South and triangular regional and international cooperation on and access to science, technology and innovation and enhance knowledge-sharing on mutually agreed terms, including through improved coordination among existing mechanisms, in particular at the United Nations level, and through a global technology facilitation mechanism"]
["17.7","Promote the development, transfer, dissemination and diffusion of environmentally sound technologies to developing countries on favourable terms, including on concessional and preferential terms, as mutually agreed"]
["17.8","Fully operationalize the technology bank and science, technology and innovation capacity-building mechanism for least developed countries by 2017 and enhance the use of enabling technology, in particular information and communications technology"]
["17.9","Enhance international support for implementing effective and targeted capacity-building in developing countries to support national plans to implement all the Sustainable Development Goals, including through North-South, South-South and triangular cooperation"]
["17.10","Promote a universal, rules-based, open, non-discriminatory and equitable multilateral trading system under the World Trade Organization, including through the conclusion of negotiations under its Doha Development Agenda"]
["17.11","Significantly increase the exports of developing countries, in particular with a view to doubling the least developed countries’ share of global exports by 2020"]
["17.12","Realize timely implementation of duty-free and quota-free market access on a lasting basis for all least developed countries, consistent with World Trade Organization decisions, including by ensuring that preferential rules of origin applicable to imports from least developed countries are transparent and simple, and contribute to facilitating market access"]
["17.13","Enhance global macroeconomic stability, including through policy coordination and policy coherence"]
["17.14","Enhance policy coherence for sustainable development"]
["17.15","Respect each country’s policy space and leadership to establish and implement policies for poverty eradication and sustainable development"]
["17.16","Enhance the Global Partnership for Sustainable Development, complemented by multi-stakeholder partnerships that mobilize and share knowledge, expertise, technology and financial resources, to support the achievement of the Sustainable Development Goals in all countries, in particular developing countries"]
["17.17","Encourage and promote effective public, public-private and civil society partnerships, building on the experience and resourcing strategies of partnerships"]
["17.18","By 2020, enhance capacity-building support to developing countries, including for least developed countries and small island developing States, to increase significantly the availability of high-quality, timely and reliable data disaggregated by income, gender, age, race, ethnicity, migratory status, disability, geographic location and other characteristics relevant in national contexts"]
["17.19","By 2030, build on existing initiatives to develop measurements of progress on sustainable development that complement gross domestic product, and support statistical capacity-building in developing countries"]
["1.0"]
["2.0"]
["3.0"]
["4.0"]
["5.0"]
["6.0"]
["7.0"]
["8.0"]
["9.0"]
["10.0"]
["11.0"]
["12.0"]
["13.0"]
["14.0"]
["15.0"]
["16.0"]
["17.0"]

{"sheet":"channel_codes","index":24,"n_rows":448,"n_cols":23,"rows_kept":448,"cut":false,"hidden":true,"merged":[]}
["code","AcronymE","code_name_e","Acronymf","code_name_f","ParentCode","Modality",null,"TOSSD","code","Acronym e","code name e","Acronym f","code name f","Parent code","pillar",null,null,"Script for CRS list "]
[10000," ","Public Sector Institutions"," ","Institutions du secteur public",10000,"NULL",null,null,10000," ","PUBLIC SECTOR INSTITUTIONS"," ","PUBLIC SECTOR INSTITUTIONS",10000,null,null,null,"(I miss the generic codes !?!)"]
[11000," ","Donor Government"," ","Gouvernement du donneur",10000,"NULL",null,null,11000," ","Donor Government"," ","Donor Government",10000]
[11001,"NULL","Central Government (donor govt.)","NULL","Gouvernment central (gouv. du donneur)",11000,"NULL",null,null,11001," ","Central Government"," ","Central Government",11000,null,null,null,"SELECT "]
[11002,"NULL","Local Government (donor govt.)","NULL","Gouvernment local (gouv. du donneur)",11000,"NULL",null,null,11002," ","Local Government"," ","Local Government",11000,null,null,null,"--* ,","AcronymE ,","Name as code_name_e,","Acronymf,","nom as code_name_f,"]
[11003,"NULL","Public corporations (donor govt.)","NULL","Entreprise publique (gouv. du donneur)",11000,"NULL",null,null,11003," ","Public corporations"," ","Public corporations",11000,null,null,null,"LC.ChannelCode as code, "]
[11004,"NULL","Other public entities in donor country","NULL","Autres entité publique dans le pays donneur",11000,"NULL",null,null,11004," ","Other public entities in donor country"," ","Other public entities in donor country",11000,null,null,null,"CG.GroupID as ParentCode, "]
[12000," ","Recipient Government"," ","Gouvernement du bénéficiaire",10000,"NULL",null,null,12000," ","Recipient Government"," ","Recipient Government",10000,null,null,null,"Modality"]
[12001,"NULL","Central Government (recipient govt.)","NULL","Gouvernment central (gouv. du bénéficiaire)",12000,"NULL",null,null,12001," ","Central Government"," ","Central Government",12000,null,null,null,"FROM "]
[12002,"NULL","Local Government (recipient govt.)","NULL","Gouvernment local (gouv. du bénéficiaire)",12000,"NULL",null,null,12002," ","Local Government"," ","Local Government",12000,null,null,null,"DCD_Prod.[DCD].[LookupChannel] LC"]
[12003,"NULL","Public corporations (recipient govt.)","NULL","Entreprise publique (gouv. du bénéficiaire)",12000,"NULL",null,null,12003," ","Public corporations"," ","Public corporations",12000,null,null,null,"INNER JOIN DCD_Prod.[DCD].[ChannelGroup] CG "]
[12004,"NULL","Other public entities in recipient country","NULL","Autres entité publique dans le pays bénéficiaire",12000,"NULL",null,null,12004," ","Other public entities in recipient country"," ","Other public entities in recipient country",12000,null,null,null,"on LC.ChannelCode = CG.ChannelCode "]
[13000," ","Third Country Government (Delegated co-operation)"," ","Gouvernement tiers (coopération déléguée)",10000,"NULL",null,null,13000," ","Third Country Government (Delegated co-operation)"," ","Third Country Government (Delegated co-operation)",10000,null,null,null,"WHERE "]
[20000," ","Non-Governmental Organisation (NGO) and Civil Society"," ","Organisations non gouvernementales (ONG) et société civile",20000,"NULL",null,null,20000," ","NON-GOVERNMENTAL ORGANISATIONS (NGOs) AND CIVIL SOCIETY "," ","NON-GOVERNMENTAL ORGANISATIONS (NGOs) AND CIVIL SOCIETY ",20000,null,null,null,"LC.Status not in (99) "]
[21000," ","International NGO"," ","ONG internationales",20000,"NULL",null,null,21000," ","International NGO"," ","International NGO",20000,null,null,null,"AND CG.Year = 2025 "]
[20146,"NULL","Undefined  Women’s Rights Organisation","NULL","Organisation de droits des femmes - Indéfini",20000,"pilot",null,null,21001,"AGID","Association of Geoscientists for International Development ","AGID","Association of Geoscientists for International Development ",21000,null,null,null,"ORDER BY "]
[21001,"AGID","Association of Geoscientists for International Development ","AGID","Association de géoscientifiques pour le développement international",21000,"B01",null,null,21005,"CUTS","Consumer Unity and Trust Society International ","CUTS","Consumer Unity and Trust Society International ",21000,null,null,null,"CG.GroupID, LC.ChannelCode"]
[21005,"CUTS","Consumer Unity and Trust Society International ","CUTS","Consumer Unity and Trust Society International",21000,"B01",null,null,21007,"ELCI","Environmental Liaison Centre International ","ELCI","Environmental Liaison Centre International ",21000]
[21007,"ELCI","Environmental Liaison Centre International ","CILE","Centre international de liaison pour l’environnement",21000,"B01",null,null,21011,"GCE","Global Campaign for Education ","GCE","Global Campaign for Education ",21000]
[21011,"GCE","Global Campaign for Education ","CME","Campagne mondiale pour l’éducation",21000,"B01",null,null,21013,"HAI","Health Action International ","HAI","Health Action International ",21000]
[21013,"HAI","Health Action International ","HAI","Health Action International ",21000,"B01",null,null,21016,"ICRC","International Committee of the Red Cross ","ICRC","International Committee of the Red Cross ",21000]
[21016,"ICRC","International Committee of the Red Cross ","CICR","Comité international de la Croix-Rouge ",21000,"B01",null,null,21018,"IFRCRCS","International Federation of Red Cross and Red Crescent Societies ","IFRCRCS","International Federation of Red Cross and Red Crescent Societies ",21000]
[21018,"IFRCRCS","International Federation of Red Cross and Red Crescent Societies ","FISCRCR","Fédération internationale des Sociétés de la Croix-Rouge et du Croissant-Rouge ",21000,"B01",null,null,21020," ","International HIV/AIDS Alliance "," ","International HIV/AIDS Alliance ",21000]
[21020,"NULL","International HIV/AIDS Alliance ","NULL","International HIV/AIDS Alliance",21000,"B01",null,null,21022,"INAFI","International Network for Alternative Financial Institutions ","INAFI","International Network for Alternative Financial Institutions ",21000]
[21022,"INAFI","International Network for Alternative Financial Institutions ","INAFI","Réseau international d’institutions financières",21000,"B01",null,null,21023,"IPPF","International Planned Parenthood Federation ","IPPF","International Planned Parenthood Federation ",21000]
[21023,"IPPF","International Planned Parenthood Federation ","IPPF","Fédération internationale pour le planning familial",21000,"B01",null,null,21024,"IPS","Inter Press Service, International Association ","IPS","Inter Press Service, International Association ",21000]
[21024,"IPS","Inter Press Service, International Association ","IPS","Inter Press Service, International Association",21000,"B01",null,null,21029,"MSF","Doctors Without Borders","MSF","Doctors Without Borders",21000]
[21029,"MSF","Doctors Without Borders","MSF","Médecins Sans Frontières",21000,"B01",null,null,21031,"PANOS","PANOS Institute ","PANOS","PANOS Institute ",21000]
[21031,"PANOS","PANOS Institute ","PANOS","Institut PANOS",21000,"B01",null,null,21032,"PSI","Population Services International ","PSI","Population Services International ",21000]
[21032,"PSI","Population Services International ","PSI","Organisation internationale pour les services en matière de population",21000,"B01",null,null,21034,"UNION","International Union Against Tuberculosis and Lung Disease ","UNION","International Union Against Tuberculosis and Lung Disease ",21000]
[21034,"UNION","International Union Against Tuberculosis and Lung Disease ","UNION","Union Internationale Contre la Tuberculose et les Maladies Respiratoires ",21000,"B01",null,null,21036,"WUS","World University Service ","WUS","World University Service ",21000]
[21036,"WUS","World University Service ","EUM","Entraide universitaire mondiale",21000,"B01",null,null,21038," ","International Alert"," ","International Alert",21000]
[21038,"NULL","International Alert","NULL","International Alert",21000,"B01",null,null,21041,"SID","Society for International Development","SID","Society for International Development",21000]
[21041,"SID","Society for International Development","SDI","Société pour le développement international",21000,"B01",null,null,21042,"Interpeace","International Peacebuilding Alliance","Interpeace","International Peacebuilding Alliance",21000]
[21042,"Interpeace","International Peacebuilding Alliance","Interpeace","Alliance internationale pour la consolidation de la paix",21000,"B01",null,null,21044,"ICCIDD","International Council for the Control of Iodine Deficiency Disorders","ICCIDD","International Council for the Control of Iodine Deficiency Disorders",21000]
[21044,"ICCIDD","International Council for the Control of Iodine Deficiency Disorders","ICCIDD","Conseil international pour la lutte contre les troubles dus à une carence en iode",21000,"B01",null,null,21045,"AMREF","African Medical and Research Foundation ","AMREF","African Medical and Research Foundation ",21000]
[21045,"AMREF","African Medical and Research Foundation ","AMREF","Fondation africaine pour la médecine et la recherche",21000,"B01",null,null,21046,"ACORD","Agency for Cooperation and Research in Development ","ACORD","Agency for Cooperation and Research in Development ",21000]
[21046,"ACORD","Agency for Cooperation and Research in Development ","ACORD","Association de Coopération et de Recherche pour le Développement",21000,"B01",null,null,21053," ","IPAS-Protecting Women’s Health, Advancing Women’s Reproductive Rights"," ","IPAS-Protecting Women’s Health, Advancing Women’s Reproductive Rights",21000]
[21053,"NULL","IPAS-Protecting Women’s Health, Advancing Women’s Reproductive Rights","NULL","IPAS-Protecting Women's Health, Advancing Women's Reproductive Rights",21000,"B01",null,null,21054,"LPI","Life and Peace Institute","LPI","Life and Peace Institute",21000]
[21054,"LPI","Life and Peace Institute","IVP","Institut Vie et Paix",21000,"B01",null,null,21057,"ICTJ","International Centre for Transitional Justice","ICTJ","International Centre for Transitional Justice",21000]
[21057,"ICTJ","International Centre for Transitional Justice","ICTJ","Centre International pour la Justice Transitionnelle",21000,"B01",null,null,21061,"IRCT","International Rehabilitation Council for Torture Victims","IRCT","International Rehabilitation Council for Torture Victims",21000]
[21061,"IRCT","International Rehabilitation Council for Torture Victims","IRCT","Conseil international de réhabilitation pour les victimes de torture",21000,"B01",null,null,21062,"TNC","The Nature Conservancy","TNC","The Nature Conservancy",21000]
[21062,"TNC","The Nature Conservancy","TNC","The Nature Conservancy",21000,"B01",null,null,21063,"CI","Conservation International","CI","Conservation International",21000]
[21063,"CI","Conservation International","NULL","Conservation International",21000,"B01",null,null,21064,"CHAI","Clinton Health Access Initiative, Inc.","CHAI","Clinton Health Access Initiative, Inc.",21000]
[21064,"CHAI","Clinton Health Access Initiative, Inc.","CHAI","Initiative Clinton pour l'accès à la santé",21000,"B01",null,null,21501,"OXFAM-I","OXFAM International","OXFAM-I","OXFAM International",21000]
[21146,"NULL","International Women’s Rights Organisation","NULL","Organisation internationale de droits des femmes",21000,"pilot",null,null,21502," ","World Vision"," ","World Vision",21000]
[21501,"OXFAM-I","OXFAM International","NULL","OXFAM International",21000,"B01",null,null,21503,"FHI360","Family Health International 360","FHI360","Family Health International 360",21000]
[21502,"NULL","World Vision","NULL","World Vision",21000,"B01",null,null,21504,"IRD","International Relief and Development","IRD","International Relief and Development",21000]
[21503,"FHI360","Family Health International 360","NULL","Family Health International 360",21000,"B01",null,null,21505," ","Save the Children"," ","Save the Children",21000]
[21504,"IRD","International Relief and Development","NULL","International Relief and Development",21000,"B01",null,null,21506,"IRC","International Rescue Committee","IRC","International Rescue Committee",21000]
[21505,"NULL","Save the Children","NULL","Save the Children",21000,"B01",null,null,21507,"PACT","Pact World","PACT","Pact World",21000]
[21506,"IRC","International Rescue Committee","NULL","International Rescue Committee",21000,"B01",null,null,21508,"SEforALL","Sustainable Energy for All","SEforALL","Sustainable Energy for All",21000]
[21507,"PACT","Pact World","NULL","Pact World",21000,"B01",null,null,21509,"AC","AmplifyChange","AC","AmplifyChange",21000]
[21508,"SEforALL","Sustainable Energy for All","SEforALL","Sustainable Energy for All",21000,"B01",null,null,47035,"ENDA","Environmental Development Action in the Third World ","ENDA","Environmental Development Action in the Third World ",21000]
[21509,"AC","AmplifyChange","AC","AmplifyChange",21000,"B01",null,null,22000," ","Provider country-based NGO"," ","Provider country-based NGO",20000]
[47035,"ENDA","Environmental Development Action in the Third World ","ENDA","Environnement et développement du Tiers-monde",21000,"B01",null,null,21006," ","Development Gateway Foundation "," ","Development Gateway Foundation ",22000]
[22000," ","Donor country-based NGO"," ","ONG basée dans un pays donneur",20000,"NULL",null,null,21008,"Eurostep","Eurostep ","Eurostep","Eurostep ",22000]
[21006,"NULL","Development Gateway Foundation ","NULL","Development Gateway Foundation",22000,"B01",null,null,21014,"HURIDOCS","Human Rights Information and Documentation Systems ","HURIDOCS","Human Rights Information and Documentation Systems ",22000]
[21008,"Eurostep","Eurostep ","Eurostep","Eurostep",22000,"B01",null,null,21015,"ICRA","International Catholic Rural Association ","ICRA","International Catholic Rural Association ",22000]
[21014,"HURIDOCS","Human Rights Information and Documentation Systems ","HURIDOCS","Systèmes d’Information et de Documentation sur les Droits de l’Homme",22000,"B01",null,null,21019,"IFS","International Federation of Settlements and Neighbourhood Centres ","IFS","International Federation of Settlements and Neighbourhood Centres ",22000]
[21015,"ICRA","International Catholic Rural Association ","ICRA","Association internationale rurale catholique",22000,"B01",null,null,21025,"ISC","International Seismological Centre ","ISC","International Seismological Centre ",22000]
[21019,"IFS","International Federation of Settlements and Neighbourhood Centres ","IFS","Fédération internationale des centres sociaux et communautaires",22000,"B01",null,null,21026,"ISHR","International Service for Human Rights ","ISHR","International Service for Human Rights ",22000]
[21025,"ISC","International Seismological Centre ","ISC","Centre séismologique international",22000,"B01",null,null,21027,"ITF","ITF Enhancing Human Security","ITF","ITF Enhancing Human Security",22000]
[21026,"ISHR","International Service for Human Rights ","ISHR","Service International pour les Droits de l’Homme",22000,"B01",null,null,21033,"TI","Transparency International ","TI","Transparency International ",22000]
[21027,"ITF","ITF Enhancing Human Security","ITF","ITF Améliorer la sécurité humaine",22000,"B01",null,null,21035,"OMCT","World Organisation Against Torture ","OMCT","World Organisation Against Torture ",22000]
[21033,"TI","Transparency International ","TI","Transparency International",22000,"B01",null,null,21037,"WWB","Women's World Banking","WWB","Women's World Banking",22000]
[21035,"OMCT","World Organisation Against Torture ","OMCT","Organisation mondiale contre la torture",22000,"B01",null,null,21040,"IWTC","International Women's Tribune Centre","IWTC","International Women's Tribune Centre",22000]
[21037,"WWB","Women's World Banking","WWB","Banque mondiale des femmes",22000,"B01",null,null,21047," ","AgriCord"," ","AgriCord",22000]
[21040,"IWTC","International Women's Tribune Centre","CTIF","Centre de la tribune internationale de la femme",22000,"B01",null,null,21049,"ECDPM","European Centre for Development Policy Management ","ECDPM","European Centre for Development Policy Management ",22000]
[21047,"NULL","AgriCord","NULL","AgriCord",22000,"B01",null,null,21050," ","Geneva Call"," ","Geneva Call",22000]
[21049,"ECDPM","European Centre for Development Policy Management ","ECDPM","Centre européen de gestion de politiques de développement",22000,"B01",null,null,21058,"ICG","International Crisis Group","ICG","International Crisis Group",22000]
[21050,"NULL","Geneva Call","NULL","Appel de Genève",22000,"B01",null,null,21060,"APT","Association for the Prevention of Torture","APT","Association for the Prevention of Torture",22000]
[21058,"ICG","International Crisis Group","ICG","International Crisis Group",22000,"B01",null,null,22501,"OXFAM","OXFAM - provider country office","OXFAM","OXFAM - provider country office",22000]
[21060,"APT","Association for the Prevention of Torture","APT","Association pour la prévention de la torture",22000,"B01",null,null,22502," ","Save the Children - donor country office"," ","Save the Children - donor country office",22000]
[22146,"NULL","National Women’s Rights Organisation","NULL","Organisation nationale de droits des femmes",22000,"pilot",null,null,47042,"FIT","Foundation for International Training ","FIT","Foundation for International Training ",22000]
[22501,"OXFAM","OXFAM - provider country office","NULL","OXFAM - provider country office",22000,"B01",null,null,23000," ","Developing country-based NGO"," ","Developing country-based NGO",20000]
[22502,"NULL","Save the Children - donor country office","NULL","Save the Children - donor country office",22000,"B01",null,null,21003,"CLASCO","Latin American Council for Social Sciences ","CLASCO","Latin American Council for Social Sciences ",23000]
[47042,"FIT","Foundation for International Training ","FIT","Fondation pour la formation internationale dans les pays du tiers monde",22000,"B01",null,null,21010,"FAWE","Forum for African Women Educationalists ","FAWE","Forum for African Women Educationalists ",23000]
[23000," ","Developing country-based NGO"," ","ONG basée dans un pays en développement",20000,"NULL",null,null,21028,"IUEF","International University Exchange Fund - IUEF Stip. in Africa and Latin America","IUEF","International University Exchange Fund - IUEF Stip. in Africa and Latin America",23000]
[21003,"CLASCO","Latin American Council for Social Sciences ","CLASCO","Conseil latino-américain des sciences sociales",23000,"B01",null,null,21030,"PAID","Pan African Institute for Development","PAID","Pan African Institute for Development",23000]
[21010,"FAWE","Forum for African Women Educationalists ","FAWE","Forum des éducatrices africaines",23000,"B01",null,null,21048,"AAU","Association of African Universities","AAU","Association of African Universities",23000]
[21028,"IUEF","International University Exchange Fund - IUEF Stip. in Africa and Latin America","FIEU","Fonds international d’échanges universitaires - Échanges intéressant l’Afrique et l’Amérique latine",23000,"B01",null,null,21051,"ISPEC","Institut Supérieur Panafricaine d’Economie Coopérative","ISPEC","Institut Supérieur Panafricaine d’Economie Coopérative",23000]
[21030,"PAID","Pan African Institute for Development","IPD","Institut panafricain pour le développement",23000,"B01",null,null,21055,"RATN","Regional AIDS Training Network","RATN","Regional AIDS Training Network",23000]
[21048,"AAU","Association of African Universities","AUA","Association des universités africaines",23000,"B01",null,null,21059,"ASF","Africa Solidarity Fund","ASF","Africa Solidarity Fund",23000]
[21051,"ISPEC","Institut Supérieur Panafricaine d’Economie Coopérative","ISPEC","Institut supérieur panafricaine d’economie coopérative",23000,"B01",null,null,23501," ","National Red Cross and Red Crescent Societies"," ","National Red Cross and Red Crescent Societies",23000]
[21055,"RATN","Regional AIDS Training Network","RRFS","Réseau régional de formation sur le SIDA",23000,"B01",null,null,30000," ","Public-Private Partnerships (PPP) and Networks"," ","Public-Private Partnerships (PPP) and Networks",30000]
[21059,"ASF","Africa Solidarity Fund","ASF","Fonds solidaire pour l'Afrique",23000,"B01",null,null,31000," ","Public-Private Partnerships (PPP)"," ","Public-Private Partnerships (PPP)",30000]
[23146,"NULL","Local Women’s Rights Organisation","NULL","Organisation locale de droits des femmes",23000,"pilot",null,null,21056,"REEEP","Renewable Energy and Energy Efficiency Partnership","REEEP","Renewable Energy and Energy Efficiency Partnership",31000]
[23501,"NULL","National Red Cross and Red Crescent Societies","NULL","Sociétés nationales de la Croix-Rouge et du Croissant-Rouge",23000,"B01",null,null,30001,"GAIN","Global Alliance for Improved Nutrition ","GAIN","Global Alliance for Improved Nutrition ",31000]
[21056,"REEEP","Renewable Energy and Energy Efficiency Partnership","REEEP","Partenariat pour les énergies renouvelables et l'efficience énergétique",31000,"B01",null,null,30003,"GeSCI","Global e-Schools and Communities Initiative ","GeSCI","Global e-Schools and Communities Initiative ",31000]
[30000," ","Public-Private Partnerships (PPP) and Networks"," ","Partenariats public-privé (PPP) et réseaux",30000,"NULL",null,null,30004,"GWP","Global Water Partnership ","GWP","Global Water Partnership ",31000]
[31000," ","Public-Private Partnerships (PPP)"," ","Partenariats public-privé (PPP)",30000,"NULL",null,null,30005,"IAVI","International AIDS Vaccine Initiative ","IAVI","International AIDS Vaccine Initiative ",31000]
[30001,"GAIN","Global Alliance for Improved Nutrition ","GAIN","Alliance mondiale pour une meilleure nutrition ",31000,"B01",null,null,30006,"IPM","International Partnership on Microbicides ","IPM","International Partnership on Microbicides ",31000]
[30003,"GeSCI","Global e-Schools and Communities Initiative ","GeSCI","Initiative mondiale en faveur de l’informatique dans les écoles et dans les communautés ",31000,"B01",null,null,30007,"GAID","Global Alliance for ICT and Development","GAID","Global Alliance for ICT and Development",31000]
[30004,"GWP","Global Water Partnership ","GWP","Partenariat mondial pour l'eau",31000,"B01",null,null,30008," ","Cities Alliance"," ","Cities Alliance",31000]
[30005,"IAVI","International AIDS Vaccine Initiative ","IAVI","Initiative internationale pour un vaccin contre le SIDA",31000,"B01",null,null,30009,"SAS","Small Arms Survey","SAS","Small Arms Survey",31000]
[30006,"IPM","International Partnership on Microbicides ","IPM","Partenariat international pour des microbicides ",31000,"B01",null,null,30011,"IUCN","International Union for the Conservation of Nature","IUCN","International Union for the Conservation of Nature",31000]
[30007,"GAID","Global Alliance for ICT and Development","GAID","Alliance mondiale pour les TIC et le développement",31000,"B01",null,null,30012,"GCPF","Global Climate Partnership Fund","GCPF","Global Climate Partnership Fund",31000]
[30008,"NULL","Cities Alliance","NULL","Alliance pour les villes",31000,"B01",null,null,30013,"MEF","Microfinance Enhancement Facility","MEF","Microfinance Enhancement Facility",31000]
[30009,"SAS","Small Arms Survey","SAS","Small Arms Survey",31000,"B01",null,null,30014,"REGMIFA","Regional Micro, Small and Medium Enterprise Investment Fund for Sub-Saharan Africa","REGMIFA","Regional Micro, Small and Medium Enterprise Investment Fund for Sub-Saharan Africa",31000]
[30011,"IUCN","International Union for the Conservation of Nature","UICN","Union internationale pour la conservation de la nature",31000,"B01",null,null,30015,"GEEREF","Global Energy Efficiency and Renewable Energy Fund","GEEREF","Global Energy Efficiency and Renewable Energy Fund",31000]
[30012,"GCPF","Global Climate Partnership Fund","GCPF","Global Climate Partnership Fund",31000,"B01",null,null,30016,"EFSE","European Fund for Southeast Europe","EFSE","European Fund for Southeast Europe",31000]
[30013,"MEF","Microfinance Enhancement Facility","MEF","Mécanisme de soutien au microfinancement",31000,"B01",null,null,30017,"SANAD","SANAD Fund for Micro, Small and Medium Enterprises","SANAD","SANAD Fund for Micro, Small and Medium Enterprises",31000]
[30014,"REGMIFA","Regional Micro, Small and Medium Enterprise Investment Fund for Sub-Saharan Africa","REGMIFA","Fonds régional d’investissement pour les très petites, petites et moyennes entreprises d’Afrique subsaharienne",31000,"B01",null,null,30018,"AFC","Africa Finance Corporation","AFC","Africa Finance Corporation",31000]
[30015,"GEEREF","Global Energy Efficiency and Renewable Energy Fund","GEEREF","Fonds mondial pour la promotion de l'efficacité énergétique et des énergies renouvelables",31000,"B01",null,null,30019,"TCX","Currency Exchange Fund N.V.","TCX","Currency Exchange Fund N.V.",31000]
[30016,"EFSE","European Fund for Southeast Europe","EFSE","European Fund for Southeast Europe",31000,"B01",null,null,30020,"GEEREF II","Global Energy Efficiency and Renewable Energy Fund II","GEEREF II","Global Energy Efficiency and Renewable Energy Fund II",31000]
[30017,"SANAD","SANAD Fund for Micro, Small and Medium Enterprises","SANAD","SANAD Fund for Micro, Small and Medium Enterprises",31000,"B01",null,null,31006,"CEPI","Coalition for Epidemic Preparedness Innovations","CEPI","Coalition for Epidemic Preparedness Innovations",31000]
[30018,"AFC","Africa Finance Corporation","AFC","Corporation Financière Africaine",31000,"B01",null,null,47043," ","Global Crop Diversity Trust "," ","Global Crop Diversity Trust ",31000]
[30019,"TCX","Currency Exchange Fund N.V.","TCX","Currency Exchange Fund N.V.",31000,"B01",null,null,32000," ","Networks"," ","Networks",30000]
[30020,"GEEREF II","Global Energy Efficiency and Renewable Energy Fund II","GEEREF II","Global Energy Efficiency and Renewable Energy Fund II",31000,"B01",null,null,21017,"ICTSD","International Centre for Trade and Sustainable Development ","ICTSD","International Centre for Trade and Sustainable Development ",32000]
[31006,"CEPI","Coalition for Epidemic Preparedness Innovations","CIPE","Coalition pour les innovations en matière de préparation aux épidémies",31000,"B01",null,null,21043,"AWEPA","European Parliamentarians for Africa","AWEPA","European Parliamentarians for Africa",32000]
[47043,"NULL","Global Crop Diversity Trust ","NULL","Global Crop Diversity Trust",31000,"B01",null,null,31001,"GDN","Global Development Network","GDN","Global Development Network",32000]
[32000," ","Networks"," ","Réseaux",30000,"NULL",null,null,31002,"GKP","Global Knowledge Partnership","GKP","Global Knowledge Partnership",32000]
[21043,"AWEPA","European Parliamentarians for Africa","AWEPA","Association des parlementaires d’Europe pour l’Afrique",32000,"B01",null,null,31003,"ILC","International Land Coalition","ILC","International Land Coalition",32000]
[31001,"GDN","Global Development Network","GDN","Réseau de développement mondial",32000,"B01",null,null,31004,"EITI","Extractive Industries Transparency Initiative International Secretariat","EITI","Extractive Industries Transparency Initiative International Secretariat",32000]
[31002,"GKP","Global Knowledge Partnership","GKP","Alliance mondiale pour le savoir ",32000,"B01",null,null,31005,"PNoWB","Parliamentary Network on the World Bank","PNoWB","Parliamentary Network on the World Bank",32000]
[31003,"ILC","International Land Coalition","ILC","Coalition internationale pour l'accès à la terre ",32000,"B01",null,null,31007,"DNDi","Drugs for Neglected Diseases initative","DNDi","Drugs for Neglected Diseases initative",32000]
[31004,"EITI","Extractive Industries Transparency Initiative International Secretariat","ITIE","Secrétariat de l'Initiative pour la transparence dans les industries extractives",32000,"B01",null,null,31008,"FIND","Foundation for Innovative New Diagnostics","FIND","Foundation for Innovative New Diagnostics",32000]
[31005,"PNoWB","Parliamentary Network on the World Bank","RPsBM","Réseau parlementaire sur la Banque mondaile",32000,"B01",null,null,47010,"CAPAM","Commonwealth Agency for Public Administration and Management ","CAPAM","Commonwealth Agency for Public Administration and Management ",32000]
[31007,"DNDi","Drugs for Neglected Diseases initative","DNDi","Initiative médicaments contres les maladies négligées",32000,"B01",null,null,47028,"CPTM","Commonwealth Partnership for Technical Management ","CPTM","Commonwealth Partnership for Technical Management ",32000]
[31008,"FIND","Foundation for Innovative New Diagnostics","FIND","Fondation pour les nouveaux diagnostics innovants",32000,"B01",null,null,40000," ","Multilateral Organisations"," ","Multilateral Organisations",40000]
[47010,"CAPAM","Commonwealth Agency for Public Administration and Management ","CAPAM","Agence du Commonwealth pour l'administration et la gestion publiques",32000,"B01",null,null,41000," ","United Nations (UN) agency, fund or commission"," ","United Nations (UN) agency, fund or commission",40000]
[47028,"CPTM","Commonwealth Partnership for Technical Management ","CPTM","Partenariat pour la gestion technique (Commonwealth)",32000,"B01",null,null,41100," ","UN entities (core contributions reportable in full)"," ","UN entities (core contributions reportable in full)",41000]
[40000," ","Multilateral Organisations"," ","Organisations multilatérales",40000,"NULL",null,null,21002,"AITIC","Agency for International Trade Information and Co-operation ","AITIC","Agency for International Trade Information and Co-operation ",47000]
[41000," ","United Nations (UN) agency, fund or commission"," ","Agence, fonds ou commission des Nations Unies (ONU)",40000,"NULL",null,null,30010,"UNITAID","International drug purchase facility","UNITAID","International drug purchase facility",41100]
[41100," ","UN entities (core contributions reportable in full)"," ","Entités des Nations Unies (contributions aux budgets reguliers à déclarer dans leur intégralité)",41000,"NULL",null,null,41101,"UNCCD","Convention to Combat Desertification ","UNCCD","Convention to Combat Desertification ",41100]
[30010,"UNITAID","International drug purchase facility","UNITAID","Facilité internationale d'achat de médicaments",41100,"B021",null,null,41102,"DLCO-EA","Desert Locust Control Organisation for Eastern Africa ","DLCO-EA","Desert Locust Control Organisation for Eastern Africa ",47000]
[41101,"UNCCD","Convention to Combat Desertification ","CCD ","Convention sur la lutte contre la désertification ",41100,"B021",null,null,41103,"ECA","Economic Commission for Africa ","ECA","Economic Commission for Africa ",41100]
[41103,"ECA","Economic Commission for Africa ","CEA","Commission économique pour l'Afrique",41100,"B021",null,null,41104,"ECLAC","Economic Commission for Latin America and the Caribbean","ECLAC","Economic Commission for Latin America and the Caribbean",41300]
[41107,"IAEA-TCF","International Atomic Energy Agency (Contributions to Technical Cooperation Fund Only)","AIEA-FTC","Agence internationale de l'énergie atomique (Contributions au Fonds de Coopération Technique uniquement)",41100,"B022",null,null,41105,"ESCWA","Economic and Social Commission for Western Asia","ESCWA","Economic and Social Commission for Western Asia",41300,21]
[41108,"IFAD","International Fund for Agricultural Development ","FIDA","Fonds international de développement agricole",41100,"B021",null,null,41106,"ESCAP","Economic and Social Commission for Asia and the Pacific ","ESCAP","Economic and Social Commission for Asia and the Pacific ",41300]
[41110,"UNAIDS","Joint United Nations Programme on HIV/AIDS ","ONUSIDA","Programme commun des Nations Unies sur le VIH/SIDA",41100,"B021",null,null,41107,"IAEA-TCF","International Atomic Energy Agency (Contributions to Technical Cooperation Fund Only)","IAEA-TCF","International Atomic Energy Agency (Contributions to Technical Cooperation Fund Only)",41100,21]
[41111,"UNCDF","United Nations Capital Development Fund ","FENU","Fonds d’équipement des Nations Unies ",41100,"B021",null,null,41108,"IFAD","International Fund for Agricultural Development ","IFAD","International Fund for Agricultural Development ",41100,21]
[41112,"UNCTAD","United Nations Conference on Trade and Development ","CNUCED","Conférence des Nations Unies sur le commerce et le développement",41100,"B021",null,null,41110,"UNAIDS","Joint United Nations Programme on HIV/AIDS ","UNAIDS","Joint United Nations Programme on HIV/AIDS ",41100,22]
[41114,"UNDP","United Nations Development Programme ","PNUD","Programme des Nations Unies pour le développement",41100,"B021",null,null,41111,"UNCDF","United Nations Capital Development Fund ","UNCDF","United Nations Capital Development Fund ",41100,21]
[41116,"UNEP","United Nations Environment Programme ","PNUE","Programme des Nations Unies pour l'environnement",41100,"B021",null,null,41112,"UNCTAD","United Nations Conference on Trade and Development ","UNCTAD","United Nations Conference on Trade and Development ",41100,21]
[41119,"UNFPA","United Nations Population Fund ","UNFPA","Fonds des Nations Unies pour la population",41100,"B021",null,null,41114,"UNDP","United Nations Development Programme ","UNDP","United Nations Development Programme ",41100,21]
[41120,"UN Habitat","United Nations Human Settlement Programme ","UN Habitat","Programme des Nations Unies pour les établissements humains",41100,"B021",null,null,41116,"UNEP","United Nations Environment Programme ","UNEP","United Nations Environment Programme ",41100,22]
[41121,"UNHCR","United Nations Office of the High Commissioner for Refugees","HCR","Haut Commissariat des Nations Unies pour les réfugiés",41100,"B021",null,null,41119,"UNFPA","United Nations Population Fund ","UNFPA","United Nations Population Fund ",41100,21]
[41122,"UNICEF","United Nations Children’s Fund ","UNICEF","Fonds des Nations Unies pour l'enfance",41100,"B021",null,null,41120,"UN Habitat","United Nations Human Settlement Programme ","UN Habitat","United Nations Human Settlement Programme ",41100]
[41123,"UNIDO","United Nations Industrial Development Organisation ","ONUDI","Organisation des Nations Unies pour le développement industriel",41100,"B021",null,null,41121,"UNHCR","United Nations Office of the High Commissioner for Refugees","UNHCR","United Nations Office of the High Commissioner for Refugees",41100,21]
[41125,"UNITAR","United Nations Institute for Training and Research ","UNITAR","Institut des Nations Unies pour la formation et la recherche ",41100,"B021",null,null,41122,"UNICEF","United Nations Children’s Fund ","UNICEF","United Nations Children’s Fund ",41100,21]
[41127,"UNOCHA","United Nations Office of Co-ordination of Humanitarian Affairs ","OCHA","Bureau des Nations Unies pour la coordination de l'assistance humanitaire",41100,"B021",null,null,41123,"UNIDO","United Nations Industrial Development Organisation ","UNIDO","United Nations Industrial Development Organisation ",41100,21]
[41129,"UNRISD","United Nations Research Institute for Social Development ","UNRISD","Institut de recherche des Nations Unies pour le développement social ",41100,"B021",null,null,41125,"UNITAR","United Nations Institute for Training and Research ","UNITAR","United Nations Institute for Training and Research ",41100]
[41130,"UNRWA","United Nations Relief and Works Agency for Palestine Refugees in the Near East","UNRWA","Office de secours et de travaux des Nations Unies pour les réfugiés de Palestine dans le Proche-Orient",41100,"B021",null,null,41126,"UNMAS","United Nations Mine Action Service ","UNMAS","United Nations Mine Action Service ",41600]
[41131,"UNSSC","United Nations System Staff College ","UNSSC","Ecole des cadres du système des Nations Unies",41100,"B021",null,null,41127,"UNOCHA","United Nations Office of Co-ordination of Humanitarian Affairs ","UNOCHA","United Nations Office of Co-ordination of Humanitarian Affairs ",41100]
[41134,"UNU","United Nations University (including Endowment Fund) ","UNU","Université des Nations Unies (y compris le Fonds de dotation)",41100,"B021",null,null,41128,"UNODC","United Nations Office on Drugs and Crime ","UNODC","United Nations Office on Drugs and Crime ",41300,22]
[41135,"UNV","United Nations Volunteers ","UNV","Programme des volontaires des Nations Unies ",41100,"B021",null,null,41129,"UNRISD","United Nations Research Institute for Social Development ","UNRISD","United Nations Research Institute for Social Development ",41100]
[41140,"WFP","World Food Programme ","PAM","Programme alimentaire mondial",41100,"B021",null,null,41130,"UNRWA","United Nations Relief and Works Agency for Palestine Refugees in the Near East","UNRWA","United Nations Relief and Works Agency for Palestine Refugees in the Near East",41100,21]
[41143,"WHO-CVCA","World Health Organisation - core voluntary contributions account","OMS-CVSOD","Organisation mondiale de la santé - compte de contributions volontaires sans objet désigné",41100,"B021",null,null,41131,"UNSSC","United Nations System Staff College ","UNSSC","United Nations System Staff College ",41100]
[41144,"ILO-RBSA","International Labour Organisation - Regular Budget Supplementary Account","OIT-CSBO","Organisation internationale du Travail - Compte supplémentaire du budget ordinaire",41100,"B021",null,null,41132,"UNSCN","United Nations System Standing Committee on Nutrition ","UNSCN","United Nations System Standing Committee on Nutrition ",41600]
[41145,"IMO-TCF","International Maritime Organization - Technical Co-operation Fund","OMI-PICT","Organisation maritime internationale - Programme intégré de coopération technique",41100,"B022",null,null,41133,"UNSIA","United Nations Special Initiative on Africa ","UNSIA","United Nations Special Initiative on Africa ",41600]
[41146,"UNWOMEN","United Nations Entity for Gender Equality and the Empowerment of Women","ONU Femmes","Entité des Nations Unies pour l'égalité des sexes et l'autonomisation de la femme",41100,"B021",null,null,41134,"UNU","United Nations University (including Endowment Fund) ","UNU","United Nations University (including Endowment Fund) ",41100]
[41149,"UNDCO","United Nations Development Coordination Office","UNDCO","Bureau de la coordination des activités de développement des Nations Unies",41100,"B021",null,null,41135,"UNV","United Nations Volunteers ","UNV","United Nations Volunteers ",41100]
[41320,"UN-TBLDC","Technology Bank for Least Developed Countries","UN-TBLDC","Banque de Technologies en faveur des Pays les Moins Avancés",41100,"B021",null,null,41136,"UNVFD","United Nations Voluntary Fund on Disability ","UNVFD","United Nations Voluntary Fund on Disability ",41600]
[45001,"WTO-ITC","World Trade Organisation - International Trade Centre ","OMC-CCI","Centre du commerce international de l'Organisation mondiale du commerce",41100,"B021",null,null,41137,"UNVFTC","United Nations Voluntary Fund for Technical Co-operation in the Field of Human Rights","UNVFTC","United Nations Voluntary Fund for Technical Co-operation in the Field of Human Rights",41600]
[45002,"WTO-ACWL","World Trade Organisation - Advisory Centre on WTO Law","OMC-CCLO","Centre consultatif sur la législation de l'Organisation mondiale du commerce",41100,"B021",null,null,41138,"UNVFVT","United Nations Voluntary Fund for Victims of Torture ","UNVFVT","United Nations Voluntary Fund for Victims of Torture ",41600]
[45003,"WTO-GTF","World Trade Organisation Global Trust Fund ","OMC-FGAS","Organisation mondiale du commerce - Fonds global d'affectation spéciale",41100,"B021",null,null,47153,"ACC","IFAD Core additional climate contributions","ACC","IFAD Core additional climate contributions",41100,21]
[47066,"IOM","International Organisation for Migration ","OIM","Organisation internationale des migrations ",41100,"B021",null,null,41200," ","UN entities (core contributions reportable in TOSSD only)"," ","UN entities (core contributions reportable in TOSSD only)",41000]
[47083,"PAHO","Pan-American Health Organisation ","OPS","Organisation panaméricaine de la santé",41100,"B021",null,null,41140,"WFP","World Food Programme ","WFP","World Food Programme ",41100,21]
[47153,"ACC","IFAD Core additional climate contributions","ACC","FIDA Contributions additionnelles de base pour le climat",41100,"B02",null,null,41141,"PBF","United Nations Peacebuilding Fund","PBF","United Nations Peacebuilding Fund",41400,21]
[41201,"CTBTO","Comprehensive Nuclear Test Ban Treaty Organization",null,"Organisation du traité d'interdiction complète des essais nucléaires",41200,"NULL",null,null,41142,"UNDEF","United Nations Democracy Fund","UNDEF","United Nations Democracy Fund",41600]
[41202,"ICAO","International Civil Aviation Organization","OACI","Organisation de l'aviation civile internationale",41200,"NULL",null,null,41143,"WHO-CVCA","World Health Organisation - core voluntary contributions account","WHO-CVCA","World Health Organisation - core voluntary contributions account",41100,22]
[41203,"ICC","International Criminal Court","CPI","Cour Pénale Internationale",41200,"NULL",null,null,41144,"ILO-RBSA","International Labour Organisation - Regular Budget Supplementary Account","ILO-RBSA","International Labour Organisation - Regular Budget Supplementary Account",41100,21]
[41204,"IRMCT","International Residual Mechanism for Criminal Tribunals",null,"Mécanisme international appelé à exercer les fonctions résiduelles des Tribunaux pénaux",41200,"NULL",null,null,41145,"IMO-TCF","International Maritime Organization - Technical Co-operation Fund","IMO-TCF","International Maritime Organization - Technical Co-operation Fund",41100,22]
[41205,"ISA","International Seabed Authority",null,"Autorité internationale des fonds marins",41200,"NULL",null,null,41146,"UNWOMEN","United Nations Entity for Gender Equality and the Empowerment of Women","UNWOMEN","United Nations Entity for Gender Equality and the Empowerment of Women",41100,22]
[41206,"ITLOS","International Tribunal for the Law of the Sea","TIDM","Tribunal international du droit de la mer",41200,"NULL",null,null,41147,"CERF","Central Emergency Response Fund","CERF","Central Emergency Response Fund",41400,21]
[41207,"OPCW","Organization for the Prohibition of Chemical Weapons","OIAC","Organisation pour l'interdiction des Armes Chimiques",41200,"NULL",null,null,41148,"UNDPPA-SZA","United Nations Department of Political and Peacebuilding Affairs, Trust Fund in Support of Political Affairs","UNDPPA-SZA","United Nations Department of Political and Peacebuilding Affairs, Trust Fund in Support of Political Affairs",41500]
[41208,"DESA","Department of Economic and Social Affairs","DAES","Département des affaires économiques et sociales",41200,"NULL",null,null,41149,"UNDCO","United Nations Development Coordination Office","UNDCO","United Nations Development Coordination Office",41100,22]
[41209,"DGACM","Department of General Assembly and Conference Management",null,"Département de l'Assemblée générale et de la gestion des conférences",41200,"NULL",null,null,41150,"UNIDIR","United Nations Institute for Disarmament Research","UNIDIR","United Nations Institute for Disarmament Research",41300,22]
[41210,"DGC","Department of Global Communications",null,"Département de la communication globale",41200,"NULL",null,null,41151,"IARC","International Agency for Research on Cancer","IARC","International Agency for Research on Cancer",41300]
[41211,"DMSPC","Department of Management Strategy, Policy and Compliance, including UNOG, UNOV and UNON",null,"Département des stratégies et politiques de gestion et de la conformité, y compris ? including ONUN, ONUG et ONUV",41200,"NULL",null,null,41201,"CTBTO","Comprehensive Nuclear Test Ban Treaty Organization","CTBTO","Comprehensive Nuclear Test Ban Treaty Organization",41200]
[41212,"DOS","Department of Operational Support",null,"Département de l’appui opérationnel",41200,"NULL",null,null,41202,"ICAO","International Civil Aviation Organization","ICAO","International Civil Aviation Organization",41200]
[41213,"DSS","Department of Safety and Security",null,"Département de la sûreté et de la sécurité",41200,"NULL",null,null,41203,"ICC","International Criminal Court","ICC","International Criminal Court",41200,22]
[41214,"OCT","Office of Counter-Terrorism",null,"Bureau de lutte contre le terrorisme",41200,"NULL",null,null,41204,"IRMCT","International Residual Mechanism for Criminal Tribunals","IRMCT","International Residual Mechanism for Criminal Tribunals",41200,22]
[41215,"UNICRI","United Nations Interregional Crime and Justice Research Institute",null,"Institut interrégional de recherche des Nations unies sur la criminalité et la justice",41200,"NULL",null,null,41205,"ISA","International Seabed Authority","ISA","International Seabed Authority",41200]
[41216,"IMO","International Maritime Organization","IMO","International Maritime Organization",41200,"NULL",null,null,41300," ","Other UN (Core Contributions Reportable in Part)"," ","Other UN (Core Contributions Reportable in Part)",41000]
[41217,"WTO","World Trade Organisation","WTO","Organisation mondiale du commerce",41200,"NULL",null,null,41206,"ITLOS","International Tribunal for the Law of the Sea","ITLOS","International Tribunal for the Law of the Sea",41200]
[41300," ","Other UN (Core Contributions Reportable in Part)"," ","Autres Nations Unies (contributions comptabilisables pour partie)",41000,"NULL",null,null,41207,"OPCW","Organization for the Prohibition of Chemical Weapons","OPCW","Organization for the Prohibition of Chemical Weapons",41200]
[41104,"ECLAC","Economic Commission for Latin America and the Caribbean","CEPALC","Commission économique pour l'Amérique latine et les Caraïbes",41300,"B021",null,null,41208,"DESA","Department of Economic and Social Affairs","DESA","Department of Economic and Social Affairs",41200]
[41105,"ESCWA","Economic and Social Commission for Western Asia","CESAO","Commission économique et sociale pour l'Asie occidentale",41300,"B021",null,null,41209,"DGACM","Department of General Assembly and Conference Management","DGACM","Department of General Assembly and Conference Management",41200]
[41106,"ESCAP","Economic and Social Commission for Asia and the Pacific ","CESAP","Commission économique et sociale pour l'Asie et le Pacifique",41300,"B021",null,null,41210,"DGC","Department of Global Communications","DGC","Department of Global Communications",41200]
[41128,"UNODC","United Nations Office on Drugs and Crime ","UNODC","Office des Nations Unies contre la drogue et le crime",41300,"B021",null,null,41211,"DMSPC","Department of Management Strategy, Policy and Compliance, including UNOG, UNOV and UNON","DMSPC","Department of Management Strategy, Policy and Compliance, including UNOG, UNOV and UNON",41200]
[41150,"UNIDIR","United Nations Institute for Disarmament Research","UNIDIR","Institut des Nations unies pour la recherche sur le désarmement",41300,"B021",null,null,41212,"DOS","Department of Operational Support","DOS","Department of Operational Support",41200]
[41151,"IARC","International Agency for Research on Cancer","CIRC","Centre international de recherche sur le cancer",41300,"B021",null,null,41213,"DSS","Department of Safety and Security","DSS","Department of Safety and Security",41200]
[41301,"FAO","Food and Agricultural Organisation","FAO","Organisation des Nations Unies pour l'alimentation et l'agriculture",41300,"B021",null,null,41214,"OCT","Office of Counter-Terrorism","OCT","Office of Counter-Terrorism",41200,22]
[41302,"ILO-Assessed","International Labour Organisation - Assessed Contributions","OIT-Obligatoires","Organisation internationale du travail - contributions obligatoires",41300,"B021",null,null,41215,"UNICRI","United Nations Interregional Crime and Justice Research Institute","UNICRI","United Nations Interregional Crime and Justice Research Institute",41200]
[41303,"ITU","International Telecommunications Union","UIT","Union internationale des télécommunications",41300,"B021",null,null,41216,"IMO","International Maritime Organization","IMO","International Maritime Organization",41200]
[41304,"UNESCO","United Nations Educational, Scientific and Cultural Organisation","UNESCO","Organisation des Nations Unies pour l’éducation, la science et la culture ",41300,"B021",null,null,41217,"WTO","World Trade Organisation","WTO","World Trade Organisation",41200,22]
[41305,"UN","United Nations","ONU","Organisation des Nations Unies",41300,"B021",null,null,41301,"FAO","Food and Agricultural Organisation","FAO","Food and Agricultural Organisation",41300,22]
[41306,"UPU","Universal Postal Union ","UPU","Union postale universelle",41300,"B021",null,null,41302,"ILO-Assessed","International Labour Organisation - Assessed Contributions","ILO-Assessed","International Labour Organisation - Assessed Contributions",41300,22]
[41307,"WHO-Assessed","World Health Organisation - assessed contributions","OMS-obligatoires","Organisation mondiale de la santé - contributions obligatoires",41300,"B021",null,null,41303,"ITU","International Telecommunications Union","ITU","International Telecommunications Union",41300]
[41308,"WIPO","World Intellectual Property Organisation ","OMPI","Organisation mondiale de la propriété intellectuelle ",41300,"B021",null,null,41304,"UNESCO","United Nations Educational, Scientific and Cultural Organisation","UNESCO","United Nations Educational, Scientific and Cultural Organisation",41300]
[41309,"WMO","World Meteorological Organisation ","OMM","Organisation météorologique mondiale",41300,"B021",null,null,41305,"UN","United Nations","UN","United Nations",41300,22]
[41310,"UNDPO-UN Peacekeeping operations","United Nations Department of Peace Operations - UN peacekeeping operations [only MINURSO, MINUSCA, MINUSMA, MINUJUSTH, MONUSCO, UNAMID, UNIFIL, UNISFA, UNMIK, UNMIL, UNMISS, UNOCI]. Report contributions mission by mission in CRS++.","UNDPO","Département des opérations de paix des Nations unies. Opérations de maintien de la paix [seulement MINURSO,MINUSCA,MINUSMA, MINUSTAH,MONUSCO,MINUAD, FINUL,FISNUA,MINUK, MINUL,UNMISS,ONUCI]. Notifier les contributions mission par mission au format SNPC++",41300,"B021",null,null,41306,"UPU","Universal Postal Union ","UPU","Universal Postal Union ",41300]
[41312,"IAEA-Assessed","International Atomic Energy Agency - assessed contributions","AIEA-obligatoires","Agence internationale de l'énergie atomique - contributions obligatoires",41300,"B021",null,null,41307,"WHO-Assessed","World Health Organisation - assessed contributions","WHO-Assessed","World Health Organisation - assessed contributions",41300,22]
[41313,"OHCHR","United Nations High Commissioner for Human Rights (extrabudgetary contributions only)","HCDH","Haut-Commissariat des Nations unies aux droits de l'homme (contributions extrabudgétaires uniquement)",41300,"B021",null,null,41308,"WIPO","World Intellectual Property Organisation ","WIPO","World Intellectual Property Organisation ",41300]
[41314,"UNECE","United Nations Economic Commission for Europe (extrabudgetary contributions only)","CEE-ONU","Commission économique des Nations unies pour l'Europe (contributions extrabudgétaires uniquement)",41300,"B021",null,null,41309,"WMO","World Meteorological Organisation ","WMO","World Meteorological Organisation ",41300]
[41315,"UNDRR","United Nations Office for Disaster Risk Reduction","UNDRR","Bureau des Nations Unies pour la prévention de catastrophes",41300,"B021",null,null,41310,"UNDPO-UN Peacekeeping operations","United Nations Department of Peace Operations - UN peacekeeping operations","UNDPO-UN Peacekeeping operations","United Nations Department of Peace Operations - UN peacekeeping operations",41300,21]
[41316,"UNFCCC","United Nations Framework Convention on Climate Change ","CCNUCC","Convention-cadre des Nations unies sur les changements climatiques",41300,"B021",null,null,41312,"IAEA-Assessed","International Atomic Energy Agency - assessed contributions","IAEA-Assessed","International Atomic Energy Agency - assessed contributions",41300,22]
[41319,"UNWTO","World Tourism Organization","OMT","Organisation mondiale du tourisme",41300,"B021",null,null,41313,"OHCHR","United Nations High Commissioner for Human Rights (extrabudgetary contributions only)","OHCHR","United Nations High Commissioner for Human Rights (extrabudgetary contributions only)",41300]
[41321,"WHO-SPRP","World Health Organisation - Strategic Preparedness and Response Plan","OMS-PSPI","Organisation mondiale de la santé - Plan stratégique de préparation et d'intervention",41300,"B021",null,null,41400," ","UN inter-agency pooled funds"," ","UN inter-agency pooled funds",41000]
[41502,"UNOPS","United Nations Office for Project Services","UNOPS","Le Bureau des Nations Unies pour les services d'appui aux projets ",41300,"n.a.",null,null,41314,"UNECE","United Nations Economic Commission for Europe (extrabudgetary contributions only)","UNECE","United Nations Economic Commission for Europe (extrabudgetary contributions only)",41300]
[41400," ","UN inter-agency pooled funds"," ","Fonds communs interinstitutions des Nations Unies",41000,"NULL",null,null,41315,"UNDRR","United Nations Office for Disaster Risk Reduction","UNDRR","United Nations Office for Disaster Risk Reduction",41300]
[41141,"PBF","United Nations Peacebuilding Fund","PBF","Fonds des Nations Unies pour la consolidation de la paix",41400,"B022",null,null,41316,"UNFCCC","United Nations Framework Convention on Climate Change ","UNFCCC","United Nations Framework Convention on Climate Change ",41300]
[41147,"CERF","Central Emergency Response Fund","CERF","Fonds central pour les interventions d'urgence",41400,"B022",null,null,41317,"GCF","Green Climate Fund","GCF","Green Climate Fund",47000,21]
[41401,"UN-MPTFO","UN-Multi Partner Trust Fund Office","UN-MPTFO","UN-Multi Partner Trust Fund Office",41400,"B031",null,null,41318,"GM","Global Mechanism","GM","Global Mechanism",41600]
[41402,"Joint SDG Fund","Joint Sustainable Development Goals Fund","Fonds conjoint des ODD","Fonds conjoint des objectifs de développement durable",41400,"B022",null,null,41319,"UNWTO","World Tourism Organization","UNWTO","World Tourism Organization",41300,22]
[41403,"COVID-19 MPTF","COVID-19 Response and Recovery Multi-Partner Trust Fund","COVID-19 MPTF","COVID-19 Response and Recovery Multi-Partner Trust Fund",41400,"B022",null,null,41320,"UN-TBLDC","Technology Bank for Least Developed Countries","UN-TBLDC","Technology Bank for Least Developed Countries",41100]
[41501,"UN-REDD","United Nations Reducing Emissions from Deforestation and Forest Degradation","NULL","United Nations Reducing Emissions from Deforestation and Forest Degradation",41400,"B031",null,null,41500," ","UN single-agency thematic funds"," ","UN single-agency thematic funds",41000]
[41503,"UN-CBPF","UN-led Country-based Pooled Funds","NULL","UN-led Country-based Pooled Funds",41400,"B031",null,null,41321,"WHO-SPRP","World Health Organisation - Strategic Preparedness and Response Plan","WHO-SPRP","World Health Organisation - Strategic Preparedness and Response Plan",41300,22]
[41500," ","UN single-agency thematic funds"," ","Fonds thématiques uniques des Nations Unies",41000,"NULL",null,null,41600," ","Existing UN channels not included in Standard I - UN entity- of the UN Data Cube reporting framework"," ","Existing UN channels not included in Standard I - UN entity- of the UN Data Cube reporting framework",41000]
[41148,"UNDPPA-SZA","United Nations Department of Political and Peacebuilding Affairs, Trust Fund in Support of Political Affairs","UNDPPA-SZA","Département des affaires politiques et de consolidation de la paix des Nations Unies, Fonds d'affectation spéciale à l'appui des affaires politiques",41500,"B032",null,null,41401,"UN-MPTFO","UN-Multi Partner Trust Fund Office","UN-MPTFO","UN-Multi Partner Trust Fund Office",41400,22]
[41600," ","Existing UN channels not included in Standard I - UN entity- of the UN Data Cube reporting framework"," ","Canaux de l'ONU existants non inclus dans la norme I du cadre de reporting du cube de l'ONU",41000,"NULL",null,null,41402,"Joint SDG Fund","Joint Sustainable Development Goals Fund","Joint SDG Fund","Joint Sustainable Development Goals Fund",41400,21]
[41126,"UNMAS","United Nations Mine Action Service ","UNMAS","Service de l'action antimines des Nations Unies",41600,"B022",null,null,41403,"COVID-19 MPTF","COVID-19 Response and Recovery Multi-Partner Trust Fund","COVID-19 MPTF","COVID-19 Response and Recovery Multi-Partner Trust Fund",41400,21]
[41132,"UNSCN","United Nations System Standing Committee on Nutrition ","UNSCN","Comité permanent de la nutrition du système des Nations Unies",41600,"n.a.",null,null,41501,"UN-REDD","United Nations Reducing Emissions from Deforestation and Forest Degradation","UN-REDD","United Nations Reducing Emissions from Deforestation and Forest Degradation",41400]
[41133,"UNSIA","United Nations Special Initiative on Africa ","UNSIA","Initiative spéciale des Nations Unies pour l'Afrique",41600,"B032",null,null,41502,"UNOPS","United Nations Office for Project Services","UNOPS","United Nations Office for Project Services",41300]
[41136,"UNVFD","United Nations Voluntary Fund on Disability ","NULL","Fonds de contributions voluntaires des Nations Unies pour les handicapés",41600,"B032",null,null,41503,"UN-CBPF","UN-led Country-based Pooled Funds","UN-CBPF","UN-led Country-based Pooled Funds",41400]
[41137,"UNVFTC","United Nations Voluntary Fund for Technical Co-operation in the Field of Human Rights","NULL","Fonds de contributions volontaires des Nations Unies pour la coopération technique dans le domaine des droits de l'homme",41600,"B032",null,null,41601,"UNODA","United Nations Office for Disarmament Affairs","UNODA","United Nations Office for Disarmament Affairs",41600,22]
[41138,"UNVFVT","United Nations Voluntary Fund for Victims of Torture ","NULL","Fonds de contributions volontaires des Nations Unies pour les victimes de la torture ",41600,"B032",null,null,43001,"IMF-PRGT","International Monetary Fund - Poverty Reduction and Growth Trust ","IMF-PRGT","International Monetary Fund - Poverty Reduction and Growth Trust ",43000,21]
[41142,"UNDEF","United Nations Democracy Fund","FNUD","Fonds des Nations Unies pour la démocratie",41600,"B032",null,null,43002,"IMF-PRG-HIPC","International Monetary Fund - Poverty Reduction and Growth - Heavily Indebted Poor Countries Debt Relief Initiative Trust Fund [includes HIPC, Extended Credit Facility (ECF), and ECF-HIPC sub-accounts] ","IMF-PRG-HIPC","International Monetary Fund - Poverty Reduction and Growth - Heavily Indebted Poor Countries Debt Relief Initiative Trust Fund [includes HIPC, Extended Credit Facility (ECF), and ECF-HIPC sub-accounts] ",43000]
[41318,"GM","Global Mechanism","MM","Mécanisme mondial",41600,"B032",null,null,43003,"IMF-EPCA-ENDA","International Monetary Fund - Subsidization of Emergency Post Conflict Assistance/Emergency Assistance for Natural Disasters for PRGT-eligible members","IMF-EPCA-ENDA","International Monetary Fund - Subsidization of Emergency Post Conflict Assistance/Emergency Assistance for Natural Disasters for PRGT-eligible members",43000]
[41601,"UNODA","United Nations Office for Disarmament Affairs","UNODA","United Nations Office for Disarmament Affairs",41600,"NULL",null,null,43004,"IMF-PRG-MDRI","International Monetary Fund - Poverty Reduction and Growth - Multilateral Debt Relief Initiative Trust","IMF-PRG-MDRI","International Monetary Fund - Poverty Reduction and Growth - Multilateral Debt Relief Initiative Trust",43000]
[47065,"IOC","Intergovernmental Oceanographic Commission ","COI","Commission océanographique intergouvernementale",41600,"B032",null,null,41700," ","UN entities, non-core contributions"," ","UN entities, non-core contributions",41000]
[47078,"Montreal Protocol","Multilateral Fund for the Implementation of the Montreal Protocol ","Protocol de Montréal","Fonds multilatéral pour l’application du Protocole de Montréal ",41600,"B022",null,null,41701,"ILO-non-core","International Labour Organisation - non-core","ILO-non-core","International Labour Organisation - non-core",41700,21]
[41701,"ILO-non-core","International Labour Organisation - non-core","ILO-non-core","International Labour Organisation - non-core",41700,"NULL",null,null,41702,"WHO-non-core","World Health Organisation - non-core","WHO-non-core","World Health Organisation - non-core",41700,22]
[41702,"WHO-non-core","World Health Organisation - non-core","WHO-non-core","World Health Organisation - non-core",41700,"NULL",null,null,42000," ","European Union Institutions"," ","European Union Institutions",40000]
[42000," ","European Union Institutions"," ","Institutions de l'Union européenne",40000,"NULL",null,null,42001,"EC","European Commission - Development Share of Budget","EC","European Commission - Development Share of Budget",42000,21]
[42001,"EC","European Commission - Development Share of Budget","CE","Commission européenne - partie du budget affectée au développement",42000,"B021",null,null,42003,"EDF","European Commission - European Development Fund","EDF","European Commission - European Development Fund",42000,21]
[42003,"EDF","European Commission - European Development Fund","FED","Commission européenne - Fonds européen de développement",42000,"B021",null,null,42004,"EIB","European Investment Bank ","EIB","European Investment Bank ",42000,21]
[42004,"EIB","European Investment Bank ","BEI","Banque européenne d'investissement",42000,"B021",null,null,43000," ","International Monetary Fund (IMF)"," ","International Monetary Fund (IMF)",40000]
[43000," ","International Monetary Fund (IMF)"," ","Fonds monétaire international (FMI)",40000,"NULL",null,null,43005,"IMF-PCDR","International Monetary Fund - Post-Catastrophe Debt Relief Trust","IMF-PCDR","International Monetary Fund - Post-Catastrophe Debt Relief Trust",43000]
[43001,"IMF-PRGT","International Monetary Fund - Poverty Reduction and Growth Trust ","FMI-FRPC","Fonds monétaire international – Facilité pour la réduction de la pauvreté et pour la croissance",43000,"B022",null,null,43006,"IMF-CCR","Catastrophe Containment and Relief Trust","IMF-CCR","Catastrophe Containment and Relief Trust",43000]
[43002,"IMF-PRG-HIPC","International Monetary Fund - Poverty Reduction and Growth - Heavily Indebted Poor Countries Debt Relief Initiative Trust Fund [includes HIPC, Extended Credit Facility (ECF), and ECF-HIPC sub-accounts] ","FMI-FRPC-PPTE","Fonds monétaire international – Réduction de la pauvreté et croissance – Initiative d’allègement de la dette en faveur des pays pauvres très endettés [y compris Initiative PPTE, Facilité élargie de crédit (FEC) et sous-comptes (FEC-PPTE)]",43000,"B022",null,null,43007,"IMF-RST","IMF’s Resilience and Sustainability Trust","IMF-RST","IMF’s Resilience and Sustainability Trust",43000,21]
[43003,"IMF-EPCA-ENDA","International Monetary Fund - Subsidization of Emergency Post Conflict Assistance/Emergency Assistance for Natural Disasters for PRGT-eligible members","FMI-EPCA-ENDA","Fonds monétaire international – Aide d’urgence après un conflit (EPCA) et aide d’urgence à la suite de catastrophes naturelles (ENDA) pour les membres pouvant bénéficier de la FRPC",43000,"B022",null,null,44001,"IBRD","International Bank for Reconstruction and Development ","IBRD","International Bank for Reconstruction and Development ",44000]
[43004,"IMF-PRG-MDRI","International Monetary Fund - Poverty Reduction and Growth - Multilateral Debt Relief Initiative Trust","FMI-FRPC-IADM","Fonds monétaire international – Facilité pour la réduction de la pauvreté et pour la croissance – Initiative d’allègement de la dette multilatérale",43000,"n.a.",null,null,44002,"IDA","International Development Association ","IDA","International Development Association ",44000]
[43005,"IMF-PCDR","International Monetary Fund - Post-Catastrophe Debt Relief Trust","FMI-ADAC","Fonds monétaire international  - Fonds fiduciaire pour l'allégement de la dette après une catastrophe",43000,"B022",null,null,44003,"IDA-HIPC","International Development Association - Heavily Indebted Poor Countries Debt Initiative Trust Fund ","IDA-HIPC","International Development Association - Heavily Indebted Poor Countries Debt Initiative Trust Fund ",44000]
[43006,"IMF-CCR","Catastrophe Containment and Relief Trust","FMI-ARC","Fonds fiduciaire d’assistance et de riposte aux catastrophes",43000,"B022",null,null,44004,"IFC","International Finance Corporation ","IFC","International Finance Corporation ",44000]
[43007,"IMF-RST","IMF’s Resilience and Sustainability Trust","FMI-RST","Fonds fiduciaire pour la résilience et la durabilité",43000,"B022",null,null,44000," ","World Bank Group (WB)"," ","World Bank Group (WB)",40000]
[44000," ","World Bank Group (WB)"," ","Groupe de la Banque mondiale (BM)",40000,"NULL",null,null,44005,"MIGA","Multilateral Investment Guarantee Agency ","MIGA","Multilateral Investment Guarantee Agency ",44000]
[44001,"IBRD","International Bank for Reconstruction and Development ","BIRD","Banque internationale pour la reconstruction et le développement",44000,"B021",null,null,44006,"AMCs","Advance Market Commitments","AMCs","Advance Market Commitments",44000]
[44002,"IDA","International Development Association ","IDA","Association internationale de développement",44000,"B021",null,null,44007,"IDA-MDRI","International Development Association - Multilateral Debt Relief Initiative","IDA-MDRI","International Development Association - Multilateral Debt Relief Initiative",44000]
[44003,"IDA-HIPC","International Development Association - Heavily Indebted Poor Countries Debt Initiative Trust Fund ","IDA-PPTE","Association internationale de développement - Fonds fiduciaire de l'IDA en faveur des pays pauvres très endettés",44000,"B022",null,null,44008,"PMI","Partnership for Market Implementation","PMI","Partnership for Market Implementation",44000]
[44004,"IFC","International Finance Corporation ","SFI","Société financière internationale ",44000,"B021",null,null,45001,"WTO-ITC","World Trade Organisation - International Trade Centre ","WTO-ITC","World Trade Organisation - International Trade Centre ",41100,21]
[44005,"MIGA","Multilateral Investment Guarantee Agency ","AMGI","Agence multilatérale de garantie des investissements",44000,"B021",null,null,45002,"WTO-ACWL","World Trade Organisation - Advisory Centre on WTO Law","WTO-ACWL","World Trade Organisation - Advisory Centre on WTO Law",41100]
[44006,"AMCs","Advance Market Commitments","AMC","Garanties de marché",44000,"B022",null,null,45003,"WTO-DDAGTF","World Trade Organisation - Doha Development Agenda Global Trust Fund ","WTO-DDAGTF","World Trade Organisation - Doha Development Agenda Global Trust Fund ",41100]
[44007,"IDA-MDRI","International Development Association - Multilateral Debt Relief Initiative","IDA-IADM","Association internationale de développement - Initiative d’allégement de la dette multilatérale",44000,"B021",null,null,46002,"Afr.DB","African Development Bank","Afr.DB","African Development Bank",46000,21]
[44008,"PMI","Partnership for Market Implementation","PMI","Partnership for Market Implementation",44000,"B021",null,null,46000," ","Regional Development Banks"," ","Regional Development Banks",40000]
[46000," ","Regional Development Banks"," ","Banques régionales de développement",40000,"NULL",null,null,46003,"Afr.DF","African Development Fund ","Afr.DF","African Development Fund ",46000,21]
[46002,"Afr.DB","African Development Bank","BAfD","Banque africaine de développement",46000,"B021",null,null,46004,"AsDB","Asian Development Bank","AsDB","Asian Development Bank",46000,21]
[46003,"Afr.DF","African Development Fund ","FAD","Fonds africain de développement",46000,"B021",null,null,46005,"AsDF","Asian Development Fund ","AsDF","Asian Development Fund ",46000,21]
[46004,"AsDB","Asian Development Bank","BAsD","Banque asiatique de développement",46000,"B021",null,null,46006,"BSTDB","Black Sea Trade and Development Bank","BSTDB","Black Sea Trade and Development Bank",46000,22]
[46005,"AsDF","Asian Development Fund ","FAsD","Fonds asiatique de développement",46000,"B021",null,null,46007,"CABEI","Central American Bank for Economic Integration ","CABEI","Central American Bank for Economic Integration ",46000,21]
[46006,"BSTDB","Black Sea Trade and Development Bank","BSTDB","Black Sea Trade and Development Bank",46000,"B021",null,null,46008,"CAF","Development Bank of Latin America","CAF","Development Bank of Latin America",46000,21]
[46007,"CABEI","Central American Bank for Economic Integration ","BCAIE","Banque centroaméricaine d'intégration économique",46000,"B021",null,null,46009,"CDB","Caribbean Development Bank ","CDB","Caribbean Development Bank ",46000,21]
[46008,"CAF","Development Bank of Latin America","CAF","Banque de développement de l'Amérique latine",46000,"B021",null,null,46012,"IDB","Inter-American Development Bank, Inter-American Investment Corporation and Multilateral Investment Fund ","IDB","Inter-American Development Bank, Inter-American Investment Corporation and Multilateral Investment Fund ",46000,21]
[46009,"CDB","Caribbean Development Bank ","BDC","Banque de développement des Caraïbes",46000,"B021",null,null,46013,"IDB FSO","Inter-American Development Bank, Fund for Special Operations ","IDB FSO","Inter-American Development Bank, Fund for Special Operations ",46000,21]
[46012,"IDB","Inter-American Development Bank, Inter-American Investment Corporation and Multilateral Investment Fund ","BID","Banque interaméricaine de développement, Société interaméricaine d'investissements, Fonds multilatéral d'investissements",46000,"B021",null,null,46015,"EBRD","European Bank for Reconstruction and Development","EBRD","European Bank for Reconstruction and Development",46000,22]
[46013,"IDB FSO","Inter-American Development Bank, Fund for Special Operations ","BID FOS","Banque interaméricaine de développement, Fonds opérations spécial",46000,"B021",null,null,46016,"EBRD TFs - ODA Countries Only","European Bank for Reconstruction and Development - technical co-operation and special funds (ODA-eligible countries only)","EBRD TFs - ODA Countries Only","European Bank for Reconstruction and Development - technical co-operation and special funds (ODA-eligible countries only)",46000,21]
[46015,"EBRD","European Bank for Reconstruction and Development","BERD","Banque européenne pour la reconstruction et le développement",46000,"B021",null,null,46017,"EBRD TFs - All Countries","European Bank for Reconstruction and Development - technical co-operation and special funds (all EBRD countries of operations)","EBRD TFs - All Countries","European Bank for Reconstruction and Development - technical co-operation and special funds (all EBRD countries of operations)",46000,22]
[46016,"EBRD TFs - ODA Countries Only","European Bank for Reconstruction and Development - technical co-operation and special funds (ODA-eligible countries only)","BERD-CTFS pays éligibles à l'APD","Banque européenne pour la reconstruction et le développement - coopération technique et fonds spéciaux (pays éligibles à l'APD)",46000,"B022",null,null,46018,"EBRD-ETC","European Bank for Reconstruction and Development - Early Transition Countries Fund","EBRD-ETC","European Bank for Reconstruction and Development - Early Transition Countries Fund",46000,21]
[46017,"EBRD TFs - All Countries","European Bank for Reconstruction and Development - technical co-operation and special funds (all EBRD countries of operations)","BERD-CTFS tous pays","Banque européenne pour la reconstruction et le développement - coopération technique et fonds spéciaux (tous pays)",46000,"B022",null,null,46019,"EBRD-WBJTF","European Bank for Reconstruction and Development - Western Balkans Joint Trust Fund","EBRD-WBJTF","European Bank for Reconstruction and Development - Western Balkans Joint Trust Fund",46000,22]
[46018,"EBRD-ETC","European Bank for Reconstruction and Development - Early Transition Countries Fund","BERD-ETC","Banque européenne de reconstruction et de développement - Initiative en faveur des pays en transition précoce",46000,"B022",null,null,46020,"BDEAC","Central African States Development Bank","BDEAC","Central African States Development Bank",46000]
[46019,"EBRD-WBJTF","European Bank for Reconstruction and Development - Western Balkans Joint Trust Fund","BERD-FSpBO","Banque européenne de reconstruction et de développement - Fonds spécial pour les Balkans occidentaux",46000,"B022",null,null,46021,"BOAD","West African Development Bank","BOAD","West African Development Bank",46000]
[46020,"BDEAC","Central African States Development Bank","BDEAC","Banque de développement des États de l'Afrique Centrale",46000,"B021",null,null,46022,"Afreximbank","African Export Import Bank","Afreximbank","African Export Import Bank",46000]
[46021,"BOAD","West African Development Bank","BOAD","Banque ouest-africaine de développement",46000,"B021",null,null,46023,"TDB","Eastern and Southern African Trade and Development Bank","TDB","Eastern and Southern African Trade and Development Bank",46000]
[46022,"Afreximbank","African Export Import Bank","Afreximbank","Banque Africaine d'Import-Export",46000,"B021",null,null,46024,"CEB","Council of Europe Development Bank","CEB","Council of Europe Development Bank",46000,22]
[46023,"TDB","Eastern and Southern African Trade and Development Bank","TDB","Banque de l’Afrique de l’Est et de l’Afrique Australe pour le Commerce et le Développement",46000,"B021",null,null,46025,"IsDB","Islamic Development Bank","IsDB","Islamic Development Bank",46000,21]
[46024,"CEB","Council of Europe Development Bank","CEB","Banque de Développement du Conseil de l'Europe",46000,"B021",null,null,46026,"AIIB","Asian Infrastructure Investment Bank","AIIB","Asian Infrastructure Investment Bank",46000,21]
[46025,"IsDB","Islamic Development Bank","BIsD","Banque Islamique de Développement",46000,"B021",null,null,46027,"FONPLATA","Financial Fund for the Development of the River Plate Basin","FONPLATA","Financial Fund for the Development of the River Plate Basin",46000]
[46026,"AIIB","Asian Infrastructure Investment Bank","BAII","Asian Infrastructure Investment Bank",46000,"B021",null,null,46028,"NDB","New Development Bank","NDB","New Development Bank",46000,21]
[46027,"FONPLATA","Financial Fund for the Development of the River Plate Basin","FONPLATA","Fonds financier pour le développement du bassin fluvial de la Plata",46000,"B021",null,null,47001,"ACBF","African Capacity Building Foundation ","ACBF","African Capacity Building Foundation ",47000]
[46028,"NDB","New Development Bank","NDB","Nouvelle banque de développement",46000,"B02",null,null,47000," ","Other multilateral institutions"," ","Other multilateral institutions",40000]
[47000," ","Other multilateral institutions"," ","Autres institutions multilatérales",40000,"NULL",null,null,47002,"APO","Asian Productivity Organisation ","APO","Asian Productivity Organisation ",47000]
[21002,"AITIC","Agency for International Trade Information and Co-operation ","ACICI","Agence de coopération et d'information pour le commerce international",47000,"n.a.",null,null,47003,"ASEAN","Association of South East Asian Nations: Economic Co-operation ","ASEAN","Association of South East Asian Nations: Economic Co-operation ",47000]
[41102,"DLCO-EA","Desert Locust Control Organisation for Eastern Africa ","OLCP-EA","Organisation de lutte contre le criquet pèlerin dans l'Est Africain",47000,"B021",null,null,47005,"AU","African Union","AU","African Union",47000]
[41317,"GCF","Green Climate Fund","GCF","Fonds vert pour le climat",47000,"B022",null,null,47009,"CAMES","African and Malagasy Council for Higher Education ","CAMES","African and Malagasy Council for Higher Education ",47000]
[47001,"ACBF","African Capacity Building Foundation ","ACBF","Fondation pour le renforcement des capacités en Afrique",47000,"B021",null,null,47011,"CARICOM","Caribbean Community Secretariat ","CARICOM","Caribbean Community Secretariat ",47000]
[47002,"APO","Asian Productivity Organisation ","APO","Organisation asiatique de productivité",47000,"B021",null,null,47012,"CAREC","Caribbean Epidemiology Centre ","CAREC","Caribbean Epidemiology Centre ",47000]
[47003,"ASEAN","Association of South East Asian Nations: Economic Co-operation ","ANASE","Association des nations de l'Asie du Sud-Est - coopération économique",47000,"B021",null,null,47013,"CF","Commonwealth Foundation ","CF","Commonwealth Foundation ",47000]
[47005,"AU","African Union (excluding peacekeeping facilities) ","UA","Union Africaine (à l'exclusion de la Facilité de soutien à la paix)",47000,"B021",null,null,47015,"CGIAR","CGIAR Fund","CGIAR","CGIAR Fund",47000,21]
[47009,"CAMES","African and Malagasy Council for Higher Education ","CAMES","Conseil africain et malgache pour l'enseignement supérieur",47000,"B021",null,null,47019,"CIHEAM","International Centre for Advanced Mediterranean Agronomic Studies ","CIHEAM","International Centre for Advanced Mediterranean Agronomic Studies ",47000]
[47011,"CARICOM","Caribbean Community Secretariat ","CARICOM","Secrétariat de la Communauté des Caraïbes ",47000,"B021",null,null,47022,"CITES","Convention on International Trade in Endangered Species of Wild Flora and Fauna","CITES","Convention on International Trade in Endangered Species of Wild Flora and Fauna",47000]
[47012,"CAREC","Caribbean Epidemiology Centre ","CAREC","Centre épidémiologique des Caraïbes",47000,"n.a.",null,null,47025,"COL","Commonwealth of Learning ","COL","Commonwealth of Learning ",47000]
[47013,"CF","Commonwealth Foundation ","CF","Fondation du Commonwealth",47000,"B021",null,null,47026,"CPLP","Community of Portuguese Speaking Countries ","CPLP","Community of Portuguese Speaking Countries ",47000]
[47015,"CGIAR","CGIAR Fund","CGIAR","CGIAR Fund",47000,"B022",null,null,47027,"CP ","Colombo Plan","CP ","Colombo Plan",47000]
[47019,"CIHEAM","International Centre for Advanced Mediterranean Agronomic Studies ","CIHEAM","Centre international de hautes études agronomique méditerranéennes",47000,"B021",null,null,47029,"SWAC","Sahel and West Africa Club ","SWAC","Sahel and West Africa Club ",47000]
[47022,"CITES","Convention on International Trade in Endangered Species of Wild Flora and Fauna","CITES","Convention sur le commerce international des espèces de faune et de flore sauvages menacées d'extinction",47000,"B021",null,null,47034,"ECOWAS","Economic Community of West African States ","ECOWAS","Economic Community of West African States ",47000]
[47025,"COL","Commonwealth of Learning ","COL","Commonwealth of Learning",47000,"B021",null,null,47036,"EPPO","European and Mediterranean Plant Protection Organisation ","EPPO","European and Mediterranean Plant Protection Organisation ",47000]
[47026,"CPLP","Community of Portuguese Speaking Countries ","CPLP","Communauté des pays de langue portugaise ",47000,"B021",null,null,47037,"EROPA","Eastern-Regional Organisation of Public Administration ","EROPA","Eastern-Regional Organisation of Public Administration ",47000]
[47027,"CP ","Colombo Plan","CP","Plan de Colombo",47000,"B021",null,null,47040,"FFA","Forum Fisheries Agency ","FFA","Forum Fisheries Agency ",47000]
[47029,"SWAC","Sahel and West Africa Club ","CSAO","Club du Sahel et de l’Afrique de l’Ouest ",47000,"B021",null,null,47044,"GEF","Global Environment Facility Trust Fund","GEF","Global Environment Facility Trust Fund",47000,21]
[47034,"ECOWAS","Economic Community of West African States ","CEDEAO","Communauté économique des Etats de l’Afrique de l’Ouest",47000,"B021",null,null,47045,"Global Fund","Global Fund to Fight AIDS, Tuberculosis and Malaria ","Global Fund","Global Fund to Fight AIDS, Tuberculosis and Malaria ",47000,21]
[47036,"EPPO","European and Mediterranean Plant Protection Organisation ","OEPP","Organisation Européenne et Méditerranéenne pour la Protection des Plantes",47000,"B021",null,null,47046,"OIF","International Organisation of the Francophonie","OIF","International Organisation of the Francophonie",47000]
[47037,"EROPA","Eastern-Regional Organisation of Public Administration ","EROPA","Organisation régionale de l'Orient pour l'administration publique",47000,"B021",null,null,47050,"ICAC","International Cotton Advisory Committee ","ICAC","International Cotton Advisory Committee ",47000]
[47040,"FFA","Forum Fisheries Agency ","FFA","Agence des pêches ",47000,"B021",null,null,47058,"IDEA","International Institute for Democracy and Electoral Assistance ","IDEA","International Institute for Democracy and Electoral Assistance ",47000]
[47044,"GEF","Global Environment Facility Trust Fund","FEM","Fonds pour l'environnement mondial - fonds fiduciaire",47000,"B022",null,null,47059,"IDLO","International Development Law Organisation ","IDLO","International Development Law Organisation ",47000]
[47045,"Global Fund","Global Fund to Fight AIDS, Tuberculosis and Malaria ","Fonds mondial","Fonds mondial de lutte contre le SIDA, la tuberculose et la paludisme",47000,"B022",null,null,47061,"IICA","Inter-American Institute for Co-operation on Agriculture ","IICA","Inter-American Institute for Co-operation on Agriculture ",47000]
[47046,"OIF","International Organisation of the Francophonie","OIF","Organisation internationale de la Francophonie ",47000,"B021",null,null,47064,"INBAR","International Network for Bamboo and Rattan ","INBAR","International Network for Bamboo and Rattan ",47000]
[47050,"ICAC","International Cotton Advisory Committee ","CCIC","Comité consultatif international du coton",47000,"B021",null,null,47065,"IOC","Intergovernmental Oceanographic Commission ","IOC","Intergovernmental Oceanographic Commission ",41600]
[47058,"IDEA","International Institute for Democracy and Electoral Assistance ","IDEA","International Institute for Democracy and Electoral Assistance",47000,"B021",null,null,47066,"IOM","International Organisation for Migration ","IOM","International Organisation for Migration ",41100]
[47059,"IDLO","International Development Law Organisation ","IDLO","Organisation internationale de droit du développement ",47000,"B021",null,null,47067,"IPCC","Intergovernmental Panel on Climate Change ","IPCC","Intergovernmental Panel on Climate Change ",47000]
[47061,"IICA","Inter-American Institute for Co-operation on Agriculture ","IICA","Institut interaméricain de coopération pour l’agriculture",47000,"B021",null,null,47068,"APFIC","Asia-Pacific Fishery Commission","APFIC","Asia-Pacific Fishery Commission",47000]
[47064,"INBAR","International Network for Bamboo and Rattan ","INBAR","Réseau International sur le bambou et le rotin",47000,"B021",null,null,47073,"ITTO","International Tropical Timber Organisation ","ITTO","International Tropical Timber Organisation ",47000]
[47067,"IPCC","Intergovernmental Panel on Climate Change ","GIEC","Groupe d’experts intergouvernemental sur l’évolution du climat",47000,"B021",null,null,47074,"IVI","International Vaccine Institute ","IVI","International Vaccine Institute ",47000]
[47068,"APFIC","Asia-Pacific Fishery Commission","APFIC","Commission Asie-Pacifique des pêches",47000,"B021",null,null,47076,"JSCA","Justice Studies Centre of the Americas ","JSCA","Justice Studies Centre of the Americas ",47000]
[47073,"ITTO","International Tropical Timber Organisation ","OIBT","Organisation Internationale des Bois Tropicaux",47000,"B021",null,null,47077,"MRC","Mekong River Commission ","MRC","Mekong River Commission ",47000]
[47074,"IVI","International Vaccine Institute ","IIV","Institut international de vaccins ",47000,"B021",null,null,47078,"Montreal Protocol","Multilateral Fund for the Implementation of the Montreal Protocol ","Montreal Protocol","Multilateral Fund for the Implementation of the Montreal Protocol ",41600]
[47076,"JSCA","Justice Studies Centre of the Americas ","JSCA","Centre d’études sur la justice dans les Amériques",47000,"B021",null,null,47079,"OAS","Organisation of American States ","OAS","Organisation of American States ",47000,21]
[47077,"MRC","Mekong River Commission ","MRC","Commission du Mékong",47000,"B021",null,null,47080,"OECD","Organisation for Economic Co-operation and Development","OECD","Organisation for Economic Co-operation and Development",47000]
[47079,"OAS","Organisation of American States ","OEA","Organisation des États américains",47000,"B021",null,null,47081,"OECD-Dev. Centre","OECD Development Centre ","OECD-Dev. Centre","OECD Development Centre ",47000]
[47080,"OECD","Organisation for Economic Co-operation and Development (Contributions to special funds for Technical Co-operation Activities Only) ","OCDE","Organisation de Coopération et de développement économiques (contributions aux fonds spéciaux pour les activités de coopération technique uniquement)",47000,"B022",null,null,47082,"OECS","Organisation of Eastern Caribbean States ","OECS","Organisation of Eastern Caribbean States ",47000]
[47081,"OECD-Dev. Centre","OECD Development Centre ","OCDE-Centre de dév. ","OCDE Centre de développement",47000,"B021",null,null,47083,"PAHO","Pan-American Health Organisation ","PAHO","Pan-American Health Organisation ",41100]
[47082,"OECS","Organisation of Eastern Caribbean States ","OECO","Organisation des États des Caraïbes orientales",47000,"B021",null,null,47084,"PAIGH","Pan-American Institute of Geography and History ","PAIGH","Pan-American Institute of Geography and History ",47000]
[47084,"PAIGH","Pan-American Institute of Geography and History ","PAIGH","Institut panaméricain de géographie et d’histoire",47000,"B021",null,null,47086,"PIDG","Private Infrastructure Development Group ","PIDG","Private Infrastructure Development Group ",47000,21]
[47086,"PIDG","Private Infrastructure Development Group ","PIDG","Private Infrastructure Development Group",47000,"B021",null,null,47087,"PIFS","Pacific Islands Forum Secretariat ","PIFS","Pacific Islands Forum Secretariat ",47000]
[47087,"PIFS","Pacific Islands Forum Secretariat ","SFIP","Secrétariat du Forum des Iles du Pacifique",47000,"B021",null,null,47089,"SADC","Southern African Development Community ","SADC","Southern African Development Community ",47000]
[47089,"SADC","Southern African Development Community ","SADC","Communauté pour le développement de l’Afrique australe",47000,"B021",null,null,47092,"SEAFDC","South East Asian Fisheries Development Centre ","SEAFDC","South East Asian Fisheries Development Centre ",47000]
[47092,"SEAFDC","South East Asian Fisheries Development Centre ","SEAFDC","Centre de développement des pêches de l’Asie du Sud-Est",47000,"B021",null,null,47093,"SEAMEO","South East Asian Ministers of Education ","SEAMEO","South East Asian Ministers of Education ",47000]
[47093,"SEAMEO","South East Asian Ministers of Education ","SEAMEO","Organisation des Ministres de l’éducation de l’Asie du Sud-Est",47000,"B021",null,null,47095,"EQAP","Educational Quality and Assessment Programme","EQAP","Educational Quality and Assessment Programme",47000]
[47095,"EQAP","Educational Quality and Assessment Programme","EQAP","Programme d'évaluation et de qualité de l'éducation",47000,"B021",null,null,47096,"SPC","Secretariat of the Pacific Community ","SPC","Secretariat of the Pacific Community ",47000]
[47096,"SPC","Secretariat of the Pacific Community ","CPS","Secrétariat Général de la Communauté du Pacifique",47000,"B021",null,null,47097,"SPREP","Pacific Regional Environment Programme ","SPREP","Pacific Regional Environment Programme ",47000]
[47097,"SPREP","Pacific Regional Environment Programme ","PROE","Programme régional océanien de l’environnement",47000,"B021",null,null,47098,"UNPO","Unrepresented Nations and Peoples’ Organisation ","UNPO","Unrepresented Nations and Peoples’ Organisation ",47000]
[47098,"UNPO","Unrepresented Nations and Peoples’ Organisation ","UNPO","Organisation des peuples et des nations non représentés",47000,"B021",null,null,47100,"WAMU","West African Monetary Union ","WAMU","West African Monetary Union ",47000]
[47100,"WAMU","West African Monetary Union ","UMOA","Union monétaire ouest-africaine",47000,"B021",null,null,47105,"CFC","Common Fund for Commodities ","CFC","Common Fund for Commodities ",47000]
[47105,"CFC","Common Fund for Commodities ","NULL","Fonds commun pour les produits de base",47000,"B022",null,null,47106,"DCAF","Geneva Centre for the Democratic Control of Armed Forces","DCAF","Geneva Centre for the Democratic Control of Armed Forces",47000]
[47106,"DCAF","Geneva Centre for the Democratic Control of Armed Forces","DCAF","Centre de contrôle démocratique des forces armées - Genève",47000,"B021",null,null,47107,"IFFIm","International Finance Facility for Immunisation","IFFIm","International Finance Facility for Immunisation",47000]
[47107,"IFFIm","International Finance Facility for Immunisation","IFFIm","Facilité internationale de financement pour la vaccination",47000,"B022",null,null,47109,"APEC-ASF","Asia-Pacific Economic Cooperation Support Fund","APEC-ASF","Asia-Pacific Economic Cooperation Support Fund",47000]
[47109,"APEC ASF","Asia-Pacific Economic Cooperation Support Fund (except contributions tied to counter-terrorism activities)","APEC-ASF","Fonds de soutien de la coopération économique Asie-Pacifique (hors lutte contre le terrorisme)",47000,"B022",null,null,47110,"BSEC","Organisation of the Black Sea Economic Cooperation","BSEC","Organisation of the Black Sea Economic Cooperation",47000]
[47110,"BSEC","Organisation of the Black Sea Economic Cooperation","BSEC","Organisation de coopération économique de la mer Noire",47000,"B021",null,null,47111," ","Adaptation Fund"," ","Adaptation Fund",47000,21]
[47111,"NULL","Adaptation Fund","NULL","Fonds pour l’adaptation",47000,"B022",null,null,47112,"CEI-Climate Fund","Central European Initiative - Special Fund for Climate and Environmental Protection","CEI-Climate Fund","Central European Initiative - Special Fund for Climate and Environmental Protection",47000]
[47112,"CEI-Climate Fund","Central European Initiative - Special Fund for Climate and Environmental Protection","CEI-Climate Fund","Initiative de l’Europe centrale - Fonds Spécial pour la protection climatique et environnementale",47000,"B032",null,null,47113,"CEMAC","Economic and Monetary Community of Central Africa ","CEMAC","Economic and Monetary Community of Central Africa ",47000]
[47113,"CEMAC","Economic and Monetary Community of Central Africa ","CEMAC","Communauté économique et monétaire de l’Afrique Centrale",47000,"B021",null,null,47114,"AFoCO","Asian Forest Cooperation Organisation","AFoCO","Asian Forest Cooperation Organisation",47000,21]
[47114,"AFoCO","Asian Forest Cooperation Organisation","AFoCO","Asian Forest Cooperation Organisation",47000,"B021",null,null,47116,"IF","Integrated Framework for Trade-Related Technical Assistance to Least Developed Countries","IF","Integrated Framework for Trade-Related Technical Assistance to Least Developed Countries",47000]
[47116,"IF","Integrated Framework for Trade-Related Technical Assistance to Least Developed Countries","CI","Cadre intégré pour l'assistance technique liée au commerce en faveur des pays les moins avancés",47000,"B021",null,null,47117,"NEPAD","New Partnership for Africa's Development","NEPAD","New Partnership for Africa's Development",47000]
[47117,"NEPAD","New Partnership for Africa's Development","NEPAD","Nouveau Partenariat pour le développement de l’Afrique",47000,"B021",null,null,47118,"CREFIAF","Regional Organisation for the Strengthening of Supreme Audit Institutions of Francophone Sub-Saharan Countries","CREFIAF","Regional Organisation for the Strengthening of Supreme Audit Institutions of Francophone Sub-Saharan Countries",47000]
[47118,"CREFIAF","Regional Organisation for the Strengthening of Supreme Audit Institutions of Francophone Sub-Saharan Countries","CREFIAF","Conseil Régional de Formation des Institutions Supérieures de Contrôle des Finances Publiques d’Afrique Francophone Subsaharienne",47000,"B021",null,null,47119,"OSS","Sahara and Sahel Observatory","OSS","Sahara and Sahel Observatory",47000]
[47119,"OSS","Sahara and Sahel Observatory","OSS","Observatoire du Sahara et du Sahel",47000,"B021",null,null,47120,"SAARC","South Asian Association for Regional Cooperation ","SAARC","South Asian Association for Regional Cooperation ",47000]
[47120,"SAARC","South Asian Association for Regional Cooperation ","SAARC","Association de l'Asie du Sud pour la coopération régionale",47000,"B021",null,null,47121,"UCLGA","United Cities and Local Governments of Africa","UCLGA","United Cities and Local Governments of Africa",47000]
[47121,"UCLGA","United Cities and Local Governments of Africa","CGLUA","Cités et gouvernements locaux unis d’Afrique",47000,"B021",null,null,47122,"GAVI","Global Alliance for Vaccines and Immunization ","GAVI","Global Alliance for Vaccines and Immunization ",47000,21]
[47122,"GAVI","Global Alliance for Vaccines and Immunization ","GAVI","Alliance mondiale pour la vaccination et l’immunisation",47000,"B022",null,null,47123,"GICHD","Geneva International Centre for Humanitarian Demining ","GICHD","Geneva International Centre for Humanitarian Demining ",47000]
[47123,"GICHD","Geneva International Centre for Humanitarian Demining ","CIDHG","Centre International de Déminage Humanitaire Genève",47000,"B021",null,null,47124,"IACA","International Anti-Corruption Academy","IACA","International Anti-Corruption Academy",47000]
[47124,"IACA","International Anti-Corruption Academy","IACA","International Anti-Corruption Academy",47000,"B021",null,null,47125,"ICGEB","International Centre for Genetic Engineering and Biotechnology","ICGEB","International Centre for Genetic Engineering and Biotechnology",47000,22]
[47125,"ICGEB","International Centre for Genetic Engineering and Biotechnology","ICGEB","International Centre for Genetic Engineering and Biotechnology",47000,"B021",null,null,47127,"OLADE","Latin-American Energy Organisation","OLADE","Latin-American Energy Organisation",47000]
[47127,"OLADE","Latin-American Energy Organisation","OLADE","Organisation latino-américaine de l'énergie",47000,"B021",null,null,47128,"NDF","Nordic Development Fund","NDF","Nordic Development Fund",47000,21]
[47128,"NDF","Nordic Development Fund","NDF","Nordic Development Fund",47000,"B021",null,null,47129,"GEF-LDCF","Global Environment Facility - Least Developed Countries Fund","GEF-LDCF","Global Environment Facility - Least Developed Countries Fund",47000]
[47129,"GEF-LDCF","Global Environment Facility - Least Developed Countries Fund","FEM-FPMA","FEM Fonds pour les pays les moins avancés",47000,"B022",null,null,47130,"GEF-SCCF","Global Environment Facility - Special Climate Change Fund","GEF-SCCF","Global Environment Facility - Special Climate Change Fund",47000]
[47130,"GEF-SCCF","Global Environment Facility - Special Climate Change Fund","FEM-FSpCC","FEM Fonds spécial pour les changements climatiques",47000,"B022",null,null,47131,"OSCE","Organization for Security and Co-operation in Europe","OSCE","Organization for Security and Co-operation in Europe",47000,22]
[47131,"OSCE","Organization for Security and Co-operation in Europe","OSCE","Organisation pour la sécurité et la coopération en Europe",47000,"B021",null,null,47132," ","Commonwealth Secretariat"," ","Commonwealth Secretariat",47000]
[47132,"NULL","Commonwealth Secretariat (ODA-eligible contributions only)","NULL","Secrétariat du Commonwealth (seulement les contributions éligibles à l'APD)",47000,"B021",null,null,47134,"CTF","Clean Technology Fund","CTF","Clean Technology Fund",47000,21]
[47134,"CTF","Clean Technology Fund","FTP","Fonds pour les technologies propres",47000,"B022",null,null,47135,"SCF","Strategic Climate Fund","SCF","Strategic Climate Fund",47000,21]
[47135,"SCF","Strategic Climate Fund","FSC","Fonds stratégique pour le climat",47000,"B022",null,null,47136,"GGGI","Global Green Growth Institute","GGGI","Global Green Growth Institute",47000,21]
[47136,"GGGI","Global Green Growth Institute","GGGI","Institut mondial de la croissance verte",47000,"B021",null,null,47137,"ARC","African Risk Capacity Group","ARC","African Risk Capacity Group",47000]
[47137,"ARC","African Risk Capacity Group","ARC","Mutuelle panafricaine de gestion des risques",47000,"B021",null,null,47138,"CoE","Council of Europe","CoE","Council of Europe",47000]
[47138,"CoE","Council of Europe","CoE","Conseil de l’Europe",47000,"B021",null,null,47139,"WCO CCF","World Customs Organization Customs Co-operation Fund","WCO CCF","World Customs Organization Customs Co-operation Fund",47000]
[47139,"WCO CCF","World Customs Organization Customs Co-operation Fund","OMD CCF","Organisation Mondiale des Douanes Fonds de coopération douanière",47000,"B033",null,null,47140,"OEI","Organisation of Ibero-American States for Education, Science and Culture","OEI","Organisation of Ibero-American States for Education, Science and Culture",47000]
[47140,"OEI","Organisation of Ibero-American States for Education, Science and Culture","OEI","Organisation des états ibéro-américains pour l'éducation, la science et la culture (OEI)",47000,"B021",null,null,47141,"ATAF","African Tax Administration Forum","ATAF","African Tax Administration Forum",47000]
[47141,"ATAF","African Tax Administration Forum","ATAF","Forum sur l’Administration Fiscale Africaine",47000,"B021",null,null,47142,"OFID","OPEC Fund for International Development","OFID","OPEC Fund for International Development",47000,21]
[47142,"OFID","OPEC Fund for International Development","OFID","Le Fonds OPEP pour le développement international",47000,"B022",null,null,47143,"GCERF","Global Community Engagement and Resilience Fund","GCERF","Global Community Engagement and Resilience Fund",47000]
[47143,"GCERF","Global Community Engagement and Resilience Fund","GCERF","Fonds mondial pour l’engagement de la communauté et la résilience",47000,"B022",null,null,47144,"IRENA","International Renewable Energy Agency","IRENA","International Renewable Energy Agency",47000]
[47144,"IRENA","International Renewable Energy Agency","IRENA","Agence internationale pour les energies renouvelables",47000,"B021",null,null,47145,"CEF","Center of Excellence in Finance","CEF","Center of Excellence in Finance",47000,21]
[47145,"CEF","Center of Excellence in Finance","NULL","Center of Excellence in Finance",47000,"B021",null,null,47146,"IIB","International Investment Bank","IIB","International Investment Bank",47000,22]
[47146,"IIB","International Investment Bank","NULL","International Investment Bank",47000,"B021",null,null,47147,"IFFEd","International Finance Facility for Education","IFFEd","International Finance Facility for Education",47000]
[47147,"IFFEd","International Finance Facility for Education","IFFEd","Facilité internationale de financement pour l'éducation",47000,"B022",null,null,47148,"WOAH","World Organisation for Animal Health","WOAH","World Organisation for Animal Health",47000,22]
[47148,"WOAH","World Organisation for Animal Health","WOAH","Organisation mondiale de la santé animale",47000,"B021",null,null,47149,"ICMP","International Commission on Missing Persons","ICMP","International Commission on Missing Persons",47000,21]
[47149,"ICMP","International Commission on Missing Persons","CIPD","Commission internationale pour les personnes disparues",47000,"B021",null,null,47151,"BADEA","Arab bank for economic development in Africa","BADEA","Arab bank for economic development in Africa",47000]
[47150,"SEGIB","Secretaría General Iberoamericana","SEGIB","Secretaría General Iberoamericana",47000,"B021",null,null,47152,"AFESD","Arab fund for economic and social development","AFESD","Arab fund for economic and social development",47000]
[47151,"BADEA","Arab bank for economic development in Africa","BADEA","Banque arabe de développement économique en Afrique",47000,"B02",null,null,47150,"SEGIB","Secretaría General Iberoamericana","SEGIB","Secretaría General Iberoamericana",47000]
[47152,"AFESD","Arab fund for economic and social development","FADES","Fonds arabe pour le développement économique et social",47000,"B02",null,null,47400," ","European Space Agency (ESA) programme 'Space in support of International Development Aid'"," ","European Space Agency (ESA) programme 'Space in support of International Development Aid'",47000]
[47400,"NULL","European Space Agency (ESA) programme 'Space in support of International Development Aid'","NULL","European Space Agency (ESA) programme 'Space in support of International Development Aid'",47000,"B032",null,null,47501,"GPE","Global Partnership for Education","GPE","Global Partnership for Education",47000,21]
[47501,"GPE","Global Partnership for Education","PME","Partenariat Mondial pour l'Education",47000,"B031",null,null,47502,"GFDRR","Global Fund for Disaster Risk Reduction","GFDRR","Global Fund for Disaster Risk Reduction",47000]
[47502,"GFDRR","Global Fund for Disaster Risk Reduction","NULL","Global Fund for Disaster Risk Reduction",47000,"B031",null,null,47503,"GAFSP","Global Agriculture and Food Security Program","GAFSP","Global Agriculture and Food Security Program",47000]
[47503,"GAFSP","Global Agriculture and Food Security Program","NULL","Global Agriculture and Food Security Program",47000,"B031",null,null,47504,"FCPF","Forest Carbon Partnership Facility ","FCPF","Forest Carbon Partnership Facility ",47000]
[47504,"FCPF","Forest Carbon Partnership Facility ","NULL","Forest Carbon Partnership Facility ",47000,"B032",null,null,47701,"GBFF","Global Biodiversity Framework Fund ","GBFF","Global Biodiversity Framework Fund ",47000]
[47701,"GEF-GBFF","Global Environment Facility - Global biodiversity framework fund","FEM-FCMB","FEM Fonds du cadre mondial pour la biodiversité",47000,"B02",null,null,47702,"Cali Fund ","Cali Fund For the Fair and Equitable Sharing of Benefits from the use of Digital Sequence Information on Genetic Resources (DSI)","Cali Fund ","Cali Fund For the Fair and Equitable Sharing of Benefits from the use of Digital Sequence Information on Genetic Resources (DSI)",47000]
[47702,"Cali Fund","Cali Fund For the Fair and Equitable Sharing of Benefits from the use of Digital Sequence Information on Genetic Resources (DSI)","Cali Fund","Cali Fund For the Fair and Equitable Sharing of Benefits from the use of Digital Sequence Information on Genetic Resources (DSI)",47000,"B03",null,null,47703,"KBF","Kunming Biodiversity Fund ","KBF","Kunming Biodiversity Fund ",47000]
[47703,"KBF","Kunming Biodiversity Fund","KBF","Kunming Biodiversity Fund",47000,"B03",null,null,47704,"SESRIC","SESRIC","SESRIC","SESRIC",47000,21]
[47704,"SESRIC","SESRIC","SESRIC","SESRIC",47000,"NULL",null,null,47705,"Interpol","Interpol","Interpol","Interpol",47000,22]
[47705,"Interpol","Interpol","Interpol","Interpol",47000,"NULL",null,null,47706,"EFSD","Eurasian Fund for Stabilization and Development","EFSD","Eurasian Fund for Stabilization and Development",47000,21]
[47706,"EFSD","Eurasian Fund for Stabilization and Development","EFSD","Eurasian Fund for Stabilization and Development",47000,"NULL",null,null,47707,null,"Arab Monetary Fund",null,"Arab Monetary Fund",47000]
[51000," ","University, college or other teaching institution, research institute or think-tank"," ","Université, collège ou autre établissement d'enseignement, institut de recherche ou de réflexion",51000,"NULL",null,null,47708,"CAN","Andean Community","CAN","Andean Community",47000]
[21004,"CODESRIA","Council for the Development of Economic and Social Research in Africa ","CODESRIA","Conseil pour le développement de la recherche en sciences sociales en Afrique",51000,"B01",null,null,47709,"CELAC","Community of Latin American and Caribbean States","CELAC","Community of Latin American and Caribbean States",47000]
[21009,"FARA","Forum for Agricultural Research in Africa ","FARA","Forum pour la recherche agricole en Afrique",51000,"B01",null,null,47710,null,"Pacific Alliance",null,"Pacific Alliance",47000]
[21021,"IIED","International Institute for Environment and Development ","IIED","Institut international pour l’environnement et le développement",51000,"B01",null,null,47711,"MERCOSUR","Southern Common Market","MERCOSUR","Southern Common Market",47000]
[21039,"IISD","International Institute for Sustainable Development","IIDD","Institut international de développement durable",51000,"B01",null,null,47712,"ATS","Antarctic Treaty Secretariat","ATS","Antartic Treaty Secretariat",47000]
[47008,"AVRDC","World Vegetable Centre","AVRDC","Centre international de cultures maraîchères",51000,"B01",null,null,51000," ","University, college or other teaching institution, research institute or think-tank"," ","University, college or other teaching institution, research institute or think-tank",51000]
[47017,"CIAT","International Centre for Tropical Agriculture ","CIAT","Centre international d'agriculture tropicale",51000,"B01",null,null,21004,"CODESRIA","Council for the Development of Economic and Social Research in Africa ","CODESRIA","Council for the Development of Economic and Social Research in Africa ",51000]
[47018,"CIFOR","Centre for International Forestry Research ","CIFOR","Centre de recherche forestière internationale ",51000,"B01",null,null,21009,"FARA","Forum for Agricultural Research in Africa ","FARA","Forum for Agricultural Research in Africa ",51000]
[47020,"CIMMYT","International Maize and Wheat Improvement Centre ","CIMMYT","Centre international d’amélioration du maïs et du blé ",51000,"B01",null,null,21021,"IIED","International Institute for Environment and Development ","IIED","International Institute for Environment and Development ",51000]
[47021,"CIP","International Potato Centre ","CIP","Centre international de la pomme de terre",51000,"B01",null,null,21039,"IISD","International Institute for Sustainable Development","IISD","International Institute for Sustainable Development",51000]
[47041,"FFTC","Food and Fertilizer Technology Centre ","FFTC","Centre des techniques de l'alimentation et des engrais",51000,"B01",null,null,47008,"AVRDC","World Vegetable Centre","AVRDC","World Vegetable Centre",51000]
[47047,"IAI","International African Institute ","IIA","Institut international africain",51000,"B01",null,null,47017,"CIAT","International Centre for Tropical Agriculture ","CIAT","International Centre for Tropical Agriculture ",51000]
[47051,"ICARDA","International Centre for Agricultural Research in Dry Areas ","ICARDA","Centre international de recherche agricole dans les zones arides",51000,"B01",null,null,47018,"CIFOR","Centre for International Forestry Research ","CIFOR","Centre for International Forestry Research ",51000]
[47053,"ICDDR,B","International Centre for Diarrhoeal Disease Research, Bangladesh","ICDDR,B","International Centre for Diarrhoeal Disease Research, Bangladesh",51000,"B01",null,null,47020,"CIMMYT","International Maize and Wheat Improvement Centre ","CIMMYT","International Maize and Wheat Improvement Centre ",51000]
[47054,"ICIPE","International Centre of Insect Physiology and Ecology ","ICIPE","Centre international sur la physiologie et l’écologie des insectes",51000,"B01",null,null,47021,"CIP","International Potato Centre ","CIP","International Potato Centre ",51000]
[47055,"ICRA","International Centre for Development Oriented Research in Agriculture ","ICRA","Centre International pour la Recherche Agricole orientée vers le développement",51000,"B01",null,null,47041,"FFTC","Food and Fertilizer Technology Centre ","FFTC","Food and Fertilizer Technology Centre ",51000]
[47056,"ICRAF","World AgroForestry Centre","ICRAF","Centre mondial de l’agroforesterie",51000,"B01",null,null,47047,"IAI","International African Institute ","IAI","International African Institute ",51000]
[47057,"ICRISAT","International Crop Research for Semi-Arid Tropics ","ICRISAT","Institut international de recherche sur les cultures des zones tropicales semi-arides",51000,"B01",null,null,47051,"ICARDA","International Centre for Agricultural Research in Dry Areas ","ICARDA","International Centre for Agricultural Research in Dry Areas ",51000]
[47062,"IITA","International Institute of Tropical Agriculture ","IITA","Institut international d’agriculture tropicale",51000,"B01",null,null,47053,"ICDDR,B","International Centre for Diarrhoeal Disease Research, Bangladesh","ICDDR,B","International Centre for Diarrhoeal Disease Research, Bangladesh",51000]
[47063,"ILRI","International Livestock Research Institute ","ILRI","International Livestock Research Institute",51000,"B01",null,null,47054,"ICIPE","International Centre of Insect Physiology and Ecology ","ICIPE","International Centre of Insect Physiology and Ecology ",51000]
[47069,"NULL","Bioversity International","NULL","Bioversity International",51000,"B01",null,null,47055,"ICRA","International Centre for Development Oriented Research in Agriculture ","ICRA","International Centre for Development Oriented Research in Agriculture ",51000]
[47070,"IRRI","International Rice Research Institute ","IIRR","Institut international de recherche sur le riz",51000,"B01",null,null,47056,"ICRAF","World AgroForestry Centre","ICRAF","World AgroForestry Centre",51000]
[47071,"ISTA","International Seed Testing Association ","ISTA","Association internationale d’essais de semences",51000,"B01",null,null,47057,"ICRISAT","International Crop Research for Semi-Arid Tropics ","ICRISAT","International Crop Research for Semi-Arid Tropics ",51000]
[47075,"IWMI","International Water Management Institute ","IWMI","Institut international de gestion des ressources en eau",51000,"B01",null,null,47062,"IITA","International Institute of Tropical Agriculture ","IITA","International Institute of Tropical Agriculture ",51000]
[47099,"USP","University of the South Pacific ","USP","Université du Pacifique Sud",51000,"B01",null,null,47063,"ILRI","International Livestock Research Institute ","ILRI","International Livestock Research Institute ",51000]
[47101,"WARDA","Africa Rice Centre","ADRAO","Centre du riz pour l’Afrique",51000,"B01",null,null,47069," ","Bioversity International"," ","Bioversity International",51000]
[47103,"WMU","World Maritime University ","UMM","Université maritime mondiale",51000,"B01",null,null,47070,"IRRI","International Rice Research Institute ","IRRI","International Rice Research Institute ",51000]
[47104,"WorldFish Centre","WorldFish Centre","WorldFish Centre","Centre international pour l’aménagement des ressources bioaquatiques",51000,"B01",null,null,47071,"ISTA","International Seed Testing Association ","ISTA","International Seed Testing Association ",51000]
[51001,"IFPRI","International Food Policy Research Institute","IFPRI","Institut International de Recherche sur les Politiques Alimentaires",51000,"B01",null,null,47075,"IWMI","International Water Management Institute ","IWMI","International Water Management Institute ",51000]
[60000," ","Private Sector Institutions"," ","Institutions du secteur privé",60000,"NULL",null,null,47099,"USP","University of the South Pacific ","USP","University of the South Pacific ",51000]
[61000," ","Private sector in provider country"," ","Secteur privé du pays donneur",60000,"NULL",null,null,47101,"WARDA","Africa Rice Centre","WARDA","Africa Rice Centre",51000]
[61001,"NULL","Banks (in provider country) (deposit taking corporations)","NULL","Banques (du pays donneur) (institutions de dépôts)",61000,"NULL",null,null,47103,"WMU","World Maritime University ","WMU","World Maritime University ",51000]
[61003,"NULL","Investment funds and other collective investment institutions (in provider country)","NULL","Fonds d’investissements et autres organismes de placement collectifs (du pays donneur)",61000,"NULL",null,null,47104,"WorldFish Centre","WorldFish Centre","WorldFish Centre","WorldFish Centre",51000]
[61004,"NULL","Holding companies, trusts and Special Purpose Vehicles (in provider country)","NULL","Sociétés holding, fonds fiduciaires et structures de titrisation",61000,"NULL",null,null,51001,"IFPRI","International Food Policy Research Institute","IFPRI","International Food Policy Research Institute",51000]
[61005,"NULL","Insurance Corporations (in provider country)","NULL","Sociétés d’assurance (du pays donneur)",61000,"NULL",null,null,60000," ","Private Sector Institutions"," ","Private Sector Institutions",60000]
[61006,"NULL","Pension Funds (in provider country)","NULL","Fonds de pension (du pays donneur)",61000,"NULL",null,null,61000," ","Private sector in provider country"," ","Private sector in provider country",60000]
[61007,"NULL","Other financial corporations (in provider country)","NULL","Autres sociétés financières (du pays donneur)",61000,"NULL",null,null,61001," ","Banks (deposit taking corporations)"," ","Banks (deposit taking corporations)",61000]
[61008,"NULL","Exporters (in provider country)","NULL","Exportateurs (du pays donneur)",61000,"NULL",null,null,61003," ","Investment funds and other collective investment institutions"," ","Investment funds and other collective investment institutions",61000]
[61009,"NULL","Other non-financial corporations (in provider country)","NULL","Autres sociétés non financières (du pays donneur)",61000,"NULL",null,null,61004," ","Holding companies, trusts and Special Purpose Vehicles"," ","Holding companies, trusts and Special Purpose Vehicles",61000]
[61010,"NULL","Retail investors (in provider country)","NULL","Investisseurs individuels (du pays donneur)",61000,"NULL",null,null,61005," ","Insurance Corporations"," ","Insurance Corporations",61000]
[62000," ","Private sector in recipient country"," ","Secteur privé du pays bénéficiaire",60000,"NULL",null,null,61006," ","Pension Funds"," ","Pension Funds",61000]
[62001,"NULL","Banks (in recipient country) (deposit taking corporations except Micro Finance Institutions)","NULL","Banques (du pays bénéficiaire) (institutions de dépôts hors institutions de microfinancement)",62000,"NULL",null,null,61007," ","Other financial corporations"," ","Other financial corporations",61000]
[62002,"NULL","Micro Finance Institutions (in recipient country) (deposit and non-deposit)","NULL","Institutions de microfinancement (du pays bénéficiaire) (collectant ou pas des dépôts)",62000,"NULL",null,null,61008," ","Exporters"," ","Exporters",61000]
[62003,"NULL","Investment funds and other collective investment institutions (in recipient country)","NULL","Fonds d’investissements et autres organismes de placement collectifs (du pays bénéficiaire)",62000,"NULL",null,null,61009," ","Other non-financial corporations"," ","Other non-financial corporations",61000]
[62004,"NULL","Holding companies, trusts and Special Purpose Vehicles (in recipient country)","NULL","Sociétés holding, fonds fiduciaires et structures de titrisation (du pays bénéficiaire)",62000,"NULL",null,null,61010," ","Retail investors"," ","Retail investors",61000]
[62005,"NULL","Insurance Corporations (in recipient country)","NULL","Sociétés d’assurance (du pays bénéficiaire)",62000,"NULL",null,null,62000," ","Private sector in recipient country"," ","Private sector in recipient country",60000]
[62006,"NULL","Pension Funds (in recipient country)","NULL","Fonds de pension (du pays bénéficiaire)",62000,"NULL",null,null,62001," ","Banks (deposit taking corporations except Micro Finance Institutions)"," ","Banks (deposit taking corporations except Micro Finance Institutions)",62000]
[62007,"NULL","Other financial corporations (in recipient country)","NULL","Autres sociétés financières (du pays bénéficiaire)",62000,"NULL",null,null,62002," ","Micro Finance Institutions (deposit and non-deposit)"," ","Micro Finance Institutions (deposit and non-deposit)",62000]
[62008,"NULL","Importers/Exporters","NULL","Importateurs / Exportateurs",62000,"NULL",null,null,62003," ","Investment funds and other collective investment institutions"," ","Investment funds and other collective investment institutions",62000]
[62009,"NULL","Other non-financial corporations (in recipient country)","NULL","Autres sociétés non financières (du pays bénéficiaire)",62000,"NULL",null,null,62004," ","Holding companies, trusts and Special Purpose Vehicles"," ","Holding companies, trusts and Special Purpose Vehicles",62000]
[62010,"NULL","Retail investors (in recipient country)","NULL","Investisseurs individuels (du pays bénéficiaire)",62000,"NULL",null,null,62005," ","Insurance Corporations"," ","Insurance Corporations",62000]
[63000," ","Private sector in third country"," ","Secteur privé d'un pays tiers",60000,"NULL",null,null,62006," ","Pension Funds"," ","Pension Funds",62000]
[63001,"NULL","Banks (in third country) (deposit taking corporations except Micro Finance Institutions)","NULL","Banques (d'un pays tiers) (institutions de dépôts hors institutions de microfinancement)",63000,"NULL",null,null,62007," ","Other financial corporations"," ","Other financial corporations",62000]
[63002,"NULL","Micro Finance Institutions (in third country) (deposit and non-deposit)","NULL","Institutions de microfinancement (d'un pays tiers) (collectant ou pas des dépôts)",63000,"NULL",null,null,62008," ","Importers/Exporters"," ","Importers/Exporters",62000]
[63003,"NULL","Investment funds and other collective investment institutions (in third country)","NULL","Fonds d’investissements et autres organismes de placement collectifs (d'un pays tiers)",63000,"NULL",null,null,62009," ","Other non-financial corporations"," ","Other non-financial corporations",62000]
[63004,"NULL","Holding companies, trusts and Special Purpose Vehicles (in third country)","NULL","Sociétés holding, fonds fiduciaires et structures de titrisation (d'un pays tiers)",63000,"NULL",null,null,62010," ","Retail investors"," ","Retail investors",62000]
[63005,"NULL","Insurance Corporations (in third country)","NULL","Sociétés d’assurance (d'un pays tiers)",63000,"NULL",null,null,63000," ","Private sector in third country"," ","Private sector in third country",60000]
[63006,"NULL","Pension Funds (in third country)","NULL","Fonds de pension (d'un pays tiers)",63000,"NULL",null,null,63001," ","Banks (deposit taking corporations except Micro Finance Institutions)"," ","Banks (deposit taking corporations except Micro Finance Institutions)",63000]
[63007,"NULL","Other financial corporations (in third country)","NULL","Autres sociétés financières (d'un pays tiers)",63000,"NULL",null,null,63002," ","Micro Finance Institutions (deposit and non-deposit)"," ","Micro Finance Institutions (deposit and non-deposit)",63000]
[63008,"NULL","Exporters (in third country)","NULL","Exportateurs (d'un pays tiers)",63000,"NULL",null,null,63003," ","Investment funds and other collective investment institutions"," ","Investment funds and other collective investment institutions",63000]
[63009,"NULL","Other non-financial corporations (in third country)","NULL","Autres sociétés non financières (d'un pays tiers)",63000,"NULL",null,null,63004," ","Holding companies, trusts and Special Purpose Vehicles"," ","Holding companies, trusts and Special Purpose Vehicles",63000]
[63010,"NULL","Retail investors (in third country)","NULL","Investisseurs individuels (d'un pays tiers)",63000,"NULL",null,null,63005," ","Insurance Corporations"," ","Insurance Corporations",63000]
[90000," ","Other"," ","Other",90000,"NULL",null,null,63006," ","Pension Funds"," ","Pension Funds",63000]
[null,null,null,null,null,null,null,null,null,63007," ","Other financial corporations"," ","Other financial corporations",63000]
[null,null,null,null,null,null,null,null,null,63008," ","Exporters"," ","Exporters",63000]
[null,null,null,null,null,null,null,null,null,63009," ","Other non-financial corporations"," ","Other non-financial corporations",63000]
[null,null,null,null,null,null,null,null,null,63010," ","Retail investors"," ","Retail investors",63000]
[null,null,null,null,null,null,null,null,null,90000," ","Other"," ","Other",90000]

{"sheet":"type_of_flow","index":25,"n_rows":10,"n_cols":5,"rows_kept":10,"cut":false,"hidden":true,"merged":[]}
["code","name","Description","Nom","Description"]
[10,"ODA","Official Development Assistance","APD","Aide Publique au Développement"]
[21,"Non-export credit OOF","Other Official Flows, excl. export credits","AASP hors crédits-export","Autres Apports du Secteur Public, à l'exclusion des crédits à l'exportation"]
[22,"Officially supported export credits","Officially supported export credits. Covers both official direct export credits and private export credits under official guarantee or insurance","AASP dont crédits export","Autres Apports du Secteur Public, comprenant les crédits à l'exportation soutenus par le secteur public et les exportations privées bénéficiant de garantie ou d'assurance publiques"]
[30,"Private Development Finance","Financing by civil society organisations (NGOs, philantropic foundations, etc.)","Financement du développement privé","Financement par les organisations de la société civile (ONG, fondations philantropiques, etc.)"]
[36,"Private Foreign Direct Investment","Private Foreign Direct Investment","IDE","Investissements directs à l'étranger"]
[37,"Other Private flows at market terms","Private long-term (i.e. over one-year maturity) capital transactions made by residents of DAC countries","Autres apports privés aux conditions du marché","Apports privés de long-terme (i.e. dont la maturité est  supérieure à un an), transactions en capital faites par des résidents de pays du CAD"]
[40,"Non flow","e.g. GNI, ODA%GNI, Population etc","Non apports","ex : RNB, APD%RNB, Population etc"]
[50,"Other flows","e.g. non-ODA component of peacebuilding operations","Autres apports","ex : élément non APD des opérations de maintien de la paix"]
[60,"PSI","Private Sector Instruments","ISP","Instruments du Secteur Privé"]

{"sheet":"Bi_Multi","index":26,"n_rows":8,"n_cols":3,"rows_kept":8,"cut":false,"hidden":true,"merged":[]}
["code","name","nom"]
[1,"Bilateral","Bilatéral"]
[2,"Multilateral (inflows)","Multilatéral (contributions des donneurs du CAD)"]
[3,"Bilateral, core contributions to NGOs and other private bodies / PPPs","Contributions bilatérales au budget général d'organisations non gouvernementales, d'autres organisations de la société civile, de partenariats publics-privés et d'instituts de recherches"]
[7,"Bilateral, ex-post reporting on NGOs’ activities funded through core contributions","Contributions bilatérales, notification ex post des activités des ONG financées par des contributions des donneurs au budget général de l'ONG."]
[8,"bilateral, triangular co-operation: activities where one or more bilateral providers of development co-operation or international organisations support South-South co-operation, joining forces with developing countries to facilitate a sharing of knowledge and experience among all partners involved. (Activities that only involve bilateral providers or multilateral agencies without a South-South co-operation element (e.g. joint programming, pooled funding or delegated co-operation) should not be assigned bi_multi 8.)","Coopération triangulaire bilatérale:  activités où un ou plusieurs pourvoyeurs bilatéraux de coopération pour le développement ou organisations internationales soutiennent la coopération Sud-Sud, conjointement avec des pays en développement afin de faciliter le partage des connaissances et d'expériences entre tous les partenaires impliqués. (Les activités qui n'impliquent que des pourvoyeurs bilatéraux ou des organismes multilatéraux sans coopération Sud-Sud (programmes conjoints, financements groupés ou coopération déléguée) ne devraient pas être codés bi_multi 8.)"]
[4,"Multilateral outflows","apports des agences multilatérales "]
[6,"Private sector outflows","apports du secteur privé"]

{"sheet":"recipient_country","index":27,"n_rows":178,"n_cols":30,"rows_kept":178,"cut":false,"hidden":true,"merged":[]}
["Recipient code","Recipient name (EN)","Recipient name (FR)","DAC_IncomeGroup","Region",null,null,null,null,null,null,null,null,null,null,null,null,null,null,null,null,null,null,null,null,null,"TOSSD","Country/institution code","Country/institution name (EN)","groupid"]
[55,"Türkiye","Türkiye","UMICs","Europe",null,null,null,null,null,null,null,null,null,null,null,null,null,null,null,null,null,null,null,null,null,null,55,"Türkiye",10019]
[57,"Kosovo","Kosovo","UMICs","Europe",null,"Note: ",null,null,null,null,null,null,null,null,null,null,null,null,null,null,null,null,null,null,null,null,57,"Kosovo",10019]
[63,"Serbia","Serbie","UMICs","Europe",null,"Income group: LDC (Least Developed Countries), Other LICs (Other Low Income Countries), LMICs (Lower Middle Income Countries and Territories), UMICs (Upper Middle Income Countries and Territories)",null,null,null,null,null,null,null,null,null,null,null,null,null,null,null,null,null,null,null,null,63,"Serbia",10019]
[64,"Bosnia and Herzegovina","Bosnie-Herzégovine","UMICs","Europe",null,"This list is effective for reporting on 2025 flows.",null,null,null,null,null,null,null,null,null,null,null,null,null,null,null,null,null,null,null,null,64,"Bosnia and Herzegovina",10019]
[65,"Montenegro","Monténégro","UMICs","Europe",null,null,null,null,null,null,null,null,null,null,null,null,null,null,null,null,null,null,null,null,null,null,65,"Montenegro",10019]
[66,"North Macedonia","Macédoine du Nord","UMICs","Europe",null,"Note: ",null,null,null,null,null,null,null,null,null,null,null,null,null,null,null,null,null,null,null,null,66,"North Macedonia",10019]
[71,"Albania","Albanie","UMICs","Europe",null,"Groupes de revenus : PMA (Pays les Moins Avancés), PFR (autres Pays à Faibles Revenus), PRITI (Pays et territoires à Revenus Intermédiaires Tranche Inférieure), PRITS (Pays et territoires à Revenus Interemédiaires Tranche Supérieure)",null,null,null,null,null,null,null,null,null,null,null,null,null,null,null,null,null,null,null,null,71,"Albania",10019]
[85,"Ukraine","Ukraine","LMICs","Europe",null,"Cette liste est en vigueur pour les apports 2025.",null,null,null,null,null,null,null,null,null,null,null,null,null,null,null,null,null,null,null,null,85,"Ukraine",10018]
[86,"Belarus","Bélarus","UMICs","Europe",null,null,null,null,null,null,null,null,null,null,null,null,null,null,null,null,null,null,null,null,null,null,86,"Belarus",10019]
[88,"States Ex-Yugoslavia unspecified","Etats ex-Yougoslavie non spécifié","Part I unallocated by income","Europe",null,null,null,null,null,null,null,null,null,null,null,null,null,null,null,null,null,null,null,null,null,null,88,"States Ex-Yugoslavia unspecified",10024]
[89,"Europe, regional","Europe, régional","Part I unallocated by income","Europe",null,null,null,null,null,null,null,null,null,null,null,null,null,null,null,null,null,null,null,null,null,null,89,"Europe, regional",10024]
[93,"Moldova","Moldova","UMICs","Europe",null,null,null,null,null,null,null,null,null,null,null,null,null,null,null,null,null,null,null,null,null,null,93,"Moldova",10019]
[130,"Algeria","Algérie","LMICs","North of Sahara",null,null,null,null,null,null,null,null,null,null,null,null,null,null,null,null,null,null,null,null,null,null,130,"Algeria",10018]
[133,"Libya","Libye","UMICs","North of Sahara",null,null,null,null,null,null,null,null,null,null,null,null,null,null,null,null,null,null,null,null,null,null,133,"Libya",10019]
[136,"Morocco","Maroc","LMICs","North of Sahara",null,null,null,null,null,null,null,null,null,null,null,null,null,null,null,null,null,null,null,null,null,null,136,"Morocco",10018]
[139,"Tunisia","Tunisie","LMICs","North of Sahara",null,null,null,null,null,null,null,null,null,null,null,null,null,null,null,null,null,null,null,null,null,null,139,"Tunisia",10018]
[142,"Egypt","Egypte","LMICs","North of Sahara",null,null,null,null,null,null,null,null,null,null,null,null,null,null,null,null,null,null,null,null,null,null,142,"Egypt",10018]
[189,"North of Sahara, regional","Nord du Sahara, régional","Part I unallocated by income","North of Sahara",null,null,null,null,null,null,null,null,null,null,null,null,null,null,null,null,null,null,null,null,null,null,189,"North of Sahara, regional",10024]
[218,"South Africa","Afrique du Sud","UMICs","Southern Africa",null,null,null,null,null,null,null,null,null,null,null,null,null,null,null,null,null,null,null,null,null,null,218,"South Africa",10019]
[225,"Angola","Angola","LDCs","Middle Africa",null,null,null,null,null,null,null,null,null,null,null,null,null,null,null,null,null,null,null,null,null,null,225,"Angola",10016]
[227,"Botswana","Botswana","UMICs","Southern Africa",null,null,null,null,null,null,null,null,null,null,null,null,null,null,null,null,null,null,null,null,null,null,227,"Botswana",10019]
[228,"Burundi","Burundi","LDCs","Eastern Africa",null,null,null,null,null,null,null,null,null,null,null,null,null,null,null,null,null,null,null,null,null,null,228,"Burundi",10016]
[229,"Cameroon","Cameroun","LMICs","Middle Africa",null,null,null,null,null,null,null,null,null,null,null,null,null,null,null,null,null,null,null,null,null,null,229,"Cameroon",10018]
[230,"Cabo Verde","Cabo Verde","LMICs","Western Africa",null,null,null,null,null,null,null,null,null,null,null,null,null,null,null,null,null,null,null,null,null,null,230,"Cabo Verde",10018]
[231,"Central African Republic","République centrafricaine","LDCs","Middle Africa",null,null,null,null,null,null,null,null,null,null,null,null,null,null,null,null,null,null,null,null,null,null,231,"Central African Republic",10016]
[232,"Chad","Tchad","LDCs","Middle Africa",null,null,null,null,null,null,null,null,null,null,null,null,null,null,null,null,null,null,null,null,null,null,232,"Chad",10016]
[233,"Comoros","Comores","LDCs","Eastern Africa",null,null,null,null,null,null,null,null,null,null,null,null,null,null,null,null,null,null,null,null,null,null,233,"Comoros",10016]
[234,"Congo","Congo","LMICs","Middle Africa",null,null,null,null,null,null,null,null,null,null,null,null,null,null,null,null,null,null,null,null,null,null,234,"Congo",10018]
[235,"Democratic Republic of the Congo","République démocratique du Congo","LDCs","Middle Africa",null,null,null,null,null,null,null,null,null,null,null,null,null,null,null,null,null,null,null,null,null,null,235,"Democratic Republic of the Congo",10016]
[236,"Benin","Bénin","LDCs","Western Africa",null,null,null,null,null,null,null,null,null,null,null,null,null,null,null,null,null,null,null,null,null,null,236,"Benin",10016]
[238,"Ethiopia","Ethiopie","LDCs","Eastern Africa",null,null,null,null,null,null,null,null,null,null,null,null,null,null,null,null,null,null,null,null,null,null,238,"Ethiopia",10016]
[239,"Gabon","Gabon","UMICs","Middle Africa",null,null,null,null,null,null,null,null,null,null,null,null,null,null,null,null,null,null,null,null,null,null,239,"Gabon",10019]
[240,"Gambia","Gambie","LDCs","Western Africa",null,null,null,null,null,null,null,null,null,null,null,null,null,null,null,null,null,null,null,null,null,null,240,"Gambia",10016]
[241,"Ghana","Ghana","LMICs","Western Africa",null,null,null,null,null,null,null,null,null,null,null,null,null,null,null,null,null,null,null,null,null,null,241,"Ghana",10018]
[243,"Guinea","Guinée","LDCs","Western Africa",null,null,null,null,null,null,null,null,null,null,null,null,null,null,null,null,null,null,null,null,null,null,243,"Guinea",10016]
[244,"Guinea-Bissau","Guinée-Bissau","LDCs","Western Africa",null,null,null,null,null,null,null,null,null,null,null,null,null,null,null,null,null,null,null,null,null,null,244,"Guinea-Bissau",10016]
[245,"Equatorial Guinea","Guinée équatoriale","UMICs","Middle Africa",null,null,null,null,null,null,null,null,null,null,null,null,null,null,null,null,null,null,null,null,null,null,245,"Equatorial Guinea",10019]
[247,"Côte d'Ivoire","Côte d'Ivoire","LMICs","Western Africa",null,null,null,null,null,null,null,null,null,null,null,null,null,null,null,null,null,null,null,null,null,null,247,"Côte d'Ivoire",10018]
[248,"Kenya","Kenya","LMICs","Eastern Africa",null,null,null,null,null,null,null,null,null,null,null,null,null,null,null,null,null,null,null,null,null,null,248,"Kenya",10018]
[249,"Lesotho","Lesotho","LDCs","Southern Africa",null,null,null,null,null,null,null,null,null,null,null,null,null,null,null,null,null,null,null,null,null,null,249,"Lesotho",10016]
[251,"Liberia","Libéria","LDCs","Western Africa",null,null,null,null,null,null,null,null,null,null,null,null,null,null,null,null,null,null,null,null,null,null,251,"Liberia",10016]
[252,"Madagascar","Madagascar","LDCs","Eastern Africa",null,null,null,null,null,null,null,null,null,null,null,null,null,null,null,null,null,null,null,null,null,null,252,"Madagascar",10016]
[253,"Malawi","Malawi","LDCs","Eastern Africa",null,null,null,null,null,null,null,null,null,null,null,null,null,null,null,null,null,null,null,null,null,null,253,"Malawi",10016]
[255,"Mali","Mali","LDCs","Western Africa",null,null,null,null,null,null,null,null,null,null,null,null,null,null,null,null,null,null,null,null,null,null,255,"Mali",10016]
[256,"Mauritania","Mauritanie","LDCs","Western Africa",null,null,null,null,null,null,null,null,null,null,null,null,null,null,null,null,null,null,null,null,null,null,256,"Mauritania",10016]
[257,"Mauritius","Maurice","UMICs","Eastern Africa",null,null,null,null,null,null,null,null,null,null,null,null,null,null,null,null,null,null,null,null,null,null,257,"Mauritius",10019]
[259,"Mozambique","Mozambique","LDCs","Eastern Africa",null,null,null,null,null,null,null,null,null,null,null,null,null,null,null,null,null,null,null,null,null,null,259,"Mozambique",10016]
[260,"Niger","Niger","LDCs","Western Africa",null,null,null,null,null,null,null,null,null,null,null,null,null,null,null,null,null,null,null,null,null,null,260,"Niger",10016]
[261,"Nigeria","Nigéria","LMICs","Western Africa",null,null,null,null,null,null,null,null,null,null,null,null,null,null,null,null,null,null,null,null,null,null,261,"Nigeria",10018]
[265,"Zimbabwe","Zimbabwe","LMICs","Eastern Africa",null,null,null,null,null,null,null,null,null,null,null,null,null,null,null,null,null,null,null,null,null,null,265,"Zimbabwe",10018]
[266,"Rwanda","Rwanda","LDCs","Eastern Africa",null,null,null,null,null,null,null,null,null,null,null,null,null,null,null,null,null,null,null,null,null,null,266,"Rwanda",10016]
[268,"Sao Tome and Principe","Sao Tomé-et-Principe","LDCs","Middle Africa",null,null,null,null,null,null,null,null,null,null,null,null,null,null,null,null,null,null,null,null,null,null,268,"Sao Tome and Principe",10016]
[269,"Senegal","Sénégal","LDCs","Western Africa",null,null,null,null,null,null,null,null,null,null,null,null,null,null,null,null,null,null,null,null,null,null,269,"Senegal",10016]
[271,"Eritrea","Erythrée","LDCs","Eastern Africa",null,null,null,null,null,null,null,null,null,null,null,null,null,null,null,null,null,null,null,null,null,null,270,"Seychelles",10025]
[272,"Sierra Leone","Sierra Leone","LDCs","Western Africa",null,null,null,null,null,null,null,null,null,null,null,null,null,null,null,null,null,null,null,null,null,null,271,"Eritrea",10016]
[273,"Somalia","Somalie","LDCs","Eastern Africa",null,null,null,null,null,null,null,null,null,null,null,null,null,null,null,null,null,null,null,null,null,null,272,"Sierra Leone",10016]
[274,"Djibouti","Djibouti","LDCs","Eastern Africa",null,null,null,null,null,null,null,null,null,null,null,null,null,null,null,null,null,null,null,null,null,null,273,"Somalia",10016]
[275,"Namibia","Namibie","UMICs","Southern Africa",null,null,null,null,null,null,null,null,null,null,null,null,null,null,null,null,null,null,null,null,null,null,274,"Djibouti",10016]
[276,"Saint Helena","Sainte-Hélène","UMICs","Western Africa",null,null,null,null,null,null,null,null,null,null,null,null,null,null,null,null,null,null,null,null,null,null,275,"Namibia",10019]
[278,"Sudan","Soudan","LDCs","Eastern Africa",null,null,null,null,null,null,null,null,null,null,null,null,null,null,null,null,null,null,null,null,null,null,276,"Saint Helena",10019]
[279,"South Sudan","Soudan du Sud","LDCs","Eastern Africa",null,null,null,null,null,null,null,null,null,null,null,null,null,null,null,null,null,null,null,null,null,null,278,"Sudan",10016]
[280,"Eswatini","Eswatini","LMICs","Southern Africa",null,null,null,null,null,null,null,null,null,null,null,null,null,null,null,null,null,null,null,null,null,null,279,"South Sudan",10016]
[282,"Tanzania","Tanzanie","LDCs","Eastern Africa",null,null,null,null,null,null,null,null,null,null,null,null,null,null,null,null,null,null,null,null,null,null,280,"Eswatini",10018]
[283,"Togo","Togo","LDCs","Western Africa",null,null,null,null,null,null,null,null,null,null,null,null,null,null,null,null,null,null,null,null,null,null,282,"Tanzania",10016]
[285,"Uganda","Ouganda","LDCs","Eastern Africa",null,null,null,null,null,null,null,null,null,null,null,null,null,null,null,null,null,null,null,null,null,null,283,"Togo",10016]
[287,"Burkina Faso","Burkina Faso","LDCs","Western Africa",null,null,null,null,null,null,null,null,null,null,null,null,null,null,null,null,null,null,null,null,null,null,285,"Uganda",10016]
[288,"Zambia","Zambie","LDCs","Eastern Africa",null,null,null,null,null,null,null,null,null,null,null,null,null,null,null,null,null,null,null,null,null,null,287,"Burkina Faso",10016]
[289,"South of Sahara, regional","Sud du Sahara, régional","Part I unallocated by income","South of Sahara",null,null,null,null,null,null,null,null,null,null,null,null,null,null,null,null,null,null,null,null,null,null,288,"Zambia",10016]
[298,"Africa, regional","Afrique, régional","Part I unallocated by income","Africa",null,null,null,null,null,null,null,null,null,null,null,null,null,null,null,null,null,null,null,null,null,null,289,"South of Sahara, regional",10024]
[336,"Costa Rica","Costa Rica","UMICs","Central America",null,null,null,null,null,null,null,null,null,null,null,null,null,null,null,null,null,null,null,null,null,null,298,"Africa, regional",10024]
[338,"Cuba","Cuba","UMICs","Caribbean",null,null,null,null,null,null,null,null,null,null,null,null,null,null,null,null,null,null,null,null,null,null,328,"Bahamas",10025]
[340,"Dominican Republic","République dominicaine","UMICs","Caribbean",null,null,null,null,null,null,null,null,null,null,null,null,null,null,null,null,null,null,null,null,null,null,329,"Barbados",10025]
[342,"El Salvador","El Salvador","UMICs","Central America",null,null,null,null,null,null,null,null,null,null,null,null,null,null,null,null,null,null,null,null,null,null,336,"Costa Rica",10019]
[347,"Guatemala","Guatemala","UMICs","Central America",null,null,null,null,null,null,null,null,null,null,null,null,null,null,null,null,null,null,null,null,null,null,338,"Cuba",10019]
[349,"Haiti","Haïti","LDCs","Caribbean",null,null,null,null,null,null,null,null,null,null,null,null,null,null,null,null,null,null,null,null,null,null,340,"Dominican Republic",10019]
[351,"Honduras","Honduras","LMICs","Central America",null,null,null,null,null,null,null,null,null,null,null,null,null,null,null,null,null,null,null,null,null,null,342,"El Salvador",10019]
[352,"Belize","Belize","UMICs","Central America",null,null,null,null,null,null,null,null,null,null,null,null,null,null,null,null,null,null,null,null,null,null,347,"Guatemala",10019]
[354,"Jamaica","Jamaïque","UMICs","Caribbean",null,null,null,null,null,null,null,null,null,null,null,null,null,null,null,null,null,null,null,null,null,null,349,"Haiti",10016]
[358,"Mexico","Mexique","UMICs","Central America",null,null,null,null,null,null,null,null,null,null,null,null,null,null,null,null,null,null,null,null,null,null,351,"Honduras",10018]
[364,"Nicaragua","Nicaragua","LMICs","Central America",null,null,null,null,null,null,null,null,null,null,null,null,null,null,null,null,null,null,null,null,null,null,352,"Belize",10019]
[366,"Panama","Panama","UMICs","Central America",null,null,null,null,null,null,null,null,null,null,null,null,null,null,null,null,null,null,null,null,null,null,354,"Jamaica",10019]
[378,"Dominica","Dominique","UMICs","Caribbean",null,null,null,null,null,null,null,null,null,null,null,null,null,null,null,null,null,null,null,null,null,null,358,"Mexico",10019]
[381,"Grenada","Grenade","UMICs","Caribbean",null,null,null,null,null,null,null,null,null,null,null,null,null,null,null,null,null,null,null,null,null,null,364,"Nicaragua",10018]
[383,"Saint Lucia","Sainte-Lucie","UMICs","Caribbean",null,null,null,null,null,null,null,null,null,null,null,null,null,null,null,null,null,null,null,null,null,null,366,"Panama",10019]
[384,"Saint Vincent and the Grenadines","Saint-Vincent-et-les-Grenadines","UMICs","Caribbean",null,null,null,null,null,null,null,null,null,null,null,null,null,null,null,null,null,null,null,null,null,null,375,"Trinidad and Tobago",10025]
[385,"Montserrat","Montserrat","UMICs","Caribbean",null,null,null,null,null,null,null,null,null,null,null,null,null,null,null,null,null,null,null,null,null,null,377,"Antigua and Barbuda",10025]
[389,"Caribbean & Central America, regional","Caraïbes et Amérique centrale, régional","Part I unallocated by income","Caribbean & Central America",null,null,null,null,null,null,null,null,null,null,null,null,null,null,null,null,null,null,null,null,null,null,378,"Dominica",10019]
[425,"Argentina","Argentine","UMICs","South America",null,null,null,null,null,null,null,null,null,null,null,null,null,null,null,null,null,null,null,null,null,null,381,"Grenada",10019]
[428,"Bolivia","Bolivie","LMICs","South America",null,null,null,null,null,null,null,null,null,null,null,null,null,null,null,null,null,null,null,null,null,null,382,"Saint Kitts and Nevis",10025]
[431,"Brazil","Brésil","UMICs","South America",null,null,null,null,null,null,null,null,null,null,null,null,null,null,null,null,null,null,null,null,null,null,383,"Saint Lucia",10019]
[437,"Colombia","Colombie","UMICs","South America",null,null,null,null,null,null,null,null,null,null,null,null,null,null,null,null,null,null,null,null,null,null,384,"Saint Vincent and the Grenadines",10019]
[440,"Ecuador","Equateur","UMICs","South America",null,null,null,null,null,null,null,null,null,null,null,null,null,null,null,null,null,null,null,null,null,null,385,"Montserrat",10019]
[446,"Guyana","Guyana","UMICs","South America",null,null,null,null,null,null,null,null,null,null,null,null,null,null,null,null,null,null,null,null,null,null,389,"Caribbean & Central America, regional",10024]
[451,"Paraguay","Paraguay","UMICs","South America",null,null,null,null,null,null,null,null,null,null,null,null,null,null,null,null,null,null,null,null,null,null,425,"Argentina",10019]
[454,"Peru","Pérou","UMICs","South America",null,null,null,null,null,null,null,null,null,null,null,null,null,null,null,null,null,null,null,null,null,null,428,"Bolivia",10018]
[457,"Suriname","Suriname","UMICs","South America",null,null,null,null,null,null,null,null,null,null,null,null,null,null,null,null,null,null,null,null,null,null,431,"Brazil",10019]
[463,"Venezuela","Venezuela","UMICs","South America",null,null,null,null,null,null,null,null,null,null,null,null,null,null,null,null,null,null,null,null,null,null,434,"Chile",10025]
[489,"South America, regional","Amérique du Sud, régional","Part I unallocated by income","South America",null,null,null,null,null,null,null,null,null,null,null,null,null,null,null,null,null,null,null,null,null,null,437,"Colombia",10019]
[498,"America, regional","Amérique, régional","Part I unallocated by income","America",null,null,null,null,null,null,null,null,null,null,null,null,null,null,null,null,null,null,null,null,null,null,440,"Ecuador",10019]
[540,"Iran","Iran","LMICs","Middle East",null,null,null,null,null,null,null,null,null,null,null,null,null,null,null,null,null,null,null,null,null,null,446,"Guyana",10019]
[543,"Iraq","Iraq","UMICs","Middle East",null,null,null,null,null,null,null,null,null,null,null,null,null,null,null,null,null,null,null,null,null,null,451,"Paraguay",10019]
[549,"Jordan","Jordanie","LMICs","Middle East",null,null,null,null,null,null,null,null,null,null,null,null,null,null,null,null,null,null,null,null,null,null,454,"Peru",10019]
[550,"West Bank and Gaza Strip","Cisjordanie et bande de Gaza","UMICs","Middle East",null,null,null,null,null,null,null,null,null,null,null,null,null,null,null,null,null,null,null,null,null,null,457,"Suriname",10019]
[555,"Lebanon","Liban","LMICs","Middle East",null,null,null,null,null,null,null,null,null,null,null,null,null,null,null,null,null,null,null,null,null,null,460,"Uruguay",10025]
[573,"Syrian Arab Republic","République arabe syrienne","Other LICs","Middle East",null,null,null,null,null,null,null,null,null,null,null,null,null,null,null,null,null,null,null,null,null,null,463,"Venezuela",10019]
[580,"Yemen","Yémen","LDCs","Middle East",null,null,null,null,null,null,null,null,null,null,null,null,null,null,null,null,null,null,null,null,null,null,489,"South America, regional",10024]
[589,"Middle East, regional","Moyen-Orient, régional","Part I unallocated by income","Middle East",null,null,null,null,null,null,null,null,null,null,null,null,null,null,null,null,null,null,null,null,null,null,498,"America, regional",10024]
[610,"Armenia","Arménie","UMICs","South & Central Asia",null,null,null,null,null,null,null,null,null,null,null,null,null,null,null,null,null,null,null,null,null,null,540,"Iran",10018]
[611,"Azerbaijan","Azerbaïdjan","UMICs","South & Central Asia",null,null,null,null,null,null,null,null,null,null,null,null,null,null,null,null,null,null,null,null,null,null,543,"Iraq",10019]
[612,"Georgia","Géorgie","UMICs","South & Central Asia",null,null,null,null,null,null,null,null,null,null,null,null,null,null,null,null,null,null,null,null,null,null,549,"Jordan",10018]
[613,"Kazakhstan","Kazakhstan","UMICs","South & Central Asia",null,null,null,null,null,null,null,null,null,null,null,null,null,null,null,null,null,null,null,null,null,null,550,"West Bank and Gaza Strip",10019]
[614,"Kyrgyzstan","Kirghizistan","LMICs","South & Central Asia",null,null,null,null,null,null,null,null,null,null,null,null,null,null,null,null,null,null,null,null,null,null,555,"Lebanon",10018]
[615,"Tajikistan","Tadjikistan","LMICs","South & Central Asia",null,null,null,null,null,null,null,null,null,null,null,null,null,null,null,null,null,null,null,null,null,null,573,"Syrian Arab Republic",10017]
[616,"Turkmenistan","Turkménistan","UMICs","South & Central Asia",null,null,null,null,null,null,null,null,null,null,null,null,null,null,null,null,null,null,null,null,null,null,580,"Yemen",10016]
[617,"Uzbekistan","Ouzbékistan","LMICs","South & Central Asia",null,null,null,null,null,null,null,null,null,null,null,null,null,null,null,null,null,null,null,null,null,null,589,"Middle East, regional",10024]
[619,"Central Asia, regional","Asie centrale, régional","Part I unallocated by income","South & Central Asia",null,null,null,null,null,null,null,null,null,null,null,null,null,null,null,null,null,null,null,null,null,null,610,"Armenia",10019]
[625,"Afghanistan","Afghanistan","LDCs","South & Central Asia",null,null,null,null,null,null,null,null,null,null,null,null,null,null,null,null,null,null,null,null,null,null,611,"Azerbaijan",10019]
[630,"Bhutan","Bhoutan","LMICs","South & Central Asia",null,null,null,null,null,null,null,null,null,null,null,null,null,null,null,null,null,null,null,null,null,null,612,"Georgia",10019]
[635,"Myanmar","Myanmar","LDCs","South & Central Asia",null,null,null,null,null,null,null,null,null,null,null,null,null,null,null,null,null,null,null,null,null,null,613,"Kazakhstan",10019]
[640,"Sri Lanka","Sri Lanka","LMICs","South & Central Asia",null,null,null,null,null,null,null,null,null,null,null,null,null,null,null,null,null,null,null,null,null,null,614,"Kyrgyzstan",10018]
[645,"India","Inde","LMICs","South & Central Asia",null,null,null,null,null,null,null,null,null,null,null,null,null,null,null,null,null,null,null,null,null,null,615,"Tajikistan",10018]
[655,"Maldives","Maldives","UMICs","South & Central Asia",null,null,null,null,null,null,null,null,null,null,null,null,null,null,null,null,null,null,null,null,null,null,616,"Turkmenistan",10019]
[660,"Nepal","Népal","LDCs","South & Central Asia",null,null,null,null,null,null,null,null,null,null,null,null,null,null,null,null,null,null,null,null,null,null,617,"Uzbekistan",10018]
[665,"Pakistan","Pakistan","LMICs","South & Central Asia",null,null,null,null,null,null,null,null,null,null,null,null,null,null,null,null,null,null,null,null,null,null,619,"Central Asia, regional",10024]
[666,"Bangladesh","Bangladesh","LDCs","South & Central Asia",null,null,null,null,null,null,null,null,null,null,null,null,null,null,null,null,null,null,null,null,null,null,625,"Afghanistan",10016]
[679,"South Asia, regional","Asie du Sud, régional","Part I unallocated by income","South & Central Asia",null,null,null,null,null,null,null,null,null,null,null,null,null,null,null,null,null,null,null,null,null,null,630,"Bhutan",10018]
[689,"South & Central Asia, regional","Asie du Sud & C., régional","Part I unallocated by income","South & Central Asia",null,null,null,null,null,null,null,null,null,null,null,null,null,null,null,null,null,null,null,null,null,null,635,"Myanmar",10016]
[728,"Cambodia","Cambodge","LDCs","Far East Asia",null,null,null,null,null,null,null,null,null,null,null,null,null,null,null,null,null,null,null,null,null,null,640,"Sri Lanka",10018]
[730,"China (People's Republic of)","Chine (République populaire de)","UMICs","Far East Asia",null,null,null,null,null,null,null,null,null,null,null,null,null,null,null,null,null,null,null,null,null,null,645,"India",10018]
[738,"Indonesia","Indonésie","UMICs","Far East Asia",null,null,null,null,null,null,null,null,null,null,null,null,null,null,null,null,null,null,null,null,null,null,655,"Maldives",10019]
[740,"Democratic People's Republic of Korea","République populaire démocratique de Corée","Other LICs","Far East Asia",null,null,null,null,null,null,null,null,null,null,null,null,null,null,null,null,null,null,null,null,null,null,660,"Nepal",10016]
[745,"Lao People's Democratic Republic","République démocratique populaire lao","LDCs","Far East Asia",null,null,null,null,null,null,null,null,null,null,null,null,null,null,null,null,null,null,null,null,null,null,665,"Pakistan",10018]
[751,"Malaysia","Malaisie","UMICs","Far East Asia",null,null,null,null,null,null,null,null,null,null,null,null,null,null,null,null,null,null,null,null,null,null,666,"Bangladesh",10016]
[753,"Mongolia","Mongolie","LMICs","Far East Asia",null,null,null,null,null,null,null,null,null,null,null,null,null,null,null,null,null,null,null,null,null,null,679,"South Asia, regional",10024]
[755,"Philippines","Philippines","LMICs","Far East Asia",null,null,null,null,null,null,null,null,null,null,null,null,null,null,null,null,null,null,null,null,null,null,689,"South & Central Asia, regional",10024]
[764,"Thailand","Thaïlande","UMICs","Far East Asia",null,null,null,null,null,null,null,null,null,null,null,null,null,null,null,null,null,null,null,null,null,null,725,"Brunei Darussalam",10025]
[765,"Timor-Leste","Timor-Leste","LDCs","Far East Asia",null,null,null,null,null,null,null,null,null,null,null,null,null,null,null,null,null,null,null,null,null,null,728,"Cambodia",10016]
[769,"Viet Nam","Viet Nam","LMICs","Far East Asia",null,null,null,null,null,null,null,null,null,null,null,null,null,null,null,null,null,null,null,null,null,null,730,"China (People's Republic of)",10019]
[789,"Far East Asia, regional","Extrême-Orient, régional","Part I unallocated by income","Far East Asia",null,null,null,null,null,null,null,null,null,null,null,null,null,null,null,null,null,null,null,null,null,null,738,"Indonesia",10019]
[798,"Asia, regional","Asie, régional","Part I unallocated by income","Asia",null,null,null,null,null,null,null,null,null,null,null,null,null,null,null,null,null,null,null,null,null,null,740,"Democratic People's Republic of Korea",10017]
[832,"Fiji","Fidji","UMICs","Melanesia",null,null,null,null,null,null,null,null,null,null,null,null,null,null,null,null,null,null,null,null,null,null,745,"Lao People's Democratic Republic",10016]
[836,"Kiribati","Kiribati","LDCs","Micronesia",null,null,null,null,null,null,null,null,null,null,null,null,null,null,null,null,null,null,null,null,null,null,751,"Malaysia",10019]
[845,"Nauru","Nauru","UMICs","Micronesia",null,null,null,null,null,null,null,null,null,null,null,null,null,null,null,null,null,null,null,null,null,null,753,"Mongolia",10018]
[854,"Vanuatu","Vanuatu","LMICs","Melanesia",null,null,null,null,null,null,null,null,null,null,null,null,null,null,null,null,null,null,null,null,null,null,755,"Philippines",10018]
[856,"Niue","Niue","UMICs","Polynesia",null,null,null,null,null,null,null,null,null,null,null,null,null,null,null,null,null,null,null,null,null,null,764,"Thailand",10019]
[859,"Marshall Islands","Iles Marshall","UMICs","Micronesia",null,null,null,null,null,null,null,null,null,null,null,null,null,null,null,null,null,null,null,null,null,null,765,"Timor-Leste",10016]
[860,"Micronesia","Micronésie","LMICs","Micronesia",null,null,null,null,null,null,null,null,null,null,null,null,null,null,null,null,null,null,null,null,null,null,769,"Viet Nam",10018]
[861,"Palau","Palaos","UMICs","Micronesia",null,null,null,null,null,null,null,null,null,null,null,null,null,null,null,null,null,null,null,null,null,null,789,"Far East Asia, regional",10024]
[862,"Papua New Guinea","Papouasie-Nouvelle-Guinée","LMICs","Melanesia",null,null,null,null,null,null,null,null,null,null,null,null,null,null,null,null,null,null,null,null,null,null,798,"Asia, regional",10024]
[866,"Solomon Islands","Îles Salomon","LDCs","Melanesia",null,null,null,null,null,null,null,null,null,null,null,null,null,null,null,null,null,null,null,null,null,null,831,"Cook Islands",10025]
[868,"Tokelau","Tokélaou","LMICs","Polynesia",null,null,null,null,null,null,null,null,null,null,null,null,null,null,null,null,null,null,null,null,null,null,832,"Fiji",10019]
[870,"Tonga","Tonga","UMICs","Polynesia",null,null,null,null,null,null,null,null,null,null,null,null,null,null,null,null,null,null,null,null,null,null,836,"Kiribati",10016]
[872,"Tuvalu","Tuvalu","LDCs","Polynesia",null,null,null,null,null,null,null,null,null,null,null,null,null,null,null,null,null,null,null,null,null,null,845,"Nauru",10019]
[876,"Wallis and Futuna","Wallis-et-Futuna","UMICs","Polynesia",null,null,null,null,null,null,null,null,null,null,null,null,null,null,null,null,null,null,null,null,null,null,854,"Vanuatu",10018]
[880,"Samoa","Samoa","LMICs","Polynesia",null,null,null,null,null,null,null,null,null,null,null,null,null,null,null,null,null,null,null,null,null,null,856,"Niue",10019]
[889,"Oceania, regional","Océanie, régional","Part I unallocated by income","Oceania",null,null,null,null,null,null,null,null,null,null,null,null,null,null,null,null,null,null,null,null,null,null,859,"Marshall Islands",10019]
[998,"Developing countries, unspecified","Pays en développement, non spécifié","Part I unallocated by income",null,null,null,null,null,null,null,null,null,null,null,null,null,null,null,null,null,null,null,null,null,null,null,860,"Micronesia",10018]
[1027,"Eastern Africa, regional","Afrique de l'est, régional","Part I unallocated by income","Eastern Africa",null,null,null,null,null,null,null,null,null,null,null,null,null,null,null,null,null,null,null,null,null,null,861,"Palau",10019]
[1028,"Middle Africa, regional","Afrique centrale, régional","Part I unallocated by income","Middle Africa",null,null,null,null,null,null,null,null,null,null,null,null,null,null,null,null,null,null,null,null,null,null,862,"Papua New Guinea",10018]
[1029,"Southern Africa, regional","Afrique australe, régional","Part I unallocated by income","Southern Africa",null,null,null,null,null,null,null,null,null,null,null,null,null,null,null,null,null,null,null,null,null,null,866,"Solomon Islands",10016]
[1030,"Western Africa, regional","Afrique occidentale, régional","Part I unallocated by income","Western Africa",null,null,null,null,null,null,null,null,null,null,null,null,null,null,null,null,null,null,null,null,null,null,868,"Tokelau",10018]
[1031,"Caribbean, regional","Caraïbes, régional","Part I unallocated by income","Caribbean",null,null,null,null,null,null,null,null,null,null,null,null,null,null,null,null,null,null,null,null,null,null,870,"Tonga",10019]
[1032,"Central America, regional","Amérique centrale, régional","Part I unallocated by income","Central America",null,null,null,null,null,null,null,null,null,null,null,null,null,null,null,null,null,null,null,null,null,null,872,"Tuvalu",10016]
[1033,"Melanesia, regional","Mélanésie, régional","Part I unallocated by income","Melanesia",null,null,null,null,null,null,null,null,null,null,null,null,null,null,null,null,null,null,null,null,null,null,876,"Wallis and Futuna",10019]
[1034,"Micronesia, regional","Micronésie, régional","Part I unallocated by income","Micronesia",null,null,null,null,null,null,null,null,null,null,null,null,null,null,null,null,null,null,null,null,null,null,880,"Samoa",10018]
[1035,"Polynesia, regional","Polynésie, régional","Part I unallocated by income","Polynesia",null,null,null,null,null,null,null,null,null,null,null,null,null,null,null,null,null,null,null,null,null,null,889,"Oceania, regional",10024]
[null,null,null,null,null,null,null,null,null,null,null,null,null,null,null,null,null,null,null,null,null,null,null,null,null,null,null,998,"Developing countries, unspecified",10024]
[null,null,null,null,null,null,null,null,null,null,null,null,null,null,null,null,null,null,null,null,null,null,null,null,null,null,null,999,"Global",10024]
[null,null,null,null,null,null,null,null,null,null,null,null,null,null,null,null,null,null,null,null,null,null,null,null,null,null,null,1027,"Eastern Africa, regional",10024]
[null,null,null,null,null,null,null,null,null,null,null,null,null,null,null,null,null,null,null,null,null,null,null,null,null,null,null,1028,"Middle Africa, regional",10024]
[null,null,null,null,null,null,null,null,null,null,null,null,null,null,null,null,null,null,null,null,null,null,null,null,null,null,null,1029,"Southern Africa, regional",10024]
[null,null,null,null,null,null,null,null,null,null,null,null,null,null,null,null,null,null,null,null,null,null,null,null,null,null,null,1030,"Western Africa, regional",10024]
[null,null,null,null,null,null,null,null,null,null,null,null,null,null,null,null,null,null,null,null,null,null,null,null,null,null,null,1031,"Caribbean, regional",10024]
[null,null,null,null,null,null,null,null,null,null,null,null,null,null,null,null,null,null,null,null,null,null,null,null,null,null,null,1032,"Central America, regional",10024]
[null,null,null,null,null,null,null,null,null,null,null,null,null,null,null,null,null,null,null,null,null,null,null,null,null,null,null,1033,"Melanesia, regional",10024]
[null,null,null,null,null,null,null,null,null,null,null,null,null,null,null,null,null,null,null,null,null,null,null,null,null,null,null,1034,"Micronesia, regional",10024]
[null,null,null,null,null,null,null,null,null,null,null,null,null,null,null,null,null,null,null,null,null,null,null,null,null,null,null,1035,"Polynesia, regional",10024]

{"sheet":"nature_of_submission","index":28,"n_rows":7,"n_cols":3,"rows_kept":7,"cut":false,"hidden":true,"merged":[]}
["code","name","Nom"]
[1,"New activity reported","Activité nouvellement notifiée "]
[2,"Revision","Révision"]
[3,"Previously reported activity (increase/decrease of earlier commitment, disbursement on earlier commitment)","Activité déjà notifiée antérieurement (augmentation ou diminution d'un engagement antérieur, versmeent consécutif à un engagement antérieur)"]
[5,"Provisional data","Donnée préliminaire"]
[8,"Commitment = Disbursement","engagment = versement"]
[9,"Net disbursements","Versements nets"]

{"sheet":"Donor","index":29,"n_rows":37,"n_cols":3,"rows_kept":37,"cut":false,"hidden":true,"merged":[]}
["Updated March 2026"]
[]
["List of DAC members"]
["Donor code","Donor name (EN)","Donor name (FR)"]
[1,"Austria","Autriche"]
[2,"Belgium","Belgique"]
[3,"Denmark","Danemark"]
[4,"France","France"]
[5,"Germany","Allemagne"]
[6,"Italy","Italie"]
[7,"Netherlands","Pays-Bas"]
[8,"Norway","Norvège"]
[9,"Portugal","Portugal"]
[10,"Sweden","Suède"]
[11,"Switzerland","Suisse"]
[12,"United Kingdom","Royaume-Uni"]
[18,"Finland","Finlande"]
[20,"Iceland","Islande"]
[21,"Ireland","Irlande"]
[22,"Luxembourg","Luxembourg"]
[40,"Greece","Grèce"]
[50,"Spain","Espagne"]
[61,"Slovenia","Slovénie"]
[68,"Czechia","Tchéquie"]
[69,"Slovak Republic","République slovaque"]
[75,"Hungary","Hongrie"]
[76,"Poland","Pologne"]
[77,"Romania","Roumanie"]
[82,"Estonia","Estonie"]
[84,"Lithuania","Lituanie"]
[301,"Canada","Canada"]
[302,"United States","Etats-Unis"]
[701,"Japan","Japon"]
[742,"Korea","Corée"]
[801,"Australia","Australie"]
[820,"New Zealand","Nouvelle-Zélande"]
[918,"EU Institutions","Institutions de l'UE"]